{"text_format":"1","workbook":"xlsx","n_sheets":74,"sheets":["ACS_Notes","StartInstruction","ACS_Table_B08303","PopulationCharacteristics","SchoolEnrolEduAttain","HousingCharacteristics","CntyDataLink","CntyQuery","BuildingPermitsSince2000","EmploymentAndWages","EmpVsHUxCounty","HHIncome-10YearComparison","HHIncomeByAge","HHIncomeByTenure","ACS_Source_Table_List","Updates","OwnerHousingCost","OwnerHousingCostPrior5Year","ACS_Table_B25075_&_B25077","ACS_Table_B25088","ACS_Table_B25091","ACS_Table_B25106","SData_B08303Comuuting","ACS_Table_B01001","ACS_Table_B01002","ACS_Tbl_B11001_B11002_B25010","ACS_Table_B19001","ACS_Table_B19037","DisabilityByAge","DisabilityByAgePrior5YearEst","ACS_Table_B18101","ACS_Table_B18102","ACS_Table_B18103","ACS_Table_B18104","ACS_Table_B18105","ACS_Table_B18106","ACS_Table_B18107","ACS_Table_C18108","ACS_TableB19201_ACS_Tbl_B19202","ACS_Table_B19049","ACS_Table_B25118","ACS_Table_B25119","ACS_Table_B25001","ACS_Table_B25003","ACS_Table_B25004","ACS_Table_B25008","ACS_Table_B25024","ACS_Table_B25032","ACS_Table_B25034","ACS_Table_B25041","PovertyCharacteristics","ACS_Table_ B17001","ACS_Table_B17010","ACS_Table_B17017","ACS_Table_B03002","RentalHousingCost","RentalHousingCost-Prior5Yr","ACS_Table_B25063_&_B25064","ACS_Table_B25070","ACS_Table_B25074","PlaceOfBirthAndPriorRes","ACS_Table_B05002","ACS_Table_B07003","ACS_Table_B14001","ACS_Table_B15002","ACS_TableB19101_ACS_Tbl_B19113","PopComparison","HousingComparison","Housing_EmploymentComparison","DropDownList","CntyQryCensus","CntyDataLinkPrior5YearEstimates","StatisticallySignificantCalcs","SmallTownEmploymentandWages"],"not_rendered":{"charts":86,"images":160,"macros":1,"external_links":1,"defined_names":66,"comments":0,"pivot_tables":0},"unopened":[],"bounds":{"document_bytes":16777216,"sheet_cells":100000,"rows_first":2000,"rows_last":500,"rows_between":2000,"halvings":0,"cell_chars":16384,"cell_head_chars":4096},"cells_cut":0,"cells_raw":0,"read":"row_number_cap","date_system":"1900"}

{"sheet":"ACS_Notes","index":0,"n_rows":28,"n_cols":1,"rows_kept":28,"cut":false,"hidden":true,"merged":[[10,0,12,14],[14,0,14,14],[18,0,19,14],[3,0,5,14],[7,0,8,14],[25,0,25,14],[20,0,21,14],[22,0,22,14],[23,0,23,14],[24,0,24,14],[31,60,31,74],[31,75,31,89],[31,90,31,104],[31,105,31,119],[29,0,29,14],[31,15,31,29],[31,30,31,44],[31,45,31,59],[31,120,31,134],[31,135,31,149],[31,150,31,164],[31,165,31,179],[31,240,31,254],[31,180,31,194],[31,195,31,209],[31,210,31,224],[31,225,31,239]]}
["NOTES:"]
[]
[]
["Data are based on a sample and are subject to sampling variability. The degree of uncertainty for an estimate arising from sampling variability is represented through the use of a margin of error. The value shown here is the 90 percent margin of error. The margin of error can be interpreted roughly as providing a 90 percent probability that the interval defined by the estimate minus the margin of error and the estimate plus the margin of error (the lower and upper confidence bounds) contains the true value. In addition to sampling variability, the ACS estimates are subject to nonsampling error (for a discussion of nonsampling variability, see Accuracy of the Data). The effect of nonsampling error is not represented in these tables."]
[]
[]
[]
["In addition to sampling variability, the ACS estimates are subject to nonsampling error (for a discussion of nonsampling variability, see Accuracy of the Data. The link is located at the end of this worksheet.).  The effect of nonsampling error is not represented in these tables."]
[]
[]
["While the 2005-2009 American Community Survey (ACS) data generally reflect the November 2008 Office of Management and Budget (OMB) definitions of metropolitan and micropolitan statistical areas; in certain instances the names, codes, and boundaries of the principal cities shown in ACS tables may differ from the OMB definitions due to differences in the effective dates of the geographic entities."]
[]
[]
[]
["Estimates of urban and rural population, housing units, and characteristics reflect boundaries of urban areas defined based on Census 2000 data.  Boundaries for urban areas have not been updated since Census 2000.  As a result, data for urban and rural areas from the ACS do not necessarily reflect the results of ongoing urbanization."]
[]
["Explanation of Symbols:"]
[]
["1. An '**' entry in the margin of error column indicates that either no sample observations or too few sample observations were available to compute a standard error and thus the margin of error. A statistical test is not appropriate."]
[]
["2. An '-' entry in the estimate column indicates that either no sample observations or too few sample observations were available to compute an estimate, or a ratio of medians cannot be calculated because one or both of the median estimates falls in the lowest interval or upper interval of an open-ended distribution."]
[]
["3. An '-' following a median estimate means the median falls in the lowest interval of an open-ended distribution."]
["4. An '+' following a median estimate means the median falls in the upper interval of an open-ended distribution."]
["5. An '***' entry in the margin of error column indicates that the median falls in the lowest interval or upper interval of an open-ended distribution. A statistical test is not appropriate."]
["6. An '*****' entry in the margin of error column indicates that the estimate is controlled. A statistical test for sampling variability is not appropriate."]
[]
["Accuracy of Data "]

{"sheet":"StartInstruction","index":1,"n_rows":33,"n_cols":16,"rows_kept":33,"cut":false,"hidden":false,"merged":[[26,1,29,3],[29,15,31,18]]}
["Demographic Profiles for Municipalities in Carroll County"]
[]
["To view or print a Demographic Profile follow the steps below"]
[]
[]
["Step 1. ",null,"Select the municipality you wish to view"]
[null,null,"from the drop down box below. "]
[]
[]
[]
[]
["Step 2. ",null,"Click one of the profile topic buttons below to review or print"]
[null,null,"the information for the selected geography."]
[null,null,"Don't forget to adjust the axis on charts as necessary. "]
[]
[]
[]
[]
[]
[]
[]
[]
[]
[]
[]
[]
[]
[null,null,null,null,null,null,null,null,null,null,null,null,null,"Updated:",null,"2020-12-18"]
[]
[null,null,null,null,null,null,null,null,null,null,null,null,null,"Next Update:",null,"Fall 2021 - Annual Employment and Wage data"]
[]
[]
[null,null,null,null,null,null,null,null,null,null," ",null,null,null,null," "]

{"sheet":"ACS_Table_B08303","index":2,"n_rows":51,"n_cols":40,"rows_kept":51,"cut":false,"hidden":true,"merged":[]}
[null,"B08303: TRAVEL TIME TO WORK"]
[null,"Universe: Workers 16 years and over who did not work at home"]
[null,"Data Set: 2014-2018 American Community Survey 5-Year Estimates"]
[]
[null,null,"Albany",null,"Bartlett",null,"Brookfield",null,"Chatham",null,"Conway",null,"Eaton",null,"Effingham",null,"Freedom",null,"Hale's location",null,"Hart's Location",null,"Jackson",null,"Madison",null,"Moultonborough",null,"Ossipee",null,"Sandwich",null,"Tamworth",null,"Tuftonboro",null,"Wakefield",null,"Wolfeboro"]
[null,null,"Estimates","Margin Of Error","Estimates","Margin Of Error","Estimates","Margin Of Error","Estimates","Margin Of Error","Estimates","Margin Of Error","Estimates","Margin Of Error","Estimates","Margin Of Error","Estimates","Margin Of Error","Estimates","Margin Of Error","Estimates","Margin Of Error","Estimates","Margin Of Error","Estimates","Margin Of Error","Estimates","Margin Of Error","Estimates","Margin Of Error","Estimates","Margin Of Error","Estimates","Margin Of Error","Estimates","Margin Of Error","Estimates","Margin Of Error","Estimates","Margin Of Error"]
[null,"Population Older than 16 not working at hom",288,63,1256,211,339,74,167,64,4817,421,135,46,672,137,522,104,33,17,38,26,466,136,1192,132,1692,190,1715,258,557,117,1553,208,858,136,2401,303,2626,333]
[null,"Less than 5 minutes",15,15,141,97,19,17,0,11,659,279,12,10,17,11,14,19,0,11,5,5,50,40,28,20,131,104,86,83,20,12,192,124,62,41,121,97,259,188]
[null,"5 to 9 minutes",10,7,189,93,10,12,5,8,1314,392,0,11,23,26,23,19,15,13,9,10,107,56,81,51,166,78,127,63,45,31,258,156,85,58,145,126,243,127]
[null,"10 to 14 minutes",34,19,238,119,22,13,0,11,1007,283,26,20,44,29,93,50,6,7,4,7,37,30,68,42,244,87,167,105,48,31,203,103,64,31,159,127,721,269]
[null,"15 to 19 minutes",87,38,254,170,27,19,9,7,863,220,22,20,96,45,77,31,2,3,2,3,95,39,134,54,202,75,158,71,69,41,93,68,198,74,202,161,236,147]
[null,"20 to 24 minutes",34,15,264,128,60,27,19,14,323,137,21,16,135,47,64,28,4,6,2,3,44,35,254,72,167,88,107,65,44,22,242,148,107,34,238,163,190,154]
[null,"25 to 29 minutes",13,15,0,11,16,10,11,10,76,52,10,8,32,25,41,27,0,11,6,8,13,21,200,85,90,53,140,76,38,23,61,75,27,23,151,106,85,76]
[null,"30 to 34 minutes",33,21,26,29,22,13,62,43,157,68,7,9,104,41,60,31,0,11,4,6,89,61,137,71,160,80,201,116,74,33,197,126,76,34,174,99,121,98]
[null,"35 to 39 minutes",5,6,0,11,10,9,9,7,9,14,3,4,19,13,51,38,0,11,0,11,9,14,38,33,113,74,9,18,27,25,59,67,0,11,159,114,13,21]
[null,"40 to 44 minutes",20,16,0,11,19,16,15,12,97,90,5,5,15,10,16,12,0,11,0,11,0,11,76,42,146,68,132,71,45,31,25,37,44,28,116,94,241,131]
[null,"45 to 59 minutes",22,15,64,69,49,21,23,15,132,103,1,3,93,39,42,23,2,3,0,11,13,19,58,44,68,43,280,173,63,32,159,106,75,69,398,174,126,92]
[null,"60 to 89 minutes",13,12,68,67,45,21,13,10,49,40,9,9,85,38,19,13,0,11,6,9,9,14,63,39,106,59,216,85,64,29,34,47,73,39,402,187,291,177]
[null,"90 or more minutes",2,4,12,17,40,23,1,2,131,89,19,16,9,9,22,21,4,5,0,11,0,11,55,37,99,79,92,74,20,13,30,30,47,42,136,74,100,81]
[]
[]
[]
[]
[]
[]
[]
[]
[]
[]
[]
[]
[]
[]
[]
[]
[]
[]
[]
[null,null,479,109,1383,187,316,81,203,78,4975,456,229,75,572,103,445,82,13,11,31,20,283,85,1144,142,1801,227,1775,226,655,96,1347,153,961,152,2323,283,2760,296]
[null,null,25,28,101,73,6,8,10,12,413,207,29,29,6,9,47,37,0,114,13,12,35,20,78,42,80,77,110,81,19,12,117,60,100,58,86,59,167,101]
[null,null,77,36,225,107,30,24,5,11,1118,252,9,9,67,39,45,25,0,114,0,114,64,34,10,17,308,103,193,92,51,26,201,103,44,45,330,137,601,208]
[null,null,53,39,353,132,21,18,1,5,1009,246,4,7,54,27,59,35,7,9,0,114,27,19,177,101,194,89,201,88,68,32,141,81,153,88,157,112,652,220]
[null,null,79,34,243,90,34,22,13,15,914,250,46,21,55,29,52,26,2,4,0,114,68,38,261,102,226,101,314,125,101,41,170,90,194,75,129,89,344,161]
[null,null,107,43,270,158,50,23,37,28,682,217,64,37,133,77,57,29,0,114,7,8,28,18,226,83,381,142,142,63,105,32,156,64,143,62,297,151,201,104]
[null,null,43,35,62,49,19,20,7,13,90,74,16,15,15,20,22,15,0,114,0,114,0,114,70,46,28,25,145,86,32,17,95,50,23,18,158,104,64,65]
[null,null,40,48,77,61,34,23,24,18,269,144,24,18,115,58,45,18,0,114,2,3,21,23,156,81,173,97,202,127,47,27,267,97,88,60,438,156,26,32]
[null,null,3,5,0,114,26,24,10,10,80,72,7,11,7,7,18,14,0,114,0,114,5,9,0,114,8,13,55,45,40,29,40,32,20,24,118,96,40,49]
[null,null,9,15,0,114,19,17,46,33,35,40,8,9,31,20,19,16,0,114,0,114,17,16,46,42,52,46,10,17,36,23,22,18,30,30,59,58,90,82]
[null,null,11,12,11,17,22,21,4,6,69,58,15,16,39,23,24,20,0,114,0,114,0,114,67,46,106,78,152,101,87,30,85,40,37,33,135,79,355,190]
[null,null,29,21,12,19,32,36,35,33,87,57,4,4,41,22,53,27,4,6,0,114,7,11,29,35,86,92,103,57,57,25,20,18,109,65,197,127,148,78]
[null,null,3,5,29,33,23,15,11,14,209,131,3,6,9,10,4,6,0,114,9,15,11,13,24,23,159,91,148,84,12,11,33,26,20,18,219,117,72,55]

{"sheet":"PopulationCharacteristics","index":3,"n_rows":87,"n_cols":23,"rows_kept":87,"cut":false,"hidden":true,"merged":[[48,3,48,4],[48,6,48,7],[48,9,48,10],[63,1,63,3],[18,2,18,12],[2,8,2,12],[45,1,45,8],[18,15,18,21],[19,11,19,13],[19,18,19,20],[3,1,3,3],[19,15,19,17]]}
[]
[null,{"$f":"CntyDataLink!$A35","v":"Albany"}]
[null,null,null,null,null,null,"Land Area:",{"$f":"((CntyDataLink!$F35*10.764)/43560)/640","v":74.744657073863635},null,null,"Water Area:",0.52121522469008263,{"$f":"((CntyDataLink!$G35*10.764)/43560)/640","v":0.32946178331611564}]
[null,"POPULATION CHARACTERISTICS"]
[]
[]
[]
[]
[]
[]
[]
[]
[]
[]
[]
[]
[]
[]
[null,"Population ",{"$f":"\"Source:  US Census; New Hampshire Office of Strategic Initiatives; \"& L20&\", \"&P20&\", and \"&S20&\" American Community Survey Table B01001\"","v":"Source:  US Census; New Hampshire Office of Strategic Initiatives; 2005-2009, 2009-2013, and 2015-2019 American Community Survey Table B01001"},null,null,null,null,null,null,null,null,null,null,"Population by Age ",null,{"$f":"\"Source: \"& L20&\", \"&P20&\", and \"&S20&\"  American Community Survey Tables B01001 and B01002\"","v":"Source: 2005-2009, 2009-2013, and 2015-2019  American Community Survey Tables B01001 and B01002"}]
[null,null,null,null,null,null,null,null,null,null,null,"2005-2009",null,null,null,"2009-2013",null,null,"2015-2019"]
[null,null,1980,1990,2000,"2015-2019",2025,2030,null,null,null,"Estimate",null,"Margin of Error","Percent Change","Estimate","Margin of Error","Percent Change","Estimate","Margin of Error",null,"Percent Change","Statistically Significant Change"]
[null,null,{"$f":"CntyDataLink!$E$20","v":383},{"$f":"CntyDataLink!$F$20","v":536},{"$f":"CntyDataLink!$G$20","v":654},{"$f":"CntyDataLink!$B$132","v":703},{"$f":"CntyDataLink!$I$20","v":822},{"$f":"CntyDataLink!$K$20","v":870},null,null,"Under 15 yrs.",{"$f":"#REF!","v":{"$error":"#REF!"}},null,{"$f":"#REF!","v":{"$error":"#REF!"}},{"$f":"L22/SUM($L$22:$L$29)","v":{"$error":"#REF!"}},{"$f":"CntyDataLinkPrior5YearEstimates!$D$132","v":177},{"$f":"CntyDataLinkPrior5YearEstimates!$E$132","v":66.858058601787121},{"$f":"P22/SUM($P$22:$P$29)","v":0.22125},{"$f":"CntyDataLink!$D$132","v":91},{"$f":"CntyDataLink!$E$132","v":46.454278597347738},{"$f":"S22/SUM($S$22:$S$29)","v":0.12944523470839261},{"$f":"(S22-P22)/P22","v":-0.48587570621468928},{"$f":"StatisticallySignificantCalcs!$A3","v":"Y"}]
[null,null,null,null,null,null,null,null,null,null,"15 to 24 yrs.",{"$f":"#REF!","v":{"$error":"#REF!"}},null,{"$f":"#REF!","v":{"$error":"#REF!"}},{"$f":"L23/SUM($L$22:$L$29)","v":{"$error":"#REF!"}},{"$f":"CntyDataLinkPrior5YearEstimates!$F$132","v":81},{"$f":"CntyDataLinkPrior5YearEstimates!$G$132","v":46.292547996410825},0.10125000000000001,{"$f":"CntyDataLink!$F$132","v":85},{"$f":"CntyDataLink!$G$132","v":40.11234224026316},0.12091038406827881,4.9382716049382713E-2,{"$f":"StatisticallySignificantCalcs!$A4","v":"Y"}]
[null,"Percent Change",null,null,null,null,null,null,null,null,"25 to 34 yrs.",{"$f":"#REF!","v":{"$error":"#REF!"}},null,{"$f":"#REF!","v":{"$error":"#REF!"}},{"$f":"L24/SUM($L$22:$L$29)","v":{"$error":"#REF!"}},{"$f":"CntyDataLinkPrior5YearEstimates!$H$132","v":22},{"$f":"CntyDataLinkPrior5YearEstimates!$I$132","v":26.038433132583073},2.75E-2,{"$f":"CntyDataLink!$H$132","v":50},{"$f":"CntyDataLink!$I$132","v":32.557641192199412},7.1123755334281655E-2,1.2727272727272727,{"$f":"StatisticallySignificantCalcs!$A5","v":"Y"}]
[null,null,null,{"$f":"C21&\"-\"&(D21-1900)","v":"1980-90"},"1990-2000",{"$f":"E21&\"-19\"","v":"2000-19"},{"$f":"2019&\"-\"&(G21)","v":"2019-2025"},{"$f":"G21&\"-\"&(H21)","v":"2025-2030"},null,null,"35 to 44 yrs.",{"$f":"#REF!","v":{"$error":"#REF!"}},null,{"$f":"#REF!","v":{"$error":"#REF!"}},{"$error":"#REF!"},{"$f":"CntyDataLinkPrior5YearEstimates!$J$132","v":138},{"$f":"CntyDataLinkPrior5YearEstimates!$K$132","v":45.989129150267672},0.17249999999999999,{"$f":"CntyDataLink!$J$132","v":86},{"$f":"CntyDataLink!$K$132","v":36.193922141707716},0.12233285917496443,-0.37681159420289856,{"$f":"StatisticallySignificantCalcs!$A6","v":"Y"}]
[null,null,null,{"$f":"(D22-C22)/C22","v":0.39947780678851175},{"$f":"(E22-D22)/D22","v":0.22014925373134328},{"$f":"(F22-E22)/E22","v":7.492354740061162E-2},{"$f":"(G22-F22)/F22","v":0.16927453769559034},{"$f":"(H22-G22)/G22","v":5.8394160583941604E-2},null,null,"45 to 54 yrs.",{"$f":"#REF!","v":{"$error":"#REF!"}},null,{"$f":"#REF!","v":{"$error":"#REF!"}},{"$error":"#REF!"},{"$f":"CntyDataLinkPrior5YearEstimates!$L$132","v":160},{"$f":"CntyDataLinkPrior5YearEstimates!$M$132","v":46.583258795408462},0.2,{"$f":"CntyDataLink!$L$132","v":88},{"$f":"CntyDataLink!$M$132","v":30.364452901377952},0.1251778093883357,-0.45,{"$f":"StatisticallySignificantCalcs!$A7","v":"Y"}]
[null,null,null,null,null,null,null,null,null,null,"55 to 64 yrs.",{"$f":"#REF!","v":{"$error":"#REF!"}},null,{"$f":"#REF!","v":{"$error":"#REF!"}},{"$error":"#REF!"},{"$f":"CntyDataLinkPrior5YearEstimates!$N$132","v":88},{"$f":"CntyDataLinkPrior5YearEstimates!$O$132","v":32.12475680841802},0.11,{"$f":"CntyDataLink!$N$132","v":153},{"$f":"CntyDataLink!$O$132","v":36.138621999185304},0.21763869132290184,0.73863636363636365,{"$f":"StatisticallySignificantCalcs!$A8","v":"Y"}]
[null,null,null,null,null,null,null,null,null,null,"65 to 74 yrs.",{"$f":"#REF!","v":{"$error":"#REF!"}},null,{"$f":"#REF!","v":{"$error":"#REF!"}},{"$error":"#REF!"},{"$f":"CntyDataLinkPrior5YearEstimates!$P$132","v":76},{"$f":"CntyDataLinkPrior5YearEstimates!$Q$132","v":27.129319932501073},9.5000000000000001E-2,{"$f":"CntyDataLink!$P$132","v":87},{"$f":"CntyDataLink!$Q$132","v":29.376861643136763},0.12375533428165007,0.14473684210526316,{"$f":"StatisticallySignificantCalcs!$A9","v":"Y"}]
[null,null,null,null,null,null,null,null,null,null,"Over 74 yrs. ",{"$f":"#REF!","v":{"$error":"#REF!"}},null,{"$f":"#REF!","v":{"$error":"#REF!"}},{"$error":"#REF!"},{"$f":"CntyDataLinkPrior5YearEstimates!$R$132","v":58},{"$f":"CntyDataLinkPrior5YearEstimates!$S$132","v":24.392621835300936},7.2499999999999995E-2,{"$f":"CntyDataLink!$R$132","v":63},{"$f":"CntyDataLink!$S$132","v":25.019992006393608},8.9615931721194877E-2,8.6206896551724144E-2,{"$f":"StatisticallySignificantCalcs!$A10","v":"Y"}]
[null,null,null,null,null,null,null,null,null,null,"Median Age (years)",{"$f":"#REF!","v":{"$error":"#REF!"}},null,{"$f":"#REF!","v":{"$error":"#REF!"}},null,{"$f":"CntyDataLinkPrior5YearEstimates!$AX132","v":43.8},{"$f":"CntyDataLinkPrior5YearEstimates!$AY$132","v":5.2},null,{"$f":"CntyDataLink!$AX$132","v":50.4},{"$f":"CntyDataLink!$AY$132","v":7.3}]
[]
[null,"Population By Race",null,null,null,null,null,null,null,null,null,null,"Statistically Significant Change"]
[null,null,null,null,null,null,null,null,null,null,null,null,{"$f":"IF(L36=\"\",\"-\",StatisticallySignificantCalcs!A20)","v":{"$error":"#REF!"}}]
[null,null,"2005-2009",null,null,"2009-2013",null,null,"2015-2019",null,null,null,{"$f":"IF(L37=\"\",\"-\",StatisticallySignificantCalcs!A21)","v":{"$error":"#REF!"}}]
[null,null,"Estimate","Margin of Error",null,"Estimate","Margin of Error",null,"Estimate","Margin of Error",null,"Percent Change",{"$f":"IF(L38=\"\",\"-\",StatisticallySignificantCalcs!A22)","v":{"$error":"#REF!"}}]
[null,"White",{"$f":"#REF!","v":{"$error":"#REF!"}},{"$f":"#REF!","v":{"$error":"#REF!"}},{"$f":"IF(C$36=\"-\",\"-\",VALUE(C36/$C$41))","v":{"$error":"#REF!"}},{"$f":"CntyDataLinkPrior5YearEstimates!$AL$132","v":767},{"$f":"CntyDataLinkPrior5YearEstimates!$AM$132","v":169},{"$f":"IF(F$36=\"-\",\"-\",VALUE(F36/$F$41))","v":0.95874999999999999},{"$f":"CntyDataLink!$AL$132","v":670},{"$f":"CntyDataLink!$AM$132","v":130},{"$f":"IF(I$36=\"-\",\"-\",VALUE(I36/$I$41))","v":0.95305832147937408},{"$f":"StatisticallySignificantCalcs!A20","v":{"$error":"#REF!"}},{"$f":"StatisticallySignificantCalcs!J20","v":"N"}]
[null,"Black",{"$f":"#REF!","v":{"$error":"#REF!"}},{"$f":"#REF!","v":{"$error":"#REF!"}},{"$f":"IF(C$37=\"-\",\"-\",VALUE(C37/$C$41))","v":{"$error":"#REF!"}},{"$f":"CntyDataLinkPrior5YearEstimates!$AN132","v":13},{"$f":"CntyDataLinkPrior5YearEstimates!$AO$132","v":16},{"$f":"IF(F$37=\"-\",\"-\",VALUE(F37/$F$41))","v":1.6250000000000001E-2},{"$f":"CntyDataLink!$AN$132","v":0},{"$f":"CntyDataLink!$AO$132","v":11},{"$f":"IF(I$37=\"-\",\"-\",VALUE(I37/$I$41))","v":0},{"$f":"StatisticallySignificantCalcs!A21","v":{"$error":"#REF!"}},{"$f":"StatisticallySignificantCalcs!J21","v":"N"}]
[null,"American Indian",{"$f":"#REF!","v":{"$error":"#REF!"}},{"$f":"#REF!","v":{"$error":"#REF!"}},{"$f":"IF(C$38=\"-\",\"-\",VALUE(C38/$C$41))","v":{"$error":"#REF!"}},{"$f":"CntyDataLinkPrior5YearEstimates!$AP$132","v":0},{"$f":"CntyDataLinkPrior5YearEstimates!$AQ$132","v":11},{"$f":"IF(F$38=\"-\",\"-\",VALUE(F38/$F$41))","v":0},{"$f":"CntyDataLink!$AP$132","v":3},{"$f":"CntyDataLink!$AQ$132","v":4},{"$f":"IF(I$38=\"-\",\"-\",VALUE(I38/$I$41))","v":4.2674253200568994E-3},{"$f":"StatisticallySignificantCalcs!A22","v":{"$error":"#REF!"}},{"$f":"StatisticallySignificantCalcs!J22","v":"N"}]
[null,"Asian &Pacific Is.",{"$f":"#REF!","v":{"$error":"#REF!"}},{"$f":"#REF!","v":{"$error":"#REF!"}},{"$f":"IF(C$39=\"-\",\"-\",VALUE(C39/$C$41))","v":{"$error":"#REF!"}},{"$f":"CntyDataLinkPrior5YearEstimates!$AR$132","v":0},{"$f":"CntyDataLinkPrior5YearEstimates!$AS$132","v":15.556349186104045},{"$f":"IF(F$39=\"-\",\"-\",VALUE(F39/$F$41))","v":0},{"$f":"CntyDataLink!$AR$132","v":4},{"$f":"CntyDataLink!$AS$132","v":12.529964086141668},{"$f":"IF(I$39=\"-\",\"-\",VALUE(I39/$I$41))","v":5.6899004267425323E-3},{"$f":"StatisticallySignificantCalcs!A23","v":{"$error":"#REF!"}},{"$f":"StatisticallySignificantCalcs!J23","v":"N"}]
[null,"Other*",{"$f":"#REF!","v":{"$error":"#REF!"}},{"$f":"#REF!","v":{"$error":"#REF!"}},{"$f":"IF(C$40=\"-\",\"-\",VALUE(C40/$C$41))","v":{"$error":"#REF!"}},{"$f":"CntyDataLinkPrior5YearEstimates!$AT$132","v":20},{"$f":"CntyDataLinkPrior5YearEstimates!$AU$132","v":23.706539182259394},{"$f":"IF(F$40=\"-\",\"-\",VALUE(F40/$F$41))","v":2.5000000000000001E-2},{"$f":"CntyDataLink!$AT$132","v":26},{"$f":"CntyDataLink!$AU$132","v":35.227829907617071},{"$f":"IF(I$40=\"-\",\"-\",VALUE(I40/$I$41))","v":3.6984352773826459E-2},{"$f":"StatisticallySignificantCalcs!A24","v":{"$error":"#REF!"}},{"$f":"StatisticallySignificantCalcs!J24","v":"N"}]
[null,"Total Population",{"$f":"#REF!","v":{"$error":"#REF!"}},{"$f":"#REF!","v":{"$error":"#REF!"}},null,{"$f":"CntyDataLinkPrior5YearEstimates!$B$132","v":800},{"$f":"CntyDataLinkPrior5YearEstimates!$C$132","v":176},null,{"$f":"CntyDataLink!$B$132","v":703},{"$f":"CntyDataLink!$C$132","v":142}]
[null,"Hispanic",{"$f":"#REF!","v":{"$error":"#REF!"}},{"$f":"#REF!","v":{"$error":"#REF!"}},{"$f":"IF(C$42=\"-\",\"-\",VALUE(C42/$C$41))","v":{"$error":"#REF!"}},{"$f":"CntyDataLinkPrior5YearEstimates!$AV132","v":0},{"$f":"CntyDataLinkPrior5YearEstimates!$AW$132","v":11},{"$f":"IF(F$42=\"-\",\"-\",VALUE(F42/$F$41))","v":0},{"$f":"CntyDataLink!$AV$132","v":0},{"$f":"CntyDataLink!$AW$132","v":11},{"$f":"IF(I$42=\"-\",\"-\",VALUE(I42/$I$41))","v":0},{"$f":"StatisticallySignificantCalcs!$A$26","v":{"$error":"#REF!"}},{"$f":"StatisticallySignificantCalcs!$J$26","v":"N"}]
[]
[null,"*","Other includes population of 2 or more races"]
[]
[null,{"$f":"\"Source: \"& L20&\", \"&P20&\", and \"&S20&\" American Community Survey Table B03002\"","v":"Source: 2005-2009, 2009-2013, and 2015-2019 American Community Survey Table B03002"}]
[]
[null,null,"Households and Families"]
[null,null,null,"2009-2013",null,null,"2009-2013",null,null,"2015-2019",null,null,null,"Percent Change 2009-2019",null,"Percent Change 2014-2019"]
[null,null,null,"Estimate","Margin of Error",null,"Estimate","Margin of Error",null,"Estimate","Margin of Error"]
[null,null,"Total Households",{"$f":"#REF!","v":{"$error":"#REF!"}},{"$f":"#REF!","v":{"$error":"#REF!"}},null,{"$f":"CntyDataLinkPrior5YearEstimates!$T$132","v":308},{"$f":"CntyDataLinkPrior5YearEstimates!$U$132","v":53},null,{"$f":"CntyDataLink!$T$132","v":307},{"$f":"CntyDataLink!$U$132","v":58},null,null,{"$f":"(J51-D51)/D51","v":{"$error":"#REF!"}},null,{"$f":"(J51-G51)/G51","v":-3.246753246753247E-3}]
[null,null,"Persons per Household",{"$f":"#REF!","v":{"$error":"#REF!"}},{"$f":"#REF!","v":{"$error":"#REF!"}},null,{"$f":"CntyDataLinkPrior5YearEstimates!$BD$132","v":2.5974025974025974},{"$f":"CntyDataLinkPrior5YearEstimates!$BE$132","v":0},null,{"$f":"CntyDataLink!$BD$132","v":2.2899022801302933},{"$f":"CntyDataLink!$BE$132","v":0.28999999999999998},null,null,{"$f":"(J52-D52)/D52","v":{"$error":"#REF!"}},null,{"$f":"(J52-G52)/G52","v":-0.11838762214983707}]
[null,null,"Family Households",{"$f":"#REF!","v":{"$error":"#REF!"}},{"$f":"#REF!","v":{"$error":"#REF!"}},null,{"$f":"CntyDataLinkPrior5YearEstimates!$V$132","v":227},{"$f":"CntyDataLinkPrior5YearEstimates!$U$132","v":53},null,{"$f":"CntyDataLink!$V$132","v":212},{"$f":"CntyDataLink!$U$132","v":58},null,null,{"$error":"#REF!"},null,-6.6079295154185022E-2]
[null,null,"Persons per Family Household",{"$f":"#REF!","v":{"$error":"#REF!"}},{"$f":"#REF!","v":{"$error":"#REF!"}},null,{"$f":"CntyDataLinkPrior5YearEstimates!$BF$132","v":3.1101321585903086},{"$f":"CntyDataLinkPrior5YearEstimates!$BG$132","v":0.90594214933277883},null,{"$f":"CntyDataLink!$BF$132","v":2.7122641509433962},{"$f":"CntyDataLink!$BG$132","v":0.90594214933277883},null,null,{"$error":"#REF!"},null,-0.12792639905927633]
[null,null,"Married-Couple Family Hh",{"$f":"#REF!","v":{"$error":"#REF!"}},{"$f":"#REF!","v":{"$error":"#REF!"}},null,{"$f":"CntyDataLinkPrior5YearEstimates!$X$132","v":200},{"$f":"CntyDataLinkPrior5YearEstimates!$Y$132","v":49},null,{"$f":"CntyDataLink!$X$132","v":162},{"$f":"CntyDataLink!$Y$132","v":42},null,null,{"$error":"#REF!"},null,-0.19]
[null,null,"Single-Parent Family Hh",{"$f":"#REF!","v":{"$error":"#REF!"}},{"$f":"#REF!","v":{"$error":"#REF!"}},null,{"$f":"CntyDataLinkPrior5YearEstimates!$Z$132","v":27},{"$f":"CntyDataLinkPrior5YearEstimates!$AA$132","v":25},null,{"$f":"CntyDataLink!$Z$132","v":50},{"$f":"CntyDataLink!$AA$132","v":26},null,null,{"$error":"#REF!"},null,0.85185185185185186]
[null,null,"Non-Family Households*",{"$f":"#REF!","v":{"$error":"#REF!"}},{"$f":"#REF!","v":{"$error":"#REF!"}},null,{"$f":"CntyDataLinkPrior5YearEstimates!$AF$132","v":81},{"$f":"CntyDataLinkPrior5YearEstimates!$AG$132","v":28},null,{"$f":"CntyDataLink!$AF$132","v":95},{"$f":"CntyDataLink!$AG$132","v":32},null,null,{"$error":"#REF!"},null,0.1728395061728395]
[null,null,"Persons per Non-Family Hh",{"$f":"#REF!","v":{"$error":"#REF!"}},{"$f":"#REF!","v":{"$error":"#REF!"}},null,{"$f":"CntyDataLinkPrior5YearEstimates!$BH$132","v":1.1604938271604939},{"$f":"CntyDataLinkPrior5YearEstimates!$BI$132","v":0.70297912176978417},null,{"$f":"CntyDataLink!$BH$132","v":1.3473684210526315},{"$f":"CntyDataLink!$BI$132","v":0.70297912176978417},null,null,{"$error":"#REF!"},null,0.16103023516237394]
[]
[]
[null,"As a result of changes in the American Community Survey, direct comparisons between the data should be made with caution."]
[]
[null,{"$f":"\"Source: \"& L20&\", \"&P20&\", and \"&S20&\" American Community Survey Table B11001\"","v":"Source: 2005-2009, 2009-2013, and 2015-2019 American Community Survey Table B11001"}]
[null,"POPULATION CHARACTERISTICS"]
[]
[]
[]
[]
[]
[]
[]
[]
[]
[]
[]
[]
[]
[]
[]
[]
[]
[]
[]
[]
[]
[]
[null,"As a result of changes in the American Community Survey, direct comparisons between the data should be made with caution."]

{"sheet":"SchoolEnrolEduAttain","index":4,"n_rows":67,"n_cols":17,"rows_kept":67,"cut":false,"hidden":true,"merged":[[20,15,20,16],[49,15,49,16],[20,5,20,7],[49,5,49,7],[49,8,49,10],[20,8,20,10],[20,11,20,13]]}
[]
[null,null,{"$f":"CntyDataLink!A50","v":"Albany"}]
[null,null,"SOCIAL CHARACTERISTICS"]
[]
[]
[]
[]
[]
[]
[]
[]
[]
[]
[]
[]
[]
[]
[]
[]
[]
[null,null,"School Enrollment",null,null,"2005-2009",null,null,"2010-2014",null,null,"2015-2019",null,null,null,"Statistically Significant Change"]
[null,null,null,null,null,"Estimate"," Margin of Error","Percent of Population","Estimate"," Margin of Error","Percent of Population","Estimate"," Margin of Error","Percent of Population",null,"2009-2019","2014-2019"]
[null,null,"Population 3 years and over",null,null,{"$f":"#REF!","v":{"$error":"#REF!"}},{"$f":"#REF!","v":{"$error":"#REF!"}},null,{"$f":"CntyDataLinkPrior5YearEstimates!$B$140","v":778},{"$f":"CntyDataLinkPrior5YearEstimates!$C$140","v":168},null,{"$f":"CntyDataLink!$B$140","v":689},{"$f":"CntyDataLink!$C$140","v":137},null,null,{"$f":"StatisticallySignificantCalcs!$A$45","v":{"$error":"#REF!"}},{"$f":"StatisticallySignificantCalcs!$J$45","v":"N"}]
[null,null,"Population 3 years & over enrolled in school",null,null,{"$f":"#REF!","v":{"$error":"#REF!"}},{"$f":"#REF!","v":{"$error":"#REF!"}},{"$f":"F24/$F$23","v":{"$error":"#REF!"}},{"$f":"CntyDataLinkPrior5YearEstimates!$D$140","v":200},{"$f":"CntyDataLinkPrior5YearEstimates!$E$140","v":89},{"$f":"I24/$I$23","v":0.25706940874035988},{"$f":"CntyDataLink!$D$140","v":119},{"$f":"CntyDataLink!$E$140","v":44},{"$f":"L24/$L$23","v":0.17271407837445574},null,{"$f":"StatisticallySignificantCalcs!$A$46","v":{"$error":"#REF!"}},{"$f":"StatisticallySignificantCalcs!$J$46","v":"N"}]
[null,null,"Preprimary (Nursery, Preschool, Kindergarten)",null,null,{"$f":"#REF!","v":{"$error":"#REF!"}},{"$f":"#REF!","v":{"$error":"#REF!"}},{"$error":"#REF!"},{"$f":"CntyDataLinkPrior5YearEstimates!$F$140","v":42},{"$f":"CntyDataLinkPrior5YearEstimates!$G$140","v":34.655446902326915},{"$f":"I25/$I$23","v":5.3984575835475578E-2},{"$f":"CntyDataLink!$F$140","v":22},{"$f":"CntyDataLink!$G$140","v":20.248456731316587},{"$f":"L25/$L$23","v":3.1930333817126268E-2},null,{"$f":"StatisticallySignificantCalcs!$A$47","v":{"$error":"#REF!"}},{"$f":"StatisticallySignificantCalcs!$J$47","v":"N"}]
[null,null,"        Nursery school and Preschool",null,null,{"$f":"#REF!","v":{"$error":"#REF!"}},{"$f":"#REF!","v":{"$error":"#REF!"}},{"$error":"#REF!"},{"$f":"CntyDataLinkPrior5YearEstimates!$H$140","v":27},{"$f":"CntyDataLinkPrior5YearEstimates!$I$140","v":25},3.4704370179948589E-2,{"$f":"CntyDataLink!$H$140","v":14},{"$f":"CntyDataLink!$I$140","v":17},{"$f":"L26/$L$23","v":2.0319303338171262E-2},null,{"$f":"StatisticallySignificantCalcs!$A$48","v":{"$error":"#REF!"}},{"$f":"StatisticallySignificantCalcs!$J$48","v":"N"}]
[null,null,"        Kindergarten",null,null,{"$f":"#REF!","v":{"$error":"#REF!"}},{"$f":"#REF!","v":{"$error":"#REF!"}},{"$error":"#REF!"},{"$f":"CntyDataLinkPrior5YearEstimates!$J$140","v":15},{"$f":"CntyDataLinkPrior5YearEstimates!$K$140","v":24},1.9280205655526992E-2,{"$f":"CntyDataLink!$J$140","v":8},{"$f":"CntyDataLink!$K$140","v":11},1.1611030478955007E-2,null,{"$f":"StatisticallySignificantCalcs!$A$49","v":{"$error":"#REF!"}},{"$f":"StatisticallySignificantCalcs!$J$49","v":"N"}]
[null,null,"Elementary through High school",null,null,{"$f":"#REF!","v":{"$error":"#REF!"}},{"$f":"#REF!","v":{"$error":"#REF!"}},{"$error":"#REF!"},{"$f":"CntyDataLinkPrior5YearEstimates!$P$140","v":140},{"$f":"CntyDataLinkPrior5YearEstimates!$Q$140","v":55.497747702046432},0.17994858611825193,{"$f":"CntyDataLink!$P$140","v":85},{"$f":"CntyDataLink!$Q$140","v":34.423828956117013},0.12336719883889695,null,{"$f":"StatisticallySignificantCalcs!$A$50","v":{"$error":"#REF!"}},{"$f":"StatisticallySignificantCalcs!$J$50","v":"N"}]
[null,null,"        Elementary school (grades 1-8)",null,null,{"$f":"#REF!","v":{"$error":"#REF!"}},{"$f":"#REF!","v":{"$error":"#REF!"}},{"$error":"#REF!"},{"$f":"CntyDataLinkPrior5YearEstimates!$L$140","v":102},{"$f":"CntyDataLinkPrior5YearEstimates!$M$140","v":46.690470119715009},{"$f":"I29/$I$23","v":0.13110539845758354},{"$f":"CntyDataLink!$L$140","v":44},{"$f":"CntyDataLink!$M$140","v":25.612496949731394},6.3860667634252535E-2,null,{"$f":"StatisticallySignificantCalcs!$A$51","v":{"$error":"#REF!"}},{"$f":"StatisticallySignificantCalcs!$J$51","v":"Y"}]
[null,null,"        High school (grades 9-12)",null,null,{"$f":"#REF!","v":{"$error":"#REF!"}},{"$f":"#REF!","v":{"$error":"#REF!"}},{"$error":"#REF!"},{"$f":"CntyDataLinkPrior5YearEstimates!$N$140","v":38},{"$f":"CntyDataLinkPrior5YearEstimates!$O$140","v":30},4.8843187660668377E-2,{"$f":"CntyDataLink!$N$140","v":41},{"$f":"CntyDataLink!$O$140","v":23},5.9506531204644414E-2,null,{"$f":"StatisticallySignificantCalcs!$A$52","v":{"$error":"#REF!"}},{"$f":"StatisticallySignificantCalcs!$J$52","v":"N"}]
[null,null,"College or Graduate School",null,null,{"$f":"#REF!","v":{"$error":"#REF!"}},{"$f":"#REF!","v":{"$error":"#REF!"}},{"$error":"#REF!"},{"$f":"CntyDataLinkPrior5YearEstimates!$R$140","v":18},{"$f":"CntyDataLinkPrior5YearEstimates!$S$140","v":14.142135623730951},2.313624678663239E-2,{"$f":"CntyDataLink!$R$140","v":12},{"$f":"CntyDataLink!$S$140","v":13.341664064126334},1.741654571843251E-2,null,{"$f":"StatisticallySignificantCalcs!$A$53","v":{"$error":"#REF!"}},{"$f":"StatisticallySignificantCalcs!$J$53","v":"N"}]
[]
[null,null,{"$f":"\"Source: \"&F21&\", \"& I21&\" and \"&L21&\" American Community Survey Table B14001\"","v":"Source: 2005-2009, 2010-2014 and 2015-2019 American Community Survey Table B14001"}]
[]
[]
[]
[]
[]
[]
[]
[]
[]
[]
[]
[]
[]
[]
[]
[]
[null,null,"Educational Attainment",null,null,"2005-2009",null,null,"2010-2014",null,null,"2015.-2019",null,null,null,"Statistically Significant Change"]
[null,null,null,null,null,"Estimate"," Margin of Error","Percent of Population","Estimate"," Margin of Error","Percent of Population","Estimate"," Margin of Error","Percent of Population",null,"2009-2019","2014-2019"]
[null,null,"Population 25 years and over",null,null,{"$f":"#REF!","v":{"$error":"#REF!"}},{"$f":"#REF!","v":{"$error":"#REF!"}},null,{"$f":"CntyDataLinkPrior5YearEstimates!$V$140","v":542},{"$f":"CntyDataLinkPrior5YearEstimates!$W$140","v":95},null,{"$f":"CntyDataLink!$V$140","v":527},{"$f":"CntyDataLink!$W$140","v":107},null,null,{"$f":"StatisticallySignificantCalcs!A54","v":{"$error":"#REF!"}},{"$f":"StatisticallySignificantCalcs!$J$54","v":"N"}]
[null,null,"Less than 9th Grade",null,null,{"$f":"#REF!","v":{"$error":"#REF!"}},{"$f":"#REF!","v":{"$error":"#REF!"}},{"$f":"F53/$F$52","v":{"$error":"#REF!"}},{"$f":"CntyDataLinkPrior5YearEstimates!$X$140","v":2},{"$f":"CntyDataLinkPrior5YearEstimates!$Y$140","v":24.919871588754223},{"$f":"I53/$I$52","v":3.6900369003690036E-3},{"$f":"CntyDataLink!$X$140","v":4},{"$f":"CntyDataLink!$Y$140","v":22.715633383201094},{"$f":"L53/$L$52","v":7.5901328273244783E-3},null,{"$f":"StatisticallySignificantCalcs!A55","v":{"$error":"#REF!"}},{"$f":"StatisticallySignificantCalcs!$J$55","v":"N"}]
[null,null,"9th to 12th Grade, no Diploma",null,null,{"$f":"#REF!","v":{"$error":"#REF!"}},{"$f":"#REF!","v":{"$error":"#REF!"}},{"$f":"F54/$F$52","v":{"$error":"#REF!"}},{"$f":"CntyDataLinkPrior5YearEstimates!$Z$140","v":44},{"$f":"CntyDataLinkPrior5YearEstimates!$AA$140","v":34.014702703389901},8.1180811808118078E-2,{"$f":"CntyDataLink!$Z$140","v":2},{"$f":"CntyDataLink!$AA$140","v":29.257477676655586},3.7950664136622392E-3,null,{"$f":"StatisticallySignificantCalcs!A56","v":{"$error":"#REF!"}},{"$f":"StatisticallySignificantCalcs!$J$56","v":"N"}]
[null,null,"High School Graduate ",null,null,{"$f":"#REF!","v":{"$error":"#REF!"}},{"$f":"#REF!","v":{"$error":"#REF!"}},{"$error":"#REF!"},{"$f":"CntyDataLinkPrior5YearEstimates!$AB$140","v":218},{"$f":"CntyDataLinkPrior5YearEstimates!$AC$140","v":52.630789467763066},0.40221402214022139,{"$f":"CntyDataLink!$AB$140","v":124},{"$f":"CntyDataLink!$AC$140","v":35.468295701936398},0.23529411764705882,null,{"$f":"StatisticallySignificantCalcs!A57","v":{"$error":"#REF!"}},{"$f":"StatisticallySignificantCalcs!$J$57","v":"Y"}]
[null,null,"Some College, No Degree",null,null,{"$f":"#REF!","v":{"$error":"#REF!"}},{"$f":"#REF!","v":{"$error":"#REF!"}},{"$error":"#REF!"},{"$f":"CntyDataLinkPrior5YearEstimates!$AD$140","v":127},{"$f":"CntyDataLinkPrior5YearEstimates!$AE$140","v":44.721359549995796},0.23431734317343172,{"$f":"CntyDataLink!$AD$140","v":118},{"$f":"CntyDataLink!$AE$140","v":33.77869150810907},0.2239089184060721,null,{"$f":"StatisticallySignificantCalcs!A58","v":{"$error":"#REF!"}},{"$f":"StatisticallySignificantCalcs!$J$58","v":"N"}]
[null,null,"Associate Degree",null,null,{"$f":"#REF!","v":{"$error":"#REF!"}},{"$f":"#REF!","v":{"$error":"#REF!"}},{"$error":"#REF!"},{"$f":"CntyDataLinkPrior5YearEstimates!$AF$140","v":24},{"$f":"CntyDataLinkPrior5YearEstimates!$AG$140","v":12.806248474865697},4.4280442804428041E-2,{"$f":"CntyDataLink!$AF$140","v":55},{"$f":"CntyDataLink!$AG$140","v":22.825424421026653},0.10436432637571158,null,{"$f":"StatisticallySignificantCalcs!A59","v":{"$error":"#REF!"}},{"$f":"StatisticallySignificantCalcs!$J$59","v":"Y"}]
[null,null,"Bachelor's Degree",null,null,{"$f":"#REF!","v":{"$error":"#REF!"}},{"$f":"#REF!","v":{"$error":"#REF!"}},{"$error":"#REF!"},{"$f":"CntyDataLinkPrior5YearEstimates!$AH$140","v":71},{"$f":"CntyDataLinkPrior5YearEstimates!$AI$140","v":25.80697580112788},0.13099630996309963,{"$f":"CntyDataLink!$AH$140","v":133},{"$f":"CntyDataLink!$AI$140","v":51.894122981316485},0.25237191650853891,null,{"$f":"StatisticallySignificantCalcs!A60","v":{"$error":"#REF!"}},{"$f":"StatisticallySignificantCalcs!$J$60","v":"Y"}]
[null,null,"Graduate or Professional Degree",null,null,{"$f":"#REF!","v":{"$error":"#REF!"}},{"$f":"#REF!","v":{"$error":"#REF!"}},{"$error":"#REF!"},{"$f":"CntyDataLinkPrior5YearEstimates!$AJ$140","v":56},{"$f":"CntyDataLinkPrior5YearEstimates!$AK$140","v":25.845695966640172},0.10332103321033211,{"$f":"CntyDataLink!$AJ$140","v":91},{"$f":"CntyDataLink!$AK$140","v":27.946377224964241},0.17267552182163187,null,{"$f":"StatisticallySignificantCalcs!A61","v":{"$error":"#REF!"}},{"$f":"StatisticallySignificantCalcs!$J$61","v":"N"}]
[]
[null,null,"Percent of High School Graduate or Higher",null,null,null,null,{"$f":"SUM(F55:F59)/F52","v":{"$error":"#REF!"}},null,null,{"$f":"SUM(I55:I59)/I52","v":0.91512915129151295},null,null,{"$f":"SUM(L55:L59)/L52","v":0.98861480075901331}]
[null,null,"Percent of Bachelor's Degree or Higher",null,null,null,null,{"$f":"SUM(F58:F59)/F52","v":{"$error":"#REF!"}},null,null,{"$f":"SUM(I58:I59)/I52","v":0.23431734317343172},null,null,{"$f":"SUM(L58:L59)/L52","v":0.42504743833017078}]
[]
[null,null,{"$f":"\"Source: \"&F21&\", \"&I21&\" and \"&L21&\" American Community Survey Table B15002\"","v":"Source: 2005-2009, 2010-2014 and 2015-2019 American Community Survey Table B15002"}]
[]
[null,null,"As a result of changes in the American Community Survey, direct comparisons between the data should be made with caution."]
[null,null,"Data from the American Community Survey are estimates"]

{"sheet":"HousingCharacteristics","index":5,"n_rows":112,"n_cols":16,"rows_kept":112,"cut":false,"hidden":true,"merged":[[29,14,29,15],[68,9,68,11],[68,12,68,13],[68,14,68,15],[85,14,85,15],[29,2,29,4],[29,5,29,7],[29,8,29,10],[85,2,85,4],[85,6,85,8],[85,10,85,12],[68,3,68,5],[68,6,68,8],[29,11,29,12]],"read":"row_number_cap"}
[]
[null,{"$f":"CntyDataLink!$A35","v":"Albany"}]
[]
[null,"HOUSING CHARACTERISTICS"]
[]
[]
[]
[]
[]
[]
[]
[]
[]
[]
[]
[]
[]
[]
[]
[]
[]
[]
[]
[]
[]
[]
[null,null,null,{"$f":"\"Source:  \"& \" \"&D69&\", \"&G69&\" and \"&J69& \" American Community Survey Table B25024; B25032\"","v":"Source:   2005-2009, 2010-2014 and 2015-2019 American Community Survey Table B25024; B25032"}]
[null,"Units by Tenure & Vacancy"]
[]
[null,null,"2005-2009",null,null,"2010-2014",null,null,"2015-2019",null,null,"Percent Change",null,null,"Statistically Significant Change"]
[null,null,"Estimate","Margin of Error","%","Estimate","Margin of Error","%","Estimate","Margin of Error","%","2009-2019","2014-2019",null,"2009-2019","2014-2019"]
[null,"Total Units",{"$f":"#REF!","v":{"$error":"#REF!"}},{"$f":"CntyDataLinkPrior5YearEstimates!$C$108","v":74},null,{"$f":"CntyDataLinkPrior5YearEstimates!$B$108","v":557},{"$f":"CntyDataLinkPrior5YearEstimates!$C$108","v":74},null,{"$f":"CntyDataLink!$B$108","v":542},{"$f":"CntyDataLink!$C$108","v":74},null,{"$f":"IF(I32=\"-\",\"-\",(I32-C32)/C32)","v":{"$error":"#REF!"}},{"$f":"IF(I32=\"-\",\"-\",(I32-F32)/F32)","v":-2.6929982046678635E-2},null,{"$f":"StatisticallySignificantCalcs!$A62","v":{"$error":"#REF!"}},{"$f":"StatisticallySignificantCalcs!$J62","v":"N"}]
[null,"Occupied Units",{"$f":"#REF!","v":{"$error":"#REF!"}},{"$f":"CntyDataLinkPrior5YearEstimates!$E$108","v":53},{"$f":"ROUND(C33/C32,2)*100&\"% of Total\"","v":{"$error":"#REF!"}},{"$f":"CntyDataLinkPrior5YearEstimates!$D$108","v":308},{"$f":"CntyDataLinkPrior5YearEstimates!$E$108","v":53},{"$f":"ROUND(F33/F32,2)*100&\"% of Total\"","v":"55% of Total"},{"$f":"CntyDataLink!$D$108","v":307},{"$f":"CntyDataLink!$E$108","v":58},{"$f":"ROUND(I33/I32,2)*100&\"% of Total\"","v":"57% of Total"},{"$f":"IF(I33=\"-\",\"-\",(I33-C33)/C33)","v":{"$error":"#REF!"}},{"$f":"IF(I33=\"-\",\"-\",(I33-F33)/F33)","v":-3.246753246753247E-3},null,{"$f":"StatisticallySignificantCalcs!$A63","v":{"$error":"#REF!"}},{"$f":"StatisticallySignificantCalcs!$J63","v":"N"}]
[null,"Owner Occupied",{"$f":"#REF!","v":{"$error":"#REF!"}},{"$f":"CntyDataLinkPrior5YearEstimates!$G$108","v":55},{"$f":"ROUND(C34/C33,2)*100&\"% of Occ.\"","v":{"$error":"#REF!"}},{"$f":"CntyDataLinkPrior5YearEstimates!$F$108","v":263},{"$f":"CntyDataLinkPrior5YearEstimates!$G$108","v":55},{"$f":"ROUND(F34/F33,2)*100&\"% of Occ.\"","v":"85% of Occ."},{"$f":"CntyDataLink!$F$108","v":272},{"$f":"CntyDataLink!$G$108","v":56},{"$f":"ROUND(I34/I33,2)*100&\"% of Occ.\"","v":"89% of Occ."},{"$f":"IF(I34=\"-\",\"-\",(I34-C34)/C34)","v":{"$error":"#REF!"}},3.4220532319391636E-2,null,{"$f":"StatisticallySignificantCalcs!$A64","v":{"$error":"#REF!"}},{"$f":"StatisticallySignificantCalcs!$J64","v":"N"}]
[null,"Renter Occupied",{"$f":"#REF!","v":{"$error":"#REF!"}},{"$f":"CntyDataLinkPrior5YearEstimates!$I$108","v":20},{"$f":"ROUND(C35/C33,2)*100&\"% of Occ.\"","v":{"$error":"#REF!"}},{"$f":"CntyDataLinkPrior5YearEstimates!$H$108","v":45},{"$f":"CntyDataLinkPrior5YearEstimates!$I$108","v":20},{"$f":"ROUND(F35/F33,2)*100&\"% of Occ.\"","v":"15% of Occ."},{"$f":"CntyDataLink!$H$108","v":35},{"$f":"CntyDataLink!$I$108","v":17},{"$f":"ROUND(I35/I33,2)*100&\"% of Occ.\"","v":"11% of Occ."},{"$f":"IF(I35=\"-\",\"-\",(I35-C35)/C35)","v":{"$error":"#REF!"}},-0.22222222222222221,null,{"$f":"StatisticallySignificantCalcs!$A65","v":{"$error":"#REF!"}},{"$f":"StatisticallySignificantCalcs!$J65","v":"N"}]
[null,"Vacant Units",{"$f":"#REF!","v":{"$error":"#REF!"}},{"$f":"CntyDataLinkPrior5YearEstimates!$K$108","v":51},{"$f":"ROUND(C36/C32,2)*100&\"% of Total\"","v":{"$error":"#REF!"}},{"$f":"CntyDataLinkPrior5YearEstimates!$J$108","v":249},{"$f":"CntyDataLinkPrior5YearEstimates!$K$108","v":51},{"$f":"ROUND(F36/F32,2)*100&\"% of Total\"","v":"45% of Total"},{"$f":"CntyDataLink!$J$108","v":235},{"$f":"CntyDataLink!$K$108","v":53},{"$f":"ROUND(I36/I32,2)*100&\"% of Total\"","v":"43% of Total"},{"$f":"IF(I36=\"-\",I36,VALUE((I36-C36)/C36))","v":{"$error":"#REF!"}},-5.6224899598393573E-2,null,{"$f":"StatisticallySignificantCalcs!$A66","v":{"$error":"#REF!"}},{"$f":"StatisticallySignificantCalcs!$J66","v":"N"}]
[null,"Vacant For Sale",{"$f":"#REF!","v":{"$error":"#REF!"}},{"$f":"CntyDataLinkPrior5YearEstimates!$Q$108","v":9},{"$f":"ROUND(C37/(C34+C37),3)*100&\"% Vac.\"","v":{"$error":"#REF!"}},{"$f":"CntyDataLinkPrior5YearEstimates!$P$108","v":6},{"$f":"CntyDataLinkPrior5YearEstimates!$Q$108","v":9},{"$f":"ROUND(F37/(F34+F37),3)*100&\"% Vac.\"","v":"2.2% Vac."},{"$f":"CntyDataLink!$P$108","v":12},{"$f":"CntyDataLink!$Q$108","v":13},{"$f":"ROUND(I37/(I34+I37),3)*100&\"% Vac.\"","v":"4.2% Vac."},{"$f":"IF(I37=\"-\",I37,VALUE((I37-C37)/C37))","v":{"$error":"#REF!"}},1,null,{"$f":"StatisticallySignificantCalcs!$A67","v":{"$error":"#REF!"}},{"$f":"StatisticallySignificantCalcs!$J67","v":"N"}]
[null,"Vacant For Rent",{"$f":"#REF!","v":{"$error":"#REF!"}},{"$f":"CntyDataLinkPrior5YearEstimates!$M$108","v":4},{"$f":"ROUND(C38/(C35+C38),3)*100&\"% Vac.\"","v":{"$error":"#REF!"}},{"$f":"CntyDataLinkPrior5YearEstimates!$L$108","v":3},{"$f":"CntyDataLinkPrior5YearEstimates!$M$108","v":4},{"$f":"ROUND(F38/(F35+F38),3)*100&\"% Vac.\"","v":"6.3% Vac."},{"$f":"CntyDataLink!$L$108","v":0},{"$f":"CntyDataLink!$M$108","v":11},{"$f":"ROUND(I38/(I35+I38),3)*100&\"% Vac.\"","v":"0% Vac."},{"$f":"IF(I38=\"-\",I38,VALUE((I38-C38)/C38))","v":{"$error":"#REF!"}},-1,null,{"$f":"StatisticallySignificantCalcs!$A68","v":{"$error":"#REF!"}},{"$f":"StatisticallySignificantCalcs!$J68","v":"N"}]
[null,"Vacant Seasonal",{"$f":"#REF!","v":{"$error":"#REF!"}},{"$f":"CntyDataLinkPrior5YearEstimates!$U$108","v":48},{"$f":"ROUND(C39/C32,2)*100&\"% of Total\"","v":{"$error":"#REF!"}},{"$f":"CntyDataLinkPrior5YearEstimates!$T$108","v":213},{"$f":"CntyDataLinkPrior5YearEstimates!$U$108","v":48},{"$f":"ROUND(F39/F32,2)*100&\"% of Total\"","v":"38% of Total"},{"$f":"CntyDataLink!$T$108","v":199},{"$f":"CntyDataLink!$U$108","v":50},{"$f":"ROUND(I39/I32,2)*100&\"% of Total\"","v":"37% of Total"},{"$f":"IF(I39=\"-\",I39,VALUE((I39-C39)/C39))","v":{"$error":"#REF!"}},-6.5727699530516437E-2,null,{"$f":"StatisticallySignificantCalcs!$A69","v":{"$error":"#REF!"}},{"$f":"StatisticallySignificantCalcs!$J69","v":"N"}]
[]
[null,"Data from the American Community Survey are estimates"]
[]
[]
[]
[]
[]
[]
[]
[]
[]
[]
[]
[]
[]
[]
[]
[]
[]
[]
[]
[]
[]
[]
[]
[null,null,null,{"$f":"\"Source: \"& \" \"&D69&\", \"&G69&\" and \"&J69& \"  American Community Survey Table B25024; B25032\"","v":"Source:  2005-2009, 2010-2014 and 2015-2019  American Community Survey Table B25024; B25032"}]
[]
[null,null,"Units by Type"]
[]
[null,null,null,"2005-2009",null,null,"2010-2014",null,null,"2015-2019",null,null,"Percent Change",null,"Statistically Significant Change"]
[null,null,null,"Estimate","Margin of Error","% of Total","Estimate","Margin of Error","% of Total","Estimate","Margin of Error","% of Total","2009-2019","2014-2019","2009-2019","2014-2019"]
[null,null,"Total Units",{"$f":"#REF!","v":{"$error":"#REF!"}},{"$f":"#REF!","v":{"$error":"#REF!"}},null,{"$f":"CntyDataLinkPrior5YearEstimates!$B$108","v":557},{"$f":"CntyDataLinkPrior5YearEstimates!$C$108","v":74},null,{"$f":"CntyDataLink!$B$108","v":542},{"$f":"CntyDataLink!$C$108","v":74},null,null,null,{"$f":"StatisticallySignificantCalcs!$A70","v":{"$error":"#REF!"}},{"$f":"StatisticallySignificantCalcs!$J70","v":"N"}]
[null,null,"Single Family Units",{"$f":"#REF!","v":{"$error":"#REF!"}},{"$f":"#REF!","v":{"$error":"#REF!"}},{"$f":"IF(D72=\"-\",\"-\",($D$72/$D$71))","v":{"$error":"#REF!"}},{"$f":"CntyDataLinkPrior5YearEstimates!$AT$108","v":459},{"$f":"CntyDataLinkPrior5YearEstimates!$AU$108","v":67},{"$f":"IF(G72=\"-\",\"-\",($G$72/$G$71))","v":0.82405745062836622},{"$f":"CntyDataLink!$AT$108","v":434},{"$f":"CntyDataLink!$AU$108","v":68},{"$f":"IF(J72=\"-\",\"-\",($J$72/$J$71))","v":0.80073800738007384},{"$f":"IF(J72=\"-\",\"-\",($J72-$D72)/$D72)","v":{"$error":"#REF!"}},{"$f":"IF(J72=\"-\",\"-\",($J72-$G72)/$G72)","v":-5.4466230936819175E-2},{"$f":"StatisticallySignificantCalcs!$A71","v":{"$error":"#REF!"}},{"$f":"StatisticallySignificantCalcs!$J71","v":"N"}]
[null,null,"SF Owner Occ.",{"$f":"#REF!","v":{"$error":"#REF!"}},{"$f":"#REF!","v":{"$error":"#REF!"}},null,{"$f":"CntyDataLinkPrior5YearEstimates!$AF$108","v":197},{"$f":"CntyDataLinkPrior5YearEstimates!$AG$108","v":45},null,{"$f":"CntyDataLink!$AF$108","v":216},{"$f":"CntyDataLink!$AG$108","v":46},null,null,null,{"$f":"StatisticallySignificantCalcs!$A72","v":{"$error":"#REF!"}},{"$f":"StatisticallySignificantCalcs!$J72","v":"N"}]
[null,null,"SF Renter Occ.",{"$f":"#REF!","v":{"$error":"#REF!"}},{"$f":"#REF!","v":{"$error":"#REF!"}},null,{"$f":"CntyDataLinkPrior5YearEstimates!$AN$108","v":28},{"$f":"CntyDataLinkPrior5YearEstimates!$AO$108","v":15},null,{"$f":"CntyDataLink!$AN$108","v":11},{"$f":"CntyDataLink!$AO$108","v":9},null,null,null,{"$f":"StatisticallySignificantCalcs!$A73","v":{"$error":"#REF!"}},{"$f":"StatisticallySignificantCalcs!$J73","v":"N"}]
[null,null,"Multi-family Units",{"$f":"#REF!","v":{"$error":"#REF!"}},{"$f":"#REF!","v":{"$error":"#REF!"}},{"$f":"IF(D75=\"-\",\"-\",$D$75/$D$71)","v":{"$error":"#REF!"}},{"$f":"CntyDataLinkPrior5YearEstimates!$AV$108","v":24},{"$f":"CntyDataLinkPrior5YearEstimates!$AW$108","v":30.182776545573141},{"$f":"IF(G75=\"-\",\"-\",$G$75/$G$71)","v":4.3087971274685818E-2},{"$f":"CntyDataLink!$AV$108","v":25},{"$f":"CntyDataLink!$AW$108","v":31.480152477394387},{"$f":"IF(J75=\"-\",\"-\",$J$75/$J$71)","v":4.6125461254612546E-2},{"$f":"IF(J75=\"-\",\"-\",($J75-$D75)/$D75)","v":{"$error":"#REF!"}},{"$f":"IF(J75=\"-\",\"-\",($J75-$G75)/$G75)","v":4.1666666666666664E-2},{"$f":"StatisticallySignificantCalcs!$A74","v":{"$error":"#REF!"}},{"$f":"StatisticallySignificantCalcs!$J74","v":"N"}]
[null,null,"MF Owner Occ.",{"$f":"#REF!","v":{"$error":"#REF!"}},{"$f":"#REF!","v":{"$error":"#REF!"}},null,{"$f":"CntyDataLinkPrior5YearEstimates!$AH$108","v":10},{"$f":"CntyDataLinkPrior5YearEstimates!$AI$108","v":26.362852652928137},null,{"$f":"CntyDataLink!$AH$108","v":9},{"$f":"CntyDataLink!$AI$108","v":29.916550603303182},null,null,null,{"$f":"StatisticallySignificantCalcs!$A75","v":{"$error":"#REF!"}},{"$f":"StatisticallySignificantCalcs!$J75","v":"N"}]
[null,null,"MF Renter Occ.",{"$f":"#REF!","v":{"$error":"#REF!"}},{"$f":"#REF!","v":{"$error":"#REF!"}},null,{"$f":"CntyDataLinkPrior5YearEstimates!$AP$108","v":8},{"$f":"CntyDataLinkPrior5YearEstimates!$AQ$108","v":28.740215726399828},null,{"$f":"CntyDataLink!$AP$108","v":16},{"$f":"CntyDataLink!$AQ$108","v":29.240383034426891},null,null,null,{"$f":"StatisticallySignificantCalcs!$A76","v":{"$error":"#REF!"}},{"$f":"StatisticallySignificantCalcs!$J76","v":"N"}]
[null,null,"Mobile Home & Other",{"$f":"#REF!","v":{"$error":"#REF!"}},{"$f":"#REF!","v":{"$error":"#REF!"}},{"$f":"IF(D78=\"-\",\"-\",($D$78/$D$71))","v":{"$error":"#REF!"}},{"$f":"CntyDataLinkPrior5YearEstimates!$AX$108","v":74},{"$f":"CntyDataLinkPrior5YearEstimates!$AY$108","v":34.785054261852174},{"$f":"IF(G78=\"-\",\"-\",($G$78/$G$71))","v":0.13285457809694792},{"$f":"CntyDataLink!$AX$108","v":83},{"$f":"CntyDataLink!$AY$108","v":29.154759474226502},{"$f":"IF(J78=\"-\",\"-\",($J$78/$J$71))","v":0.15313653136531366},{"$f":"IF(J78=\"-\",\"-\",($J78-$D78)/$D78)","v":{"$error":"#REF!"}},{"$f":"IF(J78=\"-\",\"-\",($J78-$G78)/$G78)","v":0.12162162162162163},{"$f":"StatisticallySignificantCalcs!$A77","v":{"$error":"#REF!"}},{"$f":"StatisticallySignificantCalcs!$J77","v":"N"}]
[]
[null,"Data from the American Community Survey are estimates"]
[]
[]
[null,"Units by Number of Bedrooms "]
[null,null,null,{"$f":"\"Source: \"& \" \"&D69&\", \"&G69&\" and \"&J69& \" American Community Survey Table B25041\"","v":"Source:  2005-2009, 2010-2014 and 2015-2019 American Community Survey Table B25041"}]
[]
[null,null,"2005-2009",null,null,null,"2010-2014",null,null,null,"2015-2019",null,null,null,"Statistically Significant Change"]
[null,"Bedrooms","Estimate","Margin of Error","% of Total",null,"Estimate","Margin of Error","% of Total",null,"Estimate","Margin of Error","% of Total",null,"2009-2019","2014-2019"]
[null,"No Bedrooms",{"$f":"#REF!","v":{"$error":"#REF!"}},{"$f":"#REF!","v":{"$error":"#REF!"}},{"$f":"C88/SUM($C$88:$C$92)","v":{"$error":"#REF!"}},null,{"$f":"CntyDataLinkPrior5YearEstimates!$BR$108","v":11},{"$f":"CntyDataLinkPrior5YearEstimates!$BS$108","v":11},{"$f":"G88/SUM($G$88:$G$92)","v":1.9748653500897665E-2},null,{"$f":"CntyDataLink!$BT$108","v":46},{"$f":"CntyDataLink!$BU$108","v":26},{"$f":"K88/SUM($K$88:$K$92)","v":8.4870848708487087E-2},null,{"$f":"StatisticallySignificantCalcs!$A78","v":{"$error":"#REF!"}},{"$f":"StatisticallySignificantCalcs!$J78","v":"Y"}]
[null,"1 Bedroom",{"$f":"#REF!","v":{"$error":"#REF!"}},{"$f":"#REF!","v":{"$error":"#REF!"}},{"$f":"C89/SUM($C$88:$C$92)","v":{"$error":"#REF!"}},null,{"$f":"CntyDataLinkPrior5YearEstimates!$BT$108","v":67},{"$f":"CntyDataLinkPrior5YearEstimates!$BU$108","v":29},{"$f":"G89/SUM($G$88:$G$92)","v":0.12028725314183124},null,{"$f":"CntyDataLink!$BV$108","v":39},{"$f":"CntyDataLink!$BW$108","v":22},{"$f":"K89/SUM($K$88:$K$92)","v":7.1955719557195569E-2},null,{"$f":"StatisticallySignificantCalcs!$A79","v":{"$error":"#REF!"}},{"$f":"StatisticallySignificantCalcs!$J79","v":"N"}]
[null,"2 Bedrooms",{"$f":"#REF!","v":{"$error":"#REF!"}},{"$f":"#REF!","v":{"$error":"#REF!"}},{"$f":"C90/SUM($C$88:$C$92)","v":{"$error":"#REF!"}},null,{"$f":"CntyDataLinkPrior5YearEstimates!$BV$108","v":160},{"$f":"CntyDataLinkPrior5YearEstimates!$BW$108","v":46},{"$f":"G90/SUM($G$88:$G$92)","v":0.28725314183123879},null,{"$f":"CntyDataLink!$BX$108","v":204},{"$f":"CntyDataLink!$BY$108","v":45},{"$f":"K90/SUM($K$88:$K$92)","v":0.37638376383763839},null,{"$f":"StatisticallySignificantCalcs!$A80","v":{"$error":"#REF!"}},{"$f":"StatisticallySignificantCalcs!$J80","v":"N"}]
[null,"3 Bedrooms",{"$f":"#REF!","v":{"$error":"#REF!"}},{"$f":"#REF!","v":{"$error":"#REF!"}},{"$f":"C91/SUM($C$88:$C$92)","v":{"$error":"#REF!"}},null,{"$f":"CntyDataLinkPrior5YearEstimates!$BX$108","v":274},{"$f":"CntyDataLinkPrior5YearEstimates!$BY$108","v":57},{"$f":"G91/SUM($G$88:$G$92)","v":0.49192100538599642},null,{"$f":"CntyDataLink!$BZ$108","v":194},{"$f":"CntyDataLink!$CA$108","v":50},{"$f":"K91/SUM($K$88:$K$92)","v":0.35793357933579334},null,{"$f":"StatisticallySignificantCalcs!$A81","v":{"$error":"#REF!"}},{"$f":"StatisticallySignificantCalcs!$J81","v":"Y"}]
[null,"4+ Bedrooms",{"$f":"#REF!","v":{"$error":"#REF!"}},{"$f":"#REF!","v":{"$error":"#REF!"}},{"$f":"C92/SUM($C$88:$C$92)","v":{"$error":"#REF!"}},null,{"$f":"CntyDataLinkPrior5YearEstimates!$BZ$108","v":45},{"$f":"CntyDataLinkPrior5YearEstimates!$CA$108","v":27.313000567495326},{"$f":"G92/SUM($G$88:$G$92)","v":8.0789946140035901E-2},null,{"$f":"CntyDataLink!$CB$108","v":59},{"$f":"CntyDataLink!$CC$108","v":26.627053911388696},{"$f":"K92/SUM($K$88:$K$92)","v":0.10885608856088561},null,{"$f":"StatisticallySignificantCalcs!$A82","v":{"$error":"#REF!"}},{"$f":"StatisticallySignificantCalcs!$J82","v":"N"}]
[]
[null,"As a result of changes in the American Community Survey, direct comparisons between the 2009-2013 and 2015-2019 data should be made with caution."]
[null,"Data from the American Community Survey are estimates"]
[]
[null,"Units by Year Built   "]
[null,{"$f":"\"Source: \"&K86& \" American Community Survey Table B25034\"","v":"Source: 2015-2019 American Community Survey Table B25034"}]
[]
[null,null,null,"Year Built",null,null,"Units  ",null,"% of Total",null,"Margin of Error"]
[null,null,null,null,null,"2014 or later",{"$f":"CntyDataLink!$AZ$108","v":3},null,{"$f":"G101/SUM($G$101:$G$110)","v":5.5350553505535052E-3},null,{"$f":"CntyDataLink!$BA$108","v":4}]
[null,null,null,null,null,"2010 through 2013",{"$f":"CntyDataLink!$BB$108","v":22},null,4.0590405904059039E-2,null,{"$f":"CntyDataLink!$BC$108","v":12}]
[null,null,null,null,null,"2000 through 2009",{"$f":"CntyDataLink!$BD$108","v":66},null,0.12177121771217712,null,{"$f":"CntyDataLink!$BE$108","v":25}]
[null,null,null,null,null,"1990 through 1999",{"$f":"CntyDataLink!$BF$108","v":40},null,7.3800738007380073E-2,null,{"$f":"CntyDataLink!$BG$108","v":18}]
[null,null,null,null,null,"1980 through 1989",{"$f":"CntyDataLink!$BH$108","v":109},null,0.2011070110701107,null,{"$f":"CntyDataLink!$BI$108","v":36}]
[null,null,null,null,null,"1970 through 1979",{"$f":"CntyDataLink!$BJ$108","v":92},null,0.16974169741697417,null,{"$f":"CntyDataLink!$BK$108","v":35}]
[null,null,null,null,null,"1960 through 1969",{"$f":"CntyDataLink!$BL$108","v":64},null,0.11808118081180811,null,{"$f":"CntyDataLink!$BM$108","v":31}]
[null,null,null,null,null,"1950 through 1959",{"$f":"CntyDataLink!$BN$108","v":36},null,6.6420664206642069E-2,null,{"$f":"CntyDataLink!$BO$108","v":21}]
[null,null,null,null,null,"1940 through 1949",{"$f":"CntyDataLink!$BP$108","v":22},null,4.0590405904059039E-2,null,{"$f":"CntyDataLink!$BQ$108","v":17}]
[null,null,null,null,null,"1939 and earlier",{"$f":"CntyDataLink!$BR$108","v":88},null,0.16236162361623616,null,{"$f":"CntyDataLink!$BS$108","v":30}]
[]
[null,"Data from the American Community Survey are estimates"]

{"sheet":"CntyDataLink","index":6,"n_rows":167,"n_cols":293,"rows_kept":167,"cut":false,"hidden":true,"merged":[]}
[1,{"$f":"A1+1","v":2},{"$f":"B1+1","v":3},4,5,6,7,8,9,10,11,12,13,14,15,{"$f":"O1+1","v":16},17,18,19,20,21,22,23,24,25,26,27,28,29,30,31,32,33,34,35,36,37,38,39,40,41,42,43,44,45,46,47,48,49,50,51,52,53,54,55,56,57,58,59,60,61,62,63,64,65,66,{"$f":"BN1+1","v":67},68,69,70,71,72,73,74,75,76,77,78,79,80,81,82,83,84,85,86,87,88,89,90,91,92,93,94,95,96,97,98,99,100,101,102,103,104,105,106,107,108,109,110,111,112,113,114,115,116,117,118,119,120,121,122,123,124,125,126,127,128,129,130,{"$f":"DZ1+1","v":131},132,133,134,135,136,137,138,139,140,141,142,143,144,145,146,147,148,149,150,151,152,153,154,155,156,157,158,159,160,161,162,163,164,165,166,167,168,169,170,171,172,173,174,175,176,177,178,179,180,181,182,183,184,185,186,187,188,189,190,191,192,193,194,{"$f":"GL1+1","v":195},196,197,198,199,200,201,202,203,204,205,206,207,208,209,210,211,212,213,214,215,216,217,218,219,220,221,222,223,224,225,226,227,228,229,230,231,232,233,234,235,236,237,238,239,240,241,242,243,244,245,246,247,248,249,250,251,252,253,254,255]
[]
["Census 1990 Data -           Query Name:  DPCnty90Census"]
["TownName","Cnty_Code","Census_Cnty_Code","LandAcres","WaterAcres","HousingUnits90Cen","Persons90Cen","Families90Cen","Households90cen","MalePop90cen","FemalePop90cen","WhitePop","BlackPop","AmerIndianPop","AsianPIPop","OtherRacePop","HispanicOrPop","AgeUnder15_90cen","Age15to24_90cen","Age25to34_90cen","Age35to44_90cen","Age45to54_90cen","Age55to64_90cen","Age65to74_90cen","Age75andOver_90cen","PersonsInHH90cen","PersonsInFamHH90cen","PersonsInGC","PersonsPerHH90cen","PersonsPerFam90Cen","SinglePersonHH90cen","MarriedCoupleHH90cen","SingleParentHH90cen","NonFamilyHH90cen","TotalHousingUnits","OccupiedHousingUnits","VacantHousingUnits","OwnerOccHU","RenterOccHU","VacantForRent90","VacantForSale90","VacantSeasonalRec","SingFamHU90cen","MultiFamHU90cen","MobileHom90cen","SingFamOwnHU90cen","MultiFamOwnHU90cen","MobileHomOwnHU90cen","SingFamRntrHU90cen","MultiFamRntrHU90cen","MobileHomRntrHU90cen","HU<5yrs90cen","HU5to20yrs90cen","HU20to50yrs90cen","HU>50yrs90cen","Units0Bedroom90cen","Units1Bedroom90cen","Units2Bedroom90cen","Units3Bedroom90cen","Units4+Bedroom90cen","HI<5K","HI5Kto10K","HI10Kto15K","HI15Kto25K","HI25Kto35K","HI35Kto50K","HI50Kto75K","HI75Kto100K","HI>100K","MedHI","HH<25HI<5K","HH<25HI5Kto10K","HH<25HI10Kto15K","HH<25HI15Kto25K","HH<25HI25Kto35K","HH<25HI35Kto50K","HH<25HI50Kto75K","HH<25HI75Kto100K","HH<25HI>100K","HH25to34HI<5K","HH25to34HI5Kto10K","HH25to34HI10Kto15K","HH25to34HI15Kto25K","HH25to34HI25Kto35K","HH25to34HI35Kto50K","HH25to34HI50Kto75K","HH25to34HI75Kto100K","HH25to34HI>100K","HH35to44HI<5K","HH35to44HI5Kto10K","HH35to44HI10Kto15K","HH35to44HI15Kto25K","HH35to44HI25Kto35K","HH35to44HI35Kto50K","HH35to44HI50Kto75K","HH35to44HI75Kto100K","HH35to44HI>100K","HH45to54HI<5K","HH45to54HI5Kto10K","HH45to54HI10Kto15K","HH45to54HI15Kto25K","HH45to54HI25Kto35K","HH45to54HI35Kto50K","HH45to54HI50Kto75K","HH45to54HI75Kto100K","HH45to54HI>100K","HH55to64HI<5K","HH55to64HI5Kto10K","HH55to64HI10Kto15K","HH55to64HI15Kto25K","HH55to64HI25Kto35K","HH55to64HI35Kto50K","HH55to64HI50Kto75K","HH55to64HI75Kto100K","HH55to64HI>100K","HH65to74HI<5K","HH65to74HI5Kto10K","HH65to74HI10Kto15K","HH65to74HI15Kto25K","HH65to74HI25Kto35K","HH65to74HI35Kto50K","HH65to74HI50Kto75K","HH65to74HI75Kto100K","HH65to74HI>100K","HH>75HI<5K","HH>75HI5Kto10K","HH>75HI10Kto15K","HH>75HI15Kto25K","HH>75HI25Kto35K","HH>75HI35Kto50K","HH>75HI50Kto75K","HH>75HI75Kto100K","HH>75HI>100K","SchoolEnrollment1thru12","Pop25andOver","HSGradorHigher","CollGradorHigher","NativePop","ForeignBornPop","BornStateOfRes","NativePop2","ForeignBornPop2","DroveAlone","CarPooled","PublicTranspt","Walked","OtherMeans","WorkedAtHome","HHInc<10K","HHInc10to15K","HHInc15to25K","HHInc25to35K","HHInc35to50K","HHInc50to75K","HHInc75to100K","HHInc100to150K","HHInc>150K"]
[{"$f":"VLOOKUP(DropDownList!$A$24,CntyQuery!$A$4:$FA$22,A1)","v":"Albany"},{"$f":"VLOOKUP(DropDownList!$A$24,CntyQuery!$A$4:$FA$22,B$1)","v":3005},{"$f":"VLOOKUP(DropDownList!$A$24,CntyQuery!$A$4:$FA$22,C$1)","v":"00420"},{"$f":"VLOOKUP(DropDownList!$A$24,CntyQuery!$A$4:$FA$22,D$1)","v":48252.959999999999},{"$f":"VLOOKUP(DropDownList!$A$24,CntyQuery!$A$4:$FA$22,E$1)","v":222.58},{"$f":"VLOOKUP(DropDownList!$A$24,CntyQuery!$A$4:$FA$22,F$1)","v":451},{"$f":"VLOOKUP(DropDownList!$A$24,CntyQuery!$A$4:$FA$22,G$1)","v":536},{"$f":"VLOOKUP(DropDownList!$A$24,CntyQuery!$A$4:$FA$22,H$1)","v":142},{"$f":"VLOOKUP(DropDownList!$A$24,CntyQuery!$A$4:$FA$22,I$1)","v":214},{"$f":"VLOOKUP(DropDownList!$A$24,CntyQuery!$A$4:$FA$22,J$1)","v":268},{"$f":"VLOOKUP(DropDownList!$A$24,CntyQuery!$A$4:$FA$22,K$1)","v":268},{"$f":"VLOOKUP(DropDownList!$A$24,CntyQuery!$A$4:$FA$22,L$1)","v":531},{"$f":"VLOOKUP(DropDownList!$A$24,CntyQuery!$A$4:$FA$22,M$1)","v":0},{"$f":"VLOOKUP(DropDownList!$A$24,CntyQuery!$A$4:$FA$22,N$1)","v":5},{"$f":"VLOOKUP(DropDownList!$A$24,CntyQuery!$A$4:$FA$22,O$1)","v":0},{"$f":"VLOOKUP(DropDownList!$A$24,CntyQuery!$A$4:$FA$22,P$1)","v":0},{"$f":"VLOOKUP(DropDownList!$A$24,CntyQuery!$A$4:$FA$22,Q$1)","v":1},{"$f":"VLOOKUP(DropDownList!$A$24,CntyQuery!$A$4:$FA$22,R$1)","v":126},{"$f":"VLOOKUP(DropDownList!$A$24,CntyQuery!$A$4:$FA$22,S$1)","v":58},{"$f":"VLOOKUP(DropDownList!$A$24,CntyQuery!$A$4:$FA$22,T$1)","v":123},{"$f":"VLOOKUP(DropDownList!$A$24,CntyQuery!$A$4:$FA$22,U$1)","v":82},{"$f":"VLOOKUP(DropDownList!$A$24,CntyQuery!$A$4:$FA$22,V$1)","v":56},{"$f":"VLOOKUP(DropDownList!$A$24,CntyQuery!$A$4:$FA$22,W$1)","v":45},{"$f":"VLOOKUP(DropDownList!$A$24,CntyQuery!$A$4:$FA$22,X$1)","v":32},{"$f":"VLOOKUP(DropDownList!$A$24,CntyQuery!$A$4:$FA$22,Y$1)","v":14},{"$f":"VLOOKUP(DropDownList!$A$24,CntyQuery!$A$4:$FA$22,Z$1)","v":536},{"$f":"VLOOKUP(DropDownList!$A$24,CntyQuery!$A$4:$FA$22,AA$1)","v":433},{"$f":"VLOOKUP(DropDownList!$A$24,CntyQuery!$A$4:$FA$22,AB$1)","v":0},{"$f":"VLOOKUP(DropDownList!$A$24,CntyQuery!$A$4:$FA$22,AC$1)","v":2.5046728971962615},{"$f":"VLOOKUP(DropDownList!$A$24,CntyQuery!$A$4:$FA$22,AD$1)","v":3.0492957746478875},{"$f":"VLOOKUP(DropDownList!$A$24,CntyQuery!$A$4:$FA$22,AE$1)","v":46},{"$f":"VLOOKUP(DropDownList!$A$24,CntyQuery!$A$4:$FA$22,AF$1)","v":121},{"$f":"VLOOKUP(DropDownList!$A$24,CntyQuery!$A$4:$FA$22,AG$1)","v":21},{"$f":"VLOOKUP(DropDownList!$A$24,CntyQuery!$A$4:$FA$22,AH$1)","v":26},{"$f":"VLOOKUP(DropDownList!$A$24,CntyQuery!$A$4:$FA$22,AI$1)","v":451},{"$f":"VLOOKUP(DropDownList!$A$24,CntyQuery!$A$4:$FA$22,AJ$1)","v":214},{"$f":"VLOOKUP(DropDownList!$A$24,CntyQuery!$A$4:$FA$22,AK$1)","v":237},{"$f":"VLOOKUP(DropDownList!$A$24,CntyQuery!$A$4:$FA$22,AL$1)","v":165},{"$f":"VLOOKUP(DropDownList!$A$24,CntyQuery!$A$4:$FA$22,AM$1)","v":49},{"$f":"VLOOKUP(DropDownList!$A$24,CntyQuery!$A$4:$FA$22,AN$1)","v":18},{"$f":"VLOOKUP(DropDownList!$A$24,CntyQuery!$A$4:$FA$22,AO$1)","v":11},{"$f":"VLOOKUP(DropDownList!$A$24,CntyQuery!$A$4:$FA$22,AP$1)","v":175},{"$f":"VLOOKUP(DropDownList!$A$24,CntyQuery!$A$4:$FA$22,AQ$1)","v":337},{"$f":"VLOOKUP(DropDownList!$A$24,CntyQuery!$A$4:$FA$22,AR$1)","v":27},{"$f":"VLOOKUP(DropDownList!$A$24,CntyQuery!$A$4:$FA$22,AS$1)","v":87},{"$f":"VLOOKUP(DropDownList!$A$24,CntyQuery!$A$4:$FA$22,AT$1)","v":113},{"$f":"VLOOKUP(DropDownList!$A$24,CntyQuery!$A$4:$FA$22,AU$1)","v":4},{"$f":"VLOOKUP(DropDownList!$A$24,CntyQuery!$A$4:$FA$22,AV$1)","v":87},{"$f":"VLOOKUP(DropDownList!$A$24,CntyQuery!$A$4:$FA$22,AW$1)","v":24},{"$f":"VLOOKUP(DropDownList!$A$24,CntyQuery!$A$4:$FA$22,AX$1)","v":18},{"$f":"VLOOKUP(DropDownList!$A$24,CntyQuery!$A$4:$FA$22,AY$1)","v":7},{"$f":"VLOOKUP(DropDownList!$A$24,CntyQuery!$A$4:$FA$22,AZ$1)","v":126},{"$f":"VLOOKUP(DropDownList!$A$24,CntyQuery!$A$4:$FA$22,BA$1)","v":165},{"$f":"VLOOKUP(DropDownList!$A$24,CntyQuery!$A$4:$FA$22,BB$1)","v":62},{"$f":"VLOOKUP(DropDownList!$A$24,CntyQuery!$A$4:$FA$22,BC$1)","v":113},{"$f":"VLOOKUP(DropDownList!$A$24,CntyQuery!$A$4:$FA$22,BD$1)","v":11},{"$f":"VLOOKUP(DropDownList!$A$24,CntyQuery!$A$4:$FA$22,BE$1)","v":62},{"$f":"VLOOKUP(DropDownList!$A$24,CntyQuery!$A$4:$FA$22,BF$1)","v":202},{"$f":"VLOOKUP(DropDownList!$A$24,CntyQuery!$A$4:$FA$22,BG$1)","v":139},{"$f":"VLOOKUP(DropDownList!$A$24,CntyQuery!$A$4:$FA$22,BH$1)","v":52},{"$f":"VLOOKUP(DropDownList!$A$24,CntyQuery!$A$4:$FA$22,BI$1)","v":2},{"$f":"VLOOKUP(DropDownList!$A$24,CntyQuery!$A$4:$FA$22,BJ$1)","v":24},{"$f":"VLOOKUP(DropDownList!$A$24,CntyQuery!$A$4:$FA$22,BK$1)","v":25},{"$f":"VLOOKUP(DropDownList!$A$24,CntyQuery!$A$4:$FA$22,BL$1)","v":53},{"$f":"VLOOKUP(DropDownList!$A$24,CntyQuery!$A$4:$FA$22,BM$1)","v":51},{"$f":"VLOOKUP(DropDownList!$A$24,CntyQuery!$A$4:$FA$22,BN$1)","v":31},{"$f":"VLOOKUP(DropDownList!$A$24,CntyQuery!$A$4:$FA$22,BO$1)","v":18},{"$f":"VLOOKUP(DropDownList!$A$24,CntyQuery!$A$4:$FA$22,BP$1)","v":6},{"$f":"VLOOKUP(DropDownList!$A$24,CntyQuery!$A$4:$FA$22,BQ$1)","v":2},{"$f":"VLOOKUP(DropDownList!$A$24,CntyQuery!$A$4:$FA$22,BR$1)","v":25455},{"$f":"VLOOKUP(DropDownList!$A$24,CntyQuery!$A$4:$FA$22,BS$1)","v":0},{"$f":"VLOOKUP(DropDownList!$A$24,CntyQuery!$A$4:$FA$22,BT$1)","v":5},{"$f":"VLOOKUP(DropDownList!$A$24,CntyQuery!$A$4:$FA$22,BU$1)","v":5},{"$f":"VLOOKUP(DropDownList!$A$24,CntyQuery!$A$4:$FA$22,BV$1)","v":5},{"$f":"VLOOKUP(DropDownList!$A$24,CntyQuery!$A$4:$FA$22,BW$1)","v":3},{"$f":"VLOOKUP(DropDownList!$A$24,CntyQuery!$A$4:$FA$22,BX$1)","v":0},{"$f":"VLOOKUP(DropDownList!$A$24,CntyQuery!$A$4:$FA$22,BY$1)","v":0},{"$f":"VLOOKUP(DropDownList!$A$24,CntyQuery!$A$4:$FA$22,BZ$1)","v":0},{"$f":"VLOOKUP(DropDownList!$A$24,CntyQuery!$A$4:$FA$22,CA$1)","v":0},{"$f":"VLOOKUP(DropDownList!$A$24,CntyQuery!$A$4:$FA$22,CB$1)","v":2},{"$f":"VLOOKUP(DropDownList!$A$24,CntyQuery!$A$4:$FA$22,CC$1)","v":2},{"$f":"VLOOKUP(DropDownList!$A$24,CntyQuery!$A$4:$FA$22,CD$1)","v":8},{"$f":"VLOOKUP(DropDownList!$A$24,CntyQuery!$A$4:$FA$22,CE$1)","v":27},{"$f":"VLOOKUP(DropDownList!$A$24,CntyQuery!$A$4:$FA$22,CF$1)","v":18},{"$f":"VLOOKUP(DropDownList!$A$24,CntyQuery!$A$4:$FA$22,CG$1)","v":9},{"$f":"VLOOKUP(DropDownList!$A$24,CntyQuery!$A$4:$FA$22,CH$1)","v":6},{"$f":"VLOOKUP(DropDownList!$A$24,CntyQuery!$A$4:$FA$22,CI$1)","v":3},{"$f":"VLOOKUP(DropDownList!$A$24,CntyQuery!$A$4:$FA$22,CJ$1)","v":0},{"$f":"VLOOKUP(DropDownList!$A$24,CntyQuery!$A$4:$FA$22,CK$1)","v":0},{"$f":"VLOOKUP(DropDownList!$A$24,CntyQuery!$A$4:$FA$22,CL$1)","v":0},{"$f":"VLOOKUP(DropDownList!$A$24,CntyQuery!$A$4:$FA$22,CM$1)","v":8},{"$f":"VLOOKUP(DropDownList!$A$24,CntyQuery!$A$4:$FA$22,CN$1)","v":9},{"$f":"VLOOKUP(DropDownList!$A$24,CntyQuery!$A$4:$FA$22,CO$1)","v":11},{"$f":"VLOOKUP(DropDownList!$A$24,CntyQuery!$A$4:$FA$22,CP$1)","v":6},{"$f":"VLOOKUP(DropDownList!$A$24,CntyQuery!$A$4:$FA$22,CQ$1)","v":5},{"$f":"VLOOKUP(DropDownList!$A$24,CntyQuery!$A$4:$FA$22,CR$1)","v":0},{"$f":"VLOOKUP(DropDownList!$A$24,CntyQuery!$A$4:$FA$22,CS$1)","v":2},{"$f":"VLOOKUP(DropDownList!$A$24,CntyQuery!$A$4:$FA$22,CT$1)","v":0},{"$f":"VLOOKUP(DropDownList!$A$24,CntyQuery!$A$4:$FA$22,CU$1)","v":4},{"$f":"VLOOKUP(DropDownList!$A$24,CntyQuery!$A$4:$FA$22,CV$1)","v":0},{"$f":"VLOOKUP(DropDownList!$A$24,CntyQuery!$A$4:$FA$22,CW$1)","v":2},{"$f":"VLOOKUP(DropDownList!$A$24,CntyQuery!$A$4:$FA$22,CX$1)","v":8},{"$f":"VLOOKUP(DropDownList!$A$24,CntyQuery!$A$4:$FA$22,CY$1)","v":9},{"$f":"VLOOKUP(DropDownList!$A$24,CntyQuery!$A$4:$FA$22,CZ$1)","v":3},{"$f":"VLOOKUP(DropDownList!$A$24,CntyQuery!$A$4:$FA$22,DA$1)","v":0},{"$f":"VLOOKUP(DropDownList!$A$24,CntyQuery!$A$4:$FA$22,DB$1)","v":0},{"$f":"VLOOKUP(DropDownList!$A$24,CntyQuery!$A$4:$FA$22,DC$1)","v":0},{"$f":"VLOOKUP(DropDownList!$A$24,CntyQuery!$A$4:$FA$22,DD$1)","v":4},{"$f":"VLOOKUP(DropDownList!$A$24,CntyQuery!$A$4:$FA$22,DE$1)","v":0},{"$f":"VLOOKUP(DropDownList!$A$24,CntyQuery!$A$4:$FA$22,DF$1)","v":6},{"$f":"VLOOKUP(DropDownList!$A$24,CntyQuery!$A$4:$FA$22,DG$1)","v":8},{"$f":"VLOOKUP(DropDownList!$A$24,CntyQuery!$A$4:$FA$22,DH$1)","v":4},{"$f":"VLOOKUP(DropDownList!$A$24,CntyQuery!$A$4:$FA$22,DI$1)","v":2},{"$f":"VLOOKUP(DropDownList!$A$24,CntyQuery!$A$4:$FA$22,DJ$1)","v":3},{"$f":"VLOOKUP(DropDownList!$A$24,CntyQuery!$A$4:$FA$22,DK$1)","v":0},{"$f":"VLOOKUP(DropDownList!$A$24,CntyQuery!$A$4:$FA$22,DL$1)","v":0},{"$f":"VLOOKUP(DropDownList!$A$24,CntyQuery!$A$4:$FA$22,DM$1)","v":3},{"$f":"VLOOKUP(DropDownList!$A$24,CntyQuery!$A$4:$FA$22,DN$1)","v":2},{"$f":"VLOOKUP(DropDownList!$A$24,CntyQuery!$A$4:$FA$22,DO$1)","v":4},{"$f":"VLOOKUP(DropDownList!$A$24,CntyQuery!$A$4:$FA$22,DP$1)","v":3},{"$f":"VLOOKUP(DropDownList!$A$24,CntyQuery!$A$4:$FA$22,DQ$1)","v":3},{"$f":"VLOOKUP(DropDownList!$A$24,CntyQuery!$A$4:$FA$22,DR$1)","v":2},{"$f":"VLOOKUP(DropDownList!$A$24,CntyQuery!$A$4:$FA$22,DS$1)","v":0},{"$f":"VLOOKUP(DropDownList!$A$24,CntyQuery!$A$4:$FA$22,DT$1)","v":0},{"$f":"VLOOKUP(DropDownList!$A$24,CntyQuery!$A$4:$FA$22,DU$1)","v":0},{"$f":"VLOOKUP(DropDownList!$A$24,CntyQuery!$A$4:$FA$22,DV$1)","v":6},{"$f":"VLOOKUP(DropDownList!$A$24,CntyQuery!$A$4:$FA$22,DW$1)","v":2},{"$f":"VLOOKUP(DropDownList!$A$24,CntyQuery!$A$4:$FA$22,DX$1)","v":0},{"$f":"VLOOKUP(DropDownList!$A$24,CntyQuery!$A$4:$FA$22,DY$1)","v":0},{"$f":"VLOOKUP(DropDownList!$A$24,CntyQuery!$A$4:$FA$22,DZ$1)","v":0},{"$f":"VLOOKUP(DropDownList!$A$24,CntyQuery!$A$4:$FA$22,EA$1)","v":0},{"$f":"VLOOKUP(DropDownList!$A$24,CntyQuery!$A$4:$FA$22,EB$1)","v":0},{"$f":"VLOOKUP(DropDownList!$A$24,CntyQuery!$A$4:$FA$22,EC$1)","v":0},{"$f":"VLOOKUP(DropDownList!$A$24,CntyQuery!$A$4:$FA$22,ED$1)","v":72},{"$f":"VLOOKUP(DropDownList!$A$24,CntyQuery!$A$4:$FA$22,EE$1)","v":330},{"$f":"VLOOKUP(DropDownList!$A$24,CntyQuery!$A$4:$FA$22,EF$1)","v":247},{"$f":"VLOOKUP(DropDownList!$A$24,CntyQuery!$A$4:$FA$22,EG$1)","v":41},{"$f":"VLOOKUP(DropDownList!$A$24,CntyQuery!$A$4:$FA$22,EH$1)","v":520},{"$f":"VLOOKUP(DropDownList!$A$24,CntyQuery!$A$4:$FA$22,EI$1)","v":10},{"$f":"VLOOKUP(DropDownList!$A$24,CntyQuery!$A$4:$FA$22,EJ$1)","v":226},{"$f":"VLOOKUP(DropDownList!$A$24,CntyQuery!$A$4:$FA$22,EK$1)","v":520},{"$f":"VLOOKUP(DropDownList!$A$24,CntyQuery!$A$4:$FA$22,EL$1)","v":10},{"$f":"VLOOKUP(DropDownList!$A$24,CntyQuery!$A$4:$FA$22,EM$1)","v":216},{"$f":"VLOOKUP(DropDownList!$A$24,CntyQuery!$A$4:$FA$22,EN$1)","v":22},{"$f":"VLOOKUP(DropDownList!$A$24,CntyQuery!$A$4:$FA$22,EO$1)","v":0},{"$f":"VLOOKUP(DropDownList!$A$24,CntyQuery!$A$4:$FA$22,EP$1)","v":2},{"$f":"VLOOKUP(DropDownList!$A$24,CntyQuery!$A$4:$FA$22,EQ$1)","v":4},{"$f":"VLOOKUP(DropDownList!$A$24,CntyQuery!$A$4:$FA$22,ER$1)","v":20},{"$f":"VLOOKUP(DropDownList!$A$24,CntyQuery!$A$4:$FA$22,ES$1)","v":26},{"$f":"VLOOKUP(DropDownList!$A$24,CntyQuery!$A$4:$FA$22,ET$1)","v":25},{"$f":"VLOOKUP(DropDownList!$A$24,CntyQuery!$A$4:$FA$22,EU$1)","v":53},{"$f":"VLOOKUP(DropDownList!$A$24,CntyQuery!$A$4:$FA$22,EV$1)","v":51},{"$f":"VLOOKUP(DropDownList!$A$24,CntyQuery!$A$4:$FA$22,EW$1)","v":31},{"$f":"VLOOKUP(DropDownList!$A$24,CntyQuery!$A$4:$FA$22,EX$1)","v":18},{"$f":"VLOOKUP(DropDownList!$A$24,CntyQuery!$A$4:$FA$22,EY$1)","v":6},{"$f":"VLOOKUP(DropDownList!$A$24,CntyQuery!$A$4:$FA$22,EZ$1)","v":2},{"$f":"VLOOKUP(DropDownList!$A$24,CntyQuery!$A$4:$FA$22,FA$1)","v":0}]
[]
[]
["Census 1990 Data -    Query Name:  TownSTF1Qry1"]
["NAME","COUSUBFP","Census_Cnty_Code","FIPS","LandAcres","WaterAcres","HousingUnits90Cen","P01Persons90Cen","P02Families90Cen","P03Households90cen","P05MalePop90cen","P05FemalePop90cen","P06WhitePop","P06BlackPop","P06AmerIndianPop","P06AsianPIPop","P06OtherRacePop","P08HispanicOrPop","P11AgeUnder15_90cen","P11Age15to24_90cen","P11Age25to34_90cen","P11Age35to44_90cen","P11Age45to54_90cen","P11Age55to64_90cen","P11Age65to74_90cen","P11Age75andOver_90cen","P15PersonsInHH90cen","P15PersonsInFamHH90cen","P15PersonsInGC","PersonsPerHH90cen","PersonsPerFam90Cen","P16SinglePersonHH90cen","P16MarriedCoupleHH90cen","P16SingleParentHH90cen","P16NonFamilyHH90cen","H01TotalHousingUnits","H02OccupiedHousingUnits","H02VacantHousingUnits","H03OwnerOccHU","H03RenterOccHU","H05VacantForRent90","H05VacantForSale90","H05VacantSeasonalRec","H23OOHUVal<15k","H23OOHUVal15to19k","H23OOHUVal20to24k","H23OOHUVal25to29k","H23OOHUVal30to34k","H23OOHUVal35to39k","H23OOHUVal40to44k","H23OOHUVal45to49k","H23OOHUVal50to59k","H23OOHUVal60to74k","H23OOHUVal75to99k","H23OOHUVal100to124k","H23OOHUVal125to149k","H23OOHUVal150to174k","H23OOHUVal175to199k","H23OOHUVal200to249k","H23OOHUVal250to299k","H23OOHUVal300to399k","H23OOHUVal400to499k","H23OOHUVal500kOrMore","H23BOOHUMedVal","H41SingFamHU90cen","H41MultiFamHU90cen","H41MobileHom90cen","H43SingFamOwnHU90cen","H43MultiFamOwnHU90cen","H43MobileHomOwnHU90cen","H43SingFamRntrHU90cen","H43MultiFamRntrHU90cen","H43MobileHomRntrHU90cen","H41HU1UnitDet","H41HU1UnitAtt","H41HU2Unit","H41HU3to4Unit","H41HU5to9Unit","H41HU10to19Unit","H41HU20to49Unit","H41HU50PlusUnit","H41HUMobilH","H41HUOther"]
[{"$f":"VLOOKUP(DropDownList!$B$24,CntyQuery!$A$37:$CE$45,A$1)","v":{"$error":"#N/A"}},{"$f":"VLOOKUP(DropDownList!$B$24,CntyQuery!$A$37:$CE$45,B$1)","v":{"$error":"#N/A"}},{"$f":"VLOOKUP(DropDownList!$B$24,CntyQuery!$A$37:$CE$45,C$1)","v":{"$error":"#N/A"}},{"$f":"VLOOKUP(DropDownList!$B$24,CntyQuery!$A$37:$CE$45,D$1)","v":{"$error":"#N/A"}},{"$f":"VLOOKUP(DropDownList!$B$24,CntyQuery!$A$37:$CE$45,E$1)","v":{"$error":"#N/A"}},{"$f":"VLOOKUP(DropDownList!$B$24,CntyQuery!$A$37:$CE$45,F$1)","v":{"$error":"#N/A"}},{"$f":"VLOOKUP(DropDownList!$B$24,CntyQuery!$A$37:$CE$45,G$1)","v":{"$error":"#N/A"}},{"$f":"VLOOKUP(DropDownList!$B$24,CntyQuery!$A$37:$CE$45,H$1)","v":{"$error":"#N/A"}},{"$f":"VLOOKUP(DropDownList!$B$24,CntyQuery!$A$37:$CE$45,I$1)","v":{"$error":"#N/A"}},{"$f":"VLOOKUP(DropDownList!$B$24,CntyQuery!$A$37:$CE$45,J$1)","v":{"$error":"#N/A"}},{"$f":"VLOOKUP(DropDownList!$B$24,CntyQuery!$A$37:$CE$45,K$1)","v":{"$error":"#N/A"}},{"$f":"VLOOKUP(DropDownList!$B$24,CntyQuery!$A$37:$CE$45,L$1)","v":{"$error":"#N/A"}},{"$f":"VLOOKUP(DropDownList!$B$24,CntyQuery!$A$37:$CE$45,M$1)","v":{"$error":"#N/A"}},{"$f":"VLOOKUP(DropDownList!$B$24,CntyQuery!$A$37:$CE$45,N$1)","v":{"$error":"#N/A"}},{"$f":"VLOOKUP(DropDownList!$B$24,CntyQuery!$A$37:$CE$45,O$1)","v":{"$error":"#N/A"}},{"$f":"VLOOKUP(DropDownList!$B$24,CntyQuery!$A$37:$CE$45,P$1)","v":{"$error":"#N/A"}},{"$f":"VLOOKUP(DropDownList!$B$24,CntyQuery!$A$37:$CE$45,Q$1)","v":{"$error":"#N/A"}},{"$f":"VLOOKUP(DropDownList!$B$24,CntyQuery!$A$37:$CE$45,R$1)","v":{"$error":"#N/A"}},{"$f":"VLOOKUP(DropDownList!$B$24,CntyQuery!$A$37:$CE$45,S$1)","v":{"$error":"#N/A"}},{"$f":"VLOOKUP(DropDownList!$B$24,CntyQuery!$A$37:$CE$45,T$1)","v":{"$error":"#N/A"}},{"$f":"VLOOKUP(DropDownList!$B$24,CntyQuery!$A$37:$CE$45,U$1)","v":{"$error":"#N/A"}},{"$f":"VLOOKUP(DropDownList!$B$24,CntyQuery!$A$37:$CE$45,V$1)","v":{"$error":"#N/A"}},{"$f":"VLOOKUP(DropDownList!$B$24,CntyQuery!$A$37:$CE$45,W$1)","v":{"$error":"#N/A"}},{"$f":"VLOOKUP(DropDownList!$B$24,CntyQuery!$A$37:$CE$45,X$1)","v":{"$error":"#N/A"}},{"$f":"VLOOKUP(DropDownList!$B$24,CntyQuery!$A$37:$CE$45,Y$1)","v":{"$error":"#N/A"}},{"$f":"VLOOKUP(DropDownList!$B$24,CntyQuery!$A$37:$CE$45,Z$1)","v":{"$error":"#N/A"}},{"$f":"VLOOKUP(DropDownList!$B$24,CntyQuery!$A$37:$CE$45,AA$1)","v":{"$error":"#N/A"}},{"$f":"VLOOKUP(DropDownList!$B$24,CntyQuery!$A$37:$CE$45,AB$1)","v":{"$error":"#N/A"}},{"$f":"VLOOKUP(DropDownList!$B$24,CntyQuery!$A$37:$CE$45,AC$1)","v":{"$error":"#N/A"}},{"$f":"VLOOKUP(DropDownList!$B$24,CntyQuery!$A$37:$CE$45,AD$1)","v":{"$error":"#N/A"}},{"$f":"VLOOKUP(DropDownList!$B$24,CntyQuery!$A$37:$CE$45,AE$1)","v":{"$error":"#N/A"}},{"$f":"VLOOKUP(DropDownList!$B$24,CntyQuery!$A$37:$CE$45,AF$1)","v":{"$error":"#N/A"}},{"$f":"VLOOKUP(DropDownList!$B$24,CntyQuery!$A$37:$CE$45,AG$1)","v":{"$error":"#N/A"}},{"$f":"VLOOKUP(DropDownList!$B$24,CntyQuery!$A$37:$CE$45,AH$1)","v":{"$error":"#N/A"}},{"$f":"VLOOKUP(DropDownList!$B$24,CntyQuery!$A$37:$CE$45,AI$1)","v":{"$error":"#N/A"}},{"$f":"VLOOKUP(DropDownList!$B$24,CntyQuery!$A$37:$CE$45,AJ$1)","v":{"$error":"#N/A"}},{"$f":"VLOOKUP(DropDownList!$B$24,CntyQuery!$A$37:$CE$45,AK$1)","v":{"$error":"#N/A"}},{"$f":"VLOOKUP(DropDownList!$B$24,CntyQuery!$A$37:$CE$45,AL$1)","v":{"$error":"#N/A"}},{"$f":"VLOOKUP(DropDownList!$B$24,CntyQuery!$A$37:$CE$45,AM$1)","v":{"$error":"#N/A"}},{"$f":"VLOOKUP(DropDownList!$B$24,CntyQuery!$A$37:$CE$45,AN$1)","v":{"$error":"#N/A"}},{"$f":"VLOOKUP(DropDownList!$B$24,CntyQuery!$A$37:$CE$45,AO$1)","v":{"$error":"#N/A"}},{"$f":"VLOOKUP(DropDownList!$B$24,CntyQuery!$A$37:$CE$45,AP$1)","v":{"$error":"#N/A"}},{"$f":"VLOOKUP(DropDownList!$B$24,CntyQuery!$A$37:$CE$45,AQ$1)","v":{"$error":"#N/A"}},{"$f":"VLOOKUP(DropDownList!$B$24,CntyQuery!$A$37:$CE$45,AR$1)","v":{"$error":"#N/A"}},{"$f":"VLOOKUP(DropDownList!$B$24,CntyQuery!$A$37:$CE$45,AS$1)","v":{"$error":"#N/A"}},{"$f":"VLOOKUP(DropDownList!$B$24,CntyQuery!$A$37:$CE$45,AT$1)","v":{"$error":"#N/A"}},{"$f":"VLOOKUP(DropDownList!$B$24,CntyQuery!$A$37:$CE$45,AU$1)","v":{"$error":"#N/A"}},{"$f":"VLOOKUP(DropDownList!$B$24,CntyQuery!$A$37:$CE$45,AV$1)","v":{"$error":"#N/A"}},{"$f":"VLOOKUP(DropDownList!$B$24,CntyQuery!$A$37:$CE$45,AW$1)","v":{"$error":"#N/A"}},{"$f":"VLOOKUP(DropDownList!$B$24,CntyQuery!$A$37:$CE$45,AX$1)","v":{"$error":"#N/A"}},{"$f":"VLOOKUP(DropDownList!$B$24,CntyQuery!$A$37:$CE$45,AY$1)","v":{"$error":"#N/A"}},{"$f":"VLOOKUP(DropDownList!$B$24,CntyQuery!$A$37:$CE$45,AZ$1)","v":{"$error":"#N/A"}},{"$f":"VLOOKUP(DropDownList!$B$24,CntyQuery!$A$37:$CE$45,BA$1)","v":{"$error":"#N/A"}},{"$f":"VLOOKUP(DropDownList!$B$24,CntyQuery!$A$37:$CE$45,BB$1)","v":{"$error":"#N/A"}},{"$f":"VLOOKUP(DropDownList!$B$24,CntyQuery!$A$37:$CE$45,BC$1)","v":{"$error":"#N/A"}},{"$f":"VLOOKUP(DropDownList!$B$24,CntyQuery!$A$37:$CE$45,BD$1)","v":{"$error":"#N/A"}},{"$f":"VLOOKUP(DropDownList!$B$24,CntyQuery!$A$37:$CE$45,BE$1)","v":{"$error":"#N/A"}},{"$f":"VLOOKUP(DropDownList!$B$24,CntyQuery!$A$37:$CE$45,BF$1)","v":{"$error":"#N/A"}},{"$f":"VLOOKUP(DropDownList!$B$24,CntyQuery!$A$37:$CE$45,BG$1)","v":{"$error":"#N/A"}},{"$f":"VLOOKUP(DropDownList!$B$24,CntyQuery!$A$37:$CE$45,BH$1)","v":{"$error":"#N/A"}},{"$f":"VLOOKUP(DropDownList!$B$24,CntyQuery!$A$37:$CE$45,BI$1)","v":{"$error":"#N/A"}},{"$f":"VLOOKUP(DropDownList!$B$24,CntyQuery!$A$37:$CE$45,BJ$1)","v":{"$error":"#N/A"}},{"$f":"VLOOKUP(DropDownList!$B$24,CntyQuery!$A$37:$CE$45,BK$1)","v":{"$error":"#N/A"}},{"$f":"VLOOKUP(DropDownList!$B$24,CntyQuery!$A$37:$CE$45,BL$1)","v":{"$error":"#N/A"}},{"$f":"VLOOKUP(DropDownList!$B$24,CntyQuery!$A$37:$CE$45,BM$1)","v":{"$error":"#N/A"}},{"$f":"VLOOKUP(DropDownList!$B$24,CntyQuery!$A$37:$CE$45,BN$1)","v":{"$error":"#N/A"}},{"$f":"VLOOKUP(DropDownList!$B$24,CntyQuery!$A$37:$CE$45,BO$1)","v":{"$error":"#N/A"}},{"$f":"VLOOKUP(DropDownList!$B$24,CntyQuery!$A$37:$CE$45,BP$1)","v":{"$error":"#N/A"}},{"$f":"VLOOKUP(DropDownList!$B$24,CntyQuery!$A$37:$CE$45,BQ$1)","v":{"$error":"#N/A"}},{"$f":"VLOOKUP(DropDownList!$B$24,CntyQuery!$A$37:$CE$45,BR$1)","v":{"$error":"#N/A"}},{"$f":"VLOOKUP(DropDownList!$B$24,CntyQuery!$A$37:$CE$45,BS$1)","v":{"$error":"#N/A"}},{"$f":"VLOOKUP(DropDownList!$B$24,CntyQuery!$A$37:$CE$45,BT$1)","v":{"$error":"#N/A"}},{"$f":"VLOOKUP(DropDownList!$B$24,CntyQuery!$A$37:$CE$45,BU$1)","v":{"$error":"#N/A"}},{"$f":"VLOOKUP(DropDownList!$B$24,CntyQuery!$A$37:$CE$45,BV$1)","v":{"$error":"#N/A"}},{"$f":"VLOOKUP(DropDownList!$B$24,CntyQuery!$A$37:$CE$45,BW$1)","v":{"$error":"#N/A"}},{"$f":"VLOOKUP(DropDownList!$B$24,CntyQuery!$A$37:$CE$45,BX$1)","v":{"$error":"#N/A"}},{"$f":"VLOOKUP(DropDownList!$B$24,CntyQuery!$A$37:$CE$45,BY$1)","v":{"$error":"#N/A"}},{"$f":"VLOOKUP(DropDownList!$B$24,CntyQuery!$A$37:$CE$45,BZ$1)","v":{"$error":"#N/A"}},{"$f":"VLOOKUP(DropDownList!$B$24,CntyQuery!$A$37:$CE$45,CA$1)","v":{"$error":"#N/A"}},{"$f":"VLOOKUP(DropDownList!$B$24,CntyQuery!$A$37:$CE$45,CB$1)","v":{"$error":"#N/A"}},{"$f":"VLOOKUP(DropDownList!$B$24,CntyQuery!$A$37:$CE$45,CC$1)","v":{"$error":"#N/A"}},{"$f":"VLOOKUP(DropDownList!$B$24,CntyQuery!$A$37:$CE$45,CD$1)","v":{"$error":"#N/A"}},{"$f":"VLOOKUP(DropDownList!$B$24,CntyQuery!$A$37:$CE$45,CE$1)","v":{"$error":"#N/A"}}]
[]
[]
["Census 1990 Data -          Query Name: TownSTF3Qry1"]
["NAME","FIPS","COUSUBFP","LandAcres","WaterAcres","HousingUnits90Cen","P01Persons90Cen","P02Families90Cen","P03Households90cen","H25HU<5yrs90cen","H25HU5to20yrs90cen","H25HU20to50yrs90cen","H25HU>50yrs90cen","H31Units0Bedroom90cen","H31Units1Bedroom90cen","H31Units2Bedroom90cen","H31Units3Bedroom90cen","H31Units4Bedroom90cen","H31Units5+Bedroom90cen","P80HI<5K","P80HI5Kto10K","P80HI10Kto15K","P80HI15Kto25K","P80HI25Kto35K","P80HI35Kto50K","P80HI50Kto75K","P80HI75Kto100K","P80HI>100K","P80AMedHI","P86HH<25HI<5K","P86HH<25HI5Kto10K","P86HH<25HI10Kto15K","P86HH<25HI15Kto25K","P86HH<25HI25Kto35K","P86HH<25HI35Kto50K","P86HH<25HI50Kto75K","P86HH<25HI75Kto100K","P86HH<25HI>100K","P86HH25to34HI<5K","P86HH25to34HI5Kto10K","P86HH25to34HI10Kto15K","P86HH25to34HI15Kto25K","P86HH25to34HI25Kto35K","P86HH25to34HI35Kto50K","P86HH25to34HI50Kto75K","P86HH25to34HI75Kto100K","P86HH25to34HI>100K","P86HH35to44HI<5K","P86HH35to44HI5Kto10K","P86HH35to44HI10Kto15K","P86HH35to44HI15Kto25K","P86HH35to44HI25Kto35K","P86HH35to44HI35Kto50K","P86HH35to44HI50Kto75K","P86HH35to44HI75Kto100K","P86HH35to44HI>100K","P86HH45to54HI<5K","P86HH45to54HI5Kto10K","P86HH45to54HI10Kto15K","P86HH45to54HI15Kto25K","P86HH45to54HI25Kto35K","P86HH45to54HI35Kto50K","P86HH45to54HI50Kto75K","P86HH45to54HI75Kto100K","P86HH45to54HI>100K","P86HH55to64HI<5K","P86HH55to64HI5Kto10K","P86HH55to64HI10Kto15K","P86HH55to64HI15Kto25K","P86HH55to64HI25Kto35K","P86HH55to64HI35Kto50K","P86HH55to64HI50Kto75K","P86HH55to64HI75Kto100K","P86HH55to64HI>100K","P86HH65to74HI<5K","P86HH65to74HI5Kto10K","P86HH65to74HI10Kto15K","P86HH65to74HI15Kto25K","P86HH65to74HI25Kto35K","P86HH65to74HI35Kto50K","P86HH65to74HI50Kto75K","P86HH65to74HI75Kto100K","P86HH65to74HI>100K","P86HH>75HI<5K","P86HH>75HI5Kto10K","P86HH>75HI10Kto15K","P86HH>75HI15Kto25K","P86HH>75HI25Kto35K","P86HH>75HI35Kto50K","P86HH>75HI50Kto75K","P86HH>75HI75Kto100K","P86HH>75HI>100K","P54SchlEnrlPrePrim","P54SchlEnrlElemThrHS","P54SchlEnrlCollege","P54NotEnrlInSch","P57Pop25andOver","P57LessThan9thGrade","P579thto12thNoDip","P57HSGrad","P57SomeCollege","P57AssocDeg","P57BachelDeg","P57GradorProfDeg","P57HSGradorHigher","P57CollGradorHigher","P42NativePop","P42ForeignBornPop","P42BornStateOfRes","P37NativePop2","P37ForeignBornPop2","P49DroveAlone","P49CarPooled","P49PublicTranspt","P49Walked","P49OtherMeans","P49WorkedAtHome","P80HHInc<10K","P80HHInc10to15K","P80HHInc15to25K","P80HHInc25to35K","P80HHInc35to50K","P80HHInc50to75K","P80HHInc75to100K","P80HHInc100to150K","P80HHInc>150K","H25YearStBlt89to90","H25YearStBlt85to88","H25YearStBlt80to84","H25YearStBlt70to79","H25YearStBlt60to69","H25YearStBlt50to59","H25YearStBlt40to49","H25YearStBlt39earlier","P107FamInc<10K","P107FamInc10to15K","P107FamInc15to25K","P107FamInc25to35K","P107FamInc35to50K","P107FamInc50to75K","P107FamInc75to100K","P107FamInc100to150K","P107FamInc>150K","P107AMedFamInc","P110NonFamInc<10K","P110NonFamInc10to15K","P110NonFamInc15to25K","P110NonFamInc25to35K","P110NonFamInc35to50K","P110NonFamInc50to75K","P110NonFamInc75to100K","P110NonFamInc100to150K","P110NonFamInc>150K","P110AMedNonFamInc","H16HU1Room","H16HU2Room","H16HU3Room","H16HU4Room","H16HU5Room","H16HU6Room","H16HU7Room","H16HU8Room","H16HU9+Room","H43GrossRnt<100","H43GrossRnt100to149","H43GrossRnt150to199","H43GrossRnt200to249","H43GrossRnt250to299","H43GrossRnt300to349","H43GrossRnt350to399","H43GrossRnt400to449","H43GrossRnt450to499","H43GrossRnt500to549","H43GrossRnt550to599","H43GrossRnt600to649","H43GrossRnt650to699","H43GrossRnt700to749","H43GrossRnt750to999","H43GrossRnt1000Plus","H43NoCashRent","H43MedGrossRent","H51GrossRnt<20PctHHInc","H51GrossRnt20to24PctHHInc","H51GrossRnt25to29PctHHInc","H51GrossRnt30to34PctHHInc","H51GrossRnt35PctOrMoreHHInc","H51GrossRntAsPctHHIncNotComp","H52HUwMtgMoOwnCst<200","H52HUwMtgMoOwnCst200to299","H52HUwMtgMoOwnCst300to399","H52HUwMtgMoOwnCst400to499","H52HUwMtgMoOwnCst500to599","H52HUwMtgMoOwnCst600to699","H52HUwMtgMoOwnCst700to799","H52HUwMtgMoOwnCst800to899","H52HUwMtgMoOwnCst900to999","H52HUwMtgMoOwnCst1000to1249","H52HUwMtgMoOwnCst1250to1499","H52HUwMtgMoOwnCst1500to1999","H52HUwMtgMoOwnCst2000More","H52HUwNoMtgMoOwnCst<100","H52HUwNoMtgMoOwnCst100to149","H52HUwNoMtgMoOwnCst150to199","H52HUwNoMtgMoOwnCst200to249","H52HUwNoMtgMoOwnCst250to299","H52HUwNoMtgMoOwnCst300to349","H52HUwNoMtgMoOwnCst350to399","H52HUwNoMtgMoOwnCst400More","H52AMedMoOwnCstWMortg","H52AMedMoOwnCstWNoMortg","H58HUwMtgMOC<20pHHInc","H58HUwMtgMOC20to24pHHInc","H58HUwMtgMOC25to29pHHInc","H58HUwMtgMOC30to34pHHInc","H58wMtgMOC>35pHHInc","H58HUwMtgMOCNotComp","H58HUwNoMtgMOC<20pHHInc","H58HUwNoMtgMOC20to24pHHInc","H58HUwNoMtgMOC25to29pHHInc","H58HUwNoMtgMOC30to34pHHInc","H58wNoMtgMOC>35pHHInc","H58HUwNoMtgMOCNotComp","H61OOHUVal<15k","H61OOHUVal15to19k","H61OOHUVal20to24k","H61OOHUVal25to29k","H61OOHUVal30to34k","H61OOHUVal35to39k","H61OOHUVal40to44k","H61OOHUVal45to49k","H61OOHUVal50to59k","H61OOHUVal60to74k","H61OOHUVal75to99k","H61OOHUVal100to124k","H61OOHUVal125to149k","H61OOHUVal150to174k","H61OOHUVal175to199k","H61OOHUVal200to249k","H61OOHUVal250to299k","H61OOHUVal300to399k","H61OOHUVal400to499k","H61OOHUVal500kOrMore","H61aOOHUMedVal"]
[{"$f":"A20","v":"Albany"},{"$f":"VLOOKUP(DropDownList!$B$24,CntyQuery!$A$52:$II$62,B$1)","v":{"$error":"#N/A"}},{"$f":"VLOOKUP(DropDownList!$B$24,CntyQuery!$A$52:$II$62,C$1)","v":{"$error":"#N/A"}},{"$f":"VLOOKUP(DropDownList!$B$24,CntyQuery!$A$52:$II$62,D$1)","v":{"$error":"#N/A"}},{"$f":"VLOOKUP(DropDownList!$B$24,CntyQuery!$A$52:$II$62,E$1)","v":{"$error":"#N/A"}},{"$f":"VLOOKUP(DropDownList!$B$24,CntyQuery!$A$52:$II$62,F$1)","v":{"$error":"#N/A"}},{"$f":"VLOOKUP(DropDownList!$B$24,CntyQuery!$A$52:$II$62,G$1)","v":{"$error":"#N/A"}},{"$f":"VLOOKUP(DropDownList!$B$24,CntyQuery!$A$52:$II$62,H$1)","v":{"$error":"#N/A"}},{"$f":"VLOOKUP(DropDownList!$B$24,CntyQuery!$A$52:$II$62,I$1)","v":{"$error":"#N/A"}},{"$f":"VLOOKUP(DropDownList!$B$24,CntyQuery!$A$52:$II$62,J$1)","v":{"$error":"#N/A"}},{"$f":"VLOOKUP(DropDownList!$B$24,CntyQuery!$A$52:$II$62,K$1)","v":{"$error":"#N/A"}},{"$f":"VLOOKUP(DropDownList!$B$24,CntyQuery!$A$52:$II$62,L$1)","v":{"$error":"#N/A"}},{"$f":"VLOOKUP(DropDownList!$B$24,CntyQuery!$A$52:$II$62,M$1)","v":{"$error":"#N/A"}},{"$f":"VLOOKUP(DropDownList!$B$24,CntyQuery!$A$52:$II$62,N$1)","v":{"$error":"#N/A"}},{"$f":"VLOOKUP(DropDownList!$B$24,CntyQuery!$A$52:$II$62,O$1)","v":{"$error":"#N/A"}},{"$f":"VLOOKUP(DropDownList!$B$24,CntyQuery!$A$52:$II$62,P$1)","v":{"$error":"#N/A"}},{"$f":"VLOOKUP(DropDownList!$B$24,CntyQuery!$A$52:$II$62,Q$1)","v":{"$error":"#N/A"}},{"$f":"VLOOKUP(DropDownList!$B$24,CntyQuery!$A$52:$II$62,R$1)","v":{"$error":"#N/A"}},{"$f":"VLOOKUP(DropDownList!$B$24,CntyQuery!$A$52:$II$62,S$1)","v":{"$error":"#N/A"}},{"$f":"VLOOKUP(DropDownList!$B$24,CntyQuery!$A$52:$II$62,T$1)","v":{"$error":"#N/A"}},{"$f":"VLOOKUP(DropDownList!$B$24,CntyQuery!$A$52:$II$62,U$1)","v":{"$error":"#N/A"}},{"$f":"VLOOKUP(DropDownList!$B$24,CntyQuery!$A$52:$II$62,V$1)","v":{"$error":"#N/A"}},{"$f":"VLOOKUP(DropDownList!$B$24,CntyQuery!$A$52:$II$62,W$1)","v":{"$error":"#N/A"}},{"$f":"VLOOKUP(DropDownList!$B$24,CntyQuery!$A$52:$II$62,X$1)","v":{"$error":"#N/A"}},{"$f":"VLOOKUP(DropDownList!$B$24,CntyQuery!$A$52:$II$62,Y$1)","v":{"$error":"#N/A"}},{"$f":"VLOOKUP(DropDownList!$B$24,CntyQuery!$A$52:$II$62,Z$1)","v":{"$error":"#N/A"}},{"$f":"VLOOKUP(DropDownList!$B$24,CntyQuery!$A$52:$II$62,AA$1)","v":{"$error":"#N/A"}},{"$f":"VLOOKUP(DropDownList!$B$24,CntyQuery!$A$52:$II$62,AB$1)","v":{"$error":"#N/A"}},{"$f":"VLOOKUP(DropDownList!$B$24,CntyQuery!$A$52:$II$62,AC$1)","v":{"$error":"#N/A"}},{"$f":"VLOOKUP(DropDownList!$B$24,CntyQuery!$A$52:$II$62,AD$1)","v":{"$error":"#N/A"}},{"$f":"VLOOKUP(DropDownList!$B$24,CntyQuery!$A$52:$II$62,AE$1)","v":{"$error":"#N/A"}},{"$f":"VLOOKUP(DropDownList!$B$24,CntyQuery!$A$52:$II$62,AF$1)","v":{"$error":"#N/A"}},{"$f":"VLOOKUP(DropDownList!$B$24,CntyQuery!$A$52:$II$62,AG$1)","v":{"$error":"#N/A"}},{"$f":"VLOOKUP(DropDownList!$B$24,CntyQuery!$A$52:$II$62,AH$1)","v":{"$error":"#N/A"}},{"$f":"VLOOKUP(DropDownList!$B$24,CntyQuery!$A$52:$II$62,AI$1)","v":{"$error":"#N/A"}},{"$f":"VLOOKUP(DropDownList!$B$24,CntyQuery!$A$52:$II$62,AJ$1)","v":{"$error":"#N/A"}},{"$f":"VLOOKUP(DropDownList!$B$24,CntyQuery!$A$52:$II$62,AK$1)","v":{"$error":"#N/A"}},{"$f":"VLOOKUP(DropDownList!$B$24,CntyQuery!$A$52:$II$62,AL$1)","v":{"$error":"#N/A"}},{"$f":"VLOOKUP(DropDownList!$B$24,CntyQuery!$A$52:$II$62,AM$1)","v":{"$error":"#N/A"}},{"$f":"VLOOKUP(DropDownList!$B$24,CntyQuery!$A$52:$II$62,AN$1)","v":{"$error":"#N/A"}},{"$f":"VLOOKUP(DropDownList!$B$24,CntyQuery!$A$52:$II$62,AO$1)","v":{"$error":"#N/A"}},{"$f":"VLOOKUP(DropDownList!$B$24,CntyQuery!$A$52:$II$62,AP$1)","v":{"$error":"#N/A"}},{"$f":"VLOOKUP(DropDownList!$B$24,CntyQuery!$A$52:$II$62,AQ$1)","v":{"$error":"#N/A"}},{"$f":"VLOOKUP(DropDownList!$B$24,CntyQuery!$A$52:$II$62,AR$1)","v":{"$error":"#N/A"}},{"$f":"VLOOKUP(DropDownList!$B$24,CntyQuery!$A$52:$II$62,AS$1)","v":{"$error":"#N/A"}},{"$f":"VLOOKUP(DropDownList!$B$24,CntyQuery!$A$52:$II$62,AT$1)","v":{"$error":"#N/A"}},{"$f":"VLOOKUP(DropDownList!$B$24,CntyQuery!$A$52:$II$62,AU$1)","v":{"$error":"#N/A"}},{"$f":"VLOOKUP(DropDownList!$B$24,CntyQuery!$A$52:$II$62,AV$1)","v":{"$error":"#N/A"}},{"$f":"VLOOKUP(DropDownList!$B$24,CntyQuery!$A$52:$II$62,AW$1)","v":{"$error":"#N/A"}},{"$f":"VLOOKUP(DropDownList!$B$24,CntyQuery!$A$52:$II$62,AX$1)","v":{"$error":"#N/A"}},{"$f":"VLOOKUP(DropDownList!$B$24,CntyQuery!$A$52:$II$62,AY$1)","v":{"$error":"#N/A"}},{"$f":"VLOOKUP(DropDownList!$B$24,CntyQuery!$A$52:$II$62,AZ$1)","v":{"$error":"#N/A"}},{"$f":"VLOOKUP(DropDownList!$B$24,CntyQuery!$A$52:$II$62,BA$1)","v":{"$error":"#N/A"}},{"$f":"VLOOKUP(DropDownList!$B$24,CntyQuery!$A$52:$II$62,BB$1)","v":{"$error":"#N/A"}},{"$f":"VLOOKUP(DropDownList!$B$24,CntyQuery!$A$52:$II$62,BC$1)","v":{"$error":"#N/A"}},{"$f":"VLOOKUP(DropDownList!$B$24,CntyQuery!$A$52:$II$62,BD$1)","v":{"$error":"#N/A"}},{"$f":"VLOOKUP(DropDownList!$B$24,CntyQuery!$A$52:$II$62,BE$1)","v":{"$error":"#N/A"}},{"$f":"VLOOKUP(DropDownList!$B$24,CntyQuery!$A$52:$II$62,BF$1)","v":{"$error":"#N/A"}},{"$f":"VLOOKUP(DropDownList!$B$24,CntyQuery!$A$52:$II$62,BG$1)","v":{"$error":"#N/A"}},{"$f":"VLOOKUP(DropDownList!$B$24,CntyQuery!$A$52:$II$62,BH$1)","v":{"$error":"#N/A"}},{"$f":"VLOOKUP(DropDownList!$B$24,CntyQuery!$A$52:$II$62,BI$1)","v":{"$error":"#N/A"}},{"$f":"VLOOKUP(DropDownList!$B$24,CntyQuery!$A$52:$II$62,BJ$1)","v":{"$error":"#N/A"}},{"$f":"VLOOKUP(DropDownList!$B$24,CntyQuery!$A$52:$II$62,BK$1)","v":{"$error":"#N/A"}},{"$f":"VLOOKUP(DropDownList!$B$24,CntyQuery!$A$52:$II$62,BL$1)","v":{"$error":"#N/A"}},{"$f":"VLOOKUP(DropDownList!$B$24,CntyQuery!$A$52:$II$62,BM$1)","v":{"$error":"#N/A"}},{"$f":"VLOOKUP(DropDownList!$B$24,CntyQuery!$A$52:$II$62,BN$1)","v":{"$error":"#N/A"}},{"$f":"VLOOKUP(DropDownList!$B$24,CntyQuery!$A$52:$II$62,BO$1)","v":{"$error":"#N/A"}},{"$f":"VLOOKUP(DropDownList!$B$24,CntyQuery!$A$52:$II$62,BP$1)","v":{"$error":"#N/A"}},{"$f":"VLOOKUP(DropDownList!$B$24,CntyQuery!$A$52:$II$62,BQ$1)","v":{"$error":"#N/A"}},{"$f":"VLOOKUP(DropDownList!$B$24,CntyQuery!$A$52:$II$62,BR$1)","v":{"$error":"#N/A"}},{"$f":"VLOOKUP(DropDownList!$B$24,CntyQuery!$A$52:$II$62,BS$1)","v":{"$error":"#N/A"}},{"$f":"VLOOKUP(DropDownList!$B$24,CntyQuery!$A$52:$II$62,BT$1)","v":{"$error":"#N/A"}},{"$f":"VLOOKUP(DropDownList!$B$24,CntyQuery!$A$52:$II$62,BU$1)","v":{"$error":"#N/A"}},{"$f":"VLOOKUP(DropDownList!$B$24,CntyQuery!$A$52:$II$62,BV$1)","v":{"$error":"#N/A"}},{"$f":"VLOOKUP(DropDownList!$B$24,CntyQuery!$A$52:$II$62,BW$1)","v":{"$error":"#N/A"}},{"$f":"VLOOKUP(DropDownList!$B$24,CntyQuery!$A$52:$II$62,BX$1)","v":{"$error":"#N/A"}},{"$f":"VLOOKUP(DropDownList!$B$24,CntyQuery!$A$52:$II$62,BY$1)","v":{"$error":"#N/A"}},{"$f":"VLOOKUP(DropDownList!$B$24,CntyQuery!$A$52:$II$62,BZ$1)","v":{"$error":"#N/A"}},{"$f":"VLOOKUP(DropDownList!$B$24,CntyQuery!$A$52:$II$62,CA$1)","v":{"$error":"#N/A"}},{"$f":"VLOOKUP(DropDownList!$B$24,CntyQuery!$A$52:$II$62,CB$1)","v":{"$error":"#N/A"}},{"$f":"VLOOKUP(DropDownList!$B$24,CntyQuery!$A$52:$II$62,CC$1)","v":{"$error":"#N/A"}},{"$f":"VLOOKUP(DropDownList!$B$24,CntyQuery!$A$52:$II$62,CD$1)","v":{"$error":"#N/A"}},{"$f":"VLOOKUP(DropDownList!$B$24,CntyQuery!$A$52:$II$62,CE$1)","v":{"$error":"#N/A"}},{"$f":"VLOOKUP(DropDownList!$B$24,CntyQuery!$A$52:$II$62,CF$1)","v":{"$error":"#N/A"}},{"$f":"VLOOKUP(DropDownList!$B$24,CntyQuery!$A$52:$II$62,CG$1)","v":{"$error":"#N/A"}},{"$f":"VLOOKUP(DropDownList!$B$24,CntyQuery!$A$52:$II$62,CH$1)","v":{"$error":"#N/A"}},{"$f":"VLOOKUP(DropDownList!$B$24,CntyQuery!$A$52:$II$62,CI$1)","v":{"$error":"#N/A"}},{"$f":"VLOOKUP(DropDownList!$B$24,CntyQuery!$A$52:$II$62,CJ$1)","v":{"$error":"#N/A"}},{"$f":"VLOOKUP(DropDownList!$B$24,CntyQuery!$A$52:$II$62,CK$1)","v":{"$error":"#N/A"}},{"$f":"VLOOKUP(DropDownList!$B$24,CntyQuery!$A$52:$II$62,CL$1)","v":{"$error":"#N/A"}},{"$f":"VLOOKUP(DropDownList!$B$24,CntyQuery!$A$52:$II$62,CM$1)","v":{"$error":"#N/A"}},{"$f":"VLOOKUP(DropDownList!$B$24,CntyQuery!$A$52:$II$62,CN$1)","v":{"$error":"#N/A"}},{"$f":"VLOOKUP(DropDownList!$B$24,CntyQuery!$A$52:$II$62,CO$1)","v":{"$error":"#N/A"}},{"$f":"VLOOKUP(DropDownList!$B$24,CntyQuery!$A$52:$II$62,CP$1)","v":{"$error":"#N/A"}},{"$f":"VLOOKUP(DropDownList!$B$24,CntyQuery!$A$52:$II$62,CQ$1)","v":{"$error":"#N/A"}},{"$f":"VLOOKUP(DropDownList!$B$24,CntyQuery!$A$52:$II$62,CR$1)","v":{"$error":"#N/A"}},{"$f":"VLOOKUP(DropDownList!$B$24,CntyQuery!$A$52:$II$62,CS$1)","v":{"$error":"#N/A"}},{"$f":"VLOOKUP(DropDownList!$B$24,CntyQuery!$A$52:$II$62,CT$1)","v":{"$error":"#N/A"}},{"$f":"VLOOKUP(DropDownList!$B$24,CntyQuery!$A$52:$II$62,CU$1)","v":{"$error":"#N/A"}},{"$f":"VLOOKUP(DropDownList!$B$24,CntyQuery!$A$52:$II$62,CV$1)","v":{"$error":"#N/A"}},{"$f":"VLOOKUP(DropDownList!$B$24,CntyQuery!$A$52:$II$62,CW$1)","v":{"$error":"#N/A"}},{"$f":"VLOOKUP(DropDownList!$B$24,CntyQuery!$A$52:$II$62,CX$1)","v":{"$error":"#N/A"}},{"$f":"VLOOKUP(DropDownList!$B$24,CntyQuery!$A$52:$II$62,CY$1)","v":{"$error":"#N/A"}},{"$f":"VLOOKUP(DropDownList!$B$24,CntyQuery!$A$52:$II$62,CZ$1)","v":{"$error":"#N/A"}},{"$f":"VLOOKUP(DropDownList!$B$24,CntyQuery!$A$52:$II$62,DA$1)","v":{"$error":"#N/A"}},{"$f":"VLOOKUP(DropDownList!$B$24,CntyQuery!$A$52:$II$62,DB$1)","v":{"$error":"#N/A"}},{"$f":"VLOOKUP(DropDownList!$B$24,CntyQuery!$A$52:$II$62,DC$1)","v":{"$error":"#N/A"}},{"$f":"VLOOKUP(DropDownList!$B$24,CntyQuery!$A$52:$II$62,DD$1)","v":{"$error":"#N/A"}},{"$f":"VLOOKUP(DropDownList!$B$24,CntyQuery!$A$52:$II$62,DE$1)","v":{"$error":"#N/A"}},{"$f":"VLOOKUP(DropDownList!$B$24,CntyQuery!$A$52:$II$62,DF$1)","v":{"$error":"#N/A"}},{"$f":"VLOOKUP(DropDownList!$B$24,CntyQuery!$A$52:$II$62,DG$1)","v":{"$error":"#N/A"}},{"$f":"VLOOKUP(DropDownList!$B$24,CntyQuery!$A$52:$II$62,DH$1)","v":{"$error":"#N/A"}},{"$f":"VLOOKUP(DropDownList!$B$24,CntyQuery!$A$52:$II$62,DI$1)","v":{"$error":"#N/A"}},{"$f":"VLOOKUP(DropDownList!$B$24,CntyQuery!$A$52:$II$62,DJ$1)","v":{"$error":"#N/A"}},{"$f":"VLOOKUP(DropDownList!$B$24,CntyQuery!$A$52:$II$62,DK$1)","v":{"$error":"#N/A"}},{"$f":"VLOOKUP(DropDownList!$B$24,CntyQuery!$A$52:$II$62,DL$1)","v":{"$error":"#N/A"}},{"$f":"VLOOKUP(DropDownList!$B$24,CntyQuery!$A$52:$II$62,DM$1)","v":{"$error":"#N/A"}},{"$f":"VLOOKUP(DropDownList!$B$24,CntyQuery!$A$52:$II$62,DN$1)","v":{"$error":"#N/A"}},{"$f":"VLOOKUP(DropDownList!$B$24,CntyQuery!$A$52:$II$62,DO$1)","v":{"$error":"#N/A"}},{"$f":"VLOOKUP(DropDownList!$B$24,CntyQuery!$A$52:$II$62,DP$1)","v":{"$error":"#N/A"}},{"$f":"VLOOKUP(DropDownList!$B$24,CntyQuery!$A$52:$II$62,DQ$1)","v":{"$error":"#N/A"}},{"$f":"VLOOKUP(DropDownList!$B$24,CntyQuery!$A$52:$II$62,DR$1)","v":{"$error":"#N/A"}},{"$f":"VLOOKUP(DropDownList!$B$24,CntyQuery!$A$52:$II$62,DS$1)","v":{"$error":"#N/A"}},{"$f":"VLOOKUP(DropDownList!$B$24,CntyQuery!$A$52:$II$62,DT$1)","v":{"$error":"#N/A"}},{"$f":"VLOOKUP(DropDownList!$B$24,CntyQuery!$A$52:$II$62,DU$1)","v":{"$error":"#N/A"}},{"$f":"VLOOKUP(DropDownList!$B$24,CntyQuery!$A$52:$II$62,DV$1)","v":{"$error":"#N/A"}},{"$f":"VLOOKUP(DropDownList!$B$24,CntyQuery!$A$52:$II$62,DW$1)","v":{"$error":"#N/A"}},{"$f":"VLOOKUP(DropDownList!$B$24,CntyQuery!$A$52:$II$62,DX$1)","v":{"$error":"#N/A"}},{"$f":"VLOOKUP(DropDownList!$B$24,CntyQuery!$A$52:$II$62,DY$1)","v":{"$error":"#N/A"}},{"$f":"VLOOKUP(DropDownList!$B$24,CntyQuery!$A$52:$II$62,DZ$1)","v":{"$error":"#N/A"}},{"$f":"VLOOKUP(DropDownList!$B$24,CntyQuery!$A$52:$II$62,EA$1)","v":{"$error":"#N/A"}},{"$f":"VLOOKUP(DropDownList!$B$24,CntyQuery!$A$52:$II$62,EB$1)","v":{"$error":"#N/A"}},{"$f":"VLOOKUP(DropDownList!$B$24,CntyQuery!$A$52:$II$62,EC$1)","v":{"$error":"#N/A"}},{"$f":"VLOOKUP(DropDownList!$B$24,CntyQuery!$A$52:$II$62,ED$1)","v":{"$error":"#N/A"}},{"$f":"VLOOKUP(DropDownList!$B$24,CntyQuery!$A$52:$II$62,EE$1)","v":{"$error":"#N/A"}},{"$f":"VLOOKUP(DropDownList!$B$24,CntyQuery!$A$52:$II$62,EF$1)","v":{"$error":"#N/A"}},{"$f":"VLOOKUP(DropDownList!$B$24,CntyQuery!$A$52:$II$62,EG$1)","v":{"$error":"#N/A"}},{"$f":"VLOOKUP(DropDownList!$B$24,CntyQuery!$A$52:$II$62,EH$1)","v":{"$error":"#N/A"}},{"$f":"VLOOKUP(DropDownList!$B$24,CntyQuery!$A$52:$II$62,EI$1)","v":{"$error":"#N/A"}},{"$f":"VLOOKUP(DropDownList!$B$24,CntyQuery!$A$52:$II$62,EJ$1)","v":{"$error":"#N/A"}},{"$f":"VLOOKUP(DropDownList!$B$24,CntyQuery!$A$52:$II$62,EK$1)","v":{"$error":"#N/A"}},{"$f":"VLOOKUP(DropDownList!$B$24,CntyQuery!$A$52:$II$62,EL$1)","v":{"$error":"#N/A"}},{"$f":"VLOOKUP(DropDownList!$B$24,CntyQuery!$A$52:$II$62,EM$1)","v":{"$error":"#N/A"}},{"$f":"VLOOKUP(DropDownList!$B$24,CntyQuery!$A$52:$II$62,EN$1)","v":{"$error":"#N/A"}},{"$f":"VLOOKUP(DropDownList!$B$24,CntyQuery!$A$52:$II$62,EO$1)","v":{"$error":"#N/A"}},{"$f":"VLOOKUP(DropDownList!$B$24,CntyQuery!$A$52:$II$62,EP$1)","v":{"$error":"#N/A"}},{"$f":"VLOOKUP(DropDownList!$B$24,CntyQuery!$A$52:$II$62,EQ$1)","v":{"$error":"#N/A"}},{"$f":"VLOOKUP(DropDownList!$B$24,CntyQuery!$A$52:$II$62,ER$1)","v":{"$error":"#N/A"}},{"$f":"VLOOKUP(DropDownList!$B$24,CntyQuery!$A$52:$II$62,ES$1)","v":{"$error":"#N/A"}},{"$f":"VLOOKUP(DropDownList!$B$24,CntyQuery!$A$52:$II$62,ET$1)","v":{"$error":"#N/A"}},{"$f":"VLOOKUP(DropDownList!$B$24,CntyQuery!$A$52:$II$62,EU$1)","v":{"$error":"#N/A"}},{"$f":"VLOOKUP(DropDownList!$B$24,CntyQuery!$A$52:$II$62,EV$1)","v":{"$error":"#N/A"}},{"$f":"VLOOKUP(DropDownList!$B$24,CntyQuery!$A$52:$II$62,EW$1)","v":{"$error":"#N/A"}},{"$f":"VLOOKUP(DropDownList!$B$24,CntyQuery!$A$52:$II$62,EX$1)","v":{"$error":"#N/A"}},{"$f":"VLOOKUP(DropDownList!$B$24,CntyQuery!$A$52:$II$62,EY$1)","v":{"$error":"#N/A"}},{"$f":"VLOOKUP(DropDownList!$B$24,CntyQuery!$A$52:$II$62,EZ$1)","v":{"$error":"#N/A"}},{"$f":"VLOOKUP(DropDownList!$B$24,CntyQuery!$A$52:$II$62,FA$1)","v":{"$error":"#N/A"}},{"$f":"VLOOKUP(DropDownList!$B$24,CntyQuery!$A$52:$II$62,FB$1)","v":{"$error":"#N/A"}},{"$f":"VLOOKUP(DropDownList!$B$24,CntyQuery!$A$52:$II$62,FC$1)","v":{"$error":"#N/A"}},{"$f":"VLOOKUP(DropDownList!$B$24,CntyQuery!$A$52:$II$62,FD$1)","v":{"$error":"#N/A"}},{"$f":"VLOOKUP(DropDownList!$B$24,CntyQuery!$A$52:$II$62,FE$1)","v":{"$error":"#N/A"}},{"$f":"VLOOKUP(DropDownList!$B$24,CntyQuery!$A$52:$II$62,FF$1)","v":{"$error":"#N/A"}},{"$f":"VLOOKUP(DropDownList!$B$24,CntyQuery!$A$52:$II$62,FG$1)","v":{"$error":"#N/A"}},{"$f":"VLOOKUP(DropDownList!$B$24,CntyQuery!$A$52:$II$62,FH$1)","v":{"$error":"#N/A"}},{"$f":"VLOOKUP(DropDownList!$B$24,CntyQuery!$A$52:$II$62,FI$1)","v":{"$error":"#N/A"}},{"$f":"VLOOKUP(DropDownList!$B$24,CntyQuery!$A$52:$II$62,FJ$1)","v":{"$error":"#N/A"}},{"$f":"VLOOKUP(DropDownList!$B$24,CntyQuery!$A$52:$II$62,FK$1)","v":{"$error":"#N/A"}},{"$f":"VLOOKUP(DropDownList!$B$24,CntyQuery!$A$52:$II$62,FL$1)","v":{"$error":"#N/A"}},{"$f":"VLOOKUP(DropDownList!$B$24,CntyQuery!$A$52:$II$62,FM$1)","v":{"$error":"#N/A"}},{"$f":"VLOOKUP(DropDownList!$B$24,CntyQuery!$A$52:$II$62,FN$1)","v":{"$error":"#N/A"}},{"$f":"VLOOKUP(DropDownList!$B$24,CntyQuery!$A$52:$II$62,FO$1)","v":{"$error":"#N/A"}},{"$f":"VLOOKUP(DropDownList!$B$24,CntyQuery!$A$52:$II$62,FP$1)","v":{"$error":"#N/A"}},{"$f":"VLOOKUP(DropDownList!$B$24,CntyQuery!$A$52:$II$62,FQ$1)","v":{"$error":"#N/A"}},{"$f":"VLOOKUP(DropDownList!$B$24,CntyQuery!$A$52:$II$62,FR$1)","v":{"$error":"#N/A"}},{"$f":"VLOOKUP(DropDownList!$B$24,CntyQuery!$A$52:$II$62,FS$1)","v":{"$error":"#N/A"}},{"$f":"VLOOKUP(DropDownList!$B$24,CntyQuery!$A$52:$II$62,FT$1)","v":{"$error":"#N/A"}},{"$f":"VLOOKUP(DropDownList!$B$24,CntyQuery!$A$52:$II$62,FU$1)","v":{"$error":"#N/A"}},{"$f":"VLOOKUP(DropDownList!$B$24,CntyQuery!$A$52:$II$62,FV$1)","v":{"$error":"#N/A"}},{"$f":"VLOOKUP(DropDownList!$B$24,CntyQuery!$A$52:$II$62,FW$1)","v":{"$error":"#N/A"}},{"$f":"VLOOKUP(DropDownList!$B$24,CntyQuery!$A$52:$II$62,FX$1)","v":{"$error":"#N/A"}},{"$f":"VLOOKUP(DropDownList!$B$24,CntyQuery!$A$52:$II$62,FY$1)","v":{"$error":"#N/A"}},{"$f":"VLOOKUP(DropDownList!$B$24,CntyQuery!$A$52:$II$62,FZ$1)","v":{"$error":"#N/A"}},{"$f":"VLOOKUP(DropDownList!$B$24,CntyQuery!$A$52:$II$62,GA$1)","v":{"$error":"#N/A"}},{"$f":"VLOOKUP(DropDownList!$B$24,CntyQuery!$A$52:$II$62,GB$1)","v":{"$error":"#N/A"}},{"$f":"VLOOKUP(DropDownList!$B$24,CntyQuery!$A$52:$II$62,GC$1)","v":{"$error":"#N/A"}},{"$f":"VLOOKUP(DropDownList!$B$24,CntyQuery!$A$52:$II$62,GD$1)","v":{"$error":"#N/A"}},{"$f":"VLOOKUP(DropDownList!$B$24,CntyQuery!$A$52:$II$62,GE$1)","v":{"$error":"#N/A"}},{"$f":"VLOOKUP(DropDownList!$B$24,CntyQuery!$A$52:$II$62,GF$1)","v":{"$error":"#N/A"}},{"$f":"VLOOKUP(DropDownList!$B$24,CntyQuery!$A$52:$II$62,GG$1)","v":{"$error":"#N/A"}},{"$f":"VLOOKUP(DropDownList!$B$24,CntyQuery!$A$52:$II$62,GH$1)","v":{"$error":"#N/A"}},{"$f":"VLOOKUP(DropDownList!$B$24,CntyQuery!$A$52:$II$62,GI$1)","v":{"$error":"#N/A"}},{"$f":"VLOOKUP(DropDownList!$B$24,CntyQuery!$A$52:$II$62,GJ$1)","v":{"$error":"#N/A"}},{"$f":"VLOOKUP(DropDownList!$B$24,CntyQuery!$A$52:$II$62,GK$1)","v":{"$error":"#N/A"}},{"$f":"VLOOKUP(DropDownList!$B$24,CntyQuery!$A$52:$II$62,GL$1)","v":{"$error":"#N/A"}},{"$f":"VLOOKUP(DropDownList!$B$24,CntyQuery!$A$52:$II$62,GM$1)","v":{"$error":"#N/A"}},{"$f":"VLOOKUP(DropDownList!$B$24,CntyQuery!$A$52:$II$62,GN$1)","v":{"$error":"#N/A"}},{"$f":"VLOOKUP(DropDownList!$B$24,CntyQuery!$A$52:$II$62,GO$1)","v":{"$error":"#N/A"}},{"$f":"VLOOKUP(DropDownList!$B$24,CntyQuery!$A$52:$II$62,GP$1)","v":{"$error":"#N/A"}},{"$f":"VLOOKUP(DropDownList!$B$24,CntyQuery!$A$52:$II$62,GQ$1)","v":{"$error":"#N/A"}},{"$f":"VLOOKUP(DropDownList!$B$24,CntyQuery!$A$52:$II$62,GR$1)","v":{"$error":"#N/A"}},{"$f":"VLOOKUP(DropDownList!$B$24,CntyQuery!$A$52:$II$62,GS$1)","v":{"$error":"#N/A"}},{"$f":"VLOOKUP(DropDownList!$B$24,CntyQuery!$A$52:$II$62,GT$1)","v":{"$error":"#N/A"}},{"$f":"VLOOKUP(DropDownList!$B$24,CntyQuery!$A$52:$II$62,GU$1)","v":{"$error":"#N/A"}},{"$f":"VLOOKUP(DropDownList!$B$24,CntyQuery!$A$52:$II$62,GV$1)","v":{"$error":"#N/A"}},{"$f":"VLOOKUP(DropDownList!$B$24,CntyQuery!$A$52:$II$62,GW$1)","v":{"$error":"#N/A"}},{"$f":"VLOOKUP(DropDownList!$B$24,CntyQuery!$A$52:$II$62,GX$1)","v":{"$error":"#N/A"}},{"$f":"VLOOKUP(DropDownList!$B$24,CntyQuery!$A$52:$II$62,GY$1)","v":{"$error":"#N/A"}},{"$f":"VLOOKUP(DropDownList!$B$24,CntyQuery!$A$52:$II$62,GZ$1)","v":{"$error":"#N/A"}},{"$f":"VLOOKUP(DropDownList!$B$24,CntyQuery!$A$52:$II$62,HA$1)","v":{"$error":"#N/A"}},{"$f":"VLOOKUP(DropDownList!$B$24,CntyQuery!$A$52:$II$62,HB$1)","v":{"$error":"#N/A"}},{"$f":"VLOOKUP(DropDownList!$B$24,CntyQuery!$A$52:$II$62,HC$1)","v":{"$error":"#N/A"}},{"$f":"VLOOKUP(DropDownList!$B$24,CntyQuery!$A$52:$II$62,HD$1)","v":{"$error":"#N/A"}},{"$f":"VLOOKUP(DropDownList!$B$24,CntyQuery!$A$52:$II$62,HE$1)","v":{"$error":"#N/A"}},{"$f":"VLOOKUP(DropDownList!$B$24,CntyQuery!$A$52:$II$62,HF$1)","v":{"$error":"#N/A"}},{"$f":"VLOOKUP(DropDownList!$B$24,CntyQuery!$A$52:$II$62,HG$1)","v":{"$error":"#N/A"}},{"$f":"VLOOKUP(DropDownList!$B$24,CntyQuery!$A$52:$II$62,HH$1)","v":{"$error":"#N/A"}},{"$f":"VLOOKUP(DropDownList!$B$24,CntyQuery!$A$52:$II$62,HI$1)","v":{"$error":"#N/A"}},{"$f":"VLOOKUP(DropDownList!$B$24,CntyQuery!$A$52:$II$62,HJ$1)","v":{"$error":"#N/A"}},{"$f":"VLOOKUP(DropDownList!$B$24,CntyQuery!$A$52:$II$62,HK$1)","v":{"$error":"#N/A"}},{"$f":"VLOOKUP(DropDownList!$B$24,CntyQuery!$A$52:$II$62,HL$1)","v":{"$error":"#N/A"}},{"$f":"VLOOKUP(DropDownList!$B$24,CntyQuery!$A$52:$II$62,HM$1)","v":{"$error":"#N/A"}},{"$f":"VLOOKUP(DropDownList!$B$24,CntyQuery!$A$52:$II$62,HN$1)","v":{"$error":"#N/A"}},{"$f":"VLOOKUP(DropDownList!$B$24,CntyQuery!$A$52:$II$62,HO$1)","v":{"$error":"#N/A"}},{"$f":"VLOOKUP(DropDownList!$B$24,CntyQuery!$A$52:$II$62,HP$1)","v":{"$error":"#N/A"}},{"$f":"VLOOKUP(DropDownList!$B$24,CntyQuery!$A$52:$II$62,HQ$1)","v":{"$error":"#N/A"}},{"$f":"VLOOKUP(DropDownList!$B$24,CntyQuery!$A$52:$II$62,HR$1)","v":{"$error":"#N/A"}},{"$f":"VLOOKUP(DropDownList!$B$24,CntyQuery!$A$52:$II$62,HS$1)","v":{"$error":"#N/A"}},{"$f":"VLOOKUP(DropDownList!$B$24,CntyQuery!$A$52:$II$62,HT$1)","v":{"$error":"#N/A"}},{"$f":"VLOOKUP(DropDownList!$B$24,CntyQuery!$A$52:$II$62,HU$1)","v":{"$error":"#N/A"}},{"$f":"VLOOKUP(DropDownList!$B$24,CntyQuery!$A$52:$II$62,HV$1)","v":{"$error":"#N/A"}},{"$f":"VLOOKUP(DropDownList!$B$24,CntyQuery!$A$52:$II$62,HW$1)","v":{"$error":"#N/A"}},{"$f":"VLOOKUP(DropDownList!$B$24,CntyQuery!$A$52:$II$62,HX$1)","v":{"$error":"#N/A"}},{"$f":"VLOOKUP(DropDownList!$B$24,CntyQuery!$A$52:$II$62,HY$1)","v":{"$error":"#N/A"}},{"$f":"VLOOKUP(DropDownList!$B$24,CntyQuery!$A$52:$II$62,HZ$1)","v":{"$error":"#N/A"}},{"$f":"VLOOKUP(DropDownList!$B$24,CntyQuery!$A$52:$II$62,IA$1)","v":{"$error":"#N/A"}},{"$f":"VLOOKUP(DropDownList!$B$24,CntyQuery!$A$52:$II$62,IB$1)","v":{"$error":"#N/A"}},{"$f":"VLOOKUP(DropDownList!$B$24,CntyQuery!$A$52:$II$62,IC$1)","v":{"$error":"#N/A"}},{"$f":"VLOOKUP(DropDownList!$B$24,CntyQuery!$A$52:$II$62,ID$1)","v":{"$error":"#N/A"}},{"$f":"VLOOKUP(DropDownList!$B$24,CntyQuery!$A$52:$II$62,IE$1)","v":{"$error":"#N/A"}},{"$f":"VLOOKUP(DropDownList!$B$24,CntyQuery!$A$52:$II$62,IF$1)","v":{"$error":"#N/A"}},{"$f":"VLOOKUP(DropDownList!$B$24,CntyQuery!$A$52:$II$62,IG$1)","v":{"$error":"#N/A"}},{"$f":"VLOOKUP(DropDownList!$B$24,CntyQuery!$A$52:$II$62,IH$1)","v":{"$error":"#N/A"}},{"$f":"VLOOKUP(DropDownList!$B$24,CntyQuery!$A$52:$II$62,II$1)","v":{"$error":"#N/A"}}]
[]
[]
[]
["TOWN_NAME","FIPS","TOWNCNTY","COUSUB","POP80","POP90CDCEN","POP2000CEN","POP2010CEN","POP2020-Proj","POP2025-Proj","POP2030-Proj","SF80","MF80","MH80","SF81","MF81","MH81","SF82","MF82","MH82","SF83","MF83","MH83","SF84_OSP","MF84_OSP","MH84_OSP","SF85_OSP","MF85_OSP","MH85_OSP","SF86_OSP","MF86_OSP","MH86_OSP","SF87_OSP","MF87_OSP","MH87_OSP","SF88_OSP","MF88_OSP","MH88_OSP","SF89_OSP","MF89_OSP","MH89_OSP","SF90_OSP","MF90_OSP","MH90_OSP","SF91_OSP","MF91_OSP","MH91_OSP","SF92_OSP","MF92_OSP","MH92_OSP","SF93_OSP","MF93_OSP","MH93_OSP","SF94_OSP","MF94_OSP","MH94_OSP","SF95_OSP","MF95_OSP","MH95_OSP","SF96_OSP","MF96_OSP","MH96_OSP","SF97_OSP","MF97_OSP","MH97_OSP","SF98_OSP","MF98_OSP","MH98_OSP","SF99_OSP","MF99_OSP","MH99_OSP","SF00_OSP","MF00_OSP","MH00_OSP","SF01_OSP","MF01_OSP","MH01_OSP","SF02_OSP","MF02_OSP","MH02_OSP","SF03_OSP","MF03_OSP","MH03_OSP","SF04_OSP","MF04_OSP","MH04_OSP","SF05_OSP","MF05_OSP","MH05_OSP","SF06_OSP","MF06_OSP","MH06_OSP","SF07_OSP","MF07_OSP","MH07_OSP","SF08_OSP","MF08_OSP","MH08_OSP","SF09_OSP","MF09_OSP","MH09_OSP","SF10_OSP","MF10_OSP","MH10_OSP","SF11_OSP","MF11_OSP","MH11_OSP","SF12_OSP","MF12_OSP","MH12_OSP","SF13_OSP","MF13_OSP","MH13_OSP","SF14_OSP","MF14_OSP","MH14_OSP","SF15_OSP","MF15_OSP","MH15_OSP","SF16_OSP","MF16_OSP","MH16_OSP","SF17_OSP","MF17_OSP","MH17_OSP","SF18_OSP","MF18_OSP","MH18_OSP","SF19_OSP","MF19_OSP","MH19_OSP","COMMENTS"]
[{"$f":"VLOOKUP(DropDownList!$B$24,CntyQuery!$A$99:$FZ$117,A$1)","v":"Albany"},{"$f":"VLOOKUP(DropDownList!$B$24,CntyQuery!$A$99:$FZ$117,B$1)","v":2},{"$f":"VLOOKUP(DropDownList!$B$24,CntyQuery!$A$70:$FZ$88,C$1)","v":201},{"$f":"VLOOKUP(DropDownList!$B$24,CntyQuery!$A$70:$FZ$88,D$1)","v":"00420"},{"$f":"VLOOKUP(DropDownList!$B$24,CntyQuery!$A$70:$FZ$88,E$1)","v":383},{"$f":"VLOOKUP(DropDownList!$B$24,CntyQuery!$A$70:$FZ$88,F$1)","v":536},{"$f":"VLOOKUP(DropDownList!$B$24,CntyQuery!$A$70:$FZ$88,G$1)","v":654},{"$f":"VLOOKUP(DropDownList!$B$24,CntyQuery!$A$70:$FZ$88,H$1)","v":735},{"$f":"VLOOKUP(DropDownList!$B$24,CntyQuery!$A$70:$FZ$88,I$1)","v":822},{"$f":"VLOOKUP(DropDownList!$B$24,CntyQuery!$A$70:$FZ$88,J$1)","v":846},{"$f":"VLOOKUP(DropDownList!$B$24,CntyQuery!$A$70:$FZ$88,K$1)","v":870},{"$f":"VLOOKUP(DropDownList!$B$24,CntyQuery!$A$70:$FZ$88,L$1)","v":2},{"$f":"VLOOKUP(DropDownList!$B$24,CntyQuery!$A$70:$FZ$88,M$1)","v":5},{"$f":"VLOOKUP(DropDownList!$B$24,CntyQuery!$A$70:$FZ$88,N$1)","v":0},{"$f":"VLOOKUP(DropDownList!$B$24,CntyQuery!$A$70:$FZ$88,O$1)","v":-2},{"$f":"VLOOKUP(DropDownList!$B$24,CntyQuery!$A$70:$FZ$88,P$1)","v":0},{"$f":"VLOOKUP(DropDownList!$B$24,CntyQuery!$A$70:$FZ$88,Q$1)","v":0},{"$f":"VLOOKUP(DropDownList!$B$24,CntyQuery!$A$70:$FZ$88,R$1)","v":0},{"$f":"VLOOKUP(DropDownList!$B$24,CntyQuery!$A$70:$FZ$88,S$1)","v":0},{"$f":"VLOOKUP(DropDownList!$B$24,CntyQuery!$A$70:$FZ$88,T$1)","v":0},{"$f":"VLOOKUP(DropDownList!$B$24,CntyQuery!$A$70:$FZ$88,U$1)","v":1},{"$f":"VLOOKUP(DropDownList!$B$24,CntyQuery!$A$70:$FZ$88,V$1)","v":0},{"$f":"VLOOKUP(DropDownList!$B$24,CntyQuery!$A$70:$FZ$88,W$1)","v":1},{"$f":"VLOOKUP(DropDownList!$B$24,CntyQuery!$A$70:$FZ$88,X$1)","v":1},{"$f":"VLOOKUP(DropDownList!$B$24,CntyQuery!$A$70:$FZ$88,Y$1)","v":0},{"$f":"VLOOKUP(DropDownList!$B$24,CntyQuery!$A$70:$FZ$88,Z$1)","v":-1},{"$f":"VLOOKUP(DropDownList!$B$24,CntyQuery!$A$70:$FZ$88,AA$1)","v":1},{"$f":"VLOOKUP(DropDownList!$B$24,CntyQuery!$A$70:$FZ$88,AB$1)","v":0},{"$f":"VLOOKUP(DropDownList!$B$24,CntyQuery!$A$70:$FZ$88,AC$1)","v":12},{"$f":"VLOOKUP(DropDownList!$B$24,CntyQuery!$A$70:$FZ$88,AD$1)","v":17},{"$f":"VLOOKUP(DropDownList!$B$24,CntyQuery!$A$70:$FZ$88,AE$1)","v":0},{"$f":"VLOOKUP(DropDownList!$B$24,CntyQuery!$A$70:$FZ$88,AF$1)","v":9},{"$f":"VLOOKUP(DropDownList!$B$24,CntyQuery!$A$70:$FZ$88,AG$1)","v":5},{"$f":"VLOOKUP(DropDownList!$B$24,CntyQuery!$A$70:$FZ$88,AH$1)","v":2},{"$f":"VLOOKUP(DropDownList!$B$24,CntyQuery!$A$70:$FZ$88,AI$1)","v":8},{"$f":"VLOOKUP(DropDownList!$B$24,CntyQuery!$A$70:$FZ$88,AJ$1)","v":9},{"$f":"VLOOKUP(DropDownList!$B$24,CntyQuery!$A$70:$FZ$88,AK$1)","v":0},{"$f":"VLOOKUP(DropDownList!$B$24,CntyQuery!$A$70:$FZ$88,AL$1)","v":1},{"$f":"VLOOKUP(DropDownList!$B$24,CntyQuery!$A$70:$FZ$88,AM$1)","v":8},{"$f":"VLOOKUP(DropDownList!$B$24,CntyQuery!$A$70:$FZ$88,AN$1)","v":0},{"$f":"VLOOKUP(DropDownList!$B$24,CntyQuery!$A$70:$FZ$88,AO$1)","v":1},{"$f":"VLOOKUP(DropDownList!$B$24,CntyQuery!$A$70:$FZ$88,AP$1)","v":4},{"$f":"VLOOKUP(DropDownList!$B$24,CntyQuery!$A$70:$FZ$88,AQ$1)","v":0},{"$f":"VLOOKUP(DropDownList!$B$24,CntyQuery!$A$70:$FZ$88,AR$1)","v":6},{"$f":"VLOOKUP(DropDownList!$B$24,CntyQuery!$A$70:$FZ$88,AS$1)","v":6},{"$f":"VLOOKUP(DropDownList!$B$24,CntyQuery!$A$70:$FZ$88,AT$1)","v":0},{"$f":"VLOOKUP(DropDownList!$B$24,CntyQuery!$A$70:$FZ$88,AU$1)","v":1},{"$f":"VLOOKUP(DropDownList!$B$24,CntyQuery!$A$70:$FZ$88,AV$1)","v":3},{"$f":"VLOOKUP(DropDownList!$B$24,CntyQuery!$A$70:$FZ$88,AW$1)","v":0},{"$f":"VLOOKUP(DropDownList!$B$24,CntyQuery!$A$70:$FZ$88,AX$1)","v":2},{"$f":"VLOOKUP(DropDownList!$B$24,CntyQuery!$A$70:$FZ$88,AY$1)","v":5},{"$f":"VLOOKUP(DropDownList!$B$24,CntyQuery!$A$70:$FZ$88,AZ$1)","v":0},{"$f":"VLOOKUP(DropDownList!$B$24,CntyQuery!$A$70:$FZ$88,BA$1)","v":0},{"$f":"VLOOKUP(DropDownList!$B$24,CntyQuery!$A$70:$FZ$88,BB$1)","v":1},{"$f":"VLOOKUP(DropDownList!$B$24,CntyQuery!$A$70:$FZ$88,BC$1)","v":0},{"$f":"VLOOKUP(DropDownList!$B$24,CntyQuery!$A$70:$FZ$88,BD$1)","v":3},{"$f":"VLOOKUP(DropDownList!$B$24,CntyQuery!$A$70:$FZ$88,BE$1)","v":6},{"$f":"VLOOKUP(DropDownList!$B$24,CntyQuery!$A$70:$FZ$88,BF$1)","v":0},{"$f":"VLOOKUP(DropDownList!$B$24,CntyQuery!$A$70:$FZ$88,BG$1)","v":1},{"$f":"VLOOKUP(DropDownList!$B$24,CntyQuery!$A$70:$FZ$88,BH$1)","v":4},{"$f":"VLOOKUP(DropDownList!$B$24,CntyQuery!$A$70:$FZ$88,BI$1)","v":0},{"$f":"VLOOKUP(DropDownList!$B$24,CntyQuery!$A$70:$FZ$88,BJ$1)","v":7},{"$f":"VLOOKUP(DropDownList!$B$24,CntyQuery!$A$70:$FZ$88,BK$1)","v":3},{"$f":"VLOOKUP(DropDownList!$B$24,CntyQuery!$A$70:$FZ$88,BL$1)","v":0},{"$f":"VLOOKUP(DropDownList!$B$24,CntyQuery!$A$70:$FZ$88,BM$1)","v":0},{"$f":"VLOOKUP(DropDownList!$B$24,CntyQuery!$A$70:$FZ$88,BN$1)","v":1},{"$f":"VLOOKUP(DropDownList!$B$24,CntyQuery!$A$70:$FZ$88,BO$1)","v":0},{"$f":"VLOOKUP(DropDownList!$B$24,CntyQuery!$A$70:$FZ$88,BP$1)","v":0},{"$f":"VLOOKUP(DropDownList!$B$24,CntyQuery!$A$70:$FZ$88,BQ$1)","v":7},{"$f":"VLOOKUP(DropDownList!$B$24,CntyQuery!$A$70:$FZ$88,BR$1)","v":0},{"$f":"VLOOKUP(DropDownList!$B$24,CntyQuery!$A$70:$FZ$88,BS$1)","v":0},{"$f":"VLOOKUP(DropDownList!$B$24,CntyQuery!$A$70:$FZ$88,BT$1)","v":2},{"$f":"VLOOKUP(DropDownList!$B$24,CntyQuery!$A$70:$FZ$88,BU$1)","v":0},{"$f":"VLOOKUP(DropDownList!$B$24,CntyQuery!$A$70:$FZ$88,BV$1)","v":0},{"$f":"VLOOKUP(DropDownList!$B$24,CntyQuery!$A$70:$FZ$88,BW$1)","v":3},{"$f":"VLOOKUP(DropDownList!$B$24,CntyQuery!$A$70:$FZ$88,BX$1)","v":0},{"$f":"VLOOKUP(DropDownList!$B$24,CntyQuery!$A$70:$FZ$88,BY$1)","v":0},{"$f":"VLOOKUP(DropDownList!$B$24,CntyQuery!$A$70:$FZ$88,BZ$1)","v":11},{"$f":"VLOOKUP(DropDownList!$B$24,CntyQuery!$A$70:$FZ$88,CA$1)","v":1},{"$f":"VLOOKUP(DropDownList!$B$24,CntyQuery!$A$70:$FZ$88,CB$1)","v":0},{"$f":"VLOOKUP(DropDownList!$B$24,CntyQuery!$A$70:$FZ$88,CC$1)","v":8},{"$f":"VLOOKUP(DropDownList!$B$24,CntyQuery!$A$70:$FZ$88,CD$1)","v":0},{"$f":"VLOOKUP(DropDownList!$B$24,CntyQuery!$A$70:$FZ$88,CE$1)","v":0},{"$f":"VLOOKUP(DropDownList!$B$24,CntyQuery!$A$70:$FZ$88,CF$1)","v":16},{"$f":"VLOOKUP(DropDownList!$B$24,CntyQuery!$A$70:$FZ$88,CG$1)","v":0},{"$f":"VLOOKUP(DropDownList!$B$24,CntyQuery!$A$70:$FZ$88,CH$1)","v":1},{"$f":"VLOOKUP(DropDownList!$B$24,CntyQuery!$A$70:$FZ$88,CI$1)","v":5},{"$f":"VLOOKUP(DropDownList!$B$24,CntyQuery!$A$70:$FZ$88,CJ$1)","v":0},{"$f":"VLOOKUP(DropDownList!$B$24,CntyQuery!$A$70:$FZ$88,CK$1)","v":1},{"$f":"VLOOKUP(DropDownList!$B$24,CntyQuery!$A$70:$FZ$88,CL$1)","v":4},{"$f":"VLOOKUP(DropDownList!$B$24,CntyQuery!$A$70:$FZ$88,CM$1)","v":0},{"$f":"VLOOKUP(DropDownList!$B$24,CntyQuery!$A$70:$FZ$88,CN$1)","v":1},{"$f":"VLOOKUP(DropDownList!$B$24,CntyQuery!$A$70:$FZ$88,CO$1)","v":2},{"$f":"VLOOKUP(DropDownList!$B$24,CntyQuery!$A$70:$FZ$88,CP$1)","v":0},{"$f":"VLOOKUP(DropDownList!$B$24,CntyQuery!$A$70:$FZ$88,CQ$1)","v":0},{"$f":"VLOOKUP(DropDownList!$B$24,CntyQuery!$A$70:$FZ$88,CR$1)","v":3},{"$f":"VLOOKUP(DropDownList!$B$24,CntyQuery!$A$70:$FZ$88,CS$1)","v":0},{"$f":"VLOOKUP(DropDownList!$B$24,CntyQuery!$A$70:$FZ$88,CT$1)","v":0},{"$f":"VLOOKUP(DropDownList!$B$24,CntyQuery!$A$70:$FZ$88,CU$1)","v":3},{"$f":"VLOOKUP(DropDownList!$B$24,CntyQuery!$A$70:$FZ$88,CV$1)","v":0},{"$f":"VLOOKUP(DropDownList!$B$24,CntyQuery!$A$70:$FZ$88,CW$1)","v":0},{"$f":"VLOOKUP(DropDownList!$B$24,CntyQuery!$A$70:$FZ$88,CX$1)","v":0},{"$f":"VLOOKUP(DropDownList!$B$24,CntyQuery!$A$70:$FZ$88,CY$1)","v":0},{"$f":"VLOOKUP(DropDownList!$B$24,CntyQuery!$A$70:$FZ$88,CZ$1)","v":1},{"$f":"VLOOKUP(DropDownList!$B$24,CntyQuery!$A$70:$FZ$88,DA$1)","v":2},{"$f":"VLOOKUP(DropDownList!$B$24,CntyQuery!$A$70:$FZ$88,DB$1)","v":0},{"$f":"VLOOKUP(DropDownList!$B$24,CntyQuery!$A$70:$FZ$88,DC$1)","v":-1},{"$f":"VLOOKUP(DropDownList!$B$24,CntyQuery!$A$70:$FZ$88,DD$1)","v":2},{"$f":"VLOOKUP(DropDownList!$B$24,CntyQuery!$A$70:$FZ$88,DE$1)","v":0},{"$f":"VLOOKUP(DropDownList!$B$24,CntyQuery!$A$70:$FZ$88,DF$1)","v":-2},{"$f":"VLOOKUP(DropDownList!$B$24,CntyQuery!$A$70:$FZ$88,DG$1)","v":2},{"$f":"VLOOKUP(DropDownList!$B$24,CntyQuery!$A$70:$FZ$88,DH$1)","v":0},{"$f":"VLOOKUP(DropDownList!$B$24,CntyQuery!$A$70:$FZ$88,DI$1)","v":0},{"$f":"VLOOKUP(DropDownList!$B$24,CntyQuery!$A$70:$FZ$88,DJ$1)","v":3},{"$f":"VLOOKUP(DropDownList!$B$24,CntyQuery!$A$70:$FZ$88,DK$1)","v":0},{"$f":"VLOOKUP(DropDownList!$B$24,CntyQuery!$A$70:$FZ$88,DL$1)","v":0},{"$f":"VLOOKUP(DropDownList!$B$24,CntyQuery!$A$70:$FZ$88,DM$1)","v":1},{"$f":"VLOOKUP(DropDownList!$B$24,CntyQuery!$A$70:$FZ$88,DN$1)","v":0},{"$f":"VLOOKUP(DropDownList!$B$24,CntyQuery!$A$70:$FZ$88,DO$1)","v":1},{"$f":"VLOOKUP(DropDownList!$B$24,CntyQuery!$A$70:$FZ$88,DP$1)","v":1},{"$f":"VLOOKUP(DropDownList!$B$24,CntyQuery!$A$70:$FZ$88,DQ$1)","v":0},{"$f":"VLOOKUP(DropDownList!$B$24,CntyQuery!$A$70:$FZ$88,DR$1)","v":0},{"$f":"VLOOKUP(DropDownList!$B$24,CntyQuery!$A$70:$FZ$88,DS$1)","v":2},{"$f":"VLOOKUP(DropDownList!$B$24,CntyQuery!$A$70:$FZ$88,DT$1)","v":0},{"$f":"VLOOKUP(DropDownList!$B$24,CntyQuery!$A$70:$FZ$88,DU$1)","v":2},{"$f":"VLOOKUP(DropDownList!$B$24,CntyQuery!$A$70:$FZ$88,DV$1)","v":7},{"$f":"VLOOKUP(DropDownList!$B$24,CntyQuery!$A$70:$FZ$88,DW$1)","v":0},{"$f":"VLOOKUP(DropDownList!$B$24,CntyQuery!$A$70:$FZ$88,DX$1)","v":0},{"$f":"VLOOKUP(DropDownList!$B$24,CntyQuery!$A$70:$FZ$88,DY$1)","v":1},{"$f":"VLOOKUP(DropDownList!$B$24,CntyQuery!$A$70:$FZ$88,DZ$1)","v":0},{"$f":"VLOOKUP(DropDownList!$B$24,CntyQuery!$A$70:$FZ$88,EA$1)","v":0},{"$f":"VLOOKUP(DropDownList!$B$24,CntyQuery!$A$70:$FZ$88,EB$1)","v":""}]
[]
[]
["NH Employment Data","Query Name: DPQryEmploymentByCnty"]
["AreaName","COUNTYCODE","TOTP & G2001","TOT2001","GOODPRO2001","SERVICEPROMAN2001","WAGEP & G2001","WAGETOT2001","WAGEGOODPRO2001","WAGESERVICEPRO2001","TOTP & G2002","TOT2002","GOODPRO2002","SERVICEPROMAN2002","WAGEP & G2002","WAGETOT2002","WAGEGOODPRO2002","WAGESERVICEPRO2002","TOTP & G2003","TOT2003","GOODPRO2003","SERVICEPROMAN2003","WAGEP & G2003","WAGETOT2003","WAGEGOODPRO2003","WAGESERVICEPRO2003","TOTP & G2004","TOT2004","GOODPRO2004","SERVICEPROMAN2004","WAGEP & G2004","WAGETOT2004","WAGEGOODPRO2004","WAGESERVICEPRO2004","TOTP & G2005","TOT2005","GOODPRO2005","SERVICEPROMAN2005","WAGEP & G2005","WAGETOT2005","WAGEGOODPRO2005","WAGESERVICEPRO2005","TOTP & G2006","TOT2006","GOODPRO2006","SERVICEPROMAN2006","WAGEP & G2006","WAGETOT2006","WAGEGOODPRO2006","WAGESERVICEPRO2006","TOTP & G2007","TOT2007","GOODPRO2007","SERVICEPROMAN2007","WAGEP & G2007","WAGETOT2007","WAGEGOODPRO2007","WAGESERVICEPRO2007","TOTP & G2008","TOT2008","GOODPRO2008","SERVICEPROMAN2008","WAGEP & G2008","WAGETOT2008","WAGEGOODPRO2008","WAGESERVICEPRO2008","TOTP & G2009","TOT2009","GOODPRO2009","SERVICEPROMAN2009","WAGEP & G2009","WAGETOT2009","WAGEGOODPRO2009","WAGESERVICEPRO2009","TOTP & G2010","TOT2010","GOODPRO2010","SERVICEPROMAN2010","WAGEP & G2010","WAGETOT2010","WAGEGOODPRO2010","WAGESERVICEPRO2010","TOTP & G2011","TOT2011","GOODPRO2011","SERVICEPROMAN2011","WAGEP & G2011","WAGETOT2011","WAGEGOODPRO2011","WAGESERVICEPRO2011","TOTP & G2012","TOT2012","GOODPRO2012","SERVICEPROMAN2012","WAGEP & G2012","WAGETOT2012","WAGEGOODPRO2012","WAGESERVICEPRO2012","TOTP & G2013","TOT2013","GOODPRO2013","SERVICEPROMAN2013","WAGEP & G2013","WAGETOT2013","WAGEGOODPRO2013","WAGESERVICEPRO2013","TOTP & G2014","TOT2014","GOODPRO2014","SERVICEPROMAN2014","WAGEP & G2014","WAGETOT2014","WAGEGOODPRO2014","WAGESERVICEPRO2014","TOTP & G2015","TOT2015","GOODPRO2015","SERVICEPROMAN2015","WAGEP & G2015","WAGETOT2015","WAGEGOODPRO2015","WAGESERVICEPRO2015","TOTP & G2016","TOT2016","GOODPRO2016","SERVICEPROMAN2016","WAGEP & G2016","WAGETOT2016","WAGEGOODPRO2016","WAGESERVICEPRO2016","TOTP & G2017","TOT2017","GOODPRO2017","SERVICEPROMAN2017","WAGEP & G2017","WAGETOT2017","WAGEGOODPRO2017","WAGESERVICEPRO2017","TOTP & G2018","TOT2018","GOODPRO2018","SERVICEPROMAN2018","WAGEP & G2018","WAGETOT2018","WAGEGOODPRO2018","WAGESERVICEPRO2018","TOTP & G2019","TOT2019","TOTGov2019","GOODPRO2019","SERVICEPROMAN2019","WAGEP & G2019","WAGETOT2019","WAGEGov2019","WAGEGOODPRO2019","WAGESERVICEPRO2019","SummaryLevel"]
[{"$f":"VLOOKUP(DropDownList!$B$24,CntyQuery!$A$99:$FX$117,A$1)","v":"Albany"},{"$f":"VLOOKUP(DropDownList!$B$24,CntyQuery!$A$99:$FX$117,B$1)","v":2},{"$f":"VLOOKUP(DropDownList!$B$24,CntyQuery!$A$99:$FX$117,C$1)","v":86},{"$f":"VLOOKUP(DropDownList!$B$24,CntyQuery!$A$99:$FX$117,D$1)","v":78},{"$f":"VLOOKUP(DropDownList!$B$24,CntyQuery!$A$99:$FX$117,E$1)","v":51},{"$f":"VLOOKUP(DropDownList!$B$24,CntyQuery!$A$99:$FX$117,F$1)","v":28},{"$f":"VLOOKUP(DropDownList!$B$24,CntyQuery!$A$99:$FX$117,G$1)","v":677.37},{"$f":"VLOOKUP(DropDownList!$B$24,CntyQuery!$A$99:$FX$117,H$1)","v":730.8},{"$f":"VLOOKUP(DropDownList!$B$24,CntyQuery!$A$99:$FX$117,I$1)","v":885.02},{"$f":"VLOOKUP(DropDownList!$B$24,CntyQuery!$A$99:$FX$117,J$1)","v":447.91},{"$f":"VLOOKUP(DropDownList!$B$24,CntyQuery!$A$99:$FX$117,K$1)","v":83},{"$f":"VLOOKUP(DropDownList!$B$24,CntyQuery!$A$99:$FX$117,L$1)","v":76},{"$f":"VLOOKUP(DropDownList!$B$24,CntyQuery!$A$99:$FX$117,M$1)","v":55},{"$f":"VLOOKUP(DropDownList!$B$24,CntyQuery!$A$99:$FX$117,N$1)","v":22},{"$f":"VLOOKUP(DropDownList!$B$24,CntyQuery!$A$99:$FX$117,O$1)","v":689.15},{"$f":"VLOOKUP(DropDownList!$B$24,CntyQuery!$A$99:$FX$117,P$1)","v":732.58},{"$f":"VLOOKUP(DropDownList!$B$24,CntyQuery!$A$99:$FX$117,Q$1)","v":882.63},{"$f":"VLOOKUP(DropDownList!$B$24,CntyQuery!$A$99:$FX$117,R$1)","v":353.41},{"$f":"VLOOKUP(DropDownList!$B$24,CntyQuery!$A$99:$FX$117,S$1)","v":76},{"$f":"VLOOKUP(DropDownList!$B$24,CntyQuery!$A$99:$FX$117,T$1)","v":70},{"$f":"VLOOKUP(DropDownList!$B$24,CntyQuery!$A$99:$FX$117,U$1)","v":"n"},{"$f":"VLOOKUP(DropDownList!$B$24,CntyQuery!$A$99:$FX$117,V$1)","v":"n"},{"$f":"VLOOKUP(DropDownList!$B$24,CntyQuery!$A$99:$FX$117,W$1)","v":593.96},{"$f":"VLOOKUP(DropDownList!$B$24,CntyQuery!$A$99:$FX$117,X$1)","v":625.03},{"$f":"VLOOKUP(DropDownList!$B$24,CntyQuery!$A$99:$FX$117,Y$1)","v":"n"},{"$f":"VLOOKUP(DropDownList!$B$24,CntyQuery!$A$99:$FX$117,Z$1)","v":"n"},{"$f":"VLOOKUP(DropDownList!$B$24,CntyQuery!$A$99:$FX$117,AA$1)","v":64},{"$f":"VLOOKUP(DropDownList!$B$24,CntyQuery!$A$99:$FX$117,AB$1)","v":59},{"$f":"VLOOKUP(DropDownList!$B$24,CntyQuery!$A$99:$FX$117,AC$1)","v":"n"},{"$f":"VLOOKUP(DropDownList!$B$24,CntyQuery!$A$99:$FX$117,AD$1)","v":"n"},{"$f":"VLOOKUP(DropDownList!$B$24,CntyQuery!$A$99:$FX$117,AE$1)","v":483.1},{"$f":"VLOOKUP(DropDownList!$B$24,CntyQuery!$A$99:$FX$117,AF$1)","v":500.11},{"$f":"VLOOKUP(DropDownList!$B$24,CntyQuery!$A$99:$FX$117,AG$1)","v":"n"},{"$f":"VLOOKUP(DropDownList!$B$24,CntyQuery!$A$99:$FX$117,AH$1)","v":"n"},{"$f":"VLOOKUP(DropDownList!$B$24,CntyQuery!$A$99:$FX$117,AI$1)","v":83},{"$f":"VLOOKUP(DropDownList!$B$24,CntyQuery!$A$99:$FX$117,AJ$1)","v":78},{"$f":"VLOOKUP(DropDownList!$B$24,CntyQuery!$A$99:$FX$117,AK$1)","v":"n"},{"$f":"VLOOKUP(DropDownList!$B$24,CntyQuery!$A$99:$FX$117,AL$1)","v":"n"},{"$f":"VLOOKUP(DropDownList!$B$24,CntyQuery!$A$99:$FX$117,AM$1)","v":412.5},{"$f":"VLOOKUP(DropDownList!$B$24,CntyQuery!$A$99:$FX$117,AN$1)","v":422.63},{"$f":"VLOOKUP(DropDownList!$B$24,CntyQuery!$A$99:$FX$117,AO$1)","v":"n"},{"$f":"VLOOKUP(DropDownList!$B$24,CntyQuery!$A$99:$FX$117,AP$1)","v":"n"},{"$f":"VLOOKUP(DropDownList!$B$24,CntyQuery!$A$99:$FX$117,AQ$1)","v":119},{"$f":"VLOOKUP(DropDownList!$B$24,CntyQuery!$A$99:$FX$117,AR$1)","v":114},{"$f":"VLOOKUP(DropDownList!$B$24,CntyQuery!$A$99:$FX$117,AS$1)","v":36},{"$f":"VLOOKUP(DropDownList!$B$24,CntyQuery!$A$99:$FX$117,AT$1)","v":78},{"$f":"VLOOKUP(DropDownList!$B$24,CntyQuery!$A$99:$FX$117,AU$1)","v":484.8},{"$f":"VLOOKUP(DropDownList!$B$24,CntyQuery!$A$99:$FX$117,AV$1)","v":492.96},{"$f":"VLOOKUP(DropDownList!$B$24,CntyQuery!$A$99:$FX$117,AW$1)","v":789.77},{"$f":"VLOOKUP(DropDownList!$B$24,CntyQuery!$A$99:$FX$117,AX$1)","v":353.96},{"$f":"VLOOKUP(DropDownList!$B$24,CntyQuery!$A$99:$FX$117,AY$1)","v":109},{"$f":"VLOOKUP(DropDownList!$B$24,CntyQuery!$A$99:$FX$117,AZ$1)","v":104},{"$f":"VLOOKUP(DropDownList!$B$24,CntyQuery!$A$99:$FX$117,BA$1)","v":38},{"$f":"VLOOKUP(DropDownList!$B$24,CntyQuery!$A$99:$FX$117,BB$1)","v":66},{"$f":"VLOOKUP(DropDownList!$B$24,CntyQuery!$A$99:$FX$117,BC$1)","v":480.9},{"$f":"VLOOKUP(DropDownList!$B$24,CntyQuery!$A$99:$FX$117,BD$1)","v":486.64},{"$f":"VLOOKUP(DropDownList!$B$24,CntyQuery!$A$99:$FX$117,BE$1)","v":740.23},{"$f":"VLOOKUP(DropDownList!$B$24,CntyQuery!$A$99:$FX$117,BF$1)","v":341.87},{"$f":"VLOOKUP(DropDownList!$B$24,CntyQuery!$A$99:$FX$117,BG$1)","v":104},{"$f":"VLOOKUP(DropDownList!$B$24,CntyQuery!$A$99:$FX$117,BH$1)","v":100},{"$f":"VLOOKUP(DropDownList!$B$24,CntyQuery!$A$99:$FX$117,BI$1)","v":39},{"$f":"VLOOKUP(DropDownList!$B$24,CntyQuery!$A$99:$FX$117,BJ$1)","v":61},{"$f":"VLOOKUP(DropDownList!$B$24,CntyQuery!$A$99:$FX$117,BK$1)","v":481.11},{"$f":"VLOOKUP(DropDownList!$B$24,CntyQuery!$A$99:$FX$117,BL$1)","v":484.88},{"$f":"VLOOKUP(DropDownList!$B$24,CntyQuery!$A$99:$FX$117,BM$1)","v":713.22},{"$f":"VLOOKUP(DropDownList!$B$24,CntyQuery!$A$99:$FX$117,BN$1)","v":337.97},{"$f":"VLOOKUP(DropDownList!$B$24,CntyQuery!$A$99:$FX$117,BO$1)","v":93},{"$f":"VLOOKUP(DropDownList!$B$24,CntyQuery!$A$99:$FX$117,BP$1)","v":89},{"$f":"VLOOKUP(DropDownList!$B$24,CntyQuery!$A$99:$FX$117,BQ$1)","v":31},{"$f":"VLOOKUP(DropDownList!$B$24,CntyQuery!$A$99:$FX$117,BR$1)","v":58},{"$f":"VLOOKUP(DropDownList!$B$24,CntyQuery!$A$99:$FX$117,BS$1)","v":462.19},{"$f":"VLOOKUP(DropDownList!$B$24,CntyQuery!$A$99:$FX$117,BT$1)","v":465.23},{"$f":"VLOOKUP(DropDownList!$B$24,CntyQuery!$A$99:$FX$117,BU$1)","v":645.57000000000005},{"$f":"VLOOKUP(DropDownList!$B$24,CntyQuery!$A$99:$FX$117,BV$1)","v":369.62},{"$f":"VLOOKUP(DropDownList!$B$24,CntyQuery!$A$99:$FX$117,BW$1)","v":105},{"$f":"VLOOKUP(DropDownList!$B$24,CntyQuery!$A$99:$FX$117,BX$1)","v":101},{"$f":"VLOOKUP(DropDownList!$B$24,CntyQuery!$A$99:$FX$117,BY$1)","v":32},{"$f":"VLOOKUP(DropDownList!$B$24,CntyQuery!$A$99:$FX$117,BZ$1)","v":70},{"$f":"VLOOKUP(DropDownList!$B$24,CntyQuery!$A$99:$FX$117,CA$1)","v":469.17},{"$f":"VLOOKUP(DropDownList!$B$24,CntyQuery!$A$99:$FX$117,CB$1)","v":471.65},{"$f":"VLOOKUP(DropDownList!$B$24,CntyQuery!$A$99:$FX$117,CC$1)","v":669.95},{"$f":"VLOOKUP(DropDownList!$B$24,CntyQuery!$A$99:$FX$117,CD$1)","v":380.83},{"$f":"VLOOKUP(DropDownList!$B$24,CntyQuery!$A$99:$FX$117,CE$1)","v":103},{"$f":"VLOOKUP(DropDownList!$B$24,CntyQuery!$A$99:$FX$117,CF$1)","v":98},{"$f":"VLOOKUP(DropDownList!$B$24,CntyQuery!$A$99:$FX$117,CG$1)","v":"n"},{"$f":"VLOOKUP(DropDownList!$B$24,CntyQuery!$A$99:$FX$117,CH$1)","v":"n"},{"$f":"VLOOKUP(DropDownList!$B$24,CntyQuery!$A$99:$FX$117,CI$1)","v":482.62},{"$f":"VLOOKUP(DropDownList!$B$24,CntyQuery!$A$99:$FX$117,CJ$1)","v":486.7},{"$f":"VLOOKUP(DropDownList!$B$24,CntyQuery!$A$99:$FX$117,CK$1)","v":"n"},{"$f":"VLOOKUP(DropDownList!$B$24,CntyQuery!$A$99:$FX$117,CL$1)","v":"n"},{"$f":"VLOOKUP(DropDownList!$B$24,CntyQuery!$A$99:$FX$117,CM$1)","v":127},{"$f":"VLOOKUP(DropDownList!$B$24,CntyQuery!$A$99:$FX$117,CN$1)","v":121},{"$f":"VLOOKUP(DropDownList!$B$24,CntyQuery!$A$99:$FX$117,CO$1)","v":25},{"$f":"VLOOKUP(DropDownList!$B$24,CntyQuery!$A$99:$FX$117,CP$1)","v":96},{"$f":"VLOOKUP(DropDownList!$B$24,CntyQuery!$A$99:$FX$117,CQ$1)","v":431.61},{"$f":"VLOOKUP(DropDownList!$B$24,CntyQuery!$A$99:$FX$117,CR$1)","v":438.06},{"$f":"VLOOKUP(DropDownList!$B$24,CntyQuery!$A$99:$FX$117,CS$1)","v":727.6},{"$f":"VLOOKUP(DropDownList!$B$24,CntyQuery!$A$99:$FX$117,CT$1)","v":361.82},{"$f":"VLOOKUP(DropDownList!$B$24,CntyQuery!$A$99:$FX$117,CU$1)","v":107},{"$f":"VLOOKUP(DropDownList!$B$24,CntyQuery!$A$99:$FX$117,CV$1)","v":101},{"$f":"VLOOKUP(DropDownList!$B$24,CntyQuery!$A$99:$FX$117,CW$1)","v":16},{"$f":"VLOOKUP(DropDownList!$B$24,CntyQuery!$A$99:$FX$117,CX$1)","v":84},{"$f":"VLOOKUP(DropDownList!$B$24,CntyQuery!$A$99:$FX$117,CY$1)","v":448.58},{"$f":"VLOOKUP(DropDownList!$B$24,CntyQuery!$A$99:$FX$117,CZ$1)","v":456.81},{"$f":"VLOOKUP(DropDownList!$B$24,CntyQuery!$A$99:$FX$117,DA$1)","v":751.25},{"$f":"VLOOKUP(DropDownList!$B$24,CntyQuery!$A$99:$FX$117,DB$1)","v":399.38},{"$f":"VLOOKUP(DropDownList!$B$24,CntyQuery!$A$99:$FX$117,DC$1)","v":112},{"$f":"VLOOKUP(DropDownList!$B$24,CntyQuery!$A$99:$FX$117,DD$1)","v":107},{"$f":"VLOOKUP(DropDownList!$B$24,CntyQuery!$A$99:$FX$117,DE$1)","v":15},{"$f":"VLOOKUP(DropDownList!$B$24,CntyQuery!$A$99:$FX$117,DF$1)","v":92},{"$f":"VLOOKUP(DropDownList!$B$24,CntyQuery!$A$99:$FX$117,DG$1)","v":447.3},{"$f":"VLOOKUP(DropDownList!$B$24,CntyQuery!$A$99:$FX$117,DH$1)","v":451.52},{"$f":"VLOOKUP(DropDownList!$B$24,CntyQuery!$A$99:$FX$117,DI$1)","v":695.65},{"$f":"VLOOKUP(DropDownList!$B$24,CntyQuery!$A$99:$FX$117,DJ$1)","v":411.53},{"$f":"VLOOKUP(DropDownList!$B$24,CntyQuery!$A$99:$FX$117,DK$1)","v":105},{"$f":"VLOOKUP(DropDownList!$B$24,CntyQuery!$A$99:$FX$117,DL$1)","v":99},{"$f":"VLOOKUP(DropDownList!$B$24,CntyQuery!$A$99:$FX$117,DM$1)","v":13},{"$f":"VLOOKUP(DropDownList!$B$24,CntyQuery!$A$99:$FX$117,DN$1)","v":86},{"$f":"VLOOKUP(DropDownList!$B$24,CntyQuery!$A$99:$FX$117,DO$1)","v":448.18},{"$f":"VLOOKUP(DropDownList!$B$24,CntyQuery!$A$99:$FX$117,DP$1)","v":458.44},{"$f":"VLOOKUP(DropDownList!$B$24,CntyQuery!$A$99:$FX$117,DQ$1)","v":796.77},{"$f":"VLOOKUP(DropDownList!$B$24,CntyQuery!$A$99:$FX$117,DR$1)","v":407.05},{"$f":"VLOOKUP(DropDownList!$B$24,CntyQuery!$A$99:$FX$117,DS$1)","v":123},{"$f":"VLOOKUP(DropDownList!$B$24,CntyQuery!$A$99:$FX$117,DT$1)","v":114},{"$f":"VLOOKUP(DropDownList!$B$24,CntyQuery!$A$99:$FX$117,DU$1)","v":"n"},{"$f":"VLOOKUP(DropDownList!$B$24,CntyQuery!$A$99:$FX$117,DV$1)","v":"n"},{"$f":"VLOOKUP(DropDownList!$B$24,CntyQuery!$A$99:$FX$117,DW$1)","v":486.97},{"$f":"VLOOKUP(DropDownList!$B$24,CntyQuery!$A$99:$FX$117,DX$1)","v":505.69},{"$f":"VLOOKUP(DropDownList!$B$24,CntyQuery!$A$99:$FX$117,DY$1)","v":"n"},{"$f":"VLOOKUP(DropDownList!$B$24,CntyQuery!$A$99:$FX$117,DZ$1)","v":"n"},{"$f":"VLOOKUP(DropDownList!$B$24,CntyQuery!$A$99:$FX$117,EA$1)","v":125},{"$f":"VLOOKUP(DropDownList!$B$24,CntyQuery!$A$99:$FX$117,EB$1)","v":118},{"$f":"VLOOKUP(DropDownList!$B$24,CntyQuery!$A$99:$FX$117,EC$1)","v":"n"},{"$f":"VLOOKUP(DropDownList!$B$24,CntyQuery!$A$99:$FX$117,ED$1)","v":"n"},{"$f":"VLOOKUP(DropDownList!$B$24,CntyQuery!$A$99:$FX$117,EE$1)","v":538.03},{"$f":"VLOOKUP(DropDownList!$B$24,CntyQuery!$A$99:$FX$117,EF$1)","v":552.39},{"$f":"VLOOKUP(DropDownList!$B$24,CntyQuery!$A$99:$FX$117,EG$1)","v":"n"},{"$f":"VLOOKUP(DropDownList!$B$24,CntyQuery!$A$99:$FX$117,EH$1)","v":"n"},{"$f":"VLOOKUP(DropDownList!$B$24,CntyQuery!$A$99:$FX$117,EI$1)","v":134},{"$f":"VLOOKUP(DropDownList!$B$24,CntyQuery!$A$99:$FX$117,EJ$1)","v":126},{"$f":"VLOOKUP(DropDownList!$B$24,CntyQuery!$A$99:$FX$117,EK$1)","v":"n"},{"$f":"VLOOKUP(DropDownList!$B$24,CntyQuery!$A$99:$FX$117,EL$1)","v":"n"},{"$f":"VLOOKUP(DropDownList!$B$24,CntyQuery!$A$99:$FX$117,EM$1)","v":586.77},{"$f":"VLOOKUP(DropDownList!$B$24,CntyQuery!$A$99:$FX$117,EN$1)","v":609.08000000000004},{"$f":"VLOOKUP(DropDownList!$B$24,CntyQuery!$A$99:$FX$117,EO$1)","v":"n"},{"$f":"VLOOKUP(DropDownList!$B$24,CntyQuery!$A$99:$FX$117,EP$1)","v":"n"},{"$f":"VLOOKUP(DropDownList!$B$24,CntyQuery!$A$99:$FX$117,EQ$1)","v":128},{"$f":"VLOOKUP(DropDownList!$B$24,CntyQuery!$A$99:$FX$117,ER$1)","v":120},{"$f":"VLOOKUP(DropDownList!$B$24,CntyQuery!$A$99:$FX$117,ES$1)","v":8},{"$f":"VLOOKUP(DropDownList!$B$24,CntyQuery!$A$99:$FX$117,ET$1)","v":27},{"$f":"VLOOKUP(DropDownList!$B$24,CntyQuery!$A$99:$FX$117,EU$1)","v":94},{"$f":"VLOOKUP(DropDownList!$B$24,CntyQuery!$A$99:$FX$117,EV$1)","v":605.94000000000005},{"$f":"VLOOKUP(DropDownList!$B$24,CntyQuery!$A$99:$FX$117,EW$1)","v":628.27},{"$f":"VLOOKUP(DropDownList!$B$24,CntyQuery!$A$99:$FX$117,EX$1)","v":266.01},{"$f":"VLOOKUP(DropDownList!$B$24,CntyQuery!$A$99:$FX$117,EY$1)","v":803.32},{"$f":"VLOOKUP(DropDownList!$B$24,CntyQuery!$A$99:$FX$117,EZ$1)","v":578.52},{"$f":"VLOOKUP(DropDownList!$B$24,CntyQuery!$A$99:$FX$117,FA$1)","v":201}]
[]
[]
[]
[]
[]
[]
[null,null,null,null,null,null,null,null,null,null,null,null,{"$f":"IF((CntyDataLink!$BL$25)=\"n\",NA(),IF(VALUE(CntyDataLink!$BL$25)=\"\",NA(),VALUE(CntyDataLink!$BL$25)))","v":484.88}]
["Census 2000   -           Query Name:  TownAllQuery3",2,{"$f":"B33+1","v":3},{"$f":"C33+1","v":4},5,6,7,8,9,10,11,12,13,14,15,16,17,18,19,20,21,22,23,24,25,26,27,28,29,30,31,32,33,34,35,36,37,38,39,40,41,42,43,44,45,46,47,48,49,50,51,52,53,54,55,56,57,58,59,60,61,62,63,64,65,66,67,{"$f":"BO33+1","v":68},69,70,71,72,73,74,75,76,77,78,79,80,81,82,83,84,85,86,87,88,89,90,91,92,93,94,95,96,97,98,99,100,101,102]
["NAME","COUNTY","LOGRECNO","COUSUB","TRACT","AREALAND","AREAWATR","POP100","HU100","2000Population","PopOfOneRace","PopWhite","PopBlack","PopAmIndian","PopAsian","PopHawaiian","PopOtherRace","Pop2orMoreRaces","PopHispanicLatino","PopNotHispanicLatino","PopMale","PopMale<15","PopMale15to24","PopMale25to34","PopMale35to44","PopMale45to54","PopMale55to64","PopMale65to74","PopMale75to84","PopMale85andOver","PopFemale","PopFemale<15","PopFemale15to24","PopFemale25to34","PopFemale35t44","PopFemale45to54","PopFemale55to64","PopFemale65to74","PopFemale75to84","PopFemale85andOver","Households2000","PopInHH","AvgHHSize","HHs1Person","HHs2orMorePerson","HHsFamily","HHMarriedCoupleFam","HHSingleParentFam","HHsNonFamily","Families","PopInFam","AvgFamSize","TotHsUnits","OccHsUnits","OwnerOccHU","RenterOccHU","VctHsUnits","VctHUForRent","VctHUForSale","VctHUSeasonal","PopInOccHU","PopInOwnOccHU","PopInRntOccHU","AvgHHSize2","AvgHHSizOwnOcc","AvgHHSizRntOcc","OwnOccWhtHsHldr","OwnOccBlkHsHldr","OwnOccAmIHsHldr","OwnOccAsnHsHldr","OwnOccPIsHsHldr","OwnOccORHsHldr","OwnOcc2RcHsHldr","RntOccWhtHsHldr","RntOccBlkHsHldr","RntOccAmIHsHldr","RntOccAsnHsHldr","RntOccPIsHsHldr","RntOccORHsHldr","RntOcc2RcHsHldr","OwnOccHH15to24","OwnOccHH25to34","OwnOccHH35to44","OwnOccHH45to54","OwnOccHH55to64","OwnOccHH65to74","OwnOccHH75to84","OwnOccHH85Over","RntOccHH15to24","RntOccHH25to34","RntOccHH35to44","RntOccHH45to54","RntOccHH55to64","RntOccHH65to74","RntOccHH75to84","RntOccHH85Over","P27TotalPop","P27PopInHseHlds","P27PopInGrpQtrs","Median Age Total","Median Age (Male)","Median Age (Female)"]
[{"$f":"VLOOKUP(DropDownList!$B$24,CntyQryCensus!$A$4:$CX$22,A$1)","v":"Albany"},{"$f":"VLOOKUP(DropDownList!$B$24,CntyQryCensus!$A$4:$CX$22,B$1)","v":"003"},{"$f":"VLOOKUP(DropDownList!$B$24,CntyQryCensus!$A$4:$CX$22,C$1)","v":"0002057"},{"$f":"VLOOKUP(DropDownList!$B$24,CntyQryCensus!$A$4:$CX$22,D$1)","v":"00420"},{"$f":"VLOOKUP(DropDownList!$B$24,CntyQryCensus!$A$4:$CX$22,E$1)","v":""},{"$f":"VLOOKUP(DropDownList!$B$24,CntyQryCensus!$A$4:$CX$22,F$1)","v":"     193586162"},{"$f":"VLOOKUP(DropDownList!$B$24,CntyQryCensus!$A$4:$CX$22,G$1)","v":"        853295"},{"$f":"VLOOKUP(DropDownList!$B$24,CntyQryCensus!$A$4:$CX$22,H$1)","v":"      654"},{"$f":"VLOOKUP(DropDownList!$B$24,CntyQryCensus!$A$4:$CX$22,I$1)","v":"      506"},{"$f":"VLOOKUP(DropDownList!$B$24,CntyQryCensus!$A$4:$CX$22,J$1)","v":654},{"$f":"VLOOKUP(DropDownList!$B$24,CntyQryCensus!$A$4:$CX$22,K$1)","v":650},{"$f":"VLOOKUP(DropDownList!$B$24,CntyQryCensus!$A$4:$CX$22,L$1)","v":644},{"$f":"VLOOKUP(DropDownList!$B$24,CntyQryCensus!$A$4:$CX$22,M$1)","v":1},{"$f":"VLOOKUP(DropDownList!$B$24,CntyQryCensus!$A$4:$CX$22,N$1)","v":2},{"$f":"VLOOKUP(DropDownList!$B$24,CntyQryCensus!$A$4:$CX$22,O$1)","v":1},{"$f":"VLOOKUP(DropDownList!$B$24,CntyQryCensus!$A$4:$CX$22,P$1)","v":2},{"$f":"VLOOKUP(DropDownList!$B$24,CntyQryCensus!$A$4:$CX$22,Q$1)","v":0},{"$f":"VLOOKUP(DropDownList!$B$24,CntyQryCensus!$A$4:$CX$22,R$1)","v":4},{"$f":"VLOOKUP(DropDownList!$B$24,CntyQryCensus!$A$4:$CX$22,S$1)","v":5},{"$f":"VLOOKUP(DropDownList!$B$24,CntyQryCensus!$A$4:$CX$22,T$1)","v":649},{"$f":"VLOOKUP(DropDownList!$B$24,CntyQryCensus!$A$4:$CX$22,U$1)","v":328},{"$f":"VLOOKUP(DropDownList!$B$24,CntyQryCensus!$A$4:$CX$22,V$1)","v":68},{"$f":"VLOOKUP(DropDownList!$B$24,CntyQryCensus!$A$4:$CX$22,W$1)","v":37},{"$f":"VLOOKUP(DropDownList!$B$24,CntyQryCensus!$A$4:$CX$22,X$1)","v":43},{"$f":"VLOOKUP(DropDownList!$B$24,CntyQryCensus!$A$4:$CX$22,Y$1)","v":77},{"$f":"VLOOKUP(DropDownList!$B$24,CntyQryCensus!$A$4:$CX$22,Z$1)","v":43},{"$f":"VLOOKUP(DropDownList!$B$24,CntyQryCensus!$A$4:$CX$22,AA$1)","v":35},{"$f":"VLOOKUP(DropDownList!$B$24,CntyQryCensus!$A$4:$CX$22,AB$1)","v":15},{"$f":"VLOOKUP(DropDownList!$B$24,CntyQryCensus!$A$4:$CX$22,AC$1)","v":6},{"$f":"VLOOKUP(DropDownList!$B$24,CntyQryCensus!$A$4:$CX$22,AD$1)","v":4},{"$f":"VLOOKUP(DropDownList!$B$24,CntyQryCensus!$A$4:$CX$22,AE$1)","v":326},{"$f":"VLOOKUP(DropDownList!$B$24,CntyQryCensus!$A$4:$CX$22,AF$1)","v":82},{"$f":"VLOOKUP(DropDownList!$B$24,CntyQryCensus!$A$4:$CX$22,AG$1)","v":26},{"$f":"VLOOKUP(DropDownList!$B$24,CntyQryCensus!$A$4:$CX$22,AH$1)","v":47},{"$f":"VLOOKUP(DropDownList!$B$24,CntyQryCensus!$A$4:$CX$22,AI$1)","v":73},{"$f":"VLOOKUP(DropDownList!$B$24,CntyQryCensus!$A$4:$CX$22,AJ$1)","v":36},{"$f":"VLOOKUP(DropDownList!$B$24,CntyQryCensus!$A$4:$CX$22,AK$1)","v":35},{"$f":"VLOOKUP(DropDownList!$B$24,CntyQryCensus!$A$4:$CX$22,AL$1)","v":20},{"$f":"VLOOKUP(DropDownList!$B$24,CntyQryCensus!$A$4:$CX$22,AM$1)","v":5},{"$f":"VLOOKUP(DropDownList!$B$24,CntyQryCensus!$A$4:$CX$22,AN$1)","v":2},{"$f":"VLOOKUP(DropDownList!$B$24,CntyQryCensus!$A$4:$CX$22,AO$1)","v":262},{"$f":"VLOOKUP(DropDownList!$B$24,CntyQryCensus!$A$4:$CX$22,AP$1)","v":651},{"$f":"VLOOKUP(DropDownList!$B$24,CntyQryCensus!$A$4:$CX$22,AQ$1)","v":2.48},{"$f":"VLOOKUP(DropDownList!$B$24,CntyQryCensus!$A$4:$CX$22,AR$1)","v":61},{"$f":"VLOOKUP(DropDownList!$B$24,CntyQryCensus!$A$4:$CX$22,AS$1)","v":201},{"$f":"VLOOKUP(DropDownList!$B$24,CntyQryCensus!$A$4:$CX$22,AT$1)","v":183},{"$f":"VLOOKUP(DropDownList!$B$24,CntyQryCensus!$A$4:$CX$22,AU$1)","v":135},{"$f":"VLOOKUP(DropDownList!$B$24,CntyQryCensus!$A$4:$CX$22,AV$1)","v":48},{"$f":"VLOOKUP(DropDownList!$B$24,CntyQryCensus!$A$4:$CX$22,AW$1)","v":18},{"$f":"VLOOKUP(DropDownList!$B$24,CntyQryCensus!$A$4:$CX$22,AX$1)","v":183},{"$f":"VLOOKUP(DropDownList!$B$24,CntyQryCensus!$A$4:$CX$22,AY$1)","v":521},{"$f":"VLOOKUP(DropDownList!$B$24,CntyQryCensus!$A$4:$CX$22,AZ$1)","v":2.85},{"$f":"VLOOKUP(DropDownList!$B$24,CntyQryCensus!$A$4:$CX$22,BA$1)","v":506},{"$f":"VLOOKUP(DropDownList!$B$24,CntyQryCensus!$A$4:$CX$22,BB$1)","v":262},{"$f":"VLOOKUP(DropDownList!$B$24,CntyQryCensus!$A$4:$CX$22,BC$1)","v":221},{"$f":"VLOOKUP(DropDownList!$B$24,CntyQryCensus!$A$4:$CX$22,BD$1)","v":41},{"$f":"VLOOKUP(DropDownList!$B$24,CntyQryCensus!$A$4:$CX$22,BE$1)","v":244},{"$f":"VLOOKUP(DropDownList!$B$24,CntyQryCensus!$A$4:$CX$22,BF$1)","v":6},{"$f":"VLOOKUP(DropDownList!$B$24,CntyQryCensus!$A$4:$CX$22,BG$1)","v":7},{"$f":"VLOOKUP(DropDownList!$B$24,CntyQryCensus!$A$4:$CX$22,BH$1)","v":201},{"$f":"VLOOKUP(DropDownList!$B$24,CntyQryCensus!$A$4:$CX$22,BI$1)","v":651},{"$f":"VLOOKUP(DropDownList!$B$24,CntyQryCensus!$A$4:$CX$22,BJ$1)","v":539},{"$f":"VLOOKUP(DropDownList!$B$24,CntyQryCensus!$A$4:$CX$22,BK$1)","v":112},{"$f":"VLOOKUP(DropDownList!$B$24,CntyQryCensus!$A$4:$CX$22,BL$1)","v":2.48},{"$f":"VLOOKUP(DropDownList!$B$24,CntyQryCensus!$A$4:$CX$22,BM$1)","v":2.44},{"$f":"VLOOKUP(DropDownList!$B$24,CntyQryCensus!$A$4:$CX$22,BN$1)","v":2.73},{"$f":"VLOOKUP(DropDownList!$B$24,CntyQryCensus!$A$4:$CX$22,BO$1)","v":216},{"$f":"VLOOKUP(DropDownList!$B$24,CntyQryCensus!$A$4:$CX$22,BP$1)","v":0},{"$f":"VLOOKUP(DropDownList!$B$24,CntyQryCensus!$A$4:$CX$22,BQ$1)","v":1},{"$f":"VLOOKUP(DropDownList!$B$24,CntyQryCensus!$A$4:$CX$22,BR$1)","v":1},{"$f":"VLOOKUP(DropDownList!$B$24,CntyQryCensus!$A$4:$CX$22,BS$1)","v":1},{"$f":"VLOOKUP(DropDownList!$B$24,CntyQryCensus!$A$4:$CX$22,BT$1)","v":0},{"$f":"VLOOKUP(DropDownList!$B$24,CntyQryCensus!$A$4:$CX$22,BU$1)","v":2},{"$f":"VLOOKUP(DropDownList!$B$24,CntyQryCensus!$A$4:$CX$22,BV$1)","v":39},{"$f":"VLOOKUP(DropDownList!$B$24,CntyQryCensus!$A$4:$CX$22,BW$1)","v":1},{"$f":"VLOOKUP(DropDownList!$B$24,CntyQryCensus!$A$4:$CX$22,BX$1)","v":0},{"$f":"VLOOKUP(DropDownList!$B$24,CntyQryCensus!$A$4:$CX$22,BY$1)","v":0},{"$f":"VLOOKUP(DropDownList!$B$24,CntyQryCensus!$A$4:$CX$22,BZ$1)","v":0},{"$f":"VLOOKUP(DropDownList!$B$24,CntyQryCensus!$A$4:$CX$22,CA$1)","v":0},{"$f":"VLOOKUP(DropDownList!$B$24,CntyQryCensus!$A$4:$CX$22,CB$1)","v":1},{"$f":"VLOOKUP(DropDownList!$B$24,CntyQryCensus!$A$4:$CX$22,CC$1)","v":3},{"$f":"VLOOKUP(DropDownList!$B$24,CntyQryCensus!$A$4:$CX$22,CD$1)","v":33},{"$f":"VLOOKUP(DropDownList!$B$24,CntyQryCensus!$A$4:$CX$22,CE$1)","v":74},{"$f":"VLOOKUP(DropDownList!$B$24,CntyQryCensus!$A$4:$CX$22,CF$1)","v":40},{"$f":"VLOOKUP(DropDownList!$B$24,CntyQryCensus!$A$4:$CX$22,CG$1)","v":36},{"$f":"VLOOKUP(DropDownList!$B$24,CntyQryCensus!$A$4:$CX$22,CH$1)","v":21},{"$f":"VLOOKUP(DropDownList!$B$24,CntyQryCensus!$A$4:$CX$22,CI$1)","v":9},{"$f":"VLOOKUP(DropDownList!$B$24,CntyQryCensus!$A$4:$CX$22,CJ$1)","v":5},{"$f":"VLOOKUP(DropDownList!$B$24,CntyQryCensus!$A$4:$CX$22,CK$1)","v":5},{"$f":"VLOOKUP(DropDownList!$B$24,CntyQryCensus!$A$4:$CX$22,CL$1)","v":14},{"$f":"VLOOKUP(DropDownList!$B$24,CntyQryCensus!$A$4:$CX$22,CM$1)","v":15},{"$f":"VLOOKUP(DropDownList!$B$24,CntyQryCensus!$A$4:$CX$22,CN$1)","v":3},{"$f":"VLOOKUP(DropDownList!$B$24,CntyQryCensus!$A$4:$CX$22,CO$1)","v":2},{"$f":"VLOOKUP(DropDownList!$B$24,CntyQryCensus!$A$4:$CX$22,CP$1)","v":2},{"$f":"VLOOKUP(DropDownList!$B$24,CntyQryCensus!$A$4:$CX$22,CQ$1)","v":0},{"$f":"VLOOKUP(DropDownList!$B$24,CntyQryCensus!$A$4:$CX$22,CR$1)","v":0},{"$f":"VLOOKUP(DropDownList!$B$24,CntyQryCensus!$A$4:$CX$22,CS$1)","v":654},{"$f":"VLOOKUP(DropDownList!$B$24,CntyQryCensus!$A$4:$CX$22,CT$1)","v":651},{"$f":"VLOOKUP(DropDownList!$B$24,CntyQryCensus!$A$4:$CX$22,CU$1)","v":3},{"$f":"VLOOKUP(DropDownList!$B$24,CntyQryCensus!$A$4:$CX$22,CV$1)","v":37.4},{"$f":"VLOOKUP(DropDownList!$B$24,CntyQryCensus!$A$4:$CX$22,CW$1)","v":37.799999999999997},{"$f":"VLOOKUP(DropDownList!$B$24,CntyQryCensus!$A$4:$CX$22,CX$1)","v":36.6}]
[]
[]
["Census 2000 DemoProfile Sample Data Tables 2&3   -  DPTab23TownQry"]
["NAME","COUSUB","AREANAME","PopInSchool","Preschool","Kindergarten","Elementary","HighSchool","College","Pop25andOver","HighSchoolGrad","SomeCollege","AssocDegree","BachelDegree","GradDegree","HSGradorHigher","CollegeGradorHigher","Pop5to20yrs","Pop5to20wDis","Pop21to64","Pop21to64wDis","Pop65over","Pop65overwDis","Pop5yrsOver","SameHUin95","DiffHUinUSin95","HUinSameCountyin95","HUinSameStatein95","TotalPop","NativePop","NatPopBornUS","NatPopBornInStatRes","NatPopBornDiffState","NatPopBornOutUS","FornBornPop","FornPopEnt90to00","FornPopNatCit","FornPopNotCit","Households","HHIncLessThn10k","HHInc10to15K","HHInc15to25K","HHInc25to35K","HHInc35to50K","HHInc50to75K","HHInc75to100K","HHInc100to150K","HHInc150to200K","HHIncOver200K","MedianHHInc","HHwithPubAssistInc","MeanPubAssist","FamilyHH","FHHIncLessThn10k","FHHInc10to15K","FHHInc15to25K","FHHInc25to35K","FHHInc35to50K","FHHInc50to75K","FHHInc75to100K","FHHInc100to150K","FHHInc150to200K","FHHIncOver200K","MedianFHHInc","PerCapitaInc","PovStatFamilies","PovStatFHHwChilUnd18","PovStatFHHwChilUnd5","PovStFmalHH","DP3088","DP3089","PovStatIndiv","PovStatIndiv18yrOver","PovStatIndiv65yrOver","DP3093","DP3094","DP3095"]
[{"$f":"VLOOKUP(DropDownList!$B$24,CntyQryCensus!$A$29:$BY$47,A$1)","v":"Albany"},{"$f":"VLOOKUP(DropDownList!$B$24,CntyQryCensus!$A$29:$BY$47,B$1)","v":"00420"},{"$f":"VLOOKUP(DropDownList!$B$24,CntyQryCensus!$A$29:$BY$47,C$1)","v":"Albany town, Carroll County, New Hampshire"},{"$f":"VLOOKUP(DropDownList!$B$24,CntyQryCensus!$A$29:$BY$47,D$1)","v":132},{"$f":"VLOOKUP(DropDownList!$B$24,CntyQryCensus!$A$29:$BY$47,E$1)","v":12},{"$f":"VLOOKUP(DropDownList!$B$24,CntyQryCensus!$A$29:$BY$47,F$1)","v":8},{"$f":"VLOOKUP(DropDownList!$B$24,CntyQryCensus!$A$29:$BY$47,G$1)","v":59},{"$f":"VLOOKUP(DropDownList!$B$24,CntyQryCensus!$A$29:$BY$47,H$1)","v":38},{"$f":"VLOOKUP(DropDownList!$B$24,CntyQryCensus!$A$29:$BY$47,I$1)","v":15},{"$f":"VLOOKUP(DropDownList!$B$24,CntyQryCensus!$A$29:$BY$47,J$1)","v":409},{"$f":"VLOOKUP(DropDownList!$B$24,CntyQryCensus!$A$29:$BY$47,K$1)","v":165},{"$f":"VLOOKUP(DropDownList!$B$24,CntyQryCensus!$A$29:$BY$47,L$1)","v":69},{"$f":"VLOOKUP(DropDownList!$B$24,CntyQryCensus!$A$29:$BY$47,M$1)","v":20},{"$f":"VLOOKUP(DropDownList!$B$24,CntyQryCensus!$A$29:$BY$47,N$1)","v":54},{"$f":"VLOOKUP(DropDownList!$B$24,CntyQryCensus!$A$29:$BY$47,O$1)","v":21},{"$f":"VLOOKUP(DropDownList!$B$24,CntyQryCensus!$A$29:$BY$47,P$1)","v":329},{"$f":"VLOOKUP(DropDownList!$B$24,CntyQryCensus!$A$29:$BY$47,Q$1)","v":75},{"$f":"VLOOKUP(DropDownList!$B$24,CntyQryCensus!$A$29:$BY$47,R$1)","v":123},{"$f":"VLOOKUP(DropDownList!$B$24,CntyQryCensus!$A$29:$BY$47,S$1)","v":16},{"$f":"VLOOKUP(DropDownList!$B$24,CntyQryCensus!$A$29:$BY$47,T$1)","v":386},{"$f":"VLOOKUP(DropDownList!$B$24,CntyQryCensus!$A$29:$BY$47,U$1)","v":135},{"$f":"VLOOKUP(DropDownList!$B$24,CntyQryCensus!$A$29:$BY$47,V$1)","v":46},{"$f":"VLOOKUP(DropDownList!$B$24,CntyQryCensus!$A$29:$BY$47,W$1)","v":21},{"$f":"VLOOKUP(DropDownList!$B$24,CntyQryCensus!$A$29:$BY$47,X$1)","v":555},{"$f":"VLOOKUP(DropDownList!$B$24,CntyQryCensus!$A$29:$BY$47,Y$1)","v":336},{"$f":"VLOOKUP(DropDownList!$B$24,CntyQryCensus!$A$29:$BY$47,Z$1)","v":215},{"$f":"VLOOKUP(DropDownList!$B$24,CntyQryCensus!$A$29:$BY$47,AA$1)","v":128},{"$f":"VLOOKUP(DropDownList!$B$24,CntyQryCensus!$A$29:$BY$47,AB$1)","v":87},{"$f":"VLOOKUP(DropDownList!$B$24,CntyQryCensus!$A$29:$BY$47,AC$1)","v":609},{"$f":"VLOOKUP(DropDownList!$B$24,CntyQryCensus!$A$29:$BY$47,AD$1)","v":605},{"$f":"VLOOKUP(DropDownList!$B$24,CntyQryCensus!$A$29:$BY$47,AE$1)","v":605},{"$f":"VLOOKUP(DropDownList!$B$24,CntyQryCensus!$A$29:$BY$47,AF$1)","v":298},{"$f":"VLOOKUP(DropDownList!$B$24,CntyQryCensus!$A$29:$BY$47,AG$1)","v":307},{"$f":"VLOOKUP(DropDownList!$B$24,CntyQryCensus!$A$29:$BY$47,AH$1)","v":0},{"$f":"VLOOKUP(DropDownList!$B$24,CntyQryCensus!$A$29:$BY$47,AI$1)","v":4},{"$f":"VLOOKUP(DropDownList!$B$24,CntyQryCensus!$A$29:$BY$47,AJ$1)","v":0},{"$f":"VLOOKUP(DropDownList!$B$24,CntyQryCensus!$A$29:$BY$47,AK$1)","v":4},{"$f":"VLOOKUP(DropDownList!$B$24,CntyQryCensus!$A$29:$BY$47,AL$1)","v":0},{"$f":"VLOOKUP(DropDownList!$B$24,CntyQryCensus!$A$29:$BY$47,AM$1)","v":249},{"$f":"VLOOKUP(DropDownList!$B$24,CntyQryCensus!$A$29:$BY$47,AN$1)","v":24},{"$f":"VLOOKUP(DropDownList!$B$24,CntyQryCensus!$A$29:$BY$47,AO$1)","v":25},{"$f":"VLOOKUP(DropDownList!$B$24,CntyQryCensus!$A$29:$BY$47,AP$1)","v":44},{"$f":"VLOOKUP(DropDownList!$B$24,CntyQryCensus!$A$29:$BY$47,AQ$1)","v":23},{"$f":"VLOOKUP(DropDownList!$B$24,CntyQryCensus!$A$29:$BY$47,AR$1)","v":59},{"$f":"VLOOKUP(DropDownList!$B$24,CntyQryCensus!$A$29:$BY$47,AS$1)","v":50},{"$f":"VLOOKUP(DropDownList!$B$24,CntyQryCensus!$A$29:$BY$47,AT$1)","v":10},{"$f":"VLOOKUP(DropDownList!$B$24,CntyQryCensus!$A$29:$BY$47,AU$1)","v":3},{"$f":"VLOOKUP(DropDownList!$B$24,CntyQryCensus!$A$29:$BY$47,AV$1)","v":8},{"$f":"VLOOKUP(DropDownList!$B$24,CntyQryCensus!$A$29:$BY$47,AW$1)","v":3},{"$f":"VLOOKUP(DropDownList!$B$24,CntyQryCensus!$A$29:$BY$47,AX$1)","v":36635},{"$f":"VLOOKUP(DropDownList!$B$24,CntyQryCensus!$A$29:$BY$47,AY$1)","v":11},{"$f":"VLOOKUP(DropDownList!$B$24,CntyQryCensus!$A$29:$BY$47,AZ$1)","v":5309},{"$f":"VLOOKUP(DropDownList!$B$24,CntyQryCensus!$A$29:$BY$47,BA$1)","v":167},{"$f":"VLOOKUP(DropDownList!$B$24,CntyQryCensus!$A$29:$BY$47,BB$1)","v":13},{"$f":"VLOOKUP(DropDownList!$B$24,CntyQryCensus!$A$29:$BY$47,BC$1)","v":9},{"$f":"VLOOKUP(DropDownList!$B$24,CntyQryCensus!$A$29:$BY$47,BD$1)","v":27},{"$f":"VLOOKUP(DropDownList!$B$24,CntyQryCensus!$A$29:$BY$47,BE$1)","v":21},{"$f":"VLOOKUP(DropDownList!$B$24,CntyQryCensus!$A$29:$BY$47,BF$1)","v":46},{"$f":"VLOOKUP(DropDownList!$B$24,CntyQryCensus!$A$29:$BY$47,BG$1)","v":36},{"$f":"VLOOKUP(DropDownList!$B$24,CntyQryCensus!$A$29:$BY$47,BH$1)","v":5},{"$f":"VLOOKUP(DropDownList!$B$24,CntyQryCensus!$A$29:$BY$47,BI$1)","v":2},{"$f":"VLOOKUP(DropDownList!$B$24,CntyQryCensus!$A$29:$BY$47,BJ$1)","v":8},{"$f":"VLOOKUP(DropDownList!$B$24,CntyQryCensus!$A$29:$BY$47,BK$1)","v":0},{"$f":"VLOOKUP(DropDownList!$B$24,CntyQryCensus!$A$29:$BY$47,BL$1)","v":39250},{"$f":"VLOOKUP(DropDownList!$B$24,CntyQryCensus!$A$29:$BY$47,BM$1)","v":20690},{"$f":"VLOOKUP(DropDownList!$B$24,CntyQryCensus!$A$29:$BY$47,BN$1)","v":18},{"$f":"VLOOKUP(DropDownList!$B$24,CntyQryCensus!$A$29:$BY$47,BO$1)","v":16},{"$f":"VLOOKUP(DropDownList!$B$24,CntyQryCensus!$A$29:$BY$47,BP$1)","v":12},{"$f":"VLOOKUP(DropDownList!$B$24,CntyQryCensus!$A$29:$BY$47,BQ$1)","v":10},{"$f":"VLOOKUP(DropDownList!$B$24,CntyQryCensus!$A$29:$BY$47,BR$1)","v":10},{"$f":"VLOOKUP(DropDownList!$B$24,CntyQryCensus!$A$29:$BY$47,BS$1)","v":8},{"$f":"VLOOKUP(DropDownList!$B$24,CntyQryCensus!$A$29:$BY$47,BT$1)","v":95},{"$f":"VLOOKUP(DropDownList!$B$24,CntyQryCensus!$A$29:$BY$47,BU$1)","v":57},{"$f":"VLOOKUP(DropDownList!$B$24,CntyQryCensus!$A$29:$BY$47,BV$1)","v":2},{"$f":"VLOOKUP(DropDownList!$B$24,CntyQryCensus!$A$29:$BY$47,BW$1)","v":38},{"$f":"VLOOKUP(DropDownList!$B$24,CntyQryCensus!$A$29:$BY$47,BX$1)","v":21},{"$f":"VLOOKUP(DropDownList!$B$24,CntyQryCensus!$A$29:$BY$47,BY$1)","v":34}]
[]
[]
["Census 2000 DemoProfile Sample Data Table 4   -  DPTab4TownQry"]
["NAME","COUSUB","TotHousingUnits","1UnitDet","1UnitAtt","2Units","3to4Units","5to9Units","10to19Units","20orMoreUnits","MobileHomes","BoatRvVan","SingleFamilyUnits","MultiFamUnits","MobileHomeUnits","YearBuilt99to00","YearBuilt95to98","YearBUilt90to94","YearBuilt80to89","YearBuilt70to79","YearBuilt60to69","YearBuilt40to59","YearBuilt39orEarlier","Rooms1","Rooms2","Rooms3","Rooms4","Rooms5","Rooms6","Rooms7","Rooms8","Rooms9orMore","MedianRooms","OccHU1","YrHHMvdIn99to00","YrHHMvdIn95to98","YrHHMvdIn90to94","YrHHMvdIn80to89","YrHHMvdIn70to79","YrHHMvdIn69orBefore","HeatFuelNatGas","HeatFuelBotGas","HeatFuelElectric","HeatFuelOil","HeatFuelCoal","HeatFuelWood","HeatFuelSolar","HeatFuelOther","HeatFuelNone","LackCompPlumb","LackCompKit","NoTelephone","OccHU","OccPerRm1orLess","OccPerRm1to1_5","OccPerRm1_5orMore","SpecOwnOccUnits","Value<50K","Value50to100K","Value100to150K","Value150to200K","Value200to300K","Value300to500K","Value500Kto1mil","Value1MilorMore","MedianValue","WithMortg","MnthOwnCst<300","MnthOwnCst300to500","MnthOwnCst500to700","MnthOwnCst700to1000","MnthOwnCst1000to1500","MnthOwnCst1500to2000","MnthOwnCst2000orMore","MediMnthOwnCst","NotMrtg","NotMrtgMediMnthOwnCst","OwnCst%HHInc<15","OwnCst%HHInc15to20","OwnCst%HHInc20to25","OwnCst%HHInc25to30","OwnCst%HHInc30to35","OwnCst%HHInc35orMor","NotComputed","SpecRntOccUnits","Rnt<200","Rnt200to300","Rnt300to500","Rnt500to750","Rnt750to1000","Rnt1000to1500","Rnt1500orMore","NoRent","MedianRent","Rnt%HHInc<15","Rnt%HHInc15to20","Rnt%HHInc20to25","Rnt%HHInc25to30","Rnt%HHInc30to35","Rnt%HHInc35orMore","Rnt%NotCompute"]
[{"$f":"VLOOKUP(DropDownList!$B$24,CntyQryCensus!$A$55:$CW$73,A$1)","v":"Albany"},{"$f":"VLOOKUP(DropDownList!$B$24,CntyQryCensus!$A$55:$CW$73,B$1)","v":"00420"},{"$f":"VLOOKUP(DropDownList!$B$24,CntyQryCensus!$A$55:$CW$73,C$1)","v":491},{"$f":"VLOOKUP(DropDownList!$B$24,CntyQryCensus!$A$55:$CW$73,D$1)","v":393},{"$f":"VLOOKUP(DropDownList!$B$24,CntyQryCensus!$A$55:$CW$73,E$1)","v":0},{"$f":"VLOOKUP(DropDownList!$B$24,CntyQryCensus!$A$55:$CW$73,F$1)","v":14},{"$f":"VLOOKUP(DropDownList!$B$24,CntyQryCensus!$A$55:$CW$73,G$1)","v":0},{"$f":"VLOOKUP(DropDownList!$B$24,CntyQryCensus!$A$55:$CW$73,H$1)","v":0},{"$f":"VLOOKUP(DropDownList!$B$24,CntyQryCensus!$A$55:$CW$73,I$1)","v":0},{"$f":"VLOOKUP(DropDownList!$B$24,CntyQryCensus!$A$55:$CW$73,J$1)","v":0},{"$f":"VLOOKUP(DropDownList!$B$24,CntyQryCensus!$A$55:$CW$73,K$1)","v":84},{"$f":"VLOOKUP(DropDownList!$B$24,CntyQryCensus!$A$55:$CW$73,L$1)","v":0},{"$f":"VLOOKUP(DropDownList!$B$24,CntyQryCensus!$A$55:$CW$73,M$1)","v":393},{"$f":"VLOOKUP(DropDownList!$B$24,CntyQryCensus!$A$55:$CW$73,N$1)","v":14},{"$f":"VLOOKUP(DropDownList!$B$24,CntyQryCensus!$A$55:$CW$73,O$1)","v":84},{"$f":"VLOOKUP(DropDownList!$B$24,CntyQryCensus!$A$55:$CW$73,P$1)","v":7},{"$f":"VLOOKUP(DropDownList!$B$24,CntyQryCensus!$A$55:$CW$73,Q$1)","v":26},{"$f":"VLOOKUP(DropDownList!$B$24,CntyQryCensus!$A$55:$CW$73,R$1)","v":35},{"$f":"VLOOKUP(DropDownList!$B$24,CntyQryCensus!$A$55:$CW$73,S$1)","v":64},{"$f":"VLOOKUP(DropDownList!$B$24,CntyQryCensus!$A$55:$CW$73,T$1)","v":103},{"$f":"VLOOKUP(DropDownList!$B$24,CntyQryCensus!$A$55:$CW$73,U$1)","v":64},{"$f":"VLOOKUP(DropDownList!$B$24,CntyQryCensus!$A$55:$CW$73,V$1)","v":110},{"$f":"VLOOKUP(DropDownList!$B$24,CntyQryCensus!$A$55:$CW$73,W$1)","v":82},{"$f":"VLOOKUP(DropDownList!$B$24,CntyQryCensus!$A$55:$CW$73,X$1)","v":16},{"$f":"VLOOKUP(DropDownList!$B$24,CntyQryCensus!$A$55:$CW$73,Y$1)","v":35},{"$f":"VLOOKUP(DropDownList!$B$24,CntyQryCensus!$A$55:$CW$73,Z$1)","v":45},{"$f":"VLOOKUP(DropDownList!$B$24,CntyQryCensus!$A$55:$CW$73,AA$1)","v":125},{"$f":"VLOOKUP(DropDownList!$B$24,CntyQryCensus!$A$55:$CW$73,AB$1)","v":105},{"$f":"VLOOKUP(DropDownList!$B$24,CntyQryCensus!$A$55:$CW$73,AC$1)","v":83},{"$f":"VLOOKUP(DropDownList!$B$24,CntyQryCensus!$A$55:$CW$73,AD$1)","v":46},{"$f":"VLOOKUP(DropDownList!$B$24,CntyQryCensus!$A$55:$CW$73,AE$1)","v":17},{"$f":"VLOOKUP(DropDownList!$B$24,CntyQryCensus!$A$55:$CW$73,AF$1)","v":19},{"$f":"VLOOKUP(DropDownList!$B$24,CntyQryCensus!$A$55:$CW$73,AG$1)","v":4.7},{"$f":"VLOOKUP(DropDownList!$B$24,CntyQryCensus!$A$55:$CW$73,AH$1)","v":237},{"$f":"VLOOKUP(DropDownList!$B$24,CntyQryCensus!$A$55:$CW$73,AI$1)","v":40},{"$f":"VLOOKUP(DropDownList!$B$24,CntyQryCensus!$A$55:$CW$73,AJ$1)","v":78},{"$f":"VLOOKUP(DropDownList!$B$24,CntyQryCensus!$A$55:$CW$73,AK$1)","v":38},{"$f":"VLOOKUP(DropDownList!$B$24,CntyQryCensus!$A$55:$CW$73,AL$1)","v":51},{"$f":"VLOOKUP(DropDownList!$B$24,CntyQryCensus!$A$55:$CW$73,AM$1)","v":12},{"$f":"VLOOKUP(DropDownList!$B$24,CntyQryCensus!$A$55:$CW$73,AN$1)","v":18},{"$f":"VLOOKUP(DropDownList!$B$24,CntyQryCensus!$A$55:$CW$73,AO$1)","v":0},{"$f":"VLOOKUP(DropDownList!$B$24,CntyQryCensus!$A$55:$CW$73,AP$1)","v":55},{"$f":"VLOOKUP(DropDownList!$B$24,CntyQryCensus!$A$55:$CW$73,AQ$1)","v":2},{"$f":"VLOOKUP(DropDownList!$B$24,CntyQryCensus!$A$55:$CW$73,AR$1)","v":160},{"$f":"VLOOKUP(DropDownList!$B$24,CntyQryCensus!$A$55:$CW$73,AS$1)","v":0},{"$f":"VLOOKUP(DropDownList!$B$24,CntyQryCensus!$A$55:$CW$73,AT$1)","v":20},{"$f":"VLOOKUP(DropDownList!$B$24,CntyQryCensus!$A$55:$CW$73,AU$1)","v":0},{"$f":"VLOOKUP(DropDownList!$B$24,CntyQryCensus!$A$55:$CW$73,AV$1)","v":0},{"$f":"VLOOKUP(DropDownList!$B$24,CntyQryCensus!$A$55:$CW$73,AW$1)","v":0},{"$f":"VLOOKUP(DropDownList!$B$24,CntyQryCensus!$A$55:$CW$73,AX$1)","v":0},{"$f":"VLOOKUP(DropDownList!$B$24,CntyQryCensus!$A$55:$CW$73,AY$1)","v":0},{"$f":"VLOOKUP(DropDownList!$B$24,CntyQryCensus!$A$55:$CW$73,AZ$1)","v":6},{"$f":"VLOOKUP(DropDownList!$B$24,CntyQryCensus!$A$55:$CW$73,BA$1)","v":237},{"$f":"VLOOKUP(DropDownList!$B$24,CntyQryCensus!$A$55:$CW$73,BB$1)","v":236},{"$f":"VLOOKUP(DropDownList!$B$24,CntyQryCensus!$A$55:$CW$73,BC$1)","v":1},{"$f":"VLOOKUP(DropDownList!$B$24,CntyQryCensus!$A$55:$CW$73,BD$1)","v":0},{"$f":"VLOOKUP(DropDownList!$B$24,CntyQryCensus!$A$55:$CW$73,BE$1)","v":122},{"$f":"VLOOKUP(DropDownList!$B$24,CntyQryCensus!$A$55:$CW$73,BF$1)","v":6},{"$f":"VLOOKUP(DropDownList!$B$24,CntyQryCensus!$A$55:$CW$73,BG$1)","v":68},{"$f":"VLOOKUP(DropDownList!$B$24,CntyQryCensus!$A$55:$CW$73,BH$1)","v":28},{"$f":"VLOOKUP(DropDownList!$B$24,CntyQryCensus!$A$55:$CW$73,BI$1)","v":16},{"$f":"VLOOKUP(DropDownList!$B$24,CntyQryCensus!$A$55:$CW$73,BJ$1)","v":2},{"$f":"VLOOKUP(DropDownList!$B$24,CntyQryCensus!$A$55:$CW$73,BK$1)","v":2},{"$f":"VLOOKUP(DropDownList!$B$24,CntyQryCensus!$A$55:$CW$73,BL$1)","v":0},{"$f":"VLOOKUP(DropDownList!$B$24,CntyQryCensus!$A$55:$CW$73,BM$1)","v":0},{"$f":"VLOOKUP(DropDownList!$B$24,CntyQryCensus!$A$55:$CW$73,BN$1)","v":85700},{"$f":"VLOOKUP(DropDownList!$B$24,CntyQryCensus!$A$55:$CW$73,BO$1)","v":84},{"$f":"VLOOKUP(DropDownList!$B$24,CntyQryCensus!$A$55:$CW$73,BP$1)","v":3},{"$f":"VLOOKUP(DropDownList!$B$24,CntyQryCensus!$A$55:$CW$73,BQ$1)","v":13},{"$f":"VLOOKUP(DropDownList!$B$24,CntyQryCensus!$A$55:$CW$73,BR$1)","v":20},{"$f":"VLOOKUP(DropDownList!$B$24,CntyQryCensus!$A$55:$CW$73,BS$1)","v":32},{"$f":"VLOOKUP(DropDownList!$B$24,CntyQryCensus!$A$55:$CW$73,BT$1)","v":10},{"$f":"VLOOKUP(DropDownList!$B$24,CntyQryCensus!$A$55:$CW$73,BU$1)","v":4},{"$f":"VLOOKUP(DropDownList!$B$24,CntyQryCensus!$A$55:$CW$73,BV$1)","v":2},{"$f":"VLOOKUP(DropDownList!$B$24,CntyQryCensus!$A$55:$CW$73,BW$1)","v":746},{"$f":"VLOOKUP(DropDownList!$B$24,CntyQryCensus!$A$55:$CW$73,BX$1)","v":38},{"$f":"VLOOKUP(DropDownList!$B$24,CntyQryCensus!$A$55:$CW$73,BY$1)","v":350},{"$f":"VLOOKUP(DropDownList!$B$24,CntyQryCensus!$A$55:$CW$73,BZ$1)","v":29},{"$f":"VLOOKUP(DropDownList!$B$24,CntyQryCensus!$A$55:$CW$73,CA$1)","v":37},{"$f":"VLOOKUP(DropDownList!$B$24,CntyQryCensus!$A$55:$CW$73,CB$1)","v":15},{"$f":"VLOOKUP(DropDownList!$B$24,CntyQryCensus!$A$55:$CW$73,CC$1)","v":12},{"$f":"VLOOKUP(DropDownList!$B$24,CntyQryCensus!$A$55:$CW$73,CD$1)","v":6},{"$f":"VLOOKUP(DropDownList!$B$24,CntyQryCensus!$A$55:$CW$73,CE$1)","v":23},{"$f":"VLOOKUP(DropDownList!$B$24,CntyQryCensus!$A$55:$CW$73,CF$1)","v":0},{"$f":"VLOOKUP(DropDownList!$B$24,CntyQryCensus!$A$55:$CW$73,CG$1)","v":50},{"$f":"VLOOKUP(DropDownList!$B$24,CntyQryCensus!$A$55:$CW$73,CH$1)","v":0},{"$f":"VLOOKUP(DropDownList!$B$24,CntyQryCensus!$A$55:$CW$73,CI$1)","v":3},{"$f":"VLOOKUP(DropDownList!$B$24,CntyQryCensus!$A$55:$CW$73,CJ$1)","v":8},{"$f":"VLOOKUP(DropDownList!$B$24,CntyQryCensus!$A$55:$CW$73,CK$1)","v":25},{"$f":"VLOOKUP(DropDownList!$B$24,CntyQryCensus!$A$55:$CW$73,CL$1)","v":10},{"$f":"VLOOKUP(DropDownList!$B$24,CntyQryCensus!$A$55:$CW$73,CM$1)","v":0},{"$f":"VLOOKUP(DropDownList!$B$24,CntyQryCensus!$A$55:$CW$73,CN$1)","v":0},{"$f":"VLOOKUP(DropDownList!$B$24,CntyQryCensus!$A$55:$CW$73,CO$1)","v":4},{"$f":"VLOOKUP(DropDownList!$B$24,CntyQryCensus!$A$55:$CW$73,CP$1)","v":675},{"$f":"VLOOKUP(DropDownList!$B$24,CntyQryCensus!$A$55:$CW$73,CQ$1)","v":9},{"$f":"VLOOKUP(DropDownList!$B$24,CntyQryCensus!$A$55:$CW$73,CR$1)","v":5},{"$f":"VLOOKUP(DropDownList!$B$24,CntyQryCensus!$A$55:$CW$73,CS$1)","v":9},{"$f":"VLOOKUP(DropDownList!$B$24,CntyQryCensus!$A$55:$CW$73,CT$1)","v":4},{"$f":"VLOOKUP(DropDownList!$B$24,CntyQryCensus!$A$55:$CW$73,CU$1)","v":2},{"$f":"VLOOKUP(DropDownList!$B$24,CntyQryCensus!$A$55:$CW$73,CV$1)","v":15},{"$f":"VLOOKUP(DropDownList!$B$24,CntyQryCensus!$A$55:$CW$73,CW$1)","v":6}]
[]
[]
["Census 2000 SummaryFile3 Sample Data  -  SF3TownQry1SocialChar"]
["NAME","LOGRECNO","COUNTY","P01TotalPopulation","P02SampleCountOfPop","P03Pop100pctCount","P05UrbanPopulation","P05RuralPopulation","P06WhiteAlone","P06BlackOrAfAm","P06AmIndAlone","P06AsianAlone","P06HawaiianOrPI","P06OtherRace","P06TwoPlusRaces","P07NotHispanicOrLatino","P07HispanicOrLatino","P08MalePop","P08FemalePop","P09PopInHouseholds","P09PopInFamHH","P09PopInNonFamHH","P09PopInGroupQtr","P13TotalHH","P13FamilyHH","P13FamHHolder15to24yrs","P13FamHHolder25to34yrs","P13FamHHolder35to44yrs","P13FamHHolder45to54yrs","P13FamHHolder55to64yrs","P13FamHHolder65to74yrs","P13FamHHolder75to84yrs","P13FamHHolder85yrsOver","P13NonFamilyHH","P13NonFamHHolder15to24yrs","P13NonFamHHolder25to34yrs","P13NonFamHHolder35to44yrs","P13NonFamHHolder45to54yrs","P13NonFamHHolder55to64yrs","P13NonFamHHolder65to74yrs","P13NonFamHHolder75to84yrs","P13NonFamHHolder85yrsOver","P18Pop15yrsOver","P18MaritalStatNeverMarried","P18MaritalStatNowMarried","P18MaritalStatSeparated","P18MaritalStatWidowed","P18MaritalStatWidowFemale","P18MaritalStatDivorced","P18MaritalStatDivorcedFemale","P21NativeBornPop","P21NatPopBornInState","P21NatPopBornOtherState","P021005","P021006","P021007","P021008","P21NatPopBornOutUS","P21ForeignBornPop","P021014","P021015","P24Pop5YrsPlus","P24ResSameHouseIn95","P24ResDiffHouseIn95","P24ResDiffHouseInUSIn95","P24ResDiffHouseSameCountyIn95","P24ResDiffHouseDiffCountyIn95","P24ResDiffHouseDiffCntySamStIn95","P24ResDiffHouseDiffCntyDifStIn95","P24ResDiffHouseDiffCntyNEStIn95","P24ResDiffHouseDiffCntyMWStIn95","P24ResDiffHouseDiffCntySoStIn95","P24ResDiffHouseDiffCntyWstStIn95","P24ResDiffInPR","P24ResDiffElsewhereIn95","P26Workers16yrsOver","P26WorkedInState","P26WorkedInCnty","P26WorkedOutsideCnty","P26WorkedOutsideState","P30Workers16Over","P30TranspToWrkCar","P30TranspToWrkPublic","P30TranspToWrkOther","P30WrkdAtHome","P31WrkrsNotWrkAtHom","P31TravTim<5min","P31TravTim5to9Min","P31TravTim10to14Min","P31TravTim15to19Min","P31TravTim20to24Min","P31TravTim25to29Min","P31TravTim30to34Min","P31TravTim35to39Min","P31TravTim40to44Min","P31TravTim45to59Min","P31TravTim60to89Min","P31TravTim90MinMore","P31WorkAtHome","P36SchEnrlPop3yrOver","P36NurserSchEnrl","P36KinderSchEnrl","P36ElemSchEnrl","P36HighSchEnrl","P36CollGradSchEnrl","P37Pop25yrsOver","P37EduAtain<9grd","P37EduAtainHSnoDip","P37EduAtainHSgrad","P37EduAtainCollNoDeg","P37EduAtainAssocDeg","P37EduAtainBachDeg","P37EduAtainGradProfDeg","P42NIPop5to15","P42NIPop5to15wDisabl","P42NIPop16to20","P42NIPop16to20wDisab","P42NIPop16to20wDisEmp","P42NIPop16to21NoDis","P42NIPop16to21NoDisEmpl","P42NIPop21to64","P42NIPop21to64wDis","P42NIPop21to64wDisEmp","P42NIPop21to64NoDis","P42NIPop21to64NoDisEmp","P42NIPop65to74","P42NIPop65to74wDis","P42NIPop75Over","P42NIPop75OverwDis","P43Pop16YrsOver","P43Pop16OvrInLaborForce","P43Pop16OvrCivlLabFrc","P43Pop16OvrCivlLbrFrcEmp","P48Families","P48MarriedFam","P48MarrFamNoWorkers","P48MarrFam1Worker","P48MarrFam2Worker","P48MarrFamHusbWifeWorked","P48MarrFamOther","P48MarrFam3PlusWorker","P48MarrFam3WorkHsbWif","P48MarrFam3PlsWrkOther","P48OtherFam","P48MaleHHNoWif","P48MaleHHNoWifNoWorker","P48MaleHHNoWif1Worker","P48MaleHHNoWif2Worker","P48MaleHHNoWif3PlusWorker","P48FemaleHHNoHsb","P48FemaleHHNoHsbNoWorker","P48FemaleHHNoHsb1Worker","P48FemaleHHNoHsb2Worker","P48FemaleHHNoHsb3Worker","P49EmpCivPop16YrOver","P49IndustAgricult","P49IndustConst","P49IndustMnftg","P49IndustWhlslTrd","P49IndustRtlTrd","P49IndustTrspWrhsUtlt","P49IndustInfrm","P49IndustFinInsRE","P49IndustPrfsScntfMngmt","P49IndustEduHlthSocSrv","P49IndustArtsEntRec","P49IndustOthrSrvc","P49IndustPubAdm","P50OccupMngmtProfs","P50OccupService","P50OccupSalesOff","P50OccupFarmFishForest","P50OccupConstExtrctMaint","P50OccupPrdctTrnspMatMv"]
[{"$f":"VLOOKUP(DropDownList!$B$24,CntyQryCensus!$A$83:$FR$101,A$1)","v":"Albany"},{"$f":"VLOOKUP(DropDownList!$B$24,CntyQryCensus!$A$83:$FR$101,B$1)","v":"0000308"},{"$f":"VLOOKUP(DropDownList!$B$24,CntyQryCensus!$A$83:$FR$101,C$1)","v":"00420"},{"$f":"VLOOKUP(DropDownList!$B$24,CntyQryCensus!$A$83:$FR$101,D$1)","v":609},{"$f":"VLOOKUP(DropDownList!$B$24,CntyQryCensus!$A$83:$FR$101,E$1)","v":268},{"$f":"VLOOKUP(DropDownList!$B$24,CntyQryCensus!$A$83:$FR$101,F$1)","v":654},{"$f":"VLOOKUP(DropDownList!$B$24,CntyQryCensus!$A$83:$FR$101,G$1)","v":0},{"$f":"VLOOKUP(DropDownList!$B$24,CntyQryCensus!$A$83:$FR$101,H$1)","v":609},{"$f":"VLOOKUP(DropDownList!$B$24,CntyQryCensus!$A$83:$FR$101,I$1)","v":607},{"$f":"VLOOKUP(DropDownList!$B$24,CntyQryCensus!$A$83:$FR$101,J$1)","v":0},{"$f":"VLOOKUP(DropDownList!$B$24,CntyQryCensus!$A$83:$FR$101,K$1)","v":2},{"$f":"VLOOKUP(DropDownList!$B$24,CntyQryCensus!$A$83:$FR$101,L$1)","v":0},{"$f":"VLOOKUP(DropDownList!$B$24,CntyQryCensus!$A$83:$FR$101,M$1)","v":0},{"$f":"VLOOKUP(DropDownList!$B$24,CntyQryCensus!$A$83:$FR$101,N$1)","v":0},{"$f":"VLOOKUP(DropDownList!$B$24,CntyQryCensus!$A$83:$FR$101,O$1)","v":0},{"$f":"VLOOKUP(DropDownList!$B$24,CntyQryCensus!$A$83:$FR$101,P$1)","v":602},{"$f":"VLOOKUP(DropDownList!$B$24,CntyQryCensus!$A$83:$FR$101,Q$1)","v":7},{"$f":"VLOOKUP(DropDownList!$B$24,CntyQryCensus!$A$83:$FR$101,R$1)","v":307},{"$f":"VLOOKUP(DropDownList!$B$24,CntyQryCensus!$A$83:$FR$101,S$1)","v":302},{"$f":"VLOOKUP(DropDownList!$B$24,CntyQryCensus!$A$83:$FR$101,T$1)","v":600},{"$f":"VLOOKUP(DropDownList!$B$24,CntyQryCensus!$A$83:$FR$101,U$1)","v":499},{"$f":"VLOOKUP(DropDownList!$B$24,CntyQryCensus!$A$83:$FR$101,V$1)","v":101},{"$f":"VLOOKUP(DropDownList!$B$24,CntyQryCensus!$A$83:$FR$101,W$1)","v":9},{"$f":"VLOOKUP(DropDownList!$B$24,CntyQryCensus!$A$83:$FR$101,X$1)","v":249},{"$f":"VLOOKUP(DropDownList!$B$24,CntyQryCensus!$A$83:$FR$101,Y$1)","v":167},{"$f":"VLOOKUP(DropDownList!$B$24,CntyQryCensus!$A$83:$FR$101,Z$1)","v":4},{"$f":"VLOOKUP(DropDownList!$B$24,CntyQryCensus!$A$83:$FR$101,AA$1)","v":47},{"$f":"VLOOKUP(DropDownList!$B$24,CntyQryCensus!$A$83:$FR$101,AB$1)","v":55},{"$f":"VLOOKUP(DropDownList!$B$24,CntyQryCensus!$A$83:$FR$101,AC$1)","v":23},{"$f":"VLOOKUP(DropDownList!$B$24,CntyQryCensus!$A$83:$FR$101,AD$1)","v":25},{"$f":"VLOOKUP(DropDownList!$B$24,CntyQryCensus!$A$83:$FR$101,AE$1)","v":8},{"$f":"VLOOKUP(DropDownList!$B$24,CntyQryCensus!$A$83:$FR$101,AF$1)","v":5},{"$f":"VLOOKUP(DropDownList!$B$24,CntyQryCensus!$A$83:$FR$101,AG$1)","v":0},{"$f":"VLOOKUP(DropDownList!$B$24,CntyQryCensus!$A$83:$FR$101,AH$1)","v":82},{"$f":"VLOOKUP(DropDownList!$B$24,CntyQryCensus!$A$83:$FR$101,AI$1)","v":3},{"$f":"VLOOKUP(DropDownList!$B$24,CntyQryCensus!$A$83:$FR$101,AJ$1)","v":16},{"$f":"VLOOKUP(DropDownList!$B$24,CntyQryCensus!$A$83:$FR$101,AK$1)","v":12},{"$f":"VLOOKUP(DropDownList!$B$24,CntyQryCensus!$A$83:$FR$101,AL$1)","v":18},{"$f":"VLOOKUP(DropDownList!$B$24,CntyQryCensus!$A$83:$FR$101,AM$1)","v":11},{"$f":"VLOOKUP(DropDownList!$B$24,CntyQryCensus!$A$83:$FR$101,AN$1)","v":13},{"$f":"VLOOKUP(DropDownList!$B$24,CntyQryCensus!$A$83:$FR$101,AO$1)","v":5},{"$f":"VLOOKUP(DropDownList!$B$24,CntyQryCensus!$A$83:$FR$101,AP$1)","v":4},{"$f":"VLOOKUP(DropDownList!$B$24,CntyQryCensus!$A$83:$FR$101,AQ$1)","v":473},{"$f":"VLOOKUP(DropDownList!$B$24,CntyQryCensus!$A$83:$FR$101,AR$1)","v":102},{"$f":"VLOOKUP(DropDownList!$B$24,CntyQryCensus!$A$83:$FR$101,AS$1)","v":266},{"$f":"VLOOKUP(DropDownList!$B$24,CntyQryCensus!$A$83:$FR$101,AT$1)","v":6},{"$f":"VLOOKUP(DropDownList!$B$24,CntyQryCensus!$A$83:$FR$101,AU$1)","v":34},{"$f":"VLOOKUP(DropDownList!$B$24,CntyQryCensus!$A$83:$FR$101,AV$1)","v":22},{"$f":"VLOOKUP(DropDownList!$B$24,CntyQryCensus!$A$83:$FR$101,AW$1)","v":65},{"$f":"VLOOKUP(DropDownList!$B$24,CntyQryCensus!$A$83:$FR$101,AX$1)","v":24},{"$f":"VLOOKUP(DropDownList!$B$24,CntyQryCensus!$A$83:$FR$101,AY$1)","v":605},{"$f":"VLOOKUP(DropDownList!$B$24,CntyQryCensus!$A$83:$FR$101,AZ$1)","v":298},{"$f":"VLOOKUP(DropDownList!$B$24,CntyQryCensus!$A$83:$FR$101,BA$1)","v":307},{"$f":"VLOOKUP(DropDownList!$B$24,CntyQryCensus!$A$83:$FR$101,BB$1)","v":272},{"$f":"VLOOKUP(DropDownList!$B$24,CntyQryCensus!$A$83:$FR$101,BC$1)","v":11},{"$f":"VLOOKUP(DropDownList!$B$24,CntyQryCensus!$A$83:$FR$101,BD$1)","v":11},{"$f":"VLOOKUP(DropDownList!$B$24,CntyQryCensus!$A$83:$FR$101,BE$1)","v":13},{"$f":"VLOOKUP(DropDownList!$B$24,CntyQryCensus!$A$83:$FR$101,BF$1)","v":0},{"$f":"VLOOKUP(DropDownList!$B$24,CntyQryCensus!$A$83:$FR$101,BG$1)","v":4},{"$f":"VLOOKUP(DropDownList!$B$24,CntyQryCensus!$A$83:$FR$101,BH$1)","v":4},{"$f":"VLOOKUP(DropDownList!$B$24,CntyQryCensus!$A$83:$FR$101,BI$1)","v":0},{"$f":"VLOOKUP(DropDownList!$B$24,CntyQryCensus!$A$83:$FR$101,BJ$1)","v":555},{"$f":"VLOOKUP(DropDownList!$B$24,CntyQryCensus!$A$83:$FR$101,BK$1)","v":336},{"$f":"VLOOKUP(DropDownList!$B$24,CntyQryCensus!$A$83:$FR$101,BL$1)","v":219},{"$f":"VLOOKUP(DropDownList!$B$24,CntyQryCensus!$A$83:$FR$101,BM$1)","v":215},{"$f":"VLOOKUP(DropDownList!$B$24,CntyQryCensus!$A$83:$FR$101,BN$1)","v":128},{"$f":"VLOOKUP(DropDownList!$B$24,CntyQryCensus!$A$83:$FR$101,BO$1)","v":87},{"$f":"VLOOKUP(DropDownList!$B$24,CntyQryCensus!$A$83:$FR$101,BP$1)","v":13},{"$f":"VLOOKUP(DropDownList!$B$24,CntyQryCensus!$A$83:$FR$101,BQ$1)","v":74},{"$f":"VLOOKUP(DropDownList!$B$24,CntyQryCensus!$A$83:$FR$101,BR$1)","v":60},{"$f":"VLOOKUP(DropDownList!$B$24,CntyQryCensus!$A$83:$FR$101,BS$1)","v":0},{"$f":"VLOOKUP(DropDownList!$B$24,CntyQryCensus!$A$83:$FR$101,BT$1)","v":14},{"$f":"VLOOKUP(DropDownList!$B$24,CntyQryCensus!$A$83:$FR$101,BU$1)","v":0},{"$f":"VLOOKUP(DropDownList!$B$24,CntyQryCensus!$A$83:$FR$101,BV$1)","v":0},{"$f":"VLOOKUP(DropDownList!$B$24,CntyQryCensus!$A$83:$FR$101,BW$1)","v":4},{"$f":"VLOOKUP(DropDownList!$B$24,CntyQryCensus!$A$83:$FR$101,BX$1)","v":298},{"$f":"VLOOKUP(DropDownList!$B$24,CntyQryCensus!$A$83:$FR$101,BY$1)","v":275},{"$f":"VLOOKUP(DropDownList!$B$24,CntyQryCensus!$A$83:$FR$101,BZ$1)","v":267},{"$f":"VLOOKUP(DropDownList!$B$24,CntyQryCensus!$A$83:$FR$101,CA$1)","v":8},{"$f":"VLOOKUP(DropDownList!$B$24,CntyQryCensus!$A$83:$FR$101,CB$1)","v":23},{"$f":"VLOOKUP(DropDownList!$B$24,CntyQryCensus!$A$83:$FR$101,CC$1)","v":298},{"$f":"VLOOKUP(DropDownList!$B$24,CntyQryCensus!$A$83:$FR$101,CD$1)","v":267},{"$f":"VLOOKUP(DropDownList!$B$24,CntyQryCensus!$A$83:$FR$101,CE$1)","v":0},{"$f":"VLOOKUP(DropDownList!$B$24,CntyQryCensus!$A$83:$FR$101,CF$1)","v":0},{"$f":"VLOOKUP(DropDownList!$B$24,CntyQryCensus!$A$83:$FR$101,CG$1)","v":21},{"$f":"VLOOKUP(DropDownList!$B$24,CntyQryCensus!$A$83:$FR$101,CH$1)","v":277},{"$f":"VLOOKUP(DropDownList!$B$24,CntyQryCensus!$A$83:$FR$101,CI$1)","v":18},{"$f":"VLOOKUP(DropDownList!$B$24,CntyQryCensus!$A$83:$FR$101,CJ$1)","v":26},{"$f":"VLOOKUP(DropDownList!$B$24,CntyQryCensus!$A$83:$FR$101,CK$1)","v":86},{"$f":"VLOOKUP(DropDownList!$B$24,CntyQryCensus!$A$83:$FR$101,CL$1)","v":61},{"$f":"VLOOKUP(DropDownList!$B$24,CntyQryCensus!$A$83:$FR$101,CM$1)","v":16},{"$f":"VLOOKUP(DropDownList!$B$24,CntyQryCensus!$A$83:$FR$101,CN$1)","v":5},{"$f":"VLOOKUP(DropDownList!$B$24,CntyQryCensus!$A$83:$FR$101,CO$1)","v":27},{"$f":"VLOOKUP(DropDownList!$B$24,CntyQryCensus!$A$83:$FR$101,CP$1)","v":2},{"$f":"VLOOKUP(DropDownList!$B$24,CntyQryCensus!$A$83:$FR$101,CQ$1)","v":3},{"$f":"VLOOKUP(DropDownList!$B$24,CntyQryCensus!$A$83:$FR$101,CR$1)","v":21},{"$f":"VLOOKUP(DropDownList!$B$24,CntyQryCensus!$A$83:$FR$101,CS$1)","v":5},{"$f":"VLOOKUP(DropDownList!$B$24,CntyQryCensus!$A$83:$FR$101,CT$1)","v":7},{"$f":"VLOOKUP(DropDownList!$B$24,CntyQryCensus!$A$83:$FR$101,CU$1)","v":21},{"$f":"VLOOKUP(DropDownList!$B$24,CntyQryCensus!$A$83:$FR$101,CV$1)","v":587},{"$f":"VLOOKUP(DropDownList!$B$24,CntyQryCensus!$A$83:$FR$101,CW$1)","v":12},{"$f":"VLOOKUP(DropDownList!$B$24,CntyQryCensus!$A$83:$FR$101,CX$1)","v":8},{"$f":"VLOOKUP(DropDownList!$B$24,CntyQryCensus!$A$83:$FR$101,CY$1)","v":59},{"$f":"VLOOKUP(DropDownList!$B$24,CntyQryCensus!$A$83:$FR$101,CZ$1)","v":38},{"$f":"VLOOKUP(DropDownList!$B$24,CntyQryCensus!$A$83:$FR$101,DA$1)","v":15},{"$f":"VLOOKUP(DropDownList!$B$24,CntyQryCensus!$A$83:$FR$101,DB$1)","v":409},{"$f":"VLOOKUP(DropDownList!$B$24,CntyQryCensus!$A$83:$FR$101,DC$1)","v":18},{"$f":"VLOOKUP(DropDownList!$B$24,CntyQryCensus!$A$83:$FR$101,DD$1)","v":62},{"$f":"VLOOKUP(DropDownList!$B$24,CntyQryCensus!$A$83:$FR$101,DE$1)","v":165},{"$f":"VLOOKUP(DropDownList!$B$24,CntyQryCensus!$A$83:$FR$101,DF$1)","v":69},{"$f":"VLOOKUP(DropDownList!$B$24,CntyQryCensus!$A$83:$FR$101,DG$1)","v":20},{"$f":"VLOOKUP(DropDownList!$B$24,CntyQryCensus!$A$83:$FR$101,DH$1)","v":54},{"$f":"VLOOKUP(DropDownList!$B$24,CntyQryCensus!$A$83:$FR$101,DI$1)","v":21},{"$f":"VLOOKUP(DropDownList!$B$24,CntyQryCensus!$A$83:$FR$101,DJ$1)","v":86},{"$f":"VLOOKUP(DropDownList!$B$24,CntyQryCensus!$A$83:$FR$101,DK$1)","v":3},{"$f":"VLOOKUP(DropDownList!$B$24,CntyQryCensus!$A$83:$FR$101,DL$1)","v":37},{"$f":"VLOOKUP(DropDownList!$B$24,CntyQryCensus!$A$83:$FR$101,DM$1)","v":13},{"$f":"VLOOKUP(DropDownList!$B$24,CntyQryCensus!$A$83:$FR$101,DN$1)","v":12},{"$f":"VLOOKUP(DropDownList!$B$24,CntyQryCensus!$A$83:$FR$101,DO$1)","v":24},{"$f":"VLOOKUP(DropDownList!$B$24,CntyQryCensus!$A$83:$FR$101,DP$1)","v":9},{"$f":"VLOOKUP(DropDownList!$B$24,CntyQryCensus!$A$83:$FR$101,DQ$1)","v":386},{"$f":"VLOOKUP(DropDownList!$B$24,CntyQryCensus!$A$83:$FR$101,DR$1)","v":135},{"$f":"VLOOKUP(DropDownList!$B$24,CntyQryCensus!$A$83:$FR$101,DS$1)","v":95},{"$f":"VLOOKUP(DropDownList!$B$24,CntyQryCensus!$A$83:$FR$101,DT$1)","v":251},{"$f":"VLOOKUP(DropDownList!$B$24,CntyQryCensus!$A$83:$FR$101,DU$1)","v":188},{"$f":"VLOOKUP(DropDownList!$B$24,CntyQryCensus!$A$83:$FR$101,DV$1)","v":32},{"$f":"VLOOKUP(DropDownList!$B$24,CntyQryCensus!$A$83:$FR$101,DW$1)","v":12},{"$f":"VLOOKUP(DropDownList!$B$24,CntyQryCensus!$A$83:$FR$101,DX$1)","v":14},{"$f":"VLOOKUP(DropDownList!$B$24,CntyQryCensus!$A$83:$FR$101,DY$1)","v":9},{"$f":"VLOOKUP(DropDownList!$B$24,CntyQryCensus!$A$83:$FR$101,DZ$1)","v":469},{"$f":"VLOOKUP(DropDownList!$B$24,CntyQryCensus!$A$83:$FR$101,EA$1)","v":325},{"$f":"VLOOKUP(DropDownList!$B$24,CntyQryCensus!$A$83:$FR$101,EB$1)","v":325},{"$f":"VLOOKUP(DropDownList!$B$24,CntyQryCensus!$A$83:$FR$101,EC$1)","v":309},{"$f":"VLOOKUP(DropDownList!$B$24,CntyQryCensus!$A$83:$FR$101,ED$1)","v":167},{"$f":"VLOOKUP(DropDownList!$B$24,CntyQryCensus!$A$83:$FR$101,EE$1)","v":128},{"$f":"VLOOKUP(DropDownList!$B$24,CntyQryCensus!$A$83:$FR$101,EF$1)","v":11},{"$f":"VLOOKUP(DropDownList!$B$24,CntyQryCensus!$A$83:$FR$101,EG$1)","v":29},{"$f":"VLOOKUP(DropDownList!$B$24,CntyQryCensus!$A$83:$FR$101,EH$1)","v":72},{"$f":"VLOOKUP(DropDownList!$B$24,CntyQryCensus!$A$83:$FR$101,EI$1)","v":68},{"$f":"VLOOKUP(DropDownList!$B$24,CntyQryCensus!$A$83:$FR$101,EJ$1)","v":4},{"$f":"VLOOKUP(DropDownList!$B$24,CntyQryCensus!$A$83:$FR$101,EK$1)","v":16},{"$f":"VLOOKUP(DropDownList!$B$24,CntyQryCensus!$A$83:$FR$101,EL$1)","v":16},{"$f":"VLOOKUP(DropDownList!$B$24,CntyQryCensus!$A$83:$FR$101,EM$1)","v":0},{"$f":"VLOOKUP(DropDownList!$B$24,CntyQryCensus!$A$83:$FR$101,EN$1)","v":39},{"$f":"VLOOKUP(DropDownList!$B$24,CntyQryCensus!$A$83:$FR$101,EO$1)","v":17},{"$f":"VLOOKUP(DropDownList!$B$24,CntyQryCensus!$A$83:$FR$101,EP$1)","v":2},{"$f":"VLOOKUP(DropDownList!$B$24,CntyQryCensus!$A$83:$FR$101,EQ$1)","v":9},{"$f":"VLOOKUP(DropDownList!$B$24,CntyQryCensus!$A$83:$FR$101,ER$1)","v":6},{"$f":"VLOOKUP(DropDownList!$B$24,CntyQryCensus!$A$83:$FR$101,ES$1)","v":0},{"$f":"VLOOKUP(DropDownList!$B$24,CntyQryCensus!$A$83:$FR$101,ET$1)","v":22},{"$f":"VLOOKUP(DropDownList!$B$24,CntyQryCensus!$A$83:$FR$101,EU$1)","v":9},{"$f":"VLOOKUP(DropDownList!$B$24,CntyQryCensus!$A$83:$FR$101,EV$1)","v":13},{"$f":"VLOOKUP(DropDownList!$B$24,CntyQryCensus!$A$83:$FR$101,EW$1)","v":0},{"$f":"VLOOKUP(DropDownList!$B$24,CntyQryCensus!$A$83:$FR$101,EX$1)","v":0},{"$f":"VLOOKUP(DropDownList!$B$24,CntyQryCensus!$A$83:$FR$101,EY$1)","v":309},{"$f":"VLOOKUP(DropDownList!$B$24,CntyQryCensus!$A$83:$FR$101,EZ$1)","v":2},{"$f":"VLOOKUP(DropDownList!$B$24,CntyQryCensus!$A$83:$FR$101,FA$1)","v":64},{"$f":"VLOOKUP(DropDownList!$B$24,CntyQryCensus!$A$83:$FR$101,FB$1)","v":30},{"$f":"VLOOKUP(DropDownList!$B$24,CntyQryCensus!$A$83:$FR$101,FC$1)","v":3},{"$f":"VLOOKUP(DropDownList!$B$24,CntyQryCensus!$A$83:$FR$101,FD$1)","v":42},{"$f":"VLOOKUP(DropDownList!$B$24,CntyQryCensus!$A$83:$FR$101,FE$1)","v":12},{"$f":"VLOOKUP(DropDownList!$B$24,CntyQryCensus!$A$83:$FR$101,FF$1)","v":5},{"$f":"VLOOKUP(DropDownList!$B$24,CntyQryCensus!$A$83:$FR$101,FG$1)","v":4},{"$f":"VLOOKUP(DropDownList!$B$24,CntyQryCensus!$A$83:$FR$101,FH$1)","v":26},{"$f":"VLOOKUP(DropDownList!$B$24,CntyQryCensus!$A$83:$FR$101,FI$1)","v":47},{"$f":"VLOOKUP(DropDownList!$B$24,CntyQryCensus!$A$83:$FR$101,FJ$1)","v":40},{"$f":"VLOOKUP(DropDownList!$B$24,CntyQryCensus!$A$83:$FR$101,FK$1)","v":23},{"$f":"VLOOKUP(DropDownList!$B$24,CntyQryCensus!$A$83:$FR$101,FL$1)","v":11},{"$f":"VLOOKUP(DropDownList!$B$24,CntyQryCensus!$A$83:$FR$101,FM$1)","v":82},{"$f":"VLOOKUP(DropDownList!$B$24,CntyQryCensus!$A$83:$FR$101,FN$1)","v":49},{"$f":"VLOOKUP(DropDownList!$B$24,CntyQryCensus!$A$83:$FR$101,FO$1)","v":67},{"$f":"VLOOKUP(DropDownList!$B$24,CntyQryCensus!$A$83:$FR$101,FP$1)","v":2},{"$f":"VLOOKUP(DropDownList!$B$24,CntyQryCensus!$A$83:$FR$101,FQ$1)","v":61},{"$f":"VLOOKUP(DropDownList!$B$24,CntyQryCensus!$A$83:$FR$101,FR$1)","v":48}]
[]
[]
["Census 2000 SummaryFile3 Sample Data  -  SF3TownQry2aIncomeChar"]
["NAME","LOGRECNO","COUNTY","TotalPop","P52Households1","P52HHInc<10K","P52HHInc10to15K","P52HHInc15to20K","P52HHInc20to25K","P52HHInc25to30K","P52HHInc30to35K","P52HHInc35to40K","P52HHInc40to45K","P52HHInc45to50K","P52HHInc50to60K","P52HHInc60to75K","P52HHInc75to100K","P52HHInc100to125K","P52HHInc125to150K","P52HHInc150to200K","P52HHInc>200K","P53MedianHHInc","P54AggregHHInc","P55Households2","P55HHUnder25yrs","P55HH<25HHInc<10K","P55HH<25HHInc10to15K","P55HH<25HHInc15to20K","P55HH<25HHInc20to25K","P55HH<25HHInc25to30K","P55HH<25HHInc30to35K","P55HH<25HHInc35to40K","P55HH<25HHInc40to45K","P55HH<25HHInc45to50K","P55HH<25HHInc50to60K","P55HH<25HHInc60to75K","P55HH<25HHInc75to100K","P55HH<25HHInc100to125K","P55HH<25HHInc125to150K","P55HH<25HHInc150to200K","P55HH<25HHInc>200K","P55HH25to34yrs","P55HH25to34HHInc<10K","P55HH25to34HHInc10to15K","P55HH25to34HHInc15to20K","P55HH25to34HHInc20to25K","P55HH25to34HHInc25to30K","P55HH25to34HHInc30to35K","P55HH25to34HHInc35to40K","P55HH25to34HHInc40to45K","P55HH25to34HHInc45to50K","P55HH25to34HHInc50to60K","P55HH25to34HHInc60to75K","P55HH25to34HHInc75to100K","P55HH25to34HHInc100to125K","P55HH25to34HHInc125to150K","P55HH25to34HHInc150to200K","P55HH25to34HHInc>200K","P55HH35to44yrs","P55HH35to44HHInc<10K","P55HH35to44HHInc10to15K","P55HH35to44HHInc15to20K","P55HH35to44HHInc20to25K","P55HH35to44HHInc25to30K","P55HH35to44HHInc30to35K","P55HH35to44HHInc35to40K","P55HH35to44HHInc40to45K","P55HH35to44HHInc45to50K","P55HH35to44HHInc50to60K","P55HH35to44HHInc60to75K","P55HH35to44HHInc75to100K","P55HH35to44HHInc100to125K","P55HH35to44HHInc125to150K","P55HH35to44HHInc150to200K","P55HH35to44HHInc>200K","P55HH45to54yrs","P55HH45to55HHInc<10K","P55HH45to55HHInc10to15K","P55HH45to55HHInc15to20K","P55HH45to55HHInc20to25K","P55HH45to55HHInc25to30K","P55HH45to55HHInc30to35K","P55HH45to55HHInc35to40K","P55HH45to55HHInc40to45K","P55HH45to55HHInc45to50K","P55HH45to55HHInc50to60K","P55HH45to55HHInc60to75K","P55HH45to55HHInc75to100K","P55HH45to55HHInc100to125K","P55HH45to55HHInc125to150K","P55HH45to55HHInc150to200K","P55HH45to55HHInc>200K","P55HH55to64yrs","P55HH55to64HHInc<10K","P55HH55to64HHInc10to15K","P55HH55to64HHInc15to20K","P55HH55to64HHInc20to25K","P55HH55to64HHInc25to30K","P55HH55to64HHInc30to35K","P55HH55to64HHInc35to40K","P55HH55to64HHInc40to45K","P55HH55to64HHInc45to50K","P55HH55to64HHInc50to60K","P55HH55to64HHInc60to75K","P55HH55to64HHInc75to100K","P55HH55to64HHInc100to125K","P55HH55to64HHInc125to150K","P55HH55to64HHInc150to200K","P55HH55to64HHInc>200K","P55HH65to74yrs","P55HH65to74HHInc<10K","P55HH65to74HHInc10to15K","P55HH65to74HHInc15to20K","P55HH65to74HHInc20to25K","P55HH65to74HHInc25to30K","P55HH65to74HHInc30to35K","P55HH65to74HHInc35to40K","P55HH65to74HHInc40to45K","P55HH65to74HHInc45to50K","P55HH65to74HHInc50to60K","P55HH65to74HHInc60to75K","P55HH65to74HHInc75to100K","P55HH65to74HHInc100to125K","P55HH65to74HHInc125to150K","P55HH65to74HHInc150to200K","P55HH65to74HHInc>200K","P55HH>75yrs","P55HH>75HHInc<10K","P55HH>75HHInc10to15K","P55HH>75HHInc15to20K","P55HH>75HHInc20to25K","P55HH>75HHInc25to30K","P55HH>75HHInc30to35K","P55HH>75HHInc35to40K","P55HH>75HHInc40to45K","P55HH>75HHInc45to50K","P55HH>75HHInc50to60K","P55HH>75HHInc60to75K","P55HH>75HHInc75to100K","P55HH>75HHInc100to125K","P55HH>75HHInc125to150K","P55HH>75HHInc150to200K","P55HH>75HHInc>200K","P56MedHHInc","P56MedHHIncHH<25y","P56MedHHIncHH25to34y","P56MedHHIncHH35to44y","P56MedHHIncHH45to54y","P56MedHHIncHH55to64y","P56MedHHIncHH65to74y","P56MedHHIncHH>75y","P58Households3","P58HHwithEarnings","P58HHNoEarnings","P59HHwWageSalInc","P59HHNoWageSalInc","P60HHwSelfEmpInc","P60HHNoSelfEmpInc","P61HHwIndDivInc","P61HHNoIndDivInc","P62HHwSocSecInc","P62HHNoSocSecInc","P63HHwSSI","P63HHNoSSI","P64HHwPubAssInc","P64HHNoPubAssInc","P65HHwRetInc","P65HHNoRetInc","P66HHwOtherTypInc","P66HHNoOtherTypInc","P67AggregEarnings","P68AggregWageSalInc","P69AggregSelfEmpInc","P70AggregIntDivInc","P71AggregSocSecInc","P72AggregSSIInc","P73AggregPublicAssInc","P74AggregRetireInc","P76Families1","P76FamInc<10K","P76FamInc10to15K","P76FamInc15to20K","P76FamInc20to25K","P76FamInc25to30K","P76FamInc30to35K","P76FamInc35to40K","P76FamInc40to45K","P76FamInc45to50K","P76FamInc50to60K","P76FamInc60to75K","P76FamInc75to100K","P76FamInc100to125K","P76FamInc125to150K","P76FamInc150to200K","P76FamInc>200K","P77MedFamInc","P78AggregFamInc","P79NonFamHH","P79NonFamHHwInc<10K","P79NonFamHHwInc10to15K","P79NonFamHHwInc15to20K","P79NonFamHHwInc20to25K","P79NonFamHHwInc25to30K","P79NonFamHHwInc30to35K","P79NonFamHHwInc35to40K","P79NonFamHHwInc40to45K","P79NonFamHHwInc45to50K","P79NonFamHHwInc50to60K","P79NonFamHHwInc60to75K","P79NonFamHHwInc75to100K","P79NonFamHHwInc100to125K","P79NonFamHHwInc125to150K","P79NonFamHHwInc150to200K","P79NonFamHHwInc200KorMore","P80MedNonFamInc","P82PerCapitaInc"]
[{"$f":"VLOOKUP(DropDownList!$B$24,CntyQryCensus!$A$109:$HH$127,A$1)","v":"Albany"},{"$f":"VLOOKUP(DropDownList!$B$24,CntyQryCensus!$A$109:$HH$127,B$1)","v":"0000308"},{"$f":"VLOOKUP(DropDownList!$B$24,CntyQryCensus!$A$109:$HH$127,C$1)","v":"00420"},{"$f":"VLOOKUP(DropDownList!$B$24,CntyQryCensus!$A$109:$HH$127,D$1)","v":654},{"$f":"VLOOKUP(DropDownList!$B$24,CntyQryCensus!$A$109:$HH$127,E$1)","v":249},{"$f":"VLOOKUP(DropDownList!$B$24,CntyQryCensus!$A$109:$HH$127,F$1)","v":24},{"$f":"VLOOKUP(DropDownList!$B$24,CntyQryCensus!$A$109:$HH$127,G$1)","v":25},{"$f":"VLOOKUP(DropDownList!$B$24,CntyQryCensus!$A$109:$HH$127,H$1)","v":30},{"$f":"VLOOKUP(DropDownList!$B$24,CntyQryCensus!$A$109:$HH$127,I$1)","v":14},{"$f":"VLOOKUP(DropDownList!$B$24,CntyQryCensus!$A$109:$HH$127,J$1)","v":17},{"$f":"VLOOKUP(DropDownList!$B$24,CntyQryCensus!$A$109:$HH$127,K$1)","v":6},{"$f":"VLOOKUP(DropDownList!$B$24,CntyQryCensus!$A$109:$HH$127,L$1)","v":21},{"$f":"VLOOKUP(DropDownList!$B$24,CntyQryCensus!$A$109:$HH$127,M$1)","v":26},{"$f":"VLOOKUP(DropDownList!$B$24,CntyQryCensus!$A$109:$HH$127,N$1)","v":12},{"$f":"VLOOKUP(DropDownList!$B$24,CntyQryCensus!$A$109:$HH$127,O$1)","v":30},{"$f":"VLOOKUP(DropDownList!$B$24,CntyQryCensus!$A$109:$HH$127,P$1)","v":20},{"$f":"VLOOKUP(DropDownList!$B$24,CntyQryCensus!$A$109:$HH$127,Q$1)","v":10},{"$f":"VLOOKUP(DropDownList!$B$24,CntyQryCensus!$A$109:$HH$127,R$1)","v":3},{"$f":"VLOOKUP(DropDownList!$B$24,CntyQryCensus!$A$109:$HH$127,S$1)","v":0},{"$f":"VLOOKUP(DropDownList!$B$24,CntyQryCensus!$A$109:$HH$127,T$1)","v":8},{"$f":"VLOOKUP(DropDownList!$B$24,CntyQryCensus!$A$109:$HH$127,U$1)","v":3},{"$f":"VLOOKUP(DropDownList!$B$24,CntyQryCensus!$A$109:$HH$127,V$1)","v":36635},{"$f":"VLOOKUP(DropDownList!$B$24,CntyQryCensus!$A$109:$HH$127,W$1)","v":12798700},{"$f":"VLOOKUP(DropDownList!$B$24,CntyQryCensus!$A$109:$HH$127,X$1)","v":249},{"$f":"VLOOKUP(DropDownList!$B$24,CntyQryCensus!$A$109:$HH$127,Y$1)","v":7},{"$f":"VLOOKUP(DropDownList!$B$24,CntyQryCensus!$A$109:$HH$127,Z$1)","v":0},{"$f":"VLOOKUP(DropDownList!$B$24,CntyQryCensus!$A$109:$HH$127,AA$1)","v":0},{"$f":"VLOOKUP(DropDownList!$B$24,CntyQryCensus!$A$109:$HH$127,AB$1)","v":3},{"$f":"VLOOKUP(DropDownList!$B$24,CntyQryCensus!$A$109:$HH$127,AC$1)","v":1},{"$f":"VLOOKUP(DropDownList!$B$24,CntyQryCensus!$A$109:$HH$127,AD$1)","v":0},{"$f":"VLOOKUP(DropDownList!$B$24,CntyQryCensus!$A$109:$HH$127,AE$1)","v":1},{"$f":"VLOOKUP(DropDownList!$B$24,CntyQryCensus!$A$109:$HH$127,AF$1)","v":0},{"$f":"VLOOKUP(DropDownList!$B$24,CntyQryCensus!$A$109:$HH$127,AG$1)","v":1},{"$f":"VLOOKUP(DropDownList!$B$24,CntyQryCensus!$A$109:$HH$127,AH$1)","v":0},{"$f":"VLOOKUP(DropDownList!$B$24,CntyQryCensus!$A$109:$HH$127,AI$1)","v":1},{"$f":"VLOOKUP(DropDownList!$B$24,CntyQryCensus!$A$109:$HH$127,AJ$1)","v":0},{"$f":"VLOOKUP(DropDownList!$B$24,CntyQryCensus!$A$109:$HH$127,AK$1)","v":0},{"$f":"VLOOKUP(DropDownList!$B$24,CntyQryCensus!$A$109:$HH$127,AL$1)","v":0},{"$f":"VLOOKUP(DropDownList!$B$24,CntyQryCensus!$A$109:$HH$127,AM$1)","v":0},{"$f":"VLOOKUP(DropDownList!$B$24,CntyQryCensus!$A$109:$HH$127,AN$1)","v":0},{"$f":"VLOOKUP(DropDownList!$B$24,CntyQryCensus!$A$109:$HH$127,AO$1)","v":0},{"$f":"VLOOKUP(DropDownList!$B$24,CntyQryCensus!$A$109:$HH$127,AP$1)","v":63},{"$f":"VLOOKUP(DropDownList!$B$24,CntyQryCensus!$A$109:$HH$127,AQ$1)","v":6},{"$f":"VLOOKUP(DropDownList!$B$24,CntyQryCensus!$A$109:$HH$127,AR$1)","v":0},{"$f":"VLOOKUP(DropDownList!$B$24,CntyQryCensus!$A$109:$HH$127,AS$1)","v":12},{"$f":"VLOOKUP(DropDownList!$B$24,CntyQryCensus!$A$109:$HH$127,AT$1)","v":0},{"$f":"VLOOKUP(DropDownList!$B$24,CntyQryCensus!$A$109:$HH$127,AU$1)","v":0},{"$f":"VLOOKUP(DropDownList!$B$24,CntyQryCensus!$A$109:$HH$127,AV$1)","v":3},{"$f":"VLOOKUP(DropDownList!$B$24,CntyQryCensus!$A$109:$HH$127,AW$1)","v":12},{"$f":"VLOOKUP(DropDownList!$B$24,CntyQryCensus!$A$109:$HH$127,AX$1)","v":10},{"$f":"VLOOKUP(DropDownList!$B$24,CntyQryCensus!$A$109:$HH$127,AY$1)","v":0},{"$f":"VLOOKUP(DropDownList!$B$24,CntyQryCensus!$A$109:$HH$127,AZ$1)","v":11},{"$f":"VLOOKUP(DropDownList!$B$24,CntyQryCensus!$A$109:$HH$127,BA$1)","v":7},{"$f":"VLOOKUP(DropDownList!$B$24,CntyQryCensus!$A$109:$HH$127,BB$1)","v":2},{"$f":"VLOOKUP(DropDownList!$B$24,CntyQryCensus!$A$109:$HH$127,BC$1)","v":0},{"$f":"VLOOKUP(DropDownList!$B$24,CntyQryCensus!$A$109:$HH$127,BD$1)","v":0},{"$f":"VLOOKUP(DropDownList!$B$24,CntyQryCensus!$A$109:$HH$127,BE$1)","v":0},{"$f":"VLOOKUP(DropDownList!$B$24,CntyQryCensus!$A$109:$HH$127,BF$1)","v":0},{"$f":"VLOOKUP(DropDownList!$B$24,CntyQryCensus!$A$109:$HH$127,BG$1)","v":67},{"$f":"VLOOKUP(DropDownList!$B$24,CntyQryCensus!$A$109:$HH$127,BH$1)","v":2},{"$f":"VLOOKUP(DropDownList!$B$24,CntyQryCensus!$A$109:$HH$127,BI$1)","v":5},{"$f":"VLOOKUP(DropDownList!$B$24,CntyQryCensus!$A$109:$HH$127,BJ$1)","v":2},{"$f":"VLOOKUP(DropDownList!$B$24,CntyQryCensus!$A$109:$HH$127,BK$1)","v":5},{"$f":"VLOOKUP(DropDownList!$B$24,CntyQryCensus!$A$109:$HH$127,BL$1)","v":7},{"$f":"VLOOKUP(DropDownList!$B$24,CntyQryCensus!$A$109:$HH$127,BM$1)","v":0},{"$f":"VLOOKUP(DropDownList!$B$24,CntyQryCensus!$A$109:$HH$127,BN$1)","v":7},{"$f":"VLOOKUP(DropDownList!$B$24,CntyQryCensus!$A$109:$HH$127,BO$1)","v":8},{"$f":"VLOOKUP(DropDownList!$B$24,CntyQryCensus!$A$109:$HH$127,BP$1)","v":4},{"$f":"VLOOKUP(DropDownList!$B$24,CntyQryCensus!$A$109:$HH$127,BQ$1)","v":13},{"$f":"VLOOKUP(DropDownList!$B$24,CntyQryCensus!$A$109:$HH$127,BR$1)","v":4},{"$f":"VLOOKUP(DropDownList!$B$24,CntyQryCensus!$A$109:$HH$127,BS$1)","v":3},{"$f":"VLOOKUP(DropDownList!$B$24,CntyQryCensus!$A$109:$HH$127,BT$1)","v":1},{"$f":"VLOOKUP(DropDownList!$B$24,CntyQryCensus!$A$109:$HH$127,BU$1)","v":0},{"$f":"VLOOKUP(DropDownList!$B$24,CntyQryCensus!$A$109:$HH$127,BV$1)","v":3},{"$f":"VLOOKUP(DropDownList!$B$24,CntyQryCensus!$A$109:$HH$127,BW$1)","v":3},{"$f":"VLOOKUP(DropDownList!$B$24,CntyQryCensus!$A$109:$HH$127,BX$1)","v":41},{"$f":"VLOOKUP(DropDownList!$B$24,CntyQryCensus!$A$109:$HH$127,BY$1)","v":5},{"$f":"VLOOKUP(DropDownList!$B$24,CntyQryCensus!$A$109:$HH$127,BZ$1)","v":4},{"$f":"VLOOKUP(DropDownList!$B$24,CntyQryCensus!$A$109:$HH$127,CA$1)","v":2},{"$f":"VLOOKUP(DropDownList!$B$24,CntyQryCensus!$A$109:$HH$127,CB$1)","v":6},{"$f":"VLOOKUP(DropDownList!$B$24,CntyQryCensus!$A$109:$HH$127,CC$1)","v":2},{"$f":"VLOOKUP(DropDownList!$B$24,CntyQryCensus!$A$109:$HH$127,CD$1)","v":2},{"$f":"VLOOKUP(DropDownList!$B$24,CntyQryCensus!$A$109:$HH$127,CE$1)","v":2},{"$f":"VLOOKUP(DropDownList!$B$24,CntyQryCensus!$A$109:$HH$127,CF$1)","v":2},{"$f":"VLOOKUP(DropDownList!$B$24,CntyQryCensus!$A$109:$HH$127,CG$1)","v":0},{"$f":"VLOOKUP(DropDownList!$B$24,CntyQryCensus!$A$109:$HH$127,CH$1)","v":0},{"$f":"VLOOKUP(DropDownList!$B$24,CntyQryCensus!$A$109:$HH$127,CI$1)","v":4},{"$f":"VLOOKUP(DropDownList!$B$24,CntyQryCensus!$A$109:$HH$127,CJ$1)","v":5},{"$f":"VLOOKUP(DropDownList!$B$24,CntyQryCensus!$A$109:$HH$127,CK$1)","v":2},{"$f":"VLOOKUP(DropDownList!$B$24,CntyQryCensus!$A$109:$HH$127,CL$1)","v":0},{"$f":"VLOOKUP(DropDownList!$B$24,CntyQryCensus!$A$109:$HH$127,CM$1)","v":5},{"$f":"VLOOKUP(DropDownList!$B$24,CntyQryCensus!$A$109:$HH$127,CN$1)","v":0},{"$f":"VLOOKUP(DropDownList!$B$24,CntyQryCensus!$A$109:$HH$127,CO$1)","v":36},{"$f":"VLOOKUP(DropDownList!$B$24,CntyQryCensus!$A$109:$HH$127,CP$1)","v":3},{"$f":"VLOOKUP(DropDownList!$B$24,CntyQryCensus!$A$109:$HH$127,CQ$1)","v":6},{"$f":"VLOOKUP(DropDownList!$B$24,CntyQryCensus!$A$109:$HH$127,CR$1)","v":7},{"$f":"VLOOKUP(DropDownList!$B$24,CntyQryCensus!$A$109:$HH$127,CS$1)","v":0},{"$f":"VLOOKUP(DropDownList!$B$24,CntyQryCensus!$A$109:$HH$127,CT$1)","v":6},{"$f":"VLOOKUP(DropDownList!$B$24,CntyQryCensus!$A$109:$HH$127,CU$1)","v":0},{"$f":"VLOOKUP(DropDownList!$B$24,CntyQryCensus!$A$109:$HH$127,CV$1)","v":0},{"$f":"VLOOKUP(DropDownList!$B$24,CntyQryCensus!$A$109:$HH$127,CW$1)","v":3},{"$f":"VLOOKUP(DropDownList!$B$24,CntyQryCensus!$A$109:$HH$127,CX$1)","v":6},{"$f":"VLOOKUP(DropDownList!$B$24,CntyQryCensus!$A$109:$HH$127,CY$1)","v":3},{"$f":"VLOOKUP(DropDownList!$B$24,CntyQryCensus!$A$109:$HH$127,CZ$1)","v":2},{"$f":"VLOOKUP(DropDownList!$B$24,CntyQryCensus!$A$109:$HH$127,DA$1)","v":0},{"$f":"VLOOKUP(DropDownList!$B$24,CntyQryCensus!$A$109:$HH$127,DB$1)","v":0},{"$f":"VLOOKUP(DropDownList!$B$24,CntyQryCensus!$A$109:$HH$127,DC$1)","v":0},{"$f":"VLOOKUP(DropDownList!$B$24,CntyQryCensus!$A$109:$HH$127,DD$1)","v":0},{"$f":"VLOOKUP(DropDownList!$B$24,CntyQryCensus!$A$109:$HH$127,DE$1)","v":0},{"$f":"VLOOKUP(DropDownList!$B$24,CntyQryCensus!$A$109:$HH$127,DF$1)","v":21},{"$f":"VLOOKUP(DropDownList!$B$24,CntyQryCensus!$A$109:$HH$127,DG$1)","v":8},{"$f":"VLOOKUP(DropDownList!$B$24,CntyQryCensus!$A$109:$HH$127,DH$1)","v":5},{"$f":"VLOOKUP(DropDownList!$B$24,CntyQryCensus!$A$109:$HH$127,DI$1)","v":4},{"$f":"VLOOKUP(DropDownList!$B$24,CntyQryCensus!$A$109:$HH$127,DJ$1)","v":0},{"$f":"VLOOKUP(DropDownList!$B$24,CntyQryCensus!$A$109:$HH$127,DK$1)","v":0},{"$f":"VLOOKUP(DropDownList!$B$24,CntyQryCensus!$A$109:$HH$127,DL$1)","v":0},{"$f":"VLOOKUP(DropDownList!$B$24,CntyQryCensus!$A$109:$HH$127,DM$1)","v":0},{"$f":"VLOOKUP(DropDownList!$B$24,CntyQryCensus!$A$109:$HH$127,DN$1)","v":2},{"$f":"VLOOKUP(DropDownList!$B$24,CntyQryCensus!$A$109:$HH$127,DO$1)","v":2},{"$f":"VLOOKUP(DropDownList!$B$24,CntyQryCensus!$A$109:$HH$127,DP$1)","v":0},{"$f":"VLOOKUP(DropDownList!$B$24,CntyQryCensus!$A$109:$HH$127,DQ$1)","v":0},{"$f":"VLOOKUP(DropDownList!$B$24,CntyQryCensus!$A$109:$HH$127,DR$1)","v":0},{"$f":"VLOOKUP(DropDownList!$B$24,CntyQryCensus!$A$109:$HH$127,DS$1)","v":0},{"$f":"VLOOKUP(DropDownList!$B$24,CntyQryCensus!$A$109:$HH$127,DT$1)","v":0},{"$f":"VLOOKUP(DropDownList!$B$24,CntyQryCensus!$A$109:$HH$127,DU$1)","v":0},{"$f":"VLOOKUP(DropDownList!$B$24,CntyQryCensus!$A$109:$HH$127,DV$1)","v":0},{"$f":"VLOOKUP(DropDownList!$B$24,CntyQryCensus!$A$109:$HH$127,DW$1)","v":14},{"$f":"VLOOKUP(DropDownList!$B$24,CntyQryCensus!$A$109:$HH$127,DX$1)","v":0},{"$f":"VLOOKUP(DropDownList!$B$24,CntyQryCensus!$A$109:$HH$127,DY$1)","v":5},{"$f":"VLOOKUP(DropDownList!$B$24,CntyQryCensus!$A$109:$HH$127,DZ$1)","v":0},{"$f":"VLOOKUP(DropDownList!$B$24,CntyQryCensus!$A$109:$HH$127,EA$1)","v":2},{"$f":"VLOOKUP(DropDownList!$B$24,CntyQryCensus!$A$109:$HH$127,EB$1)","v":2},{"$f":"VLOOKUP(DropDownList!$B$24,CntyQryCensus!$A$109:$HH$127,EC$1)","v":0},{"$f":"VLOOKUP(DropDownList!$B$24,CntyQryCensus!$A$109:$HH$127,ED$1)","v":0},{"$f":"VLOOKUP(DropDownList!$B$24,CntyQryCensus!$A$109:$HH$127,EE$1)","v":0},{"$f":"VLOOKUP(DropDownList!$B$24,CntyQryCensus!$A$109:$HH$127,EF$1)","v":0},{"$f":"VLOOKUP(DropDownList!$B$24,CntyQryCensus!$A$109:$HH$127,EG$1)","v":2},{"$f":"VLOOKUP(DropDownList!$B$24,CntyQryCensus!$A$109:$HH$127,EH$1)","v":3},{"$f":"VLOOKUP(DropDownList!$B$24,CntyQryCensus!$A$109:$HH$127,EI$1)","v":0},{"$f":"VLOOKUP(DropDownList!$B$24,CntyQryCensus!$A$109:$HH$127,EJ$1)","v":0},{"$f":"VLOOKUP(DropDownList!$B$24,CntyQryCensus!$A$109:$HH$127,EK$1)","v":0},{"$f":"VLOOKUP(DropDownList!$B$24,CntyQryCensus!$A$109:$HH$127,EL$1)","v":0},{"$f":"VLOOKUP(DropDownList!$B$24,CntyQryCensus!$A$109:$HH$127,EM$1)","v":0},{"$f":"VLOOKUP(DropDownList!$B$24,CntyQryCensus!$A$109:$HH$127,EN$1)","v":36635},{"$f":"VLOOKUP(DropDownList!$B$24,CntyQryCensus!$A$109:$HH$127,EO$1)","v":23750},{"$f":"VLOOKUP(DropDownList!$B$24,CntyQryCensus!$A$109:$HH$127,EP$1)","v":39375},{"$f":"VLOOKUP(DropDownList!$B$24,CntyQryCensus!$A$109:$HH$127,EQ$1)","v":42292},{"$f":"VLOOKUP(DropDownList!$B$24,CntyQryCensus!$A$109:$HH$127,ER$1)","v":31875},{"$f":"VLOOKUP(DropDownList!$B$24,CntyQryCensus!$A$109:$HH$127,ES$1)","v":26667},{"$f":"VLOOKUP(DropDownList!$B$24,CntyQryCensus!$A$109:$HH$127,ET$1)","v":12083},{"$f":"VLOOKUP(DropDownList!$B$24,CntyQryCensus!$A$109:$HH$127,EU$1)","v":26250},{"$f":"VLOOKUP(DropDownList!$B$24,CntyQryCensus!$A$109:$HH$127,EV$1)","v":249},{"$f":"VLOOKUP(DropDownList!$B$24,CntyQryCensus!$A$109:$HH$127,EW$1)","v":202},{"$f":"VLOOKUP(DropDownList!$B$24,CntyQryCensus!$A$109:$HH$127,EX$1)","v":47},{"$f":"VLOOKUP(DropDownList!$B$24,CntyQryCensus!$A$109:$HH$127,EY$1)","v":182},{"$f":"VLOOKUP(DropDownList!$B$24,CntyQryCensus!$A$109:$HH$127,EZ$1)","v":67},{"$f":"VLOOKUP(DropDownList!$B$24,CntyQryCensus!$A$109:$HH$127,FA$1)","v":34},{"$f":"VLOOKUP(DropDownList!$B$24,CntyQryCensus!$A$109:$HH$127,FB$1)","v":215},{"$f":"VLOOKUP(DropDownList!$B$24,CntyQryCensus!$A$109:$HH$127,FC$1)","v":41},{"$f":"VLOOKUP(DropDownList!$B$24,CntyQryCensus!$A$109:$HH$127,FD$1)","v":208},{"$f":"VLOOKUP(DropDownList!$B$24,CntyQryCensus!$A$109:$HH$127,FE$1)","v":64},{"$f":"VLOOKUP(DropDownList!$B$24,CntyQryCensus!$A$109:$HH$127,FF$1)","v":185},{"$f":"VLOOKUP(DropDownList!$B$24,CntyQryCensus!$A$109:$HH$127,FG$1)","v":9},{"$f":"VLOOKUP(DropDownList!$B$24,CntyQryCensus!$A$109:$HH$127,FH$1)","v":240},{"$f":"VLOOKUP(DropDownList!$B$24,CntyQryCensus!$A$109:$HH$127,FI$1)","v":11},{"$f":"VLOOKUP(DropDownList!$B$24,CntyQryCensus!$A$109:$HH$127,FJ$1)","v":238},{"$f":"VLOOKUP(DropDownList!$B$24,CntyQryCensus!$A$109:$HH$127,FK$1)","v":30},{"$f":"VLOOKUP(DropDownList!$B$24,CntyQryCensus!$A$109:$HH$127,FL$1)","v":219},{"$f":"VLOOKUP(DropDownList!$B$24,CntyQryCensus!$A$109:$HH$127,FM$1)","v":30},{"$f":"VLOOKUP(DropDownList!$B$24,CntyQryCensus!$A$109:$HH$127,FN$1)","v":219},{"$f":"VLOOKUP(DropDownList!$B$24,CntyQryCensus!$A$109:$HH$127,FO$1)","v":8409800},{"$f":"VLOOKUP(DropDownList!$B$24,CntyQryCensus!$A$109:$HH$127,FP$1)","v":7320400},{"$f":"VLOOKUP(DropDownList!$B$24,CntyQryCensus!$A$109:$HH$127,FQ$1)","v":1089400},{"$f":"VLOOKUP(DropDownList!$B$24,CntyQryCensus!$A$109:$HH$127,FR$1)","v":3198100},{"$f":"VLOOKUP(DropDownList!$B$24,CntyQryCensus!$A$109:$HH$127,FS$1)","v":610900},{"$f":"VLOOKUP(DropDownList!$B$24,CntyQryCensus!$A$109:$HH$127,FT$1)","v":36400},{"$f":"VLOOKUP(DropDownList!$B$24,CntyQryCensus!$A$109:$HH$127,FU$1)","v":58400},{"$f":"VLOOKUP(DropDownList!$B$24,CntyQryCensus!$A$109:$HH$127,FV$1)","v":350900},{"$f":"VLOOKUP(DropDownList!$B$24,CntyQryCensus!$A$109:$HH$127,FW$1)","v":167},{"$f":"VLOOKUP(DropDownList!$B$24,CntyQryCensus!$A$109:$HH$127,FX$1)","v":13},{"$f":"VLOOKUP(DropDownList!$B$24,CntyQryCensus!$A$109:$HH$127,FY$1)","v":9},{"$f":"VLOOKUP(DropDownList!$B$24,CntyQryCensus!$A$109:$HH$127,FZ$1)","v":19},{"$f":"VLOOKUP(DropDownList!$B$24,CntyQryCensus!$A$109:$HH$127,GA$1)","v":8},{"$f":"VLOOKUP(DropDownList!$B$24,CntyQryCensus!$A$109:$HH$127,GB$1)","v":15},{"$f":"VLOOKUP(DropDownList!$B$24,CntyQryCensus!$A$109:$HH$127,GC$1)","v":6},{"$f":"VLOOKUP(DropDownList!$B$24,CntyQryCensus!$A$109:$HH$127,GD$1)","v":15},{"$f":"VLOOKUP(DropDownList!$B$24,CntyQryCensus!$A$109:$HH$127,GE$1)","v":25},{"$f":"VLOOKUP(DropDownList!$B$24,CntyQryCensus!$A$109:$HH$127,GF$1)","v":6},{"$f":"VLOOKUP(DropDownList!$B$24,CntyQryCensus!$A$109:$HH$127,GG$1)","v":22},{"$f":"VLOOKUP(DropDownList!$B$24,CntyQryCensus!$A$109:$HH$127,GH$1)","v":14},{"$f":"VLOOKUP(DropDownList!$B$24,CntyQryCensus!$A$109:$HH$127,GI$1)","v":5},{"$f":"VLOOKUP(DropDownList!$B$24,CntyQryCensus!$A$109:$HH$127,GJ$1)","v":2},{"$f":"VLOOKUP(DropDownList!$B$24,CntyQryCensus!$A$109:$HH$127,GK$1)","v":0},{"$f":"VLOOKUP(DropDownList!$B$24,CntyQryCensus!$A$109:$HH$127,GL$1)","v":8},{"$f":"VLOOKUP(DropDownList!$B$24,CntyQryCensus!$A$109:$HH$127,GM$1)","v":0},{"$f":"VLOOKUP(DropDownList!$B$24,CntyQryCensus!$A$109:$HH$127,GN$1)","v":39250},{"$f":"VLOOKUP(DropDownList!$B$24,CntyQryCensus!$A$109:$HH$127,GO$1)","v":7285700},{"$f":"VLOOKUP(DropDownList!$B$24,CntyQryCensus!$A$109:$HH$127,GP$1)","v":82},{"$f":"VLOOKUP(DropDownList!$B$24,CntyQryCensus!$A$109:$HH$127,GQ$1)","v":16},{"$f":"VLOOKUP(DropDownList!$B$24,CntyQryCensus!$A$109:$HH$127,GR$1)","v":15},{"$f":"VLOOKUP(DropDownList!$B$24,CntyQryCensus!$A$109:$HH$127,GS$1)","v":12},{"$f":"VLOOKUP(DropDownList!$B$24,CntyQryCensus!$A$109:$HH$127,GT$1)","v":9},{"$f":"VLOOKUP(DropDownList!$B$24,CntyQryCensus!$A$109:$HH$127,GU$1)","v":4},{"$f":"VLOOKUP(DropDownList!$B$24,CntyQryCensus!$A$109:$HH$127,GV$1)","v":3},{"$f":"VLOOKUP(DropDownList!$B$24,CntyQryCensus!$A$109:$HH$127,GW$1)","v":0},{"$f":"VLOOKUP(DropDownList!$B$24,CntyQryCensus!$A$109:$HH$127,GX$1)","v":0},{"$f":"VLOOKUP(DropDownList!$B$24,CntyQryCensus!$A$109:$HH$127,GY$1)","v":6},{"$f":"VLOOKUP(DropDownList!$B$24,CntyQryCensus!$A$109:$HH$127,GZ$1)","v":4},{"$f":"VLOOKUP(DropDownList!$B$24,CntyQryCensus!$A$109:$HH$127,HA$1)","v":6},{"$f":"VLOOKUP(DropDownList!$B$24,CntyQryCensus!$A$109:$HH$127,HB$1)","v":3},{"$f":"VLOOKUP(DropDownList!$B$24,CntyQryCensus!$A$109:$HH$127,HC$1)","v":1},{"$f":"VLOOKUP(DropDownList!$B$24,CntyQryCensus!$A$109:$HH$127,HD$1)","v":0},{"$f":"VLOOKUP(DropDownList!$B$24,CntyQryCensus!$A$109:$HH$127,HE$1)","v":0},{"$f":"VLOOKUP(DropDownList!$B$24,CntyQryCensus!$A$109:$HH$127,HF$1)","v":3},{"$f":"VLOOKUP(DropDownList!$B$24,CntyQryCensus!$A$109:$HH$127,HG$1)","v":19583},{"$f":"VLOOKUP(DropDownList!$B$24,CntyQryCensus!$A$109:$HH$127,HH$1)","v":20690}]
[]
[]
["Census 2000 SummaryFile3 Sample Data  -  SF3TownQry2bPovertyChar"]
["NAME","LOGRECNO","COUNTY","TotalPop","P52Households1","P82PerCapitaInc","P87PopForPovStatus","P87PopWIncBelowPovStatus","P87PopUnder5yrBelowPoverty","P87Pop5yrBelowPoverty","P87Pop5to11yrBelowPoverty","P87Pop12to17yrBelowPoverty","P87Pop18to64yrBelowPoverty","P87Pop65to74yrBelowPoverty","P87PopOver75yrBelowPoverty","P87PopWIncAbovePovStatus","P87PopUnder5yrAbovePoverty","P87Pop5yrAbovePoverty","P87Pop5to11yrAbovePoverty","P87Pop12to17yrAbovePoverty","P87Pop18to64yrAbovePoverty","P87Pop65to74yrAbovePoverty","P87PopOver75yrAbovePoverty","P90Families","P90FamWIncBelowPov","P90MarCupFamWIncBelowPov","P90MCFamWRltdChld<18WIncBelowPov","P90MCFamWRltdChld<5WIncBelowPov","P90MaleHhlrWIncBelowPov","P90MaleHhlrWRltdChld<18yrWIncBelowPov","P90MaleHhlrWRltdChld<5yrWIncBelowPov","P90FemaleHhlrWIncBelowPov","P90FemaleHhlrWRltdChld<18yWIncBelowPov","P90FemaleHhlrWRltdChld<5yWIncBelowPov","P90FamWIncAbovePov","P90MarCupFamWIncAbovePov","P90MCFamWRltdChld<18WIncAbovePov","P90MCFamWRltdChld<5WIncAbovePov","P90MaleHhlrWIncAbovePov","P90MaleHhlrWRltdChld<18yrWIncAbovePov","P90MaleHhlrWRltdChld<5yrWIncAbovePov","P90FemaleHhlrWIncAbovePov","P90FemaleHhlrWRltdChld<18yWIncAbovePov","P90FemaleHhlrWRltdChld<5yWIncAbovePov","P92Households","P92HHwIncBelowPov","P92FamHHwIncBelowPov","P92MCFamHHwIncBelowPov","P92MaleFamHHwIncBelowPov","P92FemaleFamHHwIncBelowPov","P92NonFamHHwIncBelowPov","P92NonFamMaleHHwIncBelowPov","P92NonFamFemaleHHwIncBelowPov","P92HHwIncAbovePov","P92FamHHwIncAbovePov","P92MCFamHHwIncAbovePov","P92MaleFamHHwIncAbovePov","P92FemaleFamHHwIncAbovePov","P92NonFamHHwIncAbovePov","P92NonFamMaleHHwIncAbovePov","P92NonFamFemaleHHwIncAbovePov"]
[{"$f":"VLOOKUP(DropDownList!$B$24,CntyQryCensus!$A$135:$FZ$153,A$1)","v":"Albany"},{"$f":"VLOOKUP(DropDownList!$B$24,CntyQryCensus!$A$135:$FZ$153,B$1)","v":"0000308"},{"$f":"VLOOKUP(DropDownList!$B$24,CntyQryCensus!$A$135:$FZ$153,C$1)","v":"00420"},{"$f":"VLOOKUP(DropDownList!$B$24,CntyQryCensus!$A$135:$FZ$153,D$1)","v":654},{"$f":"VLOOKUP(DropDownList!$B$24,CntyQryCensus!$A$135:$FZ$153,E$1)","v":249},{"$f":"VLOOKUP(DropDownList!$B$24,CntyQryCensus!$A$135:$FZ$153,F$1)","v":20690},{"$f":"VLOOKUP(DropDownList!$B$24,CntyQryCensus!$A$135:$FZ$153,G$1)","v":605},{"$f":"VLOOKUP(DropDownList!$B$24,CntyQryCensus!$A$135:$FZ$153,H$1)","v":95},{"$f":"VLOOKUP(DropDownList!$B$24,CntyQryCensus!$A$135:$FZ$153,I$1)","v":17},{"$f":"VLOOKUP(DropDownList!$B$24,CntyQryCensus!$A$135:$FZ$153,J$1)","v":2},{"$f":"VLOOKUP(DropDownList!$B$24,CntyQryCensus!$A$135:$FZ$153,K$1)","v":19},{"$f":"VLOOKUP(DropDownList!$B$24,CntyQryCensus!$A$135:$FZ$153,L$1)","v":0},{"$f":"VLOOKUP(DropDownList!$B$24,CntyQryCensus!$A$135:$FZ$153,M$1)","v":55},{"$f":"VLOOKUP(DropDownList!$B$24,CntyQryCensus!$A$135:$FZ$153,N$1)","v":2},{"$f":"VLOOKUP(DropDownList!$B$24,CntyQryCensus!$A$135:$FZ$153,O$1)","v":0},{"$f":"VLOOKUP(DropDownList!$B$24,CntyQryCensus!$A$135:$FZ$153,P$1)","v":510},{"$f":"VLOOKUP(DropDownList!$B$24,CntyQryCensus!$A$135:$FZ$153,Q$1)","v":35},{"$f":"VLOOKUP(DropDownList!$B$24,CntyQryCensus!$A$135:$FZ$153,R$1)","v":7},{"$f":"VLOOKUP(DropDownList!$B$24,CntyQryCensus!$A$135:$FZ$153,S$1)","v":26},{"$f":"VLOOKUP(DropDownList!$B$24,CntyQryCensus!$A$135:$FZ$153,T$1)","v":53},{"$f":"VLOOKUP(DropDownList!$B$24,CntyQryCensus!$A$135:$FZ$153,U$1)","v":345},{"$f":"VLOOKUP(DropDownList!$B$24,CntyQryCensus!$A$135:$FZ$153,V$1)","v":30},{"$f":"VLOOKUP(DropDownList!$B$24,CntyQryCensus!$A$135:$FZ$153,W$1)","v":14},{"$f":"VLOOKUP(DropDownList!$B$24,CntyQryCensus!$A$135:$FZ$153,X$1)","v":167},{"$f":"VLOOKUP(DropDownList!$B$24,CntyQryCensus!$A$135:$FZ$153,Y$1)","v":18},{"$f":"VLOOKUP(DropDownList!$B$24,CntyQryCensus!$A$135:$FZ$153,Z$1)","v":4},{"$f":"VLOOKUP(DropDownList!$B$24,CntyQryCensus!$A$135:$FZ$153,AA$1)","v":4},{"$f":"VLOOKUP(DropDownList!$B$24,CntyQryCensus!$A$135:$FZ$153,AB$1)","v":0},{"$f":"VLOOKUP(DropDownList!$B$24,CntyQryCensus!$A$135:$FZ$153,AC$1)","v":4},{"$f":"VLOOKUP(DropDownList!$B$24,CntyQryCensus!$A$135:$FZ$153,AD$1)","v":2},{"$f":"VLOOKUP(DropDownList!$B$24,CntyQryCensus!$A$135:$FZ$153,AE$1)","v":0},{"$f":"VLOOKUP(DropDownList!$B$24,CntyQryCensus!$A$135:$FZ$153,AF$1)","v":10},{"$f":"VLOOKUP(DropDownList!$B$24,CntyQryCensus!$A$135:$FZ$153,AG$1)","v":10},{"$f":"VLOOKUP(DropDownList!$B$24,CntyQryCensus!$A$135:$FZ$153,AH$1)","v":1},{"$f":"VLOOKUP(DropDownList!$B$24,CntyQryCensus!$A$135:$FZ$153,AI$1)","v":149},{"$f":"VLOOKUP(DropDownList!$B$24,CntyQryCensus!$A$135:$FZ$153,AJ$1)","v":124},{"$f":"VLOOKUP(DropDownList!$B$24,CntyQryCensus!$A$135:$FZ$153,AK$1)","v":53},{"$f":"VLOOKUP(DropDownList!$B$24,CntyQryCensus!$A$135:$FZ$153,AL$1)","v":11},{"$f":"VLOOKUP(DropDownList!$B$24,CntyQryCensus!$A$135:$FZ$153,AM$1)","v":13},{"$f":"VLOOKUP(DropDownList!$B$24,CntyQryCensus!$A$135:$FZ$153,AN$1)","v":13},{"$f":"VLOOKUP(DropDownList!$B$24,CntyQryCensus!$A$135:$FZ$153,AO$1)","v":0},{"$f":"VLOOKUP(DropDownList!$B$24,CntyQryCensus!$A$135:$FZ$153,AP$1)","v":12},{"$f":"VLOOKUP(DropDownList!$B$24,CntyQryCensus!$A$135:$FZ$153,AQ$1)","v":10},{"$f":"VLOOKUP(DropDownList!$B$24,CntyQryCensus!$A$135:$FZ$153,AR$1)","v":1},{"$f":"VLOOKUP(DropDownList!$B$24,CntyQryCensus!$A$135:$FZ$153,AS$1)","v":249},{"$f":"VLOOKUP(DropDownList!$B$24,CntyQryCensus!$A$135:$FZ$153,AT$1)","v":28},{"$f":"VLOOKUP(DropDownList!$B$24,CntyQryCensus!$A$135:$FZ$153,AU$1)","v":18},{"$f":"VLOOKUP(DropDownList!$B$24,CntyQryCensus!$A$135:$FZ$153,AV$1)","v":4},{"$f":"VLOOKUP(DropDownList!$B$24,CntyQryCensus!$A$135:$FZ$153,AW$1)","v":4},{"$f":"VLOOKUP(DropDownList!$B$24,CntyQryCensus!$A$135:$FZ$153,AX$1)","v":10},{"$f":"VLOOKUP(DropDownList!$B$24,CntyQryCensus!$A$135:$FZ$153,AY$1)","v":10},{"$f":"VLOOKUP(DropDownList!$B$24,CntyQryCensus!$A$135:$FZ$153,AZ$1)","v":4},{"$f":"VLOOKUP(DropDownList!$B$24,CntyQryCensus!$A$135:$FZ$153,BA$1)","v":6},{"$f":"VLOOKUP(DropDownList!$B$24,CntyQryCensus!$A$135:$FZ$153,BB$1)","v":221},{"$f":"VLOOKUP(DropDownList!$B$24,CntyQryCensus!$A$135:$FZ$153,BC$1)","v":149},{"$f":"VLOOKUP(DropDownList!$B$24,CntyQryCensus!$A$135:$FZ$153,BD$1)","v":124},{"$f":"VLOOKUP(DropDownList!$B$24,CntyQryCensus!$A$135:$FZ$153,BE$1)","v":13},{"$f":"VLOOKUP(DropDownList!$B$24,CntyQryCensus!$A$135:$FZ$153,BF$1)","v":12},{"$f":"VLOOKUP(DropDownList!$B$24,CntyQryCensus!$A$135:$FZ$153,BG$1)","v":72},{"$f":"VLOOKUP(DropDownList!$B$24,CntyQryCensus!$A$135:$FZ$153,BH$1)","v":45},{"$f":"VLOOKUP(DropDownList!$B$24,CntyQryCensus!$A$135:$FZ$153,BI$1)","v":27}]
[null,null,null,null,null,null,null,null,null,null,null,null,null,null,null,null,null,null,{"$f":"SUM(R60:T60)","v":86}]
[]
["Census 2000 SummaryFile3 Sample Data  -  SF3TownQry7HousingA"]
["NAME","LOGRECNO","COUNTY","TotalPop","H1HousingUnitsTotal","H2SampleHU","H2SampleOccHU","H2SampleVacHU","H3HU100pctCount","H5HUTotal","H5HUUrban","H5HUUrbanInUrbanAreas","H5HUUrbanInUrbanClusters","H5HURural","H5HURuralFarm","H5HURuralNonFarm","H7HUOcc","H7HUOwnrOcc","H7HURentrOcc","H8HUVacant","H8HUVacantForRent","H8HUVacantForSale","H8HUVacRentedorSold","H8HUVacSeasonal","H8HUVacForMigrantWrkrs","H8HUOtherVacant","H14OccHUa","H14OwnerOccHU","H14OwnOccHuHh15to24","H14OwnOccHuHh25to34","H14OwnOccHuHh35to44","H14OwnOccHuHh45to54","H14OwnOccHuHh55to59","H14OwnOccHuHh60to64","H14OwnOccHuHh65to74","H14OwnOccHuHh75to84","H14OwnOccHuHh85Over","H14RenterOccHU1","H14RntrOccHuHh15to24","H14RntrOccHuHh25to34","H14RntrOccHuHh35to44","H14RntrOccHuHh45to54","H14RntrOccHuHh55to59","H14RntrOccHuHh60to64","H14RntrOccHuHh65to74","H14RntrOccHuHh75to84","H14RntrOccHuHh85Over","H15PopInOccHU","H15PopInOwnOccHU1","H15PopInRentOccHU1","H17OccupHUb","H17OwnOccHU2","H17OwnOccHU1PersonHH","H17OwnOccHU2PersonHH","H17OwnOccHU3PersonHH","H17OwnOccHU4PersonHH","H17OwnOccHU5PersonHH","H17OwnOccHU6PersonHH","H17OwnOccHU7PlusPersonHH","H17RentOccHU2","H17RntOccHU1PersonHH","H17RntOccHU2PersonHH","H17RntOccHU3PersonHH","H17RntOccHU4PersonHH","H17RntOccHU5PersonHH","H17RntOccHU6PersonHH","H17RntOccHU7PlusPersonHH","H18AvgHHSize","H18AvgHHSizeOwnOcc","H18AvgHHSizeRentOcc","H23TotHU","H23HU1Room","H23HU2Room","H23HU3Room","H23HU4Room","H23HU5Room","H23HU6Room","H23HU7Room","H23HU8Room","H23HU9orMoreRoom","H24MedianNumRooms","H25AggregNumRooms","H30TotalHU","H30Det1HU","H30Att1HU","H30Units2","H30Units3or4","H30Units5to9","H30Units10to19","H30Units20to49","H30Units50orMore","H30UnitsMobileHome","H30UnitsBoatRv","H32OccHUcTotal","H32OwnerOccHU3","H32OwnOccHU1Det","H32OwnOccHU1Att","H32OwnOccHU2Unit","H32OwnOccHU3to4Unit","H32OwnOccHU5to9Unit","H32OwnOccHU10to19Unit","H32OwnOccHU20to49Unit","H32OwnOccHU50plusUnit","H32OwnOccHUMobHom","H32OwnOccHUBoatRVOth","H32RentrOccHU3","H32RntrOccHU1Det","H32RntrOccHU1Att","H32RntrOccHU2Unit","H32RntrOccHU3to4Unit","H32RntrOccHU5to9Unit","H32RntrOccHU10to19Unit","H32RntrOccHU20to49Unit","H32RntrOccHU50PlusUnit","H32RntrOccHUMobHom","H32RntrOccHUBoatRVOth","H33TotPopInOccHU","H33PopInOwnOccHU2","H33PopInOOHU1Det","H33PopInOOHU1Att","H33PopInOOHU2unit","H33PopInOOHU3to4Unit","H33PopInOOHU5to9Unit","H33PopInOOHU10to19Unit","H33PopInOOHU20to49Unit","H33PopInOOHU50PlusUnit","H33PopInOOHUMobilHome","H33PopInOOHUOtherUnit","H33PopInRentOccHU2","H33PopInROHU1Det","H33PopInROHU1Att","H33PopInROHU2Unit","H33PopInROHU3to4Unit","H33PopInROHU5to9Unit","H33PopInROHU10to19Unit","H33PopInROHU20to49Unit","H33PopInROHU50PlusUnit","H33PopInROHUMobilHome","H33PopInROHUOtherUnit","H36OccHousingUnitsdTotal","H36OwnerOccHU4","H36OOHUBuilt99to0300","H36OOHUBuilt95to98","H36OOHUBuilt90to94","H36OOHUBuilt80to89","H36OOHUBuilt70to79","H36OOHUBuilt60to69","H36OOHUBuilt50to59","H36OOHUBuilt40to49","H36OOHUBuilt39Earlier","H36RentOccHU4","H36ROHUBuilt99to0300","H36ROHUBuilt95to98","H36ROHUBuilt90to94","H36ROHUBuilt80to89","H36ROHUBuilt70to79","H36ROHUBuilt60to69","H36ROHUBuilt50to59","H36ROHUBuilt40to49","H36ROHUBuilt39Earlier","H40OccupHousUnitse","H40HeatFuelUtilGas","H40HeatFuelBotGas","H40HeatFuelElect","H40HeatFuelOilKero","H40HeatFuelCoal","H40HeatFuelWood","H40HeatFuelSolar","H40HeatFuelOther","H40HeatFuelNone","H41TotalHU","H41HUNoBdrm","H41HU1Bdrm","H41HU2Bdrm","H41HU3Bdrm","H41HU4Bdrm","H41HU5MoreBdrm","H42OccuHousUnitf","H42OwnerOccHU5","H42OOHUNoBdrm","H42OOHU1Bdrm","H42OOHU2Bdrm","H42OOHU3Bdrm","H42OOHU4Bdrm","H42OOHU5PlusBdrm","H42RentOccHU5","H42ROHUNoBdrm","H42ROHU1Bdrm","H42ROHU2Bdrm","H42ROHU3Bdrm","H42ROHU4Bdrm","H42ROHU5PlusBdrm","H48OccupHousUnitsg","H48OwnerOccHU6","H48OOHUwCompltPlumFacil","H48OOHULackCompltPlumFacil","H48RentOccHU6","H48ROHUwCompltPlumFacil","H48ROHULackCompltPlumFacil","H51OccupHousUnitf","H51OwnerOccHU7","H51OOHUwCompleteKitFacil","H51OOHULackCompleteKitFacil","H51RenterOccHU7","H51ROHUwCompleteKitFacil","H51ROHULackCompleteKitFacil"]
[{"$f":"VLOOKUP(DropDownList!$B$24,CntyQryCensus!$A$161:$GX$179,A$1)","v":"Albany"},{"$f":"VLOOKUP(DropDownList!$B$24,CntyQryCensus!$A$161:$GX$179,B$1)","v":"0000308"},{"$f":"VLOOKUP(DropDownList!$B$24,CntyQryCensus!$A$161:$GX$179,C$1)","v":"00420"},{"$f":"VLOOKUP(DropDownList!$B$24,CntyQryCensus!$A$161:$GX$179,D$1)","v":654},{"$f":"VLOOKUP(DropDownList!$B$24,CntyQryCensus!$A$161:$GX$179,E$1)","v":491},{"$f":"VLOOKUP(DropDownList!$B$24,CntyQryCensus!$A$161:$GX$179,F$1)","v":228},{"$f":"VLOOKUP(DropDownList!$B$24,CntyQryCensus!$A$161:$GX$179,G$1)","v":108},{"$f":"VLOOKUP(DropDownList!$B$24,CntyQryCensus!$A$161:$GX$179,H$1)","v":120},{"$f":"VLOOKUP(DropDownList!$B$24,CntyQryCensus!$A$161:$GX$179,I$1)","v":506},{"$f":"VLOOKUP(DropDownList!$B$24,CntyQryCensus!$A$161:$GX$179,J$1)","v":491},{"$f":"VLOOKUP(DropDownList!$B$24,CntyQryCensus!$A$161:$GX$179,K$1)","v":0},{"$f":"VLOOKUP(DropDownList!$B$24,CntyQryCensus!$A$161:$GX$179,L$1)","v":0},{"$f":"VLOOKUP(DropDownList!$B$24,CntyQryCensus!$A$161:$GX$179,M$1)","v":0},{"$f":"VLOOKUP(DropDownList!$B$24,CntyQryCensus!$A$161:$GX$179,N$1)","v":491},{"$f":"VLOOKUP(DropDownList!$B$24,CntyQryCensus!$A$161:$GX$179,O$1)","v":0},{"$f":"VLOOKUP(DropDownList!$B$24,CntyQryCensus!$A$161:$GX$179,P$1)","v":491},{"$f":"VLOOKUP(DropDownList!$B$24,CntyQryCensus!$A$161:$GX$179,Q$1)","v":237},{"$f":"VLOOKUP(DropDownList!$B$24,CntyQryCensus!$A$161:$GX$179,R$1)","v":187},{"$f":"VLOOKUP(DropDownList!$B$24,CntyQryCensus!$A$161:$GX$179,S$1)","v":50},{"$f":"VLOOKUP(DropDownList!$B$24,CntyQryCensus!$A$161:$GX$179,T$1)","v":254},{"$f":"VLOOKUP(DropDownList!$B$24,CntyQryCensus!$A$161:$GX$179,U$1)","v":6},{"$f":"VLOOKUP(DropDownList!$B$24,CntyQryCensus!$A$161:$GX$179,V$1)","v":7},{"$f":"VLOOKUP(DropDownList!$B$24,CntyQryCensus!$A$161:$GX$179,W$1)","v":3},{"$f":"VLOOKUP(DropDownList!$B$24,CntyQryCensus!$A$161:$GX$179,X$1)","v":207},{"$f":"VLOOKUP(DropDownList!$B$24,CntyQryCensus!$A$161:$GX$179,Y$1)","v":0},{"$f":"VLOOKUP(DropDownList!$B$24,CntyQryCensus!$A$161:$GX$179,Z$1)","v":31},{"$f":"VLOOKUP(DropDownList!$B$24,CntyQryCensus!$A$161:$GX$179,AA$1)","v":237},{"$f":"VLOOKUP(DropDownList!$B$24,CntyQryCensus!$A$161:$GX$179,AB$1)","v":187},{"$f":"VLOOKUP(DropDownList!$B$24,CntyQryCensus!$A$161:$GX$179,AC$1)","v":4},{"$f":"VLOOKUP(DropDownList!$B$24,CntyQryCensus!$A$161:$GX$179,AD$1)","v":31},{"$f":"VLOOKUP(DropDownList!$B$24,CntyQryCensus!$A$161:$GX$179,AE$1)","v":52},{"$f":"VLOOKUP(DropDownList!$B$24,CntyQryCensus!$A$161:$GX$179,AF$1)","v":40},{"$f":"VLOOKUP(DropDownList!$B$24,CntyQryCensus!$A$161:$GX$179,AG$1)","v":15},{"$f":"VLOOKUP(DropDownList!$B$24,CntyQryCensus!$A$161:$GX$179,AH$1)","v":11},{"$f":"VLOOKUP(DropDownList!$B$24,CntyQryCensus!$A$161:$GX$179,AI$1)","v":21},{"$f":"VLOOKUP(DropDownList!$B$24,CntyQryCensus!$A$161:$GX$179,AJ$1)","v":9},{"$f":"VLOOKUP(DropDownList!$B$24,CntyQryCensus!$A$161:$GX$179,AK$1)","v":4},{"$f":"VLOOKUP(DropDownList!$B$24,CntyQryCensus!$A$161:$GX$179,AL$1)","v":50},{"$f":"VLOOKUP(DropDownList!$B$24,CntyQryCensus!$A$161:$GX$179,AM$1)","v":9},{"$f":"VLOOKUP(DropDownList!$B$24,CntyQryCensus!$A$161:$GX$179,AN$1)","v":16},{"$f":"VLOOKUP(DropDownList!$B$24,CntyQryCensus!$A$161:$GX$179,AO$1)","v":16},{"$f":"VLOOKUP(DropDownList!$B$24,CntyQryCensus!$A$161:$GX$179,AP$1)","v":5},{"$f":"VLOOKUP(DropDownList!$B$24,CntyQryCensus!$A$161:$GX$179,AQ$1)","v":0},{"$f":"VLOOKUP(DropDownList!$B$24,CntyQryCensus!$A$161:$GX$179,AR$1)","v":4},{"$f":"VLOOKUP(DropDownList!$B$24,CntyQryCensus!$A$161:$GX$179,AS$1)","v":0},{"$f":"VLOOKUP(DropDownList!$B$24,CntyQryCensus!$A$161:$GX$179,AT$1)","v":0},{"$f":"VLOOKUP(DropDownList!$B$24,CntyQryCensus!$A$161:$GX$179,AU$1)","v":0},{"$f":"VLOOKUP(DropDownList!$B$24,CntyQryCensus!$A$161:$GX$179,AV$1)","v":600},{"$f":"VLOOKUP(DropDownList!$B$24,CntyQryCensus!$A$161:$GX$179,AW$1)","v":447},{"$f":"VLOOKUP(DropDownList!$B$24,CntyQryCensus!$A$161:$GX$179,AX$1)","v":153},{"$f":"VLOOKUP(DropDownList!$B$24,CntyQryCensus!$A$161:$GX$179,AY$1)","v":237},{"$f":"VLOOKUP(DropDownList!$B$24,CntyQryCensus!$A$161:$GX$179,AZ$1)","v":187},{"$f":"VLOOKUP(DropDownList!$B$24,CntyQryCensus!$A$161:$GX$179,BA$1)","v":53},{"$f":"VLOOKUP(DropDownList!$B$24,CntyQryCensus!$A$161:$GX$179,BB$1)","v":59},{"$f":"VLOOKUP(DropDownList!$B$24,CntyQryCensus!$A$161:$GX$179,BC$1)","v":31},{"$f":"VLOOKUP(DropDownList!$B$24,CntyQryCensus!$A$161:$GX$179,BD$1)","v":35},{"$f":"VLOOKUP(DropDownList!$B$24,CntyQryCensus!$A$161:$GX$179,BE$1)","v":9},{"$f":"VLOOKUP(DropDownList!$B$24,CntyQryCensus!$A$161:$GX$179,BF$1)","v":0},{"$f":"VLOOKUP(DropDownList!$B$24,CntyQryCensus!$A$161:$GX$179,BG$1)","v":0},{"$f":"VLOOKUP(DropDownList!$B$24,CntyQryCensus!$A$161:$GX$179,BH$1)","v":50},{"$f":"VLOOKUP(DropDownList!$B$24,CntyQryCensus!$A$161:$GX$179,BI$1)","v":9},{"$f":"VLOOKUP(DropDownList!$B$24,CntyQryCensus!$A$161:$GX$179,BJ$1)","v":16},{"$f":"VLOOKUP(DropDownList!$B$24,CntyQryCensus!$A$161:$GX$179,BK$1)","v":14},{"$f":"VLOOKUP(DropDownList!$B$24,CntyQryCensus!$A$161:$GX$179,BL$1)","v":8},{"$f":"VLOOKUP(DropDownList!$B$24,CntyQryCensus!$A$161:$GX$179,BM$1)","v":2},{"$f":"VLOOKUP(DropDownList!$B$24,CntyQryCensus!$A$161:$GX$179,BN$1)","v":1},{"$f":"VLOOKUP(DropDownList!$B$24,CntyQryCensus!$A$161:$GX$179,BO$1)","v":0},{"$f":"VLOOKUP(DropDownList!$B$24,CntyQryCensus!$A$161:$GX$179,BP$1)","v":3},{"$f":"VLOOKUP(DropDownList!$B$24,CntyQryCensus!$A$161:$GX$179,BQ$1)","v":2},{"$f":"VLOOKUP(DropDownList!$B$24,CntyQryCensus!$A$161:$GX$179,BR$1)","v":3},{"$f":"VLOOKUP(DropDownList!$B$24,CntyQryCensus!$A$161:$GX$179,BS$1)","v":491},{"$f":"VLOOKUP(DropDownList!$B$24,CntyQryCensus!$A$161:$GX$179,BT$1)","v":16},{"$f":"VLOOKUP(DropDownList!$B$24,CntyQryCensus!$A$161:$GX$179,BU$1)","v":35},{"$f":"VLOOKUP(DropDownList!$B$24,CntyQryCensus!$A$161:$GX$179,BV$1)","v":45},{"$f":"VLOOKUP(DropDownList!$B$24,CntyQryCensus!$A$161:$GX$179,BW$1)","v":125},{"$f":"VLOOKUP(DropDownList!$B$24,CntyQryCensus!$A$161:$GX$179,BX$1)","v":105},{"$f":"VLOOKUP(DropDownList!$B$24,CntyQryCensus!$A$161:$GX$179,BY$1)","v":83},{"$f":"VLOOKUP(DropDownList!$B$24,CntyQryCensus!$A$161:$GX$179,BZ$1)","v":46},{"$f":"VLOOKUP(DropDownList!$B$24,CntyQryCensus!$A$161:$GX$179,CA$1)","v":17},{"$f":"VLOOKUP(DropDownList!$B$24,CntyQryCensus!$A$161:$GX$179,CB$1)","v":19},{"$f":"VLOOKUP(DropDownList!$B$24,CntyQryCensus!$A$161:$GX$179,CC$1)","v":5},{"$f":"VLOOKUP(DropDownList!$B$24,CntyQryCensus!$A$161:$GX$179,CD$1)","v":2392},{"$f":"VLOOKUP(DropDownList!$B$24,CntyQryCensus!$A$161:$GX$179,CE$1)","v":491},{"$f":"VLOOKUP(DropDownList!$B$24,CntyQryCensus!$A$161:$GX$179,CF$1)","v":393},{"$f":"VLOOKUP(DropDownList!$B$24,CntyQryCensus!$A$161:$GX$179,CG$1)","v":0},{"$f":"VLOOKUP(DropDownList!$B$24,CntyQryCensus!$A$161:$GX$179,CH$1)","v":14},{"$f":"VLOOKUP(DropDownList!$B$24,CntyQryCensus!$A$161:$GX$179,CI$1)","v":0},{"$f":"VLOOKUP(DropDownList!$B$24,CntyQryCensus!$A$161:$GX$179,CJ$1)","v":0},{"$f":"VLOOKUP(DropDownList!$B$24,CntyQryCensus!$A$161:$GX$179,CK$1)","v":0},{"$f":"VLOOKUP(DropDownList!$B$24,CntyQryCensus!$A$161:$GX$179,CL$1)","v":0},{"$f":"VLOOKUP(DropDownList!$B$24,CntyQryCensus!$A$161:$GX$179,CM$1)","v":0},{"$f":"VLOOKUP(DropDownList!$B$24,CntyQryCensus!$A$161:$GX$179,CN$1)","v":84},{"$f":"VLOOKUP(DropDownList!$B$24,CntyQryCensus!$A$161:$GX$179,CO$1)","v":0},{"$f":"VLOOKUP(DropDownList!$B$24,CntyQryCensus!$A$161:$GX$179,CP$1)","v":237},{"$f":"VLOOKUP(DropDownList!$B$24,CntyQryCensus!$A$161:$GX$179,CQ$1)","v":187},{"$f":"VLOOKUP(DropDownList!$B$24,CntyQryCensus!$A$161:$GX$179,CR$1)","v":137},{"$f":"VLOOKUP(DropDownList!$B$24,CntyQryCensus!$A$161:$GX$179,CS$1)","v":0},{"$f":"VLOOKUP(DropDownList!$B$24,CntyQryCensus!$A$161:$GX$179,CT$1)","v":0},{"$f":"VLOOKUP(DropDownList!$B$24,CntyQryCensus!$A$161:$GX$179,CU$1)","v":0},{"$f":"VLOOKUP(DropDownList!$B$24,CntyQryCensus!$A$161:$GX$179,CV$1)","v":0},{"$f":"VLOOKUP(DropDownList!$B$24,CntyQryCensus!$A$161:$GX$179,CW$1)","v":0},{"$f":"VLOOKUP(DropDownList!$B$24,CntyQryCensus!$A$161:$GX$179,CX$1)","v":0},{"$f":"VLOOKUP(DropDownList!$B$24,CntyQryCensus!$A$161:$GX$179,CY$1)","v":0},{"$f":"VLOOKUP(DropDownList!$B$24,CntyQryCensus!$A$161:$GX$179,CZ$1)","v":50},{"$f":"VLOOKUP(DropDownList!$B$24,CntyQryCensus!$A$161:$GX$179,DA$1)","v":0},{"$f":"VLOOKUP(DropDownList!$B$24,CntyQryCensus!$A$161:$GX$179,DB$1)","v":50},{"$f":"VLOOKUP(DropDownList!$B$24,CntyQryCensus!$A$161:$GX$179,DC$1)","v":35},{"$f":"VLOOKUP(DropDownList!$B$24,CntyQryCensus!$A$161:$GX$179,DD$1)","v":0},{"$f":"VLOOKUP(DropDownList!$B$24,CntyQryCensus!$A$161:$GX$179,DE$1)","v":6},{"$f":"VLOOKUP(DropDownList!$B$24,CntyQryCensus!$A$161:$GX$179,DF$1)","v":0},{"$f":"VLOOKUP(DropDownList!$B$24,CntyQryCensus!$A$161:$GX$179,DG$1)","v":0},{"$f":"VLOOKUP(DropDownList!$B$24,CntyQryCensus!$A$161:$GX$179,DH$1)","v":0},{"$f":"VLOOKUP(DropDownList!$B$24,CntyQryCensus!$A$161:$GX$179,DI$1)","v":0},{"$f":"VLOOKUP(DropDownList!$B$24,CntyQryCensus!$A$161:$GX$179,DJ$1)","v":0},{"$f":"VLOOKUP(DropDownList!$B$24,CntyQryCensus!$A$161:$GX$179,DK$1)","v":9},{"$f":"VLOOKUP(DropDownList!$B$24,CntyQryCensus!$A$161:$GX$179,DL$1)","v":0},{"$f":"VLOOKUP(DropDownList!$B$24,CntyQryCensus!$A$161:$GX$179,DM$1)","v":600},{"$f":"VLOOKUP(DropDownList!$B$24,CntyQryCensus!$A$161:$GX$179,DN$1)","v":447},{"$f":"VLOOKUP(DropDownList!$B$24,CntyQryCensus!$A$161:$GX$179,DO$1)","v":330},{"$f":"VLOOKUP(DropDownList!$B$24,CntyQryCensus!$A$161:$GX$179,DP$1)","v":0},{"$f":"VLOOKUP(DropDownList!$B$24,CntyQryCensus!$A$161:$GX$179,DQ$1)","v":0},{"$f":"VLOOKUP(DropDownList!$B$24,CntyQryCensus!$A$161:$GX$179,DR$1)","v":0},{"$f":"VLOOKUP(DropDownList!$B$24,CntyQryCensus!$A$161:$GX$179,DS$1)","v":0},{"$f":"VLOOKUP(DropDownList!$B$24,CntyQryCensus!$A$161:$GX$179,DT$1)","v":0},{"$f":"VLOOKUP(DropDownList!$B$24,CntyQryCensus!$A$161:$GX$179,DU$1)","v":0},{"$f":"VLOOKUP(DropDownList!$B$24,CntyQryCensus!$A$161:$GX$179,DV$1)","v":0},{"$f":"VLOOKUP(DropDownList!$B$24,CntyQryCensus!$A$161:$GX$179,DW$1)","v":117},{"$f":"VLOOKUP(DropDownList!$B$24,CntyQryCensus!$A$161:$GX$179,DX$1)","v":0},{"$f":"VLOOKUP(DropDownList!$B$24,CntyQryCensus!$A$161:$GX$179,DY$1)","v":153},{"$f":"VLOOKUP(DropDownList!$B$24,CntyQryCensus!$A$161:$GX$179,DZ$1)","v":104},{"$f":"VLOOKUP(DropDownList!$B$24,CntyQryCensus!$A$161:$GX$179,EA$1)","v":0},{"$f":"VLOOKUP(DropDownList!$B$24,CntyQryCensus!$A$161:$GX$179,EB$1)","v":13},{"$f":"VLOOKUP(DropDownList!$B$24,CntyQryCensus!$A$161:$GX$179,EC$1)","v":0},{"$f":"VLOOKUP(DropDownList!$B$24,CntyQryCensus!$A$161:$GX$179,ED$1)","v":0},{"$f":"VLOOKUP(DropDownList!$B$24,CntyQryCensus!$A$161:$GX$179,EE$1)","v":0},{"$f":"VLOOKUP(DropDownList!$B$24,CntyQryCensus!$A$161:$GX$179,EF$1)","v":0},{"$f":"VLOOKUP(DropDownList!$B$24,CntyQryCensus!$A$161:$GX$179,EG$1)","v":0},{"$f":"VLOOKUP(DropDownList!$B$24,CntyQryCensus!$A$161:$GX$179,EH$1)","v":36},{"$f":"VLOOKUP(DropDownList!$B$24,CntyQryCensus!$A$161:$GX$179,EI$1)","v":0},{"$f":"VLOOKUP(DropDownList!$B$24,CntyQryCensus!$A$161:$GX$179,EJ$1)","v":237},{"$f":"VLOOKUP(DropDownList!$B$24,CntyQryCensus!$A$161:$GX$179,EK$1)","v":187},{"$f":"VLOOKUP(DropDownList!$B$24,CntyQryCensus!$A$161:$GX$179,EL$1)","v":5},{"$f":"VLOOKUP(DropDownList!$B$24,CntyQryCensus!$A$161:$GX$179,EM$1)","v":15},{"$f":"VLOOKUP(DropDownList!$B$24,CntyQryCensus!$A$161:$GX$179,EN$1)","v":21},{"$f":"VLOOKUP(DropDownList!$B$24,CntyQryCensus!$A$161:$GX$179,EO$1)","v":42},{"$f":"VLOOKUP(DropDownList!$B$24,CntyQryCensus!$A$161:$GX$179,EP$1)","v":49},{"$f":"VLOOKUP(DropDownList!$B$24,CntyQryCensus!$A$161:$GX$179,EQ$1)","v":13},{"$f":"VLOOKUP(DropDownList!$B$24,CntyQryCensus!$A$161:$GX$179,ER$1)","v":13},{"$f":"VLOOKUP(DropDownList!$B$24,CntyQryCensus!$A$161:$GX$179,ES$1)","v":8},{"$f":"VLOOKUP(DropDownList!$B$24,CntyQryCensus!$A$161:$GX$179,ET$1)","v":21},{"$f":"VLOOKUP(DropDownList!$B$24,CntyQryCensus!$A$161:$GX$179,EU$1)","v":50},{"$f":"VLOOKUP(DropDownList!$B$24,CntyQryCensus!$A$161:$GX$179,EV$1)","v":0},{"$f":"VLOOKUP(DropDownList!$B$24,CntyQryCensus!$A$161:$GX$179,EW$1)","v":3},{"$f":"VLOOKUP(DropDownList!$B$24,CntyQryCensus!$A$161:$GX$179,EX$1)","v":4},{"$f":"VLOOKUP(DropDownList!$B$24,CntyQryCensus!$A$161:$GX$179,EY$1)","v":1},{"$f":"VLOOKUP(DropDownList!$B$24,CntyQryCensus!$A$161:$GX$179,EZ$1)","v":17},{"$f":"VLOOKUP(DropDownList!$B$24,CntyQryCensus!$A$161:$GX$179,FA$1)","v":2},{"$f":"VLOOKUP(DropDownList!$B$24,CntyQryCensus!$A$161:$GX$179,FB$1)","v":6},{"$f":"VLOOKUP(DropDownList!$B$24,CntyQryCensus!$A$161:$GX$179,FC$1)","v":6},{"$f":"VLOOKUP(DropDownList!$B$24,CntyQryCensus!$A$161:$GX$179,FD$1)","v":11},{"$f":"VLOOKUP(DropDownList!$B$24,CntyQryCensus!$A$161:$GX$179,FE$1)","v":237},{"$f":"VLOOKUP(DropDownList!$B$24,CntyQryCensus!$A$161:$GX$179,FF$1)","v":0},{"$f":"VLOOKUP(DropDownList!$B$24,CntyQryCensus!$A$161:$GX$179,FG$1)","v":55},{"$f":"VLOOKUP(DropDownList!$B$24,CntyQryCensus!$A$161:$GX$179,FH$1)","v":2},{"$f":"VLOOKUP(DropDownList!$B$24,CntyQryCensus!$A$161:$GX$179,FI$1)","v":160},{"$f":"VLOOKUP(DropDownList!$B$24,CntyQryCensus!$A$161:$GX$179,FJ$1)","v":0},{"$f":"VLOOKUP(DropDownList!$B$24,CntyQryCensus!$A$161:$GX$179,FK$1)","v":20},{"$f":"VLOOKUP(DropDownList!$B$24,CntyQryCensus!$A$161:$GX$179,FL$1)","v":0},{"$f":"VLOOKUP(DropDownList!$B$24,CntyQryCensus!$A$161:$GX$179,FM$1)","v":0},{"$f":"VLOOKUP(DropDownList!$B$24,CntyQryCensus!$A$161:$GX$179,FN$1)","v":0},{"$f":"VLOOKUP(DropDownList!$B$24,CntyQryCensus!$A$161:$GX$179,FO$1)","v":491},{"$f":"VLOOKUP(DropDownList!$B$24,CntyQryCensus!$A$161:$GX$179,FP$1)","v":16},{"$f":"VLOOKUP(DropDownList!$B$24,CntyQryCensus!$A$161:$GX$179,FQ$1)","v":100},{"$f":"VLOOKUP(DropDownList!$B$24,CntyQryCensus!$A$161:$GX$179,FR$1)","v":184},{"$f":"VLOOKUP(DropDownList!$B$24,CntyQryCensus!$A$161:$GX$179,FS$1)","v":140},{"$f":"VLOOKUP(DropDownList!$B$24,CntyQryCensus!$A$161:$GX$179,FT$1)","v":49},{"$f":"VLOOKUP(DropDownList!$B$24,CntyQryCensus!$A$161:$GX$179,FU$1)","v":2},{"$f":"VLOOKUP(DropDownList!$B$24,CntyQryCensus!$A$161:$GX$179,FV$1)","v":237},{"$f":"VLOOKUP(DropDownList!$B$24,CntyQryCensus!$A$161:$GX$179,FW$1)","v":187},{"$f":"VLOOKUP(DropDownList!$B$24,CntyQryCensus!$A$161:$GX$179,FX$1)","v":0},{"$f":"VLOOKUP(DropDownList!$B$24,CntyQryCensus!$A$161:$GX$179,FY$1)","v":7},{"$f":"VLOOKUP(DropDownList!$B$24,CntyQryCensus!$A$161:$GX$179,FZ$1)","v":75},{"$f":"VLOOKUP(DropDownList!$B$24,CntyQryCensus!$A$161:$GX$179,GA$1)","v":86},{"$f":"VLOOKUP(DropDownList!$B$24,CntyQryCensus!$A$161:$GX$179,GB$1)","v":17},{"$f":"VLOOKUP(DropDownList!$B$24,CntyQryCensus!$A$161:$GX$179,GC$1)","v":2},{"$f":"VLOOKUP(DropDownList!$B$24,CntyQryCensus!$A$161:$GX$179,GD$1)","v":50},{"$f":"VLOOKUP(DropDownList!$B$24,CntyQryCensus!$A$161:$GX$179,GE$1)","v":0},{"$f":"VLOOKUP(DropDownList!$B$24,CntyQryCensus!$A$161:$GX$179,GF$1)","v":9},{"$f":"VLOOKUP(DropDownList!$B$24,CntyQryCensus!$A$161:$GX$179,GG$1)","v":15},{"$f":"VLOOKUP(DropDownList!$B$24,CntyQryCensus!$A$161:$GX$179,GH$1)","v":16},{"$f":"VLOOKUP(DropDownList!$B$24,CntyQryCensus!$A$161:$GX$179,GI$1)","v":10},{"$f":"VLOOKUP(DropDownList!$B$24,CntyQryCensus!$A$161:$GX$179,GJ$1)","v":0},{"$f":"VLOOKUP(DropDownList!$B$24,CntyQryCensus!$A$161:$GX$179,GK$1)","v":237},{"$f":"VLOOKUP(DropDownList!$B$24,CntyQryCensus!$A$161:$GX$179,GL$1)","v":187},{"$f":"VLOOKUP(DropDownList!$B$24,CntyQryCensus!$A$161:$GX$179,GM$1)","v":187},{"$f":"VLOOKUP(DropDownList!$B$24,CntyQryCensus!$A$161:$GX$179,GN$1)","v":0},{"$f":"VLOOKUP(DropDownList!$B$24,CntyQryCensus!$A$161:$GX$179,GO$1)","v":50},{"$f":"VLOOKUP(DropDownList!$B$24,CntyQryCensus!$A$161:$GX$179,GP$1)","v":50},{"$f":"VLOOKUP(DropDownList!$B$24,CntyQryCensus!$A$161:$GX$179,GQ$1)","v":0},{"$f":"VLOOKUP(DropDownList!$B$24,CntyQryCensus!$A$161:$GX$179,GR$1)","v":237},{"$f":"VLOOKUP(DropDownList!$B$24,CntyQryCensus!$A$161:$GX$179,GS$1)","v":187},{"$f":"VLOOKUP(DropDownList!$B$24,CntyQryCensus!$A$161:$GX$179,GT$1)","v":187},{"$f":"VLOOKUP(DropDownList!$B$24,CntyQryCensus!$A$161:$GX$179,GU$1)","v":0},{"$f":"VLOOKUP(DropDownList!$B$24,CntyQryCensus!$A$161:$GX$179,GV$1)","v":50},{"$f":"VLOOKUP(DropDownList!$B$24,CntyQryCensus!$A$161:$GX$179,GW$1)","v":50},{"$f":"VLOOKUP(DropDownList!$B$24,CntyQryCensus!$A$161:$GX$179,GX$1)","v":0}]
[]
[]
["Census 2000 SummaryFile3 Sample Data  -  SF3TownQry8HousingCostA"]
["NAME","LOGRECNO","COUNTY","TotalPop","H62RntrOccHU","H62RntrOccHUwRent","H62ROHUGRent<100","H62ROHUGRent100to149","H62ROHUGRent150to199","H62ROHUGRent200to249","H62ROHUGRent250to299","H62ROHUGRent300to349","H62ROHUGRent350to399","H62ROHUGRent400to449","H62ROHUGRent450to499","H62ROHUGRent500to549","H62ROHUGRent550to599","H62ROHUGRent600to649","H62ROHUGRent650to699","H62ROHUGRent700to749","H62ROHUGRent750to799","H62ROHUGRent800to899","H62ROHUGRent900to999","H62ROHUGRent1000to1249","H62ROHUGRent1250to1499","H62ROHUGRent1500to1999","H62ROHUGRent2000>","H62ROHUNoGRent","H63MedianGrossRnt","H69RenterOccHsU","H69GRnt<10PctHHInc","H69GRnt10to15PctHHInc","H69GRnt15to20PctHHInc","H69GRnt20to25PctHHInc","H69GRnt25to30PctHHInc","H69GRnt30to35PctHHInc","H69GRnt35to40PctHHInc","H69GRnt40to50PctHHInc","H69GRnt>50PctHHInc","H69GRntPctNotcomputed","H73RenterOccHU","H73ROHUHhInc<10k","H73ROHUHhInc<10kRnt<20pct","H73ROHUHhInc<10kRnt20to25pct","H73ROHUHhInc<10kRnt25to30pct","H73ROHUHhInc<10kRnt30to35pct","H73ROHUHhInc<10kRnt>35pct","H73ROHUHhInc<10kPctNotComput","H73ROHUHhInc10to20k","H73ROHUHhInc10to20kRnt<20pct","H73ROHUHhInc10to20kRnt20to25pct","H73ROHUHhInc10to20kRnt25to30pct","H73ROHUHhInc10to20kRnt30to35pct","H73ROHUHhInc10to20kRnt>35pct","H73ROHUHhInc10to20kRntPctNC","H73ROHUHhInc20to35k","H73ROHUHhInc20to35kRnt<20pct","H73ROHUHhInc20to35kRnt20to25pct","H73ROHUHhInc20to35kRnt25to30pct","H73ROHUHhInc20to35kRnt30to35pct","H73ROHUHhInc20to35kRnt>35pct","H73ROHUHhInc20to35kRntPctNC","H73ROHUHhInc35to40k","H73ROHUHhInc35to40kRnt<20pct","H73ROHUHhInc35to40kRnt20to25pct","H73ROHUHhInc35to40kRnt25to30pct","H73ROHUHhInc35to40kRnt30to35pct","H73ROHUHhInc35to40kRnt>35pct","H73ROHUHhInc35to40kRntPctNC","H73ROHUHhInc50to75k","H73ROHUHhInc50to75kRnt<20pct","H73ROHUHhInc50to75kRnt20to25pct","H73ROHUHhInc50to75kRnt25to30pct","H73ROHUHhInc50to75kRnt30to35pct","H73ROHUHhInc50to75kRnt>35pct","H73ROHUHhInc50to75kRntPctNC","H73ROHUHhInc75to100k","H73ROHUHhInc75to100kRnt<20pct","H73ROHUHhInc75to100kRnt20to25pct","H73ROHUHhInc75to100kRnt25to30pct","H73ROHUHhInc75to100kRnt30to35pct","H73ROHUHhInc75to100kRnt>35pct","H73ROHUHhInc75to100kRntPctNC","H73ROHUHhInc>100k","H73ROHUHhInc>100kRnt<20pct","H73ROHUHhInc>100kRnt20to25pct","H73ROHUHhInc>100kRnt25to30pct","H73ROHUHhInc>100kRnt30to35pct","H73ROHUHhInc>100kRnt>35pct","H73ROHUHhInc>100kRntPctNC"]
[{"$f":"VLOOKUP(DropDownList!$B$24,CntyQryCensus!$A$187:$CL$205,A$1)","v":"Albany"},{"$f":"VLOOKUP(DropDownList!$B$24,CntyQryCensus!$A$187:$CL$205,B$1)","v":"0000308"},{"$f":"VLOOKUP(DropDownList!$B$24,CntyQryCensus!$A$187:$CL$205,C$1)","v":"00420"},{"$f":"VLOOKUP(DropDownList!$B$24,CntyQryCensus!$A$187:$CL$205,D$1)","v":654},{"$f":"VLOOKUP(DropDownList!$B$24,CntyQryCensus!$A$187:$CL$205,E$1)","v":50},{"$f":"VLOOKUP(DropDownList!$B$24,CntyQryCensus!$A$187:$CL$205,F$1)","v":46},{"$f":"VLOOKUP(DropDownList!$B$24,CntyQryCensus!$A$187:$CL$205,G$1)","v":0},{"$f":"VLOOKUP(DropDownList!$B$24,CntyQryCensus!$A$187:$CL$205,H$1)","v":0},{"$f":"VLOOKUP(DropDownList!$B$24,CntyQryCensus!$A$187:$CL$205,I$1)","v":0},{"$f":"VLOOKUP(DropDownList!$B$24,CntyQryCensus!$A$187:$CL$205,J$1)","v":0},{"$f":"VLOOKUP(DropDownList!$B$24,CntyQryCensus!$A$187:$CL$205,K$1)","v":3},{"$f":"VLOOKUP(DropDownList!$B$24,CntyQryCensus!$A$187:$CL$205,L$1)","v":1},{"$f":"VLOOKUP(DropDownList!$B$24,CntyQryCensus!$A$187:$CL$205,M$1)","v":2},{"$f":"VLOOKUP(DropDownList!$B$24,CntyQryCensus!$A$187:$CL$205,N$1)","v":3},{"$f":"VLOOKUP(DropDownList!$B$24,CntyQryCensus!$A$187:$CL$205,O$1)","v":2},{"$f":"VLOOKUP(DropDownList!$B$24,CntyQryCensus!$A$187:$CL$205,P$1)","v":0},{"$f":"VLOOKUP(DropDownList!$B$24,CntyQryCensus!$A$187:$CL$205,Q$1)","v":4},{"$f":"VLOOKUP(DropDownList!$B$24,CntyQryCensus!$A$187:$CL$205,R$1)","v":4},{"$f":"VLOOKUP(DropDownList!$B$24,CntyQryCensus!$A$187:$CL$205,S$1)","v":8},{"$f":"VLOOKUP(DropDownList!$B$24,CntyQryCensus!$A$187:$CL$205,T$1)","v":9},{"$f":"VLOOKUP(DropDownList!$B$24,CntyQryCensus!$A$187:$CL$205,U$1)","v":2},{"$f":"VLOOKUP(DropDownList!$B$24,CntyQryCensus!$A$187:$CL$205,V$1)","v":6},{"$f":"VLOOKUP(DropDownList!$B$24,CntyQryCensus!$A$187:$CL$205,W$1)","v":2},{"$f":"VLOOKUP(DropDownList!$B$24,CntyQryCensus!$A$187:$CL$205,X$1)","v":0},{"$f":"VLOOKUP(DropDownList!$B$24,CntyQryCensus!$A$187:$CL$205,Y$1)","v":0},{"$f":"VLOOKUP(DropDownList!$B$24,CntyQryCensus!$A$187:$CL$205,Z$1)","v":0},{"$f":"VLOOKUP(DropDownList!$B$24,CntyQryCensus!$A$187:$CL$205,AA$1)","v":0},{"$f":"VLOOKUP(DropDownList!$B$24,CntyQryCensus!$A$187:$CL$205,AB$1)","v":4},{"$f":"VLOOKUP(DropDownList!$B$24,CntyQryCensus!$A$187:$CL$205,AC$1)","v":675},{"$f":"VLOOKUP(DropDownList!$B$24,CntyQryCensus!$A$187:$CL$205,AD$1)","v":50},{"$f":"VLOOKUP(DropDownList!$B$24,CntyQryCensus!$A$187:$CL$205,AE$1)","v":4},{"$f":"VLOOKUP(DropDownList!$B$24,CntyQryCensus!$A$187:$CL$205,AF$1)","v":5},{"$f":"VLOOKUP(DropDownList!$B$24,CntyQryCensus!$A$187:$CL$205,AG$1)","v":5},{"$f":"VLOOKUP(DropDownList!$B$24,CntyQryCensus!$A$187:$CL$205,AH$1)","v":9},{"$f":"VLOOKUP(DropDownList!$B$24,CntyQryCensus!$A$187:$CL$205,AI$1)","v":4},{"$f":"VLOOKUP(DropDownList!$B$24,CntyQryCensus!$A$187:$CL$205,AJ$1)","v":2},{"$f":"VLOOKUP(DropDownList!$B$24,CntyQryCensus!$A$187:$CL$205,AK$1)","v":0},{"$f":"VLOOKUP(DropDownList!$B$24,CntyQryCensus!$A$187:$CL$205,AL$1)","v":8},{"$f":"VLOOKUP(DropDownList!$B$24,CntyQryCensus!$A$187:$CL$205,AM$1)","v":7},{"$f":"VLOOKUP(DropDownList!$B$24,CntyQryCensus!$A$187:$CL$205,AN$1)","v":6},{"$f":"VLOOKUP(DropDownList!$B$24,CntyQryCensus!$A$187:$CL$205,AO$1)","v":50},{"$f":"VLOOKUP(DropDownList!$B$24,CntyQryCensus!$A$187:$CL$205,AP$1)","v":7},{"$f":"VLOOKUP(DropDownList!$B$24,CntyQryCensus!$A$187:$CL$205,AQ$1)","v":0},{"$f":"VLOOKUP(DropDownList!$B$24,CntyQryCensus!$A$187:$CL$205,AR$1)","v":0},{"$f":"VLOOKUP(DropDownList!$B$24,CntyQryCensus!$A$187:$CL$205,AS$1)","v":0},{"$f":"VLOOKUP(DropDownList!$B$24,CntyQryCensus!$A$187:$CL$205,AT$1)","v":0},{"$f":"VLOOKUP(DropDownList!$B$24,CntyQryCensus!$A$187:$CL$205,AU$1)","v":5},{"$f":"VLOOKUP(DropDownList!$B$24,CntyQryCensus!$A$187:$CL$205,AV$1)","v":2},{"$f":"VLOOKUP(DropDownList!$B$24,CntyQryCensus!$A$187:$CL$205,AW$1)","v":13},{"$f":"VLOOKUP(DropDownList!$B$24,CntyQryCensus!$A$187:$CL$205,AX$1)","v":3},{"$f":"VLOOKUP(DropDownList!$B$24,CntyQryCensus!$A$187:$CL$205,AY$1)","v":0},{"$f":"VLOOKUP(DropDownList!$B$24,CntyQryCensus!$A$187:$CL$205,AZ$1)","v":0},{"$f":"VLOOKUP(DropDownList!$B$24,CntyQryCensus!$A$187:$CL$205,BA$1)","v":0},{"$f":"VLOOKUP(DropDownList!$B$24,CntyQryCensus!$A$187:$CL$205,BB$1)","v":8},{"$f":"VLOOKUP(DropDownList!$B$24,CntyQryCensus!$A$187:$CL$205,BC$1)","v":2},{"$f":"VLOOKUP(DropDownList!$B$24,CntyQryCensus!$A$187:$CL$205,BD$1)","v":10},{"$f":"VLOOKUP(DropDownList!$B$24,CntyQryCensus!$A$187:$CL$205,BE$1)","v":0},{"$f":"VLOOKUP(DropDownList!$B$24,CntyQryCensus!$A$187:$CL$205,BF$1)","v":0},{"$f":"VLOOKUP(DropDownList!$B$24,CntyQryCensus!$A$187:$CL$205,BG$1)","v":4},{"$f":"VLOOKUP(DropDownList!$B$24,CntyQryCensus!$A$187:$CL$205,BH$1)","v":2},{"$f":"VLOOKUP(DropDownList!$B$24,CntyQryCensus!$A$187:$CL$205,BI$1)","v":2},{"$f":"VLOOKUP(DropDownList!$B$24,CntyQryCensus!$A$187:$CL$205,BJ$1)","v":2},{"$f":"VLOOKUP(DropDownList!$B$24,CntyQryCensus!$A$187:$CL$205,BK$1)","v":7},{"$f":"VLOOKUP(DropDownList!$B$24,CntyQryCensus!$A$187:$CL$205,BL$1)","v":0},{"$f":"VLOOKUP(DropDownList!$B$24,CntyQryCensus!$A$187:$CL$205,BM$1)","v":7},{"$f":"VLOOKUP(DropDownList!$B$24,CntyQryCensus!$A$187:$CL$205,BN$1)","v":0},{"$f":"VLOOKUP(DropDownList!$B$24,CntyQryCensus!$A$187:$CL$205,BO$1)","v":0},{"$f":"VLOOKUP(DropDownList!$B$24,CntyQryCensus!$A$187:$CL$205,BP$1)","v":0},{"$f":"VLOOKUP(DropDownList!$B$24,CntyQryCensus!$A$187:$CL$205,BQ$1)","v":0},{"$f":"VLOOKUP(DropDownList!$B$24,CntyQryCensus!$A$187:$CL$205,BR$1)","v":9},{"$f":"VLOOKUP(DropDownList!$B$24,CntyQryCensus!$A$187:$CL$205,BS$1)","v":7},{"$f":"VLOOKUP(DropDownList!$B$24,CntyQryCensus!$A$187:$CL$205,BT$1)","v":2},{"$f":"VLOOKUP(DropDownList!$B$24,CntyQryCensus!$A$187:$CL$205,BU$1)","v":0},{"$f":"VLOOKUP(DropDownList!$B$24,CntyQryCensus!$A$187:$CL$205,BV$1)","v":0},{"$f":"VLOOKUP(DropDownList!$B$24,CntyQryCensus!$A$187:$CL$205,BW$1)","v":0},{"$f":"VLOOKUP(DropDownList!$B$24,CntyQryCensus!$A$187:$CL$205,BX$1)","v":0},{"$f":"VLOOKUP(DropDownList!$B$24,CntyQryCensus!$A$187:$CL$205,BY$1)","v":2},{"$f":"VLOOKUP(DropDownList!$B$24,CntyQryCensus!$A$187:$CL$205,BZ$1)","v":2},{"$f":"VLOOKUP(DropDownList!$B$24,CntyQryCensus!$A$187:$CL$205,CA$1)","v":0},{"$f":"VLOOKUP(DropDownList!$B$24,CntyQryCensus!$A$187:$CL$205,CB$1)","v":0},{"$f":"VLOOKUP(DropDownList!$B$24,CntyQryCensus!$A$187:$CL$205,CC$1)","v":0},{"$f":"VLOOKUP(DropDownList!$B$24,CntyQryCensus!$A$187:$CL$205,CD$1)","v":0},{"$f":"VLOOKUP(DropDownList!$B$24,CntyQryCensus!$A$187:$CL$205,CE$1)","v":0},{"$f":"VLOOKUP(DropDownList!$B$24,CntyQryCensus!$A$187:$CL$205,CF$1)","v":2},{"$f":"VLOOKUP(DropDownList!$B$24,CntyQryCensus!$A$187:$CL$205,CG$1)","v":2},{"$f":"VLOOKUP(DropDownList!$B$24,CntyQryCensus!$A$187:$CL$205,CH$1)","v":0},{"$f":"VLOOKUP(DropDownList!$B$24,CntyQryCensus!$A$187:$CL$205,CI$1)","v":0},{"$f":"VLOOKUP(DropDownList!$B$24,CntyQryCensus!$A$187:$CL$205,CJ$1)","v":0},{"$f":"VLOOKUP(DropDownList!$B$24,CntyQryCensus!$A$187:$CL$205,CK$1)","v":0},{"$f":"VLOOKUP(DropDownList!$B$24,CntyQryCensus!$A$187:$CL$205,CL$1)","v":0}]
[]
[]
["Census 2000 SummaryFile3 Sample Data  -  SF3TownQry8HousingCostB"]
["NAME","LOGRECNO","COUNTY","TotalPop","H74SpecOwnerOccHU","H74OOHU<10k","H74OOHU10to15k","H74OOHU15to20k","H74OOHU20to25k","H74OOHU25to30k","H74OOHU30to35k","H74OOHU35to40k","H74OOHU40to50k","H74OOHU50to60k","H74OOHU60to70k","H74OOHU70to80k","H74OOHU80to90k","H74OOHU90to100k","H74OOHU100to125k","H74OOHU125to150k","H74OOHU150to175k","H74OOHU175to200k","H74OOHU200to250k","H74OOHU250to300k","H74OOHU300to400k","H74OOHU400to500k","H74OOHU500to750k","H74OOHU750to1000k","H74OOHU1000kmore","H76OOHUMedianVal","H84OwnerOccHU","H84AllOOHU<10k","H84AllOOHU10to15k","H84AllOOHU15to20k","H84AllOOHU20to25k","H84AllOOHU25to30k","H84AllOOHU30to35k","H84AllOOHU35to40k","H84AllOOHU40to50k","H84AllOOHU50to60k","H84AllOOHU60to70k","H84AllOOHU70to80k","H84AllOOHU80to90k","H84AllOOHU90to100k","H84AllOOHU100to125k","H84AllOOHU125to150k","H84AllOOHU150to175k","H84AllOOHU175to200k","H84AllOOHU200to250k","H84AllOOHU250to300k","H84AllOOHU300to400k","H84AllOOHU400to500k","H84AllOOHU500to750k","H84AllOOHU750to1000k","H84AllOOHU1000kmore","H85OOHUMedVal","H90SOOHU","H90HUwMorgt","H90HUwMtgHC<200","H90HUwMtgHC200to300","H90HUwMtgHC300to400","H90HUwMtgHC400to500","H90HUwMtgHC500to600","H90HUwMtgHC600to700","H90HUwMtgHC700to800","H90HUwMtgHC800to900","H90HUwMtgHC900to1000","H90HUwMtgHC1000to1250","H90HUwMtgHC1250to1500","H90HUwMtgHC1500to2000","H90HUwMtgHC2000to2500","H90HUwMtgHC2500to3000","H90HUwMtgHC3000orMore","H90HUwOutMorgt","H90HUwOutMtgHC<100","H90HUwOutMtgHC100to150","H90HUwOutMtgHC150to200","H90HUwOutMtgHC200to250","H90HUwOutMtgHC250to300","H90HUwOutMtgHC300to350","H90HUwOutMtgHC350to400","H90HUwOutMtgHC400to500","H90HUwOutMtgHC500to600","H90HUwOutMtgHC600to700","H90HUwOutMtgHC700to800","H90HUwOutMtgHC800to900","H90HUwOutMtgHC900to1000","H90HUwOutMtgHC1000orMore","H91MedianOCHUwMtg","H91MedianOCHUwOutMtg","H94SpecOOHU","H94HUwMortg","H94HUwMtgHC<10pct","H94HUwMtgHC10to15pct","H94HUwMtgHC15to20pct","H94HUwMtgHC20to25pct","H94HUwMtgHC25to30pct","H94HUwMtgHC30to35pct","H94HUwMtgHC35to40pct","H94HUwMtgHC40to50pct","H94HUwMtgHC50pctOrMore","H94HUwMtgHCpctNotComp","H94HUWOutMortg","H94HUWOutMortgHC<10pct","H94HUWOutMortgHC10to15pct","H94HUWOutMortgHC15to20pct","H94HUWOutMortgHC20to25pct","H94HUWOutMortgHC25to30pct","H94HUWOutMortgHC30to35pct","H94HUWOutMortgHC35to40pct","H94HUWOutMortgHC40to50pct","H94HUWOutMortgHC50pctOrMore","H94HUWOutMortgHCpctNotComp","H97SpecifOwnOccHU","H97SOOHUInc<10k","H97SOOHUInc<10kHC<20pct","H97SOOHUInc<10kHC20to25pct","H97SOOHUInc<10kHC25to30pct","H97SOOHUInc<10kHC30to35pct","H97SOOHUInc<10kHC>35pct","H97SOOHUInc<10kHCpctNotComput","H97SOOHUInc10to20k","H97SOOHUInc10to20kHC<20pct","H97SOOHUInc10to20kHC20to25pct","H97SOOHUInc10to20kHC25to30pct","H97SOOHUInc10to20kHC30to35pct","H97SOOHUInc10to20kHC>35pct","H97SOOHUInc10to20kHCpctNotComput","H97SOOHUInc20to35k","H97SOOHUInc20to35kRC<20pct","H97SOOHUInc20to35kRC20to25pct","H97SOOHUInc20to35kRC25to30pct","H97SOOHUInc20to35kRC30to35pct","H97SOOHUInc20to35kRC>35pct","H97SOOHUInc20to35kRCpctNotComput","H97SOOHUInc35to50k","H97SOOHUInc35to50kRC<20pct","H97SOOHUInc35to50kRC20to25pct","H97SOOHUInc35to50kRC25to30pct","H97SOOHUInc35to50kRC30to35pct","H97SOOHUInc35to50kRC>35pct","H97SOOHUInc35to50kRCpctNotCompute","H97SOOHUInc50to75k","H97SOOHUInc50to75kRC<20pct","H97SOOHUInc50to75kRC20to25pct","H97SOOHUInc50to75kRC25to30pct","H97SOOHUInc50to75kRC30to35pct","H97SOOHUInc50to75kRC>35pct","H97SOOHUInc50to75kRCpctNotComput","H97SOOHUInc75to100k","H97SOOHUInc75to100kRC<20pct","H97SOOHUInc75to100kRC20to25pct","H97SOOHUInc75to100kRC25to30pct","H97SOOHUInc75to100kRC30to35pct","H97SOOHUInc75to100kRC>35pct","H97SOOHUInc75to100kRCpctNotCompute","H97SOOHUInc100to150k","H97SOOHUInc100to150kRC<20pct","H97SOOHUInc100to150kRC20to25pct","H97SOOHUInc100to150kRC25to30pct","H97SOOHUInc100to150kRC30to35pct","H97SOOHUInc100to150kRC>35pct","H97SOOHUInc100to150kRCpctNotCompute","H97SOOHUInc>150k","H97SOOHUInc>150kRC<20pct","H97SOOHUInc>150kRC20to25pct","H97SOOHUInc>150kRC25to30pct","H97SOOHUInc>150kRC30to35pct","H97SOOHUInc>150kRC>35pct","H97SOOHUInc>150kRCpctNotCompute"]
[{"$f":"VLOOKUP(DropDownList!$B$24,CntyQryCensus!$A$213:$FN$231,A$1)","v":"Albany"},{"$f":"VLOOKUP(DropDownList!$B$24,CntyQryCensus!$A$213:$FN$231,B$1)","v":"0000308"},{"$f":"VLOOKUP(DropDownList!$B$24,CntyQryCensus!$A$213:$FN$231,C$1)","v":"00420"},{"$f":"VLOOKUP(DropDownList!$B$24,CntyQryCensus!$A$213:$FN$231,D$1)","v":654},{"$f":"VLOOKUP(DropDownList!$B$24,CntyQryCensus!$A$213:$FN$231,E$1)","v":122},{"$f":"VLOOKUP(DropDownList!$B$24,CntyQryCensus!$A$213:$FN$231,F$1)","v":2},{"$f":"VLOOKUP(DropDownList!$B$24,CntyQryCensus!$A$213:$FN$231,G$1)","v":0},{"$f":"VLOOKUP(DropDownList!$B$24,CntyQryCensus!$A$213:$FN$231,H$1)","v":0},{"$f":"VLOOKUP(DropDownList!$B$24,CntyQryCensus!$A$213:$FN$231,I$1)","v":0},{"$f":"VLOOKUP(DropDownList!$B$24,CntyQryCensus!$A$213:$FN$231,J$1)","v":0},{"$f":"VLOOKUP(DropDownList!$B$24,CntyQryCensus!$A$213:$FN$231,K$1)","v":0},{"$f":"VLOOKUP(DropDownList!$B$24,CntyQryCensus!$A$213:$FN$231,L$1)","v":0},{"$f":"VLOOKUP(DropDownList!$B$24,CntyQryCensus!$A$213:$FN$231,M$1)","v":4},{"$f":"VLOOKUP(DropDownList!$B$24,CntyQryCensus!$A$213:$FN$231,N$1)","v":7},{"$f":"VLOOKUP(DropDownList!$B$24,CntyQryCensus!$A$213:$FN$231,O$1)","v":12},{"$f":"VLOOKUP(DropDownList!$B$24,CntyQryCensus!$A$213:$FN$231,P$1)","v":28},{"$f":"VLOOKUP(DropDownList!$B$24,CntyQryCensus!$A$213:$FN$231,Q$1)","v":14},{"$f":"VLOOKUP(DropDownList!$B$24,CntyQryCensus!$A$213:$FN$231,R$1)","v":7},{"$f":"VLOOKUP(DropDownList!$B$24,CntyQryCensus!$A$213:$FN$231,S$1)","v":16},{"$f":"VLOOKUP(DropDownList!$B$24,CntyQryCensus!$A$213:$FN$231,T$1)","v":12},{"$f":"VLOOKUP(DropDownList!$B$24,CntyQryCensus!$A$213:$FN$231,U$1)","v":14},{"$f":"VLOOKUP(DropDownList!$B$24,CntyQryCensus!$A$213:$FN$231,V$1)","v":2},{"$f":"VLOOKUP(DropDownList!$B$24,CntyQryCensus!$A$213:$FN$231,W$1)","v":0},{"$f":"VLOOKUP(DropDownList!$B$24,CntyQryCensus!$A$213:$FN$231,X$1)","v":2},{"$f":"VLOOKUP(DropDownList!$B$24,CntyQryCensus!$A$213:$FN$231,Y$1)","v":0},{"$f":"VLOOKUP(DropDownList!$B$24,CntyQryCensus!$A$213:$FN$231,Z$1)","v":2},{"$f":"VLOOKUP(DropDownList!$B$24,CntyQryCensus!$A$213:$FN$231,AA$1)","v":0},{"$f":"VLOOKUP(DropDownList!$B$24,CntyQryCensus!$A$213:$FN$231,AB$1)","v":0},{"$f":"VLOOKUP(DropDownList!$B$24,CntyQryCensus!$A$213:$FN$231,AC$1)","v":0},{"$f":"VLOOKUP(DropDownList!$B$24,CntyQryCensus!$A$213:$FN$231,AD$1)","v":85700},{"$f":"VLOOKUP(DropDownList!$B$24,CntyQryCensus!$A$213:$FN$231,AE$1)","v":187},{"$f":"VLOOKUP(DropDownList!$B$24,CntyQryCensus!$A$213:$FN$231,AF$1)","v":4},{"$f":"VLOOKUP(DropDownList!$B$24,CntyQryCensus!$A$213:$FN$231,AG$1)","v":12},{"$f":"VLOOKUP(DropDownList!$B$24,CntyQryCensus!$A$213:$FN$231,AH$1)","v":8},{"$f":"VLOOKUP(DropDownList!$B$24,CntyQryCensus!$A$213:$FN$231,AI$1)","v":14},{"$f":"VLOOKUP(DropDownList!$B$24,CntyQryCensus!$A$213:$FN$231,AJ$1)","v":3},{"$f":"VLOOKUP(DropDownList!$B$24,CntyQryCensus!$A$213:$FN$231,AK$1)","v":3},{"$f":"VLOOKUP(DropDownList!$B$24,CntyQryCensus!$A$213:$FN$231,AL$1)","v":0},{"$f":"VLOOKUP(DropDownList!$B$24,CntyQryCensus!$A$213:$FN$231,AM$1)","v":12},{"$f":"VLOOKUP(DropDownList!$B$24,CntyQryCensus!$A$213:$FN$231,AN$1)","v":7},{"$f":"VLOOKUP(DropDownList!$B$24,CntyQryCensus!$A$213:$FN$231,AO$1)","v":12},{"$f":"VLOOKUP(DropDownList!$B$24,CntyQryCensus!$A$213:$FN$231,AP$1)","v":30},{"$f":"VLOOKUP(DropDownList!$B$24,CntyQryCensus!$A$213:$FN$231,AQ$1)","v":14},{"$f":"VLOOKUP(DropDownList!$B$24,CntyQryCensus!$A$213:$FN$231,AR$1)","v":7},{"$f":"VLOOKUP(DropDownList!$B$24,CntyQryCensus!$A$213:$FN$231,AS$1)","v":20},{"$f":"VLOOKUP(DropDownList!$B$24,CntyQryCensus!$A$213:$FN$231,AT$1)","v":14},{"$f":"VLOOKUP(DropDownList!$B$24,CntyQryCensus!$A$213:$FN$231,AU$1)","v":16},{"$f":"VLOOKUP(DropDownList!$B$24,CntyQryCensus!$A$213:$FN$231,AV$1)","v":4},{"$f":"VLOOKUP(DropDownList!$B$24,CntyQryCensus!$A$213:$FN$231,AW$1)","v":0},{"$f":"VLOOKUP(DropDownList!$B$24,CntyQryCensus!$A$213:$FN$231,AX$1)","v":2},{"$f":"VLOOKUP(DropDownList!$B$24,CntyQryCensus!$A$213:$FN$231,AY$1)","v":0},{"$f":"VLOOKUP(DropDownList!$B$24,CntyQryCensus!$A$213:$FN$231,AZ$1)","v":2},{"$f":"VLOOKUP(DropDownList!$B$24,CntyQryCensus!$A$213:$FN$231,BA$1)","v":3},{"$f":"VLOOKUP(DropDownList!$B$24,CntyQryCensus!$A$213:$FN$231,BB$1)","v":0},{"$f":"VLOOKUP(DropDownList!$B$24,CntyQryCensus!$A$213:$FN$231,BC$1)","v":0},{"$f":"VLOOKUP(DropDownList!$B$24,CntyQryCensus!$A$213:$FN$231,BD$1)","v":76200},{"$f":"VLOOKUP(DropDownList!$B$24,CntyQryCensus!$A$213:$FN$231,BE$1)","v":122},{"$f":"VLOOKUP(DropDownList!$B$24,CntyQryCensus!$A$213:$FN$231,BF$1)","v":84},{"$f":"VLOOKUP(DropDownList!$B$24,CntyQryCensus!$A$213:$FN$231,BG$1)","v":0},{"$f":"VLOOKUP(DropDownList!$B$24,CntyQryCensus!$A$213:$FN$231,BH$1)","v":3},{"$f":"VLOOKUP(DropDownList!$B$24,CntyQryCensus!$A$213:$FN$231,BI$1)","v":2},{"$f":"VLOOKUP(DropDownList!$B$24,CntyQryCensus!$A$213:$FN$231,BJ$1)","v":11},{"$f":"VLOOKUP(DropDownList!$B$24,CntyQryCensus!$A$213:$FN$231,BK$1)","v":8},{"$f":"VLOOKUP(DropDownList!$B$24,CntyQryCensus!$A$213:$FN$231,BL$1)","v":12},{"$f":"VLOOKUP(DropDownList!$B$24,CntyQryCensus!$A$213:$FN$231,BM$1)","v":13},{"$f":"VLOOKUP(DropDownList!$B$24,CntyQryCensus!$A$213:$FN$231,BN$1)","v":9},{"$f":"VLOOKUP(DropDownList!$B$24,CntyQryCensus!$A$213:$FN$231,BO$1)","v":10},{"$f":"VLOOKUP(DropDownList!$B$24,CntyQryCensus!$A$213:$FN$231,BP$1)","v":6},{"$f":"VLOOKUP(DropDownList!$B$24,CntyQryCensus!$A$213:$FN$231,BQ$1)","v":4},{"$f":"VLOOKUP(DropDownList!$B$24,CntyQryCensus!$A$213:$FN$231,BR$1)","v":4},{"$f":"VLOOKUP(DropDownList!$B$24,CntyQryCensus!$A$213:$FN$231,BS$1)","v":0},{"$f":"VLOOKUP(DropDownList!$B$24,CntyQryCensus!$A$213:$FN$231,BT$1)","v":0},{"$f":"VLOOKUP(DropDownList!$B$24,CntyQryCensus!$A$213:$FN$231,BU$1)","v":2},{"$f":"VLOOKUP(DropDownList!$B$24,CntyQryCensus!$A$213:$FN$231,BV$1)","v":38},{"$f":"VLOOKUP(DropDownList!$B$24,CntyQryCensus!$A$213:$FN$231,BW$1)","v":2},{"$f":"VLOOKUP(DropDownList!$B$24,CntyQryCensus!$A$213:$FN$231,BX$1)","v":2},{"$f":"VLOOKUP(DropDownList!$B$24,CntyQryCensus!$A$213:$FN$231,BY$1)","v":2},{"$f":"VLOOKUP(DropDownList!$B$24,CntyQryCensus!$A$213:$FN$231,BZ$1)","v":0},{"$f":"VLOOKUP(DropDownList!$B$24,CntyQryCensus!$A$213:$FN$231,CA$1)","v":3},{"$f":"VLOOKUP(DropDownList!$B$24,CntyQryCensus!$A$213:$FN$231,CB$1)","v":10},{"$f":"VLOOKUP(DropDownList!$B$24,CntyQryCensus!$A$213:$FN$231,CC$1)","v":6},{"$f":"VLOOKUP(DropDownList!$B$24,CntyQryCensus!$A$213:$FN$231,CD$1)","v":5},{"$f":"VLOOKUP(DropDownList!$B$24,CntyQryCensus!$A$213:$FN$231,CE$1)","v":6},{"$f":"VLOOKUP(DropDownList!$B$24,CntyQryCensus!$A$213:$FN$231,CF$1)","v":0},{"$f":"VLOOKUP(DropDownList!$B$24,CntyQryCensus!$A$213:$FN$231,CG$1)","v":2},{"$f":"VLOOKUP(DropDownList!$B$24,CntyQryCensus!$A$213:$FN$231,CH$1)","v":0},{"$f":"VLOOKUP(DropDownList!$B$24,CntyQryCensus!$A$213:$FN$231,CI$1)","v":0},{"$f":"VLOOKUP(DropDownList!$B$24,CntyQryCensus!$A$213:$FN$231,CJ$1)","v":0},{"$f":"VLOOKUP(DropDownList!$B$24,CntyQryCensus!$A$213:$FN$231,CK$1)","v":746},{"$f":"VLOOKUP(DropDownList!$B$24,CntyQryCensus!$A$213:$FN$231,CL$1)","v":350},{"$f":"VLOOKUP(DropDownList!$B$24,CntyQryCensus!$A$213:$FN$231,CM$1)","v":122},{"$f":"VLOOKUP(DropDownList!$B$24,CntyQryCensus!$A$213:$FN$231,CN$1)","v":84},{"$f":"VLOOKUP(DropDownList!$B$24,CntyQryCensus!$A$213:$FN$231,CO$1)","v":6},{"$f":"VLOOKUP(DropDownList!$B$24,CntyQryCensus!$A$213:$FN$231,CP$1)","v":9},{"$f":"VLOOKUP(DropDownList!$B$24,CntyQryCensus!$A$213:$FN$231,CQ$1)","v":32},{"$f":"VLOOKUP(DropDownList!$B$24,CntyQryCensus!$A$213:$FN$231,CR$1)","v":8},{"$f":"VLOOKUP(DropDownList!$B$24,CntyQryCensus!$A$213:$FN$231,CS$1)","v":10},{"$f":"VLOOKUP(DropDownList!$B$24,CntyQryCensus!$A$213:$FN$231,CT$1)","v":6},{"$f":"VLOOKUP(DropDownList!$B$24,CntyQryCensus!$A$213:$FN$231,CU$1)","v":2},{"$f":"VLOOKUP(DropDownList!$B$24,CntyQryCensus!$A$213:$FN$231,CV$1)","v":7},{"$f":"VLOOKUP(DropDownList!$B$24,CntyQryCensus!$A$213:$FN$231,CW$1)","v":4},{"$f":"VLOOKUP(DropDownList!$B$24,CntyQryCensus!$A$213:$FN$231,CX$1)","v":0},{"$f":"VLOOKUP(DropDownList!$B$24,CntyQryCensus!$A$213:$FN$231,CY$1)","v":38},{"$f":"VLOOKUP(DropDownList!$B$24,CntyQryCensus!$A$213:$FN$231,CZ$1)","v":6},{"$f":"VLOOKUP(DropDownList!$B$24,CntyQryCensus!$A$213:$FN$231,DA$1)","v":8},{"$f":"VLOOKUP(DropDownList!$B$24,CntyQryCensus!$A$213:$FN$231,DB$1)","v":5},{"$f":"VLOOKUP(DropDownList!$B$24,CntyQryCensus!$A$213:$FN$231,DC$1)","v":7},{"$f":"VLOOKUP(DropDownList!$B$24,CntyQryCensus!$A$213:$FN$231,DD$1)","v":2},{"$f":"VLOOKUP(DropDownList!$B$24,CntyQryCensus!$A$213:$FN$231,DE$1)","v":0},{"$f":"VLOOKUP(DropDownList!$B$24,CntyQryCensus!$A$213:$FN$231,DF$1)","v":0},{"$f":"VLOOKUP(DropDownList!$B$24,CntyQryCensus!$A$213:$FN$231,DG$1)","v":4},{"$f":"VLOOKUP(DropDownList!$B$24,CntyQryCensus!$A$213:$FN$231,DH$1)","v":6},{"$f":"VLOOKUP(DropDownList!$B$24,CntyQryCensus!$A$213:$FN$231,DI$1)","v":0},{"$f":"VLOOKUP(DropDownList!$B$24,CntyQryCensus!$A$213:$FN$231,DJ$1)","v":122},{"$f":"VLOOKUP(DropDownList!$B$24,CntyQryCensus!$A$213:$FN$231,DK$1)","v":9},{"$f":"VLOOKUP(DropDownList!$B$24,CntyQryCensus!$A$213:$FN$231,DL$1)","v":0},{"$f":"VLOOKUP(DropDownList!$B$24,CntyQryCensus!$A$213:$FN$231,DM$1)","v":2},{"$f":"VLOOKUP(DropDownList!$B$24,CntyQryCensus!$A$213:$FN$231,DN$1)","v":0},{"$f":"VLOOKUP(DropDownList!$B$24,CntyQryCensus!$A$213:$FN$231,DO$1)","v":0},{"$f":"VLOOKUP(DropDownList!$B$24,CntyQryCensus!$A$213:$FN$231,DP$1)","v":7},{"$f":"VLOOKUP(DropDownList!$B$24,CntyQryCensus!$A$213:$FN$231,DQ$1)","v":0},{"$f":"VLOOKUP(DropDownList!$B$24,CntyQryCensus!$A$213:$FN$231,DR$1)","v":17},{"$f":"VLOOKUP(DropDownList!$B$24,CntyQryCensus!$A$213:$FN$231,DS$1)","v":3},{"$f":"VLOOKUP(DropDownList!$B$24,CntyQryCensus!$A$213:$FN$231,DT$1)","v":3},{"$f":"VLOOKUP(DropDownList!$B$24,CntyQryCensus!$A$213:$FN$231,DU$1)","v":2},{"$f":"VLOOKUP(DropDownList!$B$24,CntyQryCensus!$A$213:$FN$231,DV$1)","v":0},{"$f":"VLOOKUP(DropDownList!$B$24,CntyQryCensus!$A$213:$FN$231,DW$1)","v":9},{"$f":"VLOOKUP(DropDownList!$B$24,CntyQryCensus!$A$213:$FN$231,DX$1)","v":0},{"$f":"VLOOKUP(DropDownList!$B$24,CntyQryCensus!$A$213:$FN$231,DY$1)","v":21},{"$f":"VLOOKUP(DropDownList!$B$24,CntyQryCensus!$A$213:$FN$231,DZ$1)","v":10},{"$f":"VLOOKUP(DropDownList!$B$24,CntyQryCensus!$A$213:$FN$231,EA$1)","v":2},{"$f":"VLOOKUP(DropDownList!$B$24,CntyQryCensus!$A$213:$FN$231,EB$1)","v":2},{"$f":"VLOOKUP(DropDownList!$B$24,CntyQryCensus!$A$213:$FN$231,EC$1)","v":2},{"$f":"VLOOKUP(DropDownList!$B$24,CntyQryCensus!$A$213:$FN$231,ED$1)","v":5},{"$f":"VLOOKUP(DropDownList!$B$24,CntyQryCensus!$A$213:$FN$231,EE$1)","v":0},{"$f":"VLOOKUP(DropDownList!$B$24,CntyQryCensus!$A$213:$FN$231,EF$1)","v":38},{"$f":"VLOOKUP(DropDownList!$B$24,CntyQryCensus!$A$213:$FN$231,EG$1)","v":21},{"$f":"VLOOKUP(DropDownList!$B$24,CntyQryCensus!$A$213:$FN$231,EH$1)","v":7},{"$f":"VLOOKUP(DropDownList!$B$24,CntyQryCensus!$A$213:$FN$231,EI$1)","v":6},{"$f":"VLOOKUP(DropDownList!$B$24,CntyQryCensus!$A$213:$FN$231,EJ$1)","v":2},{"$f":"VLOOKUP(DropDownList!$B$24,CntyQryCensus!$A$213:$FN$231,EK$1)","v":2},{"$f":"VLOOKUP(DropDownList!$B$24,CntyQryCensus!$A$213:$FN$231,EL$1)","v":0},{"$f":"VLOOKUP(DropDownList!$B$24,CntyQryCensus!$A$213:$FN$231,EM$1)","v":27},{"$f":"VLOOKUP(DropDownList!$B$24,CntyQryCensus!$A$213:$FN$231,EN$1)","v":22},{"$f":"VLOOKUP(DropDownList!$B$24,CntyQryCensus!$A$213:$FN$231,EO$1)","v":1},{"$f":"VLOOKUP(DropDownList!$B$24,CntyQryCensus!$A$213:$FN$231,EP$1)","v":2},{"$f":"VLOOKUP(DropDownList!$B$24,CntyQryCensus!$A$213:$FN$231,EQ$1)","v":2},{"$f":"VLOOKUP(DropDownList!$B$24,CntyQryCensus!$A$213:$FN$231,ER$1)","v":0},{"$f":"VLOOKUP(DropDownList!$B$24,CntyQryCensus!$A$213:$FN$231,ES$1)","v":0},{"$f":"VLOOKUP(DropDownList!$B$24,CntyQryCensus!$A$213:$FN$231,ET$1)","v":4},{"$f":"VLOOKUP(DropDownList!$B$24,CntyQryCensus!$A$213:$FN$231,EU$1)","v":4},{"$f":"VLOOKUP(DropDownList!$B$24,CntyQryCensus!$A$213:$FN$231,EV$1)","v":0},{"$f":"VLOOKUP(DropDownList!$B$24,CntyQryCensus!$A$213:$FN$231,EW$1)","v":0},{"$f":"VLOOKUP(DropDownList!$B$24,CntyQryCensus!$A$213:$FN$231,EX$1)","v":0},{"$f":"VLOOKUP(DropDownList!$B$24,CntyQryCensus!$A$213:$FN$231,EY$1)","v":0},{"$f":"VLOOKUP(DropDownList!$B$24,CntyQryCensus!$A$213:$FN$231,EZ$1)","v":0},{"$f":"VLOOKUP(DropDownList!$B$24,CntyQryCensus!$A$213:$FN$231,FA$1)","v":2},{"$f":"VLOOKUP(DropDownList!$B$24,CntyQryCensus!$A$213:$FN$231,FB$1)","v":2},{"$f":"VLOOKUP(DropDownList!$B$24,CntyQryCensus!$A$213:$FN$231,FC$1)","v":0},{"$f":"VLOOKUP(DropDownList!$B$24,CntyQryCensus!$A$213:$FN$231,FD$1)","v":0},{"$f":"VLOOKUP(DropDownList!$B$24,CntyQryCensus!$A$213:$FN$231,FE$1)","v":0},{"$f":"VLOOKUP(DropDownList!$B$24,CntyQryCensus!$A$213:$FN$231,FF$1)","v":0},{"$f":"VLOOKUP(DropDownList!$B$24,CntyQryCensus!$A$213:$FN$231,FG$1)","v":0},{"$f":"VLOOKUP(DropDownList!$B$24,CntyQryCensus!$A$213:$FN$231,FH$1)","v":4},{"$f":"VLOOKUP(DropDownList!$B$24,CntyQryCensus!$A$213:$FN$231,FI$1)","v":4},{"$f":"VLOOKUP(DropDownList!$B$24,CntyQryCensus!$A$213:$FN$231,FJ$1)","v":0},{"$f":"VLOOKUP(DropDownList!$B$24,CntyQryCensus!$A$213:$FN$231,FK$1)","v":0},{"$f":"VLOOKUP(DropDownList!$B$24,CntyQryCensus!$A$213:$FN$231,FL$1)","v":0},{"$f":"VLOOKUP(DropDownList!$B$24,CntyQryCensus!$A$213:$FN$231,FM$1)","v":0},{"$f":"VLOOKUP(DropDownList!$B$24,CntyQryCensus!$A$213:$FN$231,FN$1)","v":0}]
[]
[]
["Census 2000 SummaryFile3 Sample Data  -  SF3TownQry9HHIncomeByTenure"]
["NAME","LOGRECNO","COUNTY","TotalPop","HCT11OccHU","HCT11OwnOccHU","HCT11OOHUInc<5K","HCT11OOHUInc5to10K","HCT11OOHUInc10to15K","HCT11OOHUInc15to20K","HCT11OOHUInc20to25K","HCT11OOHUInc25to35K","HCT11OOHUInc35to50K","HCT11OOHUInc50to75K","HCT11OOHUInc75to100K","HCT11OOHUInc100to150K","HCT11OOHUInc>150K","HCT11RentOccHU","HCT11ROHUInc<5K","HCT11ROHUInc5to10K","HCT11ROHUInc10to15K","HCT11ROHUInc15to20K","HCT11ROHUInc20to25K","HCT11ROHUInc25to35K","HCT11ROHUInc35to50K","HCT11ROHUInc50to75K","HCT11ROHUInc75to100K","HCT11ROHUInc100to150K","HCT11ROHUInc>150K","HCT12MedHHInc","HCT12MedOwnOccHHInc","HCT12MedRentOccHHInc"]
[{"$f":"VLOOKUP(DropDownList!$B$24,CntyQryCensus!$A$239:$AX$257,A$1)","v":"Albany"},{"$f":"VLOOKUP(DropDownList!$B$24,CntyQryCensus!$A$239:$AX$257,B$1)","v":"0000308"},{"$f":"VLOOKUP(DropDownList!$B$24,CntyQryCensus!$A$239:$AX$257,C$1)","v":"00420"},{"$f":"VLOOKUP(DropDownList!$B$24,CntyQryCensus!$A$239:$AX$257,D$1)","v":654},{"$f":"VLOOKUP(DropDownList!$B$24,CntyQryCensus!$A$239:$AX$257,E$1)","v":237},{"$f":"VLOOKUP(DropDownList!$B$24,CntyQryCensus!$A$239:$AX$257,F$1)","v":187},{"$f":"VLOOKUP(DropDownList!$B$24,CntyQryCensus!$A$239:$AX$257,G$1)","v":4},{"$f":"VLOOKUP(DropDownList!$B$24,CntyQryCensus!$A$239:$AX$257,H$1)","v":11},{"$f":"VLOOKUP(DropDownList!$B$24,CntyQryCensus!$A$239:$AX$257,I$1)","v":22},{"$f":"VLOOKUP(DropDownList!$B$24,CntyQryCensus!$A$239:$AX$257,J$1)","v":19},{"$f":"VLOOKUP(DropDownList!$B$24,CntyQryCensus!$A$239:$AX$257,K$1)","v":10},{"$f":"VLOOKUP(DropDownList!$B$24,CntyQryCensus!$A$239:$AX$257,L$1)","v":20},{"$f":"VLOOKUP(DropDownList!$B$24,CntyQryCensus!$A$239:$AX$257,M$1)","v":45},{"$f":"VLOOKUP(DropDownList!$B$24,CntyQryCensus!$A$239:$AX$257,N$1)","v":37},{"$f":"VLOOKUP(DropDownList!$B$24,CntyQryCensus!$A$239:$AX$257,O$1)","v":8},{"$f":"VLOOKUP(DropDownList!$B$24,CntyQryCensus!$A$239:$AX$257,P$1)","v":2},{"$f":"VLOOKUP(DropDownList!$B$24,CntyQryCensus!$A$239:$AX$257,Q$1)","v":9},{"$f":"VLOOKUP(DropDownList!$B$24,CntyQryCensus!$A$239:$AX$257,R$1)","v":50},{"$f":"VLOOKUP(DropDownList!$B$24,CntyQryCensus!$A$239:$AX$257,S$1)","v":4},{"$f":"VLOOKUP(DropDownList!$B$24,CntyQryCensus!$A$239:$AX$257,T$1)","v":3},{"$f":"VLOOKUP(DropDownList!$B$24,CntyQryCensus!$A$239:$AX$257,U$1)","v":2},{"$f":"VLOOKUP(DropDownList!$B$24,CntyQryCensus!$A$239:$AX$257,V$1)","v":11},{"$f":"VLOOKUP(DropDownList!$B$24,CntyQryCensus!$A$239:$AX$257,W$1)","v":4},{"$f":"VLOOKUP(DropDownList!$B$24,CntyQryCensus!$A$239:$AX$257,X$1)","v":6},{"$f":"VLOOKUP(DropDownList!$B$24,CntyQryCensus!$A$239:$AX$257,Y$1)","v":7},{"$f":"VLOOKUP(DropDownList!$B$24,CntyQryCensus!$A$239:$AX$257,Z$1)","v":9},{"$f":"VLOOKUP(DropDownList!$B$24,CntyQryCensus!$A$239:$AX$257,AA$1)","v":2},{"$f":"VLOOKUP(DropDownList!$B$24,CntyQryCensus!$A$239:$AX$257,AB$1)","v":2},{"$f":"VLOOKUP(DropDownList!$B$24,CntyQryCensus!$A$239:$AX$257,AC$1)","v":0},{"$f":"VLOOKUP(DropDownList!$B$24,CntyQryCensus!$A$239:$AX$257,AD$1)","v":35481},{"$f":"VLOOKUP(DropDownList!$B$24,CntyQryCensus!$A$239:$AX$257,AE$1)","v":36442},{"$f":"VLOOKUP(DropDownList!$B$24,CntyQryCensus!$A$239:$AX$257,AF$1)","v":28750}]
[]
[]
[]
[]
[]
[{"$f":"A96","v":"Albany"}]
[]
[]
[]
[]
[]
[]
[]
["Census 2000 SummaryFile3 Sample Data - SF3TownQry10Disabil"]
["NAME","LOGRECNO","COUNTY","TotalPop","PCT026001-NonInstPop5yrs+","PCT026002-MaleNonInstPop5yrs+","PCT026003","PCT026004","PCT026005","PCT026006","PCT026007","PCT026008","PCT026009","PCT026010","PCT026011","PCT026012","PCT026013","PCT026014","PCT026015","PCT026016","PCT026017","PCT026018","PCT026019","PCT026020","PCT026021","PCT026022","PCT026023","PCT026024","PCT026025","PCT026026","PCT026027","PCT026028","PCT026029","PCT026030","PCT026031","PCT026032","PCT026033","PCT026034","PCT026035","PCT026036","PCT026037","PCT026038","PCT026039","PCT026040","PCT026041","PCT026042","PCT026043","PCT026044","PCT026045","PCT026046","PCT026047","PCT026048","PCT026049","PCT026050","PCT026051","PCT026052","PCT026053","PCT026054","PCT026055","PCT026056","PCT026057","PCT026058","PCT026059","PCT026060","PCT026061","PCT026062","PCT026063","PCT026064","PCT026065","PCT026066","PCT026067","PCT026068","PCT026069","PCT026070","PCT026071","PCT026072","PCT026073","PCT026074","PCT026075","PCT026076","PCT026077","PCT026078","PCT026079","PCT026080","PCT026081","PCT026082","PCT026083","PCT026084","PCT026085","PCT026086","PCT026087","PCT026088","PCT026089","PCT026090","PCT026091","PCT026092","PCT026093","PCT026094","PCT026095","PCT026096","PCT026097","PCT026098","PCT026099","PCT026100","PCT026101"]
[{"$f":"VLOOKUP(DropDownList!$B$24,CntyQuery!$A$70:$CF$88,A$1)","v":"Albany"},{"$f":"VLOOKUP(DropDownList!$B$24,CntyQryCensus!$A$266:$DA$284,B$1)","v":"0000308"},{"$f":"VLOOKUP(DropDownList!$B$24,CntyQryCensus!$A$266:$DA$284,C$1)","v":"00420"},{"$f":"VLOOKUP(DropDownList!$B$24,CntyQryCensus!$A$266:$DA$284,D$1)","v":654},{"$f":"VLOOKUP(DropDownList!$B$24,CntyQryCensus!$A$266:$DA$284,E$1)","v":555},{"$f":"VLOOKUP(DropDownList!$B$24,CntyQryCensus!$A$266:$DA$284,F$1)","v":280},{"$f":"VLOOKUP(DropDownList!$B$24,CntyQryCensus!$A$266:$DA$284,G$1)","v":30},{"$f":"VLOOKUP(DropDownList!$B$24,CntyQryCensus!$A$266:$DA$284,H$1)","v":0},{"$f":"VLOOKUP(DropDownList!$B$24,CntyQryCensus!$A$266:$DA$284,I$1)","v":0},{"$f":"VLOOKUP(DropDownList!$B$24,CntyQryCensus!$A$266:$DA$284,J$1)","v":0},{"$f":"VLOOKUP(DropDownList!$B$24,CntyQryCensus!$A$266:$DA$284,K$1)","v":0},{"$f":"VLOOKUP(DropDownList!$B$24,CntyQryCensus!$A$266:$DA$284,L$1)","v":0},{"$f":"VLOOKUP(DropDownList!$B$24,CntyQryCensus!$A$266:$DA$284,M$1)","v":0},{"$f":"VLOOKUP(DropDownList!$B$24,CntyQryCensus!$A$266:$DA$284,N$1)","v":0},{"$f":"VLOOKUP(DropDownList!$B$24,CntyQryCensus!$A$266:$DA$284,O$1)","v":0},{"$f":"VLOOKUP(DropDownList!$B$24,CntyQryCensus!$A$266:$DA$284,P$1)","v":30},{"$f":"VLOOKUP(DropDownList!$B$24,CntyQryCensus!$A$266:$DA$284,Q$1)","v":24},{"$f":"VLOOKUP(DropDownList!$B$24,CntyQryCensus!$A$266:$DA$284,R$1)","v":5},{"$f":"VLOOKUP(DropDownList!$B$24,CntyQryCensus!$A$266:$DA$284,S$1)","v":0},{"$f":"VLOOKUP(DropDownList!$B$24,CntyQryCensus!$A$266:$DA$284,T$1)","v":0},{"$f":"VLOOKUP(DropDownList!$B$24,CntyQryCensus!$A$266:$DA$284,U$1)","v":1},{"$f":"VLOOKUP(DropDownList!$B$24,CntyQryCensus!$A$266:$DA$284,V$1)","v":0},{"$f":"VLOOKUP(DropDownList!$B$24,CntyQryCensus!$A$266:$DA$284,W$1)","v":0},{"$f":"VLOOKUP(DropDownList!$B$24,CntyQryCensus!$A$266:$DA$284,X$1)","v":4},{"$f":"VLOOKUP(DropDownList!$B$24,CntyQryCensus!$A$266:$DA$284,Y$1)","v":4},{"$f":"VLOOKUP(DropDownList!$B$24,CntyQryCensus!$A$266:$DA$284,Z$1)","v":0},{"$f":"VLOOKUP(DropDownList!$B$24,CntyQryCensus!$A$266:$DA$284,AA$1)","v":4},{"$f":"VLOOKUP(DropDownList!$B$24,CntyQryCensus!$A$266:$DA$284,AB$1)","v":0},{"$f":"VLOOKUP(DropDownList!$B$24,CntyQryCensus!$A$266:$DA$284,AC$1)","v":4},{"$f":"VLOOKUP(DropDownList!$B$24,CntyQryCensus!$A$266:$DA$284,AD$1)","v":15},{"$f":"VLOOKUP(DropDownList!$B$24,CntyQryCensus!$A$266:$DA$284,AE$1)","v":204},{"$f":"VLOOKUP(DropDownList!$B$24,CntyQryCensus!$A$266:$DA$284,AF$1)","v":60},{"$f":"VLOOKUP(DropDownList!$B$24,CntyQryCensus!$A$266:$DA$284,AG$1)","v":3},{"$f":"VLOOKUP(DropDownList!$B$24,CntyQryCensus!$A$266:$DA$284,AH$1)","v":2},{"$f":"VLOOKUP(DropDownList!$B$24,CntyQryCensus!$A$266:$DA$284,AI$1)","v":14},{"$f":"VLOOKUP(DropDownList!$B$24,CntyQryCensus!$A$266:$DA$284,AJ$1)","v":0},{"$f":"VLOOKUP(DropDownList!$B$24,CntyQryCensus!$A$266:$DA$284,AK$1)","v":0},{"$f":"VLOOKUP(DropDownList!$B$24,CntyQryCensus!$A$266:$DA$284,AL$1)","v":41},{"$f":"VLOOKUP(DropDownList!$B$24,CntyQryCensus!$A$266:$DA$284,AM$1)","v":17},{"$f":"VLOOKUP(DropDownList!$B$24,CntyQryCensus!$A$266:$DA$284,AN$1)","v":2},{"$f":"VLOOKUP(DropDownList!$B$24,CntyQryCensus!$A$266:$DA$284,AO$1)","v":15},{"$f":"VLOOKUP(DropDownList!$B$24,CntyQryCensus!$A$266:$DA$284,AP$1)","v":0},{"$f":"VLOOKUP(DropDownList!$B$24,CntyQryCensus!$A$266:$DA$284,AQ$1)","v":15},{"$f":"VLOOKUP(DropDownList!$B$24,CntyQryCensus!$A$266:$DA$284,AR$1)","v":127},{"$f":"VLOOKUP(DropDownList!$B$24,CntyQryCensus!$A$266:$DA$284,AS$1)","v":22},{"$f":"VLOOKUP(DropDownList!$B$24,CntyQryCensus!$A$266:$DA$284,AT$1)","v":4},{"$f":"VLOOKUP(DropDownList!$B$24,CntyQryCensus!$A$266:$DA$284,AU$1)","v":0},{"$f":"VLOOKUP(DropDownList!$B$24,CntyQryCensus!$A$266:$DA$284,AV$1)","v":2},{"$f":"VLOOKUP(DropDownList!$B$24,CntyQryCensus!$A$266:$DA$284,AW$1)","v":2},{"$f":"VLOOKUP(DropDownList!$B$24,CntyQryCensus!$A$266:$DA$284,AX$1)","v":0},{"$f":"VLOOKUP(DropDownList!$B$24,CntyQryCensus!$A$266:$DA$284,AY$1)","v":0},{"$f":"VLOOKUP(DropDownList!$B$24,CntyQryCensus!$A$266:$DA$284,AZ$1)","v":7},{"$f":"VLOOKUP(DropDownList!$B$24,CntyQryCensus!$A$266:$DA$284,BA$1)","v":4},{"$f":"VLOOKUP(DropDownList!$B$24,CntyQryCensus!$A$266:$DA$284,BB$1)","v":3},{"$f":"VLOOKUP(DropDownList!$B$24,CntyQryCensus!$A$266:$DA$284,BC$1)","v":11},{"$f":"VLOOKUP(DropDownList!$B$24,CntyQryCensus!$A$266:$DA$284,BD$1)","v":275},{"$f":"VLOOKUP(DropDownList!$B$24,CntyQryCensus!$A$266:$DA$284,BE$1)","v":56},{"$f":"VLOOKUP(DropDownList!$B$24,CntyQryCensus!$A$266:$DA$284,BF$1)","v":3},{"$f":"VLOOKUP(DropDownList!$B$24,CntyQryCensus!$A$266:$DA$284,BG$1)","v":0},{"$f":"VLOOKUP(DropDownList!$B$24,CntyQryCensus!$A$266:$DA$284,BH$1)","v":3},{"$f":"VLOOKUP(DropDownList!$B$24,CntyQryCensus!$A$266:$DA$284,BI$1)","v":0},{"$f":"VLOOKUP(DropDownList!$B$24,CntyQryCensus!$A$266:$DA$284,BJ$1)","v":0},{"$f":"VLOOKUP(DropDownList!$B$24,CntyQryCensus!$A$266:$DA$284,BK$1)","v":0},{"$f":"VLOOKUP(DropDownList!$B$24,CntyQryCensus!$A$266:$DA$284,BL$1)","v":0},{"$f":"VLOOKUP(DropDownList!$B$24,CntyQryCensus!$A$266:$DA$284,BM$1)","v":0},{"$f":"VLOOKUP(DropDownList!$B$24,CntyQryCensus!$A$266:$DA$284,BN$1)","v":53},{"$f":"VLOOKUP(DropDownList!$B$24,CntyQryCensus!$A$266:$DA$284,BO$1)","v":13},{"$f":"VLOOKUP(DropDownList!$B$24,CntyQryCensus!$A$266:$DA$284,BP$1)","v":4},{"$f":"VLOOKUP(DropDownList!$B$24,CntyQryCensus!$A$266:$DA$284,BQ$1)","v":0},{"$f":"VLOOKUP(DropDownList!$B$24,CntyQryCensus!$A$266:$DA$284,BR$1)","v":0},{"$f":"VLOOKUP(DropDownList!$B$24,CntyQryCensus!$A$266:$DA$284,BS$1)","v":0},{"$f":"VLOOKUP(DropDownList!$B$24,CntyQryCensus!$A$266:$DA$284,BT$1)","v":0},{"$f":"VLOOKUP(DropDownList!$B$24,CntyQryCensus!$A$266:$DA$284,BU$1)","v":0},{"$f":"VLOOKUP(DropDownList!$B$24,CntyQryCensus!$A$266:$DA$284,BV$1)","v":4},{"$f":"VLOOKUP(DropDownList!$B$24,CntyQryCensus!$A$266:$DA$284,BW$1)","v":0},{"$f":"VLOOKUP(DropDownList!$B$24,CntyQryCensus!$A$266:$DA$284,BX$1)","v":0},{"$f":"VLOOKUP(DropDownList!$B$24,CntyQryCensus!$A$266:$DA$284,BY$1)","v":0},{"$f":"VLOOKUP(DropDownList!$B$24,CntyQryCensus!$A$266:$DA$284,BZ$1)","v":0},{"$f":"VLOOKUP(DropDownList!$B$24,CntyQryCensus!$A$266:$DA$284,CA$1)","v":0},{"$f":"VLOOKUP(DropDownList!$B$24,CntyQryCensus!$A$266:$DA$284,CB$1)","v":9},{"$f":"VLOOKUP(DropDownList!$B$24,CntyQryCensus!$A$266:$DA$284,CC$1)","v":182},{"$f":"VLOOKUP(DropDownList!$B$24,CntyQryCensus!$A$266:$DA$284,CD$1)","v":34},{"$f":"VLOOKUP(DropDownList!$B$24,CntyQryCensus!$A$266:$DA$284,CE$1)","v":2},{"$f":"VLOOKUP(DropDownList!$B$24,CntyQryCensus!$A$266:$DA$284,CF$1)","v":4},{"$f":"VLOOKUP(DropDownList!$B$24,CntyQryCensus!$A$266:$DA$284,CG$1)","v":0},{"$f":"VLOOKUP(DropDownList!$B$24,CntyQryCensus!$A$266:$DA$284,CH$1)","v":0},{"$f":"VLOOKUP(DropDownList!$B$24,CntyQryCensus!$A$266:$DA$284,CI$1)","v":0},{"$f":"VLOOKUP(DropDownList!$B$24,CntyQryCensus!$A$266:$DA$284,CJ$1)","v":28},{"$f":"VLOOKUP(DropDownList!$B$24,CntyQryCensus!$A$266:$DA$284,CK$1)","v":24},{"$f":"VLOOKUP(DropDownList!$B$24,CntyQryCensus!$A$266:$DA$284,CL$1)","v":7},{"$f":"VLOOKUP(DropDownList!$B$24,CntyQryCensus!$A$266:$DA$284,CM$1)","v":17},{"$f":"VLOOKUP(DropDownList!$B$24,CntyQryCensus!$A$266:$DA$284,CN$1)","v":0},{"$f":"VLOOKUP(DropDownList!$B$24,CntyQryCensus!$A$266:$DA$284,CO$1)","v":17},{"$f":"VLOOKUP(DropDownList!$B$24,CntyQryCensus!$A$266:$DA$284,CP$1)","v":124},{"$f":"VLOOKUP(DropDownList!$B$24,CntyQryCensus!$A$266:$DA$284,CQ$1)","v":24},{"$f":"VLOOKUP(DropDownList!$B$24,CntyQryCensus!$A$266:$DA$284,CR$1)","v":2},{"$f":"VLOOKUP(DropDownList!$B$24,CntyQryCensus!$A$266:$DA$284,CS$1)","v":0},{"$f":"VLOOKUP(DropDownList!$B$24,CntyQryCensus!$A$266:$DA$284,CT$1)","v":2},{"$f":"VLOOKUP(DropDownList!$B$24,CntyQryCensus!$A$266:$DA$284,CU$1)","v":0},{"$f":"VLOOKUP(DropDownList!$B$24,CntyQryCensus!$A$266:$DA$284,CV$1)","v":0},{"$f":"VLOOKUP(DropDownList!$B$24,CntyQryCensus!$A$266:$DA$284,CW$1)","v":0},{"$f":"VLOOKUP(DropDownList!$B$24,CntyQryCensus!$A$266:$DA$284,CX$1)","v":8},{"$f":"VLOOKUP(DropDownList!$B$24,CntyQryCensus!$A$266:$DA$284,CY$1)","v":6},{"$f":"VLOOKUP(DropDownList!$B$24,CntyQryCensus!$A$266:$DA$284,CZ$1)","v":2},{"$f":"VLOOKUP(DropDownList!$B$24,CntyQryCensus!$A$266:$DA$284,DA$1)","v":14}]
[]
[]
[]
[]
[]
[]
[]
[]
["ACS",2,{"$f":"B105+1","v":3},{"$f":"C105+1","v":4},5,6,7,8,9,10,11,{"$f":"K105+1","v":12},13,14,15,{"$f":"O105+1","v":16},17,18,19,20,21,22,23,24,25,26,27,28,29,30,31,32,33,34,35,36,37,38,39,40,41,42,43,44,45,46,47,48,49,50,51,52,53,54,55,56,57,58,59,60,61,62,63,64,65,66,67,{"$f":"BO105+1","v":68},69,70,71,72,73,74,75,76,77,78,79,80,81,82,83,84,85,86,87,88,89,90,91,92,93,94,95,96,97,98,99,100,101,102,103,104,105,106,107,108,109,110,111,112,113,114,115,116,117,118,119,120,121,122,123,124,125]
["Househould Data (Housing Unit Type)"]
["NAME","TotalHU",{"$f":"\"MOE \"&B107","v":"MOE TotalHU"},"TotalOccHU",{"$f":"\"MOE \"&D107","v":"MOE TotalOccHU"},"TotalOwnerOccUn",{"$f":"\"MOE \"&F107","v":"MOE TotalOwnerOccUn"},"TotalRenterOccn",{"$f":"\"MOE \"&H107","v":"MOE TotalRenterOccn"},"TotalVacantUntis",{"$f":"\"MOE \"&J107","v":"MOE TotalVacantUntis"},"VacantUnitsForRent",{"$f":"\"MOE \"&L107","v":"MOE VacantUnitsForRent"},"VacantUnitRentedNotOcc",{"$f":"\"MOE \"&N107","v":"MOE VacantUnitRentedNotOcc"},"VacantUnitForSale",{"$f":"\"MOE \"&P107","v":"MOE VacantUnitForSale"},"VacantUnitSoldNotOcc",{"$f":"\"MOE \"&R107","v":"MOE VacantUnitSoldNotOcc"},"VacantUnitSeasonalRec",{"$f":"\"MOE \"&T107","v":"MOE VacantUnitSeasonalRec"},"TotalPopInHousingUnits",{"$f":"\"MOE \"&V107","v":"MOE TotalPopInHousingUnits"},"OwnerOccPopHousingUnits",{"$f":"\"MOE \"&X107","v":"MOE OwnerOccPopHousingUnits"},"RenterOccPopHousingUnits",{"$f":"\"MOE \"&Z107","v":"MOE RenterOccPopHousingUnits"},"TotalUntis",{"$f":"\"MOE \"&AB107","v":"MOE TotalUntis"},"TotalOwnerOccUnits",{"$f":"\"MOE \"&AD107","v":"MOE TotalOwnerOccUnits"},"SigFamOwnerOcc",{"$f":"\"MOE \"&AF107","v":"MOE SigFamOwnerOcc"},"MultiFamOwnerOcc",{"$f":"\"MOE \"&AH107","v":"MOE MultiFamOwnerOcc"},"MobileOwnerOcc",{"$f":"\"MOE \"&AJ107","v":"MOE MobileOwnerOcc"},"TotalRenterOccUnits",{"$f":"\"MOE \"&AL107","v":"MOE TotalRenterOccUnits"},"SigFamRenterOcc",{"$f":"\"MOE \"&AN107","v":"MOE SigFamRenterOcc"},"MultiFamRenterOcc",{"$f":"\"MOE \"&AP107","v":"MOE MultiFamRenterOcc"},"MobileRenterOcc",{"$f":"\"MOE \"&AR107","v":"MOE MobileRenterOcc"},"TotalSigFamilyUnits",{"$f":"\"MOE \"&AT107","v":"MOE TotalSigFamilyUnits"},"TotalMultiFamilyUnits",{"$f":"\"MOE \"&AV107","v":"MOE TotalMultiFamilyUnits"},"TotalMobileUnits",{"$f":"\"MOE \"&AX107","v":"MOE TotalMobileUnits"},"YrHouseBuilt2014Later",{"$f":"\"MOE \"&AZ107","v":"MOE YrHouseBuilt2014Later"},"YrHouseBuilt2010-2013",{"$f":"\"MOE \"&BB107","v":"MOE YrHouseBuilt2010-2013"},"YrHouseBuilt2000-2009",{"$f":"\"MOE \"&BD107","v":"MOE YrHouseBuilt2000-2009"},"YrHouseBuilt1990-1999",{"$f":"\"MOE \"&BF107","v":"MOE YrHouseBuilt1990-1999"},"YrHouseBuilt1980-1989",{"$f":"\"MOE \"&BH107","v":"MOE YrHouseBuilt1980-1989"},"YrHouseBuilt1970-1979",{"$f":"\"MOE \"&BJ107","v":"MOE YrHouseBuilt1970-1979"},"YrHouseBuilt1960-1969",{"$f":"\"MOE \"&BL107","v":"MOE YrHouseBuilt1960-1969"},"YrHouseBuilt1950-1959",{"$f":"\"MOE \"&BN107","v":"MOE YrHouseBuilt1950-1959"},"YrHouseBuilt1940-1949",{"$f":"\"MOE \"&BP107","v":"MOE YrHouseBuilt1940-1949"},"YrHouseBuilt1939orEarlier",{"$f":"\"MOE \"&BR107","v":"MOE YrHouseBuilt1939orEarlier"},"NoBedrooms",{"$f":"\"MOE \"&BT107","v":"MOE NoBedrooms"},"1Bedroom",{"$f":"\"MOE \"&BV107","v":"MOE 1Bedroom"},"2Bedroom",{"$f":"\"MOE \"&BX107","v":"MOE 2Bedroom"},"3Bedroom",{"$f":"\"MOE \"&BZ107","v":"MOE 3Bedroom"},"4+Bedroom",{"$f":"\"MOE \"&CB107","v":"MOE 4+Bedroom"}]
[{"$f":"VLOOKUP(DropDownList!$B$24,CntyQuery!$A$70:$CF$88,A$1)","v":"Albany"},542,74,307,58,272,56,35,17,235,53,0,11,0,11,12,13,5,9,199,50,703,142,618,141,85,49,307,58,272,56,216,46,9,29.916550603303182,47,25.495097567963924,35,17,11,9,16,29.240383034426891,8,13.038404810405298,434,68,25,31.480152477394387,83,29.154759474226502,3,4,22,12,66,25,40,18,109,36,92,35,64,31,36,21,22,17,88,30,46,26,39,22,204,45,194,50,59,26.627053911388696]
[]
["Disability Data"]
["NAME","TotalPop",{"$f":"\"MOE \"&B111","v":"MOE TotalPop"},"PopUnder 5 years:",{"$f":"\"MOE \"&D111","v":"MOE PopUnder 5 years:"},{"$f":"D$111&\"-WithDisability\"","v":"PopUnder 5 years:-WithDisability"},{"$f":"\"MOE \"&F111","v":"MOE PopUnder 5 years:-WithDisability"},{"$f":"D111&\"-NoDisability\"","v":"PopUnder 5 years:-NoDisability"},{"$f":"\"MOE \"&H111","v":"MOE PopUnder 5 years:-NoDisability"},"PopUnder 5 to 17years:",{"$f":"\"MOE \"&J111","v":"MOE PopUnder 5 to 17years:"},{"$f":"J$111&\"-WithDisability\"","v":"PopUnder 5 to 17years:-WithDisability"},{"$f":"\"MOE \"&L111","v":"MOE PopUnder 5 to 17years:-WithDisability"},{"$f":"J111&\"-NoDisability\"","v":"PopUnder 5 to 17years:-NoDisability"},{"$f":"\"MOE \"&N111","v":"MOE PopUnder 5 to 17years:-NoDisability"},"PopUnder 18 to 34 years:",{"$f":"\"MOE \"&P111","v":"MOE PopUnder 18 to 34 years:"},{"$f":"P$111&\"-WithDisability\"","v":"PopUnder 18 to 34 years:-WithDisability"},{"$f":"\"MOE \"&R111","v":"MOE PopUnder 18 to 34 years:-WithDisability"},{"$f":"P111&\"-NoDisability\"","v":"PopUnder 18 to 34 years:-NoDisability"},{"$f":"\"MOE \"&T111","v":"MOE PopUnder 18 to 34 years:-NoDisability"},"Pop 35 years to 64:",{"$f":"\"MOE \"&V111","v":"MOE Pop 35 years to 64:"},{"$f":"$V$111&\"-WithDisability\"","v":"Pop 35 years to 64:-WithDisability"},{"$f":"\"MOE \"&X111","v":"MOE Pop 35 years to 64:-WithDisability"},{"$f":"$V$111&\"-NoDisability\"","v":"Pop 35 years to 64:-NoDisability"},{"$f":"\"MOE \"&Z111","v":"MOE Pop 35 years to 64:-NoDisability"},"Pop 65 years to 74:",{"$f":"\"MOE \"&AB111","v":"MOE Pop 65 years to 74:"},{"$f":"$AB$111&\"-WithDisability\"","v":"Pop 65 years to 74:-WithDisability"},{"$f":"\"MOE \"&AD111","v":"MOE Pop 65 years to 74:-WithDisability"},{"$f":"$AB$111&\"-NoDisability\"","v":"Pop 65 years to 74:-NoDisability"},{"$f":"\"MOE \"&AF111","v":"MOE Pop 65 years to 74:-NoDisability"},"Pop 75 and older:",{"$f":"\"MOE \"&AH111","v":"MOE Pop 75 and older:"},{"$f":"$AH$111&\"-WithDisability\"","v":"Pop 75 and older:-WithDisability"},{"$f":"\"MOE \"&AJ111","v":"MOE Pop 75 and older:-WithDisability"},{"$f":"$AH$111&\"-NoDisability\"","v":"Pop 75 and older:-NoDisability"},{"$f":"\"MOE \"&AL111","v":"MOE Pop 75 and older:-NoDisability"},"TotalPopUnder5_HearingDisability",{"$f":"\"MOE \"&AN111","v":"MOE TotalPopUnder5_HearingDisability"},"TotalPopUnder5_HearingDisability",{"$f":"\"MOE \"&AP111","v":"MOE TotalPopUnder5_HearingDisability"},"TotalPop18To34_HearingDisability",{"$f":"\"MOE \"&AR111","v":"MOE TotalPop18To34_HearingDisability"},"TotalPop35To64_HearingDisability",{"$f":"\"MOE \"&AT111","v":"MOE TotalPop35To64_HearingDisability"},"TotalPop65To74_HearingDisability",{"$f":"\"MOE \"&AV111","v":"MOE TotalPop65To74_HearingDisability"},"TotalPop75andOlder_HearingDisability",{"$f":"\"MOE \"&AX111","v":"MOE TotalPop75andOlder_HearingDisability"},"TotalPopUnder5_VisionDisability",{"$f":"\"MOE \"&AZ111","v":"MOE TotalPopUnder5_VisionDisability"},"TotalPop5To17_VisionDisability",{"$f":"\"MOE \"&BB111","v":"MOE TotalPop5To17_VisionDisability"},"TotalPop18To34_VisionDisability",{"$f":"\"MOE \"&BD111","v":"MOE TotalPop18To34_VisionDisability"},"TotalPop35To64_VisionDisability",{"$f":"\"MOE \"&BF111","v":"MOE TotalPop35To64_VisionDisability"},"TotalPop65To74_VisionDisability",{"$f":"\"MOE \"&BH111","v":"MOE TotalPop65To74_VisionDisability"},"TotalPop75andOlder_VisionDisability",{"$f":"\"MOE \"&BJ111","v":"MOE TotalPop75andOlder_VisionDisability"},"TotalPop5To17_CongnitiveDisability",{"$f":"\"MOE \"&BL111","v":"MOE TotalPop5To17_CongnitiveDisability"},"TotalPop18To34_CongnitiveDisability",{"$f":"\"MOE \"&BN111","v":"MOE TotalPop18To34_CongnitiveDisability"},"TotalPop35To64_CongnitiveDisability",{"$f":"\"MOE \"&BP111","v":"MOE TotalPop35To64_CongnitiveDisability"},"TotalPop65To74_CongnitiveDisability",{"$f":"\"MOE \"&BR111","v":"MOE TotalPop65To74_CongnitiveDisability"},"TotalPop75andOlder_CongnitiveDisability",{"$f":"\"MOE \"&BT111","v":"MOE TotalPop75andOlder_CongnitiveDisability"},"TotalPop5To17_AmbulatoryDisability",{"$f":"\"MOE \"&BV111","v":"MOE TotalPop5To17_AmbulatoryDisability"},"TotalPop18To34_AmbulatoryDisability",{"$f":"\"MOE \"&BX111","v":"MOE TotalPop18To34_AmbulatoryDisability"},"TotalPop35To64_AmbulatoryDisability",{"$f":"\"MOE \"&BZ111","v":"MOE TotalPop35To64_AmbulatoryDisability"},"TotalPop65To74_AmbulatoryDisability",{"$f":"\"MOE \"&CB111","v":"MOE TotalPop65To74_AmbulatoryDisability"},"TotalPop75andOlder_AmbulatoryDisability",{"$f":"\"MOE \"&CD111","v":"MOE TotalPop75andOlder_AmbulatoryDisability"},"TotalPop5To17_SelfCareDisability",{"$f":"\"MOE \"&CF111","v":"MOE TotalPop5To17_SelfCareDisability"},"TotalPop18To34_SelfCareDisability",{"$f":"\"MOE \"&CH111","v":"MOE TotalPop18To34_SelfCareDisability"},"TotalPop35To64_SelfCareDisability",{"$f":"\"MOE \"&CJ111","v":"MOE TotalPop35To64_SelfCareDisability"},"TotalPop65To74_SelfCareDisability",{"$f":"\"MOE \"&CL111","v":"MOE TotalPop65To74_SelfCareDisability"},"TotalPop75andOlder_SelfCareDisability",{"$f":"\"MOE \"&CN111","v":"MOE TotalPop75andOlder_SelfCareDisability"},"TotalPop18To34_IndependantLivingDisability",{"$f":"\"MOE \"&CP111","v":"MOE TotalPop18To34_IndependantLivingDisability"},"TotalPop35To64_IndependantLivingDisability",{"$f":"\"MOE \"&CR111","v":"MOE TotalPop35To64_IndependantLivingDisability"},"TotalPop65To74_IndependantLivingDisability",{"$f":"\"MOE \"&CT111","v":"MOE TotalPop65To74_IndependantLivingDisability"},"TotalPop75andOlder_IndependantLivingDisability",{"$f":"\"MOE \"&CV111","v":"MOE TotalPop75andOlder_IndependantLivingDisability"},"TotalUnder5_HearingorVisionDisability",{"$f":"\"MOE \"&CX111","v":"MOE TotalUnder5_HearingorVisionDisability"},"TotalUnder5_HearingandVisionDisability",{"$f":"\"MOE \"&CZ111","v":"MOE TotalUnder5_HearingandVisionDisability"},"5to17YearWIthOneDisability",{"$f":"\"MOE \"&DB111","v":"MOE 5to17YearWIthOneDisability"},"5to17YearWIthTwoOrMoreDisability",{"$f":"\"MOE \"&DD111","v":"MOE 5to17YearWIthTwoOrMoreDisability"},"18to34YearWIthOneDisability",{"$f":"\"MOE \"&DF111","v":"MOE 18to34YearWIthOneDisability"},"18to34YearWIthTwoOrMoreDisability",{"$f":"\"MOE \"&DH111","v":"MOE 18to34YearWIthTwoOrMoreDisability"},"35to64YearWIthOneDisability",{"$f":"\"MOE \"&DJ111","v":"MOE 35to64YearWIthOneDisability"},"35to64YearWIthTwoOrMoreDisability",{"$f":"\"MOE \"&DL111","v":"MOE 35to64YearWIthTwoOrMoreDisability"},"65to74YearWIthOneDisability",{"$f":"\"MOE \"&DN111","v":"MOE 65to74YearWIthOneDisability"},"65to74YearWIthTwoOrMoreDisability",{"$f":"\"MOE \"&DP111","v":"MOE 65to74YearWIthTwoOrMoreDisability"},"75AndOlderWIthOneDisability",{"$f":"\"MOE \"&DR111","v":"MOE 75AndOlderWIthOneDisability"},"75AndOlderWIthTwoOrMoreDisability",{"$f":"\"MOE \"&DT111","v":"MOE 75AndOlderWIthTwoOrMoreDisability"}]
[{"$f":"VLOOKUP(DropDownList!$B$24,CntyQuery!$A$70:$CF$88,A$1)","v":"Albany"},703,142,27,29.410882339705484,0,15.556349186104045,27,29.410882339705484,83,33.61547262794322,6,6.4031242374328485,77,33.61547262794322,116,50.990195135927848,15,15,101,48.166378315169183,327,61.220911460055866,37,21.023796041628639,290,60.21627686929839,87,30.232432915661949,3,11.704699910719626,84,29.681644159311659,63,28.635642126552707,38,26.248809496813376,25,12.041594578792296,0,15.556349186104045,0,15.556349186104045,0,15.556349186104045,11,8.6023252670426267,3,11.704699910719626,14,13.341664064126334,0,15.556349186104045,0,15.556349186104045,0,15.556349186104045,6,14.212670403551895,0,15.556349186104045,0,15.556349186104045,6,6.4031242374328485,15,15,11,11.704699910719626,0,15.556349186104045,22,24.186773244895647,0,15.556349186104045,0,15.556349186104045,44,21.931712199461309,12,10,27,19.723082923316021,0,15.556349186104045,0,15.556349186104045,12,9.2195444572928871,0,15.556349186104045,20,26.40075756488817,5,13.038404810405298,11,8.4852813742385695,0,15.556349186104045,24,25.179356624028344,6,7,0,11,27,21,25,17,15,9,26,25]
[]
["Househould Income By Age"]
["NAME","TotalHouseholds",{"$f":"\"MOE \"&B115","v":"MOE TotalHouseholds"},"HHInc<10K",{"$f":"\"MOE \"&D115","v":"MOE HHInc<10K"},"HHInc10to15K",{"$f":"\"MOE \"&F115","v":"MOE HHInc10to15K"},"HHInc15to20K",{"$f":"\"MOE \"&H115","v":"MOE HHInc15to20K"},"HHInc20to25K",{"$f":"\"MOE \"&J115","v":"MOE HHInc20to25K"},"HHInc25to30K",{"$f":"\"MOE \"&L115","v":"MOE HHInc25to30K"},"HHInc30to35K",{"$f":"\"MOE \"&N115","v":"MOE HHInc30to35K"},"HHInc35to40K",{"$f":"\"MOE \"&P115","v":"MOE HHInc35to40K"},"HHInc40to45K",{"$f":"\"MOE \"&R115","v":"MOE HHInc40to45K"},"HHInc45to50K",{"$f":"\"MOE \"&T115","v":"MOE HHInc45to50K"},"HHInc50to60K",{"$f":"\"MOE \"&V115","v":"MOE HHInc50to60K"},"HHInc60to75K",{"$f":"\"MOE \"&X115","v":"MOE HHInc60to75K"},"HHInc75to100K",{"$f":"\"MOE \"&Z115","v":"MOE HHInc75to100K"},"HHInc100to125K",{"$f":"\"MOE \"&AB115","v":"MOE HHInc100to125K"},"HHInc125to150K",{"$f":"\"MOE \"&AD115","v":"MOE HHInc125to150K"},"HHInc150to200K",{"$f":"\"MOE \"&AF115","v":"MOE HHInc150to200K"},"HHInc>200K",{"$f":"\"MOE \"&AH115","v":"MOE HHInc>200K"},"TotalHH",{"$f":"\"MOE \"&AJ115","v":"MOE TotalHH"},"HHAgeHHUnder25yrs",{"$f":"\"MOE \"&AL115","v":"MOE HHAgeHHUnder25yrs"},"HHAgeHH<25HHInc<10K",{"$f":"\"MOE \"&AN115","v":"MOE HHAgeHH<25HHInc<10K"},"HHAgeHH<25HHInc10to15K",{"$f":"\"MOE \"&AP115","v":"MOE HHAgeHH<25HHInc10to15K"},"HHAgeHH<25HHInc15to20K",{"$f":"\"MOE \"&AR115","v":"MOE HHAgeHH<25HHInc15to20K"},"HHAgeHH<25HHInc20to25K",{"$f":"\"MOE \"&AT115","v":"MOE HHAgeHH<25HHInc20to25K"},"HHAgeHH<25HHInc25to30K",{"$f":"\"MOE \"&AV115","v":"MOE HHAgeHH<25HHInc25to30K"},"HHAgeHH<25HHInc30to35K",{"$f":"\"MOE \"&AX115","v":"MOE HHAgeHH<25HHInc30to35K"},"HHAgeHH<25HHInc35to40K",{"$f":"\"MOE \"&AZ115","v":"MOE HHAgeHH<25HHInc35to40K"},"HHAgeHH<25HHInc40to45K",{"$f":"\"MOE \"&BB115","v":"MOE HHAgeHH<25HHInc40to45K"},"HHAgeHH<25HHInc45to50K",{"$f":"\"MOE \"&BD115","v":"MOE HHAgeHH<25HHInc45to50K"},"HHAgeHH<25HHInc50to60K",{"$f":"\"MOE \"&BF115","v":"MOE HHAgeHH<25HHInc50to60K"},"HHAgeHH<25HHInc60to75K",{"$f":"\"MOE \"&BH115","v":"MOE HHAgeHH<25HHInc60to75K"},"HHAgeHH<25HHInc75to100K",{"$f":"\"MOE \"&BJ115","v":"MOE HHAgeHH<25HHInc75to100K"},"HHAgeHH<25HHInc100to125K",{"$f":"\"MOE \"&BL115","v":"MOE HHAgeHH<25HHInc100to125K"},"HHAgeHH<25HHInc125to150K",{"$f":"\"MOE \"&BN115","v":"MOE HHAgeHH<25HHInc125to150K"},"HHAgeHH<25HHInc150to200K",{"$f":"\"MOE \"&BP115","v":"MOE HHAgeHH<25HHInc150to200K"},"HHAge<25HHInc>200K",{"$f":"\"MOE \"&BR115","v":"MOE HHAge<25HHInc>200K"},"HHAgeHH25to44yrs",{"$f":"\"MOE \"&BT115","v":"MOE HHAgeHH25to44yrs"},"HHAgeHH25To44yrsHHInc<10K",{"$f":"\"MOE \"&BV115","v":"MOE HHAgeHH25To44yrsHHInc<10K"},"HHAgeHH25To44yrsHHInc10to15K",{"$f":"\"MOE \"&BX115","v":"MOE HHAgeHH25To44yrsHHInc10to15K"},"HHAgeHH25To44yrsHHInc15to20K",{"$f":"\"MOE \"&BZ115","v":"MOE HHAgeHH25To44yrsHHInc15to20K"},"HHAgeHH25To44yrsHHInc20to25K",{"$f":"\"MOE \"&CB115","v":"MOE HHAgeHH25To44yrsHHInc20to25K"},"HHAgeHH25To44yrsHHInc25to30K",{"$f":"\"MOE \"&CD115","v":"MOE HHAgeHH25To44yrsHHInc25to30K"},"HHAgeHH25To44yrsHHInc30to35K",{"$f":"\"MOE \"&CF115","v":"MOE HHAgeHH25To44yrsHHInc30to35K"},"HHAgeHH25To44yrsHHInc35to40K",{"$f":"\"MOE \"&CH115","v":"MOE HHAgeHH25To44yrsHHInc35to40K"},"HHAgeHH25To44yrsHHInc40to45K",{"$f":"\"MOE \"&CJ115","v":"MOE HHAgeHH25To44yrsHHInc40to45K"},"HHAgeHH25To44yrsHHInc45to50K",{"$f":"\"MOE \"&CL115","v":"MOE HHAgeHH25To44yrsHHInc45to50K"},"HHAgeHH25To44yrsHHInc50to60K",{"$f":"\"MOE \"&CN115","v":"MOE HHAgeHH25To44yrsHHInc50to60K"},"HHAgeHH25To44yrsHHInc60to75K",{"$f":"\"MOE \"&CP115","v":"MOE HHAgeHH25To44yrsHHInc60to75K"},"HHAgeHH25To44yrsHHInc75to100K",{"$f":"\"MOE \"&CR115","v":"MOE HHAgeHH25To44yrsHHInc75to100K"},"HHAgeHH25To44yrsHHInc100to125K",{"$f":"\"MOE \"&CT115","v":"MOE HHAgeHH25To44yrsHHInc100to125K"},"HHAgeHH25To44yrsHHInc125to150K",{"$f":"\"MOE \"&CV115","v":"MOE HHAgeHH25To44yrsHHInc125to150K"},"HHAgeHH25To44yrsHHInc150to200K",{"$f":"\"MOE \"&CX115","v":"MOE HHAgeHH25To44yrsHHInc150to200K"},"HHAge25To44yrsHHInc>200K",{"$f":"\"MOE \"&CZ115","v":"MOE HHAge25To44yrsHHInc>200K"},"HHAgeHH45To64yrs",{"$f":"\"MOE \"&DB115","v":"MOE HHAgeHH45To64yrs"},"HHAgeHH45To64yrsHHInc<10K",{"$f":"\"MOE \"&DD115","v":"MOE HHAgeHH45To64yrsHHInc<10K"},"HHAgeHH45To64yrsHHInc10to15K",{"$f":"\"MOE \"&DF115","v":"MOE HHAgeHH45To64yrsHHInc10to15K"},"HHAgeHH45To64yrsHHInc15to20K",{"$f":"\"MOE \"&DH115","v":"MOE HHAgeHH45To64yrsHHInc15to20K"},"HHAgeHH45To64yrsHHInc20to25K",{"$f":"\"MOE \"&DJ115","v":"MOE HHAgeHH45To64yrsHHInc20to25K"},"HHAgeHH45To64yrsHHInc25to30K",{"$f":"\"MOE \"&DL115","v":"MOE HHAgeHH45To64yrsHHInc25to30K"},"HHAgeHH45To64yrsHHInc30to35K",{"$f":"\"MOE \"&DN115","v":"MOE HHAgeHH45To64yrsHHInc30to35K"},"HHAgeHH45To64yrsHHInc35to40K",{"$f":"\"MOE \"&DP115","v":"MOE HHAgeHH45To64yrsHHInc35to40K"},"HHAgeHH45To64yrsHHInc40to45K",{"$f":"\"MOE \"&DR115","v":"MOE HHAgeHH45To64yrsHHInc40to45K"},"HHAgeHH45To64yrsHHInc45to50K",{"$f":"\"MOE \"&DT115","v":"MOE HHAgeHH45To64yrsHHInc45to50K"},"HHAgeHH45To64yrsHHInc50to60K",{"$f":"\"MOE \"&DV115","v":"MOE HHAgeHH45To64yrsHHInc50to60K"},"HHAgeHH45To64yrsHHInc60to75K",{"$f":"\"MOE \"&DX115","v":"MOE HHAgeHH45To64yrsHHInc60to75K"},"HHAgeHH45To64yrsHHInc75to100K",{"$f":"\"MOE \"&DZ115","v":"MOE HHAgeHH45To64yrsHHInc75to100K"},"HHAgeHH45To64yrsHHInc100to125K",{"$f":"\"MOE \"&EB115","v":"MOE HHAgeHH45To64yrsHHInc100to125K"},"HHAgeHH45To64yrsHHInc125to150K",{"$f":"\"MOE \"&ED115","v":"MOE HHAgeHH45To64yrsHHInc125to150K"},"HHAgeHH45To64yrsHHInc150to200K",{"$f":"\"MOE \"&EF115","v":"MOE HHAgeHH45To64yrsHHInc150to200K"},"HHAge45To64yrsHHInc>200K",{"$f":"\"MOE \"&EH115","v":"MOE HHAge45To64yrsHHInc>200K"},"HHAgeHH65yrsorOlder",{"$f":"\"MOE \"&EJ115","v":"MOE HHAgeHH65yrsorOlder"},"HHAgeHH65yrsorOlderHHInc<10K",{"$f":"\"MOE \"&EL115","v":"MOE HHAgeHH65yrsorOlderHHInc<10K"},"HHAgeHH65yrsorOlderHHInc10to15K",{"$f":"\"MOE \"&EN115","v":"MOE HHAgeHH65yrsorOlderHHInc10to15K"},"HHAgeHH65yrsorOlderHHInc15to20K",{"$f":"\"MOE \"&EP115","v":"MOE HHAgeHH65yrsorOlderHHInc15to20K"},"HHAgeHH65yrsorOlderHHInc20to25K",{"$f":"\"MOE \"&ER115","v":"MOE HHAgeHH65yrsorOlderHHInc20to25K"},"HHAgeHH65yrsorOlderHHInc25to30K",{"$f":"\"MOE \"&ET115","v":"MOE HHAgeHH65yrsorOlderHHInc25to30K"},"HHAgeHH65yrsorOlderHHInc30to35K",{"$f":"\"MOE \"&EV115","v":"MOE HHAgeHH65yrsorOlderHHInc30to35K"},"HHAgeHH65yrsorOlderHHInc35to40K",{"$f":"\"MOE \"&EX115","v":"MOE HHAgeHH65yrsorOlderHHInc35to40K"},"HHAgeHH65yrsorOlderHHInc40to45K",{"$f":"\"MOE \"&EZ115","v":"MOE HHAgeHH65yrsorOlderHHInc40to45K"},"HHAgeHH65yrsorOlderHHInc45to50K",{"$f":"\"MOE \"&FB115","v":"MOE HHAgeHH65yrsorOlderHHInc45to50K"},"HHAgeHH65yrsorOlderHHInc50to60K",{"$f":"\"MOE \"&FD115","v":"MOE HHAgeHH65yrsorOlderHHInc50to60K"},"HHAgeHH65yrsorOlderHHInc60to75K",{"$f":"\"MOE \"&FF115","v":"MOE HHAgeHH65yrsorOlderHHInc60to75K"},"HHAgeHH65yrsorOlderHHInc75to100K",{"$f":"\"MOE \"&FH115","v":"MOE HHAgeHH65yrsorOlderHHInc75to100K"},"HHAgeHH65yrsorOlderHHInc100to125K",{"$f":"\"MOE \"&FJ115","v":"MOE HHAgeHH65yrsorOlderHHInc100to125K"},"HHAgeHH65yrsorOlderHHInc125to150K",{"$f":"\"MOE \"&FL115","v":"MOE HHAgeHH65yrsorOlderHHInc125to150K"},"HHAgeHH65yrsorOlderHHInc150to200K",{"$f":"\"MOE \"&FN115","v":"MOE HHAgeHH65yrsorOlderHHInc150to200K"},"HHAge65yrsorOlderHHInc>200K",{"$f":"\"MOE \"&FP115","v":"MOE HHAge65yrsorOlderHHInc>200K"},"MedianHHInc",{"$f":"\"MOE \"&FR115","v":"MOE MedianHHInc"},"HH under 25 years",{"$f":"\"MOE \"&FT115","v":"MOE HH under 25 years"},"Householder 25 to 44 years",{"$f":"\"MOE \"&FV115","v":"MOE Householder 25 to 44 years"},"Householder 45 to 64 years",{"$f":"\"MOE \"&FX115","v":"MOE Householder 45 to 64 years"},"Householder 65 years and over",{"$f":"\"MOE \"&FZ115","v":"MOE Householder 65 years and over"}]
[{"$f":"VLOOKUP(DropDownList!$B$24,CntyQuery!$A$70:$CF$88,A$1)","v":"Albany"},307,58,12,13,22,16,18,16,3,4,29,20,13,9,4,4,34,23,5,6,14,8,25,18,37,15,27,18,42,23,16,11,6,5,307,58,15,17,7,12,0,11,0,11,0,11,0,11,0,11,0,11,8,12,0,11,0,11,0,11,0,11,0,11,0,11,0,11,0,11,71,33,2,4,4,7,0,11,0,11,10,12,9,8,0,11,4,6,3,5,2,3,6,7,13,13,0,11,16,19,2,4,0,11,133,34,0,11,9,13,8,11,0,11,11,10,0,11,2,3,13,9,0,11,10,8,17,15,11,7,16,14,19,15,11,11,6,5,88,30,3,4,9,7,10,13,3,4,8,12,4,4,2,3,9,12,2,3,2,4,2,3,13,9,11,9,7,7,3,4,0,11,59821,12952,"-","**",61250,37969,73542,29303,41786,28318]
[]
["Number of Households by Income"]
["NAME","HHIncLessThn10k",{"$f":"\"MOE \"&B119","v":"MOE HHIncLessThn10k"},"HHInc10to15K",{"$f":"\"MOE \"&D119","v":"MOE HHInc10to15K"},"HHInc15to25K",{"$f":"\"MOE \"&F119","v":"MOE HHInc15to25K"},"HHInc25to35K",{"$f":"\"MOE \"&H119","v":"MOE HHInc25to35K"},"HHInc35to50K",{"$f":"\"MOE \"&J119","v":"MOE HHInc35to50K"},"HHInc50to75K",{"$f":"\"MOE \"&L119","v":"MOE HHInc50to75K"},"HHInc75to100K",{"$f":"\"MOE \"&N119","v":"MOE HHInc75to100K"},"HHInc100to150K",{"$f":"\"MOE \"&P119","v":"MOE HHInc100to150K"},"HHInc150to200K",{"$f":"\"MOE \"&R119","v":"MOE HHInc150to200K"},"HHIncOver200K",{"$f":"\"MOE \"&T119","v":"MOE HHIncOver200K"}]
[{"$f":"VLOOKUP(DropDownList!$B$24,CntyQuery!$A$70:$CF$88,A$1)","v":"Albany"},12,13,22,16,21,16.492422502470642,42,21.931712199461309,43,24.103941586387901,39,19.697715603592208,37,15,69,29.206163733020468,16,11,6,5,30,19,39,22,12,9,27,22,0,114,30,19,null,null,null,null,null,null,null,null,null,null,null,null,null,null,null,null,null,null,null,null,null,null,null,null,null,null,null,null,null,null,null,null,null,null,null,null,null,null,null,null,null,null,null,null,null,null,null,null,null,null,null,null,"Ossipee",null,"Estimate","Margin of Error",1842,183,null,null,153,99,80,46,84,79,86,59,155,88,118,80,127,78,74,51,65,55,295,111,196,108,263,113,55,34,41,33,0,114,50,50,null,null,null,null,null,null,null,null,null,null,null,null,null,null,"Ossipee",null,"Estimate","Margin of Error",1842,183,null,null,153,99,80,46,170,98.600202839547947,273,118.92854997854805,266,108.21275340735028,491,154.87091398968369,263,113,96,47.381430961928537,0,114,50,50]
[]
[]
["NAME","TotalPop",{"$f":"\"MOE \"&B123","v":"MOE TotalPop"},"Total Individuals living in Poverty",{"$f":"\"MOE \"&D123","v":"MOE Total Individuals living in Poverty"},"Under 5 yrs.",{"$f":"\"MOE \"&F123","v":"MOE Under 5 yrs."},"5 to 17 yrs.",{"$f":"\"MOE \"&H123","v":"MOE 5 to 17 yrs."},"18 to 64 yrs.",{"$f":"\"MOE \"&J123","v":"MOE 18 to 64 yrs."},"65 to 74 yrs.",{"$f":"\"MOE \"&L123","v":"MOE 65 to 74 yrs."},"75 yrs. & Over",{"$f":"\"MOE \"&N123","v":"MOE 75 yrs. & Over"},"Total Individuals  Not living Poverty",{"$f":"\"MOE \"&P123","v":"MOE Total Individuals  Not living Poverty"},"Under 5 yrs.",{"$f":"\"MOE \"&R123","v":"MOE Under 5 yrs."},"5 to 17 yrs.",{"$f":"\"MOE \"&T123","v":"MOE 5 to 17 yrs."},"18 to 64 yrs.",{"$f":"\"MOE \"&V123","v":"MOE 18 to 64 yrs."},"65 to 74 yrs.",{"$f":"\"MOE \"&X123","v":"MOE 65 to 74 yrs."},"75 yrs. & Over",{"$f":"\"MOE \"&Z123","v":"MOE 75 yrs. & Over"},"Total HH",{"$f":"\"MOE \"&AB123","v":"MOE Total HH"},"Total Households Below Poverty",{"$f":"\"MOE \"&AD123","v":"MOE Total Households Below Poverty"},"Family Households in Poverty",{"$f":"\"MOE \"&AF123","v":"MOE Family Households in Poverty"},"Married Couple Fam HH",{"$f":"\"MOE \"&AH123","v":"MOE Married Couple Fam HH"},"Other Family",{"$f":"\"MOE \"&AJ123","v":"MOE Other Family"},"Male Head of Family HH no wife",{"$f":"\"MOE \"&AL123","v":"MOE Male Head of Family HH no wife"},"Female Head of Family HH no husband",{"$f":"\"MOE \"&AN123","v":"MOE Female Head of Family HH no husband"},"Non-Family HH",{"$f":"\"MOE \"&AP123","v":"MOE Non-Family HH"},"Non-Family Male HH",{"$f":"\"MOE \"&AR123","v":"MOE Non-Family Male HH"},"Non-Family Female HH",{"$f":"\"MOE \"&AT123","v":"MOE Non-Family Female HH"},"Total Households at or Above Poverty",{"$f":"\"MOE \"&AV123","v":"MOE Total Households at or Above Poverty"},"Family Households above Poverty",{"$f":"\"MOE \"&AX123","v":"MOE Family Households above Poverty"},"Married Couple Fam HH",{"$f":"\"MOE \"&AZ123","v":"MOE Married Couple Fam HH"},"Other Family",{"$f":"\"MOE \"&BB123","v":"MOE Other Family"},"Male Head of Family HH no wife",{"$f":"\"MOE \"&BD123","v":"MOE Male Head of Family HH no wife"},"Female Head of Family HH no husband",{"$f":"\"MOE \"&BF123","v":"MOE Female Head of Family HH no husband"},"Non-Family HH",{"$f":"\"MOE \"&BH123","v":"MOE Non-Family HH"},"Non-Family Male HH",{"$f":"\"MOE \"&BJ123","v":"MOE Non-Family Male HH"},"Non-Family Female HH",{"$f":"\"MOE \"&BL123","v":"MOE Non-Family Female HH"},"Married Couple with Children Below Poverty",{"$f":"\"MOE \"&BN123","v":"MOE Married Couple with Children Below Poverty"},"Male HH with children below poverty",{"$f":"\"MOE \"&BP123","v":"MOE Male HH with children below poverty"},"Female HH with children below poverty",{"$f":"\"MOE \"&BR123","v":"MOE Female HH with children below poverty"},"Married Couple with Children At or Above Poverty",{"$f":"\"MOE \"&BT123","v":"MOE Married Couple with Children At or Above Poverty"},"Male HH with children at or above poverty",{"$f":"\"MOE \"&BV123","v":"MOE Male HH with children at or above poverty"},"Female HH with children at or above poverty",{"$f":"\"MOE \"&BX123","v":"MOE Female HH with children at or above poverty"}]
[{"$f":"VLOOKUP(DropDownList!$B$24,CntyQuery!$A$70:$CF$88,A$1)","v":"Albany"},699,142,81,45,15,30.083217912982647,7,30.528675044947494,44,31.272991542223778,5,5.6568542494923806,10,12.369316876852981,618,123,8,8.9442719099991592,76,33.120990323358392,399,72.972597596632127,82,29.681644159311659,53,21.95449840010015,307,58,30,18,14,13,0,11,14,13,8,11,6,8,16,14,6,7,10,13,277,55,198,47,162,42,36,21,3,5,33,21,79,29,41,24,38,19,0,11,2,5,6,8,45,24,3,5,11,12,null,null,null,null,null,null,null,null,null,null,null,null,null,null,null,null,null,null,null,null,null,null,null,null,null,null,null,null,null,null,null,null,null,null,null,null,null,null,null,null,null,null,null,null,null,null,null,null,null,null,null,null,null,null,null,null,null,null,null,null,null,null,null,null,"Albany",null,"Estimate","Margin of Error",797,175,131,102,19,21.587033144922902,24,34.205262752974143,83,49.406477308142499,3,12.083045973594572,2,11.704699910719626,666,171,41,33.837848631377263,128,59.715994507334464,368,72.221880341071156,73,25.45584412271571,56,24.041630560342615,null,null,null,null,null,null,null,null,null,null,null,null,null,null,null,null,null,null,null,null,null,null,null,null,null,null,null,null,null,null,null,null,null,null,null,null,null,null,null,null,null,null,null,null,null,null,null,null,null,null,null,null,null,null,null,null,null,null,null,null,null,null,null,null,null,null,null,null,null,null,null,null,null,null,null,null,null,null,null,null,null,null,null,null,null,null,null,null,null,null,null,null,"Albany",null,"Estimate","Margin of Error",966,265,280,139,30,115.11733144926528,100,169.72330423368501,139,172.37459209523891,11,9.8994949366116654,0,161.22034611053283,686,217,14,12.083045973594572,101,202.29186834868079,468,108.16653826391968,70,30.413812651491099,33,28.160255680657446]
[]
["Household Income By Tenure"]
["NAME","TotalOccHU",{"$f":"\"MOE \"&B127","v":"MOE TotalOccHU"},"OwnOccHU",{"$f":"\"MOE \"&D127","v":"MOE OwnOccHU"},"OOHUInc<5K",{"$f":"\"MOE \"&F127","v":"MOE OOHUInc<5K"},"OOHUInc5to10K",{"$f":"\"MOE \"&H127","v":"MOE OOHUInc5to10K"},"OOHUInc10to15K",{"$f":"\"MOE \"&J127","v":"MOE OOHUInc10to15K"},"OOHUInc15to20K",{"$f":"\"MOE \"&L127","v":"MOE OOHUInc15to20K"},"OOHUInc20to25K",{"$f":"\"MOE \"&N127","v":"MOE OOHUInc20to25K"},"OOHUInc25to35K",{"$f":"\"MOE \"&P127","v":"MOE OOHUInc25to35K"},"OOHUInc35to50K",{"$f":"\"MOE \"&R127","v":"MOE OOHUInc35to50K"},"OOHUInc50to75K",{"$f":"\"MOE \"&T127","v":"MOE OOHUInc50to75K"},"OOHUInc75to100K",{"$f":"\"MOE \"&V127","v":"MOE OOHUInc75to100K"},"OOHUInc100to150K",{"$f":"\"MOE \"&X127","v":"MOE OOHUInc100to150K"},"OOHUInc>150K",{"$f":"\"MOE \"&Z127","v":"MOE OOHUInc>150K"},"RentOccHU",{"$f":"\"MOE \"&AB127","v":"MOE RentOccHU"},"ROHUInc<5K",{"$f":"\"MOE \"&AD127","v":"MOE ROHUInc<5K"},"ROHUInc5to10K",{"$f":"\"MOE \"&AF127","v":"MOE ROHUInc5to10K"},"ROHUInc10to15K",{"$f":"\"MOE \"&AH127","v":"MOE ROHUInc10to15K"},"ROHUInc15to20K",{"$f":"\"MOE \"&AJ127","v":"MOE ROHUInc15to20K"},"ROHUInc20to25K",{"$f":"\"MOE \"&AL127","v":"MOE ROHUInc20to25K"},"ROHUInc25to35K",{"$f":"\"MOE \"&AN127","v":"MOE ROHUInc25to35K"},"ROHUInc35to50K",{"$f":"\"MOE \"&AP127","v":"MOE ROHUInc35to50K"},"ROHUInc50to75K",{"$f":"\"MOE \"&AR127","v":"MOE ROHUInc50to75K"},"ROHUInc75to100K",{"$f":"\"MOE \"&AT127","v":"MOE ROHUInc75to100K"},"ROHUInc100to150K",{"$f":"\"MOE \"&AV127","v":"MOE ROHUInc100to150K"},"ROHUInc>150K",{"$f":"\"MOE \"&AX127","v":"MOE ROHUInc>150K"},"Total OCC HUInc<5K",{"$f":"\"MOE \"&AZ127","v":"MOE Total OCC HUInc<5K"},"Total OCC HUInc5to10K",{"$f":"\"MOE \"&BB127","v":"MOE Total OCC HUInc5to10K"},"Total OCC HUInc10to15K",{"$f":"\"MOE \"&BD127","v":"MOE Total OCC HUInc10to15K"},"Total OCC HUInc15to20K",{"$f":"\"MOE \"&BF127","v":"MOE Total OCC HUInc15to20K"},"Total OCC HUInc20to25K",{"$f":"\"MOE \"&BH127","v":"MOE Total OCC HUInc20to25K"},"Total OCC HUInc25to35K",{"$f":"\"MOE \"&BJ127","v":"MOE Total OCC HUInc25to35K"},"Total OCC HUInc35to50K",{"$f":"\"MOE \"&BL127","v":"MOE Total OCC HUInc35to50K"},"Total OCC HUInc50to75K",{"$f":"\"MOE \"&BN127","v":"MOE Total OCC HUInc50to75K"},"Total OCC HUInc75to100K",{"$f":"\"MOE \"&BP127","v":"MOE Total OCC HUInc75to100K"},"Total OCC HUInc100to150K",{"$f":"\"MOE \"&BR127","v":"MOE Total OCC HUInc100to150K"},"Total OCC HUInc>150K",{"$f":"\"MOE \"&BT127","v":"MOE Total OCC HUInc>150K"},"MedHHInc",{"$f":"\"MOE \"&BV127","v":"MOE MedHHInc"},"MedOwnOccHHInc",{"$f":"\"MOE \"&BX127","v":"MOE MedOwnOccHHInc"},"MedRentOccHHInc",{"$f":"\"MOE \"&BZ127","v":"MOE MedRentOccHHInc"}]
[{"$f":"VLOOKUP(DropDownList!$B$24,CntyQuery!$A$70:$CF$88,A$1)","v":"Albany"},307,58,272,56,3,4,9,13,20,16,16,15,3,4,28,20,31,16,39,20,37,15,66,28,20,12,35,17,0,11,0,11,2,4,2,5,0,11,14,12,12,14,0,11,0,11,3,4,2,3,3,11.704699910719626,9,17.029386365926403,22,16.492422502470642,18,15.811388300841896,3,11.704699910719626,42,23.323807579381203,43,21.2602916254693,39,22.825424421026653,37,18.601075237738275,69,28.284271247461902,22,12.369316876852981,59821,12952,67500,15929,34583,15766]
[]
["Population Data"]
["NAME","Total Population","MOE Total Population","Under 15 Years","MOE Under 15 yrs.","15 to 24 yrs.","MOE 15 to 24 yrs.","25 to 34 yrs.","MOE 25 to 34 yrs.","35 to 44 yrs.","MOE 35 to 44 yrs.","45 to 54 yrs.","MOE 45 to 54 yrs.","55 to 64 yrs.","MOE 55 to 64 yrs.","65 to 74 yrs.","MOE 65 to 74 yrs.","Over 74 yrs. ","MOE Over 74 yrs. ","TotalHH","MOE TotalHH","FamilyHH","MOE FamilyHH","MarriedFamilyHH","MOE MarriedFamilyHH","SingleFamilyHH","MOE SingleFamilyHH","Sfamily-MaleHH","MOE Sfamily-MaleHH","Sfamily-FemaleHH","MOE Sfamily-FemaleHH","NonFamilyHH","MOE NonFamilyHH","NonFamilyHH-LivingAlone","MOE NonFamilyHH-LivingAlone","NonFamilyHH-NotLivingAlone","MOE NonFamilyHH-NotLivingAlone","PopRaceWhite","MOE PopRaceWhite","PopRaceBlack","MOE PopRaceBlack","PopRaceAmerican Indian","MOE PopRaceAmerican Indian","PopRaceAsian &Pacific Is.","MOE PopRaceAsian &Pacific Is.","PopRaceOther*","MOE PopRaceOther*","PopRaceHispanic or Latino:","MOE PopRaceHispanic or Latino:","MedianAgeTotalPop","MOE MedianAgeTotalPop","MedianAgeMale","MOE MedianAgeMale","MedianAgeFemale","MOE MedianAgeFemale","AvgHHSizeTotal","MOE AvgHHSizeTotal","AvgHHSizeFamilyHH","MOE AvgHHSizeFamilyHH","AvgHHSizeNonFamilyHH","MOE AvgHHSizeNonFamilyHH"]
[{"$f":"VLOOKUP(DropDownList!$B$24,CntyQuery!$A$70:$CF$88,A$1)","v":"Albany"},703,142,91,46.454278597347738,85,40.11234224026316,50,32.557641192199412,86,36.193922141707716,88,30.364452901377952,153,36.138621999185304,87,29.376861643136763,63,25.019992006393608,307,58,212,50,162,42,50,26,11,10,39,23,95,32,77,30,18,12,670,130,0,11,3,4,4,12.529964086141668,26,35.227829907617071,0,11,50.4,7.3,50,15.3,51.4,5.3,2.2899022801302933,0.28999999999999998,2.7122641509433962,0.90594214933277883,1.3473684210526315,0.70297912176978417,null,null,null,null,null,null,null,null,null,null,null,null,null,null,null,null,null,null,null,null,null,null,null,null,null,null,null,null,null,null,null,null,null,null,null,null,null,null,null,null,null,null,null,null,null,null,null,null,null,null,null,null,null,null,null,null,null,null,null,null,null,null,null,null,null,null,null,null,null,null,null,null,null,null,null,null,null,null,null,null,null,null,null,null,null,null,null,null,null,null,null,null,"Albany",null,"Estimate","Margin of Error",869,180,118,50.714889332423866,131,56.648036153074187,20,25.278449319529077,131,49.568134925574917,198,52.440442408507579,106,38.353617821530214,100,32.726136343907143,65,30.789608636681304]
[]
["Nativity and Prior Place of Residence"]
["NAME","TotalPop",{"$f":"\"MOE \"&B135","v":"MOE TotalPop"},"Native:",{"$f":"\"MOE \"&D135","v":"MOE Native:"},"NatBornInStateOfResidence",{"$f":"\"MOE \"&F135","v":"MOE NatBornInStateOfResidence"},"Born in other state in the United States:",{"$f":"\"MOE \"&H135","v":"MOE Born in other state in the United States:"},"Northeast",{"$f":"\"MOE \"&J135","v":"MOE Northeast"},"Midwest",{"$f":"\"MOE \"&L135","v":"MOE Midwest"},"South",{"$f":"\"MOE \"&N135","v":"MOE South"},"West",{"$f":"\"MOE \"&P135","v":"MOE West"},"Born outside the United States:",{"$f":"\"MOE \"&R135","v":"MOE Born outside the United States:"},"Puerto Rico",{"$f":"\"MOE \"&T135","v":"MOE Puerto Rico"},"U.S. Island Areas",{"$f":"\"MOE \"&V135","v":"MOE U.S. Island Areas"},"Born abroad of American parent(s)",{"$f":"\"MOE \"&X135","v":"MOE Born abroad of American parent(s)"},"Foreign born:",{"$f":"\"MOE \"&Z135","v":"MOE Foreign born:"},"Naturalized U.S. citizen",{"$f":"\"MOE \"&AB135","v":"MOE Naturalized U.S. citizen"},"Not a U.S. citizen",{"$f":"\"MOE \"&AD135","v":"MOE Not a U.S. citizen"},"CurrentResidenceTotal:",{"$f":"\"MOE \"&AF135","v":"MOE CurrentResidenceTotal:"},"SameHouse:",{"$f":"\"MOE \"&AH135","v":"MOE SameHouse:"},"DifferentHouse:",{"$f":"\"MOE \"&AJ135","v":"MOE DifferentHouse:"},"DiffHouseInNH",{"$f":"\"MOE \"&AL135","v":"MOE DiffHouseInNH"},"DiffHouseInNHSameCnty",{"$f":"\"MOE \"&AN135","v":"MOE DiffHouseInNHSameCnty"},"DiffHouseInNHDiffCnty",{"$f":"\"MOE \"&AP135","v":"MOE DiffHouseInNHDiffCnty"},"DiffHouseInDiffState",{"$f":"\"MOE \"&AR135","v":"MOE DiffHouseInDiffState"},"DiffHouseInElsewhere",{"$f":"\"MOE \"&AT135","v":"MOE DiffHouseInElsewhere"}]
[{"$f":"VLOOKUP(DropDownList!$B$24,CntyQuery!$A$70:$CF$88,A$1)","v":"Albany"},703,142,694,141,272,80,420,97,305,72,40,20,65,31,10,9,2,3,0,11,0,11,2,3,9,9,9,9,0,11,700,142,622,134,78,47.613023428469653,35,25,28,24,7,7,43,39,0,11]
[]
["School Enrollment - Education"]
["NAME","Total Pop 3 Years and Older","MOE Total Pop 3 Years and Older","P36SchEnrlPop3yrOver",{"$f":"\"MOE \"&D139","v":"MOE P36SchEnrlPop3yrOver"},"TotalEnrollNursy&Kinder",{"$f":"\"MOE \"&F139","v":"MOE TotalEnrollNursy&Kinder"},"P36NurserSchEnrl",{"$f":"\"MOE \"&H139","v":"MOE P36NurserSchEnrl"},"P36KinderSchEnrl",{"$f":"\"MOE \"&J139","v":"MOE P36KinderSchEnrl"},"P36ElemSchEnrl",{"$f":"\"MOE \"&L139","v":"MOE P36ElemSchEnrl"},"P36HighSchEnrl",{"$f":"\"MOE \"&N139","v":"MOE P36HighSchEnrl"},"TotalElementry&HSEnroll",{"$f":"\"MOE \"&P139","v":"MOE TotalElementry&HSEnroll"},"P36CollGradSchEnrl",{"$f":"\"MOE \"&R139","v":"MOE P36CollGradSchEnrl"},"PopNotEnrolled","MOE PopNotEnrolled","P37Pop25yrsOver",{"$f":"\"MOE \"&V139","v":"MOE P37Pop25yrsOver"},"P37EduAtain<9grd",{"$f":"\"MOE \"&X139","v":"MOE P37EduAtain<9grd"},"P37EduAtainHSnoDip",{"$f":"\"MOE \"&Z139","v":"MOE P37EduAtainHSnoDip"},"P37EduAtainHSgrad",{"$f":"\"MOE \"&AB139","v":"MOE P37EduAtainHSgrad"},"P37EduAtainCollNoDeg",{"$f":"\"MOE \"&AD139","v":"MOE P37EduAtainCollNoDeg"},"P37EduAtainAssocDeg",{"$f":"\"MOE \"&AF139","v":"MOE P37EduAtainAssocDeg"},"P37EduAtainBachDeg",{"$f":"\"MOE \"&AH139","v":"MOE P37EduAtainBachDeg"},"P37EduAtainGradProfDeg",{"$f":"\"MOE \"&AJ139","v":"MOE P37EduAtainGradProfDeg"}]
[{"$f":"VLOOKUP(DropDownList!$B$24,CntyQuery!$A$70:$CF$88,A$1)","v":"Albany"},689,137,119,44,22,20.248456731316587,14,17,8,11,44,25.612496949731394,41,23,85,34.423828956117013,12,13.341664064126334,570,118,527,107,4,22.715633383201094,2,29.257477676655586,124,35.468295701936398,118,33.77869150810907,55,22.825424421026653,133,51.894122981316485,91,27.946377224964241]
[]
["Occupied Owner Housing Value"]
["NAME","OwnerOccHU","MOE OwnerOccHU","AllOOHU<10k","MOE AllOOHU<10k","AllOOHU10to15k","MOE AllOOHU10to15k","AllOOHU15to20k","MOE AllOOHU15to20k","AllOOHU20to25k","MOE AllOOHU20to25k","AllOOHU25to30k","MOE AllOOHU25to30k","AllOOHU30to35k","MOE AllOOHU30to35k","AllOOHU35to40k","MOE AllOOHU35to40k","AllOOHU40to50k","MOE AllOOHU40to50k","AllOOHU50to60k","MOE AllOOHU50to60k","AllOOHU60to70k","MOE AllOOHU60to70k","AllOOHU70to80k","MOE AllOOHU70to80k","AllOOHU80to90k","MOE AllOOHU80to90k","AllOOHU90to100k","MOE AllOOHU90to100k","AllOOHU100to125k","MOE AllOOHU100to125k","AllOOHU125to150k","MOE AllOOHU125to150k","AllOOHU150to175k","MOE AllOOHU150to175k","AllOOHU175to200k","MOE AllOOHU175to200k","AllOOHU200to250k","MOE AllOOHU200to250k","AllOOHU250to300k","MOE AllOOHU250to300k","AllOOHU300to400k","MOE AllOOHU300to400k","AllOOHU400to500k","MOE AllOOHU400to500k","AllOOHU500to750k","MOE AllOOHU500to750k","AllOOHU750to1000k","MOE AllOOHU750to1000k","AllOOHU1000kmore","MOE AllOOHU1000kmore","MedianOwnOCCHomeValue","MOE MedianOwnOCCHomeValue","OnwerOccHsU","MOE OnwerOccHsU","OwnerCosts>20PctHHInc","MOE OwnerCosts>20PctHHInc","OwnerCosts20to29.9PctHHInc","MOE OwnerCosts20to29.9PctHHInc","OwnerCosts<30PctHHInc","MOE OwnerCosts<30PctHHInc","OwnerCosts>30PctHHInc","MOE OwnerCosts>30PctHHInc","OwnerCosts30to34.9PctHHInc","MOE OwnerCosts30to34.9PctHHInc","OwnerCosts<35PctHHInc","MOE OwnerCosts<35PctHHInc","OwnerCosts>35PctHHInc","MOE OwnerCosts>35PctHHInc","OwnerCosts>50PctHHInc","MOE OwnerCosts>50PctHHInc","OwnerCostsPctNotcomputed","MOE OwnerCostsPctNotcomputed","OwnerOHUHhInc<20k","MOE OwnerOHUHhInc<20k","OwnerOHUHhInc<20kHCosts<20pct","MOE OwnerOHUHhInc<20kHCosts<20pct","OwnerOHUHhInc<20kHCosts20to29pct","MOE OwnerOHUHhInc<20kHCosts20to29pct","OwnerOHUHhInc>20kHCosts30pct","MOE OwnerOHUHhInc>20kHCosts30pct","OwnerOHUHhInc20kTo34999","MOE OwnerOHUHhInc20kTo34999","OwnerOHUHhInc20kTo34999HCosts<20pct","MOE OwnerOHUHhInc20kTo34999HCosts<20pct","OwnerOHUHhInc20kTo34999HCosts20to29pct","MOE OwnerOHUHhInc20kTo34999HCosts20to29pct","OwnerOHUHhInc20kTo34999HCosts30pct","MOE OwnerOHUHhInc20kTo34999HCosts30pct","OwnerOHUHhInc35kTo49999","MOE OwnerOHUHhInc35kTo49999","OwnerOHUHhInc35kTo49999HCosts<20pct","MOE OwnerOHUHhInc35kTo49999HCosts<20pct","OwnerOHUHhInc35kTo49999HCosts20to29pct","MOE OwnerOHUHhInc35kTo49999HCosts20to29pct","OwnerOHUHhInc35kTo49999HCosts30pct","MOE OwnerOHUHhInc35kTo49999HCosts30pct","OwnerOHUHhInc50kTo74999","MOE OwnerOHUHhInc50kTo74999","OwnerOHUHhInc50kTo74999HCosts<20pct","MOE OwnerOHUHhInc50kTo74999HCosts<20pct","OwnerOHUHhInc50kTo74999HCosts20to29pct","MOE OwnerOHUHhInc50kTo74999HCosts20to29pct","OwnerOHUHhInc50kTo74999HCosts30pct","MOE OwnerOHUHhInc50kTo74999HCosts30pct","OwnerOHUHhInc>75000","MOE OwnerOHUHhInc>75000","OwnerOHUHhInc>75000HCosts<20pct","MOE OwnerOHUHhInc>75000HCosts<20pct","OwnerOHUHhInc>75000HCosts20to29pct","MOE OwnerOHUHhInc>75000HCosts20to29pct","OwnerOHUHhInc>75000HCosts30pct","MOE OwnerOHUHhInc>75000HCosts30pct","ZeroOrNegativeIncome","MOE ZeroOrNegativeIncome"]
[{"$f":"VLOOKUP(DropDownList!$B$24,CntyQuery!$A$70:$CF$88,A$1)","v":"Albany"},272,56,25,17,4,7,0,11,0,11,6,7,10,13,0,11,0,11,0,11,3,4,0,11,9,13,5,6,13,13,18,15,21,15,31,20,44,24,26,15,20,12,25,11,12,9,0,11,0,11,0,11,0,11,192700,19935,272,56,156,42.743420546325019,33,18.411952639521967,189,46.540305112880382,83,33.570820663189039,9,13.038404810405298,198,48.332183894378289,74,30.935416596516038,30,16.643316977093239,0,15.556349186104045,48,25,8,12,3,4,37,21,31,22,10,13,8,8,13,15,31,16,7,6,6,7,18,13,39,20,22,17,5,5,12,9,123,32,109,32,11,8,3,4,0,11]
[]
["Occupied Rental Housing Value"]
["NAME","Estimate; Total:","Margin of Error; Total:","Estimate; Total: - Less than $10,000","Margin of Error; Total: - Less than $10,000","Estimate; Total: - $10,000 to $14,999","Margin of Error; Total: - $10,000 to $14,999","Estimate; Total: - $15,000 to $19,999","Margin of Error; Total: - $15,000 to $19,999","Estimate; Total: - $20,000 to $24,999","Margin of Error; Total: - $20,000 to $24,999","Estimate; Total: - $25,000 to $29,999","Margin of Error; Total: - $25,000 to $29,999","Estimate; Total: - $30,000 to $34,999","Margin of Error; Total: - $30,000 to $34,999","Estimate; Total: - $35,000 to $39,999","Margin of Error; Total: - $35,000 to $39,999","Estimate; Total: - $40,000 to $49,999","Margin of Error; Total: - $40,000 to $49,999","Estimate; Total: - $50,000 to $59,999","Margin of Error; Total: - $50,000 to $59,999","Estimate; Total: - $60,000 to $69,999","Margin of Error; Total: - $60,000 to $69,999","Estimate; Total: - $70,000 to $79,999","Margin of Error; Total: - $70,000 to $79,999","Estimate; Total: - $80,000 to $89,999","Margin of Error; Total: - $80,000 to $89,999","Estimate; Total: - $90,000 to $99,999","Margin of Error; Total: - $90,000 to $99,999","Estimate; Total: - $100,000 to $124,999","Margin of Error; Total: - $100,000 to $124,999","Estimate; Total: - $125,000 to $149,999","Margin of Error; Total: - $125,000 to $149,999","Estimate; Total: - $150,000 to $174,999","Margin of Error; Total: - $150,000 to $174,999","Estimate; Total: - $175,000 to $199,999","Margin of Error; Total: - $175,000 to $199,999","Estimate; Total: - $200,000 to $249,999","Margin of Error; Total: - $200,000 to $249,999","Estimate; Total: - $250,000 to $299,999","Margin of Error; Total: - $250,000 to $299,999","Estimate; Total: - $300,000 to $399,999","Margin of Error; Total: - $300,000 to $399,999","Estimate; Total: - $400,000 to $499,999","Margin of Error; Total: - $400,000 to $499,999","Estimate; Total: - $500,000 to $749,999","Margin of Error; Total: - $500,000 to $749,999","Estimate; Total: - $750,000 to $999,999","Margin of Error; Total: - $750,000 to $999,999","Estimate; Total: - $1,000,000 to $1,499,999","Margin of Error; Total: - $1,000,000 to $1,499,999","Estimate; Total: - $1,500,000 to $1,999,999","Margin of Error; Total: - $1,500,000 to $1,999,999","Estimate; Total: - $2,000,000 or more","Margin of Error; Total: - $2,000,000 or more","MedianOwnOCCHomeValue","MOE MedianOwnOCCHomeValue","OnwerOccHsU","MOE OnwerOccHsU","OwnerCosts>20PctHHInc","MOE OwnerCosts>20PctHHInc","OwnerCosts20to29.9PctHHInc","MOE OwnerCosts20to29.9PctHHInc","OwnerCosts<30PctHHInc","MOE OwnerCosts<30PctHHInc","OwnerCosts>30PctHHInc","MOE OwnerCosts>30PctHHInc","OwnerCosts30to34.9PctHHInc","MOE OwnerCosts30to34.9PctHHInc","OwnerCosts<35PctHHInc","MOE OwnerCosts<35PctHHInc","OwnerCosts>35PctHHInc","MOE OwnerCosts>35PctHHInc","OwnerCosts>50PctHHInc","MOE OwnerCosts>50PctHHInc","OwnerCostsPctNotcomputed","MOE OwnerCostsPctNotcomputed","OwnerOHUHhInc<20k","MOE OwnerOHUHhInc<20k","OwnerOHUHhInc<20kHCosts<20pct","MOE OwnerOHUHhInc<20kHCosts<20pct","OwnerOHUHhInc<20kHCosts20to29pct","MOE OwnerOHUHhInc<20kHCosts20to29pct","OwnerOHUHhInc>20kHCosts30pct","MOE OwnerOHUHhInc>20kHCosts30pct","OwnerOHUHhInc20kTo34999","MOE OwnerOHUHhInc20kTo34999","OwnerOHUHhInc20kTo34999HCosts<20pct","MOE OwnerOHUHhInc20kTo34999HCosts<20pct","OwnerOHUHhInc20kTo34999HCosts20to29pct","MOE OwnerOHUHhInc20kTo34999HCosts20to29pct","OwnerOHUHhInc20kTo34999HCosts30pct","MOE OwnerOHUHhInc20kTo34999HCosts30pct","OwnerOHUHhInc35kTo49999","MOE OwnerOHUHhInc35kTo49999","OwnerOHUHhInc35kTo49999HCosts<20pct","MOE OwnerOHUHhInc35kTo49999HCosts<20pct","OwnerOHUHhInc35kTo49999HCosts20to29pct","MOE OwnerOHUHhInc35kTo49999HCosts20to29pct","OwnerOHUHhInc35kTo49999HCosts30pct","MOE OwnerOHUHhInc35kTo49999HCosts30pct","OwnerOHUHhInc50kTo74999","MOE OwnerOHUHhInc50kTo74999","OwnerOHUHhInc50kTo74999HCosts<20pct","MOE OwnerOHUHhInc50kTo74999HCosts<20pct","OwnerOHUHhInc50kTo74999HCosts20to29pct","MOE OwnerOHUHhInc50kTo74999HCosts20to29pct","OwnerOHUHhInc50kTo74999HCosts30pct","MOE OwnerOHUHhInc50kTo74999HCosts30pct","OwnerOHUHhInc>75000","MOE OwnerOHUHhInc>75000","OwnerOHUHhInc>75000HCosts<20pct","MOE OwnerOHUHhInc>75000HCosts<20pct","OwnerOHUHhInc>75000HCosts20to29pct","MOE OwnerOHUHhInc>75000HCosts20to29pct","OwnerOHUHhInc>75000HCosts30pct","MOE OwnerOHUHhInc>75000HCosts30pct","ZeroOrNegativeIncome","MOE ZeroOrNegativeIncome"]
[{"$f":"VLOOKUP(DropDownList!$B$24,CntyQuery!$A$70:$CF$88,A$1)","v":"Albany"},35,17,30,18,0,11,0,11,0,11,0,11,0,11,0,11,0,11,0,11,0,11,2,4,0,11,0,11,0,11,0,11,14,15,0,11,5,6,2,3,6,7,1,2,0,11,0,11,0,11,0,11,5,6,796,328,35,17,0,11,0,11,0,11,0,11,0,11,0,11,0,11,0,11,0,11,4,7,0,11,0,11,0,11,0,11,0,11,0,11,2,5,2,4,14,12,0,11,2,4,0,11,9,10,0,11,0,11,0,11,3,5,12,14,0,11,8,12,0,11,0,11,4,6,0,11,0,11,0,11,0,11,0,11,0,11,0,11,0,11,0,11,0,11,0,11,0,11,0,11,0,11,0,11,0,11,0,11,0,11,0,11,0,11,0,11,5,5,5,5,0,11,0,11,0,11,0,11,0,11,0,11,0,11]
[]
[]
[null,43.9,45,43.2,3.2,5,6.3]
[]
[]
["Occupied Rental Housing Cost Burdern All Incomes"]
["NAME","RntrOccHU","MOE RntrOccHU","RntrOccHUwRent","MOE RntrOccHUwRent","ROHUGRent<100","MOE ROHUGRent<100","ROHUGRent100to149","MOE ROHUGRent100to149","ROHUGRent150to199","MOE ROHUGRent150to199","ROHUGRent200to249","MOE ROHUGRent200to249","ROHUGRent250to299","MOE ROHUGRent250to299","ROHUGRent300to349","MOE ROHUGRent300to349","ROHUGRent350to399","MOE ROHUGRent350to399","ROHUGRent400to449","MOE ROHUGRent400to449","ROHUGRent450to499","MOE ROHUGRent450to499","ROHUGRent500to549","MOE ROHUGRent500to549","ROHUGRent550to599","MOE ROHUGRent550to599","ROHUGRent600to649","MOE ROHUGRent600to649","ROHUGRent650to699","MOE ROHUGRent650to699","ROHUGRent700to749","MOE ROHUGRent700to749","ROHUGRent750to799","MOE ROHUGRent750to799","ROHUGRent800to899","MOE ROHUGRent800to899","ROHUGRent900to999","MOE ROHUGRent900to999","ROHUGRent1000to1249","MOE ROHUGRent1000to1249","ROHUGRent1250to1499","MOE ROHUGRent1250to1499","ROHUGRent1500to1999","MOE ROHUGRent1500to1999","ROHUGRent2000-2499","MOE ROHUGRent2000-2499","ROHUGRent2500-2999","MOE ROHUGRent2500-2999","ROHUGRent3000-3499","MOE ROHUGRent3000-3499","ROHUGRent3500<","MOE ROHUGRent3500<","ROHUNoGRent","MOE ROHUNoGRent","MedianGrossRnt","MOE MedianGrossRnt","H73RenterOccHU","MOE H73RenterOccHU","H73ROHUHhInc<10k","MOE H73ROHUHhInc<10k","H73ROHUHhInc<10kRnt<20pct","MOE H73ROHUHhInc<10kRnt<20pct","H73ROHUHhInc<10kRnt20to25pct","MOE H73ROHUHhInc<10kRnt20to25pct","H73ROHUHhInc<10kRnt25to30pct","MOE H73ROHUHhInc<10kRnt25to30pct","H73ROHUHhInc<10kRnt30to35pct","MOE H73ROHUHhInc<10kRnt30to35pct","H73ROHUHhInc<10kRnt35to39.9","MOE H73ROHUHhInc<10kRnt35to39.9","H73ROHUHhInc<10kRnt40to49.9","MOE H73ROHUHhInc<10kRnt40to49.9","H73ROHUHhInc<10kRnt>50pct","MOE H73ROHUHhInc<10kRnt>50pct","H73ROHUHhInc<10kPctNotComput","MOE H73ROHUHhInc<10kPctNotComput","H73ROHUHhInc10to20k","MOE H73ROHUHhInc10to20k","H73ROHUHhInc10to20kRnt<20pct","MOE H73ROHUHhInc10to20kRnt<20pct","H73ROHUHhInc10to20kRnt20to25pct","MOE H73ROHUHhInc10to20kRnt20to25pct","H73ROHUHhInc10to20kRnt25to30pct","MOE H73ROHUHhInc10to20kRnt25to30pct","H73ROHUHhInc10to20kRnt30to35pct","MOE H73ROHUHhInc10to20kRnt30to35pct","H73ROHUHhInc10to20kRnt35to39.9","MOE H73ROHUHhInc10to20kRnt35to39.9","H73ROHUHhInc10to20kRnt40to49.9","MOE H73ROHUHhInc10to20kRnt40to49.9","H73ROHUHhInc10to20kRnt>50pct","MOE H73ROHUHhInc10to20kRnt>50pct","H73ROHUHhInc10to20kRntPctNC","MOE H73ROHUHhInc10to20kRntPctNC","H73ROHUHhInc20to34.9k","MOE H73ROHUHhInc20to34.9k","H73ROHUHhInc20to34.9kRnt<20pct","MOE H73ROHUHhInc20to34.9kRnt<20pct","H73ROHUHhInc20to34.9kRnt20to25pct","MOE H73ROHUHhInc20to34.9kRnt20to25pct","H73ROHUHhInc20to34.9kRnt25to30pct","MOE H73ROHUHhInc20to34.9kRnt25to30pct","H73ROHUHhInc20to34.9kRnt30to35pct","MOE H73ROHUHhInc20to34.9kRnt30to35pct","H73ROHUHhInc20to34.9kRnt35to39.9","MOE H73ROHUHhInc20to34.9kRnt35to39.9","H73ROHUHhInc20to34.9kRnt40to49.9","MOE H73ROHUHhInc20to34.9kRnt40to49.9","H73ROHUHhInc20to34.9kRnt>50pct","MOE H73ROHUHhInc20to34.9kRnt>50pct","H73ROHUHhInc20to34.9kRntPctNC","MOE H73ROHUHhInc20to34.9kRntPctNC","H73ROHUHhInc35to49.9k","MOE H73ROHUHhInc35to49.9k","H73ROHUHhInc35to49.9kRnt<20pct","MOE H73ROHUHhInc35to49.9kRnt<20pct","H73ROHUHhInc35to49.9kRnt20to25pct","MOE H73ROHUHhInc35to49.9kRnt20to25pct","H73ROHUHhInc35to49.9kRnt25to30pct","MOE H73ROHUHhInc35to49.9kRnt25to30pct","H73ROHUHhInc35to49.9kRnt30to35pct","MOE H73ROHUHhInc35to49.9kRnt30to35pct","H73ROHUHhInc35to49.9kRnt35to39.9","MOE H73ROHUHhInc35to49.9kRnt35to39.9","H73ROHUHhInc35to49.9kRnt40to49.9","MOE H73ROHUHhInc35to49.9kRnt40to49.9","H73ROHUHhInc35to49.9kRnt>50pct","MOE H73ROHUHhInc35to49.9kRnt>50pct","H73ROHUHhInc35to49.9kRntPctNC","MOE H73ROHUHhInc35to49.9kRntPctNC","H73ROHUHhInc50to74.9k","MOE H73ROHUHhInc50to74.9k","H73ROHUHhInc50to74.9kRnt<20pct","MOE H73ROHUHhInc50to74.9kRnt<20pct","H73ROHUHhInc50to74.9kRnt20to25pct","MOE H73ROHUHhInc50to74.9kRnt20to25pct","H73ROHUHhInc50to74.9kRnt25to30pct","MOE H73ROHUHhInc50to74.9kRnt25to30pct","H73ROHUHhInc50to74.9kRnt30to35pct","MOE H73ROHUHhInc50to74.9kRnt30to35pct","H73ROHUHhInc50to74.9kRnt35to39.9","MOE H73ROHUHhInc50to74.9kRnt35to39.9","H73ROHUHhInc50to74.9kRnt40to49.9","MOE H73ROHUHhInc50to74.9kRnt40to49.9","H73ROHUHhInc50to74.9kRnt>50pct","MOE H73ROHUHhInc50to74.9kRnt>50pct","H73ROHUHhInc50to74.9kRntPctNC","MOE H73ROHUHhInc50to74.9kRntPctNC","H73ROHUHhInc75to99.9k","MOE H73ROHUHhInc75to99.9k","H73ROHUHhInc75to99.9kRnt<20pct","MOE H73ROHUHhInc75to99.9kRnt<20pct","H73ROHUHhInc75to99.9kRnt20to25pct","MOE H73ROHUHhInc75to99.9kRnt20to25pct","H73ROHUHhInc75to99.9kRnt25to30pct","MOE H73ROHUHhInc75to99.9kRnt25to30pct","H73ROHUHhInc75to99.9kRnt30to35pct","MOE H73ROHUHhInc75to99.9kRnt30to35pct","H73ROHUHhInc75to99.9kRnt35to39.9","MOE H73ROHUHhInc75to99.9kRnt35to39.9","H73ROHUHhInc75to99.9kRnt40to49.9","MOE H73ROHUHhInc75to99.9kRnt40to49.9","H73ROHUHhInc75to99.9kRnt>50pct","MOE H73ROHUHhInc75to99.9kRnt>50pct","H73ROHUHhInc75to99.9kRntPctNC","MOE H73ROHUHhInc75to99.9kRntPctNC","H73ROHUHhInc>100k","MOE H73ROHUHhInc>100k","H73ROHUHhInc>100kRnt<20pct","MOE H73ROHUHhInc>100kRnt<20pct","H73ROHUHhInc>100kRnt20to25pct","MOE H73ROHUHhInc>100kRnt20to25pct","H73ROHUHhInc>100kRnt25to30pct","MOE H73ROHUHhInc>100kRnt25to30pct","H73ROHUHhInc>100kRnt30to35pct","MOE H73ROHUHhInc>100kRnt30to35pct","H73ROHUHhInc>100kRnt35to39.9","MOE H73ROHUHhInc>100kRnt35to39.9","H73ROHUHhInc>100kRnt40to49.9","MOE H73ROHUHhInc>100kRnt40to49.9","H73ROHUHhInc>100kRnt>50pct","MOE H73ROHUHhInc>100kRnt>50pct","H73ROHUHhInc>100kRntPctNC","MOE H73ROHUHhInc>100kRntPctNC"]
[{"$f":"VLOOKUP(DropDownList!$B$24,CntyQuery!$A$70:$CF$88,A$1)","v":"Albany"},35,17,5,12.083045973594572,10,13,0,11,15,20.880613017821101,15,16.792855623746664,9,10,24,23.151673805580451,6,13.490737563232042,2,5,5,6]
[]
["Income By Household Type and Tenure"]
["NAME","TotalFamilyHouseholds",{"$f":"\"MOE \"&B159","v":"MOE TotalFamilyHouseholds"},"FamInc<10K",{"$f":"\"MOE \"&D159","v":"MOE FamInc<10K"},"FamInc10to15K",{"$f":"\"MOE \"&F159","v":"MOE FamInc10to15K"},"FamInc15to20K",{"$f":"\"MOE \"&H159","v":"MOE FamInc15to20K"},"FamInc20to25K",{"$f":"\"MOE \"&J159","v":"MOE FamInc20to25K"},"FamInc25to30K",{"$f":"\"MOE \"&L159","v":"MOE FamInc25to30K"},"FamInc30to35K",{"$f":"\"MOE \"&N159","v":"MOE FamInc30to35K"},"FamInc35to40K",{"$f":"\"MOE \"&P159","v":"MOE FamInc35to40K"},"FamInc40to45K",{"$f":"\"MOE \"&R159","v":"MOE FamInc40to45K"},"FamInc45to50K",{"$f":"\"MOE \"&T159","v":"MOE FamInc45to50K"},"FamInc50to60K",{"$f":"\"MOE \"&V159","v":"MOE FamInc50to60K"},"FamInc60to75K",{"$f":"\"MOE \"&X159","v":"MOE FamInc60to75K"},"FamInc75to100K",{"$f":"\"MOE \"&Z159","v":"MOE FamInc75to100K"},"FamInc100to125K",{"$f":"\"MOE \"&AB159","v":"MOE FamInc100to125K"},"FamInc125to150K",{"$f":"\"MOE \"&AD159","v":"MOE FamInc125to150K"},"FamInc150to200K",{"$f":"\"MOE \"&AF159","v":"MOE FamInc150to200K"},"FamInc>200K",{"$f":"\"MOE \"&AH159","v":"MOE FamInc>200K"},"MedFamInc",{"$f":"\"MOE \"&AJ159","v":"MOE MedFamInc"},"TotalNonNonFamilyHouseholds",{"$f":"\"MOE \"&AL159","v":"MOE TotalNonNonFamilyHouseholds"},"NonFamInc<10K",{"$f":"\"MOE \"&AN159","v":"MOE NonFamInc<10K"},"NonFamInc10to15K",{"$f":"\"MOE \"&AP159","v":"MOE NonFamInc10to15K"},"NonFamInc15to20K",{"$f":"\"MOE \"&AR159","v":"MOE NonFamInc15to20K"},"NonFamInc20to25K",{"$f":"\"MOE \"&AT159","v":"MOE NonFamInc20to25K"},"NonFamInc25to30K",{"$f":"\"MOE \"&AV159","v":"MOE NonFamInc25to30K"},"NonFamInc30to35K",{"$f":"\"MOE \"&AX159","v":"MOE NonFamInc30to35K"},"NonFamInc35to40K",{"$f":"\"MOE \"&AZ159","v":"MOE NonFamInc35to40K"},"NonFamInc40to45K",{"$f":"\"MOE \"&BB159","v":"MOE NonFamInc40to45K"},"NonFamInc45to50K",{"$f":"\"MOE \"&BD159","v":"MOE NonFamInc45to50K"},"NonFamInc50to60K",{"$f":"\"MOE \"&BF159","v":"MOE NonFamInc50to60K"},"NonFamInc60to75K",{"$f":"\"MOE \"&BH159","v":"MOE NonFamInc60to75K"},"NonFamInc75to100K",{"$f":"\"MOE \"&BJ159","v":"MOE NonFamInc75to100K"},"NonFamInc100to125K",{"$f":"\"MOE \"&BL159","v":"MOE NonFamInc100to125K"},"NonFamInc125to150K",{"$f":"\"MOE \"&BN159","v":"MOE NonFamInc125to150K"},"NonFamInc150to200K",{"$f":"\"MOE \"&BP159","v":"MOE NonFamInc150to200K"},"NonFamInc>200K",{"$f":"\"MOE \"&BR159","v":"MOE NonFamInc>200K"},"MedNonFamInc",{"$f":"\"MOE \"&BT159","v":"MOE MedNonFamInc"},"PerCapitaIncome","MOE PerCapitaIncome"]
[{"$f":"VLOOKUP(DropDownList!$B$24,CntyQuery!$A$70:$CF$88,A$1)","v":"Albany"},212,50,0,11,6,8,10,11,3,4,8,7,11,8,4,4,30,23,3,5,8,7,20,15,27,14,23,17,39,22,16,11,4,4,80833,18866,95,32,12,13,16,15,8,12,0,11,21,19,2,3,0,11,4,6,2,3,9,7,5,10,10,8,4,4,0,11,0,11,2,3,26917,5407,35527,5009]
[]
[]
[]
["2010 Census"]
[]
["TownName","LOGRECNO","COUNTY","TotalPop","TotalPop1Race","TotalPopWhite","TotalPopAfricanAmerican","TotalPopAmericanIndAlaska","TotalPopAsian","TotalPopNativeHawaiianPIsland","TotalPopSomeOtherRace","TotalPopTwoOrMoreRaces","TotalPopHispanicLatino","TotalNonHispanicLatino","TotPopUnder15yrs","TotPop15to24yrs","TotPop25to34yrs","TotPop35to44yrs","TotPop45to54yrs","TotPop55to64yrs","TotPop65to74yrs","TotPopOver74yrs","MedianAge","MedianAgeMale","MedianAgeFemale","TotalHH","TotalPopInHouseholds","TotalPopInFamilyHH","TotalPopInNonFamilyHH","AvgHHSize","TotalFamilyHH","TotalFamilyHHSpouse","TotalSingleParentHH","TotalNonFamilyHH","AvgFamilyHHSize","AvgNonFamilyHHSize","AverageHHSizeOwnerOccupied","AverageHHSizeRentalOccupied","TotalHousingUnits","TotalOccupiedHU","TotalOwnerOccupiedHUs","TotalRentalOccupiedHU","TotalVacantHU","VacantHUForRent","VacantHURentNotOccupied","VacantHUForSale","VacantHUsSoldNotOccupied","VacantHUSeasonalRecreational","VacantHUsAllOtherVacants","HomeOwnerVacancyRate","HomeRentalVacancyRate","TotalHousingUnits2010","SingFamHU2010","MultiFamHU2010","MobileHom2010"]
[{"$f":"VLOOKUP(DropDownList!$B$24,CntyQuery!$A$70:$CF$88,A$1)","v":"Albany"},{"$f":"VLOOKUP(DropDownList!$A$24,CntyQryCensus!$A$289:$BC$308,B$1)","v":"0000022"},{"$f":"VLOOKUP(DropDownList!$A$24,CntyQryCensus!$A$289:$BC$308,C$1)","v":"003"},{"$f":"VLOOKUP(DropDownList!$A$24,CntyQryCensus!$A$289:$BC$308,D$1)","v":735},{"$f":"VLOOKUP(DropDownList!$A$24,CntyQryCensus!$A$289:$BC$308,E$1)","v":724},{"$f":"VLOOKUP(DropDownList!$A$24,CntyQryCensus!$A$289:$BC$308,F$1)","v":713},{"$f":"VLOOKUP(DropDownList!$A$24,CntyQryCensus!$A$289:$BC$308,G$1)","v":3},{"$f":"VLOOKUP(DropDownList!$A$24,CntyQryCensus!$A$289:$BC$308,H$1)","v":4},{"$f":"VLOOKUP(DropDownList!$A$24,CntyQryCensus!$A$289:$BC$308,I$1)","v":3},{"$f":"VLOOKUP(DropDownList!$A$24,CntyQryCensus!$A$289:$BC$308,J$1)","v":0},{"$f":"VLOOKUP(DropDownList!$A$24,CntyQryCensus!$A$289:$BC$308,K$1)","v":1},{"$f":"VLOOKUP(DropDownList!$A$24,CntyQryCensus!$A$289:$BC$308,L$1)","v":11},{"$f":"VLOOKUP(DropDownList!$A$24,CntyQryCensus!$A$289:$BC$308,M$1)","v":10},{"$f":"VLOOKUP(DropDownList!$A$24,CntyQryCensus!$A$289:$BC$308,N$1)","v":725},{"$f":"VLOOKUP(DropDownList!$A$24,CntyQryCensus!$A$289:$BC$308,O$1)","v":112},{"$f":"VLOOKUP(DropDownList!$A$24,CntyQryCensus!$A$289:$BC$308,P$1)","v":84},{"$f":"VLOOKUP(DropDownList!$A$24,CntyQryCensus!$A$289:$BC$308,Q$1)","v":59},{"$f":"VLOOKUP(DropDownList!$A$24,CntyQryCensus!$A$289:$BC$308,R$1)","v":103},{"$f":"VLOOKUP(DropDownList!$A$24,CntyQryCensus!$A$289:$BC$308,S$1)","v":146},{"$f":"VLOOKUP(DropDownList!$A$24,CntyQryCensus!$A$289:$BC$308,T$1)","v":102},{"$f":"VLOOKUP(DropDownList!$A$24,CntyQryCensus!$A$289:$BC$308,U$1)","v":83},{"$f":"VLOOKUP(DropDownList!$A$24,CntyQryCensus!$A$289:$BC$308,V$1)","v":46},{"$f":"VLOOKUP(DropDownList!$A$24,CntyQryCensus!$A$289:$BC$308,W$1)","v":45.6},{"$f":"VLOOKUP(DropDownList!$A$24,CntyQryCensus!$A$289:$BC$308,X$1)","v":46.7},{"$f":"VLOOKUP(DropDownList!$A$24,CntyQryCensus!$A$289:$BC$308,Y$1)","v":44.9},{"$f":"VLOOKUP(DropDownList!$A$24,CntyQryCensus!$A$289:$BC$308,Z$1)","v":318},{"$f":"VLOOKUP(DropDownList!$A$24,CntyQryCensus!$A$289:$BC$308,AA$1)","v":735},{"$f":"VLOOKUP(DropDownList!$A$24,CntyQryCensus!$A$289:$BC$308,AB$1)","v":347},{"$f":"VLOOKUP(DropDownList!$A$24,CntyQryCensus!$A$289:$BC$308,AC$1)","v":388},{"$f":"VLOOKUP(DropDownList!$A$24,CntyQryCensus!$A$289:$BC$308,AD$1)","v":2.31},{"$f":"VLOOKUP(DropDownList!$A$24,CntyQryCensus!$A$289:$BC$308,AE$1)","v":205},{"$f":"VLOOKUP(DropDownList!$A$24,CntyQryCensus!$A$289:$BC$308,AF$1)","v":161},{"$f":"VLOOKUP(DropDownList!$A$24,CntyQryCensus!$A$289:$BC$308,AG$1)","v":44},{"$f":"VLOOKUP(DropDownList!$A$24,CntyQryCensus!$A$289:$BC$308,AH$1)","v":113},{"$f":"VLOOKUP(DropDownList!$A$24,CntyQryCensus!$A$289:$BC$308,AI$1)","v":2.69},{"$f":"VLOOKUP(DropDownList!$A$24,CntyQryCensus!$A$289:$BC$308,AJ$1)","v":3.4336283185840708},{"$f":"VLOOKUP(DropDownList!$A$24,CntyQryCensus!$A$289:$BC$308,AK$1)","v":2.3199999999999998},{"$f":"VLOOKUP(DropDownList!$A$24,CntyQryCensus!$A$289:$BC$308,AL$1)","v":2.29},{"$f":"VLOOKUP(DropDownList!$A$24,CntyQryCensus!$A$289:$BC$308,AM$1)","v":560},{"$f":"VLOOKUP(DropDownList!$A$24,CntyQryCensus!$A$289:$BC$308,AN$1)","v":318},{"$f":"VLOOKUP(DropDownList!$A$24,CntyQryCensus!$A$289:$BC$308,AO$1)","v":253},{"$f":"VLOOKUP(DropDownList!$A$24,CntyQryCensus!$A$289:$BC$308,AP$1)","v":65},{"$f":"VLOOKUP(DropDownList!$A$24,CntyQryCensus!$A$289:$BC$308,AQ$1)","v":242},{"$f":"VLOOKUP(DropDownList!$A$24,CntyQryCensus!$A$289:$BC$308,AR$1)","v":8},{"$f":"VLOOKUP(DropDownList!$A$24,CntyQryCensus!$A$289:$BC$308,AS$1)","v":0},{"$f":"VLOOKUP(DropDownList!$A$24,CntyQryCensus!$A$289:$BC$308,AT$1)","v":1},{"$f":"VLOOKUP(DropDownList!$A$24,CntyQryCensus!$A$289:$BC$308,AU$1)","v":0},{"$f":"VLOOKUP(DropDownList!$A$24,CntyQryCensus!$A$289:$BC$308,AV$1)","v":223},{"$f":"VLOOKUP(DropDownList!$A$24,CntyQryCensus!$A$289:$BC$308,AW$1)","v":10},{"$f":"VLOOKUP(DropDownList!$A$24,CntyQryCensus!$A$289:$BC$308,AX$1)","v":0.4},{"$f":"VLOOKUP(DropDownList!$A$24,CntyQryCensus!$A$289:$BC$308,AY$1)","v":11},{"$f":"VLOOKUP(DropDownList!$A$24,CntyQryCensus!$A$289:$BC$308,AZ$1)","v":560},{"$f":"VLOOKUP(DropDownList!$A$24,CntyQryCensus!$A$289:$BC$308,BA$1)","v":452},{"$f":"VLOOKUP(DropDownList!$A$24,CntyQryCensus!$A$289:$BC$308,BB$1)","v":18},{"$f":"VLOOKUP(DropDownList!$A$24,CntyQryCensus!$A$289:$BC$308,BC$1)","v":90}]

{"sheet":"CntyQuery","index":7,"n_rows":134,"n_cols":243,"rows_kept":134,"cut":false,"hidden":true,"merged":[]}
["CountyName","Cnty_Code","Census_Cnty_Code","LandAcres","WaterAcres","HousingUnits90Cen","Persons90Cen","Families90Cen","Households90cen","MalePop90cen","FemalePop90cen","WhitePop","BlackPop","AmerIndianPop","AsianPIPop","OtherRacePop","HispanicOrPop","AgeUnder15_90cen","Age15to24_90cen","Age25to34_90cen","Age35to44_90cen","Age45to54_90cen","Age55to64_90cen","Age65to74_90cen","Age75andOver_90cen","PersonsInHH90cen","PersonsInFamHH90cen","PersonsInGC","PersonsPerHH90cen","PersonsPerFam90Cen","SinglePersonHH90cen","MarriedCoupleHH90cen","SingleParentHH90cen","NonFamilyHH90cen","TotalHousingUnits","OccupiedHousingUnits","VacantHousingUnits","OwnerOccHU","RenterOccHU","VacantForRent90","VacantForSale90","VacantSeasonalRec","SingFamHU90cen","MultiFamHU90cen","MobileHom90cen","SingFamOwnHU90cen","MultiFamOwnHU90cen","MobileHomOwnHU90cen","SingFamRntrHU90cen","MultiFamRntrHU90cen","MobileHomRntrHU90cen","HU<5yrs90cen","HU5to20yrs90cen","HU20to50yrs90cen","HU>50yrs90cen","Units0Bedroom90cen","Units1Bedroom90cen","Units2Bedroom90cen","Units3Bedroom90cen","Units4+Bedroom90cen","HI<5K","HI5Kto10K","HI10Kto15K","HI15Kto25K","HI25Kto35K","HI35Kto50K","HI50Kto75K","HI75Kto100K","HI>100K","MedHI","HH<25HI<5K","HH<25HI5Kto10K","HH<25HI10Kto15K","HH<25HI15Kto25K","HH<25HI25Kto35K","HH<25HI35Kto50K","HH<25HI50Kto75K","HH<25HI75Kto100K","HH<25HI>100K","HH25to34HI<5K","HH25to34HI5Kto10K","HH25to34HI10Kto15K","HH25to34HI15Kto25K","HH25to34HI25Kto35K","HH25to34HI35Kto50K","HH25to34HI50Kto75K","HH25to34HI75Kto100K","HH25to34HI>100K","HH35to44HI<5K","HH35to44HI5Kto10K","HH35to44HI10Kto15K","HH35to44HI15Kto25K","HH35to44HI25Kto35K","HH35to44HI35Kto50K","HH35to44HI50Kto75K","HH35to44HI75Kto100K","HH35to44HI>100K","HH45to54HI<5K","HH45to54HI5Kto10K","HH45to54HI10Kto15K","HH45to54HI15Kto25K","HH45to54HI25Kto35K","HH45to54HI35Kto50K","HH45to54HI50Kto75K","HH45to54HI75Kto100K","HH45to54HI>100K","HH55to64HI<5K","HH55to64HI5Kto10K","HH55to64HI10Kto15K","HH55to64HI15Kto25K","HH55to64HI25Kto35K","HH55to64HI35Kto50K","HH55to64HI50Kto75K","HH55to64HI75Kto100K","HH55to64HI>100K","HH65to74HI<5K","HH65to74HI5Kto10K","HH65to74HI10Kto15K","HH65to74HI15Kto25K","HH65to74HI25Kto35K","HH65to74HI35Kto50K","HH65to74HI50Kto75K","HH65to74HI75Kto100K","HH65to74HI>100K","HH>75HI<5K","HH>75HI5Kto10K","HH>75HI10Kto15K","HH>75HI15Kto25K","HH>75HI25Kto35K","HH>75HI35Kto50K","HH>75HI50Kto75K","HH>75HI75Kto100K","HH>75HI>100K","SchoolEnrollment1thru12","Pop25andOver","HSGradorHigher","CollGradorHigher","NativePop","ForeignBornPop","BornStateOfRes","NativePop2","ForeignBornPop2","DroveAlone","CarPooled","PublicTranspt","Walked","OtherMeans","WorkedAtHome","HHInc<10K","HHInc10to15K","HHInc15to25K","HHInc25to35K","HHInc35to50K","HHInc50to75K","HHInc75to100K","HHInc100to150K","HHInc>150K"]
["Census 1990 Data -           Query Name:  DPCnty90Census"]
["NAME","FIPS","COUSUBFP","LandAcres","WaterAcres","HousingUnits90Cen","Persons90Cen","Families90Cen","Households90cen","MalePop90cen","FemalePop90cen","WhitePop","BlackPop","AmerIndianPop","AsianPIPop","OtherRacePop","HispanicOrPop","AgeUnder15_90cen","Age15to24_90cen","Age25to34_90cen","Age35to44_90cen","Age45to54_90cen","Age55to64_90cen","Age65to74_90cen","Age75andOver_90cen","PersonsInHH90cen","PersonsInFamHH90cen","PersonsInGC","PersonsPerHH90cen","PersonsPerFam90Cen","SinglePersonHH90cen","MarriedCoupleHH90cen","SingleParentHH90cen","NonFamilyHH90cen","TotalHousingUnits","OccupiedHousingUnits","VacantHousingUnits","OwnerOccHU","RenterOccHU","VacantForRent90","VacantForSale90","VacantSeasonalRec","SingFamHU90cen","MultiFamHU90cen","MobileHom90cen","SingFamOwnHU90cen","MultiFamOwnHU90cen","MobileHomOwnHU90cen","SingFamRntrHU90cen","MultiFamRntrHU90cen","MobileHomRntrHU90cen","HU<5yrs90cen","HU5to20yrs90cen","HU20to50yrs90cen","HU>50yrs90cen","Units0Bedroom90cen","Units1Bedroom90cen","Units2Bedroom90cen","Units3Bedroom90cen","Units4+Bedroom90cen","HI<5K","HI5Kto10K","HI10Kto15K","HI15Kto25K","HI25Kto35K","HI35Kto50K","HI50Kto75K","HI75Kto100K","HI>100K","MedHI","HH<25HI<5K","HH<25HI5Kto10K","HH<25HI10Kto15K","HH<25HI15Kto25K","HH<25HI25Kto35K","HH<25HI35Kto50K","HH<25HI50Kto75K","HH<25HI75Kto100K","HH<25HI>100K","HH25to34HI<5K","HH25to34HI5Kto10K","HH25to34HI10Kto15K","HH25to34HI15Kto25K","HH25to34HI25Kto35K","HH25to34HI35Kto50K","HH25to34HI50Kto75K","HH25to34HI75Kto100K","HH25to34HI>100K","HH35to44HI<5K","HH35to44HI5Kto10K","HH35to44HI10Kto15K","HH35to44HI15Kto25K","HH35to44HI25Kto35K","HH35to44HI35Kto50K","HH35to44HI50Kto75K","HH35to44HI75Kto100K","HH35to44HI>100K","HH45to54HI<5K","HH45to54HI5Kto10K","HH45to54HI10Kto15K","HH45to54HI15Kto25K","HH45to54HI25Kto35K","HH45to54HI35Kto50K","HH45to54HI50Kto75K","HH45to54HI75Kto100K","HH45to54HI>100K","HH55to64HI<5K","HH55to64HI5Kto10K","HH55to64HI10Kto15K","HH55to64HI15Kto25K","HH55to64HI25Kto35K","HH55to64HI35Kto50K","HH55to64HI50Kto75K","HH55to64HI75Kto100K","HH55to64HI>100K","HH65to74HI<5K","HH65to74HI5Kto10K","HH65to74HI10Kto15K","HH65to74HI15Kto25K","HH65to74HI25Kto35K","HH65to74HI35Kto50K","HH65to74HI50Kto75K","HH65to74HI75Kto100K","HH65to74HI>100K","HH>75HI<5K","HH>75HI5Kto10K","HH>75HI10Kto15K","HH>75HI15Kto25K","HH>75HI25Kto35K","HH>75HI35Kto50K","HH>75HI50Kto75K","HH>75HI75Kto100K","HH>75HI>100K","SchoolEnrollment1thru12","Pop25andOver","HSGradorHigher","CollGradorHigher","NativePop","ForeignBornPop","BornStateOfRes","NativePop2","ForeignBornPop2","DroveAlone","CarPooled","PublicTranspt","Walked","OtherMeans","WorkedAtHome","HHInc<10K","HHInc10to15K","HHInc15to25K","HHInc25to35K","HHInc35to50K","HHInc50to75K","HHInc75to100K","HHInc100to150K","HHInc>150K"]
["Albany",3005,"00420",48252.959999999999,222.58,451,536,142,214,268,268,531,0,5,0,0,1,126,58,123,82,56,45,32,14,536,433,0,2.5046728971962615,3.0492957746478875,46,121,21,26,451,214,237,165,49,18,11,175,337,27,87,113,4,87,24,18,7,126,165,62,113,11,62,202,139,52,2,24,25,53,51,31,18,6,2,25455,0,5,5,5,3,0,0,0,0,2,2,8,27,18,9,6,3,0,0,0,8,9,11,6,5,0,2,0,4,0,2,8,9,3,0,0,0,4,0,6,8,4,2,3,0,0,3,2,4,3,3,2,0,0,0,6,2,0,0,0,0,0,0,72,330,247,41,520,10,226,520,10,216,22,0,2,4,20,26,25,53,51,31,18,6,2,0]
["Bartlett",3010,"03700",47877.75,4.5,3407,2290,617,958,1150,1140,2270,3,4,10,3,7,439,220,422,461,251,228,172,97,2267,1809,23,2.3663883089770357,2.9319286871961103,240,519,98,101,3407,958,2449,618,340,467,47,1871,1602,1677,128,517,59,128,134,170,36,866,1105,550,904,47,262,1152,1562,402,43,69,81,227,169,163,123,34,37,28485,2,4,2,14,4,6,2,0,2,2,11,24,59,61,34,16,5,2,8,8,11,48,51,73,47,17,2,5,3,6,23,29,27,27,3,18,8,7,16,27,13,12,24,9,7,9,26,8,36,8,9,5,0,6,9,10,14,20,3,2,2,0,0,313,1603,1408,407,2203,74,802,2203,74,976,84,4,45,4,75,112,81,227,169,163,123,34,30,7]
["Brookfield",3015,"07940",14628.95,251.36,274,518,152,192,246,272,518,0,0,0,0,2,121,46,68,95,57,52,40,39,518,471,0,2.6979166666666665,3.0986842105263159,33,136,16,7,274,192,82,178,14,1,8,66,256,11,7,168,7,7,13,1,0,54,89,53,101,5,10,68,129,85,6,11,12,21,29,59,50,8,9,39653,0,0,2,0,0,3,0,0,0,2,0,3,1,4,12,10,2,0,0,0,0,8,11,14,7,0,2,0,0,2,0,0,6,21,3,0,2,2,0,5,9,6,8,0,5,2,0,0,2,3,14,2,3,0,0,9,5,5,2,4,2,0,2,91,377,349,110,565,14,241,565,14,181,40,0,3,3,37,17,12,21,29,59,50,8,7,2]
["Chatham",3020,"11780",36313.620000000003,325.56,211,268,71,97,131,137,266,1,0,1,0,0,50,39,44,59,30,19,18,9,268,233,0,2.7628865979381443,3.2816901408450705,19,61,10,7,211,97,114,87,10,5,2,105,183,6,22,79,0,22,7,2,1,23,36,60,83,3,11,48,89,51,3,7,6,30,10,11,19,0,2,24286,0,0,0,2,0,0,0,0,0,0,2,0,6,2,0,4,0,0,0,2,0,8,6,5,1,0,0,0,0,0,5,2,0,14,0,2,0,0,2,5,0,4,0,0,0,3,3,2,4,0,2,0,0,0,0,0,2,0,0,0,0,0,0,55,178,149,18,282,0,138,282,0,75,17,0,14,0,16,10,6,30,10,11,19,0,2,0]
["Conway",3025,"14660",44596.85,1284.22,5499,7940,2056,3306,3837,4103,7855,18,11,48,8,34,1618,905,1448,1407,755,687,628,492,7824,6207,116,2.366606170598911,3.0189688715953307,957,1650,406,293,5499,3306,2193,2153,1153,206,122,1700,2972,1751,776,1602,178,776,279,754,120,1182,1845,1016,1465,68,635,2080,1798,927,126,312,364,748,550,622,404,90,94,26823,17,7,21,46,84,3,29,0,0,21,44,65,231,142,160,47,13,22,16,35,37,177,139,235,146,23,18,16,5,20,69,57,103,65,28,25,25,19,32,95,48,68,60,8,18,4,92,126,103,49,39,53,4,11,27,110,63,27,31,14,4,14,0,1193,5418,4577,1236,7778,148,3298,7778,148,2984,435,14,280,35,200,438,364,748,550,622,404,90,32,62]
["Eaton",3030,"23380",15618.56,764.53,240,362,103,138,187,175,360,0,1,1,0,1,83,35,50,83,39,36,21,15,362,318,0,2.6231884057971016,3.087378640776699,27,96,7,8,240,138,102,113,25,5,4,87,218,10,12,104,1,12,18,6,1,46,59,55,75,9,21,58,104,43,4,10,8,18,24,27,31,11,7,40313,0,0,0,0,0,2,0,0,0,0,2,0,0,10,2,5,0,3,0,2,3,7,5,16,10,2,3,2,0,0,4,7,6,12,7,1,0,0,0,2,0,0,0,0,0,0,0,5,2,2,0,4,0,0,2,6,0,3,0,1,0,2,0,45,251,231,93,347,24,118,347,24,108,15,2,6,2,48,14,8,18,24,27,31,11,3,4]
["Effingham",3035,"23620",24877.94,677.85,682,941,250,320,487,454,921,12,7,0,1,4,203,121,143,162,99,83,80,50,865,777,76,2.703125,3.1080000000000001,53,213,37,17,682,320,362,287,33,3,15,287,573,6,103,244,1,103,23,3,7,125,178,119,260,6,69,242,265,100,19,32,28,79,58,56,25,10,7,24853,2,2,0,0,0,0,0,0,0,2,1,2,24,12,14,0,0,0,0,3,8,17,14,22,9,2,0,6,0,5,3,18,8,10,2,5,2,6,4,12,5,10,2,4,2,0,5,7,13,9,2,4,2,0,7,15,2,10,0,0,0,0,0,162,617,488,87,930,11,352,930,11,272,48,5,22,6,25,51,28,79,58,56,25,10,7,0]
["Freedom",3040,"27700",22077.17,2184.7600000000002,1359,935,287,376,456,479,929,3,1,2,0,0,184,87,134,153,108,119,104,46,935,815,0,2.4867021276595747,2.8397212543554007,64,244,43,25,1359,376,983,308,68,7,15,890,1111,60,188,274,10,188,36,24,8,494,392,245,228,4,117,431,582,225,7,20,38,68,96,67,54,16,13,30491,0,0,0,2,5,0,1,0,0,2,0,4,9,15,14,7,0,2,2,5,3,16,13,16,19,9,0,0,3,3,11,16,20,11,5,8,3,6,7,13,17,7,10,0,3,0,0,9,15,27,5,3,2,0,0,6,12,2,3,5,3,0,0,160,664,578,187,914,21,284,914,21,374,34,2,7,4,18,27,38,68,96,67,54,16,6,7]
["Hale's Location",3045,"32500",1599.76,0.04,2,0,0,0,0,0,0,0,0,0,0,0,0,0,0,0,0,0,0,0,0,0,0,0,0,0,0,0,0,2,0,2,0,0,0,2,0,2,0,0,0,0,0,0,0,0,0,1,0,0,0,0,0,1,0,0,0,0,0,0,0,0,0,0,0,0,0,0,0,0,0,0,0,0,0,0,0,0,0,0,0,0,0,0,0,0,0,0,0,0,0,0,0,0,0,0,0,0,0,0,0,0,0,0,0,0,0,0,0,0,0,0,0,0,0,0,0,0,0,0,0,0,0,0,0,0,0,0,0,0,0,0,0,0,0,0,0,0,0,0,0,0,0,0,0,0,0,0,0,0,0,0]
["Hart's Location",3050,"34500",12302.44,0.03,64,36,13,15,19,17,36,0,0,0,0,0,7,1,3,10,6,2,6,1,36,34,0,2.4,2.6153846153846154,2,13,0,0,64,15,49,13,2,2,2,44,62,0,2,11,0,2,2,0,0,21,28,2,11,0,2,16,32,12,0,0,3,8,2,1,3,2,0,23125,0,0,0,0,0,0,0,0,0,0,0,0,0,0,0,0,0,0,0,0,0,0,0,0,3,2,0,0,0,0,3,2,0,0,0,0,0,0,0,0,0,1,0,0,0,0,0,3,3,0,0,0,0,0,0,0,0,2,0,0,0,0,0,5,35,33,9,42,0,13,42,0,13,2,0,0,0,7,0,3,8,2,1,3,2,0,0]
["Jackson",3055,"38260",42753.69,4.3,865,678,190,313,348,330,672,1,5,0,0,2,89,55,101,133,105,82,76,37,678,516,0,2.1661341853035143,2.7157894736842105,90,176,14,33,865,313,552,230,83,5,8,530,655,176,34,212,13,34,45,27,11,209,188,271,182,25,31,171,373,250,7,14,46,40,56,71,54,23,18,35187,0,0,1,2,0,5,0,0,0,0,3,9,6,14,7,7,2,0,0,2,8,8,16,16,16,2,8,4,0,0,0,14,10,11,11,2,0,3,3,12,3,15,13,5,8,0,6,20,10,6,9,2,3,0,3,0,5,2,3,9,5,0,0,57,555,502,222,669,16,209,669,16,277,12,0,48,6,15,21,46,40,56,71,54,23,11,7]
["Madison",3060,"45060",24765.919999999998,1391.32,1422,1704,469,676,832,872,1702,1,0,1,0,8,384,163,320,302,174,145,143,73,1704,1427,0,2.5207100591715976,3.0426439232409384,148,408,61,59,1422,676,746,538,138,45,15,661,1219,105,98,481,13,98,62,56,20,378,441,315,293,25,119,418,664,201,22,45,49,160,137,126,93,22,16,30000,0,3,1,21,12,6,0,0,0,2,10,4,34,46,32,27,2,3,2,0,8,29,42,26,30,4,0,5,7,11,20,16,25,21,7,6,9,2,12,24,3,22,7,6,5,3,15,9,16,10,15,4,3,2,1,8,4,16,8,0,4,0,0,254,1150,1029,303,1650,45,649,1650,45,640,51,14,15,6,58,67,49,160,137,126,93,22,8,8]
["Moultonborough",3065,"49380",38425.42,9622.85,3850,2956,874,1164,1438,1518,2935,3,6,10,2,6,617,337,380,487,329,335,306,165,2956,2612,0,2.5395189003436425,2.9885583524027459,242,757,117,48,3850,1164,2686,942,222,23,58,2526,3516,171,163,866,18,163,152,42,28,570,1620,894,740,13,114,1205,1715,777,68,106,115,172,203,221,155,41,43,29476,0,0,0,7,19,7,0,0,0,0,14,9,36,26,61,18,0,15,9,0,64,47,63,37,58,6,9,0,11,6,22,26,34,51,6,7,7,11,6,25,41,38,22,17,12,40,32,14,28,19,44,6,12,0,12,38,16,7,9,0,0,0,0,508,1938,1646,473,2825,71,1046,2825,71,928,171,7,32,17,95,174,115,172,203,221,155,41,34,9]
["Ossipee",3070,"58740",45385.95,2792.5,2617,3309,909,1254,1623,1686,3285,4,8,9,3,9,710,335,524,478,350,326,314,272,3176,2755,133,2.532695374800638,3.0308030803080306,276,771,138,69,2617,1254,1363,999,255,44,44,1069,1810,147,660,698,23,660,103,87,65,706,791,735,385,78,289,951,1041,258,53,70,170,350,304,166,136,25,19,25117,0,0,10,9,9,0,0,0,0,0,11,55,61,118,33,22,0,10,12,8,37,53,36,78,52,5,0,9,0,21,75,24,10,25,0,9,0,35,11,27,47,35,7,20,0,20,0,24,85,45,0,10,0,0,12,16,12,40,25,10,20,0,0,592,2326,1607,307,3236,73,1277,3236,73,1103,157,0,23,8,67,123,170,350,304,166,136,25,14,5]
["Sandwich",3075,"67780",58394.47,1856.35,864,1066,333,456,506,560,1054,5,2,4,1,6,185,72,131,206,105,133,137,97,1066,928,0,2.3377192982456139,2.7867867867867866,111,292,41,12,864,456,408,386,70,7,11,352,775,27,62,363,3,62,53,14,3,162,212,105,385,17,78,254,295,220,6,49,38,93,74,82,62,11,40,29728,0,0,0,0,2,0,0,0,0,2,2,7,12,11,9,7,0,2,0,8,7,34,22,25,14,2,5,0,4,4,8,19,12,11,0,4,0,3,3,7,14,15,10,4,15,2,18,12,22,4,18,7,5,3,2,14,5,10,2,3,13,0,11,136,808,730,315,1047,19,388,1047,19,332,62,0,18,9,94,55,38,93,74,82,62,11,19,21]
["Tamworth",3080,"76100",38289.06,523.49,1523,2165,609,875,1103,1062,2154,2,4,1,4,11,460,203,370,353,227,225,187,140,2165,1831,0,2.4742857142857142,3.006568144499179,214,526,83,52,1523,875,648,677,198,29,25,524,1156,128,239,559,11,239,75,96,27,298,405,254,551,25,184,489,530,280,58,68,123,181,165,141,104,27,12,25552,2,0,3,5,3,4,0,0,0,0,17,16,33,45,39,20,0,0,8,9,22,66,36,34,45,7,5,8,3,10,28,21,21,12,9,2,15,8,14,19,35,23,11,0,5,8,13,42,14,10,12,11,11,0,17,18,16,16,15,8,5,0,0,339,1524,1243,321,2124,47,886,2124,47,776,102,3,23,2,124,126,123,181,165,141,104,27,12,0]
["Tuftonboro",3085,"77620",25998.87,5639.62,2027,1842,538,710,884,958,1836,0,1,3,2,7,400,168,239,304,176,201,223,131,1842,1635,0,2.5943661971830987,3.0390334572490705,140,486,52,32,2027,710,1317,596,114,5,33,1236,1739,95,193,540,20,193,72,30,12,418,717,380,512,15,105,661,807,439,23,60,59,141,154,116,97,36,23,30175,0,1,0,2,7,2,0,0,0,2,10,0,25,30,27,5,0,9,2,1,9,37,27,29,35,9,6,8,2,0,9,19,25,21,8,0,4,6,11,21,28,13,22,7,2,3,21,27,35,23,16,6,10,3,4,19,12,12,20,4,8,2,3,328,1274,1134,328,1803,39,751,1803,39,670,46,4,22,9,39,83,59,141,154,116,97,36,15,8]
["Wakefield",3090,"78180",25297.02,3420.05,3158,3057,878,1172,1487,1570,3030,11,2,10,4,9,679,335,515,452,315,321,303,137,3057,2698,0,2.6083617747440271,3.0728929384965831,239,766,112,55,3158,1172,1986,967,205,30,40,1842,2726,200,232,871,27,232,85,94,26,602,914,813,810,34,319,1346,1140,300,60,100,162,191,217,187,197,56,25,28171,0,12,7,6,0,0,0,0,0,15,6,20,46,65,20,22,6,2,8,9,48,38,44,39,35,45,3,17,12,7,25,21,48,79,0,3,5,19,25,30,36,13,43,5,4,7,39,46,21,42,55,16,0,13,8,3,9,25,9,12,2,0,0,549,2067,1643,275,3072,51,1308,3072,51,1041,268,0,10,9,94,160,162,191,217,187,197,56,12,13]
["Wolfeboro",3095,"86420",30940.29,6465.23,3631,4807,1375,2017,2240,2567,4796,2,3,6,0,25,897,421,648,708,467,572,577,517,4716,3981,91,2.3381259295984136,2.8952727272727272,564,1187,188,78,3631,2017,1614,1482,535,77,64,1345,2716,628,287,1296,73,287,174,314,47,805,907,774,1167,39,298,1201,1380,735,94,108,202,416,389,356,297,119,35,29542,0,0,0,18,7,8,0,0,0,0,14,15,104,85,93,40,8,5,17,0,27,38,69,94,64,57,23,20,0,16,38,49,61,53,9,0,7,16,18,76,71,54,32,39,7,7,43,65,70,80,32,59,6,0,43,35,61,72,28,14,49,0,0,696,3503,2972,1022,4584,156,2285,4584,156,1725,224,9,174,26,128,202,202,416,389,356,297,119,35,0]
[]
[]
["Census 1990 Data -    Query Name:  CountySTF1Qry1"]
["NAME","COUSUBFP","Census_Cnty_Code","FIPS","LandAcres","WaterAcres","HousingUnits90Cen","P01Persons90Cen","P02Families90Cen","P03Households90cen","P05MalePop90cen","P05FemalePop90cen","P06WhitePop","P06BlackPop","P06AmerIndianPop","P06AsianPIPop","P06OtherRacePop","P08HispanicOrPop","P11AgeUnder15_90cen","P11Age15to24_90cen","P11Age25to34_90cen","P11Age35to44_90cen","P11Age45to54_90cen","P11Age55to64_90cen","P11Age65to74_90cen","P11Age75andOver_90cen","P15PersonsInHH90cen","P15PersonsInFamHH90cen","P15PersonsInGC","PersonsPerHH90cen","PersonsPerFam90Cen","P16SinglePersonHH90cen","P16MarriedCoupleHH90cen","P16SingleParentHH90cen","P16NonFamilyHH90cen","H01TotalHousingUnits","H02OccupiedHousingUnits","H02VacantHousingUnits","H03OwnerOccHU","H03RenterOccHU","H05VacantForRent90","H05VacantForSale90","H05VacantSeasonalRec","H23OOHUVal<15k","H23OOHUVal15to19k","H23OOHUVal20to24k","H23OOHUVal25to29k","H23OOHUVal30to34k","H23OOHUVal35to39k","H23OOHUVal40to44k","H23OOHUVal45to49k","H23OOHUVal50to59k","H23OOHUVal60to74k","H23OOHUVal75to99k","H23OOHUVal100to124k","H23OOHUVal125to149k","H23OOHUVal150to174k","H23OOHUVal175to199k","H23OOHUVal200to249k","H23OOHUVal250to299k","H23OOHUVal300to399k","H23OOHUVal400to499k","H23OOHUVal500kOrMore","H23BOOHUMedVal","H41SingFamHU90cen","H41MultiFamHU90cen","H41MobileHom90cen","H43SingFamOwnHU90cen","H43MultiFamOwnHU90cen","H43MobileHomOwnHU90cen","H43SingFamRntrHU90cen","H43MultiFamRntrHU90cen","H43MobileHomRntrHU90cen","H41HU1UnitDet","H41HU1UnitAtt","H41HU2Unit","H41HU3to4Unit","H41HU5to9Unit","H41HU10to19Unit","H41HU20to49Unit","H41HU50PlusUnit","H41HUMobilH","H41HUOther"]
["Albany",201,3005,"00420",48252.959999999999,222.58,451,536,142,214,268,268,531,0,5,0,0,1,126,58,123,82,56,45,32,14,536,433,0,2.5046728971962615,3.0492957746478875,46,121,21,26,451,214,237,165,49,18,11,175,1,0,1,1,4,0,1,1,4,12,29,18,12,3,1,2,0,1,1,1,93500,337,27,87,113,4,48,24,18,7,337,3,17,7,0,0,0,0,75,12]
["Bartlett",202,3010,"03700",47877.75,4.5,3407,2290,617,958,1150,1140,2270,3,4,10,3,7,439,220,422,461,251,228,172,97,2267,1809,23,2.3663883089770357,2.9319286871961103,240,519,98,101,3407,958,2449,618,340,467,47,1871,2,0,5,2,1,3,9,6,11,33,102,74,67,61,35,27,15,7,5,4,120400,1602,1677,128,517,59,42,134,170,36,1602,870,109,194,393,91,20,0,86,42]
["Brookfield",203,3015,"07940",14628.95,251.36,274,518,152,192,246,272,518,0,0,0,0,2,121,46,68,95,57,52,40,39,518,471,0,2.6979166666666665,3.0986842105263159,33,136,16,7,274,192,82,178,14,1,8,66,0,0,1,0,0,0,0,2,1,8,21,15,29,23,15,2,2,3,1,1,137100,256,11,7,168,7,3,13,1,0,256,7,4,0,0,0,0,0,5,2]
["Chatham",204,3020,"11780",36313.620000000003,325.56,211,268,71,97,131,137,266,1,0,1,0,0,50,39,44,59,30,19,18,9,268,233,0,2.7628865979381443,3.2816901408450705,19,61,10,7,211,97,114,87,10,5,2,105,2,0,2,0,1,2,0,1,1,4,16,9,2,1,2,1,3,0,0,0,91400,183,6,22,79,0,8,7,2,1,183,1,0,0,5,0,0,0,19,3]
["Conway",205,3025,"14660",44596.85,1284.22,5499,7940,2056,3306,3837,4103,7855,18,11,48,8,34,1618,905,1448,1407,755,687,628,492,7824,6207,116,2.366606170598911,3.0189688715953307,957,1650,406,293,5499,3306,2193,2153,1153,206,122,1700,4,1,4,5,5,4,6,10,33,65,348,325,263,128,77,61,31,16,8,4,116500,2972,1751,776,1602,178,373,279,754,120,2972,366,281,320,473,186,125,0,638,138]
["Eaton",206,3030,"23380",15618.56,764.53,240,362,103,138,187,175,360,0,1,1,0,1,83,35,50,83,39,36,21,15,362,318,0,2.6231884057971016,3.087378640776699,27,96,7,8,240,138,102,113,25,5,4,87,2,0,0,0,0,0,2,1,3,5,10,1,11,7,4,3,4,2,0,1,134100,218,10,12,104,1,8,18,6,1,218,0,6,4,0,0,0,0,6,6]
["Effingham",207,3035,"23620",24877.94,677.85,682,941,250,320,487,454,921,12,7,0,1,4,203,121,143,162,99,83,80,50,865,777,76,2.703125,3.1080000000000001,53,213,37,17,682,320,362,287,33,3,15,287,0,1,0,1,2,1,3,4,9,28,57,24,17,13,1,3,0,0,0,0,89500,573,6,103,244,1,42,23,3,7,573,1,4,1,0,0,0,0,97,6]
["Freedom",208,3040,"27700",22077.17,2184.7600000000002,1359,935,287,376,456,479,929,3,1,2,0,0,184,87,134,153,108,119,104,46,935,815,0,2.4867021276595747,2.8397212543554007,64,244,43,25,1359,376,983,308,68,7,15,890,2,0,3,2,1,2,0,3,10,11,31,29,35,24,11,18,7,5,0,0,127100,1111,60,188,274,10,24,36,24,8,1111,12,16,10,22,0,0,0,114,74]
["Hart's Location",209,3050,"34500",12302.44,0.03,64,36,13,15,19,17,36,0,0,0,0,0,7,1,3,10,6,2,6,1,36,34,0,2.4,2.6153846153846154,2,13,0,0,64,15,49,13,2,2,2,44,0,0,0,0,0,0,0,1,0,1,1,2,4,0,1,0,0,0,0,0,125000,62,0,2,11,0,2,2,0,0,62,0,0,0,0,0,0,0,0,2]
["Jackson",210,3055,"38260",42753.69,4.3,865,678,190,313,348,330,672,1,5,0,0,2,89,55,101,133,105,82,76,37,678,516,0,2.1661341853035143,2.7157894736842105,90,176,14,33,865,313,552,230,83,5,8,530,0,1,1,0,0,2,1,1,5,3,21,25,22,14,14,27,11,9,2,6,150900,655,176,34,212,13,5,45,27,11,655,55,16,75,9,21,0,0,10,24]
["Madison",211,3060,"45060",24765.919999999998,1391.32,1422,1704,469,676,832,872,1702,1,0,1,0,8,384,163,320,302,174,145,143,73,1704,1427,0,2.5207100591715976,3.0426439232409384,148,408,61,59,1422,676,746,538,138,45,15,661,2,0,0,1,0,2,2,1,17,22,94,84,47,38,27,17,7,8,1,2,113400,1219,105,98,481,13,44,62,56,20,1219,15,56,11,1,0,22,0,83,15]
["Moultonborough",212,3065,"49380",38425.42,9622.85,3850,2956,874,1164,1438,1518,2935,3,6,10,2,6,617,337,380,487,329,335,306,165,2956,2612,0,2.5395189003436425,2.9885583524027459,242,757,117,48,3850,1164,2686,942,222,23,58,2526,3,0,0,1,0,5,6,3,10,41,112,111,94,68,36,59,57,59,24,47,145200,3516,171,163,866,18,58,152,42,28,3516,83,39,31,8,10,0,0,94,69]
["Ossipee",213,3070,"58740",45385.95,2792.5,2617,3309,909,1254,1623,1686,3285,4,8,9,3,9,710,335,524,478,350,326,314,272,3176,2755,133,2.532695374800638,3.0308030803080306,276,771,138,69,2617,1254,1363,999,255,44,44,1069,8,2,6,7,9,8,10,16,31,61,120,120,60,45,25,21,9,3,1,0,100600,1810,147,660,698,23,278,103,87,65,1810,11,43,31,28,34,0,0,553,107]
["Sandwich",214,3075,"67780",58394.47,1856.35,864,1066,333,456,506,560,1054,5,2,4,1,6,185,72,131,206,105,133,137,97,1066,928,0,2.3377192982456139,2.7867867867867866,111,292,41,12,864,456,408,386,70,7,11,352,3,0,2,0,1,4,2,3,4,18,28,23,44,14,15,14,10,5,2,1,129800,775,27,62,363,3,20,53,14,3,775,9,8,0,7,3,0,0,33,29]
["Tamworth",215,3080,"76100",38289.06,523.49,1523,2165,609,875,1103,1062,2154,2,4,1,4,11,460,203,370,353,227,225,187,140,2165,1831,0,2.4742857142857142,3.006568144499179,214,526,83,52,1523,875,648,677,198,29,25,524,6,1,4,2,4,4,6,7,23,53,127,62,48,29,10,8,4,0,0,0,92500,1156,128,239,559,11,107,75,96,27,1156,10,27,42,25,0,24,0,206,33]
["Tuftonboro",216,3085,"77620",25998.87,5639.62,2027,1842,538,710,884,958,1836,0,1,3,2,7,400,168,239,304,176,201,223,131,1842,1635,0,2.5943661971830987,3.0390334572490705,140,486,52,32,2027,710,1317,596,114,5,33,1236,1,0,0,0,1,1,4,4,7,13,65,52,58,47,35,41,28,18,13,14,147800,1739,95,193,540,20,36,72,30,12,1739,19,17,33,26,0,0,0,177,16]
["Wakefield",217,3090,"78180",25297.02,3420.05,3158,3057,878,1172,1487,1570,3030,11,2,10,4,9,679,335,515,452,315,321,303,137,3057,2698,0,2.6083617747440271,3.0728929384965831,239,766,112,55,3158,1172,1986,967,205,30,40,1842,0,0,2,0,1,1,3,6,23,68,231,152,90,60,35,43,15,10,3,2,106200,2726,200,232,871,27,69,85,94,26,2726,65,59,69,2,5,0,0,209,23]
["Wolfeboro",218,3095,"86420",30940.29,6465.23,3631,4807,1375,2017,2240,2567,4796,2,3,6,0,25,897,421,648,708,467,572,577,517,4716,3981,91,2.3381259295984136,2.8952727272727272,564,1187,188,78,3631,2017,1614,1482,535,77,64,1345,3,1,7,1,2,7,10,11,22,71,163,176,164,137,94,118,54,30,20,38,138800,2716,628,287,1296,73,113,174,314,47,2716,153,106,210,93,0,66,0,165,122]
["Hale's Location",219,3045,"32500",1599.76,0.04,2,0,0,0,0,0,0,0,0,0,0,0,0,0,0,0,0,0,0,0,0,0,0,0,0,0,0,0,0,2,0,2,0,0,0,2,0,0,0,0,0,0,0,0,0,0,0,0,0,0,0,0,0,0,0,0,0,0,2,0,0,0,0,0,0,0,0,2,0,0,0,0,0,0,0,0,0]
[]
[]
[]
["Census 1990 Data -          Query Name: CountySTF3Qry1"]
[]
["NAME","FIPS","COUSUBFP","LandAcres","WaterAcres","HousingUnits90Cen","P01Persons90Cen","P02Families90Cen","P03Households90cen","H25HU<5yrs90cen","H25HU5to20yrs90cen","H25HU20to50yrs90cen","H25HU>50yrs90cen","H31Units0Bedroom90cen","H31Units1Bedroom90cen","H31Units2Bedroom90cen","H31Units3Bedroom90cen","H31Units4Bedroom90cen","H31Units5+Bedroom90cen","P80HI<5K","P80HI5Kto10K","P80HI10Kto15K","P80HI15Kto25K","P80HI25Kto35K","P80HI35Kto50K","P80HI50Kto75K","P80HI75Kto100K","P80HI>100K","P80AMedHI","P86HH<25HI<5K","P86HH<25HI5Kto10K","P86HH<25HI10Kto15K","P86HH<25HI15Kto25K","P86HH<25HI25Kto35K","P86HH<25HI35Kto50K","P86HH<25HI50Kto75K","P86HH<25HI75Kto100K","P86HH<25HI>100K","P86HH25to34HI<5K","P86HH25to34HI5Kto10K","P86HH25to34HI10Kto15K","P86HH25to34HI15Kto25K","P86HH25to34HI25Kto35K","P86HH25to34HI35Kto50K","P86HH25to34HI50Kto75K","P86HH25to34HI75Kto100K","P86HH25to34HI>100K","P86HH35to44HI<5K","P86HH35to44HI5Kto10K","P86HH35to44HI10Kto15K","P86HH35to44HI15Kto25K","P86HH35to44HI25Kto35K","P86HH35to44HI35Kto50K","P86HH35to44HI50Kto75K","P86HH35to44HI75Kto100K","P86HH35to44HI>100K","P86HH45to54HI<5K","P86HH45to54HI5Kto10K","P86HH45to54HI10Kto15K","P86HH45to54HI15Kto25K","P86HH45to54HI25Kto35K","P86HH45to54HI35Kto50K","P86HH45to54HI50Kto75K","P86HH45to54HI75Kto100K","P86HH45to54HI>100K","P86HH55to64HI<5K","P86HH55to64HI5Kto10K","P86HH55to64HI10Kto15K","P86HH55to64HI15Kto25K","P86HH55to64HI25Kto35K","P86HH55to64HI35Kto50K","P86HH55to64HI50Kto75K","P86HH55to64HI75Kto100K","P86HH55to64HI>100K","P86HH65to74HI<5K","P86HH65to74HI5Kto10K","P86HH65to74HI10Kto15K","P86HH65to74HI15Kto25K","P86HH65to74HI25Kto35K","P86HH65to74HI35Kto50K","P86HH65to74HI50Kto75K","P86HH65to74HI75Kto100K","P86HH65to74HI>100K","P86HH>75HI<5K","P86HH>75HI5Kto10K","P86HH>75HI10Kto15K","P86HH>75HI15Kto25K","P86HH>75HI25Kto35K","P86HH>75HI35Kto50K","P86HH>75HI50Kto75K","P86HH>75HI75Kto100K","P86HH>75HI>100K","P54SchlEnrlPrePrim","P54SchlEnrlElemThrHS","P54SchlEnrlCollege","P54NotEnrlInSch","P57Pop25andOver","P57LessThan9thGrade","P579thto12thNoDip","P57HSGrad","P57SomeCollege","P57AssocDeg","P57BachelDeg","P57GradorProfDeg","P57HSGradorHigher","P57CollGradorHigher","P42NativePop","P42ForeignBornPop","P42BornStateOfRes","P37NativePop2","P37ForeignBornPop2","P49DroveAlone","P49CarPooled","P49PublicTranspt","P49Walked","P49OtherMeans","P49WorkedAtHome","P80HHInc<10K","P80HHInc10to15K","P80HHInc15to25K","P80HHInc25to35K","P80HHInc35to50K","P80HHInc50to75K","P80HHInc75to100K","P80HHInc100to150K","P80HHInc>150K","H25YearStBlt89to90","H25YearStBlt85to88","H25YearStBlt80to84","H25YearStBlt70to79","H25YearStBlt60to69","H25YearStBlt50to59","H25YearStBlt40to49","H25YearStBlt39earlier","P107FamInc<10K","P107FamInc10to15K","P107FamInc15to25K","P107FamInc25to35K","P107FamInc35to50K","P107FamInc50to75K","P107FamInc75to100K","P107FamInc100to150K","P107FamInc>150K","P107AMedFamInc","P110NonFamInc<10K","P110NonFamInc10to15K","P110NonFamInc15to25K","P110NonFamInc25to35K","P110NonFamInc35to50K","P110NonFamInc50to75K","P110NonFamInc75to100K","P110NonFamInc100to150K","P110NonFamInc>150K","P110AMedNonFamInc","H16HU1Room","H16HU2Room","H16HU3Room",null,null,"H16HU6Room","H16HU7Room","H16HU8Room","H16HU9+Room","H43GrossRnt<100","H43GrossRnt100to149","H43GrossRnt150to199","H43GrossRnt200to249","H43GrossRnt250to299","H43GrossRnt300to349","H43GrossRnt350to399","H43GrossRnt400to449","H43GrossRnt450to499","H43GrossRnt500to549","H43GrossRnt550to599","H43GrossRnt600to649","H43GrossRnt650to699","H43GrossRnt700to749","H43GrossRnt750to999","H43GrossRnt1000Plus","H43NoCashRent","H43MedGrossRent","H51GrossRnt<20PctHHInc","H51GrossRnt20to24PctHHInc","H51GrossRnt25to29PctHHInc","H51GrossRnt30to34PctHHInc","H51GrossRnt35PctOrMoreHHInc","H51GrossRntAsPctHHIncNotComp","H52HUwMtgMoOwnCst<200","H52HUwMtgMoOwnCst200to299","H52HUwMtgMoOwnCst300to399","H52HUwMtgMoOwnCst400to499","H52HUwMtgMoOwnCst500to599","H52HUwMtgMoOwnCst600to699","H52HUwMtgMoOwnCst700to799","H52HUwMtgMoOwnCst800to899","H52HUwMtgMoOwnCst900to999","H52HUwMtgMoOwnCst1000to1249","H52HUwMtgMoOwnCst1250to1499","H52HUwMtgMoOwnCst1500to1999","H52HUwMtgMoOwnCst2000More","H52HUwNoMtgMoOwnCst<100","H52HUwNoMtgMoOwnCst100to149","H52HUwNoMtgMoOwnCst150to199","H52HUwNoMtgMoOwnCst200to249","H52HUwNoMtgMoOwnCst250to299","H52HUwNoMtgMoOwnCst300to349","H52HUwNoMtgMoOwnCst350to399","H52HUwNoMtgMoOwnCst400More","H52AMedMoOwnCstWMortg","H52AMedMoOwnCstWNoMortg","H58HUwMtgMOC<20pHHInc","H58HUwMtgMOC20to24pHHInc","H58HUwMtgMOC25to29pHHInc","H58HUwMtgMOC30to34pHHInc","H58wMtgMOC>35pHHInc","H58HUwMtgMOCNotComp","H58HUwNoMtgMOC<20pHHInc","H58HUwNoMtgMOC20to24pHHInc","H58HUwNoMtgMOC25to29pHHInc","H58HUwNoMtgMOC30to34pHHInc","H58wNoMtgMOC>35pHHInc","H58HUwNoMtgMOCNotComp","H61OOHUVal<15k","H61OOHUVal15to19k","H61OOHUVal20to24k","H61OOHUVal25to29k","H61OOHUVal30to34k","H61OOHUVal35to39k","H61OOHUVal40to44k","H61OOHUVal45to49k","H61OOHUVal50to59k","H61OOHUVal60to74k","H61OOHUVal75to99k","H61OOHUVal100to124k","H61OOHUVal125to149k","H61OOHUVal150to174k","H61OOHUVal175to199k","H61OOHUVal200to249k","H61OOHUVal250to299k","H61OOHUVal300to399k","H61OOHUVal400to499k","H61OOHUVal500kOrMore","H61aOOHUMedVal"]
[]
[]
[]
[]
[]
[]
[]
[]
[]
[]
[]
[]
[]
[]
[]
["Other Demo Data -             Query Name: QryAllTowns-ACSDemographicSheet",null,null,"2020-12-18"]
[]
["c","FIPS","TOWNCNTY","COUSUB","POP80","POP90CDCEN","POP2000CEN","POP2010CEN","POP2025-Proj","POP2030-Proj","POP2040-Proj","SF80","MF80","MH80","SF81","MF81","MH81","SF82","MF82","MH82","SF83","MF83","MH83","SF84_OSP","MF84_OSP","MH84_OSP","SF85_OSP","MF85_OSP","MH85_OSP","SF86_OSP","MF86_OSP","MH86_OSP","SF87_OSP","MF87_OSP","MH87_OSP","SF88_OSP","MF88_OSP","MH88_OSP","SF89_OSP","MF89_OSP","MH89_OSP","SF90_OSP","MF90_OSP","MH90_OSP","SF91_OSP","MF91_OSP","MH91_OSP","SF92_OSP","MF92_OSP","MH92_OSP","SF93_OSP","MF93_OSP","MH93_OSP","SF94_OSP","MF94_OSP","MH94_OSP","SF95_OSP","MF95_OSP","MH95_OSP","SF96_OSP","MF96_OSP","MH96_OSP","SF97_OSP","MF97_OSP","MH97_OSP","SF98_OSP","MF98_OSP","MH98_OSP","SF99_OSP","MF99_OSP","MH99_OSP","SF00_OSP","MF00_OSP","MH00_OSP","SF01_OSP","MF01_OSP","MH01_OSP","SF02_OSP","MF02_OSP","MH02_OSP","SF03_OSP","MF03_OSP","MH03_OSP","SF04_OSP","MF04_OSP","MH04_OSP","SF05_OSP","MF05_OSP","MH05_OSP","SF06_OSP","MF06_OSP","MH06_OSP","SF07_OSP","MF07_OSP","MH07_OSP","SF08_OSP","MF08_OSP","MH08_OSP","SF09_OSP","MF09_OSP","MH09_OSP","SF10_OSP","MF10_OSP","MH10_OSP","SF11_OSP","MF11_OSP","MH11_OSP","SF12_OSP","MF12_OSP","MH12_OSP","SF13_OSP","MF13_OSP","MH13_OSP","SF14_OSP","MF14_OSP","MH14_OSP","SF15_OSP","MF15_OSP","MH15_OSP","SF16_OSP","MF16_OSP","MH16_OSP","SF17_OSP","MF17_OSP","MH17_OSP","SF18_OSP","MF18_OSP","MH18_OSP","SF19_OSP","MF19_OSP","MH19_OSP","COMMENTS","CNTY_CODE"]
["Albany",3005,201,"00420",383,536,654,735,822,846,870,2,5,0,-2,0,0,0,0,0,1,0,1,1,0,-1,1,0,12,17,0,9,5,2,8,9,0,1,8,0,1,4,0,6,6,0,1,3,0,2,5,0,0,1,0,3,6,0,1,4,0,7,3,0,0,1,0,0,7,0,0,2,0,0,3,0,0,11,1,0,8,0,0,16,0,1,5,0,1,4,0,1,2,0,0,3,0,0,3,0,0,0,0,1,2,0,-1,2,0,-2,2,0,0,3,0,0,1,0,1,1,0,0,2,0,2,7,0,0,1,0,0,"",2]
["Bartlett",3010,202,"03700",1566,2290,2705,2788,2850,2935,3018,15,0,0,9,0,0,6,0,0,8,0,0,11,0,0,9,0,0,10,0,0,10,1,0,40,38,1,15,17,1,12,1,-1,16,0,0,24,0,0,30,96,3,17,16,0,25,9,0,18,0,0,17,0,0,24,22,0,30,8,0,34,20,0,61,12,0,49,9,2,48,0,0,62,6,0,46,4,0,51,0,0,23,0,0,12,0,0,14,0,0,15,0,0,14,0,0,18,0,0,6,0,0,29,0,0,7,4,0,17,0,0,6,0,0,15,0,0,28,0,0,"",2]
["Brookfield",3015,203,"07940",385,518,604,712,831,856,880,3,0,0,2,0,0,1,0,0,5,0,0,1,0,1,4,0,0,4,0,0,13,0,0,4,0,0,8,0,0,2,0,0,1,0,0,3,0,0,3,0,0,0,0,0,0,0,0,0,0,0,4,0,0,7,0,0,10,0,0,10,0,0,7,0,0,4,0,2,9,0,1,6,0,0,5,0,0,5,0,0,5,0,2,1,0,0,0,0,0,1,0,0,1,0,0,0,0,0,0,0,0,0,0,0,0,0,0,3,0,0,4,0,0,5,1,0,6,0,1,"2004, 2005 Did not submit data to OEP. Used Census Data",2]
["Chatham",3020,204,"11780",189,268,260,337,424,437,449,1,0,1,1,0,0,2,0,0,0,0,0,-2,0,0,0,0,0,2,0,0,5,0,0,3,0,0,1,0,0,5,0,1,1,0,0,0,0,0,1,0,0,2,0,0,0,0,0,0,0,0,1,0,0,2,0,0,0,0,0,0,0,0,1,0,0,2,0,0,6,0,0,1,0,0,8,0,0,5,0,1,4,0,3,4,0,0,1,0,0,2,0,0,1,0,-2,0,0,0,0,0,0,0,0,0,2,0,0,3,0,0,3,0,1,0,0,0,1,0,0,"2000 Did not provide data to OEP. Census data used",2]
["Conway",3025,205,"14660",7158,7940,8604,10115,11782,12131,12475,61,0,10,50,2,6,38,0,26,85,0,16,91,0,0,90,6,19,230,16,55,355,46,14,196,14,6,50,24,11,31,8,3,21,4,11,24,72,7,21,96,7,12,0,10,7,9,19,17,26,16,12,-5,18,18,0,13,34,21,0,41,-6,25,63,2,18,51,13,23,79,20,24,99,10,14,72,0,14,35,2,8,23,0,4,10,-3,-20,9,2,0,16,0,-11,6,32,0,7,0,-8,-6,-2,7,14,-5,-1,14,2,-2,28,22,15,17,-3,5,22,3,3,28,32,2,"",2]
["Eaton",3030,206,"23380",256,362,375,393,409,421,433,4,0,1,3,0,0,1,0,0,0,0,0,8,0,0,6,0,1,8,0,0,11,0,0,5,0,0,10,0,0,3,0,0,2,0,0,0,0,0,1,0,0,3,0,0,0,0,0,3,0,0,0,0,0,2,0,0,4,0,0,8,0,1,7,0,0,6,0,0,6,0,0,6,0,1,5,0,0,3,0,0,3,0,0,3,0,-1,2,0,0,2,0,0,4,0,0,0,0,0,3,1,0,0,0,0,3,0,0,0,0,1,2,2,0,1,2,0,1,0,0,"",2]
["Effingham",3035,207,"23620",599,941,1273,1465,1675,1724,1773,0,0,0,5,0,-2,0,0,0,0,0,0,0,0,0,4,0,1,0,0,0,0,0,0,12,0,2,24,0,0,2,2,1,0,0,2,3,0,1,3,0,-1,0,0,0,7,1,1,3,0,2,4,0,3,0,0,0,0,0,0,3,0,3,0,0,0,22,0,0,30,0,0,32,0,0,31,0,0,14,0,1,7,1,1,8,0,0,8,0,0,2,1,0,8,0,1,1,0,1,2,0,-1,1,0,1,2,0,0,2,0,2,3,0,1,6,0,1,4,0,1,"2001 Did not submit data to OEP. Used Census Data",2]
["Freedom",3040,208,"27700",720,935,1303,1489,1691,1741,1790,26,0,5,8,0,4,0,0,0,28,0,3,0,0,0,0,0,0,0,0,0,0,0,0,25,0,3,30,0,1,9,0,2,5,0,1,1,0,5,0,0,0,13,0,0,-1,0,0,12,0,1,10,0,3,20,0,0,11,0,2,31,0,6,10,0,14,37,0,0,20,0,12,26,0,0,16,0,3,13,0,0,14,0,0,10,0,0,11,0,0,14,0,0,6,0,0,14,0,0,15,0,0,9,0,0,9,0,0,31,0,2,18,0,0,17,0,0,1,0,0,"",2]
["Hale's Location",3045,219,"32500",0,0,58,120,null,null,null,null,null,null,null,null,null,null,null,null,null,null,null,null,null,null,null,null,null,null,null,null,null,null,null,null,null,null,null,null,null,null,null,null,null,null,null,null,null,null,null,null,null,null,null,null,null,null,null,null,null,null,null,null,null,null,null,null,null,null,null,null,null,null,null,null,null,null,null,null,null,null,null,null,null,null,null,null,null,null,null,null,null,null,null,null,null,null,null,null,null,null,null,null,null,null,null,null,null,null,null,null,null,null,null,null,null,null,null,null,null,null,null,null,null,null,null,null,null,null,null,"",2]
["Hart's Location",3050,209,"34500",27,36,37,41,45,47,48,0,0,0,0,0,0,1,0,0,0,0,0,0,0,0,0,0,0,1,0,0,0,0,0,0,0,0,0,0,0,0,0,0,0,0,0,0,0,0,0,0,0,0,0,0,1,0,0,0,0,0,2,0,0,0,0,0,2,0,0,3,0,0,1,0,0,0,0,0,0,0,0,0,0,0,0,0,0,0,0,0,1,1,0,2,0,0,1,0,0,1,0,0,0,0,0,1,0,0,0,0,0,0,0,0,0,0,0,1,0,0,2,0,0,2,0,0,3,0,0,"",2]
["Jackson",3055,210,"38260",642,678,835,816,783,806,829,6,14,0,9,0,0,1,0,0,8,21,0,5,26,0,13,26,0,6,3,0,48,0,0,6,0,0,2,0,0,4,1,0,6,0,0,7,1,0,7,0,0,6,0,0,11,0,0,9,0,0,9,3,0,8,0,0,10,0,0,14,0,0,6,0,0,11,1,0,13,0,0,12,0,0,13,0,0,5,0,0,2,0,0,12,0,0,-1,1,0,1,0,0,5,0,0,5,0,0,10,0,0,10,0,0,6,4,0,-3,-2,0,4,2,0,9,0,0,4,5,0,"",2]
["Madison",3060,211,"45060",1051,1704,1984,2502,3086,3178,3268,18,0,3,5,0,0,23,0,0,20,0,2,16,0,1,52,0,2,71,4,5,128,16,0,82,0,5,35,22,0,15,8,1,0,0,0,26,0,0,21,0,0,8,0,4,7,0,1,7,0,3,7,0,3,15,0,6,28,0,3,31,0,0,36,0,0,42,0,0,55,2,1,58,0,2,39,2,0,28,0,0,22,2,0,28,0,0,24,0,0,14,0,0,18,0,0,21,0,0,6,0,0,16,0,0,13,0,0,16,0,0,18,0,1,7,0,2,21,0,0,"",2]
["Moultonborough",3065,212,"49380",2206,2956,4484,4044,3467,3570,3671,59,0,3,0,0,0,0,0,0,65,11,1,100,4,3,130,1,2,167,0,12,151,2,3,111,0,0,72,1,0,52,0,3,38,0,0,71,2,0,62,0,3,69,0,3,70,0,2,62,0,0,64,0,1,95,0,0,62,0,0,94,0,0,73,0,0,110,0,0,88,0,0,89,0,0,77,0,0,60,0,0,75,0,0,37,0,0,21,0,0,21,0,0,29,0,0,19,0,0,17,0,0,21,-1,0,21,0,0,1,0,0,12,0,0,33,1,0,25,6,0,"",2]
["Ossipee",3070,213,"58740",2465,3309,4211,4345,4448,4579,4709,0,0,0,15,0,0,0,0,0,0,0,0,52,0,0,30,0,60,0,0,0,0,0,0,0,0,0,26,0,5,12,0,3,6,20,0,12,0,2,9,0,0,10,0,3,10,1,5,10,0,7,13,0,12,33,0,3,21,2,7,18,0,10,33,2,9,58,0,10,41,0,10,78,0,5,56,25,3,28,0,0,32,0,0,10,0,3,13,0,1,13,0,0,10,0,0,8,0,0,8,0,2,13,0,5,19,0,1,20,0,2,24,-1,2,11,0,-1,10,0,2,"2006 Did not submit data to OEP. Used Census Data",2]
["Sandwich",3075,214,"67780",905,1066,1286,1326,1356,1396,1436,4,0,0,7,0,0,11,0,0,9,0,1,8,6,0,17,1,0,17,0,2,22,3,2,16,0,1,12,1,0,5,2,0,9,7,0,19,0,0,8,2,0,5,0,1,5,0,0,4,0,0,5,0,0,4,0,1,13,0,0,10,0,0,10,0,0,11,0,0,17,0,0,18,0,0,18,0,0,10,0,1,10,0,0,8,0,2,1,0,0,2,0,0,3,0,0,4,0,0,5,0,1,1,0,0,3,0,1,3,0,0,7,0,1,3,0,2,6,0,1,"",2]
["Tamworth",3080,215,"76100",1672,2165,2510,2856,3231,3326,3421,0,0,0,-1,0,0,0,0,0,31,0,0,27,15,0,17,1,3,48,14,0,0,0,0,0,0,0,0,0,0,20,0,7,11,0,3,11,0,0,0,0,0,3,7,0,4,0,0,15,0,6,4,0,0,11,0,0,6,0,2,6,2,0,0,0,0,0,0,0,0,0,0,0,0,0,40,33,2,35,0,3,17,0,0,9,0,1,5,0,1,6,0,2,2,0,1,6,0,3,9,0,1,4,0,1,7,0,0,1,0,1,8,0,1,10,0,0,6,0,0,"2001, 2002 Did not submit data to OEP. Used Census Data",2]
["Tuftonboro",3085,216,"77620",1500,1842,2148,2387,2640,2719,2796,16,0,1,10,0,5,24,0,0,3,1,4,12,9,2,27,6,4,46,3,4,48,1,1,24,0,8,14,0,2,20,1,-1,17,0,1,14,0,0,7,0,0,10,0,0,23,5,0,22,0,0,13,0,0,15,4,1,17,0,2,19,0,6,37,2,0,48,0,0,34,0,0,30,0,1,51,0,0,25,0,0,15,0,0,17,0,0,7,0,0,5,0,1,3,0,0,4,0,0,2,0,-1,8,0,0,9,0,1,8,0,-1,16,0,1,12,0,0,12,0,0,"",2]
["Wakefield",3090,217,"78180",2237,3057,4252,5078,5995,6173,6348,13,0,0,4,0,3,27,0,0,27,0,6,39,4,9,62,1,16,93,0,8,119,4,0,48,1,3,22,0,4,23,0,5,19,0,6,22,24,5,16,0,4,15,0,6,21,0,3,22,0,2,32,0,6,30,0,6,29,0,11,31,0,17,44,0,30,44,0,27,116,1,1,53,2,30,77,2,1,53,2,-1,31,0,0,20,0,0,-8,0,-2,3,0,0,7,0,2,6,0,-3,3,0,1,13,0,-1,6,-3,0,15,4,0,21,2,0,19,2,0,13,5,0,"",2]
["Wolfeboro",3095,218,"86420",3968,4807,6083,6269,6408,6598,6785,34,7,0,26,16,0,31,38,0,37,0,0,80,6,0,91,9,12,160,40,23,59,-1,4,57,3,16,19,2,5,33,0,1,55,0,3,45,2,3,50,3,0,44,0,2,40,0,7,44,1,5,19,0,0,43,0,6,45,0,3,55,0,0,70,0,0,66,0,1,60,0,0,60,0,0,16,4,0,4,0,0,17,0,0,2,2,0,-8,0,0,-9,0,0,0,0,0,2,24,-1,8,24,0,12,0,0,5,0,0,6,0,0,15,2,0,22,2,0,30,6,0,"",2]
[]
[]
[]
[]
[]
[]
[]
["NH Employment Data","Query Name: DPQryEmploymentByCnty-Good-Serv-Total","Updated:","2020-09-30"]
[]
["AreaName","COUNTYCODE","TOTP & G2001","TOT2001","GOODPRO2001","SERVICEPROMAN2001","WAGEP & G2001","WAGETOT2001","WAGEGOODPRO2001","WAGESERVICEPRO2001","TOTP & G2002","TOT2002","GOODPRO2002","SERVICEPROMAN2002","WAGEP & G2002","WAGETOT2002","WAGEGOODPRO2002","WAGESERVICEPRO2002","TOTP & G2003","TOT2003","GOODPRO2003","SERVICEPROMAN2003","WAGEP & G2003","WAGETOT2003","WAGEGOODPRO2003","WAGESERVICEPRO2003","TOTP & G2004","TOT2004","GOODPRO2004","SERVICEPROMAN2004","WAGEP & G2004","WAGETOT2004","WAGEGOODPRO2004","WAGESERVICEPRO2004","TOTP & G2005","TOT2005","GOODPRO2005","SERVICEPROMAN2005","WAGEP & G2005","WAGETOT2005","WAGEGOODPRO2005","WAGESERVICEPRO2005","TOTP & G2006","TOT2006","GOODPRO2006","SERVICEPROMAN2006","WAGEP & G2006","WAGETOT2006","WAGEGOODPRO2006","WAGESERVICEPRO2006","TOTP & G2007","TOT2007","GOODPRO2007","SERVICEPROMAN2007","WAGEP & G2007","WAGETOT2007","WAGEGOODPRO2007","WAGESERVICEPRO2007","TOTP & G2008","TOT2008","GOODPRO2008","SERVICEPROMAN2008","WAGEP & G2008","WAGETOT2008","WAGEGOODPRO2008","WAGESERVICEPRO2008","TOTP & G2009","TOT2009","GOODPRO2009","SERVICEPROMAN2009","WAGEP & G2009","WAGETOT2009","WAGEGOODPRO2009","WAGESERVICEPRO2009","TOTP & G2010","TOT2010","GOODPRO2010","SERVICEPROMAN2010","WAGEP & G2010","WAGETOT2010","WAGEGOODPRO2010","WAGESERVICEPRO2010","TOTP & G2011","TOT2011","GOODPRO2011","SERVICEPROMAN2011","WAGEP & G2011","WAGETOT2011","WAGEGOODPRO2011","WAGESERVICEPRO2011","TOTP & G2012","TOT2012","GOODPRO2012","SERVICEPROMAN2012","WAGEP & G2012","WAGETOT2012","WAGEGOODPRO2012","WAGESERVICEPRO2012","TOTP & G2013","TOT2013","GOODPRO2013","SERVICEPROMAN2013","WAGEP & G2013","WAGETOT2013","WAGEGOODPRO2013","WAGESERVICEPRO2013","TOTP & G2014","TOT2014","GOODPRO2014","SERVICEPROMAN2014","WAGEP & G2014","WAGETOT2014","WAGEGOODPRO2014","WAGESERVICEPRO2014","TOTP & G2015","TOT2015","GOODPRO2015","SERVICEPROMAN2015","WAGEP & G2015","WAGETOT2015","WAGEGOODPRO2015","WAGESERVICEPRO2015","TOTP & G2016","TOT2016","GOODPRO2016","SERVICEPROMAN2016","WAGEP & G2016","WAGETOT2016","WAGEGOODPRO2016","WAGESERVICEPRO2016","TOTP & G2017","TOT2017","GOODPRO2017","SERVICEPROMAN2017","WAGEP & G2017","WAGETOT2017","WAGEGOODPRO2017","WAGESERVICEPRO2017","TOTP & G2018","TOT2018","GOODPRO2018","SERVICEPROMAN2018","WAGEP & G2018","WAGETOT2018","WAGEGOODPRO2018","WAGESERVICEPRO2018","TOTP & G2019","TOT2019","TOTGov2019","GOODPRO2019","SERVICEPROMAN2019","WAGEP & G2019","WAGETOT2019","WAGEGov2019","WAGEGOODPRO2019","WAGESERVICEPRO2019","PlaceTownIDNumber"]
["Albany",2,86,78,51,28,677.37,730.8,885.02,447.91,83,76,55,22,689.15,732.58,882.63,353.41,76,70,"n","n",593.96,625.03,"n","n",64,59,"n","n",483.1,500.11,"n","n",83,78,"n","n",412.5,422.63,"n","n",119,114,36,78,484.8,492.96,789.77,353.96,109,104,38,66,480.9,486.64,740.23,341.87,104,100,39,61,481.11,484.88,713.22,337.97,93,89,31,58,462.19,465.23,645.57000000000005,369.62,105,101,32,70,469.17,471.65,669.95,380.83,103,98,"n","n",482.62,486.7,"n","n",127,121,25,96,431.61,438.06,727.6,361.82,107,101,16,84,448.58,456.81,751.25,399.38,112,107,15,92,447.3,451.52,695.65,411.53,105,99,13,86,448.18,458.44,796.77,407.05,123,114,"n","n",486.97,505.69,"n","n",125,118,"n","n",538.03,552.39,"n","n",134,126,"n","n",586.77,609.08000000000004,"n","n",128,120,8,27,94,605.94000000000005,628.27,266.01,803.32,578.52,201]
["Bartlett",2,1251,1102,57,1045,331.11,318.60000000000002,510.15,308.14,1327,1179,49,1129,327.55,313.89,536.66,304.16000000000003,1292,1150,62,1087,338.93,322.85000000000002,526.33000000000004,311.22000000000003,1229,1082,60,1021,374.06,359.42,609.86,344.64,1303,1170,128,1042,394.86,380.29,607.74,352.26,1261,1144,137,1007,413.28,392.51,636.97,359.24,1293,1157,144,1013,409.57,393.4,673.67,353.71,1327,1187,139,1048,412.96,397.09,796.94,343.94,1225,1084,135,949,419.51,399.81,762.85,348.35,1139,1003,78,925,407.12,380.02,724.59,351.09,1144,1002,90,912,403.38,379.36,720.34,345.63,1072,962,46,916,408.68,382.61,863.92,358.31,1103,1001,46,955,405.32,379.91,765.54,361.4,1143,1037,73,964,421.18,397.11,770.54,368.67,1076,980,77,903,467.78,447.01,889.05,409.49,1064,965,78,887,468.76,447,837.12,412.69,1073,980,90,890,500.58,480.13,892.14,438.33,938,841,41,800,502.16,475.58,750.69,461.36,949,852,98,40,812,536.45000000000005,516.51,710.5,781.23,503.44,202]
["Brookfield",2,"n","n","n","n","n","n","n","n","n","n","n","n","n","n","n","n","n","n","n","n","n","n","n","n",22,16,"n","n",625.75,802.6,"n","n",24,19,"n","n",935.22,1161.57,"n","n",23,18,4,14,673.23,857.63,1583.52,655.26,33,28,7,20,812.3,936.99,1387.25,770.71,28,22,6,16,965.29,1183.68,1758.67,962.06,28,21,5,16,976.15,1234.47,2081,974.34,30,26,5,21,924.46,1021.68,1996.48,793.22,28,24,7,17,857.99,955.97,1298.01,813.18,20,20,5,15,708.2,708.2,821.14,670.13,24,24,9,15,662.7,662.7,816.63,569.12,15,15,8,7,952.09,952.09,872.63,1051.93,12,12,8,4,978.29,978.29,852.5,1242.96,13,13,9,4,901.46,901.46,918.25,866.15,14,14,"n","n",1013.49,1013.49,"n","n",12,12,"n","n",849.09,849.09,"n","n",14,14,0,"n","n",922.66,922.66,0,"n","n",203]
["Chatham",2,"n","n","n","n","n","n","n","n",38,26,"n","n",274.5,395.24,"n","n","n","n","n","n","n","n","n","n",45,32,"n","n",323.06,447.14,"n","n",37,25,"n","n",305.85000000000002,441.06,"n","n",30,18,"n","n",293.48,472.8,"n","n",24,12,"n","n",292.70999999999998,558.45000000000005,"n","n","n","n","n","n","n","n","n","n","n","n","n","n","n","n","n","n","n","n","n","n","n","n","n","n","n","n","n","n","n","n","n","n",7,7,"n","n",522.66,522.66,"n","n","n","n","n","n","n","n","n","n",5,5,"n","n",911.13,911.13,"n","n","n","n","n","n","n","n","n","n","n","n","n","n","n","n","n","n","n","n","n","n","n","n","n","n","n","n",0,"n","n","n",0,"n","n","n",0,0,"n","n","n",0,0,"n",204]
["Conway",2,8259,7664,783,6881,443.37,431.89,587.4,414.2,8393,7789,821,6968,460.72,448.75,622.28,428.3,8582,7972,851,7122,468.82,455.97,613.78,437.11,8641,8029,881,7148,492.27,480.36,663.64,457.79,8290,7677,873,6804,519.64,508.73,699.65,484.23,8380,7757,930,6827,586.91999999999996,581.16,728.72,561.04999999999995,8483,7815,952,6863,550.41,540.59,746.84,511.98,8760,8065,1006,7059,554.78,542.95000000000005,750,513.44000000000005,8515,7800,914,6886,563.88,551.64,755.88,524.53,8527,7769,841,6928,574.62,565.07000000000005,722.75,545.92999999999995,8605,7912,865,7047,587.54999999999995,576.99,736.19,557.45000000000005,8870,8158,972,7186,613.5,604.99,751.48,585.17999999999995,8860,8112,968,7144,631.36,622.48,741.94,606.28,8802,8010,873,7137,606.78,597.09,768.42,576.13,8786,8008,859,7149,626.71,616.19000000000005,792.66,594.99,8876,8105,871,7234,635.14,625.1,818.06,601.86,8887,8121,849,7273,664.3,653.84,858.56,629.96,8864,8102,802,7300,677.37,666.27,844.78,646.65,8871,8134,"n",790,7344,704.67,693.41,"n",860.29,675.46,205]
["Eaton",2,45,40,"n","n",378.24,411.66,"n","n",49,44,10,34,362.95,384.73,403.92,379.19,47,42,8,34,460.83,492.93,498.32,491.68,"n","n","n","n","n","n","n","n",47,43,11,31,482.91,511.85,549.32000000000005,498.44,51,46,10,36,509.68,543.94000000000005,516.98,551.28,"n","n","n","n","n","n","n","n",51,45,"n","n",516.85,546.09,"n","n",41,37,"n","n",454.05,461.87,"n","n",38,33,"n","n",688.9,738.4,"n","n",32,27,"n","n",903,1003.66,"n","n",37,32,"n","n",843.7,924.34,"n","n",41,37,"n","n",968.28,1021.82,"n","n",39,35,"n","n",602.62,600.91,"n","n",41,37,"n","n",634.55999999999995,646.69000000000005,"n","n",37,32,"n","n",757.36,802.26,"n","n",40,35,"n","n",593.27,595.52,"n","n","n","n","n","n","n","n","n","n","n","n",6,"n","n","n","n",519.59,"n","n",206]
["Effingham",2,"n","n","n","n","n","n","n","n","n","n","n","n","n","n","n","n","n","n","n","n","n","n","n","n","n","n","n","n","n","n","n","n",52,37,"n",35,300.36,325.83999999999997,"n",309.81,54,42,6,36,351.11,363.64,310.05,373.16,"n","n","n","n","n","n","n","n","n","n","n","n","n","n","n","n","n","n","n","n","n","n","n","n","n","n","n","n","n","n","n","n","n","n","n","n","n","n","n","n","n","n","n","n","n","n","n","n","n","n","n","n","n","n","n","n","n","n","n","n","n","n","n","n",250,209,0,209,631.62,629.41,0,629.41,88,47,"n","n",585.97,511.19,"n","n",97,57,"n",0,588.42999999999995,515.44000000000005,"n",0,96,58,"n",0,651.71,577.38,"n",0,96,55,1,"n",0,680.84,675.82,520.53,"n",0,207]
["Freedom",2,192,161,43,118,443.7,456.07,551.36,421.08,243,180,48,131,448.82,471.32,594.4,425.97,264,194,37,156,428.81,436.05,642.82000000000005,386.7,242,169,35,134,434.06,459.26,558.87,433.52,229,164,34,130,472.6,478.86,643.21,435.34,240,178,30,149,460.54,444.14,626.64,407.89,233,167,27,140,541.22,545.04999999999995,774.77,500.85,214,151,26,125,607.85,619.29999999999995,804.58,580.28,226,165,"n","n",615.33000000000004,628.69000000000005,"n","n",246,182,30,152,615.85,637.84,682.7,629.04999999999995,249,179,25,153,618.29,637.65,724.52,623.39,259,186,24,162,576.61,577.63,866.17,535.41,255,183,35,148,607.61,620.16999999999996,928.73,547.11,271,202,40,161,617.89,632.12,881.54,569.64,274,212,31,180,613.6,608.42999999999995,999.22,540.53,260,196,29,167,648.5,658.81,896.85,617.20000000000005,267,205,29,176,636.28,623.5,896.09,578.20000000000005,281,220,34,186,647.59,632.73,1065.19,554.38,269,209,60,28,181,677.41,667.33,712.73,1206.27,584.61,208]
["Hale's Location",2,0,0,0,0,0,0,0,0,0,0,0,0,0,0,0,0,0,0,0,0,0,0,0,0,0,0,0,0,0,0,0,0,"n","n",0,"n","n","n",0,"n","n","n",0,"n","n","n",0,"n",11,11,"n","n",563.39,563.39,"n","n",11,11,"n","n",557.83000000000004,557.83000000000004,"n","n",12,12,"n","n",476.46,476.46,"n","n",11,11,"n","n",578.85,578.85,"n","n","n","n","n","n","n","n","n","n",10,10,"n","n",545.33000000000004,545.33000000000004,"n","n",9,9,"n","n",612.08000000000004,612.08000000000004,"n","n","n","n","n","n","n","n","n","n","n","n",0,"n","n","n",0,"n","n","n",0,"n","n","n",0,"n","n","n",0,"n","n","n",0,"n","n","n",0,"n","n","n",0,"n","n","n",0,0,"n","n","n",0,0,"n",219]
["Hart's Location",2,"n","n",0,"n","n","n",0,"n","n","n",0,"n","n","n",0,"n","n","n",0,"n","n","n",0,"n","n","n",0,"n","n","n",0,"n","n","n","n",0,"n","n","n",0,"n","n","n","n","n","n","n","n","n","n",0,"n","n","n",0,"n","n","n",0,"n","n","n",0,"n","n","n",0,"n","n","n",0,"n","n","n",0,"n","n","n",0,"n","n","n",0,"n","n","n",0,"n","n","n",0,"n","n","n",0,"n",20,15,0,15,486.34,530.66999999999996,0,530.66999999999996,22,15,0,15,488.82,561.17999999999995,0,561.17999999999995,21,15,0,15,536.29,594.38,0,594.38,21,15,0,15,469.07,506.09,0,506.09,"n","n",0,"n","n","n",0,"n","n","n",0,"n","n","n",0,"n","n","n",5,0,"n","n","n",496.37,0,"n",209]
["Jackson",2,571,532,22,510,388.26,392.11,571.34,384.36,520,485,18,467,387.56,386.35,472.03,383.14,514,478,10,468,395.69,394.14,487.12,392.17,550,513,9,504,436.24,437.2,459.11,436.79,553,515,10,506,414.88,413.54,444.47,412.96,551,513,14,499,462.63,462.89,722.11,455.63,556,517,13,504,545.97,550.22,560.07000000000005,549.97,514,478,11,467,484.45,478.4,563.25,476.49,476,437,11,425,491.73,487.42,501.37,487.05,487,445,10,435,472.39,464.88,519.61,463.61,525,482,12,470,581.34,584.92999999999995,880.76,577.37,500,457,7,449,576.62,578.74,1173.74,569.03,511,471,"n","n",625.17999999999995,628.99,"n","n",483,445,"n","n",606.04,601.29,"n","n",476,438,7,431,628.95000000000005,627.33000000000004,697.82,626.20000000000005,497,454,6,449,719.24,727.44,794.93,726.57,11,477,382,190,477.72,639.19000000000005,1542.35,1039.1199999999999,533,479,10,469,685.5,702.37,565.54,705.41,522,468,54,"n","n",778.31,800.26,588.27,"n","n",210]
["Madison",2,451,427,176,251,495.17,496.42,672.86,372.8,455,429,167,262,478.83,480.08,702.75,337.71,519,431,161,270,473.75,490.51,731.34,346.92,538,446,170,276,510.24,533.96,780.93,382.3,523,436,159,277,539.96,560.89,755.8,449.3,559,476,159,318,557.9,566.79999999999995,759.27,470.72,591,503,162,342,571.05999999999995,578.42999999999995,777.57,484.28,612,521,190,331,619.53,631.74,836.86,514.22,565,466,180,286,590.79,610.04,793.72,494.41,562,460,180,280,612.25,636.36,873.58,484.03,555,457,187,270,596.46,610.24,827.06,460.29,528,428,185,243,597.89,609.95000000000005,833.13,440.05,513,416,159,257,635.49,654.72,938.5,479.4,495,408,149,260,728.24,758.02,1220.07,493.4,492,407,150,257,806.56,842.83,1290.49,581.30999999999995,490,405,132,273,815.31,847.03,1345.23,605.98,"n",445,94,384,"n",883.75,988.27,926.61,586,506,157,349,725.43,724.94,985.92,607.47,584,510,73,162,348,803.31,800.99,819.43,1019.15,699.31,211]
["Moultonborough",2,1046,848,250,598,561.30999999999995,547.51,664.96,498.45,1113,904,291,613,599.97,590.67999999999995,686.89,545.04,1174,981,309,673,632.33000000000004,611.54999999999995,688.79,576.13,1083,867,197,671,689.48,686.51,778.94,659.42,1198,979,223,755,603.34,574.83000000000004,776.36,515.24,1263,1031,227,804,614.30999999999995,585.67999999999995,793.51,526.9,1273,1038,206,832,647.29,614.38,835.26,559.82000000000005,1370,1127,225,901,659.7,623.66,829.1,572.34,1316,1058,198,860,669.45,635.29999999999995,820.98,592.59,1313,1060,205,855,714.82,684.37,877.2,638.07000000000005,1436,1162,234,928,739.31,727.98,942.21,673.92,1467,1193,231,962,704.51,691.39,982.61,621.54999999999995,1447,1188,206,982,764.25,748.66,1012.95,693.24,1456,1196,223,974,759.08,747.15,1030.07,682.42,1506,1248,211,1037,755.46,741.07,1070.1300000000001,674.25,1544,1303,195,1108,813.05,804.69,1160.31,742.09,83,1290,304,1547,565.07000000000005,754.22,885.45,1045.3800000000001,1588,1339,182,1157,786.93,767.36,1228.75,695,1608,1362,246,189,1173,801.11,783.81,896.88,1252.8699999999999,708.16,212]
["Ossipee",2,1914,1458,319,1140,495.11,507.46,730.19,445.21,1810,1350,241,1109,521.58000000000004,534.66,744.47,488.98,1819,1353,251,1103,529.37,535.79,728.84,491.87,1898,1406,263,1143,562.42999999999995,572.33000000000004,778.01,524.94000000000005,2267,1727,293,1434,571.28,570.29999999999995,754.97,532.53,2212,1648,296,1352,604.41,603.01,774.26,565.47,1871,1342,292,1050,590.07000000000005,569.01,790.57,507.45,1790,1258,218,1039,603.12,573.77,792.92,527.75,1692,1183,166,1017,620.23,609,868.73,566.59,1696,1187,175,1012,613.49,602.86,975.24,538.35,1713,1213,188,1025,609.4,593.37,1023.15,514.6,1687,1158,179,979,619.04999999999995,589.76,998.95,514.84,1639,1099,156,943,604,563.09,1026.6300000000001,486.38,1687,1147,137,1010,607.07000000000005,560.87,1023.24,498.3,1672,1141,131,1010,625.52,579.38,1024.29,521.57000000000005,1669,1154,138,1016,632.05999999999995,593.47,1064.05,529.41,1686,1170,157,1013,650.32000000000005,605.91,1091.69,530.51,1708,1190,172,1018,675.84,623.51,1023.2,555.80999999999995,1743,1215,528,182,1033,702.13,656.41,807.38,1103.67,577.57000000000005,213]
["Sandwich",2,285,240,79,161,603.89,631.41999999999996,651.95000000000005,621.32000000000005,279,232,62,171,601.22,626.03,731.48,588.04999999999995,281,233,68,165,587.54,599.63,639.12,583.37,301,251,75,176,584.66,605.80999999999995,659.23,582.95000000000005,258,203,78,125,594.26,625.61,718.87,567.20000000000005,256,200,83,118,545.14,556.54999999999995,733.43,432.06,256,198,75,123,534.71,535.89,737.48,413.35,251,203,71,132,560.53,547.89,753.9,436.86,224,174,56,119,550.21,544.88,705.52,469.09,213,163,56,107,540.32000000000005,524.64,722.78,420.78,199,149,54,95,594.99,584.66999999999996,762.73,484.01,198,149,56,92,611.24,605.48,776.92,500.98,201,154,51,103,610.59,598.58000000000004,780.04,507.85,201,151,57,94,663.53,678.54,838.4,581.54999999999995,192,143,0,87,780.92,817.19,0,723.03,223,176,60,115,867.17,912.73,876.5,931.58,229,183,55,128,936.69,985.35,766.66,1080.19,223,178,57,121,881.15,903.49,741.71,979.54,219,172,46,55,117,916.94,945.22,812.23,774.93,1025.3399999999999,214]
["Tamworth",2,664,452,162,290,444.01,439.15,631.97,331.63,661,485,152,333,465.55,430.4,656.97,326.7,635,502,163,339,472.51,432.72,631.84,337.08,697,552,176,376,488.28,464.91,697.25,356.24,719,602,166,436,491.79,477.81,772.53,365.3,662,559,140,419,518.19000000000005,503.85,843.08,390.37,673,565,132,433,513.74,493.09,733.26,419.96,643,522,149,373,535.49,516.15,733.38,429.04,678,526,127,400,559.04,481.16,647.5,428.54,670,523,118,406,576.35,504.34,662.43,458.48,660,516,95,421,592.29,523.26,684.03,487.07,601,482,96,386,569.62,542.23,702.95,502.29,564,441,96,345,598.09,572.58000000000004,681.49,542.26,594,466,117,348,612.80999999999995,580.53,662.77,552.83000000000004,605,475,126,349,654.54999999999995,620.05999999999995,748.29,573.99,614,484,114,369,694.2,661.48,755.04,632.5,618,489,122,367,711.74,685.26,850.69,630.49,616,487,129,359,771.17,764.77,893.36,718.69,670,540,8,164,376,767.97,762.56,926.34,893.67,705.36,215]
["Tuftonboro",2,385,325,161,163,557.72,577.52,616.66,538.77,401,326,146,180,545.51,579.04999999999995,680.04,497.04,395,323,138,185,572.58000000000004,600.11,767.17,475.97,418,360,"n","n",612.28,620.52,"n","n",412,337,"n","n",588.08000000000004,613.38,"n","n",425,349,73,276,613.34,627.97,631.59,627.01,460,373,75,299,579.25,592.16999999999996,693.37,566.91,449,364,63,301,587.86,599.70000000000005,659.4,587.28,430,351,53,298,581.77,576.29,636.35,565.64,427,337,51,286,541.95000000000005,544.96,645.15,527.1,423,333,52,282,574.65,578.9,618.33000000000004,571.67999999999995,434,338,55,283,585.41999999999996,603.73,561.88,611.79999999999995,391,309,45,264,631.76,644.80999999999995,494.89,670.42,"n","n","n","n","n","n","n","n",375,306,32,274,687.34,674.09,595.22,683.38,370,300,"n","n",710.9,695.66,"n","n",412,340,36,304,691.83,672.57,741.77,664.41,399,331,45,285,706.3,682.26,635.14,689.76,414,342,72,47,295,722.26,702.64,815.21,694.4,703.96,216]
["Wakefield",2,639,383,52,332,363.98,314.20999999999998,535.04,279.93,637,381,57,324,374.4,327.98,504.62,296.7,671,402,74,328,394.77,350.16,518.54,312.20999999999998,686,416,86,329,423.92,363.6,503.47,327.05,678,415,86,329,463.42,385.39,537.01,345.92,695,415,88,328,480.32,394.02,509.56,363.07,720,404,76,328,499.69,426.44,578.89,391,723,390,72,318,530.49,449.03,608.83000000000004,412.82,727,389,67,322,558.78,489.73,607.70000000000005,465.26,745,417,70,347,661.84,677.81,617.69000000000005,690,800,472,69,403,730.38,775.64,662.84,794.89,831,503,54,448,752.75,818.98,638.79,840.83,861,537,61,477,749.41,801.1,634.98,822.24,889,566,67,499,803.79,874.74,645.89,905.56,888,572,70,502,868.98,973.61,683.78,1014.12,975,669,78,"n",853.13,929.74,687.03,"n",850,540,"n","n",610.53,552.67999999999995,"n","n",876,555,"n","n",639.74,589.74,"n","n",897,579,318,"n","n",641.97,582.65,750,"n","n",217]
["Wolfeboro",2,3283,2830,374,2456,545.19000000000005,535.09,599.39,525.30999999999995,3409,2937,358,2579,544.08000000000004,534.38,565.14,530.11,3459,2989,372,2617,568.21,557.88,609.41999999999996,550.54999999999995,3540,3068,345,2724,598.21,589.04999999999995,653.38,580.91,3514,3009,342,2667,611.36,605.86,682.86,595.99,3493,2981,342,2639,640.87,637.52,777.77,619.37,3410,2897,322,2575,695.31,695.42,838.44,677.53,3382,2873,312,2562,715.72,713.3,818.01,700.56,3292,2770,272,2498,691.4,681.23,841.75,663.73,3196,2688,261,2427,702.45,692.79,836.35,677.38,3118,2616,273,2344,718.76,701.84,851.81,684.4,3028,2517,211,2306,720.14,702.92,781.9,695.7,3001,2480,216,2264,740.65,726.5,827.03,716.89,2993,2477,214,2262,750.08,735.1,818.56,727.19,3025,2515,223,2292,768.38,753.87,865.09,743.05,3126,2611,253,2358,793.72,773.56,958.13,753.77,3093,2565,270,2295,822.13,808.54,971.06,789.43,3105,2569,300,2269,860.01,855.1,935.78,844.42,3193,2653,540,312,2342,867.43,861.4,897.07,1003.32,842.51,218]
[null,null,null,null,null,null,null,null,null,null,null,null,null,null,null,null,null,null,null,null,null,null,null,null,null,null,null,null,null,null,null,null,null,null,null,null,null,null,null,null,null,null,null,null,null,null,null,null,null,null,null,null,null,null,null,null,null,null,null,null,null,null,null,null,null,null,null,null,null,null,null,null,null,null,null,null,null,null,null,null,null,null,null,null,null,null,null,null,null,null,null,null,null,null,null,null,null,null,null,null,null,null,null,null,null,null,null,null,null,null,null,null,null,null,null,null,null,null,null,null,null,null,null,null,null,null,null,null,null,null,null,null,null,null,null,null,null,null,"","","","","","",""]
[null,null,null,null,null,null,null,null,null,null,null,null,null,null,null,null,null,null,null,null,null,null,null,null,null,null,null,null,null,null,null,null,null,null,null,null,null,null,null,null,null,null,null,null,null,null,null,null,null,null,null,null,null,null,null,null,null,null,null,null,null,null,null,null,null,null,null,null,null,null,null,null,null,null,null,null,null,null,null,null,null,null,null,null,null,null,null,null,null,null,null,null,null,null,null,null,null,null,null,null,null,null,null,null,null,null,null,null,null,null,null,null,null,null,null,null,null,null,null,null,null,null,null,null,null,null,null,null,null,null,null,null,null,null,null,null,null,null,"","","","","","",""]
[]
["NH Employment Data","Query Name: DPQryEmploymentByCnty-Good-Serv-Total","Updated:","2020-09-30"]
[]
["AreaName","COUNTYCODE","TOTP & G2001","TOT2001","GOODPRO2001","SERVICEPROMAN2001","WAGEP & G2001","WAGETOT2001","WAGEGOODPRO2001","WAGESERVICEPRO2001","TOTP & G2002","TOT2002","GOODPRO2002","SERVICEPROMAN2002","WAGEP & G2002","WAGETOT2002","WAGEGOODPRO2002","WAGESERVICEPRO2002","TOTP & G2003","TOT2003","GOODPRO2003","SERVICEPROMAN2003","WAGEP & G2003","WAGETOT2003","WAGEGOODPRO2003","WAGESERVICEPRO2003","TOTP & G2004","TOT2004","GOODPRO2004","SERVICEPROMAN2004","WAGEP & G2004","WAGETOT2004","WAGEGOODPRO2004","WAGESERVICEPRO2004","TOTP & G2005","TOT2005","GOODPRO2005","SERVICEPROMAN2005","WAGEP & G2005","WAGETOT2005","WAGEGOODPRO2005","WAGESERVICEPRO2005","TOTP & G2006","TOT2006","GOODPRO2006","SERVICEPROMAN2006","WAGEP & G2006","WAGETOT2006","WAGEGOODPRO2006","WAGESERVICEPRO2006","TOTP & G2007","TOT2007","GOODPRO2007","SERVICEPROMAN2007","WAGEP & G2007","WAGETOT2007","WAGEGOODPRO2007","WAGESERVICEPRO2007","TOTP & G2008","TOT2008","GOODPRO2008","SERVICEPROMAN2008","WAGEP & G2008","WAGETOT2008","WAGEGOODPRO2008","WAGESERVICEPRO2008","TOTP & G2009","TOT2009","GOODPRO2009","SERVICEPROMAN2009","WAGEP & G2009","WAGETOT2009","WAGEGOODPRO2009","WAGESERVICEPRO2009","TOTP & G2010","TOT2010","GOODPRO2010","SERVICEPROMAN2010","WAGEP & G2010","WAGETOT2010","WAGEGOODPRO2010","WAGESERVICEPRO2010","TOTP & G2011","TOT2011","GOODPRO2011","SERVICEPROMAN2011","WAGEP & G2011","WAGETOT2011","WAGEGOODPRO2011","WAGESERVICEPRO2011","TOTP & G2012","TOT2012","GOODPRO2012","SERVICEPROMAN2012","WAGEP & G2012","WAGETOT2012","WAGEGOODPRO2012","WAGESERVICEPRO2012","TOTP & G2013","TOT2013","GOODPRO2013","SERVICEPROMAN2013","WAGEP & G2013","WAGETOT2013","WAGEGOODPRO2013","WAGESERVICEPRO2013","TOTP & G2014","TOT2014","GOODPRO2014","SERVICEPROMAN2014","WAGEP & G2014","WAGETOT2014","WAGEGOODPRO2014","WAGESERVICEPRO2014","TOTP & G2015","TOT2015","GOODPRO2015","SERVICEPROMAN2015","WAGEP & G2015","WAGETOT2015","WAGEGOODPRO2015","WAGESERVICEPRO2015","TOTP & G2016","TOT2016","GOODPRO2016","SERVICEPROMAN2016","WAGEP & G2016","WAGETOT2016","WAGEGOODPRO2016","WAGESERVICEPRO2016","TOTP & G2017","TOT2017","GOODPRO2017","SERVICEPROMAN2017","WAGEP & G2017","WAGETOT2017","WAGEGOODPRO2017","WAGESERVICEPRO2017","TOTP & G2018","TOT2018","GOODPRO2018","SERVICEPROMAN2018","WAGEP & G2018","WAGETOT2018","WAGEGOODPRO2018","WAGESERVICEPRO2018","TOTP & G2019","TOT2019","TOTGov2019","GOODPRO2019","SERVICEPROMAN2019","WAGEP & G2019","WAGETOT2019","WAGEGov2019","WAGEGOODPRO2019","WAGESERVICEPRO2019","PlaceTownIDNumber","COUNTYCODE","NH-EmploymentGoods-Service.COUNTYCODE"]
["Belknap County",1,26173,22708,6138,16570,541.07000000000005,538.34,689.88,482.21,26052,22334,5408,16926,561.11,555.84,731.15,499.83,26286,22376,5281,17095,579.91,573.04,754.28,517.04999999999995,26931,23030,5431,17599,610.04,602.01,777.41,547.89,26940,22891,5467,17424,636.41999999999996,634.14,819.42,576,27237,23042,5133,17909,657.93,655.07000000000005,862.32,595.66999999999996,27266,23032,4820,18212,674.29,668.31,921.91,601.17999999999995,26793,22507,4572,17935,689.74,680.53,938.61,614.74,25570,21280,3944,17337,692.98,680.87,934.72,623.12,24943,20713,3480,17234,698.61,690.71,945.91,639.19000000000005,24953,20748,3411,17337,706.01,697.17,959.24,645.61,25196,20972,3400,17572,708.66,703.81,960.55,654.13,25517,21311,3517,17794,718.36,714.81,997.67,658.89,25490,21315,3554,17761,748.41,745.98,1036.05,687.93,25584,21457,3597,17859,776.57,774.35,1066.24,715.55,25708,21577,3626,17951,797.95,796.89,1088.81,737.93,25829,21725,3676,18049,823.13,823.31,1139.79,758.85,25898,21803,3774,18029,851.06,851.82,1167.98,785.64,26080,22008,4072,3799,18209,854.12,849.87,877.08,1177.3,781.56,1016,"",1]
["Carroll County",2,19495,16938,2563,14374,467.52,460.32,627.98,430.42,19756,17153,2497,14656,481.01,472.65,645.74,443.16,20167,17534,2567,14967,492.28,481.72,647.55999999999995,453.27,20405,17701,2526,15175,519.72,511.1,687.06,481.81,20205,17448,2541,14906,533.86,524.08000000000004,703.81,493.43,20294,17504,2588,14916,575.59,568.1,737.84,538.66,20402,17510,2544,14966,573.29999999999995,562.55999999999995,760.1,528.99,20584,17636,2552,15084,584.17999999999995,570.32000000000005,770.38,536.47,19942,16904,2265,14639,587.36,570.99,765.31,540.91999999999996,19810,16754,2124,14630,600.19000000000005,586.5,775.97,558.99,19997,17005,2189,14816,617.28,603.41999999999996,798.39,574.61,20082,17083,2162,14921,627.16999999999996,615.41,800.29,588.62,19971,16958,2084,14874,645.66999999999996,633.79,805.62,609.71,20015,16952,2024,14928,640.24,627.02,843.7,597.64,19806,16828,1996,14832,667.3,653.87,884.26,622.86,19997,17053,2030,15023,686.74,674.21,909.04,642.48,20005,17047,2057,14991,692.33,677.15,941.62,640.87,20015,17037,2078,14959,710.33,694.81,905.58,665.54,20228,17268,2960,2128,15140,735.27,721.26,816.99,942.12,690.22,1017,"",2]
["Cheshire County",3,32349,27819,"n","n",571.92999999999995,577.30999999999995,"n","n",32369,27595,7795,19800,584.33000000000004,590.97,743.2,531.04,32548,27626,7754,19873,598.89,603.04,763.11,540.59,33075,28132,7648,20484,631.09,634.67999999999995,807.42,570.17999999999995,33995,28886,8110,20776,656.03,666.98,828.9,603.78,34194,29151,7889,21262,723.95,741.43,987.42,650.15,33638,28601,7473,21128,707.44,717.07,867.3,663.94,33220,28351,7351,21000,746.75,752.8,902.94,700.24,32207,27212,6761,20451,742.41,745.7,870.79,704.34,31527,26585,6300,20286,754.45,756.21,900.6,711.38,31690,26854,6240,20614,768.13,768.69,935.64,718.15,32021,27158,6245,20914,790.24,793.9,933.87,752.11,31923,27008,6032,20975,796.52,797.61,965.3,749.39,31904,26935,6025,20910,810.83,815.88,993.69,764.64,32067,27097,6073,21024,830.63,834.25,1010.79,783.25,32005,27109,6177,20932,838.96,843.47,1028.03,789.01,31743,26953,6194,20759,867.06,873.07,1043.75,822.14,31642,26825,6445,20380,895.81,907.01,1090.07,849.12,31737,26923,4814,6652,20272,913.17,927.09,835.36,1100.44,870.2,1018,"",3]
["Coos County",4,13872,11234,"n","n",489.02,487.7,"n","n",13737,11021,2332,8689,490.8,484.33,650.88,439.63,13946,11225,2578,8647,525.08000000000004,519.66,703.37,464.89,14103,11341,2590,8751,542.98,540.59,726.42,485.6,14026,11222,2533,8689,556.04,552.64,754.89,493.68,13898,10991,2334,8657,572.86,571.41999999999996,766.73,518.76,13876,11050,2184,8866,583.63,572.30999999999995,758.88,526.34,13566,10747,1988,8759,602.53,587.51,755.51,549.38,13002,10134,1720,8414,609.67999999999995,592.77,751.35,560.36,12832,9977,1593,8384,608.57000000000005,589.54,744.88,560.02,12555,9785,1473,8312,620.23,600.46,757.95,572.54,12371,9564,1568,7995,640.94000000000005,622.74,825.56,582.97,12515,9564,1649,7915,667.37,647.75,855.89,604.39,12064,9083,1293,7789,675.59,651.58000000000004,777.89,630.61,11974,9046,1222,7824,694.46,666.94,788.97,647.89,11990,9038,1167,7870,706.62,682.98,853.55,657.68,11999,9070,1223,7846,729.45,705.37,867.99,680.02,11970,9060,1296,7764,749.69,723.06,852.68,701.43,12083,9226,2857,1304,7921,766.79,735.31,868.44,914.39,705.82,1019,"",4]
["Grafton County",5,49352,43256,8085,35171,617.73,624.04999999999995,672.45,612.92999999999995,49690,43362,7763,35599,658.93,668.77,701.81,661.56,50615,44009,7790,36220,704.15,717.01,753.77,709.11,51355,44704,7636,37069,728.96,740.6,770.78,734.38,51541,44954,7698,37256,768.82,783.94,809.26,778.7,52267,45531,7761,37770,803.4,820.96,855.22,813.92,52729,45992,7672,38320,843.04,860.73,901.98,852.47,52901,46166,7347,38819,867.61,884.82,928.14,876.62,51401,44646,6446,38200,879.4,895.26,899.95,894.47,51256,44376,6289,38086,905.77,925.54,949.83,921.53,51663,44867,6681,38186,926.58,946.3,981.6,940.12,52026,45246,6818,38428,950.95,973.52,996.15,969.5,52153,45454,6717,38736,965.05,986.68,1028.75,979.39,52226,45565,6778,38787,1004.06,1029.1500000000001,1069.54,1022.09,52654,46056,6882,39174,1037.55,1061.83,1078.8900000000001,1058.83,53361,46686,6801,39885,1058.5999999999999,1086.92,1082.4000000000001,1087.69,53790,47161,6781,40380,1079.6300000000001,1108.6099999999999,1125.3,1105.81,54119,47417,6926,40491,1105.33,1135.81,1167.74,1130.3399999999999,54388,47685,6703,6855,40830,1142.8,1174.8,915.17,1156.02,1177.95,1020,"",5]
["Hillsborough County",6,192842,173003,47169,125834,756.14,762.49,941.37,695.43,188573,168164,42086,126078,768.52,773.3,968.23,708.23,190864,169969,41006,128962,801.91,806.79,1014.82,740.64,193543,172567,40910,131656,839.56,844.4,1064.01,776.16,196190,174854,40181,134673,866.71,873.18,1101.58,805.03,196502,175094,39123,135971,897.24,904,1171.1600000000001,827.13,197183,175821,38588,137233,946.54,951.14,1248.82,867.44,195976,174253,36628,137625,973.54,979.17,1267.17,902.52,187240,165260,33003,132257,959.3,962.96,1236.24,894.76,184628,162829,32117,130712,980.99,986.25,1287.9100000000001,912.12,186437,165030,32694,132336,1013.7,1018.86,1329.81,942.03,188425,167133,31642,135492,1029.82,1035.95,1325.69,968.28,190568,169383,30861,138522,1038.74,1045.24,1365.43,973.9,193565,172574,31422,141152,1092.9000000000001,1101.22,1393.55,1036.1500000000001,196842,175848,31842,144005,1099.51,1106.52,1401.46,1041.3,199729,178867,32654,146213,1118.6300000000001,1126.21,1436.51,1056.9100000000001,201740,180839,33513,147327,1147.78,1156.08,1490.14,1080.0899999999999,203961,182874,34296,148577,1182,1189.98,1525.57,1112.51,205989,184819,21170,35047,149772,1219.73,1229.8399999999999,1131.48,1558.29,1152.98,1021,"",6]
["Merrimack County",7,71543,56168,12137,44031,631.86,633.92999999999995,772.48,595.74,71850,56025,11403,44622,653.27,655.12,799.93,618.12,72840,56631,11036,45595,667.06,666.91,826.68,628.24,72381,56515,10742,45773,690.51,689.4,845.49,652.77,72963,56979,11012,45967,710.07,710.67,861.87,674.44,74077,57818,10760,47058,739.28,739.89,906.79,701.73,74070,57629,10051,47579,774.05,772.96,972.47,730.82,73959,57295,9822,47472,795.3,789.49,978.78,750.33,72134,55582,8724,46857,810.16,788.36,966.04,755.28,71882,55306,8662,46645,821.15,806.64,998.67,770.98,72140,55913,9059,46854,835.3,821.63,1012.78,784.67,72901,56946,9282,47664,850.4,842.26,1036.72,804.39,73510,57805,9457,48348,866.04,857.51,1050.8699999999999,819.69,74884,58800,9698,49103,892.44,882.46,1086.78,842.11,75670,59563,9801,49762,929.04,918.53,1114.06,880.02,76413,60219,9936,50283,946.35,937.29,1126.3800000000001,899.92,76803,60570,10042,50528,980.03,971.23,1164.72,932.78,77469,61326,10142,51184,1012.33,1004.39,1186.1199999999999,968.39,77816,61536,16281,10313,51222,1038.6300000000001,1030.98,1067.56,1209.32,995.07,1022,"",7]
["New Hampshire",1026,610446,531225,127190,404035,682.38,691.51,842.11,644.1,603100,521320,115244,406076,695.8,703.84,868.13,657.22,604198,520362,111472,408890,717.94,724.91,888.81,680.22,613327,529515,111893,417622,753.7,760.58,928.63,715.56,620909,536173,112033,424140,779.84,788.93,958.48,744.15,627301,541435,110189,431246,816.3,827.48,1013.11,780.04,630171,543800,107673,436127,843.46,852.45,1054.1600000000001,802.65,628819,541768,104441,437326,863.66,870.64,1074.5999999999999,821.93,604915,517658,92952,424706,864.05,867.37,1066.42,823.81,600540,513386,89428,423957,883.88,890.13,1119.47,841.75,605864,520338,90996,429342,909.31,916.27,1140.95,868.65,612432,527263,90404,436858,928.33,938.02,1152.07,893.72,618756,534106,90890,443216,941.75,950.79,1173.1099999999999,905.2,626567,541441,92176,449265,983.96,996.35,1200.71,954.42,636798,552276,93968,458308,1010.64,1021.89,1224.55,980.34,647375,562836,96138,466699,1030.04,1042.6300000000001,1251.03,999.7,653496,569023,97995,471029,1060.3399999999999,1073.99,1294.46,1028.1199999999999,658816,574044,100089,473955,1091.97,1106.44,1317.59,1061.8499999999999,665374,580394,84980,101907,478487,1128.27,1145.04,1013.77,1346.98,1102.03,1026,""]
["Rockingham County",8,130960,117604,24384,93220,704.6,714.62,913.02,662.73,130242,116589,22286,94302,712.56,720.57,945.47,667.42,130329,116466,21075,95392,725.68,731.51,920.38,689.79,133803,119786,21944,97841,774.11,781.14,964.22,740.08,136154,122028,22051,99976,796.86,803.2,996.54,760.55,138063,123549,22274,101275,842.13,851.8,1013.05,816.33,138382,123679,22407,101273,849.04,856.27,1052.77,812.8,137191,122378,22407,99970,839.01,841.86,1081.82,788.07,131375,116492,19644,96848,839.06,840.45,1104.3599999999999,786.93,131892,117079,18689,98391,862.17,865.32,1199.72,801.8,133444,119079,18941,100138,880.6,883.65,1146.49,833.93,135396,121125,18942,102183,907.06,912.95,1200.98,859.56,137505,123255,19558,103698,919.22,924.42,1204.8699999999999,871.53,139972,125705,20107,105598,967.99,976.63,1214.5999999999999,931.32,143650,129571,20954,108617,999.45,1007.52,1260.8800000000001,958.65,146926,132843,21711,111132,1008.63,1016.49,1289.1199999999999,963.24,149059,134948,22384,112564,1040.5999999999999,1049.82,1335.62,992.99,149817,135525,22957,112568,1068.69,1079.1600000000001,1345.67,1024.8,151694,137342,14352,23611,113731,1110.28,1122.81,990.42,1388.53,1067.6400000000001,1023,"",8]
["Strafford County",9,43645,34821,9068,25753,655.37,655.92,770.85,615.45000000000005,42874,33684,7630,26054,655.35,652.99,800.21,609.88,43046,33530,7366,26164,668.52,656.47,806.84,614.13,43436,33873,7230,26643,693.72,673.65,820.17,633.9,43773,34267,7211,27056,709.03,692.76,828.02,656.71,44557,35064,7140,27925,723.22,705.71,858.22,666.71,45570,35960,6960,29000,746.96,729.16,880.17,692.91,46580,36991,6754,30237,803.35,784.14,900.05,758.25,44375,35115,5981,29133,822.2,798.7,916.04,774.61,44144,34793,5960,28833,843.68,824.98,964.85,796.07,44154,34870,6008,28863,879.87,868.02,1098.93,819.95,45017,35667,6036,29631,875.8,864.35,1039.17,828.73,45379,36187,6365,29822,896.63,880.93,1050.44,844.76,46249,36899,6431,30469,915.86,906.58,1082.2,869.52,46826,37517,6657,30860,954.37,941.53,1121.8,902.65,47632,38313,6879,31434,967.61,953.88,1119.03,917.74,48165,38780,6935,31845,990.95,980.7,1148.01,944.26,48371,39036,6997,32039,1004.47,991.1,1131.83,960.36,48714,39366,9348,7127,32239,1034.79,1028.5999999999999,1060.8599999999999,1146.21,1002.6,1024,"",9]
["Sullivan County",10,14086,11544,"n","n",536.78,549.33000000000004,"n","n",13793,11231,4452,6779,561.15,569.74,685.65,493.64,13370,10809,4059,6750,577.41,588.45000000000005,688.92,528.03,13551,11127,4066,7061,602.70000000000005,607.34,721.67,541.5,13862,11386,4086,7300,615.79,621.85,741.34,554.98,13826,11306,3928,7377,642.61,650.96,800.27,571.45000000000005,13873,11351,3958,7393,676.8,687.32,843.22,603.85,13799,11227,3909,7318,687.34,698.53,866.24,608.95000000000005,13185,10586,3466,7121,698.02,705.82,887.35,617.47,13076,10479,3303,7176,714.38,723.66,917.55,634.42999999999995,13190,10617,3204,7413,723.57,732.12,955.94,635.39,13597,11070,3448,7622,757.15,771.77,1038.8399999999999,650.94000000000005,13793,11373,3704,7670,768.35,784.88,1012.65,674.88,13873,11439,3932,7507,795.94,816.28,1039.17,699.53,14090,11709,3948,7761,803.2,815.31,1021.57,710.37,14204,11783,4061,7722,810.76,830.28,1066.2,706.22,13997,11636,4031,7605,821.95,836.22,1048.48,723.72,13966,11628,3919,7708,836.09,849.04,1063.6199999999999,739.94,13735,11390,2344,3818,7573,854.16,864.16,805.53,1081.23,754.74,1025,"",10]

{"sheet":"BuildingPermitsSince2000","index":8,"n_rows":41,"n_cols":23,"rows_kept":41,"cut":false,"hidden":true,"merged":[[3,1,3,3]]}
[]
[null,{"$f":"CntyDataLink!A35","v":"Albany"}]
[]
[null,"HOUSING CHARACTERISTICS"]
[]
[]
[]
[]
[]
[]
[]
[]
[]
[]
[]
[]
[]
[]
[]
[]
[]
[]
[]
[]
[]
[]
[]
[]
[]
[]
[]
[]
[]
[]
[null,"Housing Units Authorized by Permit",null,null,null,"Source: New Hampshire Office of Strategic Initiatives"]
[]
[null,"Year",2000,{"$f":"C37+1","v":2001},{"$f":"D37+1","v":2002},2003,2004,2005,2006,2007,2008,2009,2010,2011,2012,2013,2014,2015,2016,2017,2018,2019,"Total"]
[null,"Single Family",{"$f":"CntyDataLink!$BT$20","v":2},{"$f":"CntyDataLink!$BW$20","v":3},{"$f":"CntyDataLink!$BZ$20","v":11},{"$f":"CntyDataLink!$CC$20","v":8},{"$f":"CntyDataLink!$CF$20","v":16},{"$f":"CntyDataLink!$CI$20","v":5},{"$f":"CntyDataLink!$CL$20","v":4},{"$f":"CntyDataLink!$CO$20","v":2},{"$f":"CntyDataLink!$CR$20","v":3},{"$f":"CntyDataLink!$CU$20","v":3},{"$f":"CntyDataLink!$CX$20","v":0},{"$f":"CntyDataLink!$DA$20","v":2},{"$f":"CntyDataLink!$DD$20","v":2},{"$f":"CntyDataLink!$DG$20","v":2},{"$f":"CntyDataLink!$DJ$20","v":3},{"$f":"CntyDataLink!$DM$20","v":1},{"$f":"CntyDataLink!$DP$20","v":1},{"$f":"CntyDataLink!$DS$20","v":2},{"$f":"CntyDataLink!$DV$20","v":7},{"$f":"CntyDataLink!$DY$20","v":1},{"$f":"SUM(C38:V38)","v":78}]
[null,"Multi-family",{"$f":"CntyDataLink!$BU$20","v":0},{"$f":"CntyDataLink!$BX$20","v":0},{"$f":"CntyDataLink!$CA$20","v":1},{"$f":"CntyDataLink!$CD$20","v":0},{"$f":"CntyDataLink!$CG$20","v":0},{"$f":"CntyDataLink!$CJ$20","v":0},{"$f":"CntyDataLink!$CM$20","v":0},{"$f":"CntyDataLink!$CP$20","v":0},{"$f":"CntyDataLink!$CS$20","v":0},{"$f":"CntyDataLink!$CV$20","v":0},{"$f":"CntyDataLink!$CY$20","v":0},{"$f":"CntyDataLink!$DB$20","v":0},{"$f":"CntyDataLink!$DE$20","v":0},{"$f":"CntyDataLink!$DH$20","v":0},{"$f":"CntyDataLink!$DK$20","v":0},{"$f":"CntyDataLink!$DN$20","v":0},{"$f":"CntyDataLink!$DQ$20","v":0},{"$f":"CntyDataLink!$DT$20","v":0},{"$f":"CntyDataLink!$DW$20","v":0},{"$f":"CntyDataLink!$DZ$20","v":0},{"$f":"SUM(C39:V39)","v":1}]
[null,"Mobile Home",{"$f":"CntyDataLink!$BV$20","v":0},{"$f":"CntyDataLink!$BY$20","v":0},{"$f":"CntyDataLink!$CB$20","v":0},{"$f":"CntyDataLink!$CE$20","v":0},{"$f":"CntyDataLink!$CH$20","v":1},{"$f":"CntyDataLink!$CK$20","v":1},{"$f":"CntyDataLink!$CN$20","v":1},{"$f":"CntyDataLink!$CQ$20","v":0},{"$f":"CntyDataLink!$CT$20","v":0},{"$f":"CntyDataLink!$CW$20","v":0},{"$f":"CntyDataLink!$CZ$20","v":1},{"$f":"CntyDataLink!$DC$20","v":-1},{"$f":"CntyDataLink!$DF$20","v":-2},{"$f":"CntyDataLink!$DI$20","v":0},{"$f":"CntyDataLink!$DL$20","v":0},{"$f":"CntyDataLink!$DO$20","v":1},{"$f":"CntyDataLink!$DR$20","v":0},{"$f":"CntyDataLink!$DU$20","v":2},{"$f":"CntyDataLink!$DX$20","v":0},{"$f":"CntyDataLink!$EA$20","v":0},{"$f":"SUM(C40:V40)","v":4}]
[null,"Total",{"$f":"SUM(C38:C40)","v":2},{"$f":"SUM(D38:D40)","v":3},12,8,17,6,5,2,3,3,1,1,0,2,{"$f":"SUM(Q38:Q40)","v":3},2,1,4,7,1,83]

{"sheet":"EmploymentAndWages","index":9,"n_rows":0,"n_cols":0,"rows_kept":0,"cut":false,"hidden":true,"merged":[]}

{"sheet":"EmpVsHUxCounty","index":10,"n_rows":126,"n_cols":15,"rows_kept":126,"cut":false,"hidden":true,"merged":[[79,0,80,9],[64,0,64,11]]}
[]
[{"$f":"A44","v":"Housing Units "}]
[]
[]
[]
[]
[]
[]
[]
[]
[]
[]
[]
[]
[]
[]
[]
[]
[]
[]
[]
[]
[]
[]
[]
[]
[]
[]
[]
[]
[]
[]
[]
[]
[]
[]
[]
[]
[null,null,null,"Source: New Hampshire Office of Strategic Initiatives"]
[]
[]
[]
[]
["Housing Units "]
[{"$f":"CntyDataLink!A20","v":"Albany"}]
[null,null,null,"Source: New Hampshire Office of Strategic Initiatives"]
["Units Authorized By Permit",2008,{"$f":"B47+1","v":2009},{"$f":"C47+1","v":2010},2011,2012,2013,2014,2015,2016,2017,2018,2019]
["Single Family",{"$f":"CntyDataLink!$CR$20","v":3},{"$f":"CntyDataLink!$CU$20","v":3},{"$f":"CntyDataLink!$CX$20","v":0},{"$f":"CntyDataLink!$DA$20","v":2},{"$f":"CntyDataLink!$DD$20","v":2},{"$f":"CntyDataLink!$DG$20","v":2},{"$f":"CntyDataLink!$DJ$20","v":3},{"$f":"CntyDataLink!$DM$20","v":1},{"$f":"CntyDataLink!$DP$20","v":1},{"$f":"CntyDataLink!$DS$20","v":2},{"$f":"CntyDataLink!$DV$20","v":7},{"$f":"CntyDataLink!$DY$20","v":1}]
["Multi-family",{"$f":"CntyDataLink!$CS$20","v":0},{"$f":"CntyDataLink!$CV$20","v":0},{"$f":"CntyDataLink!$CY$20","v":0},{"$f":"CntyDataLink!$DB$20","v":0},{"$f":"CntyDataLink!$DE$20","v":0},{"$f":"CntyDataLink!$DH$20","v":0},{"$f":"CntyDataLink!$DK$20","v":0},{"$f":"CntyDataLink!$DN$20","v":0},{"$f":"CntyDataLink!$DQ$20","v":0},{"$f":"CntyDataLink!$DT$20","v":0},{"$f":"CntyDataLink!$DW$20","v":0},{"$f":"CntyDataLink!$DZ$20","v":0}]
["Mobile Home",{"$f":"CntyDataLink!$CT$20","v":0},{"$f":"CntyDataLink!$CW$20","v":0},{"$f":"CntyDataLink!$CZ$20","v":1},{"$f":"CntyDataLink!$DC$20","v":-1},{"$f":"CntyDataLink!$DF$20","v":-2},{"$f":"CntyDataLink!$DI$20","v":0},{"$f":"CntyDataLink!$DL$20","v":0},{"$f":"CntyDataLink!$DO$20","v":1},{"$f":"CntyDataLink!$DR$20","v":0},{"$f":"CntyDataLink!$DU$20","v":2},{"$f":"CntyDataLink!$DX$20","v":0},{"$f":"CntyDataLink!$EA$20","v":0}]
["Total",{"$f":"SUM(B48:B50)","v":3},3,1,1,0,2,3,2,1,4,{"$f":"SUM(L48:L50)","v":7},{"$f":"SUM(M48:M50)","v":1}]
[]
["Total Housing Units",2008,{"$f":"B53+1","v":2009},2010,"2010 Census",2011,{"$f":"F53+1","v":2012},2013,2014,2015,2016,2017,2018,2019,2020]
["Single Family",{"$f":"CntyDataLink!CF65+CntyDataLink!$BT$20+CntyDataLink!$BW$20+CntyDataLink!$BZ$20+CntyDataLink!$CC$20+CntyDataLink!$CF$20+CntyDataLink!$CI$20+CntyDataLink!$CO$20+CntyDataLink!$CR$20","v":443},{"$f":"B54+B48","v":446},{"$f":"C54+C48","v":449},{"$f":"CntyDataLink!$BA$167","v":452},{"$f":"D48+E54","v":452},{"$f":"F54+E48","v":454},456,458,461,462,463,465,472,473]
["Multi Family",{"$f":"SUM(CntyDataLink!CG65:CM65)+CntyDataLink!$BU$20+CntyDataLink!$BX$20+CntyDataLink!$CA$20+CntyDataLink!$CD$20+CntyDataLink!$CG$20+CntyDataLink!$CJ$20+CntyDataLink!$CP$20+CntyDataLink!$CS$20","v":15},{"$f":"B55+B49","v":15},{"$f":"C55+C49","v":15},{"$f":"CntyDataLink!$BB$167","v":18},{"$f":"D49+E55","v":18},18,18,18,18,18,18,18,18,18]
["Mobile Home",{"$f":"SUM(CntyDataLink!CN65:CO65)+CntyDataLink!$BV$20+CntyDataLink!$BY$20+CntyDataLink!$CB$20+CntyDataLink!$CE$20+CntyDataLink!$CH$20+CntyDataLink!$CK$20+CntyDataLink!$CQ$20+CntyDataLink!$CT$20","v":86},86,{"$f":"C56+C50","v":86},{"$f":"CntyDataLink!$BC$167","v":90},{"$f":"D50+E56","v":91},90,88,88,88,89,89,91,91,91]
["Total",{"$f":"SUM(B54:B56)","v":544},{"$f":"SUM(C54:C56)","v":547},{"$f":"C57+C51","v":550},{"$f":"SUM(E54:E56)","v":560},{"$f":"SUM(F54:F56)","v":561},562,562,564,567,569,570,574,581,582]
[]
["Percent Change",null,"08-09","09-10","2000-2010 Census"," 10-11"," 11-12","12-13","13-14","14-15","15-16","16-17","17-18","18-19","19-20"]
["Single Family",null,{"$f":"(C54-B54)/B54","v":6.7720090293453723E-3},{"$f":"(D54-C54)/C54","v":6.7264573991031393E-3},{"$f":"(E54-CntyDataLink!CF$65)/CntyDataLink!CF$65","v":0.15012722646310434},{"$f":"(F54-E54)/E54","v":0},4.4247787610619468E-3,4.4052863436123352E-3,4.3859649122807015E-3,6.5502183406113534E-3,2.1691973969631237E-3,2.1645021645021645E-3,4.3196544276457886E-3,1.5053763440860216E-2,2.1186440677966102E-3]
["Multi Family",null,{"$f":"(C55-B55)/B55","v":0},0,{"$f":"(E55-SUM(CntyDataLink!CG65:CM65))/SUM(CntyDataLink!CG65:CM65)","v":0.2857142857142857},0,0,0,0,0,0,0,0,0,0]
["Mobile Home",null,0,0,{"$f":"(E56-SUM(CntyDataLink!CM65:CN65))/SUM(CntyDataLink!CM65:CN65)","v":7.1428571428571425E-2},1.1111111111111112E-2,-1.098901098901099E-2,-2.2222222222222223E-2,0,0,1.1363636363636364E-2,0,2.247191011235955E-2,0,0]
["Total",null,5.5147058823529415E-3,5.4844606946983544E-3,{"$f":"(E57-CntyDataLink!$CE65)/CntyDataLink!$CE65","v":0.14052953156822812},1.7857142857142857E-3,1.7825311942959001E-3,0,3.5587188612099642E-3,5.3191489361702126E-3,3.5273368606701938E-3,1.7574692442882249E-3,7.0175438596491229E-3,1.2195121951219513E-2,1.7211703958691911E-3]
[]
[]
[]
[]
["Private Employment"]
["Gilmanton"]
[null,null,2008,{"$f":"C70+1","v":2009},2010,2011,2012,2013,2014,2015,2016,2017,2018,2019]
["Goods Producing",null,{"$f":"IF((CntyDataLink!$BI$25)=\"n\",NA(),IF(VALUE(CntyDataLink!$BI$25)=\"\",NA(),VALUE(CntyDataLink!$BI$25)))","v":39},{"$f":"IF((CntyDataLink!$BQ$25)=\"n\",NA(),IF(VALUE(CntyDataLink!$BQ$25)=\"\",NA(),VALUE(CntyDataLink!$BQ$25)))","v":31},{"$f":"IF((CntyDataLink!$BY$25)=\"n\",NA(),IF(VALUE(CntyDataLink!$BY$25)=\"\",NA(),VALUE(CntyDataLink!$BY$25)))","v":32},{"$f":"IF((CntyDataLink!$CG$25)=\"n\",NA(),IF(VALUE(CntyDataLink!$CG$25)=\"\",NA(),VALUE(CntyDataLink!$CG$25)))","v":{"$error":"#N/A"}},{"$f":"IF((CntyDataLink!$CO$25)=\"n\",NA(),IF(VALUE(CntyDataLink!$CO$25)=\"\",NA(),VALUE(CntyDataLink!$CO$25)))","v":25},{"$f":"IF((CntyDataLink!$CW$25)=\"n\",NA(),IF(VALUE(CntyDataLink!$CW$25)=\"\",NA(),VALUE(CntyDataLink!$CW$25)))","v":16},{"$f":"IF((CntyDataLink!$DE$25)=\"n\",NA(),IF(VALUE(CntyDataLink!$DE$25)=\"\",NA(),VALUE(CntyDataLink!$DE$25)))","v":15},{"$f":"IF((CntyDataLink!$DM$25)=\"n\",NA(),IF(VALUE(CntyDataLink!$DM$25)=\"\",NA(),VALUE(CntyDataLink!$DM$25)))","v":13},{"$f":"IF((CntyDataLink!$DU$25)=\"n\",NA(),IF(VALUE(CntyDataLink!$DU$25)=\"\",NA(),VALUE(CntyDataLink!$DU$25)))","v":{"$error":"#N/A"}},{"$f":"IF((CntyDataLink!$EC$25)=\"n\",NA(),IF(VALUE(CntyDataLink!$EC$25)=\"\",NA(),VALUE(CntyDataLink!$EC$25)))","v":{"$error":"#N/A"}},{"$f":"IF((CntyDataLink!$EK$25)=\"n\",NA(),IF(VALUE(CntyDataLink!$EK$25)=\"\",NA(),VALUE(CntyDataLink!$EK$25)))","v":{"$error":"#N/A"}},{"$f":"IF((CntyDataLink!$ET$25)=\"n\",NA(),IF(VALUE(CntyDataLink!$ET$25)=\"\",NA(),VALUE(CntyDataLink!$ET$25)))","v":27}]
["Service Providing",null,{"$f":"IF((CntyDataLink!$BJ$25)=\"n\",NA(),IF(VALUE(CntyDataLink!$BJ$25)=\"\",NA(),VALUE(CntyDataLink!$BJ$25)))","v":61},{"$f":"IF((CntyDataLink!$BR$25)=\"n\",NA(),IF(VALUE(CntyDataLink!$BR$25)=\"\",NA(),VALUE(CntyDataLink!$BR$25)))","v":58},{"$f":"IF((CntyDataLink!$BZ$25)=\"n\",NA(),IF(VALUE(CntyDataLink!$BZ$25)=\"\",NA(),VALUE(CntyDataLink!$BZ$25)))","v":70},{"$f":"IF((CntyDataLink!$CH$25)=\"n\",NA(),IF(VALUE(CntyDataLink!$CH$25)=\"\",NA(),VALUE(CntyDataLink!$CH$25)))","v":{"$error":"#N/A"}},{"$f":"IF((CntyDataLink!$CP$25)=\"n\",NA(),IF(VALUE(CntyDataLink!$CP$25)=\"\",NA(),VALUE(CntyDataLink!$CP$25)))","v":96},{"$f":"IF((CntyDataLink!$CX$25)=\"n\",NA(),IF(VALUE(CntyDataLink!$CX$25)=\"\",NA(),VALUE(CntyDataLink!$CX$25)))","v":84},{"$f":"IF((CntyDataLink!$DF$25)=\"n\",NA(),IF(VALUE(CntyDataLink!$DF$25)=\"\",NA(),VALUE(CntyDataLink!$DF$25)))","v":92},{"$f":"IF((CntyDataLink!$DN$25)=\"n\",NA(),IF(VALUE(CntyDataLink!$DN$25)=\"\",NA(),VALUE(CntyDataLink!$DN$25)))","v":86},{"$f":"IF((CntyDataLink!$DV$25)=\"n\",NA(),IF(VALUE(CntyDataLink!$DV$25)=\"\",NA(),VALUE(CntyDataLink!$DV$25)))","v":{"$error":"#N/A"}},{"$f":"IF((CntyDataLink!$ED$25)=\"n\",NA(),IF(VALUE(CntyDataLink!$ED$25)=\"\",NA(),VALUE(CntyDataLink!$ED$25)))","v":{"$error":"#N/A"}},{"$f":"IF((CntyDataLink!$EL$25)=\"n\",NA(),IF(VALUE(CntyDataLink!$EL$25)=\"\",NA(),VALUE(CntyDataLink!$EL$25)))","v":{"$error":"#N/A"}},{"$f":"IF((CntyDataLink!$EU$25)=\"n\",NA(),IF(VALUE(CntyDataLink!$EU$25)=\"\",NA(),VALUE(CntyDataLink!$EU$25)))","v":94}]
["Total Private Emp",null,{"$f":"IF((CntyDataLink!$BH$25)=\"n\",NA(),IF(VALUE(CntyDataLink!$BH$25)=\"\",NA(),VALUE(CntyDataLink!$BH$25)))","v":100},{"$f":"IF((CntyDataLink!$BP$25)=\"n\",NA(),IF(VALUE(CntyDataLink!$BP$25)=\"\",NA(),VALUE(CntyDataLink!$BP$25)))","v":89},{"$f":"IF((CntyDataLink!$BX$25)=\"n\",NA(),IF(VALUE(CntyDataLink!$BX$25)=\"\",NA(),VALUE(CntyDataLink!$BX$25)))","v":101},{"$f":"IF((CntyDataLink!$CF$25)=\"n\",NA(),IF(VALUE(CntyDataLink!$CF$25)=\"\",NA(),VALUE(CntyDataLink!$CF$25)))","v":98},{"$f":"IF((CntyDataLink!$CN$25)=\"n\",NA(),IF(VALUE(CntyDataLink!$CN$25)=\"\",NA(),VALUE(CntyDataLink!$CN$25)))","v":121},{"$f":"IF((CntyDataLink!$CV$25)=\"n\",NA(),IF(VALUE(CntyDataLink!$CV$25)=\"\",NA(),VALUE(CntyDataLink!$CV$25)))","v":101},{"$f":"IF((CntyDataLink!$DD$25)=\"n\",NA(),IF(VALUE(CntyDataLink!$DD$25)=\"\",NA(),VALUE(CntyDataLink!$DD$25)))","v":107},{"$f":"IF((CntyDataLink!$DL$25)=\"n\",NA(),IF(VALUE(CntyDataLink!$DL$25)=\"\",NA(),VALUE(CntyDataLink!$DL$25)))","v":99},{"$f":"IF((CntyDataLink!$DT$25)=\"n\",NA(),IF(VALUE(CntyDataLink!$DT$25)=\"\",NA(),VALUE(CntyDataLink!$DT$25)))","v":114},{"$f":"IF((CntyDataLink!$EB$25)=\"n\",NA(),IF(VALUE(CntyDataLink!$EB$25)=\"\",NA(),VALUE(CntyDataLink!$EB$25)))","v":118},{"$f":"IF((CntyDataLink!$EJ$25)=\"n\",NA(),IF(VALUE(CntyDataLink!$EJ$25)=\"\",NA(),VALUE(CntyDataLink!$EJ$25)))","v":126},{"$f":"IF((CntyDataLink!$ER$25)=\"n\",NA(),IF(VALUE(CntyDataLink!$ER$25)=\"\",NA(),VALUE(CntyDataLink!$ER$25)))","v":120}]
[]
["Percent Change",null,null,"08-09","09-10","10-11","11-12","12-13","13-14","14-15","15-16","16-17","17-18","18-19"]
["Goods Producing",null,null,{"$f":"(D71-C71)/C71","v":-0.20512820512820512},3.2258064516129031E-2,{"$error":"#N/A"},{"$error":"#N/A"},-0.36,-6.25E-2,-0.13333333333333333,{"$error":"#N/A"},{"$error":"#N/A"},{"$error":"#N/A"},{"$f":"(N71-M71)/M71","v":{"$error":"#N/A"}}]
["Service Providing",null,null,-4.9180327868852458E-2,0.20689655172413793,{"$error":"#N/A"},{"$error":"#N/A"},-0.125,9.5238095238095233E-2,-6.5217391304347824E-2,{"$error":"#N/A"},{"$error":"#N/A"},{"$error":"#N/A"},{"$error":"#N/A"}]
["Total Private Emp",null,null,-0.11,{"$f":"(E73-D73)/D73","v":0.1348314606741573},-2.9702970297029702E-2,0.23469387755102042,-0.16528925619834711,5.9405940594059403E-2,-7.476635514018691E-2,0.15151515151515152,3.5087719298245612E-2,6.7796610169491525E-2,{"$f":"(N73-M73)/M73","v":-4.7619047619047616E-2}]
[]
["Source: New Hampshire Department of Employment Security"]
[]
[]
[]
[{"$f":"A2","v":"Housing Units "}]
[]
[]
[]
[]
[]
[]
[]
[]
[]
[]
[]
[]
[]
[]
[]
[]
[]
[]
[]
[]
[]
[]
[]
[]
[]
[]
[]
[]
[]
[]
[]
[]
[]
[]
[]
[null,null,2008,{"$f":"C120+1","v":2009},2010,2011,2012,2013,2014,2015,2016,2017,2018,2019]
["Total Housing Units",null,{"$f":"B$57","v":544},547,{"$f":"$E$57","v":560},{"$f":"F57","v":561},562,562,564,567,569,570,574,581]
["Private & Government Emp.",null,{"$f":"VALUE(CntyDataLink!$BG$25)","v":104},{"$f":"VALUE(CntyDataLink!$BO$25)","v":93},{"$f":"VALUE(CntyDataLink!$BW$25)","v":105},{"$f":"VALUE(CntyDataLink!$CE$25)","v":103},{"$f":"VALUE(CntyDataLink!$CM$25)","v":127},{"$f":"VALUE(CntyDataLink!$CU$25)","v":107},{"$f":"VALUE(CntyDataLink!$DC$25)","v":112},{"$f":"VALUE(CntyDataLink!$DK$25)","v":105},{"$f":"VALUE(CntyDataLink!$DS$25)","v":123},{"$f":"VALUE(CntyDataLink!$EA$25)","v":125},{"$f":"VALUE(CntyDataLink!$EI$25)","v":134},{"$f":"VALUE(CntyDataLink!$EQ$25)","v":128}]
[]
["Source: New Hampshire Department of Employment Security and New Hampshire Office of Strategic Initiatives"]
[]
["Source: New Hampshire Department of Employment Security and New Hampshire Office of Strategic Initiatives"]

{"sheet":"HHIncome-10YearComparison","index":11,"n_rows":50,"n_cols":16,"rows_kept":50,"cut":false,"hidden":true,"merged":[[27,11,27,13],[28,1,28,2],[3,1,3,3],[26,1,26,4],[27,4,27,7],[27,8,27,10]]}
[]
[null,{"$f":"CntyDataLink!A35","v":"Albany"}]
[]
[null,"INCOME CHARACTERISTICS"]
[]
[]
[]
[]
[]
[]
[]
[]
[]
[]
[]
[]
[]
[]
[]
[]
[]
[]
[]
[]
[]
[]
[null,"Households By Household Income"]
[null,null,null,null,"2005-2009",null,null,null,"2010-2014",null,null,"2015-2019"]
[null,"Household Income",null,null,"Estimate","Margin of Error",null,null,"Estimate"," Margin of Error",null,"Estimate"," Margin of Error",null,null,"Statistically Significant Change"]
[null,"Less than $10,000",null,null,{"$f":"#REF!","v":{"$error":"#REF!"}},{"$f":"#REF!","v":{"$error":"#REF!"}},{"$f":"E30/SUM($E$30:$E$39)","v":{"$error":"#REF!"}},null,{"$f":"CntyDataLinkPrior5YearEstimates!$B$120","v":9},{"$f":"CntyDataLinkPrior5YearEstimates!$C$120","v":9},{"$f":"I30/SUM($E$30:$E$39)","v":{"$error":"#REF!"}},{"$f":"CntyDataLink!$B$120","v":12},{"$f":"CntyDataLink!$C$120","v":13},{"$f":"L30/SUM($I$30:$I$39)","v":3.896103896103896E-2},null,{"$f":"StatisticallySignificantCalcs!$A$82","v":{"$error":"#REF!"}}]
[null,"$10,000 to $14,999",null,null,{"$f":"#REF!","v":{"$error":"#REF!"}},{"$f":"#REF!","v":{"$error":"#REF!"}},{"$error":"#REF!"},null,{"$f":"CntyDataLinkPrior5YearEstimates!$D$120","v":12},{"$f":"CntyDataLinkPrior5YearEstimates!$E$120","v":14},{"$error":"#REF!"},{"$f":"CntyDataLink!$D$120","v":22},{"$f":"CntyDataLink!$E$120","v":16},7.1428571428571425E-2,null,{"$f":"StatisticallySignificantCalcs!$A$83","v":{"$error":"#REF!"}}]
[null,"$15,000 to $24,999",null,null,{"$f":"#REF!","v":{"$error":"#REF!"}},{"$f":"#REF!","v":{"$error":"#REF!"}},{"$error":"#REF!"},null,{"$f":"CntyDataLinkPrior5YearEstimates!$F$120","v":65},{"$f":"CntyDataLinkPrior5YearEstimates!$G$120","v":33.241540277189323},{"$error":"#REF!"},{"$f":"CntyDataLink!$F$120","v":21},{"$f":"CntyDataLink!$G$120","v":16.492422502470642},6.8181818181818177E-2,null,{"$f":"StatisticallySignificantCalcs!$A$84","v":{"$error":"#REF!"}}]
[null,"$25,000 to $34,999",null,null,{"$f":"#REF!","v":{"$error":"#REF!"}},{"$f":"#REF!","v":{"$error":"#REF!"}},{"$error":"#REF!"},null,{"$f":"CntyDataLinkPrior5YearEstimates!$H$120","v":9},{"$f":"CntyDataLinkPrior5YearEstimates!$I$120","v":7.810249675906654},{"$error":"#REF!"},{"$f":"CntyDataLink!$H$120","v":42},{"$f":"CntyDataLink!$I$120","v":21.931712199461309},0.13636363636363635,null,{"$f":"StatisticallySignificantCalcs!$A$85","v":{"$error":"#REF!"}}]
[null,"$35,000 to $49,999",null,null,{"$f":"#REF!","v":{"$error":"#REF!"}},{"$f":"#REF!","v":{"$error":"#REF!"}},{"$error":"#REF!"},null,{"$f":"CntyDataLinkPrior5YearEstimates!$J$120","v":47},{"$f":"CntyDataLinkPrior5YearEstimates!$K$120","v":22.825424421026653},{"$error":"#REF!"},{"$f":"CntyDataLink!$J$120","v":43},{"$f":"CntyDataLink!$K$120","v":24.103941586387901},0.1396103896103896,null,{"$f":"StatisticallySignificantCalcs!$A$86","v":{"$error":"#REF!"}}]
[null,"$50,000 to $74,999",null,null,{"$f":"#REF!","v":{"$error":"#REF!"}},{"$f":"#REF!","v":{"$error":"#REF!"}},{"$error":"#REF!"},null,{"$f":"CntyDataLinkPrior5YearEstimates!$L$120","v":48},{"$f":"CntyDataLinkPrior5YearEstimates!$M$120","v":23.769728648009426},{"$error":"#REF!"},{"$f":"CntyDataLink!$L$120","v":39},{"$f":"CntyDataLink!$M$120","v":19.697715603592208},0.12662337662337661,null,{"$f":"StatisticallySignificantCalcs!$A$87","v":{"$error":"#REF!"}}]
[null,"$75,000 to $99,999",null,null,{"$f":"#REF!","v":{"$error":"#REF!"}},{"$f":"#REF!","v":{"$error":"#REF!"}},{"$error":"#REF!"},null,{"$f":"CntyDataLinkPrior5YearEstimates!$N$120","v":60},{"$f":"CntyDataLinkPrior5YearEstimates!$O$120","v":29},{"$error":"#REF!"},{"$f":"CntyDataLink!$N$120","v":37},{"$f":"CntyDataLink!$O$120","v":15},0.12012987012987013,null,{"$f":"StatisticallySignificantCalcs!$A$88","v":{"$error":"#REF!"}}]
[null,"$100,000 to $149,999",null,null,{"$f":"#REF!","v":{"$error":"#REF!"}},{"$f":"#REF!","v":{"$error":"#REF!"}},{"$error":"#REF!"},null,{"$f":"CntyDataLinkPrior5YearEstimates!$P$120","v":42},{"$f":"CntyDataLinkPrior5YearEstimates!$Q$120","v":23.409399821439251},{"$error":"#REF!"},{"$f":"CntyDataLink!$P$120","v":69},{"$f":"CntyDataLink!$Q$120","v":29.206163733020468},0.22402597402597402,null,{"$f":"StatisticallySignificantCalcs!$A$89","v":{"$error":"#REF!"}}]
[null,"$150,000 to $199,999",null,null,{"$f":"#REF!","v":{"$error":"#REF!"}},{"$f":"#REF!","v":{"$error":"#REF!"}},{"$error":"#REF!"},null,{"$f":"CntyDataLinkPrior5YearEstimates!$R$120","v":7},{"$f":"CntyDataLinkPrior5YearEstimates!$S$120","v":7},{"$error":"#REF!"},{"$f":"CntyDataLink!$R$120","v":16},{"$f":"CntyDataLink!$S$120","v":11},5.1948051948051951E-2,null,{"$f":"StatisticallySignificantCalcs!$A$90","v":{"$error":"#REF!"}}]
[null,"Greater than $200,000",null,null,{"$f":"#REF!","v":{"$error":"#REF!"}},{"$f":"#REF!","v":{"$error":"#REF!"}},{"$error":"#REF!"},null,{"$f":"CntyDataLinkPrior5YearEstimates!$T$120","v":9},{"$f":"CntyDataLinkPrior5YearEstimates!$U$120","v":9},{"$error":"#REF!"},{"$f":"CntyDataLink!$T$120","v":6},{"$f":"CntyDataLink!$U$120","v":5},1.948051948051948E-2,null,{"$f":"StatisticallySignificantCalcs!$A$91","v":{"$error":"#REF!"}}]
[null,null,null,null,491895,null,null,null,491895]
[null,null,"Median HH Income",null,{"$f":"#REF!","v":{"$error":"#REF!"}},null,{"$f":"#REF!","v":{"$error":"#REF!"}},null,{"$f":"CntyDataLinkPrior5YearEstimates!$BV$128","v":62083},{"$f":"CntyDataLinkPrior5YearEstimates!$BW$128","v":20850},null,{"$f":"CntyDataLink!$BV$128","v":59821},{"$f":"CntyDataLink!$BW$128","v":12952}]
[null,null,"HH Income in 2019 Dollars",null,{"$f":"($E$50)*E41","v":{"$error":"#REF!"}},null,null,null,{"$f":"($E$49)*I41","v":66428.81}]
[]
[null,{"$f":"\"Source:  \"& \" \"&E28&\", \"&I28&\" and \"&L28& \"  American Community Survey; Tables B25119; B19001\"","v":"Source:   2005-2009, 2010-2014 and 2015-2019  American Community Survey; Tables B25119; B19001"}]
[]
[null,"Data from the American Community Survey are estimates."]
[]
[null,"CPI Adjustment Factor"]
[null,"2010-2014",null,null,1.07]
[null,"2005-2009",null,null,1.18,null,null,null,null,null,"`"]

{"sheet":"HHIncomeByAge","index":12,"n_rows":80,"n_cols":22,"rows_kept":80,"cut":false,"hidden":true,"merged":[[21,6,21,15]]}
[]
[null,null,{"$f":"CntyDataLink!A55","v":"Albany"}]
[null,null,"INCOME CHARACTERISTICS"]
[]
[]
[]
[]
[]
[]
[]
[]
[]
[]
[]
[]
[]
[]
[]
[]
[]
[null,null,{"$f":"HHIncomeByAge!C2","v":"Albany"},"Household Income in 2019"]
[null,null,null,null,null,null,"Households by Age of Householder "]
[null,null,null,"Households","Margin of Error Households",null,"Under 25","Margin of Error Under 25",null,"25 to 44","Margin of Error 25 to 44",null,"45 to 64","Margin of Error 45 to 64",null,"65 & Over","Margin of Error 65 & Over",null,"Family Households","Margin of Error Family HH","Non-Family HH","Margin of Error Non-Family HH"]
[null,null,"Less Than $10,000",{"$f":"CntyDataLink!$D$116","v":12},{"$f":"CntyDataLink!$E$116","v":13},null,{"$f":"CntyDataLink!$AN$116","v":7},{"$f":"CntyDataLink!$AO$116","v":12},null,{"$f":"CntyDataLink!$BV$116","v":2},{"$f":"CntyDataLink!$BW$116","v":4},null,{"$f":"CntyDataLink!$DD$116","v":0},{"$f":"CntyDataLink!$DE$116","v":11},null,{"$f":"CntyDataLink!$EL$116","v":3},{"$f":"CntyDataLink!$EM$116","v":4},null,{"$f":"CntyDataLink!$D$160","v":0},{"$f":"CntyDataLink!$E$160","v":11},{"$f":"CntyDataLink!$AN$160","v":12},{"$f":"CntyDataLink!$AO$160","v":13}]
[null,null,"$10,000 to $14,999",{"$f":"CntyDataLink!$F$116","v":22},{"$f":"CntyDataLink!$G$116","v":16},null,{"$f":"CntyDataLink!$AP$116","v":0},{"$f":"CntyDataLink!$AQ$116","v":11},null,{"$f":"CntyDataLink!$BX$116","v":4},{"$f":"CntyDataLink!$BY$116","v":7},null,{"$f":"CntyDataLink!$DF$116","v":9},{"$f":"CntyDataLink!$DG$116","v":13},null,{"$f":"CntyDataLink!$EN$116","v":9},{"$f":"CntyDataLink!$EO$116","v":7},null,{"$f":"CntyDataLink!$F$160","v":6},{"$f":"CntyDataLink!$G$160","v":8},{"$f":"CntyDataLink!$AP$160","v":16},{"$f":"CntyDataLink!$AQ$160","v":15}]
[null,null,"$15,000 to $19,999",{"$f":"CntyDataLink!$H$116","v":18},{"$f":"CntyDataLink!$I$116","v":16},null,{"$f":"CntyDataLink!$AR$116","v":0},{"$f":"CntyDataLink!$AS$116","v":11},null,{"$f":"CntyDataLink!$BZ$116","v":0},{"$f":"CntyDataLink!$CA$116","v":11},null,{"$f":"CntyDataLink!$DH$116","v":8},{"$f":"CntyDataLink!$DI$116","v":11},null,{"$f":"CntyDataLink!$EP$116","v":10},{"$f":"CntyDataLink!$EQ$116","v":13},null,{"$f":"CntyDataLink!$H$160","v":10},{"$f":"CntyDataLink!$I$160","v":11},{"$f":"CntyDataLink!$AR$160","v":8},{"$f":"CntyDataLink!$AS$160","v":12}]
[null,null,"$20,000 to $24,999",{"$f":"CntyDataLink!$J$116","v":3},{"$f":"CntyDataLink!$K$116","v":4},null,{"$f":"CntyDataLink!$AT$116","v":0},{"$f":"CntyDataLink!$AU$116","v":11},null,{"$f":"CntyDataLink!$CB$116","v":0},{"$f":"CntyDataLink!$CC$116","v":11},null,{"$f":"CntyDataLink!$DJ$116","v":0},{"$f":"CntyDataLink!$DK$116","v":11},null,{"$f":"CntyDataLink!$ER$116","v":3},{"$f":"CntyDataLink!$ES$116","v":4},null,{"$f":"CntyDataLink!$J$160","v":3},{"$f":"CntyDataLink!$K$160","v":4},{"$f":"CntyDataLink!$AT$160","v":0},{"$f":"CntyDataLink!$AU$160","v":11}]
[null,null,"$25,000 to $29,999",{"$f":"CntyDataLink!$L$116","v":29},{"$f":"CntyDataLink!$M$116","v":20},null,{"$f":"CntyDataLink!$AV$116","v":0},{"$f":"CntyDataLink!$AW$116","v":11},null,{"$f":"CntyDataLink!$CD$116","v":10},{"$f":"CntyDataLink!$CE$116","v":12},null,{"$f":"CntyDataLink!$DL$116","v":11},{"$f":"CntyDataLink!$DM$116","v":10},null,{"$f":"CntyDataLink!$ET$116","v":8},{"$f":"CntyDataLink!$EU$116","v":12},null,{"$f":"CntyDataLink!$L$160","v":8},{"$f":"CntyDataLink!$M$160","v":7},{"$f":"CntyDataLink!$AV$160","v":21},{"$f":"CntyDataLink!$AW$160","v":19}]
[null,null,"$30,000 to $34,999",{"$f":"CntyDataLink!$N$116","v":13},{"$f":"CntyDataLink!$O$116","v":9},null,{"$f":"CntyDataLink!$AX$116","v":0},{"$f":"CntyDataLink!$AY$116","v":11},null,{"$f":"CntyDataLink!$CF$116","v":9},{"$f":"CntyDataLink!$CG$116","v":8},null,{"$f":"CntyDataLink!$DN$116","v":0},{"$f":"CntyDataLink!$DO$116","v":11},null,{"$f":"CntyDataLink!$EV$116","v":4},{"$f":"CntyDataLink!$EW$116","v":4},null,{"$f":"CntyDataLink!$N$160","v":11},{"$f":"CntyDataLink!$O$160","v":8},{"$f":"CntyDataLink!$AX$160","v":2},{"$f":"CntyDataLink!$AY$160","v":3}]
[null,null,"$35,000 to $39,999",{"$f":"CntyDataLink!$P$116","v":4},{"$f":"CntyDataLink!$Q$116","v":4},null,{"$f":"CntyDataLink!$AZ$116","v":0},{"$f":"CntyDataLink!$BA$116","v":11},null,{"$f":"CntyDataLink!$CH$116","v":0},{"$f":"CntyDataLink!$CI$116","v":11},null,{"$f":"CntyDataLink!$DP$116","v":2},{"$f":"CntyDataLink!$DQ$116","v":3},null,{"$f":"CntyDataLink!$EX$116","v":2},{"$f":"CntyDataLink!$EY$116","v":3},null,{"$f":"CntyDataLink!$P$160","v":4},{"$f":"CntyDataLink!$Q$160","v":4},{"$f":"CntyDataLink!$AZ$160","v":0},{"$f":"CntyDataLink!$BA$160","v":11}]
[null,null,"$40,000 to $44,999",{"$f":"CntyDataLink!$R$116","v":34},{"$f":"CntyDataLink!$S$116","v":23},null,{"$f":"CntyDataLink!$BB$116","v":8},{"$f":"CntyDataLink!$BC$116","v":12},null,{"$f":"CntyDataLink!$CJ$116","v":4},{"$f":"CntyDataLink!$CK$116","v":6},null,{"$f":"CntyDataLink!$DR$116","v":13},{"$f":"CntyDataLink!$DS$116","v":9},null,{"$f":"CntyDataLink!$EZ$116","v":9},{"$f":"CntyDataLink!$FA$116","v":12},null,{"$f":"CntyDataLink!$R$160","v":30},{"$f":"CntyDataLink!$S$160","v":23},{"$f":"CntyDataLink!$BB$160","v":4},{"$f":"CntyDataLink!$BC$160","v":6}]
[null,null,"$45,000 to $49,999",{"$f":"CntyDataLink!$T$116","v":5},{"$f":"CntyDataLink!$U$116","v":6},null,{"$f":"CntyDataLink!$BD$116","v":0},{"$f":"CntyDataLink!$BE$116","v":11},null,{"$f":"CntyDataLink!$CL$116","v":3},{"$f":"CntyDataLink!$CM$116","v":5},null,{"$f":"CntyDataLink!$DT$116","v":0},{"$f":"CntyDataLink!$DU$116","v":11},null,{"$f":"CntyDataLink!$FB$116","v":2},{"$f":"CntyDataLink!$FC$116","v":3},null,{"$f":"CntyDataLink!$T$160","v":3},{"$f":"CntyDataLink!$U$160","v":5},{"$f":"CntyDataLink!$BD$160","v":2},{"$f":"CntyDataLink!$BE$160","v":3}]
[null,null,"$50,000 to $59,999",{"$f":"CntyDataLink!$V$116","v":14},{"$f":"CntyDataLink!$W$116","v":8},null,{"$f":"CntyDataLink!$BF$116","v":0},{"$f":"CntyDataLink!$BG$116","v":11},null,{"$f":"CntyDataLink!$CN$116","v":2},{"$f":"CntyDataLink!$CO$116","v":3},null,{"$f":"CntyDataLink!$DV$116","v":10},{"$f":"CntyDataLink!$DW$116","v":8},null,{"$f":"CntyDataLink!$FD$116","v":2},{"$f":"CntyDataLink!$FE$116","v":4},null,{"$f":"CntyDataLink!$V$160","v":8},{"$f":"CntyDataLink!$W$160","v":7},{"$f":"CntyDataLink!$BF$160","v":9},{"$f":"CntyDataLink!$BG$160","v":7}]
[null,null,"$60,000 to $74,999",{"$f":"CntyDataLink!$X$116","v":25},{"$f":"CntyDataLink!$Y$116","v":18},null,{"$f":"CntyDataLink!$BH$116","v":0},{"$f":"CntyDataLink!$BI$116","v":11},null,{"$f":"CntyDataLink!$CP$116","v":6},{"$f":"CntyDataLink!$CQ$116","v":7},null,{"$f":"CntyDataLink!$DX$116","v":17},{"$f":"CntyDataLink!$DY$116","v":15},null,{"$f":"CntyDataLink!$FF$116","v":2},{"$f":"CntyDataLink!$FG$116","v":3},null,{"$f":"CntyDataLink!$X$160","v":20},{"$f":"CntyDataLink!$Y$160","v":15},{"$f":"CntyDataLink!$BH$160","v":5},{"$f":"CntyDataLink!$BI$160","v":10}]
[null,null,"$75,000 to $99,999",{"$f":"CntyDataLink!$Z$116","v":37},{"$f":"CntyDataLink!$AA$116","v":15},null,{"$f":"CntyDataLink!$BJ$116","v":0},{"$f":"CntyDataLink!$BK$116","v":11},null,{"$f":"CntyDataLink!$CR$116","v":13},{"$f":"CntyDataLink!$CS$116","v":13},null,{"$f":"CntyDataLink!$DZ$116","v":11},{"$f":"CntyDataLink!$EA$116","v":7},null,{"$f":"CntyDataLink!$FH$116","v":13},{"$f":"CntyDataLink!$FI$116","v":9},null,{"$f":"CntyDataLink!$Z$160","v":27},{"$f":"CntyDataLink!$AA$160","v":14},{"$f":"CntyDataLink!$BJ$160","v":10},{"$f":"CntyDataLink!$BK$160","v":8}]
[null,null,"$100,000 to $124,999",{"$f":"CntyDataLink!$AB$116","v":27},{"$f":"CntyDataLink!$AC$116","v":18},null,{"$f":"CntyDataLink!$BL$116","v":0},{"$f":"CntyDataLink!$BM$116","v":11},null,{"$f":"CntyDataLink!$CT$116","v":0},{"$f":"CntyDataLink!$CU$116","v":11},null,{"$f":"CntyDataLink!$EB$116","v":16},{"$f":"CntyDataLink!$EC$116","v":14},null,{"$f":"CntyDataLink!$FJ$116","v":11},{"$f":"CntyDataLink!$FK$116","v":9},null,{"$f":"CntyDataLink!$AB$160","v":23},{"$f":"CntyDataLink!$AC$160","v":17},{"$f":"CntyDataLink!$BL$160","v":4},{"$f":"CntyDataLink!$BM$160","v":4}]
[null,null,"$125,000 to $149,999",{"$f":"CntyDataLink!$AD$116","v":42},{"$f":"CntyDataLink!$AE$116","v":23},null,{"$f":"CntyDataLink!$BN$116","v":0},{"$f":"CntyDataLink!$BO$116","v":11},null,{"$f":"CntyDataLink!$CV$116","v":16},{"$f":"CntyDataLink!$CW$116","v":19},null,{"$f":"CntyDataLink!$ED$116","v":19},{"$f":"CntyDataLink!$EE$116","v":15},null,{"$f":"CntyDataLink!$FL$116","v":7},{"$f":"CntyDataLink!$FM$116","v":7},null,{"$f":"CntyDataLink!$AD$160","v":39},{"$f":"CntyDataLink!$AE$160","v":22},{"$f":"CntyDataLink!$BN$160","v":0},{"$f":"CntyDataLink!$BO$160","v":11}]
[null,null,"$150,000 to $199,999",{"$f":"CntyDataLink!$AF$116","v":16},{"$f":"CntyDataLink!$AG$116","v":11},null,{"$f":"CntyDataLink!$BP$116","v":0},{"$f":"CntyDataLink!$BQ$116","v":11},null,{"$f":"CntyDataLink!$CX$116","v":2},{"$f":"CntyDataLink!$CY$116","v":4},null,{"$f":"CntyDataLink!$EF$116","v":11},{"$f":"CntyDataLink!$EG$116","v":11},null,{"$f":"CntyDataLink!$FN$116","v":3},{"$f":"CntyDataLink!$FO$116","v":4},null,{"$f":"CntyDataLink!$AF$160","v":16},{"$f":"CntyDataLink!$AG$160","v":11},{"$f":"CntyDataLink!$BP$160","v":0},{"$f":"CntyDataLink!$BQ$160","v":11}]
[null,null,"$200,000 or More",{"$f":"CntyDataLink!$AH$116","v":6},{"$f":"CntyDataLink!$AI$116","v":5},null,{"$f":"CntyDataLink!$BR$116","v":0},{"$f":"CntyDataLink!$BS$116","v":11},null,{"$f":"CntyDataLink!$CZ$116","v":0},{"$f":"CntyDataLink!$DA$116","v":11},null,{"$f":"CntyDataLink!$EH$116","v":6},{"$f":"CntyDataLink!$EI$116","v":5},null,{"$f":"CntyDataLink!$FP$116","v":0},{"$f":"CntyDataLink!$FQ$116","v":11},null,{"$f":"CntyDataLink!$AH$160","v":4},{"$f":"CntyDataLink!$AI$160","v":4},{"$f":"CntyDataLink!$BR$160","v":2},{"$f":"CntyDataLink!$BS$160","v":3}]
[]
[null,null,"Total Households",{"$f":"CntyDataLink!$B$116","v":307},{"$f":"CntyDataLink!$C$116","v":58},null,{"$f":"CntyDataLink!$AL$116","v":15},{"$f":"CntyDataLink!$AM$116","v":17},null,{"$f":"CntyDataLink!$BT$116","v":71},{"$f":"CntyDataLink!$BU$116","v":33},null,{"$f":"CntyDataLink!$DB$116","v":133},{"$f":"CntyDataLink!$DC$116","v":34},null,{"$f":"CntyDataLink!$EJ$116","v":88},{"$f":"CntyDataLink!$EK$116","v":30},null,{"$f":"CntyDataLink!$B$160","v":212},{"$f":"CntyDataLink!$C$160","v":50},{"$f":"CntyDataLink!$AL$160","v":95},{"$f":"CntyDataLink!$AM$160","v":32}]
[null,null,"Median Household Inc ",{"$f":"CntyDataLink!$FR$116","v":59821},{"$f":"CntyDataLink!$FS$116","v":12952},null,{"$f":"CntyDataLink!$FT$116","v":"-"},{"$f":"CntyDataLink!$FU$116","v":"**"},null,{"$f":"CntyDataLink!$FV$116","v":61250},{"$f":"CntyDataLink!$FW$116","v":37969},null,{"$f":"CntyDataLink!$FX$116","v":73542},{"$f":"CntyDataLink!$FY$116","v":29303},null,{"$f":"CntyDataLink!$FZ$116","v":41786},{"$f":"CntyDataLink!$GA$116","v":28318},null,{"$f":"CntyDataLink!$AJ$160","v":80833},{"$f":"CntyDataLink!$AK$160","v":18866},{"$f":"CntyDataLink!BT$160","v":26917},{"$f":"CntyDataLink!$BU$160","v":5407}]
[]
[null,null,"Source: 2015-2019 American Community Survey Tables B19001; B19037; B19101; B19102; B19112; B19113, and B19049"]
[null,null,"Data from the American Community Survey are estimates"]
[]
[null,null,"INCOME CHARACTERISTICS"]
[]
[]
[]
[]
[]
[]
[]
[]
[]
[]
[]
[]
[]
[]
[]
[]
[]
[]
[]
[]
[]
[]
[]
[]
[]
[]
[]
[]
[]
[]
[]
[]
[null,null,"Source: 2015-2019 American Community Survey Tables B19001; B19102",null,null,null,null,null,null,null,null,null,null,null,null,"Data from the American Community Survey are estimates"]

{"sheet":"HHIncomeByTenure","index":13,"n_rows":64,"n_cols":17,"rows_kept":64,"cut":false,"hidden":true,"merged":[[63,3,63,4],[63,8,63,9],[63,13,63,14],[61,3,61,4],[61,8,61,9],[61,13,61,14],[62,3,62,4],[62,8,62,9],[62,13,62,14],[2,3,2,5],[58,3,58,6],[58,8,58,11],[58,13,58,16],[59,3,59,6],[59,8,59,11],[59,13,59,16]]}
[]
[null,null,null,{"$f":"CntyDataLink!A80","v":"Albany"}]
[null,null,null,"INCOME CHARACTERISTICS"]
[]
[]
[]
[]
[]
[]
[]
[]
[]
[]
[]
[]
[]
[]
[]
[]
[]
[]
[]
[]
[]
[]
[]
[]
[null,null,null,{"$f":"D2","v":"Albany"}]
[null,null,null,"Household Income By Tenure"]
[null,null,null,null,null,"2019 Household Income 1",null,"Occupied Housing Units","Margin of Error Occupied Housing Units","Owner Occupied Housing Units","Margin of Error Owner Occupied Housing Units","Renter Occupied Housing Units","Margin of Error Renter Occupied Housing Units"]
[]
[null,null,null,null,null,"Total",null,{"$f":"CntyDataLink!$B$128","v":307},{"$f":"CntyDataLink!$C$128","v":58},{"$f":"CntyDataLink!$D$128","v":272},{"$f":"CntyDataLink!$E$128","v":56},{"$f":"CntyDataLink!$AB$128","v":35},{"$f":"CntyDataLink!$AC$128","v":17}]
[null,null,null,4999,{"$f":"VALUE(RIGHT(F33,7))","v":5000},"Less Than $5,000",null,{"$f":"CntyDataLink!$AZ$128","v":3},{"$f":"CntyDataLink!$BA$128","v":11.704699910719626},{"$f":"CntyDataLink!$F$128","v":3},{"$f":"CntyDataLink!$G$128","v":4},{"$f":"CntyDataLink!$AD$128","v":0},{"$f":"CntyDataLink!$AE$128","v":11}]
[null,null,{"$f":"VALUE(RIGHT($F33,7))","v":5000},4999,10000,"$5,000 to $10,000",null,{"$f":"CntyDataLink!$BB$128","v":9},{"$f":"CntyDataLink!$BC$128","v":17.029386365926403},{"$f":"CntyDataLink!$H$128","v":9},{"$f":"CntyDataLink!$I$128","v":13},{"$f":"CntyDataLink!$AF$128","v":0},{"$f":"CntyDataLink!$AG$128","v":11}]
[null,null,10000,4999,15000,"$10,000 to $15,000",null,{"$f":"CntyDataLink!$BD$128","v":22},{"$f":"CntyDataLink!$BE$128","v":16.492422502470642},{"$f":"CntyDataLink!$J$128","v":20},{"$f":"CntyDataLink!$K$128","v":16},{"$f":"CntyDataLink!$AH$128","v":2},{"$f":"CntyDataLink!$AI$128","v":4}]
[null,null,15000,4999,20000,"$15,000 to $20,000",null,{"$f":"CntyDataLink!$BF$128","v":18},{"$f":"CntyDataLink!$BG$128","v":15.811388300841896},{"$f":"CntyDataLink!$L$128","v":16},{"$f":"CntyDataLink!$M$128","v":15},{"$f":"CntyDataLink!$AJ$128","v":2},{"$f":"CntyDataLink!$AK$128","v":5}]
[null,null,20000,4999,25000,"$20,000 to $25,000",null,{"$f":"CntyDataLink!$BH$128","v":3},{"$f":"CntyDataLink!$BI$128","v":11.704699910719626},{"$f":"CntyDataLink!$N$128","v":3},{"$f":"CntyDataLink!$O$128","v":4},{"$f":"CntyDataLink!$AL$128","v":0},{"$f":"CntyDataLink!$AM$128","v":11}]
[null,null,25000,9999,35000,"$25,000 to $35,000",null,{"$f":"CntyDataLink!$BJ$128","v":42},{"$f":"CntyDataLink!$BK$128","v":23.323807579381203},{"$f":"CntyDataLink!$P$128","v":28},{"$f":"CntyDataLink!$Q$128","v":20},{"$f":"CntyDataLink!$AN$128","v":14},{"$f":"CntyDataLink!$AO$128","v":12}]
[null,null,35000,14999,50000,"$35,000 to $50,000",null,{"$f":"CntyDataLink!$BL$128","v":43},{"$f":"CntyDataLink!$BM$128","v":21.2602916254693},{"$f":"CntyDataLink!$R$128","v":31},{"$f":"CntyDataLink!$S$128","v":16},{"$f":"CntyDataLink!$AP$128","v":12},{"$f":"CntyDataLink!$AQ$128","v":14}]
[null,null,50000,24999,75000,"$50,000 to $75,000",null,{"$f":"CntyDataLink!$BN$128","v":39},{"$f":"CntyDataLink!$BO$128","v":22.825424421026653},{"$f":"CntyDataLink!$T$128","v":39},{"$f":"CntyDataLink!$U$128","v":20},{"$f":"CntyDataLink!$AR$128","v":0},{"$f":"CntyDataLink!$AS$128","v":11}]
[null,null,75000,24999,100000,"$75,000 to $100,000",null,{"$f":"CntyDataLink!$BP$128","v":37},{"$f":"CntyDataLink!$BQ$128","v":18.601075237738275},{"$f":"CntyDataLink!$V$128","v":37},{"$f":"CntyDataLink!$W$128","v":15},{"$f":"CntyDataLink!$AT$128","v":0},{"$f":"CntyDataLink!$AU$128","v":11}]
[null,null,100000,49999,150000,"$100,000 to $150,000",null,{"$f":"CntyDataLink!$BR$128","v":69},{"$f":"CntyDataLink!$BS$128","v":28.284271247461902},{"$f":"CntyDataLink!$X$128","v":66},{"$f":"CntyDataLink!$Y$128","v":28},{"$f":"CntyDataLink!$AV$128","v":3},{"$f":"CntyDataLink!$AW$128","v":4}]
[null,null,150000,null,null,"$150,000 and More",null,{"$f":"CntyDataLink!$BT$128","v":22},{"$f":"CntyDataLink!$BU$128","v":12.369316876852981},{"$f":"CntyDataLink!$Z$128","v":20},{"$f":"CntyDataLink!$AA$128","v":12},{"$f":"CntyDataLink!$AX$128","v":2},{"$f":"CntyDataLink!$AY$128","v":3}]
[]
[]
[null,null,null,null,null,"Median Household Income 2",null,{"$f":"CntyDataLink!$BV$128","v":59821},{"$f":"CntyDataLink!$BW$128","v":12952},{"$f":"CntyDataLink!$BX$128","v":67500},{"$f":"CntyDataLink!$BY$128","v":15929},{"$f":"CntyDataLink!$BZ$128","v":34583},{"$f":"CntyDataLink!$CA$128","v":15766}]
[]
[]
[null,null,null,null,null,"Data from the American Community Survey are estimates"]
[]
[null,null,null,"Source:",1,"2015-2019 American Community Survey Table B25118;  2019 Inflation Adjusted dollars"]
[null,null,null,null,2,"2015-2019 American Community Survey Table B25119;  2019 Inflation Adjusted dollars"]
[]
[]
[]
[null,null,null,"HOUSEHOLD INCOME IN THE PAST 12 MONTHS BY PERCENT OF MEDIAN THRESHOLD"]
[]
[]
[null,null,null,"All Occupied Housing Units",null,null,null,null,"Owner Occupied Households",null,null,null,null,"Renter Occupied Households"]
[]
[null,null,null,"HOUSEHOLD INCOME",null,"Estimate","Margin Of Error",null,"HOUSEHOLD INCOME",null,"Estimate","Margin Of Error",null,"HOUSEHOLD INCOME",null,"Estimate","Margin Of Error"]
[null,null,{"$f":"$H$46*0.3","v":17946.3},"30% of Median Household Income",null,{"$f":"IF($C$62<$C$36,((($C$62-$C$35)/$D$35)*$H$35)+SUM($H$33:$H$34),IF($C$62<$C$37,((($C$62-$C$36)/$D$36)*$H$36)+SUM($H$33:$H$35),IF($C$62<$C$38,((($C$62-$C$37)/$D$37)*$H$37)+SUM($H$33:$H$36),IF($C$62<$C$39,((($C$62-$C$38)/$D$38)*$H$38)+SUM($H$33:$H$37),IF($C$62<$C$40,((($C$62-$C$39)/$D$39)*$H$39)+SUM($H$33:$H$38),IF($C$62<$C$41,((($C$62-$C$40)/$D$40)*$H$40)+SUM($H$33:$H$39),IF($C$62<$C$42,((($C$62-$C$41)/$D$41)*$H$41)+SUM($H$33:$H$40),\"False\")))))))","v":44.608801760352065},{"$f":"IF($C$62<$C$36,((($C$62-$C$35)/$D$35)*$I$35)+SQRT(SUM(($I$33^2),($I$34^2))),IF($C$62<$C$37,((($C$62-$C$36)/$D$36)*$I$36)+SQRT(SUM(($I$33^2),($I$34^2),($I$35^2))),IF($C$62<$C$38,((($C$62-$C$37)/$D$37)*$I$37)+SQRT(SUM(($I$33^2),($I$34^2),($I$35^2),($I$36^2))),IF($C$62<$C$39,((($C$62-$C$38)/$D$38)*$I$38)+SQRT(SUM(($I$33^2),($I$34^2),($I$35^2),($I$36^2),($I$37^2))),IF($C$62<$C$40,((($C$62-$C$39)/$D$39)*$I$39)+SQRT(SUM(($I$33^2),($I$34^2),($I$35^2),($I$36^2),($I$37^2),($I$38^2))),IF($C$62<$C$41,((($C$62-$C$40)/$D$40)*$I$40)+SQRT(SUM(($I$33^2),($I$34^2),($I$35^2),($I$36^2),($I$37^2),($I$38^2),($I$39^2))),IF($C$62<$C$42,((($C$62-$C$41)/$D$41)*$I$41)+SQRT((($I$33^2)+($I$34^2)+($I$35^2)+($I$36^2)+($I$37^2)+($I$38^2)+($I$39^2)+($I$40^2))),\"False\")))))))","v":35.757490579447996},{"$f":"$J$46*0.3","v":20250},"30% of Median Household Income",null,{"$f":"IF($H$62<$C$36,((($H$62-$C$35)/$D$35)*$J$35)+SUM($J$33:$J$34),IF($H$62<$C$37,((($H$62-$C$36)/$D$36)*$J$36)+SUM($J$33:$J$35),IF($H$62<$C$38,((($H$62-$C$37)/$D$37)*$J$37)+SUM($J$33:$J$36),IF($H$62<$C$39,((($H$62-$C$38)/$D$38)*$J$38)+SUM($J$33:$J$37),IF($H$62<$C$40,((($H$62-$C$39)/$D$39)*$J$39)+SUM($J$33:$J$38),IF($H$62<$C$41,((($H$62-$C$40)/$D$40)*$J$40)+SUM($J$33:$J$39),IF($H$62<$C$42,((($H$62-$C$41)/$D$41)*$J$41)+SUM($J$33:$J$40),\"False\")))))))","v":48.150030006001202},{"$f":"IF($H$62<$C$36,((($H$62-$C$35)/$D$35)*$K$35)+SQRT(SUM(($K$33^2),($K$34^2))),IF($H$62<$C$37,((($H$62-$C$36)/$D$36)*$K$36)+SQRT(SUM(($K$33^2),($K$34^2),($K$35^2))),IF($H$62<$C$38,((($H$62-$C$37)/$D$37)*$K$37)+SQRT(SUM(($K$33^2),($K$34^2),($K$35^2),($K$36^2))),IF($H$62<$C$39,((($H$62-$C$38)/$D$38)*$K$38)+SQRT(SUM(($K$33^2),($K$34^2),($K$35^2),($K$36^2),($K$37^2))),IF($H$62<$C$40,((($H$62-$C$39)/$D$39)*$K$39)+SQRT(SUM(($K$33^2),($K$34^2),($K$35^2),($K$36^2),($K$37^2),($K$38^2))),IF($H$62<$C$41,((($H$62-$C$40)/$D$40)*$K$40)+SQRT(SUM(($K$33^2),($K$34^2),($K$35^2),($K$36^2),($K$37^2),($K$38^2),($K$39^2))),IF($H$62<$C$42,((($H$62-$C$41)/$D$41)*$K$41)+SQRT((($K$33^2)+($K$34^2)+($K$35^2)+($K$36^2)+($K$37^2)+($K$38^2)+($K$39^2)+($K$40^2))),\"False\")))))))","v":26.007015809129481},{"$f":"$L$46*0.3","v":10374.9},"30% of Median Household Income",null,{"$f":"IF($M$62<$C$36,((($M$62-$C$35)/$D$35)*$L$35)+SUM($L$33:$L$34),IF($M$62<$C$37,((($M$62-$C$36)/$D$36)*$L$36)+SUM($L$33:$L$35),IF($M$62<$C$38,((($M$62-$C$37)/$D$37)*$L$37)+SUM($L$33:$L$36),IF($M$62<$C$39,((($M$62-$C$38)/$D$38)*$L$38)+SUM($L$33:$L$37),IF($M$62<$C$40,((($M$62-$C$39)/$D$39)*$L$39)+SUM($L$33:$L$38),IF($M$62<$C$41,((($M$62-$C$40)/$D$40)*$L$40)+SUM($L$33:$L$39),IF($M$62<$C$42,((($M$62-$C$41)/$D$41)*$L$41)+SUM($L$33:$L$40),\"False\")))))))","v":0.14998999799959978},{"$f":"IF($M$62<$C$36,((($M$62-$C$35)/$D$35)*$M$35)+SQRT(SUM(($M$33^2),($M$34^2))),IF($M$62<$C$37,((($M$62-$C$36)/$D$36)*$M$36)+SQRT(SUM(($M$33^2),($M$34^2),($M$35^2))),IF($M$62<$C$38,((($M$62-$C$37)/$D$37)*$M$37)+SQRT(SUM(($M$33^2),($M$34^2),($M$35^2),($M$36^2))),IF($M$62<$C$39,((($M$62-$C$38)/$D$38)*$M$38)+SQRT(SUM(($M$33^2),($M$34^2),($M$35^2),($M$36^2),($M$37^2))),IF($M$62<$C$40,((($M$62-$C$39)/$D$39)*$M$39)+SQRT(SUM(($M$33^2),($M$34^2),($M$35^2),($M$36^2),($M$37^2),($M$38^2))),IF($M$62<$C$41,((($M$62-$C$40)/$D$40)*$M$40)+SQRT(SUM(($M$33^2),($M$34^2),($M$35^2),($M$36^2),($M$37^2),($M$38^2),($M$39^2))),IF($M$62<$C$42,((($M$62-$C$41)/$D$41)*$M$41)+SQRT((($M$33^2)+($M$34^2)+($M$35^2)+($M$36^2)+($M$37^2)+($M$38^2)+($M$39^2)+($M$40^2))),\"False\")))))))","v":15.856329182103245}]
[490,null,{"$f":"$H$46*0.5","v":29910.5},"50% of Median Household Income",null,{"$f":"IF($C$63<$C$36,((($C$63-$C$35)/$D$35)*$H$35)+SUM($H$33:$H$34),IF($C$63<$C$37,((($C$63-$C$36)/$D$36)*$H$36)+SUM($H$33:$H$35),IF($C$63<$C$38,((($C$63-$C$37)/$D$37)*$H$37)+SUM($H$33:$H$36),IF($C$63<$C$39,((($C$63-$C$38)/$D$38)*$H$38)+SUM($H$33:$H$37),IF($C$63<$C$40,((($C$63-$C$39)/$D$39)*$H$39)+SUM($H$33:$H$38),IF($C$63<$C$41,((($C$63-$C$40)/$D$40)*$H$40)+SUM($H$33:$H$39),IF($C$63<$C$42,((($C$63-$C$41)/$D$41)*$H$41)+SUM($H$33:$H$40),\"False\")))))))","v":75.626162616261624},{"$f":"IF($C$63<$C$36,((($C$63-$C$35)/$D$35)*$I$35)+SQRT(SUM(($I$33^2),($I$34^2))),IF($C$63<$C$37,((($C$63-$C$36)/$D$36)*$I$36)+SQRT(SUM(($I$33^2),($I$34^2),($I$35^2))),IF($C$63<$C$38,((($C$63-$C$37)/$D$37)*$I$37)+SQRT(SUM(($I$33^2),($I$34^2),($I$35^2),($I$36^2))),IF($C$63<$C$39,((($C$63-$C$38)/$D$38)*$I$38)+SQRT(SUM(($I$33^2),($I$34^2),($I$35^2),($I$36^2),($I$37^2))),IF($C$63<$C$40,((($C$63-$C$39)/$D$39)*$I$39)+SQRT(SUM(($I$33^2),($I$34^2),($I$35^2),($I$36^2),($I$37^2),($I$38^2))),IF($C$63<$C$41,((($C$63-$C$40)/$D$40)*$I$40)+SQRT(SUM(($I$33^2),($I$34^2),($I$35^2),($I$36^2),($I$37^2),($I$38^2),($I$39^2))),IF($C$63<$C$42,((($C$63-$C$41)/$D$41)*$I$41)+SQRT((($I$33^2)+($I$34^2)+($I$35^2)+($I$36^2)+($I$37^2)+($I$38^2)+($I$39^2)+($I$40^2))),\"False\")))))))","v":44.408815248537501},{"$f":"$J$46*0.5","v":33750},"50% of Median Household Income",null,{"$f":"IF($H$63<$C$36,((($H$63-$C$35)/$D$35)*$J$35)+SUM($J$33:$J$34),IF($H$63<$C$37,((($H$63-$C$36)/$D$36)*$J$36)+SUM($J$33:$J$35),IF($H$63<$C$38,((($H$63-$C$37)/$D$37)*$J$37)+SUM($J$33:$J$36),IF($H$63<$C$39,((($H$63-$C$38)/$D$38)*$J$38)+SUM($J$33:$J$37),IF($H$63<$C$40,((($H$63-$C$39)/$D$39)*$J$39)+SUM($J$33:$J$38),IF($H$63<$C$41,((($H$63-$C$40)/$D$40)*$J$40)+SUM($J$33:$J$39),IF($H$63<$C$42,((($H$63-$C$41)/$D$41)*$J$41)+SUM($J$33:$J$40),\"False\")))))))","v":75.502450245024505},{"$f":"IF($H$63<$C$36,((($H$63-$C$35)/$D$35)*$K$35)+SQRT(SUM(($K$33^2),($K$34^2))),IF($H$63<$C$37,((($H$63-$C$36)/$D$36)*$K$36)+SQRT(SUM(($K$33^2),($K$34^2),($K$35^2))),IF($H$63<$C$38,((($H$63-$C$37)/$D$37)*$K$37)+SQRT(SUM(($K$33^2),($K$34^2),($K$35^2),($K$36^2))),IF($H$63<$C$39,((($H$63-$C$38)/$D$38)*$K$38)+SQRT(SUM(($K$33^2),($K$34^2),($K$35^2),($K$36^2),($K$37^2))),IF($H$63<$C$40,((($H$63-$C$39)/$D$39)*$K$39)+SQRT(SUM(($K$33^2),($K$34^2),($K$35^2),($K$36^2),($K$37^2),($K$38^2))),IF($H$63<$C$41,((($H$63-$C$40)/$D$40)*$K$40)+SQRT(SUM(($K$33^2),($K$34^2),($K$35^2),($K$36^2),($K$37^2),($K$38^2),($K$39^2))),IF($H$63<$C$42,((($H$63-$C$41)/$D$41)*$K$41)+SQRT((($K$33^2)+($K$34^2)+($K$35^2)+($K$36^2)+($K$37^2)+($K$38^2)+($K$39^2)+($K$40^2))),\"False\")))))))","v":43.616879889418698},{"$f":"$L$46*0.5","v":17291.5},"50% of Median Household Income",null,{"$f":"IF($M$63<$C$36,((($M$63-$C$35)/$D$35)*$L$35)+SUM($L$33:$L$34),IF($M$63<$C$37,((($M$63-$C$36)/$D$36)*$L$36)+SUM($L$33:$L$35),IF($M$63<$C$38,((($M$63-$C$37)/$D$37)*$L$37)+SUM($L$33:$L$36),IF($M$63<$C$39,((($M$63-$C$38)/$D$38)*$L$38)+SUM($L$33:$L$37),IF($M$63<$C$40,((($M$63-$C$39)/$D$39)*$L$39)+SUM($L$33:$L$38),IF($M$63<$C$41,((($M$63-$C$40)/$D$40)*$L$40)+SUM($L$33:$L$39),IF($M$63<$C$42,((($M$63-$C$41)/$D$41)*$L$41)+SUM($L$33:$L$40),\"False\")))))))","v":2.9167833566713344},{"$f":"IF($M$63<$C$36,((($M$63-$C$35)/$D$35)*$M$35)+SQRT(SUM(($M$33^2),($M$34^2))),IF($M$63<$C$37,((($M$63-$C$36)/$D$36)*$M$36)+SQRT(SUM(($M$33^2),($M$34^2),($M$35^2))),IF($M$63<$C$38,((($M$63-$C$37)/$D$37)*$M$37)+SQRT(SUM(($M$33^2),($M$34^2),($M$35^2),($M$36^2))),IF($M$63<$C$39,((($M$63-$C$38)/$D$38)*$M$38)+SQRT(SUM(($M$33^2),($M$34^2),($M$35^2),($M$36^2),($M$37^2))),IF($M$63<$C$40,((($M$63-$C$39)/$D$39)*$M$39)+SQRT(SUM(($M$33^2),($M$34^2),($M$35^2),($M$36^2),($M$37^2),($M$38^2))),IF($M$63<$C$41,((($M$63-$C$40)/$D$40)*$M$40)+SQRT(SUM(($M$33^2),($M$34^2),($M$35^2),($M$36^2),($M$37^2),($M$38^2),($M$39^2))),IF($M$63<$C$42,((($M$63-$C$41)/$D$41)*$M$41)+SQRT((($M$33^2)+($M$34^2)+($M$35^2)+($M$36^2)+($M$37^2)+($M$38^2)+($M$39^2)+($M$40^2))),\"False\")))))))","v":18.354336795887345}]
[null,null,{"$f":"$H$46*0.8","v":47856.800000000003},"80% of Median Household Income",null,{"$f":"IF($C$64<$C$36,((($C$64-$C$35)/$D$35)*$H$35)+SUM($H$33:$H$34),IF($C$64<$C$37,((($C$64-$C$36)/$D$36)*$H$36)+SUM($H$33:$H$35),IF($C$64<$C$38,((($C$64-$C$37)/$D$37)*$H$37)+SUM($H$33:$H$36),IF($C$64<$C$39,((($C$64-$C$38)/$D$38)*$H$38)+SUM($H$33:$H$37),IF($C$64<$C$40,((($C$64-$C$39)/$D$39)*$H$39)+SUM($H$33:$H$38),IF($C$64<$C$41,((($C$64-$C$40)/$D$40)*$H$40)+SUM($H$33:$H$39),IF($C$64<$C$42,((($C$64-$C$41)/$D$41)*$H$41)+SUM($H$33:$H$40),\"False\")))))))","v":133.85861724114943},{"$f":"IF($C$64<$C$36,((($C$64-$C$35)/$D$35)*$I$35)+SQRT(SUM(($I$33^2),($I$34^2))),IF($C$64<$C$37,((($C$64-$C$36)/$D$36)*$I$36)+SQRT(SUM(($I$33^2),($I$34^2),($I$35^2))),IF($C$64<$C$38,((($C$64-$C$37)/$D$37)*$I$37)+SQRT(SUM(($I$33^2),($I$34^2),($I$35^2),($I$36^2))),IF($C$64<$C$39,((($C$64-$C$38)/$D$38)*$I$38)+SQRT(SUM(($I$33^2),($I$34^2),($I$35^2),($I$36^2),($I$37^2))),IF($C$64<$C$40,((($C$64-$C$39)/$D$39)*$I$39)+SQRT(SUM(($I$33^2),($I$34^2),($I$35^2),($I$36^2),($I$37^2),($I$38^2))),IF($C$64<$C$41,((($C$64-$C$40)/$D$40)*$I$40)+SQRT(SUM(($I$33^2),($I$34^2),($I$35^2),($I$36^2),($I$37^2),($I$38^2),($I$39^2))),IF($C$64<$C$42,((($C$64-$C$41)/$D$41)*$I$41)+SQRT((($I$33^2)+($I$34^2)+($I$35^2)+($I$36^2)+($I$37^2)+($I$38^2)+($I$39^2)+($I$40^2))),\"False\")))))))","v":58.597094556800307},{"$f":"$J$46*0.8","v":54000},"80% of Median Household Income",null,{"$f":"IF($H$64<$C$36,((($H$64-$C$35)/$D$35)*$J$35)+SUM($J$33:$J$34),IF($H$64<$C$37,((($H$64-$C$36)/$D$36)*$J$36)+SUM($J$33:$J$35),IF($H$64<$C$38,((($H$64-$C$37)/$D$37)*$J$37)+SUM($J$33:$J$36),IF($H$64<$C$39,((($H$64-$C$38)/$D$38)*$J$38)+SUM($J$33:$J$37),IF($H$64<$C$40,((($H$64-$C$39)/$D$39)*$J$39)+SUM($J$33:$J$38),IF($H$64<$C$41,((($H$64-$C$40)/$D$40)*$J$40)+SUM($J$33:$J$39),IF($H$64<$C$42,((($H$64-$C$41)/$D$41)*$J$41)+SUM($J$33:$J$40),\"False\")))))))","v":116.2402496099844},{"$f":"IF($H$64<$C$36,((($H$64-$C$35)/$D$35)*$K$35)+SQRT(SUM(($K$33^2),($K$34^2))),IF($H$64<$C$37,((($H$64-$C$36)/$D$36)*$K$36)+SQRT(SUM(($K$33^2),($K$34^2),($K$35^2))),IF($H$64<$C$38,((($H$64-$C$37)/$D$37)*$K$37)+SQRT(SUM(($K$33^2),($K$34^2),($K$35^2),($K$36^2))),IF($H$64<$C$39,((($H$64-$C$38)/$D$38)*$K$38)+SQRT(SUM(($K$33^2),($K$34^2),($K$35^2),($K$36^2),($K$37^2))),IF($H$64<$C$40,((($H$64-$C$39)/$D$39)*$K$39)+SQRT(SUM(($K$33^2),($K$34^2),($K$35^2),($K$36^2),($K$37^2),($K$38^2))),IF($H$64<$C$41,((($H$64-$C$40)/$D$40)*$K$40)+SQRT(SUM(($K$33^2),($K$34^2),($K$35^2),($K$36^2),($K$37^2),($K$38^2),($K$39^2))),IF($H$64<$C$42,((($H$64-$C$41)/$D$41)*$K$41)+SQRT((($K$33^2)+($K$34^2)+($K$35^2)+($K$36^2)+($K$37^2)+($K$38^2)+($K$39^2)+($K$40^2))),\"False\")))))))","v":39.778810321463972},{"$f":"$L$46*0.8","v":27666.400000000001},"80% of Median Household Income",null,{"$f":"IF($M$64<$C$36,((($M$64-$C$35)/$D$35)*$L$35)+SUM($L$33:$L$34),IF($M$64<$C$37,((($M$64-$C$36)/$D$36)*$L$36)+SUM($L$33:$L$35),IF($M$64<$C$38,((($M$64-$C$37)/$D$37)*$L$37)+SUM($L$33:$L$36),IF($M$64<$C$39,((($M$64-$C$38)/$D$38)*$L$38)+SUM($L$33:$L$37),IF($M$64<$C$40,((($M$64-$C$39)/$D$39)*$L$39)+SUM($L$33:$L$38),IF($M$64<$C$41,((($M$64-$C$40)/$D$40)*$L$40)+SUM($L$33:$L$39),IF($M$64<$C$42,((($M$64-$C$41)/$D$41)*$L$41)+SUM($L$33:$L$40),\"False\")))))))","v":7.7333333333333361},{"$f":"IF($M$64<$C$36,((($M$64-$C$35)/$D$35)*$M$35)+SQRT(SUM(($M$33^2),($M$34^2))),IF($M$64<$C$37,((($M$64-$C$36)/$D$36)*$M$36)+SQRT(SUM(($M$33^2),($M$34^2),($M$35^2))),IF($M$64<$C$38,((($M$64-$C$37)/$D$37)*$M$37)+SQRT(SUM(($M$33^2),($M$34^2),($M$35^2),($M$36^2))),IF($M$64<$C$39,((($M$64-$C$38)/$D$38)*$M$38)+SQRT(SUM(($M$33^2),($M$34^2),($M$35^2),($M$36^2),($M$37^2))),IF($M$64<$C$40,((($M$64-$C$39)/$D$39)*$M$39)+SQRT(SUM(($M$33^2),($M$34^2),($M$35^2),($M$36^2),($M$37^2),($M$38^2))),IF($M$64<$C$41,((($M$64-$C$40)/$D$40)*$M$40)+SQRT(SUM(($M$33^2),($M$34^2),($M$35^2),($M$36^2),($M$37^2),($M$38^2),($M$39^2))),IF($M$64<$C$42,((($M$64-$C$41)/$D$41)*$M$41)+SQRT((($M$33^2)+($M$34^2)+($M$35^2)+($M$36^2)+($M$37^2)+($M$38^2)+($M$39^2)+($M$40^2))),\"False\")))))))","v":23.299751242241783}]

{"sheet":"ACS_Source_Table_List","index":14,"n_rows":49,"n_cols":4,"rows_kept":49,"cut":false,"hidden":true,"merged":[]}
[]
["ACS Table B01001","x"]
["ACS Table B01002","x"]
["ACS Table B03002","x"]
["ACS Table B05002 ","x"]
["ACS Table B07003","x","Replaces C07001"]
["ACS Table B11001","x"]
["ACS Table B11002","x"]
["ACS Table B14001 & B15002","x","Replaces C15002"]
["ACS Table B17001 ","x"]
["ACS Table B17010 ","x","Replaces C17010","Poverty Status by family type"]
["ACS Table B17017","x","Replaces C17017","Poverty Status by HH type"]
["ACS Table B18001 ",null,"Removed Disability Tables"]
["ACS Table C18001 ",null,"Removed Disability Tables"]
["ACS Table B18003",null,"Removed Disability Tables"]
["ACS Table B18004",null,"Removed Disability Tables"]
["ACS Table B18005",null,"Removed Disability Tables"]
["ACS Table B18006",null,"Removed Disability Tables"]
["ACS Table B18007",null,"Removed Disability Tables"]
["ACS Table B18008",null,"Removed Disability Tables"]
["ACS Table B19001","x"]
["ACS Table B19037 ","x"]
["ACS Table B19049 ","x"]
["ACS Table B19101& B19113 ","s"]
["ACS Table B19201 & B19202","s"]
["ACS Table B25001, B25003 & B25004 ","x"]
["ACS Table B25008","x"]
["ACS Table B25010","x"]
["ACS Table B25024","x"]
["ACS Table B25032","x"]
["ACS Table B25034 & B25041 ","x"]
["ACS Table B25063 & B25064","x"]
["ACS Table B25070 & B25074","x"]
["ACS Table B25075 & B25077","x"]
["ACS Table B25088","x"]
["ACS Table B25091","x"]
["ACS Table B25118 & B25119","x"]
[]
[]
[]
[]
[]
[]
["Tables Removed from 5 Year Estimates"]
["ACS Table C19001 ","x","May have to consolidate this table from Table B19001. This has already been done. For 5 year estimates remove worksheet."]
["ACS Table B25094","x","No Comparison Table for B25094 Removed"]
["ACS Table B25101",null,"No Comparison Table for B25101 Removed"]
["ACS Table B25104 & B25105",null,"No Comparison Table for B25104 & B25105 Removed"]
["ACS Table B25106","x","No Comparison Table for  B25106 Removed"]

{"sheet":"Updates","index":15,"n_rows":48,"n_cols":3,"rows_kept":48,"cut":false,"hidden":false,"merged":[[0,2,0,10],[1,2,1,10],[2,2,2,10],[10,2,10,11],[8,2,8,11],[9,2,9,11],[7,2,7,11],[6,2,6,11],[5,2,5,11],[29,2,29,11],[28,2,28,11],[25,2,25,11],[23,2,23,11],[24,2,24,11],[26,2,26,11],[27,2,27,11],[44,2,44,11],[45,2,45,11],[22,2,22,11],[21,2,21,11],[3,2,3,11],[20,2,20,11],[13,2,13,11],[14,2,14,11],[15,2,15,11],[16,2,16,11],[19,2,19,11],[12,2,12,11],[11,2,11,11],[17,2,17,11],[18,2,18,11],[30,2,30,11],[31,2,31,11],[32,2,32,11],[46,2,46,11],[47,2,47,11],[48,2,48,11],[33,2,33,11],[34,2,34,11],[35,2,35,11],[36,2,36,11],[37,2,37,11],[38,2,38,11],[39,2,39,11],[40,2,40,11],[41,2,41,11],[42,2,42,11],[43,2,43,11]]}
[]
["Important Notes"]
[]
["Date",null,"Task"]
[]
["2020-12-18",null,"Updated 2015-2019 Amreican Community Survey Data and added 2019 NH Permit data."]
["2020-09-03",null,"Updated historical data 2005-2009 and 2010-2014 ACS Data"]
["2019-12-31",null,"Updated Visual Basic Code changing the footer font from Gotham Medium to Verdana."]
["2019-12-20",null,"Updated with 2015-2019 ACS Data. Updated 2018 Permit data. Updated CPI Adjustment Factor (1.02437673) to the 2009-2013 and 2015-2019 Income Comparison Table. This factor was provided by Census"]
["2019-11-26",null,"Updated 2009-2013 ACS Data"]
["2019-09-17",null,"Updated 2018 Annual Employment and Wage data; updated Housing and Employment worksheet."]
["2018-12-20",null,"Updated 2017 Annual Employment and Wage data; updated Housing and Employment worksheet. Updated 2017 Permit data"]
["2018-12-11",null,"Updated the 2009-2013 ACS data for comparison purposes. Updated CPI Adjustment Factor (1.0676) to the 2009-2013 and 2013-2017  Income Comparison Table. This factor was provided by Census."]
["2018-12-06",null,"Updated 2013-2017 ACS Data"]
["2018-12-05",null,"Updated labels in workbook to reflect 2013-2017 data set and 2009-2013 comparison data set. Updated footer text. "]
["2018-08-13",null,"Updated charts colors and layout."]
["2018-05-09",null,"Reviewed that unemployment rate data does not need to updated. There are no cities or towns that needed this update. Only a select number of locations are updated with this data."]
["2017-12-18",null,"Updated 2016 NH Permit Data"]
["2017-12-08",null,"Updated Charts with 2012-2016 data; updated code to reflect additional data points in various tables. Updated CPI Adjustment Factor (1.06686838) to the 2007-2011 and 2012-2016 Income Comparison Table. This factor was provided by Census."]
["2017-11-16",null,"Updated the 2007-2011 ACS data for comparison purposes."]
["2017-10-12",null,"Updated 2016 Annual Employment and Wage data; updated Housing and Employment worksheet"]
["2017-05-15",null,"Reviewed that unemployment rate data does not need to updated. There are no cities or towns that needed this update. Only a select number of locations are updated with this data."]
["2017-01-04",null,"Verified Charts; Added 2015 Permit Data; Updated Housing and Permit data"]
["2016-12-28",null,"Updated the 2006-2010 ACS data for comparison purposes."]
["2016-12-23",null,"Updated Town Comparisons: Employment and Housing with 2015 data"]
["2016-12-20",null,"Updated Charts with 2011-2015 data; updated code to reflect additional data points in various tables"]
["2016-12-14",null,"Updated 2011-2015 ACS Data"]
["2016-10-31",null,"Updated 2015 Annual Employment and Wage data"]
["2016-01-14",null,"Fixed error in School Attainment worksheet - Graduate or Professional Degree data."]
["2016-01-07",null,"Fixed formula in Poverty worksheet; fixed Non-Family Persons per Household data; fixed legend of Rental Cost Charts."]
["2015-12-23",null,"Fixed Table ACS_B25074"]
["2015-12-21",null,"Updated Code to correct an error on the Owner Housing Cost worksheet; updated column names on CntyDataLink."]
["2015-12-15",null,"Updated Code to correct an error on the Rental Housing Cost worksheet; updated column names on CntyDataLink; updated all charts with 2011-2015 data"]
["2015-12-09",null,"Updated 2010-2014 ACS Data"]
["2015-12-07",null,"Updated Permit Data and appropriate worksheets."]
["2015-12-03",null,"Updated Rental Housing Cost and Owner Cost worksheet to eliminate a printed page. Charts were moved and reduced in size."]
["2015-11-20",null,"Updated Color scheme on charts and added correct logo to the charts"]
["2015-10-05",null,"Added County Comparison Employment and Housing data. Added Visual basic code to automatically update footer. Visual basic code will run when Ctrl-j is selected. "]
["2015-09-15",null,"Updated Charts and code to allow for prior 5 year estimates to be update. Updated Rental Housing Cost worksheet to accommodate changes to Table B25074"]
["2015-09-01",null,"Updated Code to include Prior 5 year estimate. Added Statistically Significant worksheet."]
["2015-08-11",null,"Updated Owner Housing Cost Chart with Table B25106 data."]
["2015-08-06",null,"Corrected the Employment vs. Housing worksheet."]
["2015-03-17",null,"Added Labor Force Data"]
["2014-12-30",null,"Corrected Rental Cost formula."]
["2014-12-17",null,"Corrected and verified household pie charts. All Permit data and employment data has been updated through 2013."]
["2011-10-14",null,"Reformatted the code in the worksheet and corrected an error in the Income Comparison Sheet"]
["2010-12-21",null,"Added Margin of Error information on all applicable ACS Sheets"]
["2010-12-07",null,"Created a calculated Table B19001 in anticipation for the 5 year data.  Table C19001 will not be provided"]

{"sheet":"OwnerHousingCost","index":16,"n_rows":112,"n_cols":17,"rows_kept":112,"cut":false,"hidden":true,"merged":[]}
[]
[null,null,"HIDE THIS COLUMN",{"$f":"CntyDataLink!A$35","v":"Albany"}]
[null,null,null,"OWNER HOUSING COST CHARACTERISTICS"]
[]
[]
[]
[]
[]
[]
[]
[]
[]
[]
[]
[]
[]
[]
[]
[]
[]
[]
[]
[]
[]
[]
[]
[]
[]
[]
[]
[]
[]
[]
[]
[]
[]
[null,null,null,"Income in 2019 Inflation Adjusted Dollars"]
[null,null,null,"Source: 2015-2019 American Community Survey Table B25106"]
[null,null,null,"Data from the American Community Survey are estimates."]
[]
[]
[null,null,null,{"$f":"CntyDataLink!A$35","v":"Albany"}]
[]
[null,null,null,{"$f":"D3","v":"OWNER HOUSING COST CHARACTERISTICS"}]
[]
[null,null,null,"Owner Households by "]
[null,null,null,"Selected Monthly Housing Costs as a Percent of 2019 Household Income",null,null,null,"By Household Income"]
[null,null,"H73RenterOccHU",null,"Specified Owner Occ Housing Units","Margin of Error Owner Occ Housing Units",null,"Less than $20,000",{"$f":"\"Margin of Error \"&H48","v":"Margin of Error Less than $20,000"},"$20,000 to $34,999",{"$f":"\"Margin of Error \"&J48","v":"Margin of Error $20,000 to $34,999"},"$35,000 to $49,999",{"$f":"\"Margin of Error \"&L48","v":"Margin of Error $35,000 to $49,999"},"$50,000 to $74,999",{"$f":"\"Margin of Error \"&N48","v":"Margin of Error $50,000 to $74,999"},"$75,000 or More",{"$f":"\"Margin of Error \"&P48","v":"Margin of Error $75,000 or More"}]
[]
[null,null,null,"Total Households",{"$f":"CntyDataLink!$BF144","v":272},{"$f":"CntyDataLink!$BG$144","v":56},null,{"$f":"CntyDataLink!$BZ$144","v":48},{"$f":"CntyDataLink!$CA$144","v":25},{"$f":"CntyDataLink!$CH$144","v":31},{"$f":"CntyDataLink!$CI$144","v":22},{"$f":"CntyDataLink!$CP$144","v":31},{"$f":"CntyDataLink!$CQ$144","v":16},{"$f":"CntyDataLink!$CX$144","v":39},{"$f":"CntyDataLink!$CY$144","v":20},{"$f":"CntyDataLink!$DF$144","v":123},{"$f":"CntyDataLink!$DG$144","v":32}]
[null,null,null,"Monthly Costs Less than 20% of HH Income",{"$f":"CntyDataLink!$BH$144","v":156},{"$f":"CntyDataLink!$BI$144","v":42.743420546325019},null,{"$f":"CntyDataLink!$CB$144","v":8},{"$f":"CntyDataLink!$CC$144","v":12},{"$f":"CntyDataLink!CJ$144","v":10},{"$f":"CntyDataLink!CK$144","v":13},{"$f":"CntyDataLink!CR$144","v":7},{"$f":"CntyDataLink!CS$144","v":6},{"$f":"CntyDataLink!CZ$144","v":22},{"$f":"CntyDataLink!DA$144","v":17},{"$f":"CntyDataLink!DH$144","v":109},{"$f":"CntyDataLink!DI$144","v":32}]
[null,null,null,"Monthly Costs 20% to 29.9% of HH Income",{"$f":"CntyDataLink!$BJ$144","v":33},{"$f":"CntyDataLink!$BK$144","v":18.411952639521967},null,{"$f":"CntyDataLink!$CD$144","v":3},{"$f":"CntyDataLink!$CE$144","v":4},{"$f":"CntyDataLink!CL$144","v":8},{"$f":"CntyDataLink!CM$144","v":8},{"$f":"CntyDataLink!CT$144","v":6},{"$f":"CntyDataLink!CU$144","v":7},{"$f":"CntyDataLink!DB$144","v":5},{"$f":"CntyDataLink!DC$144","v":5},{"$f":"CntyDataLink!DJ$144","v":11},{"$f":"CntyDataLink!DK$144","v":8}]
[null,null,null,"Monthly Costs Less Than 30% of HH Income",{"$f":"CntyDataLink!$BL$144","v":189},{"$f":"CntyDataLink!$BM$144","v":46.540305112880382},null,{"$f":"H52+H51","v":11},{"$f":"SQRT((I52^2)+(I51^2))","v":12.649110640673518},{"$f":"J52+J51","v":18},{"$f":"SQRT((K52^2)+(K51^2))","v":15.264337522473747},{"$f":"L52+L51","v":13},{"$f":"SQRT((M52^2)+(M51^2))","v":9.2195444572928871},{"$f":"N52+N51","v":27},{"$f":"SQRT((O52^2)+(O51^2))","v":17.720045146669349},{"$f":"P52+P51","v":120},{"$f":"SQRT((Q52^2)+(Q51^2))","v":32.984845004941285}]
[null,null,null,"Monthly Costs 30% or More of HH Income",{"$f":"CntyDataLink!$BN$144","v":83},{"$f":"CntyDataLink!$BO$144","v":33.570820663189039},null,{"$f":"CntyDataLink!$CF$144","v":37},{"$f":"CntyDataLink!$CG$144","v":21},{"$f":"CntyDataLink!CN$144","v":13},{"$f":"CntyDataLink!CO$144","v":15},{"$f":"CntyDataLink!CV$144","v":18},{"$f":"CntyDataLink!CW$144","v":13},{"$f":"CntyDataLink!DD$144","v":12},{"$f":"CntyDataLink!DE$144","v":9},{"$f":"CntyDataLink!$DL$144","v":3},{"$f":"CntyDataLink!$DM$144","v":4}]
[]
[null,null,null,"Monthly Costs 35% or More of HH Income",{"$f":"CntyDataLink!$BT$144","v":74},{"$f":"CntyDataLink!$BU$144","v":30.935416596516038},null,"NA","NA","NA","NA","NA","NA","NA","NA","NA","NA"]
[null,null,null,"Monthly Costs 50% or More of HH Income",{"$f":"CntyDataLink!$BV$144","v":30},{"$f":"CntyDataLink!$BW$144","v":16.643316977093239},null,"NA","NA","NA","NA","NA","NA","NA","NA","NA","NA"]
[null,null,null,"Percent not computed",{"$f":"CntyDataLink!$BX$144","v":0},{"$f":"CntyDataLink!$BY$144","v":15.556349186104045},null,"NA","NA","NA","NA","NA","NA","NA","NA","NA","NA"]
[]
[null,null,null,"Percent of Owner Households Paying ",null,null,null,"By Household Income"]
[null,null,null,{"$f":"D53","v":"Monthly Costs Less Than 30% of HH Income"},{"$f":"E53/E$50","v":0.69485294117647056},null,null,{"$f":"H53/H$50","v":0.22916666666666666},null,{"$f":"J53/J$50","v":0.58064516129032262},null,{"$f":"L53/L$50","v":0.41935483870967744},null,{"$f":"N53/N$50","v":0.69230769230769229},null,{"$f":"P53/P$50","v":0.97560975609756095}]
[null,null,null,{"$f":"D54","v":"Monthly Costs 30% or More of HH Income"},{"$f":"E54/E$50","v":0.30514705882352944},null,null,{"$f":"H54/H50","v":0.77083333333333337},null,{"$f":"J54/J50","v":0.41935483870967744},null,{"$f":"L54/L50","v":0.58064516129032262},null,{"$f":"N54/N50","v":0.30769230769230771},null,{"$f":"P54/P50","v":2.4390243902439025E-2}]
[]
[null,null,null,"Monthly Costs 35% or More of HH Income",{"$f":"E56/E$50","v":0.27205882352941174},null,null,"NA","NA","NA","NA","NA","NA","NA","NA","NA","NA"]
[null,null,null,"Monthly Costs 50% or More of HH Income",{"$f":"E57/E$50","v":0.11029411764705882},null,null,"NA","NA","NA","NA","NA","NA","NA","NA","NA","NA"]
[null,null,null,"Percent not computed",{"$f":"E58/$E$50","v":0},null,null,"NA","NA","NA","NA","NA","NA","NA","NA","NA","NA"]
[]
[null,null,null,{"$f":"D37","v":"Income in 2019 Inflation Adjusted Dollars"}]
[null,null,null,"Source: 2015-2019 American Community Survey Table B25091; B25106",null,null,null,"NA indicates that the American Community Survey does not provide that data."]
[null,null,null,"Data from the American Community Survey are estimates."]
[]
[null,null,null,{"$f":"CntyDataLink!$A35","v":"Albany"}]
[null,null,"H62ROHUGRent250to299",{"$f":"D3","v":"OWNER HOUSING COST CHARACTERISTICS"}]
[null,null,"H62ROHUGRent300to349"]
[null,null,"H62ROHUGRent350to399","Value of Owner Occupied Housing Units"]
[null,null,"H62ROHUGRent400to449"]
[null,null,"H62ROHUGRent450to499","Owner Occupied Housing Units",{"$f":"CntyDataLink!$B$144","v":272},{"$f":"CntyDataLink!$C$144","v":56}]
[null,null,"H62ROHUGRent500to549"]
[null,null,"H62ROHUGRent550to599","Value","Housing Units","Margin of Error"]
[null,null,"H62ROHUGRent600to649","Less than $10,000",{"$f":"CntyDataLink!$D$144","v":25},{"$f":"CntyDataLink!$E$144","v":17}]
[null,null,"H62ROHUGRent650to699","$10,000 to $14,999",{"$f":"CntyDataLink!$F$144","v":4},{"$f":"CntyDataLink!$G$144","v":7}]
[null,null,"H62ROHUGRent700to749","$15,000 to $19,999",{"$f":"CntyDataLink!$H$144","v":0},{"$f":"CntyDataLink!$I$144","v":11}]
[null,null,"H62ROHUGRent750to799","$20,000 to $24,999",{"$f":"CntyDataLink!$J$144","v":0},{"$f":"CntyDataLink!$K$144","v":11}]
[null,null,"H62ROHUGRent800to899","$25,000 to $29,999",{"$f":"CntyDataLink!$L$144","v":6},{"$f":"CntyDataLink!$M$144","v":7}]
[null,null,"H62ROHUGRent900to999","$30,000 to $34,999",{"$f":"CntyDataLink!$N$144","v":10},{"$f":"CntyDataLink!$O$144","v":13}]
[null,null,"H62ROHUGRent1000to1249","$35,000 to $39,999",{"$f":"CntyDataLink!$P$144","v":0},{"$f":"CntyDataLink!$Q$144","v":11}]
[null,null,"H62ROHUGRent1250to1499","$40,000 to $49,999",{"$f":"CntyDataLink!$R$144","v":0},{"$f":"CntyDataLink!$S$144","v":11}]
[null,null,"H62ROHUGRent1500to1999","$50,000 to $59,999",{"$f":"CntyDataLink!$T$144","v":0},{"$f":"CntyDataLink!$U$144","v":11}]
[null,null,"H62ROHUGRent2000>","$60,000 to $69,999",{"$f":"CntyDataLink!$V$144","v":3},{"$f":"CntyDataLink!$W$144","v":4}]
[null,null,"H62ROHUNoGRent","$70,000 to $79,999",{"$f":"CntyDataLink!$X$144","v":0},{"$f":"CntyDataLink!$Y$144","v":11}]
[null,null,"H63MedianGrossRnt","$80,000 to $89,999",{"$f":"CntyDataLink!$Z$144","v":9},{"$f":"CntyDataLink!$AA$144","v":13}]
[null,null,null,"$90,000 to $99,999",{"$f":"CntyDataLink!$AB$144","v":5},{"$f":"CntyDataLink!$AC$144","v":6}]
[null,null,null,"$100,000 to $124,999",{"$f":"CntyDataLink!$AD$144","v":13},{"$f":"CntyDataLink!$AE$144","v":13}]
[null,null,null,"$125,000 to $149,999",{"$f":"CntyDataLink!$AF$144","v":18},{"$f":"CntyDataLink!$AG$144","v":15}]
[null,null,null,"$150,000 to $174,999",{"$f":"CntyDataLink!$AH$144","v":21},{"$f":"CntyDataLink!$AI$144","v":15}]
[null,null,null,"$175,000 to $199,999",{"$f":"CntyDataLink!$AJ$144","v":31},{"$f":"CntyDataLink!$AK$144","v":20}]
[null,null,null,"$200,000 to $249,999",{"$f":"CntyDataLink!$AL$144","v":44},{"$f":"CntyDataLink!$AM$144","v":24}]
[null,null,null,"$250,000 to $299,999",{"$f":"CntyDataLink!$AN$144","v":26},{"$f":"CntyDataLink!$AO$144","v":15}]
[null,null,null,"$300,000 to $399,999",{"$f":"CntyDataLink!$AP$144","v":20},{"$f":"CntyDataLink!$AQ$144","v":12}]
[null,null,null,"$400,000 to $499,999",{"$f":"CntyDataLink!$AR$144","v":25},{"$f":"CntyDataLink!$AS$144","v":11}]
[null,null,null,"$500,000 to $749,999",{"$f":"CntyDataLink!$AT$144","v":12},{"$f":"CntyDataLink!$AU$144","v":9}]
[null,null,null,"$750,000 to $999,999",{"$f":"CntyDataLink!$AV$144","v":0},{"$f":"CntyDataLink!$AW$144","v":11}]
[null,null,null,"$1,000,000 to $1,499,999",{"$f":"CntyDataLink!$AX$144","v":0},{"$f":"CntyDataLink!$AY$144","v":11}]
[null,null,null,"$1,500,000 to $1,999,999",{"$f":"CntyDataLink!$AZ$144","v":0},{"$f":"CntyDataLink!$BA$144","v":11}]
[null,null,null,"$2,000,000 or more",{"$f":"CntyDataLink!$BB$144","v":0},{"$f":"CntyDataLink!$BC$144","v":11}]
[]
[null,null,null,"Median Value",{"$f":"CntyDataLink!$BD$144","v":192700},{"$f":"CntyDataLink!$BE$144","v":19935}]
[]
[]
[]
[null,null,null,"Source: 2015-2019 American Community Survey Tables B25075 and B25077"]
[null,null,null,"Data from the American Community Survey are estimates."]

{"sheet":"OwnerHousingCostPrior5Year","index":17,"n_rows":70,"n_cols":17,"rows_kept":70,"cut":false,"hidden":true,"merged":[]}
[]
[null,null,"HIDE THIS COLUMN",{"$f":"CntyDataLinkPrior5YearEstimates!$A$108","v":"Albany"}]
[null,null,null,"OWNER HOUSING COST CHARACTERISTICS"]
[]
[]
[]
[]
[]
[]
[]
[]
[]
[]
[]
[]
[]
[]
[]
[]
[]
[]
[]
[]
[]
[]
[]
[]
[]
[]
[]
[]
[]
[]
[]
[]
[]
[null,null,null,"Income in 2014 Inflation Adjusted Dollars"]
[null,null,null,"Source: 2010-2014 American Community Survey Table B25106"]
[null,null,null,"Data from the American Community Survey are estimates."]
[]
[]
[null,null,null,{"$f":"CntyDataLinkPrior5YearEstimates!$A$108","v":"Albany"}]
[]
[null,null,null,{"$f":"D3","v":"OWNER HOUSING COST CHARACTERISTICS"}]
[]
[null,null,null,"Owner Households by "]
[null,null,null,"Selected Monthly Housing Costs as a Percent of 2014 Household Income",null,null,null,"By Household Income"]
[null,null,"H73RenterOccHU",null,"Specified Owner Occ Housing Units","Margin of Error Owner Occ Housing Units",null,"Less than $20,000",{"$f":"\"Margin of Error \"&H48","v":"Margin of Error Less than $20,000"},"$20,000 to $34,999",{"$f":"\"Margin of Error \"&J48","v":"Margin of Error $20,000 to $34,999"},"$35,000 to $49,999",{"$f":"\"Margin of Error \"&L48","v":"Margin of Error $35,000 to $49,999"},"$50,000 to $74,999",{"$f":"\"Margin of Error \"&N48","v":"Margin of Error $50,000 to $74,999"},"$75,000 or More",{"$f":"\"Margin of Error \"&P48","v":"Margin of Error $75,000 or More"}]
[]
[null,null,null,"Total Households",{"$f":"CntyDataLinkPrior5YearEstimates!$BF144","v":263},{"$f":"CntyDataLinkPrior5YearEstimates!$BG$144","v":55},null,{"$f":"CntyDataLinkPrior5YearEstimates!$BZ$144","v":46},{"$f":"CntyDataLinkPrior5YearEstimates!$CA$144","v":28},{"$f":"CntyDataLinkPrior5YearEstimates!$CH$144","v":34},{"$f":"CntyDataLinkPrior5YearEstimates!$CI$144","v":29},{"$f":"CntyDataLinkPrior5YearEstimates!$CP$144","v":41},{"$f":"CntyDataLinkPrior5YearEstimates!$CQ$144","v":22},{"$f":"CntyDataLinkPrior5YearEstimates!$CX$144","v":40},{"$f":"CntyDataLinkPrior5YearEstimates!$CY$144","v":19},{"$f":"CntyDataLinkPrior5YearEstimates!$DF$144","v":100},{"$f":"CntyDataLinkPrior5YearEstimates!$DG$144","v":36}]
[null,null,null,"Monthly Costs Less than 20% of HH Income",{"$f":"CntyDataLinkPrior5YearEstimates!$BH$144","v":121},{"$f":"CntyDataLinkPrior5YearEstimates!$BI$144","v":36.76955262170047},null,{"$f":"CntyDataLinkPrior5YearEstimates!$CB$144","v":0},{"$f":"CntyDataLinkPrior5YearEstimates!$CC$144","v":11},{"$f":"CntyDataLinkPrior5YearEstimates!CJ$144","v":5},{"$f":"CntyDataLinkPrior5YearEstimates!CK$144","v":6},{"$f":"CntyDataLinkPrior5YearEstimates!CR$144","v":22},{"$f":"CntyDataLinkPrior5YearEstimates!CS$144","v":15},{"$f":"CntyDataLinkPrior5YearEstimates!CZ$144","v":20},{"$f":"CntyDataLinkPrior5YearEstimates!DA$144","v":11},{"$f":"CntyDataLinkPrior5YearEstimates!DH$144","v":74},{"$f":"CntyDataLinkPrior5YearEstimates!DI$144","v":30}]
[null,null,null,"Monthly Costs 20% to 29.9% of HH Income",{"$f":"CntyDataLinkPrior5YearEstimates!$BJ$144","v":68},{"$f":"CntyDataLinkPrior5YearEstimates!$BK$144","v":37.148351242013419},null,{"$f":"CntyDataLinkPrior5YearEstimates!$CD$144","v":0},{"$f":"CntyDataLinkPrior5YearEstimates!$CE$144","v":11},{"$f":"CntyDataLinkPrior5YearEstimates!CL$144","v":21},{"$f":"CntyDataLinkPrior5YearEstimates!CM$144","v":25},{"$f":"CntyDataLinkPrior5YearEstimates!CT$144","v":13},{"$f":"CntyDataLinkPrior5YearEstimates!CU$144","v":15},{"$f":"CntyDataLinkPrior5YearEstimates!DB$144","v":10},{"$f":"CntyDataLinkPrior5YearEstimates!DC$144","v":9},{"$f":"CntyDataLinkPrior5YearEstimates!DJ$144","v":24},{"$f":"CntyDataLinkPrior5YearEstimates!DK$144","v":19}]
[null,null,null,"Monthly Costs Less Than 30% of HH Income",{"$f":"CntyDataLinkPrior5YearEstimates!$BL$144","v":189},{"$f":"CntyDataLinkPrior5YearEstimates!$BM$144","v":52.268537381487917},null,{"$f":"H52+H51","v":0},{"$f":"SQRT((I52^2)+(I51^2))","v":15.556349186104045},{"$f":"J52+J51","v":26},{"$f":"SQRT((K52^2)+(K51^2))","v":25.709920264364882},{"$f":"L52+L51","v":35},{"$f":"SQRT((M52^2)+(M51^2))","v":21.213203435596427},{"$f":"N52+N51","v":30},{"$f":"SQRT((O52^2)+(O51^2))","v":14.212670403551895},{"$f":"P52+P51","v":98},{"$f":"SQRT((Q52^2)+(Q51^2))","v":35.510561809129406}]
[null,null,null,"Monthly Costs 30% or More of HH Income",{"$f":"CntyDataLinkPrior5YearEstimates!$BN$144","v":72},{"$f":"CntyDataLinkPrior5YearEstimates!$BO$144","v":36.851051545376556},null,{"$f":"CntyDataLinkPrior5YearEstimates!$CF$144","v":46},{"$f":"CntyDataLinkPrior5YearEstimates!$CG$144","v":28},{"$f":"CntyDataLinkPrior5YearEstimates!CN$144","v":8},{"$f":"CntyDataLinkPrior5YearEstimates!CO$144","v":12},{"$f":"CntyDataLinkPrior5YearEstimates!CV$144","v":6},{"$f":"CntyDataLinkPrior5YearEstimates!CW$144","v":6},{"$f":"CntyDataLinkPrior5YearEstimates!DD$144","v":10},{"$f":"CntyDataLinkPrior5YearEstimates!DE$144","v":11},{"$f":"CntyDataLinkPrior5YearEstimates!$DL$144","v":2},{"$f":"CntyDataLinkPrior5YearEstimates!$DM$144","v":4}]
[]
[null,null,null,"Monthly Costs 35% or More of HH Income",{"$f":"CntyDataLinkPrior5YearEstimates!$BT$144","v":59},{"$f":"CntyDataLinkPrior5YearEstimates!$BU$144","v":33.406586176980134},null,"NA","NA","NA","NA","NA","NA","NA","NA","NA","NA"]
[null,null,null,"Monthly Costs 50% or More of HH Income",{"$f":"CntyDataLinkPrior5YearEstimates!$BV$144","v":25},{"$f":"CntyDataLinkPrior5YearEstimates!$BW$144","v":16.763054614240211},null,"NA","NA","NA","NA","NA","NA","NA","NA","NA","NA"]
[null,null,null,"Percent not computed",{"$f":"CntyDataLinkPrior5YearEstimates!$BX$144","v":2},{"$f":"CntyDataLinkPrior5YearEstimates!$BY$144","v":11.704699910719626},null,"NA","NA","NA","NA","NA","NA","NA","NA","NA","NA"]
[]
[null,null,null,"Percent of Owner Households Paying ",null,null,null,"By Household Income"]
[null,null,null,{"$f":"D53","v":"Monthly Costs Less Than 30% of HH Income"},{"$f":"E53/E$50","v":0.71863117870722437},null,null,{"$f":"H53/H$50","v":0},null,{"$f":"J53/J$50","v":0.76470588235294112},null,{"$f":"L53/L$50","v":0.85365853658536583},null,{"$f":"N53/N$50","v":0.75},null,{"$f":"P53/P$50","v":0.98}]
[null,null,null,{"$f":"D54","v":"Monthly Costs 30% or More of HH Income"},{"$f":"E54/E$50","v":0.27376425855513309},null,null,{"$f":"H54/H50","v":1},null,{"$f":"J54/J50","v":0.23529411764705882},null,{"$f":"L54/L50","v":0.14634146341463414},null,{"$f":"N54/N50","v":0.25},null,{"$f":"P54/P50","v":0.02}]
[]
[null,null,null,"Monthly Costs 35% or More of HH Income",{"$f":"E56/E$50","v":0.22433460076045628},null,null,"NA","NA","NA","NA","NA","NA","NA","NA","NA","NA"]
[null,null,null,"Monthly Costs 50% or More of HH Income",{"$f":"E57/E$50","v":9.5057034220532313E-2},null,null,"NA","NA","NA","NA","NA","NA","NA","NA","NA","NA"]
[null,null,null,"Percent not computed",{"$f":"E58/$E$50","v":7.6045627376425855E-3},null,null,"NA","NA","NA","NA","NA","NA","NA","NA","NA","NA"]
[]
[null,null,"H62ROHUGRent200to249",{"$f":"D37","v":"Income in 2014 Inflation Adjusted Dollars"}]
[null,null,null,"Source: 2010-2014 American Community Survey Table B25091; B25106",null,null,null,null,"NA indicates that the American Community Survey does not provide that data."]
[null,null,null,"Data from the American Community Survey are estimates."]

{"sheet":"ACS_Table_B25075_&_B25077","index":18,"n_rows":160,"n_cols":40,"rows_kept":160,"cut":false,"hidden":true,"merged":[]}
[null,"B25075. VALUE"]
[null,"Universe:  OWNER-OCCUPIED HOUSING UNITS"]
[null,"Data Set: 2015-2019 American Community Survey 5-Year Estimates"]
[]
[null,null,"Albany",null,"Bartlett",null,"Brookfield",null,"Chatham",null,"Conway",null,"Eaton",null,"Effingham",null,"Freedom",null,"Hale's Location",null,"Hart's Location",null,"Jackson",null,"Madison",null,"Moultonborough",null,"Ossipee",null,"Sandwich",null,"Tamworth",null,"Tuftonboro",null,"Wakefield",null,"Wolfeboro"]
[null," ","Estimate","Margin of Error","Estimate","Margin of Error","Estimate","Margin of Error","Estimate","Margin of Error","Estimate","Margin of Error","Estimate","Margin of Error","Estimate","Margin of Error","Estimate","Margin of Error","Estimate","Margin of Error","Estimate","Margin of Error","Estimate","Margin of Error","Estimate","Margin of Error","Estimate","Margin of Error","Estimate","Margin of Error","Estimate","Margin of Error","Estimate","Margin of Error","Estimate","Margin of Error","Estimate","Margin of Error","Estimate","Margin of Error"]
[null,"Total:",272,56,1074,213,289,64,132,37,3114,295,102,29,488,72,577,79,89,20,19,14,318,79,792,107,1531,124,1540,176,561,77,939,148,858,101,1901,196,2429,221]
[null,"Less than $10,000",25,17,12,18,0,11,0,11,13,21,0,11,0,11,8,13,0,11,0,11,0,11,0,11,8,13,37,44,0,11,0,11,0,11,0,16,0,16]
[null,"$10,000 to $14,999",4,7,0,11,0,11,0,11,0,18,0,11,0,11,0,11,0,11,0,11,0,11,0,11,0,11,31,49,0,11,39,58,0,11,0,16,0,16]
[null,"$15,000 to $19,999",0,11,0,11,0,11,2,4,27,33,0,11,0,11,0,11,0,11,0,11,0,11,0,11,0,11,0,11,4,5,0,11,0,11,0,16,0,16]
[null,"$20,000 to $24,999",0,11,0,11,0,11,0,11,65,74,0,11,3,5,0,11,0,11,0,11,0,11,0,11,0,11,19,21,0,11,0,11,4,7,14,22,19,33]
[null,"$25,000 to $29,999",6,7,0,11,3,6,1,3,16,24,0,11,0,11,3,6,0,11,0,11,0,11,0,11,0,11,0,11,0,11,15,22,7,11,14,21,0,16]
[null,"$30,000 to $34,999",10,13,0,11,0,11,0,11,0,18,0,11,0,11,0,11,0,11,0,11,0,11,0,11,0,11,56,53,0,11,14,22,0,11,0,16,0,16]
[null,"$35,000 to $39,999",0,11,0,11,0,11,0,11,81,79,0,11,0,11,0,11,0,11,0,11,0,11,17,26,0,11,0,11,0,11,0,11,0,11,0,16,0,16]
[null,"$40,000 to $49,999",0,11,10,15,0,11,2,4,32,38,0,11,0,11,0,11,0,11,0,11,0,11,0,11,0,11,0,11,0,11,83,82,35,35,14,22,38,43]
[null,"$50,000 to $59,999",0,11,0,11,0,11,0,11,7,11,0,11,30,27,4,6,2,3,0,11,3,5,0,11,0,11,75,68,0,11,37,59,39,40,14,20,24,38]
[null,"$60,000 to $69,999",3,4,0,11,0,11,6,6,90,91,0,11,5,7,4,5,0,11,0,11,0,11,0,11,0,11,0,11,4,6,13,20,7,10,0,16,0,16]
[null,"$70,000 to $79,999",0,11,36,55,0,11,1,4,84,107,0,11,0,11,7,7,0,11,0,11,0,11,0,11,0,11,40,37,0,11,17,24,25,21,0,16,0,16]
[null,"$80,000 to $89,999",9,13,0,11,0,11,2,4,151,97,0,11,19,17,0,11,0,11,0,11,0,11,0,11,0,11,58,60,0,11,0,11,0,11,0,16,24,38]
[null,"$90,000 to $99,999",5,6,0,11,0,11,0,11,60,47,0,11,38,26,8,14,0,11,0,11,0,11,10,15,8,12,54,57,0,11,0,11,6,9,0,16,0,16]
[null,"$100,000 to $124,999",13,13,50,56,4,8,16,15,138,113,3,6,32,18,10,11,0,11,0,11,0,11,24,24,29,29,127,81,7,7,88,89,11,12,113,72,25,39]
[null,"$125,000 to $149,999",18,15,0,11,7,9,2,3,165,86,2,3,50,32,16,19,0,11,0,11,0,11,45,40,42,31,68,66,0,11,76,74,13,14,252,153,27,45]
[null,"$150,000 to $174,999",21,15,63,59,21,17,12,12,400,151,12,7,78,31,53,29,0,11,2,4,43,34,84,45,76,42,289,106,31,26,127,77,45,39,132,71,109,71]
[null,"$175,000 to $199,999",31,20,210,119,30,20,12,9,300,125,16,14,32,16,50,24,0,11,0,11,14,16,82,40,70,42,154,77,39,21,74,55,45,32,260,126,97,84]
[null,"$200,000 to $249,999",44,24,194,109,51,21,18,15,423,149,8,9,64,26,94,44,0,11,7,8,14,17,161,61,212,78,247,100,56,22,44,38,111,41,264,122,447,191]
[null,"$250,000 to $299,999",26,15,77,66,74,29,16,17,364,133,8,7,39,26,99,34,0,11,0,11,11,14,136,61,262,104,123,71,150,49,166,109,154,54,270,142,512,167]
[null,"$300,000 to $399,999",20,12,117,88,65,26,17,10,235,98,12,9,57,24,104,44,3,4,5,8,81,43,110,52,321,101,95,67,111,35,86,61,171,65,288,111,566,215]
[null,"$400,000 to $499,999",25,11,148,103,4,7,14,13,269,149,11,8,23,17,41,22,12,9,0,11,39,28,64,39,112,66,31,27,47,24,31,33,48,25,152,85,172,101]
[null,"$500,000 to $749,999",12,9,157,105,20,13,6,6,126,85,18,12,7,7,57,24,57,17,5,8,71,37,29,16,148,54,26,30,58,32,16,21,64,37,99,92,249,142]
[null,"$750,000 to $999,999",0,11,0,11,7,10,1,4,19,22,6,9,3,5,10,9,7,6,0,11,19,21,18,14,89,43,10,18,18,12,0,11,26,25,0,16,80,71]
[null,"$1,000,000 to $1,499,999",0,11,0,11,2,3,4,5,49,62,4,5,5,6,9,9,5,5,0,11,23,23,12,12,50,28,0,11,25,23,0,11,36,30,15,24,14,23]
[null,"$1,500,000 to $1,999,999",0,11,0,11,0,11,0,11,0,18,0,11,3,5,0,11,0,11,0,11,0,11,0,11,39,26,0,11,11,10,0,11,5,8,0,16,26,42]
[null,"$2,000,000 or more",0,11,0,11,1,4,0,11,0,18,2,3,0,11,0,11,3,5,0,11,0,11,0,11,65,37,0,11,0,11,13,20,6,10,0,16,0,16]
[]
[]
[null,"B25077. MEDIAN VALUE (Dollars)"]
[null,"Universe:  OWNER-OCCUPIED HOUSING UNITS"]
[null,"Data Set: 2015-2019 American Community Survey 5-Year Estimates"]
[]
[null,null,"Albany",null,"Bartlett",null,"Brookfield",null,"Chatham",null,"Conway",null,"Eaton",null,"Effingham",null,"Freedom",null,"Hale's Location",null,"Hart's Location",null,"Jackson",null,"Madison",null,"Moultonborough",null,"Ossipee",null,"Sandwich",null,"Tamworth",null,"Tuftonboro",null,"Wakefield",null,"Wolfeboro"]
[null," ","Estimate","Margin of Error","Estimate","Margin of Error","Estimate","Margin of Error","Estimate","Margin of Error","Estimate","Margin of Error","Estimate","Margin of Error","Estimate","Margin of Error","Estimate","Margin of Error","Estimate","Margin of Error","Estimate","Margin of Error","Estimate","Margin of Error","Estimate","Margin of Error","Estimate","Margin of Error","Estimate","Margin of Error","Estimate","Margin of Error","Estimate","Margin of Error","Estimate","Margin of Error","Estimate","Margin of Error","Estimate","Margin of Error"]
[]
[null,"Median value (dollars)",192700,19935,240200,56385,269300,14853,227800,37005,194000,17935,316700,90130,171500,17877,265900,21546,620600,31679,310000,217731,391400,57767,241600,17398,318200,28945,167700,11347,296500,16152,167200,26032,276300,19066,226000,30744,289500,24501]
[]
[]
[]
[]
[]
[]
[]
[]
[]
[]
[]
[]
[]
[]
[]
[]
[]
[]
[]
[]
[]
[]
[]
[]
[]
[]
[null,"B25075. VALUE"]
[null,"Universe:  OWNER-OCCUPIED HOUSING UNITS"]
[null,"Data Set: 2010-2014 American Community Survey 5-Year Estimates"]
[]
[null,null,"Albany",null,"Bartlett",null,"Brookfield",null,"Chatham",null,"Conway",null,"Eaton",null,"Effingham",null,"Freedom",null,"Hale's Location",null,"Hart's Location",null,"Jackson",null,"Madison",null,"Moultonborough",null,"Ossipee",null,"Sandwich",null,"Tamworth",null,"Tuftonboro",null,"Wakefield",null,"Wolfeboro"]
[null," ","Estimate","Margin of Error","Estimate","Margin of Error","Estimate","Margin of Error","Estimate","Margin of Error","Estimate","Margin of Error","Estimate","Margin of Error","Estimate","Margin of Error","Estimate","Margin of Error","Estimate","Margin of Error","Estimate","Margin of Error","Estimate","Margin of Error","Estimate","Margin of Error","Estimate","Margin of Error","Estimate","Margin of Error","Estimate","Margin of Error","Estimate","Margin of Error","Estimate","Margin of Error","Estimate","Margin of Error","Estimate","Margin of Error"]
[null,"Total:",263,55,1155,180,289,62,134,33,2966,278,146,28,461,57,442,59,67,21,10,10,363,79,980,103,1591,121,1484,205,501,63,1047,156,805,107,2019,238,2214,217]
[null,"Less than $10,000",11,15,0,11,5,6,6,8,65,40,3,4,0,11,8,8,1,4,0,11,0,11,12,12,4,7,41,47,2,4,0,11,0,11,0,15,15,25]
[null,"$10,000 to $14,999",5,5,0,11,0,11,0,11,100,104,1,2,0,11,0,11,0,11,0,11,0,11,0,11,0,11,60,78,0,11,0,11,0,11,0,15,0,15]
[null,"$15,000 to $19,999",10,10,0,11,0,11,0,11,42,53,0,11,4,5,0,11,0,11,0,11,0,11,6,10,8,12,31,29,0,11,0,11,0,11,13,20,26,30]
[null,"$20,000 to $24,999",0,11,0,11,0,11,1,2,96,110,0,11,0,11,0,11,0,11,0,11,0,11,0,11,0,11,60,69,0,11,0,11,0,11,0,15,0,15]
[null,"$25,000 to $29,999",0,11,0,11,0,11,0,11,32,30,0,11,0,11,0,11,0,11,0,11,0,11,0,11,0,11,43,53,0,11,19,21,0,11,0,15,0,15]
[null,"$30,000 to $34,999",2,3,0,11,0,11,0,11,56,57,0,11,0,11,0,11,0,11,0,11,0,11,0,11,0,11,20,23,0,11,9,14,5,9,0,15,0,15]
[null,"$35,000 to $39,999",0,11,0,11,0,11,0,11,20,32,0,11,0,11,0,11,0,11,0,11,0,11,0,11,0,11,0,11,0,11,20,31,4,7,16,24,0,15]
[null,"$40,000 to $49,999",15,19,0,11,0,11,0,11,55,44,0,11,9,9,0,11,2,3,0,11,0,11,0,11,0,11,9,17,0,11,20,29,5,8,0,15,20,23]
[null,"$50,000 to $59,999",4,4,26,41,0,11,7,7,46,58,0,11,7,7,3,4,0,11,0,11,0,11,0,11,0,11,0,11,0,11,0,11,16,20,41,54,10,16]
[null,"$60,000 to $69,999",0,11,0,11,0,11,0,11,21,19,0,11,7,7,3,5,0,11,0,11,0,11,5,7,0,11,27,22,3,5,49,77,0,11,0,15,0,15]
[null,"$70,000 to $79,999",2,3,38,58,0,11,8,10,37,35,0,11,13,9,9,14,0,11,0,11,0,11,4,6,0,11,12,16,3,4,18,26,0,11,0,15,28,44]
[null,"$80,000 to $89,999",4,5,47,51,9,12,2,3,96,77,0,11,22,12,12,7,0,11,0,11,0,11,17,20,0,11,28,35,5,7,25,39,4,6,23,38,12,20]
[null,"$90,000 to $99,999",11,12,13,18,0,11,1,3,34,31,0,11,10,8,4,5,0,11,0,11,0,11,36,40,0,11,34,27,0,11,54,42,0,11,68,97,0,15]
[null,"$100,000 to $124,999",11,14,33,43,10,13,7,9,152,71,0,11,31,21,23,17,0,11,0,11,9,14,27,22,14,17,112,63,10,9,49,75,15,13,154,91,91,67]
[null,"$125,000 to $149,999",33,24,104,75,4,6,5,5,137,86,7,7,36,18,35,16,1,3,0,11,11,16,63,41,34,38,92,54,5,6,82,56,21,24,163,101,34,44]
[null,"$150,000 to $174,999",33,22,113,72,11,8,11,10,386,128,11,6,78,28,35,21,0,11,4,7,21,20,196,70,103,56,183,87,34,22,97,59,42,33,337,149,111,74]
[null,"$175,000 to $199,999",12,11,145,87,24,14,21,14,228,98,12,10,55,26,19,15,0,11,0,11,11,15,65,42,62,37,261,102,12,10,187,109,90,60,135,92,172,91]
[null,"$200,000 to $249,999",52,28,119,78,66,24,20,12,498,160,14,11,76,27,59,25,4,4,2,4,49,41,201,66,268,100,225,89,54,19,157,67,199,93,554,168,341,145]
[null,"$250,000 to $299,999",31,28,224,107,51,34,10,7,251,116,20,12,62,30,39,14,0,11,0,11,28,23,169,68,189,83,106,70,110,37,95,60,93,46,133,71,352,138]
[null,"$300,000 to $399,999",12,8,212,99,62,32,18,11,343,141,32,15,41,23,84,23,4,5,0,11,77,36,67,33,288,93,65,35,186,42,82,64,123,47,205,132,479,149]
[null,"$400,000 to $499,999",9,10,0,11,10,10,7,7,102,76,21,10,6,6,23,12,15,11,4,6,59,38,45,42,143,70,22,17,19,16,84,77,99,45,90,69,155,100]
[null,"$500,000 to $749,999",2,4,61,51,23,17,8,8,84,45,7,6,4,6,63,27,30,13,0,11,95,41,35,22,179,93,43,32,20,18,0,11,69,38,57,62,139,87]
[null,"$750,000 to $999,999",2,3,20,21,12,12,2,4,85,87,7,12,0,11,13,9,10,7,0,11,3,5,11,11,125,68,0,11,28,17,0,11,6,10,14,23,136,102]
[null,"$1,000,000 or more",2,3,0,11,2,4,0,11,0,17,11,9,0,11,10,8,0,11,0,11,0,11,21,33,174,70,10,16,10,9,0,11,14,16,16,24,93,64]
[]
[]
[]
[]
[null,"B25077. MEDIAN VALUE (Dollars)"]
[null,"Universe:  OWNER-OCCUPIED HOUSING UNITS"]
[null,"Data Set: 2010-2014 American Community Survey 5-Year Estimates"]
[]
[null,null,"Albany",null,"Bartlett",null,"Brookfield",null,"Chatham",null,"Conway",null,"Eaton",null,"Effingham",null,"Freedom",null,"Hale's Location",null,"Hart's Location",null,"Jackson",null,"Madison",null,"Moultonborough",null,"Ossipee",null,"Sandwich",null,"Tamworth",null,"Tuftonboro",null,"Wakefield",null,"Wolfeboro"]
[null," ","Estimate","Margin of Error","Estimate","Margin of Error","Estimate","Margin of Error","Estimate","Margin of Error","Estimate","Margin of Error","Estimate","Margin of Error","Estimate","Margin of Error","Estimate","Margin of Error","Estimate","Margin of Error","Estimate","Margin of Error","Estimate","Margin of Error","Estimate","Margin of Error","Estimate","Margin of Error","Estimate","Margin of Error","Estimate","Margin of Error","Estimate","Margin of Error","Estimate","Margin of Error","Estimate","Margin of Error","Estimate","Margin of Error"]
[]
[null,"Median value (dollars)",167800,31751,224600,47175,265200,25715,197600,28268,186800,18896,315600,44476,181100,14127,264100,41757,554200,80038,225000,309235,368200,57483,214700,17641,339400,41177,173600,15031,306700,19096,185900,14854,250800,31550,205400,17223,285100,24029]
[]
[]
[]
[]
[]
[null,"B25075. VALUE"]
[null,"Universe:  OWNER-OCCUPIED HOUSING UNITS"]
[null,"Data Set: 2005-2009 American Community Survey 5-Year Estimates"]
[]
[null,null,"Albany",null,"Bartlett",null,"Brookfield",null,"Chatham",null,"Conway",null,"Eaton",null,"Effingham",null,"Freedom",null,"Hale's Location",null,"Hart's Location",null,"Jackson",null,"Madison",null,"Moultonborough",null,"Ossipee",null,"Sandwich",null,"Tamworth",null,"Tuftonboro",null,"Wakefield",null,"Wolfeboro"]
[null," ","Estimate","Margin of Error","Estimate","Margin of Error","Estimate","Margin of Error","Estimate","Margin of Error","Estimate","Margin of Error","Estimate","Margin of Error","Estimate","Margin of Error","Estimate","Margin of Error","Estimate","Margin of Error","Estimate","Margin of Error","Estimate","Margin of Error","Estimate","Margin of Error","Estimate","Margin of Error","Estimate","Margin of Error","Estimate","Margin of Error","Estimate","Margin of Error","Estimate","Margin of Error","Estimate","Margin of Error","Estimate","Margin of Error"]
[null,"Total:",267,68,902,129,240,51,103,33,2411,216,138,30,381,61,515,68,59,20,27,20,319,77,682,84,1884,129,1568,190,525,54,827,110,850,105,1567,212,2108,210]
[null,"Less than $10,000",25,20,0,114,0,114,4,5,28,30,0,114,4,6,0,114,0,114,0,114,0,114,0,114,7,14,20,33,0,114,0,114,0,114,0,114,0,114]
[null,"$10,000 to $14,999",32,36,0,114,0,114,0,114,24,29,0,114,0,114,0,114,0,114,0,114,0,114,0,114,0,114,42,45,0,114,10,16,0,114,11,19,0,114]
[null,"$15,000 to $19,999",0,114,17,29,0,114,0,114,14,22,0,114,0,114,0,114,0,114,0,114,9,14,15,16,0,114,29,35,0,114,7,10,0,114,0,114,0,114]
[null,"$20,000 to $24,999",12,18,0,114,0,114,2,3,0,114,0,114,0,114,0,114,0,114,0,114,0,114,0,114,21,25,0,114,0,114,14,16,0,114,14,22,0,114]
[null,"$25,000 to $29,999",0,114,0,114,0,114,0,114,47,47,0,114,0,114,0,114,0,114,0,114,0,114,0,114,0,114,11,18,2,4,10,16,0,114,0,114,0,114]
[null,"$30,000 to $34,999",0,114,0,114,0,114,0,114,48,61,0,114,5,6,0,114,0,114,0,114,0,114,0,114,0,114,56,64,0,114,6,8,0,114,0,114,0,114]
[null,"$35,000 to $39,999",4,6,0,114,0,114,0,114,0,114,0,114,0,114,0,114,0,114,0,114,0,114,0,114,0,114,24,31,0,114,0,114,5,8,0,114,0,114]
[null,"$40,000 to $49,999",4,6,20,32,0,114,0,114,58,51,0,114,0,114,4,6,0,114,0,114,0,114,0,114,8,13,31,35,0,114,11,17,31,17,0,114,0,114]
[null,"$50,000 to $59,999",4,6,0,114,0,114,0,114,13,22,0,114,11,12,16,16,0,114,0,114,0,114,0,114,0,114,22,25,3,5,11,16,0,114,12,20,0,114]
[null,"$60,000 to $69,999",8,8,0,114,0,114,3,5,14,24,0,114,15,14,0,114,0,114,0,114,0,114,0,114,0,114,0,114,5,8,16,19,4,6,0,114,16,26]
[null,"$70,000 to $79,999",3,6,0,114,0,114,0,114,9,15,0,114,0,114,0,114,0,114,0,114,0,114,0,114,0,114,39,49,0,114,10,10,0,114,0,114,13,21]
[null,"$80,000 to $89,999",0,114,12,19,2,5,3,5,29,27,0,114,9,9,0,114,0,114,0,114,6,9,0,114,0,114,66,44,0,114,36,26,6,10,58,44,0,114]
[null,"$90,000 to $99,999",0,114,0,114,0,114,0,114,59,55,0,114,11,13,5,9,0,114,0,114,0,114,0,114,0,114,48,52,0,114,12,12,23,17,63,50,17,26]
[null,"$100,000 to $124,999",0,114,77,51,0,114,6,8,163,66,7,10,30,17,15,13,0,114,0,114,9,12,23,34,11,18,107,68,26,13,56,37,79,44,117,95,69,56]
[null,"$125,000 to $149,999",10,9,55,47,6,8,4,6,122,62,2,4,43,22,59,30,0,114,0,114,0,114,40,33,59,67,85,50,12,9,81,45,33,33,186,90,100,64]
[null,"$150,000 to $174,999",30,20,73,46,33,29,5,7,438,132,8,7,41,23,26,23,0,114,6,7,5,8,80,38,34,35,151,79,16,13,85,42,42,32,74,67,131,77]
[null,"$175,000 to $199,999",25,13,35,32,19,12,0,114,210,90,0,114,58,30,52,25,0,114,2,4,11,13,76,50,82,76,117,66,21,12,87,43,43,28,253,116,278,159]
[null,"$200,000 to $249,999",32,23,159,67,53,30,34,23,305,131,21,16,74,28,88,34,0,114,0,114,27,20,76,38,222,111,228,120,107,30,129,48,120,53,303,125,309,100]
[null,"$250,000 to $299,999",34,27,124,64,57,26,12,13,300,88,26,13,34,22,84,36,0,114,13,17,85,58,161,61,249,119,224,110,62,27,82,50,122,52,127,98,361,160]
[null,"$300,000 to $399,999",14,11,225,78,43,28,16,14,242,98,17,11,26,19,54,25,5,5,2,3,45,22,144,63,322,131,118,76,139,36,110,50,135,58,183,95,284,115]
[null,"$400,000 to $499,999",19,18,72,48,11,10,2,4,214,115,30,12,16,13,29,19,5,6,0,114,58,32,25,18,209,107,56,45,67,24,20,14,59,33,110,102,227,97]
[null,"$500,000 to $749,999",7,8,33,31,16,12,4,6,61,47,18,12,4,7,52,25,29,16,0,114,40,25,32,24,224,106,21,23,48,15,22,25,104,65,25,27,56,39]
[null,"$750,000 to $999,999",4,6,0,114,0,114,8,11,0,114,9,10,0,114,15,11,20,17,4,8,14,12,10,15,125,84,63,59,11,10,5,7,14,15,9,14,95,100]
[null,"$1,000,000 or more",0,114,0,114,0,114,0,114,13,22,0,114,0,114,16,12,0,114,0,114,10,11,0,114,311,106,10,15,6,7,7,10,30,22,22,35,152,105]
[]
[]
[]
[]
[null,"B25077.MEDIAN VALUE (Dollars)"]
[null,"Universe:  OWNER-OCCUPIED HOUSING UNITS"]
[null,"Data Set: 2005-2009 American Community Survey 5-Year Estimates"]
[]
[null,null,"Albany",null,"Bartlett",null,"Brookfield",null,"Chatham",null,"Conway",null,"Eaton",null,"Effingham",null,"Freedom",null,"Hale's Location",null,"Hart's Location",null,"Jackson",null,"Madison",null,"Moultonborough",null,"Ossipee",null,"Sandwich",null,"Tamworth",null,"Tuftonboro",null,"Wakefield",null,"Wolfeboro"]
[null," ","Estimate","Margin of Error","Estimate","Margin of Error","Estimate","Margin of Error","Estimate","Margin of Error","Estimate","Margin of Error","Estimate","Margin of Error","Estimate","Margin of Error","Estimate","Margin of Error","Estimate","Margin of Error","Estimate","Margin of Error","Estimate","Margin of Error","Estimate","Margin of Error","Estimate","Margin of Error","Estimate","Margin of Error","Estimate","Margin of Error","Estimate","Margin of Error","Estimate","Margin of Error","Estimate","Margin of Error","Estimate","Margin of Error"]
[]
[null,"Median value (dollars)",176500,28064,251200,25597,256100,25809,236000,26543,191600,19298,329400,87194,184300,14119,245700,24335,668100,95136,271200,33901,316700,78846,259600,15872,377300,50889,186300,29034,306100,25355,188900,19010,266000,27927,199600,21503,266800,23612]

{"sheet":"ACS_Table_B25088","index":19,"n_rows":49,"n_cols":40,"rows_kept":49,"cut":false,"hidden":true,"merged":[]}
[null,"B25088. MEDIAN SELECTED MONTHLY OWNER COSTS (DOLLARS) BY MORTGAGE STATUS"]
[null,"Universe:  OWNER-OCCUPIED HOUSING UNITS"]
[null,"Data Set: 2015-2019 American Community Survey 5-Year Estimates"]
[]
[null,null,"Albany",null,"Bartlett",null,"Brookfield",null,"Chatham",null,"Conway",null,"Eaton",null,"Effingham",null,"Freedom",null,"Hale's Location",null,"Hart's Location",null,"Jackson",null,"Madison",null,"Moultonborough",null,"Ossipee",null,"Sandwich",null,"Tamworth",null,"Tuftonboro",null,"Wakefield",null,"Wolfeboro"]
[null," ","Estimate","Margin of Error","Estimate","Margin of Error","Estimate","Margin of Error","Estimate","Margin of Error","Estimate","Margin of Error","Estimate","Margin of Error","Estimate","Margin of Error","Estimate","Margin of Error","Estimate","Margin of Error","Estimate","Margin of Error","Estimate","Margin of Error","Estimate","Margin of Error","Estimate","Margin of Error","Estimate","Margin of Error","Estimate","Margin of Error","Estimate","Margin of Error","Estimate","Margin of Error","Estimate","Margin of Error","Estimate","Margin of Error"]
[null,"Median selected monthly owner costs (dollars)"]
[null,"Total:",725,154,1014,343,1572,98,938,164,962,127,1060,163,1044,151,987,94,819,177,883,244,1159,136,1282,207,1251,130,970,125,967,101,1016,225,886,225,1308,164,1239,178]
[null,"Housing units with a mortgage (dollars)",1375,268,1406,173,1717,103,1266,297,1449,105,1385,239,1430,116,1385,86,2725,432,975,151,1515,389,1697,99,1642,148,1377,164,1461,188,1425,165,1596,268,1536,135,1644,184]
[null,"Housing units without a mortgage (dollars)",513,59,464,66,757,52,496,217,702,79,786,83,660,55,614,73,675,95,688,77,642,415,593,99,622,101,494,167,630,57,637,95,560,36,545,126,606,69]
[]
[]
[]
[]
[]
[]
[]
[]
[]
[]
[]
[]
[]
[]
[]
[]
[]
[]
[]
[]
[]
[]
[]
[]
[]
[]
[]
[]
[]
[null,"B25088. MEDIAN SELECTED MONTHLY OWNER COSTS (DOLLARS) BY MORTGAGE STATUS"]
[null,"Universe:  OWNER-OCCUPIED HOUSING UNITS"]
[null,"Data Set: 2010-2014 American Community Survey 5-Year Estimates"]
[]
[null,null,"Albany",null,"Bartlett",null,"Brookfield",null,"Chatham",null,"Conway",null,"Eaton",null,"Effingham",null,"Freedom",null,"Hale's Location",null,"Hart's Location",null,"Jackson",null,"Madison",null,"Moultonborough",null,"Ossipee",null,"Sandwich",null,"Tamworth",null,"Tuftonboro",null,"Wakefield",null,"Wolfeboro"]
[null," ","Estimate","Margin of Error","Estimate","Margin of Error","Estimate","Margin of Error","Estimate","Margin of Error","Estimate","Margin of Error","Estimate","Margin of Error","Estimate","Margin of Error","Estimate","Margin of Error","Estimate","Margin of Error","Estimate","Margin of Error","Estimate","Margin of Error","Estimate","Margin of Error","Estimate","Margin of Error","Estimate","Margin of Error","Estimate","Margin of Error","Estimate","Margin of Error","Estimate","Margin of Error","Estimate","Margin of Error","Estimate","Margin of Error"]
[null,"Median selected monthly owner costs (dollars)"]
[null,"Total:",797,226,812,199,1360,241,710,164,976,102,1083,326,958,97,911,89,864,184,263,249,884,86,1182,208,1297,171,915,134,960,144,864,89,1026,135,1134,88,1134,130]
[null,"Housing units with a mortgage (dollars)",1330,84,1207,217,1673,194,1431,343,1502,164,1464,195,1448,148,1388,94,2050,928,"-","**",1706,415,1444,98,1730,165,1423,131,1524,175,1590,163,1386,132,1352,164,1612,155]
[null,"Housing units without a mortgage (dollars)",482,43,437,90,665,52,471,121,578,40,600,228,514,51,648,65,625,151,"-","**",679,57,583,58,699,106,538,40,624,51,589,172,652,112,534,109,699,80]

{"sheet":"ACS_Table_B25091","index":20,"n_rows":219,"n_cols":40,"rows_kept":219,"cut":false,"hidden":true,"merged":[]}
[null,"B25091. MORTGAGE STATUS BY SELECTED MONTHLY OWNER COSTS AS A PERCENTAGE OF HOUSEHOLD INCOME IN THE PAST 12 MONTHS "]
[null,"Universe:  OWNER-OCCUPIED HOUSING UNITS"]
[null,"Data Set: 2015-2019 American Community Survey 5-Year Estimates"]
[]
[null,null,"Albany",null,"Bartlett",null,"Brookfield",null,"Chatham",null,"Conway",null,"Eaton",null,"Effingham",null,"Freedom",null,"Hale's Location",null,"Hart's Location",null,"Jackson",null,"Madison",null,"Moultonborough",null,"Ossipee",null,"Sandwich",null,"Tamworth",null,"Tuftonboro",null,"Wakefield",null,"Wolfeboro"]
[null," ","Estimate","Margin of Error","Estimate","Margin of Error","Estimate","Margin of Error","Estimate","Margin of Error","Estimate","Margin of Error","Estimate","Margin of Error","Estimate","Margin of Error","Estimate","Margin of Error","Estimate","Margin of Error","Estimate","Margin of Error","Estimate","Margin of Error","Estimate","Margin of Error","Estimate","Margin of Error","Estimate","Margin of Error","Estimate","Margin of Error","Estimate","Margin of Error","Estimate","Margin of Error","Estimate","Margin of Error","Estimate","Margin of Error"]
[null,"Total:",272,56,1074,213,289,64,132,37,3114,295,102,29,488,72,577,79,89,20,19,14,318,79,792,107,1531,124,1540,176,561,77,939,148,858,101,1901,196,2429,221]
[null,"Housing units with a mortgage:",113,35,680,178,217,60,73,27,1692,274,47,20,267,68,282,61,33,13,12,11,187,63,449,80,896,139,801,136,263,53,516,150,418,75,1389,197,1451,217]
[null,"Less than 10.0 percent",10,7,83,82,14,15,12,9,151,108,3,4,16,21,13,15,0,11,0,11,26,26,28,27,75,47,62,56,23,22,16,23,23,28,73,58,174,103]
[null,"10.0 to 14.9 percent",20,9,70,76,32,20,12,13,274,148,6,6,35,30,46,21,5,6,3,5,44,35,25,18,134,70,101,67,67,34,125,108,49,26,204,112,166,106]
[null,"15.0 to 19.9 percent",19,14,143,97,56,25,9,11,323,128,5,6,61,29,22,20,4,5,0,11,41,31,74,33,129,58,98,76,39,20,50,39,48,24,267,119,198,118]
[null,"20.0 to 24.9 percent",18,9,96,83,34,19,17,15,235,111,7,7,38,19,52,25,5,5,0,11,29,23,78,43,181,101,160,86,41,23,106,83,82,42,242,128,171,127]
[null,"25.0 to 29.9 percent",0,11,39,61,22,14,8,9,250,125,6,7,30,24,34,21,2,3,4,6,0,11,71,50,73,39,102,72,26,16,48,40,51,28,81,55,276,161]
[null,"30.0 to 34.9 percent",9,7,132,98,23,20,8,9,18,22,11,14,35,18,22,17,0,11,0,11,0,11,45,32,30,29,36,48,9,11,75,76,39,17,142,112,173,166]
[null,"35.0 to 39.9 percent",14,14,0,11,9,8,2,3,143,84,5,5,9,8,24,17,2,3,0,11,0,11,0,11,30,28,55,36,18,12,0,11,5,8,74,95,77,73]
[null,"40.0 to 49.9 percent",9,12,23,25,8,10,0,11,112,76,2,3,24,15,17,12,3,4,0,11,22,24,82,49,83,56,49,38,9,8,0,11,40,31,146,117,104,73]
[null,"50.0 percent or more",14,9,94,80,19,12,5,5,186,103,2,3,19,18,52,34,10,7,5,8,25,22,42,35,141,65,138,71,31,17,96,75,66,40,160,99,112,100]
[null,"Not computed",0,11,0,11,0,11,0,11,0,18,0,11,0,11,0,11,2,4,0,11,0,11,4,7,20,21,0,11,0,11,0,11,15,23,0,16,0,16]
[null,"Housing units without a mortgage:",159,48,394,140,72,23,59,22,1422,302,55,22,221,46,295,65,56,16,7,10,131,54,343,86,635,106,739,168,298,56,423,137,440,93,512,149,978,223]
[null,"Less than 10.0 percent",86,36,154,79,16,13,34,18,499,197,21,11,77,29,156,50,33,14,0,11,46,29,121,55,267,80,119,67,132,42,80,62,157,58,222,118,361,135]
[null,"10.0 to 14.9 percent",19,14,74,76,28,17,7,6,307,136,4,6,33,17,41,16,8,7,2,4,46,35,88,46,97,48,161,97,67,28,104,80,156,63,83,53,168,104]
[null,"15.0 to 19.9 percent",2,3,70,73,11,11,6,6,245,131,8,10,46,25,35,24,8,7,0,11,0,11,49,39,96,59,164,99,34,18,30,38,34,21,12,18,68,66]
[null,"20.0 to 24.9 percent",12,11,34,53,8,7,4,6,33,46,7,6,15,11,17,12,4,5,0,11,3,5,27,25,67,43,23,27,19,11,61,66,24,21,0,16,73,76]
[null,"25.0 to 29.9 percent",3,4,8,12,0,11,4,6,50,48,2,5,26,13,15,17,0,11,0,11,17,19,5,7,13,16,47,58,12,9,44,39,5,7,81,85,49,67]
[null,"30.0 to 34.9 percent",0,11,0,11,0,11,0,11,59,59,2,4,4,6,20,13,1,4,1,3,0,11,6,9,31,27,9,15,7,7,0,11,0,11,13,19,78,97]
[null,"35.0 to 39.9 percent",19,18,0,11,0,11,0,11,0,18,0,11,0,11,3,4,0,11,0,11,0,11,7,12,11,16,96,78,4,6,42,64,5,8,0,16,88,91]
[null,"40.0 to 49.9 percent",2,4,36,55,0,11,0,11,74,51,0,11,7,6,0,11,2,3,4,7,0,11,0,11,21,34,50,36,11,14,0,11,20,25,0,16,15,24]
[null,"50.0 percent or more",16,14,18,20,9,10,1,4,155,107,11,9,13,9,4,5,0,11,0,11,16,17,40,26,21,20,70,59,12,12,62,54,28,19,101,79,58,53]
[null,"Not computed",0,11,0,11,0,11,3,5,0,18,0,11,0,11,4,5,0,11,0,11,3,4,0,11,11,15,0,11,0,11,0,11,11,11,0,16,20,33]
[]
[]
[]
[null,"Calculated B25091. MORTGAGE STATUS BY SELECTED MONTHLY OWNER COSTS AS A PERCENTAGE OF HOUSEHOLD INCOME IN THE PAST 12 MONTHS "]
[null,"Universe:  OWNER-OCCUPIED HOUSING UNITS"]
[null,"Data Set: 2015-2019 American Community Survey 5-Year Estimates"]
[]
[null,null,"Albany",null,"Bartlett",null,"Brookfield",null,"Chatham",null,"Conway",null,"Eaton",null,"Effingham",null,"Freedom",null,"Hale's Location",null,"Hart's Location",null,"Jackson",null,"Madison",null,"Moultonborough",null,"Ossipee",null,"Sandwich",null,"Tamworth",null,"Tuftonboro",null,"Wakefield",null,"Wolfeboro"]
[null," ","Estimate","Margin of Error","Estimate","Margin of Error","Estimate","Margin of Error","Estimate","Margin of Error","Estimate","Margin of Error","Estimate","Margin of Error","Estimate","Margin of Error","Estimate","Margin of Error","Estimate","Margin of Error","Estimate","Margin of Error","Estimate","Margin of Error","Estimate","Margin of Error","Estimate","Margin of Error","Estimate","Margin of Error","Estimate","Margin of Error","Estimate","Margin of Error","Estimate","Margin of Error","Estimate","Margin of Error","Estimate","Margin of Error"]
[null,"Total:",{"$f":"C7","v":272},{"$f":"D7","v":56},{"$f":"E7","v":1074},213,289,64,132,37,3114,295,102,29,488,72,577,79,89,20,19,14,318,79,{"$f":"Y7","v":792},107,1531,124,1540,176,561,77,939,148,858,101,1901,196,2429,221]
[null,"Less than 10.0 percent",{"$f":"C9+C20","v":96},{"$f":"SQRT((D9^2)+(D20^2))","v":36.674241641784498},{"$f":"E9+E20","v":237},{"$f":"SQRT((F9^2)+(F20^2))","v":113.86395390991831},{"$f":"G9+G20","v":30},{"$f":"SQRT((H9^2)+(H20^2))","v":19.849433241279208},{"$f":"I9+I20","v":46},{"$f":"SQRT((J9^2)+(J20^2))","v":20.124611797498108},{"$f":"K9+K20","v":650},{"$f":"SQRT((L9^2)+(L20^2))","v":224.66196829904254},{"$f":"M9+M20","v":24},{"$f":"SQRT((N9^2)+(N20^2))","v":11.704699910719626},{"$f":"O9+O20","v":93},{"$f":"SQRT((P9^2)+(P20^2))","v":35.805027579936315},{"$f":"Q9+Q20","v":169},{"$f":"SQRT((R9^2)+(R20^2))","v":52.201532544552748},{"$f":"S9+S20","v":33},{"$f":"SQRT((T9^2)+(T20^2))","v":17.804493814764857},{"$f":"U9+U20","v":0},{"$f":"SQRT((V9^2)+(V20^2))","v":15.556349186104045},{"$f":"W9+W20","v":72},{"$f":"SQRT((X9^2)+(X20^2))","v":38.948684188300895},149,{"$f":"SQRT((Z9^2)+(Z20^2))","v":61.26989472816156},{"$f":"AA9+AA20","v":342},{"$f":"SQRT((AB9^2)+(AB20^2))","v":92.784697014108957},{"$f":"AC9+AC20","v":181},{"$f":"SQRT((AD9^2)+(AD20^2))","v":87.321245982864909},{"$f":"AE9+AE20","v":155},{"$f":"SQRT((AF9^2)+(AF20^2))","v":47.413078364518789},{"$f":"AG9+AG20","v":96},{"$f":"SQRT((AH9^2)+(AH20^2))","v":66.128662469461759},{"$f":"AI9+AI20","v":180},{"$f":"SQRT((AJ9^2)+(AJ20^2))","v":64.404968752418469},{"$f":"AK9+AK20","v":295},{"$f":"SQRT((AL9^2)+(AL20^2))","v":131.48383931114881},{"$f":"AM9+AM20","v":535},{"$f":"SQRT((AN9^2)+(AN20^2))","v":169.80577139779436}]
[null,"10.0 to 14.9 percent",39,16.643316977093239,144,107.48023074035522,60,26.248809496813376,19,14.317821063276353,581,200.9975124224178,10,8.4852813742385695,68,34.481879299133332,87,26.40075756488817,13,9.2195444572928871,5,6.4031242374328485,90,{"$f":"SQRT((X10^2)+(X21^2))","v":49.497474683058329},113,49.396356140913873,231,84.876380695691779,262,117.88977903109328,134,44.045431091090478,229,134.40238093129153,205,68.154236845554948,287,123.90722335683259,334,148.49915824677257]
[null,"15.0 to 19.9 percent",21,14.317821063276353,213,121.40016474453401,67,27.313000567495326,15,12.529964086141668,568,183.15294155431957,13,11.661903789690601,107,38.288379438153292,57,31.240998703626616,12,8.6023252670426267,0,15.556349186104045,41,32.893768406797051,123,51.088159097779204,225,82.734515167492219,262,124.80785231707178,73,26.90724809414742,80,54.451813560247928,82,31.89043743820395,279,120.3536455617361,266,135.20355024924456]
[null,"20.0 to 24.9 percent",30,14.212670403551895,130,98.478424032881435,42,20.248456731316587,21,16.15549442140351,268,120.15406776301833,14,9.2195444572928871,53,21.95449840010015,69,27.730849247724095,9,7.0710678118654755,0,15.556349186104045,32,23.53720459187964,105,49.739320461783549,248,109.77249200050075,183,90.13878188659973,60,25.495097567963924,167,106.04244433244644,106,46.957427527495582,242,128.99612397277679,244,148.00337833982033]
[null,"25.0 to 29.9 percent",3,11.704699910719626,47,62.169124169478209,22,17.804493814764857,12,10.816653826391969,300,133.89921583041479,8,8.6023252670426267,56,27.294688127912362,49,27.018512172212592,2,11.401754250991379,4,12.529964086141668,17,21.95449840010015,76,50.487622245457352,86,42.154477816715982,149,92.455394650609762,38,18.357559750685819,92,55.865910893853687,56,28.861739379323623,162,101.24228365658294,325,174.38463235044537]
[null,"30.0 to 34.9 percent",9,13.038404810405298,132,98.615414616580097,23,22.825424421026653,8,14.212670403551895,77,62.968245965724662,13,14.560219778561036,39,18.973665961010276,42,21.400934559032695,1,11.704699910719626,1,11.401754250991379,0,15.556349186104045,51,33.241540277189323,61,39.623225512317902,45,50.289163842720633,16,13.038404810405298,75,76.791926658991954,39,20.248456731316587,155,113.6001760562016,251,192.26284092356485]
[null,"35.0 to 39.9 percent",33,22.803508501982758,0,15.556349186104045,9,13.601470508735444,2,11.401754250991379,143,85.906926379658117,5,12.083045973594572,9,13.601470508735444,27,17.464249196572979,2,11.401754250991379,0,15.556349186104045,0,15.556349186104045,7,16.278820596099706,41,32.249030993194197,151,85.906926379658117,22,13.416407864998739,42,64.938432380216881,10,11.313708498984761,74,96.337946833010719,165,116.66190466471906]
[null,"40.0 to 49.9 percent",11,12.649110640673518,59,60.415229867972862,8,14.866068747318506,0,15.556349186104045,186,91.525952603619487,2,11.401754250991379,31,16.15549442140351,17,16.278820596099706,5,5,4,13.038404810405298,22,26.40075756488817,82,50.219518117958877,104,65.513357416636794,99,52.345009313209601,20,16.124515496597098,0,15.556349186104045,60,39.824615503479755,146,118.0889495253472,119,76.843997813752509]
[null,"50.0 percent or more",30,16.643316977093239,112,82.462112512353215,28,15.620499351813308,6,6.4031242374328485,341,148.51935900750448,13,9.4868329805051381,32,20.124611797498108,56,34.365680554879162,10,13.038404810405298,5,13.601470508735444,41,27.802877548915689,82,43.600458713183279,162,68.007352543677214,208,92.314679222754165,43,20.808652046684813,158,92.417530804496181,94,44.283179650969061,261,126.65701717630967,170,113.17685275708986]
[null,"Not computed",0,15.556349186104045,0,15.556349186104045,0,15.556349186104045,3,12.083045973594572,0,25.45584412271571,0,15.556349186104045,0,15.556349186104045,4,12.083045973594572,2,11.704699910719626,0,15.556349186104045,3,11.704699910719626,4,13.038404810405298,31,25.80697580112788,0,15.556349186104045,0,15.556349186104045,0,15.556349186104045,26,25.495097567963924,0,22.627416997969522,20,36.674241641784498]
[]
[]
[]
[]
[null,"Calculated MONTHLY OWNER COSTS AS A PERCENTAGE OF HOUSEHOLD INCOME IN THE PAST 12 MONTHS "]
[null,"Universe:  OWNER-OCCUPIED HOUSING UNITS"]
[null,"Data Set: 2015-2019 American Community Survey 5-Year Estimates"]
[null,null,"Albany",null,"Bartlett",null,"Brookfield",null,"Chatham",null,"Conway",null,"Eaton",null,"Effingham",null,"Freedom",null,"Hales Location",null,"Harts Location",null,"Jackson",null,"Madison",null,"Moultonborough",null,"Ossipee",null,"Sandwich",null,"Tamworth",null,"Tuftonboro",null,"Wakefield",null,"Wolfeboro"]
[null," ","Estimate","Margin of Error","Estimate","Margin of Error","Estimate","Margin of Error","Estimate","Margin of Error","Estimate","Margin of Error","Estimate","Margin of Error","Estimate","Margin of Error","Estimate","Margin of Error","Estimate","Margin of Error","Estimate","Margin of Error","Estimate","Margin of Error","Estimate","Margin of Error","Estimate","Margin of Error","Estimate","Margin of Error","Estimate","Margin of Error","Estimate","Margin of Error","Estimate","Margin of Error","Estimate","Margin of Error","Estimate","Margin of Error"]
[null,"Total:",{"$f":"C39","v":272},56,1074,213,289,64,132,37,3114,295,102,29,488,72,577,79,89,20,19,14,318,79,{"$f":"Y39","v":792},107,1531,124,1540,176,561,77,939,148,858,101,1901,196,2429,221]
[null,"Less than 20% of HH Income",{"$f":"C40+C41+C42","v":156},{"$f":"SQRT((D40^2)+(D41^2)+(D42^2))","v":42.743420546325019},{"$f":"E40+E41+E42","v":594},{"$f":"SQRT((F40^2)+(F41^2)+(F42^2))","v":198.12874602136864},{"$f":"G40+G41+G42","v":157},{"$f":"SQRT((H40^2)+(H41^2)+(H42^2))","v":42.766809560686191},{"$f":"I40+I41+I42","v":80},{"$f":"SQRT((J40^2)+(J41^2)+(J42^2))","v":27.694764848252458},{"$f":"K40+K41+K42","v":1799},{"$f":"SQRT((L40^2)+(L41^2)+(L42^2))","v":352.72935800695694},{"$f":"M40+M41+M42","v":47},{"$f":"SQRT((N40^2)+(N41^2)+(N42^2))","v":18.574175621006709},{"$f":"O40+O41+O42","v":268},{"$f":"SQRT((P40^2)+(P41^2)+(P42^2))","v":62.745517768203968},{"$f":"Q40+Q41+Q42","v":313},{"$f":"SQRT((R40^2)+(R41^2)+(R42^2))","v":66.317418526357002},{"$f":"S40+S41+S42","v":58},{"$f":"SQRT((T40^2)+(T41^2)+(T42^2))","v":21.817424229271431},{"$f":"U40+U41+U42","v":5},{"$f":"SQRT((V40^2)+(V41^2)+(V42^2))","v":22.912878474779198},{"$f":"W40+W41+W42","v":203},{"$f":"SQRT((X40^2)+(X41^2)+(X42^2))","v":71.056315693962063},{"$f":"Y40+Y41+Y42","v":385},{"$f":"SQRT((Z40^2)+(Z41^2)+(Z42^2))","v":93.829632845919207},{"$f":"AA40+AA41+AA42","v":798},{"$f":"SQRT((AB40^2)+(AB41^2)+(AB42^2))","v":150.52574530624321},{"$f":"AC40+AC41+AC42","v":705},{"$f":"SQRT((AD40^2)+(AD41^2)+(AD42^2))","v":192.61360284258222},{"$f":"AE40+AE41+AE42","v":362},{"$f":"SQRT((AF40^2)+(AF41^2)+(AF42^2))","v":70.085661871740925},{"$f":"AG40+AG41+AG42","v":405},{"$f":"SQRT((AH40^2)+(AH41^2)+(AH42^2))","v":159.38004893963358},{"$f":"AI40+AI41+AI42","v":467},{"$f":"SQRT((AJ40^2)+(AJ41^2)+(AJ42^2))","v":99.045444115315064},{"$f":"AK40+AK41+AK42","v":861},{"$f":"SQRT((AL40^2)+(AL41^2)+(AL42^2))","v":217.08523671590382},{"$f":"AM40+AM41+AM42","v":1135},{"$f":"SQRT((AN40^2)+(AN41^2)+(AN42^2))","v":262.99429651610319}]
[null," 20% to 29.9% of HH Income",{"$f":"C43+C44","v":33},{"$f":"SQRT((D43^2)+(D44^2))","v":18.411952639521967},{"$f":"E43+E44","v":177},{"$f":"SQRT((F43^2)+(F44^2))","v":116.46029366269003},{"$f":"G43+G44","v":64},{"$f":"SQRT((H43^2)+(H44^2))","v":26.962937525425527},{"$f":"I43+I44","v":33},{"$f":"SQRT((J43^2)+(J44^2))","v":19.442222095223578},{"$f":"K43+K44","v":568},{"$f":"SQRT((L43^2)+(L44^2))","v":179.90553076545481},{"$f":"M43+M44","v":22},{"$f":"SQRT((N43^2)+(N44^2))","v":12.609520212918492},{"$f":"O43+O44","v":109},{"$f":"SQRT((P43^2)+(P44^2))","v":35.028559776273987},{"$f":"Q43+Q44","v":118},{"$f":"SQRT((R43^2)+(R44^2))","v":38.716921365211881},{"$f":"S43+S44","v":11},{"$f":"SQRT((T43^2)+(T44^2))","v":13.416407864998739},{"$f":"U43+U44","v":4},{"$f":"SQRT((V43^2)+(V44^2))","v":19.974984355438178},{"$f":"W43+W44","v":49},{"$f":"SQRT((X43^2)+(X44^2))","v":32.186953878862163},{"$f":"Y43+Y44","v":181},{"$f":"SQRT((Z43^2)+(Z44^2))","v":70.873126077519686},{"$f":"AA43+AA44","v":334},{"$f":"SQRT((AB43^2)+(AB44^2))","v":117.58826472059191},{"$f":"AC43+AC44","v":332},{"$f":"SQRT((AD43^2)+(AD44^2))","v":129.12397143830421},{"$f":"AE43+AE44","v":98},{"$f":"SQRT((AF43^2)+(AF44^2))","v":31.416556144810016},{"$f":"AG43+AG44","v":259},{"$f":"SQRT((AH43^2)+(AH44^2))","v":119.85824961178101},{"$f":"AI43+AI44","v":162},{"$f":"SQRT((AJ43^2)+(AJ44^2))","v":55.11805511808268},{"$f":"AK43+AK44","v":404},{"$f":"SQRT((AL43^2)+(AL44^2))","v":163.98170629676957},{"$f":"AM43+AM44","v":569},{"$f":"SQRT((AN43^2)+(AN44^2))","v":228.72472537965808}]
[null," Less Than 30% of HH Income",{"$f":"C40+C41+C42+C43+C44","v":189},{"$f":"SQRT((D40^2)+(D41^2)+(D42^2)+(D43^2)+(D44^2))","v":46.540305112880382},{"$f":"E40+E41+E42+E43+E44","v":771},{"$f":"SQRT((F40^2)+(F41^2)+(F42^2)+(F43^2)+(F44^2))","v":229.82166999654319},{"$f":"G40+G41+G42+G43+G44","v":221},{"$f":"SQRT((H40^2)+(H41^2)+(H42^2)+(H43^2)+(H44^2))","v":50.556898639058154},{"$f":"I40+I41+I42+I43+I44","v":113},{"$f":"SQRT((J40^2)+(J41^2)+(J42^2)+(J43^2)+(J44^2))","v":33.837848631377263},{"$f":"K40+K41+K42+K43+K44","v":2367},{"$f":"SQRT((L40^2)+(L41^2)+(L42^2)+(L43^2)+(L44^2))","v":395.95959389816534},{"$f":"M40+M41+M42+M43+M44","v":69},{"$f":"SQRT((N40^2)+(N41^2)+(N42^2)+(N43^2)+(N44^2))","v":22.449944320643649},{"$f":"O40+O41+O42+O43+O44","v":377},{"$f":"SQRT((P40^2)+(P41^2)+(P42^2)+(P43^2)+(P44^2))","v":71.860976892886725},{"$f":"Q40+Q41+Q42+Q43+Q44","v":431},{"$f":"SQRT((R40^2)+(R41^2)+(R42^2)+(R43^2)+(R44^2))","v":76.791926658991954},{"$f":"S40+S41+S42+S43+S44","v":69},{"$f":"SQRT((T40^2)+(T41^2)+(T42^2)+(T43^2)+(T44^2))","v":25.612496949731398},{"$f":"U40+U41+U42+U43+U44","v":9},{"$f":"SQRT((V40^2)+(V41^2)+(V42^2)+(V43^2)+(V44^2))","v":30.397368307141328},{"$f":"W40+W41+W42+W43+W44","v":252},{"$f":"SQRT((X40^2)+(X41^2)+(X42^2)+(X43^2)+(X44^2))","v":78.006409993025571},{"$f":"Y40+Y41+Y42+Y43+Y44","v":566},{"$f":"SQRT((Z40^2)+(Z41^2)+(Z42^2)+(Z43^2)+(Z44^2))","v":117.58826472059191},{"$f":"AA40+AA41+AA42+AA43+AA44","v":1132},{"$f":"SQRT((AB40^2)+(AB41^2)+(AB42^2)+(AB43^2)+(AB44^2))","v":191.01047091717248},{"$f":"AC40+AC41+AC42+AC43+AC44","v":1037},{"$f":"SQRT((AD40^2)+(AD41^2)+(AD42^2)+(AD43^2)+(AD44^2))","v":231.89006015782564},{"$f":"AE40+AE41+AE42+AE43+AE44","v":460},{"$f":"SQRT((AF40^2)+(AF41^2)+(AF42^2)+(AF43^2)+(AF44^2))","v":76.804947757289696},{"$f":"AG40+AG41+AG42+AG43+AG44","v":664},{"$f":"SQRT((AH40^2)+(AH41^2)+(AH42^2)+(AH43^2)+(AH44^2))","v":199.41915655222294},{"$f":"AI40+AI41+AI42+AI43+AI44","v":629},{"$f":"SQRT((AJ40^2)+(AJ41^2)+(AJ42^2)+(AJ43^2)+(AJ44^2))","v":113.34901852243803},{"$f":"AK40+AK41+AK42+AK43+AK44","v":1265},{"$f":"SQRT((AL40^2)+(AL41^2)+(AL42^2)+(AL43^2)+(AL44^2))","v":272.05881717011124},{"$f":"AM40+AM41+AM42+AM43+AM44","v":1704},{"$f":"SQRT((AN40^2)+(AN41^2)+(AN42^2)+(AN43^2)+(AN44^2))","v":348.54124576583473}]
[null," 30% or More of HH Income",{"$f":"C45+C46+C47+C48","v":83},{"$f":"SQRT((D45^2)+(D46^2)+(D47^2)+(D48^2))","v":33.570820663189039},{"$f":"E45+E46+E47+E48","v":303},{"$f":"SQRT((F45^2)+(F46^2)+(F47^2)+(F48^2))","v":142.88806808127822},{"$f":"G45+G46+G47+G48","v":68},{"$f":"SQRT((H45^2)+(H46^2)+(H47^2)+(H48^2))","v":34.219877264537345},{"$f":"I45+I46+I47+I48","v":16},{"$f":"SQRT((J45^2)+(J46^2)+(J47^2)+(J48^2))","v":24.79919353527449},{"$f":"K45+K46+K47+K48","v":747},{"$f":"SQRT((L45^2)+(L46^2)+(L47^2)+(L48^2))","v":204.40156555173445},{"$f":"M45+M46+M47+M48","v":33},{"$f":"SQRT((N45^2)+(N46^2)+(N47^2)+(N48^2))","v":24.041630560342615},{"$f":"O45+O46+O47+O48","v":111},{"$f":"SQRT((P45^2)+(P46^2)+(P47^2)+(P48^2))","v":34.799425282610628},{"$f":"Q45+Q46+Q47+Q48","v":142},{"$f":"SQRT((R45^2)+(R46^2)+(R47^2)+(R48^2))","v":47},{"$f":"S45+S46+S47+S48","v":18},{"$f":"SQRT((T45^2)+(T46^2)+(T47^2)+(T48^2))","v":21.494185260204677},{"$f":"U45+U46+U47+U48","v":10},{"$f":"SQRT((V45^2)+(V46^2)+(V47^2)+(V48^2))","v":26.962937525425527},{"$f":"W45+W46+W47+W48","v":63},{"$f":"SQRT((X45^2)+(X46^2)+(X47^2)+(X48^2))","v":44.204072210600685},{"$f":"Y45+Y46+Y47+Y48","v":222},{"$f":"SQRT((Z45^2)+(Z46^2)+(Z47^2)+(Z48^2))","v":76.111759932352115},{"$f":"AA45+AA46+AA47+AA48","v":368},{"$f":"SQRT((AB45^2)+(AB46^2)+(AB47^2)+(AB48^2))","v":107.36386729249277},{"$f":"AC45+AC46+AC47+AC48","v":503},{"$f":"SQRT((AD45^2)+(AD46^2)+(AD47^2)+(AD48^2))","v":145.5025772967613},{"$f":"AE45+AE46+AE47+AE48","v":101},{"$f":"SQRT((AF45^2)+(AF46^2)+(AF47^2)+(AF48^2))","v":32.295510523910288},{"$f":"AG45+AG46+AG47+AG48","v":275},{"$f":"SQRT((AH45^2)+(AH46^2)+(AH47^2)+(AH48^2))","v":137.46635952115702},{"$f":"AI45+AI46+AI47+AI48","v":203},{"$f":"SQRT((AJ45^2)+(AJ46^2)+(AJ47^2)+(AJ48^2))","v":63.914004725099176},{"$f":"AK45+AK46+AK47+AK48","v":636},{"$f":"SQRT((AL45^2)+(AL46^2)+(AL47^2)+(AL48^2))","v":228.41409763847764},{"$f":"AM45+AM46+AM47+AM48","v":705},{"$f":"SQRT((AN45^2)+(AN46^2)+(AN47^2)+(AN48^2))","v":263.22803802026863}]
[null," 30% to 34.9% of HH Income",{"$f":"C45","v":9},{"$f":"D45","v":13.038404810405298},{"$f":"E45","v":132},98.615414616580097,23,22.825424421026653,8,14.212670403551895,77,62.968245965724662,13,14.560219778561036,39,18.973665961010276,42,21.400934559032695,1,11.704699910719626,1,11.401754250991379,0,15.556349186104045,{"$f":"Y45","v":51},33.241540277189323,61,39.623225512317902,45,50.289163842720633,16,13.038404810405298,75,76.791926658991954,39,20.248456731316587,155,113.6001760562016,251,192.26284092356485]
[null," Less Than 35% of HH Income",{"$f":"C40+C41+C42+C43+C44+C45","v":198},{"$f":"SQRT((D40^2)+(D41^2)+(D42^2)+(D43^2)+(D44^2)+(D45^2))","v":48.332183894378289},{"$f":"E40+E41+E42+E43+E44+E45","v":903},{"$f":"SQRT((F40^2)+(F41^2)+(F42^2)+(F43^2)+(F44^2)+(F45^2))","v":250.08598521308627},{"$f":"G40+G41+G42+G43+G44+G45","v":244},{"$f":"SQRT((H40^2)+(H41^2)+(H42^2)+(H43^2)+(H44^2)+(H45^2))","v":55.470712993434653},{"$f":"I40+I41+I42+I43+I44+I45","v":121},{"$f":"SQRT((J40^2)+(J41^2)+(J42^2)+(J43^2)+(J44^2)+(J45^2))","v":36.701498607005135},{"$f":"K40+K41+K42+K43+K44+K45","v":2444},{"$f":"SQRT((L40^2)+(L41^2)+(L42^2)+(L43^2)+(L44^2)+(L45^2))","v":400.93515685207751},{"$f":"M40+M41+M42+M43+M44+M45","v":82},{"$f":"SQRT((N40^2)+(N41^2)+(N42^2)+(N43^2)+(N44^2)+(N45^2))","v":26.758176320519304},{"$f":"O40+O41+O42+O43+O44+O45","v":416},{"$f":"SQRT((P40^2)+(P41^2)+(P42^2)+(P43^2)+(P44^2)+(P45^2))","v":74.323616704248181},{"$f":"Q40+Q41+Q42+Q43+Q44+Q45","v":473},{"$f":"SQRT((R40^2)+(R41^2)+(R42^2)+(R43^2)+(R44^2)+(R45^2))","v":79.718253869487128},{"$f":"S40+S41+S42+S43+S44+S45","v":70},{"$f":"SQRT((T40^2)+(T41^2)+(T42^2)+(T43^2)+(T44^2)+(T45^2))","v":28.16025568065745},{"$f":"U40+U41+U42+U43+U44+U45","v":10},{"$f":"SQRT((V40^2)+(V41^2)+(V42^2)+(V43^2)+(V44^2)+(V45^2))","v":32.465366161495851},{"$f":"W40+W41+W42+W43+W44+W45","v":252},{"$f":"SQRT((X40^2)+(X41^2)+(X42^2)+(X43^2)+(X44^2)+(X45^2))","v":79.542441501377112},{"$f":"Y40+Y41+Y42+Y43+Y44+Y45","v":617},{"$f":"SQRT((Z40^2)+(Z41^2)+(Z42^2)+(Z43^2)+(Z44^2)+(Z45^2))","v":122.19656296312102},{"$f":"AA40+AA41+AA42+AA43+AA44+AA45","v":1193},{"$f":"SQRT((AB40^2)+(AB41^2)+(AB42^2)+(AB43^2)+(AB44^2)+(AB45^2))","v":195.0769079107007},{"$f":"AC40+AC41+AC42+AC43+AC44+AC45","v":1082},{"$f":"SQRT((AD40^2)+(AD41^2)+(AD42^2)+(AD43^2)+(AD44^2)+(AD45^2))","v":237.28042481418478},{"$f":"AE40+AE41+AE42+AE43+AE44+AE45","v":476},{"$f":"SQRT((AF40^2)+(AF41^2)+(AF42^2)+(AF43^2)+(AF44^2)+(AF45^2))","v":77.903786814249273},{"$f":"AG40+AG41+AG42+AG43+AG44+AG45","v":739},{"$f":"SQRT((AH40^2)+(AH41^2)+(AH42^2)+(AH43^2)+(AH44^2)+(AH45^2))","v":213.69370603740299},{"$f":"AI40+AI41+AI42+AI43+AI44+AI45","v":668},{"$f":"SQRT((AJ40^2)+(AJ41^2)+(AJ42^2)+(AJ43^2)+(AJ44^2)+(AJ45^2))","v":115.14338886796757},{"$f":"AK40+AK41+AK42+AK43+AK44+AK45","v":1420},{"$f":"SQRT((AL40^2)+(AL41^2)+(AL42^2)+(AL43^2)+(AL44^2)+(AL45^2))","v":294.82367611845558},{"$f":"AM40+AM41+AM42+AM43+AM44+AM45","v":1955},{"$f":"SQRT((AN40^2)+(AN41^2)+(AN42^2)+(AN43^2)+(AN44^2)+(AN45^2))","v":398.05276032204574}]
[null," 35% or More of HH Income",{"$f":"C46+C47+C48","v":74},{"$f":"SQRT((D46^2)+(D47^2)+(D48^2))","v":30.935416596516038},{"$f":"E46+E47+E48","v":171},{"$f":"SQRT((F46^2)+(F47^2)+(F48^2))","v":103.40212763768452},{"$f":"G46+G47+G48","v":45},{"$f":"SQRT((H46^2)+(H47^2)+(H48^2))","v":25.495097567963924},{"$f":"I46+I47+I48","v":8},{"$f":"SQRT((J46^2)+(J47^2)+(J48^2))","v":20.322401432901575},{"$f":"K46+K47+K48","v":670},{"$f":"SQRT((L46^2)+(L47^2)+(L48^2))","v":194.46079296351746},{"$f":"M46+M47+M48","v":20},{"$f":"SQRT((N46^2)+(N47^2)+(N48^2))","v":19.131126469708992},{"$f":"O46+O47+O48","v":72},{"$f":"SQRT((P46^2)+(P47^2)+(P48^2))","v":29.171904291629644},{"$f":"Q46+Q47+Q48","v":100},{"$f":"SQRT((R46^2)+(R47^2)+(R48^2))","v":41.84495190581535},{"$f":"S46+S47+S48","v":17},{"$f":"SQRT((T46^2)+(T47^2)+(T48^2))","v":18.027756377319946},{"$f":"U46+U47+U48","v":9},{"$f":"SQRT((V46^2)+(V47^2)+(V48^2))","v":24.433583445741231},{"$f":"W46+W47+W48","v":63},{"$f":"SQRT((X46^2)+(X47^2)+(X48^2))","v":41.376321731154405},{"$f":"Y46+Y47+Y48","v":171},{"$f":"SQRT((Z46^2)+(Z47^2)+(Z48^2))","v":68.46897107449476},{"$f":"AA46+AA47+AA48","v":307},{"$f":"SQRT((AB46^2)+(AB47^2)+(AB48^2))","v":99.784768376741752},{"$f":"AC46+AC47+AC48","v":458},{"$f":"SQRT((AD46^2)+(AD47^2)+(AD48^2))","v":136.53570961473778},{"$f":"AE46+AE47+AE48","v":85},{"$f":"SQRT((AF46^2)+(AF47^2)+(AF48^2))","v":29.546573405388315},{"$f":"AG46+AG47+AG48","v":200},{"$f":"SQRT((AH46^2)+(AH47^2)+(AH48^2))","v":114.0175425099138},{"$f":"AI46+AI47+AI48","v":164},{"$f":"SQRT((AJ46^2)+(AJ47^2)+(AJ48^2))","v":60.621778264910702},{"$f":"AK46+AK47+AK48","v":481},{"$f":"SQRT((AL46^2)+(AL47^2)+(AL48^2))","v":198.16155025635018},{"$f":"AM46+AM47+AM48","v":454},{"$f":"SQRT((AN46^2)+(AN47^2)+(AN48^2))","v":179.78876494375282}]
[null," 50% or More of HH Income",{"$f":"C48","v":30},{"$f":"D48","v":16.643316977093239},{"$f":"E48","v":112},82.462112512353215,28,15.620499351813308,6,6.4031242374328485,341,148.51935900750448,13,9.4868329805051381,32,20.124611797498108,56,34.365680554879162,10,13.038404810405298,5,13.601470508735444,41,27.802877548915689,{"$f":"Y48","v":82},43.600458713183279,162,68.007352543677214,208,92.314679222754165,43,20.808652046684813,158,92.417530804496181,94,44.283179650969061,261,126.65701717630967,170,113.17685275708986]
[null,"Not computed",{"$f":"C49","v":0},{"$f":"D49","v":15.556349186104045},{"$f":"E49","v":0},15.556349186104045,0,15.556349186104045,3,12.083045973594572,0,25.45584412271571,0,15.556349186104045,0,15.556349186104045,4,12.083045973594572,2,11.704699910719626,0,15.556349186104045,3,11.704699910719626,{"$f":"Y49","v":4},13.038404810405298,31,25.80697580112788,0,15.556349186104045,0,15.556349186104045,0,15.556349186104045,26,25.495097567963924,0,22.627416997969522,20,36.674241641784498]
[]
[]
[]
[]
[]
[]
[]
[]
[]
[]
[]
[]
[null,"B25091. MORTGAGE STATUS BY SELECTED MONTHLY OWNER COSTS AS A PERCENTAGE OF HOUSEHOLD INCOME IN THE PAST 12 MONTHS "]
[null,"Universe:  OWNER-OCCUPIED HOUSING UNITS"]
[null,"Data Set: 2010-2014 American Community Survey 5-Year Estimates"]
[]
[null,null,"Albany",null,"Bartlett",null,"Brookfield",null,"Chatham",null,"Conway",null,"Eaton",null,"Effingham",null,"Freedom",null,"Hale's Location",null,"Hart's Location",null,"Jackson",null,"Madison",null,"Moultonborough",null,"Ossipee",null,"Sandwich",null,"Tamworth",null,"Tuftonboro",null,"Wakefield",null,"Wolfeboro"]
[null," ","Estimate","Margin of Error","Estimate","Margin of Error","Estimate","Margin of Error","Estimate","Margin of Error","Estimate","Margin of Error","Estimate","Margin of Error","Estimate","Margin of Error","Estimate","Margin of Error","Estimate","Margin of Error","Estimate","Margin of Error","Estimate","Margin of Error","Estimate","Margin of Error","Estimate","Margin of Error","Estimate","Margin of Error","Estimate","Margin of Error","Estimate","Margin of Error","Estimate","Margin of Error","Estimate","Margin of Error","Estimate","Margin of Error"]
[null,"Total:",263,55,1155,180,289,62,134,33,2966,278,146,28,461,57,442,59,67,21,10,10,363,79,980,103,1591,121,1484,205,501,63,1047,156,805,107,2019,238,2214,217]
[null,"Housing units with a mortgage:",158,43,637,144,201,51,59,23,1678,192,70,26,248,44,202,39,27,12,6,8,146,49,630,82,908,135,738,124,274,56,529,148,483,102,1431,227,1132,185]
[null,"Less than 10.0 percent",7,7,30,34,0,11,1,3,30,27,3,5,8,13,0,11,2,5,0,11,20,20,0,11,39,50,0,11,2,4,17,26,13,21,107,79,128,89]
[null,"10.0 to 14.9 percent",27,19,115,73,14,10,13,10,181,106,8,6,36,20,12,9,0,11,4,7,39,33,65,44,120,55,60,35,34,24,0,11,49,40,118,108,119,77]
[null,"15.0 to 19.9 percent",31,23,76,63,34,20,8,7,439,143,12,10,43,21,49,18,3,5,2,4,28,29,153,63,226,89,168,73,53,25,65,44,71,35,112,64,137,81]
[null,"20.0 to 24.9 percent",33,25,54,56,42,25,11,11,165,86,13,13,21,12,24,13,2,3,0,11,23,21,85,42,132,53,91,58,48,19,72,44,103,44,197,108,227,124]
[null,"25.0 to 29.9 percent",14,11,121,85,12,12,5,6,308,122,0,11,17,11,20,10,2,3,0,11,11,16,83,40,106,69,128,83,29,19,79,47,79,49,98,69,184,99]
[null,"30.0 to 34.9 percent",13,11,75,56,18,13,5,6,128,80,7,6,30,19,23,13,5,6,0,11,2,3,94,59,28,24,39,34,31,16,122,91,53,40,273,166,26,32]
[null,"35.0 to 39.9 percent",0,11,19,20,17,16,7,8,104,72,7,7,16,10,6,6,0,11,0,11,10,16,65,54,92,52,26,27,23,18,9,15,26,26,128,108,15,24]
[null,"40.0 to 49.9 percent",14,16,48,51,31,22,6,8,81,44,7,12,27,19,24,15,2,5,0,11,11,13,64,52,31,28,94,65,10,10,57,43,45,40,215,126,104,76]
[null,"50.0 percent or more",19,16,99,73,33,21,3,4,242,106,13,10,50,25,44,21,11,7,0,11,2,3,21,20,115,59,132,85,44,26,108,95,44,23,183,94,192,116]
[null,"Not computed",0,11,0,11,0,11,0,11,0,17,0,11,0,11,0,11,0,11,0,11,0,11,0,11,19,32,0,11,0,11,0,11,0,11,0,15,0,15]
[null,"Housing units without a mortgage:",105,39,518,154,88,39,75,24,1288,237,76,25,213,42,240,51,40,15,4,6,217,66,350,91,683,144,746,164,227,47,518,138,322,83,588,195,1082,191]
[null,"Less than 10.0 percent",26,11,209,109,18,10,25,15,298,107,27,16,34,19,42,20,16,10,4,6,67,36,79,38,354,121,112,48,73,25,162,99,123,67,105,60,234,116]
[null,"10.0 to 14.9 percent",25,16,102,74,27,24,19,12,327,165,17,12,60,25,67,30,8,6,0,11,43,25,92,48,66,37,180,90,58,22,98,79,71,47,40,36,291,95]
[null,"15.0 to 19.9 percent",5,6,51,51,20,17,5,6,71,39,3,3,30,17,9,8,5,5,0,11,37,26,41,34,85,57,95,55,21,11,65,42,21,19,120,102,257,126]
[null,"20.0 to 24.9 percent",2,3,8,11,4,5,3,4,98,92,7,6,33,18,47,23,2,3,0,11,11,17,47,39,57,41,69,48,22,17,124,92,44,32,58,51,111,77]
[null,"25.0 to 29.9 percent",19,25,86,70,0,11,2,4,222,104,4,4,7,6,19,16,5,5,0,11,25,21,5,8,23,23,7,13,10,9,8,11,7,11,114,124,13,21]
[null,"30.0 to 34.9 percent",0,11,26,42,2,5,3,4,73,75,13,10,9,8,16,14,2,3,0,11,0,11,0,11,20,34,69,65,15,11,0,11,4,7,40,45,51,42]
[null,"35.0 to 39.9 percent",10,17,0,11,0,11,0,11,56,44,2,4,3,4,10,8,0,11,0,11,8,7,21,33,3,8,62,49,13,15,13,19,10,12,38,59,9,15]
[null,"40.0 to 49.9 percent",10,13,0,11,0,11,2,6,30,23,1,2,2,3,8,9,0,11,0,11,0,11,41,28,17,19,82,78,8,9,6,10,4,6,18,27,0,15]
[null,"50.0 percent or more",6,5,12,19,17,16,14,12,113,79,2,3,31,22,19,12,2,3,0,11,17,30,15,14,33,27,49,45,7,7,29,34,34,29,16,26,116,88]
[null,"Not computed",2,4,24,40,0,11,2,3,0,17,0,11,4,8,3,5,0,11,0,11,9,15,9,9,25,38,21,24,0,11,13,21,4,6,39,41,0,15]
[]
[]
[]
[null,"Calculated B25091. MORTGAGE STATUS BY SELECTED MONTHLY OWNER COSTS AS A PERCENTAGE OF HOUSEHOLD INCOME IN THE PAST 12 MONTHS "]
[null,"Universe:  OWNER-OCCUPIED HOUSING UNITS"]
[null,"Data Set: 2010-2014 American Community Survey 5-Year Estimates"]
[]
[null,null,"Albany",null,"Bartlett",null,"Brookfield",null,"Chatham",null,"Conway",null,"Eaton",null,"Effingham",null,"Freedom",null,"Hale's Location",null,"Hart's Location",null,"Jackson",null,"Madison",null,"Moultonborough",null,"Ossipee",null,"Sandwich",null,"Tamworth",null,"Tuftonboro",null,"Wakefield",null,"Wolfeboro"]
[null," ","Estimate","Margin of Error","Estimate","Margin of Error","Estimate","Margin of Error","Estimate","Margin of Error","Estimate","Margin of Error","Estimate","Margin of Error","Estimate","Margin of Error","Estimate","Margin of Error","Estimate","Margin of Error","Estimate","Margin of Error","Estimate","Margin of Error","Estimate","Margin of Error","Estimate","Margin of Error","Estimate","Margin of Error","Estimate","Margin of Error","Estimate","Margin of Error","Estimate","Margin of Error","Estimate","Margin of Error","Estimate","Margin of Error"]
[null,"Total:",{"$f":"C87","v":263},{"$f":"D87","v":55},{"$f":"E87","v":1155},180,289,62,134,33,2966,278,146,28,461,57,442,59,67,21,10,10,363,79,980,103,1591,121,1484,205,501,63,1047,156,805,107,2019,238,2214,217]
[null,"Less than 10.0 percent",{"$f":"C89+C100","v":33},{"$f":"SQRT((D89^2)+(D100^2))","v":13.038404810405298},{"$f":"E89+E100","v":239},{"$f":"SQRT((F89^2)+(F100^2))","v":114.17968295629481},{"$f":"G89+G100","v":18},{"$f":"SQRT((H89^2)+(H100^2))","v":14.866068747318506},{"$f":"I89+I100","v":26},{"$f":"SQRT((J89^2)+(J100^2))","v":15.297058540778355},{"$f":"K89+K100","v":328},{"$f":"SQRT((L89^2)+(L100^2))","v":110.35397591387454},{"$f":"M89+M100","v":30},{"$f":"SQRT((N89^2)+(N100^2))","v":16.763054614240211},{"$f":"O89+O100","v":42},{"$f":"SQRT((P89^2)+(P100^2))","v":23.021728866442675},{"$f":"Q89+Q100","v":42},{"$f":"SQRT((R89^2)+(R100^2))","v":22.825424421026653},{"$f":"S89+S100","v":18},{"$f":"SQRT((T89^2)+(T100^2))","v":11.180339887498949},{"$f":"U89+U100","v":4},{"$f":"SQRT((V89^2)+(V100^2))","v":12.529964086141668},{"$f":"W89+W100","v":87},{"$f":"SQRT((X89^2)+(X100^2))","v":41.182520563948003},79,{"$f":"SQRT((Z89^2)+(Z100^2))","v":39.560080889704963},{"$f":"AA89+AA100","v":393},{"$f":"SQRT((AB89^2)+(AB100^2))","v":130.92364186807515},{"$f":"AC89+AC100","v":112},{"$f":"SQRT((AD89^2)+(AD100^2))","v":49.244289008980523},{"$f":"AE89+AE100","v":75},{"$f":"SQRT((AF89^2)+(AF100^2))","v":25.317977802344327},{"$f":"AG89+AG100","v":179},{"$f":"SQRT((AH89^2)+(AH100^2))","v":102.35721762533407},{"$f":"AI89+AI100","v":136},{"$f":"SQRT((AJ89^2)+(AJ100^2))","v":70.213958726167832},{"$f":"AK89+AK100","v":212},{"$f":"SQRT((AL89^2)+(AL100^2))","v":99.201814499534237},{"$f":"AM89+AM100","v":362},{"$f":"SQRT((AN89^2)+(AN100^2))","v":146.20875486782589}]
[null,"10.0 to 14.9 percent",52,24.839484696748443,217,103.9471019317037,41,26,32,15.620499351813308,508,196.11476232043319,25,13.416407864998739,96,32.015621187164243,79,31.32091952673165,8,12.529964086141668,4,13.038404810405298,82,{"$f":"SQRT((X90^2)+(X101^2))","v":41.400483088968905},157,65.115282384398824,186,66.2872536767062,240,96.566039579139826,92,32.557641192199412,98,79.762146410437069,120,61.71709649683789,158,113.84199576606166,410,122.28654872879518]
[null,"15.0 to 19.9 percent",36,23.769728648009426,127,81.055536516637773,54,26.248809496813376,13,9.2195444572928871,510,148.22280526288793,15,10.440306508910551,73,27.018512172212592,58,19.697715603592208,8,7.0710678118654755,2,11.704699910719626,65,38.948684188300895,194,71.589105316381762,311,105.6882207249228,263,91.400218818118816,74,27.313000567495326,130,60.827625302982199,92,39.824615503479755,232,120.41594578792295,394,149.78985279383915]
[null,"20.0 to 24.9 percent",35,25.179356624028344,62,57.070132293521098,46,25.495097567963924,14,11.704699910719626,263,125.93649193144932,20,14.317821063276353,54,21.633307652783937,71,26.419689627245813,4,4.2426406871192848,0,15.556349186104045,34,27.018512172212592,132,57.314919523628397,189,67.007462271003817,160,75.286120898874842,70,25.495097567963924,196,101.9803902718557,147,54.405882034941776,255,119.4361754243663,338,145.96232390586277]
[null,"25.0 to 29.9 percent",33,27.313000567495326,207,110.11357772772621,12,16.278820596099706,7,7.2111025509279782,530,160.31219541881399,4,11.704699910719626,24,12.529964086141668,39,18.867962264113206,7,5.8309518948453007,0,15.556349186104045,36,26.40075756488817,88,40.792156108742276,129,72.73238618387272,135,84.011903918432893,39,21.023796041628639,87,48.270073544588683,86,50.219518117958877,212,141.90489773083945,197,101.20276676059801]
[null,"30.0 to 34.9 percent",13,15.556349186104045,101,70,20,13.928388277184119,8,7.2111025509279782,201,109.65856099730654,20,11.661903789690601,39,20.615528128088304,39,19.104973174542799,7,6.7082039324993694,0,15.556349186104045,2,11.401754250991379,94,60.016664352494629,48,41.617304093369626,108,73.355299740373226,46,19.416487838947599,122,91.662424144247893,57,40.607881008493905,313,171.99127884866721,77,52.801515129776341]
[null,"35.0 to 39.9 percent",10,20.248456731316587,19,22.825424421026653,17,19.416487838947599,7,13.601470508735444,160,84.380092438915952,9,8.0622577482985491,19,10.770329614269007,16,10,0,15.556349186104045,0,15.556349186104045,18,17.464249196572979,86,63.28506932918696,95,52.611785751863621,88,55.946402922797461,36,23.430749027719962,22,24.207436873820409,36,28.635642126552707,166,123.06502346320826,24,28.301943396169811]
[null,"40.0 to 49.9 percent",24,20.615528128088304,48,52.172789842982326,31,24.596747752497688,8,10,111,49.648766349225639,8,12.165525060596439,29,19.235384061671343,32,17.4928556845359,2,12.083045973594572,0,15.556349186104045,11,17.029386365926403,105,59.059292240933601,48,33.837848631377263,176,101.53324578678651,18,13.45362404707371,63,44.147480109288232,49,40.447496832313369,233,128.86038956948718,104,77.466121627457255]
[null,"50.0 percent or more",25,16.763054614240211,111,75.432088662584434,50,26.40075756488817,17,12.649110640673518,355,132.20060514233663,15,10.440306508910551,81,33.301651610693426,63,24.186773244895647,13,7.6157731058639087,0,15.556349186104045,19,30.14962686336267,36,24.413111231467404,148,64.884512790033341,181,96.176920308356728,51,26.92582403567252,137,100.90094152187085,78,37.013511046643494,199,97.529482721892876,308,145.60219778561037]
[null,"Not computed",2,11.704699910719626,24,41.484937025383083,0,15.556349186104045,2,11.401754250991379,0,24.041630560342615,0,15.556349186104045,4,13.601470508735444,3,12.083045973594572,0,15.556349186104045,0,15.556349186104045,9,18.601075237738275,9,14.212670403551895,44,49.678969393496885,21,26.40075756488817,0,15.556349186104045,13,23.706539182259394,4,12.529964086141668,39,43.657759905886145,0,21.213203435596427]
[]
[]
[]
[]
[null,"Calculated MONTHLY OWNER COSTS AS A PERCENTAGE OF HOUSEHOLD INCOME IN THE PAST 12 MONTHS "]
[null,"Universe:  OWNER-OCCUPIED HOUSING UNITS"]
[null,"Data Set: 2010-2014 American Community Survey 5-Year Estimates"]
[null,null,"Albany",null,"Bartlett",null,"Brookfield",null,"Chatham",null,"Conway",null,"Eaton",null,"Effingham",null,"Freedom",null,"Hales Location",null,"Harts Location",null,"Jackson",null,"Madison",null,"Moultonborough",null,"Ossipee",null,"Sandwich",null,"Tamworth",null,"Tuftonboro",null,"Wakefield",null,"Wolfeboro"]
[null," ","Estimate","Margin of Error","Estimate","Margin of Error","Estimate","Margin of Error","Estimate","Margin of Error","Estimate","Margin of Error","Estimate","Margin of Error","Estimate","Margin of Error","Estimate","Margin of Error","Estimate","Margin of Error","Estimate","Margin of Error","Estimate","Margin of Error","Estimate","Margin of Error","Estimate","Margin of Error","Estimate","Margin of Error","Estimate","Margin of Error","Estimate","Margin of Error","Estimate","Margin of Error","Estimate","Margin of Error","Estimate","Margin of Error"]
[null,"Total:",{"$f":"C119","v":263},55,1155,180,289,62,134,33,2966,278,146,28,461,57,442,59,67,21,10,10,363,79,980,103,1591,121,1484,205,501,63,1047,156,805,107,2019,238,2214,217]
[null,"Less than 20% of HH Income",{"$f":"C120+C121+C122","v":121},{"$f":"SQRT((D120^2)+(D121^2)+(D122^2))","v":36.76955262170047},{"$f":"E120+E121+E122","v":583},{"$f":"SQRT((F120^2)+(F121^2)+(F122^2))","v":174.39036670642102},{"$f":"G120+G121+G122","v":113},{"$f":"SQRT((H120^2)+(H121^2)+(H122^2))","v":39.824615503479755},{"$f":"I120+I121+I122","v":71},{"$f":"SQRT((J120^2)+(J121^2)+(J122^2))","v":23.727621035409346},{"$f":"K120+K121+K122","v":1346},{"$f":"SQRT((L120^2)+(L121^2)+(L122^2))","v":269.46057225501471},{"$f":"M120+M121+M122","v":70},{"$f":"SQRT((N120^2)+(N121^2)+(N122^2))","v":23.874672772626646},{"$f":"O120+O121+O122","v":211},{"$f":"SQRT((P120^2)+(P121^2)+(P122^2))","v":47.801673610868477},{"$f":"Q120+Q121+Q122","v":179},{"$f":"SQRT((R120^2)+(R121^2)+(R122^2))","v":43.474130238568314},{"$f":"S120+S121+S122","v":34},{"$f":"SQRT((T120^2)+(T121^2)+(T122^2))","v":18.220867158288598},{"$f":"U120+U121+U122","v":10},{"$f":"SQRT((V120^2)+(V121^2)+(V122^2))","v":21.540659228538015},{"$f":"W120+W121+W122","v":234},{"$f":"SQRT((X120^2)+(X121^2)+(X122^2))","v":70.192592201741633},{"$f":"Y120+Y121+Y122","v":430},{"$f":"SQRT((Z120^2)+(Z121^2)+(Z122^2))","v":104.54664030948101},{"$f":"AA120+AA121+AA122","v":890},{"$f":"SQRT((AB120^2)+(AB121^2)+(AB122^2))","v":180.84523770340206},{"$f":"AC120+AC121+AC122","v":615},{"$f":"SQRT((AD120^2)+(AD121^2)+(AD122^2))","v":141.78857499812881},{"$f":"AE120+AE121+AE122","v":241},{"$f":"SQRT((AF120^2)+(AF121^2)+(AF122^2))","v":49.467160824126545},{"$f":"AG120+AG121+AG122","v":407},{"$f":"SQRT((AH120^2)+(AH121^2)+(AH122^2))","v":143.31433982682961},{"$f":"AI120+AI121+AI122","v":348},{"$f":"SQRT((AJ120^2)+(AJ121^2)+(AJ122^2))","v":101.61200716450787},{"$f":"AK120+AK121+AK122","v":602},{"$f":"SQRT((AL120^2)+(AL121^2)+(AL122^2))","v":193.13466804279341},{"$f":"AM120+AM121+AM122","v":1166},{"$f":"SQRT((AN120^2)+(AN121^2)+(AN122^2))","v":242.42112119202815}]
[null," 20% to 29.9% of HH Income",{"$f":"C123+C124","v":68},{"$f":"SQRT((D123^2)+(D124^2))","v":37.148351242013419},{"$f":"E123+E124","v":269},{"$f":"SQRT((F123^2)+(F124^2))","v":124.02419118865481},{"$f":"G123+G124","v":58},{"$f":"SQRT((H123^2)+(H124^2))","v":30.248966924508348},{"$f":"I123+I124","v":21},{"$f":"SQRT((J123^2)+(J124^2))","v":13.74772708486752},{"$f":"K123+K124","v":793},{"$f":"SQRT((L123^2)+(L124^2))","v":203.86269889315213},{"$f":"M123+M124","v":24},{"$f":"SQRT((N123^2)+(N124^2))","v":18.493242008906929},{"$f":"O123+O124","v":78},{"$f":"SQRT((P123^2)+(P124^2))","v":25},{"$f":"Q123+Q124","v":110},{"$f":"SQRT((R123^2)+(R124^2))","v":32.465366161495851},{"$f":"S123+S124","v":11},{"$f":"SQRT((T123^2)+(T124^2))","v":7.2111025509279782},{"$f":"U123+U124","v":0},{"$f":"SQRT((V123^2)+(V124^2))","v":22},{"$f":"W123+W124","v":70},{"$f":"SQRT((X123^2)+(X124^2))","v":37.775653535048207},{"$f":"Y123+Y124","v":220},{"$f":"SQRT((Z123^2)+(Z124^2))","v":70.34912934784623},{"$f":"AA123+AA124","v":318},{"$f":"SQRT((AB123^2)+(AB124^2))","v":98.893882520608926},{"$f":"AC123+AC124","v":295},{"$f":"SQRT((AD123^2)+(AD124^2))","v":112.80957406177899},{"$f":"AE123+AE124","v":109},{"$f":"SQRT((AF123^2)+(AF124^2))","v":33.045423283716609},{"$f":"AG123+AG124","v":283},{"$f":"SQRT((AH123^2)+(AH124^2))","v":112.82730166054668},{"$f":"AI123+AI124","v":233},{"$f":"SQRT((AJ123^2)+(AJ124^2))","v":74.040529441651074},{"$f":"AK123+AK124","v":467},{"$f":"SQRT((AL123^2)+(AL124^2))","v":185.47776147020969},{"$f":"AM123+AM124","v":535},{"$f":"SQRT((AN123^2)+(AN124^2))","v":177.61475163960904}]
[null," Less Than 30% of HH Income",{"$f":"C120+C121+C122+C123+C124","v":189},{"$f":"SQRT((D120^2)+(D121^2)+(D122^2)+(D123^2)+(D124^2))","v":52.268537381487917},{"$f":"E120+E121+E122+E123+E124","v":852},{"$f":"SQRT((F120^2)+(F121^2)+(F122^2)+(F123^2)+(F124^2))","v":213.99532705178402},{"$f":"G120+G121+G122+G123+G124","v":171},{"$f":"SQRT((H120^2)+(H121^2)+(H122^2)+(H123^2)+(H124^2))","v":50.009999000199947},{"$f":"I120+I121+I122+I123+I124","v":92},{"$f":"SQRT((J120^2)+(J121^2)+(J122^2)+(J123^2)+(J124^2))","v":27.422618401604176},{"$f":"K120+K121+K122+K123+K124","v":2139},{"$f":"SQRT((L120^2)+(L121^2)+(L122^2)+(L123^2)+(L124^2))","v":337.88903503961177},{"$f":"M120+M121+M122+M123+M124","v":94},{"$f":"SQRT((N120^2)+(N121^2)+(N122^2)+(N123^2)+(N124^2))","v":30.199337741082999},{"$f":"O120+O121+O122+O123+O124","v":289},{"$f":"SQRT((P120^2)+(P121^2)+(P122^2)+(P123^2)+(P124^2))","v":53.944415837044708},{"$f":"Q120+Q121+Q122+Q123+Q124","v":289},{"$f":"SQRT((R120^2)+(R121^2)+(R122^2)+(R123^2)+(R124^2))","v":54.258639865002145},{"$f":"S120+S121+S122+S123+S124","v":45},{"$f":"SQRT((T120^2)+(T121^2)+(T122^2)+(T123^2)+(T124^2))","v":19.595917942265423},{"$f":"U120+U121+U122+U123+U124","v":10},{"$f":"SQRT((V120^2)+(V121^2)+(V122^2)+(V123^2)+(V124^2))","v":30.789608636681304},{"$f":"W120+W121+W122+W123+W124","v":304},{"$f":"SQRT((X120^2)+(X121^2)+(X122^2)+(X123^2)+(X124^2))","v":79.711981533518539},{"$f":"Y120+Y121+Y122+Y123+Y124","v":650},{"$f":"SQRT((Z120^2)+(Z121^2)+(Z122^2)+(Z123^2)+(Z124^2))","v":126.01190419956362},{"$f":"AA120+AA121+AA122+AA123+AA124","v":1208},{"$f":"SQRT((AB120^2)+(AB121^2)+(AB122^2)+(AB123^2)+(AB124^2))","v":206.11889772653063},{"$f":"AC120+AC121+AC122+AC123+AC124","v":910},{"$f":"SQRT((AD120^2)+(AD121^2)+(AD122^2)+(AD123^2)+(AD124^2))","v":181.19050747762699},{"$f":"AE120+AE121+AE122+AE123+AE124","v":350},{"$f":"SQRT((AF120^2)+(AF121^2)+(AF122^2)+(AF123^2)+(AF124^2))","v":59.489494870943389},{"$f":"AG120+AG121+AG122+AG123+AG124","v":690},{"$f":"SQRT((AH120^2)+(AH121^2)+(AH122^2)+(AH123^2)+(AH124^2))","v":182.39791665476884},{"$f":"AI120+AI121+AI122+AI123+AI124","v":581},{"$f":"SQRT((AJ120^2)+(AJ121^2)+(AJ122^2)+(AJ123^2)+(AJ124^2))","v":125.72589232135121},{"$f":"AK120+AK121+AK122+AK123+AK124","v":1069},{"$f":"SQRT((AL120^2)+(AL121^2)+(AL122^2)+(AL123^2)+(AL124^2))","v":267.77415857397443},{"$f":"AM120+AM121+AM122+AM123+AM124","v":1701},{"$f":"SQRT((AN120^2)+(AN121^2)+(AN122^2)+(AN123^2)+(AN124^2))","v":300.52454142715203}]
[null," 30% or More of HH Income",{"$f":"C125+C126+C127+C128","v":72},{"$f":"SQRT((D125^2)+(D126^2)+(D127^2)+(D128^2))","v":36.851051545376556},{"$f":"E125+E126+E127+E128","v":279},{"$f":"SQRT((F125^2)+(F126^2)+(F127^2)+(F128^2))","v":117.61377470347595},{"$f":"G125+G126+G127+G128","v":118},{"$f":"SQRT((H125^2)+(H126^2)+(H127^2)+(H128^2))","v":43.278170016764804},{"$f":"I125+I126+I127+I128","v":40},{"$f":"SQRT((J125^2)+(J126^2)+(J127^2)+(J128^2))","v":22.293496809607955},{"$f":"K125+K126+K127+K128","v":827},{"$f":"SQRT((L125^2)+(L126^2)+(L127^2)+(L128^2))","v":197.70432468714486},{"$f":"M125+M126+M127+M128","v":52},{"$f":"SQRT((N125^2)+(N126^2)+(N127^2)+(N128^2))","v":21.400934559032695},{"$f":"O125+O126+O127+O128","v":168},{"$f":"SQRT((P125^2)+(P126^2)+(P127^2)+(P128^2))","v":44.944410108488462},{"$f":"Q125+Q126+Q127+Q128","v":150},{"$f":"SQRT((R125^2)+(R126^2)+(R127^2)+(R128^2))","v":36.823905279043935},{"$f":"S125+S126+S127+S128","v":22},{"$f":"SQRT((T125^2)+(T126^2)+(T127^2)+(T128^2))","v":22.158519806160339},{"$f":"U125+U126+U127+U128","v":0},{"$f":"SQRT((V125^2)+(V126^2)+(V127^2)+(V128^2))","v":31.11269837220809},{"$f":"W125+W126+W127+W128","v":50},{"$f":"SQRT((X125^2)+(X126^2)+(X127^2)+(X128^2))","v":40.422765862815474},{"$f":"Y125+Y126+Y127+Y128","v":321},{"$f":"SQRT((Z125^2)+(Z126^2)+(Z127^2)+(Z128^2))","v":108.1249277456406},{"$f":"AA125+AA126+AA127+AA128","v":339},{"$f":"SQRT((AB125^2)+(AB126^2)+(AB127^2)+(AB128^2))","v":99.272352646645786},{"$f":"AC125+AC126+AC127+AC128","v":553},{"$f":"SQRT((AD125^2)+(AD126^2)+(AD127^2)+(AD128^2))","v":167.54103974847476},{"$f":"AE125+AE126+AE127+AE128","v":151},{"$f":"SQRT((AF125^2)+(AF126^2)+(AF127^2)+(AF128^2))","v":42.80186911806539},{"$f":"AG125+AG126+AG127+AG128","v":344},{"$f":"SQRT((AH125^2)+(AH126^2)+(AH127^2)+(AH128^2))","v":145.32033581023683},{"$f":"AI125+AI126+AI127+AI128","v":220},{"$f":"SQRT((AJ125^2)+(AJ126^2)+(AJ127^2)+(AJ128^2))","v":73.993242934743705},{"$f":"AK125+AK126+AK127+AK128","v":911},{"$f":"SQRT((AL125^2)+(AL126^2)+(AL127^2)+(AL128^2))","v":266.16348359607861},{"$f":"AM125+AM126+AM127+AM128","v":513},{"$f":"SQRT((AN125^2)+(AN126^2)+(AN127^2)+(AN128^2))","v":175.47079529084036}]
[null," 30% to 34.9% of HH Income",{"$f":"C125","v":13},{"$f":"D125","v":15.556349186104045},{"$f":"E125","v":101},70,20,13.928388277184119,8,7.2111025509279782,201,109.65856099730654,20,11.661903789690601,39,20.615528128088304,39,19.104973174542799,7,6.7082039324993694,0,15.556349186104045,2,11.401754250991379,94,60.016664352494629,48,41.617304093369626,108,73.355299740373226,46,19.416487838947599,122,91.662424144247893,57,40.607881008493905,313,171.99127884866721,77,52.801515129776341]
[null," Less Than 35% of HH Income",{"$f":"C120+C121+C122+C123+C124+C125","v":202},{"$f":"SQRT((D120^2)+(D121^2)+(D122^2)+(D123^2)+(D124^2)+(D125^2))","v":54.534392817743921},{"$f":"E120+E121+E122+E123+E124+E125","v":953},{"$f":"SQRT((F120^2)+(F121^2)+(F122^2)+(F123^2)+(F124^2)+(F125^2))","v":225.15328112199475},{"$f":"G120+G121+G122+G123+G124+G125","v":191},{"$f":"SQRT((H120^2)+(H121^2)+(H122^2)+(H123^2)+(H124^2)+(H125^2))","v":51.913389409669641},{"$f":"I120+I121+I122+I123+I124+I125","v":100},{"$f":"SQRT((J120^2)+(J121^2)+(J122^2)+(J123^2)+(J124^2)+(J125^2))","v":28.354893757515651},{"$f":"K120+K121+K122+K123+K124+K125","v":2340},{"$f":"SQRT((L120^2)+(L121^2)+(L122^2)+(L123^2)+(L124^2)+(L125^2))","v":355.23794842330682},{"$f":"M120+M121+M122+M123+M124+M125","v":114},{"$f":"SQRT((N120^2)+(N121^2)+(N122^2)+(N123^2)+(N124^2)+(N125^2))","v":32.372828112477293},{"$f":"O120+O121+O122+O123+O124+O125","v":328},{"$f":"SQRT((P120^2)+(P121^2)+(P122^2)+(P123^2)+(P124^2)+(P125^2))","v":57.749458871923643},{"$f":"Q120+Q121+Q122+Q123+Q124+Q125","v":328},{"$f":"SQRT((R120^2)+(R121^2)+(R122^2)+(R123^2)+(R124^2)+(R125^2))","v":57.523908073078623},{"$f":"S120+S121+S122+S123+S124+S125","v":52},{"$f":"SQRT((T120^2)+(T121^2)+(T122^2)+(T123^2)+(T124^2)+(T125^2))","v":20.71231517720798},{"$f":"U120+U121+U122+U123+U124+U125","v":10},{"$f":"SQRT((V120^2)+(V121^2)+(V122^2)+(V123^2)+(V124^2)+(V125^2))","v":34.496376621320678},{"$f":"W120+W121+W122+W123+W124+W125","v":306},{"$f":"SQRT((X120^2)+(X121^2)+(X122^2)+(X123^2)+(X124^2)+(X125^2))","v":80.523288556789581},{"$f":"Y120+Y121+Y122+Y123+Y124+Y125","v":744},{"$f":"SQRT((Z120^2)+(Z121^2)+(Z122^2)+(Z123^2)+(Z124^2)+(Z125^2))","v":139.57435294494474},{"$f":"AA120+AA121+AA122+AA123+AA124+AA125","v":1256},{"$f":"SQRT((AB120^2)+(AB121^2)+(AB122^2)+(AB123^2)+(AB124^2)+(AB125^2))","v":210.27838690650069},{"$f":"AC120+AC121+AC122+AC123+AC124+AC125","v":1018},{"$f":"SQRT((AD120^2)+(AD121^2)+(AD122^2)+(AD123^2)+(AD124^2)+(AD125^2))","v":195.47634127944997},{"$f":"AE120+AE121+AE122+AE123+AE124+AE125","v":396},{"$f":"SQRT((AF120^2)+(AF121^2)+(AF122^2)+(AF123^2)+(AF124^2)+(AF125^2))","v":62.57795138864806},{"$f":"AG120+AG121+AG122+AG123+AG124+AG125","v":812},{"$f":"SQRT((AH120^2)+(AH121^2)+(AH122^2)+(AH123^2)+(AH124^2)+(AH125^2))","v":204.13475941152208},{"$f":"AI120+AI121+AI122+AI123+AI124+AI125","v":638},{"$f":"SQRT((AJ120^2)+(AJ121^2)+(AJ122^2)+(AJ123^2)+(AJ124^2)+(AJ125^2))","v":132.12115651930995},{"$f":"AK120+AK121+AK122+AK123+AK124+AK125","v":1382},{"$f":"SQRT((AL120^2)+(AL121^2)+(AL122^2)+(AL123^2)+(AL124^2)+(AL125^2))","v":318.2514728952562},{"$f":"AM120+AM121+AM122+AM123+AM124+AM125","v":1778},{"$f":"SQRT((AN120^2)+(AN121^2)+(AN122^2)+(AN123^2)+(AN124^2)+(AN125^2))","v":305.12784205968489}]
[null," 35% or More of HH Income",{"$f":"C126+C127+C128","v":59},{"$f":"SQRT((D126^2)+(D127^2)+(D128^2))","v":33.406586176980134},{"$f":"E126+E127+E128","v":178},{"$f":"SQRT((F126^2)+(F127^2)+(F128^2))","v":94.51454914456292},{"$f":"G126+G127+G128","v":98},{"$f":"SQRT((H126^2)+(H127^2)+(H128^2))","v":40.975602497095757},{"$f":"I126+I127+I128","v":32},{"$f":"SQRT((J126^2)+(J127^2)+(J128^2))","v":21.095023109728988},{"$f":"K126+K127+K128","v":626},{"$f":"SQRT((L126^2)+(L127^2)+(L128^2))","v":164.50531906294094},{"$f":"M126+M127+M128","v":32},{"$f":"SQRT((N126^2)+(N127^2)+(N128^2))","v":17.944358444926358},{"$f":"O126+O127+O128","v":129},{"$f":"SQRT((P126^2)+(P127^2)+(P128^2))","v":39.937451095431719},{"$f":"Q126+Q127+Q128","v":111},{"$f":"SQRT((R126^2)+(R127^2)+(R128^2))","v":31.480152477394384},{"$f":"S126+S127+S128","v":15},{"$f":"SQRT((T126^2)+(T127^2)+(T128^2))","v":21.118712081942874},{"$f":"U126+U127+U128","v":0},{"$f":"SQRT((V126^2)+(V127^2)+(V128^2))","v":26.944387170614956},{"$f":"W126+W127+W128","v":48},{"$f":"SQRT((X126^2)+(X127^2)+(X128^2))","v":38.781438859330635},{"$f":"Y126+Y127+Y128","v":227},{"$f":"SQRT((Z126^2)+(Z127^2)+(Z128^2))","v":89.938868127189593},{"$f":"AA126+AA127+AA128","v":291},{"$f":"SQRT((AB126^2)+(AB127^2)+(AB128^2))","v":90.127687199883255},{"$f":"AC126+AC127+AC128","v":445},{"$f":"SQRT((AD126^2)+(AD127^2)+(AD128^2))","v":150.6286825275983},{"$f":"AE126+AE127+AE128","v":105},{"$f":"SQRT((AF126^2)+(AF127^2)+(AF128^2))","v":38.144462245521304},{"$f":"AG126+AG127+AG128","v":222},{"$f":"SQRT((AH126^2)+(AH127^2)+(AH128^2))","v":112.76524287208359},{"$f":"AI126+AI127+AI128","v":163},{"$f":"SQRT((AJ126^2)+(AJ127^2)+(AJ128^2))","v":61.854668376768458},{"$f":"AK126+AK127+AK128","v":598},{"$f":"SQRT((AL126^2)+(AL127^2)+(AL128^2))","v":203.13049992554048},{"$f":"AM126+AM127+AM128","v":436},{"$f":"SQRT((AN126^2)+(AN127^2)+(AN128^2))","v":167.33798134314875}]
[null," 50% or More of HH Income",{"$f":"C128","v":25},{"$f":"D128","v":16.763054614240211},{"$f":"E128","v":111},75.432088662584434,50,26.40075756488817,17,12.649110640673518,355,132.20060514233663,15,10.440306508910551,81,33.301651610693426,63,24.186773244895647,13,7.6157731058639087,0,15.556349186104045,19,30.14962686336267,36,24.413111231467404,148,64.884512790033341,181,96.176920308356728,51,26.92582403567252,137,100.90094152187085,78,37.013511046643494,199,97.529482721892876,308,145.60219778561037]
[null,"Not computed",{"$f":"C129","v":2},{"$f":"D129","v":11.704699910719626},24,41.484937025383083,0,15.556349186104045,2,11.401754250991379,0,24.041630560342615,0,15.556349186104045,4,13.601470508735444,3,12.083045973594572,0,15.556349186104045,0,15.556349186104045,9,18.601075237738275,9,14.212670403551895,44,49.678969393496885,21,26.40075756488817,0,15.556349186104045,13,23.706539182259394,4,12.529964086141668,39,43.657759905886145,0,21.213203435596427]
[]
[]
[]
[null,"B25091. MORTGAGE STATUS BY SELECTED MONTHLY OWNER COSTS AS A PERCENTAGE OF HOUSEHOLD INCOME IN THE PAST 12 MONTHS "]
[null,"Universe:  OWNER-OCCUPIED HOUSING UNITS"]
[null,"Data Set: 2006-2010 American Community Survey 5-Year Estimates"]
[]
[null,null,"Alton",null,"Barnstead",null,"Belmont",null,"Center Harbor",null,"Gilford",null,"Gilmanton",null,"Laconia",null,"Meredith",null,"New Hampton",null,"Sanbornton",null,"Tilton"]
[null," ","Estimate","Margin of Error","Estimate","Margin of Error","Estimate","Margin of Error","Estimate","Margin of Error","Estimate","Margin of Error","Estimate","Margin of Error","Estimate","Margin of Error","Estimate","Margin of Error","Estimate","Margin of Error","Estimate","Margin of Error","Estimate","Margin of Error"]
[null,"Total:"]
[null,"Housing units with a mortgage:"]
[null,"Less than 10.0 percent"]
[null,"10.0 to 14.9 percent"]
[null,"15.0 to 19.9 percent"]
[null,"20.0 to 24.9 percent"]
[null,"25.0 to 29.9 percent"]
[null,"30.0 to 34.9 percent"]
[null,"35.0 to 39.9 percent"]
[null,"40.0 to 49.9 percent"]
[null,"50.0 percent or more"]
[null,"Not computed"]
[null,"Housing units without a mortgage:"]
[null,"Less than 10.0 percent"]
[null,"10.0 to 14.9 percent"]
[null,"15.0 to 19.9 percent"]
[null,"20.0 to 24.9 percent"]
[null,"25.0 to 29.9 percent"]
[null,"30.0 to 34.9 percent"]
[null,"35.0 to 39.9 percent"]
[null,"40.0 to 49.9 percent"]
[null,"50.0 percent or more"]
[null,"Not computed"]
[]
[]
[]
[null,"Calculated B25091. MORTGAGE STATUS BY SELECTED MONTHLY OWNER COSTS AS A PERCENTAGE OF HOUSEHOLD INCOME IN THE PAST 12 MONTHS "]
[null,"Universe:  OWNER-OCCUPIED HOUSING UNITS"]
[null,"Data Set: 2006-2010 American Community Survey 5-Year Estimates"]
[]
[null,null,"Alton",null,"Barnstead",null,"Belmont",null,"Center Harbor",null,"Gilford",null,"Gilmanton",null,"Laconia",null,"Meredith",null,"New Hampton",null,"Sanbornton",null,"Tilton"]
[null," ","Estimate","Margin of Error","Estimate","Margin of Error","Estimate","Margin of Error","Estimate","Margin of Error","Estimate","Margin of Error","Estimate","Margin of Error","Estimate","Margin of Error","Estimate","Margin of Error","Estimate","Margin of Error","Estimate","Margin of Error","Estimate","Margin of Error"]
[null,"Total:",{"$f":"C158","v":0},{"$f":"D158","v":0},{"$f":"E158","v":0},0,0,0,0,0,0,0,0,0,0,0,0,0,0,0,0,0,0,0]
[null,"Less than 10.0 percent",{"$f":"C160+C171","v":0},{"$f":"SQRT((D160^2)+(D171^2))","v":0},{"$f":"E160+E171","v":0},{"$f":"SQRT((F160^2)+(F171^2))","v":0},{"$f":"G160+G171","v":0},{"$f":"SQRT((H160^2)+(H171^2))","v":0},{"$f":"I160+I171","v":0},{"$f":"SQRT((J160^2)+(J171^2))","v":0},{"$f":"K160+K171","v":0},{"$f":"SQRT((L160^2)+(L171^2))","v":0},{"$f":"M160+M171","v":0},{"$f":"SQRT((N160^2)+(N171^2))","v":0},{"$f":"O160+O171","v":0},{"$f":"SQRT((P160^2)+(P171^2))","v":0},{"$f":"Q160+Q171","v":0},{"$f":"SQRT((R160^2)+(R171^2))","v":0},{"$f":"S160+S171","v":0},{"$f":"SQRT((T160^2)+(T171^2))","v":0},{"$f":"U160+U171","v":0},{"$f":"SQRT((V160^2)+(V171^2))","v":0},{"$f":"W160+W171","v":0},{"$f":"SQRT((X160^2)+(X171^2))","v":0}]
[null,"10.0 to 14.9 percent",0,0,0,0,0,0,0,0,0,0,0,0,0,0,0,0,0,0,0,0,0,{"$f":"SQRT((X161^2)+(X172^2))","v":0}]
[null,"15.0 to 19.9 percent",0,0,0,0,0,0,0,0,0,0,0,0,0,0,0,0,0,0,0,0,0,0]
[null,"20.0 to 24.9 percent",0,0,0,0,0,0,0,0,0,0,0,0,0,0,0,0,0,0,0,0,0,0]
[null,"25.0 to 29.9 percent",0,0,0,0,0,0,0,0,0,0,0,0,0,0,0,0,0,0,0,0,0,0]
[null,"30.0 to 34.9 percent",0,0,0,0,0,0,0,0,0,0,0,0,0,0,0,0,0,0,0,0,0,0]
[null,"35.0 to 39.9 percent",0,0,0,0,0,0,0,0,0,0,0,0,0,0,0,0,0,0,0,0,0,0]
[null,"40.0 to 49.9 percent",0,0,0,0,0,0,0,0,0,0,0,0,0,0,0,0,0,0,0,0,0,0]
[null,"50.0 percent or more",{"$f":"C168+C179","v":0},0,0,0,0,0,0,0,0,0,0,0,0,0,0,0,0,0,0,0,0,0]
[null,"Not computed",0,0,0,0,0,0,0,0,0,0,0,0,0,0,0,0,0,0,0,0,0,0]
[]
[]
[]
[]
[null,"Calculated MONTHLY OWNER COSTS AS A PERCENTAGE OF HOUSEHOLD INCOME IN THE PAST 12 MONTHS "]
[null,"Universe:  OWNER-OCCUPIED HOUSING UNITS"]
[null,"Data Set: 2006-2010 American Community Survey 5-Year Estimates"]
[null,null,"Alton",null,"Barnstead",null,"Belmont",null,"Center Harbor",null,"Gilford",null,"Gilmanton",null,"Laconia",null,"Meredith",null,"New Hampton",null,"Sanbornton",null,"Tilton"]
[null," ","Estimate","Margin of Error","Estimate","Margin of Error","Estimate","Margin of Error","Estimate","Margin of Error","Estimate","Margin of Error","Estimate","Margin of Error","Estimate","Margin of Error","Estimate","Margin of Error","Estimate","Margin of Error","Estimate","Margin of Error","Estimate","Margin of Error"]
[null,"Total:",{"$f":"C190","v":0},0,0,0,0,0,0,0,0,0,0,0,0,0,0,0,0,0,0,0,0,0]
[null,"Less than 20% of HH Income",{"$f":"C191+C192+C193","v":0},{"$f":"SQRT((D191^2)+(D192^2)+(D193^2))","v":0},{"$f":"E191+E192+E193","v":0},{"$f":"SQRT((F191^2)+(F192^2)+(F193^2))","v":0},{"$f":"G191+G192+G193","v":0},{"$f":"SQRT((H191^2)+(H192^2)+(H193^2))","v":0},{"$f":"I191+I192+I193","v":0},{"$f":"SQRT((J191^2)+(J192^2)+(J193^2))","v":0},{"$f":"K191+K192+K193","v":0},{"$f":"SQRT((L191^2)+(L192^2)+(L193^2))","v":0},{"$f":"M191+M192+M193","v":0},{"$f":"SQRT((N191^2)+(N192^2)+(N193^2))","v":0},{"$f":"O191+O192+O193","v":0},{"$f":"SQRT((P191^2)+(P192^2)+(P193^2))","v":0},{"$f":"Q191+Q192+Q193","v":0},{"$f":"SQRT((R191^2)+(R192^2)+(R193^2))","v":0},{"$f":"S191+S192+S193","v":0},{"$f":"SQRT((T191^2)+(T192^2)+(T193^2))","v":0},{"$f":"U191+U192+U193","v":0},{"$f":"SQRT((V191^2)+(V192^2)+(V193^2))","v":0},{"$f":"W191+W192+W193","v":0},{"$f":"SQRT((X191^2)+(X192^2)+(X193^2))","v":0}]
[null," 20% to 29.9% of HH Income",{"$f":"C194+C195","v":0},{"$f":"SQRT((D194^2)+(D195^2))","v":0},{"$f":"E194+E195","v":0},{"$f":"SQRT((F194^2)+(F195^2))","v":0},{"$f":"G194+G195","v":0},{"$f":"SQRT((H194^2)+(H195^2))","v":0},{"$f":"I194+I195","v":0},{"$f":"SQRT((J194^2)+(J195^2))","v":0},{"$f":"K194+K195","v":0},{"$f":"SQRT((L194^2)+(L195^2))","v":0},{"$f":"M194+M195","v":0},{"$f":"SQRT((N194^2)+(N195^2))","v":0},{"$f":"O194+O195","v":0},{"$f":"SQRT((P194^2)+(P195^2))","v":0},{"$f":"Q194+Q195","v":0},{"$f":"SQRT((R194^2)+(R195^2))","v":0},{"$f":"S194+S195","v":0},{"$f":"SQRT((T194^2)+(T195^2))","v":0},{"$f":"U194+U195","v":0},{"$f":"SQRT((V194^2)+(V195^2))","v":0},{"$f":"W194+W195","v":0},{"$f":"SQRT((X194^2)+(X195^2))","v":0}]
[null," Less Than 30% of HH Income",{"$f":"C191+C192+C193+C194+C195","v":0},{"$f":"SQRT((D191^2)+(D192^2)+(D193^2)+(D194^2)+(D195^2))","v":0},{"$f":"E191+E192+E193+E194+E195","v":0},{"$f":"SQRT((F191^2)+(F192^2)+(F193^2)+(F194^2)+(F195^2))","v":0},{"$f":"G191+G192+G193+G194+G195","v":0},{"$f":"SQRT((H191^2)+(H192^2)+(H193^2)+(H194^2)+(H195^2))","v":0},{"$f":"I191+I192+I193+I194+I195","v":0},{"$f":"SQRT((J191^2)+(J192^2)+(J193^2)+(J194^2)+(J195^2))","v":0},{"$f":"K191+K192+K193+K194+K195","v":0},{"$f":"SQRT((L191^2)+(L192^2)+(L193^2)+(L194^2)+(L195^2))","v":0},{"$f":"M191+M192+M193+M194+M195","v":0},{"$f":"SQRT((N191^2)+(N192^2)+(N193^2)+(N194^2)+(N195^2))","v":0},{"$f":"O191+O192+O193+O194+O195","v":0},{"$f":"SQRT((P191^2)+(P192^2)+(P193^2)+(P194^2)+(P195^2))","v":0},{"$f":"Q191+Q192+Q193+Q194+Q195","v":0},{"$f":"SQRT((R191^2)+(R192^2)+(R193^2)+(R194^2)+(R195^2))","v":0},{"$f":"S191+S192+S193+S194+S195","v":0},{"$f":"SQRT((T191^2)+(T192^2)+(T193^2)+(T194^2)+(T195^2))","v":0},{"$f":"U191+U192+U193+U194+U195","v":0},{"$f":"SQRT((V191^2)+(V192^2)+(V193^2)+(V194^2)+(V195^2))","v":0},{"$f":"W191+W192+W193+W194+W195","v":0},{"$f":"SQRT((X191^2)+(X192^2)+(X193^2)+(X194^2)+(X195^2))","v":0}]
[null," 30% or More of HH Income",{"$f":"C196+C197+C198+C199","v":0},{"$f":"SQRT((D196^2)+(D197^2)+(D198^2)+(D199^2))","v":0},{"$f":"E196+E197+E198+E199","v":0},{"$f":"SQRT((F196^2)+(F197^2)+(F198^2)+(F199^2))","v":0},{"$f":"G196+G197+G198+G199","v":0},{"$f":"SQRT((H196^2)+(H197^2)+(H198^2)+(H199^2))","v":0},{"$f":"I196+I197+I198+I199","v":0},{"$f":"SQRT((J196^2)+(J197^2)+(J198^2)+(J199^2))","v":0},{"$f":"K196+K197+K198+K199","v":0},{"$f":"SQRT((L196^2)+(L197^2)+(L198^2)+(L199^2))","v":0},{"$f":"M196+M197+M198+M199","v":0},{"$f":"SQRT((N196^2)+(N197^2)+(N198^2)+(N199^2))","v":0},{"$f":"O196+O197+O198+O199","v":0},{"$f":"SQRT((P196^2)+(P197^2)+(P198^2)+(P199^2))","v":0},{"$f":"Q196+Q197+Q198+Q199","v":0},{"$f":"SQRT((R196^2)+(R197^2)+(R198^2)+(R199^2))","v":0},{"$f":"S196+S197+S198+S199","v":0},{"$f":"SQRT((T196^2)+(T197^2)+(T198^2)+(T199^2))","v":0},{"$f":"U196+U197+U198+U199","v":0},{"$f":"SQRT((V196^2)+(V197^2)+(V198^2)+(V199^2))","v":0},{"$f":"W196+W197+W198+W199","v":0},{"$f":"SQRT((X196^2)+(X197^2)+(X198^2)+(X199^2))","v":0}]
[null," 30% to 34.9% of HH Income",{"$f":"C196","v":0},{"$f":"D196","v":0},{"$f":"E196","v":0},0,0,0,0,0,0,0,0,0,0,0,0,0,0,0,0,0,0,0]
[null," Less Than 35% of HH Income",{"$f":"C191+C192+C193+C194+C195+C196","v":0},{"$f":"SQRT((D191^2)+(D192^2)+(D193^2)+(D194^2)+(D195^2)+(D196^2))","v":0},{"$f":"E191+E192+E193+E194+E195+E196","v":0},{"$f":"SQRT((F191^2)+(F192^2)+(F193^2)+(F194^2)+(F195^2)+(F196^2))","v":0},{"$f":"G191+G192+G193+G194+G195+G196","v":0},{"$f":"SQRT((H191^2)+(H192^2)+(H193^2)+(H194^2)+(H195^2)+(H196^2))","v":0},{"$f":"I191+I192+I193+I194+I195+I196","v":0},{"$f":"SQRT((J191^2)+(J192^2)+(J193^2)+(J194^2)+(J195^2)+(J196^2))","v":0},{"$f":"K191+K192+K193+K194+K195+K196","v":0},{"$f":"SQRT((L191^2)+(L192^2)+(L193^2)+(L194^2)+(L195^2)+(L196^2))","v":0},{"$f":"M191+M192+M193+M194+M195+M196","v":0},{"$f":"SQRT((N191^2)+(N192^2)+(N193^2)+(N194^2)+(N195^2)+(N196^2))","v":0},{"$f":"O191+O192+O193+O194+O195+O196","v":0},{"$f":"SQRT((P191^2)+(P192^2)+(P193^2)+(P194^2)+(P195^2)+(P196^2))","v":0},{"$f":"Q191+Q192+Q193+Q194+Q195+Q196","v":0},{"$f":"SQRT((R191^2)+(R192^2)+(R193^2)+(R194^2)+(R195^2)+(R196^2))","v":0},{"$f":"S191+S192+S193+S194+S195+S196","v":0},{"$f":"SQRT((T191^2)+(T192^2)+(T193^2)+(T194^2)+(T195^2)+(T196^2))","v":0},{"$f":"U191+U192+U193+U194+U195+U196","v":0},{"$f":"SQRT((V191^2)+(V192^2)+(V193^2)+(V194^2)+(V195^2)+(V196^2))","v":0},{"$f":"W191+W192+W193+W194+W195+W196","v":0},{"$f":"SQRT((X191^2)+(X192^2)+(X193^2)+(X194^2)+(X195^2)+(X196^2))","v":0}]
[null," 35% or More of HH Income",{"$f":"C197+C198+C199","v":0},{"$f":"SQRT((D197^2)+(D198^2)+(D199^2))","v":0},{"$f":"E197+E198+E199","v":0},{"$f":"SQRT((F197^2)+(F198^2)+(F199^2))","v":0},{"$f":"G197+G198+G199","v":0},{"$f":"SQRT((H197^2)+(H198^2)+(H199^2))","v":0},{"$f":"I197+I198+I199","v":0},{"$f":"SQRT((J197^2)+(J198^2)+(J199^2))","v":0},{"$f":"K197+K198+K199","v":0},{"$f":"SQRT((L197^2)+(L198^2)+(L199^2))","v":0},{"$f":"M197+M198+M199","v":0},{"$f":"SQRT((N197^2)+(N198^2)+(N199^2))","v":0},{"$f":"O197+O198+O199","v":0},{"$f":"SQRT((P197^2)+(P198^2)+(P199^2))","v":0},{"$f":"Q197+Q198+Q199","v":0},{"$f":"SQRT((R197^2)+(R198^2)+(R199^2))","v":0},{"$f":"S197+S198+S199","v":0},{"$f":"SQRT((T197^2)+(T198^2)+(T199^2))","v":0},{"$f":"U197+U198+U199","v":0},{"$f":"SQRT((V197^2)+(V198^2)+(V199^2))","v":0},{"$f":"W197+W198+W199","v":0},{"$f":"SQRT((X197^2)+(X198^2)+(X199^2))","v":0}]
[null," 50% or More of HH Income",{"$f":"C199","v":0},{"$f":"D199","v":0},{"$f":"E199","v":0},0,0,0,0,0,0,0,0,0,0,0,0,0,0,0,0,0,0,0]
[null,"Not computed",{"$f":"C200","v":0},{"$f":"D200","v":0},0,0,0,0,0,0,0,0,0,0,0,0,0,0,0,0,0,0,0,0]

{"sheet":"ACS_Table_B25106","index":21,"n_rows":255,"n_cols":40,"rows_kept":255,"cut":false,"hidden":true,"merged":[]}
[null,"B25106. TENURE BY HOUSING COSTS AS A PERCENTAGE OF HOUSEHOLD INCOME IN THE PAST 12 MONTHS"]
[null,"Universe:  OCCUPIED HOUSING UNITS"]
[null,"Data Set: 2015-2019 American Community Survey 5-Year Estimates"]
[]
[null,null,"Albany",null,"Bartlett",null,"Brookfield",null,"Chatham",null,"Conway",null,"Eaton",null,"Effingham",null,"Freedom",null,"Hale's location",null,"Hart's Location",null,"Jackson",null,"Madison",null,"Moultonborough",null,"Ossipee",null,"Sandwich",null,"Tamworth",null,"Tuftonboro",null,"Wakefield",null,"Wolfeboro"]
[null,null,"Estimate","Margin of Error","Estimate","Margin of Error","Estimate","Margin of Error","Estimate","Margin of Error","Estimate","Margin of Error","Estimate","Margin of Error","Estimate","Margin of Error","Estimate","Margin of Error","Estimate","Margin of Error","Estimate","Margin of Error","Estimate","Margin of Error","Estimate","Margin of Error","Estimate","Margin of Error","Estimate","Margin of Error","Estimate","Margin of Error","Estimate","Margin of Error","Estimate","Margin of Error","Estimate","Margin of Error","Estimate","Margin of Error"]
[null,"Total:",307,58,1466,162,303,63,143,41,4632,241,135,39,594,82,611,81,89,20,24,16,416,88,977,94,1765,118,2011,164,643,81,1300,147,923,104,2117,185,3000,206]
[null,"Owner occupied housing units:",272,56,1074,213,289,64,132,37,3114,295,102,29,488,72,577,79,89,20,19,14,318,79,792,107,1531,124,1540,176,561,77,939,148,858,101,1901,196,2429,221]
[null,"Less than $20,000:",48,25,8,13,18,14,9,9,281,149,11,9,33,19,42,29,2,3,4,7,6,6,77,45,83,49,248,96,30,15,123,98,86,46,176,107,148,129]
[null,"Less than 20 percent",8,12,0,11,0,11,4,6,0,18,0,11,0,11,0,11,0,11,0,11,0,11,15,23,0,11,62,62,0,11,0,11,16,26,0,16,0,16]
[null,"20 to 29 percent",3,4,0,11,0,11,2,3,0,18,0,11,3,4,4,5,0,11,0,11,0,11,0,11,22,34,0,11,0,11,0,11,18,29,0,16,0,16]
[null,"30 percent or more",37,21,8,13,18,14,3,6,281,149,11,9,30,19,38,28,2,3,4,7,6,6,62,38,61,42,186,92,30,15,123,98,52,29,176,107,148,129]
[null,"$20,000 to $34,999:",31,22,216,106,17,11,15,9,423,138,6,6,51,21,50,19,5,5,6,8,24,21,74,36,111,79,269,124,35,22,194,112,91,38,193,113,450,190]
[null,"Less than 20 percent",10,13,62,57,4,5,4,5,94,61,0,11,13,15,7,7,0,11,0,11,0,11,6,8,0,11,118,91,3,5,0,11,42,23,0,16,82,74]
[null,"20 to 29 percent",8,8,8,12,0,11,6,6,78,61,0,11,23,14,0,11,0,11,0,11,8,12,22,27,14,16,13,20,9,8,83,71,18,16,81,85,89,94]
[null,"30 percent or more",13,15,146,84,13,10,5,5,251,104,6,6,15,11,43,18,5,5,6,8,16,17,46,22,97,77,138,81,23,20,111,81,31,20,112,81,279,135]
[null,"$35,000 to $49,999:",31,16,188,110,19,17,8,7,270,128,18,15,59,26,87,37,8,7,4,6,45,32,70,36,141,71,216,105,73,28,53,64,85,40,131,98,241,186]
[null,"Less than 20 percent",7,6,111,84,2,3,5,5,164,121,2,5,25,19,38,23,3,4,0,11,9,14,22,27,73,58,52,58,42,26,39,62,28,19,9,15,37,43]
[null,"20 to 29 percent",6,7,0,11,8,8,3,4,57,46,3,4,17,13,15,17,2,3,4,6,6,7,5,8,29,24,97,64,19,11,0,11,23,19,0,16,28,35]
[null,"30 percent or more",18,13,77,71,9,14,0,11,49,40,13,14,17,14,34,24,3,4,0,11,30,27,43,27,39,31,67,54,12,9,14,21,34,25,122,96,176,178]
[null,"$50,000 to $74,999:",39,20,153,105,48,24,39,23,579,173,20,16,91,35,125,38,23,11,2,4,74,44,170,68,396,102,375,121,106,31,202,95,217,63,529,170,272,121]
[null,"Less than 20 percent",22,17,58,59,18,18,18,13,197,90,10,13,22,18,43,26,11,9,2,4,46,35,73,39,190,67,172,105,51,24,82,58,135,57,220,114,160,94]
[null,"20 to 29 percent",5,5,66,74,12,10,15,15,233,127,10,7,36,27,58,25,4,5,0,11,17,21,59,45,118,78,91,58,32,17,106,78,53,34,160,114,85,81]
[null,"30 percent or more",12,9,29,44,18,11,6,8,149,98,0,11,33,17,24,17,8,7,0,11,11,18,38,32,88,45,112,67,23,13,14,20,29,16,149,113,27,44]
[null,"$75,000 or more:",123,32,509,172,187,50,58,25,1561,315,47,16,254,50,269,50,49,15,3,5,166,60,397,85,769,132,432,108,317,61,367,135,353,80,872,165,1298,261]
[null,"Less than 20 percent",109,32,363,151,133,41,49,25,1344,301,35,14,208,47,225,50,44,15,3,5,148,57,269,77,535,100,301,107,266,56,284,127,246,68,632,158,856,245]
[null,"20 to 29 percent",11,8,103,91,44,22,7,8,200,112,9,8,30,16,41,24,5,5,0,11,18,16,95,50,151,70,131,80,38,24,70,65,50,29,163,92,367,196]
[null,"30 percent or more",3,4,43,48,10,11,2,3,17,20,3,4,16,13,3,5,0,11,0,11,0,11,33,34,83,55,0,11,13,11,13,19,57,42,77,90,75,75]
[null,"Zero or negative income",0,11,0,11,0,11,3,5,0,18,0,11,0,11,4,5,2,4,0,11,3,4,4,7,31,25,0,11,0,11,0,11,26,26,0,16,20,33]
[null,"Renter occupied housing units:",35,17,392,159,14,18,11,14,1518,311,33,22,106,45,34,26,0,11,5,8,98,49,185,59,234,86,471,121,82,37,361,135,65,38,216,113,571,210]
[null,"Less than $20,000:",2,5,39,44,0,11,0,11,387,136,4,7,19,14,0,11,0,11,0,11,11,18,15,21,30,27,112,81,3,4,129,78,0,11,0,16,154,154]
[null,"Less than 20 percent",0,11,0,11,0,11,0,11,0,18,0,11,0,11,0,11,0,11,0,11,0,11,0,11,0,11,34,57,0,11,15,22,0,11,0,16,0,16]
[null,"20 to 29 percent",0,11,0,11,0,11,0,11,35,38,0,11,0,11,0,11,0,11,0,11,0,11,0,11,0,11,0,11,3,4,13,19,0,11,0,16,0,16]
[null,"30 percent or more",2,5,39,44,0,11,0,11,352,136,4,7,19,14,0,11,0,11,0,11,11,18,15,21,30,27,78,57,0,11,101,74,0,11,0,16,154,154]
[null,"$20,000 to $34,999:",11,11,44,59,6,11,11,14,268,170,9,10,13,15,4,7,0,11,0,11,0,11,44,34,9,15,139,100,15,18,138,96,8,12,63,79,243,156]
[null,"Less than 20 percent",0,11,0,11,0,11,0,11,0,18,0,11,0,11,0,11,0,11,0,11,0,11,0,11,9,15,31,50,0,11,0,11,0,11,0,16,0,16]
[null,"20 to 29 percent",2,4,16,25,0,11,0,11,93,118,2,3,0,11,0,11,0,11,0,11,0,11,17,28,0,11,29,48,4,8,13,19,8,12,0,16,123,116]
[null,"30 percent or more",9,10,28,44,6,11,11,14,175,119,7,10,13,15,4,7,0,11,0,11,0,11,27,20,0,11,79,70,11,17,125,98,0,11,63,79,120,119]
[null,"$35,000 to $49,999:",12,14,74,71,0,11,0,11,66,59,1,4,0,11,0,11,0,11,0,11,43,40,7,9,28,32,44,54,10,12,0,11,6,10,110,78,111,111]
[null,"Less than 20 percent",0,11,0,11,0,11,0,11,0,18,0,11,0,11,0,11,0,11,0,11,0,11,0,11,0,11,12,18,0,11,0,11,0,11,35,41,0,16]
[null,"20 to 29 percent",8,12,74,71,0,11,0,11,11,18,1,4,0,11,0,11,0,11,0,11,18,21,0,11,0,11,32,51,0,11,0,11,0,11,0,16,0,16]
[null,"30 percent or more",4,6,0,11,0,11,0,11,55,57,0,11,0,11,0,11,0,11,0,11,25,35,7,9,28,32,0,11,10,12,0,11,6,10,75,79,111,111]
[null,"$50,000 to $74,999:",0,11,33,40,0,11,0,11,473,193,12,13,23,16,8,9,0,11,0,11,24,30,37,26,62,48,10,15,18,17,65,65,10,8,28,21,18,29]
[null,"Less than 20 percent",0,11,0,11,0,11,0,11,127,106,10,13,0,11,0,11,0,11,0,11,24,30,16,24,24,36,10,15,0,11,53,64,0,11,28,21,18,29]
[null,"20 to 29 percent",0,11,25,38,0,11,0,11,264,132,2,3,20,16,5,7,0,11,0,11,0,11,14,15,28,31,0,11,14,17,0,11,5,8,0,16,0,16]
[null,"30 percent or more",0,11,8,14,0,11,0,11,82,106,0,11,3,6,3,4,0,11,0,11,0,11,7,10,10,16,0,11,4,5,12,19,5,7,0,16,0,16]
[null,"$75,000 or more:",5,5,66,69,8,14,0,11,276,182,0,11,25,24,18,22,0,11,5,8,10,16,61,40,30,28,96,84,20,18,29,29,19,31,0,16,14,24]
[null,"Less than 20 percent",5,5,0,11,8,14,0,11,276,182,0,11,25,24,18,22,0,11,5,8,10,16,35,34,7,11,96,84,3,5,13,19,0,11,0,16,0,16]
[null,"20 to 29 percent",0,11,66,69,0,11,0,11,0,18,0,11,0,11,0,11,0,11,0,11,0,11,26,24,23,26,0,11,13,16,16,23,0,11,0,16,14,24]
[null,"30 percent or more",0,11,0,11,0,11,0,11,0,18,0,11,0,11,0,11,0,11,0,11,0,11,0,11,0,11,0,11,4,6,0,11,19,31,0,16,0,16]
[null,"Zero or negative income",0,11,33,52,0,11,0,11,14,26,0,11,0,11,0,11,0,11,0,11,0,11,0,11,0,11,13,22,0,11,0,11,0,11,0,16,0,16]
[null,"No cash rent",5,6,103,85,0,11,0,11,34,52,7,7,26,24,4,5,0,11,0,11,10,16,21,25,75,50,57,37,16,16,0,11,22,20,15,23,31,35]
[]
[]
[]
[]
[]
[]
[null,"Calculated B25106. TENURE BY HOUSING COSTS AS A PERCENTAGE OF HOUSEHOLD INCOME IN THE PAST 12 MONTHS"]
[null,"Universe:  OCCUPIED HOUSING UNITS"]
[null,"Data Set: 2015-2019 American Community Survey 5-Year Estimates"]
[]
[null,null,"Albany",null,"Bartlett",null,"Brookfield",null,"Chatham",null,"Conway",null,"Eaton",null,"Effingham",null,"Freedom",null,"Hale's location",null,"Hart's Location",null,"Jackson",null,"Madison",null,"Moultonborough",null,"Ossipee",null,"Sandwich",null,"Tamworth",null,"Tuftonboro",null,"Wakefield",null,"Wolfeboro"]
[null,null,"Estimate","Margin of Error","Estimate","Margin of Error","Estimate","Margin of Error","Estimate","Margin of Error","Estimate","Margin of Error","Estimate","Margin of Error","Estimate","Margin of Error","Estimate","Margin of Error","Estimate","Margin of Error","Estimate","Margin of Error","Estimate","Margin of Error","Estimate","Margin of Error","Estimate","Margin of Error","Estimate","Margin of Error","Estimate","Margin of Error","Estimate","Margin of Error","Estimate","Margin of Error","Estimate","Margin of Error","Estimate","Margin of Error"]
[null,{"$f":"B7","v":"Total:"},307,58,1466,162,303,63,143,41,4632,241,135,39,594,82,611,81,89,20,24,16,416,88,{"$f":"Y7","v":977},94,1765,118,2011,164,643,81,1300,147,923,104,2117,185,3000,206]
[null,"Owner occupied housing units:",272,56,1074,213,289,64,132,37,3114,295,102,29,488,72,577,79,89,20,19,14,318,79,{"$f":"Y8","v":792},107,1531,124,1540,176,561,77,939,148,858,101,1901,196,2429,221]
[null,"Less than 20 percent",{"$f":"C10+C14+C18+C22+C26","v":156},{"$f":"SQRT((D10^2)+(D14^2)+(D18^2)+(D22^2)+(D26^2))","v":40.767634221279017},{"$f":"SQRT((E10^2)+(E14^2)+(E18^2)+(E22^2)+(E26^2))","v":388.97043589455484},191.59331929897763,134.28700607281405,46.475800154489001,52.744667976962376,29.664793948382652,1371.4506917858914,342.61786293186759,36.455452267116371,25.13961017995307,211.04975716640851,56.920997883030829,232.30798522650917,62.249497989943663,45.453272709454048,23.748684174075834,3.6055512754639891,20.09975124224178,155.24496771232234,70.085661871740925,{"$f":"SQRT((Y10^2)+(Y14^2)+(Y18^2)+(Y22^2)+(Y26^2))","v":280.06249302611013},93.658955791744759,572.41069172404525,134.51765683359193,375.04266423968352,194.84096078597025,274.09852243308427,67.334983478129701,298.16270725897294,153.55455056754261,285.56085165862635,97.154516107075537,669.25705076599684,196.71553065276774,875.45930802065266,276.48146411649373]
[null,"20 to 29 percent",{"$f":"C11+C15+C19+C23+C27","v":33},{"$f":"SQRT((D11^2)+(D15^2)+(D19^2)+(D23^2)+(D27^2))","v":14.7648230602334},122.59282197584001,118.92434569927219,46.303347611160902,29.832867780352597,17.972200755611428,18.708286933869708,321.90371231161657,186.63868837944614,13.784048752090222,19.261360284258224,54.981815175565096,36.959437225152655,72.704882917174146,40.447496832313369,6.7082039324993694,17.349351572897472,4,22.803508501982758,26.702059845637379,31.796226191169293,{"$f":"SQRT((Y11^2)+(Y15^2)+(Y19^2)+(Y23^2)+(Y27^2))","v":114.08330289748802},73.749576269969168,195.56584568886257,113.89468819923079,187.13631395322503,119.92080720208649,53.944415837044708,34.219877264537345,151.73990905493517,124.86793023030373,80.535706366803538,58.779248038742381,242.34273250914705,170.8712965948348,388.09663745000421,235.14676268237247]
[null,"30 percent or more",{"$f":"C12+C16+C20+C24+C28","v":83},{"$f":"SQRT((D12^2)+(D16^2)+(D20^2)+(D24^2)+(D28^2))","v":30.528675044947494},173.20219398148512,128.47567863218313,31.591137997862628,27.092434368288131,8.6023252670426267,15.968719422671311,408.47643750894616,211.23683390924037,18.303005217723125,21.213203435596427,52.526183946675587,33.704599092705436,70.950687100267047,44.698993277254019,10.099504938362077,14.832396974191326,7.2111025509279782,21.817424229271428,36.235341863986875,38.716921365211881,{"$f":"SQRT((Y12^2)+(Y16^2)+(Y20^2)+(Y24^2)+(Y28^2))","v":101.69562429131354},69.548544197560318,171.12568480505783,117.06408501329517,265.84393918237066,150.16990377569002,47.655010229775421,31.559467676118999,167.36487086602133,131.78391404113023,94.398093201081139,62.337789502034802,294.1666194523097,219.30572267955071,370.23641095926803,272.23335578139574]
[null,"Zero or negative income",{"$f":"C29","v":0},{"$f":"D29","v":11},{"$f":"E29","v":0},11,0,11,3,5,0,18,0,11,0,11,4,5,2,4,0,11,3,4,{"$f":"Y29","v":4},7,31,25,0,11,0,11,0,11,26,26,0,16,20,33]
[null,"Renter occupied housing units:",{"$f":"C30","v":35},{"$f":"D30","v":17},392,159,14,18,11,14,1518,311,33,22,106,45,34,26,0,11,5,8,98,49,{"$f":"Y30","v":185},59,234,86,471,121,82,37,361,135,65,38,216,113,571,210]
[null,"Less than 20 percent",{"$f":"C32+C36+C40+C44+C48","v":5},{"$f":"SQRT((D32^2)+(D36^2)+(D40^2)+(D44^2)+(D48^2))","v":22.561028345356956},{"$f":"SQRT((E32^2)+(E36^2)+(E40^2)+(E44^2)+(E48^2))","v":0},24.596747752497688,8,26.076809620810597,0,24.596747752497688,303.81737935806109,212.9131278244721,10,25.553864678361276,25,32.557641192199412,18,31.11269837220809,0,24.596747752497688,5,23.409399821439251,26,38.974350539810153,{"$f":"SQRT((Y32^2)+(Y36^2)+(Y40^2)+(Y44^2)+(Y48^2))","v":38.483762809787713},45.77116996538323,26.570660511172846,43.405068828421413,107.59646834352883,115.55950847939775,3,22.561028345356956,56.595052787324086,71.99305522062528,0,24.596747752497688,44.82186966202994,53.758720222862451,18,43.185645763378368]
[null,"20 to 29 percent",{"$f":"C33+C37+C41+C45+C49","v":10},{"$f":"SQRT((D33^2)+(D37^2)+(D41^2)+(D45^2)+(D49^2))","v":22.869193252058544},103.50362312499017,109.50799057603056,0,24.596747752497688,0,24.596747752497688,282.29594400203484,182.86607121059936,3,16.61324772583615,20,27.202941017470888,5,23.086792761230392,0,24.596747752497688,0,24.596747752497688,18,30.413812651491099,{"$f":"SQRT((Y33^2)+(Y37^2)+(Y41^2)+(Y45^2)+(Y49^2))","v":34.073450074801642},42.743420546325019,36.235341863986875,44.721359549995796,43.185645763378368,72.580989246496216,19.748417658131498,27.313000567495326,24.372115213907882,38.639358172723313,9.4339811320566032,23.895606290697042,0,35.777087639996637,123.79418403139947,121.6552506059644]
[null,"30 percent or more",{"$f":"C34+C38+C42+C46+C50","v":15},{"$f":"SQRT((D34^2)+(D38^2)+(D42^2)+(D46^2)+(D50^2))","v":20.074859899884732},48.672374094551827,65.650590248679407,6,24.596747752497688,11,26.076809620810597,405.31222532758619,217.86693186438367,8.0622577482985491,22.627416997969522,23.2163735324878,26.438608132804571,5,20.688160865577203,0,24.596747752497688,0,24.596747752497688,27.313000567495326,43.726422218150894,{"$f":"SQRT((Y34^2)+(Y38^2)+(Y42^2)+(Y46^2)+(Y50^2))","v":32.434549480453711},33.808283008753932,42.237424163885748,47.444704657105831,111.01801655587259,92.260500757366373,15.905973720586866,24.79919353527449,161.15210206509875,125.23178510266473,20.542638584174139,36.76955262170047,97.948966303887048,115.10864433221339,224.58183363754068,225.1888096686867]
[null,"Zero or negative income",{"$f":"C51","v":0},{"$f":"D51","v":11},{"$f":"E51","v":33},52,0,11,0,11,14,26,0,11,0,11,0,11,0,11,0,11,0,11,{"$f":"Y51","v":0},11,0,11,13,22,0,11,0,11,0,11,0,16,0,16]
[null,"No cash rent",{"$f":"C52","v":5},{"$f":"D52","v":6},103,85,0,11,0,11,34,52,7,7,26,24,4,5,0,11,0,11,10,16,{"$f":"Y52","v":21},25,75,50,57,37,16,16,0,11,22,20,15,23,31,35]
[]
[]
[]
[]
[]
[]
[]
[]
[]
[]
[]
[]
[]
[]
[]
[]
[]
[]
[]
[]
[]
[]
[]
[null,"B25106. TENURE BY HOUSING COSTS AS A PERCENTAGE OF HOUSEHOLD INCOME IN THE PAST 12 MONTHS"]
[null,"Universe:  OCCUPIED HOUSING UNITS"]
[null,"Data Set: 2010-2014 American Community Survey 5-Year Estimates"]
[]
[null,null,"Albany",null,"Bartlett",null,"Brookfield",null,"Chatham",null,"Conway",null,"Eaton",null,"Effingham",null,"Freedom",null,"Hale's location",null,"Hart's Location",null,"Jackson",null,"Madison",null,"Moultonborough",null,"Ossipee",null,"Sandwich",null,"Tamworth",null,"Tuftonboro",null,"Wakefield",null,"Wolfeboro"]
[null,null,"Estimate","Margin of Error","Estimate","Margin of Error","Estimate","Margin of Error","Estimate","Margin of Error","Estimate","Margin of Error","Estimate","Margin of Error","Estimate","Margin of Error","Estimate","Margin of Error","Estimate","Margin of Error","Estimate","Margin of Error","Estimate","Margin of Error","Estimate","Margin of Error","Estimate","Margin of Error","Estimate","Margin of Error","Estimate","Margin of Error","Estimate","Margin of Error","Estimate","Margin of Error","Estimate","Margin of Error","Estimate","Margin of Error"]
[null,"Total:",308,53,1567,184,298,64,161,35,4365,233,176,33,553,70,532,66,67,21,26,14,444,91,1133,93,1762,94,1761,183,645,87,1512,148,975,121,2260,207,2734,204]
[null,"Owner occupied housing units:",263,55,1155,180,289,62,134,33,2966,278,146,28,461,57,442,59,67,21,10,10,363,79,980,103,1591,121,1484,205,501,63,1047,156,805,107,2019,238,2214,217]
[null,"Less than $20,000:",46,28,137,97,21,17,20,13,237,100,10,8,82,32,51,21,1,3,0,11,29,35,99,59,93,52,341,108,49,25,68,60,77,39,243,116,86,56]
[null,"Less than 20 percent",0,11,0,11,0,11,2,3,18,21,0,11,6,8,0,11,0,11,0,11,9,14,25,32,0,11,26,33,0,11,0,11,0,11,0,15,0,15]
[null,"20 to 29 percent",0,11,50,57,0,11,0,11,0,17,3,4,13,15,3,5,0,11,0,11,0,11,21,27,28,34,31,29,7,7,0,11,19,23,23,36,0,15]
[null,"30 percent or more",46,28,87,64,21,17,18,13,219,97,7,7,63,30,48,20,1,3,0,11,20,31,53,39,65,38,284,99,42,24,68,60,58,31,220,115,86,56]
[null,"$20,000 to $34,999:",34,29,159,96,50,31,14,10,482,171,23,10,75,28,68,26,11,8,4,7,23,17,58,46,97,46,204,98,82,33,274,131,78,40,404,179,323,138]
[null,"Less than 20 percent",5,6,61,60,8,11,8,9,64,66,3,4,15,12,10,9,1,4,4,7,8,13,0,11,14,16,74,66,6,7,88,87,20,21,97,100,34,33]
[null,"20 to 29 percent",21,25,34,44,0,11,3,4,188,106,5,5,20,13,20,15,2,3,0,11,10,11,0,11,13,14,38,39,22,18,58,52,16,14,149,128,76,72]
[null,"30 percent or more",8,12,64,61,42,29,3,5,230,107,15,11,40,20,38,17,8,7,0,11,5,8,58,46,70,43,92,59,54,27,128,107,42,31,158,86,213,127]
[null,"$35,000 to $49,999:",41,22,263,121,30,18,29,17,498,157,21,11,67,26,85,29,14,9,0,11,30,22,227,76,162,68,181,92,47,21,123,88,110,54,348,181,390,151]
[null,"Less than 20 percent",22,15,132,86,12,14,14,10,142,57,9,10,36,18,21,17,5,5,0,11,20,19,73,42,66,46,35,27,16,11,6,11,21,20,23,27,254,133]
[null,"20 to 29 percent",13,15,64,62,4,5,8,10,235,127,4,4,10,8,29,19,5,5,0,11,8,13,61,42,54,38,22,21,21,14,100,84,33,24,4,10,60,50]
[null,"30 percent or more",6,6,67,56,14,7,7,6,121,71,8,6,21,16,35,19,4,5,0,11,2,3,93,62,42,34,124,79,10,9,17,24,56,43,321,176,76,57]
[null,"$50,000 to $74,999:",40,19,152,80,77,31,19,10,654,195,32,16,90,30,104,28,15,9,2,4,69,41,253,78,335,84,351,132,88,27,330,81,189,72,429,142,396,157]
[null,"Less than 20 percent",20,11,64,62,40,27,7,5,394,164,13,10,51,25,51,19,11,9,2,4,41,28,63,36,180,78,162,76,39,17,155,77,81,45,84,52,172,74]
[null,"20 to 29 percent",10,9,54,44,19,13,5,6,146,81,7,8,23,14,38,21,0,11,0,11,18,21,82,43,86,65,156,87,24,17,71,49,74,46,167,104,140,102]
[null,"30 percent or more",10,11,34,41,18,12,7,6,114,58,12,10,16,13,15,11,4,7,0,11,10,13,108,55,69,53,33,29,25,16,104,62,34,30,178,97,84,76]
[null,"$75,000 or more:",100,36,420,122,111,36,50,20,1095,211,60,23,143,42,131,30,26,13,4,6,203,64,334,74,860,127,386,102,235,45,239,95,347,89,556,142,1019,208]
[null,"Less than 20 percent",74,30,326,120,53,20,40,18,728,180,45,17,103,39,97,28,17,13,4,6,156,54,269,73,630,132,318,98,180,45,158,88,226,81,398,141,706,180]
[null,"20 to 29 percent",24,19,67,62,35,26,5,5,224,115,5,9,12,8,20,12,4,4,0,11,34,26,56,32,137,60,48,42,35,18,54,40,91,46,124,76,259,100]
[null,"30 percent or more",2,4,27,27,23,18,5,8,143,78,10,13,28,18,14,9,5,6,0,11,13,16,9,9,93,59,20,23,20,13,27,24,30,25,34,36,54,62]
[null,"Zero or negative income",2,4,24,40,0,11,2,3,0,17,0,11,4,8,3,5,0,11,0,11,9,15,9,9,44,48,21,24,0,11,13,21,4,6,39,41,0,15]
[null,"Renter occupied housing units:",45,20,412,210,9,11,27,14,1399,271,30,20,92,45,90,39,0,11,16,12,81,45,153,66,171,69,277,101,144,64,465,160,170,73,241,136,520,181]
[null,"Less than $20,000:",5,5,181,152,0,11,9,11,267,141,0,11,21,25,0,11,0,11,0,11,8,13,8,12,21,21,100,70,8,8,198,118,28,24,65,76,183,142]
[null,"Less than 20 percent",0,11,0,11,0,11,0,11,10,15,0,11,0,11,0,11,0,11,0,11,0,11,0,11,6,9,0,11,0,11,0,11,0,11,0,15,0,15]
[null,"20 to 29 percent",0,11,0,11,0,11,0,11,37,37,0,11,0,11,0,11,0,11,0,11,0,11,0,11,8,11,10,15,0,11,82,110,0,11,0,15,19,30]
[null,"30 percent or more",5,5,181,152,0,11,9,11,220,139,0,11,21,25,0,11,0,11,0,11,8,13,8,12,7,12,90,74,8,8,116,87,28,24,65,76,164,135]
[null,"$20,000 to $34,999:",8,10,27,34,0,11,3,4,391,184,0,11,38,29,34,26,0,11,0,11,5,7,19,32,14,16,42,46,24,23,54,52,55,47,78,64,82,89]
[null,"Less than 20 percent",0,11,0,11,0,11,0,11,22,36,0,11,0,11,0,11,0,11,0,11,0,11,0,11,0,11,0,11,0,11,25,41,0,11,0,15,0,15]
[null,"20 to 29 percent",6,9,0,11,0,11,0,11,123,101,0,11,0,11,12,19,0,11,0,11,0,11,0,11,0,11,0,11,0,11,0,11,0,11,35,39,0,15]
[null,"30 percent or more",2,3,27,34,0,11,3,4,246,141,0,11,38,29,22,20,0,11,0,11,5,7,19,32,14,16,42,46,24,23,29,32,55,47,43,50,82,89]
[null,"$35,000 to $49,999:",2,4,14,24,0,11,0,11,307,139,3,5,3,4,24,17,0,11,7,11,11,20,42,32,21,31,49,43,35,25,61,73,21,24,98,108,115,102]
[null,"Less than 20 percent",0,11,0,11,0,11,0,11,80,66,0,11,0,11,0,11,0,11,0,11,11,20,0,11,0,11,0,11,0,11,45,70,0,11,0,15,0,15]
[null,"20 to 29 percent",0,11,0,11,0,11,0,11,120,104,3,5,3,4,19,15,0,11,0,11,0,11,13,21,0,11,10,15,17,19,16,22,12,19,0,15,58,79]
[null,"30 percent or more",2,4,14,24,0,11,0,11,107,77,0,11,0,11,5,7,0,11,7,11,0,11,29,35,21,31,39,49,18,17,0,11,9,15,98,108,57,67]
[null,"$50,000 to $74,999:",8,10,145,114,0,11,14,17,159,101,6,8,7,12,6,9,0,11,3,5,0,11,39,35,37,31,9,16,22,25,121,105,7,10,0,15,55,43]
[null,"Less than 20 percent",6,10,72,83,0,11,14,17,25,44,2,4,7,12,0,11,0,11,0,11,0,11,34,34,6,9,0,11,5,7,75,80,7,10,0,15,13,21]
[null,"20 to 29 percent",2,3,73,77,0,11,0,11,85,60,4,6,0,11,6,9,0,11,3,5,0,11,5,7,31,29,9,16,12,20,0,11,0,11,0,15,0,15]
[null,"30 percent or more",0,11,0,11,0,11,0,11,49,74,0,11,0,11,0,11,0,11,0,11,0,11,0,11,0,11,0,11,5,8,46,72,0,11,0,15,42,47]
[null,"$75,000 or more:",18,11,28,45,6,10,0,11,131,98,7,9,10,18,14,18,0,11,4,5,33,36,5,9,47,48,25,39,18,28,15,23,33,34,0,15,59,71]
[null,"Less than 20 percent",15,11,28,45,6,10,0,11,131,98,7,9,10,18,5,8,0,11,2,3,23,27,5,9,10,16,0,11,18,28,15,23,33,34,0,15,59,71]
[null,"20 to 29 percent",3,4,0,11,0,11,0,11,0,17,0,11,0,11,9,15,0,11,2,4,10,18,0,11,37,43,25,39,0,11,0,11,0,11,0,15,0,15]
[null,"30 percent or more",0,11,0,11,0,11,0,11,0,17,0,11,0,11,0,11,0,11,0,11,0,11,0,11,0,11,0,11,0,11,0,11,0,11,0,15,0,15]
[null,"Zero or negative income",0,11,0,11,0,11,0,11,12,21,0,11,0,11,2,3,0,11,0,11,0,11,0,11,0,11,0,11,0,11,0,11,0,11,0,15,0,15]
[null,"No cash rent",4,4,17,27,3,5,1,3,132,111,14,17,13,16,10,12,0,11,2,3,24,18,40,37,31,40,52,45,37,31,16,23,26,26,0,15,26,30]
[]
[]
[]
[]
[]
[]
[null,"Calculated B25106. TENURE BY HOUSING COSTS AS A PERCENTAGE OF HOUSEHOLD INCOME IN THE PAST 12 MONTHS"]
[null,"Universe:  OCCUPIED HOUSING UNITS"]
[null,"Data Set: 2010-2014 American Community Survey 5-Year Estimates"]
[]
[null,null,"Albany",null,"Bartlett",null,"Brookfield",null,"Chatham",null,"Conway",null,"Eaton",null,"Effingham",null,"Freedom",null,"Hale's location",null,"Hart's Location",null,"Jackson",null,"Madison",null,"Moultonborough",null,"Ossipee",null,"Sandwich",null,"Tamworth",null,"Tuftonboro",null,"Wakefield",null,"Wolfeboro"]
[null,null,"Estimate","Margin of Error","Estimate","Margin of Error","Estimate","Margin of Error","Estimate","Margin of Error","Estimate","Margin of Error","Estimate","Margin of Error","Estimate","Margin of Error","Estimate","Margin of Error","Estimate","Margin of Error","Estimate","Margin of Error","Estimate","Margin of Error","Estimate","Margin of Error","Estimate","Margin of Error","Estimate","Margin of Error","Estimate","Margin of Error","Estimate","Margin of Error","Estimate","Margin of Error","Estimate","Margin of Error","Estimate","Margin of Error"]
[null,"Total:",308,53,1567,184,298,64,161,35,4365,233,176,33,553,70,532,66,67,21,26,14,444,91,1133,93,1762,94,1761,183,645,87,1512,148,975,121,2260,207,2734,204]
[null,"Owner occupied housing units:",263,55,1155,180,289,62,134,33,2966,278,146,28,461,57,442,59,67,21,10,10,363,79,980,103,1591,121,1484,205,501,63,1047,156,805,107,2019,238,2214,217]
[null,"Less than 20 percent",121,37.456641600656084,362.65272644776849,171.35051794494231,67.948509917436752,39.585350825778974,43.737855457258078,23.2163735324878,842.49866468736911,259.50337184707251,47.791212581394085,25.019992006393608,121.51954575293638,51.749396131742444,112.03124564156198,40.447496832313369,20.880613017821101,20.297783130184438,6,18.520259177452136,162.97852619286996,66.528189513919585,286.85187815316812,97.642203989873153,658.67442640503361,161.24825580452026,367.07628634930916,146.81280598094978,184.96756472419699,51.039200620699383,238.26246032474356,146.574213284602,241.82224876962832,97.713868002448862,418.80544409068995,183.13656106850974,770.51411408227943,238.49318648548433]
[null,"20 to 29 percent",68,37.589892258425003,123.1137685232647,121.69223475637219,40.024992192379003,33.346664001066131,11.090536506409418,17.262676501632068,402.56800667713276,217.80725424099171,11.135528725660043,14.212670403551895,36.633318168028403,26.795522013948524,55.623735940693521,34.583232931581165,6.7082039324993694,17.088007490635061,0,24.596747752497688,40.546269865426588,39.08964057138413,118.41452613594331,74.074287036730908,173.30320250935929,103.05823596394418,171.84004189943624,110.16351483136329,52.678268764263692,34.380226875342167,146.01712228365548,117.82189949241184,124.35031162003575,74.384138094085628,256.9260594023113,185.39687160251654,309.93063740133857,168.26467246573179]
[null,"30 percent or more",72,33.181320046074113,134.30934442547175,115.59844289608749,57.043842787806646,40.583247775406051,21.354156504062622,18.165902124584949,385.93652327811628,188.00797855410286,24.124676163629637,21.794494717703369,83.964278118733333,45.265881191025102,73.443856107914158,35.383612025908263,11.045361017187261,12.961481396815721,0,24.596747752497688,26.419689627245813,38.196858509568557,162.99386491521699,102.89314845994363,155.88136514670379,103.62914647916386,325.55337504009998,144.54411091428111,76.190550595201771,42.555845661906424,181.22361876973983,141.58036587041298,101.58740079360236,72.773621594641014,457.43305521136097,249.60368587022108,261.74988061124304,179.25958830701359]
[null,"Zero or negative income",2,4,24,40,0,11,2,3,0,17,0,11,4,8,3,5,0,11,0,11,9,15,9,9,44,48,21,24,0,11,13,21,4,6,39,41,0,15]
[null,"Renter occupied housing units:",45,20,412,210,9,11,27,14,1399,271,30,20,92,45,90,39,0,11,16,12,81,45,153,66,171,69,277,101,144,64,465,160,170,73,241,136,520,181]
[null,"Less than 20 percent",21,24.166091947189145,77.252831663311866,96.317184344227996,6,24.166091947189145,14,27.802877548915689,157.38487856207789,131.97348218486925,7.2801098892805181,21.447610589527216,12.206555615733702,28.827070610799147,5,23.409399821439251,0,24.596747752497688,2,22.203603311174518,25.495097567963924,38.626415831655933,34.365680554879162,40,13.114877048604001,25.690465157330259,0,24.596747752497688,18.681541692269406,34.583232931581165,92.195444572928878,116.75187364663576,33.734255586865999,40.23679907746142,0,33.541019662496844,60.415229867972862,78.466553384228618]
[null,"20 to 29 percent",11,18.654758106177631,73,80.081208782085696,0,24.596747752497688,0,24.596747752497688,195.2511203553004,162.09565077447328,5,20.591260281974002,3,22.360679774997898,24.939927826679853,31.827660925679098,0,24.596747752497688,3.6055512754639891,20.09975124224178,10,28.42534080710379,13.928388277184119,29.206163733020468,48.928519290900269,55.253959134165221,30.099833886584822,48.45616575834287,20.808652046684813,33.526109228480422,83.546394296821688,113.7848847606746,12,29.068883707497267,35,49.203658400570177,61.032778078668514,88.408144421201371]
[null,"30 percent or more",9,17.088007490635061,183.53746211604866,158.36034857248831,0,24.596747752497688,9.4868329805051381,22.360679774997898,350.37979393794956,225.60141843525719,0,24.596747752497688,43.416586692184822,42.766809560686191,22.561028345356956,28.495613697550013,0,24.596747752497688,7,24.596747752497688,9.4339811320566032,24.103941586387901,35.580893749314392,51.332251070842396,26.19160170741759,40.037482438335203,106.70051546267244,101.16817681464859,31.448370387032774,32.664965942122151,128.11323116680805,118.40185809352825,62.369864518050704,57.02630971753301,125.21182052825525,142.7935572776307,196.55279189062668,181.84883832458209]
[null,"Zero or negative income",0,11,0,11,0,11,0,11,12,21,0,11,0,11,2,3,0,11,0,11,0,11,0,11,0,11,0,11,0,11,0,11,0,11,0,15,0,15]
[null,"No cash rent",4,4,17,27,3,5,1,3,132,111,14,17,13,16,10,12,0,11,2,3,24,18,40,37,31,40,52,45,37,31,16,23,26,26,0,15,26,30]
[]
[]
[]
[]
[null,"B25106. TENURE BY HOUSING COSTS AS A PERCENTAGE OF HOUSEHOLD INCOME IN THE PAST 12 MONTHS"]
[null,"Universe:  OCCUPIED HOUSING UNITS"]
[null,"Data Set: 2006-2010 American Community Survey 5-Year Estimates"]
[]
[null,null,"Alton",null,"Barnstead",null,"Belmont",null,"Center Harbor",null,"Gilford",null,"Gilmanton",null,"Laconia",null,"Meredith",null,"New Hampton",null,"Sanbornton",null,"Tilton"]
[null,null,"Estimate","Margin of Error","Estimate","Margin of Error","Estimate","Margin of Error","Estimate","Margin of Error","Estimate","Margin of Error","Estimate","Margin of Error","Estimate","Margin of Error","Estimate","Margin of Error","Estimate","Margin of Error","Estimate","Margin of Error","Estimate","Margin of Error"]
[null,"Total:"]
[null,"Owner occupied housing units:"]
[null,"Less than $20,000:"]
[null,"Less than 20 percent"]
[null,"20 to 29 percent"]
[null,"30 percent or more"]
[null,"$20,000 to $34,999:"]
[null,"Less than 20 percent"]
[null,"20 to 29 percent"]
[null,"30 percent or more"]
[null,"$35,000 to $49,999:"]
[null,"Less than 20 percent"]
[null,"20 to 29 percent"]
[null,"30 percent or more"]
[null,"$50,000 to $74,999:"]
[null,"Less than 20 percent"]
[null,"20 to 29 percent"]
[null,"30 percent or more"]
[null,"$75,000 or more:"]
[null,"Less than 20 percent"]
[null,"20 to 29 percent"]
[null,"30 percent or more"]
[null,"Zero or negative income"]
[null,"Renter occupied housing units:"]
[null,"Less than $20,000:"]
[null,"Less than 20 percent"]
[null,"20 to 29 percent"]
[null,"30 percent or more"]
[null,"$20,000 to $34,999:"]
[null,"Less than 20 percent"]
[null,"20 to 29 percent"]
[null,"30 percent or more"]
[null,"$35,000 to $49,999:"]
[null,"Less than 20 percent"]
[null,"20 to 29 percent"]
[null,"30 percent or more"]
[null,"$50,000 to $74,999:"]
[null,"Less than 20 percent"]
[null,"20 to 29 percent"]
[null,"30 percent or more"]
[null,"$75,000 or more:"]
[null,"Less than 20 percent"]
[null,"20 to 29 percent"]
[null,"30 percent or more"]
[null,"Zero or negative income"]
[null,"No cash rent"]
[]
[]
[]
[]
[]
[]
[null,"Calculated B25106. TENURE BY HOUSING COSTS AS A PERCENTAGE OF HOUSEHOLD INCOME IN THE PAST 12 MONTHS"]
[null,"Universe:  OCCUPIED HOUSING UNITS"]
[null,"Data Set: 2006-2010 American Community Survey 5-Year Estimates"]
[]
[null,null,"Alton",null,"Barnstead",null,"Belmont",null,"Center Harbor",null,"Gilford",null,"Gilmanton",null,"Laconia",null,"Meredith",null,"New Hampton",null,"Sanbornton",null,"Tilton"]
[null,null,"Estimate","Margin of Error","Estimate","Margin of Error","Estimate","Margin of Error","Estimate","Margin of Error","Estimate","Margin of Error","Estimate","Margin of Error","Estimate","Margin of Error","Estimate","Margin of Error","Estimate","Margin of Error","Estimate","Margin of Error","Estimate","Margin of Error"]
[null,"Total:"]
[null,"Owner occupied housing units:"]
[null,"Less than 20 percent"]
[null,"20 to 29 percent"]
[null,"30 percent or more"]
[null,"Zero or negative income"]
[null,"Renter occupied housing units:"]
[null,"Less than 20 percent"]
[null,"20 to 29 percent"]
[null,"30 percent or more"]
[null,"Zero or negative income"]
[null,"No cash rent"]

{"sheet":"SData_B08303Comuuting","index":22,"n_rows":148,"n_cols":183,"rows_kept":148,"cut":false,"hidden":true,"merged":[]}
["GEO_ID","GEO_ID2","SUMLEVEL",null,"VD01","VD01","VD02","VD02","VD03","VD03","VD04","VD04","VD05","VD05","VD06","VD06","VD07","VD07","VD08","VD08","VD09","VD09","VD10","VD10","VD11","VD11","VD12","VD12","VD13","VD13"]
["Geography Identifier","Geography Identifier","Geographic Summary Level",{"$f":"[1]ACS_16_5YR_B08303_with_ann!D2","v":"Estimate Total:"},{"$f":"[1]ACS_16_5YR_B08303_with_ann!E2","v":"Margin of Error Total:"},{"$f":"[1]ACS_16_5YR_B08303_with_ann!F2","v":"Estimate Total: Less than 5 minutes"},{"$f":"[1]ACS_16_5YR_B08303_with_ann!G2","v":"Margin of Error Total: Less than 5 minutes"},{"$f":"[1]ACS_16_5YR_B08303_with_ann!H2","v":"Estimate Total: 5 to 9 minutes"},{"$f":"[1]ACS_16_5YR_B08303_with_ann!I2","v":"Margin of Error Total: 5 to 9 minutes"},{"$f":"[1]ACS_16_5YR_B08303_with_ann!J2","v":"Estimate Total: 10 to 14 minutes"},{"$f":"[1]ACS_16_5YR_B08303_with_ann!K2","v":"Margin of Error Total: 10 to 14 minutes"},{"$f":"[1]ACS_16_5YR_B08303_with_ann!L2","v":"Estimate Total: 15 to 19 minutes"},{"$f":"[1]ACS_16_5YR_B08303_with_ann!M2","v":"Margin of Error Total: 15 to 19 minutes"},{"$f":"[1]ACS_16_5YR_B08303_with_ann!N2","v":"Estimate Total: 20 to 24 minutes"},{"$f":"[1]ACS_16_5YR_B08303_with_ann!O2","v":"Margin of Error Total: 20 to 24 minutes"},{"$f":"[1]ACS_16_5YR_B08303_with_ann!P2","v":"Estimate Total: 25 to 29 minutes"},{"$f":"[1]ACS_16_5YR_B08303_with_ann!Q2","v":"Margin of Error Total: 25 to 29 minutes"},{"$f":"[1]ACS_16_5YR_B08303_with_ann!R2","v":"Estimate Total: 30 to 34 minutes"},{"$f":"[1]ACS_16_5YR_B08303_with_ann!S2","v":"Margin of Error Total: 30 to 34 minutes"},{"$f":"[1]ACS_16_5YR_B08303_with_ann!T2","v":"Estimate Total: 35 to 39 minutes"},{"$f":"[1]ACS_16_5YR_B08303_with_ann!U2","v":"Margin of Error Total: 35 to 39 minutes"},{"$f":"[1]ACS_16_5YR_B08303_with_ann!V2","v":"Estimate Total: 40 to 44 minutes"},{"$f":"[1]ACS_16_5YR_B08303_with_ann!W2","v":"Margin of Error Total: 40 to 44 minutes"},{"$f":"[1]ACS_16_5YR_B08303_with_ann!X2","v":"Estimate Total: 45 to 59 minutes"},{"$f":"[1]ACS_16_5YR_B08303_with_ann!Y2","v":"Margin of Error Total: 45 to 59 minutes"},{"$f":"[1]ACS_16_5YR_B08303_with_ann!Z2","v":"Estimate Total: 60 to 89 minutes"},{"$f":"[1]ACS_16_5YR_B08303_with_ann!AA2","v":"Margin of Error Total: 60 to 89 minutes"},{"$f":"[1]ACS_16_5YR_B08303_with_ann!AB2","v":"Estimate Total: 90 or more minutes"},{"$f":"[1]ACS_16_5YR_B08303_with_ann!AC2","v":"Margin of Error Total: 90 or more minutes"},"Margin of Error; Total: - 90 or more minutes"]
["06000US3300300420","3300300420","060","Albany",{"$f":"[1]ACS_16_5YR_B08303_with_ann!D25","v":301},{"$f":"[1]ACS_16_5YR_B08303_with_ann!E25","v":77},{"$f":"[1]ACS_16_5YR_B08303_with_ann!F25","v":8},{"$f":"[1]ACS_16_5YR_B08303_with_ann!G25","v":10},{"$f":"[1]ACS_16_5YR_B08303_with_ann!H25","v":18},{"$f":"[1]ACS_16_5YR_B08303_with_ann!I25","v":12},{"$f":"[1]ACS_16_5YR_B08303_with_ann!J25","v":34},{"$f":"[1]ACS_16_5YR_B08303_with_ann!K25","v":18},{"$f":"[1]ACS_16_5YR_B08303_with_ann!L25","v":83},{"$f":"[1]ACS_16_5YR_B08303_with_ann!M25","v":42},{"$f":"[1]ACS_16_5YR_B08303_with_ann!N25","v":34},{"$f":"[1]ACS_16_5YR_B08303_with_ann!O25","v":18},{"$f":"[1]ACS_16_5YR_B08303_with_ann!P25","v":13},{"$f":"[1]ACS_16_5YR_B08303_with_ann!Q25","v":14},{"$f":"[1]ACS_16_5YR_B08303_with_ann!R25","v":34},{"$f":"[1]ACS_16_5YR_B08303_with_ann!S25","v":22},{"$f":"[1]ACS_16_5YR_B08303_with_ann!T25","v":6},{"$f":"[1]ACS_16_5YR_B08303_with_ann!U25","v":7},{"$f":"[1]ACS_16_5YR_B08303_with_ann!V25","v":30},{"$f":"[1]ACS_16_5YR_B08303_with_ann!W25","v":22},{"$f":"[1]ACS_16_5YR_B08303_with_ann!X25","v":22},{"$f":"[1]ACS_16_5YR_B08303_with_ann!Y25","v":18},{"$f":"[1]ACS_16_5YR_B08303_with_ann!Z25","v":17},{"$f":"[1]ACS_16_5YR_B08303_with_ann!AA25","v":13},{"$f":"[1]ACS_16_5YR_B08303_with_ann!AB25","v":2},{"$f":"[1]ACS_16_5YR_B08303_with_ann!AC25","v":5}]
["06000US3300303700","3300303700","060","Bartlett",{"$f":"[1]ACS_16_5YR_B08303_with_ann!D26","v":1282},{"$f":"[1]ACS_16_5YR_B08303_with_ann!E26","v":190},{"$f":"[1]ACS_16_5YR_B08303_with_ann!F26","v":156},{"$f":"[1]ACS_16_5YR_B08303_with_ann!G26","v":89},{"$f":"[1]ACS_16_5YR_B08303_with_ann!H26","v":197},{"$f":"[1]ACS_16_5YR_B08303_with_ann!I26","v":93},{"$f":"[1]ACS_16_5YR_B08303_with_ann!J26","v":238},{"$f":"[1]ACS_16_5YR_B08303_with_ann!K26","v":115},{"$f":"[1]ACS_16_5YR_B08303_with_ann!L26","v":278},{"$f":"[1]ACS_16_5YR_B08303_with_ann!M26","v":154},{"$f":"[1]ACS_16_5YR_B08303_with_ann!N26","v":278},{"$f":"[1]ACS_16_5YR_B08303_with_ann!O26","v":144},{"$f":"[1]ACS_16_5YR_B08303_with_ann!P26","v":47},{"$f":"[1]ACS_16_5YR_B08303_with_ann!Q26","v":57},{"$f":"[1]ACS_16_5YR_B08303_with_ann!R26","v":2},{"$f":"[1]ACS_16_5YR_B08303_with_ann!S26","v":4},{"$f":"[1]ACS_16_5YR_B08303_with_ann!T26","v":0},{"$f":"[1]ACS_16_5YR_B08303_with_ann!U26","v":11},{"$f":"[1]ACS_16_5YR_B08303_with_ann!V26","v":0},{"$f":"[1]ACS_16_5YR_B08303_with_ann!W26","v":11},{"$f":"[1]ACS_16_5YR_B08303_with_ann!X26","v":0},{"$f":"[1]ACS_16_5YR_B08303_with_ann!Y26","v":11},{"$f":"[1]ACS_16_5YR_B08303_with_ann!Z26","v":59},{"$f":"[1]ACS_16_5YR_B08303_with_ann!AA26","v":51},{"$f":"[1]ACS_16_5YR_B08303_with_ann!AB26","v":27},{"$f":"[1]ACS_16_5YR_B08303_with_ann!AC26","v":31}]
["06000US3300307940","3300307940","060","Brookfield",{"$f":"[1]ACS_16_5YR_B08303_with_ann!D27","v":408},{"$f":"[1]ACS_16_5YR_B08303_with_ann!E27","v":110},{"$f":"[1]ACS_16_5YR_B08303_with_ann!F27","v":16},{"$f":"[1]ACS_16_5YR_B08303_with_ann!G27","v":15},{"$f":"[1]ACS_16_5YR_B08303_with_ann!H27","v":29},{"$f":"[1]ACS_16_5YR_B08303_with_ann!I27","v":29},{"$f":"[1]ACS_16_5YR_B08303_with_ann!J27","v":30},{"$f":"[1]ACS_16_5YR_B08303_with_ann!K27","v":23},{"$f":"[1]ACS_16_5YR_B08303_with_ann!L27","v":33},{"$f":"[1]ACS_16_5YR_B08303_with_ann!M27","v":22},{"$f":"[1]ACS_16_5YR_B08303_with_ann!N27","v":57},{"$f":"[1]ACS_16_5YR_B08303_with_ann!O27","v":31},{"$f":"[1]ACS_16_5YR_B08303_with_ann!P27","v":24},{"$f":"[1]ACS_16_5YR_B08303_with_ann!Q27","v":20},{"$f":"[1]ACS_16_5YR_B08303_with_ann!R27","v":36},{"$f":"[1]ACS_16_5YR_B08303_with_ann!S27","v":23},{"$f":"[1]ACS_16_5YR_B08303_with_ann!T27","v":9},{"$f":"[1]ACS_16_5YR_B08303_with_ann!U27","v":10},{"$f":"[1]ACS_16_5YR_B08303_with_ann!V27","v":11},{"$f":"[1]ACS_16_5YR_B08303_with_ann!W27","v":13},{"$f":"[1]ACS_16_5YR_B08303_with_ann!X27","v":63},{"$f":"[1]ACS_16_5YR_B08303_with_ann!Y27","v":28},{"$f":"[1]ACS_16_5YR_B08303_with_ann!Z27","v":65},{"$f":"[1]ACS_16_5YR_B08303_with_ann!AA27","v":30},{"$f":"[1]ACS_16_5YR_B08303_with_ann!AB27","v":35},{"$f":"[1]ACS_16_5YR_B08303_with_ann!AC27","v":23}]
["06000US3300311780","3300311780","060","Chatham",{"$f":"[1]ACS_16_5YR_B08303_with_ann!D28","v":171},{"$f":"[1]ACS_16_5YR_B08303_with_ann!E28","v":61},{"$f":"[1]ACS_16_5YR_B08303_with_ann!F28","v":0},{"$f":"[1]ACS_16_5YR_B08303_with_ann!G28","v":11},{"$f":"[1]ACS_16_5YR_B08303_with_ann!H28","v":0},{"$f":"[1]ACS_16_5YR_B08303_with_ann!I28","v":11},{"$f":"[1]ACS_16_5YR_B08303_with_ann!J28","v":0},{"$f":"[1]ACS_16_5YR_B08303_with_ann!K28","v":11},{"$f":"[1]ACS_16_5YR_B08303_with_ann!L28","v":9},{"$f":"[1]ACS_16_5YR_B08303_with_ann!M28","v":9},{"$f":"[1]ACS_16_5YR_B08303_with_ann!N28","v":17},{"$f":"[1]ACS_16_5YR_B08303_with_ann!O28","v":12},{"$f":"[1]ACS_16_5YR_B08303_with_ann!P28","v":12},{"$f":"[1]ACS_16_5YR_B08303_with_ann!Q28","v":10},{"$f":"[1]ACS_16_5YR_B08303_with_ann!R28","v":65},{"$f":"[1]ACS_16_5YR_B08303_with_ann!S28","v":40},{"$f":"[1]ACS_16_5YR_B08303_with_ann!T28","v":21},{"$f":"[1]ACS_16_5YR_B08303_with_ann!U28","v":18},{"$f":"[1]ACS_16_5YR_B08303_with_ann!V28","v":19},{"$f":"[1]ACS_16_5YR_B08303_with_ann!W28","v":13},{"$f":"[1]ACS_16_5YR_B08303_with_ann!X28","v":17},{"$f":"[1]ACS_16_5YR_B08303_with_ann!Y28","v":12},{"$f":"[1]ACS_16_5YR_B08303_with_ann!Z28","v":11},{"$f":"[1]ACS_16_5YR_B08303_with_ann!AA28","v":11},{"$f":"[1]ACS_16_5YR_B08303_with_ann!AB28","v":0},{"$f":"[1]ACS_16_5YR_B08303_with_ann!AC28","v":11}]
["06000US3300314660","3300314660","060","Conway",{"$f":"[1]ACS_16_5YR_B08303_with_ann!D29","v":4877},{"$f":"[1]ACS_16_5YR_B08303_with_ann!E29","v":469},{"$f":"[1]ACS_16_5YR_B08303_with_ann!F29","v":435},{"$f":"[1]ACS_16_5YR_B08303_with_ann!G29","v":271},{"$f":"[1]ACS_16_5YR_B08303_with_ann!H29","v":1361},{"$f":"[1]ACS_16_5YR_B08303_with_ann!I29","v":422},{"$f":"[1]ACS_16_5YR_B08303_with_ann!J29","v":1183},{"$f":"[1]ACS_16_5YR_B08303_with_ann!K29","v":319},{"$f":"[1]ACS_16_5YR_B08303_with_ann!L29","v":804},{"$f":"[1]ACS_16_5YR_B08303_with_ann!M29","v":202},{"$f":"[1]ACS_16_5YR_B08303_with_ann!N29","v":300},{"$f":"[1]ACS_16_5YR_B08303_with_ann!O29","v":149},{"$f":"[1]ACS_16_5YR_B08303_with_ann!P29","v":83},{"$f":"[1]ACS_16_5YR_B08303_with_ann!Q29","v":53},{"$f":"[1]ACS_16_5YR_B08303_with_ann!R29","v":133},{"$f":"[1]ACS_16_5YR_B08303_with_ann!S29","v":73},{"$f":"[1]ACS_16_5YR_B08303_with_ann!T29","v":78},{"$f":"[1]ACS_16_5YR_B08303_with_ann!U29","v":72},{"$f":"[1]ACS_16_5YR_B08303_with_ann!V29","v":89},{"$f":"[1]ACS_16_5YR_B08303_with_ann!W29","v":85},{"$f":"[1]ACS_16_5YR_B08303_with_ann!X29","v":150},{"$f":"[1]ACS_16_5YR_B08303_with_ann!Y29","v":123},{"$f":"[1]ACS_16_5YR_B08303_with_ann!Z29","v":33},{"$f":"[1]ACS_16_5YR_B08303_with_ann!AA29","v":27},{"$f":"[1]ACS_16_5YR_B08303_with_ann!AB29","v":228},{"$f":"[1]ACS_16_5YR_B08303_with_ann!AC29","v":152}]
["06000US3300323380","3300323380","060","Eaton",{"$f":"[1]ACS_16_5YR_B08303_with_ann!D30","v":118},{"$f":"[1]ACS_16_5YR_B08303_with_ann!E30","v":42},{"$f":"[1]ACS_16_5YR_B08303_with_ann!F30","v":13},{"$f":"[1]ACS_16_5YR_B08303_with_ann!G30","v":8},{"$f":"[1]ACS_16_5YR_B08303_with_ann!H30","v":0},{"$f":"[1]ACS_16_5YR_B08303_with_ann!I30","v":11},{"$f":"[1]ACS_16_5YR_B08303_with_ann!J30","v":18},{"$f":"[1]ACS_16_5YR_B08303_with_ann!K30","v":16},{"$f":"[1]ACS_16_5YR_B08303_with_ann!L30","v":13},{"$f":"[1]ACS_16_5YR_B08303_with_ann!M30","v":11},{"$f":"[1]ACS_16_5YR_B08303_with_ann!N30","v":16},{"$f":"[1]ACS_16_5YR_B08303_with_ann!O30","v":19},{"$f":"[1]ACS_16_5YR_B08303_with_ann!P30","v":13},{"$f":"[1]ACS_16_5YR_B08303_with_ann!Q30","v":13},{"$f":"[1]ACS_16_5YR_B08303_with_ann!R30","v":17},{"$f":"[1]ACS_16_5YR_B08303_with_ann!S30","v":14},{"$f":"[1]ACS_16_5YR_B08303_with_ann!T30","v":6},{"$f":"[1]ACS_16_5YR_B08303_with_ann!U30","v":6},{"$f":"[1]ACS_16_5YR_B08303_with_ann!V30","v":2},{"$f":"[1]ACS_16_5YR_B08303_with_ann!W30","v":3},{"$f":"[1]ACS_16_5YR_B08303_with_ann!X30","v":1},{"$f":"[1]ACS_16_5YR_B08303_with_ann!Y30","v":4},{"$f":"[1]ACS_16_5YR_B08303_with_ann!Z30","v":9},{"$f":"[1]ACS_16_5YR_B08303_with_ann!AA30","v":10},{"$f":"[1]ACS_16_5YR_B08303_with_ann!AB30","v":10},{"$f":"[1]ACS_16_5YR_B08303_with_ann!AC30","v":10}]
["06000US3300323620","3300323620","060","Effingham",{"$f":"[1]ACS_16_5YR_B08303_with_ann!D31","v":733},{"$f":"[1]ACS_16_5YR_B08303_with_ann!E31","v":147},{"$f":"[1]ACS_16_5YR_B08303_with_ann!F31","v":17},{"$f":"[1]ACS_16_5YR_B08303_with_ann!G31","v":15},{"$f":"[1]ACS_16_5YR_B08303_with_ann!H31","v":27},{"$f":"[1]ACS_16_5YR_B08303_with_ann!I31","v":23},{"$f":"[1]ACS_16_5YR_B08303_with_ann!J31","v":26},{"$f":"[1]ACS_16_5YR_B08303_with_ann!K31","v":19},{"$f":"[1]ACS_16_5YR_B08303_with_ann!L31","v":83},{"$f":"[1]ACS_16_5YR_B08303_with_ann!M31","v":41},{"$f":"[1]ACS_16_5YR_B08303_with_ann!N31","v":139},{"$f":"[1]ACS_16_5YR_B08303_with_ann!O31","v":52},{"$f":"[1]ACS_16_5YR_B08303_with_ann!P31","v":43},{"$f":"[1]ACS_16_5YR_B08303_with_ann!Q31","v":27},{"$f":"[1]ACS_16_5YR_B08303_with_ann!R31","v":125},{"$f":"[1]ACS_16_5YR_B08303_with_ann!S31","v":47},{"$f":"[1]ACS_16_5YR_B08303_with_ann!T31","v":33},{"$f":"[1]ACS_16_5YR_B08303_with_ann!U31","v":27},{"$f":"[1]ACS_16_5YR_B08303_with_ann!V31","v":12},{"$f":"[1]ACS_16_5YR_B08303_with_ann!W31","v":8},{"$f":"[1]ACS_16_5YR_B08303_with_ann!X31","v":110},{"$f":"[1]ACS_16_5YR_B08303_with_ann!Y31","v":45},{"$f":"[1]ACS_16_5YR_B08303_with_ann!Z31","v":109},{"$f":"[1]ACS_16_5YR_B08303_with_ann!AA31","v":45},{"$f":"[1]ACS_16_5YR_B08303_with_ann!AB31","v":9},{"$f":"[1]ACS_16_5YR_B08303_with_ann!AC31","v":8}]
["06000US3300327700","3300327700","060","Freedom",{"$f":"[1]ACS_16_5YR_B08303_with_ann!D32","v":448},{"$f":"[1]ACS_16_5YR_B08303_with_ann!E32","v":86},{"$f":"[1]ACS_16_5YR_B08303_with_ann!F32","v":11},{"$f":"[1]ACS_16_5YR_B08303_with_ann!G32","v":14},{"$f":"[1]ACS_16_5YR_B08303_with_ann!H32","v":24},{"$f":"[1]ACS_16_5YR_B08303_with_ann!I32","v":20},{"$f":"[1]ACS_16_5YR_B08303_with_ann!J32","v":87},{"$f":"[1]ACS_16_5YR_B08303_with_ann!K32","v":44},{"$f":"[1]ACS_16_5YR_B08303_with_ann!L32","v":59},{"$f":"[1]ACS_16_5YR_B08303_with_ann!M32","v":29},{"$f":"[1]ACS_16_5YR_B08303_with_ann!N32","v":52},{"$f":"[1]ACS_16_5YR_B08303_with_ann!O32","v":24},{"$f":"[1]ACS_16_5YR_B08303_with_ann!P32","v":21},{"$f":"[1]ACS_16_5YR_B08303_with_ann!Q32","v":11},{"$f":"[1]ACS_16_5YR_B08303_with_ann!R32","v":54},{"$f":"[1]ACS_16_5YR_B08303_with_ann!S32","v":29},{"$f":"[1]ACS_16_5YR_B08303_with_ann!T32","v":25},{"$f":"[1]ACS_16_5YR_B08303_with_ann!U32","v":21},{"$f":"[1]ACS_16_5YR_B08303_with_ann!V32","v":24},{"$f":"[1]ACS_16_5YR_B08303_with_ann!W32","v":18},{"$f":"[1]ACS_16_5YR_B08303_with_ann!X32","v":32},{"$f":"[1]ACS_16_5YR_B08303_with_ann!Y32","v":20},{"$f":"[1]ACS_16_5YR_B08303_with_ann!Z32","v":24},{"$f":"[1]ACS_16_5YR_B08303_with_ann!AA32","v":21},{"$f":"[1]ACS_16_5YR_B08303_with_ann!AB32","v":35},{"$f":"[1]ACS_16_5YR_B08303_with_ann!AC32","v":22}]
["06000US3300332500","3300332500","060","Hale's location",{"$f":"[1]ACS_16_5YR_B08303_with_ann!D33","v":36},{"$f":"[1]ACS_16_5YR_B08303_with_ann!E33","v":20},{"$f":"[1]ACS_16_5YR_B08303_with_ann!F33","v":0},{"$f":"[1]ACS_16_5YR_B08303_with_ann!G33","v":11},{"$f":"[1]ACS_16_5YR_B08303_with_ann!H33","v":18},{"$f":"[1]ACS_16_5YR_B08303_with_ann!I33","v":15},{"$f":"[1]ACS_16_5YR_B08303_with_ann!J33","v":7},{"$f":"[1]ACS_16_5YR_B08303_with_ann!K33","v":8},{"$f":"[1]ACS_16_5YR_B08303_with_ann!L33","v":2},{"$f":"[1]ACS_16_5YR_B08303_with_ann!M33","v":3},{"$f":"[1]ACS_16_5YR_B08303_with_ann!N33","v":4},{"$f":"[1]ACS_16_5YR_B08303_with_ann!O33","v":6},{"$f":"[1]ACS_16_5YR_B08303_with_ann!P33","v":0},{"$f":"[1]ACS_16_5YR_B08303_with_ann!Q33","v":11},{"$f":"[1]ACS_16_5YR_B08303_with_ann!R33","v":0},{"$f":"[1]ACS_16_5YR_B08303_with_ann!S33","v":11},{"$f":"[1]ACS_16_5YR_B08303_with_ann!T33","v":0},{"$f":"[1]ACS_16_5YR_B08303_with_ann!U33","v":11},{"$f":"[1]ACS_16_5YR_B08303_with_ann!V33","v":0},{"$f":"[1]ACS_16_5YR_B08303_with_ann!W33","v":11},{"$f":"[1]ACS_16_5YR_B08303_with_ann!X33","v":3},{"$f":"[1]ACS_16_5YR_B08303_with_ann!Y33","v":6},{"$f":"[1]ACS_16_5YR_B08303_with_ann!Z33","v":0},{"$f":"[1]ACS_16_5YR_B08303_with_ann!AA33","v":11},{"$f":"[1]ACS_16_5YR_B08303_with_ann!AB33","v":2},{"$f":"[1]ACS_16_5YR_B08303_with_ann!AC33","v":3}]
["06000US3300334500","3300334500","060","Hart's Location",{"$f":"[1]ACS_16_5YR_B08303_with_ann!D34","v":27},{"$f":"[1]ACS_16_5YR_B08303_with_ann!E34","v":25},{"$f":"[1]ACS_16_5YR_B08303_with_ann!F34","v":2},{"$f":"[1]ACS_16_5YR_B08303_with_ann!G34","v":4},{"$f":"[1]ACS_16_5YR_B08303_with_ann!H34","v":9},{"$f":"[1]ACS_16_5YR_B08303_with_ann!I34","v":10},{"$f":"[1]ACS_16_5YR_B08303_with_ann!J34","v":4},{"$f":"[1]ACS_16_5YR_B08303_with_ann!K34","v":8},{"$f":"[1]ACS_16_5YR_B08303_with_ann!L34","v":0},{"$f":"[1]ACS_16_5YR_B08303_with_ann!M34","v":11},{"$f":"[1]ACS_16_5YR_B08303_with_ann!N34","v":2},{"$f":"[1]ACS_16_5YR_B08303_with_ann!O34","v":4},{"$f":"[1]ACS_16_5YR_B08303_with_ann!P34","v":0},{"$f":"[1]ACS_16_5YR_B08303_with_ann!Q34","v":11},{"$f":"[1]ACS_16_5YR_B08303_with_ann!R34","v":4},{"$f":"[1]ACS_16_5YR_B08303_with_ann!S34","v":7},{"$f":"[1]ACS_16_5YR_B08303_with_ann!T34","v":0},{"$f":"[1]ACS_16_5YR_B08303_with_ann!U34","v":11},{"$f":"[1]ACS_16_5YR_B08303_with_ann!V34","v":0},{"$f":"[1]ACS_16_5YR_B08303_with_ann!W34","v":11},{"$f":"[1]ACS_16_5YR_B08303_with_ann!X34","v":0},{"$f":"[1]ACS_16_5YR_B08303_with_ann!Y34","v":11},{"$f":"[1]ACS_16_5YR_B08303_with_ann!Z34","v":6},{"$f":"[1]ACS_16_5YR_B08303_with_ann!AA34","v":9},{"$f":"[1]ACS_16_5YR_B08303_with_ann!AB34","v":0},{"$f":"[1]ACS_16_5YR_B08303_with_ann!AC34","v":11}]
["06000US3300338260","3300338260","060","Jackson",{"$f":"[1]ACS_16_5YR_B08303_with_ann!D35","v":393},{"$f":"[1]ACS_16_5YR_B08303_with_ann!E35","v":128},{"$f":"[1]ACS_16_5YR_B08303_with_ann!F35","v":14},{"$f":"[1]ACS_16_5YR_B08303_with_ann!G35","v":18},{"$f":"[1]ACS_16_5YR_B08303_with_ann!H35","v":66},{"$f":"[1]ACS_16_5YR_B08303_with_ann!I35","v":39},{"$f":"[1]ACS_16_5YR_B08303_with_ann!J35","v":31},{"$f":"[1]ACS_16_5YR_B08303_with_ann!K35","v":32},{"$f":"[1]ACS_16_5YR_B08303_with_ann!L35","v":107},{"$f":"[1]ACS_16_5YR_B08303_with_ann!M35","v":58},{"$f":"[1]ACS_16_5YR_B08303_with_ann!N35","v":46},{"$f":"[1]ACS_16_5YR_B08303_with_ann!O35","v":51},{"$f":"[1]ACS_16_5YR_B08303_with_ann!P35","v":13},{"$f":"[1]ACS_16_5YR_B08303_with_ann!Q35","v":21},{"$f":"[1]ACS_16_5YR_B08303_with_ann!R35","v":69},{"$f":"[1]ACS_16_5YR_B08303_with_ann!S35","v":60},{"$f":"[1]ACS_16_5YR_B08303_with_ann!T35","v":21},{"$f":"[1]ACS_16_5YR_B08303_with_ann!U35","v":20},{"$f":"[1]ACS_16_5YR_B08303_with_ann!V35","v":0},{"$f":"[1]ACS_16_5YR_B08303_with_ann!W35","v":11},{"$f":"[1]ACS_16_5YR_B08303_with_ann!X35","v":16},{"$f":"[1]ACS_16_5YR_B08303_with_ann!Y35","v":20},{"$f":"[1]ACS_16_5YR_B08303_with_ann!Z35","v":10},{"$f":"[1]ACS_16_5YR_B08303_with_ann!AA35","v":15},{"$f":"[1]ACS_16_5YR_B08303_with_ann!AB35","v":0},{"$f":"[1]ACS_16_5YR_B08303_with_ann!AC35","v":11}]
["06000US3300345060","3300345060","060","Madison",{"$f":"[1]ACS_16_5YR_B08303_with_ann!D36","v":1185},{"$f":"[1]ACS_16_5YR_B08303_with_ann!E36","v":144},{"$f":"[1]ACS_16_5YR_B08303_with_ann!F36","v":43},{"$f":"[1]ACS_16_5YR_B08303_with_ann!G36","v":35},{"$f":"[1]ACS_16_5YR_B08303_with_ann!H36","v":96},{"$f":"[1]ACS_16_5YR_B08303_with_ann!I36","v":48},{"$f":"[1]ACS_16_5YR_B08303_with_ann!J36","v":44},{"$f":"[1]ACS_16_5YR_B08303_with_ann!K36","v":34},{"$f":"[1]ACS_16_5YR_B08303_with_ann!L36","v":144},{"$f":"[1]ACS_16_5YR_B08303_with_ann!M36","v":48},{"$f":"[1]ACS_16_5YR_B08303_with_ann!N36","v":293},{"$f":"[1]ACS_16_5YR_B08303_with_ann!O36","v":79},{"$f":"[1]ACS_16_5YR_B08303_with_ann!P36","v":160},{"$f":"[1]ACS_16_5YR_B08303_with_ann!Q36","v":107},{"$f":"[1]ACS_16_5YR_B08303_with_ann!R36","v":177},{"$f":"[1]ACS_16_5YR_B08303_with_ann!S36","v":90},{"$f":"[1]ACS_16_5YR_B08303_with_ann!T36","v":22},{"$f":"[1]ACS_16_5YR_B08303_with_ann!U36","v":21},{"$f":"[1]ACS_16_5YR_B08303_with_ann!V36","v":72},{"$f":"[1]ACS_16_5YR_B08303_with_ann!W36","v":45},{"$f":"[1]ACS_16_5YR_B08303_with_ann!X36","v":24},{"$f":"[1]ACS_16_5YR_B08303_with_ann!Y36","v":26},{"$f":"[1]ACS_16_5YR_B08303_with_ann!Z36","v":40},{"$f":"[1]ACS_16_5YR_B08303_with_ann!AA36","v":26},{"$f":"[1]ACS_16_5YR_B08303_with_ann!AB36","v":70},{"$f":"[1]ACS_16_5YR_B08303_with_ann!AC36","v":48}]
["06000US3300349380","3300349380","060","Moultonborough",{"$f":"[1]ACS_16_5YR_B08303_with_ann!D37","v":1747},{"$f":"[1]ACS_16_5YR_B08303_with_ann!E37","v":192},{"$f":"[1]ACS_16_5YR_B08303_with_ann!F37","v":200},{"$f":"[1]ACS_16_5YR_B08303_with_ann!G37","v":120},{"$f":"[1]ACS_16_5YR_B08303_with_ann!H37","v":198},{"$f":"[1]ACS_16_5YR_B08303_with_ann!I37","v":88},{"$f":"[1]ACS_16_5YR_B08303_with_ann!J37","v":238},{"$f":"[1]ACS_16_5YR_B08303_with_ann!K37","v":91},{"$f":"[1]ACS_16_5YR_B08303_with_ann!L37","v":128},{"$f":"[1]ACS_16_5YR_B08303_with_ann!M37","v":66},{"$f":"[1]ACS_16_5YR_B08303_with_ann!N37","v":214},{"$f":"[1]ACS_16_5YR_B08303_with_ann!O37","v":94},{"$f":"[1]ACS_16_5YR_B08303_with_ann!P37","v":114},{"$f":"[1]ACS_16_5YR_B08303_with_ann!Q37","v":63},{"$f":"[1]ACS_16_5YR_B08303_with_ann!R37","v":145},{"$f":"[1]ACS_16_5YR_B08303_with_ann!S37","v":70},{"$f":"[1]ACS_16_5YR_B08303_with_ann!T37","v":79},{"$f":"[1]ACS_16_5YR_B08303_with_ann!U37","v":61},{"$f":"[1]ACS_16_5YR_B08303_with_ann!V37","v":187},{"$f":"[1]ACS_16_5YR_B08303_with_ann!W37","v":80},{"$f":"[1]ACS_16_5YR_B08303_with_ann!X37","v":43},{"$f":"[1]ACS_16_5YR_B08303_with_ann!Y37","v":36},{"$f":"[1]ACS_16_5YR_B08303_with_ann!Z37","v":134},{"$f":"[1]ACS_16_5YR_B08303_with_ann!AA37","v":85},{"$f":"[1]ACS_16_5YR_B08303_with_ann!AB37","v":67},{"$f":"[1]ACS_16_5YR_B08303_with_ann!AC37","v":75}]
["06000US3300358740","3300358740","060","Ossipee",{"$f":"[1]ACS_16_5YR_B08303_with_ann!D38","v":1782},{"$f":"[1]ACS_16_5YR_B08303_with_ann!E38","v":224},{"$f":"[1]ACS_16_5YR_B08303_with_ann!F38","v":186},{"$f":"[1]ACS_16_5YR_B08303_with_ann!G38","v":124},{"$f":"[1]ACS_16_5YR_B08303_with_ann!H38","v":140},{"$f":"[1]ACS_16_5YR_B08303_with_ann!I38","v":76},{"$f":"[1]ACS_16_5YR_B08303_with_ann!J38","v":157},{"$f":"[1]ACS_16_5YR_B08303_with_ann!K38","v":91},{"$f":"[1]ACS_16_5YR_B08303_with_ann!L38","v":169},{"$f":"[1]ACS_16_5YR_B08303_with_ann!M38","v":90},{"$f":"[1]ACS_16_5YR_B08303_with_ann!N38","v":101},{"$f":"[1]ACS_16_5YR_B08303_with_ann!O38","v":58},{"$f":"[1]ACS_16_5YR_B08303_with_ann!P38","v":138},{"$f":"[1]ACS_16_5YR_B08303_with_ann!Q38","v":102},{"$f":"[1]ACS_16_5YR_B08303_with_ann!R38","v":224},{"$f":"[1]ACS_16_5YR_B08303_with_ann!S38","v":134},{"$f":"[1]ACS_16_5YR_B08303_with_ann!T38","v":0},{"$f":"[1]ACS_16_5YR_B08303_with_ann!U38","v":11},{"$f":"[1]ACS_16_5YR_B08303_with_ann!V38","v":124},{"$f":"[1]ACS_16_5YR_B08303_with_ann!W38","v":64},{"$f":"[1]ACS_16_5YR_B08303_with_ann!X38","v":296},{"$f":"[1]ACS_16_5YR_B08303_with_ann!Y38","v":166},{"$f":"[1]ACS_16_5YR_B08303_with_ann!Z38","v":184},{"$f":"[1]ACS_16_5YR_B08303_with_ann!AA38","v":88},{"$f":"[1]ACS_16_5YR_B08303_with_ann!AB38","v":63},{"$f":"[1]ACS_16_5YR_B08303_with_ann!AC38","v":61}]
["06000US3300367780","3300367780","060","Sandwich",{"$f":"[1]ACS_16_5YR_B08303_with_ann!D39","v":595},{"$f":"[1]ACS_16_5YR_B08303_with_ann!E39","v":109},{"$f":"[1]ACS_16_5YR_B08303_with_ann!F39","v":20},{"$f":"[1]ACS_16_5YR_B08303_with_ann!G39","v":17},{"$f":"[1]ACS_16_5YR_B08303_with_ann!H39","v":64},{"$f":"[1]ACS_16_5YR_B08303_with_ann!I39","v":36},{"$f":"[1]ACS_16_5YR_B08303_with_ann!J39","v":44},{"$f":"[1]ACS_16_5YR_B08303_with_ann!K39","v":23},{"$f":"[1]ACS_16_5YR_B08303_with_ann!L39","v":74},{"$f":"[1]ACS_16_5YR_B08303_with_ann!M39","v":44},{"$f":"[1]ACS_16_5YR_B08303_with_ann!N39","v":43},{"$f":"[1]ACS_16_5YR_B08303_with_ann!O39","v":20},{"$f":"[1]ACS_16_5YR_B08303_with_ann!P39","v":30},{"$f":"[1]ACS_16_5YR_B08303_with_ann!Q39","v":22},{"$f":"[1]ACS_16_5YR_B08303_with_ann!R39","v":81},{"$f":"[1]ACS_16_5YR_B08303_with_ann!S39","v":37},{"$f":"[1]ACS_16_5YR_B08303_with_ann!T39","v":22},{"$f":"[1]ACS_16_5YR_B08303_with_ann!U39","v":29},{"$f":"[1]ACS_16_5YR_B08303_with_ann!V39","v":42},{"$f":"[1]ACS_16_5YR_B08303_with_ann!W39","v":22},{"$f":"[1]ACS_16_5YR_B08303_with_ann!X39","v":69},{"$f":"[1]ACS_16_5YR_B08303_with_ann!Y39","v":29},{"$f":"[1]ACS_16_5YR_B08303_with_ann!Z39","v":85},{"$f":"[1]ACS_16_5YR_B08303_with_ann!AA39","v":37},{"$f":"[1]ACS_16_5YR_B08303_with_ann!AB39","v":21},{"$f":"[1]ACS_16_5YR_B08303_with_ann!AC39","v":14}]
["06000US3300376100","3300376100","060","Tamworth",{"$f":"[1]ACS_16_5YR_B08303_with_ann!D40","v":1505},{"$f":"[1]ACS_16_5YR_B08303_with_ann!E40","v":248},{"$f":"[1]ACS_16_5YR_B08303_with_ann!F40","v":168},{"$f":"[1]ACS_16_5YR_B08303_with_ann!G40","v":124},{"$f":"[1]ACS_16_5YR_B08303_with_ann!H40","v":213},{"$f":"[1]ACS_16_5YR_B08303_with_ann!I40","v":109},{"$f":"[1]ACS_16_5YR_B08303_with_ann!J40","v":237},{"$f":"[1]ACS_16_5YR_B08303_with_ann!K40","v":146},{"$f":"[1]ACS_16_5YR_B08303_with_ann!L40","v":27},{"$f":"[1]ACS_16_5YR_B08303_with_ann!M40","v":31},{"$f":"[1]ACS_16_5YR_B08303_with_ann!N40","v":259},{"$f":"[1]ACS_16_5YR_B08303_with_ann!O40","v":161},{"$f":"[1]ACS_16_5YR_B08303_with_ann!P40","v":40},{"$f":"[1]ACS_16_5YR_B08303_with_ann!Q40","v":62},{"$f":"[1]ACS_16_5YR_B08303_with_ann!R40","v":150},{"$f":"[1]ACS_16_5YR_B08303_with_ann!S40","v":99},{"$f":"[1]ACS_16_5YR_B08303_with_ann!T40","v":87},{"$f":"[1]ACS_16_5YR_B08303_with_ann!U40","v":79},{"$f":"[1]ACS_16_5YR_B08303_with_ann!V40","v":28},{"$f":"[1]ACS_16_5YR_B08303_with_ann!W40","v":40},{"$f":"[1]ACS_16_5YR_B08303_with_ann!X40","v":212},{"$f":"[1]ACS_16_5YR_B08303_with_ann!Y40","v":120},{"$f":"[1]ACS_16_5YR_B08303_with_ann!Z40","v":55},{"$f":"[1]ACS_16_5YR_B08303_with_ann!AA40","v":44},{"$f":"[1]ACS_16_5YR_B08303_with_ann!AB40","v":29},{"$f":"[1]ACS_16_5YR_B08303_with_ann!AC40","v":24}]
["06000US3300377620","3300377620","060","Tuftonboro",{"$f":"[1]ACS_16_5YR_B08303_with_ann!D41","v":790},{"$f":"[1]ACS_16_5YR_B08303_with_ann!E41","v":132},{"$f":"[1]ACS_16_5YR_B08303_with_ann!F41","v":20},{"$f":"[1]ACS_16_5YR_B08303_with_ann!G41","v":19},{"$f":"[1]ACS_16_5YR_B08303_with_ann!H41","v":63},{"$f":"[1]ACS_16_5YR_B08303_with_ann!I41","v":41},{"$f":"[1]ACS_16_5YR_B08303_with_ann!J41","v":85},{"$f":"[1]ACS_16_5YR_B08303_with_ann!K41","v":43},{"$f":"[1]ACS_16_5YR_B08303_with_ann!L41","v":189},{"$f":"[1]ACS_16_5YR_B08303_with_ann!M41","v":76},{"$f":"[1]ACS_16_5YR_B08303_with_ann!N41","v":107},{"$f":"[1]ACS_16_5YR_B08303_with_ann!O41","v":40},{"$f":"[1]ACS_16_5YR_B08303_with_ann!P41","v":33},{"$f":"[1]ACS_16_5YR_B08303_with_ann!Q41","v":27},{"$f":"[1]ACS_16_5YR_B08303_with_ann!R41","v":72},{"$f":"[1]ACS_16_5YR_B08303_with_ann!S41","v":35},{"$f":"[1]ACS_16_5YR_B08303_with_ann!T41","v":0},{"$f":"[1]ACS_16_5YR_B08303_with_ann!U41","v":11},{"$f":"[1]ACS_16_5YR_B08303_with_ann!V41","v":49},{"$f":"[1]ACS_16_5YR_B08303_with_ann!W41","v":36},{"$f":"[1]ACS_16_5YR_B08303_with_ann!X41","v":60},{"$f":"[1]ACS_16_5YR_B08303_with_ann!Y41","v":30},{"$f":"[1]ACS_16_5YR_B08303_with_ann!Z41","v":64},{"$f":"[1]ACS_16_5YR_B08303_with_ann!AA41","v":40},{"$f":"[1]ACS_16_5YR_B08303_with_ann!AB41","v":48},{"$f":"[1]ACS_16_5YR_B08303_with_ann!AC41","v":40}]
["06000US3300378180","3300378180","060","Wakefield",{"$f":"[1]ACS_16_5YR_B08303_with_ann!D42","v":2655},{"$f":"[1]ACS_16_5YR_B08303_with_ann!E42","v":322},{"$f":"[1]ACS_16_5YR_B08303_with_ann!F42","v":100},{"$f":"[1]ACS_16_5YR_B08303_with_ann!G42","v":102},{"$f":"[1]ACS_16_5YR_B08303_with_ann!H42","v":153},{"$f":"[1]ACS_16_5YR_B08303_with_ann!I42","v":116},{"$f":"[1]ACS_16_5YR_B08303_with_ann!J42","v":264},{"$f":"[1]ACS_16_5YR_B08303_with_ann!K42","v":141},{"$f":"[1]ACS_16_5YR_B08303_with_ann!L42","v":143},{"$f":"[1]ACS_16_5YR_B08303_with_ann!M42","v":129},{"$f":"[1]ACS_16_5YR_B08303_with_ann!N42","v":140},{"$f":"[1]ACS_16_5YR_B08303_with_ann!O42","v":147},{"$f":"[1]ACS_16_5YR_B08303_with_ann!P42","v":209},{"$f":"[1]ACS_16_5YR_B08303_with_ann!Q42","v":142},{"$f":"[1]ACS_16_5YR_B08303_with_ann!R42","v":300},{"$f":"[1]ACS_16_5YR_B08303_with_ann!S42","v":145},{"$f":"[1]ACS_16_5YR_B08303_with_ann!T42","v":104},{"$f":"[1]ACS_16_5YR_B08303_with_ann!U42","v":75},{"$f":"[1]ACS_16_5YR_B08303_with_ann!V42","v":130},{"$f":"[1]ACS_16_5YR_B08303_with_ann!W42","v":103},{"$f":"[1]ACS_16_5YR_B08303_with_ann!X42","v":556},{"$f":"[1]ACS_16_5YR_B08303_with_ann!Y42","v":209},{"$f":"[1]ACS_16_5YR_B08303_with_ann!Z42","v":358},{"$f":"[1]ACS_16_5YR_B08303_with_ann!AA42","v":162},{"$f":"[1]ACS_16_5YR_B08303_with_ann!AB42","v":198},{"$f":"[1]ACS_16_5YR_B08303_with_ann!AC42","v":109}]
["06000US3300386420","3300386420","060","Wolfeboro",{"$f":"[1]ACS_16_5YR_B08303_with_ann!D43","v":2659},{"$f":"[1]ACS_16_5YR_B08303_with_ann!E43","v":297},{"$f":"[1]ACS_16_5YR_B08303_with_ann!F43","v":279},{"$f":"[1]ACS_16_5YR_B08303_with_ann!G43","v":213},{"$f":"[1]ACS_16_5YR_B08303_with_ann!H43","v":209},{"$f":"[1]ACS_16_5YR_B08303_with_ann!I43","v":151},{"$f":"[1]ACS_16_5YR_B08303_with_ann!J43","v":707},{"$f":"[1]ACS_16_5YR_B08303_with_ann!K43","v":275},{"$f":"[1]ACS_16_5YR_B08303_with_ann!L43","v":308},{"$f":"[1]ACS_16_5YR_B08303_with_ann!M43","v":169},{"$f":"[1]ACS_16_5YR_B08303_with_ann!N43","v":273},{"$f":"[1]ACS_16_5YR_B08303_with_ann!O43","v":216},{"$f":"[1]ACS_16_5YR_B08303_with_ann!P43","v":107},{"$f":"[1]ACS_16_5YR_B08303_with_ann!Q43","v":92},{"$f":"[1]ACS_16_5YR_B08303_with_ann!R43","v":139},{"$f":"[1]ACS_16_5YR_B08303_with_ann!S43","v":107},{"$f":"[1]ACS_16_5YR_B08303_with_ann!T43","v":14},{"$f":"[1]ACS_16_5YR_B08303_with_ann!U43","v":23},{"$f":"[1]ACS_16_5YR_B08303_with_ann!V43","v":226},{"$f":"[1]ACS_16_5YR_B08303_with_ann!W43","v":127},{"$f":"[1]ACS_16_5YR_B08303_with_ann!X43","v":113},{"$f":"[1]ACS_16_5YR_B08303_with_ann!Y43","v":91},{"$f":"[1]ACS_16_5YR_B08303_with_ann!Z43","v":187},{"$f":"[1]ACS_16_5YR_B08303_with_ann!AA43","v":112},{"$f":"[1]ACS_16_5YR_B08303_with_ann!AB43","v":97},{"$f":"[1]ACS_16_5YR_B08303_with_ann!AC43","v":84}]
[]
[]
[]
[]
[]
[null,null,null,null,{"$f":"$D$3","v":"Albany"},null,{"$f":"$D$4","v":"Bartlett"},null,{"$f":"$D$5","v":"Brookfield"},null,{"$f":"$D$6","v":"Chatham"},null,{"$f":"$D$7","v":"Conway"},null,{"$f":"$D$8","v":"Eaton"},null,{"$f":"$D$9","v":"Effingham"},null,{"$f":"$D$10","v":"Freedom"},null,{"$f":"$D$11","v":"Hale's location"},null,{"$f":"$D$12","v":"Hart's Location"},null,{"$f":"$D$13","v":"Jackson"},null,{"$f":"$D$14","v":"Madison"},null,{"$f":"$D$15","v":"Moultonborough"},null,{"$f":"$D$16","v":"Ossipee"},null,{"$f":"$D$17","v":"Sandwich"},null,{"$f":"$D$18","v":"Tamworth"},null,{"$f":"$D$19","v":"Tuftonboro"},null,{"$f":"$D$20","v":"Wakefield"},null,{"$f":"$D$21","v":"Wolfeboro"}]
[null,null,null,null,"Estimate","Margin of Error","Estimate","Margin of Error","Estimate","Margin of Error","Estimate","Margin of Error","Estimate","Margin of Error","Estimate","Margin of Error","Estimate","Margin of Error","Estimate","Margin of Error","Estimate","Margin of Error","Estimate","Margin of Error","Estimate","Margin of Error","Estimate","Margin of Error","Estimate","Margin of Error","Estimate","Margin of Error","Estimate","Margin of Error","Estimate","Margin of Error","Estimate","Margin of Error","Estimate","Margin of Error","Estimate","Margin of Error"]
[null,null,null,"Estimate; Total:",288,63,1256,211,339,74,167,64,4817,421,135,46,672,137,522,104,33,17,38,26,466,136,1192,132,1692,190,1715,258,557,117,1553,208,858,136,2401,303,2626,333]
[null,null,null,"Estimate; Total: - Less than 5 minutes",15,15,141,97,19,17,0,11,659,279,12,10,17,11,14,19,0,11,5,5,50,40,28,20,131,104,86,83,20,12,192,124,62,41,121,97,259,188]
[null,null,null,"Estimate; Total: - 5 to 9 minutes",10,7,189,93,10,12,5,8,1314,392,0,11,23,26,23,19,15,13,9,10,107,56,81,51,166,78,127,63,45,31,258,156,85,58,145,126,243,127]
[null,null,null,"Estimate; Total: - 10 to 14 minutes",34,19,238,119,22,13,0,11,1007,283,26,20,44,29,93,50,6,7,4,7,37,30,68,42,244,87,167,105,48,31,203,103,64,31,159,127,721,269]
[null,null,null,"Estimate; Total: - 15 to 19 minutes",87,38,254,170,27,19,9,7,863,220,22,20,96,45,77,31,2,3,2,3,95,39,134,54,202,75,158,71,69,41,93,68,198,74,202,161,236,147]
[null,null,null,"Estimate; Total: - 20 to 24 minutes",34,15,264,128,60,27,19,14,323,137,21,16,135,47,64,28,4,6,2,3,44,35,254,72,167,88,107,65,44,22,242,148,107,34,238,163,190,154]
[null,null,null,"Estimate; Total: - 25 to 29 minutes",13,15,0,11,16,10,11,10,76,52,10,8,32,25,41,27,0,11,6,8,13,21,200,85,90,53,140,76,38,23,61,75,27,23,151,106,85,76]
[null,null,null,"Estimate; Total: - 30 to 34 minutes",33,21,26,29,22,13,62,43,157,68,7,9,104,41,60,31,0,11,4,6,89,61,137,71,160,80,201,116,74,33,197,126,76,34,174,99,121,98]
[null,null,null,"Estimate; Total: - 35 to 39 minutes",5,6,0,11,10,9,9,7,9,14,3,4,19,13,51,38,0,11,0,11,9,14,38,33,113,74,9,18,27,25,59,67,0,11,159,114,13,21]
[null,null,null,"Estimate; Total: - 40 to 44 minutes",20,16,0,11,19,16,15,12,97,90,5,5,15,10,16,12,0,11,0,11,0,11,76,42,146,68,132,71,45,31,25,37,44,28,116,94,241,131]
[null,null,null,"Estimate; Total: - 45 to 59 minutes",22,15,64,69,49,21,23,15,132,103,1,3,93,39,42,23,2,3,0,11,13,19,58,44,68,43,280,173,63,32,159,106,75,69,398,174,126,92]
[null,null,null,"Estimate; Total: - 60 to 89 minutes",13,12,68,67,45,21,13,10,49,40,9,9,85,38,19,13,0,11,6,9,9,14,63,39,106,59,216,85,64,29,34,47,73,39,402,187,291,177]
[null,null,null,"Estimate; Total: - 90 or more minutes",2,4,12,17,40,23,1,2,131,89,19,16,9,9,22,21,4,5,0,11,0,11,55,37,99,79,92,74,20,13,30,30,47,42,136,74,100,81]
[]
[]
[]
[]
[]
[]
[]
[]
[]
[]
[]
[]
[]
[]
[]
[]
[]
[]
[]
[]
[]
[]
[]
[]
[]
[]
[]
[]
[]
[]
[]
[]
[]
[]
[]
[]
[]
[]
[]
[]
[]
[]
[]
[]
[]
[]
[]
[]
[]
[]
[]
[]
[]
[]
[]
[]
[]
[]
[]
[]
[]
[]
[]
[]
[]
[]
[null,225,35,151,31,138,30,13,9,74,22,3,5,0,114,0,114,0,114,68,21,381,88,349,92,32,27,151,31,138,30,131,30,7,279.30628349537716,0,161.22034611053283,13,9,5,7,8,279.32955446926843,0,161.22034611053283,200,34,25,255.34486483969087,0,161.22034611053283,2,4,13,10,34,16,41,20,14,12,13,12,21,17,7,7,80,23,8,9,12,12,59,25,106,26,40,20.124611797498108]
[]
[]
[]
[]
[]
[]
[]
[null,null,null,null,null,null,null,null,null,null,null,null,null,null,null,null,null,null,null,null,null,null,null,null,null,null,null,null,null,null,null,null,null,null,null,151,31,2,5,0,114,0,114,0,114,0,114,0,114,0,114,0,114,2,5,0,114,0,114,0,114,0,114,0,114,0,114,0,114,0,114,21,13,0,114,4,6,0,114,4,6,0,114,0,114,0,114,0,114,0,114,0,114,0,114,9,9,0,114,0,114,0,114,4,6,94,27,3,5,5,9,3,6,3,5,3,6,0,114,4,6,4,6,8,8,9,9,25,17,14,13,3,5,10,7,0,114,0,114,34,15,3,4,2,4,0,114,3,6,2,5,0,114,3,5,0,114,5,6,7,7,4,7,2,3,3,5,0,114,0,114,0,114,56563,12033,"-","**",77083,68446,61786,10828,49500,16827]
[]
[]
[]
[]
[]
[]
[]
[null,8931,172,1088,424,93,75.927597090912869,193,262.79840182162445,664,226.68259747938305,45,127.01181047445942,93,56.400354608814297,7843,453,396,133.05637902783917,1093,231.26824252369801,5137,506.62116023711445,620,144.40221604947757,597,160.42443704124381,3783,258,476,171,131,102,null,null,73,79,0,114,73,79,345,144,200,109,145,81,3307,247,1982,208,null,null,1325,285,168,101,205,86,684,224,1325,285,641,183,10,16,0,114,62,76,867,175,146,99,120,77]
[]
[]
[]
[null,151,31,138,30,6,7,0,114,7,11,3,6,7,8,5,8,24,12,41,19,25,15,16,10,4,6,13,9,0,114,0,114,4,6,0,114,3,5,0,114,2,5,4,6,0,114,0,114,0,114]
[]
[]
[]
[]
[]
[]
[]
[null,6588,17,6420,63,2586,272,3834,283,3227,342,291,189,207,113,109,97,0,114,0,114,0,114,0,114,168,63,154,59,14,22,6538,50,5758,356,780,336.81151999300732,483,264.23663636975095,267,155,216,214,297,175,0,114]
[]
[]
[]
[null,4896,128,829,212,116,80.156097709406993,48,52,68,61,301,121.65936051122412,230,160,531,201,182,101.23734488813898,4067,222]
[]
[]
[]
[null,138,30,0,114,0,114,0,114,0,114,0,114,0,114,0,114,0,114,0,114,0,114,0,114,0,114,0,114,7,10,2,4,8,7,0,114,21,16,26,13,17,11,30,12,18,12,9,10,0,114,null,null,null,null,329400,87194,0,0,0,0,0,0,0,0,0,0,0,0,0,0,0,0,0,0,0,0]
[]
[]
[]
[null,null,null,null,null,null,null,null,null,null,null,null,null,null,null,null,null,null,null,null,null,null,null,null,null,null,null,null,null,null,null,null,null,null,null,null,null,null,null,null,null,null,null,null,null,null,null,null,null,null,null,null,null,null,null,null,null,null,null,null,null,"Eaton",null,"Estimate","Margin of Error",13,9,0,114,0,114,0,114,0,114,0,114,0,114,0,114,4,6,0,114,4,6,0,114,0,114,0,114,0,114,3,5,0,114,0,114,0,114,0,114,3,5,0,114,2,5,0,114,0,114,0,114,0,114,2,5,0,114,4,6,4,6,0,114,0,114,0,114,0,114,0,114,0,114,0,114,0,114,0,114,0,114,0,114,0,114]

{"sheet":"ACS_Table_B01001","index":23,"n_rows":265,"n_cols":40,"rows_kept":265,"cut":false,"hidden":true,"merged":[[64928,24,64928,25],[64928,26,64928,27],[64928,28,64928,29],[64928,30,64928,31],[64928,32,64928,33],[64928,34,64928,35],[64928,36,64928,37],[64928,38,64928,39],[64948,24,64948,25],[64948,26,64948,27],[64948,28,64948,29],[64948,30,64948,31],[64948,32,64948,33],[64948,34,64948,35],[64948,36,64948,37],[64948,38,64948,39],[65010,24,65010,25],[65010,26,65010,27],[65010,28,65010,29],[65010,30,65010,31],[65010,32,65010,33],[65010,34,65010,35],[65010,36,65010,37],[65010,38,65010,39],[65030,24,65030,25],[65030,26,65030,27],[65030,28,65030,29],[65030,30,65030,31],[65030,32,65030,33],[65030,34,65030,35],[65030,36,65030,37],[65030,38,65030,39],[64702,24,64702,25],[64702,26,64702,27],[64702,28,64702,29],[64702,30,64702,31],[64702,32,64702,33],[64702,34,64702,35],[64702,36,64702,37],[64702,38,64702,39],[64764,24,64764,25],[64764,26,64764,27],[64764,28,64764,29],[64764,30,64764,31],[64764,32,64764,33],[64764,34,64764,35],[64764,36,64764,37],[64764,38,64764,39],[64784,24,64784,25],[64784,26,64784,27],[64784,28,64784,29],[64784,30,64784,31],[64784,32,64784,33],[64784,34,64784,35],[64784,36,64784,37],[64784,38,64784,39],[64846,24,64846,25],[64846,26,64846,27],[64846,28,64846,29],[64846,30,64846,31],[64846,32,64846,33],[64846,34,64846,35],[64846,36,64846,37],[64846,38,64846,39],[64436,24,64436,25],[64436,26,64436,27],[64436,28,64436,29],[64436,30,64436,31],[64436,32,64436,33],[64436,34,64436,35],[64436,36,64436,37],[64436,38,64436,39],[64456,24,64456,25],[64456,26,64456,27],[64456,28,64456,29],[64456,30,64456,31],[64456,32,64456,33],[64456,34,64456,35],[64456,36,64456,37],[64456,38,64456,39],[64866,24,64866,25],[64866,26,64866,27],[64866,28,64866,29],[64866,30,64866,31],[64866,32,64866,33],[64866,34,64866,35],[64866,36,64866,37],[64866,38,64866,39],[64518,24,64518,25],[64518,26,64518,27],[64518,28,64518,29],[64518,30,64518,31],[64518,32,64518,33],[64518,34,64518,35],[64518,36,64518,37],[64518,38,64518,39],[64538,24,64538,25],[64538,26,64538,27],[64538,28,64538,29],[64538,30,64538,31],[64538,32,64538,33],[64538,34,64538,35],[64538,36,64538,37],[64538,38,64538,39],[64600,24,64600,25],[64600,26,64600,27],[64600,28,64600,29],[64600,30,64600,31],[64600,32,64600,33],[64600,34,64600,35],[64600,36,64600,37],[64600,38,64600,39],[64620,24,64620,25],[64620,26,64620,27],[64620,28,64620,29],[64620,30,64620,31],[64620,32,64620,33],[64620,34,64620,35],[64620,36,64620,37],[64620,38,64620,39],[64682,24,64682,25],[64682,26,64682,27],[64682,28,64682,29],[64682,30,64682,31],[64682,32,64682,33],[64682,34,64682,35],[64682,36,64682,37],[64682,38,64682,39],[64210,24,64210,25],[64210,26,64210,27],[64210,28,64210,29],[64210,30,64210,31],[64210,32,64210,33],[64210,34,64210,35],[64210,36,64210,37],[64210,38,64210,39],[64272,24,64272,25],[64272,26,64272,27],[64272,28,64272,29],[64272,30,64272,31],[64272,32,64272,33],[64272,34,64272,35],[64272,36,64272,37],[64272,38,64272,39],[64292,24,64292,25],[64292,26,64292,27],[64292,28,64292,29],[64292,30,64292,31],[64292,32,64292,33],[64292,34,64292,35],[64292,36,64292,37],[64292,38,64292,39],[64354,24,64354,25],[64354,26,64354,27],[64354,28,64354,29],[64354,30,64354,31],[64354,32,64354,33],[64354,34,64354,35],[64354,36,64354,37],[64354,38,64354,39],[64374,24,64374,25],[64374,26,64374,27],[64374,28,64374,29],[64374,30,64374,31],[64374,32,64374,33],[64374,34,64374,35],[64374,36,64374,37],[64374,38,64374,39],[64026,24,64026,25],[64026,26,64026,27],[64026,28,64026,29],[64026,30,64026,31],[64026,32,64026,33],[64026,34,64026,35],[64026,36,64026,37],[64026,38,64026,39],[64046,24,64046,25],[64046,26,64046,27],[64046,28,64046,29],[64046,30,64046,31],[64046,32,64046,33],[64046,34,64046,35],[64046,36,64046,37],[64046,38,64046,39],[64108,24,64108,25],[64108,26,64108,27],[64108,28,64108,29],[64108,30,64108,31],[64108,32,64108,33],[64108,34,64108,35],[64108,36,64108,37],[64108,38,64108,39],[64128,24,64128,25],[64128,26,64128,27],[64128,28,64128,29],[64128,30,64128,31],[64128,32,64128,33],[64128,34,64128,35],[64128,36,64128,37],[64128,38,64128,39],[64190,24,64190,25],[64190,26,64190,27],[64190,28,64190,29],[64190,30,64190,31],[64190,32,64190,33],[64190,34,64190,35],[64190,36,64190,37],[64190,38,64190,39],[63800,24,63800,25],[63800,26,63800,27],[63800,28,63800,29],[63800,30,63800,31],[63800,32,63800,33],[63800,34,63800,35],[63800,36,63800,37],[63800,38,63800,39],[63862,24,63862,25],[63862,26,63862,27],[63862,28,63862,29],[63862,30,63862,31],[63862,32,63862,33],[63862,34,63862,35],[63862,36,63862,37],[63862,38,63862,39],[63882,24,63882,25],[63882,26,63882,27],[63882,28,63882,29],[63882,30,63882,31],[63882,32,63882,33],[63882,34,63882,35],[63882,36,63882,37],[63882,38,63882,39],[63944,24,63944,25],[63944,26,63944,27],[63944,28,63944,29],[63944,30,63944,31],[63944,32,63944,33],[63944,34,63944,35],[63944,36,63944,37],[63944,38,63944,39],[63964,24,63964,25],[63964,26,63964,27],[63964,28,63964,29],[63964,30,63964,31],[63964,32,63964,33],[63964,34,63964,35],[63964,36,63964,37],[63964,38,63964,39],[63616,24,63616,25],[63616,26,63616,27],[63616,28,63616,29],[63616,30,63616,31],[63616,32,63616,33],[63616,34,63616,35],[63616,36,63616,37],[63616,38,63616,39],[63636,24,63636,25],[63636,26,63636,27],[63636,28,63636,29],[63636,30,63636,31],[63636,32,63636,33],[63636,34,63636,35],[63636,36,63636,37],[63636,38,63636,39],[63698,24,63698,25],[63698,26,63698,27],[63698,28,63698,29],[63698,30,63698,31],[63698,32,63698,33],[63698,34,63698,35],[63698,36,63698,37],[63698,38,63698,39],[63718,24,63718,25],[63718,26,63718,27],[63718,28,63718,29],[63718,30,63718,31],[63718,32,63718,33],[63718,34,63718,35],[63718,36,63718,37],[63718,38,63718,39],[63780,24,63780,25],[63780,26,63780,27],[63780,28,63780,29],[63780,30,63780,31],[63780,32,63780,33],[63780,34,63780,35],[63780,36,63780,37],[63780,38,63780,39],[63390,24,63390,25],[63390,26,63390,27],[63390,28,63390,29],[63390,30,63390,31],[63390,32,63390,33],[63390,34,63390,35],[63390,36,63390,37],[63390,38,63390,39],[63452,24,63452,25],[63452,26,63452,27],[63452,28,63452,29],[63452,30,63452,31],[63452,32,63452,33],[63452,34,63452,35],[63452,36,63452,37],[63452,38,63452,39],[63472,24,63472,25],[63472,26,63472,27],[63472,28,63472,29],[63472,30,63472,31],[63472,32,63472,33],[63472,34,63472,35],[63472,36,63472,37],[63472,38,63472,39],[63534,24,63534,25],[63534,26,63534,27],[63534,28,63534,29],[63534,30,63534,31],[63534,32,63534,33],[63534,34,63534,35],[63534,36,63534,37],[63534,38,63534,39],[63554,24,63554,25],[63554,26,63554,27],[63554,28,63554,29],[63554,30,63554,31],[63554,32,63554,33],[63554,34,63554,35],[63554,36,63554,37],[63554,38,63554,39],[63206,24,63206,25],[63206,26,63206,27],[63206,28,63206,29],[63206,30,63206,31],[63206,32,63206,33],[63206,34,63206,35],[63206,36,63206,37],[63206,38,63206,39],[63226,24,63226,25],[63226,26,63226,27],[63226,28,63226,29],[63226,30,63226,31],[63226,32,63226,33],[63226,34,63226,35],[63226,36,63226,37],[63226,38,63226,39],[63288,24,63288,25],[63288,26,63288,27],[63288,28,63288,29],[63288,30,63288,31],[63288,32,63288,33],[63288,34,63288,35],[63288,36,63288,37],[63288,38,63288,39],[63308,24,63308,25],[63308,26,63308,27],[63308,28,63308,29],[63308,30,63308,31],[63308,32,63308,33],[63308,34,63308,35],[63308,36,63308,37],[63308,38,63308,39],[63370,24,63370,25],[63370,26,63370,27],[63370,28,63370,29],[63370,30,63370,31],[63370,32,63370,33],[63370,34,63370,35],[63370,36,63370,37],[63370,38,63370,39],[62980,24,62980,25],[62980,26,62980,27],[62980,28,62980,29],[62980,30,62980,31],[62980,32,62980,33],[62980,34,62980,35],[62980,36,62980,37],[62980,38,62980,39],[63042,24,63042,25],[63042,26,63042,27],[63042,28,63042,29],[63042,30,63042,31],[63042,32,63042,33],[63042,34,63042,35],[63042,36,63042,37],[63042,38,63042,39],[63062,24,63062,25],[63062,26,63062,27],[63062,28,63062,29],[63062,30,63062,31],[63062,32,63062,33],[63062,34,63062,35],[63062,36,63062,37],[63062,38,63062,39],[63124,24,63124,25],[63124,26,63124,27],[63124,28,63124,29],[63124,30,63124,31],[63124,32,63124,33],[63124,34,63124,35],[63124,36,63124,37],[63124,38,63124,39],[63144,24,63144,25],[63144,26,63144,27],[63144,28,63144,29],[63144,30,63144,31],[63144,32,63144,33],[63144,34,63144,35],[63144,36,63144,37],[63144,38,63144,39],[62796,24,62796,25],[62796,26,62796,27],[62796,28,62796,29],[62796,30,62796,31],[62796,32,62796,33],[62796,34,62796,35],[62796,36,62796,37],[62796,38,62796,39],[62816,24,62816,25],[62816,26,62816,27],[62816,28,62816,29],[62816,30,62816,31],[62816,32,62816,33],[62816,34,62816,35],[62816,36,62816,37],[62816,38,62816,39],[62878,24,62878,25],[62878,26,62878,27],[62878,28,62878,29],[62878,30,62878,31],[62878,32,62878,33],[62878,34,62878,35],[62878,36,62878,37],[62878,38,62878,39],[62898,24,62898,25],[62898,26,62898,27],[62898,28,62898,29],[62898,30,62898,31],[62898,32,62898,33],[62898,34,62898,35],[62898,36,62898,37],[62898,38,62898,39],[62960,24,62960,25],[62960,26,62960,27],[62960,28,62960,29],[62960,30,62960,31],[62960,32,62960,33],[62960,34,62960,35],[62960,36,62960,37],[62960,38,62960,39],[62570,24,62570,25],[62570,26,62570,27],[62570,28,62570,29],[62570,30,62570,31],[62570,32,62570,33],[62570,34,62570,35],[62570,36,62570,37],[62570,38,62570,39],[62632,24,62632,25],[62632,26,62632,27],[62632,28,62632,29],[62632,30,62632,31],[62632,32,62632,33],[62632,34,62632,35],[62632,36,62632,37],[62632,38,62632,39],[62652,24,62652,25],[62652,26,62652,27],[62652,28,62652,29],[62652,30,62652,31],[62652,32,62652,33],[62652,34,62652,35],[62652,36,62652,37],[62652,38,62652,39],[62714,24,62714,25],[62714,26,62714,27],[62714,28,62714,29],[62714,30,62714,31],[62714,32,62714,33],[62714,34,62714,35],[62714,36,62714,37],[62714,38,62714,39],[62734,24,62734,25],[62734,26,62734,27],[62734,28,62734,29],[62734,30,62734,31],[62734,32,62734,33],[62734,34,62734,35],[62734,36,62734,37],[62734,38,62734,39],[62386,24,62386,25],[62386,26,62386,27],[62386,28,62386,29],[62386,30,62386,31],[62386,32,62386,33],[62386,34,62386,35],[62386,36,62386,37],[62386,38,62386,39],[62406,24,62406,25],[62406,26,62406,27],[62406,28,62406,29],[62406,30,62406,31],[62406,32,62406,33],[62406,34,62406,35],[62406,36,62406,37],[62406,38,62406,39],[62468,24,62468,25],[62468,26,62468,27],[62468,28,62468,29],[62468,30,62468,31],[62468,32,62468,33],[62468,34,62468,35],[62468,36,62468,37],[62468,38,62468,39],[62488,24,62488,25],[62488,26,62488,27],[62488,28,62488,29],[62488,30,62488,31],[62488,32,62488,33],[62488,34,62488,35],[62488,36,62488,37],[62488,38,62488,39],[62550,24,62550,25],[62550,26,62550,27],[62550,28,62550,29],[62550,30,62550,31],[62550,32,62550,33],[62550,34,62550,35],[62550,36,62550,37],[62550,38,62550,39],[62160,24,62160,25],[62160,26,62160,27],[62160,28,62160,29],[62160,30,62160,31],[62160,32,62160,33],[62160,34,62160,35],[62160,36,62160,37],[62160,38,62160,39],[62222,24,62222,25],[62222,26,62222,27],[62222,28,62222,29],[62222,30,62222,31],[62222,32,62222,33],[62222,34,62222,35],[62222,36,62222,37],[62222,38,62222,39],[62242,24,62242,25],[62242,26,62242,27],[62242,28,62242,29],[62242,30,62242,31],[62242,32,62242,33],[62242,34,62242,35],[62242,36,62242,37],[62242,38,62242,39],[62304,24,62304,25],[62304,26,62304,27],[62304,28,62304,29],[62304,30,62304,31],[62304,32,62304,33],[62304,34,62304,35],[62304,36,62304,37],[62304,38,62304,39],[62324,24,62324,25],[62324,26,62324,27],[62324,28,62324,29],[62324,30,62324,31],[62324,32,62324,33],[62324,34,62324,35],[62324,36,62324,37],[62324,38,62324,39],[61976,24,61976,25],[61976,26,61976,27],[61976,28,61976,29],[61976,30,61976,31],[61976,32,61976,33],[61976,34,61976,35],[61976,36,61976,37],[61976,38,61976,39],[61996,24,61996,25],[61996,26,61996,27],[61996,28,61996,29],[61996,30,61996,31],[61996,32,61996,33],[61996,34,61996,35],[61996,36,61996,37],[61996,38,61996,39],[62058,24,62058,25],[62058,26,62058,27],[62058,28,62058,29],[62058,30,62058,31],[62058,32,62058,33],[62058,34,62058,35],[62058,36,62058,37],[62058,38,62058,39],[62078,24,62078,25],[62078,26,62078,27],[62078,28,62078,29],[62078,30,62078,31],[62078,32,62078,33],[62078,34,62078,35],[62078,36,62078,37],[62078,38,62078,39],[62140,24,62140,25],[62140,26,62140,27],[62140,28,62140,29],[62140,30,62140,31],[62140,32,62140,33],[62140,34,62140,35],[62140,36,62140,37],[62140,38,62140,39],[61750,24,61750,25],[61750,26,61750,27],[61750,28,61750,29],[61750,30,61750,31],[61750,32,61750,33],[61750,34,61750,35],[61750,36,61750,37],[61750,38,61750,39],[61812,24,61812,25],[61812,26,61812,27],[61812,28,61812,29],[61812,30,61812,31],[61812,32,61812,33],[61812,34,61812,35],[61812,36,61812,37],[61812,38,61812,39],[61832,24,61832,25],[61832,26,61832,27],[61832,28,61832,29],[61832,30,61832,31],[61832,32,61832,33],[61832,34,61832,35],[61832,36,61832,37],[61832,38,61832,39],[61894,24,61894,25],[61894,26,61894,27],[61894,28,61894,29],[61894,30,61894,31],[61894,32,61894,33],[61894,34,61894,35],[61894,36,61894,37],[61894,38,61894,39],[61914,24,61914,25],[61914,26,61914,27],[61914,28,61914,29],[61914,30,61914,31],[61914,32,61914,33],[61914,34,61914,35],[61914,36,61914,37],[61914,38,61914,39],[61566,24,61566,25],[61566,26,61566,27],[61566,28,61566,29],[61566,30,61566,31],[61566,32,61566,33],[61566,34,61566,35],[61566,36,61566,37],[61566,38,61566,39],[61586,24,61586,25],[61586,26,61586,27],[61586,28,61586,29],[61586,30,61586,31],[61586,32,61586,33],[61586,34,61586,35],[61586,36,61586,37],[61586,38,61586,39],[61648,24,61648,25],[61648,26,61648,27],[61648,28,61648,29],[61648,30,61648,31],[61648,32,61648,33],[61648,34,61648,35],[61648,36,61648,37],[61648,38,61648,39],[61668,24,61668,25],[61668,26,61668,27],[61668,28,61668,29],[61668,30,61668,31],[61668,32,61668,33],[61668,34,61668,35],[61668,36,61668,37],[61668,38,61668,39],[61730,24,61730,25],[61730,26,61730,27],[61730,28,61730,29],[61730,30,61730,31],[61730,32,61730,33],[61730,34,61730,35],[61730,36,61730,37],[61730,38,61730,39],[61340,24,61340,25],[61340,26,61340,27],[61340,28,61340,29],[61340,30,61340,31],[61340,32,61340,33],[61340,34,61340,35],[61340,36,61340,37],[61340,38,61340,39],[61402,24,61402,25],[61402,26,61402,27],[61402,28,61402,29],[61402,30,61402,31],[61402,32,61402,33],[61402,34,61402,35],[61402,36,61402,37],[61402,38,61402,39],[61422,24,61422,25],[61422,26,61422,27],[61422,28,61422,29],[61422,30,61422,31],[61422,32,61422,33],[61422,34,61422,35],[61422,36,61422,37],[61422,38,61422,39],[61484,24,61484,25],[61484,26,61484,27],[61484,28,61484,29],[61484,30,61484,31],[61484,32,61484,33],[61484,34,61484,35],[61484,36,61484,37],[61484,38,61484,39],[61504,24,61504,25],[61504,26,61504,27],[61504,28,61504,29],[61504,30,61504,31],[61504,32,61504,33],[61504,34,61504,35],[61504,36,61504,37],[61504,38,61504,39],[61156,24,61156,25],[61156,26,61156,27],[61156,28,61156,29],[61156,30,61156,31],[61156,32,61156,33],[61156,34,61156,35],[61156,36,61156,37],[61156,38,61156,39],[61176,24,61176,25],[61176,26,61176,27],[61176,28,61176,29],[61176,30,61176,31],[61176,32,61176,33],[61176,34,61176,35],[61176,36,61176,37],[61176,38,61176,39],[61238,24,61238,25],[61238,26,61238,27],[61238,28,61238,29],[61238,30,61238,31],[61238,32,61238,33],[61238,34,61238,35],[61238,36,61238,37],[61238,38,61238,39],[61258,24,61258,25],[61258,26,61258,27],[61258,28,61258,29],[61258,30,61258,31],[61258,32,61258,33],[61258,34,61258,35],[61258,36,61258,37],[61258,38,61258,39],[61320,24,61320,25],[61320,26,61320,27],[61320,28,61320,29],[61320,30,61320,31],[61320,32,61320,33],[61320,34,61320,35],[61320,36,61320,37],[61320,38,61320,39],[60930,24,60930,25],[60930,26,60930,27],[60930,28,60930,29],[60930,30,60930,31],[60930,32,60930,33],[60930,34,60930,35],[60930,36,60930,37],[60930,38,60930,39],[60992,24,60992,25],[60992,26,60992,27],[60992,28,60992,29],[60992,30,60992,31],[60992,32,60992,33],[60992,34,60992,35],[60992,36,60992,37],[60992,38,60992,39],[61012,24,61012,25],[61012,26,61012,27],[61012,28,61012,29],[61012,30,61012,31],[61012,32,61012,33],[61012,34,61012,35],[61012,36,61012,37],[61012,38,61012,39],[61074,24,61074,25],[61074,26,61074,27],[61074,28,61074,29],[61074,30,61074,31],[61074,32,61074,33],[61074,34,61074,35],[61074,36,61074,37],[61074,38,61074,39],[61094,24,61094,25],[61094,26,61094,27],[61094,28,61094,29],[61094,30,61094,31],[61094,32,61094,33],[61094,34,61094,35],[61094,36,61094,37],[61094,38,61094,39],[60746,24,60746,25],[60746,26,60746,27],[60746,28,60746,29],[60746,30,60746,31],[60746,32,60746,33],[60746,34,60746,35],[60746,36,60746,37],[60746,38,60746,39],[60766,24,60766,25],[60766,26,60766,27],[60766,28,60766,29],[60766,30,60766,31],[60766,32,60766,33],[60766,34,60766,35],[60766,36,60766,37],[60766,38,60766,39],[60828,24,60828,25],[60828,26,60828,27],[60828,28,60828,29],[60828,30,60828,31],[60828,32,60828,33],[60828,34,60828,35],[60828,36,60828,37],[60828,38,60828,39],[60848,24,60848,25],[60848,26,60848,27],[60848,28,60848,29],[60848,30,60848,31],[60848,32,60848,33],[60848,34,60848,35],[60848,36,60848,37],[60848,38,60848,39],[60910,24,60910,25],[60910,26,60910,27],[60910,28,60910,29],[60910,30,60910,31],[60910,32,60910,33],[60910,34,60910,35],[60910,36,60910,37],[60910,38,60910,39],[60520,24,60520,25],[60520,26,60520,27],[60520,28,60520,29],[60520,30,60520,31],[60520,32,60520,33],[60520,34,60520,35],[60520,36,60520,37],[60520,38,60520,39],[60582,24,60582,25],[60582,26,60582,27],[60582,28,60582,29],[60582,30,60582,31],[60582,32,60582,33],[60582,34,60582,35],[60582,36,60582,37],[60582,38,60582,39],[60602,24,60602,25],[60602,26,60602,27],[60602,28,60602,29],[60602,30,60602,31],[60602,32,60602,33],[60602,34,60602,35],[60602,36,60602,37],[60602,38,60602,39],[60664,24,60664,25],[60664,26,60664,27],[60664,28,60664,29],[60664,30,60664,31],[60664,32,60664,33],[60664,34,60664,35],[60664,36,60664,37],[60664,38,60664,39],[60684,24,60684,25],[60684,26,60684,27],[60684,28,60684,29],[60684,30,60684,31],[60684,32,60684,33],[60684,34,60684,35],[60684,36,60684,37],[60684,38,60684,39],[60336,24,60336,25],[60336,26,60336,27],[60336,28,60336,29],[60336,30,60336,31],[60336,32,60336,33],[60336,34,60336,35],[60336,36,60336,37],[60336,38,60336,39],[60356,24,60356,25],[60356,26,60356,27],[60356,28,60356,29],[60356,30,60356,31],[60356,32,60356,33],[60356,34,60356,35],[60356,36,60356,37],[60356,38,60356,39],[60418,24,60418,25],[60418,26,60418,27],[60418,28,60418,29],[60418,30,60418,31],[60418,32,60418,33],[60418,34,60418,35],[60418,36,60418,37],[60418,38,60418,39],[60438,24,60438,25],[60438,26,60438,27],[60438,28,60438,29],[60438,30,60438,31],[60438,32,60438,33],[60438,34,60438,35],[60438,36,60438,37],[60438,38,60438,39],[60500,24,60500,25],[60500,26,60500,27],[60500,28,60500,29],[60500,30,60500,31],[60500,32,60500,33],[60500,34,60500,35],[60500,36,60500,37],[60500,38,60500,39],[60110,24,60110,25],[60110,26,60110,27],[60110,28,60110,29],[60110,30,60110,31],[60110,32,60110,33],[60110,34,60110,35],[60110,36,60110,37],[60110,38,60110,39],[60172,24,60172,25],[60172,26,60172,27],[60172,28,60172,29],[60172,30,60172,31],[60172,32,60172,33],[60172,34,60172,35],[60172,36,60172,37],[60172,38,60172,39],[60192,24,60192,25],[60192,26,60192,27],[60192,28,60192,29],[60192,30,60192,31],[60192,32,60192,33],[60192,34,60192,35],[60192,36,60192,37],[60192,38,60192,39],[60254,24,60254,25],[60254,26,60254,27],[60254,28,60254,29],[60254,30,60254,31],[60254,32,60254,33],[60254,34,60254,35],[60254,36,60254,37],[60254,38,60254,39],[60274,24,60274,25],[60274,26,60274,27],[60274,28,60274,29],[60274,30,60274,31],[60274,32,60274,33],[60274,34,60274,35],[60274,36,60274,37],[60274,38,60274,39],[59926,24,59926,25],[59926,26,59926,27],[59926,28,59926,29],[59926,30,59926,31],[59926,32,59926,33],[59926,34,59926,35],[59926,36,59926,37],[59926,38,59926,39],[59946,24,59946,25],[59946,26,59946,27],[59946,28,59946,29],[59946,30,59946,31],[59946,32,59946,33],[59946,34,59946,35],[59946,36,59946,37],[59946,38,59946,39],[60008,24,60008,25],[60008,26,60008,27],[60008,28,60008,29],[60008,30,60008,31],[60008,32,60008,33],[60008,34,60008,35],[60008,36,60008,37],[60008,38,60008,39],[60028,24,60028,25],[60028,26,60028,27],[60028,28,60028,29],[60028,30,60028,31],[60028,32,60028,33],[60028,34,60028,35],[60028,36,60028,37],[60028,38,60028,39]],"merged_total":30061,"flags":["merged_cut"]}
[null,"B01001. GENDER BY AGE"]
[null,"Universe:  TOTAL POPULATION"]
[null,"Data Set: 2015-2019 American Community Survey 5-Year Estimates"]
[]
[null,null,"Albany",null,"Bartlett",null,"Brookfield",null,"Chatham",null,"Conway",null,"Eaton",null,"Effingham",null,"Freedom",null,"Hale's Location",null,"Hart's Location",null,"Jackson",null,"Madison",null,"Moultonborough",null,"Ossipee",null,"Sandwich",null,"Tamworth",null,"Tuftonboro",null,"Wakefield",null,"Wolfeboro"]
[null," ","Estimate","Margin of Error","Estimate","Margin of Error","Estimate","Margin of Error","Estimate","Margin of Error","Estimate","Margin of Error","Estimate","Margin of Error","Estimate","Margin of Error","Estimate","Margin of Error","Estimate","Margin of Error","Estimate","Margin of Error","Estimate","Margin of Error","Estimate","Margin of Error","Estimate","Margin of Error","Estimate","Margin of Error","Estimate","Margin of Error","Estimate","Margin of Error","Estimate","Margin of Error","Estimate","Margin of Error","Estimate","Margin of Error"]
[null,"Total:",703,142,2774,14,803,186,372,127,10127,31,265,72,1630,231,1349,178,183,43,42,30,891,228,2553,20,4099,28,4334,26,1440,180,2994,13,2213,215,5046,19,6320,18]
[null,"Male:",351,75,1397,161,421,108,193,61,5124,289,130,46,712,108,662,94,92,28,23,17,365,90,1242,97,1991,134,2075,175,698,95,1617,138,1059,125,2614,178,3116,232]
[null,"Under 5 years",19,28,33,38,11,12,5,8,268,100,0,11,26,22,0,11,0,11,0,11,2,4,34,28,41,31,166,71,27,20,66,43,29,31,123,54,177,114]
[null,"5 to 9 years",23,20,39,46,29,25,14,13,351,129,2,4,44,28,17,10,0,11,0,11,23,27,68,36,93,47,26,29,14,12,113,101,68,27,134,95,84,98]
[null,"10 to 14 years",22,27,0,11,16,12,6,7,495,216,5,7,18,13,46,33,0,11,0,11,0,11,107,60,86,44,83,62,24,16,63,58,23,17,67,60,17,66]
[null,"15 to 17 years",17,14,49,57,24,22,6,8,124,104,0,11,37,26,16,13,0,11,0,11,0,11,71,56,114,75,45,37,27,17,147,107,33,32,50,46,116,81]
[null,"18 and 19 years",10,10,0,11,14,22,12,16,144,86,0,11,21,24,9,11,0,11,0,11,0,11,21,22,59,60,74,59,6,9,0,11,25,24,48,50,45,69]
[null,"20 years",3,6,2,4,13,16,0,11,0,18,0,11,23,20,5,7,0,11,0,11,0,11,18,18,12,20,37,37,0,11,0,11,0,11,61,72,0,16]
[null,"21 years",0,11,92,98,0,11,0,11,67,84,0,11,23,27,14,16,7,12,0,11,0,11,1,3,0,11,0,11,3,5,47,48,0,11,23,40,164,194]
[null,"22 to 24 years",14,17,48,54,26,32,2,5,23,33,13,14,28,21,10,13,0,11,0,11,0,11,17,15,19,29,87,69,7,11,30,42,29,26,118,104,0,16]
[null,"25 to 29 years",13,15,50,58,7,11,5,8,253,139,18,16,49,36,5,6,0,11,2,4,11,17,51,38,105,72,38,60,36,33,49,77,85,44,229,117,77,66]
[null,"30 to 34 years",10,9,25,38,13,14,11,13,376,121,3,4,30,23,7,8,0,11,0,11,10,16,37,22,106,53,139,66,15,11,70,51,31,20,125,69,78,87]
[null,"35 to 39 years",17,18,76,79,5,10,11,8,280,142,3,6,17,15,10,10,0,11,0,11,21,28,91,45,84,65,121,79,32,28,74,54,41,37,149,68,0,16]
[null,"40 to 44 years",19,15,66,61,50,29,7,8,269,148,7,6,43,19,37,27,0,11,0,11,4,6,34,23,21,25,175,68,16,11,82,76,14,13,35,46,260,125]
[null,"45 to 49 years",8,7,50,62,49,27,20,17,318,141,7,8,56,31,22,16,0,11,0,11,38,41,85,53,112,68,97,67,29,19,122,114,54,34,119,71,234,159]
[null,"50 to 54 years",22,15,193,96,23,18,18,14,195,96,4,4,56,32,70,32,0,11,8,11,10,16,133,59,135,74,93,63,41,23,190,110,71,40,269,102,259,122]
[null,"55 to 59 years",41,18,143,87,32,20,15,11,268,106,10,7,60,29,46,21,6,7,3,5,33,30,132,53,173,63,314,107,79,33,179,102,11,11,276,129,313,143]
[null,"60 and 61 years",15,10,90,69,10,10,4,5,210,106,0,11,29,23,31,22,5,5,0,11,38,30,14,14,103,53,58,49,31,22,121,94,52,26,145,111,69,63]
[null,"62 to 64 years",18,15,17,19,18,13,12,8,244,118,7,10,28,14,46,25,5,5,0,11,32,27,39,29,109,51,105,70,45,20,72,48,89,40,102,62,212,122]
[null,"65 and 66 years",17,9,147,106,12,10,9,9,213,141,12,11,41,26,31,14,4,5,0,11,3,5,29,22,95,44,56,60,52,28,15,24,80,49,53,48,89,70]
[null,"67 to 69 years",16,14,66,55,14,9,7,6,240,124,19,10,35,17,45,19,12,8,4,7,39,31,70,37,182,91,64,49,57,34,16,24,80,39,64,69,25,39]
[null,"70 to 74 years",20,17,118,84,43,19,4,5,353,146,7,9,31,15,108,31,27,11,5,8,62,40,58,37,165,75,153,80,63,25,0,11,102,56,207,110,404,137]
[null,"75 to 79 years",14,8,91,72,10,8,7,7,249,134,7,7,6,7,24,11,9,6,0,11,26,20,83,40,86,43,100,65,60,33,70,73,55,28,89,67,190,122]
[null,"80 to 84 years",7,6,2,4,0,11,11,14,49,34,2,5,3,5,25,17,9,6,0,11,3,4,24,24,59,47,34,30,17,11,15,21,57,41,66,63,84,84]
[null,"85 years and over",6,5,0,11,2,3,7,8,135,70,4,5,8,8,38,22,8,8,1,3,10,16,25,25,32,25,10,15,17,12,76,64,30,21,62,42,219,122]
[null,"Female:",352,91,1377,158,382,88,179,75,5003,288,135,37,918,146,687,104,91,20,19,14,526,152,1311,101,2108,130,2259,173,742,114,1377,136,1154,127,2432,174,3204,231]
[null,"Under 5 years",8,9,0,11,0,11,6,9,211,111,9,10,89,57,5,6,0,11,0,11,59,48,89,50,50,39,44,35,26,24,43,59,61,42,170,92,0,16]
[null,"5 to 9 years",9,8,75,73,12,12,9,10,289,135,4,4,45,24,31,21,0,11,0,11,17,28,43,28,110,66,185,86,26,20,17,24,13,13,52,48,151,81]
[null,"10 to 14 years",10,10,34,50,26,33,15,15,227,109,3,4,81,38,13,16,0,11,0,11,32,36,11,13,108,55,52,40,9,8,124,107,46,31,35,42,150,112]
[null,"15 to 17 years",2,5,76,62,17,15,5,9,187,97,0,11,18,14,40,30,3,4,0,11,16,26,75,55,29,25,57,54,13,14,13,18,24,17,36,36,98,76]
[null,"18 and 19 years",17,19,44,47,5,8,0,11,50,44,0,11,41,33,7,9,0,11,0,11,0,11,38,27,29,28,51,53,0,11,0,11,12,14,26,34,73,78]
[null,"20 years",0,11,0,11,0,11,2,5,38,42,0,11,14,14,0,11,0,11,0,11,0,11,3,5,80,70,0,11,0,11,0,11,0,11,78,73,0,16]
[null,"21 years",4,6,34,52,5,10,0,11,22,29,0,11,13,14,9,13,0,11,0,11,0,11,13,20,27,43,0,11,9,9,17,27,47,44,0,16,0,16]
[null,"22 to 24 years",18,18,35,53,4,10,0,11,129,144,3,8,34,29,0,11,0,11,0,11,17,30,16,26,27,30,55,61,9,13,0,11,21,17,187,112,47,78]
[null,"25 to 29 years",23,27,0,11,15,18,13,17,272,132,2,3,67,44,14,13,0,11,2,4,19,25,92,56,132,64,16,23,36,44,102,83,66,41,167,127,0,16]
[null,"30 to 34 years",4,5,12,14,24,22,3,10,476,106,5,8,31,23,4,7,0,11,0,11,24,27,21,20,105,64,63,31,57,34,39,32,22,16,119,59,73,81]
[null,"35 to 39 years",27,19,108,71,0,11,4,5,285,115,4,5,40,19,28,23,0,11,0,11,43,38,57,29,66,39,128,74,9,8,36,52,32,32,131,91,132,84]
[null,"40 to 44 years",23,20,52,59,46,30,5,10,270,116,12,14,38,22,27,18,0,11,0,11,4,5,93,46,80,45,169,150,6,7,132,98,33,26,63,56,227,129]
[null,"45 to 49 years",24,18,116,85,55,28,20,19,315,110,2,3,52,33,31,18,0,11,5,8,15,18,46,34,51,39,220,77,30,20,81,77,50,27,129,65,227,125]
[null,"50 to 54 years",34,18,134,82,35,20,19,16,298,132,7,6,76,37,64,35,6,7,0,11,49,36,158,63,208,71,175,99,88,42,54,46,110,46,229,112,106,99]
[null,"55 to 59 years",38,19,139,77,30,18,19,12,528,180,20,13,54,24,48,24,9,9,7,8,20,23,132,50,143,59,204,83,51,19,276,112,61,40,400,158,181,84]
[null,"60 and 61 years",22,14,9,12,9,10,9,7,198,111,15,11,59,29,34,23,5,5,4,6,8,13,50,38,69,48,68,63,48,30,50,59,48,25,106,76,136,96]
[null,"62 to 64 years",19,10,76,66,28,15,5,8,231,118,4,5,16,9,79,36,2,5,0,11,38,26,34,26,212,75,76,68,73,31,63,45,75,32,60,47,251,162]
[null,"65 and 66 years",9,8,58,57,16,10,11,11,142,93,10,10,42,25,24,15,8,6,0,11,28,25,34,31,69,39,65,41,55,28,36,39,59,46,45,38,113,71]
[null,"67 to 69 years",9,8,24,25,26,15,3,5,236,96,16,10,27,14,69,24,12,8,0,11,36,30,42,20,156,57,143,80,63,30,64,73,110,57,85,79,223,130]
[null,"70 to 74 years",16,13,179,112,20,14,12,14,188,94,6,8,40,20,77,29,18,11,0,11,48,35,123,53,143,75,215,103,39,18,46,39,123,50,143,64,376,126]
[null,"75 to 79 years",6,7,71,73,5,5,7,8,171,94,5,5,27,17,28,15,15,10,1,3,25,24,66,47,89,51,49,59,48,28,55,61,30,24,35,28,142,86]
[null,"80 to 84 years",14,16,0,11,0,11,9,10,61,43,2,3,8,8,36,23,7,5,0,11,6,6,61,39,78,51,92,71,23,13,59,49,66,45,102,73,195,134]
[null,"85 years and over",16,14,101,94,4,5,3,4,179,82,6,5,6,10,19,18,6,8,0,11,22,22,14,15,47,27,132,65,24,14,70,69,45,34,34,31,303,149]
[]
[]
[]
[]
[]
[]
[]
[]
[]
[]
[]
[]
[]
[null,"Calculated B01001. GENDER BY AGE"]
[null,"Universe:  TOTAL POPULATION"]
[null,"Data Set: 2015-2019 American Community Survey 5-Year Estimates"]
[]
[null,null,"Albany",null,"Bartlett",null,"Brookfield",null,"Chatham",null,"Conway",null,"Eaton",null,"Effingham",null,"Freedom",null,"Hale's Location",null,"Hart's Location",null,"Jackson",null,"Madison",null,"Moultonborough",null,"Ossipee",null,"Sandwich",null,"Tamworth",null,"Tuftonboro",null,"Wakefield",null,"Wolfeboro"]
[null," ","Estimate","Margin of Error","Estimate","Margin of Error","Estimate","Margin of Error","Estimate","Margin of Error","Estimate","Margin of Error","Estimate","Margin of Error","Estimate","Margin of Error","Estimate","Margin of Error","Estimate","Margin of Error","Estimate","Margin of Error","Estimate","Margin of Error","Estimate","Margin of Error","Estimate","Margin of Error","Estimate","Margin of Error","Estimate","Margin of Error","Estimate","Margin of Error","Estimate","Margin of Error","Estimate","Margin of Error","Estimate","Margin of Error"]
[null,"Total",{"$f":"C7","v":703},{"$f":"D7","v":142},2774,14,803,186,372,127,10127,31,265,72,1630,231,1349,178,183,43,42,30,891,228,{"$f":"Y7","v":2553},20,4099,28,4334,26,1440,180,2994,13,2213,215,5046,19,6320,18]
[null,"Under 15 yrs.",{"$f":"C9+C10+C11+C33+C34+C35","v":91},{"$f":"SQRT((D9^2)+(D10^2)+(D11^2)+(D33^2)+(D34^2)+(D35^2))","v":46.454278597347738},{"$f":"E9+E10+E11+E33+E34+E35","v":181},{"$f":"SQRT((F9^2)+(F10^2)+(F11^2)+(F33^2)+(F34^2)+(F35^2))","v":107.84711400867434},{"$f":"G9+G10+G11+G33+G34+G35","v":94},{"$f":"SQRT((H9^2)+(H10^2)+(H11^2)+(H33^2)+(H34^2)+(H35^2))","v":47.613023428469653},{"$f":"I9+I10+I11+I33+I34+I35","v":55},{"$f":"SQRT((J9^2)+(J10^2)+(J11^2)+(J33^2)+(J34^2)+(J35^2))","v":26.229754097208001},{"$f":"K9+K10+K11+K33+K34+K35","v":1841},{"$f":"SQRT((L9^2)+(L10^2)+(L11^2)+(L33^2)+(L34^2)+(L35^2))","v":340.18230406651077},{"$f":"M9+M10+M11+M33+M34+M35","v":23},{"$f":"SQRT((N9^2)+(N10^2)+(N11^2)+(N33^2)+(N34^2)+(N35^2))","v":17.832554500127006},{"$f":"O9+O10+O11+O33+O34+O35","v":303},{"$f":"SQRT((P9^2)+(P10^2)+(P11^2)+(P33^2)+(P34^2)+(P35^2))","v":81.890170350292962},{"$f":"Q9+Q10+Q11+Q33+Q34+Q35","v":112},{"$f":"SQRT((R9^2)+(R10^2)+(R11^2)+(R33^2)+(R34^2)+(R35^2))","v":45.199557519958091},{"$f":"S9+S10+S11+S33+S34+S35","v":0},{"$f":"SQRT((T9^2)+(T10^2)+(T11^2)+(T33^2)+(T34^2)+(T35^2))","v":26.944387170614959},{"$f":"U9+U10+U11+U33+U34+U35","v":0},{"$f":"SQRT((V9^2)+(V10^2)+(V11^2)+(V33^2)+(V34^2)+(V35^2))","v":26.944387170614959},{"$f":"W9+W10+W11+W33+W34+W35","v":133},{"$f":"SQRT((X9^2)+(X10^2)+(X11^2)+(X33^2)+(X34^2)+(X35^2))","v":72.456883730947197},{"$f":"Y9+Y10+Y11+Y33+Y34+Y35","v":352},{"$f":"SQRT((Z9^2)+(Z10^2)+(Z11^2)+(Z33^2)+(Z34^2)+(Z35^2))","v":95.566730612698052},{"$f":"AA9+AA10+AA11+AA33+AA34+AA35","v":488},{"$f":"SQRT((AB9^2)+(AB10^2)+(AB11^2)+(AB33^2)+(AB34^2)+(AB35^2))","v":118.35539700410793},{"$f":"AC9+AC10+AC11+AC33+AC34+AC35","v":556},{"$f":"SQRT((AD9^2)+(AD10^2)+(AD11^2)+(AD33^2)+(AD34^2)+(AD35^2))","v":141.23384863410047},{"$f":"AE9+AE10+AE11+AE33+AE34+AE35","v":126},{"$f":"SQRT((AF9^2)+(AF10^2)+(AF11^2)+(AF33^2)+(AF34^2)+(AF35^2))","v":42.895221179054431},{"$f":"AG9+AG10+AG11+AG33+AG34+AG35","v":426},{"$f":"SQRT((AH9^2)+(AH10^2)+(AH11^2)+(AH33^2)+(AH34^2)+(AH35^2))","v":175.84083712266613},{"$f":"AI9+AI10+AI11+AI33+AI34+AI35","v":240},{"$f":"SQRT((AJ9^2)+(AJ10^2)+(AJ11^2)+(AJ33^2)+(AJ34^2)+(AJ35^2))","v":69.806876452108924},{"$f":"AK9+AK10+AK11+AK33+AK34+AK35","v":581},{"$f":"SQRT((AL9^2)+(AL10^2)+(AL11^2)+(AL33^2)+(AL34^2)+(AL35^2))","v":167.54999253954026},{"$f":"AM9+AM10+AM11+AM33+AM34+AM35","v":579},{"$f":"SQRT((AN9^2)+(AN10^2)+(AN11^2)+(AN33^2)+(AN34^2)+(AN35^2))","v":215.21384713814305}]
[null,"15 to 24 yrs.",{"$f":"C12+C13+C14+C15+C16+C36+C37+C38+C39+C40","v":85},{"$f":"SQRT((D12^2)+(D13^2)+(D14^2)+(D15^2)+(D16^2)+(D36^2)+(D37^2)+(D38^2)+(D39^2)+(D40^2))","v":40.11234224026316},{"$f":"E12+E13+E14+E15+E16+E36+E37+E38+E39+E40","v":380},{"$f":"SQRT((F12^2)+(F13^2)+(F14^2)+(F15^2)+(F16^2)+(F36^2)+(F37^2)+(F38^2)+(F39^2)+(F40^2))","v":166.11140839809889},{"$f":"G12+G13+G14+G15+G16+G36+G37+G38+G39+G40","v":108},{"$f":"SQRT((H12^2)+(H13^2)+(H14^2)+(H15^2)+(H16^2)+(H36^2)+(H37^2)+(H38^2)+(H39^2)+(H40^2))","v":54.580216195980753},{"$f":"I12+I13+I14+I15+I16+I36+I37+I38+I39+I40","v":27},{"$f":"SQRT((J12^2)+(J13^2)+(J14^2)+(J15^2)+(J16^2)+(J36^2)+(J37^2)+(J38^2)+(J39^2)+(J40^2))","v":32.496153618543843},{"$f":"K12+K13+K14+K15+K16+K36+K37+K38+K39+K40","v":784},{"$f":"SQRT((L12^2)+(L13^2)+(L14^2)+(L15^2)+(L16^2)+(L36^2)+(L37^2)+(L38^2)+(L39^2)+(L40^2))","v":247.72363633694707},{"$f":"M12+M13+M14+M15+M16+M36+M37+M38+M39+M40","v":16},{"$f":"SQRT((N12^2)+(N13^2)+(N14^2)+(N15^2)+(N16^2)+(N36^2)+(N37^2)+(N38^2)+(N39^2)+(N40^2))","v":35.042830935870462},{"$f":"O12+O13+O14+O15+O16+O36+O37+O38+O39+O40","v":252},{"$f":"SQRT((P12^2)+(P13^2)+(P14^2)+(P15^2)+(P16^2)+(P36^2)+(P37^2)+(P38^2)+(P39^2)+(P40^2))","v":73.075303625780435},{"$f":"Q12+Q13+Q14+Q15+Q16+Q36+Q37+Q38+Q39+Q40","v":110},{"$f":"SQRT((R12^2)+(R13^2)+(R14^2)+(R15^2)+(R16^2)+(R36^2)+(R37^2)+(R38^2)+(R39^2)+(R40^2))","v":46.432747064975601},{"$f":"S12+S13+S14+S15+S16+S36+S37+S38+S39+S40","v":10},{"$f":"SQRT((T12^2)+(T13^2)+(T14^2)+(T15^2)+(T16^2)+(T36^2)+(T37^2)+(T38^2)+(T39^2)+(T40^2))","v":33.585711247493329},{"$f":"U12+U13+U14+U15+U16+U36+U37+U38+U39+U40","v":0},{"$f":"SQRT((V12^2)+(V13^2)+(V14^2)+(V15^2)+(V16^2)+(V36^2)+(V37^2)+(V38^2)+(V39^2)+(V40^2))","v":34.785054261852174},{"$f":"W12+W13+W14+W15+W16+W36+W37+W38+W39+W40","v":33},{"$f":"SQRT((X12^2)+(X13^2)+(X14^2)+(X15^2)+(X16^2)+(X36^2)+(X37^2)+(X38^2)+(X39^2)+(X40^2))","v":50.438080851673966},{"$f":"Y12+Y13+Y14+Y15+Y16+Y36+Y37+Y38+Y39+Y40","v":273},{"$f":"SQRT((Z12^2)+(Z13^2)+(Z14^2)+(Z15^2)+(Z16^2)+(Z36^2)+(Z37^2)+(Z38^2)+(Z39^2)+(Z40^2))","v":95.042095936484898},{"$f":"AA12+AA13+AA14+AA15+AA16+AA36+AA37+AA38+AA39+AA40","v":396},{"$f":"SQRT((AB12^2)+(AB13^2)+(AB14^2)+(AB15^2)+(AB16^2)+(AB36^2)+(AB37^2)+(AB38^2)+(AB39^2)+(AB40^2))","v":140.16062214473791},{"$f":"AC12+AC13+AC14+AC15+AC16+AC36+AC37+AC38+AC39+AC40","v":406},{"$f":"SQRT((AD12^2)+(AD13^2)+(AD14^2)+(AD15^2)+(AD16^2)+(AD36^2)+(AD37^2)+(AD38^2)+(AD39^2)+(AD40^2))","v":144.183910336764},{"$f":"AE12+AE13+AE14+AE15+AE16+AE36+AE37+AE38+AE39+AE40","v":74},{"$f":"SQRT((AF12^2)+(AF13^2)+(AF14^2)+(AF15^2)+(AF16^2)+(AF36^2)+(AF37^2)+(AF38^2)+(AF39^2)+(AF40^2))","v":36.400549446402593},{"$f":"AG12+AG13+AG14+AG15+AG16+AG36+AG37+AG38+AG39+AG40","v":254},{"$f":"SQRT((AH12^2)+(AH13^2)+(AH14^2)+(AH15^2)+(AH16^2)+(AH36^2)+(AH37^2)+(AH38^2)+(AH39^2)+(AH40^2))","v":131.05342422081156},{"$f":"AI12+AI13+AI14+AI15+AI16+AI36+AI37+AI38+AI39+AI40","v":191},{"$f":"SQRT((AJ12^2)+(AJ13^2)+(AJ14^2)+(AJ15^2)+(AJ16^2)+(AJ36^2)+(AJ37^2)+(AJ38^2)+(AJ39^2)+(AJ40^2))","v":73.136858012906188},{"$f":"AK12+AK13+AK14+AK15+AK16+AK36+AK37+AK38+AK39+AK40","v":627},{"$f":"SQRT((AL12^2)+(AL13^2)+(AL14^2)+(AL15^2)+(AL16^2)+(AL36^2)+(AL37^2)+(AL38^2)+(AL39^2)+(AL40^2))","v":206.87435800504613},{"$f":"AM12+AM13+AM14+AM15+AM16+AM36+AM37+AM38+AM39+AM40","v":543},{"$f":"SQRT((AN12^2)+(AN13^2)+(AN14^2)+(AN15^2)+(AN16^2)+(AN36^2)+(AN37^2)+(AN38^2)+(AN39^2)+(AN40^2))","v":260.62616906212622}]
[null,"25 to 34 yrs.",{"$f":"C17+C18+C41+C42","v":50},{"$f":"SQRT((D17^2)+(D18^2)+(D41^2)+(D42^2))","v":32.557641192199412},{"$f":"E17+E18+E41+E42","v":87},{"$f":"SQRT((F17^2)+(F18^2)+(F41^2)+(F42^2))","v":71.589105316381762},{"$f":"G17+G18+G41+G42","v":59},{"$f":"SQRT((H17^2)+(H18^2)+(H41^2)+(H42^2))","v":33.541019662496844},{"$f":"I17+I18+I41+I42","v":32},{"$f":"SQRT((J17^2)+(J18^2)+(J41^2)+(J42^2))","v":24.939927826679853},{"$f":"K17+K18+K41+K42","v":1377},{"$f":"SQRT((L17^2)+(L18^2)+(L41^2)+(L42^2))","v":250.24388104407268},{"$f":"M17+M18+M41+M42","v":28},{"$f":"SQRT((N17^2)+(N18^2)+(N41^2)+(N42^2))","v":18.574175621006709},{"$f":"O17+O18+O41+O42","v":177},{"$f":"SQRT((P17^2)+(P18^2)+(P41^2)+(P42^2))","v":65.498091575251266},{"$f":"Q17+Q18+Q41+Q42","v":30},{"$f":"SQRT((R17^2)+(R18^2)+(R41^2)+(R42^2))","v":17.832554500127006},{"$f":"S17+S18+S41+S42","v":0},{"$f":"SQRT((T17^2)+(T18^2)+(T41^2)+(T42^2))","v":22},{"$f":"U17+U18+U41+U42","v":4},{"$f":"SQRT((V17^2)+(V18^2)+(V41^2)+(V42^2))","v":16.552945357246848},{"$f":"W17+W18+W41+W42","v":64},{"$f":"SQRT((X17^2)+(X18^2)+(X41^2)+(X42^2))","v":43.577517139001849},{"$f":"Y17+Y18+Y41+Y42","v":201},{"$f":"SQRT((Z17^2)+(Z18^2)+(Z41^2)+(Z42^2))","v":73.91887445030531},{"$f":"AA17+AA18+AA41+AA42","v":448},{"$f":"SQRT((AB17^2)+(AB18^2)+(AB41^2)+(AB42^2))","v":127.22028140198401},{"$f":"AC17+AC18+AC41+AC42","v":256},{"$f":"SQRT((AD17^2)+(AD18^2)+(AD41^2)+(AD42^2))","v":97.190534518542492},{"$f":"AE17+AE18+AE41+AE42","v":144},{"$f":"SQRT((AF17^2)+(AF18^2)+(AF41^2)+(AF42^2))","v":65.589633327226338},{"$f":"AG17+AG18+AG41+AG42","v":260},{"$f":"SQRT((AH17^2)+(AH18^2)+(AH41^2)+(AH42^2))","v":128.23026163897507},{"$f":"AI17+AI18+AI41+AI42","v":204},{"$f":"SQRT((AJ17^2)+(AJ18^2)+(AJ41^2)+(AJ42^2))","v":65.36818798161687},{"$f":"AK17+AK18+AK41+AK42","v":640},{"$f":"SQRT((AL17^2)+(AL18^2)+(AL41^2)+(AL42^2))","v":195.08972294818608},{"$f":"AM17+AM18+AM41+AM42","v":228},{"$f":"SQRT((AN17^2)+(AN18^2)+(AN41^2)+(AN42^2))","v":136.90142438996023}]
[null,"35 to 44 yrs.",{"$f":"C19+C20+C43+C44","v":86},{"$f":"SQRT((D19^2)+(D20^2)+(D43^2)+(D44^2))","v":36.193922141707716},{"$f":"E19+E20+E43+E44","v":302},{"$f":"SQRT((F19^2)+(F20^2)+(F43^2)+(F44^2))","v":135.95587519485872},{"$f":"G19+G20+G43+G44","v":101},{"$f":"SQRT((H19^2)+(H20^2)+(H43^2)+(H44^2))","v":44.294469180700204},{"$f":"I19+I20+I43+I44","v":27},{"$f":"SQRT((J19^2)+(J20^2)+(J43^2)+(J44^2))","v":15.905973720586866},{"$f":"K19+K20+K43+K44","v":1104},{"$f":"SQRT((L19^2)+(L20^2)+(L43^2)+(L44^2))","v":262.20030511042506},{"$f":"M19+M20+M43+M44","v":26},{"$f":"SQRT((N19^2)+(N20^2)+(N43^2)+(N44^2))","v":17.11724276862369},{"$f":"O19+O20+O43+O44","v":138},{"$f":"SQRT((P19^2)+(P20^2)+(P43^2)+(P44^2))","v":37.828560638755476},{"$f":"Q19+Q20+Q43+Q44","v":102},{"$f":"SQRT((R19^2)+(R20^2)+(R43^2)+(R44^2))","v":41.012193308819754},{"$f":"S19+S20+S43+S44","v":0},{"$f":"SQRT((T19^2)+(T20^2)+(T43^2)+(T44^2))","v":22},{"$f":"U19+U20+U43+U44","v":0},{"$f":"SQRT((V19^2)+(V20^2)+(V43^2)+(V44^2))","v":22},{"$f":"W19+W20+W43+W44","v":72},{"$f":"SQRT((X19^2)+(X20^2)+(X43^2)+(X44^2))","v":47.843494855622744},{"$f":"Y19+Y20+Y43+Y44","v":275},{"$f":"SQRT((Z19^2)+(Z20^2)+(Z43^2)+(Z44^2))","v":74.236109811869852},{"$f":"AA19+AA20+AA43+AA44","v":251},{"$f":"SQRT((AB19^2)+(AB20^2)+(AB43^2)+(AB44^2))","v":91.629689511642454},{"$f":"AC19+AC20+AC43+AC44","v":593},{"$f":"SQRT((AD19^2)+(AD20^2)+(AD43^2)+(AD44^2))","v":197.0812015388581},{"$f":"AE19+AE20+AE43+AE44","v":63},{"$f":"SQRT((AF19^2)+(AF20^2)+(AF43^2)+(AF44^2))","v":31.906112267087632},{"$f":"AG19+AG20+AG43+AG44","v":324},{"$f":"SQRT((AH19^2)+(AH20^2)+(AH43^2)+(AH44^2))","v":144.91376746189439},{"$f":"AI19+AI20+AI43+AI44","v":120},{"$f":"SQRT((AJ19^2)+(AJ20^2)+(AJ43^2)+(AJ44^2))","v":56.903426961827179},{"$f":"AK19+AK20+AK43+AK44","v":378},{"$f":"SQRT((AL19^2)+(AL20^2)+(AL43^2)+(AL44^2))","v":134.74791278531924},{"$f":"AM19+AM20+AM43+AM44","v":619},{"$f":"SQRT((AN19^2)+(AN20^2)+(AN43^2)+(AN44^2))","v":198.94220266197919}]
[null,"45 to 54 yrs.",{"$f":"C21+C22+C45+C46","v":88},{"$f":"SQRT((D21^2)+(D22^2)+(D45^2)+(D46^2))","v":30.364452901377952},{"$f":"E21+E22+E45+E46","v":493},{"$f":"SQRT((F21^2)+(F22^2)+(F45^2)+(F46^2))","v":164.34415109762804},{"$f":"G21+G22+G45+G46","v":162},{"$f":"SQRT((H21^2)+(H22^2)+(H45^2)+(H46^2))","v":47.296934361541872},{"$f":"I21+I22+I45+I46","v":77},{"$f":"SQRT((J21^2)+(J22^2)+(J45^2)+(J46^2))","v":33.196385345395662},{"$f":"K21+K22+K45+K46","v":1126},{"$f":"SQRT((L21^2)+(L22^2)+(L45^2)+(L46^2))","v":242.11773995310628},{"$f":"M21+M22+M45+M46","v":20},{"$f":"SQRT((N21^2)+(N22^2)+(N45^2)+(N46^2))","v":11.180339887498949},{"$f":"O21+O22+O45+O46","v":240},{"$f":"SQRT((P21^2)+(P22^2)+(P45^2)+(P46^2))","v":66.65583245298194},{"$f":"Q21+Q22+Q45+Q46","v":187},{"$f":"SQRT((R21^2)+(R22^2)+(R45^2)+(R46^2))","v":53.1883445878888},{"$f":"S21+S22+S45+S46","v":6},{"$f":"SQRT((T21^2)+(T22^2)+(T45^2)+(T46^2))","v":20.297783130184438},{"$f":"U21+U22+U45+U46","v":13},{"$f":"SQRT((V21^2)+(V22^2)+(V45^2)+(V46^2))","v":20.663978319771825},{"$f":"W21+W22+W45+W46","v":112},{"$f":"SQRT((X21^2)+(X22^2)+(X45^2)+(X46^2))","v":59.640590204993778},{"$f":"Y21+Y22+Y45+Y46","v":422},{"$f":"SQRT((Z21^2)+(Z22^2)+(Z45^2)+(Z46^2))","v":106.84100336481308},{"$f":"AA21+AA22+AA45+AA46","v":506},{"$f":"SQRT((AB21^2)+(AB22^2)+(AB45^2)+(AB46^2))","v":129.08136968594656},{"$f":"AC21+AC22+AC45+AC46","v":585},{"$f":"SQRT((AD21^2)+(AD22^2)+(AD45^2)+(AD46^2))","v":155.52491761772453},{"$f":"AE21+AE22+AE45+AE46","v":188},{"$f":"SQRT((AF21^2)+(AF22^2)+(AF45^2)+(AF46^2))","v":55.263007518592396},{"$f":"AG21+AG22+AG45+AG46","v":447},{"$f":"SQRT((AH21^2)+(AH22^2)+(AH45^2)+(AH46^2))","v":182.04669730593852},{"$f":"AI21+AI22+AI45+AI46","v":285},{"$f":"SQRT((AJ21^2)+(AJ22^2)+(AJ45^2)+(AJ46^2))","v":74.839828968270638},{"$f":"AK21+AK22+AK45+AK46","v":746},{"$f":"SQRT((AL21^2)+(AL22^2)+(AL45^2)+(AL46^2))","v":179.48258968490509},{"$f":"AM21+AM22+AM45+AM46","v":826},{"$f":"SQRT((AN21^2)+(AN22^2)+(AN45^2)+(AN46^2))","v":256.10739934644607}]
[null,"55 to 64 yrs.",{"$f":"C23+C24+C25+C47+C48+C49","v":153},{"$f":"SQRT((D23^2)+(D24^2)+(D25^2)+(D47^2)+(D48^2)+(D49^2))","v":36.138621999185304},{"$f":"E23+E24+E25+E47+E48+E49","v":474},{"$f":"SQRT((F23^2)+(F24^2)+(F25^2)+(F47^2)+(F48^2)+(F49^2))","v":152.05262246998569},{"$f":"G23+G24+G25+G47+G48+G49","v":127},{"$f":"SQRT((H23^2)+(H24^2)+(H25^2)+(H47^2)+(H48^2)+(H49^2))","v":36.304269721342692},{"$f":"I23+I24+I25+I47+I48+I49","v":64},{"$f":"SQRT((J23^2)+(J24^2)+(J25^2)+(J47^2)+(J48^2)+(J49^2))","v":21.61018278497431},{"$f":"K23+K24+K25+K47+K48+K49","v":1679},{"$f":"SQRT((L23^2)+(L24^2)+(L25^2)+(L47^2)+(L48^2)+(L49^2))","v":308.28720375649715},{"$f":"M23+M24+M25+M47+M48+M49","v":56},{"$f":"SQRT((N23^2)+(N24^2)+(N25^2)+(N47^2)+(N48^2)+(N49^2))","v":24.186773244895647},{"$f":"O23+O24+O25+O47+O48+O49","v":246},{"$f":"SQRT((P23^2)+(P24^2)+(P25^2)+(P47^2)+(P48^2)+(P49^2))","v":55.353410012392189},{"$f":"Q23+Q24+Q25+Q47+Q48+Q49","v":284},{"$f":"SQRT((R23^2)+(R24^2)+(R25^2)+(R47^2)+(R48^2)+(R49^2))","v":62.856980519270891},{"$f":"S23+S24+S25+S47+S48+S49","v":32},{"$f":"SQRT((T23^2)+(T24^2)+(T25^2)+(T47^2)+(T48^2)+(T49^2))","v":15.165750888103101},{"$f":"U23+U24+U25+U47+U48+U49","v":14},{"$f":"SQRT((V23^2)+(V24^2)+(V25^2)+(V47^2)+(V48^2)+(V49^2))","v":22.090722034374522},{"$f":"W23+W24+W25+W47+W48+W49","v":169},{"$f":"SQRT((X23^2)+(X24^2)+(X25^2)+(X47^2)+(X48^2)+(X49^2))","v":62.473994589749104},{"$f":"Y23+Y24+Y25+Y47+Y48+Y49","v":401},{"$f":"SQRT((Z23^2)+(Z24^2)+(Z25^2)+(Z47^2)+(Z48^2)+(Z49^2))","v":92.010868923187545},{"$f":"AA23+AA24+AA25+AA47+AA48+AA49","v":809},{"$f":"SQRT((AB23^2)+(AB24^2)+(AB25^2)+(AB47^2)+(AB48^2)+(AB49^2))","v":144.183910336764},{"$f":"AC23+AC24+AC25+AC47+AC48+AC49","v":825},{"$f":"SQRT((AD23^2)+(AD24^2)+(AD25^2)+(AD47^2)+(AD48^2)+(AD49^2))","v":185.01891795165164},{"$f":"AE23+AE24+AE25+AE47+AE48+AE49","v":327},{"$f":"SQRT((AF23^2)+(AF24^2)+(AF25^2)+(AF47^2)+(AF48^2)+(AF49^2))","v":64.768819658845104},{"$f":"AG23+AG24+AG25+AG47+AG48+AG49","v":761},{"$f":"SQRT((AH23^2)+(AH24^2)+(AH25^2)+(AH47^2)+(AH48^2)+(AH49^2))","v":198.98241128300762},{"$f":"AI23+AI24+AI25+AI47+AI48+AI49","v":336},{"$f":"SQRT((AJ23^2)+(AJ24^2)+(AJ25^2)+(AJ47^2)+(AJ48^2)+(AJ49^2))","v":75.139869576676801},{"$f":"AK23+AK24+AK25+AK47+AK48+AK49","v":1089},{"$f":"SQRT((AL23^2)+(AL24^2)+(AL25^2)+(AL47^2)+(AL48^2)+(AL49^2))","v":256.42737763351244},{"$f":"AM23+AM24+AM25+AM47+AM48+AM49","v":1162},{"$f":"SQRT((AN23^2)+(AN24^2)+(AN25^2)+(AN47^2)+(AN48^2)+(AN49^2))","v":286.03845895263805}]
[null,"65 to 74 yrs.",{"$f":"C26+C27+C28+C50+C51+C52","v":87},{"$f":"SQRT((D26^2)+(D27^2)+(D28^2)+(D50^2)+(D51^2)+(D52^2))","v":29.376861643136763},{"$f":"E26+E27+E28+E50+E51+E52","v":592},{"$f":"SQRT((F26^2)+(F27^2)+(F28^2)+(F50^2)+(F51^2)+(F52^2))","v":194.25498706596954},{"$f":"G26+G27+G28+G50+G51+G52","v":131},{"$f":"SQRT((H26^2)+(H27^2)+(H28^2)+(H50^2)+(H51^2)+(H52^2))","v":32.603680773802211},{"$f":"I26+I27+I28+I50+I51+I52","v":46},{"$f":"SQRT((J26^2)+(J27^2)+(J28^2)+(J50^2)+(J51^2)+(J52^2))","v":22},{"$f":"K26+K27+K28+K50+K51+K52","v":1372},{"$f":"SQRT((L26^2)+(L27^2)+(L28^2)+(L50^2)+(L51^2)+(L52^2))","v":288.57234794761609},{"$f":"M26+M27+M28+M50+M51+M52","v":70},{"$f":"SQRT((N26^2)+(N27^2)+(N28^2)+(N50^2)+(N51^2)+(N52^2))","v":23.790754506740637},{"$f":"O26+O27+O28+O50+O51+O52","v":216},{"$f":"SQRT((P26^2)+(P27^2)+(P28^2)+(P50^2)+(P51^2)+(P52^2))","v":49.101934788763671},{"$f":"Q26+Q27+Q28+Q50+Q51+Q52","v":354},{"$f":"SQRT((R26^2)+(R27^2)+(R28^2)+(R50^2)+(R51^2)+(R52^2))","v":56.213877290220786},{"$f":"S26+S27+S28+S50+S51+S52","v":81},{"$f":"SQRT((T26^2)+(T27^2)+(T28^2)+(T50^2)+(T51^2)+(T52^2))","v":20.760539492026695},{"$f":"U26+U27+U28+U50+U51+U52","v":9},{"$f":"SQRT((V26^2)+(V27^2)+(V28^2)+(V50^2)+(V51^2)+(V52^2))","v":24.433583445741231},{"$f":"W26+W27+W28+W50+W51+W52","v":216},{"$f":"SQRT((X26^2)+(X27^2)+(X28^2)+(X50^2)+(X51^2)+(X52^2))","v":73.047929470998696},{"$f":"Y26+Y27+Y28+Y50+Y51+Y52","v":356},{"$f":"SQRT((Z26^2)+(Z27^2)+(Z28^2)+(Z50^2)+(Z51^2)+(Z52^2))","v":85.976741040818709},{"$f":"AA26+AA27+AA28+AA50+AA51+AA52","v":810},{"$f":"SQRT((AB26^2)+(AB27^2)+(AB28^2)+(AB50^2)+(AB51^2)+(AB52^2))","v":161.97839362087771},{"$f":"AC26+AC27+AC28+AC50+AC51+AC52","v":696},{"$f":"SQRT((AD26^2)+(AD27^2)+(AD28^2)+(AD50^2)+(AD51^2)+(AD52^2))","v":176.32640188014952},{"$f":"AE26+AE27+AE28+AE50+AE51+AE52","v":329},{"$f":"SQRT((AF26^2)+(AF27^2)+(AF28^2)+(AF50^2)+(AF51^2)+(AF52^2))","v":67.623960250786851},{"$f":"AG26+AG27+AG28+AG50+AG51+AG52","v":177},{"$f":"SQRT((AH26^2)+(AH27^2)+(AH28^2)+(AH50^2)+(AH51^2)+(AH52^2))","v":98.203869577527342},{"$f":"AI26+AI27+AI28+AI50+AI51+AI52","v":554},{"$f":"SQRT((AJ26^2)+(AJ27^2)+(AJ28^2)+(AJ50^2)+(AJ51^2)+(AJ52^2))","v":122.15973149937749},{"$f":"AK26+AK27+AK28+AK50+AK51+AK52","v":597},{"$f":"SQRT((AL26^2)+(AL27^2)+(AL28^2)+(AL50^2)+(AL51^2)+(AL52^2))","v":175.91475208179671},{"$f":"AM26+AM27+AM28+AM50+AM51+AM52","v":1230},{"$f":"SQRT((AN26^2)+(AN27^2)+(AN28^2)+(AN50^2)+(AN51^2)+(AN52^2))","v":251.01195190667715}]
[null,"Over 74 yrs. ",{"$f":"C29+C30+C31+C53+C54+C55","v":63},{"$f":"SQRT((D29^2)+(D30^2)+(D31^2)+(D53^2)+(D54^2)+(D55^2))","v":25.019992006393608},{"$f":"E29+E30+E31+E53+E54+E55","v":265},{"$f":"SQRT((F29^2)+(F30^2)+(F31^2)+(F53^2)+(F54^2)+(F55^2))","v":140.02499776825564},{"$f":"G29+G30+G31+G53+G54+G55","v":21},{"$f":"SQRT((H29^2)+(H30^2)+(H31^2)+(H53^2)+(H54^2)+(H55^2))","v":19.104973174542799},{"$f":"I29+I30+I31+I53+I54+I55","v":44},{"$f":"SQRT((J29^2)+(J30^2)+(J31^2)+(J53^2)+(J54^2)+(J55^2))","v":22.113344387495982},{"$f":"K29+K30+K31+K53+K54+K55","v":844},{"$f":"SQRT((L29^2)+(L30^2)+(L31^2)+(L53^2)+(L54^2)+(L55^2))","v":203.52149763599914},{"$f":"M29+M30+M31+M53+M54+M55","v":26},{"$f":"SQRT((N29^2)+(N30^2)+(N31^2)+(N53^2)+(N54^2)+(N55^2))","v":12.569805089976535},{"$f":"O29+O30+O31+O53+O54+O55","v":58},{"$f":"SQRT((P29^2)+(P30^2)+(P31^2)+(P53^2)+(P54^2)+(P55^2))","v":24.310491562286437},{"$f":"Q29+Q30+Q31+Q53+Q54+Q55","v":170},{"$f":"SQRT((R29^2)+(R30^2)+(R31^2)+(R53^2)+(R54^2)+(R55^2))","v":44.407206622349037},{"$f":"S29+S30+S31+S53+S54+S55","v":54},{"$f":"SQRT((T29^2)+(T30^2)+(T31^2)+(T53^2)+(T54^2)+(T55^2))","v":18.027756377319946},{"$f":"U29+U30+U31+U53+U54+U55","v":2},{"$f":"SQRT((V29^2)+(V30^2)+(V31^2)+(V53^2)+(V54^2)+(V55^2))","v":22.405356502408079},{"$f":"W29+W30+W31+W53+W54+W55","v":92},{"$f":"SQRT((X29^2)+(X30^2)+(X31^2)+(X53^2)+(X54^2)+(X55^2))","v":42.047592083257278},{"$f":"Y29+Y30+Y31+Y53+Y54+Y55","v":273},{"$f":"SQRT((Z29^2)+(Z30^2)+(Z31^2)+(Z53^2)+(Z54^2)+(Z55^2))","v":82.194890352138074},{"$f":"AA29+AA30+AA31+AA53+AA54+AA55","v":391},{"$f":"SQRT((AB29^2)+(AB30^2)+(AB31^2)+(AB53^2)+(AB54^2)+(AB55^2))","v":103.02426898551623},{"$f":"AC29+AC30+AC31+AC53+AC54+AC55","v":417},{"$f":"SQRT((AD29^2)+(AD30^2)+(AD31^2)+(AD53^2)+(AD54^2)+(AD55^2))","v":134.52509059651288},{"$f":"AE29+AE30+AE31+AE53+AE54+AE55","v":189},{"$f":"SQRT((AF29^2)+(AF30^2)+(AF31^2)+(AF53^2)+(AF54^2)+(AF55^2))","v":50.029991005395956},{"$f":"AG29+AG30+AG31+AG53+AG54+AG55","v":345},{"$f":"SQRT((AH29^2)+(AH30^2)+(AH31^2)+(AH53^2)+(AH54^2)+(AH55^2))","v":144.04513181638595},{"$f":"AI29+AI30+AI31+AI53+AI54+AI55","v":283},{"$f":"SQRT((AJ29^2)+(AJ30^2)+(AJ31^2)+(AJ53^2)+(AJ54^2)+(AJ55^2))","v":81.627201348570068},{"$f":"AK29+AK30+AK31+AK53+AK54+AK55","v":388},{"$f":"SQRT((AL29^2)+(AL30^2)+(AL31^2)+(AL53^2)+(AL54^2)+(AL55^2))","v":131.51425778218876},{"$f":"AM29+AM30+AM31+AM53+AM54+AM55","v":1133},{"$f":"SQRT((AN29^2)+(AN30^2)+(AN31^2)+(AN53^2)+(AN54^2)+(AN55^2))","v":290.47719359701892}]
[]
[]
[]
[]
[]
[]
[]
[]
[]
[]
[]
[]
[]
[]
[]
[]
[]
[]
[]
[]
[]
[]
[]
[]
[]
[]
[]
[]
[]
[]
[]
[]
[]
[]
[]
[]
[]
[]
[]
[]
[]
[]
[]
[]
[]
[]
[]
[]
[]
[]
[]
[]
[]
[]
[]
[]
[]
[]
[]
[]
[]
[]
[]
[]
[]
[]
[]
[]
[]
[]
[]
[]
[]
[]
[]
[]
[null,"Calculated B01001. GENDER BY AGE"]
[null,"Universe:  TOTAL POPULATION"]
[null,"Data Set: 2010-2014 American Community Survey 5-Year Estimates"]
[]
[null,null,"Albany",null,"Bartlett",null,"Brookfield",null,"Chatham",null,"Conway",null,"Eaton",null,"Effingham",null,"Freedom",null,"Hale's Location",null,"Hart's Location",null,"Jackson",null,"Madison",null,"Moultonborough",null,"Ossipee",null,"Sandwich",null,"Tamworth",null,"Tuftonboro",null,"Wakefield",null,"Wolfeboro"]
[null," ","Estimate","Margin of Error","Estimate","Margin of Error","Estimate","Margin of Error","Estimate","Margin of Error","Estimate","Margin of Error","Estimate","Margin of Error","Estimate","Margin of Error","Estimate","Margin of Error","Estimate","Margin of Error","Estimate","Margin of Error","Estimate","Margin of Error","Estimate","Margin of Error","Estimate","Margin of Error","Estimate","Margin of Error","Estimate","Margin of Error","Estimate","Margin of Error","Estimate","Margin of Error","Estimate","Margin of Error","Estimate","Margin of Error"]
[null,"Total",800,176,2767,20,786,200,393,96,10054,22,348,65,1362,168,1195,152,137,41,41,24,1032,242,2507,18,4032,19,4301,16,1484,191,2851,19,2256,298,5046,37,6231,30]
[null,"Under 15 yrs.",177,66.858058601787121,307,142.93704908105525,153,64.69930447848725,74,30.886890422961002,1502,274.81994105231882,22,16.46207763315433,187,49.819674828324601,168,46.936126810805341,3,25.317977802344327,0,26.944387170614959,143,59.581876439064928,362,101.10390694725896,456,147.68209099278084,751,208.39625716408634,276,74.498322128756698,154,75.749587457622496,380,127.79671357276759,616,184.8675201326615,840,230.48210342670859]
[null,"15 to 24 yrs.",81,46.292547996410825,335,162.53922603482522,67,36.972963094672302,44,27.221315177632398,1333,274.57785781085846,28,28.600699292150182,135,42.166337284616027,112,41.581245772583578,0,34.785054261852174,3,33.376638536557273,95,56.841885964489251,162,66.648330811806531,304,100.83650132764424,455,139.10427743243557,92,34.117444218463959,246,112.68540278137182,231,86.729464428186105,462,185.5747827696425,570,177.62038171336081]
[null,"25 to 34 yrs.",22,26.038433132583073,126,90.13878188659973,67,34.641016151377549,63,36.055512754639892,1151,239.34076125892139,9,13.820274961085254,182,59.70762095411272,68,31.176914536239792,0,22,9,17.776388834631177,73,45.639894828976104,191,72.95889253545451,269,107.9814798935447,363,124.86392593539577,128,64.023433210036458,112,81.264998615640181,186,73.416619371910613,440,187.02406262296839,436,183.01639270841287]
[null,"35 to 44 yrs.",138,45.989129150267672,351,145.72576985557495,97,38.353617821530214,32,16.30950643030009,1078,229.23132421202823,19,11.61895003862225,151,65.038450166036398,87,32.326459750489228,1,19.28730152198591,6,20.663978319771825,92,48.28043081829324,464,108.30512453249847,319,83.300660261488929,567,150.50249167372613,184,49.274739979019678,143,64.218377432009291,250,78.568441501661468,672,186.65208276362736,509,140.67693485429658]
[null,"45 to 54 yrs.",160,46.583258795408462,400,117.64777940955791,76,28.195744359743369,60,21.840329667841555,1813,263.64749192814259,41,15.0996688705415,212,40.853396431630991,168,40.509258201058188,12,14.832396974191326,12,20.273134932713294,158,56.683330883073552,432,96.036451412992136,721,159.62455951387932,641,162.94170736800322,161,41.533119314590373,1007,219.98636321372285,205,71.358251099645088,944,205.57480390359126,698,168.15469068687915]
[null,"55 to 64 yrs.",88,32.12475680841802,617,188.13824704190267,147,43.255057507764334,57,21.283796653792763,1414,282.78437014799812,131,34.102785809959869,258,55.839054433254866,212,46.36809247747852,27,11.832159566199232,6,23.151673805580451,114,57.515215378193624,476,110.50791826833044,920,164.46276174259023,663,152.10522673465235,274,52.952809179494906,614,182.3513092906108,497,112.73863579093016,908,241.18457662130885,1141,262.22128060094587]
[null,"65 to 74 yrs.",76,27.129319932501073,439,154.93224325491451,116,36.606010435446251,45,17.635192088548397,981,209.51610916585867,72,23.194827009486403,122,30.528675044947494,168,37.709415269929607,55,16.911534525287763,3,25.317977802344327,225,66.392770690791323,226,70.512410255216778,734,152.08221460775746,444,114.23659658795863,162,35.777087639996637,293,120.53215338655491,255,70.746024623295966,642,207.61021169489712,1156,239.43683927081898]
[null,"Over 74 yrs. ",58,24.392621835300936,192,105.27107864936124,63,36.152454965050438,18,11.445523142259598,782,169.52580924449234,26,11.61895003862225,115,37.349698793966198,212,51.730068625510249,39,18.165902124584949,2,24.779023386727733,132,47.696960070847283,194,70.327803890068964,309,96.57639463140049,417,120.3577999134248,207,48.979587585033826,282,130.47605144240072,252,85.901105930016996,362,144.65130486794789,881,196.38482629775652]
[]
[]
[]
[]
[]
[]
[]
[]
[]
[]
[]
[]
[]
[]
[]
[]
[]
[]
[]
[]
[]
[]
[]
[]
[]
[]
[]
[]
[]
[]
[]
[]
[]
[]
[]
[]
[]
[]
[]
[]
[]
[]
[]
[]
[]
[]
[]
[]
[]
[]
[]
[]
[]
[]
[]
[]
[]
[]
[]
[]
[]
[]
[]
[]
[]
[]
[]
[]
[]
[]
[]
[]
[]
[]
[]
[]
[null,"Calculated B01001. GENDER BY AGE"]
[null,"Universe:  TOTAL POPULATION"]
[null,"Data Set: 2005-2009 American Community Survey 5-Year Estimates"]
[]
[null,null,"Albany",null,"Bartlett",null,"Brookfield",null,"Chatham",null,"Conway",null,"Eaton",null,"Effingham",null,"Freedom",null,"Hale's Location",null,"Hart's Location",null,"Jackson",null,"Madison",null,"Moultonborough",null,"Ossipee",null,"Sandwich",null,"Tamworth",null,"Tuftonboro",null,"Wakefield",null,"Wolfeboro"]
[null,null,"Estimate","Margin of Error","Estimate","Margin of Error","Estimate","Margin of Error","Estimate","Margin of Error","Estimate","Margin of Error","Estimate","Margin of Error","Estimate","Margin of Error","Estimate","Margin of Error","Estimate","Margin of Error","Estimate","Margin of Error","Estimate","Margin of Error","Estimate","Margin of Error","Estimate","Margin of Error","Estimate","Margin of Error","Estimate","Margin of Error","Estimate","Margin of Error","Estimate","Margin of Error","Estimate","Margin of Error","Estimate","Margin of Error"]
[null,"Total",966,265,2936,21,717,220,390,128,9209,26,381,88,1023,179,1178,162,129,47,81,59,926,206,2326,323,4983,24,4690,28,1398,155,2526,334,2398,253,4746,17,6588,17]
[null,"Under 15 yrs.",160,62.505999712027645,475,145.91435844357471,119,126.97243795406939,92,41.279534881100588,1499,262.8763968103641,34,19.493588689617926,210,64.397204908287748,137,50.029991005395956,14,255.85933635495891,4,255.0372521809314,153,56.231663678038196,381,104.10571550111935,640,166.5292767053289,792,196.77906392703468,173,49.355850717012267,505,137.75703248836336,299,92.617492948146676,757,228.09427875332602,957,216.15503695264655]
[null,"15 to 24 yrs.",234,138.1882773609976,225,253.1304011769428,80,202.55369658438721,35,280.81666617207748,1230,307.05211284080104,74,230.46474784660668,122,202.67214904865443,69,257.11087102648929,1,342.03654775476843,20,302.16386282942574,24,302.43015722642474,289,151.3373714586057,522,210.85777196963835,643,224.41925051118054,141,166.18062462272792,227,184.03260580668851,181,239.2091135387613,579,244.43199463245395,676,268.89031220927245]
[null,"25 to 34 yrs.",40,22.405356502408079,360,120.5902151917808,107,80.205984814102251,33,26.457513110645905,912,266.0620228442985,15,161.7930777258409,65,34.914180500192181,27,115.74541027617467,0,228,0,228,64,34.899856733230294,179,80.05623023850174,238,106.88779163215975,471,192.7848541768777,46,26.589471600616662,237,86.619859154815074,139,56.418082207746124,382,133.46909754696028,538,168.79277235711248]
[null,"35 to 44 yrs.",158,60.083275543199207,401,111.48990985734987,67,33.926390907374746,77,33.808283008753932,1321,252.26573290877221,31,115.13470371699404,159,45.243784103454473,159,48.969378186781178,7,197.81809826201444,15,114.9565135170687,134,58.051701094799967,325,109.26115503691145,647,172.80624988697602,480,134.70708964267618,178,49.295030175464952,364,102.67911179982032,285,98.661035875364703,808,195.1870897370008,507,147.93579688500009]
[null,"45 to 54 yrs.",189,77.239886069310074,497,137.26616480400406,85,31.128764832546761,69,33.361654635224554,1630,253.84837994361911,76,28.548204847240395,177,44.966654311834233,171,47.434164902525687,16,114.54693361238441,18,162.22515218054195,152,57.358521598799946,418,90.71383576941281,796,166.02710622064097,574,155.3769609691218,306,53.981478305063121,406,116.63618649458667,455,114.69960767151734,860,154.51213544573125,1225,229.70851094376107]
[null,"55 to 64 yrs.",71,164.26198586404584,388,119.11339135462478,177,82.054859697643749,39,19.261360284258224,1070,223.81688944313385,92,28.740215726399828,124,37.868192457522973,223,54.497706373754852,31,18.841443681416774,20,229.13751329714651,224,86.180044093745977,344,102.21056696839129,1135,245.34465553584002,985,213.43617312911135,247,49.739320461783549,345,103.19399207318224,439,124.08061895396879,562,159.83428918727046,961,266.95505239646616]
[null,"65 to 74 yrs.",81,32.893768406797051,352,108.4250893474384,47,26.362852652928137,21,114.83466375620212,675,173.68362041367055,38,20.73644135332772,124,121.2311841070605,261,58.197938107805847,53,22.978250586152114,0,279.24183067728228,100,39.812058474788763,249,87.332697198701013,654,175.39954389906492,480,141.0921684573598,167,37.894590642992831,255,80.149859638055517,433,109.10545357588684,260,110.97747519204066,812,206.62526467012691]
[null,"Over 74 yrs. ",33,117.20921465482139,238,140.23551618616449,35,115.4036394573412,24,198.59506539690256,872,216.51327903849224,21,114.78240283248996,42,163.18394528874464,131,46.497311750250681,7,228.09866286324433,4,228.0394702677587,75,117.66477807738389,141,133.25914602758041,351,158.61588823317794,265,98.91410415102591,140,31.606961258558215,187,64.272855856885656,167,52.545218621678607,538,168.33894380089237,912,242.42112119202815]

{"sheet":"ACS_Table_B01002","index":24,"n_rows":49,"n_cols":40,"rows_kept":49,"cut":false,"hidden":true,"merged":[[64836,24,64836,25],[64836,26,64836,27],[64836,28,64836,29],[64836,30,64836,31],[64836,32,64836,33],[64836,34,64836,35],[64836,36,64836,37],[64836,38,64836,39],[64856,24,64856,25],[64856,26,64856,27],[64856,28,64856,29],[64856,30,64856,31],[64856,32,64856,33],[64856,34,64856,35],[64856,36,64856,37],[64856,38,64856,39],[64918,24,64918,25],[64918,26,64918,27],[64918,28,64918,29],[64918,30,64918,31],[64918,32,64918,33],[64918,34,64918,35],[64918,36,64918,37],[64918,38,64918,39],[64938,24,64938,25],[64938,26,64938,27],[64938,28,64938,29],[64938,30,64938,31],[64938,32,64938,33],[64938,34,64938,35],[64938,36,64938,37],[64938,38,64938,39],[64610,24,64610,25],[64610,26,64610,27],[64610,28,64610,29],[64610,30,64610,31],[64610,32,64610,33],[64610,34,64610,35],[64610,36,64610,37],[64610,38,64610,39],[64672,24,64672,25],[64672,26,64672,27],[64672,28,64672,29],[64672,30,64672,31],[64672,32,64672,33],[64672,34,64672,35],[64672,36,64672,37],[64672,38,64672,39],[64692,24,64692,25],[64692,26,64692,27],[64692,28,64692,29],[64692,30,64692,31],[64692,32,64692,33],[64692,34,64692,35],[64692,36,64692,37],[64692,38,64692,39],[64754,24,64754,25],[64754,26,64754,27],[64754,28,64754,29],[64754,30,64754,31],[64754,32,64754,33],[64754,34,64754,35],[64754,36,64754,37],[64754,38,64754,39],[64774,24,64774,25],[64774,26,64774,27],[64774,28,64774,29],[64774,30,64774,31],[64774,32,64774,33],[64774,34,64774,35],[64774,36,64774,37],[64774,38,64774,39],[64426,24,64426,25],[64426,26,64426,27],[64426,28,64426,29],[64426,30,64426,31],[64426,32,64426,33],[64426,34,64426,35],[64426,36,64426,37],[64426,38,64426,39],[64446,24,64446,25],[64446,26,64446,27],[64446,28,64446,29],[64446,30,64446,31],[64446,32,64446,33],[64446,34,64446,35],[64446,36,64446,37],[64446,38,64446,39],[64508,24,64508,25],[64508,26,64508,27],[64508,28,64508,29],[64508,30,64508,31],[64508,32,64508,33],[64508,34,64508,35],[64508,36,64508,37],[64508,38,64508,39],[64528,24,64528,25],[64528,26,64528,27],[64528,28,64528,29],[64528,30,64528,31],[64528,32,64528,33],[64528,34,64528,35],[64528,36,64528,37],[64528,38,64528,39],[64590,24,64590,25],[64590,26,64590,27],[64590,28,64590,29],[64590,30,64590,31],[64590,32,64590,33],[64590,34,64590,35],[64590,36,64590,37],[64590,38,64590,39],[64200,24,64200,25],[64200,26,64200,27],[64200,28,64200,29],[64200,30,64200,31],[64200,32,64200,33],[64200,34,64200,35],[64200,36,64200,37],[64200,38,64200,39],[64262,24,64262,25],[64262,26,64262,27],[64262,28,64262,29],[64262,30,64262,31],[64262,32,64262,33],[64262,34,64262,35],[64262,36,64262,37],[64262,38,64262,39],[64282,24,64282,25],[64282,26,64282,27],[64282,28,64282,29],[64282,30,64282,31],[64282,32,64282,33],[64282,34,64282,35],[64282,36,64282,37],[64282,38,64282,39],[64344,24,64344,25],[64344,26,64344,27],[64344,28,64344,29],[64344,30,64344,31],[64344,32,64344,33],[64344,34,64344,35],[64344,36,64344,37],[64344,38,64344,39],[64364,24,64364,25],[64364,26,64364,27],[64364,28,64364,29],[64364,30,64364,31],[64364,32,64364,33],[64364,34,64364,35],[64364,36,64364,37],[64364,38,64364,39],[64016,24,64016,25],[64016,26,64016,27],[64016,28,64016,29],[64016,30,64016,31],[64016,32,64016,33],[64016,34,64016,35],[64016,36,64016,37],[64016,38,64016,39],[64036,24,64036,25],[64036,26,64036,27],[64036,28,64036,29],[64036,30,64036,31],[64036,32,64036,33],[64036,34,64036,35],[64036,36,64036,37],[64036,38,64036,39],[64098,24,64098,25],[64098,26,64098,27],[64098,28,64098,29],[64098,30,64098,31],[64098,32,64098,33],[64098,34,64098,35],[64098,36,64098,37],[64098,38,64098,39],[64118,24,64118,25],[64118,26,64118,27],[64118,28,64118,29],[64118,30,64118,31],[64118,32,64118,33],[64118,34,64118,35],[64118,36,64118,37],[64118,38,64118,39],[64180,24,64180,25],[64180,26,64180,27],[64180,28,64180,29],[64180,30,64180,31],[64180,32,64180,33],[64180,34,64180,35],[64180,36,64180,37],[64180,38,64180,39],[63790,24,63790,25],[63790,26,63790,27],[63790,28,63790,29],[63790,30,63790,31],[63790,32,63790,33],[63790,34,63790,35],[63790,36,63790,37],[63790,38,63790,39],[63852,24,63852,25],[63852,26,63852,27],[63852,28,63852,29],[63852,30,63852,31],[63852,32,63852,33],[63852,34,63852,35],[63852,36,63852,37],[63852,38,63852,39],[63872,24,63872,25],[63872,26,63872,27],[63872,28,63872,29],[63872,30,63872,31],[63872,32,63872,33],[63872,34,63872,35],[63872,36,63872,37],[63872,38,63872,39],[63934,24,63934,25],[63934,26,63934,27],[63934,28,63934,29],[63934,30,63934,31],[63934,32,63934,33],[63934,34,63934,35],[63934,36,63934,37],[63934,38,63934,39],[63954,24,63954,25],[63954,26,63954,27],[63954,28,63954,29],[63954,30,63954,31],[63954,32,63954,33],[63954,34,63954,35],[63954,36,63954,37],[63954,38,63954,39],[63606,24,63606,25],[63606,26,63606,27],[63606,28,63606,29],[63606,30,63606,31],[63606,32,63606,33],[63606,34,63606,35],[63606,36,63606,37],[63606,38,63606,39],[63626,24,63626,25],[63626,26,63626,27],[63626,28,63626,29],[63626,30,63626,31],[63626,32,63626,33],[63626,34,63626,35],[63626,36,63626,37],[63626,38,63626,39],[63688,24,63688,25],[63688,26,63688,27],[63688,28,63688,29],[63688,30,63688,31],[63688,32,63688,33],[63688,34,63688,35],[63688,36,63688,37],[63688,38,63688,39],[63708,24,63708,25],[63708,26,63708,27],[63708,28,63708,29],[63708,30,63708,31],[63708,32,63708,33],[63708,34,63708,35],[63708,36,63708,37],[63708,38,63708,39],[63770,24,63770,25],[63770,26,63770,27],[63770,28,63770,29],[63770,30,63770,31],[63770,32,63770,33],[63770,34,63770,35],[63770,36,63770,37],[63770,38,63770,39],[63380,24,63380,25],[63380,26,63380,27],[63380,28,63380,29],[63380,30,63380,31],[63380,32,63380,33],[63380,34,63380,35],[63380,36,63380,37],[63380,38,63380,39],[63442,24,63442,25],[63442,26,63442,27],[63442,28,63442,29],[63442,30,63442,31],[63442,32,63442,33],[63442,34,63442,35],[63442,36,63442,37],[63442,38,63442,39],[63462,24,63462,25],[63462,26,63462,27],[63462,28,63462,29],[63462,30,63462,31],[63462,32,63462,33],[63462,34,63462,35],[63462,36,63462,37],[63462,38,63462,39],[63524,24,63524,25],[63524,26,63524,27],[63524,28,63524,29],[63524,30,63524,31],[63524,32,63524,33],[63524,34,63524,35],[63524,36,63524,37],[63524,38,63524,39],[63544,24,63544,25],[63544,26,63544,27],[63544,28,63544,29],[63544,30,63544,31],[63544,32,63544,33],[63544,34,63544,35],[63544,36,63544,37],[63544,38,63544,39],[63196,24,63196,25],[63196,26,63196,27],[63196,28,63196,29],[63196,30,63196,31],[63196,32,63196,33],[63196,34,63196,35],[63196,36,63196,37],[63196,38,63196,39],[63216,24,63216,25],[63216,26,63216,27],[63216,28,63216,29],[63216,30,63216,31],[63216,32,63216,33],[63216,34,63216,35],[63216,36,63216,37],[63216,38,63216,39],[63278,24,63278,25],[63278,26,63278,27],[63278,28,63278,29],[63278,30,63278,31],[63278,32,63278,33],[63278,34,63278,35],[63278,36,63278,37],[63278,38,63278,39],[63298,24,63298,25],[63298,26,63298,27],[63298,28,63298,29],[63298,30,63298,31],[63298,32,63298,33],[63298,34,63298,35],[63298,36,63298,37],[63298,38,63298,39],[63360,24,63360,25],[63360,26,63360,27],[63360,28,63360,29],[63360,30,63360,31],[63360,32,63360,33],[63360,34,63360,35],[63360,36,63360,37],[63360,38,63360,39],[62970,24,62970,25],[62970,26,62970,27],[62970,28,62970,29],[62970,30,62970,31],[62970,32,62970,33],[62970,34,62970,35],[62970,36,62970,37],[62970,38,62970,39],[63032,24,63032,25],[63032,26,63032,27],[63032,28,63032,29],[63032,30,63032,31],[63032,32,63032,33],[63032,34,63032,35],[63032,36,63032,37],[63032,38,63032,39],[63052,24,63052,25],[63052,26,63052,27],[63052,28,63052,29],[63052,30,63052,31],[63052,32,63052,33],[63052,34,63052,35],[63052,36,63052,37],[63052,38,63052,39],[63114,24,63114,25],[63114,26,63114,27],[63114,28,63114,29],[63114,30,63114,31],[63114,32,63114,33],[63114,34,63114,35],[63114,36,63114,37],[63114,38,63114,39],[63134,24,63134,25],[63134,26,63134,27],[63134,28,63134,29],[63134,30,63134,31],[63134,32,63134,33],[63134,34,63134,35],[63134,36,63134,37],[63134,38,63134,39],[62786,24,62786,25],[62786,26,62786,27],[62786,28,62786,29],[62786,30,62786,31],[62786,32,62786,33],[62786,34,62786,35],[62786,36,62786,37],[62786,38,62786,39],[62806,24,62806,25],[62806,26,62806,27],[62806,28,62806,29],[62806,30,62806,31],[62806,32,62806,33],[62806,34,62806,35],[62806,36,62806,37],[62806,38,62806,39],[62868,24,62868,25],[62868,26,62868,27],[62868,28,62868,29],[62868,30,62868,31],[62868,32,62868,33],[62868,34,62868,35],[62868,36,62868,37],[62868,38,62868,39],[62888,24,62888,25],[62888,26,62888,27],[62888,28,62888,29],[62888,30,62888,31],[62888,32,62888,33],[62888,34,62888,35],[62888,36,62888,37],[62888,38,62888,39],[62950,24,62950,25],[62950,26,62950,27],[62950,28,62950,29],[62950,30,62950,31],[62950,32,62950,33],[62950,34,62950,35],[62950,36,62950,37],[62950,38,62950,39],[62560,24,62560,25],[62560,26,62560,27],[62560,28,62560,29],[62560,30,62560,31],[62560,32,62560,33],[62560,34,62560,35],[62560,36,62560,37],[62560,38,62560,39],[62622,24,62622,25],[62622,26,62622,27],[62622,28,62622,29],[62622,30,62622,31],[62622,32,62622,33],[62622,34,62622,35],[62622,36,62622,37],[62622,38,62622,39],[62642,24,62642,25],[62642,26,62642,27],[62642,28,62642,29],[62642,30,62642,31],[62642,32,62642,33],[62642,34,62642,35],[62642,36,62642,37],[62642,38,62642,39],[62704,24,62704,25],[62704,26,62704,27],[62704,28,62704,29],[62704,30,62704,31],[62704,32,62704,33],[62704,34,62704,35],[62704,36,62704,37],[62704,38,62704,39],[62724,24,62724,25],[62724,26,62724,27],[62724,28,62724,29],[62724,30,62724,31],[62724,32,62724,33],[62724,34,62724,35],[62724,36,62724,37],[62724,38,62724,39],[62376,24,62376,25],[62376,26,62376,27],[62376,28,62376,29],[62376,30,62376,31],[62376,32,62376,33],[62376,34,62376,35],[62376,36,62376,37],[62376,38,62376,39],[62396,24,62396,25],[62396,26,62396,27],[62396,28,62396,29],[62396,30,62396,31],[62396,32,62396,33],[62396,34,62396,35],[62396,36,62396,37],[62396,38,62396,39],[62458,24,62458,25],[62458,26,62458,27],[62458,28,62458,29],[62458,30,62458,31],[62458,32,62458,33],[62458,34,62458,35],[62458,36,62458,37],[62458,38,62458,39],[62478,24,62478,25],[62478,26,62478,27],[62478,28,62478,29],[62478,30,62478,31],[62478,32,62478,33],[62478,34,62478,35],[62478,36,62478,37],[62478,38,62478,39],[62540,24,62540,25],[62540,26,62540,27],[62540,28,62540,29],[62540,30,62540,31],[62540,32,62540,33],[62540,34,62540,35],[62540,36,62540,37],[62540,38,62540,39],[62150,24,62150,25],[62150,26,62150,27],[62150,28,62150,29],[62150,30,62150,31],[62150,32,62150,33],[62150,34,62150,35],[62150,36,62150,37],[62150,38,62150,39],[62212,24,62212,25],[62212,26,62212,27],[62212,28,62212,29],[62212,30,62212,31],[62212,32,62212,33],[62212,34,62212,35],[62212,36,62212,37],[62212,38,62212,39],[62232,24,62232,25],[62232,26,62232,27],[62232,28,62232,29],[62232,30,62232,31],[62232,32,62232,33],[62232,34,62232,35],[62232,36,62232,37],[62232,38,62232,39],[62294,24,62294,25],[62294,26,62294,27],[62294,28,62294,29],[62294,30,62294,31],[62294,32,62294,33],[62294,34,62294,35],[62294,36,62294,37],[62294,38,62294,39],[62314,24,62314,25],[62314,26,62314,27],[62314,28,62314,29],[62314,30,62314,31],[62314,32,62314,33],[62314,34,62314,35],[62314,36,62314,37],[62314,38,62314,39],[61966,24,61966,25],[61966,26,61966,27],[61966,28,61966,29],[61966,30,61966,31],[61966,32,61966,33],[61966,34,61966,35],[61966,36,61966,37],[61966,38,61966,39],[61986,24,61986,25],[61986,26,61986,27],[61986,28,61986,29],[61986,30,61986,31],[61986,32,61986,33],[61986,34,61986,35],[61986,36,61986,37],[61986,38,61986,39],[62048,24,62048,25],[62048,26,62048,27],[62048,28,62048,29],[62048,30,62048,31],[62048,32,62048,33],[62048,34,62048,35],[62048,36,62048,37],[62048,38,62048,39],[62068,24,62068,25],[62068,26,62068,27],[62068,28,62068,29],[62068,30,62068,31],[62068,32,62068,33],[62068,34,62068,35],[62068,36,62068,37],[62068,38,62068,39],[62130,24,62130,25],[62130,26,62130,27],[62130,28,62130,29],[62130,30,62130,31],[62130,32,62130,33],[62130,34,62130,35],[62130,36,62130,37],[62130,38,62130,39],[61740,24,61740,25],[61740,26,61740,27],[61740,28,61740,29],[61740,30,61740,31],[61740,32,61740,33],[61740,34,61740,35],[61740,36,61740,37],[61740,38,61740,39],[61802,24,61802,25],[61802,26,61802,27],[61802,28,61802,29],[61802,30,61802,31],[61802,32,61802,33],[61802,34,61802,35],[61802,36,61802,37],[61802,38,61802,39],[61822,24,61822,25],[61822,26,61822,27],[61822,28,61822,29],[61822,30,61822,31],[61822,32,61822,33],[61822,34,61822,35],[61822,36,61822,37],[61822,38,61822,39],[61884,24,61884,25],[61884,26,61884,27],[61884,28,61884,29],[61884,30,61884,31],[61884,32,61884,33],[61884,34,61884,35],[61884,36,61884,37],[61884,38,61884,39],[61904,24,61904,25],[61904,26,61904,27],[61904,28,61904,29],[61904,30,61904,31],[61904,32,61904,33],[61904,34,61904,35],[61904,36,61904,37],[61904,38,61904,39],[61556,24,61556,25],[61556,26,61556,27],[61556,28,61556,29],[61556,30,61556,31],[61556,32,61556,33],[61556,34,61556,35],[61556,36,61556,37],[61556,38,61556,39],[61576,24,61576,25],[61576,26,61576,27],[61576,28,61576,29],[61576,30,61576,31],[61576,32,61576,33],[61576,34,61576,35],[61576,36,61576,37],[61576,38,61576,39],[61638,24,61638,25],[61638,26,61638,27],[61638,28,61638,29],[61638,30,61638,31],[61638,32,61638,33],[61638,34,61638,35],[61638,36,61638,37],[61638,38,61638,39],[61658,24,61658,25],[61658,26,61658,27],[61658,28,61658,29],[61658,30,61658,31],[61658,32,61658,33],[61658,34,61658,35],[61658,36,61658,37],[61658,38,61658,39],[61720,24,61720,25],[61720,26,61720,27],[61720,28,61720,29],[61720,30,61720,31],[61720,32,61720,33],[61720,34,61720,35],[61720,36,61720,37],[61720,38,61720,39],[61330,24,61330,25],[61330,26,61330,27],[61330,28,61330,29],[61330,30,61330,31],[61330,32,61330,33],[61330,34,61330,35],[61330,36,61330,37],[61330,38,61330,39],[61392,24,61392,25],[61392,26,61392,27],[61392,28,61392,29],[61392,30,61392,31],[61392,32,61392,33],[61392,34,61392,35],[61392,36,61392,37],[61392,38,61392,39],[61412,24,61412,25],[61412,26,61412,27],[61412,28,61412,29],[61412,30,61412,31],[61412,32,61412,33],[61412,34,61412,35],[61412,36,61412,37],[61412,38,61412,39],[61474,24,61474,25],[61474,26,61474,27],[61474,28,61474,29],[61474,30,61474,31],[61474,32,61474,33],[61474,34,61474,35],[61474,36,61474,37],[61474,38,61474,39],[61494,24,61494,25],[61494,26,61494,27],[61494,28,61494,29],[61494,30,61494,31],[61494,32,61494,33],[61494,34,61494,35],[61494,36,61494,37],[61494,38,61494,39],[61146,24,61146,25],[61146,26,61146,27],[61146,28,61146,29],[61146,30,61146,31],[61146,32,61146,33],[61146,34,61146,35],[61146,36,61146,37],[61146,38,61146,39],[61166,24,61166,25],[61166,26,61166,27],[61166,28,61166,29],[61166,30,61166,31],[61166,32,61166,33],[61166,34,61166,35],[61166,36,61166,37],[61166,38,61166,39],[61228,24,61228,25],[61228,26,61228,27],[61228,28,61228,29],[61228,30,61228,31],[61228,32,61228,33],[61228,34,61228,35],[61228,36,61228,37],[61228,38,61228,39],[61248,24,61248,25],[61248,26,61248,27],[61248,28,61248,29],[61248,30,61248,31],[61248,32,61248,33],[61248,34,61248,35],[61248,36,61248,37],[61248,38,61248,39],[61310,24,61310,25],[61310,26,61310,27],[61310,28,61310,29],[61310,30,61310,31],[61310,32,61310,33],[61310,34,61310,35],[61310,36,61310,37],[61310,38,61310,39],[60920,24,60920,25],[60920,26,60920,27],[60920,28,60920,29],[60920,30,60920,31],[60920,32,60920,33],[60920,34,60920,35],[60920,36,60920,37],[60920,38,60920,39],[60982,24,60982,25],[60982,26,60982,27],[60982,28,60982,29],[60982,30,60982,31],[60982,32,60982,33],[60982,34,60982,35],[60982,36,60982,37],[60982,38,60982,39],[61002,24,61002,25],[61002,26,61002,27],[61002,28,61002,29],[61002,30,61002,31],[61002,32,61002,33],[61002,34,61002,35],[61002,36,61002,37],[61002,38,61002,39],[61064,24,61064,25],[61064,26,61064,27],[61064,28,61064,29],[61064,30,61064,31],[61064,32,61064,33],[61064,34,61064,35],[61064,36,61064,37],[61064,38,61064,39],[61084,24,61084,25],[61084,26,61084,27],[61084,28,61084,29],[61084,30,61084,31],[61084,32,61084,33],[61084,34,61084,35],[61084,36,61084,37],[61084,38,61084,39],[60736,24,60736,25],[60736,26,60736,27],[60736,28,60736,29],[60736,30,60736,31],[60736,32,60736,33],[60736,34,60736,35],[60736,36,60736,37],[60736,38,60736,39],[60756,24,60756,25],[60756,26,60756,27],[60756,28,60756,29],[60756,30,60756,31],[60756,32,60756,33],[60756,34,60756,35],[60756,36,60756,37],[60756,38,60756,39],[60818,24,60818,25],[60818,26,60818,27],[60818,28,60818,29],[60818,30,60818,31],[60818,32,60818,33],[60818,34,60818,35],[60818,36,60818,37],[60818,38,60818,39],[60838,24,60838,25],[60838,26,60838,27],[60838,28,60838,29],[60838,30,60838,31],[60838,32,60838,33],[60838,34,60838,35],[60838,36,60838,37],[60838,38,60838,39],[60900,24,60900,25],[60900,26,60900,27],[60900,28,60900,29],[60900,30,60900,31],[60900,32,60900,33],[60900,34,60900,35],[60900,36,60900,37],[60900,38,60900,39],[60510,24,60510,25],[60510,26,60510,27],[60510,28,60510,29],[60510,30,60510,31],[60510,32,60510,33],[60510,34,60510,35],[60510,36,60510,37],[60510,38,60510,39],[60572,24,60572,25],[60572,26,60572,27],[60572,28,60572,29],[60572,30,60572,31],[60572,32,60572,33],[60572,34,60572,35],[60572,36,60572,37],[60572,38,60572,39],[60592,24,60592,25],[60592,26,60592,27],[60592,28,60592,29],[60592,30,60592,31],[60592,32,60592,33],[60592,34,60592,35],[60592,36,60592,37],[60592,38,60592,39],[60654,24,60654,25],[60654,26,60654,27],[60654,28,60654,29],[60654,30,60654,31],[60654,32,60654,33],[60654,34,60654,35],[60654,36,60654,37],[60654,38,60654,39],[60674,24,60674,25],[60674,26,60674,27],[60674,28,60674,29],[60674,30,60674,31],[60674,32,60674,33],[60674,34,60674,35],[60674,36,60674,37],[60674,38,60674,39],[60326,24,60326,25],[60326,26,60326,27],[60326,28,60326,29],[60326,30,60326,31],[60326,32,60326,33],[60326,34,60326,35],[60326,36,60326,37],[60326,38,60326,39],[60346,24,60346,25],[60346,26,60346,27],[60346,28,60346,29],[60346,30,60346,31],[60346,32,60346,33],[60346,34,60346,35],[60346,36,60346,37],[60346,38,60346,39],[60408,24,60408,25],[60408,26,60408,27],[60408,28,60408,29],[60408,30,60408,31],[60408,32,60408,33],[60408,34,60408,35],[60408,36,60408,37],[60408,38,60408,39],[60428,24,60428,25],[60428,26,60428,27],[60428,28,60428,29],[60428,30,60428,31],[60428,32,60428,33],[60428,34,60428,35],[60428,36,60428,37],[60428,38,60428,39],[60490,24,60490,25],[60490,26,60490,27],[60490,28,60490,29],[60490,30,60490,31],[60490,32,60490,33],[60490,34,60490,35],[60490,36,60490,37],[60490,38,60490,39],[60100,24,60100,25],[60100,26,60100,27],[60100,28,60100,29],[60100,30,60100,31],[60100,32,60100,33],[60100,34,60100,35],[60100,36,60100,37],[60100,38,60100,39],[60162,24,60162,25],[60162,26,60162,27],[60162,28,60162,29],[60162,30,60162,31],[60162,32,60162,33],[60162,34,60162,35],[60162,36,60162,37],[60162,38,60162,39],[60182,24,60182,25],[60182,26,60182,27],[60182,28,60182,29],[60182,30,60182,31],[60182,32,60182,33],[60182,34,60182,35],[60182,36,60182,37],[60182,38,60182,39],[60244,24,60244,25],[60244,26,60244,27],[60244,28,60244,29],[60244,30,60244,31],[60244,32,60244,33],[60244,34,60244,35],[60244,36,60244,37],[60244,38,60244,39],[60264,24,60264,25],[60264,26,60264,27],[60264,28,60264,29],[60264,30,60264,31],[60264,32,60264,33],[60264,34,60264,35],[60264,36,60264,37],[60264,38,60264,39],[59916,24,59916,25],[59916,26,59916,27],[59916,28,59916,29],[59916,30,59916,31],[59916,32,59916,33],[59916,34,59916,35],[59916,36,59916,37],[59916,38,59916,39],[59936,24,59936,25],[59936,26,59936,27],[59936,28,59936,29],[59936,30,59936,31],[59936,32,59936,33],[59936,34,59936,35],[59936,36,59936,37],[59936,38,59936,39],[59998,24,59998,25],[59998,26,59998,27],[59998,28,59998,29],[59998,30,59998,31],[59998,32,59998,33],[59998,34,59998,35],[59998,36,59998,37],[59998,38,59998,39],[60018,24,60018,25],[60018,26,60018,27],[60018,28,60018,29],[60018,30,60018,31],[60018,32,60018,33],[60018,34,60018,35],[60018,36,60018,37],[60018,38,60018,39],[60080,24,60080,25],[60080,26,60080,27],[60080,28,60080,29],[60080,30,60080,31],[60080,32,60080,33],[60080,34,60080,35],[60080,36,60080,37],[60080,38,60080,39],[59690,24,59690,25],[59690,26,59690,27],[59690,28,59690,29],[59690,30,59690,31],[59690,32,59690,33],[59690,34,59690,35],[59690,36,59690,37],[59690,38,59690,39]],"merged_total":30096,"flags":["merged_cut"]}
[null,"B01001. GENDER BY AGE"]
[null,"Universe:  TOTAL POPULATION, Median Age"]
[null,"Data Set: 2015-2019 American Community Survey 5-Year Estimates"]
[]
[null,null,"Albany",null,"Bartlett",null,"Brookfield",null,"Chatham",null,"Conway",null,"Eaton",null,"Effingham",null,"Freedom",null,"Hale's Location",null,"Hart's Location",null,"Jackson",null,"Madison",null,"Moultonborough",null,"Ossipee",null,"Sandwich",null,"Tamworth",null,"Tuftonboro",null,"Wakefield",null,"Wolfeboro"]
[null," ","Estimate","Margin of Error","Estimate","Margin of Error","Estimate","Margin of Error","Estimate","Margin of Error","Estimate","Margin of Error","Estimate","Margin of Error","Estimate","Margin of Error","Estimate","Margin of Error","Estimate","Margin of Error","Estimate","Margin of Error","Estimate","Margin of Error","Estimate","Margin of Error","Estimate","Margin of Error","Estimate","Margin of Error","Estimate","Margin of Error","Estimate","Margin of Error","Estimate","Margin of Error","Estimate","Margin of Error","Estimate","Margin of Error"]
[null,"Total:",50.4,7.3,54.2,5.3,46.8,3.3,50.6,6.7,44.8,4,58.5,5.6,41,5.9,61.3,3.5,71.2,2.8,58.3,9.1,58.9,10.1,51.7,4.5,54.3,3.4,51.2,6.5,59.8,3.7,50.7,5,59.3,5.6,51.8,6.4,58.5,3.2]
[null,"Male:",50,15.3,54.7,4.5999999999999996,45.4,4.4000000000000004,49.8,8.1,44.2,5.8,56.5,14.7,44.6,7.6,60.8,4.0999999999999996,71.7,2.5,56.5,22.2,61.6,3.7,49.3,5,55.7,4.5,47.4,7.3,59.7,3.3,47.8,6.8,60.5,6.4,51.2,7.1,55.4,4.2]
[null,"Female:",51.4,5.3,51.9,8.1,47.9,4.7,51.2,6.7,46.4,5.0999999999999996,59.4,4.4000000000000004,39.1,6.9,61.6,3.7,70.2,2.9,58.8,12,51.4,15.9,52.8,4.3,53.8,2.8,54.1,6.1,60.1,5,55.6,3.6,58.6,5.3,52.9,8,63,4.3]
[]
[]
[]
[]
[]
[]
[]
[]
[]
[]
[]
[null,"B01001. GENDER BY AGE"]
[null,"Universe:  TOTAL POPULATION, Median Age"]
[null,"Data Set: 2010-2014 American Community Survey 5-Year Estimates"]
[]
[null,null,"Albany",null,"Bartlett",null,"Brookfield",null,"Chatham",null,"Conway",null,"Eaton",null,"Effingham",null,"Freedom",null,"Hale's Location",null,"Hart's Location",null,"Jackson",null,"Madison",null,"Moultonborough",null,"Ossipee",null,"Sandwich",null,"Tamworth",null,"Tuftonboro",null,"Wakefield",null,"Wolfeboro"]
[null," ","Estimate","Margin of Error","Estimate","Margin of Error","Estimate","Margin of Error","Estimate","Margin of Error","Estimate","Margin of Error","Estimate","Margin of Error","Estimate","Margin of Error","Estimate","Margin of Error","Estimate","Margin of Error","Estimate","Margin of Error","Estimate","Margin of Error","Estimate","Margin of Error","Estimate","Margin of Error","Estimate","Margin of Error","Estimate","Margin of Error","Estimate","Margin of Error","Estimate","Margin of Error","Estimate","Margin of Error","Estimate","Margin of Error"]
[null,"Total:",43.8,5.2,50.5,7.1,46.7,8.3000000000000007,41.2,10,44.8,4.4000000000000004,59.8,2.7,46.9,4.4000000000000004,54.6,4.2,67.900000000000006,1.6,50.3,13.6,51.1,8.1999999999999993,47.4,5.0999999999999996,54.6,1.6,45.2,3.8,48.4,5.8,53.2,1.7,50.5,8,50.1,6.3,55.8,5.2]
[null,"Male:",41.5,7.3,57.3,7.8,44.8,7.5,37.5,15.8,41.5,6,60.4,3.4,44.4,4.2,55.1,3.9,67.900000000000006,2.2000000000000002,50.2,15.3,51.3,9.3000000000000007,46.3,7.1,54.5,2.4,45.8,4,45.6,5.3,52.5,1.9,51.4,12,52.3,5.6,52.6,6.9]
[null,"Female:",45.5,4.9000000000000004,46.7,6.2,48,11.1,41.8,9.6,45.7,2.2999999999999998,59,1.8,49.2,3.8,53.4,4.8,68,3.7,50.5,35.9,50.8,9.8000000000000007,48.4,4,54.7,1.7,44.9,4.5,52.1,8.3000000000000007,54.4,3.4,50,8.1,49.1,7.8,59.8,5.6]
[]
[]
[]
[]
[]
[]
[]
[]
[]
[]
[]
[null,"B01001. GENDER BY AGE"]
[null,"Universe:  TOTAL POPULATION, Median Age"]
[null,"Data Set: 2005-2009 American Community Survey 5-Year Estimates"]
[]
[null,null,"Albany",null,"Bartlett",null,"Brookfield",null,"Chatham",null,"Conway",null,"Eaton",null,"Effingham",null,"Freedom",null,"Hale's Location",null,"Hart's Location",null,"Jackson",null,"Madison",null,"Moultonborough",null,"Ossipee",null,"Sandwich",null,"Tamworth",null,"Tuftonboro",null,"Wakefield",null,"Wolfeboro"]
[null," ","Estimate","Margin of Error","Estimate","Margin of Error","Estimate","Margin of Error","Estimate","Margin of Error","Estimate","Margin of Error","Estimate","Margin of Error","Estimate","Margin of Error","Estimate","Margin of Error","Estimate","Margin of Error","Estimate","Margin of Error","Estimate","Margin of Error","Estimate","Margin of Error","Estimate","Margin of Error","Estimate","Margin of Error","Estimate","Margin of Error","Estimate","Margin of Error","Estimate","Margin of Error","Estimate","Margin of Error","Estimate","Margin of Error"]
[null,"Total:",38.9,7.2,45.2,5.5,42,10.7,39.700000000000003,6.8,42.3,3,51.2,3.3,43.3,4.4000000000000004,56.8,5.3,64.400000000000006,9.1999999999999993,47.4,15.9,50.9,6.5,44.8,6.1,49.9,5.0999999999999996,42.5,6.1,50.1,2.2000000000000002,43.6,4.9000000000000004,51.5,3.8,44.2,2,50.9,2.4]
[null,"Male:",44.2,7,49.3,4.0999999999999996,44.9,10.8,40.5,13.3,38.5,2.6,52.4,4.5,39.5,7.6,52.5,6.3,66.3,11.2,35.799999999999997,22.3,53,10,47,3.9,52.6,4.5,41.7,7.3,50.6,1.8,43.8,4.8,48.3,6.4,43.5,2.9,49.3,3.3]
[null,"Female:",37.9,5.7,41.7,7.5,40,18.8,39.4,7.7,45.8,2.6,50.2,3.4,45.2,4.7,58,3,64.3,15.5,54.4,7.6,49.7,5.2,42.2,5.8,47.8,3.7,45.3,7.3,49.2,3.4,42.9,8.6,54.1,4.5999999999999996,44.7,3.4,51.6,1.7]

{"sheet":"ACS_Tbl_B11001_B11002_B25010","index":25,"n_rows":202,"n_cols":40,"rows_kept":202,"cut":false,"hidden":true,"merged":[]}
[null,"B11001. HOUSEHOLD TYPE (INCLUDING LIVING ALONE)"]
[null,"Universe:  HOUSEHOLDS"]
[null,"Data Set: 2015-2019 American Community Survey 5-Year Estimates"]
[]
[null,null,"Albany",null,"Bartlett",null,"Brookfield",null,"Chatham",null,"Conway",null,"Eaton",null,"Effingham",null,"Freedom",null,"Hale's Location",null,"Hart's Location",null,"Jackson",null,"Madison",null,"Moultonborough",null,"Ossipee",null,"Sandwich",null,"Tamworth",null,"Tuftonboro",null,"Wakefield",null,"Wolfeboro"]
[null," ","Estimate","Margin of Error","Estimate","Margin of Error","Estimate","Margin of Error","Estimate","Margin of Error","Estimate","Margin of Error","Estimate","Margin of Error","Estimate","Margin of Error","Estimate","Margin of Error","Estimate","Margin of Error","Estimate","Margin of Error","Estimate","Margin of Error","Estimate","Margin of Error","Estimate","Margin of Error","Estimate","Margin of Error","Estimate","Margin of Error","Estimate","Margin of Error","Estimate","Margin of Error","Estimate","Margin of Error","Estimate","Margin of Error"]
[null,"Total:",307,58,1466,162,303,63,143,41,4632,241,135,39,594,82,611,81,89,20,24,16,416,88,977,94,1765,118,2011,164,643,81,1300,147,923,104,2117,185,3000,206]
[null,"Family households:",212,50,618,123,258,61,90,34,2704,227,76,29,450,75,437,67,68,20,12,11,227,71,718,73,1275,107,1197,134,417,63,840,104,663,96,1415,159,2069,169]
[null,"Married-couple family",162,42,546,123,246,59,76,28,1873,258,71,26,320,53,415,66,68,20,12,11,227,71,628,79,1046,109,914,157,375,65,659,143,613,94,1375,156,1637,239]
[null,"Other family:",50,26,72,67,12,14,14,14,831,222,5,7,130,47,22,16,0,11,0,11,0,11,90,38,229,83,283,117,42,25,181,102,50,29,40,50,432,189]
[null,"Male householder, no spouse present",11,10,48,55,4,7,5,8,132,80,0,11,35,20,16,14,0,11,0,11,0,11,17,21,119,68,113,90,14,11,49,72,27,20,0,16,158,157]
[null,"Female householder, no spouse present",39,23,24,38,8,11,9,12,699,215,5,7,95,42,6,6,0,11,0,11,0,11,73,34,110,63,170,85,28,22,132,95,23,16,40,50,274,145]
[null,"Nonfamily households:",95,32,848,213,45,20,53,21,1928,342,59,25,144,44,174,45,21,13,12,12,189,63,259,94,490,116,814,199,226,65,460,169,260,84,702,208,931,251]
[null,"Householder living alone",77,30,621,218,39,19,37,17,1486,303,48,22,124,40,165,45,11,10,5,8,108,48,223,87,400,110,718,179,174,56,322,148,228,76,474,200,880,253]
[null,"Householder not living alone",18,12,227,102,6,7,16,13,442,177,11,9,20,14,9,8,10,8,7,10,81,44,36,36,90,54,96,70,52,25,138,110,32,29,228,145,51,59]
[]
[]
[]
[]
[]
[]
[]
[]
[]
[]
[]
[]
[]
[]
[]
[]
[]
[null,"B11002. HOUSEHOLD TYPE BY RELATIVES AND NONRELATIVES FOR POPULATION IN HOUSEHOLDS "]
[null,"Universe:  POPULATION IN HOUSEHOLDS"]
[null,"Data Set: 2015-2019 American Community Survey 5-Year Estimates"]
[]
[null,null,"Albany",null,"Bartlett",null,"Brookfield",null,"Chatham",null,"Conway",null,"Eaton",null,"Effingham",null,"Freedom",null,"Hale's Location",null,"Hart's Location",null,"Jackson",null,"Madison",null,"Moultonborough",null,"Ossipee",null,"Sandwich",null,"Tamworth",null,"Tuftonboro",null,"Wakefield",null,"Wolfeboro"]
[null," ","Estimate","Margin of Error","Estimate","Margin of Error","Estimate","Margin of Error","Estimate","Margin of Error","Estimate","Margin of Error","Estimate","Margin of Error","Estimate","Margin of Error","Estimate","Margin of Error","Estimate","Margin of Error","Estimate","Margin of Error","Estimate","Margin of Error","Estimate","Margin of Error","Estimate","Margin of Error","Estimate","Margin of Error","Estimate","Margin of Error","Estimate","Margin of Error","Estimate","Margin of Error","Estimate","Margin of Error","Estimate","Margin of Error"]
[null,"Total:",703,142,2758,14,803,186,372,127,9937,72,265,72,1630,231,1337,179,183,43,42,30,891,228,2531,26,4094,27,4135,123,1440,180,2983,19,2213,215,5046,19,6220,41]
[null,"In family households:",575,136,1655,258,752,184,296,115,7478,476,193,65,1460,234,1154,172,151,43,24,21,617,218,2234,117,3483,156,3223,265,1140,184,2402,229,1905,230,4120,299,5232,264]
[null,"In married-couple family:",400,99,1455,320,717,176,242,101,4822,670,175,60,881,154,1103,174,151,43,24,21,617,218,1905,167,2795,263,2422,371,986,168,1796,395,1725,245,4004,326,3987,568]
[null,"Relatives",400,99,1455,320,717,176,237,96,4783,669,175,60,881,154,1071,164,151,43,24,21,617,218,1879,168,2768,254,2380,364,964,169,1780,394,1698,234,3975,325,3987,568]
[null,"Nonrelatives",0,11,0,11,0,11,5,11,39,51,0,11,0,11,32,23,0,11,0,11,0,11,26,28,27,42,42,60,22,25,16,23,27,31,29,38,0,16]
[null,"In male householder, no spouse present, family:",29,23,142,171,11,23,13,20,416,292,0,11,104,57,37,32,0,11,0,11,0,11,61,74,359,194,295,239,46,36,209,301,107,90,0,16,383,348]
[null,"Relatives",29,23,142,171,11,23,11,18,352,230,0,11,81,44,37,32,0,11,0,11,0,11,57,73,309,176,295,239,38,31,163,235,99,81,0,16,383,348]
[null,"Nonrelatives",0,11,0,11,0,11,2,5,64,72,0,11,23,15,0,11,0,11,0,11,0,11,4,7,50,40,0,11,8,9,46,67,8,11,0,16,0,16]
[null,"In female householder, no spouse present, family:",146,94,58,94,24,31,41,45,2240,672,18,24,475,179,14,13,0,11,0,11,0,11,268,126,329,197,506,208,108,82,397,337,73,54,116,149,862,477]
[null,"Relatives",133,87,58,94,19,25,32,35,2154,648,15,20,440,163,14,13,0,11,0,11,0,11,223,106,281,158,506,208,97,75,397,337,63,45,116,149,823,455]
[null,"Nonrelatives",13,15,0,11,5,8,9,12,86,89,3,6,35,28,0,11,0,11,0,11,0,11,45,35,48,58,0,11,11,13,0,11,10,11,0,16,39,63]
[null,"In nonfamily households",128,51,1103,257,51,23,76,40,2459,468,72,31,170,55,183,47,32,19,18,19,274,98,297,114,611,156,912,233,300,88,581,228,308,106,926,299,988,264]
[]
[]
[]
[null,"Calculated Average  Household Size by Household Type"]
[null,"Universe:  POPULATION IN HOUSEHOLDS"]
[null,"Data Set: 2015-2019 American Community Survey 5-Year Estimates"]
[]
[null,null,"Albany",null,"Bartlett",null,"Brookfield",null,"Chatham",null,"Conway",null,"Eaton",null,"Effingham",null,"Freedom",null,"Hale's Location",null,"Hart's Location",null,"Jackson",null,"Madison",null,"Moultonborough",null,"Ossipee",null,"Sandwich",null,"Tamworth",null,"Tuftonboro",null,"Wakefield",null,"Wolfeboro"]
[null," ","Estimate","Margin of Error","Estimate","Margin of Error","Estimate","Margin of Error","Estimate","Margin of Error","Estimate","Margin of Error","Estimate","Margin of Error","Estimate","Margin of Error","Estimate","Margin of Error","Estimate","Margin of Error","Estimate","Margin of Error","Estimate","Margin of Error","Estimate","Margin of Error","Estimate","Margin of Error","Estimate","Margin of Error","Estimate","Margin of Error","Estimate","Margin of Error","Estimate","Margin of Error","Estimate","Margin of Error","Estimate","Margin of Error"]
[null,"Total:",{"$f":"C39/C7","v":2.2899022801302933},{"$f":"D73","v":0.28999999999999998},{"$f":"E39/E7","v":1.8813096862210095},{"$f":"(SQRT((F$39^2)+((E$39^2)/(E$7^2))*(F$7^2)))/E$7","v":0.20811292727773339},{"$f":"G39/G7","v":2.6501650165016502},{"$f":"(SQRT((H$39^2)+((G$39^2)/(G$7^2))*(H$7^2)))/G$7","v":0.8248961759611777},{"$f":"I39/I7","v":2.6013986013986012},{"$f":"(SQRT((J$39^2)+((I$39^2)/(I$7^2))*(J$7^2)))/I$7","v":1.1597599824603859},{"$f":"K39/K7","v":2.1452936096718482},{"$f":"(SQRT((L$39^2)+((K$39^2)/(K$7^2))*(L$7^2)))/K$7","v":0.11269539567973103},{"$f":"M39/M7","v":1.962962962962963},{"$f":"(SQRT((N$39^2)+((M$39^2)/(M$7^2))*(N$7^2)))/M$7","v":0.77847422386658238},{"$f":"O39/O7","v":2.7441077441077439},{"$f":"(SQRT((P$39^2)+((O$39^2)/(O$7^2))*(P$7^2)))/O$7","v":0.54289621187290282},{"$f":"Q39/Q7","v":2.1882160392798689},{"$f":"(SQRT((R$39^2)+((Q$39^2)/(Q$7^2))*(R$7^2)))/Q$7","v":0.41228586453513211},{"$f":"S39/S7","v":2.0561797752808988},{"$f":"(SQRT((T$39^2)+((S$39^2)/(S$7^2))*(T$7^2)))/S$7","v":0.66852989392928175},{"$f":"U39/U7","v":1.75},{"$f":"(SQRT((V$39^2)+((U$39^2)/(U$7^2))*(V$7^2)))/U$7","v":1.7098570440569327},{"$f":"W39/W7","v":2.1418269230769229},{"$f":"(SQRT((X$39^2)+((W$39^2)/(W$7^2))*(X$7^2)))/W$7","v":0.71110385135933241},{"$f":"Y39/Y7","v":2.5905834186284546},{"$f":"(SQRT((Z$39^2)+((Y$39^2)/(Y$7^2))*(Z$7^2)))/Y$7","v":0.25066419012765045},{"$f":"AA39/AA7","v":2.3195467422096319},{"$f":"(SQRT((AB$39^2)+((AA$39^2)/(AA$7^2))*(AB$7^2)))/AA$7","v":0.1558272010771618},{"$f":"AC39/AC7","v":2.0561909497762305},{"$f":"(SQRT((AD$39^2)+((AC$39^2)/(AC$7^2))*(AD$7^2)))/AC$7","v":0.17849194777525043},{"$f":"AE39/AE7","v":2.2395023328149302},{"$f":"(SQRT((AF$39^2)+((AE$39^2)/(AE$7^2))*(AF$7^2)))/AE$7","v":0.39743403945338796},{"$f":"AG39/AG7","v":2.2946153846153847},{"$f":"(SQRT((AH$39^2)+((AG$39^2)/(AG$7^2))*(AH$7^2)))/AG$7","v":0.25987935096208703},{"$f":"AI39/AI7","v":2.3976164680390033},{"$f":"(SQRT((AJ$39^2)+((AI$39^2)/(AI$7^2))*(AJ$7^2)))/AI$7","v":0.35671050305160568},{"$f":"AK39/AK7","v":2.3835616438356166},{"$f":"(SQRT((AL$39^2)+((AK$39^2)/(AK$7^2))*(AL$7^2)))/AK$7","v":0.20848750566523896},{"$f":"AM39/AM7","v":2.0733333333333333},{"$f":"(SQRT((AN$39^2)+((AM$39^2)/(AM$7^2))*(AN$7^2)))/AM$7","v":0.14302334879744136}]
[null,"In family households:",{"$f":"C40/C8","v":2.7122641509433962},{"$f":"(SQRT((D$40^2)+((C$40^2)/(C$8^2))*(D$8^2)))/C$8","v":0.90594214933277883},{"$f":"E40/E8","v":2.6779935275080908},{"$f":"(SQRT((F$40^2)+((E$40^2)/(E$8^2))*(F$8^2)))/E$8","v":0.67703294629133859},{"$f":"G40/G8","v":2.9147286821705425},{"$f":"(SQRT((H$40^2)+((G$40^2)/(G$8^2))*(H$8^2)))/G$8","v":0.99173533782873402},{"$f":"I40/I8","v":3.2888888888888888},{"$f":"(SQRT((J$40^2)+((I$40^2)/(I$8^2))*(J$8^2)))/I$8","v":1.7822585678863914},{"$f":"K40/K8","v":2.7655325443786984},{"$f":"(SQRT((L$40^2)+((K$40^2)/(K$8^2))*(L$8^2)))/K$8","v":0.29135782499484603},{"$f":"M40/M8","v":2.5394736842105261},{"$f":"(SQRT((N$40^2)+((M$40^2)/(M$8^2))*(N$8^2)))/M$8","v":1.2924607765111329},{"$f":"O40/O8","v":3.2444444444444445},{"$f":"(SQRT((P$40^2)+((O$40^2)/(O$8^2))*(P$8^2)))/O$8","v":0.75020033904074257},{"$f":"Q40/Q8","v":2.6407322654462244},{"$f":"(SQRT((R$40^2)+((Q$40^2)/(Q$8^2))*(R$8^2)))/Q$8","v":0.56465611476325039},{"$f":"S40/S8","v":2.2205882352941178},{"$f":"(SQRT((T$40^2)+((S$40^2)/(S$8^2))*(T$8^2)))/S$8","v":0.9090810652966278},{"$f":"U40/U8","v":2},{"$f":"(SQRT((V$40^2)+((U$40^2)/(U$8^2))*(V$8^2)))/U$8","v":2.5344843876242584},{"$f":"W40/W8","v":2.7180616740088106},{"$f":"(SQRT((X$40^2)+((W$40^2)/(W$8^2))*(X$8^2)))/W$8","v":1.282583050466634},{"$f":"Y40/Y8","v":3.1114206128133706},{"$f":"(SQRT((Z$40^2)+((Y$40^2)/(Y$8^2))*(Z$8^2)))/Y$8","v":0.3558454115799215},{"$f":"AA40/AA8","v":2.7317647058823531},{"$f":"(SQRT((AB$40^2)+((AA$40^2)/(AA$8^2))*(AB$8^2)))/AA$8","v":0.25986078813729491},{"$f":"AC40/AC8","v":2.6925647451963242},{"$f":"(SQRT((AD$40^2)+((AC$40^2)/(AC$8^2))*(AD$8^2)))/AC$8","v":0.37398945703257819},{"$f":"AE40/AE8","v":2.7338129496402876},{"$f":"(SQRT((AF$40^2)+((AE$40^2)/(AE$8^2))*(AF$8^2)))/AE$8","v":0.60438909029361987},{"$f":"AG40/AG8","v":2.8595238095238096},{"$f":"(SQRT((AH$40^2)+((AG$40^2)/(AG$8^2))*(AH$8^2)))/AG$8","v":0.44683647290241474},{"$f":"AI40/AI8","v":2.8733031674208145},{"$f":"(SQRT((AJ$40^2)+((AI$40^2)/(AI$8^2))*(AJ$8^2)))/AI$8","v":0.54169888403299782},{"$f":"AK40/AK8","v":2.9116607773851588},{"$f":"(SQRT((AL$40^2)+((AK$40^2)/(AK$8^2))*(AL$8^2)))/AK$8","v":0.38948038698714854},{"$f":"AM40/AM8","v":2.5287578540357663},{"$f":"(SQRT((AN$40^2)+((AM$40^2)/(AM$8^2))*(AN$8^2)))/AM$8","v":0.242787443086277}]
[null,"In nonfamily households",{"$f":"C50/C13","v":1.3473684210526315},{"$f":"(SQRT((D$50^2)+((C$50^2)/(C$13^2))*(D$13^2)))/C$13","v":0.70297912176978417},{"$f":"E50/E13","v":1.3007075471698113},{"$f":"(SQRT((F$50^2)+((E$50^2)/(E$13^2))*(F$13^2)))/E$13","v":0.44563317973551997},{"$f":"G50/G13","v":1.1333333333333333},{"$f":"(SQRT((H$50^2)+((G$50^2)/(G$13^2))*(H$13^2)))/G$13","v":0.71760155311012475},{"$f":"I50/I13","v":1.4339622641509433},{"$f":"(SQRT((J$50^2)+((I$50^2)/(I$13^2))*(J$13^2)))/I$13","v":0.94467936677418407},{"$f":"K50/K13","v":1.275414937759336},{"$f":"(SQRT((L$50^2)+((K$50^2)/(K$13^2))*(L$13^2)))/K$13","v":0.3318235062056531},{"$f":"M50/M13","v":1.2203389830508475},{"$f":"(SQRT((N$50^2)+((M$50^2)/(M$13^2))*(N$13^2)))/M$13","v":0.73719403665460503},{"$f":"O50/O13","v":1.1805555555555556},{"$f":"(SQRT((P$50^2)+((O$50^2)/(O$13^2))*(P$13^2)))/O$13","v":0.52536112050362427},{"$f":"Q50/Q13","v":1.0517241379310345},{"$f":"(SQRT((R$50^2)+((Q$50^2)/(Q$13^2))*(R$13^2)))/Q$13","v":0.38333378208159408},{"$f":"S50/S13","v":1.5238095238095237},{"$f":"(SQRT((T$50^2)+((S$50^2)/(S$13^2))*(T$13^2)))/S$13","v":1.3070688968234574},{"$f":"U50/U13","v":1.5},{"$f":"(SQRT((V$50^2)+((U$50^2)/(U$13^2))*(V$13^2)))/U$13","v":2.1810420547170666},{"$f":"W50/W13","v":1.4497354497354498},{"$f":"(SQRT((X$50^2)+((W$50^2)/(W$13^2))*(X$13^2)))/W$13","v":0.70879286745842274},{"$f":"Y50/Y13","v":1.1467181467181466},{"$f":"(SQRT((Z$50^2)+((Y$50^2)/(Y$13^2))*(Z$13^2)))/Y$13","v":0.60575949873488732},{"$f":"AA50/AA13","v":1.2469387755102042},{"$f":"(SQRT((AB$50^2)+((AA$50^2)/(AA$13^2))*(AB$13^2)))/AA$13","v":0.43416249261568357},{"$f":"AC50/AC13","v":1.1203931203931203},{"$f":"(SQRT((AD$50^2)+((AC$50^2)/(AC$13^2))*(AD$13^2)))/AC$13","v":0.39617854720365187},{"$f":"AE50/AE13","v":1.3274336283185841},{"$f":"(SQRT((AF$50^2)+((AE$50^2)/(AE$13^2))*(AF$13^2)))/AE$13","v":0.54532213119973283},{"$f":"AG50/AG13","v":1.2630434782608695},{"$f":"(SQRT((AH$50^2)+((AG$50^2)/(AG$13^2))*(AH$13^2)))/AG$13","v":0.67896687964670543},{"$f":"AI50/AI13","v":1.1846153846153846},{"$f":"(SQRT((AJ$50^2)+((AI$50^2)/(AI$13^2))*(AJ$13^2)))/AI$13","v":0.55918607413714327},{"$f":"AK50/AK13","v":1.3190883190883191},{"$f":"(SQRT((AL$50^2)+((AK$50^2)/(AK$13^2))*(AL$13^2)))/AK$13","v":0.57807401663384095},{"$f":"AM50/AM13","v":1.0612244897959184},{"$f":"(SQRT((AN$50^2)+((AM$50^2)/(AM$13^2))*(AN$13^2)))/AM$13","v":0.40282500910875219}]
[]
[]
[]
[null,"B25010. AVERAGE HOUSEHOLD SIZE OF OCCUPIED HOUSING UNITS BY TENURE"]
[null,"Universe:  OCCUPIED HOUSING UNITS"]
[null,"Data Set: 2015-2019 American Community Survey 5-Year Estimates"]
[]
[null,null,"Albany",null,"Bartlett",null,"Brookfield",null,"Chatham",null,"Conway",null,"Eaton",null,"Effingham",null,"Freedom",null,"Hale's Location",null,"Hart's Location",null,"Jackson",null,"Madison",null,"Moultonborough",null,"Ossipee",null,"Sandwich",null,"Tamworth",null,"Tuftonboro",null,"Wakefield",null,"Wolfeboro"]
[null," ","Estimate","Margin of Error","Estimate","Margin of Error","Estimate","Margin of Error","Estimate","Margin of Error","Estimate","Margin of Error","Estimate","Margin of Error","Estimate","Margin of Error","Estimate","Margin of Error","Estimate","Margin of Error","Estimate","Margin of Error","Estimate","Margin of Error","Estimate","Margin of Error","Estimate","Margin of Error","Estimate","Margin of Error","Estimate","Margin of Error","Estimate","Margin of Error","Estimate","Margin of Error","Estimate","Margin of Error","Estimate","Margin of Error"]
[null,"Average household size --"]
[null,"Total:",2.29,0.28999999999999998,1.88,0.21,2.65,0.28000000000000003,2.6,0.44,2.15,0.11,1.96,0.24,2.74,0.27,2.19,0.16,2.06,0.2,1.75,0.35,2.14,0.3,2.59,0.25,2.3199999999999998,0.15,2.06,0.17,2.2400000000000002,0.22,2.29,0.26,2.4,0.19,2.38,0.21,2.0699999999999998,0.14000000000000001]
[null,"Owner occupied",2.27,0.3,1.85,0.25,2.52,0.24,2.5299999999999998,0.46,2.2599999999999998,0.13,2.04,0.28000000000000003,2.75,0.23,2.16,0.16,2.06,0.2,1.74,0.4,1.92,0.18,2.38,0.24,2.35,0.17,2.13,0.23,2.19,0.22,2.46,0.28999999999999998,2.41,0.21,2.38,0.22,2.16,0.16]
[null,"Renter occupied",2.4300000000000002,0.71,1.96,0.51,5.43,1.84,3.45,0.88,1.91,0.28000000000000003,1.73,0.53,2.74,0.95,2.68,0.78,"-","**",1.8,0.97,2.87,1.02,3.48,0.71,2.14,0.5,1.81,0.38,2.61,0.68,1.86,0.55000000000000004,2.1800000000000002,0.53,2.4300000000000002,0.74,1.68,0.37]
[]
[]
[]
[]
[]
[]
[null,"B11001. HOUSEHOLD TYPE (INCLUDING LIVING ALONE)"]
[null,"Universe:  HOUSEHOLDS"]
[null,"Data Set: 2010-2014 American Community Survey 5-Year Estimates"]
[]
[null,null,"Albany",null,"Bartlett",null,"Brookfield",null,"Chatham",null,"Conway",null,"Eaton",null,"Effingham",null,"Freedom",null,"Hale's Location",null,"Hart's Location",null,"Jackson",null,"Madison",null,"Moultonborough",null,"Ossipee",null,"Sandwich",null,"Tamworth",null,"Tuftonboro",null,"Wakefield",null,"Wolfeboro"]
[null," ","Estimate","Margin of Error","Estimate","Margin of Error","Estimate","Margin of Error","Estimate","Margin of Error","Estimate","Margin of Error","Estimate","Margin of Error","Estimate","Margin of Error","Estimate","Margin of Error","Estimate","Margin of Error","Estimate","Margin of Error","Estimate","Margin of Error","Estimate","Margin of Error","Estimate","Margin of Error","Estimate","Margin of Error","Estimate","Margin of Error","Estimate","Margin of Error","Estimate","Margin of Error","Estimate","Margin of Error","Estimate","Margin of Error"]
[null,"Total:",308,53,1567,184,298,64,161,35,4365,233,176,33,553,70,532,66,67,21,26,14,444,91,1133,93,1762,94,1761,183,645,87,1512,148,975,121,2260,207,2734,204]
[null,"Family households:",227,56,707,121,244,59,99,29,2972,223,110,24,366,58,381,53,56,20,7,7,311,74,769,92,1351,90,1087,112,456,69,870,123,764,125,1592,172,1745,143]
[null,"Married-couple family",200,49,543,127,212,57,77,26,2323,224,104,25,270,56,312,48,56,20,5,6,273,71,650,92,1268,105,896,121,374,59,671,128,578,102,1378,195,1570,158]
[null,"Other family:",27,25,164,100,32,19,22,13,649,187,6,5,96,30,69,29,0,11,2,4,38,32,119,56,83,45,191,107,82,45,199,106,186,83,214,136,175,99]
[null,"Male householder, no spouse present",0,11,46,66,14,14,8,6,236,121,3,3,47,21,38,26,0,11,2,4,0,11,39,30,23,26,71,55,45,37,72,77,34,32,121,107,63,59]
[null,"Female householder, no spouse present",27,25,118,75,18,13,14,12,413,154,3,4,49,23,31,17,0,11,0,11,38,32,80,45,60,42,120,92,37,23,127,84,152,79,93,75,112,76]
[null,"Nonfamily households:",81,28,860,261,54,20,62,21,1393,257,66,24,187,52,151,44,11,9,19,14,133,55,364,121,411,103,674,211,189,53,642,194,211,65,668,209,989,240]
[null,"Householder living alone",66,26,768,250,37,17,35,14,1048,231,61,24,121,41,134,41,7,7,17,14,93,41,274,100,354,108,542,184,147,38,548,181,172,57,590,212,756,252]
[null,"Householder not living alone",15,12,92,76,17,12,27,14,345,127,5,8,66,31,17,10,4,6,2,3,40,32,90,48,57,33,132,64,42,32,94,94,39,27,78,78,233,116]
[]
[]
[]
[]
[]
[]
[]
[]
[]
[]
[]
[]
[]
[]
[]
[]
[]
[null,"B11002. HOUSEHOLD TYPE BY RELATIVES AND NONRELATIVES FOR POPULATION IN HOUSEHOLDS "]
[null,"Universe:  POPULATION IN HOUSEHOLDS"]
[null,"Data Set: 2010-2014 American Community Survey 5-Year Estimates"]
[]
[null,null,"Albany",null,"Bartlett",null,"Brookfield",null,"Chatham",null,"Conway",null,"Eaton",null,"Effingham",null,"Freedom",null,"Hale's Location",null,"Hart's Location",null,"Jackson",null,"Madison",null,"Moultonborough",null,"Ossipee",null,"Sandwich",null,"Tamworth",null,"Tuftonboro",null,"Wakefield",null,"Wolfeboro"]
[null," ","Estimate","Margin of Error","Estimate","Margin of Error","Estimate","Margin of Error","Estimate","Margin of Error","Estimate","Margin of Error","Estimate","Margin of Error","Estimate","Margin of Error","Estimate","Margin of Error","Estimate","Margin of Error","Estimate","Margin of Error","Estimate","Margin of Error","Estimate","Margin of Error","Estimate","Margin of Error","Estimate","Margin of Error","Estimate","Margin of Error","Estimate","Margin of Error","Estimate","Margin of Error","Estimate","Margin of Error","Estimate","Margin of Error"]
[null,"Total:",800,176,2745,21,786,200,393,96,9868,90,347,65,1336,165,1195,152,137,41,41,24,1032,242,2489,20,4019,28,4109,109,1484,191,2842,21,2254,298,5046,37,6135,57]
[null,"In family households:",706,183,1808,282,710,199,291,87,8006,419,272,62,1066,177,1027,149,120,40,21,22,851,219,2033,160,3542,121,3261,266,1251,181,2110,241,1993,316,4282,259,4916,292]
[null,"In married-couple family:",619,168,1412,329,606,184,230,73,6336,569,252,61,758,151,802,130,120,40,12,15,742,213,1713,220,3240,234,2628,353,1022,163,1677,270,1491,263,3752,420,4337,385]
[null,"Relatives",616,167,1412,329,604,184,230,73,6320,570,252,61,758,151,802,130,120,40,12,15,737,209,1711,221,3240,234,2600,353,1018,163,1677,270,1483,265,3726,424,4332,386]
[null,"Nonrelatives",3,4,0,11,2,4,0,11,16,20,0,11,0,11,0,11,0,11,0,11,5,10,2,5,0,11,28,24,4,5,0,11,8,15,26,34,5,9]
[null,"In male householder, no spouse present, family:",0,11,124,178,39,41,19,14,715,389,9,12,111,46,126,87,0,11,9,16,0,11,111,107,56,66,234,194,115,94,166,162,103,97,284,257,240,238]
[null,"Relatives",0,11,84,117,37,39,16,12,585,296,7,8,97,40,112,74,0,11,5,10,0,11,90,81,48,55,206,182,93,66,146,145,96,95,246,213,225,235]
[null,"Nonrelatives",0,11,40,62,2,5,3,4,130,121,2,5,14,14,14,14,0,11,4,7,0,11,21,28,8,13,28,35,22,32,20,29,7,11,38,61,15,24]
[null,"In female householder, no spouse present, family:",87,88,272,181,65,49,42,43,955,326,11,15,197,116,99,55,0,11,0,11,109,90,209,114,246,218,399,298,114,80,267,177,399,215,246,203,339,229]
[null,"Relatives",81,85,272,181,65,49,42,43,916,313,11,15,182,100,89,49,0,11,0,11,73,52,194,104,235,212,374,275,102,69,251,171,383,211,227,190,322,224]
[null,"Nonrelatives",6,9,0,11,0,11,0,11,39,38,0,11,15,18,10,10,0,11,0,11,36,41,15,18,11,21,25,38,12,13,16,24,16,28,19,26,17,27]
[null,"In nonfamily households",94,33,937,282,76,32,102,47,1862,397,75,26,270,76,168,47,17,11,20,13,181,87,456,160,477,116,848,252,233,77,732,240,261,79,764,257,1219,286]
[]
[]
[]
[null,"Calculated Average  Household Size by Household Type"]
[null,"Universe:  POPULATION IN HOUSEHOLDS"]
[null,"Data Set: 2010-2014 American Community Survey 5-Year Estimates"]
[]
[null,null,"Albany",null,"Bartlett",null,"Brookfield",null,"Chatham",null,"Conway",null,"Eaton",null,"Effingham",null,"Freedom",null,"Hale's Location",null,"Hart's Location",null,"Jackson",null,"Madison",null,"Moultonborough",null,"Ossipee",null,"Sandwich",null,"Tamworth",null,"Tuftonboro",null,"Wakefield",null,"Wolfeboro"]
[null," ","Estimate","Margin of Error","Estimate","Margin of Error","Estimate","Margin of Error","Estimate","Margin of Error","Estimate","Margin of Error","Estimate","Margin of Error","Estimate","Margin of Error","Estimate","Margin of Error","Estimate","Margin of Error","Estimate","Margin of Error","Estimate","Margin of Error","Estimate","Margin of Error","Estimate","Margin of Error","Estimate","Margin of Error","Estimate","Margin of Error","Estimate","Margin of Error","Estimate","Margin of Error","Estimate","Margin of Error","Estimate","Margin of Error"]
[null,"Total:",{"$f":"C120/C88","v":2.5974025974025974},{"$f":"D167","v":0},{"$f":"E120/E88","v":1.751754945756222},{"$f":"(SQRT((F$39^2)+((E$39^2)/(E$7^2))*(F$7^2)))/E$7","v":0.20811292727773339},{"$f":"G120/G88","v":2.6375838926174495},{"$f":"(SQRT((H$39^2)+((G$39^2)/(G$7^2))*(H$7^2)))/G$7","v":0.8248961759611777},{"$f":"I120/I88","v":2.4409937888198758},{"$f":"(SQRT((J$39^2)+((I$39^2)/(I$7^2))*(J$7^2)))/I$7","v":1.1597599824603859},{"$f":"K120/K88","v":2.2607101947308132},{"$f":"(SQRT((L$39^2)+((K$39^2)/(K$7^2))*(L$7^2)))/K$7","v":0.11269539567973103},{"$f":"M120/M88","v":1.9715909090909092},{"$f":"(SQRT((N$39^2)+((M$39^2)/(M$7^2))*(N$7^2)))/M$7","v":0.77847422386658238},{"$f":"O120/O88","v":2.4159132007233275},{"$f":"(SQRT((P$39^2)+((O$39^2)/(O$7^2))*(P$7^2)))/O$7","v":0.54289621187290282},{"$f":"Q120/Q88","v":2.2462406015037595},{"$f":"(SQRT((R$39^2)+((Q$39^2)/(Q$7^2))*(R$7^2)))/Q$7","v":0.41228586453513211},{"$f":"S120/S88","v":2.044776119402985},{"$f":"(SQRT((T$39^2)+((S$39^2)/(S$7^2))*(T$7^2)))/S$7","v":0.66852989392928175},{"$f":"U120/U88","v":1.5769230769230769},{"$f":"(SQRT((V$39^2)+((U$39^2)/(U$7^2))*(V$7^2)))/U$7","v":1.7098570440569327},{"$f":"W120/W88","v":2.3243243243243241},{"$f":"(SQRT((X$39^2)+((W$39^2)/(W$7^2))*(X$7^2)))/W$7","v":0.71110385135933241},{"$f":"Y120/Y88","v":2.1968225948808473},{"$f":"(SQRT((Z$39^2)+((Y$39^2)/(Y$7^2))*(Z$7^2)))/Y$7","v":0.25066419012765045},{"$f":"AA120/AA88","v":2.2809307604994324},{"$f":"(SQRT((AB$39^2)+((AA$39^2)/(AA$7^2))*(AB$7^2)))/AA$7","v":0.1558272010771618},{"$f":"AC120/AC88","v":2.3333333333333335},{"$f":"(SQRT((AD$39^2)+((AC$39^2)/(AC$7^2))*(AD$7^2)))/AC$7","v":0.17849194777525043},{"$f":"AE120/AE88","v":2.3007751937984495},{"$f":"(SQRT((AF$39^2)+((AE$39^2)/(AE$7^2))*(AF$7^2)))/AE$7","v":0.39743403945338796},{"$f":"AG120/AG88","v":1.8796296296296295},{"$f":"(SQRT((AH$39^2)+((AG$39^2)/(AG$7^2))*(AH$7^2)))/AG$7","v":0.25987935096208703},{"$f":"AI120/AI88","v":2.3117948717948718},{"$f":"(SQRT((AJ$39^2)+((AI$39^2)/(AI$7^2))*(AJ$7^2)))/AI$7","v":0.35671050305160568},{"$f":"AK120/AK88","v":2.2327433628318585},{"$f":"(SQRT((AL$39^2)+((AK$39^2)/(AK$7^2))*(AL$7^2)))/AK$7","v":0.20848750566523896},{"$f":"AM120/AM88","v":2.2439648866130213},{"$f":"(SQRT((AN$39^2)+((AM$39^2)/(AM$7^2))*(AN$7^2)))/AM$7","v":0.14302334879744136}]
[null,"In family households:",{"$f":"C121/C89","v":3.1101321585903086},{"$f":"(SQRT((D$40^2)+((C$40^2)/(C$8^2))*(D$8^2)))/C$8","v":0.90594214933277883},{"$f":"E121/E89","v":2.5572842998585572},{"$f":"(SQRT((F$40^2)+((E$40^2)/(E$8^2))*(F$8^2)))/E$8","v":0.67703294629133859},{"$f":"G121/G89","v":2.9098360655737703},{"$f":"(SQRT((H$40^2)+((G$40^2)/(G$8^2))*(H$8^2)))/G$8","v":0.99173533782873402},{"$f":"I121/I89","v":2.9393939393939394},{"$f":"(SQRT((J$40^2)+((I$40^2)/(I$8^2))*(J$8^2)))/I$8","v":1.7822585678863914},{"$f":"K121/K89","v":2.6938088829071334},{"$f":"(SQRT((L$40^2)+((K$40^2)/(K$8^2))*(L$8^2)))/K$8","v":0.29135782499484603},{"$f":"M121/M89","v":2.4727272727272727},{"$f":"(SQRT((N$40^2)+((M$40^2)/(M$8^2))*(N$8^2)))/M$8","v":1.2924607765111329},{"$f":"O121/O89","v":2.9125683060109289},{"$f":"(SQRT((P$40^2)+((O$40^2)/(O$8^2))*(P$8^2)))/O$8","v":0.75020033904074257},{"$f":"Q121/Q89","v":2.6955380577427821},{"$f":"(SQRT((R$40^2)+((Q$40^2)/(Q$8^2))*(R$8^2)))/Q$8","v":0.56465611476325039},{"$f":"S121/S89","v":2.1428571428571428},{"$f":"(SQRT((T$40^2)+((S$40^2)/(S$8^2))*(T$8^2)))/S$8","v":0.9090810652966278},{"$f":"U121/U89","v":3},{"$f":"(SQRT((V$40^2)+((U$40^2)/(U$8^2))*(V$8^2)))/U$8","v":2.5344843876242584},{"$f":"W121/W89","v":2.7363344051446945},{"$f":"(SQRT((X$40^2)+((W$40^2)/(W$8^2))*(X$8^2)))/W$8","v":1.282583050466634},{"$f":"Y121/Y89","v":2.6436931079323798},{"$f":"(SQRT((Z$40^2)+((Y$40^2)/(Y$8^2))*(Z$8^2)))/Y$8","v":0.3558454115799215},{"$f":"AA121/AA89","v":2.6217616580310881},{"$f":"(SQRT((AB$40^2)+((AA$40^2)/(AA$8^2))*(AB$8^2)))/AA$8","v":0.25986078813729491},{"$f":"AC121/AC89","v":3},{"$f":"(SQRT((AD$40^2)+((AC$40^2)/(AC$8^2))*(AD$8^2)))/AC$8","v":0.37398945703257819},{"$f":"AE121/AE89","v":2.7434210526315788},{"$f":"(SQRT((AF$40^2)+((AE$40^2)/(AE$8^2))*(AF$8^2)))/AE$8","v":0.60438909029361987},{"$f":"AG121/AG89","v":2.4252873563218391},{"$f":"(SQRT((AH$40^2)+((AG$40^2)/(AG$8^2))*(AH$8^2)))/AG$8","v":0.44683647290241474},{"$f":"AI121/AI89","v":2.6086387434554972},{"$f":"(SQRT((AJ$40^2)+((AI$40^2)/(AI$8^2))*(AJ$8^2)))/AI$8","v":0.54169888403299782},{"$f":"AK121/AK89","v":2.6896984924623117},{"$f":"(SQRT((AL$40^2)+((AK$40^2)/(AK$8^2))*(AL$8^2)))/AK$8","v":0.38948038698714854},{"$f":"AM121/AM89","v":2.8171919770773637},{"$f":"(SQRT((AN$40^2)+((AM$40^2)/(AM$8^2))*(AN$8^2)))/AM$8","v":0.242787443086277}]
[null,"In nonfamily households",{"$f":"C131/C94","v":1.1604938271604939},{"$f":"(SQRT((D$50^2)+((C$50^2)/(C$13^2))*(D$13^2)))/C$13","v":0.70297912176978417},{"$f":"E131/E94","v":1.0895348837209302},{"$f":"(SQRT((F$50^2)+((E$50^2)/(E$13^2))*(F$13^2)))/E$13","v":0.44563317973551997},{"$f":"G131/G94","v":1.4074074074074074},{"$f":"(SQRT((H$50^2)+((G$50^2)/(G$13^2))*(H$13^2)))/G$13","v":0.71760155311012475},{"$f":"I131/I94","v":1.6451612903225807},{"$f":"(SQRT((J$50^2)+((I$50^2)/(I$13^2))*(J$13^2)))/I$13","v":0.94467936677418407},{"$f":"K131/K94","v":1.3366834170854272},{"$f":"(SQRT((L$50^2)+((K$50^2)/(K$13^2))*(L$13^2)))/K$13","v":0.3318235062056531},{"$f":"M131/M94","v":1.1363636363636365},{"$f":"(SQRT((N$50^2)+((M$50^2)/(M$13^2))*(N$13^2)))/M$13","v":0.73719403665460503},{"$f":"O131/O94","v":1.4438502673796791},{"$f":"(SQRT((P$50^2)+((O$50^2)/(O$13^2))*(P$13^2)))/O$13","v":0.52536112050362427},{"$f":"Q131/Q94","v":1.1125827814569536},{"$f":"(SQRT((R$50^2)+((Q$50^2)/(Q$13^2))*(R$13^2)))/Q$13","v":0.38333378208159408},{"$f":"S131/S94","v":1.5454545454545454},{"$f":"(SQRT((T$50^2)+((S$50^2)/(S$13^2))*(T$13^2)))/S$13","v":1.3070688968234574},{"$f":"U131/U94","v":1.0526315789473684},{"$f":"(SQRT((V$50^2)+((U$50^2)/(U$13^2))*(V$13^2)))/U$13","v":2.1810420547170666},{"$f":"W131/W94","v":1.3609022556390977},{"$f":"(SQRT((X$50^2)+((W$50^2)/(W$13^2))*(X$13^2)))/W$13","v":0.70879286745842274},{"$f":"Y131/Y94","v":1.2527472527472527},{"$f":"(SQRT((Z$50^2)+((Y$50^2)/(Y$13^2))*(Z$13^2)))/Y$13","v":0.60575949873488732},{"$f":"AA131/AA94","v":1.1605839416058394},{"$f":"(SQRT((AB$50^2)+((AA$50^2)/(AA$13^2))*(AB$13^2)))/AA$13","v":0.43416249261568357},{"$f":"AC131/AC94","v":1.258160237388724},{"$f":"(SQRT((AD$50^2)+((AC$50^2)/(AC$13^2))*(AD$13^2)))/AC$13","v":0.39617854720365187},{"$f":"AE131/AE94","v":1.2328042328042328},{"$f":"(SQRT((AF$50^2)+((AE$50^2)/(AE$13^2))*(AF$13^2)))/AE$13","v":0.54532213119973283},{"$f":"AG131/AG94","v":1.1401869158878504},{"$f":"(SQRT((AH$50^2)+((AG$50^2)/(AG$13^2))*(AH$13^2)))/AG$13","v":0.67896687964670543},{"$f":"AI131/AI94","v":1.2369668246445498},{"$f":"(SQRT((AJ$50^2)+((AI$50^2)/(AI$13^2))*(AJ$13^2)))/AI$13","v":0.55918607413714327},{"$f":"AK131/AK94","v":1.1437125748502994},{"$f":"(SQRT((AL$50^2)+((AK$50^2)/(AK$13^2))*(AL$13^2)))/AK$13","v":0.57807401663384095},{"$f":"AM131/AM94","v":1.2325581395348837},{"$f":"(SQRT((AN$50^2)+((AM$50^2)/(AM$13^2))*(AN$13^2)))/AM$13","v":0.40282500910875219}]
[]
[]
[]
[null,"B25010. AVERAGE HOUSEHOLD SIZE OF OCCUPIED HOUSING UNITS BY TENURE"]
[null,"Universe:  OCCUPIED HOUSING UNITS"]
[null,"Data Set: 2010-2014 American Community Survey 5-Year Estimates"]
[]
[null,null,"Albany",null,"Bartlett",null,"Brookfield",null,"Chatham",null,"Conway",null,"Eaton",null,"Effingham",null,"Freedom",null,"Hale's Location",null,"Hart's Location",null,"Jackson",null,"Madison",null,"Moultonborough",null,"Ossipee",null,"Sandwich",null,"Tamworth",null,"Tuftonboro",null,"Wakefield",null,"Wolfeboro"]
[null," ","Estimate","Margin of Error","Estimate","Margin of Error","Estimate","Margin of Error","Estimate","Margin of Error","Estimate","Margin of Error","Estimate","Margin of Error","Estimate","Margin of Error","Estimate","Margin of Error","Estimate","Margin of Error","Estimate","Margin of Error","Estimate","Margin of Error","Estimate","Margin of Error","Estimate","Margin of Error","Estimate","Margin of Error","Estimate","Margin of Error","Estimate","Margin of Error","Estimate","Margin of Error","Estimate","Margin of Error","Estimate","Margin of Error"]
[null,"Average household size --"]
[null,"Total:",2.6,0.32,1.75,0.2,2.64,0.34,2.44,0.31,2.2599999999999998,0.12,1.97,0.2,2.42,0.27,2.25,0.19,2.04,0.22,1.58,0.66,2.3199999999999998,0.31,2.2000000000000002,0.18,2.2799999999999998,0.12,2.33,0.24,2.2999999999999998,0.2,1.88,0.18,2.31,0.18,2.23,0.21,2.2400000000000002,0.16]
[null,"Owner occupied",2.65,0.36,1.87,0.23,2.62,0.35,2.4300000000000002,0.32,2.46,0.14000000000000001,2.06,0.24,2.4700000000000002,0.28000000000000003,2.09,0.17,2.04,0.22,1.4,0.77,2.44,0.36,2.19,0.2,2.21,0.14000000000000001,2.16,0.22,2.2400000000000002,0.21,2.0699999999999998,0.22,2.29,0.2,2.2200000000000002,0.22,2.2999999999999998,0.15]
[null,"Renter occupied",2.31,0.64,1.42,0.26,3.11,1.39,2.48,0.79,1.84,0.22,1.53,0.42,2.13,0.32,3.01,0.79,"-","**",1.69,0.89,1.83,0.56999999999999995,2.2400000000000002,0.48,2.94,0.86,3.25,0.72,2.5099999999999998,0.5,1.45,0.21,2.41,0.44,2.34,0.56999999999999995,2.02,0.56999999999999995]
[]
[]
[]
[]
[]
[]
[null,"B11001. HOUSEHOLD TYPE (INCLUDING LIVING ALONE)"]
[null,"Universe:  HOUSEHOLDS"]
[null,"Data Set: 2005-2009 American Community Survey 5-Year Estimates"]
[]
[null,null,"Albany",null,"Bartlett",null,"Brookfield",null,"Chatham",null,"Conway",null,"Eaton",null,"Effingham",null,"Freedom",null,"Hale's Location",null,"Hart's Location",null,"Jackson",null,"Madison",null,"Moultonborough",null,"Ossipee",null,"Sandwich",null,"Tamworth",null,"Tuftonboro",null,"Wakefield",null,"Wolfeboro"]
[null," ","Estimate","Margin of Error","Estimate","Margin of Error","Estimate","Margin of Error","Estimate","Margin of Error","Estimate","Margin of Error","Estimate","Margin of Error","Estimate","Margin of Error","Estimate","Margin of Error","Estimate","Margin of Error","Estimate","Margin of Error","Estimate","Margin of Error","Estimate","Margin of Error","Estimate","Margin of Error","Estimate","Margin of Error","Estimate","Margin of Error","Estimate","Margin of Error","Estimate","Margin of Error","Estimate","Margin of Error","Estimate","Margin of Error"]
[null,"Total:",304,67,1203,117,258,52,118,37,3783,258,151,31,423,63,552,70,59,20,37,21,361,77,830,90,2003,119,1842,183,598,61,1021,117,929,115,1773,198,2790,210]
[null,"Family households:",245,64,730,96,159,46,108,37,2113,190,117,29,251,52,380,62,49,20,19,20,306,77,659,87,1518,134,1110,139,360,47,624,107,693,97,1196,118,1570,178]
[null,"Married-couple family",156,48,622,105,134,43,96,34,1667,203,94,27,227,46,339,58,49,20,19,20,294,75,448,70,1355,162,855,127,295,45,453,93,563,90,862,158,1369,199]
[null,"Other family:",89,42,108,59,25,29,12,12,446,140,23,15,24,20,41,27,0,114,0,114,12,14,211,65,163,84,255,116,65,21,171,71,130,59,334,128,201,120]
[null,"Male householder, no spouse present",11,15,39,35,21,28,7,6,168,101,12,10,0,114,15,20,0,114,0,114,0,114,50,40,79,46,127,99,16,11,68,54,60,47,180,116,39,37]
[null,"Female householder, no spouse present",78,40,69,45,4,6,5,11,278,119,11,11,24,20,26,18,0,114,0,114,12,14,161,51,84,67,128,88,49,19,103,56,70,38,154,76,162,110]
[null,"Nonfamily households:",59,27,473,135,99,41,10,8,1670,339,34,17,172,48,172,48,10,10,18,15,55,28,171,56,485,142,732,192,238,56,397,89,236,75,577,172,1220,263]
[null,"Householder living alone",37,21,336,113,81,40,5,6,1352,312,31,16,147,47,151,47,10,10,18,15,44,27,127,48,288,114,626,182,196,51,343,84,188,69,549,166,965,217]
[null,"Householder not living alone",22,15,137,71,18,16,5,7,318,110,3,6,25,15,21,17,0,114,0,114,11,13,44,31,197,104,106,66,42,25,54,38,48,26,28,33,255,176]
[]
[]
[]
[null,"Calculated Average  Household Size by Household Type"]
[null,"Universe:  POPULATION IN HOUSEHOLDS"]
[null,"Data Set: 2005-2009 American Community Survey 5-Year Estimates"]
[]
[null,null,"Albany",null,"Bartlett",null,"Brookfield",null,"Chatham",null,"Conway",null,"Eaton",null,"Effingham",null,"Freedom",null,"Hale's Location",null,"Hart's Location",null,"Jackson",null,"Madison",null,"Moultonborough",null,"Ossipee",null,"Sandwich",null,"Tamworth",null,"Tuftonboro",null,"Wakefield",null,"Wolfeboro"]
[null," ","Estimate","Margin of Error","Estimate","Margin of Error","Estimate","Margin of Error","Estimate","Margin of Error","Estimate","Margin of Error","Estimate","Margin of Error","Estimate","Margin of Error","Estimate","Margin of Error","Estimate","Margin of Error","Estimate","Margin of Error","Estimate","Margin of Error","Estimate","Margin of Error","Estimate","Margin of Error","Estimate","Margin of Error","Estimate","Margin of Error","Estimate","Margin of Error","Estimate","Margin of Error","Estimate","Margin of Error","Estimate","Margin of Error"]
[null,"Total:",3.1776315789473686,0.43,2.4405652535328346,0.23800274131582388,2.7790697674418605,1.0202240336839665,3.3050847457627119,1.5002247295714062,2.3835580227332804,0.16790391996309892,2.5231788079470197,0.77971914968368172,2.4184397163120566,0.55570687680750319,2.1340579710144927,0.39920728518856546,2.1864406779661016,1.0880787164112429,2.189189189189189,2.021526635283645,2.5650969529085872,0.79055266685100301,2.802409638554217,0.49374421283535352,2.4877683474787817,0.14828540545414962,2.491313789359392,0.2645366041521392,2.3377926421404682,0.3522093498326736,2.474045053868756,0.43288784503984101,2.5812701829924651,0.4198429366182812,2.6768189509306262,0.29908782768500602,2.3612903225806452,0.17783594574218378]
[null,"In family households:",3.5346938775510206,1.4097694068241793,3.1315068493150684,0.50709210163943452,3.7735849056603774,1.8122783050850015,3.4629629629629628,1.6966996222409729,3.163748225272125,0.36228778831717456,2.9401709401709404,1.0472828155473286,3.2430278884462149,1.0002665444494789,2.5789473684210527,0.5934039959609978,2.4285714285714284,1.3793538729483952,3.3157894736842106,4.7781195473362885,2.8104575163398691,0.98091066372492719,3.1745068285280729,0.64142866364409423,2.8076416337285903,0.29504389814472159,3.3603603603603602,0.48248029494860284,3.0611111111111109,0.59563883336157419,3.3205128205128207,0.79364864975014093,3.0043290043290045,0.55499600001978322,3.4623745819397995,0.37499458202240443,3.2312101910828024,0.45212152221947688]
[null,"In nonfamily households",1.6949152542372881,1.1868311460596725,1.3742071881606766,0.60037041333113439,1.1818181818181819,0.68893354036448251,1.6,1.8243903091169937,1.3964071856287426,0.40156188303523027,1.088235294117647,0.77996650624565411,1.2151162790697674,0.48234351647436091,1.1511627906976745,0.46154900091777068,1,1.4142135623730951,1,1.1785113019775793,1.2,0.89534332488799373,1.368421052631579,0.6823937215442375,1.4865979381443299,0.66212829352094793,1.1734972677595628,0.43693270500450498,1.2436974789915967,0.43004592295147837,1.1435768261964736,0.37564293465165183,1.3389830508474576,0.59753162945980154,1.048526863084922,0.44776434474149573,1.2418032786885247,0.43286823329186458]
[]
[]
[]
[null,"B25010. AVERAGE HOUSEHOLD SIZE OF OCCUPIED HOUSING UNITS BY TENURE"]
[null,"Universe:  OCCUPIED HOUSING UNITS"]
[null,"Data Set: 2005-2009 American Community Survey 5-Year Estimates"]
[]
[null,null,"Albany",null,"Bartlett",null,"Brookfield",null,"Chatham",null,"Conway",null,"Eaton",null,"Effingham",null,"Freedom",null,"Hale's Location",null,"Hart's Location",null,"Jackson",null,"Madison",null,"Moultonborough",null,"Ossipee",null,"Sandwich",null,"Tamworth",null,"Tuftonboro",null,"Wakefield",null,"Wolfeboro"]
[null," ","Estimate","Margin of Error","Estimate","Margin of Error","Estimate","Margin of Error","Estimate","Margin of Error","Estimate","Margin of Error","Estimate","Margin of Error","Estimate","Margin of Error","Estimate","Margin of Error","Estimate","Margin of Error","Estimate","Margin of Error","Estimate","Margin of Error","Estimate","Margin of Error","Estimate","Margin of Error","Estimate","Margin of Error","Estimate","Margin of Error","Estimate","Margin of Error","Estimate","Margin of Error","Estimate","Margin of Error","Estimate","Margin of Error"]
[null,"Average household size --"]
[null,"Total:",3.18,0.43,2.44,0.24,2.78,0.68,3.31,0.52,2.38,0.16,2.52,0.32,2.42,0.31,2.13,0.17,"-","-","-","-",2.57,0.35,2.8,0.27,2.4900000000000002,0.15,2.4900000000000002,0.21,2.34,0.24,2.4700000000000002,0.25,2.58,0.27,2.68,0.3,2.36,0.18]
[null,"Owner occupied",3.25,0.45,2.64,0.31,2.82,0.73,3.07,0.5,2.58,0.17,2.5299999999999998,0.35,2.5099999999999998,0.33,2.1800000000000002,0.17,"-","-","-","-",2.64,0.4,2.77,0.28999999999999998,2.4900000000000002,0.15,2.65,0.23,2.37,0.24,2.48,0.28000000000000003,2.68,0.28000000000000003,2.64,0.32,2.65,0.23]
[null,"Renter occupied",2.65,0.79,1.84,0.4,2.2799999999999998,0.92,4.93,1.82,2.04,0.28999999999999998,2.46,1.29,1.62,0.49,1.43,0.68,"-","-","-","-",2.02,0.48,2.97,0.89,2.39,0.82,1.56,0.42,2.11,0.61,2.4500000000000002,0.64,1.57,0.56999999999999995,2.96,0.86,1.47,0.21]

{"sheet":"ACS_Table_B19001","index":26,"n_rows":162,"n_cols":40,"rows_kept":162,"cut":false,"hidden":true,"merged":[]}
[null,"B19001. HOUSEHOLD INCOME IN THE PAST 12 MONTHS (IN 2019 INFLATION-ADJUSTED DOLLARS)"]
[null,"Universe:  HOUSEHOLDS",null,null,null,null,null,null,null,null,null,null,null,null,{"$f":"$B$1","v":"B19001. HOUSEHOLD INCOME IN THE PAST 12 MONTHS (IN 2019 INFLATION-ADJUSTED DOLLARS)"}]
[null,"Data Set: 2015-2019 American Community Survey 5-Year Estimates",null,null,null,null,null,null,null,null,null,null,null,null,{"$f":"$B$3","v":"Data Set: 2015-2019 American Community Survey 5-Year Estimates"}]
[]
[null,null,"Albany",null,"Bartlett",null,"Brookfield",null,"Chatham",null,"Conway",null,"Eaton",null,"Effingham",null,"Freedom",null,"Hale's Location",null,"Hart's Location",null,"Jackson",null,"Madison",null,"Moultonborough",null,"Ossipee",null,"Sandwich",null,"Tamworth",null,"Tuftonboro",null,"Wakefield",null,"Wolfeboro"]
[null," ","Estimate","Margin of Error","Estimate","Margin of Error","Estimate","Margin of Error","Estimate","Margin of Error","Estimate","Margin of Error","Estimate","Margin of Error","Estimate","Margin of Error","Estimate","Margin of Error","Estimate","Margin of Error","Estimate","Margin of Error","Estimate","Margin of Error","Estimate","Margin of Error","Estimate","Margin of Error","Estimate","Margin of Error","Estimate","Margin of Error","Estimate","Margin of Error","Estimate","Margin of Error","Estimate","Margin of Error","Estimate","Margin of Error"]
[null,"Total Households",307,58,1466,162,303,63,143,41,4632,241,135,39,594,82,611,81,89,20,24,16,416,88,977,94,1765,118,2011,164,643,81,1300,147,923,104,2117,185,3000,206]
[null,"Households With"]
[null,"Income Less than $10,000 ",12,13,64,72,5,6,6,7,356,146,5,5,11,9,26,26,2,4,0,11,19,18,11,12,54,36,105,63,7,7,65,77,30,26,79,84,49,38]
[null,"Income $10,000 to $14,999 ",22,16,0,11,8,10,4,6,241,122,9,7,23,20,12,8,0,11,0,11,0,11,50,36,37,34,162,98,20,15,93,87,52,36,43,71,165,139]
[null,"Income $15,000 to $19,999 ",18,16,71,64,5,6,2,4,117,88,3,5,22,15,12,9,2,3,4,7,11,18,35,32,82,52,106,68,6,7,94,92,30,31,54,46,124,107]
[null,"Income $20,000 to $24,999 ",3,4,20,21,2,3,5,9,246,113,4,5,35,23,16,11,2,3,5,8,6,6,51,36,65,55,164,94,27,22,17,24,12,13,152,120,148,115]
[null,"Income $25,000 to $29,999 ",29,20,95,81,6,11,9,11,207,83,5,9,20,17,19,12,3,3,1,3,18,21,37,27,78,61,124,97,9,8,202,127,84,36,13,17,178,116]
[null,"Income $30,000 to $34,999 ",13,9,156,89,15,11,12,9,238,142,6,6,31,20,19,13,0,11,0,11,0,11,30,32,0,11,136,91,17,18,113,82,10,11,91,76,367,172]
[null,"Income $35,000 to $39,999 ",4,4,60,68,12,15,2,3,121,75,5,6,32,17,40,25,5,5,0,11,18,19,7,12,58,63,23,25,32,19,0,11,23,19,51,51,65,78]
[null,"Income $40,000 to $44,999 ",34,23,119,95,0,11,3,4,103,61,2,6,15,17,24,21,3,4,4,6,48,41,38,21,49,36,126,84,20,14,53,64,42,27,60,91,103,94]
[null,"Income $45,000 to $49,999 ",5,6,120,92,7,7,3,4,112,110,12,14,12,11,23,18,0,11,0,11,22,22,32,30,71,38,133,89,31,22,0,11,26,22,130,94,184,169]
[null,"Income $50,000 to $59,999 ",14,8,118,91,18,16,9,9,473,180,8,9,55,22,71,29,9,7,0,11,23,25,79,46,167,53,153,85,91,33,46,41,99,61,262,142,108,85]
[null,"Income $60,000 to $74,999 ",25,18,68,64,30,16,30,20,581,181,27,19,59,34,62,26,14,10,2,4,75,47,134,57,299,93,251,113,46,20,221,102,139,38,295,121,197,92]
[null,"Income $75,000 to $99,999 ",37,15,258,112,60,26,17,13,823,204,21,11,128,41,120,46,15,11,8,10,21,23,213,69,272,86,266,102,117,36,116,78,140,49,343,161,325,161]
[null,"Income $100,000 to $124,999 ",27,18,73,67,49,22,4,5,567,219,11,9,59,24,89,32,9,7,0,11,68,41,86,41,161,67,92,74,62,36,89,68,71,46,243,99,277,153]
[null,"Income $125,000 to $149,999 ",42,23,132,99,37,18,8,9,146,105,8,7,18,12,35,22,2,3,0,11,31,27,83,47,85,42,92,69,46,25,26,26,44,28,71,54,194,145]
[null,"Income $150,000 to $199,999 ",16,11,51,70,29,16,6,6,142,80,2,3,47,38,8,8,5,5,0,11,21,21,28,20,88,54,69,47,41,19,113,95,63,38,100,68,348,161]
[null,"Income $200,000 or more ",6,5,61,64,20,18,23,12,159,81,7,7,27,25,35,21,18,12,0,11,35,22,63,34,199,72,9,14,71,35,52,48,58,35,130,97,168,115]
[]
[]
[]
[]
[null,"Calculated B19001. HOUSEHOLD INCOME IN THE PAST 12 MONTHS (IN 2019 INFLATION-ADJUSTED DOLLARS)"]
[null,"Universe:  HOUSEHOLDS"]
[null,"Data Set: 2015-2019 American Community Survey 5-Year Estimates"]
[null,null,"Albany",null,"Bartlett",null,"Brookfield",null,"Chatham",null,"Conway",null,"Eaton",null,"Effingham",null,"Freedom",null,"Hale's Location",null,"Hart's Location",null,"Jackson",null,"Madison",null,"Moultonborough",null,"Ossipee",null,"Sandwich",null,"Tamworth",null,"Tuftonboro",null,"Wakefield",null,"Wolfeboro"]
[null," ","Estimate","Margin of Error","Estimate","Margin of Error","Estimate","Margin of Error","Estimate","Margin of Error","Estimate","Margin of Error","Estimate","Margin of Error","Estimate","Margin of Error","Estimate","Margin of Error","Estimate","Margin of Error","Estimate","Margin of Error","Estimate","Margin of Error","Estimate","Margin of Error","Estimate","Margin of Error","Estimate","Margin of Error","Estimate","Margin of Error","Estimate","Margin of Error","Estimate","Margin of Error","Estimate","Margin of Error","Estimate","Margin of Error"]
[null,"Total Households",{"$f":"$C$7","v":307},{"$f":"$D$7","v":58},{"$f":"$E$7","v":1466},{"$f":"$F$7","v":162},{"$f":"$G$7","v":303},{"$f":"$H$7","v":63},{"$f":"$I$7","v":143},{"$f":"$J$7","v":41},{"$f":"$K$7","v":4632},{"$f":"$L$7","v":241},{"$f":"$M$7","v":135},{"$f":"$N$7","v":39},{"$f":"$O$7","v":594},{"$f":"$P$7","v":82},{"$f":"$Q$7","v":611},{"$f":"R7","v":81},89,20,24,16,416,88,{"$f":"Y7","v":977},94,1765,118,2011,164,643,81,1300,147,923,104,2117,185,3000,206]
[null,"Households With"]
[null,"Income Less than $10,000 ",{"$f":"$C$9","v":12},{"$f":"$D$9","v":13},{"$f":"$E$9","v":64},{"$f":"$F$9","v":72},{"$f":"$G$9","v":5},{"$f":"$H$9","v":6},{"$f":"$I$9","v":6},{"$f":"$J$9","v":7},{"$f":"$K$9","v":356},{"$f":"$L$9","v":146},{"$f":"$M$9","v":5},{"$f":"$N$9","v":5},{"$f":"$O$9","v":11},{"$f":"$P$9","v":9},{"$f":"$Q$9","v":26},{"$f":"R9","v":26},2,4,0,11,19,18,{"$f":"Y9","v":11},12,54,36,105,63,7,7,65,77,30,26,79,84,49,38]
[null,"Income $10,000 to $14,999 ",{"$f":"$C$10","v":22},{"$f":"$D$10","v":16},{"$f":"$E$10","v":0},{"$f":"$F$10","v":11},{"$f":"$G$10","v":8},{"$f":"$H$10","v":10},{"$f":"$I$10","v":4},{"$f":"$J$10","v":6},{"$f":"$K$10","v":241},{"$f":"$L$10","v":122},{"$f":"$M$10","v":9},{"$f":"$N$10","v":7},{"$f":"$O$10","v":23},{"$f":"$P$10","v":20},{"$f":"$Q$10","v":12},8,0,11,0,11,0,11,{"$f":"Y10","v":50},36,37,34,162,98,20,15,93,87,52,36,43,71,165,139]
[null,"Income $15,000 to $24,999 ",{"$f":"$C$11+$C$12","v":21},{"$f":"SQRT(($D$11^2)+($D$12^2))","v":16.492422502470642},{"$f":"$E$11+$E$12","v":91},{"$f":"SQRT(($F$11^2)+($F$12^2))","v":67.357256476195644},{"$f":"$G$11+$G$12","v":7},{"$f":"SQRT(($H$11^2)+($H$12^2))","v":6.7082039324993694},{"$f":"$I$11+$I$12","v":7},{"$f":"SQRT(($J$11^2)+($J$12^2))","v":9.8488578017961039},{"$f":"$K$11+$K$12","v":363},{"$f":"SQRT(($L$11^2)+($L$12^2))","v":143.22360140703069},{"$f":"$M$11+$M$12","v":7},{"$f":"SQRT(($N$11^2)+($N$12^2))","v":7.0710678118654755},{"$f":"$O$11+$O$12","v":57},{"$f":"SQRT(($P$11^2)+($P$12^2))","v":27.459060435491963},{"$f":"Q11+Q12","v":28},{"$f":"SQRT((R11^2)+(R12^2))","v":14.212670403551895},{"$f":"S11+S12","v":4},{"$f":"SQRT((T11^2)+(T12^2))","v":4.2426406871192848},{"$f":"U11+U12","v":9},{"$f":"SQRT((V11^2)+(V12^2))","v":10.63014581273465},{"$f":"W11+W12","v":17},{"$f":"SQRT((X11^2)+(X12^2))","v":18.973665961010276},{"$f":"Y11+Y12","v":86},{"$f":"SQRT((Z11^2)+(Z12^2))","v":48.166378315169183},{"$f":"AA11+AA12","v":147},{"$f":"SQRT((AB11^2)+(AB12^2))","v":75.690157880665041},{"$f":"AC11+AC12","v":270},{"$f":"SQRT((AD11^2)+(AD12^2))","v":116.01724009818541},{"$f":"AE11+AE12","v":33},{"$f":"SQRT((AF11^2)+(AF12^2))","v":23.086792761230392},{"$f":"AG11+AG12","v":111},{"$f":"SQRT((AH11^2)+(AH12^2))","v":95.078914592037705},{"$f":"AI11+AI12","v":42},{"$f":"SQRT((AJ11^2)+(AJ12^2))","v":33.61547262794322},{"$f":"AK11+AK12","v":206},{"$f":"SQRT((AL11^2)+(AL12^2))","v":128.51459061133875},{"$f":"AM11+AM12","v":272},{"$f":"SQRT((AN11^2)+(AN12^2))","v":157.07959765672945}]
[null,"Income $25,000 to $34,999 ",{"$f":"$C$13+$C$14","v":42},{"$f":"SQRT(($D$13^2)+($D$14^2))","v":21.931712199461309},{"$f":"$E$13+$E$14","v":251},{"$f":"SQRT(($F$13^2)+($F$14^2))","v":120.34118164618461},{"$f":"$G$13+$G$14","v":21},{"$f":"SQRT(($H$13^2)+($H$14^2))","v":15.556349186104045},{"$f":"$I$13+$I$14","v":21},{"$f":"SQRT(($J$13^2)+($J$14^2))","v":14.212670403551895},{"$f":"$K$13+$K$14","v":445},{"$f":"SQRT(($L$13^2)+($L$14^2))","v":164.47796204963143},{"$f":"$M$13+$M$14","v":11},{"$f":"SQRT(($N$13^2)+($N$14^2))","v":10.816653826391969},{"$f":"$O$13+$O$14","v":51},{"$f":"SQRT(($P$13^2)+($P$14^2))","v":26.248809496813376},{"$f":"Q13+Q14","v":38},{"$f":"SQRT((R13^2)+(R14^2))","v":17.691806012954132},{"$f":"S13+S14","v":3},{"$f":"SQRT((T13^2)+(T14^2))","v":11.401754250991379},{"$f":"U13+U14","v":1},{"$f":"SQRT((V13^2)+(V14^2))","v":11.401754250991379},{"$f":"W13+W14","v":18},{"$f":"SQRT((X13^2)+(X14^2))","v":23.706539182259394},{"$f":"Y13+Y14","v":67},{"$f":"SQRT((Z13^2)+(Z14^2))","v":41.868842830916641},{"$f":"AA13+AA14","v":78},{"$f":"SQRT((AB13^2)+(AB14^2))","v":61.98386886924694},{"$f":"AC13+AC14","v":260},{"$f":"SQRT((AD13^2)+(AD14^2))","v":133.00375934536586},{"$f":"AE13+AE14","v":26},{"$f":"SQRT((AF13^2)+(AF14^2))","v":19.697715603592208},{"$f":"AG13+AG14","v":315},{"$f":"SQRT((AH13^2)+(AH14^2))","v":151.17208737065187},{"$f":"AI13+AI14","v":94},{"$f":"SQRT((AJ13^2)+(AJ14^2))","v":37.643060449437421},{"$f":"AK13+AK14","v":104},{"$f":"SQRT((AL13^2)+(AL14^2))","v":77.878109889750149},{"$f":"AM13+AM14","v":545},{"$f":"SQRT((AN13^2)+(AN14^2))","v":207.46083967823904}]
[null,"Income $35,000 to $49,999 ",{"$f":"$C$15+$C$16+$C$17","v":43},{"$f":"SQRT(($D$15^2)+($D$16^2)+($D$17^2))","v":24.103941586387901},{"$f":"$E$15+$E$16+$E$17","v":299},{"$f":"SQRT(($F$15^2)+($F$16^2)+($F$17^2))","v":148.70440477672474},{"$f":"$G$15+$G$16+$G$17","v":19},{"$f":"SQRT(($H$15^2)+($H$16^2)+($H$17^2))","v":19.874606914351791},{"$f":"$I$15+$I$16+$I$17","v":8},{"$f":"SQRT(($J$15^2)+($J$16^2)+($J$17^2))","v":6.4031242374328485},{"$f":"$K$15+$K$16+$K$17","v":336},{"$f":"SQRT(($L$15^2)+($L$16^2)+($L$17^2))","v":146.44452874723589},{"$f":"$M$15+$M$16+$M$17","v":19},{"$f":"SQRT(($N$15^2)+($N$16^2)+($N$17^2))","v":16.370705543744901},{"$f":"$O$15+$O$16+$O$17","v":59},{"$f":"SQRT(($P$15^2)+($P$16^2)+($P$17^2))","v":26.438608132804571},{"$f":"Q15+Q16+Q17","v":87},{"$f":"SQRT((R15^2)+(R16^2)+(R17^2))","v":37.282703764614496},{"$f":"S15+S16+S17","v":8},{"$f":"SQRT((T15^2)+(T16^2)+(T17^2))","v":12.727922061357855},{"$f":"U15+U16+U17","v":4},{"$f":"SQRT((V15^2)+(V16^2)+(V17^2))","v":16.673332000533065},{"$f":"W15+W16+W17","v":88},{"$f":"SQRT((X15^2)+(X16^2)+(X17^2))","v":50.259327492516249},{"$f":"Y15+Y16+Y17","v":77},{"$f":"SQRT((Z15^2)+(Z16^2)+(Z17^2))","v":38.535697735995385},{"$f":"AA15+AA16+AA17","v":178},{"$f":"SQRT((AB15^2)+(AB16^2)+(AB17^2))","v":81.908485518900903},{"$f":"AC15+AC16+AC17","v":282},{"$f":"SQRT((AD15^2)+(AD16^2)+(AD17^2))","v":124.90796611905904},{"$f":"AE15+AE16+AE17","v":83},{"$f":"SQRT((AF15^2)+(AF16^2)+(AF17^2))","v":32.264531609803356},{"$f":"AG15+AG16+AG17","v":53},{"$f":"SQRT((AH15^2)+(AH16^2)+(AH17^2))","v":65.863495200300449},{"$f":"AI15+AI16+AI17","v":91},{"$f":"SQRT((AJ15^2)+(AJ16^2)+(AJ17^2))","v":39.673668849754748},{"$f":"AK15+AK16+AK17","v":241},{"$f":"SQRT((AL15^2)+(AL16^2)+(AL17^2))","v":140.42079618062277},{"$f":"AM15+AM16+AM17","v":352},{"$f":"SQRT((AN15^2)+(AN16^2)+(AN17^2))","v":208.5209821576716}]
[null,"Income $50,000 to $74,999 ",{"$f":"$C$18+$C$19","v":39},{"$f":"SQRT(($D$18^2)+($D$19^2))","v":19.697715603592208},{"$f":"$E$18+$E$19","v":186},{"$f":"SQRT(($F$18^2)+($F$19^2))","v":111.25196627475849},{"$f":"$G$18+$G$19","v":48},{"$f":"SQRT(($H$18^2)+($H$19^2))","v":22.627416997969522},{"$f":"$I$18+$I$19","v":39},{"$f":"SQRT(($J$18^2)+($J$19^2))","v":21.931712199461309},{"$f":"$K$18+$K$19","v":1054},{"$f":"SQRT(($L$18^2)+($L$19^2))","v":255.266527378738},{"$f":"$M$18+$M$19","v":35},{"$f":"SQRT(($N$18^2)+($N$19^2))","v":21.023796041628639},{"$f":"$O$18+$O$19","v":114},{"$f":"SQRT(($P$18^2)+($P$19^2))","v":40.496913462633174},{"$f":"Q18+Q19","v":133},{"$f":"SQRT((R18^2)+(R19^2))","v":38.948684188300895},{"$f":"S18+S19","v":23},{"$f":"SQRT((T18^2)+(T19^2))","v":12.206555615733702},{"$f":"U18+U19","v":2},{"$f":"SQRT((V18^2)+(V19^2))","v":11.704699910719626},{"$f":"W18+W19","v":98},{"$f":"SQRT((X18^2)+(X19^2))","v":53.235326616824658},{"$f":"Y18+Y19","v":213},{"$f":"SQRT((Z18^2)+(Z19^2))","v":73.246160308919954},{"$f":"AA18+AA19","v":466},{"$f":"SQRT((AB18^2)+(AB19^2))","v":107.0420478129973},{"$f":"AC18+AC19","v":404},{"$f":"SQRT((AD18^2)+(AD19^2))","v":141.40014144264495},{"$f":"AE18+AE19","v":137},{"$f":"SQRT((AF18^2)+(AF19^2))","v":38.587562763149478},{"$f":"AG18+AG19","v":267},{"$f":"SQRT((AH18^2)+(AH19^2))","v":109.9317970379817},{"$f":"AI18+AI19","v":238},{"$f":"SQRT((AJ18^2)+(AJ19^2))","v":71.867934435323804},{"$f":"AK18+AK19","v":557},{"$f":"SQRT((AL18^2)+(AL19^2))","v":186.56098198712399},{"$f":"AM18+AM19","v":305},{"$f":"SQRT((AN18^2)+(AN19^2))","v":125.25573839150046}]
[null,"Income $75,000 to $99,999 ",{"$f":"$C$20","v":37},{"$f":"$D$20","v":15},{"$f":"$E$20","v":258},{"$f":"$F$20","v":112},{"$f":"$G$20","v":60},{"$f":"$H$20","v":26},{"$f":"$I$20","v":17},{"$f":"$J$20","v":13},{"$f":"$K$20","v":823},{"$f":"$L$20","v":204},{"$f":"$M$20","v":21},{"$f":"$N$20","v":11},{"$f":"$O$20","v":128},{"$f":"$P$20","v":41},{"$f":"Q20","v":120},46,15,11,8,10,21,23,{"$f":"Y20","v":213},69,272,86,266,102,117,36,116,78,140,49,343,161,325,161]
[null,"Income $100,000 to $149,999 ",{"$f":"$C$21+$C$22","v":69},{"$f":"SQRT(($D$21^2)+($D$22^2))","v":29.206163733020468},{"$f":"$E$21+$E$22","v":205},{"$f":"SQRT(($F$21^2)+($F$22^2))","v":119.54078801814885},{"$f":"$G$21+$G$22","v":86},{"$f":"SQRT(($H$21^2)+($H$22^2))","v":28.42534080710379},{"$f":"$I$21+$I$22","v":12},{"$f":"SQRT(($J$21^2)+($J$22^2))","v":10.295630140987001},{"$f":"$K$21+$K$22","v":713},{"$f":"SQRT(($L$21^2)+($L$22^2))","v":242.87033577610913},{"$f":"$M$21+$M$22","v":19},{"$f":"SQRT(($N$21^2)+($N$22^2))","v":11.401754250991379},{"$f":"$O$21+$O$22","v":77},{"$f":"SQRT(($P$21^2)+($P$22^2))","v":26.832815729997478},{"$f":"Q21+Q22","v":124},{"$f":"SQRT((R21^2)+(R22^2))","v":38.832975677895199},{"$f":"S21+S22","v":11},{"$f":"SQRT((T21^2)+(T22^2))","v":7.6157731058639087},{"$f":"U21+U22","v":0},{"$f":"SQRT((V21^2)+(V22^2))","v":15.556349186104045},{"$f":"W21+W22","v":99},{"$f":"SQRT((X21^2)+(X22^2))","v":49.091750834534309},{"$f":"Y21+Y22","v":169},{"$f":"SQRT((Z21^2)+(Z22^2))","v":62.369864518050704},{"$f":"AA21+AA22","v":246},{"$f":"SQRT((AB21^2)+(AB22^2))","v":79.075912893876861},{"$f":"AC21+AC22","v":184},{"$f":"SQRT((AD21^2)+(AD22^2))","v":101.17806086301516},{"$f":"AE21+AE22","v":108},{"$f":"SQRT((AF21^2)+(AF22^2))","v":43.829214001622255},{"$f":"AG21+AG22","v":115},{"$f":"SQRT((AH21^2)+(AH22^2))","v":72.801098892805186},{"$f":"AI21+AI22","v":115},{"$f":"SQRT((AJ21^2)+(AJ22^2))","v":53.851648071345039},{"$f":"AK21+AK22","v":314},{"$f":"SQRT((AL21^2)+(AL22^2))","v":112.76967677527502},{"$f":"AM21+AM22","v":471},{"$f":"SQRT((AN21^2)+(AN22^2))","v":210.79373804740976}]
[null,"Income $150,000 to $199,999 ",{"$f":"$C$23","v":16},{"$f":"$D$23","v":11},{"$f":"$E$23","v":51},{"$f":"$F$23","v":70},{"$f":"$G$23","v":29},{"$f":"$H$23","v":16},{"$f":"$I$23","v":6},{"$f":"$J$23","v":6},{"$f":"$K$23","v":142},{"$f":"$L$23","v":80},{"$f":"$M$23","v":2},{"$f":"$N$23","v":3},{"$f":"$O$23","v":47},{"$f":"$P$23","v":38},{"$f":"Q23","v":8},8,5,5,0,11,21,21,{"$f":"Y23","v":28},20,88,54,69,47,41,19,113,95,63,38,100,68,348,161]
[null,"Income $200,000 or more ",{"$f":"$C$24","v":6},{"$f":"$D$24","v":5},{"$f":"$E$24","v":61},{"$f":"$F$24","v":64},{"$f":"$G$24","v":20},{"$f":"$H$24","v":18},{"$f":"$I$24","v":23},{"$f":"$J$24","v":12},{"$f":"$K$24","v":159},{"$f":"$L$24","v":81},{"$f":"$M$24","v":7},{"$f":"$N$24","v":7},{"$f":"$O$24","v":27},{"$f":"$P$24","v":25},35,21,18,12,0,11,35,22,{"$f":"Y24","v":63},34,199,72,9,14,71,35,52,48,58,35,130,97,168,115]
[]
[]
[]
[]
[]
[]
[]
[]
[]
[]
[]
[]
[]
[]
[]
[]
[]
[]
[]
[]
[]
[]
[]
[]
[null,"B19001. HOUSEHOLD INCOME IN THE PAST 12 MONTHS (IN 2014 INFLATION-ADJUSTED DOLLARS)"]
[null,"Universe:  HOUSEHOLDS",null,null,null,null,null,null,null,null,null,null,null,null,{"$f":"B70","v":"B19001. HOUSEHOLD INCOME IN THE PAST 12 MONTHS (IN 2014 INFLATION-ADJUSTED DOLLARS)"}]
[null,"Data Set: 2010-2014 American Community Survey 5-Year Estimates",null,null,null,null,null,null,null,null,null,null,null,null,{"$f":"B72","v":"Data Set: 2010-2014 American Community Survey 5-Year Estimates"}]
[]
[null,null,"Albany",null,"Bartlett",null,"Brookfield",null,"Chatham",null,"Conway",null,"Eaton",null,"Effingham",null,"Freedom",null,"Hale's Location",null,"Hart's Location",null,"Jackson",null,"Madison",null,"Moultonborough",null,"Ossipee",null,"Sandwich",null,"Tamworth",null,"Tuftonboro",null,"Wakefield",null,"Wolfeboro"]
[null," ","Estimate","Margin of Error","Estimate","Margin of Error","Estimate","Margin of Error","Estimate","Margin of Error","Estimate","Margin of Error","Estimate","Margin of Error","Estimate","Margin of Error","Estimate","Margin of Error","Estimate","Margin of Error","Estimate","Margin of Error","Estimate","Margin of Error","Estimate","Margin of Error","Estimate","Margin of Error","Estimate","Margin of Error","Estimate","Margin of Error","Estimate","Margin of Error","Estimate","Margin of Error","Estimate","Margin of Error","Estimate","Margin of Error"]
[null,"Total Households",308,53,1567,184,298,64,161,35,4365,233,176,33,553,70,532,66,67,21,26,14,444,91,1133,93,1762,94,1761,183,645,87,1512,148,975,121,2260,207,2734,204]
[null,"Households With"]
[null,"Income Less than $10,000 ",9,9,168,121,4,5,24,16,186,104,0,11,47,27,27,14,1,3,0,11,26,34,29,33,74,58,133,80,10,9,94,81,43,33,105,74,59,60]
[null,"Income $10,000 to $14,999 ",12,14,55,51,9,9,2,5,264,147,4,5,38,30,15,9,0,11,0,11,5,9,36,35,19,20,218,101,15,11,151,135,18,24,134,93,189,135]
[null,"Income $15,000 to $19,999 ",32,23,119,100,11,13,6,5,116,65,6,5,32,18,17,12,0,11,0,11,17,20,51,33,65,39,142,70,35,22,50,38,48,31,108,82,21,23]
[null,"Income $20,000 to $24,999 ",33,24,74,56,11,14,7,6,237,132,8,6,24,13,32,19,5,5,0,11,21,18,24,23,34,36,42,28,38,22,136,91,29,16,94,105,150,127]
[null,"Income $25,000 to $29,999 ",6,6,0,11,21,23,3,4,362,150,12,10,43,19,40,18,0,11,0,11,5,9,9,11,46,32,104,65,49,36,54,49,69,48,289,141,113,89]
[null,"Income $30,000 to $34,999 ",3,5,112,79,18,16,7,7,315,159,3,4,49,27,37,26,6,6,6,7,18,17,44,44,31,23,106,78,37,24,138,114,50,39,99,94,142,95]
[null,"Income $35,000 to $39,999 ",18,12,124,94,9,9,7,7,333,150,4,5,20,12,54,30,9,7,0,11,8,13,107,48,73,58,33,26,23,16,35,30,29,23,133,127,94,57]
[null,"Income $40,000 to $44,999 ",11,11,110,71,6,6,12,10,259,108,11,7,25,17,30,14,4,6,7,11,20,25,84,47,76,42,89,50,15,12,35,33,83,51,176,109,202,123]
[null,"Income $45,000 to $49,999 ",18,16,60,57,15,15,10,9,227,109,10,9,25,16,25,15,1,3,0,11,19,17,112,77,34,26,108,71,53,31,114,126,25,25,137,113,209,126]
[null,"Income $50,000 to $59,999 ",7,9,221,120,25,13,21,18,337,134,13,10,31,18,56,22,8,7,0,11,40,36,176,67,130,80,93,68,53,31,206,105,87,54,221,114,166,100]
[null,"Income $60,000 to $74,999 ",41,22,76,71,52,29,12,8,503,165,28,13,66,28,54,19,7,6,5,6,29,21,116,56,273,96,273,118,57,20,245,101,109,52,208,90,285,135]
[null,"Income $75,000 to $99,999 ",60,29,223,97,35,17,25,17,636,175,29,17,80,32,67,24,8,7,2,3,65,39,76,34,208,76,206,74,97,38,58,49,203,77,147,81,348,147]
[null,"Income $100,000 to $124,999 ",32,22,73,58,23,12,8,8,271,114,20,18,51,28,42,22,10,8,6,8,68,37,117,51,215,79,99,66,76,30,74,43,65,38,102,82,389,135]
[null,"Income $125,000 to $149,999 ",10,8,37,44,17,14,6,5,114,55,5,7,6,6,14,9,1,3,0,11,19,18,65,37,140,68,24,25,37,20,71,54,34,27,134,94,96,68]
[null,"Income $150,000 to $199,999 ",7,7,48,53,23,23,5,6,169,92,5,6,14,15,12,15,0,11,0,11,45,30,29,17,89,47,77,57,26,16,12,17,58,49,71,53,167,106]
[null,"Income $200,000 or more ",9,9,67,66,19,14,6,6,36,28,18,15,2,4,10,7,7,8,0,11,39,28,58,42,255,87,14,16,24,19,39,44,25,22,102,75,104,69]
[]
[]
[]
[]
[null,"Calculated B19001. HOUSEHOLD INCOME IN THE PAST 12 MONTHS (IN 2014 INFLATION-ADJUSTED DOLLARS)"]
[null,"Universe:  HOUSEHOLDS"]
[null,"Data Set: 2010-2014 American Community Survey 5-Year Estimates"]
[null,null,"Albany",null,"Bartlett",null,"Brookfield",null,"Chatham",null,"Conway",null,"Eaton",null,"Effingham",null,"Freedom",null,"Hale's Location",null,"Hart's Location",null,"Jackson",null,"Madison",null,"Moultonborough",null,"Ossipee",null,"Sandwich",null,"Tamworth",null,"Tuftonboro",null,"Wakefield",null,"Wolfeboro"]
[null," ","Estimate","Margin of Error","Estimate","Margin of Error","Estimate","Margin of Error","Estimate","Margin of Error","Estimate","Margin of Error","Estimate","Margin of Error","Estimate","Margin of Error","Estimate","Margin of Error","Estimate","Margin of Error","Estimate","Margin of Error","Estimate","Margin of Error","Estimate","Margin of Error","Estimate","Margin of Error","Estimate","Margin of Error","Estimate","Margin of Error","Estimate","Margin of Error","Estimate","Margin of Error","Estimate","Margin of Error","Estimate","Margin of Error"]
[null,"Total Households",308,53,1567,184,298,64,161,35,4365,233,176,33,553,70,532,66,67,21,26,14,444,91,1133,93,1762,94,1761,183,645,87,1512,148,975,121,2260,207,2734,204]
[null,"Households With"]
[null,"Income Less than $10,000 ",9,9,168,121,4,5,24,16,186,104,0,11,47,27,27,14,1,3,0,11,26,34,29,33,74,58,133,80,10,9,94,81,43,33,105,74,59,60]
[null,"Income $10,000 to $14,999 ",12,14,55,51,9,9,2,5,264,147,4,5,38,30,15,9,0,11,0,11,5,9,36,35,19,20,218,101,15,11,151,135,18,24,134,93,189,135]
[null,"Income $15,000 to $24,999 ",65,33.241540277189323,193,114.61239025515522,22,19.104973174542799,13,7.810249675906654,353,147.13599151805107,14,7.810249675906654,56,22.203603311174518,49,22.472205054244231,5,12.083045973594572,0,15.556349186104045,38,26.90724809414742,75,40.224370722237531,99,53.075418038862395,184,75.392307299883058,73,31.11269837220809,186,98.615414616580097,77,34.885527085024819,202,133.22537295875736,171,129.06587465321729]
[null,"Income $25,000 to $34,999 ",9,7.810249675906654,112,79.762146410437069,39,28.0178514522438,10,8.0622577482985491,677,218.58865478336244,15,10.770329614269007,92,33.015148038438355,77,31.622776601683793,6,12.529964086141668,6,13.038404810405298,23,19.235384061671343,53,45.354161881794269,77,39.408120990476064,210,101.53324578678651,86,43.266615305567875,192,124.08464852672147,119,61.846584384264908,388,169.4609099468075,255,130.17680284904833]
[null,"Income $35,000 to $49,999 ",47,22.825424421026653,294,130.86634403084699,30,18.493242008906929,29,15.165750888103101,819,214.58098704218881,25,12.449899597988733,70,26.248809496813376,109,36.345563690772494,14,9.6953597148326587,7,19.05255888325765,47,32.908965343808667,303,102.18610473053565,183,76.183987818963644,230,90.647669578428761,91,36.891733491393431,184,133.66001645967279,137,61.278054799414122,446,201.93810933055701,505,185.07836178224616]
[null,"Income $50,000 to $74,999 ",48,23.769728648009426,297,139.43098651304163,77,31.780497164141408,33,19.697715603592208,840,212.55822731665788,41,16.401219466856727,97,33.286633954186478,110,29.068883707497267,15,9.2195444572928871,5,12.529964086141668,69,41.677331968349414,292,87.321245982864909,403,124.96399481450646,366,136.19104228986575,110,36.891733491393431,451,145.69145479402695,196,74.966659255965254,429,145.24462124292245,451,168.00297616411441]
[null,"Income $75,000 to $99,999 ",60,29,223,97,35,17,25,17,636,175,29,17,80,32,67,24,8,7,2,3,65,39,76,34,208,76,206,74,97,38,58,49,203,77,147,81,348,147]
[null,"Income $100,000 to $149,999 ",42,23.409399821439251,110,72.801098892805186,40,18.439088914585774,14,9.4339811320566032,385,126.57408897558773,25,19.313207915827967,57,28.635642126552707,56,23.769728648009426,11,8.5440037453175304,6,13.601470508735444,87,41.146081222881968,182,63.007936008093459,355,104.23531071570709,123,70.576199954375554,113,36.055512754639892,145,69.028979421689272,99,46.61544808322666,236,124.73972903610141,485,151.15885683611134]
[null,"Income $150,000 to $199,999 ",7,7,48,53,23,23,5,6,169,92,5,6,14,15,12,15,0,11,0,11,45,30,29,17,89,47,77,57,26,16,12,17,58,49,71,53,167,106]
[null,"Income $200,000 or more ",9,9,67,66,19,14,6,6,36,28,18,15,2,4,10,7,7,8,0,11,39,28,58,42,255,87,14,16,24,19,39,44,25,22,102,75,104,69]
[]
[]
[]
[null,"B19001. HOUSEHOLD INCOME IN THE PAST 12 MONTHS (IN 2009 INFLATION-ADJUSTED DOLLARS)"]
[null,"Universe:  HOUSEHOLDS",null,null,null,null,null,null,null,null,null,null,null,null,{"$f":"B118","v":"B19001. HOUSEHOLD INCOME IN THE PAST 12 MONTHS (IN 2009 INFLATION-ADJUSTED DOLLARS)"}]
[null,"Data Set: 2005-2009 American Community Survey 5-Year Estimates",null,null,null,null,null,null,null,null,null,null,null,null,{"$f":"B120","v":"Data Set: 2005-2009 American Community Survey 5-Year Estimates"}]
[]
[null,null,"Albany",null,"Bartlett",null,"Brookfield",null,"Chatham",null,"Conway",null,"Eaton",null,"Effingham",null,"Freedom",null,"Hale's Location",null,"Hart's Location",null,"Jackson",null,"Madison",null,"Moultonborough",null,"Ossipee",null,"Sandwich",null,"Tamworth",null,"Tuftonboro",null,"Wakefield",null,"Wolfeboro"]
[null," ","Estimate","Margin of Error","Estimate","Margin of Error","Estimate","Margin of Error","Estimate","Margin of Error","Estimate","Margin of Error","Estimate","Margin of Error","Estimate","Margin of Error","Estimate","Margin of Error","Estimate","Margin of Error","Estimate","Margin of Error","Estimate","Margin of Error","Estimate","Margin of Error","Estimate","Margin of Error","Estimate","Margin of Error","Estimate","Margin of Error","Estimate","Margin of Error","Estimate","Margin of Error","Estimate","Margin of Error","Estimate","Margin of Error"]
[null,"Total Households",304,67,1203,117,258,52,118,37,3783,258,151,31,423,63,552,70,59,20,37,21,361,77,830,90,2003,119,1842,183,598,61,1021,117,929,115,1773,198,2790,210]
[null,"Households With"]
[null,"Income Less than $10,000 ",9,9,24,28,11,10,2,4,344,154,6,7,22,17,17,14,2,3,0,114,25,20,42,33,57,54,153,99,41,24,109,43,16,19,105,73,243,145]
[null,"Income $10,000 to $14,999 ",20,17,82,52,18,20,3,7,198,113,11,13,29,21,35,19,0,114,0,114,10,13,17,16,28,25,80,46,7,7,93,45,0,114,167,101,186,129]
[null,"Income $15,000 to $19,999 ",54,35,49,44,3,5,6,7,89,55,3,6,29,22,29,21,0,114,2,3,0,114,15,16,0,114,84,79,14,10,12,13,28,22,147,102,84,79]
[null,"Income $20,000 to $24,999 ",12,16,99,55,8,9,9,11,248,126,10,9,27,15,29,20,0,114,10,14,20,20,37,27,67,50,86,59,23,19,103,41,97,51,58,44,140,75]
[null,"Income $25,000 to $29,999 ",18,12,23,27,16,20,4,8,329,140,5,8,17,15,63,31,7,11,2,3,8,13,63,45,79,53,155,88,48,21,49,36,65,40,55,45,214,124]
[null,"Income $30,000 to $34,999 ",10,12,93,51,9,11,4,5,231,104,0,114,32,23,41,28,0,114,4,7,6,9,49,40,105,86,118,80,30,18,93,47,51,29,89,79,202,131]
[null,"Income $35,000 to $39,999 ",8,7,102,58,16,12,5,6,165,94,7,7,16,11,45,22,8,11,2,4,24,17,27,24,66,65,127,78,33,15,38,32,14,16,93,59,95,68]
[null,"Income $40,000 to $44,999 ",16,19,114,65,22,22,7,8,220,112,6,7,41,23,26,19,0,114,0,114,23,16,49,33,118,89,74,51,21,14,53,43,99,50,150,81,123,75]
[null,"Income $45,000 to $49,999 ",5,7,89,54,26,29,11,15,149,90,13,9,40,24,45,21,3,4,0,114,19,17,76,39,146,89,65,55,30,15,57,34,54,48,66,48,122,78]
[null,"Income $50,000 to $59,999 ",44,29,83,53,16,13,4,6,465,135,16,12,58,28,54,22,14,12,0,114,21,16,109,58,159,99,295,111,50,20,109,63,116,53,140,85,146,92]
[null,"Income $60,000 to $74,999 ",24,14,152,65,48,23,19,14,441,133,29,17,52,25,35,16,0,114,9,16,73,56,81,45,170,97,196,108,95,30,65,36,193,79,163,88,442,138]
[null,"Income $75,000 to $99,999 ",32,21,97,54,23,14,12,13,449,132,25,15,35,21,52,26,8,7,4,6,37,23,144,53,262,100,263,113,84,29,122,57,109,49,367,127,288,164]
[null,"Income $100,000 to $124,999 ",0,114,93,55,25,20,11,12,98,66,6,7,15,14,29,21,4,5,4,8,43,27,71,41,311,117,55,34,67,23,47,27,30,23,76,48,266,154]
[null,"Income $125,000 to $149,999 ",27,20,46,31,11,10,14,16,102,67,10,7,5,8,4,6,8,8,0,114,15,14,22,23,174,81,41,33,23,14,18,19,13,13,54,38,26,37]
[null,"Income $150,000 to $199,999 ",0,114,31,36,3,5,5,6,139,68,0,114,5,7,11,12,3,4,0,114,4,7,0,114,69,46,0,114,10,10,12,13,24,18,43,40,79,56]
[null,"Income $200,000 or more ",25,23,26,25,3,6,2,4,116,77,4,6,0,114,37,27,2,4,0,114,33,20,28,29,192,98,50,50,22,12,41,30,20,17,0,114,134,64]
[]
[]
[]
[]
[null,"Calculated B19001. HOUSEHOLD INCOME IN THE PAST 12 MONTHS (IN 2009 INFLATION-ADJUSTED DOLLARS)"]
[null,"Universe:  HOUSEHOLDS"]
[null,"Data Set: 2005-2009 American Community Survey 5-Year Estimates"]
[null,null,"Albany",null,"Bartlett",null,"Brookfield",null,"Chatham",null,"Conway",null,"Eaton",null,"Effingham",null,"Freedom",null,"Hale's Location",null,"Hart's Location",null,"Jackson",null,"Madison",null,"Moultonborough",null,"Ossipee",null,"Sandwich",null,"Tamworth",null,"Tuftonboro",null,"Wakefield",null,"Wolfeboro"]
[null," ","Estimate","Margin of Error","Estimate","Margin of Error","Estimate","Margin of Error","Estimate","Margin of Error","Estimate","Margin of Error","Estimate","Margin of Error","Estimate","Margin of Error","Estimate","Margin of Error","Estimate","Margin of Error","Estimate","Margin of Error","Estimate","Margin of Error","Estimate","Margin of Error","Estimate","Margin of Error","Estimate","Margin of Error","Estimate","Margin of Error","Estimate","Margin of Error","Estimate","Margin of Error","Estimate","Margin of Error","Estimate","Margin of Error"]
[null,"Total Households",304,67,1203,117,258,52,118,37,3783,258,151,31,423,63,552,70,59,20,37,21,361,77,830,90,2003,119,1842,183,598,61,1021,117,929,115,1773,198,2790,210]
[null,"Households With"]
[null,"Income Less than $10,000 ",9,9,24,28,11,10,2,4,344,154,6,7,22,17,17,14,2,3,0,114,25,20,42,33,57,54,153,99,41,24,109,43,16,19,105,73,243,145]
[null,"Income $10,000 to $14,999 ",20,17,82,52,18,20,3,7,198,113,11,13,29,21,35,19,0,114,0,114,10,13,17,16,28,25,80,46,7,7,93,45,0,114,167,101,186,129]
[null,"Income $15,000 to $24,999 ",66,38.483762809787713,148,70.434366611761334,11,10.295630140987001,15,13.038404810405298,337,137.48090776540573,13,10.816653826391969,56,26.627053911388696,58,29,0,161.22034611053283,12,14.317821063276353,20,115.7410903698423,52,31.384709652950431,67,124.48293055676348,170,98.600202839547947,37,21.470910553583888,115,43.011626335213137,125,55.542776307995261,205,111.08555261599052,224,108.93117092916977]
[null,"Income $25,000 to $34,999 ",28,16.970562748477139,116,57.706152185014034,25,22.825424421026653,8,9.4339811320566032,560,174.40183485273312,5,114.28035701729323,49,27.459060435491963,104,41.773197148410844,7,114.52947218947619,6,7.6157731058639087,14,15.811388300841896,112,60.207972893961475,184,101.01980003939822,273,118.92854997854805,78,27.658633371878661,142,59.203040462462738,116,49.406477308142499,144,90.917545061445651,416,180.38015411901608]
[null,"Income $35,000 to $49,999 ",29,21.42428528562855,305,102.49390225764652,64,38.327535793473601,23,18.027756377319946,534,171.69740825067802,26,13.379088160259652,97,35.014282800023196,116,35.860842154082214,11,114.59930191759459,2,161.26996000495566,66,28.879058156387302,152,56.444663166680336,330,141.65803895296588,266,108.21275340735028,84,25.416530054277668,148,63.474404290233394,167,71.133676975114952,309,111.11255554616679,340,127.80062597655773]
[null,"Income $50,000 to $74,999 ",68,32.202484376209235,235,83.868945385047027,64,26.419689627245813,23,15.231546211727817,906,189.50989420080418,45,20.808652046684813,110,37.536648758246919,89,27.202941017470888,14,114.62983904725679,9,115.11733144926528,94,58.240879114244144,190,73.409808608931812,329,138.60014430006919,491,154.87091398968369,145,36.055512754639892,174,72.560319734686942,309,95.131487952202235,303,122.34786471369249,588,165.85535867134351]
[null,"Income $75,000 to $99,999 ",32,21,97,54,23,14,12,13,449,132,25,15,35,21,52,26,8,7,4,6,37,23,144,53,262,100,263,113,84,29,122,57,109,49,367,127,288,164]
[null,"Income $100,000 to $149,999 ",27,115.7410903698423,139,63.134776470658387,36,22.360679774997898,25,20,200,94.047860156411858,16,9.8994949366116654,20,16.124515496597098,33,21.840329667841555,12,9.4339811320566032,4,114.28035701729323,58,30.413812651491099,93,47.010637094172637,485,142.30249470757707,96,47.381430961928537,90,26.92582403567252,65,33.015148038438355,43,26.419689627245813,130,61.220911460055866,292,158.38244852255568]
[null,"Income $150,000 to $199,999 ",0,114,31,36,3,5,5,6,139,68,0,114,5,7,11,12,3,4,0,114,4,7,0,114,69,46,0,114,10,10,12,13,24,18,43,40,79,56]
[null,"Income $200,000 or more ",25,23,26,25,3,6,2,4,116,77,4,6,0,114,37,27,2,4,0,114,33,20,28,29,192,98,50,50,22,12,41,30,20,17,0,114,134,64]

{"sheet":"ACS_Table_B19037","index":27,"n_rows":253,"n_cols":40,"rows_kept":253,"cut":false,"hidden":true,"merged":[]}
[null,"B19037. AGE OF HOUSEHOLDER BY HOUSEHOLD INCOME IN THE PAST 12 MONTHS (IN 2019 INFLATION-ADJUSTED DOLLARS)"]
[null,"Universe:  HOUSEHOLDS"]
[null,"Data Set: 2015-2019 American Community Survey 5-Year Estimates"]
[]
[null,null,"Albany",null,"Bartlett",null,"Brookfield",null,"Chatham",null,"Conway",null,"Eaton",null,"Effingham",null,"Freedom",null,"Hale's Location",null,"Hart's Location",null,"Jackson",null,"Madison",null,"Moultonborough",null,"Ossipee",null,"Sandwich",null,"Tamworth",null,"Tuftonboro",null,"Wakefield",null,"Wolfeboro"]
[null," ","Estimate","Margin of Error","Estimate","Margin of Error","Estimate","Margin of Error","Estimate","Margin of Error","Estimate","Margin of Error","Estimate","Margin of Error","Estimate","Margin of Error","Estimate","Margin of Error","Estimate","Margin of Error","Estimate","Margin of Error","Estimate","Margin of Error","Estimate","Margin of Error","Estimate","Margin of Error","Estimate","Margin of Error","Estimate","Margin of Error","Estimate","Margin of Error","Estimate","Margin of Error","Estimate","Margin of Error","Estimate","Margin of Error"]
[null,"Total:",307,58,1466,162,303,63,143,41,4632,241,135,39,594,82,611,81,89,20,24,16,416,88,977,94,1765,118,2011,164,643,81,1300,147,923,104,2117,185,3000,206]
[null,"Householder under 25 years:",15,17,33,54,0,11,0,11,111,116,5,9,31,28,0,11,0,11,0,11,0,11,7,10,12,19,0,11,0,11,19,29,14,15,60,91,47,78]
[null,"Less than $10,000",7,12,0,11,0,11,0,11,20,33,0,11,0,11,0,11,0,11,0,11,0,11,0,11,0,11,0,11,0,11,0,11,0,11,0,16,0,16]
[null,"$10,000 to $14,999",0,11,0,11,0,11,0,11,0,18,0,11,0,11,0,11,0,11,0,11,0,11,0,11,0,11,0,11,0,11,0,11,0,11,0,16,0,16]
[null,"$15,000 to $19,999",0,11,0,11,0,11,0,11,0,18,0,11,0,11,0,11,0,11,0,11,0,11,0,11,0,11,0,11,0,11,0,11,0,11,0,16,0,16]
[null,"$20,000 to $24,999",0,11,0,11,0,11,0,11,0,18,0,11,15,22,0,11,0,11,0,11,0,11,0,11,0,11,0,11,0,11,0,11,0,11,0,16,0,16]
[null,"$25,000 to $29,999",0,11,0,11,0,11,0,11,0,18,5,9,0,11,0,11,0,11,0,11,0,11,0,11,0,11,0,11,0,11,19,29,8,12,0,16,0,16]
[null,"$30,000 to $34,999",0,11,0,11,0,11,0,11,69,111,0,11,0,11,0,11,0,11,0,11,0,11,0,11,0,11,0,11,0,11,0,11,0,11,0,16,47,78]
[null,"$35,000 to $39,999",0,11,0,11,0,11,0,11,0,18,0,11,0,11,0,11,0,11,0,11,0,11,0,11,0,11,0,11,0,11,0,11,6,10,0,16,0,16]
[null,"$40,000 to $44,999",8,12,33,54,0,11,0,11,0,18,0,11,0,11,0,11,0,11,0,11,0,11,0,11,0,11,0,11,0,11,0,11,0,11,60,91,0,16]
[null,"$45,000 to $49,999",0,11,0,11,0,11,0,11,0,18,0,11,0,11,0,11,0,11,0,11,0,11,0,11,0,11,0,11,0,11,0,11,0,11,0,16,0,16]
[null,"$50,000 to $59,999",0,11,0,11,0,11,0,11,0,18,0,11,0,11,0,11,0,11,0,11,0,11,0,11,0,11,0,11,0,11,0,11,0,11,0,16,0,16]
[null,"$60,000 to $74,999",0,11,0,11,0,11,0,11,22,29,0,11,0,11,0,11,0,11,0,11,0,11,0,11,0,11,0,11,0,11,0,11,0,11,0,16,0,16]
[null,"$75,000 to $99,999",0,11,0,11,0,11,0,11,0,18,0,11,16,15,0,11,0,11,0,11,0,11,7,10,0,11,0,11,0,11,0,11,0,11,0,16,0,16]
[null,"$100,000 to $124,999",0,11,0,11,0,11,0,11,0,18,0,11,0,11,0,11,0,11,0,11,0,11,0,11,0,11,0,11,0,11,0,11,0,11,0,16,0,16]
[null,"$125,000 to $149,999",0,11,0,11,0,11,0,11,0,18,0,11,0,11,0,11,0,11,0,11,0,11,0,11,12,19,0,11,0,11,0,11,0,11,0,16,0,16]
[null,"$150,000 to $199,999",0,11,0,11,0,11,0,11,0,18,0,11,0,11,0,11,0,11,0,11,0,11,0,11,0,11,0,11,0,11,0,11,0,11,0,16,0,16]
[null,"$200,000 or more",0,11,0,11,0,11,0,11,0,18,0,11,0,11,0,11,0,11,0,11,0,11,0,11,0,11,0,11,0,11,0,11,0,11,0,16,0,16]
[null,"Householder 25 to 44 years:",71,33,215,116,56,33,24,18,1490,213,29,20,121,41,60,31,0,11,2,4,58,34,205,62,313,83,442,129,67,34,297,134,113,49,475,138,348,136]
[null,"Less than $10,000",2,4,33,52,0,11,2,3,90,86,0,11,4,5,4,5,0,11,0,11,0,11,7,10,15,23,22,20,3,4,0,11,0,11,0,16,0,16]
[null,"$10,000 to $14,999",4,7,0,11,0,11,0,11,95,92,3,4,0,11,0,11,0,11,0,11,0,11,0,11,21,33,0,11,0,11,49,77,0,11,0,16,0,16]
[null,"$15,000 to $19,999",0,11,0,11,0,11,2,4,0,18,0,11,9,11,0,11,0,11,0,11,0,11,15,21,0,11,0,11,0,11,0,11,0,11,0,16,0,16]
[null,"Calculated B19001. HOUSEHOLD INCOME IN THE PAST 12 MONTHS (IN 2019 INFLATION-ADJUSTED DOLLARS)",0,11,0,11,0,11,5,9,40,68,0,11,8,7,0,11,0,11,0,11,0,11,23,18,0,11,34,53,0,11,0,11,0,11,23,43,0,16]
[null,"$25,000 to $29,999",10,12,0,11,6,11,0,11,39,40,0,11,0,11,0,11,0,11,0,11,0,11,0,11,0,11,19,26,0,11,70,79,22,20,0,16,0,16]
[null,"$30,000 to $34,999",9,8,0,11,5,8,0,11,71,64,2,4,6,8,4,7,0,11,0,11,0,11,4,8,0,11,27,42,0,11,40,36,0,11,13,21,67,79]
[null,"$35,000 to $39,999",0,11,0,11,0,11,0,11,36,37,0,11,0,11,0,11,0,11,0,11,4,5,0,11,27,31,0,11,0,11,0,11,0,11,35,42,42,66]
[null,"$40,000 to $44,999",4,6,16,27,0,11,0,11,30,47,0,11,0,11,0,11,0,11,0,11,8,13,7,9,10,16,65,56,10,11,0,11,0,11,0,16,0,16]
[null,"$45,000 to $49,999",3,5,17,25,0,11,0,11,44,68,8,12,7,10,0,11,0,11,0,11,0,11,0,11,0,11,13,22,3,4,0,11,9,16,87,83,0,16]
[null,"$50,000 to $59,999",2,3,0,11,6,11,0,11,158,93,0,11,13,11,5,6,0,11,0,11,0,11,29,24,51,38,0,11,1,4,0,11,0,11,62,95,0,16]
[null,"$60,000 to $74,999",6,7,58,62,3,6,1,4,312,146,10,12,30,27,11,14,0,11,2,4,27,32,7,10,81,64,73,61,9,9,67,77,34,20,74,60,41,47]
[null,"$75,000 to $99,999",13,13,50,58,4,7,2,3,312,136,4,4,19,15,16,21,0,11,0,11,5,9,72,53,56,40,180,93,9,10,55,58,23,19,95,77,70,76]
[null,"$100,000 to $124,999",0,11,0,11,8,10,1,4,176,117,0,11,17,13,20,17,0,11,0,11,10,16,7,11,27,28,9,13,19,21,0,11,0,11,70,75,30,50]
[null,"$125,000 to $149,999",16,19,41,62,15,12,2,4,41,42,2,4,0,11,0,11,0,11,0,11,0,11,15,16,0,11,0,11,8,13,0,11,0,11,0,16,57,77]
[null,"$150,000 to $199,999",2,4,0,11,9,11,1,5,24,29,0,11,4,6,0,11,0,11,0,11,4,5,7,11,10,17,0,11,2,3,0,11,0,11,16,26,18,30]
[null,"$200,000 or more",0,11,0,11,0,11,8,8,22,30,0,11,4,6,0,11,0,11,0,11,0,11,12,13,15,17,0,11,3,5,16,23,25,28,0,16,23,42]
[null,"Householder 45 to 64 years:",133,34,665,161,160,52,78,30,1687,265,43,19,263,49,269,67,16,10,12,12,152,72,411,61,668,107,890,194,266,55,668,162,301,61,1022,154,1251,240]
[null,"Less than $10,000",0,11,31,50,5,6,3,5,184,105,5,5,3,4,22,26,2,4,0,11,3,5,4,7,23,22,83,58,0,11,65,77,15,13,79,84,49,38]
[null,"$10,000 to $14,999",9,13,0,11,8,10,2,4,35,42,4,7,7,16,3,4,0,11,0,11,0,11,13,17,8,13,75,73,0,11,18,25,0,11,43,71,92,103]
[null,"$15,000 to $19,999",8,11,47,46,2,4,0,11,102,81,2,4,10,8,0,11,2,3,0,11,11,18,0,11,28,29,39,47,0,11,37,59,7,10,32,35,83,99]
[null,"$20,000 to $24,999",0,11,10,15,0,11,0,11,83,58,2,3,4,6,0,11,0,11,0,11,3,4,0,11,50,53,54,52,10,14,0,11,0,11,20,30,0,16]
[null,"$25,000 to $29,999",11,10,44,59,0,11,8,11,24,26,0,11,2,3,4,7,0,11,0,11,8,12,20,23,32,39,52,59,3,5,27,29,38,22,2,3,37,45]
[null,"$30,000 to $34,999",0,11,134,84,6,7,7,7,48,51,4,4,14,15,6,6,0,11,0,11,0,11,9,12,0,11,23,26,14,17,58,72,0,11,41,46,172,108]
[null,"$35,000 to $39,999",2,3,0,11,9,14,2,3,42,53,3,6,17,12,23,20,0,11,0,11,0,11,0,11,0,11,23,25,11,15,0,11,4,7,16,26,23,37]
[null,"$40,000 to $44,999",13,9,36,41,0,11,2,3,50,33,0,11,5,6,0,11,1,3,4,6,30,35,7,9,10,16,41,54,6,7,39,62,11,12,0,16,0,16]
[null,"$45,000 to $49,999",0,11,37,55,2,3,0,11,58,90,0,11,0,11,11,18,0,11,0,11,0,11,22,27,23,21,32,51,6,6,0,11,4,6,20,29,132,162]
[null,"$50,000 to $59,999",10,8,23,25,4,6,5,7,206,142,0,11,30,17,40,23,0,11,0,11,0,11,44,41,59,44,99,76,63,31,46,41,29,33,97,82,78,71]
[null,"$60,000 to $74,999",17,15,10,15,13,12,10,10,149,104,6,7,24,17,15,15,0,11,0,11,28,34,69,45,49,30,96,50,15,11,108,78,44,27,116,90,43,37]
[null,"$75,000 to $99,999",11,7,157,89,42,24,15,13,230,116,9,8,65,36,60,31,0,11,8,10,13,22,62,43,114,69,86,56,54,23,61,54,66,28,187,114,67,71]
[null,"$100,000 to $124,999",16,14,62,64,26,18,2,3,260,147,4,5,23,15,43,22,0,11,0,11,27,26,62,37,73,34,70,70,14,11,50,39,19,14,147,72,126,126]
[null,"$125,000 to $149,999",19,15,25,42,19,14,6,9,34,40,2,3,11,9,20,13,0,11,0,11,11,14,68,42,47,35,73,61,23,15,26,26,10,14,42,49,62,74]
[null,"$150,000 to $199,999",11,11,0,11,13,10,3,4,60,62,0,11,28,30,0,11,0,11,0,11,0,11,14,14,49,35,44,35,25,15,113,95,31,20,71,57,172,106]
[null,"$200,000 or more",6,5,49,62,11,12,13,9,122,65,2,4,20,22,22,18,11,9,0,11,18,18,17,13,103,47,0,11,22,19,20,32,23,17,109,92,115,92]
[null,"Householder 65 years and over:",88,30,553,192,87,29,41,24,1344,206,58,29,179,44,282,52,73,19,10,10,206,67,354,84,772,94,679,148,310,66,316,129,495,94,560,111,1354,196]
[null,"Less than $10,000",3,4,0,11,0,11,1,4,62,58,0,11,4,6,0,11,0,11,0,11,16,17,0,11,16,18,0,11,4,6,0,11,15,23,0,16,0,16]
[null,"$10,000 to $14,999",9,7,0,11,0,11,2,4,111,86,2,4,16,12,9,7,0,11,0,11,0,11,37,31,8,13,87,78,20,15,26,28,52,36,0,16,73,94]
[null,"$15,000 to $19,999",10,13,24,39,3,4,0,11,15,24,1,3,3,4,12,9,0,11,4,7,0,11,20,24,54,45,67,43,6,7,57,68,23,30,22,31,41,46]
[null,"$20,000 to $24,999",3,4,10,15,2,3,0,11,123,65,2,3,8,8,16,11,2,3,5,8,3,4,28,33,15,17,76,64,17,17,17,24,12,13,109,106,148,115]
[null,"$25,000 to $29,999",8,12,51,54,0,11,1,3,144,68,0,11,18,17,15,10,3,3,1,3,10,17,17,14,46,41,53,55,6,6,86,90,16,14,11,17,141,113]
[null,"$30,000 to $34,999",4,4,22,23,4,5,5,5,50,44,0,11,11,8,9,9,0,11,0,11,0,11,17,28,0,11,86,77,3,5,15,21,10,11,37,59,81,94]
[null,"$35,000 to $39,999",2,3,60,68,3,5,0,11,43,41,2,3,15,12,17,12,5,5,0,11,14,18,7,12,31,48,0,11,21,12,0,11,13,14,0,16,0,16]
[null,"$40,000 to $44,999",9,12,34,56,0,11,1,4,23,27,2,6,10,16,24,21,2,3,0,11,10,15,24,16,29,27,20,22,4,6,14,21,31,24,0,16,103,94]
[null,"$45,000 to $49,999",2,3,66,74,5,6,3,4,10,15,4,6,5,6,12,10,0,11,0,11,22,22,10,14,48,31,88,67,22,20,0,11,13,13,23,29,52,51]
[null,"$50,000 to $59,999",2,4,95,87,8,9,4,5,109,95,8,9,12,10,26,18,9,7,0,11,23,25,6,8,57,34,54,40,27,18,0,11,70,50,103,70,30,46]
[null,"$60,000 to $74,999",2,3,0,11,14,12,19,17,98,69,11,12,5,6,36,17,14,10,0,11,20,21,58,36,169,64,82,60,22,14,46,43,61,26,105,74,113,76]
[null,"$75,000 to $99,999",13,9,51,53,14,11,0,11,281,119,8,8,28,15,44,31,15,11,0,11,3,6,72,44,102,48,0,11,54,26,0,11,51,35,61,41,188,115]
[null,"$100,000 to $124,999",11,9,11,16,15,10,1,3,131,109,7,7,19,14,26,14,9,7,0,11,31,31,17,14,61,50,13,19,29,25,39,60,52,45,26,29,121,83]
[null,"$125,000 to $149,999",7,7,66,73,3,4,0,11,71,94,4,5,7,8,15,18,2,3,0,11,20,22,0,11,26,22,19,28,15,17,0,11,34,26,29,24,75,71]
[null,"$150,000 to $199,999",3,4,51,70,7,8,2,3,58,51,2,3,15,22,8,8,5,5,0,11,17,20,7,9,29,36,25,30,14,10,0,11,32,31,13,20,158,118]
[null,"$200,000 or more",0,11,12,16,9,12,2,5,15,24,5,5,3,5,13,11,7,7,0,11,17,15,34,28,81,46,9,14,46,30,16,24,10,11,21,28,30,50]
[]
[]
[]
[]
[]
[]
[]
[]
[]
[]
[]
[]
[]
[]
[null,"B19037. AGE OF HOUSEHOLDER BY HOUSEHOLD INCOME IN THE PAST 12 MONTHS (IN 2014 INFLATION-ADJUSTED DOLLARS)"]
[null,"Universe:  HOUSEHOLDS"]
[null,"Data Set: 2010-2014 American Community Survey 5-Year Estimates"]
[]
[null,null,"Albany",null,"Bartlett",null,"Brookfield",null,"Chatham",null,"Conway",null,"Eaton",null,"Effingham",null,"Freedom",null,"Hale's Location",null,"Hart's Location",null,"Jackson",null,"Madison",null,"Moultonborough",null,"Ossipee",null,"Sandwich",null,"Tamworth",null,"Tuftonboro",null,"Wakefield",null,"Wolfeboro"]
[null," ","Estimate","Margin of Error","Estimate","Margin of Error","Estimate","Margin of Error","Estimate","Margin of Error","Estimate","Margin of Error","Estimate","Margin of Error","Estimate","Margin of Error","Estimate","Margin of Error","Estimate","Margin of Error","Estimate","Margin of Error","Estimate","Margin of Error","Estimate","Margin of Error","Estimate","Margin of Error","Estimate","Margin of Error","Estimate","Margin of Error","Estimate","Margin of Error","Estimate","Margin of Error","Estimate","Margin of Error","Estimate","Margin of Error"]
[null,"Total:",308,53,1567,184,298,64,161,35,4365,233,176,33,553,70,532,66,67,21,26,14,444,91,1133,93,1762,94,1761,183,645,87,1512,148,975,121,2260,207,2734,204]
[null,"Householder under 25 years:",0,11,124,105,0,11,7,11,236,148,0,11,13,20,5,7,0,11,0,11,26,31,13,21,0,11,12,21,5,8,25,39,15,24,29,48,0,15]
[null,"Less than $10,000",0,11,85,94,0,11,7,11,0,17,0,11,0,11,0,11,0,11,0,11,0,11,0,11,0,11,0,11,0,11,0,11,15,24,29,48,0,15]
[null,"$10,000 to $14,999",0,11,0,11,0,11,0,11,59,91,0,11,0,11,0,11,0,11,0,11,0,11,0,11,0,11,0,11,0,11,0,11,0,11,0,15,0,15]
[null,"$15,000 to $19,999",0,11,0,11,0,11,0,11,0,17,0,11,0,11,0,11,0,11,0,11,0,11,0,11,0,11,0,11,0,11,0,11,0,11,0,15,0,15]
[null,"$20,000 to $24,999",0,11,0,11,0,11,0,11,0,17,0,11,0,11,0,11,0,11,0,11,0,11,0,11,0,11,0,11,0,11,0,11,0,11,0,15,0,15]
[null,"$25,000 to $29,999",0,11,0,11,0,11,0,11,0,17,0,11,0,11,0,11,0,11,0,11,0,11,0,11,0,11,12,21,0,11,0,11,0,11,0,15,0,15]
[null,"$30,000 to $34,999",0,11,0,11,0,11,0,11,0,17,0,11,0,11,0,11,0,11,0,11,0,11,0,11,0,11,0,11,0,11,0,11,0,11,0,15,0,15]
[null,"$35,000 to $39,999",0,11,0,11,0,11,0,11,21,36,0,11,0,11,0,11,0,11,0,11,0,11,0,11,0,11,0,11,0,11,0,11,0,11,0,15,0,15]
[null,"$40,000 to $44,999",0,11,0,11,0,11,0,11,0,17,0,11,0,11,5,7,0,11,0,11,0,11,13,21,0,11,0,11,0,11,0,11,0,11,0,15,0,15]
[null,"$45,000 to $49,999",0,11,0,11,0,11,0,11,19,27,0,11,3,6,0,11,0,11,0,11,0,11,0,11,0,11,0,11,0,11,0,11,0,11,0,15,0,15]
[null,"$50,000 to $59,999",0,11,39,61,0,11,0,11,0,17,0,11,0,11,0,11,0,11,0,11,0,11,0,11,0,11,0,11,5,8,0,11,0,11,0,15,0,15]
[null,"$60,000 to $74,999",0,11,0,11,0,11,0,11,121,112,0,11,0,11,0,11,0,11,0,11,0,11,0,11,0,11,0,11,0,11,25,39,0,11,0,15,0,15]
[null,"$75,000 to $99,999",0,11,0,11,0,11,0,11,0,17,0,11,0,11,0,11,0,11,0,11,10,18,0,11,0,11,0,11,0,11,0,11,0,11,0,15,0,15]
[null,"$100,000 to $124,999",0,11,0,11,0,11,0,11,16,26,0,11,10,18,0,11,0,11,0,11,16,26,0,11,0,11,0,11,0,11,0,11,0,11,0,15,0,15]
[null,"$125,000 to $149,999",0,11,0,11,0,11,0,11,0,17,0,11,0,11,0,11,0,11,0,11,0,11,0,11,0,11,0,11,0,11,0,11,0,11,0,15,0,15]
[null,"$150,000 to $199,999",0,11,0,11,0,11,0,11,0,17,0,11,0,11,0,11,0,11,0,11,0,11,0,11,0,11,0,11,0,11,0,11,0,11,0,15,0,15]
[null,"$200,000 or more",0,11,0,11,0,11,0,11,0,17,0,11,0,11,0,11,0,11,0,11,0,11,0,11,0,11,0,11,0,11,0,11,0,11,0,15,0,15]
[null,"Householder 25 to 44 years:",78,35,273,128,70,32,42,23,1176,205,11,10,133,49,78,28,1,3,11,10,72,45,319,88,214,72,513,116,153,56,79,51,266,81,603,163,476,137]
[null,"Less than $10,000",0,11,0,11,0,11,0,11,38,39,0,11,7,6,7,10,0,11,0,11,0,11,0,11,0,11,13,21,0,11,0,11,0,11,22,34,21,34]
[null,"$10,000 to $14,999",0,11,0,11,3,5,0,11,93,98,0,11,15,24,0,11,0,11,0,11,2,5,0,11,0,11,111,97,0,11,0,11,0,11,58,71,100,108]
[null,"$15,000 to $19,999",0,11,69,83,0,11,0,11,21,26,0,11,3,4,0,11,0,11,0,11,0,11,8,12,0,11,9,17,0,11,0,11,0,11,0,15,0,15]
[null,"$20,000 to $24,999",6,11,0,11,0,11,1,3,61,71,0,11,4,5,0,11,0,11,0,11,5,7,0,11,0,11,0,11,0,11,0,11,5,8,0,15,0,15]
[null,"$25,000 to $29,999",0,11,0,11,0,11,1,3,22,24,0,11,4,5,13,11,0,11,0,11,0,11,4,8,0,11,26,41,18,28,0,11,55,47,45,55,0,15]
[null,"$30,000 to $34,999",0,11,0,11,5,8,5,5,109,101,0,11,21,24,17,21,0,11,4,7,0,11,0,11,0,11,4,7,12,15,0,11,19,23,0,15,66,80]
[null,"$35,000 to $39,999",0,11,34,54,0,11,3,5,110,102,0,11,0,11,11,11,0,11,0,11,0,11,61,47,17,27,10,15,7,11,0,11,6,11,70,101,0,15]
[null,"$40,000 to $44,999",2,3,0,11,0,11,1,4,123,88,0,11,8,9,0,11,0,11,0,11,11,20,0,11,10,15,28,29,0,11,0,11,28,27,118,96,18,30]
[null,"$45,000 to $49,999",9,15,0,11,0,11,2,3,0,17,0,11,13,12,6,6,0,11,0,11,0,11,84,74,0,11,58,63,22,23,0,11,15,23,51,74,26,38]
[null,"$50,000 to $59,999",0,11,0,11,1,4,16,17,101,51,0,11,7,7,0,11,0,11,0,11,0,11,18,17,10,15,0,11,21,24,29,30,13,20,70,68,19,30]
[null,"$60,000 to $74,999",8,10,42,63,19,14,2,3,128,71,5,8,16,14,4,6,0,11,3,5,0,11,70,44,46,60,77,56,8,9,19,21,16,20,40,43,18,28]
[null,"$75,000 to $99,999",26,24,87,54,12,12,9,9,187,90,2,5,27,20,17,16,0,11,2,3,36,33,5,8,25,25,60,55,24,29,0,11,76,48,67,52,86,59]
[null,"$100,000 to $124,999",15,17,18,29,6,7,0,11,69,62,2,3,8,11,0,11,0,11,2,4,0,11,23,28,54,42,54,50,31,22,0,11,33,29,27,38,97,81]
[null,"$125,000 to $149,999",3,4,12,19,7,8,2,3,32,39,0,11,0,11,0,11,1,3,0,11,0,11,26,20,14,21,0,11,10,15,19,27,0,11,35,45,25,35]
[null,"$150,000 to $199,999",5,6,0,11,11,19,0,11,70,58,0,11,0,11,3,5,0,11,0,11,18,21,15,12,20,25,63,51,0,11,12,17,0,11,0,15,0,15]
[null,"$200,000 or more",4,7,11,15,6,10,0,11,12,18,2,3,0,11,0,11,0,11,0,11,0,11,5,9,18,21,0,11,0,11,0,11,0,11,0,15,0,15]
[null,"Householder 45 to 64 years:",138,42,715,167,120,34,62,24,1945,245,96,29,248,48,213,49,15,10,13,13,138,58,549,95,968,101,808,169,256,54,1012,189,364,83,1054,210,1083,185]
[null,"Less than $10,000",6,6,83,76,4,5,8,11,73,62,0,11,14,15,14,9,0,11,0,11,26,34,5,7,48,49,89,65,4,6,56,69,16,18,15,25,38,48]
[null,"$10,000 to $14,999",3,6,55,51,6,7,0,11,45,33,3,5,14,10,0,11,0,11,0,11,3,6,6,10,10,14,56,76,2,4,123,133,0,11,18,28,65,55]
[null,"$15,000 to $19,999",16,19,12,16,0,11,1,3,34,37,0,11,19,17,3,4,0,11,0,11,8,13,11,13,21,19,92,68,13,14,50,38,34,27,38,59,10,16]
[null,"$20,000 to $24,999",19,24,20,33,0,11,0,11,118,100,3,5,11,10,4,5,4,4,0,11,8,12,18,20,26,35,0,11,21,16,50,46,4,6,94,105,107,108]
[null,"$25,000 to $29,999",2,4,0,11,9,11,2,3,239,130,11,10,30,18,14,15,0,11,0,11,0,11,5,7,25,26,49,46,12,19,54,49,0,11,207,124,15,24]
[null,"$30,000 to $34,999",0,11,112,79,9,11,0,11,126,100,3,4,15,10,14,15,0,11,0,11,0,11,39,43,6,10,37,46,0,11,105,108,0,11,27,31,0,15]
[null,"$35,000 to $39,999",7,6,38,42,3,5,1,3,140,100,2,3,14,10,19,18,0,11,0,11,0,11,16,13,31,40,9,14,12,9,22,23,4,7,47,73,0,15]
[null,"$40,000 to $44,999",9,11,61,50,2,3,7,7,58,45,2,3,5,8,11,9,0,11,7,11,9,14,54,42,17,19,44,45,3,6,16,22,29,34,39,42,12,20]
[null,"$45,000 to $49,999",6,7,20,28,7,7,6,7,90,72,1,3,3,6,7,6,0,11,0,11,0,11,25,25,11,14,31,26,20,15,62,73,5,8,15,23,58,65]
[null,"$50,000 to $59,999",5,9,123,86,10,9,3,3,160,86,6,6,13,11,36,20,4,5,0,11,15,17,150,68,51,43,73,59,16,12,128,88,59,47,52,49,91,75]
[null,"$60,000 to $74,999",16,13,10,13,17,16,6,8,174,101,14,9,39,22,18,11,2,3,2,4,0,11,34,29,186,81,162,92,25,15,123,93,44,26,147,77,135,109]
[null,"$75,000 to $99,999",26,18,101,73,17,11,9,10,416,147,21,15,34,18,24,12,4,4,0,11,0,11,44,29,109,52,107,47,45,18,58,49,83,54,80,61,139,74]
[null,"$100,000 to $124,999",17,14,55,48,10,7,7,8,106,56,14,17,20,12,26,16,0,11,4,6,31,24,75,38,109,63,45,37,34,19,74,43,4,8,46,72,200,103]
[null,"$125,000 to $149,999",3,5,25,39,10,12,4,5,62,45,3,7,6,6,10,8,0,11,0,11,0,11,33,30,119,63,0,11,13,9,52,46,29,25,99,83,55,51]
[null,"$150,000 to $199,999",0,11,0,11,10,14,4,5,89,72,3,5,11,14,9,14,0,11,0,11,22,23,14,15,50,42,5,9,18,15,0,11,28,20,71,53,92,93]
[null,"$200,000 or more",3,5,0,11,6,9,4,5,15,16,10,9,0,11,4,6,1,3,0,11,16,15,20,24,149,81,9,14,18,17,39,44,25,22,59,56,66,61]
[null,"Householder 65 years and over:",92,26,455,138,108,44,50,17,1008,214,69,20,159,37,236,42,51,17,2,3,208,57,252,68,580,103,428,113,231,55,396,124,330,92,574,156,1175,171]
[null,"Less than $10,000",3,5,0,11,0,11,9,7,75,72,0,11,26,21,6,7,1,3,0,11,0,11,24,32,26,23,31,39,6,7,38,38,12,12,39,41,0,15]
[null,"$10,000 to $14,999",9,12,0,11,0,11,2,5,67,55,1,2,9,14,15,9,0,11,0,11,0,11,30,35,9,14,51,35,13,10,28,33,18,24,58,55,24,38]
[null,"$15,000 to $19,999",16,15,38,58,11,13,5,5,61,43,6,5,10,8,14,11,0,11,0,11,9,14,32,29,44,38,41,29,22,17,0,11,14,13,70,57,11,17]
[null,"$20,000 to $24,999",8,10,54,43,11,14,6,6,58,42,5,5,9,8,28,18,1,4,0,11,8,9,6,10,8,12,42,28,17,14,86,80,20,13,0,15,43,67]
[null,"$25,000 to $29,999",4,5,0,11,12,20,0,11,101,64,1,2,9,7,13,11,0,11,0,11,5,9,0,11,21,18,17,17,19,16,0,11,14,12,37,39,98,84]
[null,"$30,000 to $34,999",3,5,0,11,4,7,2,3,80,49,0,11,13,9,6,6,6,6,2,3,18,17,5,8,25,20,65,62,25,20,33,37,31,31,72,92,76,49]
[null,"$35,000 to $39,999",11,9,52,60,6,6,3,3,62,39,2,5,6,6,24,18,9,7,0,11,8,13,30,26,25,31,14,16,4,6,13,19,19,18,16,24,94,57]
[null,"$40,000 to $44,999",0,11,49,50,4,5,4,5,78,54,9,7,12,11,14,9,4,6,0,11,0,11,17,11,49,46,17,19,12,10,19,24,26,24,19,20,172,117]
[null,"$45,000 to $49,999",3,4,40,48,8,13,2,5,118,72,9,10,6,6,12,15,1,3,0,11,19,17,3,6,23,21,19,16,11,10,52,77,5,7,71,81,125,90]
[null,"$50,000 to $59,999",2,3,59,60,14,9,2,4,76,81,7,7,11,13,20,11,4,5,0,11,25,27,8,8,69,54,20,31,11,8,49,38,15,13,99,84,56,43]
[null,"$60,000 to $74,999",17,13,24,37,16,20,4,5,80,72,9,9,11,8,32,16,5,5,0,11,29,21,12,13,41,26,34,27,24,13,78,66,49,40,21,23,132,64]
[null,"$75,000 to $99,999",8,7,35,41,6,7,7,10,33,34,6,7,19,17,26,12,4,5,0,11,19,18,27,21,74,46,39,27,28,17,0,11,44,28,0,15,123,114]
[null,"$100,000 to $124,999",0,11,0,11,7,7,1,2,80,77,4,4,13,13,16,17,10,8,0,11,21,16,19,14,52,42,0,11,11,11,0,11,28,24,29,30,92,56]
[null,"$125,000 to $149,999",4,7,0,11,0,11,0,11,20,23,2,3,0,11,4,5,0,11,0,11,19,18,6,9,7,11,24,25,14,11,0,11,5,8,0,15,16,24]
[null,"$150,000 to $199,999",2,3,48,53,2,3,1,3,10,15,2,3,3,4,0,11,0,11,0,11,5,7,0,11,19,18,9,16,8,7,0,11,30,48,0,15,75,52]
[null,"$200,000 or more",2,3,56,64,7,6,2,4,9,16,6,9,2,4,6,6,6,6,0,11,23,21,33,35,88,46,5,9,6,7,0,11,0,11,43,51,38,36]
[]
[]
[]
[]
[]
[]
[]
[]
[]
[]
[]
[]
[]
[]
[null,"B19037. AGE OF HOUSEHOLDER BY HOUSEHOLD INCOME IN THE PAST 12 MONTHS (IN 2009 INFLATION-ADJUSTED DOLLARS)"]
[null,"Universe:  HOUSEHOLDS"]
[null,"Data Set: 2005-2009 American Community Survey 5-Year Estimates"]
[]
[null,null,"Albany",null,"Bartlett",null,"Brookfield",null,"Chatham",null,"Conway",null,"Eaton",null,"Effingham",null,"Freedom",null,"Hale's Location",null,"Hart's Location",null,"Jackson",null,"Madison",null,"Moultonborough",null,"Ossipee",null,"Sandwich",null,"Tamworth",null,"Tuftonboro",null,"Wakefield",null,"Wolfeboro"]
[null," ","Estimate","Margin of Error","Estimate","Margin of Error","Estimate","Margin of Error","Estimate","Margin of Error","Estimate","Margin of Error","Estimate","Margin of Error","Estimate","Margin of Error","Estimate","Margin of Error","Estimate","Margin of Error","Estimate","Margin of Error","Estimate","Margin of Error","Estimate","Margin of Error","Estimate","Margin of Error","Estimate","Margin of Error","Estimate","Margin of Error","Estimate","Margin of Error","Estimate","Margin of Error","Estimate","Margin of Error","Estimate","Margin of Error"]
[null,"Total:",304,67,1203,117,258,52,118,37,3783,258,151,31,423,63,552,70,59,20,37,21,361,77,830,90,2003,119,1842,183,598,61,1021,117,929,115,1773,198,2790,210]
[null,"Householder under 25 years:",14,16,18,29,8,14,5,11,149,80,2,5,12,9,0,114,0,114,0,114,0,114,6,10,23,26,20,33,6,6,15,24,0,114,15,25,71,71]
[null,"Less than $10,000",0,114,0,114,0,114,0,114,45,54,0,114,0,114,0,114,0,114,0,114,0,114,6,10,0,114,0,114,0,114,0,114,0,114,0,114,15,23]
[null,"$10,000 to $14,999",0,114,0,114,0,114,0,114,0,114,0,114,0,114,0,114,0,114,0,114,0,114,0,114,0,114,0,114,0,114,0,114,0,114,15,25,43,64]
[null,"$15,000 to $19,999",8,12,0,114,0,114,0,114,0,114,0,114,0,114,0,114,0,114,0,114,0,114,0,114,0,114,0,114,0,114,0,114,0,114,0,114,0,114]
[null,"$20,000 to $24,999",0,114,0,114,0,114,0,114,0,114,0,114,5,6,0,114,0,114,0,114,0,114,0,114,0,114,0,114,0,114,0,114,0,114,0,114,0,114]
[null,"$25,000 to $29,999",0,114,0,114,0,114,0,114,0,114,0,114,0,114,0,114,0,114,0,114,0,114,0,114,10,16,0,114,3,5,15,24,0,114,0,114,13,21]
[null,"$30,000 to $34,999",6,11,0,114,0,114,0,114,0,114,0,114,4,6,0,114,0,114,0,114,0,114,0,114,0,114,0,114,0,114,0,114,0,114,0,114,0,114]
[null,"$35,000 to $39,999",0,114,0,114,0,114,0,114,0,114,0,114,0,114,0,114,0,114,0,114,0,114,0,114,0,114,0,114,3,4,0,114,0,114,0,114,0,114]
[null,"$40,000 to $44,999",0,114,18,29,8,14,0,114,0,114,2,5,0,114,0,114,0,114,0,114,0,114,0,114,0,114,0,114,0,114,0,114,0,114,0,114,0,114]
[null,"$45,000 to $49,999",0,114,0,114,0,114,5,11,0,114,0,114,3,5,0,114,0,114,0,114,0,114,0,114,13,21,0,114,0,114,0,114,0,114,0,114,0,114]
[null,"$50,000 to $59,999",0,114,0,114,0,114,0,114,0,114,0,114,0,114,0,114,0,114,0,114,0,114,0,114,0,114,0,114,0,114,0,114,0,114,0,114,0,114]
[null,"$60,000 to $74,999",0,114,0,114,0,114,0,114,85,61,0,114,0,114,0,114,0,114,0,114,0,114,0,114,0,114,0,114,0,114,0,114,0,114,0,114,0,114]
[null,"$75,000 to $99,999",0,114,0,114,0,114,0,114,19,32,0,114,0,114,0,114,0,114,0,114,0,114,0,114,0,114,0,114,0,114,0,114,0,114,0,114,0,114]
[null,"$100,000 to $124,999",0,114,0,114,0,114,0,114,0,114,0,114,0,114,0,114,0,114,0,114,0,114,0,114,0,114,0,114,0,114,0,114,0,114,0,114,0,114]
[null,"$125,000 to $149,999",0,114,0,114,0,114,0,114,0,114,0,114,0,114,0,114,0,114,0,114,0,114,0,114,0,114,0,114,0,114,0,114,0,114,0,114,0,114]
[null,"$150,000 to $199,999",0,114,0,114,0,114,0,114,0,114,0,114,0,114,0,114,0,114,0,114,0,114,0,114,0,114,0,114,0,114,0,114,0,114,0,114,0,114]
[null,"$200,000 or more",0,114,0,114,0,114,0,114,0,114,0,114,0,114,0,114,0,114,0,114,0,114,0,114,0,114,20,33,0,114,0,114,0,114,0,114,0,114]
[null,"Householder 25 to 44 years:",132,52,355,101,66,35,38,26,1133,180,21,13,134,40,89,30,0,114,10,13,85,30,236,63,402,124,464,121,107,41,255,80,184,67,579,134,406,114]
[null,"Less than $10,000",3,5,0,114,0,114,0,114,121,89,0,114,5,8,0,114,0,114,0,114,0,114,20,22,0,114,54,64,13,17,0,114,0,114,35,41,0,114]
[null,"$10,000 to $14,999",11,14,27,29,0,114,0,114,20,32,4,6,9,10,0,114,0,114,0,114,0,114,13,15,0,114,43,36,0,114,0,114,0,114,33,53,0,114]
[null,"$15,000 to $19,999",22,33,12,19,0,114,4,6,0,114,0,114,0,114,0,114,0,114,0,114,0,114,0,114,0,114,36,58,0,114,0,114,0,114,28,45,0,114]
[null,"$20,000 to $24,999",3,4,52,49,4,6,6,10,58,75,4,6,5,8,11,16,0,114,0,114,5,8,32,26,0,114,30,37,0,114,0,114,25,28,19,30,0,114]
[null,"$25,000 to $29,999",0,114,0,114,0,114,0,114,69,80,0,114,5,7,13,11,0,114,0,114,0,114,27,28,0,114,18,28,0,114,7,11,13,19,0,114,0,114]
[null,"$30,000 to $34,999",0,114,51,37,0,114,0,114,115,80,0,114,22,21,6,9,0,114,4,7,0,114,0,114,49,60,30,36,12,14,54,42,0,114,18,28,0,114]
[null,"$35,000 to $39,999",3,4,9,14,4,6,3,5,34,30,0,114,0,114,0,114,0,114,2,4,15,14,0,114,13,25,15,22,7,8,38,32,0,114,28,34,18,29]
[null,"$40,000 to $44,999",11,17,29,44,3,5,0,114,78,75,0,114,20,19,6,9,0,114,0,114,3,6,9,12,0,114,0,114,7,8,22,36,0,114,36,39,35,35]
[null,"$45,000 to $49,999",5,7,0,114,18,28,0,114,32,54,0,114,0,114,9,14,0,114,0,114,4,7,35,23,0,114,14,20,8,8,8,11,32,40,34,34,47,51]
[null,"$50,000 to $59,999",35,29,10,7,7,9,2,5,211,98,0,114,38,25,16,13,0,114,0,114,0,114,33,30,74,74,116,75,12,10,24,31,29,22,108,73,24,35]
[null,"$60,000 to $74,999",12,10,60,49,4,6,6,7,108,75,0,114,18,15,0,114,0,114,0,114,21,18,28,29,82,70,12,20,16,20,13,12,60,45,41,46,104,62]
[null,"$75,000 to $99,999",15,15,35,28,7,6,8,12,144,72,9,9,12,12,16,17,0,114,0,114,14,17,25,25,90,69,96,53,12,11,66,44,25,25,161,115,10,18]
[null,"$100,000 to $124,999",0,114,19,29,15,18,0,114,30,35,0,114,0,114,6,9,0,114,4,8,0,114,0,114,73,65,0,114,20,18,8,11,0,114,12,21,98,68]
[null,"$125,000 to $149,999",8,8,20,23,4,6,7,12,38,33,0,114,0,114,0,114,0,114,0,114,5,8,14,20,0,114,0,114,0,114,7,10,0,114,12,19,26,37]
[null,"$150,000 to $199,999",0,114,31,36,0,114,0,114,62,43,0,114,0,114,0,114,0,114,0,114,0,114,0,114,0,114,0,114,0,114,0,114,0,114,14,21,0,114]
[null,"$200,000 or more",4,6,0,114,0,114,2,4,13,22,4,6,0,114,6,9,0,114,0,114,18,13,0,114,21,32,0,114,0,114,8,11,0,114,0,114,44,53]
[null,"Householder 45 to 64 years:",94,37,513,120,132,43,53,25,1699,205,94,27,171,36,225,50,28,16,23,22,180,70,368,70,981,141,1013,167,291,44,437,78,384,87,677,141,1154,206]
[null,"Less than $10,000",3,6,16,25,8,9,0,114,102,87,3,5,7,9,9,8,0,114,0,114,18,18,16,19,31,35,67,64,13,11,93,46,0,114,49,49,48,82]
[null,"$10,000 to $14,999",0,114,23,25,7,8,3,7,69,79,5,9,3,5,0,114,0,114,0,114,10,13,0,114,0,114,15,23,0,114,12,14,0,114,0,114,52,85]
[null,"$15,000 to $19,999",21,18,12,20,0,114,0,114,65,48,3,6,11,9,13,12,0,114,0,114,0,114,0,114,0,114,10,15,3,5,0,114,0,114,84,94,0,114]
[null,"$20,000 to $24,999",9,15,34,27,0,114,0,114,73,67,3,5,4,6,5,8,0,114,10,14,0,114,0,114,50,44,45,41,4,5,40,23,26,32,12,19,32,38]
[null,"$25,000 to $29,999",12,10,15,23,11,19,0,114,179,117,3,6,8,10,31,25,7,11,0,114,8,13,16,18,19,23,68,64,20,13,11,15,34,32,15,23,58,56]
[null,"$30,000 to $34,999",4,6,34,35,6,8,2,4,61,47,0,114,3,6,9,10,0,114,0,114,0,114,21,20,38,61,58,62,3,5,29,20,26,20,28,31,124,118]
[null,"$35,000 to $39,999",3,5,55,46,8,9,0,114,121,86,4,6,9,9,27,17,0,114,0,114,5,9,27,24,0,114,76,60,13,9,0,114,14,16,38,30,18,28]
[null,"$40,000 to $44,999",0,114,17,28,11,17,0,114,98,59,4,6,21,14,8,12,0,114,0,114,16,14,30,27,85,87,74,51,5,8,11,17,62,39,71,47,43,53]
[null,"$45,000 to $49,999",0,114,61,48,4,7,6,10,117,71,8,8,20,18,12,16,3,4,0,114,10,13,33,24,65,57,40,48,15,10,39,29,21,26,19,28,44,47]
[null,"$50,000 to $59,999",5,7,47,52,7,8,2,4,192,83,9,9,20,12,26,18,11,13,0,114,8,9,18,13,79,67,168,86,32,16,33,34,49,29,32,36,82,69]
[null,"$60,000 to $74,999",9,10,59,42,34,22,13,12,183,94,25,17,25,19,24,15,0,114,9,16,48,53,35,26,64,50,173,103,55,21,45,32,65,45,60,47,222,114]
[null,"$75,000 to $99,999",12,13,51,45,16,12,4,4,203,100,14,13,18,15,16,15,3,4,4,6,15,15,88,45,137,89,141,109,56,24,50,32,33,23,151,77,212,147]
[null,"$100,000 to $124,999",0,114,65,51,10,10,11,12,58,55,3,5,15,14,20,19,2,3,0,114,23,20,56,37,161,89,27,32,41,18,23,17,18,18,64,45,92,99]
[null,"$125,000 to $149,999",16,18,10,15,4,6,7,12,34,30,10,7,5,8,4,6,2,4,0,114,6,9,8,11,128,90,21,24,15,11,11,16,4,7,42,37,0,114]
[null,"$150,000 to $199,999",0,114,0,114,3,5,5,6,53,46,0,114,2,4,11,12,0,114,0,114,4,7,0,114,53,41,0,114,5,6,12,13,18,16,12,18,67,55]
[null,"$200,000 or more",0,114,14,17,3,6,0,114,91,70,0,114,0,114,10,11,0,114,0,114,9,12,20,26,71,54,30,37,11,11,28,27,14,15,0,114,60,49]
[null,"Householder 65 years and over:",64,29,317,99,52,23,22,14,802,167,34,15,106,43,238,48,31,16,4,5,96,35,220,81,597,137,345,99,194,37,314,86,361,82,502,151,1159,183]
[null,"Less than $10,000",3,4,8,15,3,4,2,4,76,57,3,4,10,10,8,12,2,3,0,114,7,12,0,114,26,41,32,37,15,14,16,19,16,19,21,29,180,123]
[null,"$10,000 to $14,999",9,9,32,36,11,18,0,114,109,80,2,4,17,19,35,19,0,114,0,114,0,114,4,6,28,25,22,22,7,7,81,44,0,114,119,83,91,82]
[null,"$15,000 to $19,999",3,6,25,32,3,5,2,3,24,29,0,114,18,20,16,13,0,114,2,3,0,114,15,16,0,114,38,50,11,8,12,13,28,22,35,32,84,79]
[null,"$20,000 to $24,999",0,114,13,21,4,6,3,5,117,73,3,6,13,11,13,10,0,114,0,114,15,18,5,7,17,20,11,19,19,18,63,41,46,23,27,28,108,65]
[null,"$25,000 to $29,999",6,7,8,12,5,6,4,8,81,53,2,5,4,8,19,16,0,114,2,3,0,114,20,24,50,43,69,59,25,15,16,18,18,16,40,37,143,104]
[null,"$30,000 to $34,999",0,114,8,14,3,6,2,3,55,56,0,114,3,5,26,24,0,114,0,114,6,9,28,35,18,20,30,24,15,12,10,16,25,23,43,67,78,58]
[null,"$35,000 to $39,999",2,4,38,34,4,7,2,3,10,16,3,5,7,7,18,13,8,11,0,114,4,7,0,114,53,59,36,40,10,9,0,114,0,114,27,31,59,52]
[null,"$40,000 to $44,999",5,8,50,46,0,114,7,8,44,55,0,114,0,114,12,13,0,114,0,114,4,7,10,11,33,29,0,114,9,8,20,24,37,31,43,41,45,41]
[null,"$45,000 to $49,999",0,114,28,33,4,6,0,114,0,114,5,6,17,17,24,17,0,114,0,114,5,8,8,12,68,63,11,19,7,7,10,10,1,4,13,19,31,35]
[null,"$50,000 to $59,999",4,6,26,17,2,5,0,114,62,45,7,7,0,114,12,10,3,4,0,114,13,12,58,48,6,10,11,17,6,6,52,38,38,37,0,114,40,39]
[null,"$60,000 to $74,999",3,4,33,34,10,9,0,114,65,46,4,7,9,14,11,8,0,114,0,114,4,7,18,17,24,28,11,18,24,12,7,9,68,48,62,62,116,74]
[null,"$75,000 to $99,999",5,6,11,17,0,114,0,114,83,66,2,3,5,8,20,14,5,6,0,114,8,9,31,32,35,30,26,36,16,10,6,8,51,36,55,45,66,54]
[null,"$100,000 to $124,999",0,114,9,14,0,114,0,114,10,16,3,5,0,114,3,5,2,4,0,114,20,16,15,16,77,63,28,25,6,6,16,17,12,15,0,114,76,70]
[null,"$125,000 to $149,999",3,5,16,17,3,4,0,114,30,44,0,114,0,114,0,114,6,7,0,114,4,6,0,114,46,52,20,23,8,8,0,114,9,11,0,114,0,114]
[null,"$150,000 to $199,999",0,114,0,114,0,114,0,114,24,31,0,114,3,6,0,114,3,4,0,114,0,114,0,114,16,18,0,114,5,6,0,114,6,9,17,27,12,19]
[null,"$200,000 or more",21,22,12,19,0,114,0,114,12,20,0,114,0,114,21,23,2,4,0,114,6,9,8,13,100,71,0,114,11,9,5,7,6,9,0,114,30,35]

{"sheet":"DisabilityByAge","index":28,"n_rows":72,"n_cols":15,"rows_kept":72,"cut":false,"hidden":true,"merged":[[28,11,28,12],[28,13,28,14],[51,3,51,4],[51,5,51,6],[51,7,51,8],[51,9,51,10],[51,11,51,12],[51,13,51,14],[28,3,28,4],[28,5,28,6],[28,7,28,8],[28,9,28,10]]}
[]
[]
[]
[]
[null,{"$f":"CntyDataLink!A20","v":"Albany"}]
[null,"SOCIAL CHARACTERISTICS"]
[]
[null,"Disabilities By Age"]
[null,null,"Universe: Civilian Non-institutionalized Population"]
[]
[]
[]
[]
[]
[]
[]
[]
[]
[]
[]
[]
[]
[]
[]
[]
[]
[]
[]
[null,null,null,"Under 5",null,"5 to 17 years",null,"18 to 34 years",null,"35 to 64 years",null,"65 to 74 years",null,"75 years and older"]
[null,null,null,"Estimate","Margin of Error","Estimate","Margin of Error","Estimate","Margin of Error","Estimate","Margin of Error","Estimate","Margin of Error","Estimate","Margin of Error"]
[null,"Total ",null,{"$f":"CntyDataLink!D112","v":27},{"$f":"CntyDataLink!E112","v":29.410882339705484},{"$f":"CntyDataLink!J112","v":83},{"$f":"CntyDataLink!K112","v":33.61547262794322},{"$f":"CntyDataLink!P112","v":116},{"$f":"CntyDataLink!Q112","v":50.990195135927848},{"$f":"CntyDataLink!V112","v":327},{"$f":"CntyDataLink!W112","v":61.220911460055866},{"$f":"CntyDataLink!AB112","v":87},{"$f":"CntyDataLink!AC112","v":30.232432915661949},{"$f":"CntyDataLink!AH112","v":63},{"$f":"CntyDataLink!AI112","v":28.635642126552707}]
[]
[null,"With a disability:",null,{"$f":"CntyDataLink!F112","v":0},{"$f":"CntyDataLink!G112","v":15.556349186104045},{"$f":"CntyDataLink!L112","v":6},{"$f":"CntyDataLink!M112","v":6.4031242374328485},{"$f":"CntyDataLink!R112","v":15},{"$f":"CntyDataLink!S112","v":15},{"$f":"CntyDataLink!X112","v":37},{"$f":"CntyDataLink!Y112","v":21.023796041628639},{"$f":"CntyDataLink!AD112","v":3},{"$f":"CntyDataLink!AE112","v":11.704699910719626},{"$f":"CntyDataLink!AJ112","v":38},{"$f":"CntyDataLink!AK112","v":26.248809496813376}]
[]
[null,"With one disability:",null,{"$f":"CntyDataLink!CX112","v":6},{"$f":"CntyDataLink!CY112","v":7},{"$f":"CntyDataLink!DB112","v":27},{"$f":"CntyDataLink!DC112","v":21},{"$f":"CntyDataLink!DF112","v":15},{"$f":"CntyDataLink!DG112","v":9},{"$f":"CntyDataLink!DJ112","v":0},{"$f":"CntyDataLink!DK112","v":0},{"$f":"CntyDataLink!DN112","v":0},{"$f":"CntyDataLink!DO112","v":0},{"$f":"CntyDataLink!DR112","v":0},{"$f":"CntyDataLink!DS112","v":0}]
[]
[null,"Type of disability"]
[null,null,"Hearing disability",{"$f":"CntyDataLink!AN112","v":0},{"$f":"CntyDataLink!AO112","v":15.556349186104045},{"$f":"CntyDataLink!AP112","v":0},{"$f":"CntyDataLink!AQ112","v":15.556349186104045},{"$f":"CntyDataLink!AR112","v":0},{"$f":"CntyDataLink!AS112","v":15.556349186104045},{"$f":"CntyDataLink!AT112","v":11},{"$f":"CntyDataLink!AU112","v":8.6023252670426267},{"$f":"CntyDataLink!AV112","v":3},{"$f":"CntyDataLink!AW112","v":11.704699910719626},{"$f":"CntyDataLink!AX112","v":14},{"$f":"CntyDataLink!AY112","v":13.341664064126334}]
[null,null,"Visual disability",{"$f":"CntyDataLink!AZ112","v":0},{"$f":"CntyDataLink!BA112","v":15.556349186104045},{"$f":"CntyDataLink!BB112","v":0},{"$f":"CntyDataLink!BC112","v":15.556349186104045},{"$f":"CntyDataLink!BD112","v":0},{"$f":"CntyDataLink!BE112","v":15.556349186104045},{"$f":"CntyDataLink!BF112","v":6},{"$f":"CntyDataLink!BG112","v":14.212670403551895},{"$f":"CntyDataLink!BH112","v":0},{"$f":"CntyDataLink!BI112","v":15.556349186104045},{"$f":"CntyDataLink!BJ112","v":0},{"$f":"CntyDataLink!BK112","v":15.556349186104045}]
[null,null,"Cognitive disability","NA","NA",{"$f":"CntyDataLink!BL112","v":6},{"$f":"CntyDataLink!BM112","v":6.4031242374328485},{"$f":"CntyDataLink!BN112","v":15},{"$f":"CntyDataLink!BO112","v":15},{"$f":"CntyDataLink!BP112","v":11},{"$f":"CntyDataLink!BQ112","v":11.704699910719626},{"$f":"CntyDataLink!BR112","v":0},{"$f":"CntyDataLink!BS112","v":15.556349186104045},{"$f":"CntyDataLink!BT112","v":22},{"$f":"CntyDataLink!BU112","v":24.186773244895647}]
[null,null,"Ambulatory disability","NA","NA",{"$f":"CntyDataLink!BV112","v":0},{"$f":"CntyDataLink!BW112","v":15.556349186104045},{"$f":"CntyDataLink!BX112","v":0},{"$f":"CntyDataLink!BY112","v":15.556349186104045},{"$f":"CntyDataLink!BZ112","v":44},{"$f":"CntyDataLink!CA112","v":21.931712199461309},{"$f":"CntyDataLink!CB112","v":12},{"$f":"CntyDataLink!CC112","v":10},{"$f":"CntyDataLink!CD112","v":27},{"$f":"CntyDataLink!CE112","v":19.723082923316021}]
[null,null,"Self-care disability","NA","NA",{"$f":"CntyDataLink!CF112","v":0},{"$f":"CntyDataLink!CG112","v":15.556349186104045},{"$f":"CntyDataLink!CH112","v":0},{"$f":"CntyDataLink!CI112","v":15.556349186104045},{"$f":"CntyDataLink!CJ112","v":12},{"$f":"CntyDataLink!CK112","v":9.2195444572928871},{"$f":"CntyDataLink!CL112","v":0},{"$f":"CntyDataLink!CM112","v":15.556349186104045},{"$f":"CntyDataLink!CN112","v":20},{"$f":"CntyDataLink!CO112","v":26.40075756488817}]
[null,null,"Independent living disability","NA","NA","NA","NA",{"$f":"CntyDataLink!CP112","v":5},{"$f":"CntyDataLink!CQ112","v":13.038404810405298},{"$f":"CntyDataLink!CR112","v":11},{"$f":"CntyDataLink!CS112","v":8.4852813742385695},{"$f":"CntyDataLink!CT112","v":0},{"$f":"CntyDataLink!CU112","v":15.556349186104045},{"$f":"CntyDataLink!CV112","v":24},{"$f":"CntyDataLink!CW112","v":25.179356624028344}]
[]
[null,"With two or more types of disability:",null,{"$f":"CntyDataLink!CZ112","v":0},{"$f":"CntyDataLink!DA112","v":11},{"$f":"CntyDataLink!DD112","v":25},{"$f":"CntyDataLink!DE112","v":17},{"$f":"CntyDataLink!DH112","v":26},{"$f":"CntyDataLink!DI112","v":25},{"$f":"CntyDataLink!DL112","v":0},{"$f":"CntyDataLink!DM112","v":0},{"$f":"CntyDataLink!DP112","v":0},{"$f":"CntyDataLink!DQ112","v":0},{"$f":"CntyDataLink!DT112","v":0},{"$f":"CntyDataLink!DU112","v":0}]
[]
[null,"No disability",null,{"$f":"CntyDataLink!H112","v":27},{"$f":"CntyDataLink!I112","v":29.410882339705484},{"$f":"CntyDataLink!N112","v":77},{"$f":"CntyDataLink!O112","v":33.61547262794322},{"$f":"CntyDataLink!T112","v":101},{"$f":"CntyDataLink!U112","v":48.166378315169183},{"$f":"CntyDataLink!Z112","v":290},{"$f":"CntyDataLink!AA112","v":60.21627686929839},{"$f":"CntyDataLink!AF112","v":84},{"$f":"CntyDataLink!AG112","v":29.681644159311659},{"$f":"CntyDataLink!AL112","v":25},{"$f":"CntyDataLink!AM112","v":12.041594578792296}]
[null,"Source: 2015-2019 American Community Survey Tables B18101;  B18102; B18103; B18104; B18105; B18106; and B18107"]
[null,"NA indicates that the American Community Survey does not calculate the number for that disability."]
[null,"Percent of Population with Disabilities"]
[]
[null,null,null,"Under 5",null,"5 to 17 years",null,"18 to 34 years",null,"35 to 64 years",null,"65 to 74 years",null,"75 years and older"]
[]
[null,"With one disability:",null,{"$f":"D35/D$31","v":0.22222222222222221},null,{"$f":"F35/F$31","v":0.3253012048192771},null,{"$f":"H35/H$31","v":0.12931034482758622},null,{"$f":"J35/J$31","v":0},null,{"$f":"L35/L$31","v":0},null,{"$f":"N35/N$31","v":0}]
[]
[null,"Type of disability"]
[null,null,"Hearing disability",{"$f":"D38/D$31","v":0},null,{"$f":"F38/F$31","v":0},null,{"$f":"H38/H$31","v":0},null,{"$f":"J38/J$31","v":3.3639143730886847E-2},null,{"$f":"L38/L$31","v":3.4482758620689655E-2},null,{"$f":"N38/N$31","v":0.22222222222222221}]
[null,null,"Visual disability",{"$f":"D39/D$31","v":0},null,{"$f":"F39/F$31","v":0},null,0,null,1.834862385321101E-2,null,0,null,0]
[null,null,"Cognitive disability","NA",null,{"$f":"F40/F$31","v":7.2289156626506021E-2},null,0.12931034482758622,null,3.3639143730886847E-2,null,0,null,0.34920634920634919]
[null,null,"Ambulatory disability","NA",null,{"$f":"F41/F$31","v":0},null,0,null,0.13455657492354739,null,0.13793103448275862,null,0.42857142857142855]
[null,null,"Self-care disability","NA",null,{"$f":"F42/F$31","v":0},null,0,null,3.669724770642202E-2,null,0,null,0.31746031746031744]
[null,null,"Independent living disability","NA",null,"NA",null,4.3103448275862072E-2,null,3.3639143730886847E-2,null,0,null,0.38095238095238093]
[]
[null,"With two or more types of disability:",null,{"$f":"D45/D$31","v":0},null,{"$f":"F45/F$31","v":0.30120481927710846},null,{"$f":"H45/H$31","v":0.22413793103448276},null,{"$f":"J45/J$31","v":0},null,{"$f":"L45/L$31","v":0},null,{"$f":"N45/N$31","v":0}]
[]
[null,"No disability",null,{"$f":"D47/D$31","v":1},null,{"$f":"F47/F$31","v":0.92771084337349397},null,{"$f":"H47/H$31","v":0.87068965517241381},null,{"$f":"J47/J$31","v":0.88685015290519875},null,{"$f":"L47/L$31","v":0.96551724137931039},null,{"$f":"N47/N$31","v":0.3968253968253968}]
[]
[]
[null,"Source: 2015-2019 American Community Survey Tables B18101;  B18102; B18103; B18104; B18105; B18106; and B18107"]
[null,"NA indicates that the American Community Survey does not calculate the number for that disability."]
[]
[null,"Data from the American Community Survey are estimates."]

{"sheet":"DisabilityByAgePrior5YearEst","index":29,"n_rows":72,"n_cols":15,"rows_kept":72,"cut":false,"hidden":true,"merged":[[51,13,51,14],[28,3,28,4],[28,5,28,6],[28,7,28,8],[28,9,28,10],[28,11,28,12],[28,13,28,14],[51,3,51,4],[51,5,51,6],[51,7,51,8],[51,9,51,10],[51,11,51,12]]}
[]
[]
[]
[]
[null,{"$f":"CntyDataLinkPrior5YearEstimates!A112","v":"Albany"}]
[null,"SOCIAL CHARACTERISTICS"]
[]
[null,"Disabilities By Age"]
[null,null,"Universe: Civilian Non-institutionalized Population"]
[]
[]
[]
[]
[]
[]
[]
[]
[]
[]
[]
[]
[]
[]
[]
[]
[]
[]
[]
[null,null,null,"Under 5",null,"5 to 17 years",null,"18 to 34 years",null,"35 to 64 years",null,"65 to 74 years",null,"75 years and older"]
[null,null,null,"Estimate","Margin of Error","Estimate","Margin of Error","Estimate","Margin of Error","Estimate","Margin of Error","Estimate","Margin of Error","Estimate","Margin of Error"]
[null,"Total ",null,{"$f":"CntyDataLinkPrior5YearEstimates!D112","v":60},{"$f":"CntyDataLinkPrior5YearEstimates!E112","v":36.221540552549669},{"$f":"CntyDataLinkPrior5YearEstimates!J112","v":155},{"$f":"CntyDataLinkPrior5YearEstimates!K112","v":72.862884927787476},{"$f":"CntyDataLinkPrior5YearEstimates!P112","v":65},{"$f":"CntyDataLinkPrior5YearEstimates!Q112","v":38.209946349085598},{"$f":"CntyDataLinkPrior5YearEstimates!V112","v":386},{"$f":"CntyDataLinkPrior5YearEstimates!W112","v":65.76473218982953},{"$f":"CntyDataLinkPrior5YearEstimates!AB112","v":76},{"$f":"CntyDataLinkPrior5YearEstimates!AC112","v":25.45584412271571},{"$f":"CntyDataLinkPrior5YearEstimates!AH112","v":58},{"$f":"CntyDataLinkPrior5YearEstimates!AI112","v":24.041630560342615}]
[]
[null,"With a disability:",null,{"$f":"CntyDataLinkPrior5YearEstimates!F112","v":0},{"$f":"CntyDataLinkPrior5YearEstimates!G112","v":15.556349186104045},{"$f":"CntyDataLinkPrior5YearEstimates!L112","v":0},{"$f":"CntyDataLinkPrior5YearEstimates!M112","v":15.556349186104045},{"$f":"CntyDataLinkPrior5YearEstimates!R112","v":0},{"$f":"CntyDataLinkPrior5YearEstimates!S112","v":15.556349186104045},{"$f":"CntyDataLinkPrior5YearEstimates!X112","v":30},{"$f":"CntyDataLinkPrior5YearEstimates!Y112","v":13.45362404707371},{"$f":"CntyDataLinkPrior5YearEstimates!AD112","v":27},{"$f":"CntyDataLinkPrior5YearEstimates!AE112","v":15.652475842498529},{"$f":"CntyDataLinkPrior5YearEstimates!AJ112","v":35},{"$f":"CntyDataLinkPrior5YearEstimates!AK112","v":22.803508501982758}]
[]
[null,"With one disability:",null,{"$f":"CntyDataLinkPrior5YearEstimates!CX112","v":0},{"$f":"CntyDataLinkPrior5YearEstimates!CY112","v":0},{"$f":"CntyDataLinkPrior5YearEstimates!DB112","v":0},{"$f":"CntyDataLinkPrior5YearEstimates!DC112","v":0},{"$f":"CntyDataLinkPrior5YearEstimates!DF112","v":0},{"$f":"CntyDataLinkPrior5YearEstimates!DG112","v":0},{"$f":"CntyDataLinkPrior5YearEstimates!DJ112","v":0},{"$f":"CntyDataLinkPrior5YearEstimates!DK112","v":0},{"$f":"CntyDataLinkPrior5YearEstimates!DN112","v":0},{"$f":"CntyDataLinkPrior5YearEstimates!DO112","v":0},{"$f":"CntyDataLinkPrior5YearEstimates!DR112","v":0},{"$f":"CntyDataLinkPrior5YearEstimates!DS112","v":0}]
[]
[null,"Type of disability"]
[null,null,"Hearing disability",{"$f":"CntyDataLinkPrior5YearEstimates!AN112","v":0},{"$f":"CntyDataLinkPrior5YearEstimates!AO112","v":15.556349186104045},{"$f":"CntyDataLinkPrior5YearEstimates!AP112","v":0},{"$f":"CntyDataLinkPrior5YearEstimates!AQ112","v":15.556349186104045},{"$f":"CntyDataLinkPrior5YearEstimates!AR112","v":0},{"$f":"CntyDataLinkPrior5YearEstimates!AS112","v":15.556349186104045},{"$f":"CntyDataLinkPrior5YearEstimates!AT112","v":9},{"$f":"CntyDataLinkPrior5YearEstimates!AU112","v":7.810249675906654},{"$f":"CntyDataLinkPrior5YearEstimates!AV112","v":18},{"$f":"CntyDataLinkPrior5YearEstimates!AW112","v":17.804493814764857},{"$f":"CntyDataLinkPrior5YearEstimates!AX112","v":11},{"$f":"CntyDataLinkPrior5YearEstimates!AY112","v":8.0622577482985491}]
[null,null,"Visual disability",{"$f":"CntyDataLinkPrior5YearEstimates!AZ112","v":0},{"$f":"CntyDataLinkPrior5YearEstimates!BA112","v":15.556349186104045},{"$f":"CntyDataLinkPrior5YearEstimates!BB112","v":0},{"$f":"CntyDataLinkPrior5YearEstimates!BC112","v":15.556349186104045},{"$f":"CntyDataLinkPrior5YearEstimates!BD112","v":0},{"$f":"CntyDataLinkPrior5YearEstimates!BE112","v":15.556349186104045},{"$f":"CntyDataLinkPrior5YearEstimates!BF112","v":5},{"$f":"CntyDataLinkPrior5YearEstimates!BG112","v":12.083045973594572},{"$f":"CntyDataLinkPrior5YearEstimates!BH112","v":0},{"$f":"CntyDataLinkPrior5YearEstimates!BI112","v":15.556349186104045},{"$f":"CntyDataLinkPrior5YearEstimates!BJ112","v":0},{"$f":"CntyDataLinkPrior5YearEstimates!BK112","v":15.556349186104045}]
[null,null,"Cognitive disability","NA","NA",{"$f":"CntyDataLinkPrior5YearEstimates!BL112","v":0},{"$f":"CntyDataLinkPrior5YearEstimates!BM112","v":15.556349186104045},{"$f":"CntyDataLinkPrior5YearEstimates!BN112","v":0},{"$f":"CntyDataLinkPrior5YearEstimates!BO112","v":15.556349186104045},{"$f":"CntyDataLinkPrior5YearEstimates!BP112","v":10},{"$f":"CntyDataLinkPrior5YearEstimates!BQ112","v":7.6157731058639087},{"$f":"CntyDataLinkPrior5YearEstimates!BR112","v":3},{"$f":"CntyDataLinkPrior5YearEstimates!BS112","v":12.083045973594572},{"$f":"CntyDataLinkPrior5YearEstimates!BT112","v":2},{"$f":"CntyDataLinkPrior5YearEstimates!BU112","v":11.401754250991379}]
[null,null,"Ambulatory disability","NA","NA",{"$f":"CntyDataLinkPrior5YearEstimates!BV112","v":0},{"$f":"CntyDataLinkPrior5YearEstimates!BW112","v":15.556349186104045},{"$f":"CntyDataLinkPrior5YearEstimates!BX112","v":0},{"$f":"CntyDataLinkPrior5YearEstimates!BY112","v":15.556349186104045},{"$f":"CntyDataLinkPrior5YearEstimates!BZ112","v":28},{"$f":"CntyDataLinkPrior5YearEstimates!CA112","v":12.806248474865697},{"$f":"CntyDataLinkPrior5YearEstimates!CB112","v":12},{"$f":"CntyDataLinkPrior5YearEstimates!CC112","v":8.6023252670426267},{"$f":"CntyDataLinkPrior5YearEstimates!CD112","v":26},{"$f":"CntyDataLinkPrior5YearEstimates!CE112","v":21.2602916254693}]
[null,null,"Self-care disability","NA","NA",{"$f":"CntyDataLinkPrior5YearEstimates!CF112","v":0},{"$f":"CntyDataLinkPrior5YearEstimates!CG112","v":15.556349186104045},{"$f":"CntyDataLinkPrior5YearEstimates!CH112","v":0},{"$f":"CntyDataLinkPrior5YearEstimates!CI112","v":15.556349186104045},{"$f":"CntyDataLinkPrior5YearEstimates!CJ112","v":4},{"$f":"CntyDataLinkPrior5YearEstimates!CK112","v":4.2426406871192848},{"$f":"CntyDataLinkPrior5YearEstimates!CL112","v":5},{"$f":"CntyDataLinkPrior5YearEstimates!CM112","v":12.083045973594572},{"$f":"CntyDataLinkPrior5YearEstimates!CN112","v":0},{"$f":"CntyDataLinkPrior5YearEstimates!CO112","v":15.556349186104045}]
[null,null,"Independent living disability","NA","NA","NA","NA",{"$f":"CntyDataLinkPrior5YearEstimates!CP112","v":0},{"$f":"CntyDataLinkPrior5YearEstimates!CQ112","v":15.556349186104045},{"$f":"CntyDataLinkPrior5YearEstimates!CR112","v":10},{"$f":"CntyDataLinkPrior5YearEstimates!CS112","v":8.6023252670426267},{"$f":"CntyDataLinkPrior5YearEstimates!CT112","v":8},{"$f":"CntyDataLinkPrior5YearEstimates!CU112","v":7.810249675906654},{"$f":"CntyDataLinkPrior5YearEstimates!CV112","v":11},{"$f":"CntyDataLinkPrior5YearEstimates!CW112","v":12.369316876852981}]
[]
[null,"With two or more types of disability:",null,{"$f":"CntyDataLinkPrior5YearEstimates!CZ112","v":0},{"$f":"CntyDataLinkPrior5YearEstimates!DA112","v":0},{"$f":"CntyDataLinkPrior5YearEstimates!DD112","v":0},{"$f":"CntyDataLinkPrior5YearEstimates!DE112","v":0},{"$f":"CntyDataLinkPrior5YearEstimates!DH112","v":0},{"$f":"CntyDataLinkPrior5YearEstimates!DI112","v":0},{"$f":"CntyDataLinkPrior5YearEstimates!DL112","v":0},{"$f":"CntyDataLinkPrior5YearEstimates!DM112","v":0},{"$f":"CntyDataLinkPrior5YearEstimates!DP112","v":0},{"$f":"CntyDataLinkPrior5YearEstimates!DQ112","v":0},{"$f":"CntyDataLinkPrior5YearEstimates!DT112","v":0},{"$f":"CntyDataLinkPrior5YearEstimates!DU112","v":0}]
[]
[null,"No disability",null,{"$f":"CntyDataLinkPrior5YearEstimates!H112","v":60},{"$f":"CntyDataLinkPrior5YearEstimates!I112","v":36.221540552549669},{"$f":"CntyDataLinkPrior5YearEstimates!N112","v":155},{"$f":"CntyDataLinkPrior5YearEstimates!O112","v":72.862884927787476},{"$f":"CntyDataLinkPrior5YearEstimates!T112","v":65},{"$f":"CntyDataLinkPrior5YearEstimates!U112","v":38.209946349085598},{"$f":"CntyDataLinkPrior5YearEstimates!Z112","v":356},{"$f":"CntyDataLinkPrior5YearEstimates!AA112","v":65.79513659838392},{"$f":"CntyDataLinkPrior5YearEstimates!AF112","v":49},{"$f":"CntyDataLinkPrior5YearEstimates!AG112","v":20.248456731316587},{"$f":"CntyDataLinkPrior5YearEstimates!AL112","v":23},{"$f":"CntyDataLinkPrior5YearEstimates!AM112","v":12.727922061357855}]
[null,"Source: 2010-2014 American Community Survey Tables B18101;  B18102; B18103; B18104; B18105; B18106;  and B18107"]
[null,"NA indicates that the American Community Survey does not calculate the number for that disability."]
[null,"Percent of Population with Disabilities"]
[]
[null,null,null,"Under 5",null,"5 to 17 years",null,"18 to 34 years",null,"35 to 64 years",null,"65 to 74 years",null,"75 years and older"]
[]
[null,"With one disability:",null,{"$f":"D33/D$31","v":0},null,{"$f":"F33/F$31","v":0},null,{"$f":"H33/H$31","v":0},null,{"$f":"J33/J$31","v":7.7720207253886009E-2},null,{"$f":"L33/L$31","v":0.35526315789473684},null,{"$f":"N33/N$31","v":0.60344827586206895}]
[]
[null,"Type of disability"]
[null,null,"Hearing disability",{"$f":"D38/D$31","v":0},null,{"$f":"F38/F$31","v":0},null,{"$f":"H38/H$31","v":0},null,{"$f":"J38/J$31","v":2.3316062176165803E-2},null,{"$f":"L38/L$31","v":0.23684210526315788},null,{"$f":"N38/N$31","v":0.18965517241379309}]
[null,null,"Visual disability",{"$f":"D39/D$31","v":0},null,{"$f":"F39/F$31","v":0},null,0,null,1.2953367875647668E-2,null,0,null,0]
[null,null,"Cognitive disability","NA",null,{"$f":"F40/F$31","v":0},null,0,null,2.5906735751295335E-2,null,3.9473684210526314E-2,null,3.4482758620689655E-2]
[null,null,"Ambulatory disability","NA",null,{"$f":"F41/F$31","v":0},null,0,null,7.2538860103626937E-2,null,0.15789473684210525,null,0.44827586206896552]
[null,null,"Self-care disability","NA",null,{"$f":"F42/F$31","v":0},null,0,null,1.0362694300518135E-2,null,6.5789473684210523E-2,null,0]
[null,null,"Independent living disability","NA",null,"NA",null,0,null,2.5906735751295335E-2,null,0.10526315789473684,null,0.18965517241379309]
[]
[]
[]
[null,"No disability",null,{"$f":"D47/D$31","v":1},null,{"$f":"F47/F$31","v":1},null,{"$f":"H47/H$31","v":1},null,{"$f":"J47/J$31","v":0.92227979274611394},null,{"$f":"L47/L$31","v":0.64473684210526316},null,{"$f":"N47/N$31","v":0.39655172413793105}]
[]
[]
[null,"Source: 2010-2014 American Community Survey Tables B18101;  B18102; B18103; B18104; B18105; B18106;  and B18107"]
[null,"NA indicates that the American Community Survey does not calculate the number for that disability."]
[]
[null,"Data from the American Community Survey are estimates."]

{"sheet":"ACS_Table_B18101","index":30,"n_rows":125,"n_cols":40,"rows_kept":125,"cut":false,"hidden":true,"merged":[]}
["B18101. SEX BY AGE BY DISABILITY STATUS\n"]
["Universe:  Civilian non-institutionalized population"]
["Data Set: 2015-2019 American Community Survey 5-Year Estimates"]
[]
[null,null,"Albany",null,"Bartlett",null,"Brookfield",null,"Chatham",null,"Conway",null,"Eaton",null,"Effingham",null,"Freedom",null,"Hale's Location",null,"Hart's Location",null,"Jackson",null,"Madison",null,"Moultonborough",null,"Ossipee",null,"Sandwich",null,"Tamworth",null,"Tuftonboro",null,"Wakefield",null,"Wolfeboro"]
[null,null,"Estimate","Margin Of Error","Estimate","Margin Of Error","Estimate","Margin Of Error","Estimate","Margin Of Error","Estimate","Margin Of Error","Estimate","Margin Of Error","Estimate","Margin Of Error","Estimate","Margin Of Error","Estimate","Margin Of Error","Estimate","Margin Of Error","Estimate","Margin Of Error","Estimate","Margin Of Error","Estimate","Margin Of Error","Estimate","Margin Of Error","Estimate","Margin Of Error","Estimate","Margin Of Error","Estimate","Margin Of Error","Estimate","Margin Of Error","Estimate","Margin Of Error"]
[null,"Total",703,142,2774,14,797,184,372,127,9979,47,265,72,1630,231,1349,178,183,43,42,30,891,228,2553,20,4099,28,4158,121,1440,180,2994,13,2213,215,5016,46,6220,41]
[null,"Male:",351,75,1397,161,415,106,193,61,5080,283,130,46,712,108,662,94,92,28,23,17,365,90,1242,97,1991,134,1996,168,698,95,1617,138,1059,125,2584,179,3097,232]
[null,"Under 5 years:",19,28,33,38,11,12,5,8,268,100,0,11,26,22,0,11,0,11,0,11,2,4,34,28,41,31,166,71,27,20,66,43,29,31,123,54,177,114]
[null,"With a disability",0,11,0,11,0,11,0,11,0,18,0,11,0,11,0,11,0,11,0,11,0,11,0,11,0,11,0,11,0,11,0,11,0,11,0,16,0,16]
[null,"No disability",19,28,33,38,11,12,5,8,268,100,0,11,26,22,0,11,0,11,0,11,2,4,34,28,41,31,166,71,27,20,66,43,29,31,123,54,177,114]
[null,"5 to 17 years:",62,31,88,53,69,36,26,19,970,242,7,7,99,39,79,36,0,11,0,11,23,27,246,85,293,117,154,79,65,31,323,164,124,41,251,86,217,141]
[null,"With a disability",4,5,0,11,4,7,8,9,79,72,0,11,0,11,14,12,0,11,0,11,0,11,4,8,35,45,40,31,4,8,9,16,6,9,7,14,0,16]
[null,"No disability",58,31,88,53,65,34,18,15,891,209,7,7,99,39,65,35,0,11,0,11,23,27,242,86,258,92,114,80,61,29,314,171,118,39,244,87,217,141]
[null,"18 to 34 years:",50,34,217,130,67,48,30,22,863,206,34,24,174,65,50,30,7,12,2,4,21,23,145,56,301,97,363,115,67,39,196,103,170,67,574,158,364,226]
[null,"With a disability",8,9,0,11,7,12,7,10,18,30,0,11,4,5,0,11,0,11,0,11,0,11,13,20,11,17,49,55,7,9,68,84,0,11,63,60,20,28]
[null,"No disability",42,32,217,130,60,45,23,20,845,209,34,24,170,65,50,30,7,12,2,4,21,23,132,52,290,95,314,117,60,38,128,61,170,67,511,152,344,220]
[null,"35 to 64 years:",140,38,635,139,187,56,87,29,1783,230,38,18,289,51,262,58,16,11,11,12,176,75,528,74,737,107,930,155,273,60,840,172,332,60,1095,145,1337,185]
[null,"With a disability",26,19,70,71,17,17,6,7,231,148,9,8,26,18,48,23,2,4,7,9,12,16,22,23,51,40,149,110,30,20,257,163,51,28,159,118,303,185]
[null,"No disability",114,35,565,149,170,49,81,27,1552,211,29,15,263,55,214,50,14,10,4,7,164,74,506,74,686,112,781,143,243,57,583,136,281,60,936,138,1034,155]
[null,"65 to 74 years:",53,25,331,146,69,25,20,12,783,179,38,19,107,36,184,40,43,15,9,10,104,52,157,58,442,110,254,99,172,50,31,35,262,71,324,120,509,153]
[null,"With a disability",0,11,86,69,6,9,7,7,185,127,4,6,32,23,38,20,4,6,0,11,9,9,40,34,161,80,94,51,29,19,15,24,36,29,112,93,131,107]
[null,"No disability",53,25,245,147,63,23,13,11,598,174,34,18,75,26,146,36,39,15,9,10,95,51,117,50,281,84,160,92,143,47,16,24,226,59,212,98,378,144]
[null,"75 years and over:",27,12,93,72,12,9,25,18,413,159,13,13,17,12,87,29,26,14,1,3,39,27,132,48,177,71,129,70,94,37,161,96,142,49,217,84,493,142]
[null,"With a disability",12,8,29,44,3,5,15,14,65,45,5,6,4,6,48,22,8,7,1,3,6,6,64,45,63,42,57,37,46,25,75,66,60,25,59,63,310,125]
[null,"No disability",15,9,64,64,9,8,10,9,348,161,8,9,13,9,39,21,18,11,0,11,33,26,68,38,114,52,72,58,48,24,86,75,82,43,158,70,183,123]
[null,"Female:",352,91,1377,158,382,88,179,75,4899,287,135,37,918,146,687,104,91,20,19,14,526,152,1311,101,2108,130,2162,162,742,114,1377,136,1154,127,2432,174,3123,226]
[null,"Under 5 years:",8,9,0,11,0,11,6,9,211,111,9,10,89,57,5,6,0,11,0,11,59,48,89,50,50,39,44,35,26,24,43,59,61,42,170,92,0,16]
[null,"With a disability",0,11,0,11,0,11,0,11,0,18,0,11,0,11,0,11,0,11,0,11,0,11,0,11,0,11,0,11,0,11,0,11,0,11,0,16,0,16]
[null,"No disability",8,9,0,11,0,11,6,9,211,111,9,10,89,57,5,6,0,11,0,11,59,48,89,50,50,39,44,35,26,24,43,59,61,42,170,92,0,16]
[null,"5 to 17 years:",21,13,185,118,55,45,29,23,703,162,7,6,144,47,84,41,3,4,0,11,65,63,129,61,247,88,294,105,48,27,154,112,83,41,123,86,399,129]
[null,"With a disability",2,4,14,20,4,7,0,11,50,82,2,3,17,15,11,10,0,11,0,11,0,11,0,11,25,30,31,48,0,11,0,11,6,9,0,16,39,64]
[null,"No disability",19,13,171,117,51,46,29,23,653,163,5,4,127,42,73,40,3,4,0,11,65,63,129,61,222,74,263,101,48,27,154,112,77,38,123,86,360,141]
[null,"18 to 34 years:",66,38,125,82,53,36,18,23,987,208,10,11,200,72,34,23,0,11,2,4,60,46,183,79,400,110,185,81,111,63,158,87,168,64,577,194,193,112]
[null,"With a disability",7,12,16,23,10,12,0,11,130,91,0,11,0,11,5,8,0,11,0,11,0,11,7,9,21,29,4,9,7,7,35,37,14,16,92,67,0,16]
[null,"No disability",59,36,109,80,43,34,18,23,857,215,10,11,200,72,29,19,0,11,2,4,60,46,176,79,379,109,181,81,104,62,123,81,154,60,485,214,193,112]
[null,"35 to 64 years:",187,48,634,136,203,53,81,33,2125,212,64,24,335,60,311,65,22,14,16,14,177,70,570,65,829,103,1040,166,305,61,692,101,409,68,1118,147,1254,188]
[null,"With a disability",11,9,0,11,26,18,8,8,182,113,11,10,43,20,17,11,4,6,0,11,0,11,83,58,48,36,167,68,32,23,41,36,58,34,203,99,125,109]
[null,"No disability",176,49,634,136,177,45,73,31,1943,211,53,21,292,56,294,64,18,12,16,14,177,70,487,70,781,106,873,175,273,58,651,110,351,71,915,161,1129,176]
[null,"65 to 74 years:",34,17,261,153,62,25,26,19,556,151,32,17,109,32,170,41,38,15,0,11,112,50,199,65,368,98,407,120,157,46,146,86,292,89,273,97,703,170]
[null,"With a disability",3,4,78,78,7,7,8,13,68,55,3,4,19,13,28,16,3,5,0,11,12,18,24,20,61,32,116,69,23,18,35,37,32,19,77,79,184,91]
[null,"No disability",31,16,183,136,55,23,18,14,488,143,29,17,90,33,142,38,35,14,0,11,100,49,175,66,307,95,291,110,134,46,111,82,260,85,196,76,519,163]
[null,"75 years and over:",36,26,172,119,9,7,19,15,317,112,13,9,41,23,83,31,28,15,1,3,53,33,141,62,214,70,192,76,95,34,184,92,141,57,171,78,574,157]
[null,"With a disability",26,25,114,90,2,3,11,11,97,62,8,7,12,12,31,15,14,11,0,11,16,16,83,48,99,53,111,52,32,17,63,69,82,43,64,67,306,153]
[null,"No disability",10,8,58,69,7,6,8,8,220,96,5,5,29,18,52,27,14,9,1,3,37,30,58,43,115,55,81,58,63,27,121,73,59,42,107,48,268,128]
[]
[]
[{"$f":"A1& \"-Calculated\"","v":"B18101. SEX BY AGE BY DISABILITY STATUS\n-Calculated"}]
[{"$f":"A2","v":"Universe:  Civilian non-institutionalized population"}]
[{"$f":"A3","v":"Data Set: 2015-2019 American Community Survey 5-Year Estimates"}]
[]
[]
[null,null,"Albany",null,"Bartlett",null,"Brookfield",null,"Chatham",null,"Conway",null,"Eaton",null,"Effingham",null,"Freedom",null,"Hale's Location",null,"Hart's Location",null,"Jackson",null,"Madison",null,"Moultonborough",null,"Ossipee",null,"Sandwich",null,"Tamworth",null,"Tuftonboro",null,"Wakefield",null,"Wolfeboro"]
[null,null,"Estimate","Margin Of Error","Estimate","Margin Of Error","Estimate","Margin Of Error","Estimate","Margin Of Error","Estimate","Margin Of Error","Estimate","Margin Of Error","Estimate","Margin Of Error","Estimate","Margin Of Error","Estimate","Margin Of Error","Estimate","Margin Of Error","Estimate","Margin Of Error","Estimate","Margin Of Error","Estimate","Margin Of Error","Estimate","Margin Of Error","Estimate","Margin Of Error","Estimate","Margin Of Error","Estimate","Margin Of Error","Estimate","Margin Of Error","Estimate","Margin Of Error"]
[null,"Total",{"$f":"C7","v":703},142,2774,14,797,184,372,127,9979,47,265,72,1630,231,1349,178,183,43,42,30,891,228,2553,20,4099,28,4158,121,1440,180,2994,13,2213,215,5016,46,6220,41]
[null,"Under 5 years:",{"$f":"C28+C9","v":27},{"$f":"SQRT((D28^2)+(D9^2))","v":29.410882339705484},{"$f":"E28+E9","v":33},{"$f":"SQRT((F28^2)+(F9^2))","v":39.560080889704963},{"$f":"G28+G9","v":11},{"$f":"SQRT((H28^2)+(H9^2))","v":16.278820596099706},{"$f":"I28+I9","v":11},{"$f":"SQRT((J28^2)+(J9^2))","v":12.041594578792296},{"$f":"K28+K9","v":479},{"$f":"SQRT((L28^2)+(L9^2))","v":149.40214188558343},{"$f":"M28+M9","v":9},{"$f":"SQRT((N28^2)+(N9^2))","v":14.866068747318506},{"$f":"O28+O9","v":115},{"$f":"SQRT((P28^2)+(P9^2))","v":61.098281481560512},{"$f":"Q28+Q9","v":5},{"$f":"SQRT((R28^2)+(R9^2))","v":12.529964086141668},{"$f":"S28+S9","v":0},{"$f":"SQRT((T28^2)+(T9^2))","v":15.556349186104045},{"$f":"U28+U9","v":0},{"$f":"SQRT((V28^2)+(V9^2))","v":15.556349186104045},{"$f":"W28+W9","v":61},{"$f":"SQRT((X28^2)+(X9^2))","v":48.166378315169183},{"$f":"Y28+Y9","v":123},{"$f":"SQRT((Z28^2)+(Z9^2))","v":57.30619512757761},{"$f":"AA28+AA9","v":91},{"$f":"SQRT((AB28^2)+(AB9^2))","v":49.819674828324601},{"$f":"AC28+AC9","v":210},{"$f":"SQRT((AD28^2)+(AD9^2))","v":79.158069708653201},{"$f":"AE28+AE9","v":53},{"$f":"SQRT((AF28^2)+(AF9^2))","v":31.240998703626616},{"$f":"AG28+AG9","v":109},{"$f":"SQRT((AH28^2)+(AH9^2))","v":73.006848993775918},{"$f":"AI28+AI9","v":90},{"$f":"SQRT((AJ28^2)+(AJ9^2))","v":52.201532544552748},{"$f":"AK28+AK9","v":293},{"$f":"SQRT((AL28^2)+(AL9^2))","v":106.6770828247567},{"$f":"AM28+AM9","v":177},{"$f":"SQRT((AN28^2)+(AN9^2))","v":115.11733144926528}]
[null,"With a disability",{"$f":"C29+C10","v":0},{"$f":"SQRT((D29^2)+(D10^2))","v":15.556349186104045},{"$f":"E29+E10","v":0},{"$f":"SQRT((F29^2)+(F10^2))","v":15.556349186104045},{"$f":"G29+G10","v":0},{"$f":"SQRT((H29^2)+(H10^2))","v":15.556349186104045},{"$f":"I29+I10","v":0},{"$f":"SQRT((J29^2)+(J10^2))","v":15.556349186104045},{"$f":"K29+K10","v":0},{"$f":"SQRT((L29^2)+(L10^2))","v":25.45584412271571},{"$f":"M29+M10","v":0},{"$f":"SQRT((N29^2)+(N10^2))","v":15.556349186104045},{"$f":"O29+O10","v":0},{"$f":"SQRT((P29^2)+(P10^2))","v":15.556349186104045},{"$f":"Q29+Q10","v":0},{"$f":"SQRT((R29^2)+(R10^2))","v":15.556349186104045},{"$f":"S29+S10","v":0},{"$f":"SQRT((T29^2)+(T10^2))","v":15.556349186104045},{"$f":"U29+U10","v":0},{"$f":"SQRT((V29^2)+(V10^2))","v":15.556349186104045},{"$f":"W29+W10","v":0},{"$f":"SQRT((X29^2)+(X10^2))","v":15.556349186104045},0,15.556349186104045,0,15.556349186104045,0,15.556349186104045,0,15.556349186104045,0,15.556349186104045,0,15.556349186104045,0,22.627416997969522,0,22.627416997969522]
[null,"No disability",27,29.410882339705484,33,39.560080889704963,11,16.278820596099706,11,12.041594578792296,479,149.40214188558343,9,14.866068747318506,115,61.098281481560512,5,12.529964086141668,0,15.556349186104045,0,15.556349186104045,61,48.166378315169183,123,57.30619512757761,91,49.819674828324601,210,79.158069708653201,53,31.240998703626616,109,73.006848993775918,90,52.201532544552748,293,106.6770828247567,177,115.11733144926528]
[null,"5 to 17 years:",83,33.61547262794322,273,129.3560976529518,124,57.628118136895637,55,29.832867780352597,1673,291.21813130366729,14,9.2195444572928871,243,61.073725938409879,163,54.561891462814962,3,11.704699910719626,0,15.556349186104045,88,68.541957952775178,375,104.62313319720452,540,146.40013661195812,448,131.40015220691336,113,41.109609582188931,477,198.59506539690256,207,57.982756057296896,374,121.62236636408618,616,191.10729970359583]
[null,"With a disability",6,6.4031242374328485,14,22.825424421026653,8,9.8994949366116654,8,14.212670403551895,129,109.12378292562992,2,11.401754250991379,17,18.601075237738275,25,15.620499351813308,0,15.556349186104045,0,15.556349186104045,0,15.556349186104045,4,13.601470508735444,60,54.083269131959838,71,57.140178508646613,4,13.601470508735444,9,19.416487838947599,12,12.727922061357855,7,21.2602916254693,39,65.969690009882569]
[null,"No disability",77,33.61547262794322,259,128.4445405612866,116,57.201398584300364,47,27.459060435491963,1544,265.04716561397146,12,8.0622577482985491,226,57.314919523628397,138,53.150729063673246,3,11.704699910719626,0,15.556349186104045,88,68.541957952775178,371,105.43718509140881,480,118.06777714516353,377,128.84486796143648,109,39.623225512317902,468,204.41379601191306,195,54.451813560247928,367,122.3315167894194,577,199.40411229460639]
[null,"18 to 34 years:",116,50.990195135927848,342,153.7010084547268,120,60,48,31.827660925679098,1850,292.74562336608892,44,26.40075756488817,374,97,84,37.802116342871599,7,16.278820596099706,4,5.6568542494923806,81,51.429563482495162,328,96.834911060009759,701,146.65946952038249,548,140.66271716414411,178,74.094534211370814,354,134.82581355215328,338,92.655275079188016,1151,250.19992006393608,557,252.23005372080465]
[null,"With a disability",15,15,16,25.495097567963924,17,16.970562748477139,7,14.866068747318506,148,95.817534929677663,0,15.556349186104045,4,12.083045973594572,5,13.601470508735444,0,15.556349186104045,0,15.556349186104045,0,15.556349186104045,20,21.931712199461309,32,33.61547262794322,53,55.731499172371095,14,11.401754250991379,103,91.787798753429101,14,19.416487838947599,155,89.938868127189593,20,32.249030993194197]
[null,"No disability",101,48.166378315169183,326,152.64337522473747,103,56.400354608814297,41,30.479501308256342,1702,299.84329240454923,44,26.40075756488817,370,97,79,35.510561809129406,7,16.278820596099706,4,5.6568542494923806,81,51.429563482495162,308,94.578010129204984,669,144.58907289280197,495,142.30249470757707,164,72.718635850791372,251,101.40019723846694,324,89.938868127189593,996,262.48809496813374,537,246.86838598735156]
[null,"35 to 64 years:",327,61.220911460055866,1269,194.46593532030229,390,77.103826104804938,168,43.931765272977593,3908,312.80025575437116,102,30,624,78.746428490440124,573,87.114866699088736,38,17.804493814764857,27,18.439088914585774,353,102.59142264341595,1098,98.493654617949886,1566,148.51935900750448,1970,227.11450856341168,578,85.562842402528915,1532,199.46177578674065,741,90.686272390037075,2213,206.48002324680226,2591,263.75936002348806]
[null,"With a disability",37,21.023796041628639,70,71.847059786744225,43,24.758836806279895,14,10.63014581273465,413,186.20687420178666,20,12.806248474865697,69,26.90724809414742,65,25.495097567963924,6,7.2111025509279782,7,14.212670403551895,12,19.416487838947599,105,62.393909959225986,99,53.814496188294839,316,129.32130528261769,62,30.479501308256342,298,166.92812824685959,109,44.045431091090478,362,154.02921800749363,428,214.72307747422028]
[null,"No disability",290,60.21627686929839,1199,201.73497465734593,347,66.528189513919585,154,41.109609582188931,3495,298.39906166072308,82,25.80697580112788,555,78.492037812761623,508,81.21576201698781,32,15.620499351813308,20,15.652475842498529,341,101.86265262597475,993,101.86265262597475,1467,154.20765220960988,1654,225.99557517792246,516,81.320354155647891,1234,174.91712323268982,632,92.956979296876895,1851,212.04952251773642,2163,234.52291998864419]
[null,"65 to 74 years:",87,30.232432915661949,592,211.48285982556601,131,35.355339059327378,46,22.472205054244231,1339,234.18368858654523,70,25.495097567963924,216,48.166378315169183,354,57.280013966478741,81,21.213203435596427,9,14.866068747318506,216,72.138755187485728,356,87.114866699088736,810,147.32277488562318,661,155.56670594957006,329,67.94115100585212,177,92.849340331528467,554,113.85077953180645,597,154.30165261590687,1212,228.71160880025309]
[null,"With a disability",3,11.704699910719626,164,104.1393297462587,13,11.401754250991379,15,14.7648230602334,253,138.39797686382559,7,7.2111025509279782,51,26.419689627245813,66,25.612496949731394,7,7.810249675906654,0,15.556349186104045,21,20.124611797498108,64,39.446165846632042,222,86.16263691415206,210,85.802097876450546,52,26.172504656604801,50,44.10215414239989,68,34.669871646719429,189,122.0245876862528,315,140.46351839534705]
[null,"No disability",84,29.681644159311659,428,200.26232796010336,118,32.526911934581186,31,17.804493814764857,1086,225.22211259110415,63,24.758836806279895,165,42.01190307520001,288,52.345009313209601,74,20.518284528683193,9,14.866068747318506,195,70.724818840347695,292,82.800966177937809,588,126.81088281373961,451,143.40153416194681,277,65.76473218982953,127,85.440037453175307,486,103.46980235798269,408,124.01612798341996,897,217.49712641779891]
[null,"75 years and over:",63,28.635642126552707,265,139.08630414242805,21,11.401754250991379,44,23.430749027719962,730,194.48650338776724,26,15.811388300841896,58,25.942243542145693,170,42.449970553582247,54,20.518284528683193,2,4.2426406871192848,92,42.638011210655684,273,78.409183135650636,391,99.704563586628268,321,103.32473082471591,189,50.24937810560445,345,132.96616110875729,283,75.166481891864535,388,114.62983904725679,1067,211.69081227110448]
[null,"With a disability",38,26.248809496813376,143,100.17983829094555,5,5.8309518948453007,26,17.804493814764857,162,76.609398901179219,13,9.2195444572928871,16,13.416407864998739,79,26.627053911388696,22,13.038404810405298,1,11.401754250991379,22,17.088007490635061,147,65.79513659838392,162,67.623960250786851,168,63.820059542435402,78,30.232432915661949,138,95.482982777037293,142,49.739320461783549,123,91.967385523347346,616,197.57024067404484]
[null,"No disability",25,12.041594578792296,122,94.111635837445732,16,10,18,12.041594578792296,568,187.44865963777923,13,10.295630140987001,42,20.124611797498108,91,34.205262752974143,32,14.212670403551895,1,11.401754250991379,{"$f":"W45+W26","v":70},{"$f":"SQRT((X45^2)+(X26^2))","v":39.698866482558415},{"$f":"Y45+Y26","v":126},{"$f":"SQRT((Z45^2)+(Z26^2))","v":57.384666941614292},229,75.690157880665041,153,82.024386617639507,111,36.124783736376884,207,104.66135867644753,141,60.108235708594876,265,84.876380695691779,451,177.51901306620653]
[]
[]
[]
[]
[]
[]
[]
[]
[]
[]
[]
[]
[]
[]
[]
[]
[]
[]
[]
[]
[]
[]
[]
[]
[]
[]
["B18101. SEX BY AGE BY DISABILITY STATUS\n-Calculated"]
["Universe:  Civilian non-institutionalized population"]
["Data Set: 2010-2014 American Community Survey 5-Year Estimates"]
[]
[]
[null,null,"Albany",null,"Bartlett",null,"Brookfield",null,"Chatham",null,"Conway",null,"Eaton",null,"Effingham",null,"Freedom",null,"Hale's Location",null,"Hart's Location",null,"Jackson",null,"Madison",null,"Moultonborough",null,"Ossipee",null,"Sandwich",null,"Tamworth",null,"Tuftonboro",null,"Wakefield",null,"Wolfeboro"]
[null,null,"Estimate","Margin Of Error","Estimate","Margin Of Error","Estimate","Margin Of Error","Estimate","Margin Of Error","Estimate","Margin Of Error","Estimate","Margin Of Error","Estimate","Margin Of Error","Estimate","Margin Of Error","Estimate","Margin Of Error","Estimate","Margin Of Error","Estimate","Margin Of Error","Estimate","Margin Of Error","Estimate","Margin Of Error","Estimate","Margin Of Error","Estimate","Margin Of Error","Estimate","Margin Of Error","Estimate","Margin Of Error","Estimate","Margin Of Error","Estimate","Margin Of Error"]
[null,"Total",800,176,2767,20,786,200,393,96,9930,71,348,65,1362,168,1195,152,137,41,41,24,1032,242,2507,18,4032,19,4136,113,1484,191,2851,19,2256,298,5046,37,6103,76]
[null,"Under 5 years:",60,36.221540552549669,101,79.630396206473819,26,19.849433241279208,29,22.022715545545239,459,151.42654985173505,1,11.704699910719626,49,27.313000567495326,53,24.186773244895647,0,15.556349186104045,0,15.556349186104045,63,45.276925690687087,118,59.640590204993778,130,74.518454090245328,166,94.752308678997366,53,36.055512754639892,10,17.804493814764857,129,63.631753079732135,221,126.56223765404908,144,107.8563859954523]
[null,"With a disability",0,15.556349186104045,0,15.556349186104045,3,12.083045973594572,0,15.556349186104045,0,24.041630560342615,0,15.556349186104045,0,15.556349186104045,0,15.556349186104045,0,15.556349186104045,0,15.556349186104045,0,15.556349186104045,0,15.556349186104045,0,15.556349186104045,0,15.556349186104045,0,15.556349186104045,0,15.556349186104045,0,15.556349186104045,0,21.213203435596427,0,21.213203435596427]
[null,"No disability",60,36.221540552549669,101,79.630396206473819,23,19.104973174542799,29,22.022715545545239,459,151.42654985173505,1,11.704699910719626,49,27.313000567495326,53,24.186773244895647,0,15.556349186104045,0,15.556349186104045,63,45.276925690687087,118,59.640590204993778,130,74.518454090245328,166,94.752308678997366,53,36.055512754639892,10,17.804493814764857,129,63.631753079732135,221,126.56223765404908,144,107.8563859954523]
[null,"5 to 17 years:",155,72.862884927787476,259,136.01470508735443,162,80.448741444475061,55,23.323807579381203,1543,273.4702908909851,27,14.422205101855956,169,47.201694884823787,157,50.24937810560445,3,12.529964086141668,3,12.083045973594572,119,66.2872536767062,327,83.630138108220294,501,128.22636234409833,782,172.00290695217916,274,77.175125526298956,181,80.65977932030313,391,145.08618128546908,493,153.00326793895613,891,246.1097316239242]
[null,"With a disability",0,15.556349186104045,0,15.556349186104045,5,13.038404810405298,6,12.529964086141668,74,48.764741360946438,0,15.556349186104045,17,11.401754250991379,24,25.495097567963924,0,15.556349186104045,0,15.556349186104045,0,15.556349186104045,31,24.413111231467404,31,38.600518131237564,59,57.070132293521098,4,13.601470508735444,0,15.556349186104045,36,33.286633954186478,32,36.249137920783717,18,23.430749027719962]
[null,"No disability",155,72.862884927787476,259,136.01470508735443,157,80.448741444475061,49,22.472205054244231,1469,265.49764594059963,27,14.422205101855956,152,45.221676218380054,133,40.459856648287818,3,12.529964086141668,3,12.083045973594572,119,66.2872536767062,296,87.863530545955186,470,133.00375934536586,723,168.01488029338353,270,75.471849056452825,181,80.65977932030313,355,143.1258187749506,461,154.61565250646521,873,246.1097316239242]
[null,"18 to 34 years:",65,38.209946349085598,408,157.69908052997647,99,43.600458713183279,97,35.383612025908263,1983,331.85087012090236,31,19.849433241279208,286,75.604232685743199,138,46.400431032480725,0,15.556349186104045,9,8.6023252670426267,129,74.027022093286988,270,75.802374632988901,398,113.86395390991831,585,150.60212481900777,169,69.296464556281663,321,121.91800523302537,277,89.938868127189593,804,220.16584657934573,776,248.16325271885037]
[null,"With a disability",0,15.556349186104045,3,12.083045973594572,3,13.038404810405298,15,16.124515496597098,175,112.0044641967453,0,15.556349186104045,17,11.180339887498949,6,7.0710678118654755,0,15.556349186104045,0,15.556349186104045,0,15.556349186104045,58,40.80441152620633,27,33.941125496954278,103,67.208630398186216,20,18.601075237738275,16,26.40075756488817,0,15.556349186104045,128,109.03669107231748,82,62.032249677083293]
[null,"No disability",65,38.209946349085598,405,157.69908052997647,96,42.43819034784589,82,29.832867780352597,1808,325.8542619024646,31,19.849433241279208,269,75,132,45.607017003965517,0,15.556349186104045,9,8.6023252670426267,129,74.027022093286988,212,62.425956140054431,371,113.86395390991831,482,143.22011031974526,149,67.896980787071826,305,121.16517651536682,277,89.938868127189593,676,204.41379601191306,694,240.20407989873945]
[null,"35 to 64 years:",386,65.76473218982953,1368,221.73181999884454,320,62.968245965724662,149,36.235341863986875,4300,343.84007910655208,191,38.209946349085598,621,87.367041840730764,467,63.63961030678928,40,15.620499351813308,24,17,364,86.833173384369644,1372,117.51595636338071,1960,162.65915283192643,1853,206.51876428063383,619,76.380625815713245,1764,215.72436116489024,952,140.71957930579526,2524,277.20028860013838,2344,236.78260071213003]
[null,"With a disability",30,13.45362404707371,263,135.14806694880988,32,19.849433241279208,12,12.649110640673518,558,176.32356620712955,23,18.027756377319946,107,32.802438933713454,84,33.941125496954278,5,6.7082039324993694,0,15.556349186104045,32,25,122,47.201694884823787,173,83.630138108220294,289,129.80754985747168,35,16.124515496597098,514,200.06249023742558,87,42.43819034784589,487,172.97687706742772,250,131.36590120727678]
[null,"No disability",356,65.79513659838392,1105,213.17832910500073,288,62.936475910238251,137,34.058772731852805,3742,348.81083698761427,168,34.713109915419565,514,84.905830188509441,383,60.141499815019579,35,14.422205101855956,24,17,332,82.200973230248309,1250,126.65701717630967,1787,163.60012224934309,1564,205.06584308460538,584,73.552702193733168,1250,196.60366222428308,865,131.89389675038038,2037,288.04339950778251,2094,236.24140195994434]
[null,"65 to 74 years:",76,25.45584412271571,439,148.49915824677257,116,38.013155617496423,45,16.643316977093239,979,220.62184841941652,72,21.633307652783937,122,29.832867780352597,168,40.36087214122113,55,16.970562748477139,3,12.529964086141668,225,68.117545463705611,226,68.410525505948286,734,137.97463535012514,435,100.89598604503551,162,35.227829907617071,293,110.63453348751464,255,69.404610797842537,642,186.94651641579205,1156,189.76301009416983]
[null,"With a disability",27,15.652475842498529,147,92.956979296876895,10,15.556349186104045,9,8.4852813742385695,292,131.82564242210239,15,11.401754250991379,16,9.8994949366116654,36,19.104973174542799,6,5.8309518948453007,3,12.529964086141668,18,15.620499351813308,49,32.015621187164243,73,45.607017003965517,153,72.670489196096653,22,11.401754250991379,84,64.845971347493901,43,25.632011235952593,192,124.95199078045935,188,106.73331251301067]
[null,"No disability",49,20.248456731316587,292,121.40016474453401,106,36.400549446402593,36,15.264337522473747,687,172.04650534085255,57,21.400934559032695,106,28.319604517012593,132,35.608987629529715,49,16.970562748477139,0,15.556349186104045,207,64.660652641308843,177,58.694122363316758,661,130.728726758888,282,87.920418561333065,140,33.837848631377263,209,94.413982015377357,212,63.253458403473878,450,157.87653403846943,968,184.28781837115551]
[null,"75 years and over:",58,24.041630560342615,192,102.61578825892242,63,38.209946349085598,18,10.63014581273465,666,143.66976021418009,26,12.806248474865697,115,37.443290453698111,212,50.911688245431421,39,14.866068747318506,2,11.401754250991379,132,47.381430961928537,194,68.796802251267465,309,95.775779819325933,315,104.65180361560904,207,48.918299234540036,282,119.36498649101419,252,101.13851887386922,362,117.44360348695028,792,182.78402556022229]
[null,"With a disability",35,22.803508501982758,50,48.373546489791295,25,26.248809496813376,10,7.0710678118654755,321,114.28473213863697,13,8.5440037453175304,53,23.600847442411894,96,31.400636936215164,15,8.6023252670426267,2,11.401754250991379,39,26.419689627245813,89,46.690470119715009,132,62.425956140054431,183,77.369244535538797,74,27.802877548915689,101,57.245087125446844,77,41.231056256176608,218,124.86793023030373,296,133.00375934536586]
[null,"No disability",23,12.727922061357855,142,92.195444572928878,38,25.45584412271571,8,7.2111025509279782,345,98.812954616284998,13,8.6023252670426267,62,29.410882339705484,116,41.048751503547585,24,12.041594578792296,0,15.556349186104045,93,39.408120990476064,105,53.535035257296691,177,70.092795635500224,132,69.318107302493488,133,38.832975677895199,181,111.48542505637228,175,95.336247041720711,144,73.661387442811588,496,132.90974381135493]

{"sheet":"ACS_Table_B18102","index":31,"n_rows":125,"n_cols":40,"rows_kept":125,"cut":false,"hidden":true,"merged":[]}
["B18102. SEX BY AGE BY HEARING DIFFICULTY\n\n"]
["Universe:  Civilian non-institutionalized population"]
["Data Set: 2015-2019 American Community Survey 5-Year Estimates"]
[]
[null,null,"Albany",null,"Bartlett",null,"Brookfield",null,"Chatham",null,"Conway",null,"Eaton",null,"Effingham",null,"Freedom",null,"Hale's Location",null,"Hart's Location",null,"Jackson",null,"Madison",null,"Moultonborough",null,"Ossipee",null,"Sandwich",null,"Tamworth",null,"Tuftonboro",null,"Wakefield",null,"Wolfeboro"]
[null,null,"Estimate","Margin Of Error","Estimate","Margin Of Error","Estimate","Margin Of Error","Estimate","Margin Of Error","Estimate","Margin Of Error","Estimate","Margin Of Error","Estimate","Margin Of Error","Estimate","Margin Of Error","Estimate","Margin Of Error","Estimate","Margin Of Error","Estimate","Margin Of Error","Estimate","Margin Of Error","Estimate","Margin Of Error","Estimate","Margin Of Error","Estimate","Margin Of Error","Estimate","Margin Of Error","Estimate","Margin Of Error","Estimate","Margin Of Error","Estimate","Margin Of Error"]
[null,"Total:",703,142,2774,14,797,184,372,127,9979,47,265,72,1630,231,1349,178,183,43,42,30,891,228,2553,20,4099,28,4158,121,1440,180,2994,13,2213,215,5016,46,6220,41]
[null,"Male:",351,75,1397,161,415,106,193,61,5080,283,130,46,712,108,662,94,92,28,23,17,365,90,1242,97,1991,134,1996,168,698,95,1617,138,1059,125,2584,179,3097,232]
[null,"Under 5 years:",19,28,33,38,11,12,5,8,268,100,0,11,26,22,0,11,0,11,0,11,2,4,34,28,41,31,166,71,27,20,66,43,29,31,123,54,177,114]
[null,"With hearing difficulty",0,11,0,11,0,11,0,11,0,18,0,11,0,11,0,11,0,11,0,11,0,11,0,11,0,11,0,11,0,11,0,11,0,11,0,16,0,16]
[null,"With no hearing difficulty",19,28,33,38,11,12,5,8,268,100,0,11,26,22,0,11,0,11,0,11,2,4,34,28,41,31,166,71,27,20,66,43,29,31,123,54,177,114]
[null,"5 to 17  years:",62,31,88,53,69,36,26,19,970,242,7,7,99,39,79,36,0,11,0,11,23,27,246,85,293,117,154,79,65,31,323,164,124,41,251,86,217,141]
[null,"With hearing difficulty",0,11,0,11,0,11,3,5,0,18,0,11,0,11,0,11,0,11,0,11,0,11,0,11,0,11,0,11,0,11,0,11,0,11,0,16,0,16]
[null,"With no hearing difficulty",62,31,88,53,69,36,23,17,970,242,7,7,99,39,79,36,0,11,0,11,23,27,246,85,293,117,154,79,65,31,323,164,124,41,251,86,217,141]
[null,"18 to 34  years:",50,34,217,130,67,48,30,22,863,206,34,24,174,65,50,30,7,12,2,4,21,23,145,56,301,97,363,115,67,39,196,103,170,67,574,158,364,226]
[null,"With hearing difficulty",0,11,0,11,0,11,5,9,0,18,0,11,0,11,0,11,0,11,0,11,0,11,1,3,0,11,22,38,0,11,0,11,0,11,51,59,0,16]
[null,"With no hearing difficulty",50,34,217,130,67,48,25,19,863,206,34,24,174,65,50,30,7,12,2,4,21,23,144,56,301,97,341,125,67,39,196,103,170,67,523,150,364,226]
[null,"35 to 64  years:",140,38,635,139,187,56,87,29,1783,230,38,18,289,51,262,58,16,11,11,12,176,75,528,74,737,107,930,155,273,60,840,172,332,60,1095,145,1337,185]
[null,"With hearing difficulty",8,7,36,46,5,7,4,5,142,136,6,7,12,14,17,15,0,11,4,8,9,15,0,11,0,11,10,16,10,12,125,96,24,19,64,76,46,53]
[null,"With no hearing difficulty",132,36,599,147,182,54,83,27,1641,228,32,17,277,53,245,55,16,11,7,8,167,75,528,74,737,107,920,152,263,59,715,163,308,60,1031,139,1291,191]
[null,"65 to 74  years:",53,25,331,146,69,25,20,12,783,179,38,19,107,36,184,40,43,15,9,10,104,52,157,58,442,110,254,99,172,50,31,35,262,71,324,120,509,153]
[null,"With hearing difficulty",0,11,42,48,5,8,3,5,0,18,4,6,32,23,9,9,4,6,0,11,9,9,6,8,105,66,48,35,19,19,0,11,21,27,10,17,131,107]
[null,"With no hearing difficulty",53,25,289,148,64,24,17,12,783,179,34,18,75,26,175,38,39,15,9,10,95,51,151,58,337,94,206,91,153,49,31,35,241,61,314,120,378,144]
[null,"75  years and Older:",27,12,93,72,12,9,25,18,413,159,13,13,17,12,87,29,26,14,1,3,39,27,132,48,177,71,129,70,94,37,161,96,142,49,217,84,493,142]
[null,"With hearing difficulty",4,3,0,11,3,5,1,4,29,23,4,5,0,11,21,14,6,6,0,11,3,4,20,24,41,27,29,26,46,25,15,21,34,19,59,63,224,125]
[null,"With no hearing difficulty",23,12,93,72,9,8,24,17,384,162,9,10,17,12,66,28,20,12,1,3,36,26,112,42,136,66,100,66,48,24,146,95,108,49,158,70,269,137]
[null,"Female:",352,91,1377,158,382,88,179,75,4899,287,135,37,918,146,687,104,91,20,19,14,526,152,1311,101,2108,130,2162,162,742,114,1377,136,1154,127,2432,174,3123,226]
[null,"Under 5 years:",8,9,0,11,0,11,6,9,211,111,9,10,89,57,5,6,0,11,0,11,59,48,89,50,50,39,44,35,26,24,43,59,61,42,170,92,0,16]
[null,"With hearing difficulty",0,11,0,11,0,11,0,11,0,18,0,11,0,11,0,11,0,11,0,11,0,11,0,11,0,11,0,11,0,11,0,11,0,11,0,16,0,16]
[null,"With no hearing difficulty",8,9,0,11,0,11,6,9,211,111,9,10,89,57,5,6,0,11,0,11,59,48,89,50,50,39,44,35,26,24,43,59,61,42,170,92,0,16]
[null,"5 to 17  years:",21,13,185,118,55,45,29,23,703,162,7,6,144,47,84,41,3,4,0,11,65,63,129,61,247,88,294,105,48,27,154,112,83,41,123,86,399,129]
[null,"With hearing difficulty",0,11,14,20,4,7,0,11,0,18,0,11,0,11,0,11,0,11,0,11,0,11,0,11,0,11,0,11,0,11,0,11,0,11,0,16,0,16]
[null,"With no hearing difficulty",21,13,171,117,51,46,29,23,703,162,7,6,144,47,84,41,3,4,0,11,65,63,129,61,247,88,294,105,48,27,154,112,83,41,123,86,399,129]
[null,"18 to 34  years:",66,38,125,82,53,36,18,23,987,208,10,11,200,72,34,23,0,11,2,4,60,46,183,79,400,110,185,81,111,63,158,87,168,64,577,194,193,112]
[null,"With hearing difficulty",0,11,0,11,5,10,0,11,0,18,0,11,0,11,0,11,0,11,0,11,0,11,0,11,0,11,4,9,0,11,18,26,0,11,0,16,0,16]
[null,"With no hearing difficulty",66,38,125,82,48,34,18,23,987,208,10,11,200,72,34,23,0,11,2,4,60,46,183,79,400,110,181,81,111,63,140,85,168,64,577,194,193,112]
[null,"35 to 64  years:",187,48,634,136,203,53,81,33,2125,212,64,24,335,60,311,65,22,14,16,14,177,70,570,65,829,103,1040,166,305,61,692,101,409,68,1118,147,1254,188]
[null,"With hearing difficulty",3,5,0,11,0,11,4,6,35,56,0,11,0,11,6,6,0,11,0,11,0,11,39,37,7,11,22,27,8,9,0,11,28,28,0,16,0,16]
[null,"With no hearing difficulty",184,48,634,136,203,53,77,32,2090,217,64,24,335,60,305,64,22,14,16,14,177,70,531,67,822,103,1018,166,297,60,692,101,381,72,1118,147,1254,188]
[null,"65 to 74  years:",34,17,261,153,62,25,26,19,556,151,32,17,109,32,170,41,38,15,0,11,112,50,199,65,368,98,407,120,157,46,146,86,292,89,273,97,703,170]
[null,"With hearing difficulty",3,4,12,18,3,5,0,11,18,27,0,11,8,8,18,12,1,4,0,11,0,11,6,8,9,13,0,11,0,11,0,11,11,11,14,22,43,48]
[null,"With no hearing difficulty",31,16,249,152,59,24,26,19,538,147,32,17,101,32,152,37,37,15,0,11,112,50,193,64,359,98,407,120,157,46,146,86,281,87,259,96,660,174]
[null,"75  years and Older:",36,26,172,119,9,7,19,15,317,112,13,9,41,23,83,31,28,15,1,3,53,33,141,62,214,70,192,76,95,34,184,92,141,57,171,78,574,157]
[null,"With hearing difficulty",10,13,0,11,0,11,5,8,36,36,0,11,3,5,19,14,11,10,0,11,10,16,27,22,53,42,77,53,10,8,58,67,19,15,0,16,49,37]
[null,"With no hearing difficulty",26,18,172,119,9,7,14,13,281,107,13,9,38,23,64,29,17,10,1,3,43,30,114,57,161,61,115,64,85,33,126,74,122,55,171,78,525,161]
[]
[]
["B18102. SEX BY AGE BY HEARING DIFFICULTY\n\n-Calculated"]
["Universe:  Civilian non-institutionalized population"]
["Data Set: 2010-2014 American Community Survey 5-Year Estimates"]
[]
[]
[null,null,"Albany",null,"Bartlett",null,"Brookfield",null,"Chatham",null,"Conway",null,"Eaton",null,"Effingham",null,"Freedom",null,"Hale's Location",null,"Hart's Location",null,"Jackson",null,"Madison",null,"Moultonborough",null,"Ossipee",null,"Sandwich",null,"Tamworth",null,"Tuftonboro",null,"Wakefield",null,"Wolfeboro"]
[null,null,"Estimate","Margin Of Error","Estimate","Margin Of Error","Estimate","Margin Of Error","Estimate","Margin Of Error","Estimate","Margin Of Error","Estimate","Margin Of Error","Estimate","Margin Of Error","Estimate","Margin Of Error","Estimate","Margin Of Error","Estimate","Margin Of Error","Estimate","Margin Of Error","Estimate","Margin Of Error","Estimate","Margin Of Error","Estimate","Margin Of Error","Estimate","Margin Of Error","Estimate","Margin Of Error","Estimate","Margin Of Error","Estimate","Margin Of Error","Estimate","Margin Of Error"]
[null,"Total",{"$f":"C7","v":703},142,2774,14,797,184,372,127,9979,47,265,72,1630,231,1349,178,183,43,42,30,891,228,2553,20,4099,28,4158,121,1440,180,2994,13,2213,215,5016,46,6220,41]
[null,"Under 5 years:",{"$f":"C28+C9","v":27},{"$f":"SQRT((D28^2)+(D9^2))","v":29.410882339705484},{"$f":"E28+E9","v":33},{"$f":"SQRT((F28^2)+(F9^2))","v":39.560080889704963},{"$f":"G28+G9","v":11},{"$f":"SQRT((H28^2)+(H9^2))","v":16.278820596099706},{"$f":"I28+I9","v":11},{"$f":"SQRT((J28^2)+(J9^2))","v":12.041594578792296},{"$f":"K28+K9","v":479},{"$f":"SQRT((L28^2)+(L9^2))","v":149.40214188558343},{"$f":"M28+M9","v":9},{"$f":"SQRT((N28^2)+(N9^2))","v":14.866068747318506},{"$f":"O28+O9","v":115},{"$f":"SQRT((P28^2)+(P9^2))","v":61.098281481560512},{"$f":"Q28+Q9","v":5},{"$f":"SQRT((R28^2)+(R9^2))","v":12.529964086141668},{"$f":"S28+S9","v":0},{"$f":"SQRT((T28^2)+(T9^2))","v":15.556349186104045},{"$f":"U28+U9","v":0},{"$f":"SQRT((V28^2)+(V9^2))","v":15.556349186104045},{"$f":"W28+W9","v":61},{"$f":"SQRT((X28^2)+(X9^2))","v":48.166378315169183},{"$f":"Y28+Y9","v":123},{"$f":"SQRT((Z28^2)+(Z9^2))","v":57.30619512757761},{"$f":"AA28+AA9","v":91},{"$f":"SQRT((AB28^2)+(AB9^2))","v":49.819674828324601},{"$f":"AC28+AC9","v":210},{"$f":"SQRT((AD28^2)+(AD9^2))","v":79.158069708653201},{"$f":"AE28+AE9","v":53},{"$f":"SQRT((AF28^2)+(AF9^2))","v":31.240998703626616},{"$f":"AG28+AG9","v":109},{"$f":"SQRT((AH28^2)+(AH9^2))","v":73.006848993775918},{"$f":"AI28+AI9","v":90},{"$f":"SQRT((AJ28^2)+(AJ9^2))","v":52.201532544552748},{"$f":"AK28+AK9","v":293},{"$f":"SQRT((AL28^2)+(AL9^2))","v":106.6770828247567},{"$f":"AM28+AM9","v":177},{"$f":"SQRT((AN28^2)+(AN9^2))","v":115.11733144926528}]
[null,"With hearing difficulty",{"$f":"C29+C10","v":0},{"$f":"SQRT((D29^2)+(D10^2))","v":15.556349186104045},{"$f":"E29+E10","v":0},{"$f":"SQRT((F29^2)+(F10^2))","v":15.556349186104045},{"$f":"G29+G10","v":0},{"$f":"SQRT((H29^2)+(H10^2))","v":15.556349186104045},{"$f":"I29+I10","v":0},{"$f":"SQRT((J29^2)+(J10^2))","v":15.556349186104045},{"$f":"K29+K10","v":0},{"$f":"SQRT((L29^2)+(L10^2))","v":25.45584412271571},{"$f":"M29+M10","v":0},{"$f":"SQRT((N29^2)+(N10^2))","v":15.556349186104045},{"$f":"O29+O10","v":0},{"$f":"SQRT((P29^2)+(P10^2))","v":15.556349186104045},{"$f":"Q29+Q10","v":0},{"$f":"SQRT((R29^2)+(R10^2))","v":15.556349186104045},{"$f":"S29+S10","v":0},{"$f":"SQRT((T29^2)+(T10^2))","v":15.556349186104045},{"$f":"U29+U10","v":0},{"$f":"SQRT((V29^2)+(V10^2))","v":15.556349186104045},{"$f":"W29+W10","v":0},{"$f":"SQRT((X29^2)+(X10^2))","v":15.556349186104045},0,15.556349186104045,0,15.556349186104045,0,15.556349186104045,0,15.556349186104045,0,15.556349186104045,0,15.556349186104045,0,22.627416997969522,0,22.627416997969522]
[null,"With no hearing difficulty",27,29.410882339705484,33,39.560080889704963,11,16.278820596099706,11,12.041594578792296,479,149.40214188558343,9,14.866068747318506,115,61.098281481560512,5,12.529964086141668,0,15.556349186104045,0,15.556349186104045,61,48.166378315169183,123,57.30619512757761,91,49.819674828324601,210,79.158069708653201,53,31.240998703626616,109,73.006848993775918,90,52.201532544552748,293,106.6770828247567,177,115.11733144926528]
[null,"5 to 17  years:",83,33.61547262794322,273,129.3560976529518,124,57.628118136895637,55,29.832867780352597,1673,291.21813130366729,14,9.2195444572928871,243,61.073725938409879,163,54.561891462814962,3,11.704699910719626,0,15.556349186104045,88,68.541957952775178,375,104.62313319720452,540,146.40013661195812,448,131.40015220691336,113,41.109609582188931,477,198.59506539690256,207,57.982756057296896,374,121.62236636408618,616,191.10729970359583]
[null,"With hearing difficulty",0,15.556349186104045,14,22.825424421026653,4,13.038404810405298,3,12.083045973594572,0,25.45584412271571,0,15.556349186104045,0,15.556349186104045,0,15.556349186104045,0,15.556349186104045,0,15.556349186104045,0,15.556349186104045,0,15.556349186104045,0,15.556349186104045,0,15.556349186104045,0,15.556349186104045,0,15.556349186104045,0,15.556349186104045,0,22.627416997969522,0,22.627416997969522]
[null,"With no hearing difficulty",83,33.61547262794322,259,128.4445405612866,120,58.412327466040935,52,28.600699292150182,1673,291.21813130366729,14,9.2195444572928871,243,61.073725938409879,163,54.561891462814962,3,11.704699910719626,0,15.556349186104045,88,68.541957952775178,375,104.62313319720452,540,146.40013661195812,448,131.40015220691336,113,41.109609582188931,477,198.59506539690256,207,57.982756057296896,374,121.62236636408618,616,191.10729970359583]
[null,"18 to 34  years:",116,50.990195135927848,342,153.7010084547268,120,60,48,31.827660925679098,1850,292.74562336608892,44,26.40075756488817,374,97,84,37.802116342871599,7,16.278820596099706,4,5.6568542494923806,81,51.429563482495162,328,96.834911060009759,701,146.65946952038249,548,140.66271716414411,178,74.094534211370814,354,134.82581355215328,338,92.655275079188016,1151,250.19992006393608,557,252.23005372080465]
[null,"With hearing difficulty",0,15.556349186104045,0,15.556349186104045,5,14.866068747318506,5,14.212670403551895,0,25.45584412271571,0,15.556349186104045,0,15.556349186104045,0,15.556349186104045,0,15.556349186104045,0,15.556349186104045,0,15.556349186104045,1,11.401754250991379,0,15.556349186104045,26,39.05124837953327,0,15.556349186104045,18,28.231188426986208,0,15.556349186104045,51,61.1310068623117,0,22.627416997969522]
[null,"With no hearing difficulty",116,50.990195135927848,342,153.7010084547268,115,58.821764679410968,43,29.832867780352597,1850,292.74562336608892,44,26.40075756488817,374,97,84,37.802116342871599,7,16.278820596099706,4,5.6568542494923806,81,51.429563482495162,327,96.834911060009759,701,146.65946952038249,522,148.94965592440957,178,74.094534211370814,336,133.5440002396214,338,92.655275079188016,1100,245.22642598219304,557,252.23005372080465]
[null,"35 to 64  years:",327,61.220911460055866,1269,194.46593532030229,390,77.103826104804938,168,43.931765272977593,3908,312.80025575437116,102,30,624,78.746428490440124,573,87.114866699088736,38,17.804493814764857,27,18.439088914585774,353,102.59142264341595,1098,98.493654617949886,1566,148.51935900750448,1970,227.11450856341168,578,85.562842402528915,1532,199.46177578674065,741,90.686272390037075,2213,206.48002324680226,2591,263.75936002348806]
[null,"With hearing difficulty",11,8.6023252670426267,36,47.296934361541872,5,13.038404810405298,8,7.810249675906654,177,147.07821048680188,6,13.038404810405298,12,17.804493814764857,23,16.15549442140351,0,15.556349186104045,4,13.601470508735444,9,18.601075237738275,39,38.600518131237564,7,15.556349186104045,32,31.384709652950431,18,15,125,96.628153247384375,52,33.837848631377263,64,77.665951355790398,46,55.362442142665635]
[null,"With no hearing difficulty",316,60,1233,200.26232796010336,385,75.663729752107784,160,41.868842830916641,3731,314.75863768926183,96,29.410882339705484,612,80.05623023850174,550,84.38601779915912,38,17.804493814764857,23,16.124515496597098,344,102.59142264341595,1059,99.824846606443629,1559,148.51935900750448,1938,225.07776433935007,560,84.148677945645701,1407,191.75505208468434,689,93.722996110879848,2149,202.3116407921205,2545,268.00186566514793]
[null,"65 to 74  years:",87,30.232432915661949,592,211.48285982556601,131,35.355339059327378,46,22.472205054244231,1339,234.18368858654523,70,25.495097567963924,216,48.166378315169183,354,57.280013966478741,81,21.213203435596427,9,14.866068747318506,216,72.138755187485728,356,87.114866699088736,810,147.32277488562318,661,155.56670594957006,329,67.94115100585212,177,92.849340331528467,554,113.85077953180645,597,154.30165261590687,1212,228.71160880025309]
[null,"With hearing difficulty",3,11.704699910719626,54,51.264022471905186,8,9.4339811320566032,3,12.083045973594572,18,32.449961479175904,4,12.529964086141668,40,24.351591323771842,27,15,5,7.2111025509279782,0,15.556349186104045,9,14.212670403551895,12,11.313708498984761,114,67.268120235368556,48,36.687872655688281,19,21.95449840010015,0,15.556349186104045,32,29.154759474226502,24,27.802877548915689,174,117.27318534089538]
[null,"With no hearing difficulty",84,29.681644159311659,538,212.15088969881791,123,33.941125496954278,43,22.472205054244231,1321,231.62469643800938,66,24.758836806279895,176,41.231056256176608,327,53.037722424704477,76,21.213203435596427,9,14.866068747318506,207,71.421285342676384,344,86.371291526756735,696,135.79396157414365,613,150.60212481900777,310,67.208630398186216,177,92.849340331528467,522,106.25441167311595,573,153.67498169838836,1038,225.85836269662454]
[null,"75  years and Older:",63,28.635642126552707,265,139.08630414242805,21,11.401754250991379,44,23.430749027719962,730,194.48650338776724,26,15.811388300841896,58,25.942243542145693,170,42.449970553582247,54,20.518284528683193,2,4.2426406871192848,92,42.638011210655684,273,78.409183135650636,391,99.704563586628268,321,103.32473082471591,189,50.24937810560445,345,132.96616110875729,283,75.166481891864535,388,114.62983904725679,1067,211.69081227110448]
[null,"With hearing difficulty",14,13.341664064126334,0,15.556349186104045,3,12.083045973594572,6,8.9442719099991592,65,42.720018726587654,4,12.083045973594572,3,12.083045973594572,40,19.798989873223331,17,11.661903789690601,0,15.556349186104045,13,16.492422502470642,47,32.557641192199412,94,49.929950931279713,106,59.033888572581766,56,26.248809496813376,73,70.213958726167832,53,24.207436873820409,59,65,273,130.36103712382777]
[null,"With no hearing difficulty",49,21.633307652783937,265,139.08630414242805,18,10.63014581273465,38,21.400934559032695,665,194.14685163555961,22,13.45362404707371,55,25.942243542145693,130,40.311288741492746,37,15.620499351813308,2,4.2426406871192848,{"$f":"W45+W26","v":79},{"$f":"SQRT((X45^2)+(X26^2))","v":39.698866482558415},{"$f":"Y45+Y26","v":226},{"$f":"SQRT((Z45^2)+(Z26^2))","v":70.802542327235685},297,89.872131386765275,215,91.934759476489631,133,40.80441152620633,272,120.42009799032718,230,73.661387442811588,329,104.80458005259122,794,211.4000946073582]
[]
[]
[]
[]
[]
[]
[]
[]
[]
[]
[]
[]
[]
[]
[]
[]
[]
[]
[]
[]
[]
[]
[]
[]
[]
[]
["B18102. SEX BY AGE BY HEARING DIFFICULTY\n\n-Calculated"]
["Universe:  Civilian non-institutionalized population"]
["Data Set: 2010-2014 American Community Survey 5-Year Estimates"]
[]
[]
[null,null,"Albany",null,"Bartlett",null,"Brookfield",null,"Chatham",null,"Conway",null,"Eaton",null,"Effingham",null,"Freedom",null,"Hale's Location",null,"Hart's Location",null,"Jackson",null,"Madison",null,"Moultonborough",null,"Ossipee",null,"Sandwich",null,"Tamworth",null,"Tuftonboro",null,"Wakefield",null,"Wolfeboro"]
[null,null,"Estimate","Margin Of Error","Estimate","Margin Of Error","Estimate","Margin Of Error","Estimate","Margin Of Error","Estimate","Margin Of Error","Estimate","Margin Of Error","Estimate","Margin Of Error","Estimate","Margin Of Error","Estimate","Margin Of Error","Estimate","Margin Of Error","Estimate","Margin Of Error","Estimate","Margin Of Error","Estimate","Margin Of Error","Estimate","Margin Of Error","Estimate","Margin Of Error","Estimate","Margin Of Error","Estimate","Margin Of Error","Estimate","Margin Of Error","Estimate","Margin Of Error"]
[null,"Total",800,176,2767,20,786,200,393,96,9930,71,348,65,1362,168,1195,152,137,41,41,24,1032,242,2507,18,4032,19,4136,113,1484,191,2851,19,2256,298,5046,37,6103,76]
[null,"Under 5 years:",60,36.221540552549669,101,79.630396206473819,26,19.849433241279208,29,22.022715545545239,459,151.42654985173505,1,11.704699910719626,49,27.313000567495326,53,24.186773244895647,0,15.556349186104045,0,15.556349186104045,63,45.276925690687087,118,59.640590204993778,130,74.518454090245328,166,94.752308678997366,53,36.055512754639892,10,17.804493814764857,129,63.631753079732135,221,126.56223765404908,144,107.8563859954523]
[null,"With hearing difficulty",0,15.556349186104045,0,15.556349186104045,3,12.083045973594572,0,15.556349186104045,0,24.041630560342615,0,15.556349186104045,0,15.556349186104045,0,15.556349186104045,0,15.556349186104045,0,15.556349186104045,0,15.556349186104045,0,15.556349186104045,0,15.556349186104045,0,15.556349186104045,0,15.556349186104045,0,15.556349186104045,0,15.556349186104045,0,21.213203435596427,0,21.213203435596427]
[null,"With no hearing difficulty",60,36.221540552549669,101,79.630396206473819,23,19.104973174542799,29,22.022715545545239,459,151.42654985173505,1,11.704699910719626,49,27.313000567495326,53,24.186773244895647,0,15.556349186104045,0,15.556349186104045,63,45.276925690687087,118,59.640590204993778,130,74.518454090245328,166,94.752308678997366,53,36.055512754639892,10,17.804493814764857,129,63.631753079732135,221,126.56223765404908,144,107.8563859954523]
[null,"5 to 17 years:",155,72.862884927787476,259,136.01470508735443,162,80.448741444475061,55,23.323807579381203,1543,273.4702908909851,27,14.422205101855956,169,47.201694884823787,157,50.24937810560445,3,12.529964086141668,3,12.083045973594572,119,66.2872536767062,327,83.630138108220294,501,128.22636234409833,782,172.00290695217916,274,77.175125526298956,181,80.65977932030313,391,145.08618128546908,493,153.00326793895613,891,246.1097316239242]
[null,"With hearing difficulty",0,15.556349186104045,0,15.556349186104045,0,15.556349186104045,0,15.556349186104045,0,24.041630560342615,0,15.556349186104045,4,12.083045973594572,0,15.556349186104045,0,15.556349186104045,0,15.556349186104045,0,15.556349186104045,4,13.038404810405298,0,15.556349186104045,0,15.556349186104045,0,15.556349186104045,0,15.556349186104045,0,15.556349186104045,0,21.213203435596427,0,21.213203435596427]
[null,"With no hearing difficulty",155,72.862884927787476,259,136.01470508735443,162,80.448741444475061,55,23.323807579381203,1543,273.4702908909851,27,14.422205101855956,165,46.043457732885351,157,50.24937810560445,3,12.529964086141668,3,12.083045973594572,119,66.2872536767062,323,83.630138108220294,501,128.22636234409833,782,172.00290695217916,274,77.175125526298956,181,80.65977932030313,391,145.08618128546908,493,153.00326793895613,891,246.1097316239242]
[null,"18 to 34 years:",65,38.209946349085598,408,157.69908052997647,99,43.600458713183279,97,35.383612025908263,1983,331.85087012090236,31,19.849433241279208,286,75.604232685743199,138,46.400431032480725,0,15.556349186104045,9,8.6023252670426267,129,74.027022093286988,270,75.802374632988901,398,113.86395390991831,585,150.60212481900777,169,69.296464556281663,321,121.91800523302537,277,89.938868127189593,804,220.16584657934573,776,248.16325271885037]
[null,"With hearing difficulty",0,15.556349186104045,0,15.556349186104045,3,13.038404810405298,11,15.264337522473747,0,24.041630560342615,0,15.556349186104045,3,12.529964086141668,0,15.556349186104045,0,15.556349186104045,0,15.556349186104045,0,15.556349186104045,0,15.556349186104045,0,15.556349186104045,26,41.484937025383083,0,15.556349186104045,0,15.556349186104045,0,15.556349186104045,0,21.213203435596427,0,21.213203435596427]
[null,"With no hearing difficulty",65,38.209946349085598,408,157.69908052997647,96,42.43819034784589,86,30.479501308256342,1983,331.85087012090236,31,19.849433241279208,283,75.604232685743199,138,46.400431032480725,0,15.556349186104045,9,8.6023252670426267,129,74.027022093286988,270,75.802374632988901,398,113.86395390991831,559,148.21943192442751,169,69.296464556281663,321,121.91800523302537,277,89.938868127189593,804,220.16584657934573,776,248.16325271885037]
[null,"35 to 64 years:",386,65.76473218982953,1368,221.73181999884454,320,62.968245965724662,149,36.235341863986875,4300,343.84007910655208,191,38.209946349085598,621,87.367041840730764,467,63.63961030678928,40,15.620499351813308,24,17,364,86.833173384369644,1372,117.51595636338071,1960,162.65915283192643,1853,206.51876428063383,619,76.380625815713245,1764,215.72436116489024,952,140.71957930579526,2524,277.20028860013838,2344,236.78260071213003]
[null,"With hearing difficulty",9,7.810249675906654,147,113.5649593844862,10,13.601470508735444,8,10.770329614269007,162,91.021975368588869,4,5,24,18.439088914585774,14,11.180339887498949,0,15.556349186104045,0,15.556349186104045,27,24.413111231467404,43,35.735136770411273,108,71.693793315739683,87,85.708809348864477,6,13.038404810405298,157,117.64777940955791,22,21.840329667841555,146,97.754795278799492,68,59.413803110051795]
[null,"With no hearing difficulty",377,65.069193939989759,1221,212.8966885604377,310,63.655321851358195,141,34.828149534535996,4138,339.59976442865798,187,38.209946349085598,597,87.091905479212016,453,62.936475910238251,40,15.620499351813308,24,17,337,82.800966177937809,1329,125.87692401707312,1852,162.00308639035245,1766,191.91925385432282,613,74.953318805774032,1607,217.97476918212345,930,137.7679207943562,2378,282.1364917907643,2276,234.18155350069739]
[null,"65 to 74 years:",76,25.45584412271571,439,148.49915824677257,116,38.013155617496423,45,16.643316977093239,979,220.62184841941652,72,21.633307652783937,122,29.832867780352597,168,40.36087214122113,55,16.970562748477139,3,12.529964086141668,225,68.117545463705611,226,68.410525505948286,734,137.97463535012514,435,100.89598604503551,162,35.227829907617071,293,110.63453348751464,255,69.404610797842537,642,186.94651641579205,1156,189.76301009416983]
[null,"With hearing difficulty",18,17.804493814764857,42,41.484937025383083,4,12.083045973594572,1,11.401754250991379,175,105.1094667477673,6,12.529964086141668,6,12.529964086141668,20,14.212670403551895,4,12.083045973594572,0,15.556349186104045,2,11.401754250991379,31,31.016124838541646,41,34.928498393145958,85,56.089214649520635,14,9.2195444572928871,7,16.278820596099706,16,13.892443989449804,174,123.97580409095961,63,70.611613775638915]
[null,"With no hearing difficulty",58,21.095023109728988,397,144.97241116847025,112,38.013155617496423,44,16.124515496597098,804,184.49119220168751,66,20,116,29.832867780352597,148,36.878177829171548,51,16.970562748477139,3,12.529964086141668,223,67.357256476195644,195,61.554853586049575,693,131.79529581893277,350,97.836598469080073,148,34.409301068170507,286,112.92918134831227,239,68.600291544569984,468,157.20687007888682,1093,185.80096878111266]
[null,"75 years and over:",58,24.041630560342615,192,102.61578825892242,63,38.209946349085598,18,10.63014581273465,666,143.66976021418009,26,12.806248474865697,115,37.443290453698111,212,50.911688245431421,39,14.866068747318506,2,11.401754250991379,132,47.381430961928537,194,68.796802251267465,309,95.775779819325933,315,104.65180361560904,207,48.918299234540036,282,119.36498649101419,252,101.13851887386922,362,117.44360348695028,792,182.78402556022229]
[null,"With hearing difficulty",11,8.0622577482985491,25,27.294688127912362,13,17.464249196572979,7,6.4031242374328485,184,99.403219263764285,11,13.601470508735444,32,19.723082923316021,47,22.472205054244231,6,12.529964086141668,2,11.401754250991379,19,21.023796041628639,53,31.400636936215164,78,52.354560450833695,149,69.778220097678044,49,22.360679774997898,67,49.396356140913873,46,35.735136770411273,88,62.968245965724662,201,123.84264209067892]
[null,"With no hearing difficulty",47,23.345235059857504,167,100.80178569846865,50,33.286633954186478,11,8.4852813742385695,482,122.18837915284743,15,9.4339811320566032,83,31.622776601683793,165,47.201694884823787,33,14.866068747318506,0,15.556349186104045,113,43.278170016764804,141,63.953107821277925,231,82.03657720797473,166,76.661594035083823,158,41.880783182743848,215,114.94781424629178,206,95.336247041720711,274,109.288608738514,591,135.47324459095236]

{"sheet":"ACS_Table_B18103","index":32,"n_rows":125,"n_cols":40,"rows_kept":125,"cut":false,"hidden":true,"merged":[]}
["B18103. SEX BY AGE BY VISION DIFFICULTY\n\n\n"]
["Universe:  Civilian non-institutionalized population"]
["Data Set: 2015-2019 American Community Survey 5-Year Estimates"]
[]
[null,null,"Albany",null,"Bartlett",null,"Brookfield",null,"Chatham",null,"Conway",null,"Eaton",null,"Effingham",null,"Freedom",null,"Hale's Location",null,"Hart's Location",null,"Jackson",null,"Madison",null,"Moultonborough",null,"Ossipee",null,"Sandwich",null,"Tamworth",null,"Tuftonboro",null,"Wakefield",null,"Wolfeboro"]
[null,null,"Estimate","Margin Of Error","Estimate","Margin Of Error","Estimate","Margin Of Error","Estimate","Margin Of Error","Estimate","Margin Of Error","Estimate","Margin Of Error","Estimate","Margin Of Error","Estimate","Margin Of Error","Estimate","Margin Of Error","Estimate","Margin Of Error","Estimate","Margin Of Error","Estimate","Margin Of Error","Estimate","Margin Of Error","Estimate","Margin Of Error","Estimate","Margin Of Error","Estimate","Margin Of Error","Estimate","Margin Of Error","Estimate","Margin Of Error","Estimate","Margin Of Error"]
[null,"Total:",703,142,2774,14,797,184,372,127,9979,47,265,72,1630,231,1349,178,183,43,42,30,891,228,2553,20,4099,28,4158,121,1440,180,2994,13,2213,215,5016,46,6220,41]
[null,"Male:",351,75,1397,161,415,106,193,61,5080,283,130,46,712,108,662,94,92,28,23,17,365,90,1242,97,1991,134,1996,168,698,95,1617,138,1059,125,2584,179,3097,232]
[null,"Under 5 years:",19,28,33,38,11,12,5,8,268,100,0,11,26,22,0,11,0,11,0,11,2,4,34,28,41,31,166,71,27,20,66,43,29,31,123,54,177,114]
[null,"With vision difficulty",0,11,0,11,0,11,0,11,0,18,0,11,0,11,0,11,0,11,0,11,0,11,0,11,0,11,0,11,0,11,0,11,0,11,0,16,0,16]
[null,"With no vision difficulty",19,28,33,38,11,12,5,8,268,100,0,11,26,22,0,11,0,11,0,11,2,4,34,28,41,31,166,71,27,20,66,43,29,31,123,54,177,114]
[null,"5 to 17  years:",62,31,88,53,69,36,26,19,970,242,7,7,99,39,79,36,0,11,0,11,23,27,246,85,293,117,154,79,65,31,323,164,124,41,251,86,217,141]
[null,"With vision difficulty",0,11,0,11,0,11,0,11,0,18,0,11,0,11,0,11,0,11,0,11,0,11,0,11,0,11,18,22,0,11,0,11,0,11,0,16,0,16]
[null,"With no vision difficulty",62,31,88,53,69,36,26,19,970,242,7,7,99,39,79,36,0,11,0,11,23,27,246,85,293,117,136,86,65,31,323,164,124,41,251,86,217,141]
[null,"18 to 34  years:",50,34,217,130,67,48,30,22,863,206,34,24,174,65,50,30,7,12,2,4,21,23,145,56,301,97,363,115,67,39,196,103,170,67,574,158,364,226]
[null,"With vision difficulty",0,11,0,11,0,11,0,11,0,18,0,11,0,11,0,11,0,11,0,11,0,11,0,11,0,11,0,11,0,11,0,11,0,11,40,46,0,16]
[null,"With no vision difficulty",50,34,217,130,67,48,30,22,863,206,34,24,174,65,50,30,7,12,2,4,21,23,145,56,301,97,363,115,67,39,196,103,170,67,534,151,364,226]
[null,"35 to 64  years:",140,38,635,139,187,56,87,29,1783,230,38,18,289,51,262,58,16,11,11,12,176,75,528,74,737,107,930,155,273,60,840,172,332,60,1095,145,1337,185]
[null,"With vision difficulty",6,9,0,11,4,6,0,11,1,2,1,3,3,6,13,13,0,11,3,5,0,11,0,11,0,11,9,15,0,11,83,114,8,13,0,16,62,89]
[null,"With no vision difficulty",134,36,635,139,183,54,87,29,1782,230,37,18,286,51,249,55,16,11,8,11,176,75,528,74,737,107,921,158,273,60,757,152,324,61,1095,145,1275,150]
[null,"65 to 74  years:",53,25,331,146,69,25,20,12,783,179,38,19,107,36,184,40,43,15,9,10,104,52,157,58,442,110,254,99,172,50,31,35,262,71,324,120,509,153]
[null,"With vision difficulty",0,11,30,46,0,11,0,11,50,81,0,11,0,11,5,6,0,11,0,11,3,5,18,28,45,46,23,24,0,11,0,11,5,8,46,73,0,16]
[null,"With no vision difficulty",53,25,301,142,69,25,20,12,733,177,38,19,107,36,179,39,43,15,9,10,101,52,139,52,397,97,231,93,172,50,31,35,257,71,278,110,509,153]
[null,"75  years and Older:",27,12,93,72,12,9,25,18,413,159,13,13,17,12,87,29,26,14,1,3,39,27,132,48,177,71,129,70,94,37,161,96,142,49,217,84,493,142]
[null,"With vision difficulty",0,11,0,11,0,11,5,8,14,15,1,3,4,6,4,6,2,3,0,11,0,11,30,33,0,11,0,11,4,6,0,11,7,11,0,16,71,82]
[null,"With no vision difficulty",27,12,93,72,12,9,20,17,399,160,12,11,13,9,83,29,24,13,1,3,39,27,102,35,177,71,129,70,90,37,161,96,135,46,217,84,422,134]
[null,"Female:",352,91,1377,158,382,88,179,75,4899,287,135,37,918,146,687,104,91,20,19,14,526,152,1311,101,2108,130,2162,162,742,114,1377,136,1154,127,2432,174,3123,226]
[null,"Under 5 years:",8,9,0,11,0,11,6,9,211,111,9,10,89,57,5,6,0,11,0,11,59,48,89,50,50,39,44,35,26,24,43,59,61,42,170,92,0,16]
[null,"With vision difficulty",0,11,0,11,0,11,0,11,0,18,0,11,0,11,0,11,0,11,0,11,0,11,0,11,0,11,0,11,0,11,0,11,0,11,0,16,0,16]
[null,"With no vision difficulty",8,9,0,11,0,11,6,9,211,111,9,10,89,57,5,6,0,11,0,11,59,48,89,50,50,39,44,35,26,24,43,59,61,42,170,92,0,16]
[null,"5 to 17  years:",21,13,185,118,55,45,29,23,703,162,7,6,144,47,84,41,3,4,0,11,65,63,129,61,247,88,294,105,48,27,154,112,83,41,123,86,399,129]
[null,"With vision difficulty",0,11,0,11,0,11,0,11,0,18,0,11,0,11,0,11,0,11,0,11,0,11,0,11,0,11,31,48,0,11,0,11,6,9,0,16,0,16]
[null,"With no vision difficulty",21,13,185,118,55,45,29,23,703,162,7,6,144,47,84,41,3,4,0,11,65,63,129,61,247,88,263,101,48,27,154,112,77,38,123,86,399,129]
[null,"18 to 34  years:",66,38,125,82,53,36,18,23,987,208,10,11,200,72,34,23,0,11,2,4,60,46,183,79,400,110,185,81,111,63,158,87,168,64,577,194,193,112]
[null,"With vision difficulty",0,11,0,11,0,11,0,11,0,18,0,11,0,11,0,11,0,11,0,11,0,11,0,11,0,11,4,9,0,11,0,11,0,11,0,16,0,16]
[null,"With no vision difficulty",66,38,125,82,53,36,18,23,987,208,10,11,200,72,34,23,0,11,2,4,60,46,183,79,400,110,181,81,111,63,158,87,168,64,577,194,193,112]
[null,"35 to 64  years:",187,48,634,136,203,53,81,33,2125,212,64,24,335,60,311,65,22,14,16,14,177,70,570,65,829,103,1040,166,305,61,692,101,409,68,1118,147,1254,188]
[null,"With vision difficulty",0,11,0,11,8,10,4,5,48,45,0,11,10,9,0,11,0,11,0,11,0,11,5,11,0,11,64,65,3,4,12,18,21,26,16,26,66,82]
[null,"With no vision difficulty",187,48,634,136,195,50,77,33,2077,213,64,24,325,59,311,65,22,14,16,14,177,70,565,64,829,103,976,170,302,61,680,104,388,71,1102,147,1188,156]
[null,"65 to 74  years:",34,17,261,153,62,25,26,19,556,151,32,17,109,32,170,41,38,15,0,11,112,50,199,65,368,98,407,120,157,46,146,86,292,89,273,97,703,170]
[null,"With vision difficulty",0,11,0,11,0,11,0,11,7,13,0,11,0,11,8,8,0,11,0,11,12,18,0,11,20,22,29,32,13,16,0,11,5,8,0,16,46,39]
[null,"With no vision difficulty",34,17,261,153,62,25,26,19,549,152,32,17,109,32,162,40,38,15,0,11,100,49,199,65,348,98,378,112,144,45,146,86,287,89,273,97,657,175]
[null,"75  years and Older:",36,26,172,119,9,7,19,15,317,112,13,9,41,23,83,31,28,15,1,3,53,33,141,62,214,70,192,76,95,34,184,92,141,57,171,78,574,157]
[null,"With vision difficulty",0,11,0,11,0,11,0,11,14,16,0,11,6,10,0,11,0,11,0,11,10,16,0,11,22,34,27,28,14,11,42,64,23,33,0,16,34,38]
[null,"With no vision difficulty",36,26,172,119,9,7,19,15,303,110,13,9,35,19,83,31,28,15,1,3,43,30,141,62,192,69,165,77,81,30,142,74,118,50,171,78,540,159]
[]
[]
[{"$f":"A1& \"-Calculated\"","v":"B18103. SEX BY AGE BY VISION DIFFICULTY\n\n\n-Calculated"}]
[{"$f":"A2","v":"Universe:  Civilian non-institutionalized population"}]
[{"$f":"A3","v":"Data Set: 2015-2019 American Community Survey 5-Year Estimates"}]
[]
[]
[null,null,"Albany",null,"Bartlett",null,"Brookfield",null,"Chatham",null,"Conway",null,"Eaton",null,"Effingham",null,"Freedom",null,"Hale's Location",null,"Hart's Location",null,"Jackson",null,"Madison",null,"Moultonborough",null,"Ossipee",null,"Sandwich",null,"Tamworth",null,"Tuftonboro",null,"Wakefield",null,"Wolfeboro"]
[null,null,"Estimate","Margin Of Error","Estimate","Margin Of Error","Estimate","Margin Of Error","Estimate","Margin Of Error","Estimate","Margin Of Error","Estimate","Margin Of Error","Estimate","Margin Of Error","Estimate","Margin Of Error","Estimate","Margin Of Error","Estimate","Margin Of Error","Estimate","Margin Of Error","Estimate","Margin Of Error","Estimate","Margin Of Error","Estimate","Margin Of Error","Estimate","Margin Of Error","Estimate","Margin Of Error","Estimate","Margin Of Error","Estimate","Margin Of Error","Estimate","Margin Of Error"]
[null,"Total",{"$f":"C7","v":703},142,2774,14,797,184,372,127,9979,47,265,72,1630,231,1349,178,183,43,42,30,891,228,{"$f":"Y7","v":2553},20,4099,28,4158,121,1440,180,2994,13,2213,215,5016,46,6220,41]
[null,"Under 5 years:",{"$f":"C28+C9","v":27},{"$f":"SQRT((D28^2)+(D9^2))","v":29.410882339705484},{"$f":"E28+E9","v":33},{"$f":"SQRT((F28^2)+(F9^2))","v":39.560080889704963},{"$f":"G28+G9","v":11},{"$f":"SQRT((H28^2)+(H9^2))","v":16.278820596099706},{"$f":"I28+I9","v":11},{"$f":"SQRT((J28^2)+(J9^2))","v":12.041594578792296},{"$f":"K28+K9","v":479},{"$f":"SQRT((L28^2)+(L9^2))","v":149.40214188558343},{"$f":"M28+M9","v":9},{"$f":"SQRT((N28^2)+(N9^2))","v":14.866068747318506},{"$f":"O28+O9","v":115},{"$f":"SQRT((P28^2)+(P9^2))","v":61.098281481560512},{"$f":"Q28+Q9","v":5},{"$f":"SQRT((R28^2)+(R9^2))","v":12.529964086141668},{"$f":"S28+S9","v":0},{"$f":"SQRT((T28^2)+(T9^2))","v":15.556349186104045},{"$f":"U28+U9","v":0},{"$f":"SQRT((V28^2)+(V9^2))","v":15.556349186104045},{"$f":"W28+W9","v":61},{"$f":"SQRT((X28^2)+(X9^2))","v":48.166378315169183},{"$f":"Y28+Y9","v":123},{"$f":"SQRT((Z28^2)+(Z9^2))","v":57.30619512757761},{"$f":"AA28+AA9","v":91},{"$f":"SQRT((AB28^2)+(AB9^2))","v":49.819674828324601},{"$f":"AC28+AC9","v":210},{"$f":"SQRT((AD28^2)+(AD9^2))","v":79.158069708653201},{"$f":"AE28+AE9","v":53},{"$f":"SQRT((AF28^2)+(AF9^2))","v":31.240998703626616},{"$f":"AG28+AG9","v":109},{"$f":"SQRT((AH28^2)+(AH9^2))","v":73.006848993775918},{"$f":"AI28+AI9","v":90},{"$f":"SQRT((AJ28^2)+(AJ9^2))","v":52.201532544552748},{"$f":"AK28+AK9","v":293},{"$f":"SQRT((AL28^2)+(AL9^2))","v":106.6770828247567},{"$f":"AM28+AM9","v":177},{"$f":"SQRT((AN28^2)+(AN9^2))","v":115.11733144926528}]
[null,"With vision difficulty",{"$f":"C29+C10","v":0},{"$f":"SQRT((D29^2)+(D10^2))","v":15.556349186104045},{"$f":"E29+E10","v":0},{"$f":"SQRT((F29^2)+(F10^2))","v":15.556349186104045},{"$f":"G29+G10","v":0},{"$f":"SQRT((H29^2)+(H10^2))","v":15.556349186104045},{"$f":"I29+I10","v":0},{"$f":"SQRT((J29^2)+(J10^2))","v":15.556349186104045},{"$f":"K29+K10","v":0},{"$f":"SQRT((L29^2)+(L10^2))","v":25.45584412271571},{"$f":"M29+M10","v":0},{"$f":"SQRT((N29^2)+(N10^2))","v":15.556349186104045},{"$f":"O29+O10","v":0},{"$f":"SQRT((P29^2)+(P10^2))","v":15.556349186104045},{"$f":"Q29+Q10","v":0},{"$f":"SQRT((R29^2)+(R10^2))","v":15.556349186104045},{"$f":"S29+S10","v":0},{"$f":"SQRT((T29^2)+(T10^2))","v":15.556349186104045},{"$f":"U29+U10","v":0},{"$f":"SQRT((V29^2)+(V10^2))","v":15.556349186104045},{"$f":"W29+W10","v":0},{"$f":"SQRT((X29^2)+(X10^2))","v":15.556349186104045},0,15.556349186104045,0,15.556349186104045,0,15.556349186104045,0,15.556349186104045,0,15.556349186104045,0,15.556349186104045,0,22.627416997969522,0,22.627416997969522]
[null,"With no vision difficulty",27,29.410882339705484,33,39.560080889704963,11,16.278820596099706,11,12.041594578792296,479,149.40214188558343,9,14.866068747318506,115,61.098281481560512,5,12.529964086141668,0,15.556349186104045,0,15.556349186104045,61,48.166378315169183,123,57.30619512757761,91,49.819674828324601,210,79.158069708653201,53,31.240998703626616,109,73.006848993775918,90,52.201532544552748,293,106.6770828247567,177,115.11733144926528]
[null,"5 to 17 years:",83,33.61547262794322,273,129.3560976529518,124,57.628118136895637,55,29.832867780352597,1673,291.21813130366729,14,9.2195444572928871,243,61.073725938409879,163,54.561891462814962,3,11.704699910719626,0,15.556349186104045,88,68.541957952775178,375,104.62313319720452,540,146.40013661195812,448,131.40015220691336,113,41.109609582188931,477,198.59506539690256,207,57.982756057296896,374,121.62236636408618,616,191.10729970359583]
[null,"With vision difficulty",0,15.556349186104045,0,15.556349186104045,0,15.556349186104045,0,15.556349186104045,0,25.45584412271571,0,15.556349186104045,0,15.556349186104045,0,15.556349186104045,0,15.556349186104045,0,15.556349186104045,0,15.556349186104045,0,15.556349186104045,0,15.556349186104045,49,52.801515129776341,0,15.556349186104045,0,15.556349186104045,6,14.212670403551895,0,22.627416997969522,0,22.627416997969522]
[null,"With no vision difficulty",83,33.61547262794322,273,129.3560976529518,124,57.628118136895637,55,29.832867780352597,1673,291.21813130366729,14,9.2195444572928871,243,61.073725938409879,163,54.561891462814962,3,11.704699910719626,0,15.556349186104045,88,68.541957952775178,375,104.62313319720452,540,146.40013661195812,399,132.65368445693471,113,41.109609582188931,477,198.59506539690256,201,55.901699437494742,374,121.62236636408618,616,191.10729970359583]
[null,"18 to 34 years:",116,50.990195135927848,342,153.7010084547268,120,60,48,31.827660925679098,1850,292.74562336608892,44,26.40075756488817,374,97,84,37.802116342871599,7,16.278820596099706,4,5.6568542494923806,81,51.429563482495162,328,96.834911060009759,701,146.65946952038249,548,140.66271716414411,178,74.094534211370814,354,134.82581355215328,338,92.655275079188016,1151,250.19992006393608,557,252.23005372080465]
[null,"With vision difficulty",0,15.556349186104045,0,15.556349186104045,0,15.556349186104045,0,15.556349186104045,0,25.45584412271571,0,15.556349186104045,0,15.556349186104045,0,15.556349186104045,0,15.556349186104045,0,15.556349186104045,0,15.556349186104045,0,15.556349186104045,0,15.556349186104045,4,14.212670403551895,0,15.556349186104045,0,15.556349186104045,0,15.556349186104045,40,48.703182647543684,0,22.627416997969522]
[null,"With no vision difficulty",116,50.990195135927848,342,153.7010084547268,120,60,48,31.827660925679098,1850,292.74562336608892,44,26.40075756488817,374,97,84,37.802116342871599,7,16.278820596099706,4,5.6568542494923806,81,51.429563482495162,328,96.834911060009759,701,146.65946952038249,544,140.66271716414411,178,74.094534211370814,354,134.82581355215328,338,92.655275079188016,1111,245.83937845674765,557,252.23005372080465]
[null,"35 to 64 years:",327,61.220911460055866,1269,194.46593532030229,390,77.103826104804938,168,43.931765272977593,3908,312.80025575437116,102,30,624,78.746428490440124,573,87.114866699088736,38,17.804493814764857,27,18.439088914585774,353,102.59142264341595,1098,98.493654617949886,1566,148.51935900750448,1970,227.11450856341168,578,85.562842402528915,1532,199.46177578674065,741,90.686272390037075,2213,206.48002324680226,2591,263.75936002348806]
[null,"With vision difficulty",6,14.212670403551895,0,15.556349186104045,12,11.661903789690601,4,12.083045973594572,49,45.044422518220834,1,11.401754250991379,13,10.816653826391969,13,17.029386365926403,0,15.556349186104045,3,12.083045973594572,0,15.556349186104045,5,15.556349186104045,0,15.556349186104045,73,66.708320320631671,3,11.704699910719626,95,115.41230437002807,29,29.068883707497267,16,30.528675044947494,128,121.01652779682617]
[null,"With no vision difficulty",321,60,1269,194.46593532030229,378,73.593477971896391,164,43.931765272977593,3859,313.47886691131191,101,30,611,77.987178433380961,560,85.14693182963201,38,17.804493814764857,24,17.804493814764857,353,102.59142264341595,1093,97.836598469080073,1566,148.51935900750448,1897,232.08619088605855,575,85.562842402528915,1437,184.1738309315414,712,93.605555390692487,2197,206.48002324680226,2463,216.4162655624572]
[null,"65 to 74 years:",87,30.232432915661949,592,211.48285982556601,131,35.355339059327378,46,22.472205054244231,1339,234.18368858654523,70,25.495097567963924,216,48.166378315169183,354,57.280013966478741,81,21.213203435596427,9,14.866068747318506,216,72.138755187485728,356,87.114866699088736,810,147.32277488562318,661,155.56670594957006,329,67.94115100585212,177,92.849340331528467,554,113.85077953180645,597,154.30165261590687,1212,228.71160880025309]
[null,"With vision difficulty",0,15.556349186104045,30,47.296934361541872,0,15.556349186104045,0,15.556349186104045,57,82.03657720797473,0,15.556349186104045,0,15.556349186104045,13,10,0,15.556349186104045,0,15.556349186104045,15,18.681541692269406,18,30.083217912982647,65,50.990195135927848,52,40,13,19.416487838947599,0,15.556349186104045,10,11.313708498984761,46,74.732857566133518,46,42.154477816715982]
[null,"With no vision difficulty",87,30.232432915661949,562,208.7414668914636,131,35.355339059327378,46,22.472205054244231,1282,233.30880823492285,70,25.495097567963924,216,48.166378315169183,341,55.865910893853687,81,21.213203435596427,9,14.866068747318506,201,71.449282711584999,338,83.240615086627031,745,137.88763541376724,609,145.57815770231468,316,67.268120235368556,177,92.849340331528467,544,113.85077953180645,551,146.65946952038249,1166,232.4521456128121]
[null,"75 years and over:",63,28.635642126552707,265,139.08630414242805,21,11.401754250991379,44,23.430749027719962,730,194.48650338776724,26,15.811388300841896,58,25.942243542145693,170,42.449970553582247,54,20.518284528683193,2,4.2426406871192848,92,42.638011210655684,273,78.409183135650636,391,99.704563586628268,321,103.32473082471591,189,50.24937810560445,345,132.96616110875729,283,75.166481891864535,388,114.62983904725679,1067,211.69081227110448]
[null,"With vision difficulty",0,15.556349186104045,0,15.556349186104045,0,15.556349186104045,5,13.601470508735444,28,21.931712199461309,1,11.401754250991379,10,11.661903789690601,4,12.529964086141668,2,11.401754250991379,0,15.556349186104045,10,19.416487838947599,30,34.785054261852174,22,35.735136770411273,27,30.083217912982647,18,12.529964086141668,42,64.938432380216881,30,34.785054261852174,0,22.627416997969522,105,90.376988221560026]
[null,"With no vision difficulty",63,28.635642126552707,265,139.08630414242805,21,11.401754250991379,39,22.671568097509269,702,194.164878389476,25,14.212670403551895,48,21.023796041628639,166,42.449970553582247,52,19.849433241279208,2,4.2426406871192848,82,40.36087214122113,243,71.196910045310247,369,99.005050376230813,294,104.06248123122954,171,47.634021455258214,303,121.21056059601408,253,67.94115100585212,388,114.62983904725679,962,207.93508602446101]
[]
[]
[]
[]
[]
[]
[]
[]
[]
[]
[]
[]
[]
[]
[]
[]
[]
[]
[]
[]
[]
[]
[]
[]
[]
[]
["B18103. SEX BY AGE BY VISION DIFFICULTY\n\n\n-Calculated"]
["Universe:  Civilian non-institutionalized population"]
["Data Set: 2010-2014 American Community Survey 5-Year Estimates"]
[]
[]
[null,null,"Albany",null,"Bartlett",null,"Brookfield",null,"Chatham",null,"Conway",null,"Eaton",null,"Effingham",null,"Freedom",null,"Hale's Location",null,"Hart's Location",null,"Jackson",null,"Madison",null,"Moultonborough",null,"Ossipee",null,"Sandwich",null,"Tamworth",null,"Tuftonboro",null,"Wakefield",null,"Wolfeboro"]
[null,null,"Estimate","Margin Of Error","Estimate","Margin Of Error","Estimate","Margin Of Error","Estimate","Margin Of Error","Estimate","Margin Of Error","Estimate","Margin Of Error","Estimate","Margin Of Error","Estimate","Margin Of Error","Estimate","Margin Of Error","Estimate","Margin Of Error","Estimate","Margin Of Error","Estimate","Margin Of Error","Estimate","Margin Of Error","Estimate","Margin Of Error","Estimate","Margin Of Error","Estimate","Margin Of Error","Estimate","Margin Of Error","Estimate","Margin Of Error","Estimate","Margin Of Error"]
[null,"Total",800,176,2767,20,786,200,393,96,9930,71,348,65,1362,168,1195,152,137,41,41,24,1032,242,2507,18,4032,19,4136,113,1484,191,2851,19,2256,298,5046,37,6103,76]
[null,"Under 5 years:",60,36.221540552549669,101,79.630396206473819,26,19.849433241279208,29,22.022715545545239,459,151.42654985173505,1,11.704699910719626,49,27.313000567495326,53,24.186773244895647,0,15.556349186104045,0,15.556349186104045,63,45.276925690687087,118,59.640590204993778,130,74.518454090245328,166,94.752308678997366,53,36.055512754639892,10,17.804493814764857,129,63.631753079732135,221,126.56223765404908,144,107.8563859954523]
[null,"With vision difficulty",0,15.556349186104045,0,15.556349186104045,0,15.556349186104045,0,15.556349186104045,0,24.041630560342615,0,15.556349186104045,0,15.556349186104045,0,15.556349186104045,0,15.556349186104045,0,15.556349186104045,0,15.556349186104045,0,15.556349186104045,0,15.556349186104045,0,15.556349186104045,0,15.556349186104045,0,15.556349186104045,0,15.556349186104045,0,21.213203435596427,0,21.213203435596427]
[null,"With no vision difficulty",60,36.221540552549669,101,79.630396206473819,26,19.849433241279208,29,22.022715545545239,459,151.42654985173505,1,11.704699910719626,49,27.313000567495326,53,24.186773244895647,0,15.556349186104045,0,15.556349186104045,63,45.276925690687087,118,59.640590204993778,130,74.518454090245328,166,94.752308678997366,53,36.055512754639892,10,17.804493814764857,129,63.631753079732135,221,126.56223765404908,144,107.8563859954523]
[null,"5 to 17 years:",155,72.862884927787476,259,136.01470508735443,162,80.448741444475061,55,23.323807579381203,1543,273.4702908909851,27,14.422205101855956,169,47.201694884823787,157,50.24937810560445,3,12.529964086141668,3,12.083045973594572,119,66.2872536767062,327,83.630138108220294,501,128.22636234409833,782,172.00290695217916,274,77.175125526298956,181,80.65977932030313,391,145.08618128546908,493,153.00326793895613,891,246.1097316239242]
[null,"With vision difficulty",0,15.556349186104045,0,15.556349186104045,0,15.556349186104045,0,15.556349186104045,8,22.022715545545239,0,15.556349186104045,4,12.083045973594572,10,16.278820596099706,0,15.556349186104045,0,15.556349186104045,0,15.556349186104045,0,15.556349186104045,0,15.556349186104045,29,46.324939287601879,0,15.556349186104045,0,15.556349186104045,0,15.556349186104045,0,21.213203435596427,0,21.213203435596427]
[null,"With no vision difficulty",155,72.862884927787476,259,136.01470508735443,162,80.448741444475061,55,23.323807579381203,1535,271.1180554666177,27,14.422205101855956,165,46.043457732885351,147,44.407206622349037,3,12.529964086141668,3,12.083045973594572,119,66.2872536767062,327,83.630138108220294,501,128.22636234409833,753,168.67127793432999,274,77.175125526298956,181,80.65977932030313,391,145.08618128546908,493,153.00326793895613,891,246.1097316239242]
[null,"18 to 34 years:",65,38.209946349085598,408,157.69908052997647,99,43.600458713183279,97,35.383612025908263,1983,331.85087012090236,31,19.849433241279208,286,75.604232685743199,138,46.400431032480725,0,15.556349186104045,9,8.6023252670426267,129,74.027022093286988,270,75.802374632988901,398,113.86395390991831,585,150.60212481900777,169,69.296464556281663,321,121.91800523302537,277,89.938868127189593,804,220.16584657934573,776,248.16325271885037]
[null,"With vision difficulty",0,15.556349186104045,0,15.556349186104045,0,15.556349186104045,0,15.556349186104045,0,24.041630560342615,0,15.556349186104045,0,15.556349186104045,3,12.083045973594572,0,15.556349186104045,0,15.556349186104045,0,15.556349186104045,0,15.556349186104045,0,15.556349186104045,13,21.95449840010015,0,15.556349186104045,0,15.556349186104045,0,15.556349186104045,0,21.213203435596427,31,48.383881613611777]
[null,"With no vision difficulty",65,38.209946349085598,408,157.69908052997647,99,43.600458713183279,97,35.383612025908263,1983,331.85087012090236,31,19.849433241279208,286,75.604232685743199,135,46.400431032480725,0,15.556349186104045,9,8.6023252670426267,129,74.027022093286988,270,75.802374632988901,398,113.86395390991831,572,150.60212481900777,169,69.296464556281663,321,121.91800523302537,277,89.938868127189593,804,220.16584657934573,745,244.43608571567333]
[null,"35 to 64 years:",386,65.76473218982953,1368,221.73181999884454,320,62.968245965724662,149,36.235341863986875,4300,343.84007910655208,191,38.209946349085598,621,87.367041840730764,467,63.63961030678928,40,15.620499351813308,24,17,364,86.833173384369644,1372,117.51595636338071,1960,162.65915283192643,1853,206.51876428063383,619,76.380625815713245,1764,215.72436116489024,952,140.71957930579526,2524,277.20028860013838,2344,236.78260071213003]
[null,"With vision difficulty",5,12.083045973594572,17,27.313000567495326,2,11.704699910719626,6,14.866068747318506,42,50.921508225896062,0,15.556349186104045,15,19.416487838947599,19,16.278820596099706,0,15.556349186104045,0,15.556349186104045,0,15.556349186104045,0,15.556349186104045,27,34.785054261852174,57,50.911688245431421,2,11.704699910719626,33,49.244289008980523,10,9.8994949366116654,60,81.394102980498531,90,99.864908751773257]
[null,"With no vision difficulty",381,65.76473218982953,1351,219.75440837443966,318,62.968245965724662,143,35.468295701936398,4258,343.84007910655208,191,38.209946349085598,606,86.53323061113575,448,63.63961030678928,40,15.620499351813308,24,17,364,86.833173384369644,1372,117.51595636338071,1933,158.39823231336896,1796,211.19185590358356,617,76.380625815713245,1731,212.22865028077618,942,138.53880322855397,2464,280.79351844371337,2254,237.11811402758752]
[null,"65 to 74 years:",76,25.45584412271571,439,148.49915824677257,116,38.013155617496423,45,16.643316977093239,979,220.62184841941652,72,21.633307652783937,122,29.832867780352597,168,40.36087214122113,55,16.970562748477139,3,12.529964086141668,225,68.117545463705611,226,68.410525505948286,734,137.97463535012514,435,100.89598604503551,162,35.227829907617071,293,110.63453348751464,255,69.404610797842537,642,186.94651641579205,1156,189.76301009416983]
[null,"With vision difficulty",0,15.556349186104045,26,43.416586692184822,6,14.212670403551895,1,11.401754250991379,43,51.623637996561229,0,15.556349186104045,0,15.556349186104045,13,12.206555615733702,0,15.556349186104045,3,12.529964086141668,0,15.556349186104045,12,17.029386365926403,6,14.212670403551895,21,23.706539182259394,0,15.556349186104045,17,30.083217912982647,5,13.038404810405298,59,91.241437954473298,5,17.4928556845359]
[null,"With no vision difficulty",76,25.45584412271571,413,144.36065946094871,110,36.400549446402593,44,16.124515496597098,936,211.45448682872635,72,21.633307652783937,122,29.832867780352597,155,37.643060449437421,55,16.970562748477139,0,15.556349186104045,225,68.117545463705611,214,68.410525505948286,728,137.97463535012514,414,99.35793878699377,162,35.227829907617071,276,107.62899237658968,250,69.404610797842537,583,173.35801106380978,1151,190.4337155022713]
[null,"75 years and over:",58,24.041630560342615,192,102.61578825892242,63,38.209946349085598,18,10.63014581273465,666,143.66976021418009,26,12.806248474865697,115,37.443290453698111,212,50.911688245431421,39,14.866068747318506,2,11.401754250991379,132,47.381430961928537,194,68.796802251267465,309,95.775779819325933,315,104.65180361560904,207,48.918299234540036,282,119.36498649101419,252,101.13851887386922,362,117.44360348695028,792,182.78402556022229]
[null,"With vision difficulty",0,15.556349186104045,25,41.484937025383083,0,15.556349186104045,0,15.556349186104045,117,88.887569434651553,0,15.556349186104045,13,10.295630140987001,19,16.15549442140351,4,12.083045973594572,0,15.556349186104045,0,15.556349186104045,11,13,30,27.202941017470888,66,61.98386886924694,4,12.529964086141668,0,15.556349186104045,23,21.540659228538015,73,61.611687202997452,56,82.607505712253527]
[null,"With no vision difficulty",58,24.041630560342615,167,94.921019800674287,63,38.209946349085598,18,10.63014581273465,549,128.22246293064254,26,12.806248474865697,102,34.985711369071801,193,48.166378315169183,35,14.142135623730951,2,11.401754250991379,132,47.381430961928537,183,69.06518659932803,279,93.861600242058515,249,89.872131386765275,203,48.270073544588683,282,119.36498649101419,229,101.13851887386922,289,108.81176406988355,736,171.02631376487071]

{"sheet":"ACS_Table_B18104","index":33,"n_rows":122,"n_cols":48,"rows_kept":122,"cut":false,"hidden":true,"merged":[]}
["B18104. SEX BY AGE BY COGNITIVE DIFFICULTY\n\n"]
["Universe:  Civilian non-institutionalized population 5 years and over"]
["Data Set: 2015-2019 American Community Survey 5-Year Estimates"]
[]
[null,null,"Albany",null,"Bartlett",null,"Brookfield",null,"Chatham",null,"Conway",null,"Eaton",null,"Effingham",null,"Freedom",null,"Hale's Location",null,"Hart's Location",null,"Jackson",null,"Madison",null,"Moultonborough",null,"Ossipee",null,"Sandwich",null,"Tamworth",null,"Tuftonboro",null,"Wakefield",null,"Wolfeboro"]
[null,null,"Estimate","Margin Of Error","Estimate","Margin Of Error","Estimate","Margin Of Error","Estimate","Margin Of Error","Estimate","Margin Of Error","Estimate","Margin Of Error","Estimate","Margin Of Error","Estimate","Margin Of Error","Estimate","Margin Of Error","Estimate","Margin Of Error","Estimate","Margin Of Error","Estimate","Margin Of Error","Estimate","Margin Of Error","Estimate","Margin Of Error","Estimate","Margin Of Error","Estimate","Margin Of Error","Estimate","Margin Of Error","Estimate","Margin Of Error","Estimate","Margin Of Error"]
[null,"Total:",676,134,2741,39,786,181,361,122,9500,158,256,70,1515,193,1344,178,183,43,42,30,830,199,2430,63,4008,58,3948,133,1387,176,2885,95,2123,204,4723,121,6043,120]
[null,"Male:",332,69,1364,166,404,103,188,59,4812,281,130,46,686,100,662,94,92,28,23,17,363,89,1208,95,1950,133,1830,156,671,94,1551,138,1030,116,2461,185,2920,256]
[null,"5 to 17  years:",62,31,88,53,69,36,26,19,970,242,7,7,99,39,79,36,0,11,0,11,23,27,246,85,293,117,154,79,65,31,323,164,124,41,251,86,217,141]
[null,"With cognitive difficulty",4,5,0,11,4,7,5,7,36,33,0,11,0,11,14,12,0,11,0,11,0,11,4,8,35,45,22,25,4,8,9,16,6,9,7,14,0,16]
[null,"With no cognitive difficulty",58,31,88,53,65,34,21,18,934,238,7,7,99,39,65,35,0,11,0,11,23,27,242,86,258,92,132,73,61,29,314,171,118,39,244,87,217,141]
[null,"18 to 34  years:",50,34,217,130,67,48,30,22,863,206,34,24,174,65,50,30,7,12,2,4,21,23,145,56,301,97,363,115,67,39,196,103,170,67,574,158,364,226]
[null,"With cognitive difficulty",8,9,0,11,6,10,2,3,18,30,0,11,4,5,0,11,0,11,0,11,0,11,12,19,11,17,27,42,7,9,68,84,0,11,51,59,20,28]
[null,"With no cognitive difficulty",42,32,217,130,61,45,28,22,845,209,34,24,170,65,50,30,7,12,2,4,21,23,133,52,290,95,336,107,60,38,128,61,170,67,523,150,344,220]
[null,"35 to 64  years:",140,38,635,139,187,56,87,29,1783,230,38,18,289,51,262,58,16,11,11,12,176,75,528,74,737,107,930,155,273,60,840,172,332,60,1095,145,1337,185]
[null,"With cognitive difficulty",9,11,0,11,8,13,2,4,126,95,2,4,5,7,6,7,2,4,0,11,3,5,14,20,19,21,63,61,8,7,52,65,22,20,40,48,257,179]
[null,"With no cognitive difficulty",131,36,635,139,179,53,85,29,1657,227,36,17,284,51,256,58,14,10,11,12,173,75,514,74,718,107,867,138,265,60,788,165,310,62,1055,142,1080,149]
[null,"65 to 74  years:",53,25,331,146,69,25,20,12,783,179,38,19,107,36,184,40,43,15,9,10,104,52,157,58,442,110,254,99,172,50,31,35,262,71,324,120,509,153]
[null,"With cognitive difficulty",0,11,12,17,0,11,0,11,5,10,0,11,0,11,5,6,0,11,0,11,0,11,0,11,12,19,36,32,7,8,0,11,0,11,88,93,0,16]
[null,"With no cognitive difficulty",53,25,319,145,69,25,20,12,778,179,38,19,107,36,179,39,43,15,9,10,104,52,157,58,430,110,218,98,165,50,31,35,262,71,236,101,509,153]
[null,"75  years and Older:",27,12,93,72,12,9,25,18,413,159,13,13,17,12,87,29,26,14,1,3,39,27,132,48,177,71,129,70,94,37,161,96,142,49,217,84,493,142]
[null,"With cognitive difficulty",2,3,0,11,0,11,0,11,7,15,0,11,0,11,7,9,0,11,0,11,0,11,39,38,29,36,0,11,11,14,39,60,7,11,12,19,146,116]
[null,"With no cognitive difficulty",25,12,93,72,12,9,25,18,406,163,13,13,17,12,80,29,26,14,1,3,39,27,93,43,148,59,129,70,83,31,122,84,135,46,205,84,347,156]
[null,"Female:",344,91,1377,158,382,88,173,72,4688,290,126,33,829,117,682,104,91,20,19,14,467,123,1222,95,2058,127,2118,176,716,116,1334,157,1093,128,2262,158,3123,226]
[null,"5 to 17  years:",21,13,185,118,55,45,29,23,703,162,7,6,144,47,84,41,3,4,0,11,65,63,129,61,247,88,294,105,48,27,154,112,83,41,123,86,399,129]
[null,"With cognitive difficulty",2,4,14,20,0,11,0,11,50,82,0,11,17,15,11,10,0,11,0,11,0,11,0,11,25,30,0,11,0,11,0,11,0,11,0,16,39,64]
[null,"With no cognitive difficulty",19,13,171,117,55,45,29,23,653,163,7,6,127,42,73,40,3,4,0,11,65,63,129,61,222,74,294,105,48,27,154,112,83,41,123,86,360,141]
[null,"18 to 34  years:",66,38,125,82,53,36,18,23,987,208,10,11,200,72,34,23,0,11,2,4,60,46,183,79,400,110,185,81,111,63,158,87,168,64,577,194,193,112]
[null,"With cognitive difficulty",7,12,16,23,5,8,0,11,90,86,0,11,0,11,5,8,0,11,0,11,0,11,7,9,21,29,4,9,7,7,17,27,7,11,92,67,0,16]
[null,"With no cognitive difficulty",59,36,109,80,48,36,18,23,897,213,10,11,200,72,29,19,0,11,2,4,60,46,176,79,379,109,181,81,104,62,141,83,161,63,485,214,193,112]
[null,"35 to 64  years:",187,48,634,136,203,53,81,33,2125,212,64,24,335,60,311,65,22,14,16,14,177,70,570,65,829,103,1040,166,305,61,692,101,409,68,1118,147,1254,188]
[null,"With cognitive difficulty",2,4,0,11,10,13,2,4,70,87,9,9,22,17,3,4,0,11,0,11,0,11,44,49,8,12,87,68,17,15,12,18,35,29,149,104,111,109]
[null,"With no cognitive difficulty",185,48,634,136,193,50,79,33,2055,215,55,21,313,60,308,64,22,14,16,14,177,70,526,71,821,103,953,178,288,59,680,104,374,69,969,153,1143,179]
[null,"65 to 74  years:",34,17,261,153,62,25,26,19,556,151,32,17,109,32,170,41,38,15,0,11,112,50,199,65,368,98,407,120,157,46,146,86,292,89,273,97,703,170]
[null,"With cognitive difficulty",0,11,44,55,2,4,8,13,21,32,0,11,0,11,7,8,0,11,0,11,0,11,0,11,35,29,0,11,4,6,0,11,0,11,0,16,21,33]
[null,"With no cognitive difficulty",34,17,217,145,60,25,18,14,535,147,32,17,109,32,163,39,38,15,0,11,112,50,199,65,333,99,407,120,153,46,146,86,292,89,273,97,682,165]
[null,"75  years and Older:",36,26,172,119,9,7,19,15,317,112,13,9,41,23,83,31,28,15,1,3,53,33,141,62,214,70,192,76,95,34,184,92,141,57,171,78,574,157]
[null,"With cognitive difficulty",20,24,11,16,0,11,4,7,33,33,2,3,6,10,3,6,8,9,0,11,10,16,28,26,30,36,3,7,0,11,5,12,23,33,13,19,136,129]
[null,"With no cognitive difficulty",16,10,161,118,9,7,15,13,284,109,11,7,35,19,80,32,20,10,1,3,43,30,113,56,184,62,189,77,95,34,179,91,118,50,158,77,438,146]
[]
[]
[{"$f":"A1& \"-Calculated\"","v":"B18104. SEX BY AGE BY COGNITIVE DIFFICULTY\n\n-Calculated"}]
[{"$f":"A2","v":"Universe:  Civilian non-institutionalized population 5 years and over"}]
[{"$f":"A3","v":"Data Set: 2015-2019 American Community Survey 5-Year Estimates"}]
[]
[]
[null,null,"Albany",null,"Bartlett",null,"Brookfield",null,"Chatham",null,"Conway",null,"Eaton",null,"Effingham",null,"Freedom",null,"Hale's Location",null,"Hart's Location",null,"Jackson",null,"Madison",null,"Moultonborough",null,"Ossipee",null,"Sandwich",null,"Tamworth",null,"Tuftonboro",null,"Wakefield",null,"Wolfeboro"]
[null,null,"Estimate","Margin Of Error","Estimate","Margin Of Error","Estimate","Margin Of Error","Estimate","Margin Of Error","Estimate","Margin Of Error","Estimate","Margin Of Error","Estimate","Margin Of Error","Estimate","Margin Of Error","Estimate","Margin Of Error","Estimate","Margin Of Error","Estimate","Margin Of Error","Estimate","Margin Of Error","Estimate","Margin Of Error","Estimate","Margin Of Error","Estimate","Margin Of Error","Estimate","Margin Of Error","Estimate","Margin Of Error","Estimate","Margin Of Error","Estimate","Margin Of Error"]
[null,"Total:",{"$f":"C7","v":676},134,2741,39,786,181,361,122,9500,158,256,70,1515,193,1344,178,183,43,42,30,830,199,2430,63,4008,58,3948,133,1387,176,2885,95,2123,204,4723,121,6043,120]
[null,"5 to 17  years:",{"$f":"C25+C9","v":83},{"$f":"SQRT((D25^2)+(D9^2))","v":33.61547262794322},{"$f":"E25+E9","v":273},{"$f":"SQRT((F25^2)+(F9^2))","v":129.3560976529518},{"$f":"G25+G9","v":124},{"$f":"SQRT((H25^2)+(H9^2))","v":57.628118136895637},{"$f":"I25+I9","v":55},{"$f":"SQRT((J25^2)+(J9^2))","v":29.832867780352597},{"$f":"K25+K9","v":1673},{"$f":"SQRT((L25^2)+(L9^2))","v":291.21813130366729},{"$f":"M25+M9","v":14},{"$f":"SQRT((N25^2)+(N9^2))","v":9.2195444572928871},{"$f":"O25+O9","v":243},{"$f":"SQRT((P25^2)+(P9^2))","v":61.073725938409879},{"$f":"Q25+Q9","v":163},{"$f":"SQRT((R25^2)+(R9^2))","v":54.561891462814962},{"$f":"S25+S9","v":3},{"$f":"SQRT((T25^2)+(T9^2))","v":11.704699910719626},{"$f":"U25+U9","v":0},{"$f":"SQRT((V25^2)+(V9^2))","v":15.556349186104045},{"$f":"W25+W9","v":88},{"$f":"SQRT((X25^2)+(X9^2))","v":68.541957952775178},{"$f":"Y25+Y9","v":375},{"$f":"SQRT((Z25^2)+(Z9^2))","v":104.62313319720452},{"$f":"AA25+AA9","v":540},{"$f":"SQRT((AB25^2)+(AB9^2))","v":146.40013661195812},{"$f":"AC25+AC9","v":448},{"$f":"SQRT((AD25^2)+(AD9^2))","v":131.40015220691336},{"$f":"AE25+AE9","v":113},{"$f":"SQRT((AF25^2)+(AF9^2))","v":41.109609582188931},{"$f":"AG25+AG9","v":477},{"$f":"SQRT((AH25^2)+(AH9^2))","v":198.59506539690256},{"$f":"AI25+AI9","v":207},{"$f":"SQRT((AJ25^2)+(AJ9^2))","v":57.982756057296896},{"$f":"AK25+AK9","v":374},{"$f":"SQRT((AL25^2)+(AL9^2))","v":121.62236636408618},{"$f":"AM25+AM9","v":616},{"$f":"SQRT((AN25^2)+(AN9^2))","v":191.10729970359583}]
[null,"With cognitive difficulty",{"$f":"C26+C10","v":6},6.4031242374328485,14,22.825424421026653,4,13.038404810405298,5,13.038404810405298,86,88.391176030189797,0,15.556349186104045,17,18.601075237738275,25,15.620499351813308,0,15.556349186104045,0,15.556349186104045,0,15.556349186104045,4,13.601470508735444,60,54.083269131959838,22,27.313000567495326,4,13.601470508735444,9,19.416487838947599,6,14.212670403551895,7,21.2602916254693,39,65.969690009882569]
[null,"With no cognitive difficulty",77,33.61547262794322,259,128.4445405612866,120,56.400354608814297,50,29.206163733020468,1587,288.46663585239804,14,9.2195444572928871,226,57.314919523628397,138,53.150729063673246,3,11.704699910719626,0,15.556349186104045,88,68.541957952775178,371,105.43718509140881,480,118.06777714516353,426,127.88275880665071,109,39.623225512317902,468,204.41379601191306,201,56.586217403180434,367,122.3315167894194,577,199.40411229460639]
[null,"18 to 34  years:",116,50.990195135927848,342,153.7010084547268,120,60,48,31.827660925679098,1850,292.74562336608892,44,26.40075756488817,374,97,84,37.802116342871599,7,16.278820596099706,4,5.6568542494923806,81,51.429563482495162,328,96.834911060009759,701,146.65946952038249,548,140.66271716414411,178,74.094534211370814,354,134.82581355215328,338,92.655275079188016,1151,250.19992006393608,557,252.23005372080465]
[null,"With cognitive difficulty",15,15,16,25.495097567963924,11,12.806248474865697,2,11.401754250991379,108,91.082380293885606,0,15.556349186104045,4,12.083045973594572,5,13.601470508735444,0,15.556349186104045,0,15.556349186104045,0,15.556349186104045,19,21.023796041628639,32,33.61547262794322,31,42.953463189829058,14,11.401754250991379,85,88.232647019116456,7,15.556349186104045,143,89.274856482662571,20,32.249030993194197]
[null,"With no cognitive difficulty",101,48.166378315169183,326,152.64337522473747,109,57.628118136895637,46,31.827660925679098,1742,298.41246622753545,44,26.40075756488817,370,97,79,35.510561809129406,7,16.278820596099706,4,5.6568542494923806,81,51.429563482495162,309,94.578010129204984,669,144.58907289280197,517,134.20134127496641,164,72.718635850791372,269,103.00485425454472,331,91.967385523347346,1008,261.33503400807172,537,246.86838598735156]
[null,"35 to 64  years:",327,61.220911460055866,1269,194.46593532030229,390,77.103826104804938,168,43.931765272977593,3908,312.80025575437116,102,30,624,78.746428490440124,573,87.114866699088736,38,17.804493814764857,27,18.439088914585774,353,102.59142264341595,1098,98.493654617949886,1566,148.51935900750448,1970,227.11450856341168,578,85.562842402528915,1532,199.46177578674065,741,90.686272390037075,2213,206.48002324680226,2591,263.75936002348806]
[null,"With cognitive difficulty",11,11.704699910719626,0,15.556349186104045,18,18.384776310850235,4,5.6568542494923806,196,128.81770064707723,11,9.8488578017961039,27,18.384776310850235,9,8.0622577482985491,2,11.704699910719626,0,15.556349186104045,3,12.083045973594572,58,52.924474489596967,27,24.186773244895647,150,91.35097153287424,25,16.552945357246848,64,67.446274915668994,57,35.227829907617071,189,114.54256850621083,368,209.57576195734086]
[null,"With no cognitive difficulty",316,60,1269,194.46593532030229,372,72.862884927787476,164,43.931765272977593,3712,312.65636088203934,91,27.018512172212592,597,78.746428490440124,564,86.371291526756735,36,17.204650534085253,27,18.439088914585774,350,102.59142264341595,1040,102.55242561733974,1539,148.51935900750448,1820,225.22877258467668,553,84.148677945645701,1468,195.04102132628407,684,92.763139231054481,2024,208.7414668914636,2223,232.89911979223967]
[null,"65 to 74  years:",87,30.232432915661949,592,211.48285982556601,131,35.355339059327378,46,22.472205054244231,1339,234.18368858654523,70,25.495097567963924,216,48.166378315169183,354,57.280013966478741,81,21.213203435596427,9,14.866068747318506,216,72.138755187485728,356,87.114866699088736,810,147.32277488562318,661,155.56670594957006,329,67.94115100585212,177,92.849340331528467,554,113.85077953180645,597,154.30165261590687,1212,228.71160880025309]
[null,"With cognitive difficulty",0,15.556349186104045,56,57.56735185849702,2,11.704699910719626,8,17.029386365926403,26,33.526109228480422,0,15.556349186104045,0,15.556349186104045,12,10,0,15.556349186104045,0,15.556349186104045,0,15.556349186104045,0,15.556349186104045,47,34.669871646719429,36,33.837848631377263,11,10,0,15.556349186104045,0,15.556349186104045,88,94.36630754670864,21,36.674241641784498]
[null,"With no cognitive difficulty",87,30.232432915661949,536,205.06096654409879,129,35.355339059327378,38,18.439088914585774,1313,231.62469643800938,70,25.495097567963924,216,48.166378315169183,342,55.154328932550705,81,21.213203435596427,9,14.866068747318506,216,72.138755187485728,356,87.114866699088736,763,147.98986451781082,625,154.93224325491451,318,67.94115100585212,177,92.849340331528467,554,113.85077953180645,509,140.03570973148243,1191,225.01999911119012]
[null,"75  years and Older:",63,28.635642126552707,265,139.08630414242805,21,11.401754250991379,44,23.430749027719962,730,194.48650338776724,26,15.811388300841896,58,25.942243542145693,170,42.449970553582247,54,20.518284528683193,2,4.2426406871192848,92,42.638011210655684,273,78.409183135650636,391,99.704563586628268,321,103.32473082471591,189,50.24937810560445,345,132.96616110875729,283,75.166481891864535,388,114.62983904725679,1067,211.69081227110448]
[null,"With cognitive difficulty",22,24.186773244895647,11,19.416487838947599,0,15.556349186104045,4,13.038404810405298,40,36.249137920783717,2,11.401754250991379,6,14.866068747318506,10,10.816653826391969,8,14.212670403551895,0,15.556349186104045,10,19.416487838947599,67,46.043457732885351,59,50.911688245431421,3,13.038404810405298,11,17.804493814764857,44,61.188234163113421,30,34.785054261852174,25,26.870057685088806,282,173.48486965727011]
[null,"With no cognitive difficulty",41,15.620499351813308,254,138.23168956501979,21,11.401754250991379,40,22.203603311174518,690,196.08671551127577,24,14.7648230602334,52,22.472205054244231,160,43.185645763378368,46,17.204650534085253,2,4.2426406871192848,82,40.36087214122113,206,70.604532432415411,332,85.586213843118443,318,104.06248123122954,178,46.010868281309364,301,123.84264209067892,253,67.94115100585212,363,113.95174417269794,785,213.66328650472454]
[]
[]
[]
[]
[]
[]
[]
[]
[]
[]
[]
[]
[]
[]
[]
[]
[]
[]
[]
[]
[]
[]
[]
[]
[]
[]
[]
[]
[]
[]
[]
[]
[]
[]
[]
["B18104. SEX BY AGE BY COGNITIVE DIFFICULTY\n\n-Calculated"]
["Universe:  Civilian non-institutionalized population 5 years and over"]
["Data Set: 2010-2014 American Community Survey 5-Year Estimates"]
[]
[]
[null,null,"Albany",null,"Bartlett",null,"Brookfield",null,"Chatham",null,"Conway",null,"Eaton",null,"Effingham",null,"Freedom",null,"Hale's Location",null,"Hart's Location",null,"Jackson",null,"Madison",null,"Moultonborough",null,"Ossipee",null,"Sandwich",null,"Tamworth",null,"Tuftonboro",null,"Wakefield",null,"Wolfeboro"]
[null,null,"Estimate","Margin Of Error","Estimate","Margin Of Error","Estimate","Margin Of Error","Estimate","Margin Of Error","Estimate","Margin Of Error","Estimate","Margin Of Error","Estimate","Margin Of Error","Estimate","Margin Of Error","Estimate","Margin Of Error","Estimate","Margin Of Error","Estimate","Margin Of Error","Estimate","Margin Of Error","Estimate","Margin Of Error","Estimate","Margin Of Error","Estimate","Margin Of Error","Estimate","Margin Of Error","Estimate","Margin Of Error","Estimate","Margin Of Error","Estimate","Margin Of Error","Estimate","Margin Of Error","Estimate","Margin Of Error","Estimate","Margin Of Error","Estimate","Margin Of Error"]
[null,"Total:",740,158,2666,99,760,193,364,84,9471,165,347,64,1313,156,1142,148,137,41,41,24,969,217,2389,65,3902,69,3970,143,1431,179,2841,24,2127,271,4825,123,5959,125,0,0,0,0,0,0,0,0]
[null,"5 to 17  years:",155,72.862884927787476,259,136.01470508735443,162,80.448741444475061,55,23.323807579381203,1543,273.4702908909851,27,14.422205101855956,169,47.201694884823787,157,50.24937810560445,3,12.529964086141668,3,12.083045973594572,119,66.2872536767062,327,83.630138108220294,501,128.22636234409833,782,172.00290695217916,274,77.175125526298956,181,80.65977932030313,391,145.08618128546908,493,153.00326793895613,891,246.1097316239242,0,0,0,0,0,0,0,0]
[null,"With cognitive difficulty",0,15.556349186104045,0,15.556349186104045,5,13.038404810405298,6,12.529964086141668,66,43.56604182158393,0,15.556349186104045,14,9.8994949366116654,24,25.495097567963924,0,15.556349186104045,0,15.556349186104045,0,15.556349186104045,27,22.803508501982758,31,38.600518131237564,59,57.070132293521098,4,13.601470508735444,0,15.556349186104045,36,33.286633954186478,32,36.249137920783717,18,23.430749027719962,0,0,0,0,0,0,0,0]
[null,"With no cognitive difficulty",155,72.862884927787476,259,136.01470508735443,157,80.448741444475061,49,22.472205054244231,1477,267.06740722147282,27,14.422205101855956,155,45.221676218380054,133,40.459856648287818,3,12.529964086141668,3,12.083045973594572,119,66.2872536767062,300,87.863530545955186,470,133.00375934536586,723,168.01488029338353,270,75.471849056452825,181,80.65977932030313,355,143.1258187749506,461,154.61565250646521,873,246.1097316239242,0,0,0,0,0,0,0,0]
[null,"18 to 34  years:",65,38.209946349085598,408,157.69908052997647,99,43.600458713183279,97,35.383612025908263,1983,331.85087012090236,31,19.849433241279208,286,75.604232685743199,138,46.400431032480725,0,15.556349186104045,9,8.6023252670426267,129,74.027022093286988,270,75.802374632988901,398,113.86395390991831,585,150.60212481900777,169,69.296464556281663,321,121.91800523302537,277,89.938868127189593,804,220.16584657934573,776,248.16325271885037,0,0,0,0,0,0,0,0]
[null,"With cognitive difficulty",0,15.556349186104045,3,12.083045973594572,0,15.556349186104045,8,10,118,94.021274188345274,0,15.556349186104045,7,6.4031242374328485,3,12.083045973594572,0,15.556349186104045,0,15.556349186104045,0,15.556349186104045,35,31.89043743820395,27,33.941125496954278,23,19.924858845171276,16,16.278820596099706,16,26.40075756488817,0,15.556349186104045,128,109.03669107231748,14,26.627053911388696,0,0,0,0,0,0,0,0]
[null,"With no cognitive difficulty",65,38.209946349085598,405,157.69908052997647,99,43.600458713183279,89,33.97057550292606,1865,327.56678708318401,31,19.849433241279208,279,75.802374632988901,135,45.607017003965517,0,15.556349186104045,9,8.6023252670426267,129,74.027022093286988,235,73.430239002743278,371,113.86395390991831,562,150.80119362922829,153,67.896980787071826,305,121.16517651536682,277,89.938868127189593,676,204.41379601191306,762,248.16325271885037,0,0,0,0,0,0,0,0]
[null,"35 to 64  years:",386,65.76473218982953,1368,221.73181999884454,320,62.968245965724662,149,36.235341863986875,4300,343.84007910655208,191,38.209946349085598,621,87.367041840730764,467,63.63961030678928,40,15.620499351813308,24,17,364,86.833173384369644,1372,117.51595636338071,1960,162.65915283192643,1853,206.51876428063383,619,76.380625815713245,1764,215.72436116489024,952,140.71957930579526,2524,277.20028860013838,2344,236.78260071213003,0,0,0,0,0,0,0,0]
[null,"With cognitive difficulty",10,7.6157731058639087,34,45.177427992306072,14,10.63014581273465,10,11.704699910719626,192,106.53168542738823,16,20.248456731316587,40,20.248456731316587,18,19.416487838947599,1,11.401754250991379,0,15.556349186104045,12,18.601075237738275,41,26.627053911388696,119,65.604877867426907,107,88.588938361400409,13,10.63014581273465,134,82.540898953185632,51,36.055512754639892,212,127.61269529321916,49,53.235326616824658,0,0,0,0,0,0,0,0]
[null,"With no cognitive difficulty",376,65.76473218982953,1334,231.23364807051763,306,63.702433234531945,139,34.058772731852805,4108,347.71396290629457,175,35.383612025908263,581,84.905830188509441,449,61.554853586049575,39,15,24,17,352,84.403791384036765,1331,123.16655390161731,1841,159.96249560443849,1746,188.35073665903195,606,74.953318805774032,1630,211.85136298829894,901,133.5440002396214,2312,282.33490751233722,2295,242.76943794472976,0,0,0,0,0,0,0,0]
[null,"65 to 74  years:",76,25.45584412271571,439,148.49915824677257,116,38.013155617496423,45,16.643316977093239,979,220.62184841941652,72,21.633307652783937,122,29.832867780352597,168,40.36087214122113,55,16.970562748477139,3,12.529964086141668,225,68.117545463705611,226,68.410525505948286,734,137.97463535012514,435,100.89598604503551,162,35.227829907617071,293,110.63453348751464,255,69.404610797842537,642,186.94651641579205,1156,189.76301009416983,0,0,0,0,0,0,0,0]
[null,"With cognitive difficulty",3,12.083045973594572,73,66.610809933523555,0,15.556349186104045,4,5,90,68.600291544569984,0,15.556349186104045,0,15.556349186104045,13,12.206555615733702,2,11.401754250991379,0,15.556349186104045,0,15.556349186104045,14,13.416407864998739,10,19.416487838947599,24,39.560080889704963,3,11.704699910719626,10,17.029386365926403,5,13.038404810405298,18,30.886890422961002,11,22.671568097509269,0,0,0,0,0,0,0,0]
[null,"With no cognitive difficulty",73,24.758836806279895,366,135.20724832641184,116,38.013155617496423,41,15.264337522473747,889,204.38444167793205,72,21.633307652783937,122,29.832867780352597,155,37.643060449437421,53,16.970562748477139,3,12.529964086141668,225,68.117545463705611,212,66.219332524573218,724,135.94851966829208,411,93.744333162063725,159,35.227829907617071,283,112.92918134831227,250,69.404610797842537,624,188.50198937942272,1145,191.78373236539119,0,0,0,0,0,0,0,0]
[null,"75  years and Older:",58,24.041630560342615,192,102.61578825892242,63,38.209946349085598,18,10.63014581273465,666,143.66976021418009,26,12.806248474865697,115,37.443290453698111,212,50.911688245431421,39,14.866068747318506,2,11.401754250991379,132,47.381430961928537,194,68.796802251267465,309,95.775779819325933,315,104.65180361560904,207,48.918299234540036,282,119.36498649101419,252,101.13851887386922,362,117.44360348695028,792,182.78402556022229,0,0,0,0,0,0,0,0]
[null,"With cognitive difficulty",2,11.401754250991379,3,12.083045973594572,0,15.556349186104045,0,15.556349186104045,75,66.708320320631671,2,11.401754250991379,17,11.401754250991379,13,14.866068747318506,0,15.556349186104045,0,15.556349186104045,5,14.212670403551895,37,26.570660511172846,10,19.416487838947599,117,68.709533545207535,0,15.556349186104045,0,15.556349186104045,12,20.248456731316587,148,119.07980517283357,52,42.01190307520001,0,0,0,0,0,0,0,0]
[null,"With no cognitive difficulty",56,24.041630560342615,189,102.61578825892242,63,38.209946349085598,18,10.63014581273465,591,137.37903770226373,24,12.041594578792296,98,34.669871646719429,199,49.578221024962161,39,14.866068747318506,2,11.401754250991379,127,46.669047558312137,157,65,299,93.509357820487679,198,80.993826925266347,207,48.918299234540036,282,119.36498649101419,240,101.13851887386922,214,86.371291526756735,740,186.86893802876924,0,0,0,0,0,0,0,0]

{"sheet":"ACS_Table_B18105","index":34,"n_rows":122,"n_cols":40,"rows_kept":122,"cut":false,"hidden":true,"merged":[]}
["B18105. SEX BY AGE BY AMBULATORY DIFFICULTY\n\n"]
["Universe:  Civilian non-institutionalized population 5 years and over"]
["Data Set: 2015-2019 American Community Survey 5-Year Estimates"]
[]
[null,null,"Albany",null,"Bartlett",null,"Brookfield",null,"Chatham",null,"Conway",null,"Eaton",null,"Effingham",null,"Freedom",null,"Hale's Location",null,"Hart's Location",null,"Jackson",null,"Madison",null,"Moultonborough",null,"Ossipee",null,"Sandwich",null,"Tamworth",null,"Tuftonboro",null,"Wakefield",null,"Wolfeboro"]
[null,null,"Estimate","Margin Of Error","Estimate","Margin Of Error","Estimate","Margin Of Error","Estimate","Margin Of Error","Estimate","Margin Of Error","Estimate","Margin Of Error","Estimate","Margin Of Error","Estimate","Margin Of Error","Estimate","Margin Of Error","Estimate","Margin Of Error","Estimate","Margin Of Error","Estimate","Margin Of Error","Estimate","Margin Of Error","Estimate","Margin Of Error","Estimate","Margin Of Error","Estimate","Margin Of Error","Estimate","Margin Of Error","Estimate","Margin Of Error","Estimate","Margin Of Error"]
[null,"Total:",676,134,2741,39,786,181,361,122,9500,158,256,70,1515,193,1344,178,183,43,42,30,830,199,2430,63,4008,58,3948,133,1387,176,2885,95,2123,204,4723,121,6043,120]
[null,"Male:",332,69,1364,166,404,103,188,59,4812,281,130,46,686,100,662,94,92,28,23,17,363,89,1208,95,1950,133,1830,156,671,94,1551,138,1030,116,2461,185,2920,256]
[null,"5 to 17  years:",62,31,88,53,69,36,26,19,970,242,7,7,99,39,79,36,0,11,0,11,23,27,246,85,293,117,154,79,65,31,323,164,124,41,251,86,217,141]
[null,"With ambulatory difficulty",0,11,0,11,0,11,0,11,72,71,0,11,0,11,0,11,0,11,0,11,0,11,0,11,0,11,0,11,0,11,0,11,0,11,0,16,0,16]
[null,"With no ambulatory difficulty",62,31,88,53,69,36,26,19,898,211,7,7,99,39,79,36,0,11,0,11,23,27,246,85,293,117,154,79,65,31,323,164,124,41,251,86,217,141]
[null,"18 to 34  years:",50,34,217,130,67,48,30,22,863,206,34,24,174,65,50,30,7,12,2,4,21,23,145,56,301,97,363,115,67,39,196,103,170,67,574,158,364,226]
[null,"With ambulatory difficulty",0,11,0,11,0,11,0,11,0,18,0,11,0,11,0,11,0,11,0,11,0,11,0,11,0,11,0,11,4,6,0,11,0,11,28,43,0,16]
[null,"With no ambulatory difficulty",50,34,217,130,67,48,30,22,863,206,34,24,174,65,50,30,7,12,2,4,21,23,145,56,301,97,363,115,63,39,196,103,170,67,546,149,364,226]
[null,"35 to 64  years:",140,38,635,139,187,56,87,29,1783,230,38,18,289,51,262,58,16,11,11,12,176,75,528,74,737,107,930,155,273,60,840,172,332,60,1095,145,1337,185]
[null,"With ambulatory difficulty",14,15,34,56,2,6,0,11,54,45,0,11,11,9,28,19,2,4,0,11,3,5,8,12,27,33,67,65,18,18,136,128,19,16,81,84,141,154]
[null,"With no ambulatory difficulty",126,37,601,141,185,54,87,29,1729,221,38,18,278,52,234,53,14,10,11,12,173,75,520,75,710,112,863,149,255,58,704,144,313,60,1014,141,1196,139]
[null,"65 to 74  years:",53,25,331,146,69,25,20,12,783,179,38,19,107,36,184,40,43,15,9,10,104,52,157,58,442,110,254,99,172,50,31,35,262,71,324,120,509,153]
[null,"With ambulatory difficulty",0,11,32,50,1,3,4,5,130,104,1,4,0,11,34,20,0,11,0,11,0,11,34,33,61,59,70,42,6,8,15,24,10,10,14,21,78,92]
[null,"With no ambulatory difficulty",53,25,299,148,68,25,16,12,653,181,37,18,107,36,150,38,43,15,9,10,104,52,123,50,381,101,184,99,166,50,16,24,252,70,310,120,431,157]
[null,"75  years and Older:",27,12,93,72,12,9,25,18,413,159,13,13,17,12,87,29,26,14,1,3,39,27,132,48,177,71,129,70,94,37,161,96,142,49,217,84,493,142]
[null,"With ambulatory difficulty",8,7,29,44,0,11,3,6,40,40,2,5,4,6,23,18,2,3,0,11,3,4,25,25,14,15,28,27,6,7,15,21,26,24,12,19,288,129]
[null,"With no ambulatory difficulty",19,9,64,64,12,9,22,16,373,155,11,9,13,9,64,24,24,13,1,3,36,27,107,42,163,69,101,65,88,35,146,92,116,46,205,84,205,138]
[null,"Female:",344,91,1377,158,382,88,173,72,4688,290,126,33,829,117,682,104,91,20,19,14,467,123,1222,95,2058,127,2118,176,716,116,1334,157,1093,128,2262,158,3123,226]
[null,"5 to 17  years:",21,13,185,118,55,45,29,23,703,162,7,6,144,47,84,41,3,4,0,11,65,63,129,61,247,88,294,105,48,27,154,112,83,41,123,86,399,129]
[null,"With ambulatory difficulty",0,11,0,11,0,11,0,11,0,18,0,11,0,11,0,11,0,11,0,11,0,11,0,11,0,11,0,11,0,11,0,11,0,11,0,16,0,16]
[null,"With no ambulatory difficulty",21,13,185,118,55,45,29,23,703,162,7,6,144,47,84,41,3,4,0,11,65,63,129,61,247,88,294,105,48,27,154,112,83,41,123,86,399,129]
[null,"18 to 34  years:",66,38,125,82,53,36,18,23,987,208,10,11,200,72,34,23,0,11,2,4,60,46,183,79,400,110,185,81,111,63,158,87,168,64,577,194,193,112]
[null,"With ambulatory difficulty",0,11,0,11,0,11,0,11,91,97,0,11,0,11,0,11,0,11,0,11,0,11,0,11,0,11,4,9,0,11,0,11,7,11,0,16,0,16]
[null,"With no ambulatory difficulty",66,38,125,82,53,36,18,23,896,216,10,11,200,72,34,23,0,11,2,4,60,46,183,79,400,110,181,81,111,63,158,87,161,63,577,194,193,112]
[null,"35 to 64  years:",187,48,634,136,203,53,81,33,2125,212,64,24,335,60,311,65,22,14,16,14,177,70,570,65,829,103,1040,166,305,61,692,101,409,68,1118,147,1254,188]
[null,"With ambulatory difficulty",11,9,0,11,9,9,4,5,103,94,5,5,30,18,5,7,2,4,0,11,0,11,0,11,41,34,85,58,18,16,41,36,28,28,129,90,66,82]
[null,"With no ambulatory difficulty",176,49,634,136,194,51,77,33,2022,215,59,23,305,58,306,65,20,14,16,14,177,70,570,65,788,106,955,169,287,58,651,110,381,72,989,144,1188,156]
[null,"65 to 74  years:",34,17,261,153,62,25,26,19,556,151,32,17,109,32,170,41,38,15,0,11,112,50,199,65,368,98,407,120,157,46,146,86,292,89,273,97,703,170]
[null,"With ambulatory difficulty",0,11,46,59,4,6,0,11,43,44,3,4,15,11,7,8,2,3,0,11,0,11,18,18,37,28,87,60,19,18,35,37,11,12,47,73,141,81]
[null,"With no ambulatory difficulty",34,17,215,144,58,23,26,19,513,146,29,17,94,33,163,41,36,15,0,11,112,50,181,67,331,96,320,118,138,46,111,82,281,88,226,85,562,161]
[null,"75  years and Older:",36,26,172,119,9,7,19,15,317,112,13,9,41,23,83,31,28,15,1,3,53,33,141,62,214,70,192,76,95,34,184,92,141,57,171,78,574,157]
[null,"With ambulatory difficulty",26,25,40,52,2,3,6,8,83,59,6,6,3,5,10,9,1,2,0,11,6,6,53,33,61,44,53,36,15,11,16,22,68,42,51,65,291,146]
[null,"With no ambulatory difficulty",10,8,132,107,7,6,13,12,234,100,7,6,38,23,73,30,27,15,1,3,47,33,88,52,153,60,139,76,80,31,168,92,73,47,120,51,283,128]
[]
[]
[{"$f":"A1& \"-Calculated\"","v":"B18105. SEX BY AGE BY AMBULATORY DIFFICULTY\n\n-Calculated"}]
[{"$f":"A2","v":"Universe:  Civilian non-institutionalized population 5 years and over"}]
[{"$f":"A3","v":"Data Set: 2015-2019 American Community Survey 5-Year Estimates"}]
[]
[]
[null,null,"Albany",null,"Bartlett",null,"Brookfield",null,"Chatham",null,"Conway",null,"Eaton",null,"Effingham",null,"Freedom",null,"Hale's Location",null,"Hart's Location",null,"Jackson",null,"Madison",null,"Moultonborough",null,"Ossipee",null,"Sandwich",null,"Tamworth",null,"Tuftonboro",null,"Wakefield",null,"Wolfeboro"]
[null,null,"Estimate","Margin Of Error","Estimate","Margin Of Error","Estimate","Margin Of Error","Estimate","Margin Of Error","Estimate","Margin Of Error","Estimate","Margin Of Error","Estimate","Margin Of Error","Estimate","Margin Of Error","Estimate","Margin Of Error","Estimate","Margin Of Error","Estimate","Margin Of Error","Estimate","Margin Of Error","Estimate","Margin Of Error","Estimate","Margin Of Error","Estimate","Margin Of Error","Estimate","Margin Of Error","Estimate","Margin Of Error","Estimate","Margin Of Error","Estimate","Margin Of Error"]
[null,"Total:",823,166,2641,87,656,141,358,91,9484,147,365,77,1339,167,1142,156,98,28,39,25,966,209,2404,62,3938,46,3998,135,1344,195,2740,80,2247,260,4867,95,5968,97]
[null,"5 to 17  years:",114,55.470712993434653,402,169.80577139779436,135,62.625873247404705,45,22.671568097509269,1440,243.00205760445732,25,15,157,48.301138702933287,130,47.381430961928537,3,11.704699910719626,2,12.083045973594572,139,79.699435380685102,330,96.896852374058057,480,113.14592347937243,872,181.04419349981927,246,83.671978583035795,267,110.11357772772621,416,141.40014144264495,480,140.80127840328723,998,197.64867821465441]
[null,"With ambulatory difficulty",0,15.556349186104045,0,15.556349186104045,0,15.556349186104045,0,15.556349186104045,0,25.45584412271571,0,15.556349186104045,2,12.083045973594572,0,15.556349186104045,0,15.556349186104045,0,15.556349186104045,0,15.556349186104045,0,15.556349186104045,0,15.556349186104045,0,15.556349186104045,0,15.556349186104045,0,15.556349186104045,0,15.556349186104045,0,22.627416997969522,0,22.627416997969522]
[null,"With no ambulatory difficulty",114,55.470712993434653,402,169.80577139779436,135,62.625873247404705,45,22.671568097509269,1440,243.00205760445732,25,15,155,46.529560496527367,130,47.381430961928537,3,11.704699910719626,2,12.083045973594572,139,79.699435380685102,330,96.896852374058057,480,113.14592347937243,872,181.04419349981927,246,83.671978583035795,267,110.11357772772621,416,141.40014144264495,480,140.80127840328723,998,197.64867821465441]
[null,"18 to 34  years:",109,52.009614495783374,384,142.13022197970423,112,49.091750834534309,90,36.76955262170047,2079,295.02542263337239,40,20.808652046684813,273,70.035705179572517,133,48.104053883222775,0,15.556349186104045,10,8.4852813742385695,56,36.61966684720111,259,82.346827504160714,485,136.85759021698431,563,155.86211855354719,98,40,450,119.97082978791136,260,83.815273071201048,719,198.65799757371965,715,199.24858845171275]
[null,"With ambulatory difficulty",0,15.556349186104045,0,15.556349186104045,0,15.556349186104045,7,16.278820596099706,50,57.245087125446844,0,15.556349186104045,7,9.2195444572928871,0,15.556349186104045,0,15.556349186104045,0,15.556349186104045,0,15.556349186104045,25,28.231188426986208,0,15.556349186104045,30,35.735136770411273,4,12.529964086141668,0,15.556349186104045,0,15.556349186104045,16,28.844410203711913,30,41.231056256176608]
[null,"With no ambulatory difficulty",109,52.009614495783374,384,142.13022197970423,112,49.091750834534309,83,35.383612025908263,2029,303.11713907332921,40,20.808652046684813,266,69.31089380465383,133,48.104053883222775,0,15.556349186104045,10,8.4852813742385695,56,36.61966684720111,234,80.529497701152962,485,136.85759021698431,533,158.22136391777187,94,38.418745424597091,450,119.97082978791136,260,83.815273071201048,703,201.8142710513803,685,192.00260414900626]
[null,"35 to 64  years:",435,73.552702193733168,1285,167.60966559241146,268,48.836461788299118,145,35.468295701936398,4359,328.87687665751145,198,39.623225512317902,643,92.282175960474618,486,71.505244562899023,30,13.45362404707371,25,20.808652046684813,440,92.655275079188016,1437,111.28791488746656,1923,149.93665329064805,1941,197.31446981911895,644,81.394102980498531,1494,180.05554698481245,1076,135.14806694880988,2595,244.85914318236107,2406,221]
[null,"With ambulatory difficulty",44,21.931712199461309,98,70.384657419071104,19,12.206555615733702,9,16.278820596099706,320,149.5125412799876,3,4.2426406871192848,82,34.669871646719429,25,17.888543819998318,3,4.2426406871192848,0,15.556349186104045,9,16.278820596099706,93,47.507894080878813,147,75.927597090912869,295,122.0245876862528,19,13.416407864998739,232,112.25862995778988,22,17,294,127.13772060250254,67,56.797887284651708]
[null,"With no ambulatory difficulty",391,70.035705179572517,1187,167.10774967068403,249,48.836461788299118,136,37.013511046643494,4039,340.57745080965066,195,38.897300677553446,561,86.608313688698502,461,69.354163537598808,27,12.727922061357855,25,20.808652046684813,431,92.655275079188016,1344,114.86513831445988,1776,157.11460785044781,1646,187.97074240423694,625,80.721744282442259,1262,164.93938280471406,1054,133.68993978605869,2301,265.85146228674387,2339,229.4558781116753]
[null,"65 to 74  years:",100,34.713109915419565,404,135.07405376311175,96,36.400549446402593,51,22.472205054244231,959,209.74508337503408,80,25.238858928247925,131,34.713109915419565,211,42.5205832509386,35,13.45362404707371,0,15.556349186104045,203,63.245553203367585,216,69.814038702828242,641,126.66885963013956,330,94.047860156411858,155,37.20215047547655,202,94.667840368310934,248,77.420927403383644,618,179.61347388211163,1171,199.80990966416056]
[null,"With ambulatory difficulty",12,10,73,60.016664352494629,0,15.556349186104045,8,6.7082039324993694,122,93.295230317524812,1,11.401754250991379,22,17.088007490635061,27,17.804493814764857,2,11.401754250991379,0,15.556349186104045,19,16.401219466856727,32,25.612496949731394,22,23.345235059857504,42,27.784887978899608,8,7.810249675906654,23,24.186773244895647,46,31.048349392520048,0,22.627416997969522,138,91.214034007931033]
[null,"With no ambulatory difficulty",88,33.241540277189323,331,128.76334882255898,96,36.400549446402593,43,20.808652046684813,837,196.32880583347927,79,25.238858928247925,109,31.400636936215164,184,40.459856648287818,33,14.142135623730951,0,15.556349186104045,184,63.245553203367585,184,66.219332524573218,619,129.4488315899375,288,91.263355187062899,147,35.805027579936315,179,90.824005637276315,202,72.622310621461224,618,179.61347388211163,1033,208.58091954922435]
[null,"75  years and Older:",65,30.528675044947494,166,85.959292691366414,45,31.144823004794873,27,14.142135623730951,647,140.90067423543437,22,14.212670403551895,135,73.16419889536138,182,38.418745424597091,30,11.313708498984761,2,11.401754250991379,128,47.381430961928537,162,64.031242374328485,409,118.81077392223317,292,102.06860437960343,201,47.434164902525687,327,114.62983904725679,247,99.458534073250846,455,135.83077707206124,678,159.10059710761615]
[null,"With ambulatory difficulty",27,19.723082923316021,19,28.231188426986208,24,27.018512172212592,8,8.5440037453175304,224,113.5649593844862,6,6.7082039324993694,23,12.727922061357855,34,15,5,5,0,15.556349186104045,12,19.416487838947599,45,37.107950630558946,66,49.739320461783549,114,64.660652641308843,30,15.620499351813308,89,57.801384066473702,29,22.472205054244231,115,77.103826104804938,87,54.405882034941776]
[null,"With no ambulatory difficulty",38,20.248456731316587,147,82.764726786234249,21,15.620499351813308,19,11.313708498984761,423,111.80339887498948,16,10.63014581273465,112,70.384657419071104,148,37.802116342871599,25,10.63014581273465,2,11.401754250991379,116,43.931765272977593,117,50.606323715519977,343,106.30145812734649,178,80.05623023850174,171,45.803929962395145,238,104.89041900955492,218,97.744565066299216,340,120.10412149464314,591,159.86244086714052]
[]
[]
[]
[]
[]
[]
[]
[]
[]
[]
[]
[]
[]
[]
[]
[]
[]
[]
[]
[]
[]
[]
[]
[]
[]
[]
[]
[]
[]
[]
[]
[]
[]
[]
[]
["B18105. SEX BY AGE BY AMBULATORY DIFFICULTY\n\n-Calculated"]
["Universe:  Civilian non-institutionalized population 5 years and over"]
["Data Set: 2010-2014 American Community Survey 5-Year Estimates"]
[]
[]
[null,null,"Albany",null,"Bartlett",null,"Brookfield",null,"Chatham",null,"Conway",null,"Eaton",null,"Effingham",null,"Freedom",null,"Hale's Location",null,"Hart's Location",null,"Jackson",null,"Madison",null,"Moultonborough",null,"Ossipee",null,"Sandwich",null,"Tamworth",null,"Tuftonboro",null,"Wakefield",null,"Wolfeboro"]
[null,null,"Estimate","Margin Of Error","Estimate","Margin Of Error","Estimate","Margin Of Error","Estimate","Margin Of Error","Estimate","Margin Of Error","Estimate","Margin Of Error","Estimate","Margin Of Error","Estimate","Margin Of Error","Estimate","Margin Of Error","Estimate","Margin Of Error","Estimate","Margin Of Error","Estimate","Margin Of Error","Estimate","Margin Of Error","Estimate","Margin Of Error","Estimate","Margin Of Error","Estimate","Margin Of Error","Estimate","Margin Of Error","Estimate","Margin Of Error","Estimate","Margin Of Error"]
[null,"Total:",740,158,2666,99,760,193,364,84,9471,165,347,64,1313,156,1142,148,137,41,41,24,969,217,2389,65,3902,69,3970,143,1431,179,2841,24,2127,271,4825,123,5959,125]
[null,"5 to 17  years:",155,72.862884927787476,259,136.01470508735443,162,80.448741444475061,55,23.323807579381203,1543,273.4702908909851,27,14.422205101855956,169,47.201694884823787,157,50.24937810560445,3,12.529964086141668,3,12.083045973594572,119,66.2872536767062,327,83.630138108220294,501,128.22636234409833,782,172.00290695217916,274,77.175125526298956,181,80.65977932030313,391,145.08618128546908,493,153.00326793895613,891,246.1097316239242]
[null,"With ambulatory difficulty",0,15.556349186104045,0,15.556349186104045,0,15.556349186104045,0,15.556349186104045,0,24.041630560342615,0,15.556349186104045,3,11.704699910719626,0,15.556349186104045,0,15.556349186104045,0,15.556349186104045,0,15.556349186104045,0,15.556349186104045,0,15.556349186104045,0,15.556349186104045,0,15.556349186104045,0,15.556349186104045,0,15.556349186104045,0,21.213203435596427,0,21.213203435596427]
[null,"With no ambulatory difficulty",155,72.862884927787476,259,136.01470508735443,162,80.448741444475061,55,23.323807579381203,1543,273.4702908909851,27,14.422205101855956,166,47.201694884823787,157,50.24937810560445,3,12.529964086141668,3,12.083045973594572,119,66.2872536767062,327,83.630138108220294,501,128.22636234409833,782,172.00290695217916,274,77.175125526298956,181,80.65977932030313,391,145.08618128546908,493,153.00326793895613,891,246.1097316239242]
[null,"18 to 34  years:",65,38.209946349085598,408,157.69908052997647,99,43.600458713183279,97,35.383612025908263,1983,331.85087012090236,31,19.849433241279208,286,75.604232685743199,138,46.400431032480725,0,15.556349186104045,9,8.6023252670426267,129,74.027022093286988,270,75.802374632988901,398,113.86395390991831,585,150.60212481900777,169,69.296464556281663,321,121.91800523302537,277,89.938868127189593,804,220.16584657934573,776,248.16325271885037]
[null,"With ambulatory difficulty",0,15.556349186104045,0,15.556349186104045,0,15.556349186104045,4,13.601470508735444,61,66.730802482811484,0,15.556349186104045,11,8.6023252670426267,0,15.556349186104045,0,15.556349186104045,0,15.556349186104045,0,15.556349186104045,23,30.083217912982647,0,15.556349186104045,32,39.560080889704963,4,13.038404810405298,0,15.556349186104045,0,15.556349186104045,59,74.525163535546838,37,50.289163842720633]
[null,"With no ambulatory difficulty",65,38.209946349085598,408,157.69908052997647,99,43.600458713183279,93,34.713109915419565,1922,329.87876560942811,31,19.849433241279208,275,75,138,46.400431032480725,0,15.556349186104045,9,8.6023252670426267,129,74.027022093286988,247,65.79513659838392,398,113.86395390991831,553,148.22280526288793,165,70.007142492748557,321,121.91800523302537,277,89.938868127189593,745,215.76144233852349,739,245.66847579614279]
[null,"35 to 64  years:",386,65.76473218982953,1368,221.73181999884454,320,62.968245965724662,149,36.235341863986875,4300,343.84007910655208,191,38.209946349085598,621,87.367041840730764,467,63.63961030678928,40,15.620499351813308,24,17,364,86.833173384369644,1372,117.51595636338071,1960,162.65915283192643,1853,206.51876428063383,619,76.380625815713245,1764,215.72436116489024,952,140.71957930579526,2524,277.20028860013838,2344,236.78260071213003]
[null,"With ambulatory difficulty",28,12.806248474865697,71,68.183575734923139,17,13,8,15.556349186104045,294,140.94325099131211,4,3.6055512754639891,90,30.805843601498726,30,18.357559750685819,4,5.8309518948453007,0,15.556349186104045,2,11.401754250991379,54,31.827660925679098,130,71.449282711584999,245,118.56221995222593,17,12.529964086141668,381,175.64168070250295,25,17.029386365926403,281,145.56098378343009,117,80.777472107017559]
[null,"With no ambulatory difficulty",358,65.069193939989759,1297,218.01376103356412,303,61.522353661088097,141,34.713109915419565,4006,344.41980198589044,187,38.209946349085598,531,85.440037453175307,437,62.936475910238251,36,14.422205101855956,24,17,362,86.833173384369644,1318,121.91800523302537,1830,159.10059710761615,1608,202.95073293782411,602,74.966659255965254,1383,205.7984450864486,927,139.05394636614957,2243,294.92032822442064,2227,241.58021442162848]
[null,"65 to 74  years:",76,25.45584412271571,439,148.49915824677257,116,38.013155617496423,45,16.643316977093239,979,220.62184841941652,72,21.633307652783937,122,29.832867780352597,168,40.36087214122113,55,16.970562748477139,3,12.529964086141668,225,68.117545463705611,226,68.410525505948286,734,137.97463535012514,435,100.89598604503551,162,35.227829907617071,293,110.63453348751464,255,69.404610797842537,642,186.94651641579205,1156,189.76301009416983]
[null,"With ambulatory difficulty",12,8.6023252670426267,59,60.016664352494629,6,14.212670403551895,7,6.7082039324993694,113,74.060785845142092,8,9.2195444572928871,13,9.2195444572928871,29,17.804493814764857,2,11.401754250991379,3,12.529964086141668,18,15.620499351813308,17,12.041594578792296,27,27.202941017470888,51,28.653097563788805,10,7.2111025509279782,60,59.439044406854322,38,26.570660511172846,18,30.886890422961002,110,82]
[null,"With no ambulatory difficulty",64,24.041630560342615,380,134.01492454200763,110,36.400549446402593,38,15.264337522473747,866,199.80990966416056,64,22.203603311174518,109,28.319604517012593,139,36.400549446402593,53,16.970562748477139,0,15.556349186104045,207,64.660652641308843,209,67.801179930735714,707,136.69308687713507,384,101.04454463255303,152,34.669871646719429,233,97.061835960381458,217,63.253458403473878,624,188.50198937942272,1046,188.22327167489146]
[null,"75  years and Older:",58,24.041630560342615,192,102.61578825892242,63,38.209946349085598,18,10.63014581273465,666,143.66976021418009,26,12.806248474865697,115,37.443290453698111,212,50.911688245431421,39,14.866068747318506,2,11.401754250991379,132,47.381430961928537,194,68.796802251267465,309,95.775779819325933,315,104.65180361560904,207,48.918299234540036,282,119.36498649101419,252,101.13851887386922,362,117.44360348695028,792,182.78402556022229]
[null,"With ambulatory difficulty",26,21.2602916254693,3,12.083045973594572,25,26.248809496813376,6,5.6568542494923806,184,92.444577991356525,8,6.7082039324993694,20,12.041594578792296,43,20.615528128088304,7,6.4031242374328485,0,15.556349186104045,11,17.804493814764857,46,36.76955262170047,45,31.384709652950431,106,67.446274915668994,28,15,58,44.384682042344295,22,19.313207915827967,78,59.548299723837623,149,89.944427287075428]
[null,"With no ambulatory difficulty",32,13.45362404707371,189,102.61578825892242,38,25.45584412271571,12,9.2195444572928871,482,111.8659912573969,18,10.63014581273465,95,34.409301068170507,169,45.967379738244816,32,12.727922061357855,2,11.401754250991379,121,45.343136195018538,148,60.307545133258408,264,89.643739324059879,209,82.365041127896006,179,44.598206241955516,224,115.41230437002807,230,98.954535014823847,284,110.60289327137876,643,159.29846201391902]

{"sheet":"ACS_Table_B18106","index":35,"n_rows":122,"n_cols":40,"rows_kept":122,"cut":false,"hidden":true,"merged":[]}
["B18106. SEX BY AGE BY SELF-CARE DIFFICULTY\n\n\n\n"]
["Universe:  Civilian non-institutionalized population 5 years and over"]
["Data Set: 2015-2019 American Community Survey 5-Year Estimates"]
[]
[null,null,"Albany",null,"Bartlett",null,"Brookfield",null,"Chatham",null,"Conway",null,"Eaton",null,"Effingham",null,"Freedom",null,"Hale's Location",null,"Hart's Location",null,"Jackson",null,"Madison",null,"Moultonborough",null,"Ossipee",null,"Sandwich",null,"Tamworth",null,"Tuftonboro",null,"Wakefield",null,"Wolfeboro"]
[null,null,"Estimate","Margin Of Error","Estimate","Margin Of Error","Estimate","Margin Of Error","Estimate","Margin Of Error","Estimate","Margin Of Error","Estimate","Margin Of Error","Estimate","Margin Of Error","Estimate","Margin Of Error","Estimate","Margin Of Error","Estimate","Margin Of Error","Estimate","Margin Of Error","Estimate","Margin Of Error","Estimate","Margin Of Error","Estimate","Margin Of Error","Estimate","Margin Of Error","Estimate","Margin Of Error","Estimate","Margin Of Error","Estimate","Margin Of Error","Estimate","Margin Of Error"]
[null,"Total:",676,134,2741,39,786,181,361,122,9500,158,256,70,1515,193,1344,178,183,43,42,30,830,199,2430,63,4008,58,3948,133,1387,176,2885,95,2123,204,4723,121,6043,120]
[null,"Male:",332,69,1364,166,404,103,188,59,4812,281,130,46,686,100,662,94,92,28,23,17,363,89,1208,95,1950,133,1830,156,671,94,1551,138,1030,116,2461,185,2920,256]
[null,"5 to 17  years:",62,31,88,53,69,36,26,19,970,242,7,7,99,39,79,36,0,11,0,11,23,27,246,85,293,117,154,79,65,31,323,164,124,41,251,86,217,141]
[null,"With self care difficulty",0,11,0,11,0,11,0,11,54,68,0,11,0,11,3,5,0,11,0,11,0,11,4,8,0,11,0,11,0,11,0,11,0,11,0,16,0,16]
[null,"With no self care difficulty",62,31,88,53,69,36,26,19,916,214,7,7,99,39,76,36,0,11,0,11,23,27,242,86,293,117,154,79,65,31,323,164,124,41,251,86,217,141]
[null,"18 to 34  years:",50,34,217,130,67,48,30,22,863,206,34,24,174,65,50,30,7,12,2,4,21,23,145,56,301,97,363,115,67,39,196,103,170,67,574,158,364,226]
[null,"With self care difficulty",0,11,0,11,0,11,0,11,0,18,0,11,0,11,0,11,0,11,0,11,0,11,0,11,0,11,0,11,0,11,0,11,0,11,28,43,0,16]
[null,"With no self care difficulty",50,34,217,130,67,48,30,22,863,206,34,24,174,65,50,30,7,12,2,4,21,23,145,56,301,97,363,115,67,39,196,103,170,67,546,149,364,226]
[null,"35 to 64  years:",140,38,635,139,187,56,87,29,1783,230,38,18,289,51,262,58,16,11,11,12,176,75,528,74,737,107,930,155,273,60,840,172,332,60,1095,145,1337,185]
[null,"With self care difficulty",5,6,0,11,0,11,2,4,21,29,0,11,2,4,14,12,2,4,0,11,0,11,8,12,5,8,26,41,0,11,0,11,0,11,40,48,79,98]
[null,"With no self care difficulty",135,37,635,139,187,56,85,29,1762,225,38,18,287,51,248,56,14,10,11,12,176,75,520,75,732,106,904,153,273,60,840,172,332,60,1055,142,1258,159]
[null,"65 to 74  years:",53,25,331,146,69,25,20,12,783,179,38,19,107,36,184,40,43,15,9,10,104,52,157,58,442,110,254,99,172,50,31,35,262,71,324,120,509,153]
[null,"With self care difficulty",0,11,12,17,0,11,0,11,11,19,0,11,0,11,5,6,0,11,0,11,0,11,0,11,11,16,22,25,0,11,0,11,0,11,0,16,0,16]
[null,"With no self care difficulty",53,25,319,145,69,25,20,12,772,180,38,19,107,36,179,38,43,15,9,10,104,52,157,58,431,112,232,98,172,50,31,35,262,71,324,120,509,153]
[null,"75  years and Older:",27,12,93,72,12,9,25,18,413,159,13,13,17,12,87,29,26,14,1,3,39,27,132,48,177,71,129,70,94,37,161,96,142,49,217,84,493,142]
[null,"With self care difficulty",0,11,0,11,0,11,0,11,4,8,0,11,0,11,0,11,0,11,1,3,0,11,15,23,0,11,9,15,0,11,0,11,17,20,12,19,79,95]
[null,"With no self care difficulty",27,12,93,72,12,9,25,18,409,161,13,13,17,12,87,29,26,14,0,11,39,27,117,41,177,71,120,69,94,37,161,96,125,46,205,84,414,157]
[null,"Female:",344,91,1377,158,382,88,173,72,4688,290,126,33,829,117,682,104,91,20,19,14,467,123,1222,95,2058,127,2118,176,716,116,1334,157,1093,128,2262,158,3123,226]
[null,"5 to 17  years:",21,13,185,118,55,45,29,23,703,162,7,6,144,47,84,41,3,4,0,11,65,63,129,61,247,88,294,105,48,27,154,112,83,41,123,86,399,129]
[null,"With self care difficulty",0,11,0,11,0,11,0,11,0,18,2,3,2,4,6,8,0,11,0,11,0,11,0,11,0,11,0,11,0,11,0,11,0,11,0,16,0,16]
[null,"With no self care difficulty",21,13,185,118,55,45,29,23,703,162,5,4,142,47,78,40,3,4,0,11,65,63,129,61,247,88,294,105,48,27,154,112,83,41,123,86,399,129]
[null,"18 to 34  years:",66,38,125,82,53,36,18,23,987,208,10,11,200,72,34,23,0,11,2,4,60,46,183,79,400,110,185,81,111,63,158,87,168,64,577,194,193,112]
[null,"With self care difficulty",0,11,0,11,0,11,0,11,0,18,0,11,0,11,0,11,0,11,0,11,0,11,0,11,0,11,4,9,0,11,0,11,7,11,44,60,0,16]
[null,"With no self care difficulty",66,38,125,82,53,36,18,23,987,208,10,11,200,72,34,23,0,11,2,4,60,46,183,79,400,110,181,81,111,63,158,87,161,63,533,215,193,112]
[null,"35 to 64  years:",187,48,634,136,203,53,81,33,2125,212,64,24,335,60,311,65,22,14,16,14,177,70,570,65,829,103,1040,166,305,61,692,101,409,68,1118,147,1254,188]
[null,"With self care difficulty",7,7,0,11,0,11,2,4,13,21,0,11,8,8,0,11,2,4,0,11,0,11,0,11,22,27,24,28,0,11,12,18,21,26,60,56,66,82]
[null,"With no self care difficulty",180,48,634,136,203,53,79,33,2112,216,64,24,327,58,311,65,20,14,16,14,177,70,570,65,807,103,1016,164,305,61,680,104,388,71,1058,156,1188,156]
[null,"65 to 74  years:",34,17,261,153,62,25,26,19,556,151,32,17,109,32,170,41,38,15,0,11,112,50,199,65,368,98,407,120,157,46,146,86,292,89,273,97,703,170]
[null,"With self care difficulty",0,11,32,51,2,4,0,11,3,7,2,3,0,11,2,5,0,11,0,11,0,11,6,8,8,13,18,28,16,17,0,11,5,8,0,16,21,33]
[null,"With no self care difficulty",34,17,229,146,60,25,26,19,553,151,30,17,109,32,168,41,38,15,0,11,112,50,193,66,360,99,389,117,141,46,146,86,287,90,273,97,682,165]
[null,"75  years and Older:",36,26,172,119,9,7,19,15,317,112,13,9,41,23,83,31,28,15,1,3,53,33,141,62,214,70,192,76,95,34,184,92,141,57,171,78,574,157]
[null,"With self care difficulty",20,24,0,11,0,11,2,5,14,21,0,11,0,11,11,8,0,11,0,11,0,11,7,9,17,19,5,10,13,10,5,12,27,32,0,16,86,107]
[null,"With no self care difficulty",16,10,172,119,9,7,17,13,303,111,13,9,41,23,72,32,28,15,1,3,53,33,134,61,197,70,187,75,82,31,179,91,114,50,171,78,488,153]
[]
[]
[{"$f":"A1& \"-Calculated\"","v":"B18106. SEX BY AGE BY SELF-CARE DIFFICULTY\n\n\n\n-Calculated"}]
[{"$f":"A2","v":"Universe:  Civilian non-institutionalized population 5 years and over"}]
[{"$f":"A3","v":"Data Set: 2015-2019 American Community Survey 5-Year Estimates"}]
[]
[]
[null,null,"Albany",null,"Bartlett",null,"Brookfield",null,"Chatham",null,"Conway",null,"Eaton",null,"Effingham",null,"Freedom",null,"Hale's Location",null,"Hart's Location",null,"Jackson",null,"Madison",null,"Moultonborough",null,"Ossipee",null,"Sandwich",null,"Tamworth",null,"Tuftonboro",null,"Wakefield",null,"Wolfeboro"]
[null,null,"Estimate","Margin Of Error","Estimate","Margin Of Error","Estimate","Margin Of Error","Estimate","Margin Of Error","Estimate","Margin Of Error","Estimate","Margin Of Error","Estimate","Margin Of Error","Estimate","Margin Of Error","Estimate","Margin Of Error","Estimate","Margin Of Error","Estimate","Margin Of Error","Estimate","Margin Of Error","Estimate","Margin Of Error","Estimate","Margin Of Error","Estimate","Margin Of Error","Estimate","Margin Of Error","Estimate","Margin Of Error","Estimate","Margin Of Error","Estimate","Margin Of Error"]
[null,"Total:",{"$f":"C7","v":676},134,2741,39,786,181,361,122,9500,158,256,70,1515,193,1344,178,183,43,42,30,830,199,{"$f":"Y7","v":2430},63,4008,58,3948,133,1387,176,2885,95,2123,204,4723,121,6043,120]
[null,"5 to 17  years:",{"$f":"C25+C9","v":83},{"$f":"SQRT((D25^2)+(D9^2))","v":33.61547262794322},{"$f":"E25+E9","v":273},{"$f":"SQRT((F25^2)+(F9^2))","v":129.3560976529518},{"$f":"G25+G9","v":124},{"$f":"SQRT((H25^2)+(H9^2))","v":57.628118136895637},{"$f":"I25+I9","v":55},{"$f":"SQRT((J25^2)+(J9^2))","v":29.832867780352597},{"$f":"K25+K9","v":1673},{"$f":"SQRT((L25^2)+(L9^2))","v":291.21813130366729},{"$f":"M25+M9","v":14},{"$f":"SQRT((N25^2)+(N9^2))","v":9.2195444572928871},{"$f":"O25+O9","v":243},{"$f":"SQRT((P25^2)+(P9^2))","v":61.073725938409879},{"$f":"Q25+Q9","v":163},{"$f":"SQRT((R25^2)+(R9^2))","v":54.561891462814962},{"$f":"S25+S9","v":3},{"$f":"SQRT((T25^2)+(T9^2))","v":11.704699910719626},{"$f":"U25+U9","v":0},{"$f":"SQRT((V25^2)+(V9^2))","v":15.556349186104045},{"$f":"W25+W9","v":88},{"$f":"SQRT((X25^2)+(X9^2))","v":68.541957952775178},{"$f":"Y25+Y9","v":375},{"$f":"SQRT((Z25^2)+(Z9^2))","v":104.62313319720452},{"$f":"AA25+AA9","v":540},{"$f":"SQRT((AB25^2)+(AB9^2))","v":146.40013661195812},{"$f":"AC25+AC9","v":448},{"$f":"SQRT((AD25^2)+(AD9^2))","v":131.40015220691336},{"$f":"AE25+AE9","v":113},{"$f":"SQRT((AF25^2)+(AF9^2))","v":41.109609582188931},{"$f":"AG25+AG9","v":477},{"$f":"SQRT((AH25^2)+(AH9^2))","v":198.59506539690256},{"$f":"AI25+AI9","v":207},{"$f":"SQRT((AJ25^2)+(AJ9^2))","v":57.982756057296896},{"$f":"AK25+AK9","v":374},{"$f":"SQRT((AL25^2)+(AL9^2))","v":121.62236636408618},{"$f":"AM25+AM9","v":616},{"$f":"SQRT((AN25^2)+(AN9^2))","v":191.10729970359583}]
[null,"With self care difficulty",0,15.556349186104045,0,15.556349186104045,0,15.556349186104045,0,15.556349186104045,54,70.342021580275897,2,11.401754250991379,2,11.704699910719626,9,9.4339811320566032,0,15.556349186104045,0,15.556349186104045,0,15.556349186104045,4,13.601470508735444,0,15.556349186104045,0,15.556349186104045,0,15.556349186104045,0,15.556349186104045,0,15.556349186104045,0,22.627416997969522,0,22.627416997969522]
[null,"With no self care difficulty",83,33.61547262794322,273,129.3560976529518,124,57.628118136895637,55,29.832867780352597,1619,268.40268254993282,12,8.0622577482985491,241,61.073725938409879,154,53.814496188294839,3,11.704699910719626,0,15.556349186104045,88,68.541957952775178,371,105.43718509140881,540,146.40013661195812,448,131.40015220691336,113,41.109609582188931,477,198.59506539690256,207,57.982756057296896,374,121.62236636408618,616,191.10729970359583]
[null,"18 to 34  years:",116,50.990195135927848,342,153.7010084547268,120,60,48,31.827660925679098,1850,292.74562336608892,44,26.40075756488817,374,97,84,37.802116342871599,7,16.278820596099706,4,5.6568542494923806,81,51.429563482495162,328,96.834911060009759,701,146.65946952038249,548,140.66271716414411,178,74.094534211370814,354,134.82581355215328,338,92.655275079188016,1151,250.19992006393608,557,252.23005372080465]
[null,"With self care difficulty",0,15.556349186104045,0,15.556349186104045,0,15.556349186104045,0,15.556349186104045,0,25.45584412271571,0,15.556349186104045,0,15.556349186104045,0,15.556349186104045,0,15.556349186104045,0,15.556349186104045,0,15.556349186104045,0,15.556349186104045,0,15.556349186104045,4,14.212670403551895,0,15.556349186104045,0,15.556349186104045,7,15.556349186104045,72,73.81734213584231,0,22.627416997969522]
[null,"With no self care difficulty",116,50.990195135927848,342,153.7010084547268,120,60,48,31.827660925679098,1850,292.74562336608892,44,26.40075756488817,374,97,84,37.802116342871599,7,16.278820596099706,4,5.6568542494923806,81,51.429563482495162,328,96.834911060009759,701,146.65946952038249,544,140.66271716414411,178,74.094534211370814,354,134.82581355215328,331,91.967385523347346,1079,261.58363863208263,557,252.23005372080465]
[null,"35 to 64  years:",327,61.220911460055866,1269,194.46593532030229,390,77.103826104804938,168,43.931765272977593,3908,312.80025575437116,102,30,624,78.746428490440124,573,87.114866699088736,38,17.804493814764857,27,18.439088914585774,353,102.59142264341595,1098,98.493654617949886,1566,148.51935900750448,1970,227.11450856341168,578,85.562842402528915,1532,199.46177578674065,741,90.686272390037075,2213,206.48002324680226,2591,263.75936002348806]
[null,"With self care difficulty",12,9.2195444572928871,0,15.556349186104045,0,15.556349186104045,4,5.6568542494923806,34,35.805027579936315,0,15.556349186104045,10,8.9442719099991592,14,16.278820596099706,4,5.6568542494923806,0,15.556349186104045,0,15.556349186104045,8,16.278820596099706,27,28.160255680657446,50,49.648766349225639,0,15.556349186104045,12,21.095023109728988,21,28.231188426986208,100,73.756355658343097,145,127.7810627597063]
[null,"With no self care difficulty",315,60.605280298007038,1269,194.46593532030229,390,77.103826104804938,164,43.931765272977593,3874,311.89902212094222,102,30,614,77.233412458598508,559,85.796270315206598,34,17.204650534085253,27,18.439088914585774,353,102.59142264341595,1090,99.247166206396045,1539,147.80054127099805,1920,224.28776159211185,578,85.562842402528915,1520,200.9975124224178,720,92.956979296876895,2113,210.95023109728987,2446,222.74873737015884]
[null,"65 to 74  years:",87,30.232432915661949,592,211.48285982556601,131,35.355339059327378,46,22.472205054244231,1339,234.18368858654523,70,25.495097567963924,216,48.166378315169183,354,57.280013966478741,81,21.213203435596427,9,14.866068747318506,216,72.138755187485728,356,87.114866699088736,810,147.32277488562318,661,155.56670594957006,329,67.94115100585212,177,92.849340331528467,554,113.85077953180645,597,154.30165261590687,1212,228.71160880025309]
[null,"With self care difficulty",0,15.556349186104045,44,53.758720222862451,2,11.704699910719626,0,15.556349186104045,14,20.248456731316587,2,11.401754250991379,0,15.556349186104045,7,7.810249675906654,0,15.556349186104045,0,15.556349186104045,0,15.556349186104045,6,13.601470508735444,19,20.615528128088304,40,37.536648758246919,16,20.248456731316587,0,15.556349186104045,5,13.601470508735444,0,22.627416997969522,21,36.674241641784498]
[null,"With no self care difficulty",87,30.232432915661949,548,205.7692882818036,129,35.355339059327378,46,22.472205054244231,1325,234.94893062110327,68,25.495097567963924,216,48.166378315169183,347,55.901699437494742,81,21.213203435596427,9,14.866068747318506,216,72.138755187485728,350,87.863530545955186,791,149.4824404403407,621,152.62044423995101,313,67.94115100585212,177,92.849340331528467,549,114.63420083029322,597,154.30165261590687,1191,225.01999911119012]
[null,"75  years and Older:",63,28.635642126552707,265,139.08630414242805,21,11.401754250991379,44,23.430749027719962,730,194.48650338776724,26,15.811388300841896,58,25.942243542145693,170,42.449970553582247,54,20.518284528683193,2,4.2426406871192848,92,42.638011210655684,273,78.409183135650636,391,99.704563586628268,321,103.32473082471591,189,50.24937810560445,345,132.96616110875729,283,75.166481891864535,388,114.62983904725679,1067,211.69081227110448]
[null,"With self care difficulty",20,26.40075756488817,0,15.556349186104045,0,15.556349186104045,2,12.083045973594572,18,22.472205054244231,0,15.556349186104045,0,15.556349186104045,11,13.601470508735444,0,15.556349186104045,1,11.401754250991379,0,15.556349186104045,22,24.698178070456937,17,21.95449840010015,14,18.027756377319946,13,14.866068747318506,5,16.278820596099706,44,37.735924528226413,12,24.839484696748443,165,143.0873858870865]
[null,"With no self care difficulty",43,15.620499351813308,265,139.08630414242805,21,11.401754250991379,42,22.203603311174518,712,195.55561868685851,26,15.811388300841896,58,25.942243542145693,159,43.185645763378368,54,20.518284528683193,1,11.401754250991379,92,42.638011210655684,251,73.498299300051841,374,99.704563586628268,307,101.91172650877817,176,48.270073544588683,340,132.27622613304328,239,67.94115100585212,376,114.62983904725679,902,219.22134932528812]
[]
[]
[]
[]
[]
[]
[]
[]
[]
[]
[]
[]
[]
[]
[]
[]
[]
[]
[]
[]
[]
[]
[]
[]
[]
[]
[]
[]
[]
[]
[]
[]
[]
[]
[]
["B18106. SEX BY AGE BY SELF-CARE DIFFICULTY\n\n\n\n-Calculated"]
["Universe:  Civilian non-institutionalized population 5 years and over"]
["Data Set: 2010-2014 American Community Survey 5-Year Estimates"]
[]
[]
[null,null,"Albany",null,"Bartlett",null,"Brookfield",null,"Chatham",null,"Conway",null,"Eaton",null,"Effingham",null,"Freedom",null,"Hale's Location",null,"Hart's Location",null,"Jackson",null,"Madison",null,"Moultonborough",null,"Ossipee",null,"Sandwich",null,"Tamworth",null,"Tuftonboro",null,"Wakefield",null,"Wolfeboro"]
[null,null,"Estimate","Margin Of Error","Estimate","Margin Of Error","Estimate","Margin Of Error","Estimate","Margin Of Error","Estimate","Margin Of Error","Estimate","Margin Of Error","Estimate","Margin Of Error","Estimate","Margin Of Error","Estimate","Margin Of Error","Estimate","Margin Of Error","Estimate","Margin Of Error","Estimate","Margin Of Error","Estimate","Margin Of Error","Estimate","Margin Of Error","Estimate","Margin Of Error","Estimate","Margin Of Error","Estimate","Margin Of Error","Estimate","Margin Of Error","Estimate","Margin Of Error"]
[null,"Total:",740,158,2666,99,760,193,364,84,9471,165,347,64,1313,156,1142,148,137,41,41,24,969,217,2389,65,3902,69,3970,143,1431,179,2841,24,2127,271,4825,123,5959,125]
[null,"5 to 17  years:",155,72.862884927787476,259,136.01470508735443,162,80.448741444475061,55,23.323807579381203,1543,273.4702908909851,27,14.422205101855956,169,47.201694884823787,157,50.24937810560445,3,12.529964086141668,3,12.083045973594572,119,66.2872536767062,327,83.630138108220294,501,128.22636234409833,782,172.00290695217916,274,77.175125526298956,181,80.65977932030313,391,145.08618128546908,493,153.00326793895613,891,246.1097316239242]
[null,"With self care difficulty",0,15.556349186104045,0,15.556349186104045,0,15.556349186104045,0,15.556349186104045,12,25.495097567963924,0,15.556349186104045,0,15.556349186104045,0,15.556349186104045,0,15.556349186104045,0,15.556349186104045,0,15.556349186104045,6,14.866068747318506,0,15.556349186104045,0,15.556349186104045,0,15.556349186104045,0,15.556349186104045,0,15.556349186104045,16,28.301943396169811,18,23.430749027719962]
[null,"With no self care difficulty",155,72.862884927787476,259,136.01470508735443,162,80.448741444475061,55,23.323807579381203,1531,273.4702908909851,27,14.422205101855956,169,47.201694884823787,157,50.24937810560445,3,12.529964086141668,3,12.083045973594572,119,66.2872536767062,321,85.14693182963201,501,128.22636234409833,782,172.00290695217916,274,77.175125526298956,181,80.65977932030313,391,145.08618128546908,477,153.00326793895613,873,246.1097316239242]
[null,"18 to 34  years:",65,38.209946349085598,408,157.69908052997647,99,43.600458713183279,97,35.383612025908263,1983,331.85087012090236,31,19.849433241279208,286,75.604232685743199,138,46.400431032480725,0,15.556349186104045,9,8.6023252670426267,129,74.027022093286988,270,75.802374632988901,398,113.86395390991831,585,150.60212481900777,169,69.296464556281663,321,121.91800523302537,277,89.938868127189593,804,220.16584657934573,776,248.16325271885037]
[null,"With self care difficulty",0,15.556349186104045,0,15.556349186104045,0,15.556349186104045,0,15.556349186104045,36,60.440052945046304,0,15.556349186104045,3,11.704699910719626,0,15.556349186104045,0,15.556349186104045,0,15.556349186104045,0,15.556349186104045,0,15.556349186104045,0,15.556349186104045,0,15.556349186104045,4,13.038404810405298,16,26.40075756488817,0,15.556349186104045,0,21.213203435596427,8,19.849433241279208]
[null,"With no self care difficulty",65,38.209946349085598,408,157.69908052997647,99,43.600458713183279,97,35.383612025908263,1947,329.13978793211857,31,19.849433241279208,283,76.400261779656233,138,46.400431032480725,0,15.556349186104045,9,8.6023252670426267,129,74.027022093286988,270,75.802374632988901,398,113.86395390991831,585,150.60212481900777,165,69.296464556281663,305,121.16517651536682,277,89.938868127189593,804,220.16584657934573,768,247.53585598858197]
[null,"35 to 64  years:",386,65.76473218982953,1368,221.73181999884454,320,62.968245965724662,149,36.235341863986875,4300,343.84007910655208,191,38.209946349085598,621,87.367041840730764,467,63.63961030678928,40,15.620499351813308,24,17,364,86.833173384369644,1372,117.51595636338071,1960,162.65915283192643,1853,206.51876428063383,619,76.380625815713245,1764,215.72436116489024,952,140.71957930579526,2524,277.20028860013838,2344,236.78260071213003]
[null,"With self care difficulty",4,4.2426406871192848,12,19.416487838947599,14,12.369316876852981,0,15.556349186104045,75,62.433965115151864,1,11.401754250991379,30,17.088007490635061,13,9.2195444572928871,2,12.083045973594572,0,15.556349186104045,0,15.556349186104045,0,15.556349186104045,105,68.593002558570063,133,97.943861471763512,5,5.6568542494923806,113,70.661163307718056,13,17.804493814764857,70,63.788713735268246,95,77.129760793094647]
[null,"With no self care difficulty",382,65.069193939989759,1356,219.49487465542333,306,61.522353661088097,149,36.235341863986875,4225,348.63161072972139,190,37.536648758246919,591,86.53323061113575,454,62.936475910238251,38,14.422205101855956,24,17,364,86.833173384369644,1372,117.51595636338071,1855,159.80613254815975,1720,197.99494943053472,614,76.380625815713245,1651,223.64704335179573,939,139.46325680981354,2454,280.07141946296485,2249,240.08540147205952]
[null,"65 to 74  years:",76,25.45584412271571,439,148.49915824677257,116,38.013155617496423,45,16.643316977093239,979,220.62184841941652,72,21.633307652783937,122,29.832867780352597,168,40.36087214122113,55,16.970562748477139,3,12.529964086141668,225,68.117545463705611,226,68.410525505948286,734,137.97463535012514,435,100.89598604503551,162,35.227829907617071,293,110.63453348751464,255,69.404610797842537,642,186.94651641579205,1156,189.76301009416983]
[null,"With self care difficulty",5,12.083045973594572,0,15.556349186104045,6,14.212670403551895,2,11.401754250991379,27,32.140317359976393,2,11.401754250991379,3,11.704699910719626,10,9.8994949366116654,2,11.401754250991379,0,15.556349186104045,0,15.556349186104045,6,14.212670403551895,11,16.124515496597098,13,20.248456731316587,0,15.556349186104045,16,21.840329667841555,0,15.556349186104045,0,21.213203435596427,22,24.758836806279895]
[null,"With no self care difficulty",71,24.758836806279895,439,148.49915824677257,110,36.400549446402593,43,15.811388300841896,952,216.44860821913363,70,22.203603311174518,119,29.832867780352597,158,38.288379438153292,53,16.970562748477139,3,12.529964086141668,225,68.117545463705611,220,68.410525505948286,723,135.94851966829208,422,103.23274674249446,162,35.227829907617071,277,108.70602559196064,255,69.404610797842537,642,186.94651641579205,1134,189.58902921846507]
[null,"75  years and Older:",58,24.041630560342615,192,102.61578825892242,63,38.209946349085598,18,10.63014581273465,666,143.66976021418009,26,12.806248474865697,115,37.443290453698111,212,50.911688245431421,39,14.866068747318506,2,11.401754250991379,132,47.381430961928537,194,68.796802251267465,309,95.775779819325933,315,104.65180361560904,207,48.918299234540036,282,119.36498649101419,252,101.13851887386922,362,117.44360348695028,792,182.78402556022229]
[null,"With self care difficulty",0,15.556349186104045,3,12.083045973594572,2,11.704699910719626,3,11.704699910719626,65,65.620118866091673,3,11.704699910719626,14,10.295630140987001,13,8.9442719099991592,3,6.4031242374328485,0,15.556349186104045,0,15.556349186104045,23,17.691806012954132,17,21.95449840010015,81,63.150613615387776,7,7.810249675906654,0,15.556349186104045,8,18.601075237738275,39,43.185645763378368,38,34.713109915419565]
[null,"With no self care difficulty",58,24.041630560342615,189,102.61578825892242,61,38.209946349085598,15,10,601,135.66502865514016,23,11.313708498984761,101,35.227829907617071,199,50.931326312987373,36,13.45362404707371,2,11.401754250991379,132,47.381430961928537,171,67.424031324150292,292,92.763139231054481,234,85.586213843118443,200,46.75467891024384,282,119.36498649101419,244,101.13851887386922,323,111.40017953306898,754,187.60863519571799]

{"sheet":"ACS_Table_B18107","index":36,"n_rows":119,"n_cols":40,"rows_kept":119,"cut":false,"hidden":true,"merged":[]}
["B18107. SEX BY AGE BY INDEPENDENT LIVING DIFFICULTY\n\n\n"]
["Universe:  Civilian non-institutionalized population 18 years and over"]
["Data Set: 2015-2019 American Community Survey 5-Year Estimates"]
[]
[null,null,"Albany",null,"Bartlett",null,"Brookfield",null,"Chatham",null,"Conway",null,"Eaton",null,"Effingham",null,"Freedom",null,"Hale's Location",null,"Hart's Location",null,"Jackson",null,"Madison",null,"Moultonborough",null,"Ossipee",null,"Sandwich",null,"Tamworth",null,"Tuftonboro",null,"Wakefield",null,"Wolfeboro"]
[null,null,"Estimate","Margin Of Error","Estimate","Margin Of Error","Estimate","Margin Of Error","Estimate","Margin Of Error","Estimate","Margin Of Error","Estimate","Margin Of Error","Estimate","Margin Of Error","Estimate","Margin Of Error","Estimate","Margin Of Error","Estimate","Margin Of Error","Estimate","Margin Of Error","Estimate","Margin Of Error","Estimate","Margin Of Error","Estimate","Margin Of Error","Estimate","Margin Of Error","Estimate","Margin Of Error","Estimate","Margin Of Error","Estimate","Margin Of Error","Estimate","Margin Of Error"]
[null,"Total:",593,122,2468,160,662,161,306,95,7827,342,242,70,1272,161,1181,154,180,43,42,30,742,165,2055,97,3468,158,3500,136,1274,163,2408,204,1916,193,4349,84,5427,171]
[null,"Male:",270,59,1276,169,335,94,162,46,3842,279,123,46,587,83,583,84,92,28,23,17,340,84,962,90,1657,136,1676,169,606,85,1228,174,906,105,2210,144,2703,266]
[null,"18 to 34  years:",50,34,217,130,67,48,30,22,863,206,34,24,174,65,50,30,7,12,2,4,21,23,145,56,301,97,363,115,67,39,196,103,170,67,574,158,364,226]
[null,"With independent living difficulty",5,7,0,11,7,12,0,11,0,18,0,11,4,5,0,11,0,11,0,11,0,11,0,11,11,17,0,11,7,9,49,77,0,11,51,59,20,28]
[null,"With no independent living difficulty",45,33,217,130,60,45,30,22,863,206,34,24,170,65,50,30,7,12,2,4,21,23,145,56,290,95,363,115,60,38,147,67,170,67,523,150,344,220]
[null,"35 to 64  years:",140,38,635,139,187,56,87,29,1783,230,38,18,289,51,262,58,16,11,11,12,176,75,528,74,737,107,930,155,273,60,840,172,332,60,1095,145,1337,185]
[null,"With independent living difficulty",5,6,34,56,0,11,2,4,21,24,0,11,8,8,22,17,2,4,0,11,3,5,22,23,0,11,26,41,16,17,120,125,23,21,40,48,169,158]
[null,"With no independent living difficulty",135,37,601,141,187,56,85,29,1762,223,38,18,281,51,240,53,14,10,11,12,173,75,506,74,737,107,904,153,257,59,720,143,309,61,1055,142,1168,139]
[null,"65 to 74  years:",53,25,331,146,69,25,20,12,783,179,38,19,107,36,184,40,43,15,9,10,104,52,157,58,442,110,254,99,172,50,31,35,262,71,324,120,509,153]
[null,"With independent living difficulty",0,11,44,53,1,4,4,5,76,93,0,11,0,11,10,9,0,11,0,11,0,11,0,11,11,16,22,26,3,6,0,11,5,7,0,16,0,16]
[null,"With no independent living difficulty",53,25,287,147,68,24,16,12,707,175,38,19,107,36,174,38,43,15,9,10,104,52,157,58,431,112,232,103,169,51,31,35,257,71,324,120,509,153]
[null,"75  years and Older:",27,12,93,72,12,9,25,18,413,159,13,13,17,12,87,29,26,14,1,3,39,27,132,48,177,71,129,70,94,37,161,96,142,49,217,84,493,142]
[null,"With independent living difficulty",2,3,0,11,0,11,7,11,8,15,0,11,4,6,7,9,2,3,1,3,0,11,49,39,7,11,10,17,0,11,6,12,5,8,12,19,141,104]
[null,"With no independent living difficulty",25,11,93,72,12,9,18,13,405,163,13,13,13,9,80,29,24,13,0,11,39,27,83,44,170,70,119,68,94,37,155,96,137,49,205,84,352,156]
[null,"Female:",323,88,1192,180,327,76,144,58,3985,254,119,33,685,99,598,85,88,20,19,14,402,91,1093,79,1811,122,1824,149,668,104,1180,131,1010,120,2139,143,2724,209]
[null,"18 to 34  years:",66,38,125,82,53,36,18,23,987,208,10,11,200,72,34,23,0,11,2,4,60,46,183,79,400,110,185,81,111,63,158,87,168,64,577,194,193,112]
[null,"With independent living difficulty",0,11,0,11,0,11,0,11,39,63,0,11,0,11,0,11,0,11,0,11,0,11,0,11,0,11,4,9,4,6,0,11,14,16,44,60,0,16]
[null,"With no independent living difficulty",66,38,125,82,53,36,18,23,948,219,10,11,200,72,34,23,0,11,2,4,60,46,183,79,400,110,181,81,107,62,158,87,154,60,533,215,193,112]
[null,"35 to 64  years:",187,48,634,136,203,53,81,33,2125,212,64,24,335,60,311,65,22,14,16,14,177,70,570,65,829,103,1040,166,305,61,692,101,409,68,1118,147,1254,188]
[null,"With independent living difficulty",6,6,0,11,12,13,2,4,53,46,3,4,22,13,8,9,4,6,0,11,0,11,5,11,22,27,50,43,10,9,12,18,34,29,185,96,14,23]
[null,"With no independent living difficulty",181,49,634,136,191,50,79,33,2072,210,61,23,313,56,303,66,18,12,16,14,177,70,565,64,807,103,990,171,295,60,680,104,375,69,933,159,1240,187]
[null,"65 to 74  years:",34,17,261,153,62,25,26,19,556,151,32,17,109,32,170,41,38,15,0,11,112,50,199,65,368,98,407,120,157,46,146,86,292,89,273,97,703,170]
[null,"With independent living difficulty",0,11,32,51,0,11,8,13,3,7,0,11,0,11,7,8,0,11,0,11,0,11,18,18,37,28,29,48,16,17,0,11,6,9,16,25,49,56]
[null,"With no independent living difficulty",34,17,229,146,62,25,18,14,553,151,32,17,109,32,163,41,38,15,0,11,112,50,181,67,331,96,378,127,141,46,146,86,286,89,257,92,654,174]
[null,"75  years and Older:",36,26,172,119,9,7,19,15,317,112,13,9,41,23,83,31,28,15,1,3,53,33,141,62,214,70,192,76,95,34,184,92,141,57,171,78,574,157]
[null,"With independent living difficulty",22,25,73,78,2,3,6,8,65,51,0,11,6,10,12,9,7,9,0,11,13,16,35,30,38,26,54,54,13,10,5,12,31,33,0,16,108,111]
[null,"With no independent living difficulty",14,9,99,90,7,6,13,12,252,101,13,9,35,19,71,30,21,11,1,3,40,30,106,53,176,71,138,69,82,31,179,91,110,49,171,78,466,155]
[]
[]
[{"$f":"A1& \"-Calculated\"","v":"B18107. SEX BY AGE BY INDEPENDENT LIVING DIFFICULTY\n\n\n-Calculated"}]
[{"$f":"A2","v":"Universe:  Civilian non-institutionalized population 18 years and over"}]
[{"$f":"A3","v":"Data Set: 2015-2019 American Community Survey 5-Year Estimates"}]
[]
[]
[null,null,"Albany",null,"Bartlett",null,"Brookfield",null,"Chatham",null,"Conway",null,"Eaton",null,"Effingham",null,"Freedom",null,"Hale's Location",null,"Hart's Location",null,"Jackson",null,"Madison",null,"Moultonborough",null,"Ossipee",null,"Sandwich",null,"Tamworth",null,"Tuftonboro",null,"Wakefield",null,"Wolfeboro"]
[null,null,"Estimate","Margin Of Error","Estimate","Margin Of Error","Estimate","Margin Of Error","Estimate","Margin Of Error","Estimate","Margin Of Error","Estimate","Margin Of Error","Estimate","Margin Of Error","Estimate","Margin Of Error","Estimate","Margin Of Error","Estimate","Margin Of Error","Estimate","Margin Of Error","Estimate","Margin Of Error","Estimate","Margin Of Error","Estimate","Margin Of Error","Estimate","Margin Of Error","Estimate","Margin Of Error","Estimate","Margin Of Error","Estimate","Margin Of Error","Estimate","Margin Of Error"]
[null,"Total:",{"$f":"C7","v":593},122,2468,160,662,161,306,95,7827,342,242,70,1272,161,1181,154,180,43,42,30,742,165,{"$f":"Y7","v":2055},97,3468,158,3500,136,1274,163,2408,204,1916,193,4349,84,5427,171]
[null,"18 to 34  years:",{"$f":"C22+C9","v":116},{"$f":"SQRT((D22^2)+(D9^2))","v":50.990195135927848},{"$f":"E22+E9","v":342},{"$f":"SQRT((F22^2)+(F9^2))","v":153.7010084547268},{"$f":"G22+G9","v":120},{"$f":"SQRT((H22^2)+(H9^2))","v":60},{"$f":"I22+I9","v":48},{"$f":"SQRT((J22^2)+(J9^2))","v":31.827660925679098},{"$f":"K22+K9","v":1850},{"$f":"SQRT((L22^2)+(L9^2))","v":292.74562336608892},{"$f":"M22+M9","v":44},{"$f":"SQRT((N22^2)+(N9^2))","v":26.40075756488817},{"$f":"O22+O9","v":374},{"$f":"SQRT((P22^2)+(P9^2))","v":97},{"$f":"Q22+Q9","v":84},{"$f":"SQRT((R22^2)+(R9^2))","v":37.802116342871599},{"$f":"S22+S9","v":7},{"$f":"SQRT((T22^2)+(T9^2))","v":16.278820596099706},{"$f":"U22+U9","v":4},{"$f":"SQRT((V22^2)+(V9^2))","v":5.6568542494923806},{"$f":"W22+W9","v":81},{"$f":"SQRT((X22^2)+(X9^2))","v":51.429563482495162},{"$f":"Y22+Y9","v":328},{"$f":"SQRT((Z22^2)+(Z9^2))","v":96.834911060009759},{"$f":"AA22+AA9","v":701},{"$f":"SQRT((AB22^2)+(AB9^2))","v":146.65946952038249},{"$f":"AC22+AC9","v":548},{"$f":"SQRT((AD22^2)+(AD9^2))","v":140.66271716414411},{"$f":"AE22+AE9","v":178},{"$f":"SQRT((AF22^2)+(AF9^2))","v":74.094534211370814},{"$f":"AG22+AG9","v":354},{"$f":"SQRT((AH22^2)+(AH9^2))","v":134.82581355215328},{"$f":"AI22+AI9","v":338},{"$f":"SQRT((AJ22^2)+(AJ9^2))","v":92.655275079188016},{"$f":"AK22+AK9","v":1151},{"$f":"SQRT((AL22^2)+(AL9^2))","v":250.19992006393608},{"$f":"AM22+AM9","v":557},{"$f":"SQRT((AN22^2)+(AN9^2))","v":252.23005372080465}]
[null,"With independent living difficulty",{"$f":"C23+C10","v":5},{"$f":"SQRT((D23^2)+(D10^2))","v":13.038404810405298},0,15.556349186104045,7,16.278820596099706,0,15.556349186104045,39,65.520989003524662,0,15.556349186104045,4,12.083045973594572,0,15.556349186104045,0,15.556349186104045,0,15.556349186104045,0,15.556349186104045,0,15.556349186104045,11,20.248456731316587,4,14.212670403551895,11,10.816653826391969,49,77.781745930520231,14,19.416487838947599,95,84.148677945645701,20,32.249030993194197]
[null,"With no independent living difficulty",111,50.328918128646478,342,153.7010084547268,113,57.628118136895637,48,31.827660925679098,1811,300.66093860027775,44,26.40075756488817,370,97,84,37.802116342871599,7,16.278820596099706,4,5.6568542494923806,81,51.429563482495162,328,96.834911060009759,690,145.34441853748632,544,140.66271716414411,167,72.718635850791372,305,109.80892495603443,324,89.938868127189593,1056,262.15453457836657,537,246.86838598735156]
[null,"35 to 64  years:",327,61.220911460055866,1269,194.46593532030229,390,77.103826104804938,168,43.931765272977593,3908,312.80025575437116,102,30,624,78.746428490440124,573,87.114866699088736,38,17.804493814764857,27,18.439088914585774,353,102.59142264341595,1098,98.493654617949886,1566,148.51935900750448,1970,227.11450856341168,578,85.562842402528915,1532,199.46177578674065,741,90.686272390037075,2213,206.48002324680226,2591,263.75936002348806]
[null,"With independent living difficulty",11,8.4852813742385695,34,57.070132293521098,12,17.029386365926403,4,5.6568542494923806,74,51.884487084291386,3,11.704699910719626,30,15.264337522473747,30,19.235384061671343,6,7.2111025509279782,0,15.556349186104045,3,12.083045973594572,27,25.495097567963924,22,29.154759474226502,76,59.413803110051795,26,19.235384061671343,132,126.28935030318273,57,35.805027579936315,225,107.33126291998991,183,159.66527487215245]
[null,"With no independent living difficulty",316,61.400325732035007,1235,195.90048494069634,378,75.073297516493838,164,43.931765272977593,3834,306.31519714176767,99,29.206163733020468,594,75.742986473996396,543,84.64632301523794,32,15.620499351813308,27,18.439088914585774,350,102.59142264341595,1071,97.836598469080073,1544,148.51935900750448,1894,229.4558781116753,552,84.148677945645701,1400,176.81911661356077,684,92.097774131626011,1988,213.17832910500073,2408,233.00214591286493]
[null,"65 to 74  years:",87,30.232432915661949,592,211.48285982556601,131,35.355339059327378,46,22.472205054244231,1339,234.18368858654523,70,25.495097567963924,216,48.166378315169183,354,57.280013966478741,81,21.213203435596427,9,14.866068747318506,216,72.138755187485728,356,87.114866699088736,810,147.32277488562318,661,155.56670594957006,329,67.94115100585212,177,92.849340331528467,554,113.85077953180645,597,154.30165261590687,1212,228.71160880025309]
[null,"With independent living difficulty",0,15.556349186104045,76,73.552702193733168,1,11.704699910719626,12,13.928388277184119,79,93.263068789312314,0,15.556349186104045,0,15.556349186104045,17,12.041594578792296,0,15.556349186104045,0,15.556349186104045,0,15.556349186104045,18,21.095023109728988,48,32.249030993194197,51,54.589376255824725,19,18.027756377319946,0,15.556349186104045,11,11.401754250991379,16,29.681644159311659,49,58.240879114244144]
[null,"With no independent living difficulty",87,30.232432915661949,516,207.18349355100662,130,34.655446902326915,34,18.439088914585774,1260,231.14064982170487,70,25.495097567963924,216,48.166378315169183,337,55.901699437494742,81,21.213203435596427,9,14.866068747318506,216,72.138755187485728,338,88.617154095581284,762,147.51271131668619,610,163.51758315239374,310,68.680419334771102,177,92.849340331528467,543,113.85077953180645,581,151.2084653714864,1163,231.70023737579555]
[null,"75  years and Older:",63,28.635642126552707,265,139.08630414242805,21,11.401754250991379,44,23.430749027719962,730,194.48650338776724,26,15.811388300841896,58,25.942243542145693,170,42.449970553582247,54,20.518284528683193,2,4.2426406871192848,92,42.638011210655684,273,78.409183135650636,391,99.704563586628268,321,103.32473082471591,189,50.24937810560445,345,132.96616110875729,283,75.166481891864535,388,114.62983904725679,1067,211.69081227110448]
[null,"With independent living difficulty",24,25.179356624028344,73,78.771822373231913,2,11.401754250991379,13,13.601470508735444,73,53.160135440008048,0,15.556349186104045,10,11.661903789690601,19,12.727922061357855,9,9.4868329805051381,1,11.401754250991379,13,19.416487838947599,84,49.203658400570177,45,28.231188426986208,64,56.612719418872643,13,14.866068747318506,11,16.970562748477139,36,33.955853692699293,12,24.839484696748443,249,152.10851389715174]
[null,"With no independent living difficulty",{"$f":"C33+C20","v":39},14.212670403551895,192,115.25623627379127,19,10.816653826391969,31,17.691806012954132,657,191.75505208468434,26,15.811388300841896,48,21.023796041628639,151,41.725292090050132,45,17.029386365926403,1,11.401754250991379,79,40.36087214122113,189,68.8839603971781,346,99.704563586628268,257,96.876209669866839,176,48.270073544588683,334,132.27622613304328,247,69.296464556281663,376,114.62983904725679,818,219.91134577370036]
[]
[]
[]
[]
[]
[]
[]
[]
[]
[]
[]
[]
[]
[]
[]
[]
[]
[]
[]
[]
[]
[]
[]
[]
[]
[]
[]
[]
[]
[]
[]
[]
[]
[]
[]
[]
[]
[]
[]
[]
[]
[]
[]
[]
["B18107. SEX BY AGE BY INDEPENDENT LIVING DIFFICULTY\n\n\n-Calculated"]
["Universe:  Civilian non-institutionalized population 18 years and over"]
["Data Set: 2010-2014 American Community Survey 5-Year Estimates"]
[]
[]
[null,null,"Albany",null,"Bartlett",null,"Brookfield",null,"Chatham",null,"Conway",null,"Eaton",null,"Effingham",null,"Freedom",null,"Hale's Location",null,"Hart's Location",null,"Jackson",null,"Madison",null,"Moultonborough",null,"Ossipee",null,"Sandwich",null,"Tamworth",null,"Tuftonboro",null,"Wakefield",null,"Wolfeboro"]
[null,null,"Estimate","Margin Of Error","Estimate","Margin Of Error","Estimate","Margin Of Error","Estimate","Margin Of Error","Estimate","Margin Of Error","Estimate","Margin Of Error","Estimate","Margin Of Error","Estimate","Margin Of Error","Estimate","Margin Of Error","Estimate","Margin Of Error","Estimate","Margin Of Error","Estimate","Margin Of Error","Estimate","Margin Of Error","Estimate","Margin Of Error","Estimate","Margin Of Error","Estimate","Margin Of Error","Estimate","Margin Of Error","Estimate","Margin Of Error","Estimate","Margin Of Error"]
[null,"Total:",585,108,2407,142,598,140,309,71,7928,276,320,59,1144,134,985,116,134,39,38,23,850,177,2062,113,3401,134,3188,192,1157,156,2660,104,1736,217,4332,184,5068,267]
[null,"18 to 34  years:",65,38.209946349085598,408,157.69908052997647,99,43.600458713183279,97,35.383612025908263,1983,331.85087012090236,31,19.849433241279208,286,75.604232685743199,138,46.400431032480725,0,15.556349186104045,9,8.6023252670426267,129,74.027022093286988,270,75.802374632988901,398,113.86395390991831,585,150.60212481900777,169,69.296464556281663,321,121.91800523302537,277,89.938868127189593,804,220.16584657934573,776,248.16325271885037]
[null,"With independent living difficulty",0,15.556349186104045,0,15.556349186104045,0,15.556349186104045,4,12.529964086141668,80,71.119617546778187,0,15.556349186104045,3,11.704699910719626,0,15.556349186104045,0,15.556349186104045,0,15.556349186104045,0,15.556349186104045,0,15.556349186104045,0,15.556349186104045,55,42.638011210655684,13,15.556349186104045,16,26.40075756488817,0,15.556349186104045,59,75.504966724050675,37,50.289163842720633]
[null,"With no independent living difficulty",65,38.209946349085598,408,157.69908052997647,99,43.600458713183279,93,34.655446902326915,1903,329.87876560942811,31,19.849433241279208,283,76.400261779656233,138,46.400431032480725,0,15.556349186104045,9,8.6023252670426267,129,74.027022093286988,270,75.802374632988901,398,113.86395390991831,530,149.20120642943877,156,67.896980787071826,305,121.16517651536682,277,89.938868127189593,745,212.86850401127921,739,245.66847579614279]
[null,"35 to 64  years:",386,65.76473218982953,1368,221.73181999884454,320,62.968245965724662,149,36.235341863986875,4300,343.84007910655208,191,38.209946349085598,621,87.367041840730764,467,63.63961030678928,40,15.620499351813308,24,17,364,86.833173384369644,1372,117.51595636338071,1960,162.65915283192643,1853,206.51876428063383,619,76.380625815713245,1764,215.72436116489024,952,140.71957930579526,2524,277.20028860013838,2344,236.78260071213003]
[null,"With independent living difficulty",10,8.6023252670426267,2,12.083045973594572,16,17.029386365926403,0,15.556349186104045,179,83.546394296821688,0,15.556349186104045,50,22.671568097509269,15,10,0,15.556349186104045,0,15.556349186104045,12,18.601075237738275,21,17.029386365926403,124,72.138755187485728,123,95.854055730574075,15,10,85,47.381430961928537,30,26.172504656604801,196,132.00378782444085,95,77.129760793094647]
[null,"With no independent living difficulty",376,65.76473218982953,1366,221.73181999884454,304,62.241465278381739,149,36.235341863986875,4121,355.87919298548491,191,38.209946349085598,571,84.059502734670033,452,63.63961030678928,40,15.620499351813308,24,17,352,84.403791384036765,1351,114.69088891450794,1836,163.37992532744039,1730,197.99494943053472,604,75.663729752107784,1679,223.88613177238111,922,135.87126259809321,2328,290.33084576048753,2249,240.08540147205952]
[null,"65 to 74  years:",76,25.45584412271571,439,148.49915824677257,116,38.013155617496423,45,16.643316977093239,979,220.62184841941652,72,21.633307652783937,122,29.832867780352597,168,40.36087214122113,55,16.970562748477139,3,12.529964086141668,225,68.117545463705611,226,68.410525505948286,734,137.97463535012514,435,100.89598604503551,162,35.227829907617071,293,110.63453348751464,255,69.404610797842537,642,186.94651641579205,1156,189.76301009416983]
[null,"With independent living difficulty",8,7.810249675906654,0,15.556349186104045,6,14.212670403551895,4,5,43,39.11521443121589,2,11.401754250991379,5,5.6568542494923806,19,14.142135623730951,0,15.556349186104045,3,12.529964086141668,0,15.556349186104045,11,16.278820596099706,10,19.416487838947599,10,12.206555615733702,6,5.6568542494923806,16,21.840329667841555,14,12.041594578792296,0,21.213203435596427,32,29.410882339705484]
[null,"With no independent living difficulty",68,24.041630560342615,439,148.49915824677257,110,36.400549446402593,41,15.264337522473747,936,217.13820483738002,70,22.203603311174518,117,29.068883707497267,149,38.418745424597091,55,16.970562748477139,0,15.556349186104045,225,68.117545463705611,215,66.843099868273612,724,135.94851966829208,425,98.716766559688324,156,35.227829907617071,277,108.70602559196064,241,68.007352543677214,642,186.94651641579205,1124,190.31815467789718]
[null,"75  years and Older:",58,24.041630560342615,192,102.61578825892242,63,38.209946349085598,18,10.63014581273465,666,143.66976021418009,26,12.806248474865697,115,37.443290453698111,212,50.911688245431421,39,14.866068747318506,2,11.401754250991379,132,47.381430961928537,194,68.796802251267465,309,95.775779819325933,315,104.65180361560904,207,48.918299234540036,282,119.36498649101419,252,101.13851887386922,362,117.44360348695028,792,182.78402556022229]
[null,"With independent living difficulty",11,12.369316876852981,3,12.083045973594572,2,11.704699910719626,4,5,154,100.2845950283492,5,5,18,12.083045973594572,24,11.661903789690601,3,6.4031242374328485,0,15.556349186104045,13,14.866068747318506,32,25.495097567963924,36,29.068883707497267,112,68.541957952775178,11,14.212670403551895,0,15.556349186104045,43,27.202941017470888,50,48.166378315169183,121,92.086915465770701]
[null,"With no independent living difficulty",47,20.248456731316587,189,102.61578825892242,61,38.209946349085598,14,9.2195444572928871,512,119.80818002123227,21,10.63014581273465,97,34.409301068170507,188,49.51767361255979,36,13.45362404707371,2,11.401754250991379,119,45.343136195018538,162,65.863495200300449,273,88.865066252155572,203,78.771822373231913,196,46.690470119715009,282,119.36498649101419,209,96.30160954002794,312,110.60289327137876,671,164.78470802838473]

{"sheet":"ACS_Table_C18108","index":37,"n_rows":19,"n_cols":40,"rows_kept":19,"cut":false,"hidden":true,"merged":[]}
["B18108. AGE BY NUMBER OF DISABILITIES\n\n"]
["Universe:  Civilian non-institutionalized population"]
["Data Set: 2015-2019 American Community Survey 5-Year Estimates"]
[]
[null,null,"Albany",null,"Bartlett",null,"Brookfield",null,"Chatham",null,"Conway",null,"Eaton",null,"Effingham",null,"Freedom",null,"Hale's Location",null,"Hart's Location",null,"Jackson",null,"Madison",null,"Moultonborough",null,"Ossipee",null,"Sandwich",null,"Tamworth",null,"Tuftonboro",null,"Wakefield",null,"Wolfeboro"]
[null,null,"Estimate","Margin Of Error","Estimate","Margin Of Error","Estimate","Margin Of Error","Estimate","Margin Of Error","Estimate","Margin Of Error","Estimate","Margin Of Error","Estimate","Margin Of Error","Estimate","Margin Of Error","Estimate","Margin Of Error","Estimate","Margin Of Error","Estimate","Margin Of Error","Estimate","Margin Of Error","Estimate","Margin Of Error","Estimate","Margin Of Error","Estimate","Margin Of Error","Estimate","Margin Of Error","Estimate","Margin Of Error","Estimate","Margin Of Error","Estimate","Margin Of Error"]
[null,"Total:",703,142,2774,14,797,184,372,127,9979,47,265,72,1630,231,1349,178,183,43,42,30,891,228,2553,20,4099,28,4158,121,1440,180,2994,13,2213,215,5016,46,6220,41]
[null,"Under 18 years:",110,48,306,159,135,75,66,44,2152,340,23,17,358,110,168,58,3,4,0,11,149,118,498,98,631,158,658,125,166,66,586,205,297,58,667,87,793,162]
[null,"With one type of disability",6,7,0,11,8,9,8,9,57,83,2,3,15,15,16,13,0,11,0,11,0,11,0,11,44,46,71,55,4,8,9,16,12,12,7,14,39,64]
[null,"With two or more types of disability",0,11,14,20,0,11,0,11,72,71,0,11,2,4,9,9,0,11,0,11,0,11,4,8,16,27,0,11,0,11,0,11,0,11,0,16,0,16]
[null,"No disability",104,46,292,157,127,72,58,40,2023,322,21,15,341,108,143,56,3,4,0,11,149,118,494,98,571,112,587,125,162,65,577,209,285,57,660,88,754,176]
[null,"18 to 64  years:",443,102,1611,223,510,150,216,79,5758,339,146,50,998,147,657,126,45,30,31,26,434,152,1426,126,2267,182,2518,211,756,150,1886,198,1079,153,3364,193,3148,254]
[null,"With one type of disability",27,21,52,50,40,26,15,13,259,157,17,12,31,18,37,19,2,5,7,9,9,15,98,63,98,49,243,127,31,18,149,101,62,32,219,127,193,111]
[null,"With two or more types of disability",25,17,34,56,20,18,6,8,302,146,3,4,42,22,33,21,4,7,0,11,3,5,27,25,33,31,126,80,45,26,252,139,61,35,298,149,255,176]
[null,"No disability",391,96,1525,220,450,130,195,74,5197,352,126,48,925,143,587,114,39,28,24,20,422,151,1301,138,2136,178,2149,227,680,141,1485,204,956,157,2847,257,2700,268]
[null,"65 years and over:",150,47,857,272,152,48,90,44,2069,282,96,40,274,61,524,88,135,34,11,12,308,105,629,126,1201,137,982,198,518,106,522,171,837,141,985,166,2279,250]
[null,"With one type of disability",15,9,179,120,13,13,22,19,212,109,16,9,53,31,91,31,20,11,0,11,27,21,86,58,192,74,164,88,77,32,125,87,145,44,254,120,326,153]
[null,"With two or more types of disability",26,25,128,86,5,6,19,17,203,123,4,6,14,15,54,23,9,9,1,3,16,17,125,58,192,83,214,81,53,25,63,69,65,42,58,73,605,214]
[null,"No disability",109,40,550,235,134,42,49,25,1654,282,76,34,207,51,379,74,106,30,10,10,265,101,418,116,817,155,604,167,388,100,334,121,627,135,673,140,1348,271]

{"sheet":"ACS_TableB19201_ACS_Tbl_B19202","index":38,"n_rows":115,"n_cols":40,"rows_kept":115,"cut":false,"hidden":true,"merged":[]}
[null,"B19102. NON-FAMILY INCOME IN THE PAST 12 MONTHS (IN 2019 INFLATION-ADJUSTED DOLLARS)"]
[null,"Universe:  FAMILIES"]
[null,"Data Set: 2015-2019 American Community Survey 5-Year Estimates"]
[]
[null,null,"Albany",null,"Bartlett",null,"Brookfield",null,"Chatham",null,"Conway",null,"Eaton",null,"Effingham",null,"Freedom",null,"Hale's Location",null,"Hart's Location",null,"Jackson",null,"Madison",null,"Moultonborough",null,"Ossipee",null,"Sandwich",null,"Tamworth",null,"Tuftonboro",null,"Wakefield",null,"Wolfeboro"]
[null," ","Estimate","Margin of Error","Estimate","Margin of Error","Estimate","Margin of Error","Estimate","Margin of Error","Estimate","Margin of Error","Estimate","Margin of Error","Estimate","Margin of Error","Estimate","Margin of Error","Estimate","Margin of Error","Estimate","Margin of Error","Estimate","Margin of Error","Estimate","Margin of Error","Estimate","Margin of Error","Estimate","Margin of Error","Estimate","Margin of Error","Estimate","Margin of Error","Estimate","Margin of Error","Estimate","Margin of Error","Estimate","Margin of Error"]
[null,"Total:",95,32,848,213,45,20,53,21,1928,342,59,25,144,44,174,45,21,13,12,12,189,63,259,94,490,116,814,199,226,65,460,169,260,84,702,208,931,251]
[null,"Less than $10,000",12,13,64,72,2,3,6,7,260,121,5,5,8,8,7,10,0,11,0,11,16,17,11,12,27,18,83,58,3,4,52,74,19,24,79,84,20,33]
[null,"$10,000 to $14,999",16,15,0,11,0,11,4,6,167,99,9,7,11,10,7,7,0,11,0,11,0,11,31,30,29,35,151,96,20,15,93,87,52,36,43,71,165,139]
[null,"$15,000 to $19,999",8,12,47,51,3,5,2,4,85,72,2,4,6,6,7,7,0,11,0,11,0,11,20,24,69,50,81,58,6,7,94,92,18,29,54,46,99,101]
[null,"$20,000 to $24,999",0,11,10,15,2,3,5,9,132,69,2,3,26,25,8,8,2,3,5,8,3,4,38,37,24,24,76,64,15,18,17,24,12,13,105,98,126,115]
[null,"$25,000 to $29,999",21,19,79,69,0,11,2,3,120,63,5,9,16,16,11,9,0,11,0,11,18,21,5,7,60,53,93,90,6,7,86,88,37,20,2,3,129,108]
[null,"$30,000 to $34,999",2,3,122,77,4,5,8,7,140,129,2,3,11,8,8,9,0,11,0,11,0,11,26,30,0,11,50,54,11,17,41,66,10,11,53,64,99,105]
[null,"$35,000 to $39,999",0,11,30,49,9,14,2,3,22,24,0,11,19,14,6,6,2,3,0,11,7,7,7,12,40,58,12,18,23,17,0,11,6,10,0,16,23,37]
[null,"$40,000 to $44,999",4,6,108,90,0,11,1,4,63,41,1,4,0,11,20,21,2,3,0,11,27,26,7,9,10,16,63,56,3,5,39,62,10,11,60,91,21,33]
[null,"$45,000 to $49,999",2,3,66,74,7,7,2,3,0,18,11,13,0,11,14,19,0,11,0,11,19,21,17,18,26,23,45,37,9,8,0,11,4,8,0,16,18,30]
[null,"$50,000 to $59,999",9,7,71,71,2,4,1,3,200,149,0,11,23,13,14,14,2,3,0,11,0,11,23,21,18,21,22,27,29,21,12,18,21,28,123,123,48,54]
[null,"$60,000 to $74,999",5,10,43,54,2,3,12,12,192,119,11,12,0,11,26,15,1,3,2,4,36,33,6,8,68,51,74,65,9,9,0,11,21,17,14,22,77,60]
[null,"$75,000 to $99,999",10,8,88,74,4,6,3,6,244,133,6,6,4,5,26,22,6,8,5,8,5,9,54,47,74,45,36,45,23,15,13,19,11,10,65,73,14,24]
[null,"$100,000 to $124,999",4,4,0,11,3,4,0,11,138,116,1,3,12,12,13,16,4,6,0,11,29,27,10,10,15,17,0,11,41,33,13,19,10,10,33,36,24,39]
[null,"$125,000 to $149,999",0,11,32,50,4,6,0,11,19,32,4,6,0,11,0,11,0,11,0,11,10,16,0,11,0,11,28,47,14,15,0,11,6,8,32,38,23,37]
[null,"$150,000 to $199,999",0,11,51,70,3,5,2,3,58,51,0,11,4,6,3,5,2,3,0,11,0,11,4,7,30,37,0,11,0,11,0,11,0,11,15,23,45,68]
[null,"$200,000 or more",2,3,37,59,0,11,3,5,88,56,0,11,4,5,4,6,0,11,0,11,19,22,0,11,0,11,0,11,14,18,0,11,23,28,24,36,0,16]
[]
[]
[null,"B19112. MEDIAN NON-FAMILY INCOME IN THE PAST 12 MONTHS (IN 2017 INFLATION-ADJUSTED DOLLARS)"]
[null,"Universe:  FAMILIES"]
[null,"Data Set: 2015-2019 American Community Survey 5-Year Estimates"]
[null,"Calculated B19001. HOUSEHOLD INCOME IN THE PAST 12 MONTHS (IN 2019 INFLATION-ADJUSTED DOLLARS)"]
[null,null,"Albany",null,"Bartlett",null,"Brookfield",null,"Chatham",null,"Conway",null,"Eaton",null,"Effingham",null,"Freedom",null,"Hale's Location",null,"Hart's Location",null,"Jackson",null,"Madison",null,"Moultonborough",null,"Ossipee",null,"Sandwich",null,"Tamworth",null,"Tuftonboro",null,"Wakefield",null,"Wolfeboro"]
[null," ","Estimate","Margin of Error","Estimate","Margin of Error","Estimate","Margin of Error","Estimate","Margin of Error","Estimate","Margin of Error","Estimate","Margin of Error","Estimate","Margin of Error","Estimate","Margin of Error","Estimate","Margin of Error","Estimate","Margin of Error","Estimate","Margin of Error","Estimate","Margin of Error","Estimate","Margin of Error","Estimate","Margin of Error","Estimate","Margin of Error","Estimate","Margin of Error","Estimate","Margin of Error","Estimate","Margin of Error","Estimate","Margin of Error"]
[null,"Median family income in the past 12 months",26917,5407,43448,6913,46250,13785,34688,27230,41508,19327,48125,12295,31786,8605,49773,14670,98125,47532,71250,68392,61250,26530,32356,19655,37250,24003,25482,6977,55769,15164,"-","**",28947,11032,40625,21235,28359,7289]
[]
[]
[]
[]
[]
[]
[]
[]
[]
[]
[]
[]
[]
[]
[]
[]
[]
[null,"B19102. NON-FAMILY INCOME IN THE PAST 12 MONTHS (IN 2014 INFLATION-ADJUSTED DOLLARS)"]
[null,"Universe:  FAMILIES"]
[null,"Data Set: 2010-2014 American Community Survey 5-Year Estimates"]
[]
[null,null,"Albany",null,"Bartlett",null,"Brookfield",null,"Chatham",null,"Conway",null,"Eaton",null,"Effingham",null,"Freedom",null,"Hale's Location",null,"Hart's Location",null,"Jackson",null,"Madison",null,"Moultonborough",null,"Ossipee",null,"Sandwich",null,"Tamworth",null,"Tuftonboro",null,"Wakefield",null,"Wolfeboro"]
[null," ","Estimate","Margin of Error","Estimate","Margin of Error","Estimate","Margin of Error","Estimate","Margin of Error","Estimate","Margin of Error","Estimate","Margin of Error","Estimate","Margin of Error","Estimate","Margin of Error","Estimate","Margin of Error","Estimate","Margin of Error","Estimate","Margin of Error","Estimate","Margin of Error","Estimate","Margin of Error","Estimate","Margin of Error","Estimate","Margin of Error","Estimate","Margin of Error","Estimate","Margin of Error","Estimate","Margin of Error","Estimate","Margin of Error"]
[null,"Total:",81,28,860,261,54,20,62,21,1393,257,66,24,187,52,151,44,11,9,19,14,133,55,364,121,411,103,674,211,189,53,642,194,211,65,668,209,989,240]
[null,"Less than $10,000",8,8,125,108,4,5,16,14,118,92,0,11,35,27,11,8,1,3,0,11,0,11,20,31,74,58,113,76,7,7,94,81,18,19,90,70,28,44]
[null,"$10,000 to $14,999",9,12,55,51,4,6,2,5,182,110,4,5,15,16,15,9,0,11,0,11,0,11,26,34,19,20,99,79,12,9,136,134,18,24,103,85,149,133]
[null,"$15,000 to $19,999",14,15,119,100,2,3,5,5,64,47,5,5,10,8,12,9,0,11,0,11,8,13,28,28,65,39,69,38,32,22,50,38,14,13,108,82,11,17]
[null,"$20,000 to $24,999",8,10,74,56,3,4,5,5,95,91,7,6,11,9,22,17,1,4,0,11,21,18,18,22,14,15,21,20,17,15,38,43,12,11,76,100,150,127]
[null,"$25,000 to $29,999",2,4,0,11,0,11,1,3,121,88,6,7,12,10,18,16,0,11,0,11,5,9,5,7,23,21,62,45,3,6,38,45,14,12,98,87,42,50]
[null,"$30,000 to $34,999",0,11,60,66,11,13,7,7,95,72,3,4,23,24,6,6,0,11,6,7,14,16,39,43,15,17,38,39,16,17,118,113,31,31,0,15,0,15]
[null,"$35,000 to $39,999",7,7,34,54,6,7,1,3,130,100,2,5,4,6,13,12,0,11,0,11,8,13,22,29,0,11,10,15,4,6,13,19,15,16,47,73,53,44]
[null,"$40,000 to $44,999",6,9,60,57,0,11,3,5,71,59,3,5,5,6,13,10,2,3,7,11,20,25,42,38,53,41,35,42,6,8,35,33,8,13,77,89,96,99]
[null,"$45,000 to $49,999",6,7,55,56,4,5,4,7,86,80,0,11,3,5,0,11,0,11,0,11,0,11,11,17,5,8,49,53,24,17,0,11,0,11,0,15,20,31]
[null,"$50,000 to $59,999",5,7,113,94,0,11,15,16,35,36,4,5,6,6,15,14,2,5,0,11,8,12,71,48,36,39,48,51,11,11,24,24,6,10,57,69,57,51]
[null,"$60,000 to $74,999",6,5,24,37,7,7,1,3,98,89,6,6,20,13,11,9,0,11,0,11,0,11,12,13,69,34,70,54,9,10,51,49,17,15,10,16,123,91]
[null,"$75,000 to $99,999",9,10,41,49,5,6,0,11,204,112,9,13,27,23,9,8,0,11,2,3,15,23,5,8,0,11,30,23,29,31,23,36,35,25,2,18,131,92]
[null,"$100,000 to $124,999",0,11,36,45,4,6,0,11,94,80,10,16,5,8,3,6,2,3,4,6,7,11,21,20,19,19,15,19,8,9,0,11,0,11,0,15,66,51]
[null,"$125,000 to $149,999",0,11,0,11,0,11,0,11,0,17,1,3,3,4,0,11,1,3,0,11,9,14,13,13,0,11,10,17,6,8,0,11,0,11,0,15,0,15]
[null,"$150,000 to $199,999",0,11,25,40,0,11,0,11,0,17,0,11,8,13,0,11,0,11,0,11,0,11,18,16,10,16,5,9,2,4,0,11,18,16,0,15,47,72]
[null,"$200,000 or more",1,4,39,48,4,8,2,4,0,17,6,8,0,11,3,4,2,3,0,11,18,17,13,21,9,15,0,11,3,5,22,35,5,9,0,15,16,25]
[]
[]
[null,"B19112. MEDIAN NON-FAMILY INCOME IN THE PAST 12 MONTHS (IN 2014 INFLATION-ADJUSTED DOLLARS)"]
[null,"Universe:  FAMILIES"]
[null,"Data Set: 2010-2014 American Community Survey 5-Year Estimates"]
[]
[null,null,"Albany",null,"Bartlett",null,"Brookfield",null,"Chatham",null,"Conway",null,"Eaton",null,"Effingham",null,"Freedom",null,"Hale's Location",null,"Hart's Location",null,"Jackson",null,"Madison",null,"Moultonborough",null,"Ossipee",null,"Sandwich",null,"Tamworth",null,"Tuftonboro",null,"Wakefield",null,"Wolfeboro"]
[null," ","Estimate","Margin of Error","Estimate","Margin of Error","Estimate","Margin of Error","Estimate","Margin of Error","Estimate","Margin of Error","Estimate","Margin of Error","Estimate","Margin of Error","Estimate","Margin of Error","Estimate","Margin of Error","Estimate","Margin of Error","Estimate","Margin of Error","Estimate","Margin of Error","Estimate","Margin of Error","Estimate","Margin of Error","Estimate","Margin of Error","Estimate","Margin of Error","Estimate","Margin of Error","Estimate","Margin of Error","Estimate","Margin of Error"]
[null,"Median family income in the past 12 months",26875,23545,34792,15992,36875,17567,31000,23228,35527,5009,59167,36701,31750,6618,29107,7978,56875,64366,43750,35712,42386,17791,43750,7728,33750,19318,28313,5872,43958,21514,25197,14059,34803,6477,23238,7738,43240,15711]
[]
[null,"B19102. NON-FAMILY INCOME IN THE PAST 12 MONTHS (IN 2009 INFLATION-ADJUSTED DOLLARS)"]
[null,"Universe:  FAMILIES"]
[null,"Data Set: 2005-2009 American Community Survey 5-Year Estimates"]
[]
[null,null,"Albany",null,"Bartlett",null,"Brookfield",null,"Chatham",null,"Conway",null,"Eaton",null,"Effingham",null,"Freedom",null,"Hale's Location",null,"Hart's Location",null,"Jackson",null,"Madison",null,"Moultonborough",null,"Ossipee",null,"Sandwich",null,"Tamworth",null,"Tuftonboro",null,"Wakefield",null,"Wolfeboro"]
[null," ","Estimate","Margin of Error","Estimate","Margin of Error","Estimate","Margin of Error","Estimate","Margin of Error","Estimate","Margin of Error","Estimate","Margin of Error","Estimate","Margin of Error","Estimate","Margin of Error","Estimate","Margin of Error","Estimate","Margin of Error","Estimate","Margin of Error","Estimate","Margin of Error","Estimate","Margin of Error","Estimate","Margin of Error","Estimate","Margin of Error","Estimate","Margin of Error","Estimate","Margin of Error","Estimate","Margin of Error","Estimate","Margin of Error"]
[null,"Total:"]
[null,"Total:",59,27,473,135,99,41,10,8,1670,339,34,17,172,48,172,48,10,10,18,15,55,28,171,56,485,142,732,192,238,56,397,89,236,75,577,172,1220,263]
[null,"Less than $10,000",3,4,24,28,11,10,2,4,292,136,0,114,22,17,8,12,2,3,0,114,19,19,27,25,57,54,99,83,24,19,88,41,5,8,61,51,206,132]
[null,"$10,000 to $14,999",5,5,52,39,18,20,3,7,177,111,6,8,29,21,27,17,0,114,0,114,10,13,4,6,20,22,65,38,5,6,75,36,0,114,167,101,143,116]
[null,"$15,000 to $19,999",16,16,22,27,3,5,0,114,62,54,3,6,18,19,9,10,0,114,2,3,0,114,6,8,0,114,84,79,9,8,12,13,21,19,88,92,65,77]
[null,"$20,000 to $24,999",0,114,81,48,4,6,3,5,74,51,4,6,17,13,8,8,0,114,10,14,5,8,16,18,0,114,22,27,21,18,69,39,54,43,39,34,94,60]
[null,"$25,000 to $29,999",9,8,23,27,14,19,0,114,172,119,0,114,5,7,29,18,0,114,2,3,0,114,27,21,35,36,119,69,28,17,6,8,47,35,28,31,172,111]
[null,"$30,000 to $34,999",10,12,42,38,0,114,0,114,63,63,0,114,19,19,22,22,0,114,4,7,0,114,0,114,35,56,70,66,21,17,37,30,12,12,43,67,154,118]
[null,"$35,000 to $39,999",5,6,29,35,4,6,0,114,103,81,0,114,3,5,10,11,0,114,0,114,6,10,18,20,48,60,43,47,11,8,12,19,0,114,71,53,53,50]
[null,"$40,000 to $44,999",0,114,35,42,22,22,0,114,122,92,0,114,10,10,0,114,0,114,0,114,4,7,23,24,21,24,27,33,15,12,18,20,5,8,11,17,16,25]
[null,"$45,000 to $49,999",0,114,31,35,8,9,0,114,67,58,0,114,14,16,10,16,0,114,0,114,4,8,8,12,21,34,0,114,10,9,10,10,33,41,0,114,61,61]
[null,"$50,000 to $59,999",0,114,47,52,2,5,0,114,156,95,11,10,0,114,12,10,6,11,0,114,2,4,21,32,42,65,75,55,13,10,27,22,26,19,18,28,37,45]
[null,"$60,000 to $74,999",11,9,35,39,10,9,2,3,204,106,7,9,18,15,8,6,0,114,0,114,5,8,9,17,44,43,79,67,44,22,5,7,14,15,23,27,16,25]
[null,"$75,000 to $99,999",0,114,32,35,0,114,0,114,155,89,3,6,11,14,7,8,0,114,0,114,0,114,8,12,31,40,0,114,15,13,22,26,6,9,13,22,134,122]
[null,"$100,000 to $124,999",0,114,0,114,3,5,0,114,0,114,0,114,6,10,13,18,2,4,0,114,0,114,4,7,62,68,9,14,13,16,0,114,0,114,0,114,69,98]
[null,"$125,000 to $149,999",0,114,0,114,0,114,0,114,0,114,0,114,0,114,0,114,0,114,0,114,0,114,0,114,41,34,10,16,4,6,0,114,0,114,15,23,0,114]
[null,"$150,000 to $199,999",0,114,20,32,0,114,0,114,23,35,0,114,0,114,4,7,0,114,0,114,0,114,0,114,28,32,0,114,3,5,0,114,7,11,0,114,0,114]
[null,"$200,000 or more",0,114,0,114,0,114,0,114,0,114,0,114,0,114,5,8,0,114,0,114,0,114,0,114,0,114,30,37,2,4,16,23,6,9,0,114,0,114]
[]
[]
[null,"B19112. MEDIAN NON-FAMILY INCOME IN THE PAST 12 MONTHS (IN 2009 INFLATION-ADJUSTED DOLLARS)"]
[null,"Universe:  FAMILIES"]
[null,"Data Set: 2005-2009 American Community Survey 5-Year Estimates"]
[]
[null,null,"Albany",null,"Bartlett",null,"Brookfield",null,"Chatham",null,"Conway",null,"Eaton",null,"Effingham",null,"Freedom",null,"Hale's Location",null,"Hart's Location",null,"Jackson",null,"Madison",null,"Moultonborough",null,"Ossipee",null,"Sandwich",null,"Tamworth",null,"Tuftonboro",null,"Wakefield",null,"Wolfeboro"]
[null," ","Estimate","Margin of Error","Estimate","Margin of Error","Estimate","Margin of Error","Estimate","Margin of Error","Estimate","Margin of Error","Estimate","Margin of Error","Estimate","Margin of Error","Estimate","Margin of Error","Estimate","Margin of Error","Estimate","Margin of Error","Estimate","Margin of Error","Estimate","Margin of Error","Estimate","Margin of Error","Estimate","Margin of Error","Estimate","Margin of Error","Estimate","Margin of Error","Estimate","Margin of Error","Estimate","Margin of Error","Estimate","Margin of Error"]
[null,"Median family income in the past 12 months",28542,7177,34554,6633,27411,30073,17500,11356,34688,8754,53929,40883,26250,11739,30735,3452,51250,14376,21750,8856,12125,23959,36528,13614,52827,19774,28357,5521,40000,9695,21469,4003,28816,18624,18942,5401,27237,5131]

{"sheet":"ACS_Table_B19049","index":39,"n_rows":56,"n_cols":40,"rows_kept":56,"cut":false,"hidden":true,"merged":[]}
[null,"B19049. MEDIAN HOUSEHOLD INCOME IN THE PAST 12 MONTHS (IN 2019 INFLATION-ADJUSTED DOLLARS) BY AGE OF HOUSEHOLDER "]
[null,"Universe:  HOUSEHOLDS"]
[null,"Data Set: 2015-2019 American Community Survey 5-Year Estimates"]
[]
[null,null,"Albany",null,"Bartlett",null,"Brookfield",null,"Chatham",null,"Conway",null,"Eaton",null,"Effingham",null,"Freedom",null,"Hale's Location",null,"Hart's Location",null,"Jackson",null,"Madison",null,"Moultonborough",null,"Ossipee",null,"Sandwich",null,"Tamworth",null,"Tuftonboro",null,"Wakefield",null,"Wolfeboro"]
[null," ","Estimate","Margin of Error","Estimate","Margin of Error","Estimate","Margin of Error","Estimate","Margin of Error","Estimate","Margin of Error","Estimate","Margin of Error","Estimate","Margin of Error","Estimate","Margin of Error","Estimate","Margin of Error","Estimate","Margin of Error","Estimate","Margin of Error","Estimate","Margin of Error","Estimate","Margin of Error","Estimate","Margin of Error","Estimate","Margin of Error","Estimate","Margin of Error","Estimate","Margin of Error","Estimate","Margin of Error","Estimate","Margin of Error"]
[null,"Median household income in the past 12 months"]
[null,"Total:",59821,12952,54688,12928,93523,12912,66932,10083,62198,6134,65156,11902,70000,8985,70096,11249,91250,28364,"-","**",66339,6683,74209,8642,69978,9017,46859,5193,80739,12344,51354,32276,65114,8974,69185,7970,60703,18726]
[null,"Householder under 25 years","-","**","-","**","-","**","-","**",33786,19794,"-","**","-","**","-","**","-","**","-","**","-","**","-","**","-","**","-","**","-","**","-","**","-","**","-","**","-","**"]
[null,"Householder 25 to 44 years",61250,37969,64289,31201,110000,49712,"-","**",68462,10527,60625,20985,66985,7877,98077,25179,"-","**","-","**",70938,16259,78958,25153,68233,10926,68929,12914,85625,35110,"-","**",69750,20949,64063,18976,79265,34819]
[null,"Householder 45 to 64 years",73542,29303,49561,37422,93864,10026,72500,27186,60338,13087,65625,49002,79479,10781,76250,12937,228750,87674,76667,33966,65909,42201,90375,24705,85398,8880,53545,10299,79583,17779,65890,14263,72279,20598,80139,13049,54453,37898]
[null,"Householder 65 years and over",41786,28318,53242,12318,80313,28392,64250,13745,58500,17249,73500,11473,49750,21820,60250,8064,85625,29203,23000,7013,65735,29924,61719,21278,66865,5163,33582,12360,78750,27893,28205,14113,59659,9948,55976,12891,60625,26552]
[]
[]
[]
[]
[]
[]
[]
[]
[]
[]
[]
[]
[]
[]
[]
[]
[]
[null,"B19049. MEDIAN HOUSEHOLD INCOME IN THE PAST 12 MONTHS (IN 2014 INFLATION-ADJUSTED DOLLARS) BY AGE OF HOUSEHOLDER "]
[null,"Universe:  HOUSEHOLDS"]
[null,"Data Set: 2010-2014 American Community Survey 5-Year Estimates"]
[]
[null,null,"Albany",null,"Bartlett",null,"Brookfield",null,"Chatham",null,"Conway",null,"Eaton",null,"Effingham",null,"Freedom",null,"Hale's Location",null,"Hart's Location",null,"Jackson",null,"Madison",null,"Moultonborough",null,"Ossipee",null,"Sandwich",null,"Tamworth",null,"Tuftonboro",null,"Wakefield",null,"Wolfeboro"]
[null," ","Estimate","Margin of Error","Estimate","Margin of Error","Estimate","Margin of Error","Estimate","Margin of Error","Estimate","Margin of Error","Estimate","Margin of Error","Estimate","Margin of Error","Estimate","Margin of Error","Estimate","Margin of Error","Estimate","Margin of Error","Estimate","Margin of Error","Estimate","Margin of Error","Estimate","Margin of Error","Estimate","Margin of Error","Estimate","Margin of Error","Estimate","Margin of Error","Estimate","Margin of Error","Estimate","Margin of Error","Estimate","Margin of Error"]
[null,"Median household income in the past 12 months"]
[null,"Total:",62083,20850,48250,11225,65313,10094,52083,6860,46695,4993,66875,16925,44779,6900,48472,8446,58750,24291,53750,38243,77188,13625,53284,4100,76711,7236,45649,6651,58281,10072,48686,6539,60855,7872,44794,4904,62200,15580]
[null,"Householder under 25 years","-","**",8663,51527,"-","**","-","**",60660,24859,"-","**","-","**","-","**","-","**","-","**","-","**","-","**","-","**","-","**","-","**","-","**","-","**","-","**","-","**"]
[null,"Householder 25 to 44 years",82273,12861,71994,38929,90833,32138,54643,3264,51196,17961,80625,33073,45865,17068,35714,10525,"-","**",63750,46350,78833,3941,50694,16700,82273,64162,49777,26003,55750,34647,72639,71214,53462,28924,44504,6879,58421,36633]
[null,"Householder 45 to 64 years",56250,30919,43042,9663,65000,11428,67500,21928,52785,8794,82500,16672,49167,22815,57578,6437,57188,34630,44821,75515,78750,75373,55152,3954,80577,16910,49643,14250,73750,19669,48222,12361,70469,17427,56739,23975,78550,21196]
[null,"Householder 65 years and over",36250,19943,49656,15469,46875,14628,35833,16387,40000,8060,51250,13713,37917,14234,44000,10048,58750,25200,"-","**",67000,14118,39917,11580,54135,22109,32708,5206,44306,12841,38750,18549,51000,22358,39219,17750,47348,5432]
[]
[]
[]
[null,"B19049. MEDIAN HOUSEHOLD INCOME IN THE PAST 12 MONTHS (IN 2009 INFLATION-ADJUSTED DOLLARS) BY AGE OF HOUSEHOLDER "]
[null,"Universe:  HOUSEHOLDS"]
[null,"Data Set: 2005-2009 American Community Survey 5-Year Estimates"]
[]
[null,null,"Albany",null,"Bartlett",null,"Brookfield",null,"Chatham",null,"Conway",null,"Eaton",null,"Effingham",null,"Freedom",null,"Hale's Location",null,"Hart's Location",null,"Jackson",null,"Madison",null,"Moultonborough",null,"Ossipee",null,"Sandwich",null,"Tamworth",null,"Tuftonboro",null,"Wakefield",null,"Wolfeboro"]
[null," ","Estimate","Margin of Error","Estimate","Margin of Error","Estimate","Margin of Error","Estimate","Margin of Error","Estimate","Margin of Error","Estimate","Margin of Error","Estimate","Margin of Error","Estimate","Margin of Error","Estimate","Margin of Error","Estimate","Margin of Error","Estimate","Margin of Error","Estimate","Margin of Error","Estimate","Margin of Error","Estimate","Margin of Error","Estimate","Margin of Error","Estimate","Margin of Error","Estimate","Margin of Error","Estimate","Margin of Error","Estimate","Margin of Error"]
[null,"Median household income in the past 12 months"]
[null,"Total:",50000,15079,46250,5351,48750,13817,62500,18349,48288,6553,56563,12033,44837,6256,43393,7482,58393,25397,38125,57874,69625,13915,53088,6241,75813,13889,48688,8659,60227,5893,41164,6768,52355,4919,47686,8996,49470,15745]
[null,"Householder under 25 years",17188,27415,"-","**","-","**","-","**",72762,46477,"-","**",33125,17873,"-","**","-","**","-","**","-","**","-","**",45288,36047,"-","**",31250,13384,"-","**","-","**","-","**",11192,2330]
[null,"Householder 25 to 44 years",51000,7446,44784,33940,55625,40870,73750,33077,52147,13709,77083,68446,50119,12980,47361,11638,"-","**",38750,159104,71875,13614,48448,9283,70375,13391,46071,26813,55417,12284,47031,18998,53833,14176,57971,17478,71422,17407]
[null,"Householder 45 to 64 years",31250,38324,49360,6734,61429,16056,90625,51630,48980,5566,61786,10828,49917,5015,48125,8398,51667,12908,62917,66642,72770,22525,69821,18776,79939,31570,52388,5778,71063,4471,47250,9893,52500,11345,53681,24819,65190,8391]
[null,"Householder 65 years and over",61250,64368,42208,4744,30000,17808,28750,12812,28500,10331,49500,16827,21538,14903,35417,7972,95417,64252,22500,9165,58846,24231,52000,8030,54792,42715,30066,8102,38438,9102,23828,7764,51188,12489,30523,9155,27275,7734]

{"sheet":"ACS_Table_B25118","index":40,"n_rows":191,"n_cols":40,"rows_kept":191,"cut":false,"hidden":true,"merged":[]}
[null,"B25118. TENURE BY HOUSEHOLD INCOME IN THE PAST 12 MONTHS (IN 2019 INFLATION-ADJUSTED DOLLARS) "]
[null,"Universe:  OCCUPIED HOUSING UNITS"]
[null,"Data Set: 2015-2019 American Community Survey 5-Year Estimates"]
[]
[null,null,"Albany",null,"Bartlett",null,"Brookfield",null,"Chatham",null,"Conway",null,"Eaton",null,"Effingham",null,"Freedom",null,"Hale's Location",null,"Hart's Location",null,"Jackson",null,"Madison",null,"Moultonborough",null,"Ossipee",null,"Sandwich",null,"Tamworth",null,"Tuftonboro",null,"Wakefield",null,"Wolfeboro"]
[null," ","Estimate","Margin of Error","Estimate","Margin of Error","Estimate","Margin of Error","Estimate","Margin of Error","Estimate","Margin of Error","Estimate","Margin of Error","Estimate","Margin of Error","Estimate","Margin of Error","Estimate","Margin of Error","Estimate","Margin of Error","Estimate","Margin of Error","Estimate","Margin of Error","Estimate","Margin of Error","Estimate","Margin of Error","Estimate","Margin of Error","Estimate","Margin of Error","Estimate","Margin of Error","Estimate","Margin of Error","Estimate","Margin of Error"]
[null,"Total:",307,58,1466,162,303,63,143,41,4632,241,135,39,594,82,611,81,89,20,24,16,416,88,977,94,1765,118,2011,164,643,81,1300,147,923,104,2117,185,3000,206]
[null,"Owner occupied:",272,56,1074,213,289,64,132,37,3114,295,102,29,488,72,577,79,89,20,19,14,318,79,792,107,1531,124,1540,176,561,77,939,148,858,101,1901,196,2429,221]
[null,"Less than $5,000",3,4,0,11,5,6,3,5,18,29,2,3,7,7,19,24,2,4,0,11,9,8,4,7,46,36,0,11,0,11,0,11,30,26,32,34,49,38]
[null,"$5,000 to $9,999",9,13,0,11,0,11,3,5,94,86,3,4,0,11,7,10,0,11,0,11,0,11,7,10,0,11,14,24,4,6,13,20,0,11,47,72,0,16]
[null,"$10,000 to $14,999",20,16,0,11,8,10,4,6,113,99,3,4,20,19,8,8,0,11,0,11,0,11,50,36,8,13,128,80,20,15,31,33,52,36,43,71,73,94]
[null,"$15,000 to $19,999",16,15,8,13,5,6,2,4,56,65,3,5,6,6,12,9,2,3,4,7,0,11,20,24,60,48,106,68,6,7,79,88,30,31,54,46,46,52]
[null,"$20,000 to $24,999",3,4,20,21,2,3,0,11,175,88,4,5,14,11,16,11,2,3,5,8,6,6,28,33,65,55,85,64,23,20,17,24,12,13,102,93,56,54]
[null,"$25,000 to $34,999",28,20,196,107,15,11,15,9,248,104,2,4,37,20,34,16,3,3,1,3,18,21,46,25,46,41,184,101,12,9,177,112,79,34,91,75,394,188]
[null,"$35,000 to $49,999",31,16,188,110,19,17,8,7,270,128,18,15,59,26,87,37,8,7,4,6,45,32,70,36,141,71,216,105,73,28,53,64,85,40,131,98,241,186]
[null,"$50,000 to $74,999",39,20,153,105,48,24,39,23,579,173,20,16,91,35,125,38,23,11,2,4,74,44,170,68,396,102,375,121,106,31,202,95,217,63,529,170,272,121]
[null,"$75,000 to $99,999",37,15,192,103,52,25,17,13,612,194,19,11,125,40,107,42,15,11,3,5,21,23,178,66,243,86,198,87,100,33,100,76,140,49,343,161,311,159]
[null,"$100,000 to $149,999",66,28,205,120,86,30,12,11,663,239,19,11,70,25,119,39,11,7,0,11,89,48,135,44,246,67,156,80,108,39,115,77,96,46,299,112,471,190]
[null,"$150,000 or more",20,12,112,104,49,25,29,13,286,108,9,6,59,30,43,23,23,14,0,11,56,32,84,35,280,80,78,47,109,39,152,104,117,52,230,106,516,219]
[null,"Renter occupied:",35,17,392,159,14,18,11,14,1518,311,33,22,106,45,34,26,0,11,5,8,98,49,185,59,234,86,471,121,82,37,361,135,65,38,216,113,571,210]
[null,"Less than $5,000",0,11,33,52,0,11,0,11,57,49,0,11,0,11,0,11,0,11,0,11,0,11,0,11,8,12,13,22,0,11,40,62,0,11,0,16,0,16]
[null,"$5,000 to $9,999",0,11,31,50,0,11,0,11,187,105,0,11,4,6,0,11,0,11,0,11,10,16,0,11,0,11,78,57,3,4,12,18,0,11,0,16,0,16]
[null,"$10,000 to $14,999",2,4,0,11,0,11,0,11,128,92,6,6,3,6,4,5,0,11,0,11,0,11,0,11,29,32,34,57,0,11,62,80,0,11,0,16,92,103]
[null,"$15,000 to $19,999",2,5,63,58,0,11,0,11,61,62,0,11,16,13,0,11,0,11,0,11,11,18,15,21,22,23,0,11,0,11,15,22,0,11,0,16,78,91]
[null,"$20,000 to $24,999",0,11,0,11,0,11,5,9,71,78,0,11,21,23,0,11,0,11,0,11,0,11,23,18,0,11,79,71,4,8,0,11,0,11,50,77,92,110]
[null,"$25,000 to $34,999",14,12,55,61,6,11,6,11,197,145,9,10,14,16,4,7,0,11,0,11,0,11,21,29,32,39,76,84,14,18,138,96,15,16,13,21,151,126]
[null,"$35,000 to $49,999",12,14,111,92,0,11,0,11,66,59,1,4,0,11,0,11,0,11,0,11,43,40,7,9,37,35,66,58,10,12,0,11,6,10,110,78,111,111]
[null,"$50,000 to $74,999",0,11,33,40,0,11,0,11,475,193,15,16,23,16,8,9,0,11,0,11,24,30,43,26,70,51,29,27,31,24,65,65,21,18,28,21,33,39]
[null,"$75,000 to $99,999",0,11,66,69,8,14,0,11,211,162,2,3,3,4,13,20,0,11,5,8,0,11,35,33,29,28,68,71,17,17,16,23,0,11,0,16,14,24]
[null,"$100,000 to $149,999",3,4,0,11,0,11,0,11,50,77,0,11,7,9,5,9,0,11,0,11,10,16,34,33,0,11,28,47,0,11,0,11,19,31,15,23,0,16]
[null,"$150,000 or more",2,3,0,11,0,11,0,11,15,24,0,11,15,22,0,11,0,11,0,11,0,11,7,9,7,11,0,11,3,5,13,19,4,7,0,16,0,16]
[]
[]
[]
[]
[]
[null,"Calculated B25118. TENURE BY HOUSEHOLD INCOME IN THE PAST 12 MONTHS (IN 2019 INFLATION-ADJUSTED DOLLARS) "]
[null,"Universe:  OCCUPIED HOUSING UNITS"]
[null,{"$f":"B3","v":"Data Set: 2015-2019 American Community Survey 5-Year Estimates"}]
[null,null,"Albany",null,"Bartlett",null,"Brookfield",null,"Chatham",null,"Conway",null,"Eaton",null,"Effingham",null,"Freedom",null,"Hale's Location",null,"Hart's Location",null,"Jackson",null,"Madison",null,"Moultonborough",null,"Ossipee",null,"Sandwich",null,"Tamworth",null,"Tuftonboro",null,"Wakefield",null,"Wolfeboro"]
[null," ","Estimate","Margin of Error","Estimate","Margin of Error","Estimate","Margin of Error","Estimate","Margin of Error","Estimate","Margin of Error","Estimate","Margin of Error","Estimate","Margin of Error","Estimate","Margin of Error","Estimate","Margin of Error","Estimate","Margin of Error","Estimate","Margin of Error","Estimate","Margin of Error","Estimate","Margin of Error","Estimate","Margin of Error","Estimate","Margin of Error","Estimate","Margin of Error","Estimate","Margin of Error","Estimate","Margin of Error","Estimate","Margin of Error"]
[null,{"$f":"B7","v":"Total:"},307,58,1466,162,303,63,143,41,4632,241,135,39,594,82,611,81,89,20,24,16,416,88,{"$f":"Y7","v":977},94,1765,118,2011,164,643,81,1300,147,923,104,2117,185,3000,206]
[null,"Less than $5,000",{"$f":"C9+C21","v":3},{"$f":"SQRT((D9^2)+(D21^2))","v":11.704699910719626},{"$f":"E9+E21","v":33},{"$f":"SQRT((F9^2)+(F21^2))","v":53.150729063673246},{"$f":"G9+G21","v":5},{"$f":"SQRT((H9^2)+(H21^2))","v":12.529964086141668},{"$f":"I9+I21","v":3},{"$f":"SQRT((J9^2)+(J21^2))","v":12.083045973594572},{"$f":"K9+K21","v":75},{"$f":"SQRT((L9^2)+(L21^2))","v":56.938563381947034},{"$f":"M9+M21","v":2},{"$f":"SQRT((N9^2)+(N21^2))","v":11.401754250991379},{"$f":"O9+O21","v":7},{"$f":"SQRT((P9^2)+(P21^2))","v":13.038404810405298},{"$f":"Q9+Q21","v":19},{"$f":"SQRT((R9^2)+(R21^2))","v":26.40075756488817},{"$f":"S9+S21","v":2},{"$f":"SQRT((T9^2)+(T21^2))","v":11.704699910719626},{"$f":"U9+U21","v":0},{"$f":"SQRT((V9^2)+(V21^2))","v":15.556349186104045},{"$f":"W9+W21","v":9},{"$f":"SQRT((X9^2)+(X21^2))","v":13.601470508735444},{"$f":"Y9+Y21","v":4},{"$f":"SQRT((Z9^2)+(Z21^2))","v":13.038404810405298},{"$f":"AA9+AA21","v":54},{"$f":"SQRT((AB9^2)+(AB21^2))","v":37.947331922020552},{"$f":"AC9+AC21","v":13},{"$f":"SQRT((AD9^2)+(AD21^2))","v":24.596747752497688},{"$f":"AE9+AE21","v":0},{"$f":"SQRT((AF9^2)+(AF21^2))","v":15.556349186104045},{"$f":"AG9+AG21","v":40},{"$f":"SQRT((AH9^2)+(AH21^2))","v":62.968245965724662},{"$f":"AI9+AI21","v":30},{"$f":"SQRT((AJ9^2)+(AJ21^2))","v":28.231188426986208},{"$f":"AK9+AK21","v":32},{"$f":"SQRT((AL9^2)+(AL21^2))","v":37.576588456111871},{"$f":"AM9+AM21","v":49},{"$f":"SQRT((AN9^2)+(AN21^2))","v":41.231056256176608}]
[null,"$5,000 to $9,999",{"$f":"C10+C22","v":9},{"$f":"SQRT((D10^2)+(D22^2))","v":17.029386365926403},{"$f":"E10+E22","v":31},51.195702944680818,{"$f":"G10+G22","v":0},15.556349186104045,{"$f":"I10+I22","v":3},12.083045973594572,{"$f":"K10+K22","v":281},135.72398461583714,{"$f":"M10+M22","v":3},11.704699910719626,{"$f":"O10+O22","v":4},12.529964086141668,{"$f":"Q10+Q22","v":7},14.866068747318506,0,15.556349186104045,0,15.556349186104045,10,19.416487838947599,7,14.866068747318506,0,15.556349186104045,92,61.846584384264908,7,7.2111025509279782,25,26.90724809414742,0,15.556349186104045,47,73.756355658343097,0,22.627416997969522]
[null,"$10,000 to $14,999",{"$f":"C11+C23","v":22},16.492422502470642,{"$f":"E11+E23","v":0},15.556349186104045,{"$f":"G11+G23","v":8},14.866068747318506,{"$f":"I11+I23","v":4},12.529964086141668,{"$f":"K11+K23","v":241},135.14806694880988,{"$f":"M11+M23","v":9},7.2111025509279782,{"$f":"O11+O23","v":23},19.924858845171276,{"$f":"Q11+Q23","v":12},9.4339811320566032,0,15.556349186104045,0,15.556349186104045,0,15.556349186104045,50,37.643060449437421,37,34.539832078341085,162,98.229323524088258,20,18.601075237738275,93,86.539008545279742,52,37.643060449437421,43,72.780491891715045,165,139.44532978913278]
[null,"$15,000 to $19,999",{"$f":"C12+C24","v":18},15.811388300841896,71,59.439044406854322,5,12.529964086141668,2,11.704699910719626,117,89.827612681179502,3,12.083045973594572,22,14.317821063276353,12,14.212670403551895,2,11.401754250991379,4,13.038404810405298,11,21.095023109728988,35,31.89043743820395,82,53.225933528685054,106,68.8839603971781,6,13.038404810405298,94,90.708323763588538,30,32.893768406797051,54,48.703182647543684,124,104.80935072788114]
[null,"$20,000 to $24,999",3,11.704699910719626,20,23.706539182259394,2,11.401754250991379,5,14.212670403551895,246,117.5925167687128,4,12.083045973594572,35,25.495097567963924,16,15.556349186104045,2,11.401754250991379,5,13.601470508735444,6,12.529964086141668,51,37.589892258425003,65,56.089214649520635,164,95.587656106842587,27,21.540659228538015,17,26.40075756488817,12,17.029386365926403,152,120.7393887677091,148,122.53978945632312]
[null,"$25,000 to $34,999",42,23.323807579381203,251,123.16655390161731,21,15.556349186104045,21,14.212670403551895,445,178.44046626256053,11,10.770329614269007,51,25.612496949731394,38,17.464249196572979,3,11.401754250991379,1,11.401754250991379,18,23.706539182259394,67,38.288379438153292,78,56.586217403180434,260,131.36590120727678,26,20.124611797498108,315,147.51271131668619,94,37.576588456111871,104,77.884529914483011,545,226.3183598385248]
[null,"$35,000 to $49,999",43,21.2602916254693,299,143.40153416194681,19,20.248456731316587,8,13.038404810405298,336,140.94325099131211,19,15.524174696260024,59,28.231188426986208,87,38.600518131237564,8,13.038404810405298,4,12.529964086141668,88,51.224993899462788,77,37.107950630558946,178,79.158069708653201,282,119.95415791042844,83,30.463092423455635,53,64.938432380216881,91,41.231056256176608,241,125.25174649480941,352,216.60332407421637]
[null,"$50,000 to $74,999",39,22.825424421026653,186,112.36102527122117,48,26.40075756488817,39,25.495097567963924,1054,259.18719104153274,35,22.627416997969522,114,38.483762809787713,133,39.05124837953327,23,15.556349186104045,2,11.704699910719626,98,53.254107822777392,213,72.801098892805186,466,114.03946685248927,404,123.97580409095961,137,39.204591567825318,267,115.10864433221339,238,65.520989003524662,557,171.29214809792072,305,127.12985487288185]
[null,"$75,000 to $99,999",37,18.601075237738275,258,123.97580409095961,60,28.653097563788805,17,17.029386365926403,823,252.74493071078598,21,11.401754250991379,128,40.19950248448356,120,46.518813398452032,15,15.556349186104045,8,9.4339811320566032,21,25.495097567963924,213,73.79024325749306,272,90.443352436760108,266,112.29425630903836,117,37.12142238654117,116,79.404030124421269,140,50.219518117958877,343,161.7930777258409,325,160.80111939908875]
[null,"$100,000 to $149,999",69,28.284271247461902,205,120.50311199301038,86,31.953090617340916,12,15.556349186104045,713,251.09759058979438,19,15.556349186104045,77,26.570660511172846,124,40.024992192379003,11,13.038404810405298,0,15.556349186104045,99,50.596442562694072,169,55,246,67.896980787071826,184,92.784697014108957,108,40.521599178709621,115,77.781745930520231,115,55.470712993434653,314,114.33722053644648,471,190.67249408344142]
[null,"$150,000 or more",22,12.369316876852981,{"$f":"E19+E31","v":112},104.58011283222064,49,27.313000567495326,29,17.029386365926403,301,110.63453348751464,9,12.529964086141668,74,37.20215047547655,43,25.495097567963924,23,17.804493814764857,0,15.556349186104045,56,33.837848631377263,91,36.138621999185304,287,80.752708932889675,78,48.270073544588683,112,39.319206502675002,165,105.72133181151285,121,52.469038489379621,230,107.20074626605917,516,219.58369702689677]
[]
[]
[]
[]
[]
[]
[]
[]
[]
[]
[]
[]
[]
[]
[]
[]
[null,"B25118. TENURE BY HOUSEHOLD INCOME IN THE PAST 12 MONTHS (IN 2013 INFLATION-ADJUSTED DOLLARS) "]
[null,"Universe:  OCCUPIED HOUSING UNITS"]
[null,"Data Set: 2010-2014 American Community Survey 5-Year Estimates"]
[]
[null,null,"Albany",null,"Bartlett",null,"Brookfield",null,"Chatham",null,"Conway",null,"Eaton",null,"Effingham",null,"Freedom",null,"Hale's Location",null,"Hart's Location",null,"Jackson",null,"Madison",null,"Moultonborough",null,"Ossipee",null,"Sandwich",null,"Tamworth",null,"Tuftonboro",null,"Wakefield",null,"Wolfeboro"]
[null," ","Estimate","Margin of Error","Estimate","Margin of Error","Estimate","Margin of Error","Estimate","Margin of Error","Estimate","Margin of Error","Estimate","Margin of Error","Estimate","Margin of Error","Estimate","Margin of Error","Estimate","Margin of Error","Estimate","Margin of Error","Estimate","Margin of Error","Estimate","Margin of Error","Estimate","Margin of Error","Estimate","Margin of Error","Estimate","Margin of Error","Estimate","Margin of Error","Estimate","Margin of Error","Estimate","Margin of Error","Estimate","Margin of Error"]
[null,"Total:",308,53,1567,184,298,64,161,35,4365,233,176,33,553,70,532,66,67,21,26,14,444,91,1133,93,1762,94,1761,183,645,87,1512,148,975,121,2260,207,2734,204]
[null,"Owner occupied:",263,55,1155,180,289,62,134,33,2966,278,146,28,461,57,442,59,67,21,10,10,363,79,980,103,1591,121,1484,205,501,63,1047,156,805,107,2019,238,2214,217]
[null,"Less than $5,000",2,4,34,43,4,5,7,7,51,57,0,11,13,10,6,6,1,3,0,11,9,15,9,9,58,52,62,46,0,11,13,21,20,19,54,48,10,17]
[null,"$5,000 to $9,999",4,7,22,37,0,11,9,11,19,23,0,11,34,27,19,13,0,11,0,11,17,30,20,31,8,12,64,60,3,5,8,12,8,9,29,48,28,44]
[null,"$10,000 to $14,999",12,14,55,51,6,7,2,5,94,63,4,5,23,18,12,8,0,11,0,11,3,6,36,35,12,16,141,79,11,9,54,57,18,24,91,67,27,32]
[null,"$15,000 to $19,999",30,24,50,57,11,13,4,5,73,50,6,5,16,12,17,12,0,11,0,11,9,14,43,31,59,41,95,57,35,22,6,10,35,27,108,82,21,23]
[null,"$20,000 to $24,999",25,27,47,47,11,14,7,6,130,86,8,6,20,12,25,17,5,5,0,11,5,8,24,23,28,36,36,27,38,22,120,89,29,16,94,105,105,106]
[null,"$25,000 to $34,999",9,7,112,79,39,28,7,6,352,149,15,10,55,24,43,19,6,6,4,7,18,17,34,32,69,37,168,92,44,25,154,117,49,34,310,152,218,95]
[null,"$35,000 to $49,999",41,22,263,121,30,18,29,17,498,157,21,11,67,26,85,29,14,9,0,11,30,22,227,76,162,68,181,92,47,21,123,88,110,54,348,181,390,151]
[null,"$50,000 to $74,999",40,19,152,80,77,31,19,10,654,195,32,16,90,30,104,28,15,9,2,4,69,41,253,78,335,84,351,132,88,27,330,81,189,72,429,142,396,157]
[null,"$75,000 to $99,999",50,27,223,97,35,17,25,17,603,175,29,17,80,32,56,18,8,7,0,11,40,29,70,33,208,76,181,78,79,22,58,49,170,65,147,81,348,147]
[null,"$100,000 to $149,999",39,23,110,73,40,18,14,10,293,94,13,7,47,20,53,23,11,8,4,6,79,38,177,64,318,84,114,69,113,31,130,70,99,48,236,119,416,138]
[null,"$150,000 or more",11,10,87,68,36,26,11,9,199,89,18,11,16,16,22,18,7,8,0,11,84,44,87,47,334,103,91,57,43,24,51,42,78,52,173,99,255,120]
[null,"Renter occupied:",45,20,412,210,9,11,27,14,1399,271,30,20,92,45,90,39,0,11,16,12,81,45,153,66,171,69,277,101,144,64,465,160,170,73,241,136,520,181]
[null,"Less than $5,000",0,11,0,11,0,11,7,11,72,89,0,11,0,11,2,3,0,11,0,11,0,11,0,11,0,11,0,11,0,11,0,11,15,24,0,15,21,34]
[null,"$5,000 to $9,999",3,4,112,101,0,11,1,3,44,42,0,11,0,11,0,11,0,11,0,11,0,11,0,11,8,11,7,12,7,7,73,76,0,11,22,34,0,15]
[null,"$10,000 to $14,999",0,11,0,11,3,5,0,11,170,133,0,11,15,24,3,5,0,11,0,11,2,5,0,11,7,12,77,69,4,7,97,111,0,11,43,68,162,138]
[null,"$15,000 to $19,999",2,4,69,83,0,11,2,3,43,40,0,11,16,14,0,11,0,11,0,11,8,13,8,12,6,9,47,49,0,11,44,37,13,13,0,15,0,15]
[null,"$20,000 to $24,999",8,10,27,34,0,11,0,11,107,92,0,11,4,5,7,10,0,11,0,11,16,16,0,11,6,10,6,10,0,11,16,24,0,11,0,15,45,72]
[null,"$25,000 to $34,999",0,11,0,11,0,11,3,4,325,171,0,11,37,27,34,26,0,11,2,3,5,9,19,32,8,13,42,46,42,35,38,45,70,54,78,64,37,52]
[null,"$35,000 to $49,999",6,5,31,37,0,11,0,11,321,136,4,6,3,4,24,17,0,11,7,11,17,22,76,48,21,31,49,43,44,26,61,73,27,25,98,108,115,102]
[null,"$50,000 to $74,999",8,10,145,114,0,11,14,17,186,104,9,9,7,12,6,9,0,11,3,5,0,11,39,35,68,51,15,20,22,25,121,105,7,10,0,15,55,43]
[null,"$75,000 to $99,999",10,9,0,11,0,11,0,11,33,33,0,11,0,11,11,17,0,11,2,3,25,29,6,9,0,11,25,39,18,28,0,11,33,34,0,15,0,15]
[null,"$100,000 to $149,999",3,5,0,11,0,11,0,11,92,83,12,16,10,18,3,6,0,11,2,4,8,14,5,9,37,43,9,13,0,11,15,23,0,11,0,15,69,74]
[null,"$150,000 or more",5,6,28,45,6,10,0,11,6,11,5,8,0,11,0,11,0,11,0,11,0,11,0,11,10,16,0,11,7,7,0,11,5,9,0,15,16,26]
[]
[]
[]
[]
[]
[null,"Calculated B25118. TENURE BY HOUSEHOLD INCOME IN THE PAST 12 MONTHS (IN 2014 INFLATION-ADJUSTED DOLLARS) "]
[null,"Universe:  OCCUPIED HOUSING UNITS"]
[null,"Data Set: 2010-2014 American Community Survey 5-Year Estimates"]
[null,null,"Albany",null,"Bartlett",null,"Brookfield",null,"Chatham",null,"Conway",null,"Eaton",null,"Effingham",null,"Freedom",null,"Hale's Location",null,"Hart's Location",null,"Jackson",null,"Madison",null,"Moultonborough",null,"Ossipee",null,"Sandwich",null,"Tamworth",null,"Tuftonboro",null,"Wakefield",null,"Wolfeboro"]
[null," ","Estimate","Margin of Error","Estimate","Margin of Error","Estimate","Margin of Error","Estimate","Margin of Error","Estimate","Margin of Error","Estimate","Margin of Error","Estimate","Margin of Error","Estimate","Margin of Error","Estimate","Margin of Error","Estimate","Margin of Error","Estimate","Margin of Error","Estimate","Margin of Error","Estimate","Margin of Error","Estimate","Margin of Error","Estimate","Margin of Error","Estimate","Margin of Error","Estimate","Margin of Error","Estimate","Margin of Error","Estimate","Margin of Error"]
[null,"Total:",308,53,1567,184,298,64,161,35,4365,233,176,33,553,70,532,66,67,21,26,14,444,91,1133,93,1762,94,1761,183,645,87,1512,148,975,121,2260,207,2734,204]
[null,"Less than $5,000",2,11.704699910719626,34,44.384682042344295,4,12.083045973594572,14,13.038404810405298,123,105.6882207249228,0,15.556349186104045,13,14.866068747318506,8,6.7082039324993694,1,11.401754250991379,0,15.556349186104045,9,18.601075237738275,9,14.212670403551895,58,53.150729063673246,62,47.296934361541872,0,15.556349186104045,13,23.706539182259394,35,30.610455730027933,54,50.289163842720633,31,38.013155617496423]
[null,"$5,000 to $9,999",7,8.0622577482985491,134,107.56393447619885,0,15.556349186104045,10,11.401754250991379,63,47.885279575251516,0,15.556349186104045,34,29.154759474226502,19,17.029386365926403,0,15.556349186104045,0,15.556349186104045,17,31.953090617340916,20,32.893768406797051,16,16.278820596099706,71,61.188234163113421,10,8.6023252670426267,81,76.941536246685374,8,14.212670403551895,51,58.821764679410968,28,46.486557196677836]
[null,"$10,000 to $14,999",12,17.804493814764857,55,52.172789842982326,9,8.6023252670426267,2,12.083045973594572,264,147.16657229140046,4,12.083045973594572,38,30,15,9.4339811320566032,0,15.556349186104045,0,15.556349186104045,5,7.810249675906654,36,36.687872655688281,19,20,218,104.89041900955492,15,11.401754250991379,151,124.77980605851253,18,26.40075756488817,134,95.462034338264544,189,141.66156853571826]
[null,"$15,000 to $19,999",32,24.331050121192877,119,100.68763578513501,11,17.029386365926403,6,5.8309518948453007,116,64.031242374328485,6,12.083045973594572,32,18.439088914585774,17,16.278820596099706,0,15.556349186104045,0,15.556349186104045,17,19.104973174542799,51,33.241540277189323,65,41.976183723630712,142,75.166481891864535,35,24.596747752497688,50,38.327535793473601,48,29.966648127543394,108,83.360662185469707,21,27.459060435491963]
[null,"$20,000 to $24,999",33,28.792360097775937,74,58.008620049092706,11,17.804493814764857,7,12.529964086141668,237,125.93649193144932,8,12.529964086141668,24,13,32,19.723082923316021,5,12.083045973594572,0,15.556349186104045,21,17.888543819998318,24,25.495097567963924,34,37.363083384538811,42,28.792360097775937,38,24.596747752497688,136,92.17917335276988,29,19.416487838947599,94,106.06601717798213,150,128.14054783713078]
[null,"$25,000 to $34,999",9,13.038404810405298,112,79.762146410437069,39,30.083217912982647,10,7.2111025509279782,677,226.80828909014767,15,14.866068747318506,92,36.124783736376884,77,32.202484376209235,6,12.529964086141668,6,7.6157731058639087,23,19.235384061671343,53,45.254833995939045,77,39.217343102255157,210,102.85912696499032,86,43.011626335213137,192,125.35549449465708,119,63.812224534175265,388,164.92422502470643,255,108.30050784737807]
[null,"$35,000 to $49,999",47,22.561028345356956,294,126.53062870309307,30,21.095023109728988,29,20.248456731316587,819,207.7137453323684,25,12.529964086141668,70,26.305892875931811,109,33.61547262794322,14,14.212670403551895,7,15.556349186104045,47,31.11269837220809,303,89.888820216976924,183,74.732857566133518,230,101.55294185792945,91,33.421549934136806,184,114.33722053644648,137,59.506302187247357,446,210.77238908357992,505,182.22239159883728]
[null,"$50,000 to $74,999",48,21.470910553583888,297,139.26952286842948,77,32.893768406797051,33,19.723082923316021,840,221,41,18.357559750685819,97,32.310988842807021,110,29.410882339705484,15,14.212670403551895,5,6.4031242374328485,69,42.449970553582247,292,85.492689745966004,403,98.270036124955197,366,133.50655414622909,110,36.796738985948195,451,132.61221663180206,196,72.691127381544987,429,142.79005567615695,451,162.7820628939196]
[null,"$75,000 to $99,999",60,28.460498941515414,223,97.621718894926246,35,20.248456731316587,25,20.248456731316587,636,178.08424972467387,29,20.248456731316587,80,33.837848631377263,67,24.758836806279895,8,13.038404810405298,2,11.401754250991379,65,41.012193308819754,76,34.205262752974143,208,76.791926658991954,206,87.206651122491792,97,35.608987629529715,58,50.219518117958877,203,73.355299740373226,147,82.37718130647589,348,147.76332427229701]
[null,"$100,000 to $149,999",42,23.53720459187964,110,73.824115301166998,40,21.095023109728988,14,14.866068747318506,385,125.39936203984452,25,17.464249196572979,57,26.90724809414742,56,23.769728648009426,11,13.601470508735444,6,7.2111025509279782,87,40.496913462633174,182,64.629714528226103,355,94.36630754670864,123,70.213958726167832,113,32.893768406797051,145,73.681748079154588,99,49.244289008980523,236,119.94165248152953,485,156.58863304850706]
[null,"$150,000 or more",16,11.661903789690601,115,81.541400527584756,42,27.856776554368238,11,14.212670403551895,205,89.677198885781436,23,13.601470508735444,16,19.416487838947599,22,21.095023109728988,7,13.601470508735444,0,15.556349186104045,84,45.354161881794269,87,48.270073544588683,344,104.23531071570709,91,58.051701094799967,50,25,51,43.416586692184822,83,52.773099207835045,173,100.12991560967181,271,122.78436382536663]
[]
[]
[]
[]
[]
[]
[]
[]
[]
[]
[]
[]
[]
[]
[]
[]
[null,"B25118. TENURE BY HOUSEHOLD INCOME IN THE PAST 12 MONTHS (IN 2009 INFLATION-ADJUSTED DOLLARS) "]
[null,"Universe:  OCCUPIED HOUSING UNITS"]
[null,"Data Set: 2005-2009 American Community Survey 5-Year Estimates"]
[]
[null,null,"Albany",null,"Bartlett",null,"Brookfield",null,"Chatham",null,"Conway",null,"Eaton",null,"Effingham",null,"Freedom",null,"Hale's Location",null,"Hart's Location",null,"Jackson",null,"Madison",null,"Moultonborough",null,"Ossipee",null,"Sandwich",null,"Tamworth",null,"Tuftonboro",null,"Wakefield",null,"Wolfeboro"]
[null," ","Estimate","Margin of Error","Estimate","Margin of Error","Estimate","Margin of Error","Estimate","Margin of Error","Estimate","Margin of Error","Estimate","Margin of Error","Estimate","Margin of Error","Estimate","Margin of Error","Estimate","Margin of Error","Estimate","Margin of Error","Estimate","Margin of Error","Estimate","Margin of Error","Estimate","Margin of Error","Estimate","Margin of Error","Estimate","Margin of Error","Estimate","Margin of Error","Estimate","Margin of Error","Estimate","Margin of Error","Estimate","Margin of Error"]
[null,"Total:",304,67,1203,117,258,52,118,37,3783,258,151,31,423,63,552,70,59,20,37,21,361,77,830,90,2003,119,1842,183,598,61,1021,117,929,115,1773,198,2790,210]
[null,"Owner occupied:",267,68,902,129,240,51,103,33,2411,216,138,30,381,61,515,68,59,20,27,20,319,77,682,84,1884,129,1568,190,525,54,827,110,850,105,1567,212,2108,210]
[null,"Less than $5,000",0,114,0,114,4,6,0,114,0,114,6,7,5,8,0,114,0,114,0,114,6,10,20,20,45,51,59,61,3,5,10,16,16,19,26,31,62,66]
[null,"$5,000 to $9,999",6,7,8,15,7,8,2,4,37,35,0,114,6,8,17,14,2,3,0,114,13,15,0,114,12,20,32,37,21,14,26,26,0,114,79,62,11,18]
[null,"$10,000 to $14,999",9,9,31,31,18,20,3,7,59,39,7,11,25,21,24,15,0,114,0,114,10,13,4,6,28,25,33,40,7,7,86,42,0,114,152,99,26,41]
[null,"$15,000 to $19,999",51,33,25,32,3,5,2,3,41,41,3,6,14,13,29,21,0,114,2,3,0,114,15,16,0,114,74,77,14,10,12,13,28,22,94,96,19,28]
[null,"$20,000 to $24,999",3,4,54,41,4,6,3,5,161,84,7,8,27,15,24,19,0,114,0,114,15,18,30,26,47,39,86,59,18,17,103,41,71,42,39,34,95,56]
[null,"$25,000 to $34,999",19,12,100,51,22,22,8,9,349,139,5,8,41,24,95,40,7,11,6,7,14,15,86,53,157,88,195,96,62,24,111,52,116,50,144,88,278,126]
[null,"$35,000 to $49,999",29,21,193,93,56,30,18,15,392,131,24,12,97,35,110,35,11,12,2,4,53,24,152,56,330,153,241,103,71,21,114,49,129,53,266,93,298,127]
[null,"$50,000 to $74,999",68,32,207,80,64,26,23,16,593,150,41,19,106,33,83,29,14,12,9,16,76,56,148,59,309,128,439,125,132,33,130,55,303,84,257,105,556,157]
[null,"$75,000 to $99,999",30,21,97,54,23,14,12,13,346,122,25,15,35,21,52,26,8,7,4,6,37,23,111,45,210,86,263,113,79,28,122,57,100,49,354,127,258,158]
[null,"$100,000 to $149,999",27,20,130,58,33,21,25,20,178,89,16,10,20,15,33,22,12,8,4,8,58,30,88,46,485,134,96,50,86,25,65,32,43,27,130,57,292,152]
[null,"$150,000 or more",25,23,57,37,6,8,7,7,255,94,4,6,5,7,48,29,5,4,0,114,37,21,28,29,261,102,50,50,32,15,48,33,44,25,26,27,213,79]
[null,"Renter occupied:",37,23,301,108,18,18,15,16,1372,247,13,9,42,23,37,23,0,114,10,14,42,25,148,61,119,71,274,113,73,29,194,71,79,55,206,95,682,209]
[null,"Less than $5,000",0,114,0,114,0,114,0,114,161,123,0,114,0,114,0,114,0,114,0,114,0,114,9,14,0,114,15,23,3,5,38,36,0,114,0,114,123,123]
[null,"$5,000 to $9,999",3,5,16,25,0,114,0,114,146,75,0,114,11,11,0,114,0,114,0,114,6,10,13,14,0,114,47,60,14,16,35,21,0,114,0,114,47,38]
[null,"$10,000 to $14,999",11,14,51,38,0,114,0,114,139,106,4,6,4,6,11,14,0,114,0,114,0,114,13,15,0,114,47,29,0,114,7,10,0,114,15,25,160,125]
[null,"$15,000 to $19,999",3,5,24,28,0,114,4,6,48,37,0,114,15,18,0,114,0,114,0,114,0,114,0,114,0,114,10,15,0,114,0,114,0,114,53,51,65,77]
[null,"$20,000 to $24,999",9,15,45,41,4,6,6,10,87,94,3,5,0,114,5,7,0,114,10,14,5,8,7,10,20,31,0,114,5,8,0,114,26,28,19,30,45,43]
[null,"$25,000 to $34,999",9,12,16,25,3,5,0,114,211,108,0,114,8,9,9,11,0,114,0,114,0,114,26,23,27,27,78,65,16,16,31,29,0,114,0,114,138,131]
[null,"$35,000 to $49,999",0,114,112,78,8,14,5,11,142,107,2,5,0,114,6,9,0,114,0,114,13,13,0,114,0,114,25,41,13,9,34,41,38,45,43,38,42,48]
[null,"$50,000 to $74,999",0,114,28,32,0,114,0,114,313,148,4,6,4,7,6,8,0,114,0,114,18,17,42,41,20,23,52,47,13,10,44,44,6,9,46,54,32,37]
[null,"$75,000 to $99,999",2,4,0,114,0,114,0,114,103,78,0,114,0,114,0,114,0,114,0,114,0,114,33,31,52,55,0,114,5,6,0,114,9,13,13,22,30,45]
[null,"$100,000 to $149,999",0,114,9,14,3,5,0,114,22,36,0,114,0,114,0,114,0,114,0,114,0,114,5,10,0,114,0,114,4,6,0,114,0,114,0,114,0,114]
[null,"$150,000 or more",0,114,0,114,0,114,0,114,0,114,0,114,0,114,0,114,0,114,0,114,0,114,0,114,0,114,0,114,0,114,5,8,0,114,17,27,0,114]
[]
[]
[]
[]
[]
[null,"Calculated B25118. TENURE BY HOUSEHOLD INCOME IN THE PAST 12 MONTHS (IN 2009 INFLATION-ADJUSTED DOLLARS) "]
[null,"Universe:  OCCUPIED HOUSING UNITS"]
[null,"Data Set: 2005-2009 American Community Survey 5-Year Estimates"]
[null,null,"Albany",null,"Bartlett",null,"Brookfield",null,"Chatham",null,"Conway",null,"Eaton",null,"Effingham",null,"Freedom",null,"Hale's Location",null,"Hart's Location",null,"Jackson",null,"Madison",null,"Moultonborough",null,"Ossipee",null,"Sandwich",null,"Tamworth",null,"Tuftonboro",null,"Wakefield",null,"Wolfeboro"]
[null," ","Estimate","Margin of Error","Estimate","Margin of Error","Estimate","Margin of Error","Estimate","Margin of Error","Estimate","Margin of Error","Estimate","Margin of Error","Estimate","Margin of Error","Estimate","Margin of Error","Estimate","Margin of Error","Estimate","Margin of Error","Estimate","Margin of Error","Estimate","Margin of Error","Estimate","Margin of Error","Estimate","Margin of Error","Estimate","Margin of Error","Estimate","Margin of Error","Estimate","Margin of Error","Estimate","Margin of Error","Estimate","Margin of Error"]
[null,"Total:",304,67,1203,117,258,52,118,37,3783,258,151,31,423,63,552,70,59,20,37,21,361,77,830,90,2003,119,1842,183,598,61,1021,117,929,115,1773,198,2790,210]
[null,"Less than $5,000",0,161.22034611053283,0,161.22034611053283,4,114.15778554264269,0,161.22034611053283,161,167.70509831248424,6,114.21471008587291,5,114.28035701729323,0,161.22034611053283,0,161.22034611053283,0,161.22034611053283,6,114.43775600735974,29,24.413111231467404,45,124.88794977899188,74,65.192024052026483,6,7.0710678118654755,48,39.395431207184416,16,115.57248807566617,26,118.1397477566293,185,139.58868148958209]
[null,"$5,000 to $9,999",9,8.6023252670426267,24,29.154759474226502,7,114.28035701729323,2,114.0701538527936,183,82.764726786234249,0,161.22034611053283,17,13.601470508735444,17,114.85643212288984,2,114.03946685248927,0,161.22034611053283,19,18.027756377319946,13,114.85643212288984,12,115.7410903698423,79,70.49113419430843,35,21.2602916254693,61,33.421549934136806,0,161.22034611053283,79,129.76902558006668,58,42.047592083257278]
[null,"$10,000 to $14,999",20,16.643316977093239,82,49.040799340956916,18,115.7410903698423,3,114.21471008587291,198,112.94689017409908,11,12.529964086141668,29,21.840329667841555,35,20.518284528683193,0,161.22034611053283,0,161.22034611053283,10,114.73883387938018,17,16.15549442140351,28,116.70903992407786,80,49.406477308142499,7,114.21471008587291,93,43.174066289845804,0,161.22034611053283,167,102.10778618695051,186,131.55227098001768]
[null,"$15,000 to $19,999",54,33.376638536557273,49,42.5205832509386,3,114.10959644131601,6,6.7082039324993694,89,55.226805085936306,3,114.15778554264269,29,22.203603311174518,29,115.91807451816995,0,161.22034611053283,2,114.03946685248927,0,161.22034611053283,15,115.11733144926528,0,161.22034611053283,84,78.447434629820748,14,114.43775600735974,12,114.73883387938018,28,116.10340218959993,147,108.70602559196064,84,81.93289937503738]
[null,"$20,000 to $24,999",12,15.524174696260024,99,57.982756057296896,8,8.4852813742385695,9,11.180339887498949,248,126.0634760745554,10,9.4339811320566032,27,114.9826073804208,29,20.248456731316587,0,161.22034611053283,10,114.85643212288984,20,19.697715603592208,37,27.856776554368238,67,49.819674828324601,86,128.36276718737409,23,18.788294228055936,103,121.14866899805379,97,50.47771785649585,58,45.343136195018538,140,70.604532432415411]
[null,"$25,000 to $34,999",28,16.970562748477139,116,56.797887284651708,25,22.561028345356956,8,114.35471131527551,560,176.02556632489498,5,114.28035701729323,49,25.632011235952593,104,41.484937025383083,7,114.52947218947619,6,114.21471008587291,14,114.9826073804208,112,57.77542730261716,184,92.048900047746358,273,115.93532679903913,78,28.844410203711913,142,59.539902586416787,116,124.48293055676348,144,144.01388821915754,416,181.76083186429358]
[null,"$35,000 to $49,999",29,115.91807451816995,305,121.37956994486346,64,33.105890714493697,23,18.601075237738275,534,169.14490828872147,26,13,97,119.25183436744275,116,36.138621999185304,11,114.62983904725679,2,114.0701538527936,66,27.294688127912362,152,127.01181047445942,330,190.80094339389416,266,110.86027241532469,84,22.847319317591726,148,63.890531379853151,167,69.526973183074787,309,100.46392387319938,340,135.76818478568535]
[null,"$50,000 to $74,999",68,118.40608092492548,235,86.16263691415206,64,116.92732785794773,23,115.11733144926528,906,210.7225664232476,45,19.924858845171276,110,33.734255586865999,89,30.083217912982647,14,114.62983904725679,9,115.11733144926528,94,58.523499553598128,190,71.847059786744225,329,130.04999038831184,491,133.5440002396214,145,34.481879299133332,174,70.434366611761334,309,84.480767041972342,303,118.07201192492656,588,161.30096093948109]
[null,"$75,000 to $99,999",32,21.377558326431949,97,126.14277624977183,23,114.85643212288984,12,114.73883387938018,449,144.80331487918363,25,114.9826073804208,35,115.91807451816995,52,116.92732785794773,8,114.21471008587291,4,114.15778554264269,37,116.29703349613007,144,54.644304369257,262,102.08329931972223,263,160.51479682571323,84,28.635642126552707,122,127.45587471748802,109,50.695167422546305,367,128.89142717807107,288,164.28329190760695]
[null,"$100,000 to $149,999",27,115.7410903698423,139,59.665735560705194,36,21.587033144922902,25,115.7410903698423,200,96.005208192055917,16,114.43775600735974,20,114.9826073804208,33,116.10340218959993,12,114.28035701729323,4,114.28035701729323,58,117.881296226331,93,47.074409183759279,485,175.93180496999398,96,124.48293055676348,90,25.709920264364882,65,118.40608092492548,43,117.15374513859982,130,127.45587471748802,292,190]
[null,"$150,000 or more",25,116.29703349613007,57,119.85407794480753,6,114.28035701729323,7,114.21471008587291,255,147.75655653811103,4,114.15778554264269,5,114.21471008587291,48,117.63077828527702,5,114.0701538527936,0,161.22034611053283,37,115.91807451816995,28,117.63077828527702,261,152.97058540778355,50,124.48293055676348,32,114.9826073804208,53,33.955853692699293,44,116.70903992407786,43,38.183766184073569,213,138.69751259485514]

{"sheet":"ACS_Table_B25119","index":41,"n_rows":68,"n_cols":40,"rows_kept":68,"cut":false,"hidden":true,"merged":[[40,16,40,17],[40,18,40,19],[40,20,40,21],[40,22,40,23],[71,18,71,19],[71,20,71,21],[71,22,71,23],[77,4,77,5],[77,6,77,7],[77,8,77,9],[77,10,77,11],[77,12,77,13],[83,2,83,3],[83,4,83,5],[83,6,83,7],[83,8,83,9],[89,2,89,3],[77,18,77,19],[77,16,77,17],[77,14,77,15],[77,2,77,3],[89,10,89,11],[89,12,89,13],[89,16,89,17],[89,14,89,15],[83,10,83,11],[83,12,83,13],[83,14,83,15],[83,16,83,17],[40,4,40,5],[40,6,40,7],[40,8,40,9],[40,10,40,11],[40,12,40,13],[40,14,40,15],[46,2,46,3],[46,4,46,5],[46,6,46,7],[46,8,46,9],[46,10,46,11],[46,12,46,13],[46,14,46,15],[46,16,46,17],[46,18,46,19],[46,20,46,21],[46,22,46,23],[52,2,52,3],[52,4,52,5],[52,6,52,7],[52,8,52,9],[52,10,52,11],[52,12,52,13],[52,14,52,15],[52,16,52,17],[52,18,52,19],[52,20,52,21],[52,22,52,23],[40,2,40,3],[11,2,11,3],[11,4,11,5],[11,6,11,7],[11,8,11,9],[17,2,17,3],[17,10,17,11],[17,12,17,13],[17,16,17,17],[17,14,17,15],[11,10,11,11],[11,12,11,13],[11,14,11,15],[11,16,11,17],[17,18,17,19],[17,20,17,21],[17,22,17,23],[11,18,11,19],[11,20,11,21],[11,22,11,23],[17,4,17,5],[17,6,17,7],[17,8,17,9],[23,10,23,11],[23,12,23,13],[23,14,23,15],[23,16,23,17],[23,2,23,3],[23,4,23,5],[23,6,23,7],[23,8,23,9],[23,18,23,19],[23,20,23,21],[23,22,23,23],[101,2,101,3],[89,18,89,19],[89,20,89,21],[89,22,89,23],[83,18,83,19],[83,20,83,21],[83,22,83,23],[89,4,89,5],[89,6,89,7],[89,8,89,9],[95,10,95,11],[95,12,95,13],[95,14,95,15],[95,16,95,17],[95,2,95,3],[95,4,95,5],[95,6,95,7],[95,8,95,9],[101,4,101,5],[101,6,101,7],[101,8,101,9],[101,10,101,11],[101,12,101,13],[101,16,101,17],[101,14,101,15],[101,18,101,19],[101,20,101,21],[101,22,101,23],[95,18,95,19],[95,20,95,21],[95,22,95,23],[71,10,71,11],[71,12,71,13],[71,14,71,15],[71,16,71,17],[71,2,71,3],[71,4,71,5],[71,6,71,7],[71,8,71,9],[77,20,77,21],[77,22,77,23],[107,10,107,11],[107,12,107,13],[107,14,107,15],[107,16,107,17],[107,2,107,3],[107,4,107,5],[107,6,107,7],[107,8,107,9],[113,20,113,21],[113,22,113,23],[107,18,107,19],[107,20,107,21],[107,22,107,23],[113,4,113,5],[113,6,113,7],[113,8,113,9],[113,10,113,11],[113,12,113,13],[119,2,119,3],[119,4,119,5],[119,6,119,7],[119,8,119,9],[125,2,125,3],[113,18,113,19],[113,16,113,17],[113,14,113,15],[113,2,113,3],[125,10,125,11],[125,12,125,13],[125,16,125,17],[125,14,125,15],[119,10,119,11],[119,12,119,13],[119,14,119,15],[119,16,119,17],[137,2,137,3],[125,18,125,19],[125,20,125,21],[125,22,125,23],[119,18,119,19],[119,20,119,21],[119,22,119,23],[125,4,125,5],[125,6,125,7],[125,8,125,9],[131,10,131,11],[131,12,131,13],[131,14,131,15],[131,16,131,17],[131,2,131,3],[131,4,131,5],[131,6,131,7],[131,8,131,9],[137,4,137,5],[137,6,137,7],[137,8,137,9],[137,10,137,11],[137,12,137,13],[137,16,137,17],[137,14,137,15],[137,18,137,19],[137,20,137,21],[137,22,137,23],[131,18,131,19],[131,20,131,21],[131,22,131,23],[143,10,143,11],[143,12,143,13],[143,14,143,15],[143,16,143,17],[143,2,143,3],[143,4,143,5],[143,6,143,7],[143,8,143,9],[149,20,149,21],[149,22,149,23],[143,18,143,19],[143,20,143,21],[143,22,143,23],[149,4,149,5],[149,6,149,7],[149,8,149,9],[149,10,149,11],[149,12,149,13],[155,2,155,3],[155,4,155,5],[155,6,155,7],[155,8,155,9],[161,2,161,3],[149,18,149,19],[149,16,149,17],[149,14,149,15],[149,2,149,3],[161,10,161,11],[161,12,161,13],[161,16,161,17],[161,14,161,15],[155,10,155,11],[155,12,155,13],[155,14,155,15],[155,16,155,17],[173,2,173,3],[161,18,161,19],[161,20,161,21],[161,22,161,23],[155,18,155,19],[155,20,155,21],[155,22,155,23],[161,4,161,5],[161,6,161,7],[161,8,161,9],[167,10,167,11],[167,12,167,13],[167,14,167,15],[167,16,167,17],[167,2,167,3],[167,4,167,5],[167,6,167,7],[167,8,167,9],[173,4,173,5],[173,6,173,7],[173,8,173,9],[173,10,173,11],[173,12,173,13],[173,16,173,17],[173,14,173,15],[173,18,173,19],[173,20,173,21],[173,22,173,23],[167,18,167,19],[167,20,167,21],[167,22,167,23],[179,10,179,11],[179,12,179,13],[179,14,179,15],[179,16,179,17],[179,2,179,3],[179,4,179,5],[179,6,179,7],[179,8,179,9],[185,20,185,21],[185,22,185,23],[179,18,179,19],[179,20,179,21],[179,22,179,23],[185,4,185,5],[185,6,185,7],[185,8,185,9],[185,10,185,11],[185,12,185,13],[191,2,191,3],[191,4,191,5],[191,6,191,7],[191,8,191,9],[197,2,197,3],[185,18,185,19],[185,16,185,17],[185,14,185,15],[185,2,185,3],[197,10,197,11],[197,12,197,13],[197,16,197,17],[197,14,197,15],[191,10,191,11],[191,12,191,13],[191,14,191,15],[191,16,191,17],[209,2,209,3],[197,18,197,19],[197,20,197,21],[197,22,197,23],[191,18,191,19],[191,20,191,21],[191,22,191,23],[197,4,197,5],[197,6,197,7],[197,8,197,9],[203,10,203,11],[203,12,203,13],[203,14,203,15],[203,16,203,17],[203,2,203,3],[203,4,203,5],[203,6,203,7],[203,8,203,9],[209,4,209,5],[209,6,209,7],[209,8,209,9],[209,10,209,11],[209,12,209,13],[209,16,209,17],[209,14,209,15],[209,18,209,19],[209,20,209,21],[209,22,209,23],[203,18,203,19],[203,20,203,21],[203,22,203,23],[215,10,215,11],[215,12,215,13],[215,14,215,15],[215,16,215,17],[215,2,215,3],[215,4,215,5],[215,6,215,7],[215,8,215,9],[221,20,221,21],[221,22,221,23],[215,18,215,19],[215,20,215,21],[215,22,215,23],[221,4,221,5],[221,6,221,7],[221,8,221,9],[221,10,221,11],[221,12,221,13],[227,2,227,3],[227,4,227,5],[227,6,227,7],[227,8,227,9],[233,2,233,3],[221,18,221,19],[221,16,221,17],[221,14,221,15],[221,2,221,3],[233,10,233,11],[233,12,233,13],[233,16,233,17],[233,14,233,15],[227,10,227,11],[227,12,227,13],[227,14,227,15],[227,16,227,17],[245,2,245,3],[233,18,233,19],[233,20,233,21],[233,22,233,23],[227,18,227,19],[227,20,227,21],[227,22,227,23],[233,4,233,5],[233,6,233,7],[233,8,233,9],[239,10,239,11],[239,12,239,13],[239,14,239,15],[239,16,239,17],[239,2,239,3],[239,4,239,5],[239,6,239,7],[239,8,239,9],[245,4,245,5],[245,6,245,7],[245,8,245,9],[245,10,245,11],[245,12,245,13],[245,16,245,17],[245,14,245,15],[245,18,245,19],[245,20,245,21],[245,22,245,23],[239,18,239,19],[239,20,239,21],[239,22,239,23],[251,10,251,11],[251,12,251,13],[251,14,251,15],[251,16,251,17],[251,2,251,3],[251,4,251,5],[251,6,251,7],[251,8,251,9],[257,20,257,21],[257,22,257,23],[251,18,251,19],[251,20,251,21],[251,22,251,23],[257,4,257,5],[257,6,257,7],[257,8,257,9],[257,10,257,11],[257,12,257,13],[263,2,263,3],[263,4,263,5],[263,6,263,7],[263,8,263,9],[269,2,269,3],[257,18,257,19],[257,16,257,17],[257,14,257,15],[257,2,257,3],[269,10,269,11],[269,12,269,13],[269,16,269,17],[269,14,269,15],[263,10,263,11],[263,12,263,13],[263,14,263,15],[263,16,263,17],[281,2,281,3],[269,18,269,19],[269,20,269,21],[269,22,269,23],[263,18,263,19],[263,20,263,21],[263,22,263,23],[269,4,269,5],[269,6,269,7],[269,8,269,9],[275,10,275,11],[275,12,275,13],[275,14,275,15],[275,16,275,17],[275,2,275,3],[275,4,275,5],[275,6,275,7],[275,8,275,9],[281,4,281,5],[281,6,281,7],[281,8,281,9],[281,10,281,11],[281,12,281,13],[281,16,281,17],[281,14,281,15],[281,18,281,19],[281,20,281,21],[281,22,281,23],[275,18,275,19],[275,20,275,21],[275,22,275,23],[287,10,287,11],[287,12,287,13],[287,14,287,15],[287,16,287,17],[287,2,287,3],[287,4,287,5],[287,6,287,7],[287,8,287,9],[293,20,293,21],[293,22,293,23],[287,18,287,19],[287,20,287,21],[287,22,287,23],[293,4,293,5],[293,6,293,7],[293,8,293,9],[293,10,293,11],[293,12,293,13],[299,2,299,3],[299,4,299,5],[299,6,299,7],[299,8,299,9],[305,2,305,3],[293,18,293,19],[293,16,293,17],[293,14,293,15],[293,2,293,3],[305,10,305,11],[305,12,305,13],[305,16,305,17],[305,14,305,15],[299,10,299,11],[299,12,299,13],[299,14,299,15],[299,16,299,17],[317,2,317,3],[305,18,305,19],[305,20,305,21],[305,22,305,23],[299,18,299,19],[299,20,299,21],[299,22,299,23],[305,4,305,5],[305,6,305,7],[305,8,305,9],[311,10,311,11],[311,12,311,13],[311,14,311,15],[311,16,311,17],[311,2,311,3],[311,4,311,5],[311,6,311,7],[311,8,311,9],[317,4,317,5],[317,6,317,7],[317,8,317,9],[317,10,317,11],[317,12,317,13],[317,16,317,17],[317,14,317,15],[317,18,317,19],[317,20,317,21],[317,22,317,23],[311,18,311,19],[311,20,311,21],[311,22,311,23],[323,10,323,11],[323,12,323,13],[323,14,323,15],[323,16,323,17],[323,2,323,3],[323,4,323,5],[323,6,323,7],[323,8,323,9],[329,20,329,21],[329,22,329,23],[323,18,323,19],[323,20,323,21],[323,22,323,23],[329,4,329,5],[329,6,329,7],[329,8,329,9],[329,10,329,11],[329,12,329,13],[335,2,335,3],[335,4,335,5],[335,6,335,7],[335,8,335,9],[341,2,341,3],[329,18,329,19],[329,16,329,17],[329,14,329,15],[329,2,329,3],[341,10,341,11],[341,12,341,13],[341,16,341,17],[341,14,341,15],[335,10,335,11],[335,12,335,13],[335,14,335,15],[335,16,335,17],[353,2,353,3],[341,18,341,19],[341,20,341,21],[341,22,341,23],[335,18,335,19],[335,20,335,21],[335,22,335,23],[341,4,341,5],[341,6,341,7],[341,8,341,9],[347,10,347,11],[347,12,347,13],[347,14,347,15],[347,16,347,17],[347,2,347,3],[347,4,347,5],[347,6,347,7],[347,8,347,9],[353,4,353,5],[353,6,353,7],[353,8,353,9],[353,10,353,11],[353,12,353,13],[353,16,353,17],[353,14,353,15],[353,18,353,19],[353,20,353,21],[353,22,353,23],[347,18,347,19],[347,20,347,21],[347,22,347,23],[359,10,359,11],[359,12,359,13],[359,14,359,15],[359,16,359,17],[359,2,359,3],[359,4,359,5],[359,6,359,7],[359,8,359,9],[365,20,365,21],[365,22,365,23],[359,18,359,19],[359,20,359,21],[359,22,359,23],[365,4,365,5],[365,6,365,7],[365,8,365,9],[365,10,365,11],[365,12,365,13],[371,2,371,3],[371,4,371,5],[371,6,371,7],[371,8,371,9],[377,2,377,3],[365,18,365,19],[365,16,365,17],[365,14,365,15],[365,2,365,3],[377,10,377,11],[377,12,377,13],[377,16,377,17],[377,14,377,15],[371,10,371,11],[371,12,371,13],[371,14,371,15],[371,16,371,17],[389,2,389,3],[377,18,377,19],[377,20,377,21],[377,22,377,23],[371,18,371,19],[371,20,371,21],[371,22,371,23],[377,4,377,5],[377,6,377,7],[377,8,377,9],[383,10,383,11],[383,12,383,13],[383,14,383,15],[383,16,383,17],[383,2,383,3],[383,4,383,5],[383,6,383,7],[383,8,383,9],[389,4,389,5],[389,6,389,7],[389,8,389,9],[389,10,389,11],[389,12,389,13],[389,16,389,17],[389,14,389,15],[389,18,389,19],[389,20,389,21],[389,22,389,23],[383,18,383,19],[383,20,383,21],[383,22,383,23],[395,10,395,11],[395,12,395,13],[395,14,395,15],[395,16,395,17],[395,2,395,3],[395,4,395,5],[395,6,395,7],[395,8,395,9],[401,20,401,21],[401,22,401,23],[395,18,395,19],[395,20,395,21],[395,22,395,23],[401,4,401,5],[401,6,401,7],[401,8,401,9],[401,10,401,11],[401,12,401,13],[407,2,407,3],[407,4,407,5],[407,6,407,7],[407,8,407,9],[413,2,413,3],[401,18,401,19],[401,16,401,17],[401,14,401,15],[401,2,401,3],[413,10,413,11],[413,12,413,13],[413,16,413,17],[413,14,413,15],[407,10,407,11],[407,12,407,13],[407,14,407,15],[407,16,407,17],[425,2,425,3],[413,18,413,19],[413,20,413,21],[413,22,413,23],[407,18,407,19],[407,20,407,21],[407,22,407,23],[413,4,413,5],[413,6,413,7],[413,8,413,9],[419,10,419,11],[419,12,419,13],[419,14,419,15],[419,16,419,17],[419,2,419,3],[419,4,419,5],[419,6,419,7],[419,8,419,9],[425,4,425,5],[425,6,425,7],[425,8,425,9],[425,10,425,11],[425,12,425,13],[425,16,425,17],[425,14,425,15],[425,18,425,19],[425,20,425,21],[425,22,425,23],[419,18,419,19],[419,20,419,21],[419,22,419,23],[431,10,431,11],[431,12,431,13],[431,14,431,15],[431,16,431,17],[431,2,431,3],[431,4,431,5],[431,6,431,7],[431,8,431,9],[437,20,437,21],[437,22,437,23],[431,18,431,19],[431,20,431,21],[431,22,431,23],[437,4,437,5],[437,6,437,7],[437,8,437,9],[437,10,437,11],[437,12,437,13],[443,2,443,3],[443,4,443,5],[443,6,443,7],[443,8,443,9],[449,2,449,3],[437,18,437,19],[437,16,437,17],[437,14,437,15],[437,2,437,3],[449,10,449,11],[449,12,449,13],[449,16,449,17],[449,14,449,15],[443,10,443,11],[443,12,443,13],[443,14,443,15],[443,16,443,17],[461,2,461,3],[449,18,449,19],[449,20,449,21],[449,22,449,23],[443,18,443,19],[443,20,443,21],[443,22,443,23],[449,4,449,5],[449,6,449,7],[449,8,449,9],[455,10,455,11],[455,12,455,13],[455,14,455,15],[455,16,455,17],[455,2,455,3],[455,4,455,5],[455,6,455,7],[455,8,455,9],[461,4,461,5],[461,6,461,7],[461,8,461,9],[461,10,461,11],[461,12,461,13],[461,16,461,17],[461,14,461,15],[461,18,461,19],[461,20,461,21],[461,22,461,23],[455,18,455,19],[455,20,455,21],[455,22,455,23],[467,10,467,11],[467,12,467,13],[467,14,467,15],[467,16,467,17],[467,2,467,3],[467,4,467,5],[467,6,467,7],[467,8,467,9],[473,20,473,21],[473,22,473,23],[467,18,467,19],[467,20,467,21],[467,22,467,23],[473,4,473,5],[473,6,473,7],[473,8,473,9],[473,10,473,11],[473,12,473,13],[479,2,479,3],[479,4,479,5],[479,6,479,7],[479,8,479,9],[485,2,485,3],[473,18,473,19],[473,16,473,17],[473,14,473,15],[473,2,473,3],[485,10,485,11],[485,12,485,13],[485,16,485,17],[485,14,485,15],[479,10,479,11],[479,12,479,13],[479,14,479,15],[479,16,479,17],[497,2,497,3],[485,18,485,19],[485,20,485,21],[485,22,485,23],[479,18,479,19],[479,20,479,21],[479,22,479,23],[485,4,485,5],[485,6,485,7],[485,8,485,9],[491,10,491,11],[491,12,491,13],[491,14,491,15],[491,16,491,17],[491,2,491,3],[491,4,491,5],[491,6,491,7],[491,8,491,9],[497,4,497,5],[497,6,497,7],[497,8,497,9],[497,10,497,11],[497,12,497,13],[497,16,497,17],[497,14,497,15],[497,18,497,19],[497,20,497,21],[497,22,497,23],[491,18,491,19],[491,20,491,21],[491,22,491,23],[503,10,503,11],[503,12,503,13],[503,14,503,15],[503,16,503,17],[503,2,503,3],[503,4,503,5],[503,6,503,7],[503,8,503,9],[509,20,509,21],[509,22,509,23],[503,18,503,19],[503,20,503,21],[503,22,503,23],[509,4,509,5],[509,6,509,7],[509,8,509,9],[509,10,509,11],[509,12,509,13],[515,2,515,3],[515,4,515,5],[515,6,515,7],[515,8,515,9],[521,2,521,3],[509,18,509,19],[509,16,509,17],[509,14,509,15],[509,2,509,3],[521,10,521,11],[521,12,521,13],[521,16,521,17],[521,14,521,15],[515,10,515,11],[515,12,515,13],[515,14,515,15],[515,16,515,17],[533,2,533,3],[521,18,521,19],[521,20,521,21],[521,22,521,23],[515,18,515,19],[515,20,515,21],[515,22,515,23],[521,4,521,5],[521,6,521,7],[521,8,521,9],[527,10,527,11],[527,12,527,13],[527,14,527,15],[527,16,527,17],[527,2,527,3],[527,4,527,5],[527,6,527,7],[527,8,527,9],[533,4,533,5],[533,6,533,7],[533,8,533,9],[533,10,533,11],[533,12,533,13],[533,16,533,17],[533,14,533,15],[533,18,533,19],[533,20,533,21],[533,22,533,23],[527,18,527,19],[527,20,527,21],[527,22,527,23],[539,10,539,11],[539,12,539,13],[539,14,539,15],[539,16,539,17],[539,2,539,3],[539,4,539,5],[539,6,539,7],[539,8,539,9],[545,20,545,21],[545,22,545,23],[539,18,539,19],[539,20,539,21],[539,22,539,23],[545,4,545,5],[545,6,545,7],[545,8,545,9],[545,10,545,11],[545,12,545,13],[551,2,551,3],[551,4,551,5],[551,6,551,7],[551,8,551,9],[557,2,557,3],[545,18,545,19],[545,16,545,17],[545,14,545,15],[545,2,545,3],[557,10,557,11],[557,12,557,13],[557,16,557,17],[557,14,557,15],[551,10,551,11],[551,12,551,13],[551,14,551,15],[551,16,551,17],[569,2,569,3],[557,18,557,19],[557,20,557,21],[557,22,557,23],[551,18,551,19],[551,20,551,21],[551,22,551,23],[557,4,557,5],[557,6,557,7],[557,8,557,9],[563,10,563,11],[563,12,563,13],[563,14,563,15],[563,16,563,17],[563,2,563,3],[563,4,563,5],[563,6,563,7],[563,8,563,9],[569,4,569,5],[569,6,569,7],[569,8,569,9],[569,10,569,11],[569,12,569,13],[569,16,569,17],[569,14,569,15],[569,18,569,19],[569,20,569,21],[569,22,569,23],[563,18,563,19],[563,20,563,21],[563,22,563,23],[575,10,575,11],[575,12,575,13],[575,14,575,15],[575,16,575,17],[575,2,575,3],[575,4,575,5],[575,6,575,7],[575,8,575,9],[581,20,581,21],[581,22,581,23]],"merged_total":89628,"flags":["merged_cut"]}
[null,"B25119. MEDIAN HOUSEHOLD INCOME THE PAST 12 MONTHS (IN 2019 INFLATION-ADJUSTED DOLLARS) BY TENURE"]
[null," Universe:  OCCUPIED HOUSING UNITS"]
[null,"Data Set: 2015-2019 American Community Survey 5-Year Estimates"]
[]
[null,null,"Albany",null,"Bartlett",null,"Brookfield",null,"Chatham",null,"Conway",null,"Eaton",null,"Effingham",null,"Freedom",null,"Hale's Location",null,"Hart's Location",null,"Jackson",null,"Madison",null,"Moultonborough",null,"Ossipee",null,"Sandwich",null,"Tamworth",null,"Tuftonboro",null,"Wakefield",null,"Wolfeboro"]
[null," ","Estimate","Margin of Error","Estimate","Margin of Error","Estimate","Margin of Error","Estimate","Margin of Error","Estimate","Margin of Error","Estimate","Margin of Error","Estimate","Margin of Error","Estimate","Margin of Error","Estimate","Margin of Error","Estimate","Margin of Error","Estimate","Margin of Error","Estimate","Margin of Error","Estimate","Margin of Error","Estimate","Margin of Error","Estimate","Margin of Error","Estimate","Margin of Error","Estimate","Margin of Error","Estimate","Margin of Error","Estimate","Margin of Error"]
[null,"Median household income in the past 12 months"]
[null,"Total:",59821,12952,54688,12928,93523,12912,66932,10083,62198,6134,65156,11902,70000,8985,70096,11249,91250,28364,"-","**",66339,6683,74209,8642,69978,9017,46859,5193,80739,12344,51354,32276,65114,8974,69185,7970,60703,18726]
[null,"Owner occupied (dollars)",67500,15929,63636,26828,95179,17376,69375,12789,75213,11208,73000,21026,76786,8820,66979,14323,91250,28364,"-","**",91667,43229,77550,7459,75273,8958,53022,9339,83482,6875,64238,7800,67273,10523,72176,6705,79269,22604]
[null,"Renter occupied (dollars)",34583,15766,42188,22772,"-","**","-","**",44333,21643,60208,45622,"-","**",97692,62998,"-","**","-","**",42069,11916,59453,30239,44500,22037,26036,5650,51136,6063,29313,4585,63516,38808,45455,12333,28313,12427]
[]
[]
[]
[]
[]
[]
[]
[]
[]
[]
[]
[]
[]
[]
[]
[]
[]
[]
[]
[null,"B25119. MEDIAN HOUSEHOLD INCOME THE PAST 12 MONTHS (IN 2014 INFLATION-ADJUSTED DOLLARS) BY TENURE"]
[null," Universe:  OCCUPIED HOUSING UNITS"]
[null,"Data Set: 2010-2014 American Community Survey 5-Year Estimates"]
[]
[null,null,"Albany",null,"Bartlett",null,"Brookfield",null,"Chatham",null,"Conway",null,"Eaton",null,"Effingham",null,"Freedom",null,"Hale's Location",null,"Hart's Location",null,"Jackson",null,"Madison",null,"Moultonborough",null,"Ossipee",null,"Sandwich",null,"Tamworth",null,"Tuftonboro",null,"Wakefield",null,"Wolfeboro"]
[null," ","Estimate","Margin of Error","Estimate","Margin of Error","Estimate","Margin of Error","Estimate","Margin of Error","Estimate","Margin of Error","Estimate","Margin of Error","Estimate","Margin of Error","Estimate","Margin of Error","Estimate","Margin of Error","Estimate","Margin of Error","Estimate","Margin of Error","Estimate","Margin of Error","Estimate","Margin of Error","Estimate","Margin of Error","Estimate","Margin of Error","Estimate","Margin of Error","Estimate","Margin of Error","Estimate","Margin of Error","Estimate","Margin of Error"]
[null,"Median household income in the past 12 months"]
[null,"Total:",62083,20850,48250,11225,65313,10094,52083,6860,46695,4993,66875,16925,44779,6900,48472,8446,58750,24291,53750,38243,77188,13625,53284,4100,76711,7236,45649,6651,58281,10072,48686,6539,60855,7872,44794,4904,62200,15580]
[null,"Owner occupied (dollars)",60625,22131,49665,13352,64844,10001,51667,20486,60801,5755,66250,12235,50893,13672,52941,5955,58750,24291,68750,74001,80795,28997,55305,4974,79508,8371,49777,8759,65446,11742,53425,7003,64309,8681,48822,8744,70387,7819]
[null,"Renter occupied (dollars)",73125,35052,24815,46185,"-","**",52679,60139,33536,3755,107500,91007,27115,6836,34500,7001,"-","**",44643,49785,42159,50236,47716,10824,56875,20896,25099,16591,47500,16977,25164,29533,32833,14672,29668,8002,34662,23893]
[]
[]
[]
[]
[]
[]
[]
[]
[]
[]
[]
[]
[]
[]
[]
[]
[]
[]
[]
[null,"B25119. MEDIAN HOUSEHOLD INCOME THE PAST 12 MONTHS (IN 2009 INFLATION-ADJUSTED DOLLARS) BY TENURE"]
[null," Universe:  OCCUPIED HOUSING UNITS"]
[null,"Data Set: 2005-2009 American Community Survey 5-Year Estimates"]
[]
[null,null,"Albany",null,"Bartlett",null,"Brookfield",null,"Chatham",null,"Conway",null,"Eaton",null,"Effingham",null,"Freedom",null,"Hale's Location",null,"Hart's Location",null,"Jackson",null,"Madison",null,"Moultonborough",null,"Ossipee",null,"Sandwich",null,"Tamworth",null,"Tuftonboro",null,"Wakefield",null,"Wolfeboro"]
[null," ","Estimate","Margin of Error","Estimate","Margin of Error","Estimate","Margin of Error","Estimate","Margin of Error","Estimate","Margin of Error","Estimate","Margin of Error","Estimate","Margin of Error","Estimate","Margin of Error","Estimate","Margin of Error","Estimate","Margin of Error","Estimate","Margin of Error","Estimate","Margin of Error","Estimate","Margin of Error","Estimate","Margin of Error","Estimate","Margin of Error","Estimate","Margin of Error","Estimate","Margin of Error","Estimate","Margin of Error","Estimate","Margin of Error"]
[null,"Median household income in the past 12 months"]
[null,"Total:",50000,15079,46250,5351,48750,13817,62500,18349,48288,6553,56563,12033,44837,6256,43393,7482,58393,25397,38125,57874,69625,13915,53088,6241,75813,13889,48688,8659,60227,5893,41164,6768,52355,4919,47686,8996,49470,15745]
[null,"Owner occupied (dollars)",52063,5990,51613,8362,52500,15690,71875,17297,54381,7337,61250,14477,48086,4779,45243,5762,58393,25397,63472,29873,73323,11994,52647,9041,78015,17677,52424,4909,63750,8657,45644,7453,53670,8276,48711,15761,63349,4840]
[null,"Renter occupied (dollars)",22917,12705,34766,16086,40625,17691,23958,38853,28563,6746,22083,40897,18500,2774,25694,10375,"**","**","**","**",48125,26079,55455,38410,70156,51363,25882,9571,32083,13036,30556,21256,47550,19580,37857,25375,15423,5499]

{"sheet":"ACS_Table_B25001","index":42,"n_rows":29,"n_cols":40,"rows_kept":29,"cut":false,"hidden":true,"merged":[]}
[null,"B25001. HOUSING UNITS"]
[null,"Universe:  HOUSING UNITS"]
[null,"Data Set: 2015-2019 American Community Survey 5-Year Estimates"]
[]
[null,null,"Albany",null,"Bartlett",null,"Brookfield",null,"Chatham",null,"Conway",null,"Eaton",null,"Effingham",null,"Freedom",null,"Hale's Location",null,"Hart's Location",null,"Jackson",null,"Madison",null,"Moultonborough",null,"Ossipee",null,"Sandwich",null,"Tamworth",null,"Tuftonboro",null,"Wakefield",null,"Wolfeboro"]
[null," ","Estimate","Margin of Error","Estimate","Margin of Error","Estimate","Margin of Error","Estimate","Margin of Error","Estimate","Margin of Error","Estimate","Margin of Error","Estimate","Margin of Error","Estimate","Margin of Error","Estimate","Margin of Error","Estimate","Margin of Error","Estimate","Margin of Error","Estimate","Margin of Error","Estimate","Margin of Error","Estimate","Margin of Error","Estimate","Margin of Error","Estimate","Margin of Error","Estimate","Margin of Error","Estimate","Margin of Error","Estimate","Margin of Error"]
[null,"Total",542,74,4491,255,391,61,254,58,7078,368,248,51,913,99,1910,119,97,22,64,22,1055,123,1973,124,4870,207,3168,201,1049,120,2003,242,2445,96,3771,208,4846,245]
[]
[]
[]
[]
[null,"B25001. HOUSING UNITS"]
[null,"Universe:  HOUSING UNITS"]
[null,"Data Set: 2010-2014 American Community Survey 5-Year Estimates"]
[]
[null,null,"Albany",null,"Bartlett",null,"Brookfield",null,"Chatham",null,"Conway",null,"Eaton",null,"Effingham",null,"Freedom",null,"Hale's Location",null,"Hart's Location",null,"Jackson",null,"Madison",null,"Moultonborough",null,"Ossipee",null,"Sandwich",null,"Tamworth",null,"Tuftonboro",null,"Wakefield",null,"Wolfeboro"]
[null," ","Estimate","Margin of Error","Estimate","Margin of Error","Estimate","Margin of Error","Estimate","Margin of Error","Estimate","Margin of Error","Estimate","Margin of Error","Estimate","Margin of Error","Estimate","Margin of Error","Estimate","Margin of Error","Estimate","Margin of Error","Estimate","Margin of Error","Estimate","Margin of Error","Estimate","Margin of Error","Estimate","Margin of Error","Estimate","Margin of Error","Estimate","Margin of Error","Estimate","Margin of Error","Estimate","Margin of Error","Estimate","Margin of Error"]
[null,"Total",557,74,4325,252,361,69,257,41,6429,304,284,41,982,87,1740,84,102,25,53,19,998,113,2020,124,4922,197,2992,261,1001,99,2227,193,2343,93,3963,274,4453,301]
[]
[]
[]
[]
[null,"B25001. HOUSING UNITS"]
[null,"Universe:  HOUSING UNITS"]
[null,"Data Set: 2005-2009 American Community Survey 5-Year Estimates"]
[]
[null,null,"Albany",null,"Bartlett",null,"Brookfield",null,"Chatham",null,"Conway",null,"Eaton",null,"Effingham",null,"Freedom",null,"Hale's Location",null,"Hart's Location",null,"Jackson",null,"Madison",null,"Moultonborough",null,"Ossipee",null,"Sandwich",null,"Tamworth",null,"Tuftonboro",null,"Wakefield",null,"Wolfeboro"]
[null," ","Estimate","Margin of Error","Estimate","Margin of Error","Estimate","Margin of Error","Estimate","Margin of Error","Estimate","Margin of Error","Estimate","Margin of Error","Estimate","Margin of Error","Estimate","Margin of Error","Estimate","Margin of Error","Estimate","Margin of Error","Estimate","Margin of Error","Estimate","Margin of Error","Estimate","Margin of Error","Estimate","Margin of Error","Estimate","Margin of Error","Estimate","Margin of Error","Estimate","Margin of Error","Estimate","Margin of Error","Estimate","Margin of Error"]
[null,"Total",573,67,3945,209,284,56,284,59,6069,371,225,35,761,77,1629,84,95,28,106,53,892,83,1747,68,5364,191,3328,241,1038,83,1661,113,2172,68,3860,240,4283,232]

{"sheet":"ACS_Table_B25003","index":43,"n_rows":42,"n_cols":40,"rows_kept":42,"cut":false,"hidden":true,"merged":[]}
[null,"B25003. TENURE"]
[null,"Universe:  OCCUPIED HOUSING UNITS"]
[null,"Data Set: 2015-2019 American Community Survey 5-Year Estimates"]
[]
[null,null,"Albany",null,"Bartlett",null,"Brookfield",null,"Chatham",null,"Conway",null,"Eaton",null,"Effingham",null,"Freedom",null,"Hale's Location",null,"Hart's Location",null,"Jackson",null,"Madison",null,"Moultonborough",null,"Ossipee",null,"Sandwich",null,"Tamworth",null,"Tuftonboro",null,"Wakefield",null,"Wolfeboro"]
[null," ","Estimate","Margin of Error","Estimate","Margin of Error","Estimate","Margin of Error","Estimate","Margin of Error","Estimate","Margin of Error","Estimate","Margin of Error","Estimate","Margin of Error","Estimate","Margin of Error","Estimate","Margin of Error","Estimate","Margin of Error","Estimate","Margin of Error","Estimate","Margin of Error","Estimate","Margin of Error","Estimate","Margin of Error","Estimate","Margin of Error","Estimate","Margin of Error","Estimate","Margin of Error","Estimate","Margin of Error","Estimate","Margin of Error"]
[null,"Total:",307,58,1466,162,303,63,143,41,4632,241,135,39,594,82,611,81,89,20,24,16,416,88,977,94,1765,118,2011,164,643,81,1300,147,923,104,2117,185,3000,206]
[null,"Owner occupied",272,56,1074,213,289,64,132,37,3114,295,102,29,488,72,577,79,89,20,19,14,318,79,792,107,1531,124,1540,176,561,77,939,148,858,101,1901,196,2429,221]
[null,"Renter occupied",35,17,392,159,14,18,11,14,1518,311,33,22,106,45,34,26,0,11,5,8,98,49,185,59,234,86,471,121,82,37,361,135,65,38,216,113,571,210]
[]
[]
[]
[]
[]
[]
[]
[]
[]
[]
[]
[]
[null,"B25003. TENURE"]
[null,"Universe:  OCCUPIED HOUSING UNITS"]
[null,"Data Set: 2010-2014 American Community Survey 5-Year Estimates"]
[]
[null,null,"Albany",null,"Bartlett",null,"Brookfield",null,"Chatham",null,"Conway",null,"Eaton",null,"Effingham",null,"Freedom",null,"Hale's Location",null,"Hart's Location",null,"Jackson",null,"Madison",null,"Moultonborough",null,"Ossipee",null,"Sandwich",null,"Tamworth",null,"Tuftonboro",null,"Wakefield",null,"Wolfeboro"]
[null," ","Estimate","Margin of Error","Estimate","Margin of Error","Estimate","Margin of Error","Estimate","Margin of Error","Estimate","Margin of Error","Estimate","Margin of Error","Estimate","Margin of Error","Estimate","Margin of Error","Estimate","Margin of Error","Estimate","Margin of Error","Estimate","Margin of Error","Estimate","Margin of Error","Estimate","Margin of Error","Estimate","Margin of Error","Estimate","Margin of Error","Estimate","Margin of Error","Estimate","Margin of Error","Estimate","Margin of Error","Estimate","Margin of Error"]
[null,"Total:",308,53,1567,184,298,64,161,35,4365,233,176,33,553,70,532,66,67,21,26,14,444,91,1133,93,1762,94,1761,183,645,87,1512,148,975,121,2260,207,2734,204]
[null,"Owner occupied",263,55,1155,180,289,62,134,33,2966,278,146,28,461,57,442,59,67,21,10,10,363,79,980,103,1591,121,1484,205,501,63,1047,156,805,107,2019,238,2214,217]
[null,"Renter occupied",45,20,412,210,9,11,27,14,1399,271,30,20,92,45,90,39,0,11,16,12,81,45,153,66,171,69,277,101,144,64,465,160,170,73,241,136,520,181]
[]
[]
[]
[null,"B25003. TENURE"]
[null,"Universe:  OCCUPIED HOUSING UNITS"]
[null,"Data Set: 2005-2009 American Community Survey 5-Year Estimates"]
[]
[null,null,"Albany",null,"Bartlett",null,"Brookfield",null,"Chatham",null,"Conway",null,"Eaton",null,"Effingham",null,"Freedom",null,"Hale's Location",null,"Hart's Location",null,"Jackson",null,"Madison",null,"Moultonborough",null,"Ossipee",null,"Sandwich",null,"Tamworth",null,"Tuftonboro",null,"Wakefield",null,"Wolfeboro"]
[null," ","Estimate","Margin of Error","Estimate","Margin of Error","Estimate","Margin of Error","Estimate","Margin of Error","Estimate","Margin of Error","Estimate","Margin of Error","Estimate","Margin of Error","Estimate","Margin of Error","Estimate","Margin of Error","Estimate","Margin of Error","Estimate","Margin of Error","Estimate","Margin of Error","Estimate","Margin of Error","Estimate","Margin of Error","Estimate","Margin of Error","Estimate","Margin of Error","Estimate","Margin of Error","Estimate","Margin of Error","Estimate","Margin of Error"]
[null,"Total:",304,67,1203,117,258,52,118,37,3783,258,151,31,423,63,552,70,59,20,37,21,361,77,830,90,2003,119,1842,183,598,61,1021,117,929,115,1773,198,2790,210]
[null,"Owner occupied",267,68,902,129,240,51,103,33,2411,216,138,30,381,61,515,68,59,20,27,20,319,77,682,84,1884,129,1568,190,525,54,827,110,850,105,1567,212,2108,210]
[null,"Renter occupied",37,23,301,108,18,18,15,16,1372,247,13,9,42,23,37,23,0,114,10,14,42,25,148,61,119,71,274,113,73,29,194,71,79,55,206,95,682,209]

{"sheet":"ACS_Table_B25004","index":44,"n_rows":56,"n_cols":40,"rows_kept":56,"cut":false,"hidden":true,"merged":[]}
[null,"B25004. VACANCY STATUS"]
[null,"Universe:  VACANT HOUSING UNITS"]
[null,"Data Set: 2015-2019 American Community Survey 5-Year Estimates"]
[]
[null,null,"Albany",null,"Bartlett",null,"Brookfield",null,"Chatham",null,"Conway",null,"Eaton",null,"Effingham",null,"Freedom",null,"Hale's Location",null,"Hart's Location",null,"Jackson",null,"Madison",null,"Moultonborough",null,"Ossipee",null,"Sandwich",null,"Tamworth",null,"Tuftonboro",null,"Wakefield",null,"Wolfeboro"]
[null," ","Estimate","Margin of Error","Estimate","Margin of Error","Estimate","Margin of Error","Estimate","Margin of Error","Estimate","Margin of Error","Estimate","Margin of Error","Estimate","Margin of Error","Estimate","Margin of Error","Estimate","Margin of Error","Estimate","Margin of Error","Estimate","Margin of Error","Estimate","Margin of Error","Estimate","Margin of Error","Estimate","Margin of Error","Estimate","Margin of Error","Estimate","Margin of Error","Estimate","Margin of Error","Estimate","Margin of Error","Estimate","Margin of Error"]
[null,"Total:",235,53,3025,187,88,36,111,42,2446,340,113,38,319,59,1299,115,8,8,40,18,639,102,996,88,3105,205,1157,190,406,81,703,206,1522,106,1654,248,1846,250]
[null,"For rent",0,11,47,53,5,10,0,11,0,18,0,11,8,14,0,11,0,11,0,11,0,11,11,16,34,47,0,11,0,11,0,11,18,27,0,16,40,65]
[null,"Rented, not occupied",0,11,0,11,0,11,0,11,0,18,0,11,8,12,0,11,0,11,0,11,0,11,0,11,0,11,0,11,0,11,0,11,0,11,0,16,39,64]
[null,"For sale only",12,13,99,86,12,14,0,11,10,15,4,7,2,3,22,22,2,3,0,11,16,20,28,28,27,43,66,68,26,25,0,11,0,11,0,16,95,92]
[null,"Sold, not occupied",5,9,0,11,16,18,0,11,0,18,4,6,0,11,0,11,0,11,0,11,0,11,0,11,0,11,0,11,0,11,0,11,0,11,22,35,0,16]
[null,"For seasonal, recreational, or occasional use",199,50,2843,189,43,23,105,42,2194,348,91,32,263,53,1256,110,6,8,32,16,581,97,911,94,2947,219,1002,198,371,81,703,206,1440,113,1480,245,1445,249]
[null,"For migrant workers",0,11,0,11,0,11,0,11,26,38,0,11,0,11,0,11,0,11,0,11,0,11,0,11,0,11,0,11,0,11,0,11,0,11,0,16,0,16]
[null,"Other vacant",19,17,36,42,12,15,6,10,216,128,14,13,38,25,21,21,0,11,8,11,42,38,46,37,97,78,89,72,9,14,0,11,64,40,152,110,227,160]
[]
[]
[]
[]
[]
[]
[]
[null,"B25004. VACANCY STATUS"]
[null,"Universe:  VACANT HOUSING UNITS"]
[null,"Data Set: 2010-2014 American Community Survey 5-Year Estimates"]
[]
[null,null,"Albany",null,"Bartlett",null,"Brookfield",null,"Chatham",null,"Conway",null,"Eaton",null,"Effingham",null,"Freedom",null,"Hale's Location",null,"Hart's Location",null,"Jackson",null,"Madison",null,"Moultonborough",null,"Ossipee",null,"Sandwich",null,"Tamworth",null,"Tuftonboro",null,"Wakefield",null,"Wolfeboro"]
[null," ","Estimate","Margin of Error","Estimate","Margin of Error","Estimate","Margin of Error","Estimate","Margin of Error","Estimate","Margin of Error","Estimate","Margin of Error","Estimate","Margin of Error","Estimate","Margin of Error","Estimate","Margin of Error","Estimate","Margin of Error","Estimate","Margin of Error","Estimate","Margin of Error","Estimate","Margin of Error","Estimate","Margin of Error","Estimate","Margin of Error","Estimate","Margin of Error","Estimate","Margin of Error","Estimate","Margin of Error","Estimate","Margin of Error"]
[null,"Total:",249,51,2758,227,63,32,96,27,2064,343,108,32,429,69,1208,90,35,19,27,17,554,90,887,96,3160,189,1231,182,356,64,715,150,1368,110,1703,273,1719,266]
[null,"For rent",3,4,0,11,0,11,0,11,26,40,0,11,0,11,0,11,0,11,0,11,10,16,0,11,11,18,25,38,0,11,0,11,0,11,0,15,71,73]
[null,"Rented, not occupied",0,11,0,11,0,11,0,11,0,17,0,11,17,18,0,11,0,11,0,11,0,11,0,11,0,11,0,11,0,11,15,22,0,11,0,15,76,84]
[null,"For sale only",6,9,25,39,7,12,2,4,121,89,1,3,10,15,39,29,2,3,0,11,18,20,44,41,0,11,62,42,19,21,36,56,46,43,55,90,36,59]
[null,"Sold, not occupied",0,11,0,11,0,11,0,11,0,17,0,11,0,11,0,11,0,11,0,11,0,11,0,11,0,11,57,66,0,11,38,61,0,11,0,15,0,15]
[null,"For seasonal, recreational, or occasional use",213,48,2344,228,44,25,81,23,1609,317,96,33,339,63,1140,93,33,19,25,17,513,91,792,100,2994,203,944,190,300,60,489,150,1239,119,1572,269,1328,259]
[null,"For migrant workers",0,11,0,11,0,11,0,11,0,17,0,11,0,11,0,11,0,11,0,11,0,11,0,11,0,11,0,11,4,8,0,11,0,11,0,15,0,15]
[null,"Other vacant",27,22,389,130,12,15,13,12,308,171,11,12,63,35,29,24,0,11,2,3,13,15,51,40,155,102,143,105,33,27,137,108,83,46,76,88,208,128]
[]
[]
[]
[]
[]
[]
[]
[null,"B25004. VACANCY STATUS"]
[null,"Universe:  VACANT HOUSING UNITS"]
[null,"Data Set: 2005-2009 American Community Survey 5-Year Estimates"]
[]
[null,null,"Albany",null,"Bartlett",null,"Brookfield",null,"Chatham",null,"Conway",null,"Eaton",null,"Effingham",null,"Freedom",null,"Hale's Location",null,"Hart's Location",null,"Jackson",null,"Madison",null,"Moultonborough",null,"Ossipee",null,"Sandwich",null,"Tamworth",null,"Tuftonboro",null,"Wakefield",null,"Wolfeboro"]
[null," ","Estimate","Margin of Error","Estimate","Margin of Error","Estimate","Margin of Error","Estimate","Margin of Error","Estimate","Margin of Error","Estimate","Margin of Error","Estimate","Margin of Error","Estimate","Margin of Error","Estimate","Margin of Error","Estimate","Margin of Error","Estimate","Margin of Error","Estimate","Margin of Error","Estimate","Margin of Error","Estimate","Margin of Error","Estimate","Margin of Error","Estimate","Margin of Error","Estimate","Margin of Error","Estimate","Margin of Error","Estimate","Margin of Error"]
[null,"Total:",269,64,2742,170,26,26,166,52,2286,290,74,22,338,63,1077,85,36,22,69,51,531,71,917,116,3361,191,1486,181,440,65,640,96,1243,122,2087,197,1493,280]
[null,"For rent",0,114,70,51,0,114,0,114,34,39,3,5,10,11,11,17,0,114,0,114,10,15,0,114,28,46,27,43,9,15,20,30,13,21,98,112,46,75]
[null,"Rented, not occupied",0,114,14,16,0,114,0,114,13,22,0,114,0,114,0,114,0,114,0,114,0,114,0,114,0,114,13,22,3,5,7,10,10,16,0,114,0,114]
[null,"For sale only",0,114,23,27,0,114,0,114,76,78,0,114,5,8,14,16,0,114,0,114,0,114,30,25,30,37,56,52,12,11,21,27,35,37,46,71,196,147]
[null,"Sold, not occupied",0,114,0,114,0,114,0,114,0,114,0,114,0,114,0,114,0,114,0,114,0,114,0,114,0,114,12,19,0,114,9,15,0,114,0,114,65,76]
[null,"For seasonal, recreational, or occasional use",250,61,2531,168,26,26,157,53,2091,279,68,21,313,61,1004,89,29,19,69,51,506,69,866,117,3265,190,1287,177,375,60,563,84,1156,132,1788,197,1110,280]
[null,"For migrant workers",0,114,0,114,0,114,0,114,0,114,0,114,0,114,0,114,0,114,0,114,0,114,0,114,0,114,0,114,0,114,0,114,0,114,0,114,0,114]
[null,"Other vacant",19,19,104,68,0,114,9,9,72,62,3,5,10,11,48,28,7,11,0,114,15,13,21,22,38,37,91,67,41,26,20,22,29,36,155,116,76,82]

{"sheet":"ACS_Table_B25008","index":45,"n_rows":51,"n_cols":40,"rows_kept":51,"cut":false,"hidden":true,"merged":[]}
[null,"B25008. TOTAL POPULATION IN OCCUPIED HOUSING UNITS BY TENURE"]
[null,"Universe:  TOTAL POPULATION IN OCCUPIED HOUSING UNITS"]
[null,"Data Set: 2015-2019 American Community Survey 5-Year Estimates"]
[]
[null,null,"Albany",null,"Bartlett",null,"Brookfield",null,"Chatham",null,"Conway",null,"Eaton",null,"Effingham",null,"Freedom",null,"Hale's Location",null,"Hart's Location",null,"Jackson",null,"Madison",null,"Moultonborough",null,"Ossipee",null,"Sandwich",null,"Tamworth",null,"Tuftonboro",null,"Wakefield",null,"Wolfeboro"]
[null," ","Estimate","Margin of Error","Estimate","Margin of Error","Estimate","Margin of Error","Estimate","Margin of Error","Estimate","Margin of Error","Estimate","Margin of Error","Estimate","Margin of Error","Estimate","Margin of Error","Estimate","Margin of Error","Estimate","Margin of Error","Estimate","Margin of Error","Estimate","Margin of Error","Estimate","Margin of Error","Estimate","Margin of Error","Estimate","Margin of Error","Estimate","Margin of Error","Estimate","Margin of Error","Estimate","Margin of Error","Estimate","Margin of Error"]
[null,"Total:",703,142,2758,14,803,186,372,127,9937,72,265,72,1630,231,1337,179,183,43,42,30,891,228,2531,26,4094,27,4135,123,1440,180,2983,19,2213,215,5046,19,6220,41]
[null,"Owner occupied",618,141,1988,379,727,179,334,113,7037,674,208,57,1340,201,1246,169,183,43,33,24,610,164,1888,199,3593,217,3281,243,1226,170,2312,313,2071,203,4522,290,5258,413]
[null,"Renter occupied",85,49,770,378,76,96,38,46,2900,672,57,37,290,154,91,69,0,11,9,16,281,189,643,195,501,217,854,244,214,109,671,312,142,81,524,295,962,414]
[]
[]
[]
[]
[]
[]
[]
[]
[]
[]
[]
[]
[null,"B25008. TOTAL POPULATION IN OCCUPIED HOUSING UNITS BY TENURE"]
[null,"Universe:  TOTAL POPULATION IN OCCUPIED HOUSING UNITS"]
[null,"Data Set: 2010-2014 American Community Survey 5-Year Estimates"]
[]
[null,null,"Albany",null,"Bartlett",null,"Brookfield",null,"Chatham",null,"Conway",null,"Eaton",null,"Effingham",null,"Freedom",null,"Hale's Location",null,"Hart's Location",null,"Jackson",null,"Madison",null,"Moultonborough",null,"Ossipee",null,"Sandwich",null,"Tamworth",null,"Tuftonboro",null,"Wakefield",null,"Wolfeboro"]
[null," ","Estimate","Margin of Error","Estimate","Margin of Error","Estimate","Margin of Error","Estimate","Margin of Error","Estimate","Margin of Error","Estimate","Margin of Error","Estimate","Margin of Error","Estimate","Margin of Error","Estimate","Margin of Error","Estimate","Margin of Error","Estimate","Margin of Error","Estimate","Margin of Error","Estimate","Margin of Error","Estimate","Margin of Error","Estimate","Margin of Error","Estimate","Margin of Error","Estimate","Margin of Error","Estimate","Margin of Error","Estimate","Margin of Error"]
[null,"Total:",800,176,2745,21,786,200,393,96,9868,90,347,65,1336,165,1195,152,137,41,41,24,1032,242,2489,20,4019,28,4109,109,1484,191,2842,21,2254,298,5046,37,6135,57]
[null,"Owner occupied",696,172,2161,292,758,196,326,89,7292,561,301,61,1140,156,924,118,137,41,14,14,884,229,2147,151,3517,282,3208,376,1123,159,2168,265,1844,284,4482,384,5085,378]
[null,"Renter occupied",104,54,584,293,28,34,67,45,2576,552,46,25,196,93,271,125,0,11,27,21,148,91,342,150,502,280,901,379,361,157,674,263,410,181,564,384,1050,377]
[]
[]
[]
[]
[]
[]
[]
[]
[]
[]
[]
[]
[null,"B25008. TOTAL POPULATION IN OCCUPIED HOUSING UNITS BY TENURE"]
[null,"Universe:  TOTAL POPULATION IN OCCUPIED HOUSING UNITS"]
[null,"Data Set: 2005-2009 American Community Survey 5-Year Estimates"]
[]
[null,null,"Albany",null,"Bartlett",null,"Brookfield",null,"Chatham",null,"Conway",null,"Eaton",null,"Effingham",null,"Freedom",null,"Hale's Location",null,"Hart's Location",null,"Jackson",null,"Madison",null,"Moultonborough",null,"Ossipee",null,"Sandwich",null,"Tamworth",null,"Tuftonboro",null,"Wakefield",null,"Wolfeboro"]
[null," ","Estimate","Margin of Error","Estimate","Margin of Error","Estimate","Margin of Error","Estimate","Margin of Error","Estimate","Margin of Error","Estimate","Margin of Error","Estimate","Margin of Error","Estimate","Margin of Error","Estimate","Margin of Error","Estimate","Margin of Error","Estimate","Margin of Error","Estimate","Margin of Error","Estimate","Margin of Error","Estimate","Margin of Error","Estimate","Margin of Error","Estimate","Margin of Error","Estimate","Margin of Error","Estimate","Margin of Error","Estimate","Margin of Error"]
[null,"Total:",966,265,2936,21,717,220,390,128,9017,159,381,88,1023,179,1178,162,129,47,81,59,926,206,2326,323,4983,24,4589,172,1398,155,2526,334,2398,253,4746,17,6588,17]
[null,"Owner occupied",868,269,2383,218,676,218,316,107,6223,537,349,92,955,184,1125,159,129,47,71,61,841,213,1887,307,4698,169,4161,261,1244,150,2050,337,2274,243,4137,269,5583,354]
[null,"Renter occupied",98,60,553,217,41,44,74,75,2794,528,32,27,68,43,53,39,0,114,10,14,85,48,439,213,285,167,428,194,154,63,476,236,124,82,609,267,1005,357]

{"sheet":"ACS_Table_B25024","index":46,"n_rows":78,"n_cols":40,"rows_kept":78,"cut":false,"hidden":true,"merged":[]}
[null,"B25024. UNITS IN STRUCTURE "]
[null,"Universe:  HOUSING UNITS"]
[null,"Data Set: 2015-2019 American Community Survey 5-Year Estimates"]
[]
[null,null,"Albany",null,"Bartlett",null,"Brookfield",null,"Chatham",null,"Conway",null,"Eaton",null,"Effingham",null,"Freedom",null,"Hale's Location",null,"Hart's Location",null,"Jackson",null,"Madison",null,"Moultonborough",null,"Ossipee",null,"Sandwich",null,"Tamworth",null,"Tuftonboro",null,"Wakefield",null,"Wolfeboro"]
[null," ","Estimate","Margin of Error","Estimate","Margin of Error","Estimate","Margin of Error","Estimate","Margin of Error","Estimate","Margin of Error","Estimate","Margin of Error","Estimate","Margin of Error","Estimate","Margin of Error","Estimate","Margin of Error","Estimate","Margin of Error","Estimate","Margin of Error","Estimate","Margin of Error","Estimate","Margin of Error","Estimate","Margin of Error","Estimate","Margin of Error","Estimate","Margin of Error","Estimate","Margin of Error","Estimate","Margin of Error","Estimate","Margin of Error"]
[null,"Total:",542,74,4491,255,391,61,254,58,7078,368,248,51,913,99,1910,119,97,22,64,22,1055,123,1973,124,4870,207,3168,201,1049,120,2003,242,2445,96,3771,208,4846,245]
[null,"1, detached",434,68,2347,287,391,61,223,51,4071,402,237,49,789,102,1451,135,95,21,64,22,862,119,1783,137,4562,215,2536,224,1015,121,1647,246,2117,108,3262,268,3753,332]
[null,"1, attached",0,11,63,58,0,11,3,4,44,41,2,3,10,7,13,15,0,11,0,11,27,35,0,11,99,63,12,19,4,6,0,11,62,42,41,66,250,165]
[null,2,23,19,533,158,0,11,0,11,351,164,0,11,6,8,11,11,0,11,0,11,37,25,64,47,71,61,26,40,3,5,0,11,0,11,123,104,18,29]
[null,"3 or 4",0,11,353,128,0,11,0,11,493,216,9,11,7,7,11,17,0,11,0,11,117,35,23,18,34,41,46,22,0,11,15,22,14,23,0,16,372,185]
[null,"5 to 9",2,5,764,187,0,11,11,14,977,288,0,11,0,11,46,28,0,11,0,11,9,14,0,11,42,48,63,70,5,5,97,67,39,38,50,77,40,63]
[null,"10 to 19",0,11,261,108,0,11,0,11,189,141,0,11,18,20,0,11,0,11,0,11,3,5,0,11,0,11,54,55,2,5,89,71,0,11,0,16,65,101]
[null,"20 to 49",0,11,81,54,0,11,0,11,277,152,0,11,9,13,0,11,0,11,0,11,0,11,47,43,0,11,63,53,0,11,0,11,0,11,41,30,154,69]
[null,"50 or more",0,11,0,11,0,11,0,11,0,18,0,11,0,11,0,11,0,11,0,11,0,11,0,11,0,11,0,11,0,11,0,11,0,11,0,16,0,16]
[null,"Mobile home",83,27,89,62,0,11,17,14,676,215,0,11,74,36,378,76,2,3,0,11,0,11,56,40,62,54,359,152,20,18,155,82,213,67,254,177,194,124]
[null,"Boat, RV, van, etc.",0,11,0,11,0,11,0,11,0,18,0,11,0,11,0,11,0,11,0,11,0,11,0,11,0,11,9,14,0,11,0,11,0,11,0,16,0,16]
[]
[]
[null,"Calculated B25024. UNITS IN STRUCTURE "]
[null,"Universe:  HOUSING UNITS"]
[null,"Data Set: 2015-2019 American Community Survey 5-Year Estimates"]
[]
[null,null,"Albany",null,"Bartlett",null,"Brookfield",null,"Chatham",null,"Conway",null,"Eaton",null,"Effingham",null,"Freedom",null,"Hale's Location",null,"Hart's Location",null,"Jackson",null,"Madison",null,"Moultonborough",null,"Ossipee",null,"Sandwich",null,"Tamworth",null,"Tuftonboro",null,"Wakefield",null,"Wolfeboro"]
[null," ","Estimate","Margin of Error","Estimate","Margin of Error","Estimate","Margin of Error","Estimate","Margin of Error","Estimate","Margin of Error","Estimate","Margin of Error","Estimate","Margin of Error","Estimate","Margin of Error","Estimate","Margin of Error","Estimate","Margin of Error","Estimate","Margin of Error","Estimate","Margin of Error","Estimate","Margin of Error","Estimate","Margin of Error","Estimate","Margin of Error","Estimate","Margin of Error","Estimate","Margin of Error","Estimate","Margin of Error","Estimate","Margin of Error"]
[null,"Total:",{"$f":"C7","v":542},74,4491,255,391,61,254,58,7078,368,248,51,913,99,1910,119,97,22,64,22,1055,123,{"$f":"Y7","v":1973},124,4870,207,3168,201,1049,120,2003,242,2445,96,3771,208,4846,245]
[null,"Single Family",{"$f":"C8","v":434},68,2347,287,391,61,223,51,4071,402,237,49,789,102,1451,135,95,21,64,22,862,119,{"$f":"Y8","v":1783},137,4562,215,2536,224,1015,121,1647,246,2117,108,3262,268,3753,332]
[null,"Multi-Family",{"$f":"C9+C10+C11+C12+C13+C14+C15","v":25},{"$f":"SQRT((D9^2)+(D10^2)+(D11^2)+(D12^2)+(D13^2)+(D14^2)+(D15^2))","v":31.480152477394387},{"$f":"E9+E10+E11+E12+E13+E14+E15","v":2055},{"$f":"SQRT((F9^2)+(F10^2)+(F11^2)+(F12^2)+(F13^2)+(F14^2)+(F15^2))","v":307.21653601328165},{"$f":"G9+G10+G11+G12+G13+G14+G15","v":0},{"$f":"SQRT((H9^2)+(H10^2)+(H11^2)+(H12^2)+(H13^2)+(H14^2)+(H15^2))","v":29.103264421710495},{"$f":"I9+I10+I11+I12+I13+I14+I15","v":14},{"$f":"SQRT((J9^2)+(J10^2)+(J11^2)+(J12^2)+(J13^2)+(J14^2)+(J15^2))","v":28.583211855912904},{"$f":"K9+K10+K11+K12+K13+K14+K15","v":2331},{"$f":"SQRT((L9^2)+(L10^2)+(L11^2)+(L12^2)+(L13^2)+(L14^2)+(L15^2))","v":448.87191937121662},{"$f":"M9+M10+M11+M12+M13+M14+M15","v":11},{"$f":"SQRT((N9^2)+(N10^2)+(N11^2)+(N12^2)+(N13^2)+(N14^2)+(N15^2))","v":27.110883423451916},{"$f":"O9+O10+O11+O12+O13+O14+O15","v":50},{"$f":"SQRT((P9^2)+(P10^2)+(P11^2)+(P12^2)+(P13^2)+(P14^2)+(P15^2))","v":31.192947920964443},{"$f":"Q9+Q10+Q11+Q12+Q13+Q14+Q15","v":81},{"$f":"SQRT((R9^2)+(R10^2)+(R11^2)+(R12^2)+(R13^2)+(R14^2)+(R15^2))","v":42.213741838410868},{"$f":"S9+S10+S11+S12+S13+S14+S15","v":0},{"$f":"SQRT((T9^2)+(T10^2)+(T11^2)+(T12^2)+(T13^2)+(T14^2)+(T15^2))","v":29.103264421710495},{"$f":"U9+U10+U11+U12+U13+U14+U15","v":0},{"$f":"SQRT((V9^2)+(V10^2)+(V11^2)+(V12^2)+(V13^2)+(V14^2)+(V15^2))","v":29.103264421710495},{"$f":"W9+W10+W11+W12+W13+W14+W15","v":193},{"$f":"SQRT((X9^2)+(X10^2)+(X11^2)+(X12^2)+(X13^2)+(X14^2)+(X15^2))","v":59.481089431852205},{"$f":"Y9+Y10+Y11+Y12+Y13+Y14+Y15","v":134},{"$f":"SQRT((Z9^2)+(Z10^2)+(Z11^2)+(Z12^2)+(Z13^2)+(Z14^2)+(Z15^2))","v":69.756720106381152},{"$f":"AA9+AA10+AA11+AA12+AA13+AA14+AA15","v":246},{"$f":"SQRT((AB9^2)+(AB10^2)+(AB11^2)+(AB12^2)+(AB13^2)+(AB14^2)+(AB15^2))","v":109.71781988355401},{"$f":"AC9+AC10+AC11+AC12+AC13+AC14+AC15","v":264},{"$f":"SQRT((AD9^2)+(AD10^2)+(AD11^2)+(AD12^2)+(AD13^2)+(AD14^2)+(AD15^2))","v":115.32562594670796},{"$f":"AE9+AE10+AE11+AE12+AE13+AE14+AE15","v":14},{"$f":"SQRT((AF9^2)+(AF10^2)+(AF11^2)+(AF12^2)+(AF13^2)+(AF14^2)+(AF15^2))","v":21.77154105707724},{"$f":"AG9+AG10+AG11+AG12+AG13+AG14+AG15","v":201},{"$f":"SQRT((AH9^2)+(AH10^2)+(AH11^2)+(AH12^2)+(AH13^2)+(AH14^2)+(AH15^2))","v":102.45974819410792},{"$f":"AI9+AI10+AI11+AI12+AI13+AI14+AI15","v":115},{"$f":"SQRT((AJ9^2)+(AJ10^2)+(AJ11^2)+(AJ12^2)+(AJ13^2)+(AJ14^2)+(AJ15^2))","v":64.969223483123145},{"$f":"AK9+AK10+AK11+AK12+AK13+AK14+AK15","v":255},{"$f":"SQRT((AL9^2)+(AL10^2)+(AL11^2)+(AL12^2)+(AL13^2)+(AL14^2)+(AL15^2))","v":150.89400253157845},{"$f":"AM9+AM10+AM11+AM12+AM13+AM14+AM15","v":899},{"$f":"SQRT((AN9^2)+(AN10^2)+(AN11^2)+(AN12^2)+(AN13^2)+(AN14^2)+(AN15^2))","v":285.44351455235415}]
[null,"Mobile Home & Other",{"$f":"C16+C17","v":83},{"$f":"SQRT((D16^2)+(D17^2))","v":29.154759474226502},{"$f":"E16+E17","v":89},{"$f":"SQRT((F16^2)+(F17^2))","v":62.968245965724662},{"$f":"G16+G17","v":0},{"$f":"SQRT((H16^2)+(H17^2))","v":15.556349186104045},{"$f":"I16+I17","v":17},{"$f":"SQRT((J16^2)+(J17^2))","v":17.804493814764857},{"$f":"K16+K17","v":676},{"$f":"SQRT((L16^2)+(L17^2))","v":215.75217264259473},{"$f":"M16+M17","v":0},{"$f":"SQRT((N16^2)+(N17^2))","v":15.556349186104045},{"$f":"O16+O17","v":74},{"$f":"SQRT((P16^2)+(P17^2))","v":37.643060449437421},{"$f":"Q16+Q17","v":378},{"$f":"SQRT((R16^2)+(R17^2))","v":76.791926658991954},{"$f":"S16+S17","v":2},{"$f":"SQRT((T16^2)+(T17^2))","v":11.401754250991379},{"$f":"U16+U17","v":0},{"$f":"SQRT((V16^2)+(V17^2))","v":15.556349186104045},{"$f":"W16+W17","v":0},{"$f":"SQRT((X16^2)+(X17^2))","v":15.556349186104045},{"$f":"Y16+Y17","v":56},{"$f":"SQRT((Z16^2)+(Z17^2))","v":41.484937025383083},{"$f":"AA16+AA17","v":62},{"$f":"SQRT((AB16^2)+(AB17^2))","v":55.108982933819419},{"$f":"AC16+AC17","v":368},{"$f":"SQRT((AD16^2)+(AD17^2))","v":152.64337522473747},{"$f":"AE16+AE17","v":20},{"$f":"SQRT((AF16^2)+(AF17^2))","v":21.095023109728988},{"$f":"AG16+AG17","v":155},{"$f":"SQRT((AH16^2)+(AH17^2))","v":82.734515167492219},{"$f":"AI16+AI17","v":213},{"$f":"SQRT((AJ16^2)+(AJ17^2))","v":67.896980787071826},{"$f":"AK16+AK17","v":254},{"$f":"SQRT((AL16^2)+(AL17^2))","v":177.72169254201918},{"$f":"AM16+AM17","v":194},{"$f":"SQRT((AN16^2)+(AN17^2))","v":125.02799686470227}]
[]
[]
[]
[]
[]
[]
[]
[]
[]
[]
[]
[]
[]
[]
[]
[]
[]
[]
[]
[]
[]
[]
[]
[]
[]
[]
[]
[null,"Calculated B25024. UNITS IN STRUCTURE "]
[null,"Universe:  HOUSING UNITS"]
[null,"Data Set: 2010-2014 American Community Survey 5-Year Estimates"]
[]
[null,null,"Albany",null,"Bartlett",null,"Brookfield",null,"Chatham",null,"Conway",null,"Eaton",null,"Effingham",null,"Freedom",null,"Hale's Location",null,"Hart's Location",null,"Jackson",null,"Madison",null,"Moultonborough",null,"Ossipee",null,"Sandwich",null,"Tamworth",null,"Tuftonboro",null,"Wakefield",null,"Wolfeboro"]
[null," ","Estimate","Margin of Error","Estimate","Margin of Error","Estimate","Margin of Error","Estimate","Margin of Error","Estimate","Margin of Error","Estimate","Margin of Error","Estimate","Margin of Error","Estimate","Margin of Error","Estimate","Margin of Error","Estimate","Margin of Error","Estimate","Margin of Error","Estimate","Margin of Error","Estimate","Margin of Error","Estimate","Margin of Error","Estimate","Margin of Error","Estimate","Margin of Error","Estimate","Margin of Error","Estimate","Margin of Error","Estimate","Margin of Error"]
[null,"Total:",557,74,4325,252,361,69,257,41,6429,304,284,41,982,87,1740,84,102,25,53,19,998,113,2020,124,4922,197,2992,261,1001,99,2227,193,2343,93,3963,274,4453,301]
[null,"Single Family",459,67,2146,231,346,66,207,37,3826,311,270,41,796,82,1387,94,100,25,53,19,817,100,1773,152,4628,211,2235,231,949,95,1709,213,2134,104,3341,312,3457,294]
[null,"Multi-Family",24,30.182776545573141,2142,312.98722018638398,8,29.49576240750525,28,24.919871588754223,1827,348.71048163196929,14,24.145392935299274,61,42.871902220452036,67,42.213741838410868,2,27.110883423451916,0,29.103264421710495,175,63.694583757176716,128,68.694977982382383,161,91.804139340228005,219,111.02702373746672,25,33.136083051561783,332,157.41346829290052,144,70.434366611761334,236,149.18444959177214,756,238.22048610478487]
[null,"Mobile Home & Other",74,34.785054261852174,37,44.384682042344295,7,15.556349186104045,22,16.278820596099706,776,219.65882636488797,0,15.556349186104045,125,42.449970553582247,286,67.896980787071826,0,15.556349186104045,0,15.556349186104045,6,14.866068747318506,119,68.8839603971781,133,88.68483523128404,538,152.97058540778355,27,21.95449840010015,186,102.59142264341595,65,46.324939287601879,386,204.55072720476943,240,142.79005567615695]
[]
[]
[null,"Calculated B25024. UNITS IN STRUCTURE "]
[null,"Universe:  HOUSING UNITS"]
[null,"Data Set: 2005-2009 American Community Survey 5-Year Estimates"]
[]
[null,null,"Albany",null,"Bartlett",null,"Brookfield",null,"Chatham",null,"Conway",null,"Eaton",null,"Effingham",null,"Freedom",null,"Hale's Location",null,"Hart's Location",null,"Jackson",null,"Madison",null,"Moultonborough",null,"Ossipee",null,"Sandwich",null,"Tamworth",null,"Tuftonboro",null,"Wakefield",null,"Wolfeboro"]
[null," ","Estimate","Margin of Error","Estimate","Margin of Error","Estimate","Margin of Error","Estimate","Margin of Error","Estimate","Margin of Error","Estimate","Margin of Error","Estimate","Margin of Error","Estimate","Margin of Error","Estimate","Margin of Error","Estimate","Margin of Error","Estimate","Margin of Error","Estimate","Margin of Error","Estimate","Margin of Error","Estimate","Margin of Error","Estimate","Margin of Error","Estimate","Margin of Error","Estimate","Margin of Error","Estimate","Margin of Error","Estimate","Margin of Error"]
[null,"Total:",573,67,3945,209,284,56,284,59,6069,371,225,35,761,77,1629,84,95,28,106,53,892,83,1747,68,5364,191,3328,241,1038,83,1661,113,2172,68,3860,240,4283,232]
[null,"Single Family",440,59,1655,177,273,57,264,59,3320,319,200,34,644,70,1357,81,95,28,106,53,701,80,1593,91,4964,224,2500,257,1010,85,1355,106,1844,122,3399,259,3313,278]
[null,"Multi-Family",11,255.22539058643832,2198,305.05409356374815,3,279.28659115682586,3,279.30628349537716,2124,396.3622080875017,25,255.34486483969087,40,229.16151509361254,132,164.5691344086126,0,301.61564946136332,0,301.61564946136332,182,204.10536494663731,80,168.24089871371942,264,231.58367818134334,305,233.83755044902432,17,228.31995094603536,130,172.50797083033584,129,238.51415052361151,272,241.64022843889219,809,305.00163933985664]
[null,"Mobile Home & Other",122,122.93087488503447,92,130.24976007655445,8,114.43775600735974,17,114.62983904725679,625,195.64508682816444,0,161.22034611053283,77,118.96217886370441,140,127.01181047445942,0,161.22034611053283,0,161.22034611053283,9,114.85643212288984,74,121.49074038789952,136,149.03690818049066,523,185.23498589629335,11,114.43775600735974,176,126.14277624977183,199,134.30189872075525,189,156.34896865665601,161,139.84634424967999]

{"sheet":"ACS_Table_B25032","index":47,"n_rows":119,"n_cols":40,"rows_kept":119,"cut":false,"hidden":true,"merged":[]}
[null,"B25032. TENURE BY UNITS IN STRUCTURE "]
[null,"Universe:  OCCUPIED HOUSING UNITS"]
[null,"Data Set: 2015-2019 American Community Survey 5-Year Estimates"]
[]
[null,null,"Albany",null,"Bartlett",null,"Brookfield",null,"Chatham",null,"Conway",null,"Eaton",null,"Effingham",null,"Freedom",null,"Hale's Location",null,"Hart's Location",null,"Jackson",null,"Madison",null,"Moultonborough",null,"Ossipee",null,"Sandwich",null,"Tamworth",null,"Tuftonboro",null,"Wakefield",null,"Wolfeboro"]
[null," ","Estimate","Margin of Error","Estimate","Margin of Error","Estimate","Margin of Error","Estimate","Margin of Error","Estimate","Margin of Error","Estimate","Margin of Error","Estimate","Margin of Error","Estimate","Margin of Error","Estimate","Margin of Error","Estimate","Margin of Error","Estimate","Margin of Error","Estimate","Margin of Error","Estimate","Margin of Error","Estimate","Margin of Error","Estimate","Margin of Error","Estimate","Margin of Error","Estimate","Margin of Error","Estimate","Margin of Error","Estimate","Margin of Error"]
[null,"Total:",307,58,1466,162,303,63,143,41,4632,241,135,39,594,82,611,81,89,20,24,16,416,88,977,94,1765,118,2011,164,643,81,1300,147,923,104,2117,185,3000,206]
[null,"Owner-occupied housing units:",272,56,1074,213,289,64,132,37,3114,295,102,29,488,72,577,79,89,20,19,14,318,79,792,107,1531,124,1540,176,561,77,939,148,858,101,1901,196,2429,221]
[null,"1, detached",216,46,943,218,289,64,117,33,2436,279,102,29,424,69,541,75,87,20,19,14,299,77,752,102,1479,123,1311,173,550,77,784,171,754,92,1774,207,2208,236]
[null,"1, attached",0,11,0,11,0,11,3,4,44,41,0,11,7,7,4,6,0,11,0,11,6,6,0,11,25,23,12,19,4,6,0,11,5,7,0,16,97,81]
[null,2,9,13,66,73,0,11,0,11,63,57,0,11,0,11,3,4,0,11,0,11,0,11,6,8,14,22,0,11,0,11,0,11,0,11,20,30,0,16]
[null,"3 or 4",0,11,0,11,0,11,0,11,27,28,0,11,0,11,0,11,0,11,0,11,10,17,0,11,0,11,19,21,0,11,0,11,0,11,0,16,0,16]
[null,"5 to 9",0,11,0,11,0,11,0,11,136,114,0,11,0,11,11,16,0,11,0,11,0,11,0,11,8,12,0,11,0,11,0,11,0,11,0,16,0,16]
[null,"10 to 19",0,11,0,11,0,11,0,11,0,18,0,11,0,11,0,11,0,11,0,11,3,5,0,11,0,11,0,11,0,11,0,11,0,11,0,16,0,16]
[null,"20 to 49",0,11,0,11,0,11,0,11,54,49,0,11,0,11,0,11,0,11,0,11,0,11,0,11,0,11,0,11,0,11,0,11,0,11,0,16,37,33]
[null,"50 or more",0,11,0,11,0,11,0,11,0,18,0,11,0,11,0,11,0,11,0,11,0,11,0,11,0,11,0,11,0,11,0,11,0,11,0,16,0,16]
[null,"Mobile home",47,23,65,60,0,11,12,9,354,151,0,11,57,31,18,10,2,3,0,11,0,11,34,33,5,8,189,100,7,7,155,82,99,51,107,99,87,70]
[null,"Boat, RV, van, etc.",0,11,0,11,0,11,0,11,0,18,0,11,0,11,0,11,0,11,0,11,0,11,0,11,0,11,9,14,0,11,0,11,0,11,0,16,0,16]
[null,"Renter-occupied housing units:",35,17,392,159,14,18,11,14,1518,311,33,22,106,45,34,26,0,11,5,8,98,49,185,59,234,86,471,121,82,37,361,135,65,38,216,113,571,210]
[null,"1, detached",11,9,222,121,14,18,0,11,275,152,22,17,79,42,30,25,0,11,5,8,73,40,116,44,184,83,204,104,72,37,160,99,60,39,85,70,105,107]
[null,"1, attached",0,11,15,21,0,11,0,11,0,18,2,3,3,4,0,11,0,11,0,11,21,34,0,11,9,14,0,11,0,11,0,11,5,7,0,16,16,25]
[null,2,14,15,69,69,0,11,0,11,46,45,0,11,3,6,4,7,0,11,0,11,0,11,0,11,0,11,26,40,3,5,0,11,0,11,20,31,18,29]
[null,"3 or 4",0,11,55,61,0,11,0,11,251,171,9,11,7,7,0,11,0,11,0,11,4,5,23,18,9,13,27,22,0,11,15,22,0,11,0,16,246,159]
[null,"5 to 9",2,5,31,50,0,11,11,14,439,171,0,11,0,11,0,11,0,11,0,11,0,11,0,11,0,11,35,57,5,5,97,67,0,11,50,77,0,16]
[null,"10 to 19",0,11,0,11,0,11,0,11,189,141,0,11,10,15,0,11,0,11,0,11,0,11,0,11,0,11,54,55,2,5,89,71,0,11,0,16,65,101]
[null,"20 to 49",0,11,0,11,0,11,0,11,197,135,0,11,0,11,0,11,0,11,0,11,0,11,32,36,0,11,63,53,0,11,0,11,0,11,41,30,104,63]
[null,"50 or more",0,11,0,11,0,11,0,11,0,18,0,11,0,11,0,11,0,11,0,11,0,11,0,11,0,11,0,11,0,11,0,11,0,11,0,16,0,16]
[null,"Mobile home",8,7,0,11,0,11,0,11,121,83,0,11,4,5,0,11,0,11,0,11,0,11,14,15,32,38,62,59,0,11,0,11,0,11,20,29,17,27]
[null,"Boat, RV, van, etc.",0,11,0,11,0,11,0,11,0,18,0,11,0,11,0,11,0,11,0,11,0,11,0,11,0,11,0,11,0,11,0,11,0,11,0,16,0,16]
[]
[]
[null,"Calculated B25032. TENURE BY UNITS IN STRUCTURE "]
[null,"Universe:  OCCUPIED HOUSING UNITS"]
[null,"Data Set: 2015-2019 American Community Survey 5-Year Estimates"]
[]
[null,null,"Albany",null,"Bartlett",null,"Brookfield",null,"Chatham",null,"Conway",null,"Eaton",null,"Effingham",null,"Freedom",null,"Hale's Location",null,"Hart's Location",null,"Jackson",null,"Madison",null,"Moultonborough",null,"Ossipee",null,"Sandwich",null,"Tamworth",null,"Tuftonboro",null,"Wakefield",null,"Wolfeboro"]
[null," ","Estimate","Margin of Error","Estimate","Margin of Error","Estimate","Margin of Error","Estimate","Margin of Error","Estimate","Margin of Error","Estimate","Margin of Error","Estimate","Margin of Error","Estimate","Margin of Error","Estimate","Margin of Error","Estimate","Margin of Error","Estimate","Margin of Error","Estimate","Margin of Error","Estimate","Margin of Error","Estimate","Margin of Error","Estimate","Margin of Error","Estimate","Margin of Error","Estimate","Margin of Error","Estimate","Margin of Error","Estimate","Margin of Error"]
[null,"Total:",{"$f":"C7","v":307},58,{"$f":"E7","v":1466},162,303,63,143,41,4632,241,135,39,594,82,611,81,89,20,24,16,416,88,977,94,1765,118,2011,164,643,81,1300,147,923,104,2117,185,3000,206]
[null,"Owner-occupied housing units:",272,56,{"$f":"E8","v":1074},213,289,64,132,37,3114,295,102,29,488,72,577,79,89,20,19,14,318,79,792,107,1531,124,1540,176,561,77,939,148,858,101,1901,196,2429,221]
[null,"Single Family",{"$f":"C9","v":216},46,943,{"$f":"F9","v":218},289,64,117,33,2436,279,102,29,424,69,541,75,87,20,19,14,299,77,752,102,1479,123,1311,173,550,77,784,171,754,92,1774,207,2208,236]
[null,"Multi-Family",{"$f":"C10+C11+C12+C13+C14+C15+C16","v":9},{"$f":"SQRT((D10^2)+(D11^2)+(D12^2)+(D13^2)+(D14^2)+(D15^2)+(D16^2))","v":29.916550603303182},{"$f":"E10+E11+E12+E13+E14+E15+E16","v":66},{"$f":"SQRT((F10^2)+(F11^2)+(F12^2)+(F13^2)+(F14^2)+(F15^2)+(F16^2))","v":77.813880509842207},{"$f":"G10+G11+G12+G13+G14+G15+G16","v":0},{"$f":"SQRT((H10^2)+(H11^2)+(H12^2)+(H13^2)+(H14^2)+(H15^2)+(H16^2))","v":29.103264421710495},{"$f":"I10+I11+I12+I13+I14+I15+I16","v":3},{"$f":"SQRT((J10^2)+(J11^2)+(J12^2)+(J13^2)+(J14^2)+(J15^2)+(J16^2))","v":27.239676943752471},{"$f":"K10+K11+K12+K13+K14+K15+K16","v":324},{"$f":"SQRT((L10^2)+(L11^2)+(L12^2)+(L13^2)+(L14^2)+(L15^2)+(L16^2))","v":147.50932173933958},{"$f":"M10+M11+M12+M13+M14+M15+M16","v":0},{"$f":"SQRT((N10^2)+(N11^2)+(N12^2)+(N13^2)+(N14^2)+(N15^2)+(N16^2))","v":29.103264421710495},{"$f":"O10+O11+O12+O13+O14+O15+O16","v":7},{"$f":"SQRT((P10^2)+(P11^2)+(P12^2)+(P13^2)+(P14^2)+(P15^2)+(P16^2))","v":27.838821814150108},{"$f":"Q10+Q11+Q12+Q13+Q14+Q15+Q16","v":18},{"$f":"SQRT((R10^2)+(R11^2)+(R12^2)+(R13^2)+(R14^2)+(R15^2)+(R16^2))","v":28.142494558940577},{"$f":"S10+S11+S12+S13+S14+S15+S16","v":0},{"$f":"SQRT((T10^2)+(T11^2)+(T12^2)+(T13^2)+(T14^2)+(T15^2)+(T16^2))","v":29.103264421710495},{"$f":"U10+U11+U12+U13+U14+U15+U16","v":0},{"$f":"SQRT((V10^2)+(V11^2)+(V12^2)+(V13^2)+(V14^2)+(V15^2)+(V16^2))","v":29.103264421710495},{"$f":"W10+W11+W12+W13+W14+W15+W16","v":19},{"$f":"SQRT((X10^2)+(X11^2)+(X12^2)+(X13^2)+(X14^2)+(X15^2)+(X16^2))","v":28.879058156387302},{"$f":"Y10+Y11+Y12+Y13+Y14+Y15+Y16","v":6},{"$f":"SQRT((Z10^2)+(Z11^2)+(Z12^2)+(Z13^2)+(Z14^2)+(Z15^2)+(Z16^2))","v":28.106938645110393},{"$f":"AA10+AA11+AA12+AA13+AA14+AA15+AA16","v":47},{"$f":"SQRT((AB10^2)+(AB11^2)+(AB12^2)+(AB13^2)+(AB14^2)+(AB15^2)+(AB16^2))","v":40.509258201058188},{"$f":"AC10+AC11+AC12+AC13+AC14+AC15+AC16","v":31},{"$f":"SQRT((AD10^2)+(AD11^2)+(AD12^2)+(AD13^2)+(AD14^2)+(AD15^2)+(AD16^2))","v":37.509998667022103},{"$f":"AE10+AE11+AE12+AE13+AE14+AE15+AE16","v":4},{"$f":"SQRT((AF10^2)+(AF11^2)+(AF12^2)+(AF13^2)+(AF14^2)+(AF15^2)+(AF16^2))","v":27.604347483684521},{"$f":"AG10+AG11+AG12+AG13+AG14+AG15+AG16","v":0},{"$f":"SQRT((AH10^2)+(AH11^2)+(AH12^2)+(AH13^2)+(AH14^2)+(AH15^2)+(AH16^2))","v":29.103264421710495},{"$f":"AI10+AI11+AI12+AI13+AI14+AI15+AI16","v":5},{"$f":"SQRT((AJ10^2)+(AJ11^2)+(AJ12^2)+(AJ13^2)+(AJ14^2)+(AJ15^2)+(AJ16^2))","v":27.838821814150108},{"$f":"AK10+AK11+AK12+AK13+AK14+AK15+AK16","v":20},{"$f":"SQRT((AL10^2)+(AL11^2)+(AL12^2)+(AL13^2)+(AL14^2)+(AL15^2)+(AL16^2))","v":49.355850717012267},{"$f":"AM10+AM11+AM12+AM13+AM14+AM15+AM16","v":134},{"$f":"SQRT((AN10^2)+(AN11^2)+(AN12^2)+(AN13^2)+(AN14^2)+(AN15^2)+(AN16^2))","v":94.498677239419607}]
[null,"Mobile Home & Other",{"$f":"C17+C18","v":47},{"$f":"SQRT((D17^2)+(D18^2))","v":25.495097567963924},{"$f":"E17+E18","v":65},{"$f":"SQRT((F17^2)+(F18^2))","v":61},{"$f":"G17+G18","v":0},{"$f":"SQRT((H17^2)+(H18^2))","v":15.556349186104045},{"$f":"I17+I18","v":12},{"$f":"SQRT((J17^2)+(J18^2))","v":14.212670403551895},{"$f":"K17+K18","v":354},{"$f":"SQRT((L17^2)+(L18^2))","v":152.0690632574555},{"$f":"M17+M18","v":0},{"$f":"SQRT((N17^2)+(N18^2))","v":15.556349186104045},{"$f":"O17+O18","v":57},{"$f":"SQRT((P17^2)+(P18^2))","v":32.893768406797051},{"$f":"Q17+Q18","v":18},{"$f":"SQRT((R17^2)+(R18^2))","v":14.866068747318506},{"$f":"S17+S18","v":2},{"$f":"SQRT((T17^2)+(T18^2))","v":11.401754250991379},{"$f":"U17+U18","v":0},{"$f":"SQRT((V17^2)+(V18^2))","v":15.556349186104045},{"$f":"W17+W18","v":0},{"$f":"SQRT((X17^2)+(X18^2))","v":15.556349186104045},{"$f":"Y17+Y18","v":34},{"$f":"SQRT((Z17^2)+(Z18^2))","v":34.785054261852174},{"$f":"AA17+AA18","v":5},{"$f":"SQRT((AB17^2)+(AB18^2))","v":13.601470508735444},{"$f":"AC17+AC18","v":198},{"$f":"SQRT((AD17^2)+(AD18^2))","v":100.9752444909147},{"$f":"AE17+AE18","v":7},{"$f":"SQRT((AF17^2)+(AF18^2))","v":13.038404810405298},{"$f":"AG17+AG18","v":155},{"$f":"SQRT((AH17^2)+(AH18^2))","v":82.734515167492219},{"$f":"AI17+AI18","v":99},{"$f":"SQRT((AJ17^2)+(AJ18^2))","v":52.172789842982326},{"$f":"AK17+AK18","v":107},{"$f":"SQRT((AL17^2)+(AL18^2))","v":100.2845950283492},{"$f":"AM17+AM18","v":87},{"$f":"SQRT((AN17^2)+(AN18^2))","v":71.805292284064961}]
[null,"Renter-occupied housing units:",{"$f":"C19","v":35},{"$f":"D19","v":17},{"$f":"E19","v":392},159,14,18,11,14,1518,311,33,22,106,45,34,26,0,11,5,8,98,49,185,59,234,86,471,121,82,37,361,135,65,38,216,113,571,210]
[null,"Single Family",{"$f":"C20","v":11},{"$f":"D20","v":9},{"$f":"E20","v":222},121,14,18,0,11,275,152,22,17,79,42,30,25,0,11,5,8,73,40,116,44,184,83,204,104,72,37,160,99,60,39,85,70,105,107]
[null,"Multi-Family",{"$f":"C21+C22+C23+C24+C25+C26+C27","v":16},{"$f":"SQRT((D21^2)+(D22^2)+(D23^2)+(D24^2)+(D25^2)+(D26^2)+(D27^2))","v":29.240383034426891},{"$f":"E21+E22+E23+E24+E25+E26+E27","v":170},{"$f":"SQRT((F21^2)+(F22^2)+(F23^2)+(F24^2)+(F25^2)+(F26^2)+(F27^2))","v":108.56334556377672},{"$f":"G21+G22+G23+G24+G25+G26+G27","v":0},{"$f":"SQRT((H21^2)+(H22^2)+(H23^2)+(H24^2)+(H25^2)+(H26^2)+(H27^2))","v":29.103264421710495},{"$f":"I21+I22+I23+I24+I25+I26+I27","v":11},{"$f":"SQRT((J21^2)+(J22^2)+(J23^2)+(J24^2)+(J25^2)+(J26^2)+(J27^2))","v":30.364452901377952},{"$f":"K21+K22+K23+K24+K25+K26+K27","v":1122},{"$f":"SQRT((L21^2)+(L22^2)+(L23^2)+(L24^2)+(L25^2)+(L26^2)+(L27^2))","v":315.05713767505728},{"$f":"M21+M22+M23+M24+M25+M26+M27","v":11},{"$f":"SQRT((N21^2)+(N22^2)+(N23^2)+(N24^2)+(N25^2)+(N26^2)+(N27^2))","v":27.110883423451916},{"$f":"O21+O22+O23+O24+O25+O26+O27","v":23},{"$f":"SQRT((P21^2)+(P22^2)+(P23^2)+(P24^2)+(P25^2)+(P26^2)+(P27^2))","v":26.248809496813376},{"$f":"Q21+Q22+Q23+Q24+Q25+Q26+Q27","v":4},{"$f":"SQRT((R21^2)+(R22^2)+(R23^2)+(R24^2)+(R25^2)+(R26^2)+(R27^2))","v":27.838821814150108},{"$f":"S21+S22+S23+S24+S25+S26+S27","v":0},{"$f":"SQRT((T21^2)+(T22^2)+(T23^2)+(T24^2)+(T25^2)+(T26^2)+(T27^2))","v":29.103264421710495},{"$f":"U21+U22+U23+U24+U25+U26+U27","v":0},{"$f":"SQRT((V21^2)+(V22^2)+(V23^2)+(V24^2)+(V25^2)+(V26^2)+(V27^2))","v":29.103264421710495},{"$f":"W21+W22+W23+W24+W25+W26+W27","v":25},{"$f":"SQRT((X21^2)+(X22^2)+(X23^2)+(X24^2)+(X25^2)+(X26^2)+(X27^2))","v":42.261093218230876},{"$f":"Y21+Y22+Y23+Y24+Y25+Y26+Y27","v":55},{"$f":"SQRT((Z21^2)+(Z22^2)+(Z23^2)+(Z24^2)+(Z25^2)+(Z26^2)+(Z27^2))","v":47.169905660283021},{"$f":"AA21+AA22+AA23+AA24+AA25+AA26+AA27","v":18},{"$f":"SQRT((AB21^2)+(AB22^2)+(AB23^2)+(AB24^2)+(AB25^2)+(AB26^2)+(AB27^2))","v":31.144823004794873},{"$f":"AC21+AC22+AC23+AC24+AC25+AC26+AC27","v":205},{"$f":"SQRT((AD21^2)+(AD22^2)+(AD23^2)+(AD24^2)+(AD25^2)+(AD26^2)+(AD27^2))","v":106.81292056675541},{"$f":"AE21+AE22+AE23+AE24+AE25+AE26+AE27","v":10},{"$f":"SQRT((AF21^2)+(AF22^2)+(AF23^2)+(AF24^2)+(AF25^2)+(AF26^2)+(AF27^2))","v":23.643180835073778},{"$f":"AG21+AG22+AG23+AG24+AG25+AG26+AG27","v":201},{"$f":"SQRT((AH21^2)+(AH22^2)+(AH23^2)+(AH24^2)+(AH25^2)+(AH26^2)+(AH27^2))","v":102.45974819410792},{"$f":"AI21+AI22+AI23+AI24+AI25+AI26+AI27","v":5},{"$f":"SQRT((AJ21^2)+(AJ22^2)+(AJ23^2)+(AJ24^2)+(AJ25^2)+(AJ26^2)+(AJ27^2))","v":27.838821814150108},{"$f":"AK21+AK22+AK23+AK24+AK25+AK26+AK27","v":111},{"$f":"SQRT((AL21^2)+(AL22^2)+(AL23^2)+(AL24^2)+(AL25^2)+(AL26^2)+(AL27^2))","v":93.882905792268701},{"$f":"AM21+AM22+AM23+AM24+AM25+AM26+AM27","v":449},{"$f":"SQRT((AN21^2)+(AN22^2)+(AN23^2)+(AN24^2)+(AN25^2)+(AN26^2)+(AN27^2))","v":203.54115063052976}]
[null,"Mobile Home & Other",{"$f":"C28+C29","v":8},{"$f":"SQRT((D28^2)+(D29^2))","v":13.038404810405298},{"$f":"E28+E29","v":0},{"$f":"SQRT((F28^2)+(F29^2))","v":15.556349186104045},{"$f":"G28+G29","v":0},{"$f":"SQRT((H28^2)+(H29^2))","v":15.556349186104045},{"$f":"I28+I29","v":0},{"$f":"SQRT((J28^2)+(J29^2))","v":15.556349186104045},{"$f":"K28+K29","v":121},{"$f":"SQRT((L28^2)+(L29^2))","v":84.929382430346209},{"$f":"M28+M29","v":0},{"$f":"SQRT((N28^2)+(N29^2))","v":15.556349186104045},{"$f":"O28+O29","v":4},{"$f":"SQRT((P28^2)+(P29^2))","v":12.083045973594572},{"$f":"Q28+Q29","v":0},{"$f":"SQRT((R28^2)+(R29^2))","v":15.556349186104045},{"$f":"S28+S29","v":0},{"$f":"SQRT((T28^2)+(T29^2))","v":15.556349186104045},{"$f":"U28+U29","v":0},{"$f":"SQRT((V28^2)+(V29^2))","v":15.556349186104045},{"$f":"W28+W29","v":0},{"$f":"SQRT((X28^2)+(X29^2))","v":15.556349186104045},{"$f":"Y28+Y29","v":14},{"$f":"SQRT((Z28^2)+(Z29^2))","v":18.601075237738275},{"$f":"AA28+AA29","v":32},{"$f":"SQRT((AB28^2)+(AB29^2))","v":39.560080889704963},{"$f":"AC28+AC29","v":62},{"$f":"SQRT((AD28^2)+(AD29^2))","v":60.016664352494629},{"$f":"AE28+AE29","v":0},{"$f":"SQRT((AF28^2)+(AF29^2))","v":15.556349186104045},{"$f":"AG28+AG29","v":0},{"$f":"SQRT((AH28^2)+(AH29^2))","v":15.556349186104045},{"$f":"AI28+AI29","v":0},{"$f":"SQRT((AJ28^2)+(AJ29^2))","v":15.556349186104045},{"$f":"AK28+AK29","v":20},{"$f":"SQRT((AL28^2)+(AL29^2))","v":33.120990323358392},{"$f":"AM28+AM29","v":17},{"$f":"SQRT((AN28^2)+(AN29^2))","v":31.384709652950431}]
[]
[]
[]
[]
[]
[]
[]
[]
[]
[]
[]
[]
[]
[]
[]
[]
[]
[]
[]
[]
[]
[]
[]
[]
[]
[]
[]
[]
[]
[]
[]
[]
[]
[]
[]
[]
[]
[]
[]
[]
[null,"Calculated B25032. TENURE BY UNITS IN STRUCTURE "]
[null,"Universe:  OCCUPIED HOUSING UNITS"]
[null,"Data Set: 2010-2014 American Community Survey 5-Year Estimates"]
[]
[null,null,"Albany",null,"Bartlett",null,"Brookfield",null,"Chatham",null,"Conway",null,"Eaton",null,"Effingham",null,"Freedom",null,"Hale's Location",null,"Hart's Location",null,"Jackson",null,"Madison",null,"Moultonborough",null,"Ossipee",null,"Sandwich",null,"Tamworth",null,"Tuftonboro",null,"Wakefield",null,"Wolfeboro"]
[null," ","Estimate","Margin of Error","Estimate","Margin of Error","Estimate","Margin of Error","Estimate","Margin of Error","Estimate","Margin of Error","Estimate","Margin of Error","Estimate","Margin of Error","Estimate","Margin of Error","Estimate","Margin of Error","Estimate","Margin of Error","Estimate","Margin of Error","Estimate","Margin of Error","Estimate","Margin of Error","Estimate","Margin of Error","Estimate","Margin of Error","Estimate","Margin of Error","Estimate","Margin of Error","Estimate","Margin of Error","Estimate","Margin of Error"]
[null,"Total:",308,53,1567,184,298,64,161,35,4365,233,176,33,553,70,532,66,67,21,26,14,444,91,1133,93,1762,94,1761,183,645,87,1512,148,975,121,2260,207,2734,204]
[null,"Owner-occupied housing units:",263,55,1155,180,289,62,134,33,2966,278,146,28,461,57,442,59,67,21,10,10,363,79,980,103,1591,121,1484,205,501,63,1047,156,805,107,2019,238,2214,217]
[null,"Single Family",197,45,923,157,281,61,117,33,2154,223,142,28,434,56,416,57,65,20,10,10,327,71,918,102,1559,119,1147,176,492,61,932,154,767,109,1823,238,2008,202]
[null,"Multi-Family",10,26.362852652928137,232,119.77478866606278,8,29.49576240750525,5,25.099800796022265,313,160.2404443328837,4,25,4,25.099800796022265,9,30.364452901377952,2,27.110883423451916,0,29.103264421710495,36,44.530888156424638,8,29.103264421710495,12,35.425979167836701,23,32.03123475609393,0,29.103264421710495,25,47.402531577965327,0,29.103264421710495,85,89.604687377391144,138,92.076055519336833]
[null,"Mobile Home & Other",56,34.785054261852174,0,15.556349186104045,0,15.556349186104045,12,13.038404810405298,499,153.94154734833609,0,15.556349186104045,23,17.029386365926403,17,16.278820596099706,0,15.556349186104045,0,15.556349186104045,0,15.556349186104045,54,47.296934361541872,20,21.95449840010015,314,112.08925015361643,9,13.601470508735444,90,58.051701094799967,38,29.154759474226502,111,92.22797840135064,68,59.908263203000637]
[null,"Renter-occupied housing units:",45,20,412,210,9,11,27,14,1399,271,30,20,92,45,90,39,0,11,16,12,81,45,153,66,171,69,277,101,144,64,465,160,170,73,241,136,520,181]
[null,"Single Family",28,15,174,116,9,11,7,6,363,142,20,19,28,18,63,31,0,11,16,12,60,37,70,49,138,66,126,73,119,54,159,103,105,58,86,85,314,127]
[null,"Multi-Family",8,28.740215726399828,238,158.87731115549508,0,29.103264421710495,19,29.916550603303182,959,257.24890670321616,10,24.269322199023193,48,45.055521304275238,23,32.954514106568162,0,29.103264421710495,0,29.103264421710495,21,34.161381705077446,46,46.529560496527367,33,29.765752132274432,106,75.458597919653926,25,33.136083051561783,292,153.7010084547268,65,50.299105359837164,127,117.5627492022877,206,141.90842117365693]
[null,"Mobile Home & Other",9,13.601470508735444,0,15.556349186104045,0,15.556349186104045,1,11.401754250991379,77,61.400325732035007,0,15.556349186104045,16,18.601075237738275,4,13.038404810405298,0,15.556349186104045,0,15.556349186104045,0,15.556349186104045,37,39.560080889704963,0,15.556349186104045,45,47.296934361541872,0,15.556349186104045,14,23.706539182259394,0,15.556349186104045,28,47.434164902525687,0,21.213203435596427]
[]
[]
[]
[null,"Calculated B25032. TENURE BY UNITS IN STRUCTURE "]
[null,"Universe:  OCCUPIED HOUSING UNITS"]
[null,"Data Set: 2005-2009 American Community Survey 5-Year Estimates"]
[]
[null,null,"Albany",null,"Bartlett",null,"Brookfield",null,"Chatham",null,"Conway",null,"Eaton",null,"Effingham",null,"Freedom",null,"Hale's Location",null,"Hart's Location",null,"Jackson",null,"Madison",null,"Moultonborough",null,"Ossipee",null,"Sandwich",null,"Tamworth",null,"Tuftonboro",null,"Wakefield",null,"Wolfeboro"]
[null," ","Estimate","Margin of Error","Estimate","Margin of Error","Estimate","Margin of Error","Estimate","Margin of Error","Estimate","Margin of Error","Estimate","Margin of Error","Estimate","Margin of Error","Estimate","Margin of Error","Estimate","Margin of Error","Estimate","Margin of Error","Estimate","Margin of Error","Estimate","Margin of Error","Estimate","Margin of Error","Estimate","Margin of Error","Estimate","Margin of Error","Estimate","Margin of Error","Estimate","Margin of Error","Estimate","Margin of Error","Estimate","Margin of Error"]
[null,"Total:",304,67,1203,117,258,52,118,37,3783,258,151,31,423,63,552,70,59,20,37,21,361,77,830,90,2003,119,1842,183,598,61,1021,117,929,115,1773,198,2790,210]
[null,"Owner-occupied housing units:",267,68,902,129,240,51,103,33,2411,216,138,30,381,61,515,68,59,20,27,20,319,77,682,84,1884,129,1568,190,525,54,827,110,850,105,1567,212,2108,210]
[null,"Single Family",184,50,729,105,237,51,96,33,1927,218,131,30,339,53,467,63,59,20,27,20,302,76,643,83,1770,152,1161,193,512,54,718,106,771,100,1306,204,1835,210]
[null,"Multi-Family",3,279.27047821064082,108,204.82431496284809,0,301.61564946136332,0,301.61564946136332,224,150.08997301618786,7,279.30628349537716,0,301.61564946136332,12,255.16269319788896,0,301.61564946136332,0,301.61564946136332,8,255.07841931453157,11,279.49955277245078,47,259.79992301769454,42,231.56424594483494,7,255.03921267130667,27,256.71969149249145,8,255.12545933324648,162,222.63647499904414,155,220.40417418914734]
[null,"Mobile Home & Other",80,121.49074038789952,65,127.90621564255585,3,114.15778554264269,7,114.21471008587291,260,152.30561381643159,0,161.22034611053283,42,116.70903992407786,36,115.91807451816995,0,161.22034611053283,0,161.22034611053283,9,114.85643212288984,28,119.25183436744275,67,131.7269904006009,365,157.72444325468391,6,114.21471008587291,82,118.96217886370441,71,120.16655108639841,99,131.22880781291889,118,130.24976007655445]
[null,"Renter-occupied housing units:",37,23,301,108,18,18,15,16,1372,247,13,9,42,23,37,23,0,114,10,14,42,25,148,61,119,71,274,113,73,29,194,71,79,55,206,95,682,209]
[null,"Single Family",21,18,89,50,15,17,11,14,342,170,5,7,12,10,13,12,0,114,10,14,32,22,52,35,40,46,101,52,68,29,89,53,63,49,166,89,275,125]
[null,"Multi-Family",8,255.18032839543099,194,218.85383250014152,3,279.28659115682586,0,301.61564946136332,912,244.52811699270904,8,279.32955446926843,30,255.65015157437321,19,255.51125219841103,0,301.61564946136332,0,301.61564946136332,10,279.49955277245078,69,202.87188075236054,67,233.74558819365981,148,247.1699819961963,5,254.9745085297744,83,168.54079624826744,16,280.35869881278876,40,257.30332294783915,407,281.88827574058485]
[null,"Mobile Home & Other",8,114.73883387938018,18,116.92732785794773,0,161.22034611053283,4,114.15778554264269,118,135.36986370680884,0,161.22034611053283,0,161.22034611053283,5,114.28035701729323,0,161.22034611053283,0,161.22034611053283,0,161.22034611053283,27,116.49892703368559,12,115.41230437002807,25,121.14866899805379,0,161.22034611053283,22,115.7410903698423,0,161.22034611053283,0,161.22034611053283,0,161.22034611053283]

{"sheet":"ACS_Table_B25034","index":48,"n_rows":58,"n_cols":40,"rows_kept":58,"cut":false,"hidden":true,"merged":[]}
[null,"B25034. YEAR STRUCTURE BUILT"]
[null,"Universe:  HOUSING UNITS"]
[null,"Data Set: 2015-2019 American Community Survey 5-Year Estimates"]
[]
[null,null,"Albany",null,"Bartlett",null,"Brookfield",null,"Chatham",null,"Conway",null,"Eaton",null,"Effingham",null,"Freedom",null,"Hale's Location",null,"Hart's Location",null,"Jackson",null,"Madison",null,"Moultonborough",null,"Ossipee",null,"Sandwich",null,"Tamworth",null,"Tuftonboro",null,"Wakefield",null,"Wolfeboro"]
[null," ","Estimate","Margin of Error","Estimate","Margin of Error","Estimate","Margin of Error","Estimate","Margin of Error","Estimate","Margin of Error","Estimate","Margin of Error","Estimate","Margin of Error","Estimate","Margin of Error","Estimate","Margin of Error","Estimate","Margin of Error","Estimate","Margin of Error","Estimate","Margin of Error","Estimate","Margin of Error","Estimate","Margin of Error","Estimate","Margin of Error","Estimate","Margin of Error","Estimate","Margin of Error","Estimate","Margin of Error","Estimate","Margin of Error"]
[null,"Total:",542,74,4491,255,391,61,254,58,7078,368,248,51,913,99,1910,119,97,22,64,22,1055,123,1973,124,4870,207,3168,201,1049,120,2003,242,2445,96,3771,208,4846,245]
[null,"Built 2014 or later",3,4,0,11,1,4,2,4,25,28,0,11,20,20,6,7,0,11,0,11,0,11,23,20,86,71,28,44,3,5,12,19,0,11,140,114,35,39]
[null,"Built 2010 to 2013",22,12,0,11,4,7,9,10,44,37,1,3,16,11,27,21,6,5,0,11,0,11,13,16,28,23,76,67,7,7,0,11,16,26,10,17,182,114]
[null,"Built 2000 to 2009",66,25,462,183,75,29,45,25,858,241,36,17,265,63,279,67,62,18,13,11,91,43,350,114,618,160,542,182,134,49,263,119,452,106,900,228,751,260]
[null,"Built 1990 to 1999",40,18,458,164,21,17,32,19,546,176,21,13,87,35,330,61,25,11,2,4,87,40,266,81,660,166,233,115,81,33,154,107,181,62,341,155,767,277]
[null,"Built 1980 to 1989",109,36,2182,254,65,25,31,18,1746,304,36,22,102,38,483,84,4,4,10,8,247,63,419,109,1031,204,558,178,169,56,547,213,342,94,684,234,772,219]
[null,"Built 1970 to 1979",92,35,420,158,82,30,31,15,1387,309,26,16,87,30,251,61,0,11,30,17,155,61,311,96,807,216,415,160,96,44,354,165,394,100,569,198,371,173]
[null,"Built 1960 to 1969",64,31,421,138,23,14,19,17,398,181,40,20,59,38,247,60,0,11,4,7,189,62,164,71,711,172,194,87,59,30,66,85,351,94,217,112,417,178]
[null,"Built 1950 to 1959",36,21,58,55,17,16,7,10,565,232,20,17,76,34,130,58,0,11,0,11,46,34,103,57,420,144,209,108,59,33,104,100,177,69,259,131,318,185]
[null,"Built 1940 to 1949",22,17,48,39,5,7,10,12,228,128,1,4,14,15,11,11,0,11,0,11,31,25,62,33,91,68,157,100,33,23,43,70,146,78,0,16,243,160]
[null,"Built 1939 or earlier",88,30,442,159,98,30,68,30,1281,280,67,31,187,57,146,51,0,11,5,8,209,68,262,78,418,124,756,204,408,82,460,150,386,102,651,224,990,281]
[]
[]
[]
[]
[null,"B25034. YEAR STRUCTURE BUILT"]
[null,"Universe:  HOUSING UNITS"]
[null,"Data Set: 2010-2014 American Community Survey 5-Year Estimates"]
[]
[null,null,"Albany",null,"Bartlett",null,"Brookfield",null,"Chatham",null,"Conway",null,"Eaton",null,"Effingham",null,"Freedom",null,"Hale's Location",null,"Hart's Location",null,"Jackson",null,"Madison",null,"Moultonborough",null,"Ossipee",null,"Sandwich",null,"Tamworth",null,"Tuftonboro",null,"Wakefield",null,"Wolfeboro"]
[null," ","Estimate","Margin of Error","Estimate","Margin of Error","Estimate","Margin of Error","Estimate","Margin of Error","Estimate","Margin of Error","Estimate","Margin of Error","Estimate","Margin of Error","Estimate","Margin of Error","Estimate","Margin of Error","Estimate","Margin of Error","Estimate","Margin of Error","Estimate","Margin of Error","Estimate","Margin of Error","Estimate","Margin of Error","Estimate","Margin of Error","Estimate","Margin of Error","Estimate","Margin of Error","Estimate","Margin of Error","Estimate","Margin of Error"]
[null,"Total:",557,74,4325,252,361,69,257,41,6429,304,284,41,982,87,1740,84,102,25,53,19,998,113,2020,124,4922,197,2992,261,1001,99,2227,193,2343,93,3963,274,4453,301]
[null,"Built 2010 or later",0,11,0,11,0,11,0,11,61,43,0,11,0,11,3,5,2,3,0,11,0,11,34,27,30,37,28,44,0,11,0,11,0,11,0,15,11,16]
[null,"Built 2000 to 2009",98,41,255,108,74,38,37,16,658,174,44,20,204,49,257,61,50,17,4,7,69,36,401,108,645,166,583,167,145,49,176,90,415,112,645,236,492,183]
[null,"Built 1990 to 1999",63,30,420,154,13,8,29,19,568,179,19,14,105,40,314,70,45,18,16,13,123,43,130,59,845,152,465,140,107,38,382,181,315,98,220,124,699,180]
[null,"Built 1980 to 1989",61,29,1988,286,59,27,44,21,1834,299,45,23,137,42,420,72,0,11,6,6,205,59,492,105,1016,210,745,199,120,33,466,152,365,82,769,247,674,184]
[null,"Built 1970 to 1979",119,47,938,215,61,27,26,13,1331,287,32,18,159,54,267,65,2,5,13,13,204,46,408,104,910,216,423,146,109,41,367,149,188,72,802,253,419,172]
[null,"Built 1960 to 1969",48,28,187,114,34,25,17,14,590,206,31,19,73,28,160,47,0,11,4,6,114,48,255,93,539,176,172,80,78,32,144,91,337,100,601,223,503,189]
[null,"Built 1950 to 1959",33,23,38,46,27,21,20,10,133,71,22,17,114,44,100,37,0,11,10,8,68,35,48,39,253,103,221,114,19,14,95,87,273,86,243,140,530,196]
[null,"Built 1940 to 1949",32,19,30,35,4,5,16,13,111,84,8,6,16,12,47,27,0,11,0,11,38,28,44,33,202,121,20,24,21,16,0,11,109,50,161,147,157,121]
[null,"Built 1939 or earlier",103,37,469,162,89,32,68,25,1143,285,83,25,174,53,172,49,3,5,0,11,177,57,208,80,482,144,335,104,402,79,597,155,341,107,522,177,968,233]
[]
[]
[]
[]
[]
[null,"B25034. YEAR STRUCTURE BUILT"]
[null,"Universe:  HOUSING UNITS"]
[null,"Data Set: 2005-2009 American Community Survey 5-Year Estimates"]
[]
[null,null,"Albany",null,"Bartlett",null,"Brookfield",null,"Chatham",null,"Conway",null,"Eaton",null,"Effingham",null,"Freedom",null,"Hale's Location",null,"Hart's Location",null,"Jackson",null,"Madison",null,"Moultonborough",null,"Ossipee",null,"Sandwich",null,"Tamworth",null,"Tuftonboro",null,"Wakefield",null,"Wolfeboro"]
[null," ","Estimate","Margin of Error","Estimate","Margin of Error","Estimate","Margin of Error","Estimate","Margin of Error","Estimate","Margin of Error","Estimate","Margin of Error","Estimate","Margin of Error","Estimate","Margin of Error","Estimate","Margin of Error","Estimate","Margin of Error","Estimate","Margin of Error","Estimate","Margin of Error","Estimate","Margin of Error","Estimate","Margin of Error","Estimate","Margin of Error","Estimate","Margin of Error","Estimate","Margin of Error","Estimate","Margin of Error","Estimate","Margin of Error"]
[null,"Total:",573,67,3945,209,284,56,284,59,6069,371,225,35,761,77,1629,84,95,28,106,53,892,83,1747,68,5364,191,3328,241,1038,83,1661,113,2172,68,3860,240,4283,232]
[null,"Built 2005 or later",11,12,19,29,0,114,4,6,107,86,2,4,4,6,2,4,0,114,0,114,16,14,21,22,90,68,83,48,14,11,10,17,49,35,48,47,112,89]
[null,"Built 2000 to 2004",36,27,71,38,9,9,20,18,344,132,13,10,27,18,47,25,18,14,0,114,33,24,81,38,284,106,326,140,49,19,13,13,127,74,125,71,323,173]
[null,"Built 1990 to 1999",40,20,265,96,29,22,43,24,579,168,34,16,94,44,183,62,70,27,12,17,116,38,298,86,809,174,286,122,113,38,144,50,190,74,279,124,424,149]
[null,"Built 1980 to 1989",107,41,1783,193,65,36,8,8,1813,285,41,20,163,45,570,77,0,114,24,17,217,49,443,91,1254,258,819,178,141,40,327,83,411,138,677,178,617,203]
[null,"Built 1970 to 1979",129,53,1046,173,45,21,62,23,1197,232,14,12,99,49,231,51,0,114,66,51,180,62,298,84,1173,211,693,151,162,46,381,97,442,92,787,205,437,163]
[null,"Built 1960 to 1969",65,33,215,92,13,12,11,13,351,126,13,12,86,38,204,43,0,114,4,6,168,42,151,62,664,160,189,106,74,30,259,82,206,83,397,164,601,224]
[null,"Built 1950 to 1959",53,27,127,60,8,10,18,13,250,117,21,17,79,35,56,26,0,114,0,114,23,20,108,59,476,151,201,93,67,38,43,30,206,89,370,177,291,163]
[null,"Built 1940 to 1949",51,32,16,20,15,19,17,13,203,115,7,7,20,19,71,27,0,114,0,114,15,14,70,45,152,94,131,84,32,21,13,21,108,66,407,166,161,112]
[null,"Built 1939 or earlier",81,35,403,116,100,43,101,50,1225,211,80,23,189,54,265,69,7,11,0,114,124,41,277,75,462,161,600,167,386,65,471,93,433,108,770,208,1317,243]

{"sheet":"ACS_Table_B25041","index":49,"n_rows":73,"n_cols":40,"rows_kept":73,"cut":false,"hidden":true,"merged":[]}
[null,"B25041. BEDROOMS "]
[null,"Universe:  HOUSING UNITS"]
[null,"Data Set: 2015-2019 American Community Survey 5-Year Estimates"]
[]
[null,null,"Albany",null,"Bartlett",null,"Brookfield",null,"Chatham",null,"Conway",null,"Eaton",null,"Effingham",null,"Freedom",null,"Hale's Location",null,"Hart's Location",null,"Jackson",null,"Madison",null,"Moultonborough",null,"Ossipee",null,"Sandwich",null,"Tamworth",null,"Tuftonboro",null,"Wakefield",null,"Wolfeboro"]
[null," ","Estimate","Margin of Error","Estimate","Margin of Error","Estimate","Margin of Error","Estimate","Margin of Error","Estimate","Margin of Error","Estimate","Margin of Error","Estimate","Margin of Error","Estimate","Margin of Error","Estimate","Margin of Error","Estimate","Margin of Error","Estimate","Margin of Error","Estimate","Margin of Error","Estimate","Margin of Error","Estimate","Margin of Error","Estimate","Margin of Error","Estimate","Margin of Error","Estimate","Margin of Error","Estimate","Margin of Error","Estimate","Margin of Error"]
[null,"Total:",542,74,4491,255,391,61,254,58,7078,368,248,51,913,99,1910,119,97,22,64,22,1055,123,1973,124,4870,207,3168,201,1049,120,2003,242,2445,96,3771,208,4846,245]
[null,"No bedroom",46,26,338,106,3,5,21,17,188,146,7,8,14,14,4,7,0,11,4,6,26,24,31,32,0,11,100,85,11,14,27,29,19,18,87,100,159,119]
[null,"1 bedroom",39,22,441,156,7,9,29,19,689,227,8,10,42,22,195,52,0,11,6,10,65,34,77,44,301,119,452,144,101,43,214,110,221,83,164,120,521,182]
[null,"2 bedrooms",204,45,1646,260,49,25,78,31,2198,371,77,30,238,57,556,81,6,5,24,16,285,66,404,100,1196,270,944,202,297,74,452,174,699,118,1029,263,1408,330]
[null,"3 bedrooms",194,50,1503,250,230,48,83,29,2633,407,103,27,439,66,836,102,56,15,25,16,436,102,1038,135,2287,268,1188,214,392,79,895,258,906,121,2013,286,1799,334]
[null,"4 bedrooms",44,22,530,152,64,28,35,18,1066,319,37,24,134,55,284,63,35,16,1,3,199,72,286,74,822,208,360,129,211,63,355,171,472,115,388,188,715,255]
[null,"5 or more bedrooms",15,15,33,40,38,19,8,10,304,169,16,13,46,33,35,20,0,11,4,6,44,32,137,59,264,101,124,80,37,25,60,46,128,61,90,80,244,122]
[]
[]
[null,"Calculated B25041. BEDROOMS "]
[null,"Universe:  HOUSING UNITS"]
[null,"Data Set: 2015-2019 American Community Survey 5-Year Estimates"]
[]
[null,null,"Albany",null,"Bartlett",null,"Brookfield",null,"Chatham",null,"Conway",null,"Eaton",null,"Effingham",null,"Freedom",null,"Hale's Location",null,"Hart's Location",null,"Jackson",null,"Madison",null,"Moultonborough",null,"Ossipee",null,"Sandwich",null,"Tamworth",null,"Tuftonboro",null,"Wakefield",null,"Wolfeboro"]
[null," ","Estimate","Margin of Error","Estimate","Margin of Error","Estimate","Margin of Error","Estimate","Margin of Error","Estimate","Margin of Error","Estimate","Margin of Error","Estimate","Margin of Error","Estimate","Margin of Error","Estimate","Margin of Error","Estimate","Margin of Error","Estimate","Margin of Error","Estimate","Margin of Error","Estimate","Margin of Error","Estimate","Margin of Error","Estimate","Margin of Error","Estimate","Margin of Error","Estimate","Margin of Error","Estimate","Margin of Error","Estimate","Margin of Error"]
[null,"Total:",{"$f":"C7","v":542},{"$f":"D7","v":74},4491,255,391,61,254,58,7078,368,248,51,913,99,1910,119,97,22,64,22,1055,123,1973,124,4870,207,3168,201,1049,120,2003,242,2445,96,3771,208,4846,245]
[null,"No bedroom",{"$f":"C8","v":46},26,338,106,3,5,21,17,188,146,7,8,14,14,4,7,0,11,4,6,26,24,31,32,0,11,100,85,11,14,27,29,19,18,87,100,159,119]
[null,"1 bedroom",{"$f":"C9","v":39},22,441,156,7,9,29,19,689,227,8,10,42,22,195,52,0,11,6,10,65,34,77,44,301,119,452,144,101,43,214,110,221,83,164,120,521,182]
[null,"2 bedrooms",{"$f":"C10","v":204},45,1646,260,49,25,78,31,2198,371,77,30,238,57,556,81,6,5,24,16,285,66,404,100,1196,270,944,202,297,74,452,174,699,118,1029,263,1408,330]
[null,"3 bedrooms",{"$f":"C11","v":194},50,1503,250,230,48,83,29,2633,407,103,27,439,66,836,102,56,15,25,16,436,102,1038,135,2287,268,1188,214,392,79,895,258,906,121,2013,286,1799,334]
[null,"4 + bedrooms",{"$f":"C12+C13","v":59},{"$f":"SQRT((D12^2)+(D13^2))","v":26.627053911388696},{"$f":"E12+E13","v":563},{"$f":"SQRT((F12^2)+(F13^2))","v":157.17506163510799},{"$f":"G12+G13","v":102},{"$f":"SQRT((H12^2)+(H13^2))","v":33.837848631377263},{"$f":"I12+I13","v":43},{"$f":"SQRT((J12^2)+(J13^2))","v":20.591260281974002},{"$f":"K12+K13","v":1370},{"$f":"SQRT((L12^2)+(L13^2))","v":361.00138503889428},{"$f":"M12+M13","v":53},{"$f":"SQRT((N12^2)+(N13^2))","v":27.294688127912362},{"$f":"O12+O13","v":180},{"$f":"SQRT((P12^2)+(P13^2))","v":64.140470843298303},{"$f":"Q12+Q13","v":319},{"$f":"SQRT((R12^2)+(R13^2))","v":66.098411478642959},{"$f":"S12+S13","v":35},{"$f":"SQRT((T12^2)+(T13^2))","v":19.416487838947599},{"$f":"U12+U13","v":5},{"$f":"SQRT((V12^2)+(V13^2))","v":6.7082039324993694},{"$f":"W12+W13","v":243},{"$f":"SQRT((X12^2)+(X13^2))","v":78.790862414368831},{"$f":"Y12+Y13","v":423},{"$f":"SQRT((Z12^2)+(Z13^2))","v":94.641428560646744},{"$f":"AA12+AA13","v":1086},{"$f":"SQRT((AB12^2)+(AB13^2))","v":231.22499864850255},{"$f":"AC12+AC13","v":484},{"$f":"SQRT((AD12^2)+(AD13^2))","v":151.79262169156971},{"$f":"AE12+AE13","v":248},{"$f":"SQRT((AF12^2)+(AF13^2))","v":67.779052811322174},{"$f":"AG12+AG13","v":415},{"$f":"SQRT((AH12^2)+(AH13^2))","v":177.07907838025361},{"$f":"AI12+AI13","v":600},{"$f":"SQRT((AJ12^2)+(AJ13^2))","v":130.17680284904833},{"$f":"AK12+AK13","v":478},{"$f":"SQRT((AL12^2)+(AL13^2))","v":204.31348462595415},{"$f":"AM12+AM13","v":959},{"$f":"SQRT((AN12^2)+(AN13^2))","v":282.68179990936807}]
[]
[]
[]
[]
[]
[]
[]
[]
[]
[]
[]
[]
[]
[]
[]
[]
[]
[]
[]
[null,"Calculated B25041. BEDROOMS "]
[null,"Universe:  HOUSING UNITS"]
[null,"Data Set: 2010-2014 American Community Survey 5-Year Estimates"]
[]
[null,null,"Albany",null,"Bartlett",null,"Brookfield",null,"Chatham",null,"Conway",null,"Eaton",null,"Effingham",null,"Freedom",null,"Hale's Location",null,"Hart's Location",null,"Jackson",null,"Madison",null,"Moultonborough",null,"Ossipee",null,"Sandwich",null,"Tamworth",null,"Tuftonboro",null,"Wakefield",null,"Wolfeboro"]
[null," ","Estimate","Margin of Error","Estimate","Margin of Error","Estimate","Margin of Error","Estimate","Margin of Error","Estimate","Margin of Error","Estimate","Margin of Error","Estimate","Margin of Error","Estimate","Margin of Error","Estimate","Margin of Error","Estimate","Margin of Error","Estimate","Margin of Error","Estimate","Margin of Error","Estimate","Margin of Error","Estimate","Margin of Error","Estimate","Margin of Error","Estimate","Margin of Error","Estimate","Margin of Error","Estimate","Margin of Error","Estimate","Margin of Error"]
[null,"Total:",557,74,4325,252,361,69,257,41,6429,304,284,41,982,87,1740,84,102,25,53,19,998,113,2020,124,4922,197,2992,261,1001,99,2227,193,2343,93,3963,274,4453,301]
[null,"No bedroom",11,11,327,126,0,11,2,3,103,99,2,4,4,6,32,18,0,11,5,7,38,26,32,35,72,62,46,54,20,22,48,60,63,44,117,114,159,109]
[null,"1 bedroom",67,29,468,152,17,18,28,14,495,164,21,13,88,41,222,67,0,11,0,11,36,26,114,65,93,59,286,148,85,36,453,173,228,95,345,179,238,132]
[null,"2 bedrooms",160,46,1114,230,69,32,89,30,2052,319,65,23,394,80,597,95,4,8,15,13,223,65,519,107,1418,255,829,227,331,66,645,198,773,150,1256,299,1244,259]
[null,"3 bedrooms",274,57,1977,234,183,48,92,36,2703,305,112,26,405,68,685,91,62,21,19,14,393,87,993,167,2262,263,1477,197,383,70,829,204,891,131,1692,326,2002,346]
[null,"4 + bedrooms",45,27.313000567495326,439,145.43727170158274,92,37.696153649941529,46,17.204650534085253,1076,278.69158580768095,84,28.42534080710379,91,36.674241641784498,204,58.898217290508889,36,15.297058540778355,14,16.278820596099706,308,75.802374632988901,362,115.24755962709145,1077,220.05681084665386,354,118.10588469674151,182,45.694638635183452,252,133.9589489358587,388,116.76472069936193,553,145.05516192124981,810,228.46443924602357]
[]
[]
[]
[null,"Calculated B25041. BEDROOMS "]
[null,"Universe:  HOUSING UNITS"]
[null,"Data Set: 2005-2009 American Community Survey 5-Year Estimates"]
[]
[null,null,"Albany",null,"Bartlett",null,"Brookfield",null,"Chatham",null,"Conway",null,"Eaton",null,"Effingham",null,"Freedom",null,"Hale's Location",null,"Hart's Location",null,"Jackson",null,"Madison",null,"Moultonborough",null,"Ossipee",null,"Sandwich",null,"Tamworth",null,"Tuftonboro",null,"Wakefield",null,"Wolfeboro"]
[null," ","Estimate","Margin of Error","Estimate","Margin of Error","Estimate","Margin of Error","Estimate","Margin of Error","Estimate","Margin of Error","Estimate","Margin of Error","Estimate","Margin of Error","Estimate","Margin of Error","Estimate","Margin of Error","Estimate","Margin of Error","Estimate","Margin of Error","Estimate","Margin of Error","Estimate","Margin of Error","Estimate","Margin of Error","Estimate","Margin of Error","Estimate","Margin of Error","Estimate","Margin of Error","Estimate","Margin of Error","Estimate","Margin of Error"]
[null,"Total:",573,67,3945,209,284,56,284,59,6069,371,225,35,761,77,1629,84,95,28,106,53,892,83,1747,68,5364,191,3328,241,1038,83,1661,113,2172,68,3860,240,4283,232]
[null,"No bedroom",12,11,78,57,0,114,43,50,0,114,8,9,15,14,10,11,7,11,0,114,25,21,16,17,14,22,74,60,31,25,33,33,20,24,24,32,0,114]
[null,"1 bedroom",45,26,324,123,8,9,30,18,711,191,12,12,176,61,120,59,0,114,22,19,41,23,94,46,316,121,455,126,110,47,158,66,112,67,320,142,711,224]
[null,"2 bedrooms",143,39,1800,228,70,38,75,28,2090,323,59,25,237,55,479,60,3,5,33,20,260,76,539,94,1214,245,961,194,254,52,598,113,710,139,1735,262,919,248]
[null,"3 bedrooms",350,69,1275,196,148,44,114,40,2315,337,106,26,241,46,799,82,69,20,47,50,396,61,860,124,2693,305,1340,209,392,62,631,110,1008,143,1317,201,1600,269]
[null,"4 + bedrooms",23,19.924858845171276,468,133.46160496562297,58,29.154759474226502,22,13.416407864998739,953,196.30843079195554,40,20.124611797498108,92,38.013155617496423,221,59.059292240933601,16,114.9826073804208,4,114.15778554264269,170,47.885279575251516,238,69.570108523704349,1127,235.30830839560255,498,161.01242188104618,251,58.051701094799967,241,80.622577482985491,322,135.35878250043476,464,138.70832707519762,1053,265.40911815534901]

{"sheet":"PovertyCharacteristics","index":50,"n_rows":80,"n_cols":16,"rows_kept":80,"cut":false,"hidden":true,"merged":[[77,2,78,3],[77,6,78,9],[77,11,78,13],[21,11,21,13],[49,11,49,14],[64,3,64,5],[64,7,64,9],[64,11,64,14],[21,3,21,5],[21,7,21,9],[30,2,31,4],[30,7,31,9],[30,11,31,13]]}
[]
[null,null,{"$f":"CntyDataLink!A86","v":"Albany"}]
[null,null,"POVERTY CHARACTERISTICS"]
[]
[]
[]
[]
[]
[]
[]
[]
[]
[]
[]
[]
[]
[]
[null,null,null,null,null,null,null,null,null,null,null,null,"2009 Income (2005-2009 ACS)"]
[null,null,null,null,null,null,null,null,null,null,null,null,"2014 Income (2010-2014 ACS)"]
[null,null,null,null,null,null,null,null,null,null,null,null,"2019 Income (2015-2019 ACS)"]
[]
[null,null,null,"2009 Inc below Poverty Level",null,null,null,"2014 Inc below Poverty Level",null,null,null,"2019 Inc below Poverty Level"]
[null,null,"Population","Estimate","Margin of Error","% of Population in Poverty",null,"Estimate","Margin of Error","% of Population in Poverty",null,"Estimate","Margin of Error","% of Population in Poverty",null,"Statistically Significant Change"]
[null,null," Total Individuals living Poverty",{"$f":"#REF!","v":{"$error":"#REF!"}},{"$f":"#REF!","v":{"$error":"#REF!"}},{"$f":"D24/#REF!","v":{"$error":"#REF!"}},null,{"$f":"CntyDataLinkPrior5YearEstimates!$D$124","v":131},{"$f":"CntyDataLinkPrior5YearEstimates!$E$124","v":102},{"$f":"H24/CntyDataLinkPrior5YearEstimates!$B$124","v":0.16436637390213299},null,{"$f":"CntyDataLink!$D$124","v":81},{"$f":"CntyDataLink!$E$124","v":45},{"$f":"L24/CntyDataLink!$B$124","v":0.11587982832618025},null,{"$f":"StatisticallySignificantCalcs!A111","v":{"$error":"#REF!"}}]
[null,null,"Under 5 yrs.",{"$f":"#REF!","v":{"$error":"#REF!"}},{"$f":"#REF!","v":{"$error":"#REF!"}},{"$f":"D25/(#REF!+#REF!)","v":{"$error":"#REF!"}},null,{"$f":"CntyDataLinkPrior5YearEstimates!$F$124","v":19},{"$f":"CntyDataLinkPrior5YearEstimates!$G$124","v":21.587033144922902},{"$f":"H25/(CntyDataLinkPrior5YearEstimates!$F$124+CntyDataLinkPrior5YearEstimates!$R$124)","v":0.31666666666666665},null,{"$f":"CntyDataLink!$F$124","v":15},{"$f":"CntyDataLink!$G$124","v":30.083217912982647},{"$f":"L25/(CntyDataLink!$F$124+CntyDataLink!$R$124)","v":0.65217391304347827},null,{"$f":"StatisticallySignificantCalcs!A112","v":{"$error":"#REF!"}}]
[null,null,"5 to 17 yrs.",{"$f":"#REF!","v":{"$error":"#REF!"}},{"$f":"#REF!","v":{"$error":"#REF!"}},{"$f":"D26/(#REF!+#REF!)","v":{"$error":"#REF!"}},null,{"$f":"CntyDataLinkPrior5YearEstimates!$H$124","v":24},{"$f":"CntyDataLinkPrior5YearEstimates!$I$124","v":34.205262752974143},{"$f":"H26/(CntyDataLinkPrior5YearEstimates!$H$124+CntyDataLinkPrior5YearEstimates!$T$124)","v":0.15789473684210525},null,{"$f":"CntyDataLink!$H$124","v":7},{"$f":"CntyDataLink!$I$124","v":30.528675044947494},{"$f":"L26/(CntyDataLink!$H$124+CntyDataLink!$T$124)","v":8.4337349397590355E-2},null,{"$f":"StatisticallySignificantCalcs!A113","v":{"$error":"#REF!"}}]
[null,null,"18 to 64 yrs.",{"$f":"#REF!","v":{"$error":"#REF!"}},{"$f":"#REF!","v":{"$error":"#REF!"}},{"$f":"D27/(#REF!+#REF!)","v":{"$error":"#REF!"}},null,{"$f":"CntyDataLinkPrior5YearEstimates!$J$124","v":83},{"$f":"CntyDataLinkPrior5YearEstimates!$K$124","v":49.406477308142499},{"$f":"H27/(CntyDataLinkPrior5YearEstimates!$J$124+CntyDataLinkPrior5YearEstimates!$V$124)","v":0.18403547671840353},null,{"$f":"CntyDataLink!$J$124","v":44},{"$f":"CntyDataLink!$K$124","v":31.272991542223778},{"$f":"L27/(CntyDataLink!$J$124+CntyDataLink!$V$124)","v":9.9322799097065456E-2},null,{"$f":"StatisticallySignificantCalcs!A114","v":{"$error":"#REF!"}}]
[null,null,"65 to 74 yrs.",{"$f":"#REF!","v":{"$error":"#REF!"}},{"$f":"#REF!","v":{"$error":"#REF!"}},{"$f":"D28/(#REF!+#REF!)","v":{"$error":"#REF!"}},null,{"$f":"CntyDataLinkPrior5YearEstimates!$L$124","v":3},{"$f":"CntyDataLinkPrior5YearEstimates!$M$124","v":12.083045973594572},{"$f":"H28/(CntyDataLinkPrior5YearEstimates!$L$124+CntyDataLinkPrior5YearEstimates!$X$124)","v":3.9473684210526314E-2},null,{"$f":"CntyDataLink!$L$124","v":5},{"$f":"CntyDataLink!$M$124","v":5.6568542494923806},{"$f":"L28/(CntyDataLink!$L$124+CntyDataLink!$X$124)","v":5.7471264367816091E-2},null,{"$f":"StatisticallySignificantCalcs!A115","v":{"$error":"#REF!"}}]
[null,null,"75 yrs. & Over",{"$f":"#REF!","v":{"$error":"#REF!"}},{"$f":"#REF!","v":{"$error":"#REF!"}},{"$f":"D29/(#REF!+#REF!)","v":{"$error":"#REF!"}},null,{"$f":"CntyDataLinkPrior5YearEstimates!$N$124","v":2},{"$f":"CntyDataLinkPrior5YearEstimates!$O$124","v":11.704699910719626},{"$f":"H29/(CntyDataLinkPrior5YearEstimates!$N$124+CntyDataLinkPrior5YearEstimates!$Z$124)","v":3.4482758620689655E-2},null,{"$f":"CntyDataLink!$N$124","v":10},{"$f":"CntyDataLink!$O$124","v":12.369316876852981},{"$f":"L29/(CntyDataLink!$N$124+CntyDataLink!$Z$124)","v":0.15873015873015872},null,{"$f":"StatisticallySignificantCalcs!A116","v":{"$error":"#REF!"}}]
[]
[null,null,"Source: 2005-2009 American Community Survey  Table B1701",null,null,null,null,"Source: 2015-2019 American Community Survey  Table B1701",null,null,null,"Source: 2015-2019 American Community Survey  Table B1701"]
[]
[]
[]
[]
[]
[]
[]
[]
[]
[]
[]
[]
[]
[]
[]
[]
[]
[]
[null,null,null,{"$f":"D22","v":"2009 Inc below Poverty Level"},null,null,null,{"$f":"H22","v":"2014 Inc below Poverty Level"},null,null,null,{"$f":"L22","v":"2019 Inc below Poverty Level"}]
[null,null,null,"Estimate","Margin of Error","% of Family Type in Poverty",null,"Estimate","Margin of Error ","% of Family Type in Poverty",null,"Estimate","Margin of Error ","% of Family Type in Poverty",null,"Statistically Significant Change"]
[]
[]
[null,null,"Total Households",{"$f":"#REF!","v":{"$error":"#REF!"}},{"$f":"#REF!","v":{"$error":"#REF!"}},{"$f":"$D54/($D54+$D68)","v":{"$error":"#REF!"}},null,{"$f":"CntyDataLinkPrior5YearEstimates!$AD$124","v":26},{"$f":"CntyDataLinkPrior5YearEstimates!$AE$124","v":25},{"$f":"$H54/($H54+$H68)","v":8.7837837837837843E-2},null,{"$f":"CntyDataLink!$AD$124","v":30},{"$f":"CntyDataLink!$AE$124","v":18},{"$f":"$L54/($L54+$L68)","v":9.7719869706840393E-2},null,{"$f":"StatisticallySignificantCalcs!A93","v":{"$error":"#REF!"}}]
[null,null,"Family Households",{"$f":"#REF!","v":{"$error":"#REF!"}},{"$f":"#REF!","v":{"$error":"#REF!"}},{"$error":"#REF!"},null,{"$f":"CntyDataLinkPrior5YearEstimates!$AF$124","v":16},{"$f":"CntyDataLinkPrior5YearEstimates!$AG$124","v":17},7.3732718894009217E-2,null,{"$f":"CntyDataLink!$AF$124","v":14},{"$f":"CntyDataLink!$AG$124","v":13},6.6037735849056603E-2,null,{"$f":"StatisticallySignificantCalcs!A94","v":{"$error":"#REF!"}}]
[null,null,"Married Couple Fam HH",{"$f":"#REF!","v":{"$error":"#REF!"}},{"$f":"#REF!","v":{"$error":"#REF!"}},{"$error":"#REF!"},null,{"$f":"CntyDataLinkPrior5YearEstimates!$AH$124","v":16},{"$f":"CntyDataLinkPrior5YearEstimates!$AI$124","v":17},0.08,null,{"$f":"CntyDataLink!$AH$124","v":0},{"$f":"CntyDataLink!$AI$124","v":11},0,null,{"$f":"StatisticallySignificantCalcs!A95","v":{"$error":"#REF!"}}]
[null,null,"M C Fam HH w/Children",{"$f":"#REF!","v":{"$error":"#REF!"}},{"$f":"#REF!","v":{"$error":"#REF!"}},{"$error":"#REF!"},null,{"$f":"CntyDataLinkPrior5YearEstimates!$BN$124","v":13},{"$f":"CntyDataLinkPrior5YearEstimates!$BO$124","v":15},0.15476190476190477,null,{"$f":"CntyDataLink!$BN$124","v":0},{"$f":"CntyDataLink!$BO$124","v":11},0,null,{"$f":"StatisticallySignificantCalcs!A96","v":{"$error":"#REF!"}}]
[null,null,"Male Head of Family HH ",{"$f":"#REF!","v":{"$error":"#REF!"}},{"$f":"#REF!","v":{"$error":"#REF!"}},{"$error":"#REF!"},null,{"$f":"CntyDataLinkPrior5YearEstimates!$AL$124","v":0},{"$f":"CntyDataLinkPrior5YearEstimates!$AM$124","v":11},{"$error":"#DIV/0!"},null,{"$f":"CntyDataLink!$AL$124","v":8},{"$f":"CntyDataLink!$AM$124","v":11},0.72727272727272729,null,{"$f":"StatisticallySignificantCalcs!A97","v":{"$error":"#REF!"}}]
[null,null,"Male Head of HH w/Children",{"$f":"#REF!","v":{"$error":"#REF!"}},{"$f":"#REF!","v":{"$error":"#REF!"}},{"$error":"#REF!"},null,{"$f":"CntyDataLinkPrior5YearEstimates!$BP$124","v":0},{"$f":"CntyDataLinkPrior5YearEstimates!$BQ$124","v":11},{"$error":"#DIV/0!"},null,{"$f":"CntyDataLink!$BP$124","v":2},{"$f":"CntyDataLink!$BQ$124","v":5},0.4,null,{"$f":"StatisticallySignificantCalcs!A98","v":{"$error":"#REF!"}}]
[null,null,"Female Head of Family HH ",{"$f":"#REF!","v":{"$error":"#REF!"}},{"$f":"#REF!","v":{"$error":"#REF!"}},{"$error":"#REF!"},null,{"$f":"CntyDataLinkPrior5YearEstimates!$AN$124","v":10},{"$f":"CntyDataLinkPrior5YearEstimates!$AO$124","v":17},0.37037037037037035,null,{"$f":"CntyDataLink!$AN$124","v":6},{"$f":"CntyDataLink!$AO$124","v":8},0.15384615384615385,null,{"$f":"StatisticallySignificantCalcs!A99","v":{"$error":"#REF!"}}]
[null,null,"Female Head of HH w/Children",{"$f":"#REF!","v":{"$error":"#REF!"}},{"$f":"#REF!","v":{"$error":"#REF!"}},{"$error":"#REF!"},null,{"$f":"CntyDataLinkPrior5YearEstimates!$BR$124","v":10},{"$f":"CntyDataLinkPrior5YearEstimates!$BS$124","v":17},0.4,null,{"$f":"CntyDataLink!$BR$124","v":6},{"$f":"CntyDataLink!$BS$124","v":8},0.35294117647058826,null,{"$f":"StatisticallySignificantCalcs!A100","v":{"$error":"#REF!"}}]
[null,null,"Non-Family HH ",{"$f":"#REF!","v":{"$error":"#REF!"}},{"$f":"#REF!","v":{"$error":"#REF!"}},{"$error":"#REF!"},null,{"$f":"CntyDataLinkPrior5YearEstimates!$AP$124","v":12},{"$f":"CntyDataLinkPrior5YearEstimates!$AQ$124","v":10},0.14814814814814814,null,{"$f":"CntyDataLink!$AP$124","v":16},{"$f":"CntyDataLink!$AQ$124","v":14},0.16842105263157894,null,{"$f":"StatisticallySignificantCalcs!A101","v":{"$error":"#REF!"}}]
[]
[null,"Data from the American Community Survey are estimates."]
[null,null,null,"2009  Inc at or Above Poverty Level",null,null,null,"2014 Inc at or Above Poverty Level",null,null,null,"2019 Inc at or above Poverty Level"]
[null,null,"Households","Estimate","Margin of Error",null,null,"Estimate","Margin of Error",null,null,"Estimate","Margin of Error",null,null,"Statistically Significant Change"]
[]
[null,null,"Total Households",{"$f":"#REF!","v":{"$error":"#REF!"}},{"$f":"#REF!","v":{"$error":"#REF!"}},{"$f":"$H68/($H68+$H54)","v":0.91216216216216217},null,{"$f":"CntyDataLinkPrior5YearEstimates!$AV$124","v":270},{"$f":"CntyDataLinkPrior5YearEstimates!$AW$124","v":53},{"$f":"$H68/($H68+$H54)","v":0.91216216216216217},null,{"$f":"CntyDataLink!$AV$124","v":277},{"$f":"CntyDataLink!$AW$124","v":55},{"$f":"$L68/($L68+$L54)","v":0.90228013029315957},null,{"$f":"StatisticallySignificantCalcs!A102","v":{"$error":"#REF!"}}]
[null,null,"Family Households",{"$f":"#REF!","v":{"$error":"#REF!"}},{"$f":"#REF!","v":{"$error":"#REF!"}},0.92626728110599077,null,{"$f":"CntyDataLinkPrior5YearEstimates!$AX$124","v":201},{"$f":"CntyDataLinkPrior5YearEstimates!$AY$124","v":53},0.92626728110599077,null,{"$f":"CntyDataLink!$AX$124","v":198},{"$f":"CntyDataLink!$AY$124","v":47},0.93396226415094341,null,{"$f":"StatisticallySignificantCalcs!A103","v":{"$error":"#REF!"}}]
[null,null,"Married Couple Fam HH",{"$f":"#REF!","v":{"$error":"#REF!"}},{"$f":"#REF!","v":{"$error":"#REF!"}},0.92,null,{"$f":"CntyDataLinkPrior5YearEstimates!$AZ$124","v":184},{"$f":"CntyDataLinkPrior5YearEstimates!$BA$124","v":49},0.92,null,{"$f":"CntyDataLink!$AZ$124","v":162},{"$f":"CntyDataLink!$BA$124","v":42},1,null,{"$f":"StatisticallySignificantCalcs!A104","v":{"$error":"#REF!"}}]
[null,null,"M C Fam HH w/Children",{"$f":"#REF!","v":{"$error":"#REF!"}},{"$f":"#REF!","v":{"$error":"#REF!"}},0.84523809523809523,null,{"$f":"CntyDataLinkPrior5YearEstimates!$BT$124","v":71},{"$f":"CntyDataLinkPrior5YearEstimates!$BU$124","v":34},0.84523809523809523,null,{"$f":"CntyDataLink!$BT$124","v":45},{"$f":"CntyDataLink!$BU$124","v":24},1,null,{"$f":"StatisticallySignificantCalcs!A105","v":{"$error":"#REF!"}}]
[null,null,"Male Head of Family HH ",{"$f":"#REF!","v":{"$error":"#REF!"}},{"$f":"#REF!","v":{"$error":"#REF!"}},{"$error":"#DIV/0!"},null,{"$f":"CntyDataLinkPrior5YearEstimates!$BD$124","v":0},{"$f":"CntyDataLinkPrior5YearEstimates!$BE$124","v":11},{"$error":"#DIV/0!"},null,{"$f":"CntyDataLink!$BD$124","v":3},{"$f":"CntyDataLink!$BE$124","v":5},0.27272727272727271,null,{"$f":"StatisticallySignificantCalcs!A106","v":{"$error":"#REF!"}}]
[null,null,"Male Head of HH w/Children",{"$f":"#REF!","v":{"$error":"#REF!"}},{"$f":"#REF!","v":{"$error":"#REF!"}},{"$error":"#DIV/0!"},null,{"$f":"CntyDataLinkPrior5YearEstimates!$BV$124","v":0},{"$f":"CntyDataLinkPrior5YearEstimates!$BW$124","v":11},{"$error":"#DIV/0!"},null,{"$f":"CntyDataLink!$BV$124","v":3},{"$f":"CntyDataLink!$BW$124","v":5},0.6,null,{"$f":"StatisticallySignificantCalcs!A107","v":{"$error":"#REF!"}}]
[null,null,"Female Head of Family HH ",{"$f":"#REF!","v":{"$error":"#REF!"}},{"$f":"#REF!","v":{"$error":"#REF!"}},0.62962962962962965,null,{"$f":"CntyDataLinkPrior5YearEstimates!$BF$124","v":17},{"$f":"CntyDataLinkPrior5YearEstimates!$BG$124","v":18},0.62962962962962965,null,{"$f":"CntyDataLink!$BF$124","v":33},{"$f":"CntyDataLink!$BG$124","v":21},0.84615384615384615,null,{"$f":"StatisticallySignificantCalcs!A108","v":{"$error":"#REF!"}}]
[null,null,"Female Head of HH w/Children",{"$f":"#REF!","v":{"$error":"#REF!"}},{"$f":"#REF!","v":{"$error":"#REF!"}},0.6,null,{"$f":"CntyDataLinkPrior5YearEstimates!$BX$124","v":15},{"$f":"CntyDataLinkPrior5YearEstimates!$BY$124","v":18},0.6,null,{"$f":"CntyDataLink!$BX$124","v":11},{"$f":"CntyDataLink!$BY$124","v":12},0.6470588235294118,null,{"$f":"StatisticallySignificantCalcs!A109","v":{"$error":"#REF!"}}]
[null,null,"Non-Family HH ",{"$f":"#REF!","v":{"$error":"#REF!"}},{"$f":"#REF!","v":{"$error":"#REF!"}},0.85185185185185186,null,{"$f":"CntyDataLinkPrior5YearEstimates!$BH$124","v":69},{"$f":"CntyDataLinkPrior5YearEstimates!$BI$124","v":27},0.85185185185185186,null,{"$f":"CntyDataLink!$BH$124","v":79},{"$f":"CntyDataLink!$BI$124","v":29},0.83157894736842108,null,{"$f":"StatisticallySignificantCalcs!A110","v":{"$error":"#REF!"}}]
[]
[null,null,"Source: 2005-2009 American Community Survey ",null,null,null,"Source: 2010-2014 American Community Survey",null,null,null,null,"Source: 2015-2019 American Community Survey"]
[]
[null,null,"Tables B17010; and B17017",null,null,null,"Tables B17010; and B17017",null,null,null,null,"Tables B17010; and B17017"]

{"sheet":"ACS_Table_ B17001","index":51,"n_rows":209,"n_cols":40,"rows_kept":209,"cut":false,"hidden":true,"merged":[]}
[null,"B17001. POVERTY STATUS IN THE PAST 12 MONTHS BY SEX BY AGE"]
[null,"Universe:  POPULATION FOR WHOM POVERTY STATUS IS DETERMINED"]
[null,"Data Set: 2015-2019 American Community Survey 5-Year Estimates"]
[]
[null,null,"Albany",null,"Bartlett",null,"Brookfield",null,"Chatham",null,"Conway",null,"Eaton",null,"Effingham",null,"Freedom",null,"Hale's Location",null,"Hart's Location",null,"Jackson",null,"Madison",null,"Moultonborough",null,"Ossipee",null,"Sandwich",null,"Tamworth",null,"Tuftonboro",null,"Wakefield",null,"Wolfeboro"]
[null," ","Estimate","Margin of Error","Estimate","Margin of Error","Estimate","Margin of Error","Estimate","Margin of Error","Estimate","Margin of Error","Estimate","Margin of Error","Estimate","Margin of Error","Estimate","Margin of Error","Estimate","Margin of Error","Estimate","Margin of Error","Estimate","Margin of Error","Estimate","Margin of Error","Estimate","Margin of Error","Estimate","Margin of Error","Estimate","Margin of Error","Estimate","Margin of Error","Estimate","Margin of Error","Estimate","Margin of Error","Estimate","Margin of Error"]
[null,"Total:",699,142,2774,14,803,186,365,124,9938,72,265,72,1630,231,1349,178,183,43,42,30,891,228,2524,31,4059,53,4151,121,1422,181,2994,13,2190,207,5039,24,6220,41]
[null,"Income in the past 12 months below poverty level:",81,45,187,112,25,24,31,28,1475,518,22,14,160,68,86,54,18,13,0,11,111,92,205,130,240,106,520,200,78,51,295,142,129,73,312,202,297,202]
[null,"Male:",43,36,38,52,11,12,23,18,690,267,13,12,49,24,39,28,7,6,0,11,36,39,115,100,129,62,255,119,30,22,154,90,48,32,90,98,146,117]
[null,"Under 5 years",15,28,0,11,0,11,0,11,0,18,0,11,0,11,0,11,0,11,0,11,0,11,0,11,0,11,82,77,12,17,0,11,0,11,0,16,25,41]
[null,"5 years",0,11,0,11,0,11,4,7,26,43,0,11,0,11,0,11,0,11,0,11,0,11,0,11,0,11,0,11,0,11,0,11,0,11,0,16,0,16]
[null,"6 to 11 years",0,11,0,11,0,11,0,11,122,141,0,11,8,11,3,4,0,11,0,11,11,18,45,44,12,20,9,23,0,11,0,11,10,13,0,16,0,16]
[null,"12 to 14 years",0,11,0,11,0,11,0,11,109,86,0,11,0,11,0,11,0,11,0,11,0,11,0,11,9,15,18,22,0,11,0,11,0,11,0,16,0,16]
[null,"15 years",4,7,0,11,0,11,0,11,0,18,0,11,5,8,0,11,0,11,0,11,0,11,21,29,0,11,0,11,2,4,0,11,0,11,0,16,0,16]
[null,"16 and 17 years",0,11,0,11,0,11,0,11,14,22,0,11,0,11,8,11,0,11,0,11,0,11,21,27,23,26,0,11,4,6,0,11,0,11,0,16,0,16]
[null,"18 to 24 years",0,11,4,5,0,11,0,11,79,65,5,9,0,11,0,11,0,11,0,11,0,11,0,11,0,11,0,11,0,11,19,29,0,11,0,16,0,16]
[null,"25 to 34 years",7,13,0,11,0,11,5,9,0,18,0,11,4,5,3,4,0,11,0,11,0,11,0,11,21,33,48,33,0,11,49,77,9,13,0,16,0,16]
[null,"35 to 44 years",2,4,33,52,0,11,2,3,38,44,6,7,8,7,0,11,0,11,0,11,0,11,0,11,0,11,0,11,0,11,0,11,0,11,0,16,0,16]
[null,"45 to 54 years",3,5,0,11,4,8,3,5,41,49,0,11,4,5,20,23,0,11,0,11,0,11,0,11,11,15,36,56,4,6,33,34,0,11,0,16,28,46]
[null,"55 to 64 years",8,11,0,11,7,8,2,4,150,87,0,11,3,5,0,11,4,5,0,11,22,23,14,14,36,29,62,46,0,11,53,65,7,9,90,98,93,100]
[null,"65 to 74 years",2,4,1,4,0,11,0,11,17,26,0,11,17,12,5,6,1,3,0,11,0,11,6,9,16,18,0,11,8,6,0,11,6,8,0,16,0,16]
[null,"75 years and over",2,3,0,11,0,11,7,11,94,71,2,4,0,11,0,11,2,3,0,11,3,4,8,13,1,3,0,11,0,11,0,11,16,26,0,16,0,16]
[null,"Female:",38,25,149,97,14,13,8,15,785,303,9,9,111,54,47,30,11,9,0,11,75,58,90,45,111,58,265,119,48,33,141,110,81,49,222,145,151,141]
[null,"Under 5 years",0,11,0,11,0,11,0,11,99,90,0,11,15,18,5,6,0,11,0,11,16,25,0,11,0,11,44,35,10,15,0,11,6,10,0,16,0,16]
[null,"5 years",0,11,0,11,0,11,0,11,19,32,0,11,0,11,0,11,0,11,0,11,0,11,0,11,0,11,0,11,0,11,0,11,0,11,0,16,0,16]
[null,"6 to 11 years",3,5,0,11,0,11,3,7,107,121,0,11,22,19,0,11,0,11,0,11,0,11,0,11,11,14,59,58,0,11,0,11,0,11,0,16,39,64]
[null,"12 to 14 years",0,11,0,11,0,11,0,11,36,44,0,11,0,11,0,11,0,11,0,11,0,11,0,11,16,25,0,11,0,11,0,11,0,11,0,16,0,16]
[null,"15 years",0,11,0,11,0,11,0,11,29,35,0,11,0,11,0,11,0,11,0,11,0,11,0,11,7,9,0,11,3,5,0,11,0,11,0,16,0,16]
[null,"16 and 17 years",0,11,0,11,0,11,0,11,0,18,0,11,3,5,5,10,3,4,0,11,0,11,0,11,0,11,0,11,0,11,0,11,0,11,0,16,0,16]
[null,"18 to 24 years",14,18,3,9,0,11,0,11,57,54,0,11,16,16,7,9,0,11,0,11,0,11,14,20,0,11,0,11,0,11,0,11,0,11,55,82,0,16]
[null,"25 to 34 years",4,7,2,4,0,11,0,11,112,87,0,11,14,14,0,11,0,11,0,11,0,11,7,10,22,29,45,31,10,11,52,77,5,7,0,16,0,16]
[null,"35 to 44 years",3,4,50,59,0,11,0,11,160,108,0,11,7,7,4,5,0,11,0,11,13,21,20,24,15,23,14,24,1,2,46,67,0,11,0,16,36,60]
[null,"45 to 54 years",3,4,0,11,5,8,0,11,99,71,0,11,7,16,15,24,2,3,0,11,12,20,13,17,13,19,46,59,8,12,0,11,0,11,22,31,0,16]
[null,"55 to 64 years",0,11,31,50,9,9,2,4,21,31,9,9,10,9,0,11,6,8,0,11,8,12,0,11,19,20,34,45,9,15,25,28,14,14,145,116,49,38]
[null,"65 to 74 years",3,4,0,11,0,11,0,11,35,35,0,11,17,12,7,8,0,11,0,11,13,20,19,16,8,13,23,27,4,6,0,11,0,11,0,16,27,45]
[null,"75 years and over",8,12,63,77,0,11,3,8,11,14,0,11,0,11,4,5,0,11,0,11,13,16,17,26,0,11,0,11,3,4,18,24,56,46,0,16,0,16]
[null,"Income in the past 12 months at or above poverty level:",618,123,2587,115,778,183,334,116,8463,514,243,70,1470,221,1263,169,165,42,42,30,780,227,2319,135,3819,116,3631,216,1344,178,2699,143,2061,216,4727,202,5923,204]
[null,"Male:",306,68,1359,160,410,107,163,56,4349,372,117,43,663,106,623,92,85,27,23,17,329,89,1115,112,1850,138,1734,150,664,95,1463,151,994,114,2517,182,2951,242]
[null,"Under 5 years",2,4,33,38,11,12,5,8,268,100,0,11,26,22,0,11,0,11,0,11,2,4,34,28,41,31,77,52,15,10,66,43,12,13,123,54,152,107]
[null,"5 years",9,12,0,11,7,11,2,3,162,102,0,11,4,6,3,5,0,11,0,11,12,21,21,13,23,36,0,11,6,7,50,56,18,14,12,19,0,16]
[null,"6 to 11 years",23,15,39,46,24,19,1,4,190,66,5,5,45,27,23,13,0,11,0,11,0,11,40,28,78,39,82,69,12,12,112,103,45,21,129,90,84,98]
[null,"12 to 14 years",13,18,0,11,14,11,6,7,196,131,2,3,5,7,34,24,0,11,0,11,0,11,64,56,45,30,0,11,16,13,14,21,18,15,53,43,17,66]
[null,"15 years",8,8,0,11,3,6,4,7,0,18,0,11,13,13,0,11,0,11,0,11,0,11,8,12,10,15,35,33,2,3,0,11,25,31,19,33,0,16]
[null,"16 and 17 years",5,7,49,57,21,20,2,4,110,104,0,11,19,15,8,9,0,11,0,11,0,11,21,19,81,67,10,16,19,15,147,107,8,12,31,47,116,81]
[null,"18 to 24 years",27,21,138,108,53,44,14,16,155,114,8,11,95,44,38,27,7,12,0,11,0,11,50,30,90,75,186,111,16,15,58,56,54,42,250,120,209,200]
[null,"25 to 34 years",16,10,75,79,20,18,11,12,629,177,21,16,75,45,9,11,0,11,2,4,21,23,88,49,190,85,129,81,51,36,70,51,107,44,354,132,155,118]
[null,"35 to 44 years",34,25,109,85,55,31,16,13,511,137,4,4,52,24,47,27,0,11,0,11,25,30,125,45,105,67,274,88,48,31,156,85,55,38,184,66,260,125]
[null,"45 to 54 years",27,15,243,109,68,32,35,21,472,169,11,10,108,43,72,31,0,11,8,11,48,43,218,73,236,92,154,71,66,27,279,151,125,46,388,111,465,178]
[null,"55 to 64 years",66,26,250,102,53,25,29,16,571,127,17,13,114,38,123,42,12,10,3,5,81,47,171,63,349,71,404,120,155,42,319,113,145,46,433,131,491,171]
[null,"65 to 74 years",51,25,330,147,69,25,20,12,766,180,38,19,90,34,179,39,42,15,9,10,104,52,151,58,426,108,254,99,164,50,31,35,256,70,324,120,509,153]
[null,"75 years and over",25,11,93,72,12,9,18,13,319,138,11,12,17,12,87,29,24,13,1,3,36,26,124,47,176,70,129,70,94,37,161,96,126,40,217,84,493,142]
[null,"Female:",312,77,1228,154,368,87,171,72,4114,372,126,36,807,136,640,97,80,19,19,14,451,153,1204,107,1969,142,1897,186,680,111,1236,186,1067,131,2210,210,2972,264]
[null,"Under 5 years",6,8,0,11,0,11,6,9,112,81,9,10,74,52,0,11,0,11,0,11,43,45,89,50,50,39,0,11,2,4,43,59,55,42,170,92,0,16]
[null,"5 years",4,6,41,63,0,11,2,5,24,36,0,11,0,11,6,9,0,11,0,11,0,11,6,9,17,26,52,61,6,7,0,11,0,11,0,16,0,16]
[null,"6 to 11 years",2,3,34,50,24,19,11,11,205,85,4,4,56,37,34,21,0,11,0,11,49,44,41,29,110,64,84,55,24,21,65,77,32,23,87,73,146,105]
[null,"12 to 14 years",10,10,34,50,14,19,8,8,125,87,3,4,48,31,4,8,0,11,0,11,0,11,0,11,36,32,42,37,5,6,76,86,21,25,0,16,116,111]
[null,"15 years",0,11,30,46,7,12,0,11,0,18,0,11,7,10,9,12,0,11,0,11,0,11,11,12,0,11,31,48,0,11,0,11,0,11,22,31,33,54]
[null,"16 and 17 years",2,5,46,56,10,11,5,9,158,103,0,11,8,8,26,17,0,11,0,11,16,26,64,54,22,26,26,30,10,13,13,18,24,17,14,22,65,67]
[null,"18 to 24 years",25,19,110,81,14,18,2,5,182,154,3,8,86,46,9,13,0,11,0,11,17,30,46,41,163,88,106,80,18,17,17,27,80,50,236,121,120,105]
[null,"25 to 34 years",23,24,10,13,39,28,16,22,636,163,7,8,84,48,18,15,0,11,2,4,43,36,106,59,215,82,34,28,83,56,89,55,83,43,286,151,73,81]
[null,"35 to 44 years",47,28,110,72,46,30,9,12,395,136,16,15,71,31,51,27,0,11,0,11,34,34,130,47,131,52,283,166,14,11,122,81,65,41,194,93,319,114]
[null,"45 to 54 years",55,24,250,111,85,34,39,28,514,167,9,7,121,46,80,32,4,6,5,8,52,36,191,67,246,86,349,107,110,45,135,87,160,45,336,119,332,129]
[null,"55 to 64 years",79,31,193,94,58,25,31,16,936,210,30,16,119,37,161,49,10,9,11,10,58,34,216,63,405,103,314,110,163,46,364,111,170,53,421,116,518,179]
[null,"65 to 74 years",31,16,261,153,62,25,26,19,521,145,32,17,92,32,163,39,38,15,0,11,99,48,180,64,360,94,384,119,153,46,146,86,292,89,273,97,676,165]
[null,"75 years and over",28,19,109,92,9,7,16,13,306,112,13,9,41,23,79,31,28,15,1,3,40,30,124,54,214,70,192,76,92,33,166,89,85,42,171,78,574,157]
[]
[]
[]
[null,"Calculated Table B17001. POVERTY STATUS IN THE PAST 12 MONTHS BY SEX BY AGE"]
[null,"Universe:  POPULATION FOR WHOM POVERTY STATUS IS DETERMINED"]
[null,"Data Set: 2015-2019 American Community Survey 5-Year Estimates"]
[]
[null,null,"Albany",null,"Bartlett",null,"Brookfield",null,"Chatham",null,"Conway",null,"Eaton",null,"Effingham",null,"Freedom",null,"Hale's Location",null,"Hart's Location",null,"Jackson",null,"Madison",null,"Moultonborough",null,"Ossipee",null,"Sandwich",null,"Tamworth",null,"Tuftonboro",null,"Wakefield",null,"Wolfeboro"]
[null," ","Estimate","Margin of Error","Estimate","Margin of Error","Estimate","Margin of Error","Estimate","Margin of Error","Estimate","Margin of Error","Estimate","Margin of Error","Estimate","Margin of Error","Estimate","Margin of Error","Estimate","Margin of Error","Estimate","Margin of Error","Estimate","Margin of Error","Estimate","Margin of Error","Estimate","Margin of Error","Estimate","Margin of Error","Estimate","Margin of Error","Estimate","Margin of Error","Estimate","Margin of Error","Estimate","Margin of Error","Estimate","Margin of Error"]
[null,"Total:",{"$f":"C7","v":699},{"$f":"D7","v":142},2774,14,803,186,365,124,9938,72,265,72,1630,231,1349,178,183,43,42,30,891,228,{"$f":"Y7","v":2524},31,4059,53,4151,121,1422,181,2994,13,2190,207,5039,24,6220,41]
[null,"Income in the past 12 months below poverty level:",{"$f":"C8","v":81},{"$f":"D8","v":45},187,112,25,24,31,28,1475,518,22,14,160,68,86,54,18,13,0,11,111,92,{"$f":"Y8","v":205},130,240,106,520,200,78,51,295,142,129,73,312,202,297,202]
[null,"Under 5 years",{"$f":"C10+C24","v":15},{"$f":"SQRT(((D10^2))+((D34^2)))","v":30.083217912982647},{"$f":"E10+E24","v":0},{"$f":"SQRT(((F10^2))+((F34^2)))","v":51.195702944680818},{"$f":"G10+G24","v":0},{"$f":"SQRT(((H10^2))+((H34^2)))","v":14.212670403551895},{"$f":"I10+I24","v":0},{"$f":"SQRT(((J10^2))+((J34^2)))","v":11.704699910719626},{"$f":"K10+K24","v":99},{"$f":"SQRT(((L10^2))+((L34^2)))","v":35.846896657869841},{"$f":"M10+M24","v":0},{"$f":"SQRT(((N10^2))+((N34^2)))","v":14.212670403551895},{"$f":"O10+O24","v":15},{"$f":"SQRT(((P10^2))+((P34^2)))","v":14.212670403551895},{"$f":"Q10+Q24","v":5},{"$f":"SQRT(((R10^2))+((R34^2)))","v":15.556349186104045},{"$f":"S10+S24","v":0},{"$f":"SQRT(((T10^2))+((T34^2)))","v":13.601470508735444},{"$f":"U10+U24","v":0},{"$f":"SQRT(((V10^2))+((V34^2)))","v":15.556349186104045},{"$f":"W10+W24","v":16},{"$f":"SQRT(((X10^2))+((X34^2)))","v":16.278820596099706},{"$f":"Y10+Y24","v":0},{"$f":"SQRT(((Z10^2))+((Z34^2)))","v":15.556349186104045},{"$f":"AA10+AA24","v":0},{"$f":"SQRT(((AB10^2))+((AB34^2)))","v":22.825424421026653},{"$f":"AC10+AC24","v":126},{"$f":"SQRT(((AD10^2))+((AD34^2)))","v":89.185200566013194},{"$f":"AE10+AE24","v":22},{"$f":"SQRT(((AF10^2))+((AF34^2)))","v":22.671568097509269},{"$f":"AG10+AG24","v":0},{"$f":"SQRT(((AH10^2))+((AH34^2)))","v":30.083217912982647},{"$f":"AI10+AI24","v":6},{"$f":"SQRT(((AJ10^2))+((AJ34^2)))","v":17.804493814764857},{"$f":"AK10+AK24","v":0},{"$f":"SQRT(((AL10^2))+((AL34^2)))","v":117.09824934643558},{"$f":"AM10+AM24","v":25},{"$f":"SQRT(((AN10^2))+((AN34^2)))","v":55.901699437494742}]
[null,"5 to 17 years",{"$f":"C11+C12+C13+C14+C15+C25+C26+C27+C28+C29","v":7},{"$f":"SQRT((D11^2)+(D12^2)+(D13^2)+(D14^2)+(D15^2)+(D25^2)+(D26^2)+(D27^2)+(D28)+(D29^2))","v":30.528675044947494},{"$f":"E11+E12+E13+E14+E15+E25+E26+E27+E28+E29","v":0},{"$f":"SQRT((F11^2)+(F12^2)+(F13^2)+(F14^2)+(F15^2)+(F25^2)+(F26^2)+(F27^2)+(F28)+(F29^2))","v":33.166247903554002},{"$f":"G11+G12+G13+G14+G15+G25+G26+G27+G28+G29","v":0},{"$f":"SQRT((H11^2)+(H12^2)+(H13^2)+(H14^2)+(H15^2)+(H25^2)+(H26^2)+(H27^2)+(H28)+(H29^2))","v":33.166247903554002},{"$f":"I11+I12+I13+I14+I15+I25+I26+I27+I28+I29","v":7},{"$f":"SQRT((J11^2)+(J12^2)+(J13^2)+(J14^2)+(J15^2)+(J25^2)+(J26^2)+(J27^2)+(J28)+(J29^2))","v":30.919249667480614},{"$f":"K11+K12+K13+K14+K15+K25+K26+K27+K28+K29","v":462},{"$f":"SQRT((L11^2)+(L12^2)+(L13^2)+(L14^2)+(L15^2)+(L25^2)+(L26^2)+(L27^2)+(L28)+(L29^2))","v":218.84697850324551},{"$f":"M11+M12+M13+M14+M15+M25+M26+M27+M28+M29","v":0},{"$f":"SQRT((N11^2)+(N12^2)+(N13^2)+(N14^2)+(N15^2)+(N25^2)+(N26^2)+(N27^2)+(N28)+(N29^2))","v":33.166247903554002},{"$f":"O11+O12+O13+O14+O15+O25+O26+O27+O28+O29","v":38},{"$f":"SQRT((P11^2)+(P12^2)+(P13^2)+(P14^2)+(P15^2)+(P25^2)+(P26^2)+(P27^2)+(P28)+(P29^2))","v":34.452866353904433},{"$f":"Q11+Q12+Q13+Q14+Q15+Q25+Q26+Q27+Q28+Q29","v":16},{"$f":"SQRT((R11^2)+(R12^2)+(R13^2)+(R14^2)+(R15^2)+(R25^2)+(R26^2)+(R27^2)+(R28)+(R29^2))","v":31.208973068654469},{"$f":"S11+S12+S13+S14+S15+S25+S26+S27+S28+S29","v":3},{"$f":"SQRT((T11^2)+(T12^2)+(T13^2)+(T14^2)+(T15^2)+(T25^2)+(T26^2)+(T27^2)+(T28)+(T29^2))","v":31.54362059117501},{"$f":"U11+U12+U13+U14+U15+U25+U26+U27+U28+U29","v":0},{"$f":"SQRT((V11^2)+(V12^2)+(V13^2)+(V14^2)+(V15^2)+(V25^2)+(V26^2)+(V27^2)+(V28)+(V29^2))","v":33.166247903554002},{"$f":"W11+W12+W13+W14+W15+W25+W26+W27+W28+W29","v":11},{"$f":"SQRT((X11^2)+(X12^2)+(X13^2)+(X14^2)+(X15^2)+(X25^2)+(X26^2)+(X27^2)+(X28)+(X29^2))","v":36.097091295560091},{"$f":"Y11+Y12+Y13+Y14+Y15+Y25+Y26+Y27+Y28+Y29","v":87},{"$f":"SQRT((Z11^2)+(Z12^2)+(Z13^2)+(Z14^2)+(Z15^2)+(Z25^2)+(Z26^2)+(Z27^2)+(Z28)+(Z29^2))","v":65.138314377945022},{"$f":"AA11+AA12+AA13+AA14+AA15+AA25+AA26+AA27+AA28+AA29","v":78},{"$f":"SQRT((AB11^2)+(AB12^2)+(AB13^2)+(AB14^2)+(AB15^2)+(AB25^2)+(AB26^2)+(AB27^2)+(AB28)+(AB29^2))","v":51.137070702182385},{"$f":"AC11+AC12+AC13+AC14+AC15+AC25+AC26+AC27+AC28+AC29","v":86},{"$f":"SQRT((AD11^2)+(AD12^2)+(AD13^2)+(AD14^2)+(AD15^2)+(AD25^2)+(AD26^2)+(AD27^2)+(AD28)+(AD29^2))","v":71.512236715124502},{"$f":"AE11+AE12+AE13+AE14+AE15+AE25+AE26+AE27+AE28+AE29","v":9},{"$f":"SQRT((AF11^2)+(AF12^2)+(AF13^2)+(AF14^2)+(AF15^2)+(AF25^2)+(AF26^2)+(AF27^2)+(AF28)+(AF29^2))","v":30.066592756745816},{"$f":"AG11+AG12+AG13+AG14+AG15+AG25+AG26+AG27+AG28+AG29","v":0},{"$f":"SQRT((AH11^2)+(AH12^2)+(AH13^2)+(AH14^2)+(AH15^2)+(AH25^2)+(AH26^2)+(AH27^2)+(AH28)+(AH29^2))","v":33.166247903554002},{"$f":"AI11+AI12+AI13+AI14+AI15+AI25+AI26+AI27+AI28+AI29","v":10},{"$f":"SQRT((AJ11^2)+(AJ12^2)+(AJ13^2)+(AJ14^2)+(AJ15^2)+(AJ25^2)+(AJ26^2)+(AJ27^2)+(AJ28)+(AJ29^2))","v":33.882148692194832},{"$f":"AK11+AK12+AK13+AK14+AK15+AK25+AK26+AK27+AK28+AK29","v":0},{"$f":"SQRT((AL11^2)+(AL12^2)+(AL13^2)+(AL14^2)+(AL15^2)+(AL25^2)+(AL26^2)+(AL27^2)+(AL28)+(AL29^2))","v":48.166378315169183},{"$f":"AM11+AM12+AM13+AM14+AM15+AM25+AM26+AM27+AM28+AM29","v":39},{"$f":"SQRT((AN11^2)+(AN12^2)+(AN13^2)+(AN14^2)+(AN15^2)+(AN25^2)+(AN26^2)+(AN27^2)+(AN28)+(AN29^2))","v":78.48566748139433}]
[null,"18 to 64 years",{"$f":"C16+C17+C18+C19+C20+C30+C31+C32+C33+C34","v":44},{"$f":"SQRT((D16^2)+(D17^2)+(D18^2)+(D19^2)+(D20^2)+(D30^2)+(D31^2)+(D32^2)+(D33^2)+(D34^2))","v":31.272991542223778},{"$f":"E16+E17+E18+E19+E20+E30+E31+E32+E33+E34","v":123},{"$f":"SQRT((F16^2)+(F17^2)+(F18^2)+(F19^2)+(F20^2)+(F30^2)+(F31^2)+(F32^2)+(F33^2)+(F34^2))","v":96.389833488807312},{"$f":"G16+G17+G18+G19+G20+G30+G31+G32+G33+G34","v":25},{"$f":"SQRT((H16^2)+(H17^2)+(H18^2)+(H19^2)+(H20^2)+(H30^2)+(H31^2)+(H32^2)+(H33^2)+(H34^2))","v":31.606961258558215},{"$f":"I16+I17+I18+I19+I20+I30+I31+I32+I33+I34","v":14},{"$f":"SQRT((J16^2)+(J17^2)+(J18^2)+(J19^2)+(J20^2)+(J30^2)+(J31^2)+(J32^2)+(J33^2)+(J34^2))","v":27.422618401604176},{"$f":"K16+K17+K18+K19+K20+K30+K31+K32+K33+K34","v":757},{"$f":"SQRT((L16^2)+(L17^2)+(L18^2)+(L19^2)+(L20^2)+(L30^2)+(L31^2)+(L32^2)+(L33^2)+(L34^2))","v":211.20132575341472},{"$f":"M16+M17+M18+M19+M20+M30+M31+M32+M33+M34","v":20},{"$f":"SQRT((N16^2)+(N17^2)+(N18^2)+(N19^2)+(N20^2)+(N30^2)+(N31^2)+(N32^2)+(N33^2)+(N34^2))","v":32.526911934581186},{"$f":"O16+O17+O18+O19+O20+O30+O31+O32+O33+O34","v":73},{"$f":"SQRT((P16^2)+(P17^2)+(P18^2)+(P19^2)+(P20^2)+(P30^2)+(P31^2)+(P32^2)+(P33^2)+(P34^2))","v":32.908965343808667},{"$f":"Q16+Q17+Q18+Q19+Q20+Q30+Q31+Q32+Q33+Q34","v":49},{"$f":"SQRT((R16^2)+(R17^2)+(R18^2)+(R19^2)+(R20^2)+(R30^2)+(R31^2)+(R32^2)+(R33^2)+(R34^2))","v":42.80186911806539},{"$f":"S16+S17+S18+S19+S20+S30+S31+S32+S33+S34","v":12},{"$f":"SQRT((T16^2)+(T17^2)+(T18^2)+(T19^2)+(T20^2)+(T30^2)+(T31^2)+(T32^2)+(T33^2)+(T34^2))","v":30.740852297878796},{"$f":"U16+U17+U18+U19+U20+U30+U31+U32+U33+U34","v":0},{"$f":"SQRT((V16^2)+(V17^2)+(V18^2)+(V19^2)+(V20^2)+(V30^2)+(V31^2)+(V32^2)+(V33^2)+(V34^2))","v":34.785054261852174},{"$f":"W16+W17+W18+W19+W20+W30+W31+W32+W33+W34","v":55},{"$f":"SQRT((X16^2)+(X17^2)+(X18^2)+(X19^2)+(X20^2)+(X30^2)+(X31^2)+(X32^2)+(X33^2)+(X34^2))","v":47.328638264796929},{"$f":"Y16+Y17+Y18+Y19+Y20+Y30+Y31+Y32+Y33+Y34","v":68},{"$f":"SQRT((Z16^2)+(Z17^2)+(Z18^2)+(Z19^2)+(Z20^2)+(Z30^2)+(Z31^2)+(Z32^2)+(Z33^2)+(Z34^2))","v":46.540305112880382},{"$f":"AA16+AA17+AA18+AA19+AA20+AA30+AA31+AA32+AA33+AA34","v":137},{"$f":"SQRT((AB16^2)+(AB17^2)+(AB18^2)+(AB19^2)+(AB20^2)+(AB30^2)+(AB31^2)+(AB32^2)+(AB33^2)+(AB34^2))","v":68.183575734923139},{"$f":"AC16+AC17+AC18+AC19+AC20+AC30+AC31+AC32+AC33+AC34","v":285},{"$f":"SQRT((AD16^2)+(AD17^2)+(AD18^2)+(AD19^2)+(AD20^2)+(AD30^2)+(AD31^2)+(AD32^2)+(AD33^2)+(AD34^2))","v":117.24760125478048},{"$f":"AE16+AE17+AE18+AE19+AE20+AE30+AE31+AE32+AE33+AE34","v":32},{"$f":"SQRT((AF16^2)+(AF17^2)+(AF18^2)+(AF19^2)+(AF20^2)+(AF30^2)+(AF31^2)+(AF32^2)+(AF33^2)+(AF34^2))","v":33.689761055846034},{"$f":"AG16+AG17+AG18+AG19+AG20+AG30+AG31+AG32+AG33+AG34","v":277},{"$f":"SQRT((AH16^2)+(AH17^2)+(AH18^2)+(AH19^2)+(AH20^2)+(AH30^2)+(AH31^2)+(AH32^2)+(AH33^2)+(AH34^2))","v":154},{"$f":"AI16+AI17+AI18+AI19+AI20+AI30+AI31+AI32+AI33+AI34","v":35},{"$f":"SQRT((AJ16^2)+(AJ17^2)+(AJ18^2)+(AJ19^2)+(AJ20^2)+(AJ30^2)+(AJ31^2)+(AJ32^2)+(AJ33^2)+(AJ34^2))","v":34.942810419312295},{"$f":"AK16+AK17+AK18+AK19+AK20+AK30+AK31+AK32+AK33+AK34","v":312},{"$f":"SQRT((AL16^2)+(AL17^2)+(AL18^2)+(AL19^2)+(AL20^2)+(AL30^2)+(AL31^2)+(AL32^2)+(AL33^2)+(AL34^2))","v":179.66914036639682},{"$f":"AM16+AM17+AM18+AM19+AM20+AM30+AM31+AM32+AM33+AM34","v":206},{"$f":"SQRT((AN16^2)+(AN17^2)+(AN18^2)+(AN19^2)+(AN20^2)+(AN30^2)+(AN31^2)+(AN32^2)+(AN33^2)+(AN34^2))","v":136.73331708109768}]
[null,"65 to 74 years",{"$f":"C21+C35","v":5},{"$f":"SQRT((D21^2)+(D35^2))","v":5.6568542494923806},{"$f":"E21+E35","v":1},{"$f":"SQRT((F21^2)+(F35^2))","v":11.704699910719626},{"$f":"G21+G35","v":0},{"$f":"SQRT((H21^2)+(H35^2))","v":15.556349186104045},{"$f":"I21+I35","v":0},{"$f":"SQRT((J21^2)+(J35^2))","v":15.556349186104045},{"$f":"K21+K35","v":52},{"$f":"SQRT((L21^2)+(L35^2))","v":43.600458713183279},{"$f":"M21+M35","v":0},{"$f":"SQRT((N21^2)+(N35^2))","v":15.556349186104045},{"$f":"O21+O35","v":34},{"$f":"SQRT((P21^2)+(P35^2))","v":16.970562748477139},{"$f":"Q21+Q35","v":12},{"$f":"SQRT((R21^2)+(R35^2))","v":10},{"$f":"S21+S35","v":1},{"$f":"SQRT((T21^2)+(T35^2))","v":11.401754250991379},{"$f":"U21+U35","v":0},{"$f":"SQRT((V21^2)+(V35^2))","v":15.556349186104045},{"$f":"W21+W35","v":13},{"$f":"SQRT((X21^2)+(X35^2))","v":22.825424421026653},{"$f":"Y21+Y35","v":25},{"$f":"SQRT((Z21^2)+(Z35^2))","v":18.357559750685819},{"$f":"AA21+AA35","v":24},{"$f":"SQRT((AB21^2)+(AB35^2))","v":22.203603311174518},{"$f":"AC21+AC35","v":23},{"$f":"SQRT((AD21^2)+(AD35^2))","v":29.154759474226502},{"$f":"AE21+AE35","v":12},{"$f":"SQRT((AF21^2)+(AF35^2))","v":8.4852813742385695},{"$f":"AG21+AG35","v":0},{"$f":"SQRT((AH21^2)+(AH35^2))","v":15.556349186104045},{"$f":"AI21+AI35","v":6},{"$f":"SQRT((AJ21^2)+(AJ35^2))","v":13.601470508735444},{"$f":"AK21+AK35","v":0},{"$f":"SQRT((AL21^2)+(AL35^2))","v":22.627416997969522},{"$f":"AM21+AM35","v":27},{"$f":"SQRT((AN21^2)+(AN35^2))","v":47.75981574503821}]
[null,"75 years and over",{"$f":"C22+C36","v":10},{"$f":"SQRT((D22^2)+(D36^2))","v":12.369316876852981},{"$f":"E22+E36","v":63},{"$f":"SQRT((F22^2)+(F36^2))","v":77.781745930520231},{"$f":"G22+G36","v":0},{"$f":"SQRT((H22^2)+(H36^2))","v":15.556349186104045},{"$f":"I22+I36","v":10},{"$f":"SQRT((J22^2)+(J36^2))","v":13.601470508735444},{"$f":"K22+K36","v":105},{"$f":"SQRT((L22^2)+(L36^2))","v":72.367119605522504},{"$f":"M22+M36","v":2},{"$f":"SQRT((N22^2)+(N36^2))","v":11.704699910719626},{"$f":"O22+O36","v":0},{"$f":"SQRT((P22^2)+(P36^2))","v":15.556349186104045},{"$f":"Q22+Q36","v":4},{"$f":"SQRT((R22^2)+(R36^2))","v":12.083045973594572},{"$f":"S22+S36","v":2},{"$f":"SQRT((T22^2)+(T36^2))","v":11.401754250991379},{"$f":"U22+U36","v":0},{"$f":"SQRT((V22^2)+(V36^2))","v":15.556349186104045},{"$f":"W22+W36","v":16},{"$f":"SQRT((X22^2)+(X36^2))","v":16.492422502470642},{"$f":"Y22+Y36","v":25},{"$f":"SQRT((Z22^2)+(Z36^2))","v":29.068883707497267},{"$f":"AA22+AA36","v":1},{"$f":"SQRT((AB22^2)+(AB36^2))","v":11.401754250991379},{"$f":"AC22+AC36","v":0},{"$f":"SQRT((AD22^2)+(AD36^2))","v":15.556349186104045},{"$f":"AE22+AE36","v":3},{"$f":"SQRT((AF22^2)+(AF36^2))","v":11.704699910719626},{"$f":"AG22+AG36","v":18},{"$f":"SQRT((AH22^2)+(AH36^2))","v":26.40075756488817},{"$f":"AI22+AI36","v":72},{"$f":"SQRT((AJ22^2)+(AJ36^2))","v":52.839379254491625},{"$f":"AK22+AK36","v":0},{"$f":"SQRT((AL22^2)+(AL36^2))","v":22.627416997969522},{"$f":"AM22+AM36","v":0},{"$f":"SQRT((AN22^2)+(AN36^2))","v":22.627416997969522}]
[null," Income in the past 12 months at or above poverty level ",{"$f":"C37","v":618},123,2587,115,778,183,334,116,8463,514,243,70,1470,221,1263,169,165,42,42,30,780,227,{"$f":"Y37","v":2319},135,3819,116,3631,216,1344,178,2699,143,2061,216,4727,202,5923,204]
[null,"Under 5 years",{"$f":"C39+C53","v":8},{"$f":"SQRT(((D39))^2+((D53))^2)","v":8.9442719099991592},{"$f":"E39+E53","v":33},{"$f":"SQRT(((F39))^2+((F53))^2)","v":39.560080889704963},{"$f":"G39+G53","v":11},{"$f":"SQRT(((H39))^2+((H53))^2)","v":16.278820596099706},{"$f":"I39+I53","v":11},{"$f":"SQRT(((J39))^2+((J53))^2)","v":12.041594578792296},{"$f":"K39+K53","v":380},{"$f":"SQRT(((L39))^2+((L53))^2)","v":128.68954891520912},{"$f":"M39+M53","v":9},{"$f":"SQRT(((N39))^2+((N53))^2)","v":14.866068747318506},{"$f":"O39+O53","v":100},{"$f":"SQRT(((P39))^2+((P53))^2)","v":56.462376853972415},{"$f":"Q39+Q53","v":0},{"$f":"SQRT(((R39))^2+((R53))^2)","v":15.556349186104045},{"$f":"S39+S53","v":0},{"$f":"SQRT(((T39))^2+((T53))^2)","v":15.556349186104045},{"$f":"U39+U53","v":0},{"$f":"SQRT(((V39))^2+((V53))^2)","v":15.556349186104045},{"$f":"W39+W53","v":45},{"$f":"SQRT(((X39))^2+((X53))^2)","v":45.177427992306072},{"$f":"Y39+Y53","v":123},{"$f":"SQRT(((Z39))^2+((Z53))^2)","v":57.30619512757761},{"$f":"AA39+AA53","v":91},{"$f":"SQRT(((AB39))^2+((AB53))^2)","v":49.819674828324601},{"$f":"AC39+AC53","v":77},{"$f":"SQRT(((AD39))^2+((AD53))^2)","v":53.150729063673246},{"$f":"AE39+AE53","v":17},{"$f":"SQRT(((AF39))^2+((AF53))^2)","v":10.770329614269007},{"$f":"AG39+AG53","v":109},{"$f":"SQRT(((AH39))^2+((AH53))^2)","v":73.006848993775918},{"$f":"AI39+AI53","v":67},{"$f":"SQRT(((AJ39))^2+((AJ53))^2)","v":43.965895873961216},{"$f":"AK39+AK53","v":293},{"$f":"SQRT(((AL39))^2+((AL53))^2)","v":106.6770828247567},{"$f":"AM39+AM53","v":152},{"$f":"SQRT(((AN39))^2+((AN53))^2)","v":108.18964830333815}]
[null,"5 to 17 years",{"$f":"((C40)+(C41)+(C42)+(C43)+(C44)+(C54)+(C55)+(C56)+(C57)+(C58))","v":76},{"$f":"SQRT((D40^2)+(D41^2)+(D42^2)+(D43^2)+(D44^2)+(D54^2)+(D55^2)+(D56^2)+(D57^2)+(D58^2))","v":33.120990323358392},{"$f":"((E40)+(E41)+(E42)+(E43)+(E44)+(E54)+(E55)+(E56)+(E57)+(E58))","v":273},{"$f":"SQRT((F40^2)+(F41^2)+(F42^2)+(F43^2)+(F44^2)+(F54^2)+(F55^2)+(F56^2)+(F57^2)+(F58^2))","v":141.24092891226678},{"$f":"((G40)+(G41)+(G42)+(G43)+(G44)+(G54)+(G55)+(G56)+(G57)+(G58))","v":124},{"$f":"SQRT((H40^2)+(H41^2)+(H42^2)+(H43^2)+(H44^2)+(H54^2)+(H55^2)+(H56^2)+(H57^2)+(H58^2))","v":46.335731352812381},{"$f":"((I40)+(I41)+(I42)+(I43)+(I44)+(I54)+(I55)+(I56)+(I57)+(I58))","v":41},{"$f":"SQRT((J40^2)+(J41^2)+(J42^2)+(J43^2)+(J44^2)+(J54^2)+(J55^2)+(J56^2)+(J57^2)+(J58^2))","v":23.473389188611005},{"$f":"((K40)+(K41)+(K42)+(K43)+(K44)+(K54)+(K55)+(K56)+(K57)+(K58))","v":1170},{"$f":"SQRT((L40^2)+(L41^2)+(L42^2)+(L43^2)+(L44^2)+(L54^2)+(L55^2)+(L56^2)+(L57^2)+(L58^2))","v":264.73382859015203},{"$f":"((M40)+(M41)+(M42)+(M43)+(M44)+(M54)+(M55)+(M56)+(M57)+(M58))","v":14},{"$f":"SQRT((N40^2)+(N41^2)+(N42^2)+(N43^2)+(N44^2)+(N54^2)+(N55^2)+(N56^2)+(N57^2)+(N58^2))","v":28.142494558940577},{"$f":"((O40)+(O41)+(O42)+(O43)+(O44)+(O54)+(O55)+(O56)+(O57)+(O58))","v":205},{"$f":"SQRT((P40^2)+(P41^2)+(P42^2)+(P43^2)+(P44^2)+(P54^2)+(P55^2)+(P56^2)+(P57^2)+(P58^2))","v":61.830413228442843},{"$f":"((Q40)+(Q41)+(Q42)+(Q43)+(Q44)+(Q54)+(Q55)+(Q56)+(Q57)+(Q58))","v":147},{"$f":"SQRT((R40^2)+(R41^2)+(R42^2)+(R43^2)+(R44^2)+(R54^2)+(R55^2)+(R56^2)+(R57^2)+(R58^2))","v":44.620623034646208},{"$f":"((S40)+(S41)+(S42)+(S43)+(S44)+(S54)+(S55)+(S56)+(S57)+(S58))","v":0},{"$f":"SQRT((T40^2)+(T41^2)+(T42^2)+(T43^2)+(T44^2)+(T54^2)+(T55^2)+(T56^2)+(T57^2)+(T58^2))","v":34.785054261852174},{"$f":"((U40)+(U41)+(U42)+(U43)+(U44)+(U54)+(U55)+(U56)+(U57)+(U58))","v":0},{"$f":"SQRT((V40^2)+(V41^2)+(V42^2)+(V43^2)+(V44^2)+(V54^2)+(V55^2)+(V56^2)+(V57^2)+(V58^2))","v":34.785054261852174},{"$f":"((W40)+(W41)+(W42)+(W43)+(W44)+(W54)+(W55)+(W56)+(W57)+(W58))","v":77},{"$f":"SQRT((X40^2)+(X41^2)+(X42^2)+(X43^2)+(X44^2)+(X54^2)+(X55^2)+(X56^2)+(X57^2)+(X58^2))","v":62.44997998398398},{"$f":"((Y40)+(Y41)+(Y42)+(Y43)+(Y44)+(Y54)+(Y55)+(Y56)+(Y57)+(Y58))","v":276},{"$f":"SQRT((Z40^2)+(Z41^2)+(Z42^2)+(Z43^2)+(Z44^2)+(Z54^2)+(Z55^2)+(Z56^2)+(Z57^2)+(Z58^2))","v":93.25770745627409},{"$f":"((AA40)+(AA41)+(AA42)+(AA43)+(AA44)+(AA54)+(AA55)+(AA56)+(AA57)+(AA58))","v":422},{"$f":"SQRT((AB40^2)+(AB41^2)+(AB42^2)+(AB43^2)+(AB44^2)+(AB54^2)+(AB55^2)+(AB56^2)+(AB57^2)+(AB58^2))","v":122.5724275683565},{"$f":"((AC40)+(AC41)+(AC42)+(AC43)+(AC44)+(AC54)+(AC55)+(AC56)+(AC57)+(AC58))","v":362},{"$f":"SQRT((AD40^2)+(AD41^2)+(AD42^2)+(AD43^2)+(AD44^2)+(AD54^2)+(AD55^2)+(AD56^2)+(AD57^2)+(AD58^2))","v":132.91726750125432},{"$f":"((AE40)+(AE41)+(AE42)+(AE43)+(AE44)+(AE54)+(AE55)+(AE56)+(AE57)+(AE58))","v":100},{"$f":"SQRT((AF40^2)+(AF41^2)+(AF42^2)+(AF43^2)+(AF44^2)+(AF54^2)+(AF55^2)+(AF56^2)+(AF57^2)+(AF58^2))","v":37.576588456111871},{"$f":"((AG40)+(AG41)+(AG42)+(AG43)+(AG44)+(AG54)+(AG55)+(AG56)+(AG57)+(AG58))","v":477},{"$f":"SQRT((AH40^2)+(AH41^2)+(AH42^2)+(AH43^2)+(AH44^2)+(AH54^2)+(AH55^2)+(AH56^2)+(AH57^2)+(AH58^2))","v":199.11554434548802},{"$f":"((AI40)+(AI41)+(AI42)+(AI43)+(AI44)+(AI54)+(AI55)+(AI56)+(AI57)+(AI58))","v":191},{"$f":"SQRT((AJ40^2)+(AJ41^2)+(AJ42^2)+(AJ43^2)+(AJ44^2)+(AJ54^2)+(AJ55^2)+(AJ56^2)+(AJ57^2)+(AJ58^2))","v":60.431779718952512},{"$f":"((AK40)+(AK41)+(AK42)+(AK43)+(AK44)+(AK54)+(AK55)+(AK56)+(AK57)+(AK58))","v":367},{"$f":"SQRT((AL40^2)+(AL41^2)+(AL42^2)+(AL43^2)+(AL44^2)+(AL54^2)+(AL55^2)+(AL56^2)+(AL57^2)+(AL58^2))","v":144.54757002454244},{"$f":"((AM40)+(AM41)+(AM42)+(AM43)+(AM44)+(AM54)+(AM55)+(AM56)+(AM57)+(AM58))","v":577},{"$f":"SQRT((AN40^2)+(AN41^2)+(AN42^2)+(AN43^2)+(AN44^2)+(AN54^2)+(AN55^2)+(AN56^2)+(AN57^2)+(AN58^2))","v":228.12277396174193}]
[null,"18 to 64 years",{"$f":"((C45)+(C46)+(C47)+(C48)+(C49)+(C59)+(C60)+(C61)+(C62)+(C63))","v":399},{"$f":"SQRT((D45^2)+(D46^2)+(D47^2)+(D48^2)+(D49^2)+(D59^2)+(D60^2)+(D61^2)+(D62^2)+(D63^2))","v":72.972597596632127},{"$f":"((E45)+(E46)+(E47)+(E48)+(E49)+(E59)+(E60)+(E61)+(E62)+(E63))","v":1488},{"$f":"SQRT((F45^2)+(F46^2)+(F47^2)+(F48^2)+(F49^2)+(F59^2)+(F60^2)+(F61^2)+(F62^2)+(F63^2))","v":283.70054635125399},{"$f":"((G45)+(G46)+(G47)+(G48)+(G49)+(G59)+(G60)+(G61)+(G62)+(G63))","v":491},{"$f":"SQRT((H45^2)+(H46^2)+(H47^2)+(H48^2)+(H49^2)+(H59^2)+(H60^2)+(H61^2)+(H62^2)+(H63^2))","v":93.053747909474339},{"$f":"((I45)+(I46)+(I47)+(I48)+(I49)+(I59)+(I60)+(I61)+(I62)+(I63))","v":202},{"$f":"SQRT((J45^2)+(J46^2)+(J47^2)+(J48^2)+(J49^2)+(J59^2)+(J60^2)+(J61^2)+(J62^2)+(J63^2))","v":54.396691075836586},{"$f":"((K45)+(K46)+(K47)+(K48)+(K49)+(K59)+(K60)+(K61)+(K62)+(K63))","v":5001},{"$f":"SQRT((L45^2)+(L46^2)+(L47^2)+(L48^2)+(L49^2)+(L59^2)+(L60^2)+(L61^2)+(L62^2)+(L63^2))","v":498.55190301512238},{"$f":"((M45)+(M46)+(M47)+(M48)+(M49)+(M59)+(M60)+(M61)+(M62)+(M63))","v":126},{"$f":"SQRT((N45^2)+(N46^2)+(N47^2)+(N48^2)+(N49^2)+(N59^2)+(N60^2)+(N61^2)+(N62^2)+(N63^2))","v":36.331804249169899},{"$f":"((O45)+(O46)+(O47)+(O48)+(O49)+(O59)+(O60)+(O61)+(O62)+(O63))","v":925},{"$f":"SQRT((P45^2)+(P46^2)+(P47^2)+(P48^2)+(P49^2)+(P59^2)+(P60^2)+(P61^2)+(P62^2)+(P63^2))","v":129.21300244170476},{"$f":"((Q45)+(Q46)+(Q47)+(Q48)+(Q49)+(Q59)+(Q60)+(Q61)+(Q62)+(Q63))","v":608},{"$f":"SQRT((R45^2)+(R46^2)+(R47^2)+(R48^2)+(R49^2)+(R59^2)+(R60^2)+(R61^2)+(R62^2)+(R63^2))","v":94.085067890712608},{"$f":"((S45)+(S46)+(S47)+(S48)+(S49)+(S59)+(S60)+(S61)+(S62)+(S63))","v":33},{"$f":"SQRT((T45^2)+(T46^2)+(T47^2)+(T48^2)+(T49^2)+(T59^2)+(T60^2)+(T61^2)+(T62^2)+(T63^2))","v":32.969683043669072},{"$f":"((U45)+(U46)+(U47)+(U48)+(U49)+(U59)+(U60)+(U61)+(U62)+(U63))","v":31},{"$f":"SQRT((V45^2)+(V46^2)+(V47^2)+(V48^2)+(V49^2)+(V59^2)+(V60^2)+(V61^2)+(V62^2)+(V63^2))","v":28.740215726399828},{"$f":"((W45)+(W46)+(W47)+(W48)+(W49)+(W59)+(W60)+(W61)+(W62)+(W63))","v":379},{"$f":"SQRT((X45^2)+(X46^2)+(X47^2)+(X48^2)+(X49^2)+(X59^2)+(X60^2)+(X61^2)+(X62^2)+(X63^2))","v":106.82696288858914},{"$f":"((Y45)+(Y46)+(Y47)+(Y48)+(Y49)+(Y59)+(Y60)+(Y61)+(Y62)+(Y63))","v":1341},{"$f":"SQRT((Z45^2)+(Z46^2)+(Z47^2)+(Z48^2)+(Z49^2)+(Z59^2)+(Z60^2)+(Z61^2)+(Z62^2)+(Z63^2))","v":174.50787947826311},{"$f":"((AA45)+(AA46)+(AA47)+(AA48)+(AA49)+(AA59)+(AA60)+(AA61)+(AA62)+(AA63))","v":2130},{"$f":"SQRT((AB45^2)+(AB46^2)+(AB47^2)+(AB48^2)+(AB49^2)+(AB59^2)+(AB60^2)+(AB61^2)+(AB62^2)+(AB63^2))","v":256.94551951727044},{"$f":"((AC45)+(AC46)+(AC47)+(AC48)+(AC49)+(AC59)+(AC60)+(AC61)+(AC62)+(AC63))","v":2233},{"$f":"SQRT((AD45^2)+(AD46^2)+(AD47^2)+(AD48^2)+(AD49^2)+(AD59^2)+(AD60^2)+(AD61^2)+(AD62^2)+(AD63^2))","v":323.04179296183952},{"$f":"((AE45)+(AE46)+(AE47)+(AE48)+(AE49)+(AE59)+(AE60)+(AE61)+(AE62)+(AE63))","v":724},{"$f":"SQRT((AF45^2)+(AF46^2)+(AF47^2)+(AF48^2)+(AF49^2)+(AF59^2)+(AF60^2)+(AF61^2)+(AF62^2)+(AF63^2))","v":112.52555265360841},{"$f":"((AG45)+(AG46)+(AG47)+(AG48)+(AG49)+(AG59)+(AG60)+(AG61)+(AG62)+(AG63))","v":1609},{"$f":"SQRT((AH45^2)+(AH46^2)+(AH47^2)+(AH48^2)+(AH49^2)+(AH59^2)+(AH60^2)+(AH61^2)+(AH62^2)+(AH63^2))","v":280.60114041108244},{"$f":"((AI45)+(AI46)+(AI47)+(AI48)+(AI49)+(AI59)+(AI60)+(AI61)+(AI62)+(AI63))","v":1044},{"$f":"SQRT((AJ45^2)+(AJ46^2)+(AJ47^2)+(AJ48^2)+(AJ49^2)+(AJ59^2)+(AJ60^2)+(AJ61^2)+(AJ62^2)+(AJ63^2))","v":142.2673539502299},{"$f":"((AK45)+(AK46)+(AK47)+(AK48)+(AK49)+(AK59)+(AK60)+(AK61)+(AK62)+(AK63))","v":3082},{"$f":"SQRT((AL45^2)+(AL46^2)+(AL47^2)+(AL48^2)+(AL49^2)+(AL59^2)+(AL60^2)+(AL61^2)+(AL62^2)+(AL63^2))","v":373.3229165213408},{"$f":"((AM45)+(AM46)+(AM47)+(AM48)+(AM49)+(AM59)+(AM60)+(AM61)+(AM62)+(AM63))","v":2942},{"$f":"SQRT((AN45^2)+(AN46^2)+(AN47^2)+(AN48^2)+(AN49^2)+(AN59^2)+(AN60^2)+(AN61^2)+(AN62^2)+(AN63^2))","v":457.97161484092004}]
[null,"65 to 74 years",{"$f":"((C50)+(C64))","v":82},{"$f":"SQRT((D50^2)+(D64^2))","v":29.681644159311659},{"$f":"((E50)+(E64))","v":591},{"$f":"SQRT((F50^2)+(F64^2))","v":212.17445652104308},{"$f":"((G50)+(G64))","v":131},{"$f":"SQRT((H50^2)+(H64^2))","v":35.355339059327378},{"$f":"((I50)+(I64))","v":46},{"$f":"SQRT((J50^2)+(J64^2))","v":22.472205054244231},{"$f":"((K50)+(K64))","v":1287},{"$f":"SQRT((L50^2)+(L64^2))","v":231.13848662652441},{"$f":"((M50)+(M64))","v":70},{"$f":"SQRT((N50^2)+(N64^2))","v":25.495097567963924},{"$f":"((O50)+(O64))","v":182},{"$f":"SQRT((P50^2)+(P64^2))","v":46.690470119715009},{"$f":"((Q50)+(Q64))","v":342},{"$f":"SQRT((R50^2)+(R64^2))","v":55.154328932550705},{"$f":"((S50)+(S64))","v":80},{"$f":"SQRT((T50^2)+(T64^2))","v":21.213203435596427},{"$f":"((U50)+(U64))","v":9},{"$f":"SQRT((V50^2)+(V64^2))","v":14.866068747318506},{"$f":"((W50)+(W64))","v":203},{"$f":"SQRT((X50^2)+(X64^2))","v":70.767224051816527},{"$f":"((Y50)+(Y64))","v":331},{"$f":"SQRT((Z50^2)+(Z64^2))","v":86.371291526756735},{"$f":"((AA50)+(AA64))","v":786},{"$f":"SQRT((AB50^2)+(AB64^2))","v":143.17821063276352},{"$f":"((AC50)+(AC64))","v":638},{"$f":"SQRT((AD50^2)+(AD64^2))","v":154.79664079042541},{"$f":"((AE50)+(AE64))","v":317},{"$f":"SQRT((AF50^2)+(AF64^2))","v":67.94115100585212},{"$f":"((AG50)+(AG64))","v":177},{"$f":"SQRT((AH50^2)+(AH64^2))","v":92.849340331528467},{"$f":"((AI50)+(AI64))","v":548},{"$f":"SQRT((AJ50^2)+(AJ64^2))","v":113.22985472038724},{"$f":"((AK50)+(AK64))","v":597},{"$f":"SQRT((AL50^2)+(AL64^2))","v":154.30165261590687},{"$f":"((AM50)+(AM64))","v":1185},{"$f":"SQRT((AN50^2)+(AN64^2))","v":225.01999911119012}]
[null,"75 years and over",{"$f":"((C51)+(C65))","v":53},{"$f":"SQRT((D51^2)+(D65^2))","v":21.95449840010015},{"$f":"((E51)+(E65))","v":202},{"$f":"SQRT((F51^2)+(F65^2))","v":116.82465493208187},{"$f":"((G51)+(G65))","v":21},{"$f":"SQRT((H51^2)+(H65^2))","v":11.401754250991379},{"$f":"((I51)+(I65))","v":34},{"$f":"SQRT((J51^2)+(J65^2))","v":18.384776310850235},{"$f":"((K51)+(K65))","v":625},{"$f":"SQRT((L51^2)+(L65^2))","v":177.73013250431114},{"$f":"((M51)+(M65))","v":24},{"$f":"SQRT((N51^2)+(N65^2))","v":15},{"$f":"((O51)+(O65))","v":58},{"$f":"SQRT((P51^2)+(P65^2))","v":25.942243542145693},{"$f":"((Q51)+(Q65))","v":166},{"$f":"SQRT((R51^2)+(R65^2))","v":42.449970553582247},{"$f":"((S51)+(S65))","v":52},{"$f":"SQRT((T51^2)+(T65^2))","v":19.849433241279208},{"$f":"((U51)+(U65))","v":2},{"$f":"SQRT((V51^2)+(V65^2))","v":4.2426406871192848},{"$f":"((W51)+(W65))","v":76},{"$f":"SQRT((X51^2)+(X65^2))","v":39.698866482558415},{"$f":"((Y51)+(Y65))","v":248},{"$f":"SQRT((Z51^2)+(Z65^2))","v":71.589105316381762},{"$f":"((AA51)+(AA65))","v":390},{"$f":"SQRT((AB51^2)+(AB65^2))","v":98.994949366116657},{"$f":"((AC51)+(AC65))","v":321},{"$f":"SQRT((AD51^2)+(AD65^2))","v":103.32473082471591},{"$f":"((AE51)+(AE65))","v":186},{"$f":"SQRT((AF51^2)+(AF65^2))","v":49.578221024962161},{"$f":"((AG51)+(AG65))","v":327},{"$f":"SQRT((AH51^2)+(AH65^2))","v":130.90836489697671},{"$f":"((AI51)+(AI65))","v":211},{"$f":"SQRT((AJ51^2)+(AJ65^2))","v":58},{"$f":"((AK51)+(AK65))","v":388},{"$f":"SQRT((AL51^2)+(AL65^2))","v":114.62983904725679},{"$f":"((AM51)+(AM65))","v":1067},{"$f":"SQRT((AN51^2)+(AN65^2))","v":211.69081227110448}]
[]
[]
[]
[]
[]
[]
[]
[]
[]
[]
[]
[]
[]
[]
[]
[]
[]
[]
[]
[]
[]
[]
[]
[]
[]
[]
[]
[]
[]
[]
[]
[]
[]
[]
[]
[]
[]
[]
[]
[]
[]
[]
[null,"Calculated Table B17001. POVERTY STATUS IN THE PAST 12 MONTHS BY SEX BY AGE"]
[null,"Universe:  POPULATION FOR WHOM POVERTY STATUS IS DETERMINED"]
[null,"Data Set: 2010-2014 American Community Survey 5-Year Estimates"]
[]
[null,null,"Albany",null,"Bartlett",null,"Brookfield",null,"Chatham",null,"Conway",null,"Eaton",null,"Effingham",null,"Freedom",null,"Hale's Location",null,"Hart's Location",null,"Jackson",null,"Madison",null,"Moultonborough",null,"Ossipee",null,"Sandwich",null,"Tamworth",null,"Tuftonboro",null,"Wakefield",null,"Wolfeboro"]
[null," ","Estimate","Margin of Error","Estimate","Margin of Error","Estimate","Margin of Error","Estimate","Margin of Error","Estimate","Margin of Error","Estimate","Margin of Error","Estimate","Margin of Error","Estimate","Margin of Error","Estimate","Margin of Error","Estimate","Margin of Error","Estimate","Margin of Error","Estimate","Margin of Error","Estimate","Margin of Error","Estimate","Margin of Error","Estimate","Margin of Error","Estimate","Margin of Error","Estimate","Margin of Error","Estimate","Margin of Error","Estimate","Margin of Error"]
[null,"Total:",797,175,2767,20,780,201,387,93,9930,71,348,65,1352,168,1195,152,137,41,41,24,1032,242,2494,19,4032,19,4091,126,1481,191,2843,21,2256,298,5011,62,6135,57]
[null,"Income in the past 12 months below poverty level:",131,102,299,204,27,18,63,42,1079,301,3,4,224,93,181,97,4,5,0,11,63,59,175,96,118,55,900,345,94,58,303,156,162,90,282,146,425,257]
[null,"Under 5 years",19,21.587033144922902,35,50.219518117958877,0,14.212670403551895,11,11.704699910719626,90,89.10667763978185,0,15.556349186104045,14,21.400934559032695,17,7.2111025509279782,0,15.556349186104045,0,15.556349186104045,0,35.735136770411273,0,14.866068747318506,0,13.601470508735444,78,87.005746936624831,6,12.529964086141668,0,13.038404810405298,18,25.298221281347036,0,29.154759474226502,45,76.557168181692816]
[null,"5 to 17 years",24,34.205262752974143,0,33.166247903554002,10,29.103264421710495,0,33.166247903554002,163,120.34949106664307,0,33.166247903554002,23,27.422618401604176,65,39.774363602702685,0,33.166247903554002,0,33.166247903554002,7,30.133038346638727,12,32.908965343808667,0,33.166247903554002,157,115.2735876079165,18,32.202484376209235,0,33.166247903554002,5,32.295510523910288,16,48.414873747640819,60,105.02856754235964]
[null,"18 to 64 years",83,49.406477308142499,238,138.30401295696376,17,29.274562336608895,40,34.219877264537345,703,219.81355736168777,2,33.136083051561783,153,72.725511342306831,83,37.643060449437421,3,33.376638536557273,0,34.785054261852174,45,47.244047244070863,106,53.1224999411737,92,56.841885964489251,563,174.54512310574592,50,43.08131845707603,244,153.64895053335053,119,55.97320787662612,156,97.611474735299439,310,174.696880338488]
[null,"65 to 74 years",3,12.083045973594572,26,43.416586692184822,0,15.556349186104045,10,7.810249675906654,20,27.658633371878661,1,11.180339887498949,10,7.810249675906654,3,11.704699910719626,1,11.401754250991379,0,15.556349186104045,11,20.248456731316587,12,12.529964086141668,16,16.278820596099706,42,49.040799340956916,6,6.4031242374328485,17,30.083217912982647,16,13.416407864998739,66,51.662365412357957,0,21.213203435596427]
[null,"75 years and over",2,11.704699910719626,0,15.556349186104045,0,15.556349186104045,2,12.529964086141668,103,75.690157880665041,0,15.556349186104045,24,24.596747752497688,13,14.212670403551895,0,15.556349186104045,0,15.556349186104045,0,15.556349186104045,45,45.398237851264668,10,19.416487838947599,60,50.159744815937813,14,11.180339887498949,42,39.962482405376171,4,13.601470508735444,44,49.33558553417604,10,23.430749027719962]
[null," Income in the past 12 months at or above poverty level ",666,171,2468,201,753,199,324,82,8851,311,345,65,1128,150,1014,129,133,40,41,24,969,235,2319,97,3914,59,3191,357,1387,176,2540,154,2094,280,4729,174,5710,259]
[null,"Under 5 years",41,33.837848631377263,66,65.76473218982953,26,19.849433241279208,12,10.816653826391969,369,126.81088281373961,1,11.704699910719626,35,20.124611797498108,36,20.591260281974002,0,15.556349186104045,0,15.556349186104045,63,45.276925690687087,118,59.640590204993778,130,74.518454090245328,88,58.137767414994535,47,34.409301068170507,10,17.804493814764857,111,59.169248769948062,186,115.73245007343446,99,89.888820216976924]
[null,"5 to 17 years",128,59.715994507334464,259,110.57576588023255,146,54.653453687758834,55,24.124676163629637,1380,277.5319801392265,27,24.145392935299274,136,42.638011210655684,92,37.78888725538237,3,33.541019662496844,3,33.376638536557273,112,50.616202939375057,315,96.731587395224736,501,136.54669530969983,580,171.72070346932546,253,68.702256149270667,173,79.668061354598052,386,119.08400396358866,477,179.95832850968583,831,228.1534571291875]
[null,"18 to 64 years",368,72.221880341071156,1538,272.62795161171573,402,76.144599283205892,206,46.443514078932488,5580,485.29681639178307,220,43.508619835614184,754,96.948439904930908,522,75.769386958058462,37,28.861739379323623,33,26.870057685088806,448,108.09717850156868,1523,189.7050341978304,2266,243.1131423843639,1875,261.5396719429005,738,104.33599570617994,1841,265.21500711686735,1110,169.77337836068409,3172,399.08896251337245,2842,358.09216690678949]
[null,"65 to 74 years",73,25.45584412271571,413,144.36065946094871,116,38.013155617496423,35,14.7648230602334,959,217.86234185833953,71,21.633307652783937,112,27.658633371878661,165,40.36087214122113,54,17.691806012954132,3,12.529964086141668,214,65.855903304107827,214,68.410525505948286,718,137.2953021774598,393,95.414883535012507,156,35.227829907617071,276,107.62899237658968,239,68.818602136341013,576,180.41341413542398,1156,189.76301009416983]
[null,"75 years and over",56,24.041630560342615,192,102.61578825892242,63,38.209946349085598,16,9.4339811320566032,563,129.0348790056394,26,12.806248474865697,91,31.89043743820395,199,50.209560842532767,39,14.866068747318506,2,11.401754250991379,132,47.381430961928537,149,50.24937810560445,299,94.493386011932074,255,89.643739324059879,193,46.010868281309364,240,114.61239025515522,248,101.13851887386922,318,114.40279716860073,782,185.04323819042943]
[]
[]
[]
[]
[]
[]
[]
[]
[]
[]
[]
[]
[]
[]
[]
[]
[]
[]
[]
[]
[]
[]
[]
[]
[]
[]
[]
[]
[]
[]
[]
[]
[]
[]
[]
[]
[]
[]
[]
[]
[]
[]
[null,"Calculated Table B17001. POVERTY STATUS IN THE PAST 12 MONTHS BY SEX BY AGE"]
[null,"Universe:  POPULATION FOR WHOM POVERTY STATUS IS DETERMINED"]
[null,"Data Set: 2005-2009 American Community Survey 5-Year Estimates"]
[]
[null,null,"Albany",null,"Bartlett",null,"Brookfield",null,"Chatham",null,"Conway",null,"Eaton",null,"Effingham",null,"Freedom",null,"Hale's Location",null,"Hart's Location",null,"Jackson",null,"Madison",null,"Moultonborough",null,"Ossipee",null,"Sandwich",null,"Tamworth",null,"Tuftonboro",null,"Wakefield",null,"Wolfeboro"]
[null," ","Estimate","Margin of Error","Estimate","Margin of Error","Estimate","Margin of Error","Estimate","Margin of Error","Estimate","Margin of Error","Estimate","Margin of Error","Estimate","Margin of Error","Estimate","Margin of Error","Estimate","Margin of Error","Estimate","Margin of Error","Estimate","Margin of Error","Estimate","Margin of Error","Estimate","Margin of Error","Estimate","Margin of Error","Estimate","Margin of Error","Estimate","Margin of Error","Estimate","Margin of Error","Estimate","Margin of Error","Estimate","Margin of Error"]
[null,"Total:",966,265,2936,21,717,220,383,128,8931,172,381,88,1013,178,1178,162,129,47,81,59,926,206,2297,316,4961,38,4589,172,1398,155,2526,334,2391,252,4746,17,6552,47]
[null,"Income in the past 12 months below poverty level:",280,139,185,128,125,147,48,59,1088,424,35,23,51,29,70,39,2,3,0,114,39,28,203,129,234,149,447,236,121,55,309,162,149,124,269,139,656,315]
[null,"Under 5 years",30,115.11733144926528,19,161.22034611053283,0,114.28035701729323,20,117.15374513859982,93,75.927597090912869,8,10.816653826391969,0,114.10959644131601,0,114.28035701729323,0,161.22034611053283,0,161.22034611053283,0,114.73883387938018,23,161.22034611053283,23,73.246160308919954,30,35.468295701936398,13,9.8994949366116654,40,115.91807451816995,0,114.15778554264269,0,118.40608092492548,66,118.82760622010359]
[null,"5 to 17 years",100,169.72330423368501,54,309.30890708157762,0,342.16662607565922,13,302.25816779700097,193,262.79840182162445,5,322.71659393343873,9,322.8792343895779,0,342.16662607565922,0,342.16662607565922,0,342.16662607565922,4,322.74293175838881,16,302.4169307429728,55,309.90805087961172,122,298.88124732073771,19,255.39968676566539,75,234.11108474397363,84,310.39007716098143,17,323.91819955044207,0,342.16662607565922]
[null,"18 to 64 years",139,172.37459209523891,94,307.631272792608,122,275.54491466909707,13,301.93542355940946,664,226.68259747938305,19,255.28807257684406,32,228.69630517347673,53,229.81296743221432,0,360.49965325919527,0,360.49965325919527,28,302.30944411314709,164,212.72752525237536,122,268.45111286787397,263,164.11276610916045,67,164.04267737390779,172,209.32749461071759,41,303.55559622579847,220,198.44646633286268,285,270.56976919086878]
[null,"65 to 74 years",11,9.8994949366116654,10,115.26057435220423,0,161.22034611053283,2,114.0701538527936,45,127.01181047445942,3,114.0701538527936,6,114.28035701729323,5,114.28035701729323,0,161.22034611053283,0,161.22034611053283,7,114.62983904725679,0,161.22034611053283,0,161.22034611053283,0,161.22034611053283,12,12.727922061357855,11,115.41230437002807,11,115.11733144926528,0,161.22034611053283,82,150.33296378372907]
[null,"75 years and over",0,161.22034611053283,8,114.9826073804208,3,114.0701538527936,0,161.22034611053283,93,56.400354608814297,0,161.22034611053283,4,114.15778554264269,12,13.416407864998739,2,114.03946685248927,0,161.22034611053283,0,161.22034611053283,0,161.22034611053283,34,43.011626335213137,32,36.76955262170047,10,114.62983904725679,11,10.63014581273465,13,114.9826073804208,32,34.669871646719429,223,164.12799883018133]
[null," Income in the past 12 months at or above poverty level ",686,217,2751,130,592,152,335,110,7843,453,346,90,962,184,1108,153,127,47,81,59,887,208,2094,311,4727,159,4142,275,1277,146,2217,310,2242,267,4477,138,5896,322]
[null,"Under 5 years",14,12.083045973594572,133,55.97320787662612,48,37.696153649941529,18,16.124515496597098,396,133.05637902783917,0,161.22034611053283,57,33.541019662496844,46,27.784887978899608,14,116.10340218959993,0,161.22034611053283,32,21.2602916254693,132,65.513357416636794,161,72.47068372797375,131,92.763139231054481,18,15.264337522473747,127,59.665735560705194,46,36.878177829171548,148,92.956979296876895,193,89.196412483911033]
[null,"5 to 17 years",101,202.29186834868079,372,159.46786510140529,87,202.20039564748632,43,229.18333272731681,1093,231.26824252369801,49,198.93717601293127,166,55.803225713214822,129,203.147729497526,0,360.49965325919527,19,302.13573108786721,126,233.90810161257775,295,148.39811319555247,549,219.24187556212888,740,210.83880098312076,198,168.38942959699102,362,157.09551234837997,248,80.330567033975299,836,234.95531490051465,861,271.99632350456505]
[null,"18 to 64 years",468,108.16653826391968,1674,240.98962633275318,378,81.712912076366493,231,63.513778032801667,5137,506.62116023711445,241,50.289163842720633,583,85.556998544829753,558,89.732937096698222,55,229.43190710971305,58,200.32972819828814,561,165.73472780319761,1277,191.14654064355966,3046,346.48520891951506,2659,341.3194984175384,776,90.97801932335085,1308,203.42566209797621,1372,192.97668252926312,2727,335.56668487798368,3423,435.07700467848218]
[null,"65 to 74 years",70,30.413812651491099,342,103.71113729971339,47,26.627053911388696,19,13.45362404707371,620,144.40221604947757,35,20.808652046684813,118,40.459856648287818,256,58.137767414994535,53,22.671568097509269,0,161.22034611053283,93,36.400549446402593,249,85.912746434973201,654,154.20765220960988,449,120.80149005703531,155,34.409301068170507,244,75.822160349069449,422,104.4030650891055,260,102.06860437960343,730,173.65770930194836]
[null,"75 years and over",33,28.160255680657446,230,83.450584180100265,32,16.552945357246848,24,19.924858845171276,597,160.42443704124381,21,13.416407864998739,38,27.658633371878661,119,45.276925690687087,5,114.15778554264269,4,114.10959644131601,75,30.413812651491099,141,67.801179930735714,317,99.247166206396045,163,63.63961030678928,130,30.479501308256342,176,63.890531379853151,154,49.203658400570177,506,167.21542991004151,689,169.75276139138356]

{"sheet":"ACS_Table_B17010","index":52,"n_rows":156,"n_cols":40,"rows_kept":156,"cut":false,"hidden":true,"merged":[]}
[null,"B17010. POVERTY STATUS IN THE PAST 12 MONTHS OF FAMILIES BY FAMILY TYPE BY PRESENCE OF RELATED CHILDREN UNDER 18 YEARS"]
[null,"Universe: FAMILIES"]
[null,"Data Set: 2015-2019 American Community Survey 5-Year Estimates"]
[]
[null,null,"Albany",null,"Bartlett",null,"Brookfield",null,"Chatham",null,"Conway",null,"Eaton",null,"Effingham",null,"Freedom",null,"Hale's Location",null,"Hart's Location",null,"Jackson",null,"Madison",null,"Moultonborough",null,"Ossipee",null,"Sandwich",null,"Tamworth",null,"Tuftonboro",null,"Wakefield",null,"Wolfeboro"]
[null," ","Estimate","Margin of Error","Estimate","Margin of Error","Estimate","Margin of Error","Estimate","Margin of Error","Estimate","Margin of Error","Estimate","Margin of Error","Estimate","Margin of Error","Estimate","Margin of Error","Estimate","Margin of Error","Estimate","Margin of Error","Estimate","Margin of Error","Estimate","Margin of Error","Estimate","Margin of Error","Estimate","Margin of Error","Estimate","Margin of Error","Estimate","Margin of Error","Estimate","Margin of Error","Estimate","Margin of Error","Estimate","Margin of Error"]
[null,"Total:",212,50,618,123,258,61,90,34,2704,227,76,29,450,75,437,67,68,20,12,11,227,71,718,73,1275,107,1197,134,417,63,840,104,663,96,1415,159,2069,169]
[null,"Income in the past 12 months below poverty level:",14,13,0,11,11,12,2,4,264,137,0,11,39,22,24,25,5,5,0,11,14,19,34,30,48,34,64,40,11,12,13,20,16,14,0,16,65,70]
[null,"Married-couple family:",0,11,0,11,11,12,0,11,28,34,0,11,14,10,24,25,5,5,0,11,14,19,19,19,12,17,30,31,4,6,13,20,11,12,0,16,29,32]
[null,"With related children under 18 years:",0,11,0,11,0,11,0,11,28,34,0,11,3,5,4,5,1,3,0,11,11,18,13,17,0,11,19,26,0,11,0,11,0,11,0,16,0,16]
[null,"Under 5 years only",0,11,0,11,0,11,0,11,0,18,0,11,0,11,0,11,0,11,0,11,0,11,0,11,0,11,19,26,0,11,0,11,0,11,0,16,0,16]
[null,"Under 5 years and 5 to 17 years",0,11,0,11,0,11,0,11,0,18,0,11,0,11,4,5,0,11,0,11,11,18,0,11,0,11,0,11,0,11,0,11,0,11,0,16,0,16]
[null,"5 to 17 years only",0,11,0,11,0,11,0,11,28,34,0,11,3,5,0,11,1,3,0,11,0,11,13,17,0,11,0,11,0,11,0,11,0,11,0,16,0,16]
[null,"No related children under 18 years",0,11,0,11,11,12,0,11,0,18,0,11,11,9,20,24,4,5,0,11,3,4,6,9,12,17,11,18,4,6,13,20,11,12,0,16,29,32]
[null,"Other family:",14,13,0,11,0,11,2,4,236,130,0,11,25,19,0,11,0,11,0,11,0,11,15,21,36,31,34,28,7,11,0,11,5,7,0,16,36,60]
[null,"Male householder, no spouse present:",8,11,0,11,0,11,0,11,14,28,0,11,9,9,0,11,0,11,0,11,0,11,0,11,8,13,0,11,0,11,0,11,0,11,0,16,0,16]
[null,"With related children under 18 years:",2,5,0,11,0,11,0,11,14,28,0,11,9,9,0,11,0,11,0,11,0,11,0,11,8,13,0,11,0,11,0,11,0,11,0,16,0,16]
[null,"Under 5 years only",0,11,0,11,0,11,0,11,0,18,0,11,0,11,0,11,0,11,0,11,0,11,0,11,0,11,0,11,0,11,0,11,0,11,0,16,0,16]
[null,"Under 5 years and 5 to 17 years",0,11,0,11,0,11,0,11,14,28,0,11,0,11,0,11,0,11,0,11,0,11,0,11,0,11,0,11,0,11,0,11,0,11,0,16,0,16]
[null,"5 to 17 years only",2,5,0,11,0,11,0,11,0,18,0,11,9,9,0,11,0,11,0,11,0,11,0,11,8,13,0,11,0,11,0,11,0,11,0,16,0,16]
[null,"No related children under 18 years",6,9,0,11,0,11,0,11,0,18,0,11,0,11,0,11,0,11,0,11,0,11,0,11,0,11,0,11,0,11,0,11,0,11,0,16,0,16]
[null,"Female householder, no spouse present:",6,8,0,11,0,11,2,4,222,130,0,11,16,17,0,11,0,11,0,11,0,11,15,21,28,29,34,28,7,11,0,11,5,7,0,16,36,60]
[null,"With related children under 18 years:",6,8,0,11,0,11,2,4,222,130,0,11,16,17,0,11,0,11,0,11,0,11,15,21,28,29,34,28,7,11,0,11,5,7,0,16,36,60]
[null,"Under 5 years only",4,7,0,11,0,11,0,11,20,33,0,11,0,11,0,11,0,11,0,11,0,11,0,11,0,11,0,11,7,11,0,11,0,11,0,16,0,16]
[null,"Under 5 years and 5 to 17 years",0,11,0,11,0,11,0,11,31,51,0,11,9,11,0,11,0,11,0,11,0,11,0,11,0,11,4,12,0,11,0,11,5,7,0,16,36,60]
[null,"5 to 17 years only",2,3,0,11,0,11,2,4,171,116,0,11,7,16,0,11,0,11,0,11,0,11,15,21,28,29,30,29,0,11,0,11,0,11,0,16,0,16]
[null,"No related children under 18 years",0,11,0,11,0,11,0,11,0,18,0,11,0,11,0,11,0,11,0,11,0,11,0,11,0,11,0,11,0,11,0,11,0,11,0,16,0,16]
[null,"Income in the past 12 months at or above poverty level:",198,47,618,123,247,60,88,34,2440,271,76,29,411,69,413,66,63,19,12,11,213,70,684,79,1227,112,1133,136,406,66,827,108,647,95,1415,159,2004,180]
[null,"Married-couple family:",162,42,546,123,235,58,76,28,1845,262,71,26,306,52,391,65,63,19,12,11,213,70,609,84,1034,111,884,152,371,66,646,145,602,93,1375,156,1608,237]
[null,"With related children under 18 years:",45,24,174,97,63,28,27,18,445,128,9,8,66,41,83,36,0,11,0,11,52,45,204,58,159,46,190,82,53,22,219,86,114,30,364,75,317,129]
[null,"Under 5 years only",2,4,13,18,7,9,1,4,35,35,2,4,15,16,0,11,0,11,0,11,4,5,58,46,18,21,66,63,9,9,65,58,15,16,121,94,42,66]
[null,"Under 5 years and 5 to 17 years",3,4,41,62,2,5,6,7,219,97,4,6,6,9,0,11,0,11,0,11,37,42,21,15,24,26,16,17,7,6,18,27,22,18,105,73,0,16]
[null,"5 to 17 years only",40,23,120,79,54,25,20,16,191,86,3,4,45,32,83,36,0,11,0,11,11,18,125,58,117,46,108,52,37,18,136,74,77,35,138,85,275,146]
[null,"No related children under 18 years",117,33,372,148,172,53,49,23,1400,228,62,24,240,45,308,59,63,19,12,11,161,60,405,92,875,111,694,140,318,66,427,127,488,88,1011,152,1291,245]
[null,"Other family:",36,21,72,67,12,14,12,14,595,211,5,7,105,41,22,16,0,11,0,11,0,11,75,33,193,80,249,121,35,23,181,102,45,28,40,50,396,177]
[null,"Male householder, no spouse present:",3,5,48,55,4,7,5,8,118,73,0,11,26,17,16,14,0,11,0,11,0,11,17,21,111,67,113,90,14,11,49,72,27,20,0,16,158,157]
[null,"With related children under 18 years:",3,5,29,47,4,7,0,11,46,50,0,11,21,15,7,11,0,11,0,11,0,11,17,21,51,37,40,47,6,7,49,72,23,19,0,16,26,41]
[null,"Under 5 years only",0,11,0,11,0,11,0,11,0,18,0,11,6,8,0,11,0,11,0,11,0,11,0,11,34,30,0,11,0,11,0,11,0,11,0,16,0,16]
[null,"Under 5 years and 5 to 17 years",3,5,0,11,0,11,0,11,0,18,0,11,9,10,0,11,0,11,0,11,0,11,13,19,0,11,0,11,1,2,0,11,8,12,0,16,0,16]
[null,"5 to 17 years only",0,11,29,47,4,7,0,11,46,50,0,11,6,8,7,11,0,11,0,11,0,11,4,8,17,20,40,47,5,7,49,72,15,15,0,16,26,41]
[null,"No related children under 18 years",0,11,19,30,0,11,5,8,72,57,0,11,5,8,9,10,0,11,0,11,0,11,0,11,60,56,73,79,8,8,0,11,4,8,0,16,132,162]
[null,"Female householder, no spouse present:",33,21,24,38,8,11,7,12,477,195,5,7,79,36,6,6,0,11,0,11,0,11,58,28,82,57,136,84,21,20,132,95,18,15,40,50,238,135]
[null,"With related children under 18 years:",11,12,0,11,0,11,0,11,388,169,2,4,61,32,3,4,0,11,0,11,0,11,20,15,52,46,76,75,8,13,71,67,5,8,15,30,134,107]
[null,"Under 5 years only",0,11,0,11,0,11,0,11,67,75,0,11,0,11,0,11,0,11,0,11,0,11,0,11,16,23,0,11,0,11,0,11,0,11,0,16,78,89]
[null,"Under 5 years and 5 to 17 years",0,11,0,11,0,11,0,11,42,57,0,11,31,25,0,11,0,11,0,11,0,11,0,11,0,11,7,11,0,11,0,11,0,11,0,16,0,16]
[null,"5 to 17 years only",11,12,0,11,0,11,0,11,279,135,2,4,30,21,3,4,0,11,0,11,0,11,20,15,36,40,69,75,8,13,71,67,5,8,15,30,56,58]
[null,"No related children under 18 years",22,18,24,38,8,11,7,12,89,90,3,5,18,18,3,4,0,11,0,11,0,11,38,25,30,34,60,42,13,16,61,74,13,13,25,40,104,87]
[]
[]
[]
[]
[]
[]
[]
[]
[]
[]
[]
[]
[null,"B17010. POVERTY STATUS IN THE PAST 12 MONTHS OF FAMILIES BY FAMILY TYPE BY PRESENCE OF RELATED CHILDREN UNDER 18 YEARS"]
[null,"Universe: FAMILIES"]
[null,"Data Set: 2010-2014 American Community Survey 5-Year Estimates"]
[]
[null,null,"Albany",null,"Bartlett",null,"Brookfield",null,"Chatham",null,"Conway",null,"Eaton",null,"Effingham",null,"Freedom",null,"Hale's Location",null,"Hart's Location",null,"Jackson",null,"Madison",null,"Moultonborough",null,"Ossipee",null,"Sandwich",null,"Tamworth",null,"Tuftonboro",null,"Wakefield",null,"Wolfeboro"]
[null," ","Estimate","Margin of Error","Estimate","Margin of Error","Estimate","Margin of Error","Estimate","Margin of Error","Estimate","Margin of Error","Estimate","Margin of Error","Estimate","Margin of Error","Estimate","Margin of Error","Estimate","Margin of Error","Estimate","Margin of Error","Estimate","Margin of Error","Estimate","Margin of Error","Estimate","Margin of Error","Estimate","Margin of Error","Estimate","Margin of Error","Estimate","Margin of Error","Estimate","Margin of Error","Estimate","Margin of Error","Estimate","Margin of Error"]
[null,"Total:",227,56,707,121,244,59,99,29,2972,223,110,24,366,58,381,53,56,20,7,7,311,74,769,92,1351,90,1087,112,456,69,870,123,764,125,1592,172,1745,143]
[null,"Income in the past 12 months below poverty level:",26,25,43,66,5,6,8,11,203,93,0,11,44,27,42,23,0,11,0,11,31,35,31,20,0,11,219,117,14,14,15,21,51,36,46,43,71,58]
[null,"Married-couple family:",16,17,0,11,0,11,2,3,93,59,0,11,29,26,18,14,0,11,0,11,29,35,21,17,0,11,103,73,6,7,0,11,15,12,31,36,71,58]
[null,"With related children under 18 years:",13,15,0,11,0,11,0,11,14,20,0,11,18,25,12,12,0,11,0,11,0,11,6,10,0,11,24,38,0,11,0,11,5,8,0,15,39,43]
[null,"Under 5 years only",1,4,0,11,0,11,0,11,0,17,0,11,15,24,0,11,0,11,0,11,0,11,0,11,0,11,0,11,0,11,0,11,0,11,0,15,21,34]
[null,"Under 5 years and 5 to 17 years",6,9,0,11,0,11,0,11,0,17,0,11,0,11,4,8,0,11,0,11,0,11,0,11,0,11,0,11,0,11,0,11,5,8,0,15,0,15]
[null,"5 to 17 years only",6,11,0,11,0,11,0,11,14,20,0,11,3,5,8,10,0,11,0,11,0,11,6,10,0,11,24,38,0,11,0,11,0,11,0,15,18,29]
[null,"No related children under 18 years",3,6,0,11,0,11,2,3,79,62,0,11,11,10,6,6,0,11,0,11,29,35,15,14,0,11,79,66,6,7,0,11,10,10,31,36,32,39]
[null,"Other family:",10,17,43,66,5,6,6,10,110,79,0,11,15,9,24,18,0,11,0,11,2,5,10,11,0,11,116,96,8,13,15,21,36,32,15,24,0,15]
[null,"Male householder, no spouse present:",0,11,43,66,0,11,0,11,21,33,0,11,7,7,9,14,0,11,0,11,0,11,4,6,0,11,46,57,0,11,0,11,7,10,0,15,0,15]
[null,"With related children under 18 years:",0,11,43,66,0,11,0,11,21,33,0,11,4,5,9,14,0,11,0,11,0,11,0,11,0,11,46,57,0,11,0,11,0,11,0,15,0,15]
[null,"Under 5 years only",0,11,43,66,0,11,0,11,0,17,0,11,0,11,0,11,0,11,0,11,0,11,0,11,0,11,0,11,0,11,0,11,0,11,0,15,0,15]
[null,"Under 5 years and 5 to 17 years",0,11,0,11,0,11,0,11,0,17,0,11,0,11,0,11,0,11,0,11,0,11,0,11,0,11,13,21,0,11,0,11,0,11,0,15,0,15]
[null,"5 to 17 years only",0,11,0,11,0,11,0,11,21,33,0,11,4,5,9,14,0,11,0,11,0,11,0,11,0,11,33,54,0,11,0,11,0,11,0,15,0,15]
[null,"No related children under 18 years",0,11,0,11,0,11,0,11,0,17,0,11,3,4,0,11,0,11,0,11,0,11,4,6,0,11,0,11,0,11,0,11,7,10,0,15,0,15]
[null,"Female householder, no spouse present:",10,17,0,11,5,6,6,10,89,87,0,11,8,6,15,11,0,11,0,11,2,5,6,9,0,11,70,79,8,13,15,21,29,34,15,24,0,15]
[null,"With related children under 18 years:",10,17,0,11,5,6,6,10,89,87,0,11,6,6,15,11,0,11,0,11,2,5,0,11,0,11,70,79,8,13,0,11,15,24,15,24,0,15]
[null,"Under 5 years only",10,17,0,11,0,11,6,10,59,91,0,11,0,11,5,7,0,11,0,11,0,11,0,11,0,11,44,68,0,11,0,11,15,24,0,15,0,15]
[null,"Under 5 years and 5 to 17 years",0,11,0,11,0,11,0,11,30,39,0,11,3,4,4,6,0,11,0,11,0,11,0,11,0,11,26,41,8,13,0,11,0,11,0,15,0,15]
[null,"5 to 17 years only",0,11,0,11,5,6,0,11,0,17,0,11,3,4,6,6,0,11,0,11,2,5,0,11,0,11,0,11,0,11,0,11,0,11,15,24,0,15]
[null,"No related children under 18 years",0,11,0,11,0,11,0,11,0,17,0,11,2,3,0,11,0,11,0,11,0,11,6,9,0,11,0,11,0,11,15,21,14,22,0,15,0,15]
[null,"Income in the past 12 months at or above poverty level:",201,53,664,119,239,58,91,27,2769,199,110,24,322,50,339,51,56,20,7,7,280,66,738,93,1351,90,868,108,442,68,855,122,713,116,1546,166,1674,149]
[null,"Married-couple family:",184,49,543,127,212,57,75,26,2230,213,104,25,241,48,294,47,56,20,5,6,244,60,629,94,1268,105,793,103,368,57,671,128,563,102,1347,190,1499,160]
[null,"With related children under 18 years:",71,34,122,65,75,35,35,15,867,175,18,11,71,27,58,27,2,3,2,4,74,41,203,73,319,79,325,87,104,32,79,50,165,63,419,145,358,125]
[null,"Under 5 years only",19,20,26,39,11,13,9,9,205,110,0,11,11,11,8,6,0,11,0,11,18,21,4,7,49,61,40,42,0,11,6,9,61,47,131,108,48,70]
[null,"Under 5 years and 5 to 17 years",6,11,10,14,6,11,1,4,71,39,1,3,7,8,0,11,0,11,0,11,10,16,75,55,71,41,31,28,14,12,0,11,13,20,22,33,49,55]
[null,"5 to 17 years only",46,26,86,57,58,29,25,12,591,159,17,11,53,24,50,27,2,3,2,4,46,28,124,61,199,76,254,95,90,30,73,47,91,40,266,108,261,107]
[null,"No related children under 18 years",113,37,421,129,137,48,40,20,1363,225,86,23,170,38,236,42,54,19,3,5,170,49,426,98,949,128,468,111,264,55,592,149,398,93,928,226,1141,163]
[null,"Other family:",17,18,121,76,27,18,16,10,539,168,6,5,81,29,45,24,0,11,2,4,36,32,109,54,83,45,75,58,74,42,184,104,150,78,199,133,175,99]
[null,"Male householder, no spouse present:",0,11,3,5,14,14,8,6,215,115,3,3,40,21,29,21,0,11,2,4,0,11,35,30,23,26,25,24,45,37,72,77,27,30,121,107,63,59]
[null,"With related children under 18 years:",0,11,0,11,4,6,3,4,162,117,1,4,11,10,23,20,0,11,0,11,0,11,22,27,23,26,4,7,25,28,17,25,27,30,4,10,29,42]
[null,"Under 5 years only",0,11,0,11,0,11,0,11,0,17,0,11,0,11,11,11,0,11,0,11,0,11,0,11,0,11,4,7,18,28,0,11,0,11,0,15,0,15]
[null,"Under 5 years and 5 to 17 years",0,11,0,11,0,11,0,11,72,99,0,11,0,11,0,11,0,11,0,11,0,11,22,27,0,11,0,11,0,11,0,11,0,11,0,15,0,15]
[null,"5 to 17 years only",0,11,0,11,4,6,3,4,90,80,1,4,11,10,12,19,0,11,0,11,0,11,0,11,23,26,0,11,7,6,17,25,27,30,4,10,29,42]
[null,"No related children under 18 years",0,11,3,5,10,13,5,5,53,55,2,3,29,20,6,6,0,11,2,4,0,11,13,14,0,11,21,24,20,22,55,73,0,11,117,108,34,42]
[null,"Female householder, no spouse present:",17,18,118,75,13,11,8,8,324,130,3,4,41,21,16,11,0,11,0,11,36,32,74,44,60,42,50,51,29,17,112,81,123,74,78,70,112,76]
[null,"With related children under 18 years:",15,18,48,51,9,10,3,5,238,119,2,3,22,16,7,7,0,11,0,11,16,26,30,21,38,40,30,47,20,15,34,41,77,55,37,51,77,67]
[null,"Under 5 years only",9,15,0,11,2,6,0,11,0,17,0,11,2,4,7,7,0,11,0,11,16,26,0,11,0,11,0,11,7,11,0,11,0,11,0,15,0,15]
[null,"Under 5 years and 5 to 17 years",0,11,0,11,0,11,0,11,0,17,0,11,11,13,0,11,0,11,0,11,0,11,0,11,21,31,0,11,0,11,0,11,19,28,37,51,0,15]
[null,"5 to 17 years only",6,10,48,51,7,9,3,5,238,119,2,3,9,8,0,11,0,11,0,11,0,11,30,21,17,26,30,47,13,11,34,41,58,47,0,15,77,67]
[null,"No related children under 18 years",2,3,70,57,4,5,5,6,86,65,1,3,19,14,9,8,0,11,0,11,20,22,44,39,22,20,20,22,9,8,78,78,46,52,41,48,35,39]
[]
[]
[]
[null,"B17010. POVERTY STATUS IN THE PAST 12 MONTHS OF FAMILIES BY FAMILY TYPE BY PRESENCE OF RELATED CHILDREN UNDER 18 YEARS"]
[null,"Universe: FAMILIES"]
[null,"Data Set: 2005-2009 American Community Survey 5-Year Estimates"]
[]
[null,null,"Albany",null,"Bartlett",null,"Brookfield",null,"Chatham",null,"Conway",null,"Eaton",null,"Effingham",null,"Freedom",null,"Hale's Location",null,"Hart's Location",null,"Jackson",null,"Madison",null,"Moultonborough",null,"Ossipee",null,"Sandwich",null,"Tamworth",null,"Tuftonboro",null,"Wakefield",null,"Wolfeboro"]
[null," ","Estimate","Margin of Error","Estimate","Margin of Error","Estimate","Margin of Error","Estimate","Margin of Error","Estimate","Margin of Error","Estimate","Margin of Error","Estimate","Margin of Error","Estimate","Margin of Error","Estimate","Margin of Error","Estimate","Margin of Error","Estimate","Margin of Error","Estimate","Margin of Error","Estimate","Margin of Error","Estimate","Margin of Error","Estimate","Margin of Error","Estimate","Margin of Error","Estimate","Margin of Error","Estimate","Margin of Error","Estimate","Margin of Error"]
[null,"Total:",245,64,730,96,159,46,108,37,2113,190,117,29,251,52,380,62,49,20,19,20,306,77,659,87,1518,134,1110,139,360,47,624,107,693,97,1196,118,1570,178]
[null,"Income in the past 12 months below poverty level:",70,37,29,31,0,114,9,12,131,102,13,12,4,6,13,10,0,114,0,114,6,10,28,25,56,58,105,78,24,14,47,43,33,30,44,45,89,87]
[null,"Married-couple family:",15,12,0,114,0,114,4,6,58,67,8,8,0,114,8,7,0,114,0,114,0,114,0,114,0,114,36,41,8,8,0,114,11,16,26,31,37,60]
[null,"With related children under 18 years:",11,10,0,114,0,114,4,6,10,16,0,114,0,114,0,114,0,114,0,114,0,114,0,114,0,114,21,33,3,5,0,114,0,114,0,114,0,114]
[null,"Under 5 years only",5,7,0,114,0,114,0,114,0,114,0,114,0,114,0,114,0,114,0,114,0,114,0,114,0,114,0,114,0,114,0,114,0,114,0,114,0,114]
[null,"Under 5 years and 5 to 17 years",3,4,0,114,0,114,4,6,10,16,0,114,0,114,0,114,0,114,0,114,0,114,0,114,0,114,0,114,0,114,0,114,0,114,0,114,0,114]
[null,"5 to 17 years only",3,4,0,114,0,114,0,114,0,114,0,114,0,114,0,114,0,114,0,114,0,114,0,114,0,114,21,33,3,5,0,114,0,114,0,114,0,114]
[null,"No related children under 18 years",4,6,0,114,0,114,0,114,48,59,8,8,0,114,8,7,0,114,0,114,0,114,0,114,0,114,15,23,5,6,0,114,11,16,26,31,37,60]
[null,"Other family:",55,37,29,31,0,114,5,11,73,79,5,8,4,6,5,8,0,114,0,114,6,10,28,25,56,58,69,66,16,12,47,43,22,26,18,30,52,66]
[null,"Male householder, no spouse present:",0,114,0,114,0,114,0,114,0,114,0,114,0,114,0,114,0,114,0,114,0,114,6,9,0,114,39,60,2,3,11,15,22,26,0,114,9,17]
[null,"With related children under 18 years:",0,114,0,114,0,114,0,114,0,114,0,114,0,114,0,114,0,114,0,114,0,114,6,9,0,114,39,60,2,3,11,15,22,26,0,114,9,17]
[null,"Under 5 years only",0,114,0,114,0,114,0,114,0,114,0,114,0,114,0,114,0,114,0,114,0,114,0,114,0,114,0,114,0,114,0,114,0,114,0,114,9,17]
[null,"Under 5 years and 5 to 17 years",0,114,0,114,0,114,0,114,0,114,0,114,0,114,0,114,0,114,0,114,0,114,0,114,0,114,0,114,0,114,0,114,0,114,0,114,0,114]
[null,"5 to 17 years only",0,114,0,114,0,114,0,114,0,114,0,114,0,114,0,114,0,114,0,114,0,114,6,9,0,114,39,60,2,3,11,15,22,26,0,114,0,114]
[null,"No related children under 18 years",0,114,0,114,0,114,0,114,0,114,0,114,0,114,0,114,0,114,0,114,0,114,0,114,0,114,0,114,0,114,0,114,0,114,0,114,0,114]
[null,"Female householder, no spouse present:",55,37,29,31,0,114,5,11,73,79,5,8,4,6,5,8,0,114,0,114,6,10,22,20,56,58,30,30,14,12,36,40,0,114,18,30,43,64]
[null,"With related children under 18 years:",55,37,29,31,0,114,5,11,62,76,5,8,4,6,0,114,0,114,0,114,6,10,22,20,56,58,30,30,7,7,36,40,0,114,18,30,43,64]
[null,"Under 5 years only",11,14,0,114,0,114,0,114,0,114,2,5,0,114,0,114,0,114,0,114,0,114,13,15,18,21,0,114,3,4,15,24,0,114,0,114,43,64]
[null,"Under 5 years and 5 to 17 years",8,12,18,26,0,114,5,11,62,76,0,114,0,114,0,114,0,114,0,114,0,114,0,114,0,114,30,30,4,5,0,114,0,114,0,114,0,114]
[null,"5 to 17 years only",36,37,11,18,0,114,0,114,0,114,3,7,4,6,0,114,0,114,0,114,6,10,9,14,38,61,0,114,0,114,21,31,0,114,18,30,0,114]
[null,"No related children under 18 years",0,114,0,114,0,114,0,114,11,18,0,114,0,114,5,8,0,114,0,114,0,114,0,114,0,114,0,114,7,10,0,114,0,114,0,114,0,114]
[null,"Income in the past 12 months at or above poverty level:",175,53,701,105,159,46,99,34,1982,208,104,29,247,52,367,61,49,20,19,20,300,75,631,90,1462,144,1005,128,336,44,577,105,660,96,1152,115,1481,167]
[null,"Married-couple family:",141,44,622,105,134,43,92,33,1609,205,86,27,227,46,331,58,49,20,19,20,294,75,448,70,1355,162,819,129,287,43,453,93,552,88,836,148,1332,195]
[null,"With related children under 18 years:",55,31,226,63,50,31,37,22,633,167,27,17,105,41,74,27,7,11,4,8,71,30,126,56,344,79,209,65,65,24,166,55,136,56,359,122,471,96]
[null,"Under 5 years only",5,7,52,37,6,7,10,13,133,75,0,114,24,15,18,15,7,11,0,114,13,12,37,25,90,55,0,114,0,114,35,22,23,27,50,60,83,62]
[null,"Under 5 years and 5 to 17 years",0,114,42,28,8,9,2,4,105,83,0,114,17,19,11,12,0,114,0,114,15,17,10,17,62,38,37,37,9,9,34,35,16,19,41,36,62,47]
[null,"5 to 17 years only",50,31,132,54,36,27,25,18,395,141,27,17,64,30,45,22,0,114,4,8,43,25,79,48,192,82,172,66,56,21,97,42,97,47,268,120,326,93]
[null,"No related children under 18 years",86,34,396,112,84,29,55,25,976,186,59,24,122,36,257,57,42,19,15,18,223,74,322,66,1011,174,610,135,222,37,287,87,416,92,477,116,861,183]
[null,"Other family:",34,24,79,52,25,29,7,6,373,123,18,13,20,20,36,27,0,114,0,114,6,9,183,66,107,60,186,98,49,18,124,60,108,54,316,127,149,95]
[null,"Male householder, no spouse present:",11,15,39,35,21,28,7,6,168,101,12,10,0,114,15,20,0,114,0,114,0,114,44,39,79,46,88,80,14,10,57,52,38,40,180,116,30,34]
[null,"With related children under 18 years:",11,15,29,32,18,28,2,5,146,99,3,5,0,114,15,20,0,114,0,114,0,114,22,22,43,31,62,69,7,7,57,52,9,13,87,74,30,34]
[null,"Under 5 years only",0,114,12,19,18,28,2,5,0,114,0,114,0,114,0,114,0,114,0,114,0,114,6,10,7,14,26,43,0,114,18,29,0,114,0,114,0,114]
[null,"Under 5 years and 5 to 17 years",0,114,0,114,0,114,0,114,44,57,0,114,0,114,4,7,0,114,0,114,0,114,5,8,0,114,0,114,3,5,17,28,0,114,0,114,0,114]
[null,"5 to 17 years only",11,15,17,25,0,114,0,114,102,83,3,5,0,114,11,19,0,114,0,114,0,114,11,17,36,28,36,56,4,6,22,36,9,13,87,74,30,34]
[null,"No related children under 18 years",0,114,10,16,3,5,5,5,22,28,9,9,0,114,0,114,0,114,0,114,0,114,22,33,36,34,26,28,7,7,0,114,29,37,93,81,0,114]
[null,"Female householder, no spouse present:",23,20,40,34,4,6,0,114,205,86,6,7,20,20,21,18,0,114,0,114,6,9,139,53,28,37,98,75,35,16,67,38,70,38,136,70,119,87]
[null,"With related children under 18 years:",12,11,13,21,4,6,0,114,120,77,4,6,16,19,0,114,0,114,0,114,0,114,88,38,20,33,98,75,27,15,29,23,28,22,74,56,18,29]
[null,"Under 5 years only",0,114,0,114,0,114,0,114,52,65,0,114,0,114,0,114,0,114,0,114,0,114,0,114,0,114,23,34,0,114,0,114,0,114,15,21,0,114]
[null,"Under 5 years and 5 to 17 years",4,6,0,114,0,114,0,114,0,114,0,114,10,16,0,114,0,114,0,114,0,114,35,29,0,114,9,15,0,114,10,16,0,114,0,114,0,114]
[null,"5 to 17 years only",8,9,13,21,4,6,0,114,68,47,4,6,6,9,0,114,0,114,0,114,0,114,53,34,20,33,66,62,27,15,19,22,28,22,59,54,18,29]
[null,"No related children under 18 years",11,17,27,26,0,114,0,114,85,50,2,5,4,5,21,18,0,114,0,114,6,9,51,41,8,14,0,114,8,9,38,38,42,29,62,50,101,83]

{"sheet":"ACS_Table_B17017","index":53,"n_rows":213,"n_cols":40,"rows_kept":213,"cut":false,"hidden":true,"merged":[]}
[null,"B17017. POVERTY STATUS IN THE PAST 12 MONTHS BY HOUSEHOLD TYPE BY AGE OF HOUSEHOLDER"]
[null,"Universe: HOUSEHOLDS"]
[null,"Data Set: 2015-2019 American Community Survey 5-Year Estimates"]
[]
[null,null,"Albany",null,"Bartlett",null,"Brookfield",null,"Chatham",null,"Conway",null,"Eaton",null,"Effingham",null,"Freedom",null,"Hale's Location",null,"Hart's Location",null,"Jackson",null,"Madison",null,"Moultonborough",null,"Ossipee",null,"Sandwich",null,"Tamworth",null,"Tuftonboro",null,"Wakefield",null,"Wolfeboro"]
[null," ","Estimate","Margin of Error","Estimate","Margin of Error","Estimate","Margin of Error","Estimate","Margin of Error","Estimate","Margin of Error","Estimate","Margin of Error","Estimate","Margin of Error","Estimate","Margin of Error","Estimate","Margin of Error","Estimate","Margin of Error","Estimate","Margin of Error","Estimate","Margin of Error","Estimate","Margin of Error","Estimate","Margin of Error","Estimate","Margin of Error","Estimate","Margin of Error","Estimate","Margin of Error","Estimate","Margin of Error","Estimate","Margin of Error"]
[null,"Total:",307,58,1466,162,303,63,143,41,4632,241,135,39,594,82,611,81,89,20,24,16,416,88,977,94,1765,118,2011,164,643,81,1300,147,923,104,2117,185,3000,206]
[null,"Income in the past 12 months below poverty level:",30,18,64,72,13,12,13,11,619,189,14,9,58,23,35,27,7,6,0,11,48,35,76,40,104,53,222,94,25,16,231,127,71,42,122,106,204,117]
[null,"Family households:",14,13,0,11,11,12,2,4,264,137,0,11,39,22,24,25,5,5,0,11,14,19,34,30,48,34,64,40,11,12,13,20,16,14,0,16,65,70]
[null,"Married-couple family:",0,11,0,11,11,12,0,11,28,34,0,11,14,10,24,25,5,5,0,11,14,19,19,19,12,17,30,31,4,6,13,20,11,12,0,16,29,32]
[null,"Householder under 25 years",0,11,0,11,0,11,0,11,0,18,0,11,0,11,0,11,0,11,0,11,0,11,0,11,0,11,0,11,0,11,0,11,0,11,0,16,0,16]
[null,"Householder 25 to 44 years",0,11,0,11,0,11,0,11,0,18,0,11,3,5,4,5,0,11,0,11,0,11,0,11,0,11,19,26,0,11,0,11,0,11,0,16,0,16]
[null,"Householder 45 to 64 years",0,11,0,11,11,12,0,11,28,34,0,11,6,6,15,24,4,5,0,11,11,18,13,17,12,17,11,18,0,11,13,20,11,12,0,16,29,32]
[null,"Householder 65 years and over",0,11,0,11,0,11,0,11,0,18,0,11,5,6,5,6,1,3,0,11,3,4,6,9,0,11,0,11,4,6,0,11,0,11,0,16,0,16]
[null,"Other family:",14,13,0,11,0,11,2,4,236,130,0,11,25,19,0,11,0,11,0,11,0,11,15,21,36,31,34,28,7,11,0,11,5,7,0,16,36,60]
[null,"Male householder, no spouse present:",8,11,0,11,0,11,0,11,14,28,0,11,9,9,0,11,0,11,0,11,0,11,0,11,8,13,0,11,0,11,0,11,0,11,0,16,0,16]
[null,"Householder under 25 years",0,11,0,11,0,11,0,11,0,18,0,11,0,11,0,11,0,11,0,11,0,11,0,11,0,11,0,11,0,11,0,11,0,11,0,16,0,16]
[null,"Householder 25 to 44 years",0,11,0,11,0,11,0,11,14,28,0,11,5,7,0,11,0,11,0,11,0,11,0,11,0,11,0,11,0,11,0,11,0,11,0,16,0,16]
[null,"Householder 45 to 64 years",8,11,0,11,0,11,0,11,0,18,0,11,4,5,0,11,0,11,0,11,0,11,0,11,8,13,0,11,0,11,0,11,0,11,0,16,0,16]
[null,"Householder 65 years and over",0,11,0,11,0,11,0,11,0,18,0,11,0,11,0,11,0,11,0,11,0,11,0,11,0,11,0,11,0,11,0,11,0,11,0,16,0,16]
[null,"Female householder, no spouse present:",6,8,0,11,0,11,2,4,222,130,0,11,16,17,0,11,0,11,0,11,0,11,15,21,28,29,34,28,7,11,0,11,5,7,0,16,36,60]
[null,"Householder under 25 years",0,11,0,11,0,11,0,11,20,33,0,11,0,11,0,11,0,11,0,11,0,11,0,11,0,11,0,11,0,11,0,11,0,11,0,16,0,16]
[null,"Householder 25 to 44 years",4,7,0,11,0,11,0,11,165,115,0,11,9,11,0,11,0,11,0,11,0,11,15,21,15,23,22,20,7,11,0,11,5,7,0,16,36,60]
[null,"Householder 45 to 64 years",2,3,0,11,0,11,2,4,37,55,0,11,7,16,0,11,0,11,0,11,0,11,0,11,13,19,0,11,0,11,0,11,0,11,0,16,0,16]
[null,"Householder 65 years and over",0,11,0,11,0,11,0,11,0,18,0,11,0,11,0,11,0,11,0,11,0,11,0,11,0,11,12,19,0,11,0,11,0,11,0,16,0,16]
[null,"Nonfamily households:",16,14,64,72,2,3,11,11,355,136,14,9,19,11,11,12,2,3,0,11,34,28,42,33,56,39,158,85,14,10,218,125,55,42,122,106,139,95]
[null,"Male householder:",6,7,33,52,0,11,10,11,254,118,5,5,8,8,7,10,2,3,0,11,3,5,12,15,48,37,78,67,4,6,141,88,16,26,90,98,92,103]
[null,"Householder under 25 years",0,11,0,11,0,11,0,11,0,18,0,11,0,11,0,11,0,11,0,11,0,11,0,11,0,11,0,11,0,11,19,29,0,11,0,16,0,16]
[null,"Householder 25 to 44 years",2,4,33,52,0,11,7,9,21,33,3,4,0,11,0,11,0,11,0,11,0,11,0,11,21,33,0,11,0,11,49,77,0,11,0,16,0,16]
[null,"Householder 45 to 64 years",0,11,0,11,0,11,3,5,146,84,0,11,0,11,7,10,0,11,0,11,3,5,4,7,11,15,78,67,0,11,73,71,0,11,90,98,92,103]
[null,"Householder 65 years and over",4,5,0,11,0,11,0,11,87,71,2,4,8,8,0,11,2,3,0,11,0,11,8,13,16,18,0,11,4,6,0,11,16,26,0,16,0,16]
[null,"Female householder:",10,13,31,50,2,3,1,4,101,75,9,9,11,9,4,5,0,11,0,11,31,27,30,29,8,13,80,54,10,8,77,84,39,34,32,34,47,55]
[null,"Householder under 25 years",7,12,0,11,0,11,0,11,0,18,0,11,0,11,0,11,0,11,0,11,0,11,0,11,0,11,0,11,0,11,0,11,0,11,0,16,0,16]
[null,"Householder 25 to 44 years",0,11,0,11,0,11,0,11,51,64,0,11,4,5,0,11,0,11,0,11,0,11,7,10,0,11,0,11,3,4,52,77,0,11,0,16,0,16]
[null,"Householder 45 to 64 years",0,11,31,50,2,3,0,11,10,15,9,9,0,11,0,11,0,11,0,11,8,12,0,11,0,11,69,52,4,5,12,18,4,6,32,34,20,33]
[null,"Householder 65 years and over",3,4,0,11,0,11,1,4,40,36,0,11,7,8,4,5,0,11,0,11,23,23,23,28,8,13,11,18,3,4,13,20,35,33,0,16,27,45]
[null,"Income in the past 12 months at or above poverty level:",277,55,1402,158,290,62,130,39,4013,297,121,39,536,78,576,81,82,20,24,16,368,89,901,92,1661,125,1789,156,618,81,1069,146,852,103,1995,165,2796,199]
[null,"Family households:",198,47,618,123,247,60,88,34,2440,271,76,29,411,69,413,66,63,19,12,11,213,70,684,79,1227,112,1133,136,406,66,827,108,647,95,1415,159,2004,180]
[null,"Married-couple family:",162,42,546,123,235,58,76,28,1845,262,71,26,306,52,391,65,63,19,12,11,213,70,609,84,1034,111,884,152,371,66,646,145,602,93,1375,156,1608,237]
[null,"Householder under 25 years",0,11,0,11,0,11,0,11,0,18,0,11,16,15,0,11,0,11,0,11,0,11,0,11,12,19,0,11,0,11,0,11,8,12,0,16,0,16]
[null,"Householder 25 to 44 years",39,25,83,69,52,30,11,12,548,160,8,11,35,22,46,28,0,11,0,11,30,26,99,45,121,48,186,95,20,12,115,70,72,35,353,96,240,131]
[null,"Householder 45 to 64 years",75,27,293,125,112,42,45,21,631,156,25,15,171,44,169,44,12,9,7,8,81,56,306,69,397,85,437,150,164,44,415,111,225,51,625,120,581,172]
[null,"Householder 65 years and over",48,19,170,97,71,26,20,15,666,170,38,19,84,31,176,41,51,17,5,8,102,46,204,61,504,86,261,96,187,53,116,76,297,78,397,95,787,157]
[null,"Other family:",36,21,72,67,12,14,12,14,595,211,5,7,105,41,22,16,0,11,0,11,0,11,75,33,193,80,249,121,35,23,181,102,45,28,40,50,396,177]
[null,"Male householder, no spouse present:",3,5,48,55,4,7,5,8,118,73,0,11,26,17,16,14,0,11,0,11,0,11,17,21,111,67,113,90,14,11,49,72,27,20,0,16,158,157]
[null,"Householder under 25 years",0,11,0,11,0,11,0,11,0,18,0,11,0,11,0,11,0,11,0,11,0,11,0,11,0,11,0,11,0,11,0,11,0,11,0,16,0,16]
[null,"Householder 25 to 44 years",3,5,0,11,4,7,0,11,90,67,0,11,18,14,0,11,0,11,0,11,0,11,17,21,34,30,79,73,6,7,49,72,8,11,0,16,0,16]
[null,"Householder 45 to 64 years",0,11,48,55,0,11,5,8,0,18,0,11,8,10,12,13,0,11,0,11,0,11,0,11,69,59,0,11,5,7,0,11,12,14,0,16,158,157]
[null,"Householder 65 years and over",0,11,0,11,0,11,0,11,28,30,0,11,0,11,4,5,0,11,0,11,0,11,0,11,8,12,34,55,3,5,0,11,7,11,0,16,0,16]
[null,"Female householder, no spouse present:",33,21,24,38,8,11,7,12,477,195,5,7,79,36,6,6,0,11,0,11,0,11,58,28,82,57,136,84,21,20,132,95,18,15,40,50,238,135]
[null,"Householder under 25 years",8,12,0,11,0,11,0,11,0,18,0,11,0,11,0,11,0,11,0,11,0,11,0,11,0,11,0,11,0,11,0,11,0,11,0,16,47,78]
[null,"Householder 25 to 44 years",10,12,0,11,0,11,1,5,172,103,2,4,29,26,0,11,0,11,0,11,0,11,27,23,54,47,34,53,1,4,32,34,5,8,15,30,54,65]
[null,"Householder 45 to 64 years",13,13,24,38,4,8,6,11,305,157,0,11,36,20,3,4,0,11,0,11,0,11,31,23,28,30,78,66,17,19,0,11,13,13,25,40,14,23]
[null,"Householder 65 years and over",2,3,0,11,4,7,0,11,0,18,3,5,14,17,3,4,0,11,0,11,0,11,0,11,0,11,24,28,3,5,100,89,0,11,0,16,123,103]
[null,"Nonfamily households:",79,29,784,194,43,20,42,18,1573,334,45,23,125,42,163,44,19,12,12,12,155,59,217,86,434,117,656,196,212,64,242,147,205,67,580,187,792,230]
[null,"Male householder:",41,24,483,162,21,13,23,12,801,218,21,15,43,20,63,28,8,7,5,8,78,44,92,50,184,82,299,133,95,47,142,111,84,36,439,172,288,153]
[null,"Householder under 25 years",0,11,0,11,0,11,0,11,0,18,5,9,0,11,0,11,0,11,0,11,0,11,7,10,0,11,0,11,0,11,0,11,0,11,60,91,0,16]
[null,"Householder 25 to 44 years",2,3,99,80,0,11,5,5,293,153,6,7,8,8,0,11,0,11,0,11,11,17,40,32,39,48,86,75,16,21,0,11,18,27,107,112,18,29]
[null,"Householder 45 to 64 years",17,17,184,103,17,12,8,6,232,83,5,5,15,12,19,19,0,11,0,11,26,27,16,14,88,62,134,86,27,23,129,105,18,14,151,85,191,131]
[null,"Householder 65 years and over",22,19,200,116,4,5,10,10,276,134,5,7,20,13,44,18,8,7,5,8,41,31,29,26,57,42,79,53,52,31,13,19,48,25,121,103,79,102]
[null,"Female householder:",38,19,301,146,22,16,19,15,772,230,24,17,82,34,100,35,11,10,7,10,77,39,125,62,250,83,357,128,117,37,100,79,121,52,141,74,504,190]
[null,"Householder under 25 years",0,11,33,54,0,11,0,11,91,113,0,11,15,22,0,11,0,11,0,11,0,11,0,11,0,11,0,11,0,11,0,11,6,10,0,16,0,16]
[null,"Householder 25 to 44 years",11,12,0,11,0,11,0,11,136,122,10,13,10,10,10,12,0,11,2,4,17,16,0,11,29,29,16,23,14,16,0,11,5,7,0,16,0,16]
[null,"Householder 45 to 64 years",18,12,85,77,14,14,9,9,298,166,4,5,16,10,44,30,0,11,5,8,23,23,41,29,42,33,83,67,49,23,26,27,18,17,99,65,166,116]
[null,"Householder 65 years and over",9,7,183,109,8,7,10,11,247,98,10,11,41,20,46,24,11,10,0,11,37,29,84,50,179,79,258,103,54,23,74,71,92,47,42,37,338,150]
[]
[]
[]
[]
[]
[]
[]
[]
[]
[null,"B17017. POVERTY STATUS IN THE PAST 12 MONTHS BY HOUSEHOLD TYPE BY AGE OF HOUSEHOLDER"]
[null,"Universe: HOUSEHOLDS"]
[null,"Data Set: 2010-2014 American Community Survey 5-Year Estimates"]
[]
[null,null,"Albany",null,"Bartlett",null,"Brookfield",null,"Chatham",null,"Conway",null,"Eaton",null,"Effingham",null,"Freedom",null,"Hale's Location",null,"Hart's Location",null,"Jackson",null,"Madison",null,"Moultonborough",null,"Ossipee",null,"Sandwich",null,"Tamworth",null,"Tuftonboro",null,"Wakefield",null,"Wolfeboro"]
[null," ","Estimate","Margin of Error","Estimate","Margin of Error","Estimate","Margin of Error","Estimate","Margin of Error","Estimate","Margin of Error","Estimate","Margin of Error","Estimate","Margin of Error","Estimate","Margin of Error","Estimate","Margin of Error","Estimate","Margin of Error","Estimate","Margin of Error","Estimate","Margin of Error","Estimate","Margin of Error","Estimate","Margin of Error","Estimate","Margin of Error","Estimate","Margin of Error","Estimate","Margin of Error","Estimate","Margin of Error","Estimate","Margin of Error"]
[null,"Total:",308,53,1567,184,298,64,161,35,4365,233,176,33,553,70,532,66,67,21,26,14,444,91,1133,93,1762,94,1761,183,645,87,1512,148,975,121,2260,207,2734,204]
[null,"Income in the past 12 months below poverty level:",38,27,206,130,9,7,29,17,453,140,3,4,83,38,60,25,1,3,0,11,31,35,72,52,90,56,352,128,27,16,274,147,69,40,159,98,196,144]
[null,"Family households:",26,25,43,66,5,6,8,11,203,93,0,11,44,27,42,23,0,11,0,11,31,35,31,20,0,11,219,117,14,14,15,21,51,36,46,43,71,58]
[null,"Married-couple family:",16,17,0,11,0,11,2,3,93,59,0,11,29,26,18,14,0,11,0,11,29,35,21,17,0,11,103,73,6,7,0,11,15,12,31,36,71,58]
[null,"Householder under 25 years",0,11,0,11,0,11,0,11,0,17,0,11,0,11,0,11,0,11,0,11,0,11,0,11,0,11,0,11,0,11,0,11,0,11,0,15,0,15]
[null,"Householder 25 to 44 years",6,11,0,11,0,11,0,11,19,22,0,11,15,24,12,12,0,11,0,11,0,11,0,11,0,11,24,38,0,11,0,11,5,8,0,15,39,43]
[null,"Householder 45 to 64 years",10,12,0,11,0,11,0,11,66,59,0,11,9,10,6,6,0,11,0,11,29,35,17,16,0,11,70,65,0,11,0,11,6,8,15,25,32,39]
[null,"Householder 65 years and over",0,11,0,11,0,11,2,3,8,12,0,11,5,6,0,11,0,11,0,11,0,11,4,6,0,11,9,14,6,7,0,11,4,6,16,26,0,15]
[null,"Other family:",10,17,43,66,5,6,6,10,110,79,0,11,15,9,24,18,0,11,0,11,2,5,10,11,0,11,116,96,8,13,15,21,36,32,15,24,0,15]
[null,"Male householder, no spouse present:",0,11,43,66,0,11,0,11,21,33,0,11,7,7,9,14,0,11,0,11,0,11,4,6,0,11,46,57,0,11,0,11,7,10,0,15,0,15]
[null,"Householder under 25 years",0,11,43,66,0,11,0,11,0,17,0,11,0,11,0,11,0,11,0,11,0,11,0,11,0,11,0,11,0,11,0,11,0,11,0,15,0,15]
[null,"Householder 25 to 44 years",0,11,0,11,0,11,0,11,0,17,0,11,4,5,0,11,0,11,0,11,0,11,0,11,0,11,46,57,0,11,0,11,0,11,0,15,0,15]
[null,"Householder 45 to 64 years",0,11,0,11,0,11,0,11,21,33,0,11,3,4,9,14,0,11,0,11,0,11,0,11,0,11,0,11,0,11,0,11,7,10,0,15,0,15]
[null,"Householder 65 years and over",0,11,0,11,0,11,0,11,0,17,0,11,0,11,0,11,0,11,0,11,0,11,4,6,0,11,0,11,0,11,0,11,0,11,0,15,0,15]
[null,"Female householder, no spouse present:",10,17,0,11,5,6,6,10,89,87,0,11,8,6,15,11,0,11,0,11,2,5,6,9,0,11,70,79,8,13,15,21,29,34,15,24,0,15]
[null,"Householder under 25 years",0,11,0,11,0,11,0,11,59,91,0,11,0,11,0,11,0,11,0,11,0,11,0,11,0,11,0,11,0,11,0,11,15,24,0,15,0,15]
[null,"Householder 25 to 44 years",0,11,0,11,3,5,0,11,30,39,0,11,6,6,12,10,0,11,0,11,2,5,0,11,0,11,70,79,8,13,0,11,0,11,15,24,0,15]
[null,"Householder 45 to 64 years",10,17,0,11,2,3,6,10,0,17,0,11,2,3,3,4,0,11,0,11,0,11,6,9,0,11,0,11,0,11,15,21,14,22,0,15,0,15]
[null,"Householder 65 years and over",0,11,0,11,0,11,0,11,0,17,0,11,0,11,0,11,0,11,0,11,0,11,0,11,0,11,0,11,0,11,0,11,0,11,0,15,0,15]
[null,"Nonfamily households:",12,10,163,121,4,5,21,15,250,117,3,4,39,27,18,11,1,3,0,11,0,11,41,45,90,56,133,83,13,10,259,144,18,19,113,84,125,142]
[null,"Male householder:",0,11,56,58,0,11,3,4,75,59,2,3,8,10,3,4,0,11,0,11,0,11,0,11,65,49,41,40,2,4,213,148,0,11,29,48,28,44]
[null,"Householder under 25 years",0,11,0,11,0,11,0,11,0,17,0,11,0,11,0,11,0,11,0,11,0,11,0,11,0,11,0,11,0,11,0,11,0,11,29,48,0,15]
[null,"Householder 25 to 44 years",0,11,0,11,0,11,0,11,49,54,0,11,0,11,0,11,0,11,0,11,0,11,0,11,0,11,0,11,0,11,0,11,0,11,0,15,0,15]
[null,"Householder 45 to 64 years",0,11,56,58,0,11,0,11,18,20,2,3,8,10,3,4,0,11,0,11,0,11,0,11,57,45,41,40,2,4,200,147,0,11,0,15,28,44]
[null,"Householder 65 years and over",0,11,0,11,0,11,3,4,8,13,0,11,0,11,0,11,0,11,0,11,0,11,0,11,8,11,0,11,0,11,13,21,0,11,0,15,0,15]
[null,"Female householder:",12,10,107,95,4,5,18,14,175,102,1,2,31,26,15,10,1,3,0,11,0,11,41,45,25,23,92,72,11,10,46,45,18,19,84,69,97,118]
[null,"Householder under 25 years",0,11,42,70,0,11,7,11,19,27,0,11,0,11,0,11,0,11,0,11,0,11,0,11,0,11,0,11,0,11,0,11,0,11,0,15,0,15]
[null,"Householder 25 to 44 years",2,3,0,11,0,11,3,4,0,17,0,11,0,11,0,11,0,11,0,11,0,11,0,11,0,11,0,11,0,11,0,11,0,11,22,34,82,115]
[null,"Householder 45 to 64 years",5,5,39,48,4,5,2,3,81,59,0,11,10,15,2,3,0,11,0,11,0,11,0,11,7,11,61,55,4,6,0,11,10,16,0,15,15,25]
[null,"Householder 65 years and over",5,7,26,42,0,11,6,7,75,72,1,2,21,21,13,9,1,3,0,11,0,11,41,45,18,20,31,39,7,8,46,45,8,9,62,62,0,15]
[null,"Income in the past 12 months at or above poverty level:",270,53,1361,165,289,63,132,35,3912,223,173,33,470,62,472,65,66,20,26,14,413,85,1061,92,1672,98,1409,200,618,86,1238,147,906,112,2101,187,2538,176]
[null,"Family households:",201,53,664,119,239,58,91,27,2769,199,110,24,322,50,339,51,56,20,7,7,280,66,738,93,1351,90,868,108,442,68,855,122,713,116,1546,166,1674,149]
[null,"Married-couple family:",184,49,543,127,212,57,75,26,2230,213,104,25,241,48,294,47,56,20,5,6,244,60,629,94,1268,105,793,103,368,57,671,128,563,102,1347,190,1499,160]
[null,"Householder under 25 years",0,11,0,11,0,11,0,11,0,17,0,11,3,6,0,11,0,11,0,11,0,11,0,11,0,11,0,11,0,11,0,11,0,11,0,15,0,15]
[null,"Householder 25 to 44 years",55,30,133,89,58,29,23,14,669,155,8,7,44,21,31,18,0,11,3,5,39,33,214,80,204,70,251,71,79,32,53,37,175,69,333,152,195,93]
[null,"Householder 45 to 64 years",84,33,242,105,65,25,32,17,1000,163,55,18,134,41,130,31,13,9,2,4,68,33,278,81,702,105,353,86,174,46,435,99,244,78,683,175,602,146]
[null,"Householder 65 years and over",45,18,168,103,89,41,20,14,561,141,41,16,60,23,133,37,43,16,0,11,137,46,137,48,362,79,189,66,115,34,183,102,144,52,331,137,702,123]
[null,"Other family:",17,18,121,76,27,18,16,10,539,168,6,5,81,29,45,24,0,11,2,4,36,32,109,54,83,45,75,58,74,42,184,104,150,78,199,133,175,99]
[null,"Male householder, no spouse present:",0,11,3,5,14,14,8,6,215,115,3,3,40,21,29,21,0,11,2,4,0,11,35,30,23,26,25,24,45,37,72,77,27,30,121,107,63,59]
[null,"Householder under 25 years",0,11,0,11,0,11,0,11,61,96,0,11,10,18,0,11,0,11,0,11,0,11,0,11,0,11,0,11,0,11,0,11,0,11,0,15,0,15]
[null,"Householder 25 to 44 years",0,11,0,11,0,11,0,11,95,76,1,4,8,9,23,20,0,11,2,4,0,11,30,30,0,11,17,20,33,36,17,25,27,30,51,74,29,42]
[null,"Householder 45 to 64 years",0,11,3,5,12,14,6,5,59,66,0,11,13,10,3,4,0,11,0,11,0,11,5,7,23,26,0,11,12,10,5,9,0,11,70,81,19,31]
[null,"Householder 65 years and over",0,11,0,11,2,4,2,3,0,17,2,3,9,7,3,4,0,11,0,11,0,11,0,11,0,11,8,13,0,11,50,73,0,11,0,15,15,25]
[null,"Female householder, no spouse present:",17,18,118,75,13,11,8,8,324,130,3,4,41,21,16,11,0,11,0,11,36,32,74,44,60,42,50,51,29,17,112,81,123,74,78,70,112,76]
[null,"Householder under 25 years",0,11,0,11,0,11,0,11,0,17,0,11,0,11,0,11,0,11,0,11,26,31,0,11,0,11,0,11,0,11,0,11,0,11,0,15,0,15]
[null,"Householder 25 to 44 years",15,18,0,11,5,8,0,11,76,62,0,11,11,12,0,11,0,11,0,11,0,11,30,33,0,11,30,47,7,11,9,13,48,43,65,69,77,67]
[null,"Householder 45 to 64 years",0,11,92,64,2,6,6,6,229,121,1,3,16,12,9,7,0,11,0,11,0,11,44,32,49,42,13,18,16,12,79,79,33,36,13,20,10,16]
[null,"Householder 65 years and over",2,3,26,42,6,6,2,3,19,20,2,3,14,13,7,7,0,11,0,11,10,12,0,11,11,12,7,11,6,7,24,29,42,51,0,15,25,34]
[null,"Nonfamily households:",69,27,697,216,50,19,41,21,1143,242,63,24,148,46,133,41,10,7,19,14,133,55,323,104,321,93,541,168,176,52,383,160,193,64,555,205,864,200]
[null,"Male householder:",36,20,474,187,29,17,28,17,602,179,32,18,91,39,71,31,7,6,15,14,72,38,193,83,140,67,296,139,66,28,232,124,71,37,310,161,233,130]
[null,"Householder under 25 years",0,11,0,11,0,11,0,11,60,75,0,11,0,11,5,7,0,11,0,11,0,11,13,21,0,11,12,21,0,11,25,39,0,11,0,15,0,15]
[null,"Householder 25 to 44 years",0,11,80,85,4,6,10,14,133,107,2,5,40,30,0,11,1,3,4,7,20,24,26,29,0,11,58,54,3,6,0,11,6,10,117,108,54,51]
[null,"Householder 45 to 64 years",16,11,261,132,25,16,7,8,281,119,17,15,33,19,26,22,2,5,11,13,22,21,116,62,70,41,135,99,30,20,188,113,31,22,124,108,109,91]
[null,"Householder 65 years and over",20,18,133,83,0,11,11,7,128,88,13,8,18,15,40,20,4,4,0,11,30,23,38,31,70,50,91,50,33,19,19,24,34,24,69,55,70,81]
[null,"Female householder:",33,19,223,110,21,12,13,11,541,191,31,19,57,24,62,24,3,4,4,4,61,35,130,65,181,64,245,99,110,44,151,80,122,49,245,135,631,189]
[null,"Householder under 25 years",0,11,39,61,0,11,0,11,37,44,0,11,0,11,0,11,0,11,0,11,0,11,0,11,0,11,0,11,5,8,0,11,0,11,0,15,0,15]
[null,"Householder 25 to 44 years",0,11,60,67,0,11,6,10,105,89,0,11,5,6,0,11,0,11,2,3,11,20,19,21,10,15,17,20,23,31,0,11,5,9,0,15,0,15]
[null,"Householder 45 to 64 years",13,11,22,26,10,9,3,5,190,115,21,18,20,12,22,16,0,11,0,11,19,20,83,53,60,30,135,75,18,11,90,56,19,16,149,111,268,139]
[null,"Householder 65 years and over",20,14,102,70,11,8,4,5,209,123,10,6,32,19,40,17,3,4,2,3,31,20,28,18,111,59,93,49,64,25,61,49,98,44,96,77,363,117]
[]
[]
[]
[]
[]
[]
[]
[]
[]
[null,"B17017. POVERTY STATUS IN THE PAST 12 MONTHS BY HOUSEHOLD TYPE BY AGE OF HOUSEHOLDER"]
[null,"Universe: HOUSEHOLDS"]
[null,"Data Set: 2005-2009 American Community Survey 5-Year Estimates"]
[]
[null,null,"Albany",null,"Bartlett",null,"Brookfield",null,"Chatham",null,"Conway",null,"Eaton",null,"Effingham",null,"Freedom",null,"Hale's Location",null,"Hart's Location",null,"Jackson",null,"Madison",null,"Moultonborough",null,"Ossipee",null,"Sandwich",null,"Tamworth",null,"Tuftonboro",null,"Wakefield",null,"Wolfeboro"]
[null," ","Estimate","Margin of Error","Estimate","Margin of Error","Estimate","Margin of Error","Estimate","Margin of Error","Estimate","Margin of Error","Estimate","Margin of Error","Estimate","Margin of Error","Estimate","Margin of Error","Estimate","Margin of Error","Estimate","Margin of Error","Estimate","Margin of Error","Estimate","Margin of Error","Estimate","Margin of Error","Estimate","Margin of Error","Estimate","Margin of Error","Estimate","Margin of Error","Estimate","Margin of Error","Estimate","Margin of Error","Estimate","Margin of Error"]
[null,"Total:",304,67,1203,117,258,52,118,37,3783,258,151,31,423,63,552,70,59,20,37,21,361,77,830,90,2003,119,1842,183,598,61,1021,117,929,115,1773,198,2790,210]
[null,"Income in the past 12 months below poverty level:",73,38,97,58,15,12,11,15,476,171,13,12,30,19,33,20,2,3,0,114,35,23,71,41,113,80,217,113,52,25,146,53,38,32,138,92,406,196]
[null,"Family households:",70,37,29,31,0,114,9,12,131,102,13,12,4,6,13,10,0,114,0,114,6,10,28,25,56,58,105,78,24,14,47,43,33,30,44,45,89,87]
[null,"Married-couple family:",15,12,0,114,0,114,4,6,58,67,8,8,0,114,8,7,0,114,0,114,0,114,0,114,0,114,36,41,8,8,0,114,11,16,26,31,37,60]
[null,"Householder under 25 years",0,114,0,114,0,114,0,114,0,114,0,114,0,114,0,114,0,114,0,114,0,114,0,114,0,114,0,114,0,114,0,114,0,114,0,114,0,114]
[null,"Householder 25 to 44 years",6,6,0,114,0,114,4,6,10,16,0,114,0,114,0,114,0,114,0,114,0,114,0,114,0,114,21,33,0,114,0,114,0,114,0,114,0,114]
[null,"Householder 45 to 64 years",5,7,0,114,0,114,0,114,38,58,5,8,0,114,4,5,0,114,0,114,0,114,0,114,0,114,15,23,6,7,0,114,0,114,14,24,0,114]
[null,"Householder 65 years and over",4,6,0,114,0,114,0,114,10,15,3,4,0,114,4,6,0,114,0,114,0,114,0,114,0,114,0,114,2,4,0,114,11,16,12,19,37,60]
[null,"Other family:",55,37,29,31,0,114,5,11,73,79,5,8,4,6,5,8,0,114,0,114,6,10,28,25,56,58,69,66,16,12,47,43,22,26,18,30,52,66]
[null,"Male householder, no spouse present:",0,114,0,114,0,114,0,114,0,114,0,114,0,114,0,114,0,114,0,114,0,114,6,9,0,114,39,60,2,3,11,15,22,26,0,114,9,17]
[null,"Householder under 25 years",0,114,0,114,0,114,0,114,0,114,0,114,0,114,0,114,0,114,0,114,0,114,0,114,0,114,0,114,0,114,0,114,0,114,0,114,0,114]
[null,"Householder 25 to 44 years",0,114,0,114,0,114,0,114,0,114,0,114,0,114,0,114,0,114,0,114,0,114,6,9,0,114,39,60,0,114,0,114,0,114,0,114,9,17]
[null,"Householder 45 to 64 years",0,114,0,114,0,114,0,114,0,114,0,114,0,114,0,114,0,114,0,114,0,114,0,114,0,114,0,114,2,3,11,15,22,26,0,114,0,114]
[null,"Householder 65 years and over",0,114,0,114,0,114,0,114,0,114,0,114,0,114,0,114,0,114,0,114,0,114,0,114,0,114,0,114,0,114,0,114,0,114,0,114,0,114]
[null,"Female householder, no spouse present:",55,37,29,31,0,114,5,11,73,79,5,8,4,6,5,8,0,114,0,114,6,10,22,20,56,58,30,30,14,12,36,40,0,114,18,30,43,64]
[null,"Householder under 25 years",8,12,0,114,0,114,5,11,0,114,2,5,4,6,0,114,0,114,0,114,0,114,0,114,10,16,0,114,3,4,15,24,0,114,0,114,43,64]
[null,"Householder 25 to 44 years",44,39,18,26,0,114,0,114,62,76,0,114,0,114,0,114,0,114,0,114,0,114,22,20,0,114,30,30,4,5,0,114,0,114,18,30,0,114]
[null,"Householder 45 to 64 years",3,6,11,18,0,114,0,114,0,114,3,7,0,114,5,8,0,114,0,114,6,10,0,114,38,61,0,114,0,114,21,31,0,114,0,114,0,114]
[null,"Householder 65 years and over",0,114,0,114,0,114,0,114,11,18,0,114,0,114,0,114,0,114,0,114,0,114,0,114,8,13,0,114,7,10,0,114,0,114,0,114,0,114]
[null,"Nonfamily households:",3,4,68,51,15,12,2,4,345,144,0,114,26,19,20,17,2,3,0,114,29,23,43,31,57,54,112,84,28,20,99,45,5,8,94,72,317,184]
[null,"Male householder:",3,4,39,37,4,6,0,114,200,109,0,114,11,11,6,9,0,114,0,114,11,13,18,20,26,41,94,80,12,11,61,35,5,8,50,58,208,158]
[null,"Householder under 25 years",0,114,0,114,0,114,0,114,32,50,0,114,0,114,0,114,0,114,0,114,0,114,0,114,0,114,0,114,0,114,0,114,0,114,0,114,15,23]
[null,"Householder 25 to 44 years",0,114,0,114,0,114,0,114,88,82,0,114,4,6,0,114,0,114,0,114,0,114,0,114,0,114,13,21,0,114,0,114,0,114,50,58,0,114]
[null,"Householder 45 to 64 years",0,114,31,34,4,6,0,114,41,45,0,114,7,9,6,9,0,114,0,114,11,13,18,20,0,114,59,61,7,7,55,34,0,114,0,114,111,128]
[null,"Householder 65 years and over",3,4,8,15,0,114,0,114,39,43,0,114,0,114,0,114,0,114,0,114,0,114,0,114,26,41,22,34,5,8,6,8,5,8,0,114,82,98]
[null,"Female householder:",0,114,29,34,11,10,2,4,145,81,0,114,15,13,14,15,2,3,0,114,18,19,25,19,31,35,18,21,16,17,38,28,0,114,44,46,109,96]
[null,"Householder under 25 years",0,114,0,114,0,114,0,114,13,21,0,114,0,114,0,114,0,114,0,114,0,114,6,10,0,114,0,114,0,114,0,114,0,114,0,114,0,114]
[null,"Householder 25 to 44 years",0,114,0,114,4,6,0,114,39,34,0,114,5,8,6,9,0,114,0,114,0,114,12,13,0,114,0,114,9,15,0,114,0,114,0,114,0,114]
[null,"Householder 45 to 64 years",0,114,19,29,4,6,0,114,56,57,0,114,0,114,0,114,0,114,0,114,11,13,7,10,31,35,8,13,4,6,22,21,0,114,35,43,48,82]
[null,"Householder 65 years and over",0,114,10,17,3,4,2,4,37,35,0,114,10,10,8,12,2,3,0,114,7,12,0,114,0,114,10,14,3,5,16,19,0,114,9,14,61,45]
[null,"Income in the past 12 months at or above poverty level:",231,56,1106,125,243,52,107,34,3307,247,138,31,393,65,519,68,57,21,37,21,326,77,759,89,1890,144,1625,181,546,55,875,107,891,114,1635,187,2384,220]
[null,"Family households:",175,53,701,105,159,46,99,34,1982,208,104,29,247,52,367,61,49,20,19,20,300,75,631,90,1462,144,1005,128,336,44,577,105,660,96,1152,115,1481,167]
[null,"Married-couple family:",141,44,622,105,134,43,92,33,1609,205,86,27,227,46,331,58,49,20,19,20,294,75,448,70,1355,162,819,129,287,43,453,93,552,88,836,148,1332,195]
[null,"Householder under 25 years",0,114,0,114,0,114,0,114,0,114,0,114,8,8,0,114,0,114,0,114,0,114,0,114,0,114,20,33,0,114,0,114,0,114,0,114,13,21]
[null,"Householder 25 to 44 years",69,35,190,78,41,26,30,24,473,125,13,11,68,31,65,29,0,114,6,11,69,27,91,52,269,86,174,65,32,20,179,66,102,46,274,116,295,96]
[null,"Householder 45 to 64 years",39,22,239,77,78,33,47,24,773,158,58,24,105,35,119,36,22,14,13,17,140,65,244,68,688,150,473,125,177,34,175,55,204,62,418,103,582,170]
[null,"Householder 65 years and over",33,20,193,73,15,14,15,11,363,102,15,11,46,26,147,40,27,15,0,114,85,34,113,46,398,135,152,59,78,21,99,52,246,71,144,61,442,125]
[null,"Other family:",34,24,79,52,25,29,7,6,373,123,18,13,20,20,36,27,0,114,0,114,6,9,183,66,107,60,186,98,49,18,124,60,108,54,316,127,149,95]
[null,"Male householder, no spouse present:",11,15,39,35,21,28,7,6,168,101,12,10,0,114,15,20,0,114,0,114,0,114,44,39,79,46,88,80,14,10,57,52,38,40,180,116,30,34]
[null,"Householder under 25 years",0,114,0,114,0,114,0,114,0,114,0,114,0,114,0,114,0,114,0,114,0,114,0,114,13,21,0,114,0,114,0,114,0,114,0,114,0,114]
[null,"Householder 25 to 44 years",0,114,12,19,18,28,2,5,75,82,0,114,0,114,4,7,0,114,0,114,0,114,22,22,0,114,26,43,7,7,39,45,0,114,148,111,14,24]
[null,"Householder 45 to 64 years",11,15,27,29,3,5,3,4,93,64,10,10,0,114,11,19,0,114,0,114,0,114,0,114,59,38,62,63,7,7,18,29,16,17,16,28,16,24]
[null,"Householder 65 years and over",0,114,0,114,0,114,2,3,0,114,2,3,0,114,0,114,0,114,0,114,0,114,22,33,7,14,0,114,0,114,0,114,22,35,16,26,0,114]
[null,"Female householder, no spouse present:",23,20,40,34,4,6,0,114,205,86,6,7,20,20,21,18,0,114,0,114,6,9,139,53,28,37,98,75,35,16,67,38,70,38,136,70,119,87]
[null,"Householder under 25 years",0,114,0,114,0,114,0,114,0,114,0,114,0,114,0,114,0,114,0,114,0,114,0,114,0,114,0,114,0,114,0,114,0,114,0,114,0,114]
[null,"Householder 25 to 44 years",9,10,0,114,0,114,0,114,80,48,0,114,16,19,0,114,0,114,0,114,0,114,55,34,0,114,26,28,11,11,9,14,17,18,62,54,18,29]
[null,"Householder 45 to 64 years",3,5,13,21,4,6,0,114,105,76,4,6,4,5,12,13,0,114,0,114,6,9,51,29,28,37,72,65,21,13,17,20,34,27,58,46,48,66]
[null,"Householder 65 years and over",11,17,27,26,0,114,0,114,20,22,2,5,0,114,9,13,0,114,0,114,0,114,33,36,0,114,0,114,3,4,41,40,19,21,16,26,53,46]
[null,"Nonfamily households:",56,26,405,133,84,39,8,8,1325,285,34,17,146,49,152,48,8,11,18,15,26,20,128,48,428,143,620,177,210,50,298,76,231,75,483,174,903,218]
[null,"Male householder:",41,25,163,78,26,23,5,7,684,224,18,12,85,35,93,37,2,4,4,7,10,10,52,34,255,138,289,118,92,31,121,56,131,62,105,82,301,149]
[null,"Householder under 25 years",6,11,18,29,8,14,0,114,81,65,0,114,0,114,0,114,0,114,0,114,0,114,0,114,0,114,0,114,3,5,0,114,0,114,0,114,0,114]
[null,"Householder 25 to 44 years",0,114,64,46,3,5,2,3,229,153,4,6,35,25,14,12,0,114,4,7,0,114,19,22,120,99,74,58,26,23,12,19,58,48,0,114,46,41]
[null,"Householder 45 to 64 years",30,22,62,45,15,18,3,7,298,122,10,10,39,20,55,29,0,114,0,114,6,8,20,19,71,71,196,92,32,15,50,32,56,39,39,37,137,117]
[null,"Householder 65 years and over",5,6,19,24,0,114,0,114,76,70,4,6,11,15,24,14,2,4,0,114,4,7,13,15,64,65,19,23,31,14,59,41,17,16,66,70,118,75]
[null,"Female householder:",15,9,242,122,58,31,3,5,641,183,16,13,61,34,59,33,6,11,14,14,16,15,76,37,173,80,331,128,118,36,177,54,100,40,378,143,602,212]
[null,"Householder under 25 years",0,114,0,114,0,114,0,114,23,31,0,114,0,114,0,114,0,114,0,114,0,114,0,114,0,114,0,114,0,114,0,114,0,114,15,25,0,114]
[null,"Householder 25 to 44 years",4,6,71,59,0,114,0,114,77,69,4,6,6,9,0,114,0,114,0,114,16,15,9,15,13,25,61,64,18,18,16,20,7,11,27,33,24,39]
[null,"Householder 45 to 64 years",3,4,111,80,24,21,0,114,295,131,4,6,16,14,13,14,6,11,10,14,0,114,28,26,66,45,128,78,35,18,68,37,52,29,97,85,212,120]
[null,"Householder 65 years and over",8,7,60,44,34,23,3,5,246,110,8,9,39,29,46,27,0,114,4,5,0,114,39,35,94,52,142,79,65,28,93,38,41,26,239,106,366,165]

{"sheet":"ACS_Table_B03002","index":54,"n_rows":108,"n_cols":40,"rows_kept":108,"cut":false,"hidden":true,"merged":[]}
[null,"B03002. HISPANIC OR LATINO ORIGIN BY RACE"]
[null,"Universe:  TOTAL POPULATION"]
[null,"Data Set: 2015-2019 American Community Survey 5-Year Estimates"]
[]
[null,null,"Albany",null,"Bartlett",null,"Brookfield",null,"Chatham",null,"Conway",null,"Eaton",null,"Effingham",null,"Freedom",null,"Hale's Location",null,"Hart's Location",null,"Jackson",null,"Madison",null,"Moultonborough",null,"Ossipee",null,"Sandwich",null,"Tamworth",null,"Tuftonboro",null,"Wakefield",null,"Wolfeboro"]
[null," ","Estimate","Margin of Error","Estimate","Margin of Error","Estimate","Margin of Error","Estimate","Margin of Error","Estimate","Margin of Error","Estimate","Margin of Error","Estimate","Margin of Error","Estimate","Margin of Error","Estimate","Margin of Error","Estimate","Margin of Error","Estimate","Margin of Error","Estimate","Margin of Error","Estimate","Margin of Error","Estimate","Margin of Error","Estimate","Margin of Error","Estimate","Margin of Error","Estimate","Margin of Error","Estimate","Margin of Error","Estimate","Margin of Error"]
[null,"Total:",703,142,2774,14,803,186,372,127,10127,31,265,72,1630,231,1349,178,183,43,42,30,891,228,2553,20,4099,28,4334,26,1440,180,2994,13,2213,215,5046,19,6320,18]
[null,"Not Hispanic or Latino:",703,142,2756,29,771,177,368,127,9891,113,265,72,1606,227,1349,178,183,43,42,30,888,228,2531,33,4046,55,4243,78,1429,178,2957,59,2101,213,5011,42,6285,38]
[null,"White alone",670,130,2751,29,769,176,354,126,9739,137,262,70,1510,228,1332,174,177,43,42,30,888,228,2365,116,3898,93,3895,160,1361,165,2870,89,2084,208,5011,42,6151,124]
[null,"Black or African American alone",0,11,4,6,0,11,0,11,1,3,0,11,0,11,0,11,0,11,0,11,0,11,57,65,1,2,123,89,39,62,0,11,0,11,0,16,0,16]
[null,"American Indian and Alaska Native alone",3,4,0,11,0,11,0,11,0,18,0,11,0,11,0,11,0,11,0,11,0,11,0,11,0,11,28,43,0,11,0,11,0,11,0,16,0,16]
[null,"Asian alone",4,6,0,11,0,11,3,5,33,36,3,8,13,20,5,10,6,9,0,11,0,11,33,45,48,38,0,11,18,28,36,41,0,11,0,16,125,120]
[null,"Native Hawaiian and Other Pacific Islander alone",0,11,0,11,0,11,0,11,0,18,0,11,0,11,0,11,0,11,0,11,0,11,0,11,12,21,0,11,0,11,0,11,0,11,0,16,0,16]
[null,"Some other race alone",2,4,0,11,0,11,0,11,0,18,0,11,0,11,0,11,0,11,0,11,0,11,0,11,8,13,0,11,0,11,0,11,0,11,0,16,0,16]
[null,"Two or more races:",24,35,1,4,2,5,11,19,118,81,0,11,83,74,12,16,0,11,0,11,0,11,76,64,79,64,197,116,11,14,51,55,17,31,0,16,9,20]
[null,"Two races including Some other race",0,11,0,11,0,11,0,11,0,18,0,11,0,11,0,11,0,11,0,11,0,11,0,11,0,11,27,42,0,11,0,11,0,11,0,16,0,16]
[null,"Two races excluding Some other race, and three or more races",24,35,1,4,2,5,11,19,118,81,0,11,83,74,12,16,0,11,0,11,0,11,76,64,79,64,170,109,11,14,51,55,17,31,0,16,9,20]
[null,"Hispanic or Latino:",0,11,18,27,32,33,4,7,236,108,0,11,24,30,0,11,0,11,0,11,3,5,22,27,53,51,91,76,11,15,37,56,112,95,35,36,35,35]
[null,"White alone",0,11,18,27,32,33,4,7,221,109,0,11,20,27,0,11,0,11,0,11,0,11,21,27,28,35,91,76,11,15,37,56,93,81,35,36,33,34]
[null,"Black or African American alone",0,11,0,11,0,11,0,11,0,18,0,11,0,11,0,11,0,11,0,11,0,11,1,3,0,11,0,11,0,11,0,11,0,11,0,16,0,16]
[null,"American Indian and Alaska Native alone",0,11,0,11,0,11,0,11,0,18,0,11,0,11,0,11,0,11,0,11,0,11,0,11,0,11,0,11,0,11,0,11,0,11,0,16,0,16]
[null,"Asian alone",0,11,0,11,0,11,0,11,0,18,0,11,0,11,0,11,0,11,0,11,0,11,0,11,0,11,0,11,0,11,0,11,0,11,0,16,0,16]
[null,"Native Hawaiian and Other Pacific Islander alone",0,11,0,11,0,11,0,11,0,18,0,11,0,11,0,11,0,11,0,11,0,11,0,11,0,11,0,11,0,11,0,11,0,11,0,16,0,16]
[null,"Some other race alone",0,11,0,11,0,11,0,11,0,18,0,11,4,8,0,11,0,11,0,11,3,5,0,11,25,39,0,11,0,11,0,11,0,11,0,16,2,4]
[null,"Two or more races:",0,11,0,11,0,11,0,11,15,24,0,11,0,11,0,11,0,11,0,11,0,11,0,11,0,11,0,11,0,11,0,11,19,25,0,16,0,16]
[null,"Two races including Some other race",0,11,0,11,0,11,0,11,0,18,0,11,0,11,0,11,0,11,0,11,0,11,0,11,0,11,0,11,0,11,0,11,0,11,0,16,0,16]
[null,"Two races excluding Some other race, and three or more races",0,11,0,11,0,11,0,11,15,24,0,11,0,11,0,11,0,11,0,11,0,11,0,11,0,11,0,11,0,11,0,11,19,25,0,16,0,16]
[]
[]
[]
[null,null,"Albany",null,"Bartlett",null,"Brookfield",null,"Chatham",null,"Conway",null,"Eaton",null,"Effingham",null,"Freedom",null,"Hale's Location",null,"Hart's Location",null,"Jackson",null,"Madison",null,"Moultonborough",null,"Ossipee",null,"Sandwich",null,"Tamworth",null,"Tuftonboro",null,"Wakefield",null,"Wolfeboro"]
[null," ","Estimate","Margin of Error","Estimate","Margin of Error","Estimate","Margin of Error","Estimate","Margin of Error","Estimate","Margin of Error","Estimate","Margin of Error","Estimate","Margin of Error","Estimate","Margin of Error","Estimate","Margin of Error","Estimate","Margin of Error","Estimate","Margin of Error","Estimate","Margin of Error","Estimate","Margin of Error","Estimate","Margin of Error","Estimate","Margin of Error","Estimate","Margin of Error","Estimate","Margin of Error","Estimate","Margin of Error","Estimate","Margin of Error"]
[null,"Total:",{"$f":"C7","v":703},142,2774,14,803,186,372,127,10127,31,265,72,1630,231,1349,178,183,43,42,30,891,228,{"$f":"Y7","v":2553},20,4099,28,4334,26,1440,180,2994,13,2213,215,5046,19,6320,18]
[null,"Not Hispanic or Latino:",703,142,2756,29,771,177,368,127,9891,113,265,72,1606,227,1349,178,183,43,42,30,888,228,{"$f":"Y8","v":2531},33,4046,55,4243,78,1429,178,2957,59,2101,213,5011,42,6285,38]
[null,"White",670,130,2751,29,769,176,354,126,9739,137,262,70,1510,228,1332,174,177,43,42,30,888,228,{"$f":"Y9","v":2365},116,3898,93,3895,160,1361,165,2870,89,2084,208,5011,42,6151,124]
[null,"Black",0,11,4,6,0,11,0,11,1,3,0,11,0,11,0,11,0,11,0,11,0,11,{"$f":"Y10","v":57},65,1,2,123,89,39,62,0,11,0,11,0,16,0,16]
[null,"American Indian",{"$f":"$C$11","v":3},{"$f":"D11","v":4},0,11,0,11,0,11,0,18,0,11,0,11,0,11,0,11,0,11,0,11,{"$f":"Y11","v":0},11,0,11,28,43,0,11,0,11,0,11,0,16,0,16]
[null,"Asian &Pacific Is.",{"$f":"C12+C13","v":4},{"$f":"SQRT((D12^2)+(D13^2))","v":12.529964086141668},{"$f":"E12+E13","v":0},{"$f":"SQRT((F12^2)+(F13^2))","v":15.556349186104045},{"$f":"G12+G13","v":0},{"$f":"SQRT((H12^2)+(H13^2))","v":15.556349186104045},{"$f":"I12+I13","v":3},{"$f":"SQRT((J12^2)+(J13^2))","v":12.083045973594572},{"$f":"K12+K13","v":33},{"$f":"SQRT((L12^2)+(L13^2))","v":40.249223594996216},{"$f":"M12+M13","v":3},{"$f":"SQRT((N12^2)+(N13^2))","v":13.601470508735444},{"$f":"O12+O13","v":13},{"$f":"SQRT((P12^2)+(P13^2))","v":22.825424421026653},{"$f":"Q12+Q13","v":5},{"$f":"SQRT((R12^2)+(R13^2))","v":14.866068747318506},{"$f":"S12+S13","v":6},{"$f":"SQRT((T12^2)+(T13^2))","v":14.212670403551895},{"$f":"U12+U13","v":0},{"$f":"SQRT((V12^2)+(V13^2))","v":15.556349186104045},{"$f":"W12+W13","v":0},{"$f":"SQRT((X12^2)+(X13^2))","v":15.556349186104045},{"$f":"Y12+Y13","v":33},{"$f":"SQRT((Z12^2)+(Z13^2))","v":46.324939287601879},{"$f":"AA12+AA13","v":60},{"$f":"SQRT((AB12^2)+(AB13^2))","v":43.416586692184822},{"$f":"AC12+AC13","v":0},{"$f":"SQRT((AD12^2)+(AD13^2))","v":15.556349186104045},{"$f":"AE12+AE13","v":18},{"$f":"SQRT((AF12^2)+(AF13^2))","v":30.083217912982647},{"$f":"AG12+AG13","v":36},{"$f":"SQRT((AH12^2)+(AH13^2))","v":42.449970553582247},{"$f":"AI12+AI13","v":0},{"$f":"SQRT((AJ12^2)+(AJ13^2))","v":15.556349186104045},{"$f":"AK12+AK13","v":0},{"$f":"SQRT((AL12^2)+(AL13^2))","v":22.627416997969522},{"$f":"AM12+AM13","v":125},{"$f":"SQRT((AN12^2)+(AN13^2))","v":121.06196760337245}]
[null,"Other*",{"$f":"C14+C15","v":26},{"$f":"SQRT((D14^2)+(D15^2))","v":35.227829907617071},{"$f":"E14+E15","v":1},{"$f":"SQRT((F14^2)+(F15^2))","v":11.704699910719626},{"$f":"G14+G15","v":2},{"$f":"SQRT((H14^2)+(H15^2))","v":12.083045973594572},{"$f":"I14+I15","v":11},{"$f":"SQRT((J14^2)+(J15^2))","v":21.95449840010015},{"$f":"K14+K15","v":118},{"$f":"SQRT((L14^2)+(L15^2))","v":82.97590011563598},{"$f":"M14+M15","v":0},{"$f":"SQRT((N14^2)+(N15^2))","v":15.556349186104045},{"$f":"O14+O15","v":83},{"$f":"SQRT((P14^2)+(P15^2))","v":74.813100457072352},{"$f":"Q14+Q15","v":12},{"$f":"SQRT((R14^2)+(R15^2))","v":19.416487838947599},{"$f":"S14+S15","v":0},{"$f":"SQRT((T14^2)+(T15^2))","v":15.556349186104045},{"$f":"U14+U15","v":0},{"$f":"SQRT((V14^2)+(V15^2))","v":15.556349186104045},{"$f":"W14+W15","v":0},{"$f":"SQRT((X14^2)+(X15^2))","v":15.556349186104045},{"$f":"Y14+Y15","v":76},{"$f":"SQRT((Z14^2)+(Z15^2))","v":64.938432380216881},{"$f":"AA14+AA15","v":87},{"$f":"SQRT((AB14^2)+(AB15^2))","v":65.30696746902278},{"$f":"AC14+AC15","v":197},{"$f":"SQRT((AD14^2)+(AD15^2))","v":116.52038448271615},{"$f":"AE14+AE15","v":11},{"$f":"SQRT((AF14^2)+(AF15^2))","v":17.804493814764857},{"$f":"AG14+AG15","v":51},{"$f":"SQRT((AH14^2)+(AH15^2))","v":56.089214649520635},{"$f":"AI14+AI15","v":17},{"$f":"SQRT((AJ14^2)+(AJ15^2))","v":32.893768406797051},{"$f":"AK14+AK15","v":0},{"$f":"SQRT((AL14^2)+(AL15^2))","v":22.627416997969522},{"$f":"AM14+AM15","v":9},{"$f":"SQRT((AN14^2)+(AN15^2))","v":25.612496949731394}]
[null,"Hispanic or Latino:",{"$f":"C18","v":0},{"$f":"D18","v":11},{"$f":"E18","v":18},27,32,33,4,7,236,108,0,11,24,30,0,11,0,11,0,11,3,5,{"$f":"Y18","v":22},27,53,51,91,76,11,15,37,56,112,95,35,36,35,35]
[]
[]
[]
[]
[]
[]
[]
[]
[]
[]
[]
[]
[]
[]
[]
[]
[]
[]
[]
[]
[]
[]
[]
[]
[]
[]
[]
[]
[]
[]
[]
[]
[]
[]
[]
[]
[]
["C03002. HISPANIC OR LATINO ORIGIN BY RACE"]
["Universe:  TOTAL POPULATION"]
["Data Set: 2010-2014 American Community Survey 5-Year Estimates"]
[]
[null,null,"Albany",null,"Bartlett",null,"Brookfield",null,"Chatham",null,"Conway",null,"Eaton",null,"Effingham",null,"Freedom",null,"Hale's Location",null,"Hart's Location",null,"Jackson",null,"Madison",null,"Moultonborough",null,"Ossipee",null,"Sandwich",null,"Tamworth",null,"Tuftonboro",null,"Wakefield",null,"Wolfeboro"]
[null," ","Estimate","Margin of Error","Estimate","Margin of Error","Estimate","Margin of Error","Estimate","Margin of Error","Estimate","Margin of Error","Estimate","Margin of Error","Estimate","Margin of Error","Estimate","Margin of Error","Estimate","Margin of Error","Estimate","Margin of Error","Estimate","Margin of Error","Estimate","Margin of Error","Estimate","Margin of Error","Estimate","Margin of Error","Estimate","Margin of Error","Estimate","Margin of Error","Estimate","Margin of Error","Estimate","Margin of Error","Estimate","Margin of Error"]
[null,"Total:",800,176,2767,20,786,200,393,96,10054,22,348,65,1362,168,1195,152,137,41,41,24,1032,242,2507,18,4032,19,4301,16,1484,191,2851,19,2256,298,5046,37,6231,30]
[null,"Not Hispanic or Latino:",800,176,2765,20,786,200,393,96,9935,71,347,65,1362,168,1191,153,137,41,41,24,1015,240,2507,18,4014,34,4258,74,1473,188,2851,19,2256,298,4904,131,6001,178]
[null,"White",767,169,2686,87,766,198,362,85,9424,165,332,61,1358,168,1164,151,133,41,38,21,990,235,2491,25,4014,34,4206,98,1462,185,2776,69,2251,299,4767,158,5915,195]
[null,"Black",13,16,2,5,3,5,0,11,64,56,0,11,4,6,4,8,1,3,0,11,0,11,16,18,0,11,0,11,6,10,17,25,0,11,0,15,1,3]
[null,"American Indian",0,11,0,11,3,7,0,11,19,31,0,11,0,11,0,11,3,5,0,11,0,11,0,11,0,11,0,11,0,11,0,11,0,11,26,40,0,15]
[null,"Asian &Pacific Is.",0,15.556349186104045,0,15.556349186104045,0,15.556349186104045,0,15.556349186104045,185,81.786306922369349,5,14.866068747318506,0,15.556349186104045,3,11.704699910719626,0,15.556349186104045,0,15.556349186104045,16,28.231188426986208,0,15.556349186104045,0,15.556349186104045,0,15.556349186104045,0,15.556349186104045,0,15.556349186104045,0,15.556349186104045,34,46.486557196677836,13,29.154759474226502]
[null,"Other*",20,23.706539182259394,77,83.725742755737912,14,27.313000567495326,31,42.449970553582247,243,123.17873193047572,10,19.416487838947599,0,15.556349186104045,20,21.95449840010015,0,15.556349186104045,3,12.529964086141668,9,17.804493814764857,0,15.556349186104045,0,15.556349186104045,52,58.051701094799967,5,14.212670403551895,58,63.953107821277925,5,13.601470508735444,77,79.429213769242352,72,62.81719509815764]
[null,"Hispanic or Latino:",0,11,2,5,0,11,0,11,119,67,1,3,0,11,4,5,0,11,0,11,17,30,0,11,18,26,43,72,11,17,0,11,0,11,142,122,230,171]
[]
[]
[]
["C03002. HISPANIC OR LATINO ORIGIN BY RACE"]
["Universe:  TOTAL POPULATION"]
["Data Set: 2005-2009 American Community Survey 5-Year Estimates"]
[]
[null,null,"Albany",null,"Bartlett",null,"Brookfield",null,"Chatham",null,"Conway",null,"Eaton",null,"Effingham",null,"Freedom",null,"Hale's Location",null,"Hart's Location",null,"Jackson",null,"Madison",null,"Moultonborough",null,"Ossipee",null,"Sandwich",null,"Tamworth",null,"Tuftonboro",null,"Wakefield",null,"Wolfeboro"]
[null," ","Estimate","Margin of Error","Estimate","Margin of Error","Estimate","Margin of Error","Estimate","Margin of Error","Estimate","Margin of Error","Estimate","Margin of Error","Estimate","Margin of Error","Estimate","Margin of Error","Estimate","Margin of Error","Estimate","Margin of Error","Estimate","Margin of Error","Estimate","Margin of Error","Estimate","Margin of Error","Estimate","Margin of Error","Estimate","Margin of Error","Estimate","Margin of Error","Estimate","Margin of Error","Estimate","Margin of Error","Estimate","Margin of Error"]
[null,"Total:",966,265,2936,21,717,220,390,128,9209,26,381,88,1023,179,1178,162,129,47,81,59,926,206,2326,323,4983,24,4690,28,1398,155,2526,334,2398,253,4746,17,6588,17]
[null,"Not Hispanic or Latino:",960,265,2936,21,717,220,390,128,9060,104,381,88,1018,177,1178,162,129,47,81,59,926,206,2292,324,4927,79,4690,28,1393,155,2526,334,2398,253,4729,32,6495,81]
[null,"White",950,263,2936,21,709,219,368,125,8975,120,381,88,971,178,1148,157,129,47,81,59,893,203,2252,311,4855,111,4621,84,1376,154,2496,335,2366,252,4635,67,6181,109]
[null,"Black",0,114,0,114,0,114,0,114,43,61,0,114,38,39,30,34,0,114,0,114,0,114,40,60,0,114,0,114,8,10,0,114,0,114,0,114,0,114]
[null,"American Indian",0,114,0,114,0,114,0,114,34,35,0,114,6,10,0,114,0,114,0,114,10,18,0,114,61,67,69,78,0,114,0,114,0,114,15,23,0,114]
[null,"Asian &Pacific Is.",0,161.22034611053283,0,161.22034611053283,0,161.22034611053283,0,161.22034611053283,8,115.41230437002807,0,161.22034611053283,3,114.28035701729323,0,161.22034611053283,0,161.22034611053283,0,161.22034611053283,23,119.25183436744275,0,161.22034611053283,0,161.22034611053283,0,161.22034611053283,9,115.11733144926528,0,161.22034611053283,0,161.22034611053283,0,161.22034611053283,190,160.51479682571323]
[null,"Other*",10,114.62983904725679,0,161.22034611053283,8,115.11733144926528,22,120.16655108639841,0,161.22034611053283,0,161.22034611053283,0,161.22034611053283,0,161.22034611053283,0,161.22034611053283,0,161.22034611053283,0,161.22034611053283,0,161.22034611053283,11,115.41230437002807,0,161.22034611053283,0,161.22034611053283,30,118.1397477566293,32,121.49074038789952,79,127.90621564255585,124,151.6443206981389]
[null,"Hispanic or Latino:",6,11,0,114,0,114,0,114,149,96,0,114,5,8,0,114,0,114,0,114,0,114,34,42,56,75,0,114,5,6,0,114,0,114,17,26,93,77]

{"sheet":"RentalHousingCost","index":55,"n_rows":124,"n_cols":21,"rows_kept":124,"cut":false,"hidden":true,"merged":[]}
[]
[null,null,"HIDE THIS COLUMN",{"$f":"CntyDataLink!A70","v":"Albany"}]
[]
[null,null,null,"RENTAL HOUSING COST CHARACTERISTICS"]
[]
[]
[]
[]
[]
[]
[]
[]
[]
[]
[]
[]
[]
[]
[]
[]
[]
[]
[]
[]
[]
[]
[]
[]
[]
[]
[]
[]
[]
[]
[]
[]
[]
[]
[null,null,null,"Source:  2015-2019 American Community Survey Table B25074"]
[]
[null,null,null,"Income in 2019 Inflation Adjusted Dollars"]
[null,null,null,"Data from the American Community Survey are estimates"]
[null,null,null,{"$f":"CntyDataLink!A70","v":"Albany"}]
[]
[null,null,null,{"$f":"D4","v":"RENTAL HOUSING COST CHARACTERISTICS"}]
[]
[null,null,null,"Renter Households by "]
[null,null,null,"Gross Rent as a Percent of 2019 Household Income"]
[null,null,null,null,null,null,"By Household Income"]
[null,null,{"$f":"CntyDataLink!AO$69","v":"H73RenterOccHU"},null,"Specified Renter Occ Housing Units",{"$f":"\"Margin of Error Renter Occupied Units\"","v":"Margin of Error Renter Occupied Units"},null,"Less than $10,000",{"$f":"\"Margin of Error \"&H50","v":"Margin of Error Less than $10,000"},"$10,000 to $19,999",{"$f":"\"Margin of Error \"&J50","v":"Margin of Error $10,000 to $19,999"},"$20,000 to $34,999",{"$f":"\"Margin of Error \"&L50","v":"Margin of Error $20,000 to $34,999"},"$35,000 to $49,999",{"$f":"\"Margin of Error \"&N50","v":"Margin of Error $35,000 to $49,999"},"$50,000 to $74,999",{"$f":"\"Margin of Error \"&P50","v":"Margin of Error $50,000 to $74,999"},"$75,000 to $99,999",{"$f":"\"Margin of Error \"&R50","v":"Margin of Error $75,000 to $99,999"},"$100,000 or More",{"$f":"\"Margin of Error \"&T50","v":"Margin of Error $100,000 or More"}]
[]
[null,null,null,"All Renter Households",{"$f":"CntyDataLink!$B$156","v":35},{"$f":"CntyDataLink!$C$156","v":17},null,{"$f":"CntyDataLink!$BH$148","v":0},{"$f":"CntyDataLink!$BI$148","v":11},{"$f":"CntyDataLink!$BZ$148","v":4},{"$f":"CntyDataLink!$CA$148","v":7},{"$f":"CntyDataLink!$CR$148","v":14},{"$f":"CntyDataLink!$CS$148","v":12},{"$f":"CntyDataLink!$DJ$148","v":12},{"$f":"CntyDataLink!$DK$148","v":14},{"$f":"CntyDataLink!$EB$148","v":0},{"$f":"CntyDataLink!$EC$148","v":11},{"$f":"CntyDataLink!$ET$148","v":0},{"$f":"CntyDataLink!$EU$148","v":11},{"$f":"CntyDataLink!$FL$148","v":5},{"$f":"CntyDataLink!$FM$148","v":5}]
[null,null,null,"Rent Less than 20% of HH Income",{"$f":"CntyDataLink!$D$156","v":5},{"$f":"CntyDataLink!$E$156","v":12.083045973594572},null,{"$f":"CntyDataLink!$BJ$148","v":0},{"$f":"CntyDataLink!$BK$148","v":11},{"$f":"CntyDataLink!$CB$148","v":0},{"$f":"CntyDataLink!$CC$148","v":11},{"$f":"CntyDataLink!$CT$148","v":0},{"$f":"CntyDataLink!$CU$148","v":11},{"$f":"CntyDataLink!$DL$148","v":0},{"$f":"CntyDataLink!$DM$148","v":11},{"$f":"CntyDataLink!$ED$148","v":0},{"$f":"CntyDataLink!$EE$148","v":11},{"$f":"CntyDataLink!$EV$148","v":0},{"$f":"CntyDataLink!$EW$148","v":11},{"$f":"CntyDataLink!$FN$148","v":5},{"$f":"CntyDataLink!$FO$148","v":5}]
[null,null,null,"Rent 20% to 24.9% of HH Income",{"$f":"CntyDataLink!$F$156","v":10},{"$f":"CntyDataLink!$G$156","v":13},null,{"$f":"CntyDataLink!$BL$148","v":0},{"$f":"CntyDataLink!$BM$148","v":11},{"$f":"CntyDataLink!$CD$148","v":0},{"$f":"CntyDataLink!$CE$148","v":11},{"$f":"CntyDataLink!$CV$148","v":2},{"$f":"CntyDataLink!$CW$148","v":4},{"$f":"CntyDataLink!$DN$148","v":8},{"$f":"CntyDataLink!$DO$148","v":12},{"$f":"CntyDataLink!$EF$148","v":0},{"$f":"CntyDataLink!$EG$148","v":11},{"$f":"CntyDataLink!$EX$148","v":0},{"$f":"CntyDataLink!$EY$148","v":11},{"$f":"CntyDataLink!$FP$148","v":0},{"$f":"CntyDataLink!$FQ$148","v":11}]
[null,null,null,"Rent 25% to 29.9% of HH Income",{"$f":"CntyDataLink!$H$156","v":0},{"$f":"CntyDataLink!$I$156","v":11},null,{"$f":"CntyDataLink!$BN$148","v":0},{"$f":"CntyDataLink!$BO$148","v":11},{"$f":"CntyDataLink!$CF$148","v":0},{"$f":"CntyDataLink!$CG$148","v":11},{"$f":"CntyDataLink!$CX$148","v":0},{"$f":"CntyDataLink!$CY$148","v":11},{"$f":"CntyDataLink!$DP$148","v":0},{"$f":"CntyDataLink!$DQ$148","v":11},{"$f":"CntyDataLink!$EH$148","v":0},{"$f":"CntyDataLink!$EI$148","v":11},{"$f":"CntyDataLink!$EZ$148","v":0},{"$f":"CntyDataLink!$FA$148","v":11},{"$f":"CntyDataLink!$FR$148","v":0},{"$f":"CntyDataLink!$FS$148","v":11}]
[null,null,null,"Rent Less Than 30% of HH Income",{"$f":"CntyDataLink!$J$156","v":15},{"$f":"CntyDataLink!$K$156","v":20.880613017821101},null,{"$f":"SUM(H53:H55)","v":0},{"$f":"SQRT((I53^2)+(I54^2)+(I55^2))","v":19.05255888325765},{"$f":"SUM(J53:J55)","v":0},{"$f":"SQRT((K53^2)+(K54^2)+(K55^2))","v":19.05255888325765},{"$f":"SUM(L53:L55)","v":2},{"$f":"SQRT((M53^2)+(M54^2)+(M55^2))","v":16.06237840420901},{"$f":"SUM(N53:N55)","v":8},{"$f":"SQRT((O53^2)+(O54^2)+(O55^2))","v":19.646882704388499},{"$f":"SUM(P53:P55)","v":0},{"$f":"SQRT((Q53^2)+(Q54^2)+(Q55^2))","v":19.05255888325765},{"$f":"SUM(R53:R55)","v":0},{"$f":"SQRT((S53^2)+(S54^2)+(S55^2))","v":19.05255888325765},{"$f":"SUM(T53:T55)","v":5},{"$f":"SQRT((U53^2)+(U54^2)+(U55^2))","v":16.340134638368191}]
[null,null,null,"Rent 30% or More of HH Income",{"$f":"CntyDataLink!$L$156","v":15},{"$f":"CntyDataLink!$M$156","v":16.792855623746664},null,{"$f":"H60+H58","v":0},{"$f":"SQRT((I58^2)+(I60^2))","v":22},{"$f":"J60+J58","v":2},{"$f":"SQRT((K58^2)+(K60^2))","v":19.697715603592208},{"$f":"L60+L58","v":9},{"$f":"SQRT((M58^2)+(M60^2))","v":21.517434791350013},{"$f":"N60+N58","v":4},{"$f":"SQRT((O58^2)+(O60^2))","v":19.974984355438178},0,{"$f":"SQRT((Q58^2)+(Q60^2))","v":22},{"$f":"R60+R58","v":0},{"$f":"SQRT((S58^2)+(S60^2))","v":22},0,{"$f":"SQRT((U58^2)+(U60^2))","v":22}]
[null,null,null,"Rent 30% to 34.9% of HH Income",{"$f":"CntyDataLink!$N$156","v":9},{"$f":"CntyDataLink!$O$156","v":10},null,{"$f":"CntyDataLink!$BP$148","v":0},{"$f":"CntyDataLink!$BQ$148","v":11},{"$f":"CntyDataLink!$CH$148","v":0},{"$f":"CntyDataLink!$CI$148","v":11},{"$f":"CntyDataLink!$CZ$148","v":9},{"$f":"CntyDataLink!$DA$148","v":10},{"$f":"CntyDataLink!$DR$148","v":0},{"$f":"CntyDataLink!$DS$148","v":11},{"$f":"CntyDataLink!$EJ$148","v":0},{"$f":"CntyDataLink!$EK$148","v":11},{"$f":"CntyDataLink!$FB$148","v":0},{"$f":"CntyDataLink!$FC$148","v":11},{"$f":"CntyDataLink!$FT$148","v":0},{"$f":"CntyDataLink!$FU$148","v":11}]
[null,null,null,"Rent Less Than 35% of HH Income",{"$f":"CntyDataLink!$P$156","v":24},{"$f":"CntyDataLink!$Q$156","v":23.151673805580451},null,{"$f":"SUM(H56,H58)","v":0},{"$f":"SQRT((I56^2)+(I58^2))","v":22},{"$f":"SUM(J56,J58)","v":0},{"$f":"SQRT((K56^2)+(K58^2))","v":22},{"$f":"SUM(L56,L58)","v":11},{"$f":"SQRT((M56^2)+(M58^2))","v":18.920887928424502},8,30.646882704388499,0,{"$f":"SQRT((Q58^2)+(Q56^2))","v":22},{"$f":"SUM(R56,R58)","v":0},{"$f":"SQRT((S58^2)+(S56^2))","v":22},5,{"$f":"SQRT((U58^2)+(U56^2))","v":19.697715603592208}]
[null,null,null,"Rent 35% or More of HH Income",{"$f":"CntyDataLink!$R$156","v":6},{"$f":"CntyDataLink!$S$156","v":13.490737563232042},null,{"$f":"CntyDataLink!$BR$148+CntyDataLink!$BT$148+CntyDataLink!$BV$148","v":0},{"$f":"SQRT((CntyDataLink!$BS$148^2)+(CntyDataLink!$BU$148^2)+(CntyDataLink!$BW$148^2))","v":19.05255888325765},{"$f":"CntyDataLink!$CJ$148+CntyDataLink!$CL$148+CntyDataLink!$CN$148","v":2},{"$f":"SQRT((CntyDataLink!$CK$148^2)+(CntyDataLink!$CM$148^2)+(CntyDataLink!$CO$148^2))","v":16.340134638368191},{"$f":"CntyDataLink!$DB$148+CntyDataLink!$DD$148+CntyDataLink!$DF$148","v":0},{"$f":"SQRT((CntyDataLink!$DC$148^2)+(CntyDataLink!$DE$148^2)+(CntyDataLink!$DG$148^2))","v":19.05255888325765},{"$f":"CntyDataLink!$DT$148+CntyDataLink!$DV$148+CntyDataLink!$DX$148","v":4},{"$f":"SQRT((CntyDataLink!$DU$148^2)+(CntyDataLink!$DW$148^2)+(CntyDataLink!$DY$148^2))","v":16.673332000533065},{"$f":"CntyDataLink!$EL$148+CntyDataLink!$EN$148+CntyDataLink!$EP$148","v":0},{"$f":"SQRT((CntyDataLink!$EM$148^2)+(CntyDataLink!$EO$148^2)+(CntyDataLink!$EQ$148^2))","v":19.05255888325765},{"$f":"CntyDataLink!$FD$148+CntyDataLink!$FF$148+CntyDataLink!$FH$148","v":0},{"$f":"SQRT((CntyDataLink!$FE$148^2)+(CntyDataLink!$FG$148^2)+(CntyDataLink!$FI$148^2))","v":19.05255888325765},{"$f":"CntyDataLink!$FV$148+CntyDataLink!$FX$148+CntyDataLink!$FZ$148","v":0},{"$f":"SQRT((CntyDataLink!$FW$148^2)+(CntyDataLink!$FY$148^2)+(CntyDataLink!$GA$148^2))","v":19.05255888325765}]
[null,null,null,"Rent 50% or More of HH Income",{"$f":"CntyDataLink!$T$156","v":2},{"$f":"CntyDataLink!$U$156","v":5},null,{"$f":"CntyDataLink!$BV$148","v":0},{"$f":"CntyDataLink!$BW$148","v":11},{"$f":"CntyDataLink!$CN$148","v":2},{"$f":"CntyDataLink!$CO$148","v":5},{"$f":"CntyDataLink!$DF$148","v":0},{"$f":"CntyDataLink!$DG$148","v":11},{"$f":"CntyDataLink!$DX$148","v":0},{"$f":"CntyDataLink!$DY$148","v":11},{"$f":"CntyDataLink!$EP$148","v":0},{"$f":"CntyDataLink!$EQ$148","v":11},{"$f":"CntyDataLink!$FH$148","v":0},{"$f":"CntyDataLink!$FI$148","v":11},{"$f":"CntyDataLink!$FZ$148","v":0},{"$f":"CntyDataLink!$GA$148","v":11}]
[null,null,null,"Percent not computed",{"$f":"CntyDataLink!$V$156","v":5},{"$f":"CntyDataLink!$W$156","v":6},null,{"$f":"CntyDataLink!$BX$148","v":0},{"$f":"CntyDataLink!$BY$148","v":11},{"$f":"CntyDataLink!$CP$148","v":2},{"$f":"CntyDataLink!$CQ$148","v":4},{"$f":"CntyDataLink!$DH$148","v":3},{"$f":"CntyDataLink!$DI$148","v":5},{"$f":"CntyDataLink!$DZ$148","v":0},{"$f":"CntyDataLink!$EA$148","v":11},{"$f":"CntyDataLink!$ER$148","v":0},{"$f":"CntyDataLink!$ES$148","v":11},{"$f":"CntyDataLink!$FJ$148","v":0},{"$f":"CntyDataLink!$FK$148","v":11},{"$f":"CntyDataLink!$GB$148","v":0},{"$f":"CntyDataLink!$GC148","v":11}]
[]
[]
[]
[null,null,null,"Percent of Households Paying ",null,null,null,"By Household Income"]
[null,null,null,{"$f":"D56","v":"Rent Less Than 30% of HH Income"},{"$f":"E56/E$52","v":0.42857142857142855},null,null,{"$f":"H56/H$52","v":{"$error":"#DIV/0!"}},null,{"$f":"J56/J$52","v":0},null,{"$f":"L56/L$52","v":0.14285714285714285},null,{"$f":"N56/N$52","v":0.66666666666666663},null,{"$f":"P56/P$52","v":{"$error":"#DIV/0!"}},null,{"$f":"R56/R$52","v":{"$error":"#DIV/0!"}},null,{"$f":"T56/T$52","v":1}]
[null,null,null,{"$f":"D57","v":"Rent 30% or More of HH Income"},{"$f":"E57/E$52","v":0.42857142857142855},null,null,{"$f":"H57/H$52","v":{"$error":"#DIV/0!"}},null,{"$f":"J57/J$52","v":0.5},null,{"$f":"L57/L$52","v":0.6428571428571429},null,{"$f":"N57/N$52","v":0.33333333333333331},null,{"$f":"P57/P$52","v":{"$error":"#DIV/0!"}},null,{"$f":"R57/R$52","v":{"$error":"#DIV/0!"}},null,{"$f":"T57/T$52","v":0}]
[null,null,null,{"$f":"D59","v":"Rent Less Than 35% of HH Income"},{"$f":"E59/E$52","v":0.68571428571428572},null,null,{"$f":"H59/H$52","v":{"$error":"#DIV/0!"}},null,{"$f":"J59/J$52","v":0},null,{"$f":"L59/L$52","v":0.7857142857142857},null,{"$f":"N59/N$52","v":0.66666666666666663},null,{"$f":"P59/P$52","v":{"$error":"#DIV/0!"}},null,{"$f":"R59/R$52","v":{"$error":"#DIV/0!"}},null,{"$f":"T59/T$52","v":1}]
[null,null,null,{"$f":"D60","v":"Rent 35% or More of HH Income"},{"$f":"E60/E$52","v":0.17142857142857143},null,null,{"$f":"H60/H$52","v":{"$error":"#DIV/0!"}},null,{"$f":"J60/J$52","v":0.5},null,{"$f":"L60/L$52","v":0},null,{"$f":"N60/N$52","v":0.33333333333333331},null,{"$f":"P60/P$52","v":{"$error":"#DIV/0!"}},null,{"$f":"R60/R$52","v":{"$error":"#DIV/0!"}},null,{"$f":"T60/T$52","v":0}]
[null,null,null,"Rent 50% or More of HH Income",{"$f":"E61/E$52","v":5.7142857142857141E-2},null,null,{"$f":"H61/H$52","v":{"$error":"#DIV/0!"}},null,{"$f":"J61/J$52","v":0.5},null,{"$f":"L61/L$52","v":0},null,{"$f":"N61/N$52","v":0},null,{"$f":"P61/P$52","v":{"$error":"#DIV/0!"}},null,{"$f":"R61/R$52","v":{"$error":"#DIV/0!"}},null,{"$f":"T61/T$52","v":0}]
[null,null,null,"Percent not computed",{"$f":"E62/E$52","v":0.14285714285714285},null,null,{"$f":"H62/H$52","v":{"$error":"#DIV/0!"}},null,{"$f":"J62/J$52","v":0.5},null,{"$f":"L62/L$52","v":0.21428571428571427},null,{"$f":"N62/N$52","v":0},null,{"$f":"P62/P$52","v":{"$error":"#DIV/0!"}},null,{"$f":"R62/R$52","v":{"$error":"#DIV/0!"}},null,{"$f":"T62/T$52","v":0}]
[]
[]
[null,null,null,"Source:  2015-2019 American Community Survey Table B25070; B25074"]
[]
[null,null,null,{"$f":"D41","v":"Income in 2019 Inflation Adjusted Dollars"}]
[null,null,null,"Data from the American Community Survey are estimates"]
[]
[null,null,null,{"$f":"CntyDataLink!A70","v":"Albany"}]
[null,null,null,{"$f":"D4","v":"RENTAL HOUSING COST CHARACTERISTICS"}]
[]
[null,null,null,"Rental Housing Costs"]
[]
[null,null,null,"Renter Occupied Housing Units By Gross Rent "]
[]
[null,null,null,null,"Units","Margin of Error"]
[null,null,{"$f":"CntyDataLink!E$69","v":"H62RntrOccHU"},"Specified Renter Occ Housing Units",{"$f":"CntyDataLink!$B$148","v":35},{"$f":"CntyDataLink!$C$148","v":17}]
[null,null,{"$f":"CntyDataLink!F$69","v":"H62RntrOccHUwRent"},"Renter Occ. Housing Units w/ Cash Rent",{"$f":"CntyDataLink!$D$148","v":30},{"$f":"CntyDataLink!$E$148","v":18}]
[]
[null,null,{"$f":"CntyDataLink!G$69","v":"H62ROHUGRent<100"},"Gross Rent","Units","Margin of Error 2015-2019"]
[null,null,{"$f":"CntyDataLink!H$69","v":"H62ROHUGRent100to149"},"Less than $100",{"$f":"CntyDataLink!$F$148","v":0},{"$f":"CntyDataLink!$G$148","v":11}]
[null,null,{"$f":"CntyDataLink!I$69","v":"H62ROHUGRent150to199"},"$100 to $149",{"$f":"CntyDataLink!$H$148","v":0},{"$f":"CntyDataLink!$I$148","v":11}]
[null,null,{"$f":"CntyDataLink!J$69","v":"H62ROHUGRent200to249"},"$150 to $199",{"$f":"CntyDataLink!J$148","v":0},{"$f":"CntyDataLink!$K$148","v":11}]
[null,null,{"$f":"CntyDataLink!K$69","v":"H62ROHUGRent250to299"},"$200 to $249",{"$f":"CntyDataLink!$L$148","v":0},{"$f":"CntyDataLink!$M$148","v":11}]
[null,null,{"$f":"CntyDataLink!L$69","v":"H62ROHUGRent300to349"},"$250 to $299",{"$f":"CntyDataLink!$N$148","v":0},{"$f":"CntyDataLink!$O$148","v":11}]
[null,null,{"$f":"CntyDataLink!M$69","v":"H62ROHUGRent350to399"},"$300 to $349",{"$f":"CntyDataLink!$P$148","v":0},{"$f":"CntyDataLink!$Q$148","v":11}]
[null,null,{"$f":"CntyDataLink!N$69","v":"H62ROHUGRent400to449"},"$350 to $399",{"$f":"CntyDataLink!$R$148","v":0},{"$f":"CntyDataLink!$S$148","v":11}]
[null,null,{"$f":"CntyDataLink!O$69","v":"H62ROHUGRent450to499"},"$400 to $449",{"$f":"CntyDataLink!$T$148","v":0},{"$f":"CntyDataLink!$U$148","v":11}]
[null,null,{"$f":"CntyDataLink!P$69","v":"H62ROHUGRent500to549"},"$450 to $499",{"$f":"CntyDataLink!$V$148","v":0},{"$f":"CntyDataLink!$W$148","v":11}]
[null,null,{"$f":"CntyDataLink!Q$69","v":"H62ROHUGRent550to599"},"$500 to $549",{"$f":"CntyDataLink!$X$148","v":2},{"$f":"CntyDataLink!$Y$148","v":4}]
[null,null,{"$f":"CntyDataLink!R$69","v":"H62ROHUGRent600to649"},"$550 to $599",{"$f":"CntyDataLink!$Z$148","v":0},{"$f":"CntyDataLink!$AA$148","v":11}]
[null,null,{"$f":"CntyDataLink!S$69","v":"H62ROHUGRent650to699"},"$600 to $649",{"$f":"CntyDataLink!$AB$148","v":0},{"$f":"CntyDataLink!$AC$148","v":11}]
[null,null,{"$f":"CntyDataLink!T$69","v":"H62ROHUGRent700to749"},"$650 to $699",{"$f":"CntyDataLink!$AD$148","v":0},{"$f":"CntyDataLink!$AE$148","v":11}]
[null,null,{"$f":"CntyDataLink!U$69","v":"H62ROHUGRent750to799"},"$700 to $749",{"$f":"CntyDataLink!$AF$148","v":0},{"$f":"CntyDataLink!$AG$148","v":11}]
[null,null,{"$f":"CntyDataLink!V$69","v":"H62ROHUGRent800to899"},"$750 to $799",{"$f":"CntyDataLink!$AH$148","v":14},{"$f":"CntyDataLink!$AI$148","v":15}]
[null,null,{"$f":"CntyDataLink!W$69","v":"H62ROHUGRent900to999"},"$800 to $899",{"$f":"CntyDataLink!$AJ$148","v":0},{"$f":"CntyDataLink!$AK$148","v":11}]
[null,null,{"$f":"CntyDataLink!X$69","v":"H62ROHUGRent1000to1249"},"$900 to $999",{"$f":"CntyDataLink!$AL$148","v":5},{"$f":"CntyDataLink!$AM$148","v":6}]
[null,null,{"$f":"CntyDataLink!Y$69","v":"H62ROHUGRent1250to1499"},"$1000 to $1249",{"$f":"CntyDataLink!$AN$148","v":2},{"$f":"CntyDataLink!$AO$148","v":3}]
[null,null,{"$f":"CntyDataLink!Z$69","v":"H62ROHUGRent1500to1999"},"$1250 to $1499",{"$f":"CntyDataLink!$AP$148","v":6},{"$f":"CntyDataLink!$AQ$148","v":7}]
[null,null,{"$f":"CntyDataLink!AA$69","v":"H62ROHUGRent2000>"},"$1500 to $1999",{"$f":"CntyDataLink!$AR$148","v":1},{"$f":"CntyDataLink!$AS$148","v":2}]
[null,null,{"$f":"CntyDataLink!AB$69","v":"H62ROHUNoGRent"},"$2,000 to $2,499",{"$f":"CntyDataLink!$AT$148","v":0},{"$f":"CntyDataLink!$AU$148","v":11}]
[null,null,{"$f":"CntyDataLink!AC$69","v":"H63MedianGrossRnt"},"$2,500 to $2,999",{"$f":"CntyDataLink!$AV$148","v":0},{"$f":"CntyDataLink!$AW$148","v":11}]
[null,null,null,"$3,000 to $3,499",{"$f":"CntyDataLink!$AX$148","v":0},{"$f":"CntyDataLink!$AY$148","v":11}]
[null,null,null,"$3,500 or more",{"$f":"CntyDataLink!$AZ$148","v":0},{"$f":"CntyDataLink!$BA$148","v":11}]
[null,null,null,"Renter Occ. Housing Units w/ No Cash Rent",{"$f":"CntyDataLink!$BB$148","v":5},{"$f":"CntyDataLink!$BC$148","v":6}]
[]
[null,null,null,"Median Gross Rent",{"$f":"CntyDataLink!$BD$148","v":796},{"$f":"CntyDataLink!$BE$148","v":328}]
[]
[]
[]
[]
[null,null,null,"Source: 2015-2019 American Community Survey Table B25063; B25064"]
[null,null,null,"Data from the American Community Survey are estimates"]

{"sheet":"RentalHousingCost-Prior5Yr","index":56,"n_rows":76,"n_cols":21,"rows_kept":76,"cut":false,"hidden":true,"merged":[]}
[]
[null,null,"HIDE THIS COLUMN",{"$f":"CntyDataLinkPrior5YearEstimates!A120","v":"Albany"}]
[]
[null,null,null,"RENTAL HOUSING COST CHARACTERISTICS"]
[]
[]
[]
[]
[]
[]
[]
[]
[]
[]
[]
[]
[]
[]
[]
[]
[]
[]
[]
[]
[]
[]
[]
[]
[]
[]
[]
[]
[]
[]
[]
[]
[]
[]
[null,null,null,"Source:  2010-2014 American Community Survey Table B25074"]
[]
[null,null,null,"Income in 2014 Inflation Adjusted Dollars"]
[null,null,null,"Data from the American Community Survey are estimates"]
[null,null,null,{"$f":"CntyDataLinkPrior5YearEstimates!A120","v":"Albany"}]
[]
[null,null,null,{"$f":"D4","v":"RENTAL HOUSING COST CHARACTERISTICS"}]
[]
[null,null,null,"Renter Households by "]
[null,null,null,"Gross Rent as a Percent of 2014 Household Income"]
[null,null,null,null,null,null,"By Household Income"]
[null,null,{"$f":"CntyDataLinkPrior5YearEstimates!AO$69","v":0},null,"Specified Renter Occ Housing Units",{"$f":"\"Margin of Error Renter Occupied Units\"","v":"Margin of Error Renter Occupied Units"},null,"Less than $10,000",{"$f":"\"Margin of Error \"&H50","v":"Margin of Error Less than $10,000"},"$10,000 to $19,999",{"$f":"\"Margin of Error \"&J50","v":"Margin of Error $10,000 to $19,999"},"$20,000 to $34,999",{"$f":"\"Margin of Error \"&L50","v":"Margin of Error $20,000 to $34,999"},"$35,000 to $49,999",{"$f":"\"Margin of Error \"&N50","v":"Margin of Error $35,000 to $49,999"},"$50,000 to $74,999",{"$f":"\"Margin of Error \"&P50","v":"Margin of Error $50,000 to $74,999"},"$75,000 to $99,999",{"$f":"\"Margin of Error \"&R50","v":"Margin of Error $75,000 to $99,999"},"$100,000 or More",{"$f":"\"Margin of Error \"&T50","v":"Margin of Error $100,000 or More"}]
[]
[null,null,null,"All Renter Households",{"$f":"CntyDataLinkPrior5YearEstimates!$B$156","v":45},{"$f":"CntyDataLinkPrior5YearEstimates!$C$156","v":20},null,{"$f":"CntyDataLinkPrior5YearEstimates!$BB$148","v":3},{"$f":"CntyDataLinkPrior5YearEstimates!$BC$148","v":4},{"$f":"CntyDataLinkPrior5YearEstimates!$BT$148","v":2},{"$f":"CntyDataLinkPrior5YearEstimates!$BU$148","v":4},{"$f":"CntyDataLinkPrior5YearEstimates!$CL$148","v":8},{"$f":"CntyDataLinkPrior5YearEstimates!$CM$148","v":10},{"$f":"CntyDataLinkPrior5YearEstimates!$DD$148","v":6},{"$f":"CntyDataLinkPrior5YearEstimates!$DE$148","v":5},{"$f":"CntyDataLinkPrior5YearEstimates!$DV$148","v":8},{"$f":"CntyDataLinkPrior5YearEstimates!$DW$148","v":10},{"$f":"CntyDataLinkPrior5YearEstimates!$EN$148","v":10},{"$f":"CntyDataLinkPrior5YearEstimates!$EO$148","v":9},{"$f":"CntyDataLinkPrior5YearEstimates!$FF$148","v":8},{"$f":"CntyDataLinkPrior5YearEstimates!$FG$148","v":8}]
[null,null,null,"Rent Less than 20% of HH Income",{"$f":"CntyDataLinkPrior5YearEstimates!$D$156","v":21},{"$f":"CntyDataLinkPrior5YearEstimates!$E$156","v":18.493242008906929},null,{"$f":"CntyDataLinkPrior5YearEstimates!$BD$148","v":0},{"$f":"CntyDataLinkPrior5YearEstimates!$BE$148","v":11},{"$f":"CntyDataLinkPrior5YearEstimates!$BV$148","v":0},{"$f":"CntyDataLinkPrior5YearEstimates!$BW$148","v":11},{"$f":"CntyDataLinkPrior5YearEstimates!$CN$148","v":0},{"$f":"CntyDataLinkPrior5YearEstimates!$CO$148","v":11},{"$f":"CntyDataLinkPrior5YearEstimates!$DF$148","v":0},{"$f":"CntyDataLinkPrior5YearEstimates!$DG$148","v":11},{"$f":"CntyDataLinkPrior5YearEstimates!$DX$148","v":6},{"$f":"CntyDataLinkPrior5YearEstimates!$DY$148","v":10},{"$f":"CntyDataLinkPrior5YearEstimates!$EP$148","v":7},{"$f":"CntyDataLinkPrior5YearEstimates!$EQ$148","v":8},{"$f":"CntyDataLinkPrior5YearEstimates!$FH$148","v":8},{"$f":"CntyDataLinkPrior5YearEstimates!$FI$148","v":8}]
[null,null,null,"Rent 20% to 24.9% of HH Income",{"$f":"CntyDataLinkPrior5YearEstimates!$F$156","v":2},{"$f":"CntyDataLinkPrior5YearEstimates!$G$156","v":3},null,{"$f":"CntyDataLinkPrior5YearEstimates!$BF$148","v":0},{"$f":"CntyDataLinkPrior5YearEstimates!$BG$148","v":11},{"$f":"CntyDataLinkPrior5YearEstimates!$BX$148","v":0},{"$f":"CntyDataLinkPrior5YearEstimates!$BY$148","v":11},{"$f":"CntyDataLinkPrior5YearEstimates!$CP$148","v":0},{"$f":"CntyDataLinkPrior5YearEstimates!$CQ$148","v":11},{"$f":"CntyDataLinkPrior5YearEstimates!$DH$148","v":0},{"$f":"CntyDataLinkPrior5YearEstimates!$DI$148","v":11},{"$f":"CntyDataLinkPrior5YearEstimates!$DZ$148","v":2},{"$f":"CntyDataLinkPrior5YearEstimates!$EA$148","v":3},{"$f":"CntyDataLinkPrior5YearEstimates!$ER$148","v":0},{"$f":"CntyDataLinkPrior5YearEstimates!$ES$148","v":11},{"$f":"CntyDataLinkPrior5YearEstimates!$FJ$148","v":0},{"$f":"CntyDataLinkPrior5YearEstimates!$FK$148","v":11}]
[null,null,null,"Rent 25% to 29.9% of HH Income",{"$f":"CntyDataLinkPrior5YearEstimates!$H$156","v":9},{"$f":"CntyDataLinkPrior5YearEstimates!$I$156","v":11},null,{"$f":"CntyDataLinkPrior5YearEstimates!$BH$148","v":0},{"$f":"CntyDataLinkPrior5YearEstimates!$BI$148","v":11},{"$f":"CntyDataLinkPrior5YearEstimates!$BZ$148","v":0},{"$f":"CntyDataLinkPrior5YearEstimates!$CA$148","v":11},{"$f":"CntyDataLinkPrior5YearEstimates!$CR$148","v":6},{"$f":"CntyDataLinkPrior5YearEstimates!$CS$148","v":9},{"$f":"CntyDataLinkPrior5YearEstimates!$DJ$148","v":0},{"$f":"CntyDataLinkPrior5YearEstimates!$DK$148","v":11},{"$f":"CntyDataLinkPrior5YearEstimates!$EB$148","v":0},{"$f":"CntyDataLinkPrior5YearEstimates!$EC$148","v":11},{"$f":"CntyDataLinkPrior5YearEstimates!$ET$148","v":3},{"$f":"CntyDataLinkPrior5YearEstimates!$EU$148","v":4},{"$f":"CntyDataLinkPrior5YearEstimates!$FL$148","v":0},{"$f":"CntyDataLinkPrior5YearEstimates!$FM$148","v":11}]
[null,null,null,"Rent Less Than 30% of HH Income",{"$f":"CntyDataLinkPrior5YearEstimates!$J$156","v":32},{"$f":"CntyDataLinkPrior5YearEstimates!$K$156","v":21.725560982400431},null,{"$f":"SUM(H53:H55)","v":0},{"$f":"SQRT((I53^2)+(I54^2)+(I55^2))","v":19.05255888325765},{"$f":"SUM(J53:J55)","v":0},{"$f":"SQRT((K53^2)+(K54^2)+(K55^2))","v":19.05255888325765},{"$f":"SUM(L53:L55)","v":6},{"$f":"SQRT((M53^2)+(M54^2)+(M55^2))","v":17.972200755611428},{"$f":"SUM(N53:N55)","v":0},{"$f":"SQRT((O53^2)+(O54^2)+(O55^2))","v":19.05255888325765},{"$f":"SUM(P53:P55)","v":8},{"$f":"SQRT((Q53^2)+(Q54^2)+(Q55^2))","v":15.165750888103101},{"$f":"SUM(R53:R55)","v":10},{"$f":"SQRT((S53^2)+(S54^2)+(S55^2))","v":14.177446878757825},{"$f":"SUM(T53:T55)","v":8},{"$f":"SQRT((U53^2)+(U54^2)+(U55^2))","v":17.4928556845359}]
[null,null,null,"Rent 30% or More of HH Income",{"$f":"CntyDataLinkPrior5YearEstimates!$L$156","v":9},{"$f":"CntyDataLinkPrior5YearEstimates!$M$156","v":17.146428199482248},null,{"$f":"H60+H58","v":3},{"$f":"SQRT((I58^2)+(I60^2))","v":19.467922333931785},{"$f":"J60+J58","v":2},{"$f":"SQRT((K58^2)+(K60^2))","v":19.467922333931785},{"$f":"L60+L58","v":2},{"$f":"SQRT((M58^2)+(M60^2))","v":19.28730152198591},{"$f":"N60+N58","v":2},{"$f":"SQRT((O58^2)+(O60^2))","v":19.467922333931785},0,{"$f":"SQRT((Q58^2)+(Q60^2))","v":22},{"$f":"R60+R58","v":0},{"$f":"SQRT((S58^2)+(S60^2))","v":22},0,{"$f":"SQRT((U58^2)+(U60^2))","v":22}]
[null,null,null,"Rent 30% to 34.9% of HH Income",{"$f":"CntyDataLinkPrior5YearEstimates!$N$156","v":2},{"$f":"CntyDataLinkPrior5YearEstimates!$O$156","v":4},null,{"$f":"CntyDataLinkPrior5YearEstimates!$BJ$148","v":0},{"$f":"CntyDataLinkPrior5YearEstimates!$BK$148","v":11},{"$f":"CntyDataLinkPrior5YearEstimates!$CB$148","v":0},{"$f":"CntyDataLinkPrior5YearEstimates!$CC$148","v":11},{"$f":"CntyDataLinkPrior5YearEstimates!$CT$148","v":0},{"$f":"CntyDataLinkPrior5YearEstimates!$CU$148","v":11},{"$f":"CntyDataLinkPrior5YearEstimates!$DL$148","v":2},{"$f":"CntyDataLinkPrior5YearEstimates!$DM$148","v":4},{"$f":"CntyDataLinkPrior5YearEstimates!$ED$148","v":0},{"$f":"CntyDataLinkPrior5YearEstimates!$EE$148","v":11},{"$f":"CntyDataLinkPrior5YearEstimates!$EV$148","v":0},{"$f":"CntyDataLinkPrior5YearEstimates!$EW$148","v":11},{"$f":"CntyDataLinkPrior5YearEstimates!$FN$148","v":0},{"$f":"CntyDataLinkPrior5YearEstimates!$FO$148","v":11}]
[null,null,null,"Rent Less Than 35% of HH Income",{"$f":"CntyDataLinkPrior5YearEstimates!$P$156","v":34},{"$f":"CntyDataLinkPrior5YearEstimates!$Q$156","v":22.090722034374522},null,{"$f":"SUM(H56,H58)","v":0},{"$f":"SQRT((I56^2)+(I58^2))","v":22},{"$f":"SUM(J56,J58)","v":0},{"$f":"SQRT((K56^2)+(K58^2))","v":22},{"$f":"SUM(L56,L58)","v":6},{"$f":"SQRT((M56^2)+(M58^2))","v":21.071307505705477},2,23.05255888325765,8,{"$f":"SQRT((Q58^2)+(Q56^2))","v":18.734993995195193},{"$f":"SUM(R56,R58)","v":10},{"$f":"SQRT((S58^2)+(S56^2))","v":17.944358444926362},8,{"$f":"SQRT((U58^2)+(U56^2))","v":20.663978319771822}]
[null,null,null,"Rent 35% or More of HH Income",{"$f":"CntyDataLinkPrior5YearEstimates!$R$156","v":7},{"$f":"CntyDataLinkPrior5YearEstimates!$S$156","v":16.673332000533065},null,{"$f":"CntyDataLinkPrior5YearEstimates!$BL$148+CntyDataLinkPrior5YearEstimates!$BN$148+CntyDataLinkPrior5YearEstimates!$BP$148","v":3},{"$f":"SQRT((CntyDataLinkPrior5YearEstimates!$BM$148^2)+(CntyDataLinkPrior5YearEstimates!$BO$148^2)+(CntyDataLinkPrior5YearEstimates!$BQ$148^2))","v":16.06237840420901},{"$f":"CntyDataLinkPrior5YearEstimates!$CD$148+CntyDataLinkPrior5YearEstimates!$CF$148+CntyDataLinkPrior5YearEstimates!$CH$148","v":2},{"$f":"SQRT((CntyDataLinkPrior5YearEstimates!$CE$148^2)+(CntyDataLinkPrior5YearEstimates!$CG$148^2)+(CntyDataLinkPrior5YearEstimates!$CI$148^2))","v":16.06237840420901},{"$f":"CntyDataLinkPrior5YearEstimates!$CV$148+CntyDataLinkPrior5YearEstimates!$CX$148+CntyDataLinkPrior5YearEstimates!$CZ$148","v":2},{"$f":"SQRT((CntyDataLinkPrior5YearEstimates!$CW$148^2)+(CntyDataLinkPrior5YearEstimates!$CY$148^2)+(CntyDataLinkPrior5YearEstimates!$DA$148^2))","v":15.842979517754859},{"$f":"CntyDataLinkPrior5YearEstimates!$DN$148+CntyDataLinkPrior5YearEstimates!$DP$148+CntyDataLinkPrior5YearEstimates!$DR$148","v":0},{"$f":"SQRT((CntyDataLinkPrior5YearEstimates!$DO$148^2)+(CntyDataLinkPrior5YearEstimates!$DQ$148^2)+(CntyDataLinkPrior5YearEstimates!$DS$148^2))","v":19.05255888325765},{"$f":"CntyDataLinkPrior5YearEstimates!$EF$148+CntyDataLinkPrior5YearEstimates!$EH$148+CntyDataLinkPrior5YearEstimates!$EJ$148","v":0},{"$f":"SQRT((CntyDataLinkPrior5YearEstimates!$EG$148^2)+(CntyDataLinkPrior5YearEstimates!$EI$148^2)+(CntyDataLinkPrior5YearEstimates!$EK$148^2))","v":19.05255888325765},{"$f":"CntyDataLinkPrior5YearEstimates!$EX$148+CntyDataLinkPrior5YearEstimates!$EZ$148+CntyDataLinkPrior5YearEstimates!$FB$148","v":0},{"$f":"SQRT((CntyDataLinkPrior5YearEstimates!$EY$148^2)+(CntyDataLinkPrior5YearEstimates!$FA$148^2)+(CntyDataLinkPrior5YearEstimates!$FC$148^2))","v":19.05255888325765},{"$f":"CntyDataLinkPrior5YearEstimates!$FP$148+CntyDataLinkPrior5YearEstimates!$FR$148+CntyDataLinkPrior5YearEstimates!$FT$148","v":0},{"$f":"SQRT((CntyDataLinkPrior5YearEstimates!$FQ$148^2)+(CntyDataLinkPrior5YearEstimates!$FS$148^2)+(CntyDataLinkPrior5YearEstimates!$FU$148^2))","v":19.05255888325765}]
[null,null,null,"Percent not computed",{"$f":"CntyDataLinkPrior5YearEstimates!$V$156","v":4},{"$f":"CntyDataLinkPrior5YearEstimates!$W$156","v":4},null,{"$f":"CntyDataLinkPrior5YearEstimates!$BR$148","v":0},{"$f":"CntyDataLinkPrior5YearEstimates!$BS$148","v":11},{"$f":"CntyDataLinkPrior5YearEstimates!$CJ$148","v":0},{"$f":"CntyDataLinkPrior5YearEstimates!$CK$148","v":11},{"$f":"CntyDataLinkPrior5YearEstimates!$DB$148","v":0},{"$f":"CntyDataLinkPrior5YearEstimates!$DC$148","v":11},{"$f":"CntyDataLinkPrior5YearEstimates!$DT$148","v":4},{"$f":"CntyDataLinkPrior5YearEstimates!$DU$148","v":4},{"$f":"CntyDataLinkPrior5YearEstimates!$EL$148","v":0},{"$f":"CntyDataLinkPrior5YearEstimates!$EM$148","v":11},{"$f":"CntyDataLinkPrior5YearEstimates!$FD$148","v":0},{"$f":"CntyDataLinkPrior5YearEstimates!$FE$148","v":11},{"$f":"CntyDataLinkPrior5YearEstimates!$FV$148","v":0},{"$f":"CntyDataLinkPrior5YearEstimates!$FW149","v":0}]
[]
[]
[]
[null,null,null,"Percent of Households Paying ",null,null,null,"By Household Income"]
[null,null,null,{"$f":"D56","v":"Rent Less Than 30% of HH Income"},{"$f":"E56/E$52","v":0.71111111111111114},null,null,{"$f":"H56/H$52","v":0},null,{"$f":"J56/J$52","v":0},null,{"$f":"L56/L$52","v":0.75},null,{"$f":"N56/N$52","v":0},null,{"$f":"P56/P$52","v":1},null,{"$f":"R56/R$52","v":1},null,{"$f":"T56/T$52","v":1}]
[null,null,null,{"$f":"D57","v":"Rent 30% or More of HH Income"},{"$f":"E57/E$52","v":0.2},null,null,{"$f":"H57/H$52","v":1},null,{"$f":"J57/J$52","v":1},null,{"$f":"L57/L$52","v":0.25},null,{"$f":"N57/N$52","v":0.33333333333333331},null,{"$f":"P57/P$52","v":0},null,{"$f":"R57/R$52","v":0},null,{"$f":"T57/T$52","v":0}]
[null,null,null,{"$f":"D59","v":"Rent Less Than 35% of HH Income"},{"$f":"E59/E$52","v":0.75555555555555554},null,null,{"$f":"H59/H$52","v":0},null,{"$f":"J59/J$52","v":0},null,{"$f":"L59/L$52","v":0.75},null,{"$f":"N59/N$52","v":0.33333333333333331},null,{"$f":"P59/P$52","v":1},null,{"$f":"R59/R$52","v":1},null,{"$f":"T59/T$52","v":1}]
[null,null,null,{"$f":"D60","v":"Rent 35% or More of HH Income"},{"$f":"E60/E$52","v":0.15555555555555556},null,null,{"$f":"H60/H$52","v":1},null,{"$f":"J60/J$52","v":1},null,{"$f":"L60/L$52","v":0.25},null,{"$f":"N60/N$52","v":0},null,{"$f":"P60/P$52","v":0},null,{"$f":"R60/R$52","v":0},null,{"$f":"T60/T$52","v":0}]
[null,null,null,"Percent not computed",{"$f":"E61/E$52","v":8.8888888888888892E-2},null,null,{"$f":"H61/H$52","v":0},null,{"$f":"J61/J$52","v":0},null,{"$f":"L61/L$52","v":0},null,{"$f":"N61/N$52","v":0.66666666666666663},null,{"$f":"P61/P$52","v":0},null,{"$f":"R61/R$52","v":0},null,{"$f":"T61/T$52","v":0}]
[]
[]
[null,null,null,"Source:  2010-2014 American Community Survey Table B25070; B25074"]
[]
[null,null,null,{"$f":"D41","v":"Income in 2014 Inflation Adjusted Dollars"}]
[null,null,null,"Data from the American Community Survey are estimates"]

{"sheet":"ACS_Table_B25063_&_B25064","index":57,"n_rows":217,"n_cols":40,"rows_kept":217,"cut":false,"hidden":true,"merged":[]}
[null,"B25063. GROSS RENT"]
[null,"Universe:  RENTER-OCCUPIED HOUSING UNITS"]
[null,"Data Set: 2015-2019 American Community Survey 5-Year Estimates"]
[]
[null,null,"Albany",null,"Bartlett",null,"Brookfield",null,"Chatham",null,"Conway",null,"Eaton",null,"Effingham",null,"Freedom",null,"Hale's Location",null,"Hart's Location",null,"Jackson",null,"Madison",null,"Moultonborough",null,"Ossipee",null,"Sandwich",null,"Tamworth",null,"Tuftonboro",null,"Wakefield",null,"Wolfeboro"]
[null," ","Estimate","Margin of Error","Estimate","Margin of Error","Estimate","Margin of Error","Estimate","Margin of Error","Estimate","Margin of Error","Estimate","Margin of Error","Estimate","Margin of Error","Estimate","Margin of Error","Estimate","Margin of Error","Estimate","Margin of Error","Estimate","Margin of Error","Estimate","Margin of Error","Estimate","Margin of Error","Estimate","Margin of Error","Estimate","Margin of Error","Estimate","Margin of Error","Estimate","Margin of Error","Estimate","Margin of Error","Estimate","Margin of Error"]
[null,"Total:",35,17,392,159,14,18,11,14,1518,311,33,22,106,45,34,26,0,11,5,8,98,49,185,59,234,86,471,121,82,37,361,135,65,38,216,113,571,210]
[null,"With cash rent:",30,18,289,138,14,18,11,14,1484,305,26,19,80,37,30,26,0,11,5,8,88,48,164,54,159,69,414,120,66,32,361,135,43,34,201,108,540,211]
[null,"Less than $100",0,11,0,11,0,11,0,11,0,18,0,11,0,11,0,11,0,11,0,11,0,11,0,11,0,11,0,11,0,11,0,11,0,11,0,16,0,16]
[null,"$100 to $149",0,11,0,11,0,11,0,11,0,18,0,11,0,11,0,11,0,11,0,11,0,11,0,11,0,11,0,11,0,11,0,11,0,11,0,16,0,16]
[null,"$150 to $199",0,11,0,11,0,11,0,11,0,18,0,11,0,11,0,11,0,11,0,11,0,11,0,11,0,11,0,11,0,11,12,18,0,11,0,16,0,16]
[null,"$200 to $249",0,11,0,11,0,11,0,11,35,38,0,11,0,11,0,11,0,11,0,11,0,11,0,11,0,11,34,57,3,4,28,21,0,11,0,16,0,16]
[null,"$250 to $299",0,11,0,11,0,11,0,11,0,18,0,11,0,11,0,11,0,11,0,11,0,11,0,11,0,11,0,11,0,11,0,11,0,11,0,16,0,16]
[null,"$300 to $349",0,11,0,11,0,11,0,11,0,18,0,11,0,11,0,11,0,11,0,11,0,11,0,11,0,11,0,11,0,11,0,11,0,11,0,16,0,16]
[null,"$350 to $399",0,11,0,11,0,11,0,11,0,18,0,11,0,11,0,11,0,11,0,11,0,11,0,11,0,11,31,50,2,5,0,11,0,11,0,16,0,16]
[null,"$400 to $449",0,11,16,25,0,11,0,11,29,33,0,11,0,11,0,11,0,11,0,11,0,11,0,11,9,15,76,75,0,11,0,11,0,11,14,21,28,46]
[null,"$450 to $499",0,11,0,11,0,11,0,11,0,18,0,11,0,11,0,11,0,11,0,11,0,11,0,11,0,11,9,14,2,5,0,11,0,11,15,30,92,110]
[null,"$500 to $549",2,4,0,11,0,11,0,11,51,61,0,11,0,11,0,11,0,11,0,11,0,11,0,11,0,11,0,11,0,11,12,18,0,11,0,16,0,16]
[null,"$550 to $599",0,11,0,11,0,11,0,11,66,67,2,3,0,11,0,11,0,11,0,11,8,13,0,11,0,11,0,11,0,11,0,11,8,12,14,21,0,16]
[null,"$600 to $649",0,11,15,21,0,11,0,11,9,13,0,11,0,11,0,11,0,11,0,11,0,11,10,17,0,11,0,11,0,11,0,11,0,11,0,16,0,16]
[null,"$650 to $699",0,11,0,11,0,11,0,11,65,56,4,7,0,11,0,11,0,11,5,8,0,11,0,11,17,18,34,53,0,11,0,11,0,11,0,16,112,104]
[null,"$700 to $749",0,11,0,11,8,14,6,11,0,18,0,11,3,5,0,11,0,11,0,11,0,11,33,37,24,36,0,11,0,11,52,77,0,11,20,29,0,16]
[null,"$750 to $799",14,15,41,48,0,11,0,11,40,59,1,4,13,16,0,11,0,11,0,11,18,21,13,19,0,11,0,11,0,11,54,69,0,11,50,77,0,16]
[null,"$800 to $899",0,11,24,39,0,11,5,9,146,129,4,7,7,7,0,11,0,11,0,11,16,27,0,11,0,11,51,59,0,11,100,87,0,11,0,16,62,89]
[null,"$900 to $999",5,6,94,83,0,11,0,11,379,192,6,9,0,11,5,9,0,11,0,11,0,11,7,12,0,11,10,15,10,16,0,11,6,10,33,38,127,95]
[null,"$1,000 to $1,249",2,3,56,60,0,11,0,11,424,214,9,11,26,19,4,7,0,11,0,11,0,11,42,33,13,19,151,95,4,6,0,11,5,8,55,71,18,30]
[null,"$1,250 to $1,499",6,7,0,11,0,11,0,11,220,139,0,11,4,6,5,7,0,11,0,11,32,37,7,9,51,43,18,23,1,4,74,83,0,11,0,16,101,105]
[null,"$1,500 to $1,999",1,2,43,55,0,11,0,11,20,33,0,11,9,11,16,21,0,11,0,11,14,16,31,24,45,37,0,11,33,25,29,29,0,11,0,16,0,16]
[null,"$2,000 to $2,499",0,11,0,11,6,11,0,11,0,18,0,11,15,22,0,11,0,11,0,11,0,11,21,25,0,11,0,11,11,12,0,11,0,11,0,16,0,16]
[null," $2,500 to $2,999",0,11,0,11,0,11,0,11,0,18,0,11,3,6,0,11,0,11,0,11,0,11,0,11,0,11,0,11,0,11,0,11,24,31,0,16,0,16]
[null,"$3,000 to $3,499",0,11,0,11,0,11,0,11,0,18,0,11,0,11,0,11,0,11,0,11,0,11,0,11,0,11,0,11,0,11,0,11,0,11,0,16,0,16]
[null,"$3,500 or more",0,11,0,11,0,11,0,11,0,18,0,11,0,11,0,11,0,11,0,11,0,11,0,11,0,11,0,11,0,11,0,11,0,11,0,16,0,16]
[null,"No cash rent",5,6,103,85,0,11,0,11,34,52,7,7,26,24,4,5,0,11,0,11,10,16,21,25,75,50,57,37,16,16,0,11,22,20,15,23,31,35]
[]
[]
[]
[null,"B25064. MEDIAN GROSS RENT (DOLLARS)"]
[null,"Universe:  RENTER-OCCUPIED HOUSING UNITS PAYING CASH RENT"]
[null,"Data Set: 2015-2019 American Community Survey 5-Year Estimates"]
[null,{"$f":"RentalHousingCost!D41","v":"Income in 2019 Inflation Adjusted Dollars"}]
[null,null,"Albany",null,"Bartlett",null,"Brookfield",null,"Chatham",null,"Conway",null,"Eaton",null,"Effingham",null,"Freedom",null,"Hale's Location",null,"Hart's Location",null,"Jackson",null,"Madison",null,"Moultonborough",null,"Ossipee",null,"Sandwich",null,"Tamworth",null,"Tuftonboro",null,"Wakefield",null,"Wolfeboro"]
[null," ","Estimate","Margin of Error","Estimate","Margin of Error","Estimate","Margin of Error","Estimate","Margin of Error","Estimate","Margin of Error","Estimate","Margin of Error","Estimate","Margin of Error","Estimate","Margin of Error","Estimate","Margin of Error","Estimate","Margin of Error","Estimate","Margin of Error","Estimate","Margin of Error","Estimate","Margin of Error","Estimate","Margin of Error","Estimate","Margin of Error","Estimate","Margin of Error","Estimate","Margin of Error","Estimate","Margin of Error","Estimate","Margin of Error"]
[null,"Median gross rent",796,328,952,82,"-","**","-","**",979,50,933,126,1163,234,1531,481,"-","**","-","**",1266,836,1113,264,1331,226,845,286,1667,252,823,73,"-","**",788,241,861,231]
[]
[]
[]
[]
[]
[]
[]
[]
[]
[]
[]
[]
[]
[]
[]
[]
[]
[]
[]
[]
[]
[]
[]
[]
[]
[]
[]
[]
[]
[]
[]
[]
[]
[]
[]
[]
[]
[]
[]
[]
[]
[]
[]
[]
[]
[]
[]
[]
[]
[]
[]
[]
[]
[]
[]
[]
[]
[]
[]
[]
[]
[]
[null,"B25063. GROSS RENT"]
[null,"Universe:  RENTER-OCCUPIED HOUSING UNITS"]
[null,"Data Set: 2010-2014 American Community Survey 5-Year Estimates"]
[]
[null,null,"Albany",null,"Bartlett",null,"Brookfield",null,"Chatham",null,"Conway",null,"Eaton",null,"Effingham",null,"Freedom",null,"Hale's Location",null,"Hart's Location",null,"Jackson",null,"Madison",null,"Moultonborough",null,"Ossipee",null,"Sandwich",null,"Tamworth",null,"Tuftonboro",null,"Wakefield",null,"Wolfeboro"]
[null," ","Estimate","Margin of Error","Estimate","Margin of Error","Estimate","Margin of Error","Estimate","Margin of Error","Estimate","Margin of Error","Estimate","Margin of Error","Estimate","Margin of Error","Estimate","Margin of Error","Estimate","Margin of Error","Estimate","Margin of Error","Estimate","Margin of Error","Estimate","Margin of Error","Estimate","Margin of Error","Estimate","Margin of Error","Estimate","Margin of Error","Estimate","Margin of Error","Estimate","Margin of Error","Estimate","Margin of Error","Estimate","Margin of Error"]
[null,"Total:",45,20,412,210,9,11,27,14,1399,271,30,20,92,45,90,39,0,11,16,12,81,45,153,66,171,69,277,101,144,64,465,160,170,73,241,136,520,181]
[null,"With cash rent:",41,20,395,212,6,10,26,14,1267,249,16,13,79,43,80,36,0,11,14,12,57,43,113,56,140,62,225,93,107,54,449,160,144,64,241,136,494,179]
[null,"Less than $100",0,11,0,11,0,11,0,11,0,17,0,11,0,11,0,11,0,11,0,11,0,11,0,11,0,11,0,11,0,11,0,11,0,11,0,15,0,15]
[null,"$100 to $149",0,11,0,11,0,11,0,11,0,17,0,11,0,11,0,11,0,11,0,11,0,11,0,11,0,11,0,11,0,11,0,11,0,11,0,15,0,15]
[null,"$150 to $199",0,11,0,11,0,11,0,11,42,39,0,11,0,11,0,11,0,11,0,11,0,11,0,11,0,11,0,11,0,11,0,11,0,11,0,15,0,15]
[null,"$200 to $249",0,11,0,11,0,11,0,11,5,8,0,11,0,11,0,11,0,11,0,11,0,11,0,11,14,15,0,11,0,11,17,28,0,11,0,15,0,15]
[null,"$250 to $299",0,11,0,11,0,11,0,11,28,44,0,11,0,11,0,11,0,11,0,11,0,11,0,11,6,9,0,11,0,11,75,110,0,11,0,15,19,30]
[null,"$300 to $349",0,11,0,11,0,11,0,11,10,17,0,11,0,11,0,11,0,11,0,11,0,11,0,11,0,11,0,11,0,11,7,12,0,11,0,15,0,15]
[null,"$350 to $399",0,11,0,11,0,11,0,11,81,98,0,11,0,11,0,11,0,11,0,11,0,11,0,11,0,11,21,23,0,11,0,11,0,11,22,34,0,15]
[null,"$400 to $449",0,11,0,11,0,11,0,11,33,40,0,11,0,11,0,11,0,11,0,11,0,11,0,11,0,11,0,11,0,11,81,75,0,11,0,15,0,15]
[null,"$450 to $499",0,11,69,83,0,11,0,11,22,24,2,4,0,11,0,11,0,11,0,11,0,11,0,11,0,11,0,11,0,11,0,11,7,10,0,15,0,15]
[null,"$500 to $549",6,9,0,11,0,11,7,11,52,59,0,11,0,11,0,11,0,11,0,11,11,20,0,11,0,11,0,11,0,11,0,11,0,11,19,28,0,15]
[null,"$550 to $599",0,11,20,33,0,11,0,11,34,39,5,8,0,11,0,11,0,11,0,11,0,11,0,11,0,11,0,11,0,11,0,11,0,11,0,15,0,15]
[null,"$600 to $649",0,11,58,70,0,11,0,11,44,53,0,11,0,11,11,11,0,11,0,11,0,11,0,11,0,11,0,11,0,11,12,18,0,11,16,27,59,57]
[null,"$650 to $699",4,7,0,11,0,11,5,9,28,30,0,11,0,11,12,19,0,11,0,11,0,11,0,11,0,11,19,20,0,11,0,11,0,11,0,15,0,15]
[null,"$700 to $749",2,4,50,66,0,11,7,13,134,142,2,4,3,4,0,11,0,11,0,11,0,11,0,11,0,11,0,11,0,11,74,74,15,23,0,15,0,15]
[null,"$750 to $799",0,11,0,11,0,11,2,4,95,82,3,5,21,25,4,5,0,11,0,11,0,11,13,21,8,13,10,16,0,11,16,22,0,11,0,15,129,136]
[null,"$800 to $899",3,4,0,11,0,11,2,3,61,78,0,11,21,15,4,6,0,11,0,11,13,15,34,34,0,11,33,54,4,6,79,80,0,11,84,104,11,16]
[null,"$900 to $999",8,11,39,61,0,11,3,4,226,108,0,11,31,30,7,8,0,11,2,3,0,11,0,11,10,15,0,11,31,29,0,11,38,33,0,15,0,15]
[null,"$1,000 to $1,249",3,5,159,120,0,11,0,11,229,127,4,6,0,11,25,20,0,11,3,5,15,23,27,28,13,15,56,52,44,38,16,24,65,50,43,68,130,109]
[null,"$1,250 to $1,499",7,6,0,11,0,11,0,11,88,71,0,11,3,4,17,17,0,11,7,11,8,14,39,36,42,33,86,70,12,15,72,85,19,28,57,65,73,66]
[null,"$1,500 to $1,999",8,8,0,11,0,11,0,11,55,74,0,11,0,11,0,11,0,11,0,11,10,18,0,11,37,43,0,11,16,17,0,11,0,11,0,15,58,55]
[null,"$2,000 or more",0,11,0,11,6,10,0,11,0,17,0,11,0,11,0,11,0,11,2,4,0,11,0,11,10,16,0,11,0,11,0,11,0,11,0,15,15,24]
[null,"No cash rent",4,4,17,27,3,5,1,3,132,111,14,17,13,16,10,12,0,11,2,3,24,18,40,37,31,40,52,45,37,31,16,23,26,26,0,15,26,30]
[]
[]
[]
[]
[]
[]
[null,"B25064. MEDIAN GROSS RENT (DOLLARS)"]
[null,"Universe:  RENTER-OCCUPIED HOUSING UNITS PAYING CASH RENT"]
[null,"Data Set: 2010-2014 American Community Survey 5-Year Estimates"]
[null,"Income in 2014 Inflation Adjusted Dollars"]
[null,null,"Albany",null,"Bartlett",null,"Brookfield",null,"Chatham",null,"Conway",null,"Eaton",null,"Effingham",null,"Freedom",null,"Hale's Location",null,"Hart's Location",null,"Jackson",null,"Madison",null,"Moultonborough",null,"Ossipee",null,"Sandwich",null,"Tamworth",null,"Tuftonboro",null,"Wakefield",null,"Wolfeboro"]
[null," ","Estimate","Margin of Error","Estimate","Margin of Error","Estimate","Margin of Error","Estimate","Margin of Error","Estimate","Margin of Error","Estimate","Margin of Error","Estimate","Margin of Error","Estimate","Margin of Error","Estimate","Margin of Error","Estimate","Margin of Error","Estimate","Margin of Error","Estimate","Margin of Error","Estimate","Margin of Error","Estimate","Margin of Error","Estimate","Margin of Error","Estimate","Margin of Error","Estimate","Margin of Error","Estimate","Margin of Error","Estimate","Margin of Error"]
[null,"Median gross rent",969,232,901,417,"-","**",707,114,842,157,725,259,874,86,1020,216,"-","**",1321,283,1075,426,1088,328,1363,216,1132,254,1105,119,722,217,1046,101,876,297,1056,384]
[]
[]
[]
[]
[]
[]
[]
[]
[]
[]
[]
[]
[]
[]
[]
[]
[]
[]
[]
[]
[]
[]
[]
[]
[]
[]
[null,"B25064. MEDIAN GROSS RENT (DOLLARS)"]
[null,"Universe:  RENTER-OCCUPIED HOUSING UNITS PAYING CASH RENT"]
[null,"Data Set: 2005-2009 American Community Survey 5-Year Estimates"]
[null,"Income in 2009 Inflation Adjusted Dollars"]
[null,null,"Albany",null,"Bartlett",null,"Brookfield",null,"Chatham",null,"Conway",null,"Eaton",null,"Effingham",null,"Freedom",null,"Hale's Location",null,"Hart's Location",null,"Jackson",null,"Madison",null,"Moultonborough",null,"Ossipee",null,"Sandwich",null,"Tamworth",null,"Tuftonboro",null,"Wakefield",null,"Wolfeboro"]
[null," ","Estimate","Margin of Error","Estimate","Margin of Error","Estimate","Margin of Error","Estimate","Margin of Error","Estimate","Margin of Error","Estimate","Margin of Error","Estimate","Margin of Error","Estimate","Margin of Error","Estimate","Margin of Error","Estimate","Margin of Error","Estimate","Margin of Error","Estimate","Margin of Error","Estimate","Margin of Error","Estimate","Margin of Error","Estimate","Margin of Error","Estimate","Margin of Error","Estimate","Margin of Error","Estimate","Margin of Error","Estimate","Margin of Error"]
[null,"Total:",37,23,301,108,18,18,15,16,1372,247,13,9,42,23,37,23,0,114,10,14,42,25,148,61,119,71,274,113,73,29,194,71,79,55,206,95,682,209]
[null,"With cash rent:",25,19,289,108,4,6,11,14,1300,224,13,9,42,23,25,17,0,114,0,114,34,23,137,59,96,62,208,104,58,26,166,68,49,38,192,90,631,203]
[null,"Less than $100",0,114,0,114,0,114,0,114,0,114,0,114,0,114,0,114,0,114,0,114,0,114,0,114,0,114,0,114,0,114,0,114,0,114,0,114,0,114]
[null,"$100 to $149",0,114,0,114,0,114,0,114,0,114,0,114,0,114,0,114,0,114,0,114,0,114,0,114,0,114,0,114,3,5,7,10,0,114,0,114,0,114]
[null,"$150 to $199",0,114,0,114,0,114,0,114,45,46,0,114,0,114,0,114,0,114,0,114,0,114,7,11,0,114,0,114,0,114,0,114,0,114,0,114,14,22]
[null,"$200 to $249",3,5,0,114,0,114,0,114,43,43,0,114,0,114,0,114,0,114,0,114,6,10,0,114,0,114,8,13,0,114,7,11,0,114,0,114,50,67]
[null,"$250 to $299",0,114,0,114,0,114,0,114,0,114,4,6,0,114,0,114,0,114,0,114,0,114,0,114,0,114,0,114,0,114,9,15,0,114,13,20,0,114]
[null,"$300 to $349",0,114,0,114,0,114,0,114,16,26,0,114,0,114,0,114,0,114,0,114,0,114,0,114,0,114,0,114,0,114,0,114,0,114,12,20,38,33]
[null,"$350 to $399",0,114,12,18,0,114,0,114,58,71,0,114,0,114,0,114,0,114,0,114,0,114,0,114,0,114,0,114,0,114,13,12,0,114,0,114,62,69]
[null,"$400 to $449",0,114,0,114,0,114,0,114,48,46,0,114,0,114,0,114,0,114,0,114,0,114,0,114,0,114,0,114,3,5,0,114,0,114,0,114,0,114]
[null,"$450 to $499",0,114,9,14,0,114,0,114,35,41,0,114,0,114,0,114,0,114,0,114,0,114,0,114,0,114,0,114,3,4,0,114,0,114,0,114,0,114]
[null,"$500 to $549",3,5,9,14,0,114,0,114,0,114,4,6,4,6,0,114,0,114,0,114,6,10,0,114,0,114,40,46,0,114,11,17,0,114,0,114,0,114]
[null,"$550 to $599",3,4,24,28,0,114,0,114,14,24,0,114,0,114,0,114,0,114,0,114,0,114,0,114,0,114,0,114,0,114,21,33,0,114,0,114,15,26]
[null,"$600 to $649",0,114,16,25,0,114,0,114,99,85,0,114,18,19,10,10,0,114,0,114,6,10,21,32,0,114,22,20,0,114,18,20,6,9,0,114,52,85]
[null,"$650 to $699",0,114,29,33,0,114,6,10,62,53,0,114,4,6,6,9,0,114,0,114,0,114,22,19,0,114,19,29,9,14,0,114,0,114,0,114,0,114]
[null,"$700 to $749",0,114,32,35,0,114,0,114,106,83,3,5,4,6,6,8,0,114,0,114,6,10,20,23,0,114,0,114,0,114,11,12,16,25,0,114,102,111]
[null,"$750 to $799",0,114,18,26,0,114,0,114,99,91,0,114,4,7,0,114,0,114,0,114,0,114,0,114,7,12,18,28,6,7,9,14,0,114,51,60,59,74]
[null,"$800 to $899",14,17,58,55,4,6,0,114,170,119,0,114,4,7,0,114,0,114,0,114,0,114,0,114,40,45,49,63,9,15,0,114,0,114,42,49,67,58]
[null,"$900 to $999",0,114,0,114,0,114,0,114,307,134,0,114,0,114,0,114,0,114,0,114,0,114,9,17,0,114,20,31,0,114,0,114,5,8,15,21,64,94]
[null,"$1,000 to $1,249",2,4,82,59,0,114,0,114,152,86,2,5,4,6,0,114,0,114,0,114,10,12,34,27,20,22,18,28,10,9,37,42,22,26,31,36,42,48]
[null,"$1,250 to $1,499",0,114,0,114,0,114,5,11,46,45,0,114,0,114,0,114,0,114,0,114,0,114,0,114,21,26,14,21,10,9,18,29,0,114,28,33,48,82]
[null,"$1,500 to $1,999",0,114,0,114,0,114,0,114,0,114,0,114,0,114,3,4,0,114,0,114,0,114,24,23,8,14,0,114,5,5,5,8,0,114,0,114,18,29]
[null,"$2,000 or more",0,114,0,114,0,114,0,114,0,114,0,114,0,114,0,114,0,114,0,114,0,114,0,114,0,114,0,114,0,114,0,114,0,114,0,114,0,114]
[null,"No cash rent",12,16,12,19,14,17,4,6,72,68,0,114,0,114,12,15,0,114,10,14,8,10,11,18,23,38,66,62,15,12,28,33,30,40,14,22,51,44]
[]
[]
[]
[]
[]
[]
[null,"B25064. MEDIAN GROSS RENT (DOLLARS)"]
[null,"Universe:  RENTER-OCCUPIED HOUSING UNITS PAYING CASH RENT"]
[null,"Data Set: 2005-2009 American Community Survey 5-Year Estimates"]
[null,"Income in 2009 Inflation Adjusted Dollars"]
[null,null,"Albany",null,"Bartlett",null,"Brookfield",null,"Chatham",null,"Conway",null,"Eaton",null,"Effingham",null,"Freedom",null,"Hale's Location",null,"Hart's Location",null,"Jackson",null,"Madison",null,"Moultonborough",null,"Ossipee",null,"Sandwich",null,"Tamworth",null,"Tuftonboro",null,"Wakefield",null,"Wolfeboro"]
[null," ","Estimate","Margin of Error","Estimate","Margin of Error","Estimate","Margin of Error","Estimate","Margin of Error","Estimate","Margin of Error","Estimate","Margin of Error","Estimate","Margin of Error","Estimate","Margin of Error","Estimate","Margin of Error","Estimate","Margin of Error","Estimate","Margin of Error","Estimate","Margin of Error","Estimate","Margin of Error","Estimate","Margin of Error","Estimate","Margin of Error","Estimate","Margin of Error","Estimate","Margin of Error","Estimate","Margin of Error","Estimate","Margin of Error"]
[null,"Median gross rent",825,184,788,102,"**","**",696,1432,815,75,531,397,647,108,671,60,"**","**","**","**",642,230,746,434,1013,391,792,193,856,215,642,251,950,429,848,130,741,71]

{"sheet":"ACS_Table_B25070","index":58,"n_rows":189,"n_cols":40,"rows_kept":189,"cut":false,"hidden":true,"merged":[]}
[null,"B25070. GROSS RENT AS A PERCENTAGE OF HOUSEHOLD INCOME IN THE PAST 12 MONTHS"]
[null,"Universe:  RENTER-OCCUPIED HOUSING UNITS"]
[null,"Data Set: 2015-2019 American Community Survey 5-Year Estimates"]
[]
[null,null,"Albany",null,"Bartlett",null,"Brookfield",null,"Chatham",null,"Conway",null,"Eaton",null,"Effingham",null,"Freedom",null,"Hale's Location",null,"Hart's Location",null,"Jackson",null,"Madison",null,"Moultonborough",null,"Ossipee",null,"Sandwich",null,"Tamworth",null,"Tuftonboro",null,"Wakefield",null,"Wolfeboro"]
[null," ","Estimate","Margin of Error","Estimate","Margin of Error","Estimate","Margin of Error","Estimate","Margin of Error","Estimate","Margin of Error","Estimate","Margin of Error","Estimate","Margin of Error","Estimate","Margin of Error","Estimate","Margin of Error","Estimate","Margin of Error","Estimate","Margin of Error","Estimate","Margin of Error","Estimate","Margin of Error","Estimate","Margin of Error","Estimate","Margin of Error","Estimate","Margin of Error","Estimate","Margin of Error","Estimate","Margin of Error","Estimate","Margin of Error"]
[null,"Total:",35,17,392,159,14,18,11,14,1518,311,33,22,106,45,34,26,0,11,5,8,98,49,185,59,234,86,471,121,82,37,361,135,65,38,216,113,571,210]
[null,"Less than 10.0 percent",2,3,0,11,8,14,0,11,51,61,0,11,0,11,5,9,0,11,0,11,0,11,7,9,7,11,0,11,0,11,12,18,0,11,14,21,0,16]
[null,"10.0 to 14.9 percent",0,11,0,11,0,11,0,11,119,78,0,11,10,10,0,11,0,11,5,8,24,30,44,38,24,36,96,84,3,5,13,19,0,11,29,37,0,16]
[null,"15.0 to 19.9 percent",3,4,0,11,0,11,0,11,233,176,10,13,15,22,13,20,0,11,0,11,10,16,0,11,9,15,87,60,0,11,56,65,0,11,20,29,18,29]
[null,"20.0 to 24.9 percent",10,13,148,104,0,11,0,11,175,137,5,5,12,17,5,7,0,11,0,11,18,21,40,29,51,38,0,11,22,23,13,19,5,8,0,16,14,24]
[null,"25.0 to 29.9 percent",0,11,33,54,0,11,0,11,228,140,0,11,8,8,0,11,0,11,0,11,0,11,17,28,0,11,61,67,12,8,29,29,8,12,0,16,123,116]
[null,"30.0 to 34.9 percent",9,10,8,14,0,11,6,11,94,103,0,11,0,11,0,11,0,11,0,11,0,11,7,9,10,16,0,11,8,6,105,105,25,32,75,79,77,82]
[null,"35.0 to 39.9 percent",4,6,0,11,0,11,0,11,97,86,2,4,10,15,7,8,0,11,0,11,0,11,17,20,0,11,60,65,0,11,19,29,0,11,13,21,75,92]
[null,"40.0 to 49.9 percent",0,11,43,48,0,11,5,9,120,98,5,9,6,8,0,11,0,11,0,11,21,34,13,19,19,21,19,26,3,5,0,11,0,11,50,77,107,109]
[null,"50.0 percent or more",2,5,24,39,6,11,0,11,353,134,4,7,19,14,0,11,0,11,0,11,15,19,19,23,39,36,78,57,18,21,114,77,5,7,0,16,126,151]
[null,"Not computed",5,6,136,89,0,11,0,11,48,59,7,7,26,24,4,5,0,11,0,11,10,16,21,25,75,50,70,43,16,16,0,11,22,20,15,23,31,35]
[]
[]
[]
[]
[]
[]
[]
[]
[]
[]
[]
[]
[]
[]
[]
[]
[]
[null,"Calculated B25070. GROSS RENT AS A PERCENTAGE OF HOUSEHOLD INCOME IN THE PAST 12 MONTHS"]
[null,"Universe:  RENTER-OCCUPIED HOUSING UNITS"]
[null,"Data Set: 2015-2019 American Community Survey 5-Year Estimates"]
[]
[null,null,"Albany",null,"Bartlett",null,"Brookfield",null,"Chatham",null,"Conway",null,"Eaton",null,"Effingham",null,"Freedom",null,"Hale's Location",null,"Hart's Location",null,"Jackson",null,"Madison",null,"Moultonborough",null,"Ossipee",null,"Sandwich",null,"Tamworth",null,"Tuftonboro",null,"Wakefield",null,"Wolfeboro"]
[null," ","Estimate","Margin of Error","Estimate","Margin of Error","Estimate","Margin of Error","Estimate","Margin of Error","Estimate","Margin of Error","Estimate","Margin of Error","Estimate","Margin of Error","Estimate","Margin of Error","Estimate","Margin of Error","Estimate","Margin of Error","Estimate","Margin of Error","Estimate","Margin of Error","Estimate","Margin of Error","Estimate","Margin of Error","Estimate","Margin of Error","Estimate","Margin of Error","Estimate","Margin of Error","Estimate","Margin of Error","Estimate","Margin of Error"]
[null,{"$f":"B7","v":"Total:"},{"$f":"C7","v":35},{"$f":"D7","v":17},{"$f":"E7","v":392},159,14,18,11,14,1518,311,33,22,106,45,34,26,0,11,5,8,98,49,{"$f":"Y7","v":185},59,234,86,471,121,82,37,361,135,65,38,216,113,571,210]
[null,"Less than 20% of HH Income",{"$f":"C8+C9+C10","v":5},{"$f":"SQRT((D8^2)+(D9^2)+(D10^2))","v":12.083045973594572},{"$f":"E8+E9+E10","v":0},{"$f":"SQRT((F8^2)+(F9^2)+(F10^2))","v":19.05255888325765},{"$f":"G8+G9+G10","v":8},{"$f":"SQRT((H8^2)+(H9^2)+(H10^2))","v":20.928449536456348},{"$f":"I8+I9+I10","v":0},{"$f":"SQRT((J8^2)+(J9^2)+(J10^2))","v":19.05255888325765},{"$f":"K8+K9+K10","v":403},{"$f":"SQRT((L8^2)+(L9^2)+(L10^2))","v":201.94306128213466},{"$f":"M8+M9+M10","v":10},{"$f":"SQRT((N8^2)+(N9^2)+(N10^2))","v":20.273134932713294},{"$f":"O8+O9+O10","v":25},{"$f":"SQRT((P8^2)+(P9^2)+(P10^2))","v":26.551836094703507},{"$f":"Q8+Q9+Q10","v":18},{"$f":"SQRT((R8^2)+(R9^2)+(R10^2))","v":24.535688292770594},{"$f":"S8+S9+S10","v":0},{"$f":"SQRT((T8^2)+(T9^2)+(T10^2))","v":19.05255888325765},{"$f":"U8+U9+U10","v":5},{"$f":"SQRT((V8^2)+(V9^2)+(V10^2))","v":17.4928556845359},{"$f":"W8+W9+W10","v":34},{"$f":"SQRT((X8^2)+(X9^2)+(X10^2))","v":35.735136770411273},{"$f":"Y8+Y9+Y10","v":51},{"$f":"SQRT((Z8^2)+(Z9^2)+(Z10^2))","v":40.570925550201586},{"$f":"AA8+AA9+AA10","v":40},{"$f":"SQRT((AB8^2)+(AB9^2)+(AB10^2))","v":40.521599178709621},{"$f":"AC8+AC9+AC10","v":183},{"$f":"SQRT((AD8^2)+(AD9^2)+(AD10^2))","v":103.81233067415451},{"$f":"AE8+AE9+AE10","v":3},{"$f":"SQRT((AF8^2)+(AF9^2)+(AF10^2))","v":16.340134638368191},{"$f":"AG8+AG9+AG10","v":81},{"$f":"SQRT((AH8^2)+(AH9^2)+(AH10^2))","v":70.071392165419411},{"$f":"AI8+AI9+AI10","v":0},{"$f":"SQRT((AJ8^2)+(AJ9^2)+(AJ10^2))","v":19.05255888325765},{"$f":"AK8+AK9+AK10","v":63},{"$f":"SQRT((AL8^2)+(AL9^2)+(AL10^2))","v":51.487862647424002},{"$f":"AM8+AM9+AM10","v":18},{"$f":"SQRT((AN8^2)+(AN9^2)+(AN10^2))","v":36.783148315499041}]
[null," 20% to 24.9% of HH Income",{"$f":"C11","v":10},{"$f":"D11","v":13},{"$f":"E11","v":148},104,0,11,0,11,175,137,5,5,12,17,5,7,0,11,0,11,18,21,{"$f":"Y11","v":40},29,51,38,0,11,22,23,13,19,5,8,0,16,14,24]
[null," 25% to 29.9% of HH Income",{"$f":"C12","v":0},{"$f":"D12","v":11},33,54,0,11,0,11,228,140,0,11,8,8,0,11,0,11,0,11,0,11,{"$f":"Y12","v":17},28,0,11,61,67,12,8,29,29,8,12,0,16,123,116]
[null," Less Than 30% of HH Income",{"$f":"C12+C11+C10+C9+C8","v":15},{"$f":"SQRT((D12^2)+(D11^2)+(D10^2)+(D9^2)+(D8^2))","v":20.880613017821101},{"$f":"E12+E11+E10+E9+E8","v":181},{"$f":"SQRT((F12^2)+(F11^2)+(F10^2)+(F9^2)+(F8^2))","v":118.72236520555005},{"$f":"G12+G11+G10+G9+G8","v":8},{"$f":"SQRT((H12^2)+(H11^2)+(H10^2)+(H9^2)+(H8^2))","v":26.076809620810597},{"$f":"I12+I11+I10+I9+I8","v":0},{"$f":"SQRT((J12^2)+(J11^2)+(J10^2)+(J9^2)+(J8^2))","v":24.596747752497688},{"$f":"K12+K11+K10+K9+K8","v":806},{"$f":"SQRT((L12^2)+(L11^2)+(L10^2)+(L9^2)+(L8^2))","v":281.33609793270398},{"$f":"M12+M11+M10+M9+M8","v":15},{"$f":"SQRT((N12^2)+(N11^2)+(N10^2)+(N9^2)+(N8^2))","v":23.600847442411894},{"$f":"O12+O11+O10+O9+O8","v":45},{"$f":"SQRT((P12^2)+(P11^2)+(P10^2)+(P9^2)+(P8^2))","v":32.526911934581186},{"$f":"Q12+Q11+Q10+Q9+Q8","v":23},{"$f":"SQRT((R12^2)+(R11^2)+(R10^2)+(R9^2)+(R8^2))","v":27.784887978899608},{"$f":"S12+S11+S10+S9+S8","v":0},{"$f":"SQRT((T12^2)+(T11^2)+(T10^2)+(T9^2)+(T8^2))","v":24.596747752497688},{"$f":"U12+U11+U10+U9+U8","v":5},{"$f":"SQRT((V12^2)+(V11^2)+(V10^2)+(V9^2)+(V8^2))","v":23.409399821439251},{"$f":"W12+W11+W10+W9+W8","v":52},{"$f":"SQRT((X12^2)+(X11^2)+(X10^2)+(X9^2)+(X8^2))","v":42.883563284783136},{"$f":"Y12+Y11+Y10+Y9+Y8","v":108},{"$f":"SQRT((Z12^2)+(Z11^2)+(Z10^2)+(Z9^2)+(Z8^2))","v":57.192656871315222},{"$f":"AA12+AA11+AA10+AA9+AA8","v":91},{"$f":"SQRT((AB12^2)+(AB11^2)+(AB10^2)+(AB9^2)+(AB8^2))","v":56.630380539071076},{"$f":"AC12+AC11+AC10+AC9+AC8","v":244},{"$f":"SQRT((AD12^2)+(AD11^2)+(AD10^2)+(AD9^2)+(AD8^2))","v":124.04434690867618},{"$f":"AE12+AE11+AE10+AE9+AE8","v":37},{"$f":"SQRT((AF12^2)+(AF11^2)+(AF10^2)+(AF9^2)+(AF8^2))","v":29.32575659723036},{"$f":"AG12+AG11+AG10+AG9+AG8","v":123},{"$f":"SQRT((AH12^2)+(AH11^2)+(AH10^2)+(AH9^2)+(AH8^2))","v":78.179281142768261},{"$f":"AI12+AI11+AI10+AI9+AI8","v":13},{"$f":"SQRT((AJ12^2)+(AJ11^2)+(AJ10^2)+(AJ9^2)+(AJ8^2))","v":23.895606290697042},{"$f":"AK12+AK11+AK10+AK9+AK8","v":63},{"$f":"SQRT((AL12^2)+(AL11^2)+(AL10^2)+(AL9^2)+(AL8^2))","v":56.240554762555462},{"$f":"AM12+AM11+AM10+AM9+AM8","v":155},{"$f":"SQRT((AN12^2)+(AN11^2)+(AN10^2)+(AN9^2)+(AN8^2))","v":124.03628501370073}]
[null," 30% or More of HH Income",{"$f":"C13+C14+C15+C16","v":15},{"$f":"SQRT((D13^2)+(D14^2)+(D15^2)+(D16^2))","v":16.792855623746664},{"$f":"E13+E14+E15+E16","v":75},{"$f":"SQRT((F13^2)+(F14^2)+(F15^2)+(F16^2))","v":64.358371638816351},{"$f":"G13+G14+G15+G16","v":6},{"$f":"SQRT((H13^2)+(H14^2)+(H15^2)+(H16^2))","v":22},{"$f":"I13+I14+I15+I16","v":11},{"$f":"SQRT((J13^2)+(J14^2)+(J15^2)+(J16^2))","v":21.071307505705477},{"$f":"K13+K14+K15+K16","v":664},{"$f":"SQRT((L13^2)+(L14^2)+(L15^2)+(L16^2))","v":213.45959805077868},{"$f":"M13+M14+M15+M16","v":11},{"$f":"SQRT((N13^2)+(N14^2)+(N15^2)+(N16^2))","v":16.340134638368191},{"$f":"O13+O14+O15+O16","v":35},{"$f":"SQRT((P13^2)+(P14^2)+(P15^2)+(P16^2))","v":24.617067250182341},{"$f":"Q13+Q14+Q15+Q16","v":7},{"$f":"SQRT((R13^2)+(R14^2)+(R15^2)+(R16^2))","v":20.663978319771825},{"$f":"S13+S14+S15+S16","v":0},{"$f":"SQRT((T13^2)+(T14^2)+(T15^2)+(T16^2))","v":22},{"$f":"U13+U14+U15+U16","v":0},{"$f":"SQRT((V13^2)+(V14^2)+(V15^2)+(V16^2))","v":22},{"$f":"W13+W14+W15+W16","v":36},{"$f":"SQRT((X13^2)+(X14^2)+(X15^2)+(X16^2))","v":41.940433951021539},{"$f":"Y13+Y14+Y15+Y16","v":56},{"$f":"SQRT((Z13^2)+(Z14^2)+(Z15^2)+(Z16^2))","v":37.027017163147235},{"$f":"AA13+AA14+AA15+AA16","v":68},{"$f":"SQRT((AB13^2)+(AB14^2)+(AB15^2)+(AB16^2))","v":45.978255730290599},{"$f":"AC13+AC14+AC15+AC16","v":157},{"$f":"SQRT((AD13^2)+(AD14^2)+(AD15^2)+(AD16^2))","v":90.945038347344706},{"$f":"AE13+AE14+AE15+AE16","v":29},{"$f":"SQRT((AF13^2)+(AF14^2)+(AF15^2)+(AF16^2))","v":24.959967948697368},{"$f":"AG13+AG14+AG15+AG16","v":238},{"$f":"SQRT((AH13^2)+(AH14^2)+(AH15^2)+(AH16^2))","v":133.85066305401702},{"$f":"AI13+AI14+AI15+AI16","v":30},{"$f":"SQRT((AJ13^2)+(AJ14^2)+(AJ15^2)+(AJ16^2))","v":36.262928728937489},{"$f":"AK13+AK14+AK15+AK16","v":138},{"$f":"SQRT((AL13^2)+(AL14^2)+(AL15^2)+(AL16^2))","v":113.43279948938931},{"$f":"AM13+AM14+AM15+AM16","v":385},{"$f":"SQRT((AN13^2)+(AN14^2)+(AN15^2)+(AN16^2))","v":223.31591971912795}]
[null," 30% to 34.9% of HH Income",{"$f":"C13","v":9},{"$f":"D13","v":10},{"$f":"E13","v":8},14,0,11,6,11,94,103,0,11,0,11,0,11,0,11,0,11,0,11,{"$f":"Y13","v":7},9,10,16,0,11,8,6,105,105,25,32,75,79,77,82]
[null," Less Than 35% of HH Income",{"$f":"C13+C12+C11+C10+C9+C8","v":24},{"$f":"SQRT((D13^2)+(D12^2)+(D11^2)+(D10^2)+(D9^2)+(D8^2))","v":23.151673805580451},{"$f":"E13+E12+E11+E10+E9+E8","v":189},{"$f":"SQRT((F13^2)+(F12^2)+(F11^2)+(F10^2)+(F9^2)+(F8^2))","v":119.5449706177554},{"$f":"G13+G12+G11+G10+G9+G8","v":8},{"$f":"SQRT((H13^2)+(H12^2)+(H11^2)+(H10^2)+(H9^2)+(H8^2))","v":28.301943396169811},{"$f":"I13+I12+I11+I10+I9+I8","v":6},{"$f":"SQRT((J13^2)+(J12^2)+(J11^2)+(J10^2)+(J9^2)+(J8^2))","v":26.944387170614959},{"$f":"K13+K12+K11+K10+K9+K8","v":900},{"$f":"SQRT((L13^2)+(L12^2)+(L11^2)+(L10^2)+(L9^2)+(L8^2))","v":299.59806407919262},{"$f":"M13+M12+M11+M10+M9+M8","v":15},{"$f":"SQRT((N13^2)+(N12^2)+(N11^2)+(N10^2)+(N9^2)+(N8^2))","v":26.038433132583073},{"$f":"O13+O12+O11+O10+O9+O8","v":45},{"$f":"SQRT((P13^2)+(P12^2)+(P11^2)+(P10^2)+(P9^2)+(P8^2))","v":34.336569426778794},{"$f":"Q13+Q12+Q11+Q10+Q9+Q8","v":23},{"$f":"SQRT((R13^2)+(R12^2)+(R11^2)+(R10^2)+(R9^2)+(R8^2))","v":29.883105594967869},{"$f":"S13+S12+S11+S10+S9+S8","v":0},{"$f":"SQRT((T13^2)+(T12^2)+(T11^2)+(T10^2)+(T9^2)+(T8^2))","v":26.944387170614959},{"$f":"U13+U12+U11+U10+U9+U8","v":5},{"$f":"SQRT((V13^2)+(V12^2)+(V11^2)+(V10^2)+(V9^2)+(V8^2))","v":25.865034312755125},{"$f":"W13+W12+W11+W10+W9+W8","v":52},{"$f":"SQRT((X13^2)+(X12^2)+(X11^2)+(X10^2)+(X9^2)+(X8^2))","v":44.271887242357309},{"$f":"Y13+Y12+Y11+Y10+Y9+Y8","v":115},{"$f":"SQRT((Z13^2)+(Z12^2)+(Z11^2)+(Z10^2)+(Z9^2)+(Z8^2))","v":57.896459304520512},{"$f":"AA13+AA12+AA11+AA10+AA9+AA8","v":101},{"$f":"SQRT((AB13^2)+(AB12^2)+(AB11^2)+(AB10^2)+(AB9^2)+(AB8^2))","v":58.84725991921799},{"$f":"AC13+AC12+AC11+AC10+AC9+AC8","v":244},{"$f":"SQRT((AD13^2)+(AD12^2)+(AD11^2)+(AD10^2)+(AD9^2)+(AD8^2))","v":124.53112060846478},{"$f":"AE13+AE12+AE11+AE10+AE9+AE8","v":45},{"$f":"SQRT((AF13^2)+(AF12^2)+(AF11^2)+(AF10^2)+(AF9^2)+(AF8^2))","v":29.933259094191531},{"$f":"AG13+AG12+AG11+AG10+AG9+AG8","v":228},{"$f":"SQRT((AH13^2)+(AH12^2)+(AH11^2)+(AH10^2)+(AH9^2)+(AH8^2))","v":130.90836489697671},{"$f":"AI13+AI12+AI11+AI10+AI9+AI8","v":38},{"$f":"SQRT((AJ13^2)+(AJ12^2)+(AJ11^2)+(AJ10^2)+(AJ9^2)+(AJ8^2))","v":39.937451095431719},{"$f":"AK13+AK12+AK11+AK10+AK9+AK8","v":138},{"$f":"SQRT((AL13^2)+(AL12^2)+(AL11^2)+(AL10^2)+(AL9^2)+(AL8^2))","v":96.974223379205256},{"$f":"AM13+AM12+AM11+AM10+AM9+AM8","v":232},{"$f":"SQRT((AN13^2)+(AN12^2)+(AN11^2)+(AN10^2)+(AN9^2)+(AN8^2))","v":148.69095466772686}]
[null," 35% or More of HH Income",{"$f":"C14+C15+C16","v":6},{"$f":"SQRT((D14^2)+(D15^2)+(D16^2))","v":13.490737563232042},{"$f":"E14+E15+E16","v":67},{"$f":"SQRT((F14^2)+(F15^2)+(F16^2))","v":62.81719509815764},{"$f":"G14+G15+G16","v":6},{"$f":"SQRT((H14^2)+(H15^2)+(H16^2))","v":19.05255888325765},{"$f":"I14+I15+I16","v":5},{"$f":"SQRT((J14^2)+(J15^2)+(J16^2))","v":17.972200755611428},{"$f":"K14+K15+K16","v":570},{"$f":"SQRT((L14^2)+(L15^2)+(L16^2))","v":186.9652374105946},{"$f":"M14+M15+M16","v":11},{"$f":"SQRT((N14^2)+(N15^2)+(N16^2))","v":12.083045973594572},{"$f":"O14+O15+O16","v":35},{"$f":"SQRT((P14^2)+(P15^2)+(P16^2))","v":22.022715545545239},{"$f":"Q14+Q15+Q16","v":7},{"$f":"SQRT((R14^2)+(R15^2)+(R16^2))","v":17.4928556845359},{"$f":"S14+S15+S16","v":0},{"$f":"SQRT((T14^2)+(T15^2)+(T16^2))","v":19.05255888325765},{"$f":"U14+U15+U16","v":0},{"$f":"SQRT((V14^2)+(V15^2)+(V16^2))","v":19.05255888325765},{"$f":"W14+W15+W16","v":36},{"$f":"SQRT((X14^2)+(X15^2)+(X16^2))","v":40.472212689696121},{"$f":"Y14+Y15+Y16","v":49},{"$f":"SQRT((Z14^2)+(Z15^2)+(Z16^2))","v":35.91656999213594},{"$f":"AA14+AA15+AA16","v":58},{"$f":"SQRT((AB14^2)+(AB15^2)+(AB16^2))","v":43.104524124504614},{"$f":"AC14+AC15+AC16","v":157},{"$f":"SQRT((AD14^2)+(AD15^2)+(AD16^2))","v":90.277350426338941},{"$f":"AE14+AE15+AE16","v":21},{"$f":"SQRT((AF14^2)+(AF15^2)+(AF16^2))","v":24.228082879171435},{"$f":"AG14+AG15+AG16","v":133},{"$f":"SQRT((AH14^2)+(AH15^2)+(AH16^2))","v":83.012047318446491},{"$f":"AI14+AI15+AI16","v":5},{"$f":"SQRT((AJ14^2)+(AJ15^2)+(AJ16^2))","v":17.058722109231979},{"$f":"AK14+AK15+AK16","v":63},{"$f":"SQRT((AL14^2)+(AL15^2)+(AL16^2))","v":81.400245699874887},{"$f":"AM14+AM15+AM16","v":308},{"$f":"SQRT((AN14^2)+(AN15^2)+(AN16^2))","v":207.71615247736514}]
[null," 50% or More of HH Income",{"$f":"C16","v":2},{"$f":"D16","v":5},{"$f":"E16","v":24},39,6,11,0,11,353,134,4,7,19,14,0,11,0,11,0,11,15,19,{"$f":"Y16","v":19},23,39,36,78,57,18,21,114,77,5,7,0,16,126,151]
[null,"Not computed",{"$f":"C17","v":5},{"$f":"D17","v":6},136,89,0,11,0,11,48,59,7,7,26,24,4,5,0,11,0,11,10,16,{"$f":"Y17","v":21},25,75,50,70,43,16,16,0,11,22,20,15,23,31,35]
[]
[]
[]
[]
[]
[]
[]
[]
[]
[]
[]
[]
[]
[]
[]
[]
[]
[]
[]
[]
[]
[]
[]
[]
[]
[]
[]
[]
[]
[]
[]
[]
[]
[]
[]
[]
[]
[]
[]
[]
[]
[]
[]
[]
[]
[]
[]
[]
[]
[]
[]
[]
[null,"Calculated B25070. GROSS RENT AS A PERCENTAGE OF HOUSEHOLD INCOME IN THE PAST 12 MONTHS"]
[null,"Universe:  RENTER-OCCUPIED HOUSING UNITS"]
[null,"Data Set: 2010-2014 American Community Survey 5-Year Estimates"]
[]
[null,null,"Albany",null,"Bartlett",null,"Brookfield",null,"Chatham",null,"Conway",null,"Eaton",null,"Effingham",null,"Freedom",null,"Hale's Location",null,"Hart's Location",null,"Jackson",null,"Madison",null,"Moultonborough",null,"Ossipee",null,"Sandwich",null,"Tamworth",null,"Tuftonboro",null,"Wakefield",null,"Wolfeboro"]
[null," ","Estimate","Margin of Error","Estimate","Margin of Error","Estimate","Margin of Error","Estimate","Margin of Error","Estimate","Margin of Error","Estimate","Margin of Error","Estimate","Margin of Error","Estimate","Margin of Error","Estimate","Margin of Error","Estimate","Margin of Error","Estimate","Margin of Error","Estimate","Margin of Error","Estimate","Margin of Error","Estimate","Margin of Error","Estimate","Margin of Error","Estimate","Margin of Error","Estimate","Margin of Error","Estimate","Margin of Error","Estimate","Margin of Error"]
[null,"Total:",45,20,412,210,9,11,27,14,1399,271,30,20,92,45,90,39,0,11,16,12,81,45,153,66,171,69,277,101,144,64,465,160,170,73,241,136,520,181]
[null,"Less than 20% of HH Income",21,18.493242008906929,100,95.052617007634254,6,18.493242008906929,14,19.261360284258224,268,123.24366109459748,9,14.7648230602334,17,24.269322199023193,5,13.152946437965905,0,19.05255888325765,2,15.842979517754859,34,36.4828726939094,39,37.389838191679836,22,23.727621035409346,0,19.05255888325765,23,30.886890422961002,160,100.34440691936945,40,37.134889255254286,0,25.98076211353316,72,78.140898382345213]
[null," 20% to 24.9% of HH Income",2,3,46,62,0,11,0,11,98,64,4,6,3,4,30,21,0,11,5,6,0,11,13,21,68,52,44,42,12,20,16,22,0,11,19,28,47,77]
[null," 25% to 29.9% of HH Income",9,11,27,43,0,11,0,11,267,119,3,5,0,11,16,20,0,11,0,11,10,18,5,7,8,11,10,15,17,19,82,110,12,19,16,27,30,32]
[null," Less Than 30% of HH Income",32,21.725560982400431,173,121.35897165022452,6,24.166091947189145,14,24.758836806279895,633,182.88247592374728,16,16.703293088490067,20,26.944387170614959,51,31.843366656181317,0,24.596747752497688,7,20.199009876724155,44,42.142615011410953,57,43.451121964800862,98,58.20652884342099,54,48.497422611928563,52,41.41255848169731,258,150.50913593533119,52,43.139309220245984,35,46.776062254106002,149,114.27598172844546]
[null," 30% or More of HH Income",9,17.146428199482248,222,138.09779143780685,0,22,12,19.467922333931785,622,221.19222409479045,0,22,59,36.469165057620941,27,22.248595461286989,0,22,7,22,13,21.447610589527216,56,50.139804546886701,42,38.418745424597091,171,98.666103601996966,55,31.921779399024736,191,118.61703081766969,92,57.706152185014034,206,144.86890625665674,345,183.46661821704785]
[null," 30% to 34.9% of HH Income",2,4,103,93,0,11,0,11,170,111,0,11,24,25,5,7,0,11,0,11,0,11,29,35,8,13,11,17,12,12,63,78,24,28,84,104,0,15]
[null," Less Than 35% of HH Income",34,22.090722034374522,276,152.89538907370621,6,26.551836094703507,14,27.092434368288131,803,213.93223226059229,16,20,44,36.755951898978211,56,32.603680773802211,0,26.944387170614959,7,23,44,43.554563480765133,86,55.794264938253285,106,59.640590204993778,65,51.39066063011839,64,43.116122274620196,321,169.51991033504001,76,51.429563482495162,119,114.03508232118746,149,115.25623627379127]
[null," 35% or More of HH Income",7,16.673332000533065,119,102.08819716304133,0,19.05255888325765,12,16.06237840420901,452,191.32433196015609,0,19.05255888325765,35,26.551836094703507,22,21.118712081942874,0,19.05255888325765,7,19.05255888325765,13,18.411952639521967,27,35.902646142032481,34,36.152454965050438,160,97.190534518542492,43,29.58039891549808,128,89.364422450995562,68,50.457903246171455,122,100.85137579626765,345,182.85239949204933]
[null," 50% or More of HH Income",7,6,112,101,0,11,9,11,181,110,0,11,24,25,8,10,0,11,0,11,8,13,8,12,13,15,105,81,28,23,128,88,68,48,94,89,209,155]
[null,"Not computed",4,4,17,27,3,5,1,3,144,113,14,17,13,16,12,13,0,11,2,3,24,18,40,37,31,40,52,45,37,31,16,23,26,26,0,15,26,30]
[]
[]
[]
[]
[]
[]
[]
[]
[]
[]
[]
[]
[]
[]
[]
[]
[]
[]
[]
[]
[]
[]
[]
[]
[]
[]
[]
[]
[]
[]
[]
[]
[]
[]
[]
[]
[]
[]
[]
[]
[]
[]
[]
[]
[]
[]
[]
[]
[]
[]
[]
[]
[null,"Calculated B25070. GROSS RENT AS A PERCENTAGE OF HOUSEHOLD INCOME IN THE PAST 12 MONTHS"]
[null,"Universe:  RENTER-OCCUPIED HOUSING UNITS"]
[null,"Data Set: 2005-2009 American Community Survey 5-Year Estimates"]
[]
[null,null,"Albany",null,"Bartlett",null,"Brookfield",null,"Chatham",null,"Conway",null,"Eaton",null,"Effingham",null,"Freedom",null,"Hale's Location",null,"Hart's Location",null,"Jackson",null,"Madison",null,"Moultonborough",null,"Ossipee",null,"Sandwich",null,"Tamworth",null,"Tuftonboro",null,"Wakefield",null,"Wolfeboro"]
[null," ","Estimate","Margin of Error","Estimate","Margin of Error","Estimate","Margin of Error","Estimate","Margin of Error","Estimate","Margin of Error","Estimate","Margin of Error","Estimate","Margin of Error","Estimate","Margin of Error","Estimate","Margin of Error","Estimate","Margin of Error","Estimate","Margin of Error","Estimate","Margin of Error","Estimate","Margin of Error","Estimate","Margin of Error","Estimate","Margin of Error","Estimate","Margin of Error","Estimate","Margin of Error","Estimate","Margin of Error","Estimate","Margin of Error"]
[null,"Total:",37,23,301,108,18,18,15,16,1372,247,13,9,42,23,37,23,0,114,10,14,42,25,148,61,119,71,274,113,73,29,194,71,79,55,206,95,682,209]
[null,"Less than 10.0 percent",0,114,9,14,0,114,0,114,22,36,0,114,0,114,0,114,0,114,0,114,0,114,12,14,0,114,0,114,0,114,0,114,0,114,17,27,0,114]
[null,"10.0 to 14.9 percent",0,114,12,19,0,114,0,114,35,41,4,6,0,114,0,114,0,114,0,114,12,14,32,37,20,33,8,13,6,9,38,36,6,9,0,114,78,74]
[null,"15.0 to 19.9 percent",5,6,32,35,0,114,0,114,295,138,0,114,4,7,6,8,0,114,0,114,6,10,9,17,9,18,43,51,3,5,12,19,9,13,32,51,60,73]
[null,"20.0 to 24.9 percent",0,114,74,65,0,114,0,114,198,119,4,6,0,114,6,9,0,114,0,114,6,9,23,27,0,114,20,31,16,11,0,114,0,114,52,43,51,47]
[null,"25.0 to 29.9 percent",3,5,18,29,0,114,0,114,87,55,0,114,4,7,5,8,0,114,0,114,4,7,4,8,12,18,33,35,11,14,14,15,0,114,29,30,83,105]
[null,"30.0 to 34.9 percent",0,114,11,19,0,114,6,10,95,89,0,114,0,114,5,7,0,114,0,114,0,114,9,14,15,17,0,114,5,7,49,46,13,22,0,114,32,39]
[null,"35.0 to 39.9 percent",6,11,21,32,0,114,5,11,140,100,2,5,15,18,0,114,0,114,0,114,0,114,0,114,0,114,0,114,0,114,0,114,16,25,0,114,18,29]
[null,"40.0 to 49.9 percent",0,114,44,35,4,6,0,114,53,77,3,5,8,8,0,114,0,114,0,114,6,10,0,114,30,36,28,31,2,4,24,29,0,114,19,30,0,114]
[null,"50.0 percent or more",11,14,68,51,0,114,0,114,375,171,0,114,11,11,3,4,0,114,0,114,0,114,48,29,10,16,61,65,12,16,29,22,5,8,43,52,298,140]
[null,"Not computed",12,16,12,19,14,17,4,6,72,68,0,114,0,114,12,15,0,114,10,14,8,10,11,18,23,38,81,62,18,12,28,33,30,40,14,22,62,49]

{"sheet":"ACS_Table_B25074","index":59,"n_rows":464,"n_cols":40,"rows_kept":464,"cut":false,"hidden":true,"merged":[]}
[null,"B25074. HOUSEHOLD INCOME BY GROSS RENT AS A PERCENTAGE OF HOUSEHOLD INCOME IN THE PAST 12 MONTHS"]
[null,"Universe:  RENTER-OCCUPIED HOUSING UNITS",null,null,null,{"$f":"RentalHousingCost!D41","v":"Income in 2019 Inflation Adjusted Dollars"}]
[null,"Data Set: 2015-2019 American Community Survey 5-Year Estimates"]
[]
[null,null,"Albany",null,"Bartlett",null,"Brookfield",null,"Chatham",null,"Conway",null,"Eaton",null,"Effingham",null,"Freedom",null,"Hale's Location",null,"Hart's Location",null,"Jackson",null,"Madison",null,"Moultonborough",null,"Ossipee",null,"Sandwich",null,"Tamworth",null,"Tuftonboro",null,"Wakefield",null,"Wolfeboro"]
[null," ","Estimate","Margin of Error","Estimate","Margin of Error","Estimate","Margin of Error","Estimate","Margin of Error","Estimate","Margin of Error","Estimate","Margin of Error","Estimate","Margin of Error","Estimate","Margin of Error","Estimate","Margin of Error","Estimate","Margin of Error","Estimate","Margin of Error","Estimate","Margin of Error","Estimate","Margin of Error","Estimate","Margin of Error","Estimate","Margin of Error","Estimate","Margin of Error","Estimate","Margin of Error","Estimate","Margin of Error","Estimate","Margin of Error"]
[null,"Total:",35,17,392,159,14,18,11,14,1518,311,33,22,106,45,34,26,0,11,5,8,98,49,185,59,234,86,471,121,82,37,361,135,65,38,216,113,571,210]
[null,"Less than $10,000:",0,11,64,72,0,11,0,11,244,112,0,11,4,6,0,11,0,11,0,11,10,16,0,11,8,12,91,57,3,4,52,74,0,11,0,16,0,16]
[null,"Less than 20.0 percent",0,11,0,11,0,11,0,11,0,18,0,11,0,11,0,11,0,11,0,11,0,11,0,11,0,11,0,11,0,11,0,11,0,11,0,16,0,16]
[null,"20.0 to 24.9 percent",0,11,0,11,0,11,0,11,0,18,0,11,0,11,0,11,0,11,0,11,0,11,0,11,0,11,0,11,0,11,0,11,0,11,0,16,0,16]
[null,"25.0 to 29.9 percent",0,11,0,11,0,11,0,11,0,18,0,11,0,11,0,11,0,11,0,11,0,11,0,11,0,11,0,11,3,4,0,11,0,11,0,16,0,16]
[null,"30.0 to 34.9 percent",0,11,0,11,0,11,0,11,0,18,0,11,0,11,0,11,0,11,0,11,0,11,0,11,0,11,0,11,0,11,0,11,0,11,0,16,0,16]
[null,"35.0 to 39.9 percent",0,11,0,11,0,11,0,11,0,18,0,11,0,11,0,11,0,11,0,11,0,11,0,11,0,11,0,11,0,11,0,11,0,11,0,16,0,16]
[null,"40.0 to 49.9 percent",0,11,0,11,0,11,0,11,0,18,0,11,0,11,0,11,0,11,0,11,0,11,0,11,0,11,0,11,0,11,0,11,0,11,0,16,0,16]
[null,"50.0 percent or more",0,11,0,11,0,11,0,11,230,108,0,11,0,11,0,11,0,11,0,11,0,11,0,11,0,11,78,57,0,11,52,74,0,11,0,16,0,16]
[null,"Not computed",0,11,64,72,0,11,0,11,14,26,0,11,4,6,0,11,0,11,0,11,10,16,0,11,8,12,13,22,0,11,0,11,0,11,0,16,0,16]
[null,"$10,000 to $19,999:",4,7,63,58,0,11,0,11,189,106,6,6,19,14,4,5,0,11,0,11,11,18,15,21,51,40,34,57,0,11,77,81,0,11,0,16,170,156]
[null,"Less than 20.0 percent",0,11,0,11,0,11,0,11,0,18,0,11,0,11,0,11,0,11,0,11,0,11,0,11,0,11,34,57,0,11,15,22,0,11,0,16,0,16]
[null,"20.0 to 24.9 percent",0,11,0,11,0,11,0,11,22,32,0,11,0,11,0,11,0,11,0,11,0,11,0,11,0,11,0,11,0,11,13,19,0,11,0,16,0,16]
[null,"25.0 to 29.9 percent",0,11,0,11,0,11,0,11,13,20,0,11,0,11,0,11,0,11,0,11,0,11,0,11,0,11,0,11,0,11,0,11,0,11,0,16,0,16]
[null,"30.0 to 34.9 percent",0,11,0,11,0,11,0,11,0,18,0,11,0,11,0,11,0,11,0,11,0,11,0,11,0,11,0,11,0,11,0,11,0,11,0,16,0,16]
[null,"35.0 to 39.9 percent",0,11,0,11,0,11,0,11,0,18,0,11,0,11,0,11,0,11,0,11,0,11,0,11,0,11,0,11,0,11,0,11,0,11,0,16,28,46]
[null,"40.0 to 49.9 percent",0,11,15,21,0,11,0,11,15,24,0,11,0,11,0,11,0,11,0,11,0,11,0,11,9,13,0,11,0,11,0,11,0,11,0,16,0,16]
[null,"50.0 percent or more",2,5,24,39,0,11,0,11,107,90,4,7,19,14,0,11,0,11,0,11,11,18,15,21,21,23,0,11,0,11,49,77,0,11,0,16,126,151]
[null,"Not computed",2,4,24,38,0,11,0,11,32,51,2,4,0,11,4,5,0,11,0,11,0,11,0,11,21,33,0,11,0,11,0,11,0,11,0,16,16,25]
[null,"$20,000 to $34,999:",14,12,55,61,6,11,11,14,268,170,9,10,35,28,4,7,0,11,0,11,0,11,44,34,32,39,155,102,18,19,138,96,15,16,63,79,243,156]
[null,"Less than 20.0 percent",0,11,0,11,0,11,0,11,0,18,0,11,0,11,0,11,0,11,0,11,0,11,0,11,9,15,31,50,0,11,0,11,0,11,0,16,0,16]
[null,"20.0 to 24.9 percent",2,4,16,25,0,11,0,11,15,24,2,3,0,11,0,11,0,11,0,11,0,11,0,11,0,11,0,11,2,5,0,11,0,11,0,16,0,16]
[null,"25.0 to 29.9 percent",0,11,0,11,0,11,0,11,78,112,0,11,0,11,0,11,0,11,0,11,0,11,17,28,0,11,29,48,2,5,13,19,8,12,0,16,123,116]
[null,"30.0 to 34.9 percent",9,10,0,11,0,11,6,11,32,35,0,11,0,11,0,11,0,11,0,11,0,11,0,11,0,11,0,11,0,11,93,103,0,11,0,16,17,27]
[null,"35.0 to 39.9 percent",0,11,0,11,0,11,0,11,50,60,2,4,10,15,4,7,0,11,0,11,0,11,10,17,0,11,60,65,0,11,19,29,0,11,13,21,47,78]
[null,"40.0 to 49.9 percent",0,11,28,44,0,11,5,9,77,82,5,9,3,5,0,11,0,11,0,11,0,11,13,19,0,11,19,26,0,11,0,11,0,11,50,77,56,69]
[null,"50.0 percent or more",0,11,0,11,6,11,0,11,16,25,0,11,0,11,0,11,0,11,0,11,0,11,4,8,0,11,0,11,11,17,13,19,0,11,0,16,0,16]
[null,"Not computed",3,5,11,16,0,11,0,11,0,18,0,11,22,24,0,11,0,11,0,11,0,11,0,11,23,37,16,25,3,4,0,11,7,11,0,16,0,16]
[null,"$35,000 to $49,999:",12,14,111,92,0,11,0,11,66,59,1,4,0,11,0,11,0,11,0,11,43,40,7,9,37,35,66,58,10,12,0,11,6,10,110,78,111,111]
[null,"Less than 20.0 percent",0,11,0,11,0,11,0,11,0,18,0,11,0,11,0,11,0,11,0,11,0,11,0,11,0,11,12,18,0,11,0,11,0,11,35,41,0,16]
[null,"20.0 to 24.9 percent",8,12,41,48,0,11,0,11,0,18,1,4,0,11,0,11,0,11,0,11,18,21,0,11,0,11,0,11,0,11,0,11,0,11,0,16,0,16]
[null,"25.0 to 29.9 percent",0,11,33,54,0,11,0,11,11,18,0,11,0,11,0,11,0,11,0,11,0,11,0,11,0,11,32,51,0,11,0,11,0,11,0,16,0,16]
[null,"30.0 to 34.9 percent",0,11,0,11,0,11,0,11,0,18,0,11,0,11,0,11,0,11,0,11,0,11,7,9,0,11,0,11,0,11,0,11,6,10,75,79,60,74]
[null,"35.0 to 39.9 percent",4,6,0,11,0,11,0,11,30,47,0,11,0,11,0,11,0,11,0,11,0,11,0,11,0,11,0,11,0,11,0,11,0,11,0,16,0,16]
[null,"40.0 to 49.9 percent",0,11,0,11,0,11,0,11,25,31,0,11,0,11,0,11,0,11,0,11,21,34,0,11,10,16,0,11,3,5,0,11,0,11,0,16,51,81]
[null,"50.0 percent or more",0,11,0,11,0,11,0,11,0,18,0,11,0,11,0,11,0,11,0,11,4,5,0,11,18,27,0,11,7,11,0,11,0,11,0,16,0,16]
[null,"Not computed",0,11,37,55,0,11,0,11,0,18,0,11,0,11,0,11,0,11,0,11,0,11,0,11,9,14,22,25,0,11,0,11,0,11,0,16,0,16]
[null,"$50,000 to $74,999:",0,11,33,40,0,11,0,11,475,193,15,16,23,16,8,9,0,11,0,11,24,30,43,26,70,51,29,27,31,24,65,65,21,18,28,21,33,39]
[null,"Less than 20.0 percent",0,11,0,11,0,11,0,11,127,106,10,13,0,11,0,11,0,11,0,11,24,30,16,24,24,36,10,15,0,11,53,64,0,11,28,21,18,29]
[null,"20.0 to 24.9 percent",0,11,25,38,0,11,0,11,138,124,2,3,12,17,5,7,0,11,0,11,0,11,14,15,28,31,0,11,10,16,0,11,5,8,0,16,0,16]
[null,"25.0 to 29.9 percent",0,11,0,11,0,11,0,11,126,90,0,11,8,8,0,11,0,11,0,11,0,11,0,11,0,11,0,11,4,6,0,11,0,11,0,16,0,16]
[null,"30.0 to 34.9 percent",0,11,8,14,0,11,0,11,62,98,0,11,0,11,0,11,0,11,0,11,0,11,0,11,10,16,0,11,4,5,12,19,0,11,0,16,0,16]
[null,"35.0 to 39.9 percent",0,11,0,11,0,11,0,11,17,25,0,11,0,11,3,4,0,11,0,11,0,11,7,10,0,11,0,11,0,11,0,11,0,11,0,16,0,16]
[null,"40.0 to 49.9 percent",0,11,0,11,0,11,0,11,3,21,0,11,3,6,0,11,0,11,0,11,0,11,0,11,0,11,0,11,0,11,0,11,0,11,0,16,0,16]
[null,"50.0 percent or more",0,11,0,11,0,11,0,11,0,18,0,11,0,11,0,11,0,11,0,11,0,11,0,11,0,11,0,11,0,11,0,11,5,7,0,16,0,16]
[null,"Not computed",0,11,0,11,0,11,0,11,2,3,3,7,0,11,0,11,0,11,0,11,0,11,6,8,8,14,19,22,13,16,0,11,11,16,0,16,15,26]
[null,"$75,000 to $99,999:",0,11,66,69,8,14,0,11,211,162,2,3,3,4,13,20,0,11,5,8,0,11,35,33,29,28,68,71,17,17,16,23,0,11,0,16,14,24]
[null,"Less than 20.0 percent",0,11,0,11,8,14,0,11,211,162,0,11,3,4,13,20,0,11,5,8,0,11,0,11,0,11,68,71,0,11,0,11,0,11,0,16,0,16]
[null,"20.0 to 24.9 percent",0,11,66,69,0,11,0,11,0,18,0,11,0,11,0,11,0,11,0,11,0,11,20,22,23,26,0,11,10,16,0,11,0,11,0,16,14,24]
[null,"25.0 to 29.9 percent",0,11,0,11,0,11,0,11,0,18,0,11,0,11,0,11,0,11,0,11,0,11,0,11,0,11,0,11,3,5,16,23,0,11,0,16,0,16]
[null,"30.0 to 34.9 percent",0,11,0,11,0,11,0,11,0,18,0,11,0,11,0,11,0,11,0,11,0,11,0,11,0,11,0,11,4,6,0,11,0,11,0,16,0,16]
[null,"35.0 to 39.9 percent",0,11,0,11,0,11,0,11,0,18,0,11,0,11,0,11,0,11,0,11,0,11,0,11,0,11,0,11,0,11,0,11,0,11,0,16,0,16]
[null,"40.0 to 49.9 percent",0,11,0,11,0,11,0,11,0,18,0,11,0,11,0,11,0,11,0,11,0,11,0,11,0,11,0,11,0,11,0,11,0,11,0,16,0,16]
[null,"50.0 percent or more",0,11,0,11,0,11,0,11,0,18,0,11,0,11,0,11,0,11,0,11,0,11,0,11,0,11,0,11,0,11,0,11,0,11,0,16,0,16]
[null,"Not computed",0,11,0,11,0,11,0,11,0,18,2,3,0,11,0,11,0,11,0,11,0,11,15,24,6,10,0,11,0,11,0,11,0,11,0,16,0,16]
[null,"$100,000 or more:",5,5,0,11,0,11,0,11,65,80,0,11,22,23,5,9,0,11,0,11,10,16,41,35,7,11,28,47,3,5,13,19,23,31,15,23,0,16]
[null,"Less than 20.0 percent",5,5,0,11,0,11,0,11,65,80,0,11,22,23,5,9,0,11,0,11,10,16,35,34,7,11,28,47,3,5,13,19,0,11,0,16,0,16]
[null,"20.0 to 24.9 percent",0,11,0,11,0,11,0,11,0,18,0,11,0,11,0,11,0,11,0,11,0,11,6,11,0,11,0,11,0,11,0,11,0,11,0,16,0,16]
[null,"25.0 to 29.9 percent",0,11,0,11,0,11,0,11,0,18,0,11,0,11,0,11,0,11,0,11,0,11,0,11,0,11,0,11,0,11,0,11,0,11,0,16,0,16]
[null,"30.0 to 34.9 percent",0,11,0,11,0,11,0,11,0,18,0,11,0,11,0,11,0,11,0,11,0,11,0,11,0,11,0,11,0,11,0,11,19,31,0,16,0,16]
[null,"35.0 to 39.9 percent",0,11,0,11,0,11,0,11,0,18,0,11,0,11,0,11,0,11,0,11,0,11,0,11,0,11,0,11,0,11,0,11,0,11,0,16,0,16]
[null,"40.0 to 49.9 percent",0,11,0,11,0,11,0,11,0,18,0,11,0,11,0,11,0,11,0,11,0,11,0,11,0,11,0,11,0,11,0,11,0,11,0,16,0,16]
[null,"50.0 percent or more",0,11,0,11,0,11,0,11,0,18,0,11,0,11,0,11,0,11,0,11,0,11,0,11,0,11,0,11,0,11,0,11,0,11,0,16,0,16]
[null,"Not computed",0,11,0,11,0,11,0,11,0,18,0,11,0,11,0,11,0,11,0,11,0,11,0,11,0,11,0,11,0,11,0,11,4,7,15,23,0,16]
[]
[]
[]
[]
[]
[]
[]
[]
[]
[]
[]
[]
[]
[]
[]
[null,"Calculated B25074. HOUSEHOLD INCOME BY GROSS RENT AS A PERCENTAGE OF HOUSEHOLD INCOME IN THE PAST 12 MONTHS"]
[null,"Universe:  RENTER-OCCUPIED HOUSING UNITS"]
[null,"Data Set: 2015-2019 American Community Survey 5-Year Estimates"]
[]
[null,null,"Albany",null,"Bartlett",null,"Brookfield",null,"Chatham",null,"Conway",null,"Eaton",null,"Effingham",null,"Freedom",null,"Hale's Location",null,"Hart's Location",null,"Jackson",null,"Madison",null,"Moultonborough",null,"Ossipee",null,"Sandwich",null,"Tamworth",null,"Tuftonboro",null,"Wakefield",null,"Wolfeboro"]
[null," ","Estimate","Margin of Error","Estimate","Margin of Error","Estimate","Margin of Error","Estimate","Margin of Error","Estimate","Margin of Error","Estimate","Margin of Error","Estimate","Margin of Error","Estimate","Margin of Error","Estimate","Margin of Error","Estimate","Margin of Error","Estimate","Margin of Error","Estimate","Margin of Error","Estimate","Margin of Error","Estimate","Margin of Error","Estimate","Margin of Error","Estimate","Margin of Error","Estimate","Margin of Error","Estimate","Margin of Error","Estimate","Margin of Error"]
[null,"Total:",{"$f":"C7","v":35},17,392,159,14,18,11,14,1518,311,33,22,106,45,34,26,0,11,5,8,98,49,185,59,234,86,471,121,82,37,361,135,65,38,216,113,571,210]
[null,"Less than $10,000:",0,11,64,72,0,11,0,11,244,112,0,11,4,6,0,11,0,11,0,11,10,16,0,11,8,12,91,57,3,4,52,74,0,11,0,16,0,16]
[null,"Less than 30.0 percent",{"$f":"C9+C10+C11","v":0},{"$f":"SQRT((D9^2)+(D10^2)+(D11^2))","v":19.05255888325765},{"$f":"E9+E10+E11","v":0},{"$f":"SQRT((F9^2)+(F10^2)+(F11^2))","v":19.05255888325765},{"$f":"G9+G10+G11","v":0},{"$f":"SQRT((H9^2)+(H10^2)+(H11^2))","v":19.05255888325765},{"$f":"I9+I10+I11","v":0},{"$f":"SQRT((J9^2)+(J10^2)+(J11^2))","v":19.05255888325765},{"$f":"K9+K10+K11","v":0},{"$f":"SQRT((L9^2)+(L10^2)+(L11^2))","v":31.176914536239792},{"$f":"M9+M10+M11","v":0},{"$f":"SQRT((N9^2)+(N10^2)+(N11^2))","v":19.05255888325765},{"$f":"O9+O10+O11","v":0},{"$f":"SQRT((P9^2)+(P10^2)+(P11^2))","v":19.05255888325765},{"$f":"Q9+Q10+Q11","v":0},{"$f":"SQRT((R9^2)+(R10^2)+(R11^2))","v":19.05255888325765},{"$f":"S9+S10+S11","v":0},{"$f":"SQRT((T9^2)+(T10^2)+(T11^2))","v":19.05255888325765},{"$f":"U9+U10+U11","v":0},{"$f":"SQRT((V9^2)+(V10^2)+(V11^2))","v":19.05255888325765},{"$f":"W9+W10+W11","v":0},{"$f":"SQRT((X9^2)+(X10^2)+(X11^2))","v":19.05255888325765},{"$f":"Y9+Y10+Y11","v":0},{"$f":"SQRT((Z9^2)+(Z10^2)+(Z11^2))","v":19.05255888325765},{"$f":"AA9+AA10+AA11","v":0},{"$f":"SQRT((AB9^2)+(AB10^2)+(AB11^2))","v":19.05255888325765},{"$f":"AC9+AC10+AC11","v":0},{"$f":"SQRT((AD9^2)+(AD10^2)+(AD11^2))","v":19.05255888325765},{"$f":"AE9+AE10+AE11","v":3},{"$f":"SQRT((AF9^2)+(AF10^2)+(AF11^2))","v":16.06237840420901},{"$f":"AG9+AG10+AG11","v":0},{"$f":"SQRT((AH9^2)+(AH10^2)+(AH11^2))","v":19.05255888325765},{"$f":"AI9+AI10+AI11","v":0},{"$f":"SQRT((AJ9^2)+(AJ10^2)+(AJ11^2))","v":19.05255888325765},{"$f":"AK9+AK10+AK11","v":0},{"$f":"SQRT((AL9^2)+(AL10^2)+(AL11^2))","v":27.712812921102035},{"$f":"AM9+AM10+AM11","v":0},{"$f":"SQRT((AN9^2)+(AN10^2)+(AN11^2))","v":27.712812921102035}]
[null,"More than 30.0 percent",{"$f":"C12+C13+C14+C15","v":0},{"$f":"SQRT((D12^2)+(D13^2)+(D14^2)+(D15^2))","v":22},{"$f":"E12+E13+E14+E15","v":0},{"$f":"SQRT((F12^2)+(F13^2)+(F14^2)+(F15^2))","v":22},{"$f":"G12+G13+G14+G15","v":0},{"$f":"SQRT((H12^2)+(H13^2)+(H14^2)+(H15^2))","v":22},{"$f":"I12+I13+I14+I15","v":0},{"$f":"SQRT((J12^2)+(J13^2)+(J14^2)+(J15^2))","v":22},{"$f":"K12+K13+K14+K15","v":230},{"$f":"SQRT((L12^2)+(L13^2)+(L14^2)+(L15^2))","v":112.40996397117117},{"$f":"M12+M13+M14+M15","v":0},{"$f":"SQRT((N12^2)+(N13^2)+(N14^2)+(N15^2))","v":22},{"$f":"O12+O13+O14+O15","v":0},{"$f":"SQRT((P12^2)+(P13^2)+(P14^2)+(P15^2))","v":22},{"$f":"Q12+Q13+Q14+Q15","v":0},{"$f":"SQRT((R12^2)+(R13^2)+(R14^2)+(R15^2))","v":22},{"$f":"S12+S13+S14+S15","v":0},{"$f":"SQRT((T12^2)+(T13^2)+(T14^2)+(T15^2))","v":22},{"$f":"U12+U13+U14+U15","v":0},{"$f":"SQRT((V12^2)+(V13^2)+(V14^2)+(V15^2))","v":22},{"$f":"W12+W13+W14+W15","v":0},{"$f":"SQRT((X12^2)+(X13^2)+(X14^2)+(X15^2))","v":22},{"$f":"Y12+Y13+Y14+Y15","v":0},{"$f":"SQRT((Z12^2)+(Z13^2)+(Z14^2)+(Z15^2))","v":22},{"$f":"AA12+AA13+AA14+AA15","v":0},{"$f":"SQRT((AB12^2)+(AB13^2)+(AB14^2)+(AB15^2))","v":22},{"$f":"AC12+AC13+AC14+AC15","v":78},{"$f":"SQRT((AD12^2)+(AD13^2)+(AD14^2)+(AD15^2))","v":60.099916805266879},{"$f":"AE12+AE13+AE14+AE15","v":0},{"$f":"SQRT((AF12^2)+(AF13^2)+(AF14^2)+(AF15^2))","v":22},{"$f":"AG12+AG13+AG14+AG15","v":52},{"$f":"SQRT((AH12^2)+(AH13^2)+(AH14^2)+(AH15^2))","v":76.413349619029262},{"$f":"AI12+AI13+AI14+AI15","v":0},{"$f":"SQRT((AJ12^2)+(AJ13^2)+(AJ14^2)+(AJ15^2))","v":22},{"$f":"AK12+AK13+AK14+AK15","v":0},{"$f":"SQRT((AL12^2)+(AL13^2)+(AL14^2)+(AL15^2))","v":32},{"$f":"AM12+AM13+AM14+AM15","v":0},{"$f":"SQRT((AN12^2)+(AN13^2)+(AN14^2)+(AN15^2))","v":32}]
[null,"Less Than 35% of HH Income",{"$f":"C9+C10+C11+C12","v":0},{"$f":"SQRT((D9^2)+(D10^2)+(D11^2)+(D12^2))","v":22},{"$f":"E9+E10+E11+E12","v":0},{"$f":"SQRT((F9^2)+(F10^2)+(F11^2)+(F12^2))","v":22},{"$f":"G9+G10+G11+G12","v":0},{"$f":"SQRT((H9^2)+(H10^2)+(H11^2)+(H12^2))","v":22},{"$f":"I9+I10+I11+I12","v":0},{"$f":"SQRT((J9^2)+(J10^2)+(J11^2)+(J12^2))","v":22},{"$f":"K9+K10+K11+K12","v":0},{"$f":"SQRT((L9^2)+(L10^2)+(L11^2)+(L12^2))","v":36},{"$f":"M9+M10+M11+M12","v":0},{"$f":"SQRT((N9^2)+(N10^2)+(N11^2)+(N12^2))","v":22},{"$f":"O9+O10+O11+O12","v":0},{"$f":"SQRT((P9^2)+(P10^2)+(P11^2)+(P12^2))","v":22},{"$f":"Q9+Q10+Q11+Q12","v":0},{"$f":"SQRT((R9^2)+(R10^2)+(R11^2)+(R12^2))","v":22},{"$f":"S9+S10+S11+S12","v":0},{"$f":"SQRT((T9^2)+(T10^2)+(T11^2)+(T12^2))","v":22},{"$f":"U9+U10+U11+U12","v":0},{"$f":"SQRT((V9^2)+(V10^2)+(V11^2)+(V12^2))","v":22},{"$f":"W9+W10+W11+W12","v":0},{"$f":"SQRT((X9^2)+(X10^2)+(X11^2)+(X12^2))","v":22},{"$f":"Y9+Y10+Y11+Y12","v":0},{"$f":"SQRT((Z9^2)+(Z10^2)+(Z11^2)+(Z12^2))","v":22},{"$f":"AA9+AA10+AA11+AA12","v":0},{"$f":"SQRT((AB9^2)+(AB10^2)+(AB11^2)+(AB12^2))","v":22},{"$f":"AC9+AC10+AC11+AC12","v":0},{"$f":"SQRT((AD9^2)+(AD10^2)+(AD11^2)+(AD12^2))","v":22},{"$f":"AE9+AE10+AE11+AE12","v":3},{"$f":"SQRT((AF9^2)+(AF10^2)+(AF11^2)+(AF12^2))","v":19.467922333931785},{"$f":"AG9+AG10+AG11+AG12","v":0},{"$f":"SQRT((AH9^2)+(AH10^2)+(AH11^2)+(AH12^2))","v":22},{"$f":"AI9+AI10+AI11+AI12","v":0},{"$f":"SQRT((AJ9^2)+(AJ10^2)+(AJ11^2)+(AJ12^2))","v":22},{"$f":"AK9+AK10+AK11+AK12","v":0},{"$f":"SQRT((AL9^2)+(AL10^2)+(AL11^2)+(AL12^2))","v":32},{"$f":"AM9+AM10+AM11+AM12","v":0},{"$f":"SQRT((AN9^2)+(AN10^2)+(AN11^2)+(AN12^2))","v":32}]
[null,"35.0 percent or more",{"$f":"C13+C14++C15","v":0},{"$f":"SQRT((D13^2)+(D14^2)+(D15^2))","v":19.05255888325765},{"$f":"E13+E14++E15","v":0},{"$f":"SQRT((F13^2)+(F14^2)+(F15^2))","v":19.05255888325765},{"$f":"G13+G14++G15","v":0},{"$f":"SQRT((H13^2)+(H14^2)+(H15^2))","v":19.05255888325765},{"$f":"I13+I14++I15","v":0},{"$f":"SQRT((J13^2)+(J14^2)+(J15^2))","v":19.05255888325765},{"$f":"K13+K14++K15","v":230},{"$f":"SQRT((L13^2)+(L14^2)+(L15^2))","v":110.95945205344158},{"$f":"M13+M14++M15","v":0},{"$f":"SQRT((N13^2)+(N14^2)+(N15^2))","v":19.05255888325765},{"$f":"O13+O14++O15","v":0},{"$f":"SQRT((P13^2)+(P14^2)+(P15^2))","v":19.05255888325765},{"$f":"Q13+Q14++Q15","v":0},{"$f":"SQRT((R13^2)+(R14^2)+(R15^2))","v":19.05255888325765},{"$f":"S13+S14++S15","v":0},{"$f":"SQRT((T13^2)+(T14^2)+(T15^2))","v":19.05255888325765},{"$f":"U13+U14++U15","v":0},{"$f":"SQRT((V13^2)+(V14^2)+(V15^2))","v":19.05255888325765},{"$f":"W13+W14++W15","v":0},{"$f":"SQRT((X13^2)+(X14^2)+(X15^2))","v":19.05255888325765},{"$f":"Y13+Y14++Y15","v":0},{"$f":"SQRT((Z13^2)+(Z14^2)+(Z15^2))","v":19.05255888325765},{"$f":"AA13+AA14++AA15","v":0},{"$f":"SQRT((AB13^2)+(AB14^2)+(AB15^2))","v":19.05255888325765},{"$f":"AC13+AC14++AC15","v":78},{"$f":"SQRT((AD13^2)+(AD14^2)+(AD15^2))","v":59.084684986889791},{"$f":"AE13+AE14++AE15","v":0},{"$f":"SQRT((AF13^2)+(AF14^2)+(AF15^2))","v":19.05255888325765},{"$f":"AG13+AG14++AG15","v":52},{"$f":"SQRT((AH13^2)+(AH14^2)+(AH15^2))","v":75.617458301638251},{"$f":"AI13+AI14++AI15","v":0},{"$f":"SQRT((AJ13^2)+(AJ14^2)+(AJ15^2))","v":19.05255888325765},{"$f":"AK13+AK14++AK15","v":0},{"$f":"SQRT((AL13^2)+(AL14^2)+(AL15^2))","v":27.712812921102035},{"$f":"AM13+AM14++AM15","v":0},{"$f":"SQRT((AN13^2)+(AN14^2)+(AN15^2))","v":27.712812921102035}]
[null,"50.0 percent or more",{"$f":"C15","v":0},11,0,11,0,11,0,11,230,108,0,11,0,11,0,11,0,11,0,11,0,11,0,11,0,11,78,57,0,11,52,74,0,11,0,16,0,16]
[null,"Not Computed",{"$f":"C16","v":0},11,64,72,0,11,0,11,14,26,0,11,4,6,0,11,0,11,0,11,10,16,0,11,8,12,13,22,0,11,0,11,0,11,0,16,0,16]
[null,"$10,000 to $19,999:",{"$f":"C17","v":4},7,63,58,0,11,0,11,189,106,6,6,19,14,4,5,0,11,0,11,11,18,15,21,51,40,34,57,0,11,77,81,0,11,0,16,170,156]
[null,"Less than 30.0 percent",{"$f":"C18+C19+C20","v":0},{"$f":"SQRT((D18^2)+(D19^2)+(D20^2))","v":19.05255888325765},{"$f":"E18+E19+E20","v":0},{"$f":"SQRT((F18^2)+(F19^2)+(F20^2))","v":19.05255888325765},{"$f":"G18+G19+G20","v":0},{"$f":"SQRT((H18^2)+(H19^2)+(H20^2))","v":19.05255888325765},{"$f":"I18+I19+I20","v":0},{"$f":"SQRT((J18^2)+(J19^2)+(J20^2))","v":19.05255888325765},{"$f":"K18+K19+K20","v":35},{"$f":"SQRT((L18^2)+(L19^2)+(L20^2))","v":41.809089920733747},{"$f":"M18+M19+M20","v":0},{"$f":"SQRT((N18^2)+(N19^2)+(N20^2))","v":19.05255888325765},{"$f":"O18+O19+O20","v":0},{"$f":"SQRT((P18^2)+(P19^2)+(P20^2))","v":19.05255888325765},{"$f":"Q18+Q19+Q20","v":0},{"$f":"SQRT((R18^2)+(R19^2)+(R20^2))","v":19.05255888325765},{"$f":"S18+S19+S20","v":0},{"$f":"SQRT((T18^2)+(T19^2)+(T20^2))","v":19.05255888325765},{"$f":"U18+U19+U20","v":0},{"$f":"SQRT((V18^2)+(V19^2)+(V20^2))","v":19.05255888325765},{"$f":"W18+W19+W20","v":0},{"$f":"SQRT((X18^2)+(X19^2)+(X20^2))","v":19.05255888325765},{"$f":"Y18+Y19+Y20","v":0},{"$f":"SQRT((Z18^2)+(Z19^2)+(Z20^2))","v":19.05255888325765},{"$f":"AA18+AA19+AA20","v":0},{"$f":"SQRT((AB18^2)+(AB19^2)+(AB20^2))","v":19.05255888325765},{"$f":"AC18+AC19+AC20","v":34},{"$f":"SQRT((AD18^2)+(AD19^2)+(AD20^2))","v":59.084684986889791},{"$f":"AE18+AE19+AE20","v":0},{"$f":"SQRT((AF18^2)+(AF19^2)+(AF20^2))","v":19.05255888325765},{"$f":"AG18+AG19+AG20","v":28},{"$f":"SQRT((AH18^2)+(AH19^2)+(AH20^2))","v":31.080540535840107},{"$f":"AI18+AI19+AI20","v":0},{"$f":"SQRT((AJ18^2)+(AJ19^2)+(AJ20^2))","v":19.05255888325765},{"$f":"AK18+AK19+AK20","v":0},{"$f":"SQRT((AL18^2)+(AL19^2)+(AL20^2))","v":27.712812921102035},{"$f":"AM18+AM19+AM20","v":0},{"$f":"SQRT((AN18^2)+(AN19^2)+(AN20^2))","v":27.712812921102035}]
[null,"More than 30.0 percent",{"$f":"C21+C22+C23+C24","v":2},{"$f":"SQRT((D21^2)+(D22^2)+(D23^2)+(D24^2))","v":19.697715603592208},{"$f":"E21+E22+E23+E24","v":39},{"$f":"SQRT((F21^2)+(F22^2)+(F23^2)+(F24^2))","v":46.94677837722201},{"$f":"G21+G22+G23+G24","v":0},{"$f":"SQRT((H21^2)+(H22^2)+(H23^2)+(H24^2))","v":22},{"$f":"I21+I22+I23+I24","v":0},{"$f":"SQRT((J21^2)+(J22^2)+(J23^2)+(J24^2))","v":22},{"$f":"K21+K22+K23+K24","v":122},{"$f":"SQRT((L21^2)+(L22^2)+(L23^2)+(L24^2))","v":96.56086163658648},{"$f":"M21+M22+M23+M24","v":4},{"$f":"SQRT((N21^2)+(N22^2)+(N23^2)+(N24^2))","v":20.297783130184438},{"$f":"O21+O22+O23+O24","v":19},{"$f":"SQRT((P21^2)+(P22^2)+(P23^2)+(P24^2))","v":23.643180835073778},{"$f":"Q21+Q22+Q23+Q24","v":0},{"$f":"SQRT((R21^2)+(R22^2)+(R23^2)+(R24^2))","v":22},{"$f":"S21+S22+S23+S24","v":0},{"$f":"SQRT((T21^2)+(T22^2)+(T23^2)+(T24^2))","v":22},{"$f":"U21+U22+U23+U24","v":0},{"$f":"SQRT((V21^2)+(V22^2)+(V23^2)+(V24^2))","v":22},{"$f":"W21+W22+W23+W24","v":11},{"$f":"SQRT((X21^2)+(X22^2)+(X23^2)+(X24^2))","v":26.210684844162312},{"$f":"Y21+Y22+Y23+Y24","v":15},{"$f":"SQRT((Z21^2)+(Z22^2)+(Z23^2)+(Z24^2))","v":28.354893757515651},{"$f":"AA21+AA22+AA23+AA24","v":30},{"$f":"SQRT((AB21^2)+(AB22^2)+(AB23^2)+(AB24^2))","v":30.659419433511783},{"$f":"AC21+AC22+AC23+AC24","v":0},{"$f":"SQRT((AD21^2)+(AD22^2)+(AD23^2)+(AD24^2))","v":22},{"$f":"AE21+AE22+AE23+AE24","v":0},{"$f":"SQRT((AF21^2)+(AF22^2)+(AF23^2)+(AF24^2))","v":22},{"$f":"AG21+AG22+AG23+AG24","v":49},{"$f":"SQRT((AH21^2)+(AH22^2)+(AH23^2)+(AH24^2))","v":79.32212806020776},{"$f":"AI21+AI22+AI23+AI24","v":0},{"$f":"SQRT((AJ21^2)+(AJ22^2)+(AJ23^2)+(AJ24^2))","v":22},{"$f":"AK21+AK22+AK23+AK24","v":0},{"$f":"SQRT((AL21^2)+(AL22^2)+(AL23^2)+(AL24^2))","v":32},{"$f":"AM21+AM22+AM23+AM24","v":154},{"$f":"SQRT((AN21^2)+(AN22^2)+(AN23^2)+(AN24^2))","v":159.46472964263916}]
[null,"Less Than 35% of HH Income",{"$f":"C18+C19+C20+C21","v":0},{"$f":"SQRT((D18^2)+(D19^2)+(D20^2)+(D21^2))","v":22},{"$f":"E18+E19+E20+E21","v":0},{"$f":"SQRT((F18^2)+(F19^2)+(F20^2)+(F21^2))","v":22},{"$f":"G18+G19+G20+G21","v":0},{"$f":"SQRT((H18^2)+(H19^2)+(H20^2)+(H21^2))","v":22},{"$f":"I18+I19+I20+I21","v":0},{"$f":"SQRT((J18^2)+(J19^2)+(J20^2)+(J21^2))","v":22},{"$f":"K18+K19+K20+K21","v":35},{"$f":"SQRT((L18^2)+(L19^2)+(L20^2)+(L21^2))","v":45.519226706964169},{"$f":"M18+M19+M20+M21","v":0},{"$f":"SQRT((N18^2)+(N19^2)+(N20^2)+(N21^2))","v":22},{"$f":"O18+O19+O20+O21","v":0},{"$f":"SQRT((P18^2)+(P19^2)+(P20^2)+(P21^2))","v":22},{"$f":"Q18+Q19+Q20+Q21","v":0},{"$f":"SQRT((R18^2)+(R19^2)+(R20^2)+(R21^2))","v":22},{"$f":"S18+S19+S20+S21","v":0},{"$f":"SQRT((T18^2)+(T19^2)+(T20^2)+(T21^2))","v":22},{"$f":"U18+U19+U20+U21","v":0},{"$f":"SQRT((V18^2)+(V19^2)+(V20^2)+(V21^2))","v":22},{"$f":"W18+W19+W20+W21","v":0},{"$f":"SQRT((X18^2)+(X19^2)+(X20^2)+(X21^2))","v":22},{"$f":"Y18+Y19+Y20+Y21","v":0},{"$f":"SQRT((Z18^2)+(Z19^2)+(Z20^2)+(Z21^2))","v":22},{"$f":"AA18+AA19+AA20+AA21","v":0},{"$f":"SQRT((AB18^2)+(AB19^2)+(AB20^2)+(AB21^2))","v":22},{"$f":"AC18+AC19+AC20+AC21","v":34},{"$f":"SQRT((AD18^2)+(AD19^2)+(AD20^2)+(AD21^2))","v":60.099916805266879},{"$f":"AE18+AE19+AE20+AE21","v":0},{"$f":"SQRT((AF18^2)+(AF19^2)+(AF20^2)+(AF21^2))","v":22},{"$f":"AG18+AG19+AG20+AG21","v":28},{"$f":"SQRT((AH18^2)+(AH19^2)+(AH20^2)+(AH21^2))","v":32.969683043669072},{"$f":"AI18+AI19+AI20+AI21","v":0},{"$f":"SQRT((AJ18^2)+(AJ19^2)+(AJ20^2)+(AJ21^2))","v":22},{"$f":"AK18+AK19+AK20+AK21","v":0},{"$f":"SQRT((AL18^2)+(AL19^2)+(AL20^2)+(AL21^2))","v":32},{"$f":"AM18+AM19+AM20+AM21","v":0},{"$f":"SQRT((AN18^2)+(AN19^2)+(AN20^2)+(AN21^2))","v":32}]
[null,"35.0 percent or more",{"$f":"C22+C23++C24","v":2},{"$f":"SQRT((D22^2)+(D23^2)+(D24^2))","v":16.340134638368191},{"$f":"E22+E23++E24","v":39},{"$f":"SQRT((F22^2)+(F23^2)+(F24^2))","v":45.639894828976104},{"$f":"G22+G23++G24","v":0},{"$f":"SQRT((H22^2)+(H23^2)+(H24^2))","v":19.05255888325765},{"$f":"I22+I23++I24","v":0},{"$f":"SQRT((J22^2)+(J23^2)+(J24^2))","v":19.05255888325765},{"$f":"K22+K23++K24","v":122},{"$f":"SQRT((L22^2)+(L23^2)+(L24^2))","v":94.868329805051374},{"$f":"M22+M23++M24","v":4},{"$f":"SQRT((N22^2)+(N23^2)+(N24^2))","v":17.058722109231979},{"$f":"O22+O23++O24","v":19},{"$f":"SQRT((P22^2)+(P23^2)+(P24^2))","v":20.928449536456348},{"$f":"Q22+Q23++Q24","v":0},{"$f":"SQRT((R22^2)+(R23^2)+(R24^2))","v":19.05255888325765},{"$f":"S22+S23++S24","v":0},{"$f":"SQRT((T22^2)+(T23^2)+(T24^2))","v":19.05255888325765},{"$f":"U22+U23++U24","v":0},{"$f":"SQRT((V22^2)+(V23^2)+(V24^2))","v":19.05255888325765},{"$f":"W22+W23++W24","v":11},{"$f":"SQRT((X22^2)+(X23^2)+(X24^2))","v":23.790754506740637},{"$f":"Y22+Y23++Y24","v":15},{"$f":"SQRT((Z22^2)+(Z23^2)+(Z24^2))","v":26.134268690743959},{"$f":"AA22+AA23++AA24","v":30},{"$f":"SQRT((AB22^2)+(AB23^2)+(AB24^2))","v":28.61817604250837},{"$f":"AC22+AC23++AC24","v":0},{"$f":"SQRT((AD22^2)+(AD23^2)+(AD24^2))","v":19.05255888325765},{"$f":"AE22+AE23++AE24","v":0},{"$f":"SQRT((AF22^2)+(AF23^2)+(AF24^2))","v":19.05255888325765},{"$f":"AG22+AG23++AG24","v":49},{"$f":"SQRT((AH22^2)+(AH23^2)+(AH24^2))","v":78.555712713971346},{"$f":"AI22+AI23++AI24","v":0},{"$f":"SQRT((AJ22^2)+(AJ23^2)+(AJ24^2))","v":19.05255888325765},{"$f":"AK22+AK23++AK24","v":0},{"$f":"SQRT((AL22^2)+(AL23^2)+(AL24^2))","v":27.712812921102035},{"$f":"AM22+AM23++AM24","v":154},{"$f":"SQRT((AN22^2)+(AN23^2)+(AN24^2))","v":158.66001386612822}]
[null,"50.0 percent or more",{"$f":"C24","v":2},{"$f":"D24","v":5},{"$f":"E24","v":24},39,{"$f":"G24","v":0},11,{"$f":"I24","v":0},11,{"$f":"K24","v":107},90,{"$f":"M24","v":4},7,{"$f":"O24","v":19},14,{"$f":"Q24","v":0},11,{"$f":"S24","v":0},11,{"$f":"U24","v":0},11,{"$f":"W24","v":11},18,{"$f":"Y24","v":15},21,{"$f":"AA24","v":21},23,{"$f":"AC24","v":0},11,{"$f":"AE24","v":0},11,{"$f":"AG24","v":49},77,{"$f":"AI24","v":0},11,{"$f":"AK24","v":0},16,{"$f":"AM24","v":126},151]
[null,"Not Computed",{"$f":"C25","v":2},4,24,38,0,11,0,11,32,51,2,4,0,11,4,5,0,11,0,11,0,11,0,11,21,33,0,11,0,11,0,11,0,11,0,16,16,25]
[null,"$20,000 to $34,999:",14,12,55,61,6,11,11,14,268,170,9,10,35,28,4,7,0,11,0,11,0,11,44,34,32,39,155,102,18,19,138,96,15,16,63,79,243,156]
[null,"Less than 30.0 percent",{"$f":"C27+C28+C29","v":2},{"$f":"SQRT((D27^2)+(D28^2)+(D29^2))","v":16.06237840420901},{"$f":"E27+E28+E29","v":16},{"$f":"SQRT((F27^2)+(F28^2)+(F29^2))","v":29.444863728670914},{"$f":"G27+G28+G29","v":0},{"$f":"SQRT((H27^2)+(H28^2)+(H29^2))","v":19.05255888325765},{"$f":"I27+I28+I29","v":0},{"$f":"SQRT((J27^2)+(J28^2)+(J29^2))","v":19.05255888325765},{"$f":"K27+K28+K29","v":93},{"$f":"SQRT((L27^2)+(L28^2)+(L29^2))","v":115.94826432508596},{"$f":"M27+M28+M29","v":2},{"$f":"SQRT((N27^2)+(N28^2)+(N29^2))","v":15.842979517754859},{"$f":"O27+O28+O29","v":0},{"$f":"SQRT((P27^2)+(P28^2)+(P29^2))","v":19.05255888325765},{"$f":"Q27+Q28+Q29","v":0},{"$f":"SQRT((R27^2)+(R28^2)+(R29^2))","v":19.05255888325765},{"$f":"S27+S28+S29","v":0},{"$f":"SQRT((T27^2)+(T28^2)+(T29^2))","v":19.05255888325765},{"$f":"U27+U28+U29","v":0},{"$f":"SQRT((V27^2)+(V28^2)+(V29^2))","v":19.05255888325765},{"$f":"W27+W28+W29","v":0},{"$f":"SQRT((X27^2)+(X28^2)+(X29^2))","v":19.05255888325765},{"$f":"Y27+Y28+Y29","v":17},{"$f":"SQRT((Z27^2)+(Z28^2)+(Z29^2))","v":32.03123475609393},{"$f":"AA27+AA28+AA29","v":9},{"$f":"SQRT((AB27^2)+(AB28^2)+(AB29^2))","v":21.61018278497431},{"$f":"AC27+AC28+AC29","v":60},{"$f":"SQRT((AD27^2)+(AD28^2)+(AD29^2))","v":70.178344238091},{"$f":"AE27+AE28+AE29","v":4},{"$f":"SQRT((AF27^2)+(AF28^2)+(AF29^2))","v":13.076696830622021},{"$f":"AG27+AG28+AG29","v":13},{"$f":"SQRT((AH27^2)+(AH28^2)+(AH29^2))","v":24.556058315617349},{"$f":"AI27+AI28+AI29","v":8},{"$f":"SQRT((AJ27^2)+(AJ28^2)+(AJ29^2))","v":19.646882704388499},{"$f":"AK27+AK28+AK29","v":0},{"$f":"SQRT((AL27^2)+(AL28^2)+(AL29^2))","v":27.712812921102035},{"$f":"AM27+AM28+AM29","v":123},{"$f":"SQRT((AN27^2)+(AN28^2)+(AN29^2))","v":118.18629362155326}]
[null,"More than 30.0 percent",{"$f":"C30+C31+C32+C33","v":9},{"$f":"SQRT((D30^2)+(D31^2)+(D32^2)+(D33^2))","v":21.517434791350013},{"$f":"E30+E31+E32+E33","v":28},{"$f":"SQRT((F30^2)+(F31^2)+(F32^2)+(F33^2))","v":47.947888378947411},{"$f":"G30+G31+G32+G33","v":6},{"$f":"SQRT((H30^2)+(H31^2)+(H32^2)+(H33^2))","v":22},{"$f":"I30+I31+I32+I33","v":11},{"$f":"SQRT((J30^2)+(J31^2)+(J32^2)+(J33^2))","v":21.071307505705477},{"$f":"K30+K31+K32+K33","v":175},{"$f":"SQRT((L30^2)+(L31^2)+(L32^2)+(L33^2))","v":110.33585092797354},{"$f":"M30+M31+M32+M33","v":7},{"$f":"SQRT((N30^2)+(N31^2)+(N32^2)+(N33^2))","v":18.411952639521967},{"$f":"O30+O31+O32+O33","v":13},{"$f":"SQRT((P30^2)+(P31^2)+(P32^2)+(P33^2))","v":22.181073012818835},{"$f":"Q30+Q31+Q32+Q33","v":4},{"$f":"SQRT((R30^2)+(R31^2)+(R32^2)+(R33^2))","v":20.297783130184438},{"$f":"S30+S31+S32+S33","v":0},{"$f":"SQRT((T30^2)+(T31^2)+(T32^2)+(T33^2))","v":22},{"$f":"U30+U31+U32+U33","v":0},{"$f":"SQRT((V30^2)+(V31^2)+(V32^2)+(V33^2))","v":22},{"$f":"W30+W31+W32+W33","v":0},{"$f":"SQRT((X30^2)+(X31^2)+(X32^2)+(X33^2))","v":22},{"$f":"Y30+Y31+Y32+Y33","v":27},{"$f":"SQRT((Z30^2)+(Z31^2)+(Z32^2)+(Z33^2))","v":28.89636655359978},{"$f":"AA30+AA31+AA32+AA33","v":0},{"$f":"SQRT((AB30^2)+(AB31^2)+(AB32^2)+(AB33^2))","v":22},{"$f":"AC30+AC31+AC32+AC33","v":79},{"$f":"SQRT((AD30^2)+(AD31^2)+(AD32^2)+(AD33^2))","v":71.714712576987992},{"$f":"AE30+AE31+AE32+AE33","v":11},{"$f":"SQRT((AF30^2)+(AF31^2)+(AF32^2)+(AF33^2))","v":25.534290669607408},{"$f":"AG30+AG31+AG32+AG33","v":125},{"$f":"SQRT((AH30^2)+(AH31^2)+(AH32^2)+(AH33^2))","v":109.23369443537099},{"$f":"AI30+AI31+AI32+AI33","v":0},{"$f":"SQRT((AJ30^2)+(AJ31^2)+(AJ32^2)+(AJ33^2))","v":22},{"$f":"AK30+AK31+AK32+AK33","v":63},{"$f":"SQRT((AL30^2)+(AL31^2)+(AL32^2)+(AL33^2))","v":82.957820607824559},{"$f":"AM30+AM31+AM32+AM33","v":120},{"$f":"SQRT((AN30^2)+(AN31^2)+(AN32^2)+(AN33^2))","v":108.76580344942982}]
[null,"Less Than 35% of HH Income",{"$f":"C27+C28+C29+C30","v":11},{"$f":"SQRT((D27^2)+(D28^2)+(D29^2)+(D30^2))","v":18.920887928424502},{"$f":"E27+E28+E29+E30","v":16},{"$f":"SQRT((F27^2)+(F28^2)+(F29^2)+(F30^2))","v":31.432467291003423},{"$f":"G27+G28+G29+G30","v":0},{"$f":"SQRT((H27^2)+(H28^2)+(H29^2)+(H30^2))","v":22},{"$f":"I27+I28+I29+I30","v":6},{"$f":"SQRT((J27^2)+(J28^2)+(J29^2)+(J30^2))","v":22},{"$f":"K27+K28+K29+K30","v":125},{"$f":"SQRT((L27^2)+(L28^2)+(L29^2)+(L30^2))","v":121.1156472137271},{"$f":"M27+M28+M29+M30","v":2},{"$f":"SQRT((N27^2)+(N28^2)+(N29^2)+(N30^2))","v":19.28730152198591},{"$f":"O27+O28+O29+O30","v":0},{"$f":"SQRT((P27^2)+(P28^2)+(P29^2)+(P30^2))","v":22},{"$f":"Q27+Q28+Q29+Q30","v":0},{"$f":"SQRT((R27^2)+(R28^2)+(R29^2)+(R30^2))","v":22},{"$f":"S27+S28+S29+S30","v":0},{"$f":"SQRT((T27^2)+(T28^2)+(T29^2)+(T30^2))","v":22},{"$f":"U27+U28+U29+U30","v":0},{"$f":"SQRT((V27^2)+(V28^2)+(V29^2)+(V30^2))","v":22},{"$f":"W27+W28+W29+W30","v":0},{"$f":"SQRT((X27^2)+(X28^2)+(X29^2)+(X30^2))","v":22},{"$f":"Y27+Y28+Y29+Y30","v":17},{"$f":"SQRT((Z27^2)+(Z28^2)+(Z29^2)+(Z30^2))","v":33.867388443752198},{"$f":"AA27+AA28+AA29+AA30","v":9},{"$f":"SQRT((AB27^2)+(AB28^2)+(AB29^2)+(AB30^2))","v":24.248711305964282},{"$f":"AC27+AC28+AC29+AC30","v":60},{"$f":"SQRT((AD27^2)+(AD28^2)+(AD29^2)+(AD30^2))","v":71.035202540712163},{"$f":"AE27+AE28+AE29+AE30","v":4},{"$f":"SQRT((AF27^2)+(AF28^2)+(AF29^2)+(AF30^2))","v":17.088007490635061},{"$f":"AG27+AG28+AG29+AG30","v":106},{"$f":"SQRT((AH27^2)+(AH28^2)+(AH29^2)+(AH30^2))","v":105.88673193559238},{"$f":"AI27+AI28+AI29+AI30","v":8},{"$f":"SQRT((AJ27^2)+(AJ28^2)+(AJ29^2)+(AJ30^2))","v":22.516660498395403},{"$f":"AK27+AK28+AK29+AK30","v":0},{"$f":"SQRT((AL27^2)+(AL28^2)+(AL29^2)+(AL30^2))","v":32},{"$f":"AM27+AM28+AM29+AM30","v":140},{"$f":"SQRT((AN27^2)+(AN28^2)+(AN29^2)+(AN30^2))","v":121.2311841070605}]
[null,"35.0 percent or more",{"$f":"C31+C32+C33","v":0},{"$f":"SQRT((D31^2)+(D32^2)+(D33^2))","v":19.05255888325765},{"$f":"E31+E32+E33","v":28},{"$f":"SQRT((F31^2)+(F32^2)+(F33^2))","v":46.669047558312137},{"$f":"G31+G32+G33","v":6},{"$f":"SQRT((H31^2)+(H32^2)+(H33^2))","v":19.05255888325765},{"$f":"I31+I32+I33","v":5},{"$f":"SQRT((J31^2)+(J32^2)+(J33^2))","v":17.972200755611428},{"$f":"K31+K32+K33","v":143},{"$f":"SQRT((L31^2)+(L32^2)+(L33^2))","v":104.63746938836012},{"$f":"M31+M32+M33","v":7},{"$f":"SQRT((N31^2)+(N32^2)+(N33^2))","v":14.7648230602334},{"$f":"O31+O32+O33","v":13},{"$f":"SQRT((P31^2)+(P32^2)+(P33^2))","v":19.261360284258224},{"$f":"Q31+Q32+Q33","v":4},{"$f":"SQRT((R31^2)+(R32^2)+(R33^2))","v":17.058722109231979},{"$f":"S31+S32+S33","v":0},{"$f":"SQRT((T31^2)+(T32^2)+(T33^2))","v":19.05255888325765},{"$f":"U31+U32+U33","v":0},{"$f":"SQRT((V31^2)+(V32^2)+(V33^2))","v":19.05255888325765},{"$f":"W31+W32+W33","v":0},{"$f":"SQRT((X31^2)+(X32^2)+(X33^2))","v":19.05255888325765},{"$f":"Y31+Y32+Y33","v":27},{"$f":"SQRT((Z31^2)+(Z32^2)+(Z33^2))","v":26.720778431774775},{"$f":"AA31+AA32+AA33","v":0},{"$f":"SQRT((AB31^2)+(AB32^2)+(AB33^2))","v":19.05255888325765},{"$f":"AC31+AC32+AC33","v":79},{"$f":"SQRT((AD31^2)+(AD32^2)+(AD33^2))","v":70.866070866106298},{"$f":"AE31+AE32+AE33","v":11},{"$f":"SQRT((AF31^2)+(AF32^2)+(AF33^2))","v":23.043437243605826},{"$f":"AG31+AG32+AG33","v":32},{"$f":"SQRT((AH31^2)+(AH32^2)+(AH33^2))","v":36.373066958946424},{"$f":"AI31+AI32+AI33","v":0},{"$f":"SQRT((AJ31^2)+(AJ32^2)+(AJ33^2))","v":19.05255888325765},{"$f":"AK31+AK32+AK33","v":63},{"$f":"SQRT((AL31^2)+(AL32^2)+(AL33^2))","v":81.400245699874887},{"$f":"AM31+AM32+AM33","v":103},{"$f":"SQRT((AN31^2)+(AN32^2)+(AN33^2))","v":105.3612832116238}]
[null,"50.0 percent or more",{"$f":"C33","v":0},11,0,11,6,11,0,11,16,25,0,11,0,11,0,11,0,11,0,11,0,11,4,8,0,11,0,11,11,17,13,19,0,11,0,16,0,16]
[null,"Not Computed",3,5,11,16,0,11,0,11,0,18,0,11,22,24,0,11,0,11,0,11,0,11,0,11,23,37,16,25,3,4,0,11,7,11,0,16,0,16]
[null,"$35,000 to $49,999:",12,14,111,92,0,11,0,11,66,59,1,4,0,11,0,11,0,11,0,11,43,40,7,9,37,35,66,58,10,12,0,11,6,10,110,78,111,111]
[null,"Less than 30.0 percent",{"$f":"C36+C37+C38","v":8},{"$f":"SQRT((D36^2)+(D37^2)+(D38^2))","v":19.646882704388499},{"$f":"E36+E37+E38","v":74},{"$f":"SQRT((F36^2)+(F37^2)+(F38^2))","v":73.082145562373853},{"$f":"G36+G37+G38","v":0},{"$f":"SQRT((H36^2)+(H37^2)+(H38^2))","v":19.05255888325765},{"$f":"I36+I37+I38","v":0},{"$f":"SQRT((J36^2)+(J37^2)+(J38^2))","v":19.05255888325765},{"$f":"K36+K37+K38","v":11},{"$f":"SQRT((L36^2)+(L37^2)+(L38^2))","v":31.176914536239792},{"$f":"M36+M37+M38","v":1},{"$f":"SQRT((N36^2)+(N37^2)+(N38^2))","v":16.06237840420901},{"$f":"O36+O37+O38","v":0},{"$f":"SQRT((P36^2)+(P37^2)+(P38^2))","v":19.05255888325765},{"$f":"Q36+Q37+Q38","v":0},{"$f":"SQRT((R36^2)+(R37^2)+(R38^2))","v":19.05255888325765},{"$f":"S36+S37+S38","v":0},{"$f":"SQRT((T36^2)+(T37^2)+(T38^2))","v":19.05255888325765},{"$f":"U36+U37+U38","v":0},{"$f":"SQRT((V36^2)+(V37^2)+(V38^2))","v":19.05255888325765},{"$f":"W36+W37+W38","v":18},{"$f":"SQRT((X36^2)+(X37^2)+(X38^2))","v":26.134268690743959},{"$f":"Y36+Y37+Y38","v":0},{"$f":"SQRT((Z36^2)+(Z37^2)+(Z38^2))","v":19.05255888325765},{"$f":"AA36+AA37+AA38","v":0},{"$f":"SQRT((AB36^2)+(AB37^2)+(AB38^2))","v":19.05255888325765},{"$f":"AC36+AC37+AC38","v":44},{"$f":"SQRT((AD36^2)+(AD37^2)+(AD38^2))","v":55.190578906186516},{"$f":"AE36+AE37+AE38","v":0},{"$f":"SQRT((AF36^2)+(AF37^2)+(AF38^2))","v":19.05255888325765},{"$f":"AG36+AG37+AG38","v":0},{"$f":"SQRT((AH36^2)+(AH37^2)+(AH38^2))","v":19.05255888325765},{"$f":"AI36+AI37+AI38","v":0},{"$f":"SQRT((AJ36^2)+(AJ37^2)+(AJ38^2))","v":19.05255888325765},{"$f":"AK36+AK37+AK38","v":35},{"$f":"SQRT((AL36^2)+(AL37^2)+(AL38^2))","v":46.82947789587238},{"$f":"AM36+AM37+AM38","v":0},{"$f":"SQRT((AN36^2)+(AN37^2)+(AN38^2))","v":27.712812921102035}]
[null,"More than 30.0 percent",{"$f":"C39+C40+C41+C42","v":4},{"$f":"SQRT((D39^2)+(D40^2)+(D41^2)+(D42^2))","v":19.974984355438178},{"$f":"E39+E40+E41+E42","v":0},{"$f":"SQRT((F39^2)+(F40^2)+(F41^2)+(F42^2))","v":22},{"$f":"G39+G40+G41+G42","v":0},{"$f":"SQRT((H39^2)+(H40^2)+(H41^2)+(H42^2))","v":22},{"$f":"I39+I40+I41+I42","v":0},{"$f":"SQRT((J39^2)+(J40^2)+(J41^2)+(J42^2))","v":22},{"$f":"K39+K40+K41+K42","v":55},{"$f":"SQRT((L39^2)+(L40^2)+(L41^2)+(L42^2))","v":61.789966823101629},{"$f":"M39+M40+M41+M42","v":0},{"$f":"SQRT((N39^2)+(N40^2)+(N41^2)+(N42^2))","v":22},{"$f":"O39+O40+O41+O42","v":0},{"$f":"SQRT((P39^2)+(P40^2)+(P41^2)+(P42^2))","v":22},{"$f":"Q39+Q40+Q41+Q42","v":0},{"$f":"SQRT((R39^2)+(R40^2)+(R41^2)+(R42^2))","v":22},{"$f":"S39+S40+S41+S42","v":0},{"$f":"SQRT((T39^2)+(T40^2)+(T41^2)+(T42^2))","v":22},{"$f":"U39+U40+U41+U42","v":0},{"$f":"SQRT((V39^2)+(V40^2)+(V41^2)+(V42^2))","v":22},{"$f":"W39+W40+W41+W42","v":25},{"$f":"SQRT((X39^2)+(X40^2)+(X41^2)+(X42^2))","v":37.722672227720032},{"$f":"Y39+Y40+Y41+Y42","v":7},{"$f":"SQRT((Z39^2)+(Z40^2)+(Z41^2)+(Z42^2))","v":21.071307505705477},{"$f":"AA39+AA40+AA41+AA42","v":28},{"$f":"SQRT((AB39^2)+(AB40^2)+(AB41^2)+(AB42^2))","v":35.028559776273987},{"$f":"AC39+AC40+AC41+AC42","v":0},{"$f":"SQRT((AD39^2)+(AD40^2)+(AD41^2)+(AD42^2))","v":22},{"$f":"AE39+AE40+AE41+AE42","v":10},{"$f":"SQRT((AF39^2)+(AF40^2)+(AF41^2)+(AF42^2))","v":19.697715603592208},{"$f":"AG39+AG40+AG41+AG42","v":0},{"$f":"SQRT((AH39^2)+(AH40^2)+(AH41^2)+(AH42^2))","v":22},{"$f":"AI39+AI40+AI41+AI42","v":6},{"$f":"SQRT((AJ39^2)+(AJ40^2)+(AJ41^2)+(AJ42^2))","v":21.517434791350013},{"$f":"AK39+AK40+AK41+AK42","v":75},{"$f":"SQRT((AL39^2)+(AL40^2)+(AL41^2)+(AL42^2))","v":83.719770663804383},{"$f":"AM39+AM40+AM41+AM42","v":111},{"$f":"SQRT((AN39^2)+(AN40^2)+(AN41^2)+(AN42^2))","v":112.02231920470135}]
[null,"Less Than 35% of HH Income",{"$f":"C36+C37+C38+C39","v":8},{"$f":"SQRT((D36^2)+(D37^2)+(D38^2)+(D39^2))","v":22.516660498395403},{"$f":"E36+E37+E38+E39","v":74},{"$f":"SQRT((F36^2)+(F37^2)+(F38^2)+(F39^2))","v":73.905344867607511},{"$f":"G36+G37+G38+G39","v":0},{"$f":"SQRT((H36^2)+(H37^2)+(H38^2)+(H39^2))","v":22},{"$f":"I36+I37+I38+I39","v":0},{"$f":"SQRT((J36^2)+(J37^2)+(J38^2)+(J39^2))","v":22},{"$f":"K36+K37+K38+K39","v":11},{"$f":"SQRT((L36^2)+(L37^2)+(L38^2)+(L39^2))","v":36},{"$f":"M36+M37+M38+M39","v":1},{"$f":"SQRT((N36^2)+(N37^2)+(N38^2)+(N39^2))","v":19.467922333931785},{"$f":"O36+O37+O38+O39","v":0},{"$f":"SQRT((P36^2)+(P37^2)+(P38^2)+(P39^2))","v":22},{"$f":"Q36+Q37+Q38+Q39","v":0},{"$f":"SQRT((R36^2)+(R37^2)+(R38^2)+(R39^2))","v":22},{"$f":"S36+S37+S38+S39","v":0},{"$f":"SQRT((T36^2)+(T37^2)+(T38^2)+(T39^2))","v":22},{"$f":"U36+U37+U38+U39","v":0},{"$f":"SQRT((V36^2)+(V37^2)+(V38^2)+(V39^2))","v":22},{"$f":"W36+W37+W38+W39","v":18},{"$f":"SQRT((X36^2)+(X37^2)+(X38^2)+(X39^2))","v":28.354893757515651},{"$f":"Y36+Y37+Y38+Y39","v":7},{"$f":"SQRT((Z36^2)+(Z37^2)+(Z38^2)+(Z39^2))","v":21.071307505705477},{"$f":"AA36+AA37+AA38+AA39","v":0},{"$f":"SQRT((AB36^2)+(AB37^2)+(AB38^2)+(AB39^2))","v":22},{"$f":"AC36+AC37+AC38+AC39","v":44},{"$f":"SQRT((AD36^2)+(AD37^2)+(AD38^2)+(AD39^2))","v":56.276105053566027},{"$f":"AE36+AE37+AE38+AE39","v":0},{"$f":"SQRT((AF36^2)+(AF37^2)+(AF38^2)+(AF39^2))","v":22},{"$f":"AG36+AG37+AG38+AG39","v":0},{"$f":"SQRT((AH36^2)+(AH37^2)+(AH38^2)+(AH39^2))","v":22},{"$f":"AI36+AI37+AI38+AI39","v":6},{"$f":"SQRT((AJ36^2)+(AJ37^2)+(AJ38^2)+(AJ39^2))","v":21.517434791350013},{"$f":"AK36+AK37+AK38+AK39","v":110},{"$f":"SQRT((AL36^2)+(AL37^2)+(AL38^2)+(AL39^2))","v":91.836811791350854},{"$f":"AM36+AM37+AM38+AM39","v":60},{"$f":"SQRT((AN36^2)+(AN37^2)+(AN38^2)+(AN39^2))","v":79.018985060553646}]
[null,"35.0 percent or more",{"$f":"C40+C41+C42","v":4},{"$f":"SQRT((D40^2)+(D41^2)+(D42^2))","v":16.673332000533065},{"$f":"E40+E41+E42","v":0},{"$f":"SQRT((F40^2)+(F41^2)+(F42^2))","v":19.05255888325765},{"$f":"G40+G41+G42","v":0},{"$f":"SQRT((H40^2)+(H41^2)+(H42^2))","v":19.05255888325765},{"$f":"I40+I41+I42","v":0},{"$f":"SQRT((J40^2)+(J41^2)+(J42^2))","v":19.05255888325765},{"$f":"K40+K41+K42","v":55},{"$f":"SQRT((L40^2)+(L41^2)+(L42^2))","v":59.110066824526598},{"$f":"M40+M41+M42","v":0},{"$f":"SQRT((N40^2)+(N41^2)+(N42^2))","v":19.05255888325765},{"$f":"O40+O41+O42","v":0},{"$f":"SQRT((P40^2)+(P41^2)+(P42^2))","v":19.05255888325765},{"$f":"Q40+Q41+Q42","v":0},{"$f":"SQRT((R40^2)+(R41^2)+(R42^2))","v":19.05255888325765},{"$f":"S40+S41+S42","v":0},{"$f":"SQRT((T40^2)+(T41^2)+(T42^2))","v":19.05255888325765},{"$f":"U40+U41+U42","v":0},{"$f":"SQRT((V40^2)+(V41^2)+(V42^2))","v":19.05255888325765},{"$f":"W40+W41+W42","v":25},{"$f":"SQRT((X40^2)+(X41^2)+(X42^2))","v":36.083237105337432},{"$f":"Y40+Y41+Y42","v":0},{"$f":"SQRT((Z40^2)+(Z41^2)+(Z42^2))","v":19.05255888325765},{"$f":"AA40+AA41+AA42","v":28},{"$f":"SQRT((AB40^2)+(AB41^2)+(AB42^2))","v":33.25657829663178},{"$f":"AC40+AC41+AC42","v":0},{"$f":"SQRT((AD40^2)+(AD41^2)+(AD42^2))","v":19.05255888325765},{"$f":"AE40+AE41+AE42","v":10},{"$f":"SQRT((AF40^2)+(AF41^2)+(AF42^2))","v":16.340134638368191},{"$f":"AG40+AG41+AG42","v":0},{"$f":"SQRT((AH40^2)+(AH41^2)+(AH42^2))","v":19.05255888325765},{"$f":"AI40+AI41+AI42","v":0},{"$f":"SQRT((AJ40^2)+(AJ41^2)+(AJ42^2))","v":19.05255888325765},{"$f":"AK40+AK41+AK42","v":0},{"$f":"SQRT((AL40^2)+(AL41^2)+(AL42^2))","v":27.712812921102035},{"$f":"AM40+AM41+AM42","v":51},{"$f":"SQRT((AN40^2)+(AN41^2)+(AN42^2))","v":84.10112960002381}]
[null,"50.0 percent or more",{"$f":"C42","v":0},{"$f":"D42","v":11},{"$f":"E42","v":0},11,{"$f":"G42","v":0},11,{"$f":"I42","v":0},11,{"$f":"K42","v":0},18,{"$f":"M42","v":0},11,{"$f":"O42","v":0},11,{"$f":"Q42","v":0},11,{"$f":"S42","v":0},11,{"$f":"U42","v":0},11,{"$f":"W42","v":4},5,{"$f":"Y42","v":0},11,{"$f":"AA42","v":18},27,{"$f":"AC42","v":0},11,{"$f":"AE42","v":7},11,{"$f":"AG42","v":0},11,{"$f":"AI42","v":0},11,{"$f":"AK42","v":0},16,{"$f":"AM42","v":0},16]
[null,"Not Computed",{"$f":"C43","v":0},11,{"$f":"E43","v":37},55,{"$f":"G43","v":0},11,{"$f":"I43","v":0},11,{"$f":"K43","v":0},18,{"$f":"M43","v":0},11,{"$f":"O43","v":0},11,{"$f":"Q43","v":0},11,{"$f":"S43","v":0},11,{"$f":"U43","v":0},11,{"$f":"W43","v":0},11,{"$f":"Y43","v":0},11,{"$f":"AA43","v":9},14,{"$f":"AC43","v":22},25,{"$f":"AE43","v":0},11,{"$f":"AG43","v":0},11,{"$f":"AI43","v":0},11,{"$f":"AK43","v":0},16,{"$f":"AM43","v":0},16]
[null,"$50,000 to $74,999:",{"$f":"C44","v":0},11,33,40,0,11,0,11,475,193,15,16,23,16,8,9,0,11,0,11,24,30,43,26,70,51,29,27,31,24,65,65,21,18,28,21,33,39]
[null,"Less than 30.0 percent",{"$f":"C45+C46+C47","v":0},{"$f":"SQRT((D45^2)+(D46^2)+(D47^2))","v":19.05255888325765},{"$f":"E45+E46+E47","v":25},{"$f":"SQRT((F45^2)+(F46^2)+(F47^2))","v":41.060930335295616},{"$f":"G45+G46+G47","v":0},{"$f":"SQRT((H45^2)+(H46^2)+(H47^2))","v":19.05255888325765},{"$f":"I45+I46+I47","v":0},{"$f":"SQRT((J45^2)+(J46^2)+(J47^2))","v":19.05255888325765},{"$f":"K45+K46+K47","v":391},{"$f":"SQRT((L45^2)+(L46^2)+(L47^2))","v":186.31156700537946},{"$f":"M45+M46+M47","v":12},{"$f":"SQRT((N45^2)+(N46^2)+(N47^2))","v":17.291616465790582},{"$f":"O45+O46+O47","v":20},{"$f":"SQRT((P45^2)+(P46^2)+(P47^2))","v":21.77154105707724},{"$f":"Q45+Q46+Q47","v":5},{"$f":"SQRT((R45^2)+(R46^2)+(R47^2))","v":17.058722109231979},{"$f":"S45+S46+S47","v":0},{"$f":"SQRT((T45^2)+(T46^2)+(T47^2))","v":19.05255888325765},{"$f":"U45+U46+U47","v":0},{"$f":"SQRT((V45^2)+(V46^2)+(V47^2))","v":19.05255888325765},{"$f":"W45+W46+W47","v":24},{"$f":"SQRT((X45^2)+(X46^2)+(X47^2))","v":33.793490497431605},{"$f":"Y45+Y46+Y47","v":30},{"$f":"SQRT((Z45^2)+(Z46^2)+(Z47^2))","v":30.364452901377952},{"$f":"AA45+AA46+AA47","v":52},{"$f":"SQRT((AB45^2)+(AB46^2)+(AB47^2))","v":48.764741360946438},{"$f":"AC45+AC46+AC47","v":10},{"$f":"SQRT((AD45^2)+(AD46^2)+(AD47^2))","v":21.61018278497431},{"$f":"AE45+AE46+AE47","v":14},{"$f":"SQRT((AF45^2)+(AF46^2)+(AF47^2))","v":20.322401432901575},{"$f":"AG45+AG46+AG47","v":53},{"$f":"SQRT((AH45^2)+(AH46^2)+(AH47^2))","v":65.863495200300449},{"$f":"AI45+AI46+AI47","v":5},{"$f":"SQRT((AJ45^2)+(AJ46^2)+(AJ47^2))","v":17.4928556845359},{"$f":"AK45+AK46+AK47","v":28},{"$f":"SQRT((AL45^2)+(AL46^2)+(AL47^2))","v":30.870698080866262},{"$f":"AM45+AM46+AM47","v":18},{"$f":"SQRT((AN45^2)+(AN46^2)+(AN47^2))","v":36.783148315499041}]
[null,"More than 30.0 percent",{"$f":"C48+C49+C50+C51","v":0},{"$f":"SQRT((D48^2)+(D49^2)+(D50^2)+(D51^2))","v":22},{"$f":"E48+E49+E50+E51","v":8},{"$f":"SQRT((F48^2)+(F49^2)+(F50^2)+(F51^2))","v":23.643180835073778},{"$f":"G48+G49+G50+G51","v":0},{"$f":"SQRT((H48^2)+(H49^2)+(H50^2)+(H51^2))","v":22},{"$f":"I48+I49+I50+I51","v":0},{"$f":"SQRT((J48^2)+(J49^2)+(J50^2)+(J51^2))","v":22},{"$f":"K48+K49+K50+K51","v":82},{"$f":"SQRT((L48^2)+(L49^2)+(L50^2)+(L51^2))","v":104.85227703774487},{"$f":"M48+M49+M50+M51","v":0},{"$f":"SQRT((N48^2)+(N49^2)+(N50^2)+(N51^2))","v":22},{"$f":"O48+O49+O50+O51","v":3},{"$f":"SQRT((P48^2)+(P49^2)+(P50^2)+(P51^2))","v":19.974984355438178},{"$f":"Q48+Q49+Q50+Q51","v":3},{"$f":"SQRT((R48^2)+(R49^2)+(R50^2)+(R51^2))","v":19.467922333931785},{"$f":"S48+S49+S50+S51","v":0},{"$f":"SQRT((T48^2)+(T49^2)+(T50^2)+(T51^2))","v":22},{"$f":"U48+U49+U50+U51","v":0},{"$f":"SQRT((V48^2)+(V49^2)+(V50^2)+(V51^2))","v":22},{"$f":"W48+W49+W50+W51","v":0},{"$f":"SQRT((X48^2)+(X49^2)+(X50^2)+(X51^2))","v":22},{"$f":"Y48+Y49+Y50+Y51","v":7},{"$f":"SQRT((Z48^2)+(Z49^2)+(Z50^2)+(Z51^2))","v":21.517434791350013},{"$f":"AA48+AA49+AA50+AA51","v":10},{"$f":"SQRT((AB48^2)+(AB49^2)+(AB50^2)+(AB51^2))","v":24.879710609249457},{"$f":"AC48+AC49+AC50+AC51","v":0},{"$f":"SQRT((AD48^2)+(AD49^2)+(AD50^2)+(AD51^2))","v":22},{"$f":"AE48+AE49+AE50+AE51","v":4},{"$f":"SQRT((AF48^2)+(AF49^2)+(AF50^2)+(AF51^2))","v":19.697715603592208},{"$f":"AG48+AG49+AG50+AG51","v":12},{"$f":"SQRT((AH48^2)+(AH49^2)+(AH50^2)+(AH51^2))","v":26.90724809414742},{"$f":"AI48+AI49+AI50+AI51","v":5},{"$f":"SQRT((AJ48^2)+(AJ49^2)+(AJ50^2)+(AJ51^2))","v":20.297783130184438},{"$f":"AK48+AK49+AK50+AK51","v":0},{"$f":"SQRT((AL48^2)+(AL49^2)+(AL50^2)+(AL51^2))","v":32},{"$f":"AM48+AM49+AM50+AM51","v":0},{"$f":"SQRT((AN48^2)+(AN49^2)+(AN50^2)+(AN51^2))","v":32}]
[null,"Less Than 35% of HH Income",{"$f":"C48+C47+C46+C45","v":0},{"$f":"SQRT((D48^2)+(D47^2)+(D46^2)+(D45^2))","v":22},{"$f":"E48+E47+E46+E45","v":33},{"$f":"SQRT((F48^2)+(F47^2)+(F46^2)+(F45^2))","v":43.382023926967726},{"$f":"G48+G47+G46+G45","v":0},{"$f":"SQRT((H48^2)+(H47^2)+(H46^2)+(H45^2))","v":22},{"$f":"I48+I47+I46+I45","v":0},{"$f":"SQRT((J48^2)+(J47^2)+(J46^2)+(J45^2))","v":22},{"$f":"K48+K47+K46+K45","v":453},{"$f":"SQRT((L48^2)+(L47^2)+(L46^2)+(L45^2))","v":210.51365751418601},{"$f":"M48+M47+M46+M45","v":12},{"$f":"SQRT((N48^2)+(N47^2)+(N46^2)+(N45^2))","v":20.493901531919196},{"$f":"O48+O47+O46+O45","v":20},{"$f":"SQRT((P48^2)+(P47^2)+(P46^2)+(P45^2))","v":24.392621835300936},{"$f":"Q48+Q47+Q46+Q45","v":5},{"$f":"SQRT((R48^2)+(R47^2)+(R46^2)+(R45^2))","v":20.297783130184438},{"$f":"S48+S47+S46+S45","v":0},{"$f":"SQRT((T48^2)+(T47^2)+(T46^2)+(T45^2))","v":22},{"$f":"U48+U47+U46+U45","v":0},{"$f":"SQRT((V48^2)+(V47^2)+(V46^2)+(V45^2))","v":22},{"$f":"W48+W47+W46+W45","v":24},{"$f":"SQRT((X48^2)+(X47^2)+(X46^2)+(X45^2))","v":35.538711287833721},{"$f":"Y48+Y47+Y46+Y45","v":30},{"$f":"SQRT((Z48^2)+(Z47^2)+(Z46^2)+(Z45^2))","v":32.295510523910288},{"$f":"AA48+AA47+AA46+AA45","v":62},{"$f":"SQRT((AB48^2)+(AB47^2)+(AB46^2)+(AB45^2))","v":51.322509681425359},{"$f":"AC48+AC47+AC46+AC45","v":10},{"$f":"SQRT((AD48^2)+(AD47^2)+(AD46^2)+(AD45^2))","v":24.248711305964282},{"$f":"AE48+AE47+AE46+AE45","v":18},{"$f":"SQRT((AF48^2)+(AF47^2)+(AF46^2)+(AF45^2))","v":20.928449536456348},{"$f":"AG48+AG47+AG46+AG45","v":65},{"$f":"SQRT((AH48^2)+(AH47^2)+(AH46^2)+(AH45^2))","v":68.549252366455462},{"$f":"AI48+AI47+AI46+AI45","v":5},{"$f":"SQRT((AJ48^2)+(AJ47^2)+(AJ46^2)+(AJ45^2))","v":20.663978319771825},{"$f":"AK48+AK47+AK46+AK45","v":28},{"$f":"SQRT((AL48^2)+(AL47^2)+(AL46^2)+(AL45^2))","v":34.770677301427419},{"$f":"AM48+AM47+AM46+AM45","v":18},{"$f":"SQRT((AN48^2)+(AN47^2)+(AN46^2)+(AN45^2))","v":40.11234224026316}]
[null,"35.0 percent or more",{"$f":"C49+C50+C51","v":0},{"$f":"SQRT((D49^2)+(D50^2)+(D51^2))","v":19.05255888325765},{"$f":"E49+E50+E51","v":0},{"$f":"SQRT((F49^2)+(F50^2)+(F51^2))","v":19.05255888325765},{"$f":"G49+G50+G51","v":0},{"$f":"SQRT((H49^2)+(H50^2)+(H51^2))","v":19.05255888325765},{"$f":"I49+I50+I51","v":0},{"$f":"SQRT((J49^2)+(J50^2)+(J51^2))","v":19.05255888325765},{"$f":"K49+K50+K51","v":20},{"$f":"SQRT((L49^2)+(L50^2)+(L51^2))","v":37.282703764614496},{"$f":"M49+M50+M51","v":0},{"$f":"SQRT((N49^2)+(N50^2)+(N51^2))","v":19.05255888325765},{"$f":"O49+O50+O51","v":3},{"$f":"SQRT((P49^2)+(P50^2)+(P51^2))","v":16.673332000533065},{"$f":"Q49+Q50+Q51","v":3},{"$f":"SQRT((R49^2)+(R50^2)+(R51^2))","v":16.06237840420901},{"$f":"S49+S50+S51","v":0},{"$f":"SQRT((T49^2)+(T50^2)+(T51^2))","v":19.05255888325765},{"$f":"U49+U50+U51","v":0},{"$f":"SQRT((V49^2)+(V50^2)+(V51^2))","v":19.05255888325765},{"$f":"W49+W50+W51","v":0},{"$f":"SQRT((X49^2)+(X50^2)+(X51^2))","v":19.05255888325765},{"$f":"Y49+Y50+Y51","v":7},{"$f":"SQRT((Z49^2)+(Z50^2)+(Z51^2))","v":18.493242008906929},{"$f":"AA49+AA50+AA51","v":0},{"$f":"SQRT((AB49^2)+(AB50^2)+(AB51^2))","v":19.05255888325765},{"$f":"AC49+AC50+AC51","v":0},{"$f":"SQRT((AD49^2)+(AD50^2)+(AD51^2))","v":19.05255888325765},{"$f":"AE49+AE50+AE51","v":0},{"$f":"SQRT((AF49^2)+(AF50^2)+(AF51^2))","v":19.05255888325765},{"$f":"AG49+AG50+AG51","v":0},{"$f":"SQRT((AH49^2)+(AH50^2)+(AH51^2))","v":19.05255888325765},{"$f":"AI49+AI50+AI51","v":5},{"$f":"SQRT((AJ49^2)+(AJ50^2)+(AJ51^2))","v":17.058722109231979},{"$f":"AK49+AK50+AK51","v":0},{"$f":"SQRT((AL49^2)+(AL50^2)+(AL51^2))","v":27.712812921102035},{"$f":"AM49+AM50+AM51","v":0},{"$f":"SQRT((AN49^2)+(AN50^2)+(AN51^2))","v":27.712812921102035}]
[null,"50.0 percent or more",{"$f":"C51","v":0},{"$f":"D51","v":11},{"$f":"E51","v":0},11,{"$f":"G51","v":0},11,{"$f":"I51","v":0},11,{"$f":"K51","v":0},18,{"$f":"M51","v":0},11,{"$f":"O51","v":0},11,{"$f":"Q51","v":0},11,{"$f":"S51","v":0},11,{"$f":"U51","v":0},11,{"$f":"W51","v":0},11,{"$f":"Y51","v":0},11,{"$f":"AA51","v":0},11,{"$f":"AC51","v":0},11,{"$f":"AE51","v":0},11,{"$f":"AG51","v":0},11,{"$f":"AI51","v":5},7,{"$f":"AK51","v":0},16,{"$f":"AM51","v":0},16]
[null,"Not Computed",{"$f":"C52","v":0},11,{"$f":"E52","v":0},11,{"$f":"G52","v":0},11,{"$f":"I52","v":0},11,{"$f":"K52","v":2},3,{"$f":"M52","v":3},7,{"$f":"O52","v":0},11,{"$f":"Q52","v":0},11,{"$f":"S52","v":0},11,{"$f":"U52","v":0},11,{"$f":"W52","v":0},11,{"$f":"Y52","v":6},8,{"$f":"AA52","v":8},14,{"$f":"AC52","v":19},22,{"$f":"AE52","v":13},16,{"$f":"AG52","v":0},11,{"$f":"AI52","v":11},16,{"$f":"AK52","v":0},16,{"$f":"AM52","v":15},26]
[null,"$75,000 to $99,999:",{"$f":"C53","v":0},11,{"$f":"E53","v":66},69,{"$f":"G53","v":8},14,{"$f":"I53","v":0},11,{"$f":"K53","v":211},162,{"$f":"M53","v":2},3,{"$f":"O53","v":3},4,{"$f":"Q53","v":13},20,{"$f":"S53","v":0},11,{"$f":"U53","v":5},8,{"$f":"W53","v":0},11,{"$f":"Y53","v":35},33,{"$f":"AA53","v":29},28,{"$f":"AC53","v":68},71,{"$f":"AE53","v":17},17,{"$f":"AG53","v":16},23,{"$f":"AI53","v":0},11,{"$f":"AK53","v":0},16,{"$f":"AM53","v":14},24]
[null,"Less than 30.0 percent",{"$f":"C54+C55+C56","v":0},{"$f":"SQRT((D54^2)+(D55^2)+(D56^2))","v":19.05255888325765},{"$f":"E54+E55+E56","v":66},{"$f":"SQRT((F54^2)+(F55^2)+(F56^2))","v":70.731888141064076},{"$f":"G54+G55+G56","v":8},{"$f":"SQRT((H54^2)+(H55^2)+(H56^2))","v":20.928449536456348},{"$f":"I54+I55+I56","v":0},{"$f":"SQRT((J54^2)+(J55^2)+(J56^2))","v":19.05255888325765},{"$f":"K54+K55+K56","v":211},{"$f":"SQRT((L54^2)+(L55^2)+(L56^2))","v":163.98780442459739},{"$f":"M54+M55+M56","v":0},{"$f":"SQRT((N54^2)+(N55^2)+(N56^2))","v":19.05255888325765},{"$f":"O54+O55+O56","v":3},{"$f":"SQRT((P54^2)+(P55^2)+(P56^2))","v":16.06237840420901},{"$f":"Q54+Q55+Q56","v":13},{"$f":"SQRT((R54^2)+(R55^2)+(R56^2))","v":25.337718918639855},{"$f":"S54+S55+S56","v":0},{"$f":"SQRT((T54^2)+(T55^2)+(T56^2))","v":19.05255888325765},{"$f":"U54+U55+U56","v":5},{"$f":"SQRT((V54^2)+(V55^2)+(V56^2))","v":17.4928556845359},{"$f":"W54+W55+W56","v":0},{"$f":"SQRT((X54^2)+(X55^2)+(X56^2))","v":19.05255888325765},{"$f":"Y54+Y55+Y56","v":20},{"$f":"SQRT((Z54^2)+(Z55^2)+(Z56^2))","v":26.944387170614959},{"$f":"AA54+AA55+AA56","v":23},{"$f":"SQRT((AB54^2)+(AB55^2)+(AB56^2))","v":30.298514815086232},{"$f":"AC54+AC55+AC56","v":68},{"$f":"SQRT((AD54^2)+(AD55^2)+(AD56^2))","v":72.684248637514301},{"$f":"AE54+AE55+AE56","v":13},{"$f":"SQRT((AF54^2)+(AF55^2)+(AF56^2))","v":20.049937655763422},{"$f":"AG54+AG55+AG56","v":16},{"$f":"SQRT((AH54^2)+(AH55^2)+(AH56^2))","v":27.766886753829642},{"$f":"AI54+AI55+AI56","v":0},{"$f":"SQRT((AJ54^2)+(AJ55^2)+(AJ56^2))","v":19.05255888325765},{"$f":"AK54+AK55+AK56","v":0},{"$f":"SQRT((AL54^2)+(AL55^2)+(AL56^2))","v":27.712812921102035},{"$f":"AM54+AM55+AM56","v":14},{"$f":"SQRT((AN54^2)+(AN55^2)+(AN56^2))","v":32.984845004941285}]
[null,"More than 30.0 percent",{"$f":"C57+C58+C59+C60","v":0},{"$f":"SQRT((D57^2)+(D58^2)+(D59^2)+(D60^2))","v":22},{"$f":"E57+E58+E59+E60","v":0},{"$f":"SQRT((F57^2)+(F58^2)+(F59^2)+(F60^2))","v":22},{"$f":"G57+G58+G59+G60","v":0},{"$f":"SQRT((H57^2)+(H58^2)+(H59^2)+(H60^2))","v":22},{"$f":"I57+I58+I59+I60","v":0},{"$f":"SQRT((J57^2)+(J58^2)+(J59^2)+(J60^2))","v":22},{"$f":"K57+K58+K59+K60","v":0},{"$f":"SQRT((L57^2)+(L58^2)+(L59^2)+(L60^2))","v":36},{"$f":"M57+M58+M59+M60","v":0},{"$f":"SQRT((N57^2)+(N58^2)+(N59^2)+(N60^2))","v":22},{"$f":"O57+O58+O59+O60","v":0},{"$f":"SQRT((P57^2)+(P58^2)+(P59^2)+(P60^2))","v":22},{"$f":"Q57+Q58+Q59+Q60","v":0},{"$f":"SQRT((R57^2)+(R58^2)+(R59^2)+(R60^2))","v":22},{"$f":"S57+S58+S59+S60","v":0},{"$f":"SQRT((T57^2)+(T58^2)+(T59^2)+(T60^2))","v":22},{"$f":"U57+U58+U59+U60","v":0},{"$f":"SQRT((V57^2)+(V58^2)+(V59^2)+(V60^2))","v":22},{"$f":"W57+W58+W59+W60","v":0},{"$f":"SQRT((X57^2)+(X58^2)+(X59^2)+(X60^2))","v":22},{"$f":"Y57+Y58+Y59+Y60","v":0},{"$f":"SQRT((Z57^2)+(Z58^2)+(Z59^2)+(Z60^2))","v":22},{"$f":"AA57+AA58+AA59+AA60","v":0},{"$f":"SQRT((AB57^2)+(AB58^2)+(AB59^2)+(AB60^2))","v":22},{"$f":"AC57+AC58+AC59+AC60","v":0},{"$f":"SQRT((AD57^2)+(AD58^2)+(AD59^2)+(AD60^2))","v":22},{"$f":"AE57+AE58+AE59+AE60","v":4},{"$f":"SQRT((AF57^2)+(AF58^2)+(AF59^2)+(AF60^2))","v":19.974984355438178},{"$f":"AG57+AG58+AG59+AG60","v":0},{"$f":"SQRT((AH57^2)+(AH58^2)+(AH59^2)+(AH60^2))","v":22},{"$f":"AI57+AI58+AI59+AI60","v":0},{"$f":"SQRT((AJ57^2)+(AJ58^2)+(AJ59^2)+(AJ60^2))","v":22},{"$f":"AK57+AK58+AK59+AK60","v":0},{"$f":"SQRT((AL57^2)+(AL58^2)+(AL59^2)+(AL60^2))","v":32},{"$f":"AM57+AM58+AM59+AM60","v":0},{"$f":"SQRT((AN57^2)+(AN58^2)+(AN59^2)+(AN60^2))","v":32}]
[null,"Less Than 35% of HH Income",{"$f":"C54+C55+C56+C57","v":0},{"$f":"SQRT((D54^2)+(D55^2)+(D56^2)+(D57^2))","v":22},{"$f":"E54+E55+E56+E57","v":66},{"$f":"SQRT((F54^2)+(F55^2)+(F56^2)+(F57^2))","v":71.582120672693122},{"$f":"G54+G55+G56+G57","v":8},{"$f":"SQRT((H54^2)+(H55^2)+(H56^2)+(H57^2))","v":23.643180835073778},{"$f":"I54+I55+I56+I57","v":0},{"$f":"SQRT((J54^2)+(J55^2)+(J56^2)+(J57^2))","v":22},{"$f":"K54+K55+K56+K57","v":211},{"$f":"SQRT((L54^2)+(L55^2)+(L56^2)+(L57^2))","v":164.97272501841024},{"$f":"M54+M55+M56+M57","v":0},{"$f":"SQRT((N54^2)+(N55^2)+(N56^2)+(N57^2))","v":22},{"$f":"O54+O55+O56+O57","v":3},{"$f":"SQRT((P54^2)+(P55^2)+(P56^2)+(P57^2))","v":19.467922333931785},{"$f":"Q54+Q55+Q56+Q57","v":13},{"$f":"SQRT((R54^2)+(R55^2)+(R56^2)+(R57^2))","v":27.622454633866266},{"$f":"S54+S55+S56+S57","v":0},{"$f":"SQRT((T54^2)+(T55^2)+(T56^2)+(T57^2))","v":22},{"$f":"U54+U55+U56+U57","v":5},{"$f":"SQRT((V54^2)+(V55^2)+(V56^2)+(V57^2))","v":20.663978319771825},{"$f":"W54+W55+W56+W57","v":0},{"$f":"SQRT((X54^2)+(X55^2)+(X56^2)+(X57^2))","v":22},{"$f":"Y54+Y55+Y56+Y57","v":20},{"$f":"SQRT((Z54^2)+(Z55^2)+(Z56^2)+(Z57^2))","v":29.103264421710495},{"$f":"AA54+AA55+AA56+AA57","v":23},{"$f":"SQRT((AB54^2)+(AB55^2)+(AB56^2)+(AB57^2))","v":32.233522922572398},{"$f":"AC54+AC55+AC56+AC57","v":68},{"$f":"SQRT((AD54^2)+(AD55^2)+(AD56^2)+(AD57^2))","v":73.511903797956421},{"$f":"AE54+AE55+AE56+AE57","v":17},{"$f":"SQRT((AF54^2)+(AF55^2)+(AF56^2)+(AF57^2))","v":20.928449536456348},{"$f":"AG54+AG55+AG56+AG57","v":16},{"$f":"SQRT((AH54^2)+(AH55^2)+(AH56^2)+(AH57^2))","v":29.866369046136157},{"$f":"AI54+AI55+AI56+AI57","v":0},{"$f":"SQRT((AJ54^2)+(AJ55^2)+(AJ56^2)+(AJ57^2))","v":22},{"$f":"AK54+AK55+AK56+AK57","v":0},{"$f":"SQRT((AL54^2)+(AL55^2)+(AL56^2)+(AL57^2))","v":32},{"$f":"AM54+AM55+AM56+AM57","v":14},{"$f":"SQRT((AN54^2)+(AN55^2)+(AN56^2)+(AN57^2))","v":36.660605559646719}]
[null,"35.0 percent or more",{"$f":"C58+C59+C60","v":0},{"$f":"SQRT((D58^2)+(D59^2)+(D60^2))","v":19.05255888325765},{"$f":"E58+E59+E60","v":0},{"$f":"SQRT((F58^2)+(F59^2)+(F60^2))","v":19.05255888325765},{"$f":"G58+G59+G60","v":0},{"$f":"SQRT((H58^2)+(H59^2)+(H60^2))","v":19.05255888325765},{"$f":"I58+I59+I60","v":0},{"$f":"SQRT((J58^2)+(J59^2)+(J60^2))","v":19.05255888325765},{"$f":"K58+K59+K60","v":0},{"$f":"SQRT((L58^2)+(L59^2)+(L60^2))","v":31.176914536239792},{"$f":"M58+M59+M60","v":0},{"$f":"SQRT((N58^2)+(N59^2)+(N60^2))","v":19.05255888325765},{"$f":"O58+O59+O60","v":0},{"$f":"SQRT((P58^2)+(P59^2)+(P60^2))","v":19.05255888325765},{"$f":"Q58+Q59+Q60","v":0},{"$f":"SQRT((R58^2)+(R59^2)+(R60^2))","v":19.05255888325765},{"$f":"S58+S59+S60","v":0},{"$f":"SQRT((T58^2)+(T59^2)+(T60^2))","v":19.05255888325765},{"$f":"U58+U59+U60","v":0},{"$f":"SQRT((V58^2)+(V59^2)+(V60^2))","v":19.05255888325765},{"$f":"W58+W59+W60","v":0},{"$f":"SQRT((X58^2)+(X59^2)+(X60^2))","v":19.05255888325765},{"$f":"Y58+Y59+Y60","v":0},{"$f":"SQRT((Z58^2)+(Z59^2)+(Z60^2))","v":19.05255888325765},{"$f":"AA58+AA59+AA60","v":0},{"$f":"SQRT((AB58^2)+(AB59^2)+(AB60^2))","v":19.05255888325765},{"$f":"AC58+AC59+AC60","v":0},{"$f":"SQRT((AD58^2)+(AD59^2)+(AD60^2))","v":19.05255888325765},{"$f":"AE58+AE59+AE60","v":0},{"$f":"SQRT((AF58^2)+(AF59^2)+(AF60^2))","v":19.05255888325765},{"$f":"AG58+AG59+AG60","v":0},{"$f":"SQRT((AH58^2)+(AH59^2)+(AH60^2))","v":19.05255888325765},{"$f":"AI58+AI59+AI60","v":0},{"$f":"SQRT((AJ58^2)+(AJ59^2)+(AJ60^2))","v":19.05255888325765},{"$f":"AK58+AK59+AK60","v":0},{"$f":"SQRT((AL58^2)+(AL59^2)+(AL60^2))","v":27.712812921102035},{"$f":"AM58+AM59+AM60","v":0},{"$f":"SQRT((AN58^2)+(AN59^2)+(AN60^2))","v":27.712812921102035}]
[null,"50.0 percent or more",{"$f":"C60","v":0},11,0,11,0,11,0,11,0,18,0,11,0,11,0,11,0,11,0,11,0,11,0,11,0,11,0,11,0,11,0,11,0,11,0,16,0,16]
[null,"Not Computed",0,11,0,11,0,11,0,11,0,18,2,3,0,11,0,11,0,11,0,11,0,11,15,24,6,10,0,11,0,11,0,11,0,11,0,16,0,16]
[null,"$100,000 or more:",5,5,0,11,0,11,0,11,65,80,0,11,22,23,5,9,0,11,0,11,10,16,41,35,7,11,28,47,3,5,13,19,23,31,15,23,0,16]
[null,"Less than 30.0 percent",{"$f":"C63+C64+C65","v":5},{"$f":"SQRT((D63^2)+(D64^2)+(D65^2))","v":16.340134638368191},{"$f":"E63+E64+E65","v":0},{"$f":"SQRT((F63^2)+(F64^2)+(F65^2))","v":19.05255888325765},{"$f":"G63+G64+G65","v":0},{"$f":"SQRT((H63^2)+(H64^2)+(H65^2))","v":19.05255888325765},{"$f":"I63+I64+I65","v":0},{"$f":"SQRT((J63^2)+(J64^2)+(J65^2))","v":19.05255888325765},{"$f":"K63+K64+K65","v":65},{"$f":"SQRT((L63^2)+(L64^2)+(L65^2))","v":83.952367447261423},{"$f":"M63+M64+M65","v":0},{"$f":"SQRT((N63^2)+(N64^2)+(N65^2))","v":19.05255888325765},{"$f":"O63+O64+O65","v":22},{"$f":"SQRT((P63^2)+(P64^2)+(P65^2))","v":27.766886753829642},{"$f":"Q63+Q64+Q65","v":5},{"$f":"SQRT((R63^2)+(R64^2)+(R65^2))","v":17.972200755611428},{"$f":"S63+S64+S65","v":0},{"$f":"SQRT((T63^2)+(T64^2)+(T65^2))","v":19.05255888325765},{"$f":"U63+U64+U65","v":0},{"$f":"SQRT((V63^2)+(V64^2)+(V65^2))","v":19.05255888325765},{"$f":"W63+W64+W65","v":10},{"$f":"SQRT((X63^2)+(X64^2)+(X65^2))","v":22.315913604421397},{"$f":"Y63+Y64+Y65","v":41},{"$f":"SQRT((Z63^2)+(Z64^2)+(Z65^2))","v":37.389838191679836},{"$f":"AA63+AA64+AA65","v":7},{"$f":"SQRT((AB63^2)+(AB64^2)+(AB65^2))","v":19.05255888325765},{"$f":"AC63+AC64+AC65","v":28},{"$f":"SQRT((AD63^2)+(AD64^2)+(AD65^2))","v":49.507575177946251},{"$f":"AE63+AE64+AE65","v":3},{"$f":"SQRT((AF63^2)+(AF64^2)+(AF65^2))","v":16.340134638368191},{"$f":"AG63+AG64+AG65","v":13},{"$f":"SQRT((AH63^2)+(AH64^2)+(AH65^2))","v":24.556058315617349},{"$f":"AI63+AI64+AI65","v":0},{"$f":"SQRT((AJ63^2)+(AJ64^2)+(AJ65^2))","v":19.05255888325765},{"$f":"AK63+AK64+AK65","v":0},{"$f":"SQRT((AL63^2)+(AL64^2)+(AL65^2))","v":27.712812921102035},{"$f":"AM63+AM64+AM65","v":0},{"$f":"SQRT((AN63^2)+(AN64^2)+(AN65^2))","v":27.712812921102035}]
[null,"More than 30.0 percent",{"$f":"C66+C67+C68+C69","v":0},{"$f":"SQRT((D66^2)+(D67^2)+(D68^2)+(D69^2))","v":22},{"$f":"E66+E67+E68+E69","v":0},{"$f":"SQRT((F66^2)+(F67^2)+(F68^2)+(F69^2))","v":22},{"$f":"G66+G67+G68+G69","v":0},{"$f":"SQRT((H66^2)+(H67^2)+(H68^2)+(H69^2))","v":22},{"$f":"I66+I67+I68+I69","v":0},{"$f":"SQRT((J66^2)+(J67^2)+(J68^2)+(J69^2))","v":22},{"$f":"K66+K67+K68+K69","v":0},{"$f":"SQRT((L66^2)+(L67^2)+(L68^2)+(L69^2))","v":36},{"$f":"M66+M67+M68+M69","v":0},{"$f":"SQRT((N66^2)+(N67^2)+(N68^2)+(N69^2))","v":22},{"$f":"O66+O67+O68+O69","v":0},{"$f":"SQRT((P66^2)+(P67^2)+(P68^2)+(P69^2))","v":22},{"$f":"Q66+Q67+Q68+Q69","v":0},{"$f":"SQRT((R66^2)+(R67^2)+(R68^2)+(R69^2))","v":22},{"$f":"S66+S67+S68+S69","v":0},{"$f":"SQRT((T66^2)+(T67^2)+(T68^2)+(T69^2))","v":22},{"$f":"U66+U67+U68+U69","v":0},{"$f":"SQRT((V66^2)+(V67^2)+(V68^2)+(V69^2))","v":22},{"$f":"W66+W67+W68+W69","v":0},{"$f":"SQRT((X66^2)+(X67^2)+(X68^2)+(X69^2))","v":22},{"$f":"Y66+Y67+Y68+Y69","v":0},{"$f":"SQRT((Z66^2)+(Z67^2)+(Z68^2)+(Z69^2))","v":22},{"$f":"AA66+AA67+AA68+AA69","v":0},{"$f":"SQRT((AB66^2)+(AB67^2)+(AB68^2)+(AB69^2))","v":22},{"$f":"AC66+AC67+AC68+AC69","v":0},{"$f":"SQRT((AD66^2)+(AD67^2)+(AD68^2)+(AD69^2))","v":22},{"$f":"AE66+AE67+AE68+AE69","v":0},{"$f":"SQRT((AF66^2)+(AF67^2)+(AF68^2)+(AF69^2))","v":22},{"$f":"AG66+AG67+AG68+AG69","v":0},{"$f":"SQRT((AH66^2)+(AH67^2)+(AH68^2)+(AH69^2))","v":22},{"$f":"AI66+AI67+AI68+AI69","v":19},{"$f":"SQRT((AJ66^2)+(AJ67^2)+(AJ68^2)+(AJ69^2))","v":36.386810797320507},{"$f":"AK66+AK67+AK68+AK69","v":0},{"$f":"SQRT((AL66^2)+(AL67^2)+(AL68^2)+(AL69^2))","v":32},{"$f":"AM66+AM67+AM68+AM69","v":0},{"$f":"SQRT((AN66^2)+(AN67^2)+(AN68^2)+(AN69^2))","v":32}]
[null,"Less Than 35% of HH Income",{"$f":"C63+C64+C65+C66","v":5},{"$f":"SQRT(((D63^2)+(D64^2)+(D65^2)+(D66^2)))","v":19.697715603592208},{"$f":"E63+E64+E65+E66","v":0},{"$f":"SQRT(((F63^2)+(F64^2)+(F65^2)+(F66^2)))","v":22},{"$f":"G63+G64+G65+G66","v":0},{"$f":"SQRT(((H63^2)+(H64^2)+(H65^2)+(H66^2)))","v":22},{"$f":"I63+I64+I65+I66","v":0},{"$f":"SQRT(((J63^2)+(J64^2)+(J65^2)+(J66^2)))","v":22},{"$f":"K63+K64+K65+K66","v":65},{"$f":"SQRT(((L63^2)+(L64^2)+(L65^2)+(L66^2)))","v":85.860351734662729},{"$f":"M63+M64+M65+M66","v":0},{"$f":"SQRT(((N63^2)+(N64^2)+(N65^2)+(N66^2)))","v":22},{"$f":"O63+O64+O65+O66","v":22},{"$f":"SQRT(((P63^2)+(P64^2)+(P65^2)+(P66^2)))","v":29.866369046136157},{"$f":"Q63+Q64+Q65+Q66","v":5},{"$f":"SQRT(((R63^2)+(R64^2)+(R65^2)+(R66^2)))","v":21.071307505705477},{"$f":"S63+S64+S65+S66","v":0},{"$f":"SQRT(((T63^2)+(T64^2)+(T65^2)+(T66^2)))","v":22},{"$f":"U63+U64+U65+U66","v":0},{"$f":"SQRT(((V63^2)+(V64^2)+(V65^2)+(V66^2)))","v":22},{"$f":"W63+W64+W65+W66","v":10},{"$f":"SQRT(((X63^2)+(X64^2)+(X65^2)+(X66^2)))","v":24.879710609249457},{"$f":"Y63+Y64+Y65+Y66","v":41},{"$f":"SQRT(((Z63^2)+(Z64^2)+(Z65^2)+(Z66^2)))","v":38.974350539810153},{"$f":"AA63+AA64+AA65+AA66","v":7},{"$f":"SQRT(((AB63^2)+(AB64^2)+(AB65^2)+(AB66^2)))","v":22},{"$f":"AC63+AC64+AC65+AC66","v":28},{"$f":"SQRT(((AD63^2)+(AD64^2)+(AD65^2)+(AD66^2)))","v":50.714889332423866},{"$f":"AE63+AE64+AE65+AE66","v":3},{"$f":"SQRT(((AF63^2)+(AF64^2)+(AF65^2)+(AF66^2)))","v":19.697715603592208},{"$f":"AG63+AG64+AG65+AG66","v":13},{"$f":"SQRT(((AH63^2)+(AH64^2)+(AH65^2)+(AH66^2)))","v":26.90724809414742},{"$f":"AI63+AI64+AI65+AI66","v":19},{"$f":"SQRT(((AJ63^2)+(AJ64^2)+(AJ65^2)+(AJ66^2)))","v":36.386810797320507},{"$f":"AK63+AK64+AK65+AK66","v":0},{"$f":"SQRT(((AL63^2)+(AL64^2)+(AL65^2)+(AL66^2)))","v":32},{"$f":"AM63+AM64+AM65+AM66","v":0},{"$f":"SQRT(((AN63^2)+(AN64^2)+(AN65^2)+(AN66^2)))","v":32}]
[null,"35.0 percent or more",{"$f":"C67+C68+C69","v":0},{"$f":"SQRT((D67^2)+(D68^2)+(D69^2))","v":19.05255888325765},{"$f":"E67+E68+E69","v":0},{"$f":"SQRT((F67^2)+(F68^2)+(F69^2))","v":19.05255888325765},{"$f":"G67+G68+G69","v":0},{"$f":"SQRT((H67^2)+(H68^2)+(H69^2))","v":19.05255888325765},{"$f":"I67+I68+I69","v":0},{"$f":"SQRT((J67^2)+(J68^2)+(J69^2))","v":19.05255888325765},{"$f":"K67+K68+K69","v":0},{"$f":"SQRT((L67^2)+(L68^2)+(L69^2))","v":31.176914536239792},{"$f":"M67+M68+M69","v":0},{"$f":"SQRT((N67^2)+(N68^2)+(N69^2))","v":19.05255888325765},{"$f":"O67+O68+O69","v":0},{"$f":"SQRT((P67^2)+(P68^2)+(P69^2))","v":19.05255888325765},{"$f":"Q67+Q68+Q69","v":0},{"$f":"SQRT((R67^2)+(R68^2)+(R69^2))","v":19.05255888325765},{"$f":"S67+S68+S69","v":0},{"$f":"SQRT((T67^2)+(T68^2)+(T69^2))","v":19.05255888325765},{"$f":"U67+U68+U69","v":0},{"$f":"SQRT((V67^2)+(V68^2)+(V69^2))","v":19.05255888325765},{"$f":"W67+W68+W69","v":0},{"$f":"SQRT((X67^2)+(X68^2)+(X69^2))","v":19.05255888325765},{"$f":"Y67+Y68+Y69","v":0},{"$f":"SQRT((Z67^2)+(Z68^2)+(Z69^2))","v":19.05255888325765},{"$f":"AA67+AA68+AA69","v":0},{"$f":"SQRT((AB67^2)+(AB68^2)+(AB69^2))","v":19.05255888325765},{"$f":"AC67+AC68+AC69","v":0},{"$f":"SQRT((AD67^2)+(AD68^2)+(AD69^2))","v":19.05255888325765},{"$f":"AE67+AE68+AE69","v":0},{"$f":"SQRT((AF67^2)+(AF68^2)+(AF69^2))","v":19.05255888325765},{"$f":"AG67+AG68+AG69","v":0},{"$f":"SQRT((AH67^2)+(AH68^2)+(AH69^2))","v":19.05255888325765},{"$f":"AI67+AI68+AI69","v":0},{"$f":"SQRT((AJ67^2)+(AJ68^2)+(AJ69^2))","v":19.05255888325765},{"$f":"AK67+AK68+AK69","v":0},{"$f":"SQRT((AL67^2)+(AL68^2)+(AL69^2))","v":27.712812921102035},{"$f":"AM67+AM68+AM69","v":0},{"$f":"SQRT((AN67^2)+(AN68^2)+(AN69^2))","v":27.712812921102035}]
[null,"50.0 percent or more",{"$f":"C69","v":0},{"$f":"D69","v":11},{"$f":"E69","v":0},11,{"$f":"G69","v":0},11,{"$f":"I69","v":0},11,{"$f":"K69","v":0},18,{"$f":"M69","v":0},11,{"$f":"O69","v":0},11,{"$f":"Q69","v":0},11,{"$f":"S69","v":0},11,{"$f":"U69","v":0},11,{"$f":"W69","v":0},11,{"$f":"Y69","v":0},11,{"$f":"AA69","v":0},11,{"$f":"AC69","v":0},11,{"$f":"AE69","v":0},11,{"$f":"AG69","v":0},11,{"$f":"AI69","v":0},11,{"$f":"AK69","v":0},16,{"$f":"AM69","v":0},16]
[null,"Not Computed",{"$f":"C70","v":0},11,{"$f":"E70","v":0},11,{"$f":"G70","v":0},11,{"$f":"I70","v":0},11,{"$f":"K70","v":0},18,{"$f":"M70","v":0},11,{"$f":"O70","v":0},11,{"$f":"Q70","v":0},11,{"$f":"S70","v":0},11,{"$f":"U70","v":0},11,{"$f":"W70","v":0},11,{"$f":"Y70","v":0},11,{"$f":"AA70","v":0},11,{"$f":"AC70","v":0},11,{"$f":"AE70","v":0},11,{"$f":"AG70","v":0},11,{"$f":"AI70","v":4},7,{"$f":"AK70","v":15},23,{"$f":"AM70","v":0},16]
[]
[]
[null,"Calculated GROSS RENT AS A PERCENTAGE OF HOUSEHOLD INCOME IN THE PAST 12 MONTHS"]
[null,"Universe:  RENTER-OCCUPIED HOUSING UNITS"]
[null,"Data Set: 2015-2019 American Community Survey 5-Year Estimates"]
[]
[null,null,"Albany",null,"Bartlett",null,"Brookfield",null,"Chatham",null,"Conway",null,"Eaton",null,"Effingham",null,"Freedom",null,"Hale's Location",null,"Hart's Location",null,"Jackson",null,"Madison",null,"Moultonborough",null,"Ossipee",null,"Sandwich",null,"Tamworth",null,"Tuftonboro",null,"Wakefield",null,"Wolfeboro"]
[null," ","Estimate","Margin of Error","Estimate","Margin of Error","Estimate","Margin of Error","Estimate","Margin of Error","Estimate","Margin of Error","Estimate","Margin of Error","Estimate","Margin of Error","Estimate","Margin of Error","Estimate","Margin of Error","Estimate","Margin of Error","Estimate","Margin of Error","Estimate","Margin of Error","Estimate","Margin of Error","Estimate","Margin of Error","Estimate","Margin of Error","Estimate","Margin of Error","Estimate","Margin of Error","Estimate","Margin of Error","Estimate","Margin of Error"]
[null,{"$f":"B92","v":"Total:"},{"$f":"C92","v":35},{"$f":"D92","v":17},{"$f":"E92","v":392},159,14,18,11,14,1518,311,33,22,106,45,34,26,0,11,5,8,98,49,185,59,234,86,471,121,82,37,361,135,65,38,216,113,571,210]
[null,"Less than 30.0 percent",{"$f":"C136+C129+C122+C115+C108+C101+C94","v":15},{"$f":"SQRT((D136^2)+(D129^2)+(D122^2)+(D115^2)+(D108^2)+(D101^2)+(D94^2))","v":48.610698410946533},{"$f":"E136+E129+E122+E115+E108+E101+E94","v":181},{"$f":"SQRT((F136^2)+(F129^2)+(F122^2)+(F115^2)+(F108^2)+(F101^2)+(F94^2))","v":118.26242006656214},{"$f":"G136+G129+G122+G115+G108+G101+G94","v":8},{"$f":"SQRT((H136^2)+(H129^2)+(H122^2)+(H115^2)+(H108^2)+(H101^2)+(H94^2))","v":51.146847410177685},{"$f":"I136+I129+I122+I115+I108+I101+I94","v":0},{"$f":"SQRT((J136^2)+(J129^2)+(J122^2)+(J115^2)+(J108^2)+(J101^2)+(J94^2))","v":50.408332644514239},{"$f":"K136+K129+K122+K115+K108+K101+K94","v":806},{"$f":"SQRT((L136^2)+(L129^2)+(L122^2)+(L115^2)+(L108^2)+(L101^2)+(L94^2))","v":292.89588593901419},{"$f":"M136+M129+M122+M115+M108+M101+M94","v":15},{"$f":"SQRT((N136^2)+(N129^2)+(N122^2)+(N115^2)+(N108^2)+(N101^2)+(N94^2))","v":47.539457296018853},{"$f":"O136+O129+O122+O115+O108+O101+O94","v":45},{"$f":"SQRT((P136^2)+(P129^2)+(P122^2)+(P115^2)+(P108^2)+(P101^2)+(P94^2))","v":54.359911699707531},{"$f":"Q136+Q129+Q122+Q115+Q108+Q101+Q94","v":23},{"$f":"SQRT((R136^2)+(R129^2)+(R122^2)+(R115^2)+(R108^2)+(R101^2)+(R94^2))","v":52.038447325030752},{"$f":"S136+S129+S122+S115+S108+S101+S94","v":0},{"$f":"SQRT((T136^2)+(T129^2)+(T122^2)+(T115^2)+(T108^2)+(T101^2)+(T94^2))","v":50.408332644514239},{"$f":"U136+U129+U122+U115+U108+U101+U94","v":5},{"$f":"SQRT((V136^2)+(V129^2)+(V122^2)+(V115^2)+(V108^2)+(V101^2)+(V94^2))","v":49.839743177508446},{"$f":"W136+W129+W122+W115+W108+W101+W94","v":52},{"$f":"SQRT((X136^2)+(X129^2)+(X122^2)+(X115^2)+(X108^2)+(X101^2)+(X94^2))","v":61.441028637222537},{"$f":"Y136+Y129+Y122+Y115+Y108+Y101+Y94","v":108},{"$f":"SQRT((Z136^2)+(Z129^2)+(Z122^2)+(Z115^2)+(Z108^2)+(Z101^2)+(Z94^2))","v":71.840100222647237},{"$f":"AA136+AA129+AA122+AA115+AA108+AA101+AA94","v":91},{"$f":"SQRT((AB136^2)+(AB129^2)+(AB122^2)+(AB115^2)+(AB108^2)+(AB101^2)+(AB94^2))","v":72.214956899523244},{"$f":"AC136+AC129+AC122+AC115+AC108+AC101+AC94","v":244},{"$f":"SQRT((AD136^2)+(AD129^2)+(AD122^2)+(AD115^2)+(AD108^2)+(AD101^2)+(AD94^2))","v":141.5132502630054},{"$f":"AE136+AE129+AE122+AE115+AE108+AE101+AE94","v":37},{"$f":"SQRT((AF136^2)+(AF129^2)+(AF122^2)+(AF115^2)+(AF108^2)+(AF101^2)+(AF94^2))","v":47.296934361541872},{"$f":"AG136+AG129+AG122+AG115+AG108+AG101+AG94","v":123},{"$f":"SQRT((AH136^2)+(AH129^2)+(AH122^2)+(AH115^2)+(AH108^2)+(AH101^2)+(AH94^2))","v":89.48184173339304},{"$f":"AI136+AI129+AI122+AI115+AI108+AI101+AI94","v":13},{"$f":"SQRT((AJ136^2)+(AJ129^2)+(AJ122^2)+(AJ115^2)+(AJ108^2)+(AJ101^2)+(AJ94^2))","v":50.069951068480187},{"$f":"AK136+AK129+AK122+AK115+AK108+AK101+AK94","v":63},{"$f":"SQRT((AL136^2)+(AL129^2)+(AL122^2)+(AL115^2)+(AL108^2)+(AL101^2)+(AL94^2))","v":83.582294775867453},{"$f":"AM136+AM129+AM122+AM115+AM108+AM101+AM94","v":155},{"$f":"SQRT((AN136^2)+(AN129^2)+(AN122^2)+(AN115^2)+(AN108^2)+(AN101^2)+(AN94^2))","v":139.57435294494474}]
[null,"More than 30.0 percent",{"$f":"C137+C130+C123+C116+C109+C102+C95","v":15},{"$f":"SQRT((D137^2)+(D130^2)+(D123^2)+(D116^2)+(D109^2)+(D102^2)+(D95^2))","v":56.444663166680336},{"$f":"E137+E130+E123+E116+E109+E102+E95","v":75},{"$f":"SQRT((F137^2)+(F130^2)+(F123^2)+(F116^2)+(F109^2)+(F102^2)+(F95^2))","v":83.654049513457508},{"$f":"G137+G130+G123+G116+G109+G102+G95","v":6},{"$f":"SQRT((H137^2)+(H130^2)+(H123^2)+(H116^2)+(H109^2)+(H102^2)+(H95^2))","v":58.20652884342099},{"$f":"I137+I130+I123+I116+I109+I102+I95","v":11},{"$f":"SQRT((J137^2)+(J130^2)+(J123^2)+(J116^2)+(J109^2)+(J102^2)+(J95^2))","v":57.86190456595773},{"$f":"K137+K130+K123+K116+K109+K102+K95","v":664},{"$f":"SQRT((L137^2)+(L130^2)+(L123^2)+(L116^2)+(L109^2)+(L102^2)+(L95^2))","v":227.01982292302142},{"$f":"M137+M130+M123+M116+M109+M102+M95","v":11},{"$f":"SQRT((N137^2)+(N130^2)+(N123^2)+(N116^2)+(N109^2)+(N102^2)+(N95^2))","v":56.311632901204348},{"$f":"O137+O130+O123+O116+O109+O102+O95","v":35},{"$f":"SQRT((P137^2)+(P130^2)+(P123^2)+(P116^2)+(P109^2)+(P102^2)+(P95^2))","v":58.189346103904619},{"$f":"Q137+Q130+Q123+Q116+Q109+Q102+Q95","v":7},{"$f":"SQRT((R137^2)+(R130^2)+(R123^2)+(R116^2)+(R109^2)+(R102^2)+(R95^2))","v":56.665686266028757},{"$f":"S137+S130+S123+S116+S109+S102+S95","v":0},{"$f":"SQRT((T137^2)+(T130^2)+(T123^2)+(T116^2)+(T109^2)+(T102^2)+(T95^2))","v":58.20652884342099},{"$f":"U137+U130+U123+U116+U109+U102+U95","v":0},{"$f":"SQRT((V137^2)+(V130^2)+(V123^2)+(V116^2)+(V109^2)+(V102^2)+(V95^2))","v":58.20652884342099},{"$f":"W137+W130+W123+W116+W109+W102+W95","v":36},{"$f":"SQRT((X137^2)+(X130^2)+(X123^2)+(X116^2)+(X109^2)+(X102^2)+(X95^2))","v":67.305274681855366},{"$f":"Y137+Y130+Y123+Y116+Y109+Y102+Y95","v":56},{"$f":"SQRT((Z137^2)+(Z130^2)+(Z123^2)+(Z116^2)+(Z109^2)+(Z102^2)+(Z95^2))","v":63.229739838148944},{"$f":"AA137+AA130+AA123+AA116+AA109+AA102+AA95","v":68},{"$f":"SQRT((AB137^2)+(AB130^2)+(AB123^2)+(AB116^2)+(AB109^2)+(AB102^2)+(AB95^2))","v":68.716810170437924},{"$f":"AC137+AC130+AC123+AC116+AC109+AC102+AC95","v":157},{"$f":"SQRT((AD137^2)+(AD130^2)+(AD123^2)+(AD116^2)+(AD109^2)+(AD102^2)+(AD95^2))","v":105.71187255932988},{"$f":"AE137+AE130+AE123+AE116+AE109+AE102+AE95","v":29},{"$f":"SQRT((AF137^2)+(AF130^2)+(AF123^2)+(AF116^2)+(AF109^2)+(AF102^2)+(AF95^2))","v":57.262553208881634},{"$f":"AG137+AG130+AG123+AG116+AG109+AG102+AG95","v":238},{"$f":"SQRT((AH137^2)+(AH130^2)+(AH123^2)+(AH116^2)+(AH109^2)+(AH102^2)+(AH95^2))","v":161.9845671661347},{"$f":"AI137+AI130+AI123+AI116+AI109+AI102+AI95","v":30},{"$f":"SQRT((AJ137^2)+(AJ130^2)+(AJ123^2)+(AJ116^2)+(AJ109^2)+(AJ102^2)+(AJ95^2))","v":64.303965663091105},{"$f":"AK137+AK130+AK123+AK116+AK109+AK102+AK95","v":138},{"$f":"SQRT((AL137^2)+(AL130^2)+(AL123^2)+(AL116^2)+(AL109^2)+(AL102^2)+(AL95^2))","v":137.88038294115665},{"$f":"AM137+AM130+AM123+AM116+AM109+AM102+AM95","v":385},{"$f":"SQRT((AN137^2)+(AN130^2)+(AN123^2)+(AN116^2)+(AN109^2)+(AN102^2)+(AN95^2))","v":232.17234977490321}]
[null,"Less Than 35% of HH Income",{"$f":"C138+C131+C124+C117+C110+C103+C96","v":24},{"$f":"SQRT((D138^2)+(D131^2)+(D124^2)+(D117^2)+(D110^2)+(D103^2)+(D96^2))","v":56.471231613981999},{"$f":"E138+E131+E124+E117+E110+E103+E96","v":189},{"$f":"SQRT((F138^2)+(F131^2)+(F124^2)+(F117^2)+(F110^2)+(F103^2)+(F96^2))","v":122.09832103677756},{"$f":"G138+G131+G124+G117+G110+G103+G96","v":8},{"$f":"SQRT((H138^2)+(H131^2)+(H124^2)+(H117^2)+(H110^2)+(H103^2)+(H96^2))","v":58.84725991921799},{"$f":"I138+I131+I124+I117+I110+I103+I96","v":6},{"$f":"SQRT((J138^2)+(J131^2)+(J124^2)+(J117^2)+(J110^2)+(J103^2)+(J96^2))","v":58.20652884342099},{"$f":"K138+K131+K124+K117+K110+K103+K96","v":900},{"$f":"SQRT((L138^2)+(L131^2)+(L124^2)+(L117^2)+(L110^2)+(L103^2)+(L96^2))","v":313.42782263226093},{"$f":"M138+M131+M124+M117+M110+M103+M96","v":15},{"$f":"SQRT((N138^2)+(N131^2)+(N124^2)+(N117^2)+(N110^2)+(N103^2)+(N96^2))","v":55.740470037487128},{"$f":"O138+O131+O124+O117+O110+O103+O96","v":45},{"$f":"SQRT((P138^2)+(P131^2)+(P124^2)+(P117^2)+(P110^2)+(P103^2)+(P96^2))","v":61.660360037871982},{"$f":"Q138+Q131+Q124+Q117+Q110+Q103+Q96","v":23},{"$f":"SQRT((R138^2)+(R131^2)+(R124^2)+(R117^2)+(R110^2)+(R103^2)+(R96^2))","v":59.623820743055369},{"$f":"S138+S131+S124+S117+S110+S103+S96","v":0},{"$f":"SQRT((T138^2)+(T131^2)+(T124^2)+(T117^2)+(T110^2)+(T103^2)+(T96^2))","v":58.20652884342099},{"$f":"U138+U131+U124+U117+U110+U103+U96","v":5},{"$f":"SQRT((V138^2)+(V131^2)+(V124^2)+(V117^2)+(V110^2)+(V103^2)+(V96^2))","v":57.714816122032303},{"$f":"W138+W131+W124+W117+W110+W103+W96","v":52},{"$f":"SQRT((X138^2)+(X131^2)+(X124^2)+(X117^2)+(X110^2)+(X103^2)+(X96^2))","v":67.985292527134135},{"$f":"Y138+Y131+Y124+Y117+Y110+Y103+Y96","v":115},{"$f":"SQRT((Z138^2)+(Z131^2)+(Z124^2)+(Z117^2)+(Z110^2)+(Z103^2)+(Z96^2))","v":77.252831663311866},{"$f":"AA138+AA131+AA124+AA117+AA110+AA103+AA96","v":101},{"$f":"SQRT((AB138^2)+(AB131^2)+(AB124^2)+(AB117^2)+(AB110^2)+(AB103^2)+(AB96^2))","v":78.721026416072604},{"$f":"AC138+AC131+AC124+AC117+AC110+AC103+AC96","v":244},{"$f":"SQRT((AD138^2)+(AD131^2)+(AD124^2)+(AD117^2)+(AD110^2)+(AD103^2)+(AD96^2))","v":144.4749113168096},{"$f":"AE138+AE131+AE124+AE117+AE110+AE103+AE96","v":45},{"$f":"SQRT((AF138^2)+(AF131^2)+(AF124^2)+(AF117^2)+(AF110^2)+(AF103^2)+(AF96^2))","v":53.879495172096775},{"$f":"AG138+AG131+AG124+AG117+AG110+AG103+AG96","v":228},{"$f":"SQRT((AH138^2)+(AH131^2)+(AH124^2)+(AH117^2)+(AH110^2)+(AH103^2)+(AH96^2))","v":139.93569951945787},{"$f":"AI138+AI131+AI124+AI117+AI110+AI103+AI96","v":38},{"$f":"SQRT((AJ138^2)+(AJ131^2)+(AJ124^2)+(AJ117^2)+(AJ110^2)+(AJ103^2)+(AJ96^2))","v":64.598761598036845},{"$f":"AK138+AK131+AK124+AK117+AK110+AK103+AK96","v":138},{"$f":"SQRT((AL138^2)+(AL131^2)+(AL124^2)+(AL117^2)+(AL110^2)+(AL103^2)+(AL96^2))","v":121.50308638055249},{"$f":"AM138+AM131+AM124+AM117+AM110+AM103+AM96","v":232},{"$f":"SQRT((AN138^2)+(AN131^2)+(AN124^2)+(AN117^2)+(AN110^2)+(AN103^2)+(AN96^2))","v":164.21327595538676}]
[null,"35.0 percent or more",{"$f":"C139+C132+C125+C118+C111+C104+C97","v":6},{"$f":"SQRT((D139^2)+(D132^2)+(D125^2)+(D118^2)+(D111^2)+(D104^2)+(D97^2))","v":48.579831205964474},{"$f":"E139+E132+E125+E118+E111+E104+E97","v":67},{"$f":"SQRT((F139^2)+(F132^2)+(F125^2)+(F118^2)+(F111^2)+(F104^2)+(F97^2))","v":77.948701079620307},{"$f":"G139+G132+G125+G118+G111+G104+G97","v":6},{"$f":"SQRT((H139^2)+(H132^2)+(H125^2)+(H118^2)+(H111^2)+(H104^2)+(H97^2))","v":50.408332644514239},{"$f":"I139+I132+I125+I118+I111+I104+I97","v":5},{"$f":"SQRT((J139^2)+(J132^2)+(J125^2)+(J118^2)+(J111^2)+(J104^2)+(J97^2))","v":50.009999000199947},{"$f":"K139+K132+K125+K118+K111+K104+K97","v":570},{"$f":"SQRT((L139^2)+(L132^2)+(L125^2)+(L118^2)+(L111^2)+(L104^2)+(L97^2))","v":197.70938268074178},{"$f":"M139+M132+M125+M118+M111+M104+M97","v":11},{"$f":"SQRT((N139^2)+(N132^2)+(N125^2)+(N118^2)+(N111^2)+(N104^2)+(N97^2))","v":48.207883172775801},{"$f":"O139+O132+O125+O118+O111+O104+O97","v":35},{"$f":"SQRT((P139^2)+(P132^2)+(P125^2)+(P118^2)+(P111^2)+(P104^2)+(P97^2))","v":50.388490749376487},{"$f":"Q139+Q132+Q125+Q118+Q111+Q104+Q97","v":7},{"$f":"SQRT((R139^2)+(R132^2)+(R125^2)+(R118^2)+(R111^2)+(R104^2)+(R97^2))","v":48.620983124572874},{"$f":"S139+S132+S125+S118+S111+S104+S97","v":0},{"$f":"SQRT((T139^2)+(T132^2)+(T125^2)+(T118^2)+(T111^2)+(T104^2)+(T97^2))","v":50.408332644514239},{"$f":"U139+U132+U125+U118+U111+U104+U97","v":0},{"$f":"SQRT((V139^2)+(V132^2)+(V125^2)+(V118^2)+(V111^2)+(V104^2)+(V97^2))","v":50.408332644514239},{"$f":"W139+W132+W125+W118+W111+W104+W97","v":36},{"$f":"SQRT((X139^2)+(X132^2)+(X125^2)+(X118^2)+(X111^2)+(X104^2)+(X97^2))","v":60.687725282795036},{"$f":"Y139+Y132+Y125+Y118+Y111+Y104+Y97","v":49},{"$f":"SQRT((Z139^2)+(Z132^2)+(Z125^2)+(Z118^2)+(Z111^2)+(Z104^2)+(Z97^2))","v":56.488936969994398},{"$f":"AA139+AA132+AA125+AA118+AA111+AA104+AA97","v":58},{"$f":"SQRT((AB139^2)+(AB132^2)+(AB125^2)+(AB118^2)+(AB111^2)+(AB104^2)+(AB97^2))","v":61.155539405682624},{"$f":"AC139+AC132+AC125+AC118+AC111+AC104+AC97","v":157},{"$f":"SQRT((AD139^2)+(AD132^2)+(AD125^2)+(AD118^2)+(AD111^2)+(AD104^2)+(AD97^2))","v":101.62676812730001},{"$f":"AE139+AE132+AE125+AE118+AE111+AE104+AE97","v":21},{"$f":"SQRT((AF139^2)+(AF132^2)+(AF125^2)+(AF118^2)+(AF111^2)+(AF104^2)+(AF97^2))","v":51.117511676528231},{"$f":"AG139+AG132+AG125+AG118+AG111+AG104+AG97","v":133},{"$f":"SQRT((AH139^2)+(AH132^2)+(AH125^2)+(AH118^2)+(AH111^2)+(AH104^2)+(AH97^2))","v":121.09500402576482},{"$f":"AI139+AI132+AI125+AI118+AI111+AI104+AI97","v":5},{"$f":"SQRT((AJ139^2)+(AJ132^2)+(AJ125^2)+(AJ118^2)+(AJ111^2)+(AJ104^2)+(AJ97^2))","v":49.689032995219378},{"$f":"AK139+AK132+AK125+AK118+AK111+AK104+AK97","v":63},{"$f":"SQRT((AL139^2)+(AL132^2)+(AL125^2)+(AL118^2)+(AL111^2)+(AL104^2)+(AL97^2))","v":105.99056561788883},{"$f":"AM139+AM132+AM125+AM118+AM111+AM104+AM97","v":308},{"$f":"SQRT((AN139^2)+(AN132^2)+(AN125^2)+(AN118^2)+(AN111^2)+(AN104^2)+(AN97^2))","v":215.45069041430338}]
[null,"50.0 percent or more",{"$f":"C140+C133+C126+C119+C112+C105+C98","v":2},{"$f":"SQRT((D140^2)+(D133^2)+(D126^2)+(D119^2)+(D112^2)+(D105^2)+(D98^2))","v":27.404379212089442},{"$f":"E140+E133+E126+E119+E112+E105+E98","v":24},{"$f":"SQRT((F140^2)+(F133^2)+(F126^2)+(F119^2)+(F112^2)+(F105^2)+(F98^2))","v":47.402531577965327},{"$f":"G140+G133+G126+G119+G112+G105+G98","v":6},{"$f":"SQRT((H140^2)+(H133^2)+(H126^2)+(H119^2)+(H112^2)+(H105^2)+(H98^2))","v":29.103264421710495},{"$f":"I140+I133+I126+I119+I112+I105+I98","v":0},{"$f":"SQRT((J140^2)+(J133^2)+(J126^2)+(J119^2)+(J112^2)+(J105^2)+(J98^2))","v":29.103264421710495},{"$f":"K140+K133+K126+K119+K112+K105+K98","v":353},{"$f":"SQRT((L140^2)+(L133^2)+(L126^2)+(L119^2)+(L112^2)+(L105^2)+(L98^2))","v":147.2582765076381},{"$f":"M140+M133+M126+M119+M112+M105+M98","v":4},{"$f":"SQRT((N140^2)+(N133^2)+(N126^2)+(N119^2)+(N112^2)+(N105^2)+(N98^2))","v":27.838821814150108},{"$f":"O140+O133+O126+O119+O112+O105+O98","v":19},{"$f":"SQRT((P140^2)+(P133^2)+(P126^2)+(P119^2)+(P112^2)+(P105^2)+(P98^2))","v":30.364452901377952},{"$f":"Q140+Q133+Q126+Q119+Q112+Q105+Q98","v":0},{"$f":"SQRT((R140^2)+(R133^2)+(R126^2)+(R119^2)+(R112^2)+(R105^2)+(R98^2))","v":29.103264421710495},{"$f":"S140+S133+S126+S119+S112+S105+S98","v":0},{"$f":"SQRT((T140^2)+(T133^2)+(T126^2)+(T119^2)+(T112^2)+(T105^2)+(T98^2))","v":29.103264421710495},{"$f":"U140+U133+U126+U119+U112+U105+U98","v":0},{"$f":"SQRT((V140^2)+(V133^2)+(V126^2)+(V119^2)+(V112^2)+(V105^2)+(V98^2))","v":29.103264421710495},{"$f":"W140+W133+W126+W119+W112+W105+W98","v":15},{"$f":"SQRT((X140^2)+(X133^2)+(X126^2)+(X119^2)+(X112^2)+(X105^2)+(X98^2))","v":30.886890422961002},{"$f":"Y140+Y133+Y126+Y119+Y112+Y105+Y98","v":19},{"$f":"SQRT((Z140^2)+(Z133^2)+(Z126^2)+(Z119^2)+(Z112^2)+(Z105^2)+(Z98^2))","v":33.316662497915367},{"$f":"AA140+AA133+AA126+AA119+AA112+AA105+AA98","v":39},{"$f":"SQRT((AB140^2)+(AB133^2)+(AB126^2)+(AB119^2)+(AB112^2)+(AB105^2)+(AB98^2))","v":43.162483709814474},{"$f":"AC140+AC133+AC126+AC119+AC112+AC105+AC98","v":78},{"$f":"SQRT((AD140^2)+(AD133^2)+(AD126^2)+(AD119^2)+(AD112^2)+(AD105^2)+(AD98^2))","v":63.047601064592456},{"$f":"AE140+AE133+AE126+AE119+AE112+AE105+AE98","v":18},{"$f":"SQRT((AF140^2)+(AF133^2)+(AF126^2)+(AF119^2)+(AF112^2)+(AF105^2)+(AF98^2))","v":31.859064644147981},{"$f":"AG140+AG133+AG126+AG119+AG112+AG105+AG98","v":114},{"$f":"SQRT((AH140^2)+(AH133^2)+(AH126^2)+(AH119^2)+(AH112^2)+(AH105^2)+(AH98^2))","v":110.67971810589327},{"$f":"AI140+AI133+AI126+AI119+AI112+AI105+AI98","v":5},{"$f":"SQRT((AJ140^2)+(AJ133^2)+(AJ126^2)+(AJ119^2)+(AJ112^2)+(AJ105^2)+(AJ98^2))","v":27.838821814150108},{"$f":"AK140+AK133+AK126+AK119+AK112+AK105+AK98","v":0},{"$f":"SQRT((AL140^2)+(AL133^2)+(AL126^2)+(AL119^2)+(AL112^2)+(AL105^2)+(AL98^2))","v":42.332020977033451},{"$f":"AM140+AM133+AM126+AM119+AM112+AM105+AM98","v":126},{"$f":"SQRT((AN140^2)+(AN133^2)+(AN126^2)+(AN119^2)+(AN112^2)+(AN105^2)+(AN98^2))","v":156.00320509528001}]
[null,"Not Computed",{"$f":"C140+C134+C127+C120+C113+C106+C99","v":5},{"$f":"SQRT((D140^2)+(D134^2)+(D127^2)+(D120^2)+(D113^2)+(D106^2)+(D99^2))","v":25.416530054277668},{"$f":"E140+E134+E127+E120+E113+E106+E99","v":136},{"$f":"SQRT((F140^2)+(F134^2)+(F127^2)+(F120^2)+(F113^2)+(F106^2)+(F99^2))","v":101.35087567455942},{"$f":"G140+G134+G127+G120+G113+G106+G99","v":0},{"$f":"SQRT((H140^2)+(H134^2)+(H127^2)+(H120^2)+(H113^2)+(H106^2)+(H99^2))","v":29.103264421710495},{"$f":"I140+I134+I127+I120+I113+I106+I99","v":0},{"$f":"SQRT((J140^2)+(J134^2)+(J127^2)+(J120^2)+(J113^2)+(J106^2)+(J99^2))","v":29.103264421710495},{"$f":"K140+K134+K127+K120+K113+K106+K99","v":48},{"$f":"SQRT((L140^2)+(L134^2)+(L127^2)+(L120^2)+(L113^2)+(L106^2)+(L99^2))","v":67.690472003081794},{"$f":"M140+M134+M127+M120+M113+M106+M99","v":7},{"$f":"SQRT((N140^2)+(N134^2)+(N127^2)+(N120^2)+(N113^2)+(N106^2)+(N99^2))","v":23.622023622035432},{"$f":"O140+O134+O127+O120+O113+O106+O99","v":26},{"$f":"SQRT((P140^2)+(P134^2)+(P127^2)+(P120^2)+(P113^2)+(P106^2)+(P99^2))","v":34.885527085024819},{"$f":"Q140+Q134+Q127+Q120+Q113+Q106+Q99","v":4},{"$f":"SQRT((R140^2)+(R134^2)+(R127^2)+(R120^2)+(R113^2)+(R106^2)+(R99^2))","v":27.404379212089442},{"$f":"S140+S134+S127+S120+S113+S106+S99","v":0},{"$f":"SQRT((T140^2)+(T134^2)+(T127^2)+(T120^2)+(T113^2)+(T106^2)+(T99^2))","v":29.103264421710495},{"$f":"U140+U134+U127+U120+U113+U106+U99","v":0},{"$f":"SQRT((V140^2)+(V134^2)+(V127^2)+(V120^2)+(V113^2)+(V106^2)+(V99^2))","v":29.103264421710495},{"$f":"W140+W134+W127+W120+W113+W106+W99","v":10},{"$f":"SQRT((X140^2)+(X134^2)+(X127^2)+(X120^2)+(X113^2)+(X106^2)+(X99^2))","v":31.336879231984796},{"$f":"Y140+Y134+Y127+Y120+Y113+Y106+Y99","v":21},{"$f":"SQRT((Z140^2)+(Z134^2)+(Z127^2)+(Z120^2)+(Z113^2)+(Z106^2)+(Z99^2))","v":35.284557528754704},{"$f":"AA140+AA134+AA127+AA120+AA113+AA106+AA99","v":75},{"$f":"SQRT((AB140^2)+(AB134^2)+(AB127^2)+(AB120^2)+(AB113^2)+(AB106^2)+(AB99^2))","v":56.700970009339343},{"$f":"AC140+AC134+AC127+AC120+AC113+AC106+AC99","v":70},{"$f":"SQRT((AD140^2)+(AD134^2)+(AD127^2)+(AD120^2)+(AD113^2)+(AD106^2)+(AD99^2))","v":50.803543183522152},{"$f":"AE140+AE134+AE127+AE120+AE113+AE106+AE99","v":16},{"$f":"SQRT((AF140^2)+(AF134^2)+(AF127^2)+(AF120^2)+(AF113^2)+(AF106^2)+(AF99^2))","v":29.614185789921695},{"$f":"AG140+AG134+AG127+AG120+AG113+AG106+AG99","v":0},{"$f":"SQRT((AH140^2)+(AH134^2)+(AH127^2)+(AH120^2)+(AH113^2)+(AH106^2)+(AH99^2))","v":29.103264421710495},{"$f":"AI140+AI134+AI127+AI120+AI113+AI106+AI99","v":18},{"$f":"SQRT((AJ140^2)+(AJ134^2)+(AJ127^2)+(AJ120^2)+(AJ113^2)+(AJ106^2)+(AJ99^2))","v":31.336879231984796},{"$f":"AK140+AK134+AK127+AK120+AK113+AK106+AK99","v":0},{"$f":"SQRT((AL140^2)+(AL134^2)+(AL127^2)+(AL120^2)+(AL113^2)+(AL106^2)+(AL99^2))","v":42.332020977033451},{"$f":"AM140+AM134+AM127+AM120+AM113+AM106+AM99","v":31},{"$f":"SQRT((AN140^2)+(AN134^2)+(AN127^2)+(AN120^2)+(AN113^2)+(AN106^2)+(AN99^2))","v":50.803543183522152}]
[]
[]
[]
[]
[]
[]
[]
[]
[]
[]
[]
[null,"B25074. HOUSEHOLD INCOME BY GROSS RENT AS A PERCENTAGE OF HOUSEHOLD INCOME IN THE PAST 12 MONTHS"]
[null,"Universe:  RENTER-OCCUPIED HOUSING UNITS"]
[null,"Data Set: 2010-2014 American Community Survey 5-Year Estimates",null,null,null,"Income in 2014 Inflation Adjusted Dollars"]
[]
[null,null,"Albany",null,"Bartlett",null,"Brookfield",null,"Chatham",null,"Conway",null,"Eaton",null,"Effingham",null,"Freedom",null,"Hale's Location",null,"Hart's Location",null,"Jackson",null,"Madison",null,"Moultonborough",null,"Ossipee",null,"Sandwich",null,"Tamworth",null,"Tuftonboro",null,"Wakefield",null,"Wolfeboro"]
[null," ","Estimate","Margin of Error","Estimate","Margin of Error","Estimate","Margin of Error","Estimate","Margin of Error","Estimate","Margin of Error","Estimate","Margin of Error","Estimate","Margin of Error","Estimate","Margin of Error","Estimate","Margin of Error","Estimate","Margin of Error","Estimate","Margin of Error","Estimate","Margin of Error","Estimate","Margin of Error","Estimate","Margin of Error","Estimate","Margin of Error","Estimate","Margin of Error","Estimate","Margin of Error","Estimate","Margin of Error","Estimate","Margin of Error"]
[null,"Total:",45,20,412,210,9,11,27,14,1399,271,30,20,92,45,90,39,0,11,16,12,81,45,153,66,171,69,277,101,144,64,465,160,170,73,241,136,520,181]
[null,"Less than $10,000:",3,4,112,101,0,11,8,11,116,100,0,11,0,11,2,3,0,11,0,11,0,11,0,11,8,11,7,12,7,7,73,76,15,24,22,34,21,34]
[null,"Less than 20.0 percent",0,11,0,11,0,11,0,11,0,17,0,11,0,11,0,11,0,11,0,11,0,11,0,11,0,11,0,11,0,11,0,11,0,11,0,15,0,15]
[null,"20.0 to 24.9 percent",0,11,0,11,0,11,0,11,0,17,0,11,0,11,0,11,0,11,0,11,0,11,0,11,0,11,0,11,0,11,0,11,0,11,0,15,0,15]
[null,"25.0 to 29.9 percent",0,11,0,11,0,11,0,11,32,36,0,11,0,11,0,11,0,11,0,11,0,11,0,11,8,11,0,11,0,11,0,11,0,11,0,15,0,15]
[null,"30.0 to 34.9 percent",0,11,0,11,0,11,0,11,0,17,0,11,0,11,0,11,0,11,0,11,0,11,0,11,0,11,0,11,0,11,17,28,0,11,0,15,0,15]
[null,"35.0 to 39.9 percent",0,11,0,11,0,11,0,11,0,17,0,11,0,11,0,11,0,11,0,11,0,11,0,11,0,11,0,11,0,11,0,11,0,11,0,15,0,15]
[null,"40.0 to 49.9 percent",0,11,0,11,0,11,0,11,0,17,0,11,0,11,0,11,0,11,0,11,0,11,0,11,0,11,0,11,0,11,0,11,0,11,0,15,0,15]
[null,"50.0 percent or more",3,4,112,101,0,11,7,11,22,27,0,11,0,11,0,11,0,11,0,11,0,11,0,11,0,11,0,11,4,6,56,69,15,24,22,34,21,34]
[null,"Not computed",0,11,0,11,0,11,1,3,62,80,0,11,0,11,2,3,0,11,0,11,0,11,0,11,0,11,7,12,3,5,0,11,0,11,0,15,0,15]
[null,"$10,000 to $19,999:",2,4,69,83,3,5,2,3,213,137,0,11,31,28,3,5,0,11,0,11,10,15,8,12,13,17,124,78,4,7,141,117,13,13,43,68,162,138]
[null,"Less than 20.0 percent",0,11,0,11,0,11,0,11,10,15,0,11,0,11,0,11,0,11,0,11,0,11,0,11,6,9,0,11,0,11,0,11,0,11,0,15,0,15]
[null,"20.0 to 24.9 percent",0,11,0,11,0,11,0,11,5,8,0,11,0,11,0,11,0,11,0,11,0,11,0,11,0,11,0,11,0,11,0,11,0,11,0,15,0,15]
[null,"25.0 to 29.9 percent",0,11,0,11,0,11,0,11,0,17,0,11,0,11,0,11,0,11,0,11,0,11,0,11,0,11,10,15,0,11,82,110,0,11,0,15,19,30]
[null,"30.0 to 34.9 percent",0,11,69,83,0,11,0,11,43,49,0,11,0,11,0,11,0,11,0,11,0,11,0,11,0,11,11,17,0,11,0,11,0,11,0,15,0,15]
[null,"35.0 to 39.9 percent",0,11,0,11,0,11,0,11,87,97,0,11,0,11,0,11,0,11,0,11,0,11,0,11,0,11,0,11,0,11,0,11,0,11,0,15,0,15]
[null,"40.0 to 49.9 percent",0,11,0,11,0,11,0,11,0,17,0,11,0,11,0,11,0,11,0,11,0,11,0,11,0,11,0,11,0,11,0,11,0,11,0,15,0,15]
[null,"50.0 percent or more",2,4,0,11,0,11,2,3,68,81,0,11,21,25,0,11,0,11,0,11,8,13,8,12,7,12,79,72,4,7,43,35,13,13,43,68,143,130]
[null,"Not computed",0,11,0,11,3,5,0,11,0,17,0,11,10,14,3,5,0,11,0,11,2,5,0,11,0,11,24,38,0,11,16,23,0,11,0,15,0,15]
[null,"$20,000 to $34,999:",8,10,27,34,0,11,3,4,432,195,0,11,41,29,41,29,0,11,2,3,21,18,19,32,14,16,48,43,42,35,54,52,70,54,78,64,82,89]
[null,"Less than 20.0 percent",0,11,0,11,0,11,0,11,22,36,0,11,0,11,0,11,0,11,0,11,0,11,0,11,0,11,0,11,0,11,25,41,0,11,0,15,0,15]
[null,"20.0 to 24.9 percent",0,11,0,11,0,11,0,11,19,31,0,11,0,11,0,11,0,11,0,11,0,11,0,11,0,11,0,11,0,11,0,11,0,11,19,28,0,15]
[null,"25.0 to 29.9 percent",6,9,0,11,0,11,0,11,104,96,0,11,0,11,12,19,0,11,0,11,0,11,0,11,0,11,0,11,0,11,0,11,0,11,16,27,0,15]
[null,"30.0 to 34.9 percent",0,11,20,33,0,11,0,11,0,17,0,11,24,25,5,7,0,11,0,11,0,11,0,11,8,13,0,11,4,7,0,11,15,23,14,22,0,15]
[null,"35.0 to 39.9 percent",0,11,7,10,0,11,3,4,34,54,0,11,3,4,9,14,0,11,0,11,0,11,19,32,0,11,0,11,0,11,0,11,0,11,0,15,0,15]
[null,"40.0 to 49.9 percent",0,11,0,11,0,11,0,11,121,104,0,11,8,8,0,11,0,11,0,11,5,7,0,11,0,11,16,22,0,11,0,11,0,11,0,15,37,52]
[null,"50.0 percent or more",2,3,0,11,0,11,0,11,91,81,0,11,3,4,8,10,0,11,0,11,0,11,0,11,6,10,26,41,20,22,29,32,40,42,29,46,45,72]
[null,"Not computed",0,11,0,11,0,11,0,11,41,59,0,11,3,4,7,10,0,11,2,3,16,15,0,11,0,11,6,10,18,28,0,11,15,24,0,15,0,15]
[null,"$35,000 to $49,999:",6,5,31,37,0,11,0,11,321,136,4,6,3,4,24,17,0,11,7,11,17,22,76,48,21,31,49,43,44,26,61,73,27,25,98,108,115,102]
[null,"Less than 20.0 percent",0,11,0,11,0,11,0,11,80,66,0,11,0,11,0,11,0,11,0,11,11,20,0,11,0,11,0,11,0,11,45,70,0,11,0,15,0,15]
[null,"20.0 to 24.9 percent",0,11,0,11,0,11,0,11,15,23,3,5,3,4,15,12,0,11,0,11,0,11,13,21,0,11,10,15,0,11,16,22,0,11,0,15,47,77]
[null,"25.0 to 29.9 percent",0,11,0,11,0,11,0,11,105,100,0,11,0,11,4,6,0,11,0,11,0,11,0,11,0,11,0,11,17,19,0,11,12,19,0,15,11,16]
[null,"30.0 to 34.9 percent",2,4,14,24,0,11,0,11,78,69,0,11,0,11,0,11,0,11,0,11,0,11,29,35,0,11,0,11,3,5,0,11,9,15,70,101,0,15]
[null,"35.0 to 39.9 percent",0,11,0,11,0,11,0,11,29,35,0,11,0,11,5,7,0,11,7,11,0,11,0,11,0,11,39,49,0,11,0,11,0,11,28,45,37,59]
[null,"40.0 to 49.9 percent",0,11,0,11,0,11,0,11,0,17,0,11,0,11,0,11,0,11,0,11,0,11,0,11,21,31,0,11,15,15,0,11,0,11,0,15,20,31]
[null,"50.0 percent or more",0,11,0,11,0,11,0,11,0,17,0,11,0,11,0,11,0,11,0,11,0,11,0,11,0,11,0,11,0,11,0,11,0,11,0,15,0,15]
[null,"Not computed",4,4,17,27,0,11,0,11,14,21,1,2,0,11,0,11,0,11,0,11,6,9,34,36,0,11,0,11,9,14,0,11,6,9,0,15,0,15]
[null,"$50,000 to $74,999:",8,10,145,114,0,11,14,17,186,104,9,9,7,12,6,9,0,11,3,5,0,11,39,35,68,51,15,20,22,25,121,105,7,10,0,15,55,43]
[null,"Less than 20.0 percent",6,10,72,83,0,11,14,17,25,44,2,4,7,12,0,11,0,11,0,11,0,11,34,34,6,9,0,11,5,7,75,80,7,10,0,15,13,21]
[null,"20.0 to 24.9 percent",2,3,46,62,0,11,0,11,59,51,1,3,0,11,6,9,0,11,3,5,0,11,0,11,31,29,9,16,12,20,0,11,0,11,0,15,0,15]
[null,"25.0 to 29.9 percent",0,11,27,43,0,11,0,11,26,30,3,5,0,11,0,11,0,11,0,11,0,11,5,7,0,11,0,11,0,11,0,11,0,11,0,15,0,15]
[null,"30.0 to 34.9 percent",0,11,0,11,0,11,0,11,49,74,0,11,0,11,0,11,0,11,0,11,0,11,0,11,0,11,0,11,5,8,46,72,0,11,0,15,0,15]
[null,"35.0 to 39.9 percent",0,11,0,11,0,11,0,11,0,17,0,11,0,11,0,11,0,11,0,11,0,11,0,11,0,11,0,11,0,11,0,11,0,11,0,15,0,15]
[null,"40.0 to 49.9 percent",0,11,0,11,0,11,0,11,0,17,0,11,0,11,0,11,0,11,0,11,0,11,0,11,0,11,0,11,0,11,0,11,0,11,0,15,42,47]
[null,"50.0 percent or more",0,11,0,11,0,11,0,11,0,17,0,11,0,11,0,11,0,11,0,11,0,11,0,11,0,11,0,11,0,11,0,11,0,11,0,15,0,15]
[null,"Not computed",0,11,0,11,0,11,0,11,27,44,3,5,0,11,0,11,0,11,0,11,0,11,0,11,31,40,6,10,0,11,0,11,0,11,0,15,0,15]
[null,"$75,000 to $99,999:",10,9,0,11,0,11,0,11,33,33,0,11,0,11,11,17,0,11,2,3,25,29,6,9,0,11,25,39,18,28,0,11,33,34,0,15,0,15]
[null,"Less than 20.0 percent",7,8,0,11,0,11,0,11,33,33,0,11,0,11,2,4,0,11,2,3,15,23,0,11,0,11,0,11,18,28,0,11,28,33,0,15,0,15]
[null,"20.0 to 24.9 percent",0,11,0,11,0,11,0,11,0,17,0,11,0,11,9,15,0,11,0,11,0,11,0,11,0,11,25,39,0,11,0,11,0,11,0,15,0,15]
[null,"25.0 to 29.9 percent",3,4,0,11,0,11,0,11,0,17,0,11,0,11,0,11,0,11,0,11,10,18,0,11,0,11,0,11,0,11,0,11,0,11,0,15,0,15]
[null,"30.0 to 34.9 percent",0,11,0,11,0,11,0,11,0,17,0,11,0,11,0,11,0,11,0,11,0,11,0,11,0,11,0,11,0,11,0,11,0,11,0,15,0,15]
[null,"35.0 to 39.9 percent",0,11,0,11,0,11,0,11,0,17,0,11,0,11,0,11,0,11,0,11,0,11,0,11,0,11,0,11,0,11,0,11,0,11,0,15,0,15]
[null,"40.0 to 49.9 percent",0,11,0,11,0,11,0,11,0,17,0,11,0,11,0,11,0,11,0,11,0,11,0,11,0,11,0,11,0,11,0,11,0,11,0,15,0,15]
[null,"50.0 percent or more",0,11,0,11,0,11,0,11,0,17,0,11,0,11,0,11,0,11,0,11,0,11,0,11,0,11,0,11,0,11,0,11,0,11,0,15,0,15]
[null,"Not computed",0,11,0,11,0,11,0,11,0,17,0,11,0,11,0,11,0,11,0,11,0,11,6,9,0,11,0,11,0,11,0,11,5,7,0,15,0,15]
[null,"$100,000 or more:",8,8,28,45,6,10,0,11,98,84,17,18,10,18,3,6,0,11,2,4,8,14,5,9,47,48,9,13,7,7,15,23,5,9,0,15,85,78]
[null,"Less than 20.0 percent",8,8,28,45,6,10,0,11,98,84,7,9,10,18,3,6,0,11,0,11,8,14,5,9,10,16,0,11,0,11,15,23,5,9,0,15,59,71]
[null,"20.0 to 24.9 percent",0,11,0,11,0,11,0,11,0,17,0,11,0,11,0,11,0,11,2,4,0,11,0,11,37,43,0,11,0,11,0,11,0,11,0,15,0,15]
[null,"25.0 to 29.9 percent",0,11,0,11,0,11,0,11,0,17,0,11,0,11,0,11,0,11,0,11,0,11,0,11,0,11,0,11,0,11,0,11,0,11,0,15,0,15]
[null,"30.0 to 34.9 percent",0,11,0,11,0,11,0,11,0,17,0,11,0,11,0,11,0,11,0,11,0,11,0,11,0,11,0,11,0,11,0,11,0,11,0,15,0,15]
[null,"35.0 to 39.9 percent",0,11,0,11,0,11,0,11,0,17,0,11,0,11,0,11,0,11,0,11,0,11,0,11,0,11,0,11,0,11,0,11,0,11,0,15,0,15]
[null,"40.0 to 49.9 percent",0,11,0,11,0,11,0,11,0,17,0,11,0,11,0,11,0,11,0,11,0,11,0,11,0,11,0,11,0,11,0,11,0,11,0,15,0,15]
[null,"50.0 percent or more",0,11,0,11,0,11,0,11,0,17,0,11,0,11,0,11,0,11,0,11,0,11,0,11,0,11,0,11,0,11,0,11,0,11,0,15,0,15]
[null,"Not computed",0,11,0,11,0,11,0,11,0,17,10,16,0,11,0,11,0,11,0,11,0,11,0,11,0,11,9,13,7,7,0,11,0,11,0,15,26,30]
[]
[]
[]
[]
[]
[]
[]
[]
[]
[]
[]
[]
[]
[]
[]
[null,"Calculated B25074. HOUSEHOLD INCOME BY GROSS RENT AS A PERCENTAGE OF HOUSEHOLD INCOME IN THE PAST 12 MONTHS"]
[null,"Universe:  RENTER-OCCUPIED HOUSING UNITS"]
[null,"Data Set: 2010-2014 American Community Survey 5-Year Estimates"]
[]
[null,null,"Albany",null,"Bartlett",null,"Brookfield",null,"Chatham",null,"Conway",null,"Eaton",null,"Effingham",null,"Freedom",null,"Hale's Location",null,"Hart's Location",null,"Jackson",null,"Madison",null,"Moultonborough",null,"Ossipee",null,"Sandwich",null,"Tamworth",null,"Tuftonboro",null,"Wakefield",null,"Wolfeboro"]
[null," ","Estimate","Margin of Error","Estimate","Margin of Error","Estimate","Margin of Error","Estimate","Margin of Error","Estimate","Margin of Error","Estimate","Margin of Error","Estimate","Margin of Error","Estimate","Margin of Error","Estimate","Margin of Error","Estimate","Margin of Error","Estimate","Margin of Error","Estimate","Margin of Error","Estimate","Margin of Error","Estimate","Margin of Error","Estimate","Margin of Error","Estimate","Margin of Error","Estimate","Margin of Error","Estimate","Margin of Error","Estimate","Margin of Error"]
[null,"Total:",45,20,412,210,9,11,27,14,1399,271,30,20,92,45,90,39,0,11,16,12,81,45,153,66,171,69,277,101,144,64,465,160,170,73,241,136,520,181]
[null,"Less than $10,000:",3,4,112,101,0,11,8,11,116,100,0,11,0,11,2,3,0,11,0,11,0,11,0,11,8,11,7,12,7,7,73,76,15,24,22,34,21,34]
[null,"Less than 30.0 percent",0,19.05255888325765,0,19.05255888325765,0,19.05255888325765,0,19.05255888325765,32,43.289721643826724,0,19.05255888325765,0,19.05255888325765,0,19.05255888325765,0,19.05255888325765,0,19.05255888325765,0,19.05255888325765,0,19.05255888325765,8,19.05255888325765,0,19.05255888325765,0,19.05255888325765,0,19.05255888325765,0,19.05255888325765,0,25.98076211353316,0,25.98076211353316]
[null,"More than 30.0 percent",3,19.467922333931785,112,102.78132126023678,0,22,7,22,22,39.949968710876355,0,22,0,22,0,22,0,22,0,22,0,22,0,22,0,22,0,22,4,19.974984355438178,73,76.072333998635798,15,30.643106892089126,22,42.790185790669334,21,42.790185790669334]
[null,"Less Than 35% of HH Income",0,22,0,22,0,22,0,22,32,46.508063816933941,0,22,0,22,0,22,0,22,0,22,0,22,0,22,8,22,0,22,0,22,17,33.867388443752198,0,22,0,30,0,30]
[null,"35.0 percent or more",3,16.06237840420901,112,102.19099764656376,0,19.05255888325765,7,19.05255888325765,22,36.152454965050438,0,19.05255888325765,0,19.05255888325765,0,19.05255888325765,0,19.05255888325765,0,19.05255888325765,0,19.05255888325765,0,19.05255888325765,0,19.05255888325765,0,19.05255888325765,4,16.673332000533065,56,70.731888141064076,15,28.600699292150182,22,40.074929819027759,21,40.074929819027759]
[null,"50.0 percent or more",3,4,112,101,0,11,7,11,22,27,0,11,0,11,0,11,0,11,0,11,0,11,0,11,0,11,0,11,4,6,56,69,15,24,22,34,21,34]
[null,"Not Computed",0,11,0,11,0,11,1,3,62,80,0,11,0,11,2,3,0,11,0,11,0,11,0,11,0,11,7,12,3,5,0,11,0,11,0,15,0,15]
[null,"$10,000 to $19,999:",2,4,69,83,3,5,2,3,213,137,0,11,31,28,3,5,0,11,0,11,10,15,8,12,13,17,124,78,4,7,141,117,13,13,43,68,162,138]
[null,"Less than 30.0 percent",0,19.05255888325765,0,19.05255888325765,0,19.05255888325765,0,19.05255888325765,15,24.041630560342615,0,19.05255888325765,0,19.05255888325765,0,19.05255888325765,0,19.05255888325765,0,19.05255888325765,0,19.05255888325765,0,19.05255888325765,6,17.972200755611428,10,21.61018278497431,0,19.05255888325765,82,111.09455432198286,0,19.05255888325765,0,25.98076211353316,19,36.742346141747674]
[null,"More than 30.0 percent",2,19.467922333931785,69,85.158675424175073,0,22,2,19.28730152198591,198,136.60161053223348,0,22,21,31.432467291003423,0,22,0,22,0,22,8,23.065125189341593,8,22.516660498395403,7,22.516660498395403,90,75.597619010124916,4,20.297783130184438,43,39.849717690342551,13,23.065125189341593,43,72.794230540613583,143,132.57073583562851]
[null,"Less Than 35% of HH Income",0,22,69,85.158675424175073,0,22,0,22,58,54.580216195980753,0,22,0,22,0,22,0,22,0,22,0,22,0,22,6,21.071307505705477,21,27.495454169735041,0,22,82,111.63780721601441,0,22,0,30,19,39.686269665968858]
[null,"35.0 percent or more",2,16.06237840420901,0,19.05255888325765,0,19.05255888325765,2,15.842979517754859,155,127.51078385768005,0,19.05255888325765,21,29.444863728670914,0,19.05255888325765,0,19.05255888325765,0,19.05255888325765,8,20.273134932713294,8,19.646882704388499,7,19.646882704388499,79,73.661387442811588,4,17.058722109231979,43,38.301436004411116,13,20.273134932713294,43,71.232015274032506,143,131.7193987231949]
[null,"50.0 percent or more",2,4,0,11,0,11,2,3,68,81,0,11,21,25,0,11,0,11,0,11,8,13,8,12,7,12,79,72,4,7,43,35,13,13,43,68,143,130]
[null,"Not Computed",0,11,0,11,3,5,0,11,0,17,0,11,10,14,3,5,0,11,0,11,2,5,0,11,0,11,24,38,0,11,16,23,0,11,0,15,0,15]
[null,"$20,000 to $34,999:",8,10,27,34,0,11,3,4,432,195,0,11,41,29,41,29,0,11,2,3,21,18,19,32,14,16,48,43,42,35,54,52,70,54,78,64,82,89]
[null,"Less than 30.0 percent",6,17.972200755611428,0,19.05255888325765,0,19.05255888325765,0,19.05255888325765,145,107.11209082078456,0,19.05255888325765,0,19.05255888325765,12,24.556058315617349,0,19.05255888325765,0,19.05255888325765,0,19.05255888325765,0,19.05255888325765,0,19.05255888325765,0,19.05255888325765,0,19.05255888325765,25,43.852023898561399,0,19.05255888325765,35,41.689327171351664,0,25.98076211353316]
[null,"More than 30.0 percent",2,19.28730152198591,27,37.828560638755476,0,22,3,19.467922333931785,246,143.46428126889285,0,22,38,26.851443164195103,22,21.587033144922902,0,22,0,22,5,20.297783130184438,19,37.242448899072144,14,22.605309110914629,42,49.06118628814432,24,27.838821814150108,29,37.242448899072144,55,50.34878350069642,43,55.226805085936306,82,91.312649726092161]
[null,"Less Than 35% of HH Income",6,21.071307505705477,20,38.105117766515299,0,22,0,22,145,108.45275469069469,0,22,24,31.432467291003423,17,25.534290669607408,0,22,0,22,0,22,0,22,8,23.065125189341593,0,22,4,20.297783130184438,25,45.210618221829257,15,29.866369046136157,49,47.138094997570704,0,30]
[null,"35.0 percent or more",2,15.842979517754859,7,18.493242008906929,0,19.05255888325765,3,16.06237840420901,246,142.45350118547455,0,19.05255888325765,14,9.7979589711327115,17,20.420577856662138,0,19.05255888325765,0,19.05255888325765,5,17.058722109231979,19,35.580893749314392,6,18.493242008906929,42,47.81213235152768,20,26.944387170614959,29,35.580893749314392,40,44.788391353117383,29,50.655700567655757,82,90.072193267400792]
[null,"50.0 percent or more",2,3,0,11,0,11,0,11,91,81,0,11,3,4,8,10,0,11,0,11,0,11,0,11,6,10,26,41,20,22,29,32,40,42,29,46,45,72]
[null,"Not Computed",0,11,0,11,0,11,0,11,41,59,0,11,3,4,7,10,0,11,2,3,16,15,0,11,0,11,6,10,18,28,0,11,15,24,0,15,0,15]
[null,"$35,000 to $49,999:",6,5,31,37,0,11,0,11,321,136,4,6,3,4,24,17,0,11,7,11,17,22,76,48,21,31,49,43,44,26,61,73,27,25,98,108,115,102]
[null,"Less than 30.0 percent",0,19.05255888325765,0,19.05255888325765,0,19.05255888325765,0,19.05255888325765,200,122.00409829181969,3,16.340134638368191,3,16.06237840420901,19,17.349351572897472,0,19.05255888325765,0,19.05255888325765,11,25.337718918639855,13,26.134268690743959,0,19.05255888325765,10,21.61018278497431,17,24.556058315617349,61,74.195687206198173,12,24.556058315617349,0,25.98076211353316,58,80.062475604992386]
[null,"More than 30.0 percent",2,19.467922333931785,14,30.643106892089126,0,22,0,22,107,81.018516402116376,0,22,0,22,5,20.297783130184438,0,22,7,22,0,22,29,39.849717690342551,21,36.386810797320507,39,52.57375771237966,18,22.181073012818835,0,22,9,24.248711305964282,98,112.58774356030055,57,69.942833800182839]
[null,"Less Than 35% of HH Income",2,19.467922333931785,14,30.643106892089126,0,22,0,22,278,140.16418943510499,3,19.697715603592208,3,19.467922333931785,19,20.542638584174139,0,22,0,22,11,27.622454633866266,42,43.68065933568311,0,22,10,24.248711305964282,20,25.059928172283335,61,75.006666370396701,21,28.774989139876318,70,104.28806259586952,58,81.455509328712694]
[null,"35.0 percent or more",0,19.05255888325765,0,19.05255888325765,0,19.05255888325765,0,19.05255888325765,29,42.461747491124292,0,19.05255888325765,0,19.05255888325765,5,17.058722109231979,0,19.05255888325765,7,19.05255888325765,0,19.05255888325765,0,19.05255888325765,21,34.684290392049249,39,51.410115736107812,15,21.61018278497431,0,19.05255888325765,0,19.05255888325765,28,49.749371855330999,57,68.315444813014281]
[null,"50.0 percent or more",0,11,0,11,0,11,0,11,0,17,0,11,0,11,0,11,0,11,0,11,0,11,0,11,0,11,0,11,0,11,0,11,0,11,0,15,0,15]
[null,"Not Computed",4,4,17,27,0,11,0,11,14,21,1,2,0,11,0,11,0,11,0,11,6,9,34,36,0,11,0,11,9,14,0,11,6,9,0,15,0,15]
[null,"$50,000 to $74,999:",8,10,145,114,0,11,14,17,186,104,9,9,7,12,6,9,0,11,3,5,0,11,39,35,68,51,15,20,22,25,121,105,7,10,0,15,55,43]
[null,"Less than 30.0 percent",8,15.165750888103101,145,112.1695145750395,0,19.05255888325765,14,23.043437243605826,110,73.736015623303103,6,7.0710678118654755,7,19.646882704388499,6,17.972200755611428,0,19.05255888325765,3,16.340134638368191,0,19.05255888325765,39,36.414282912066248,37,32.295510523910288,9,22.315913604421397,17,23.874672772626646,75,81.498466243236749,7,18.493242008906929,0,25.98076211353316,13,29.8496231131986]
[null,"More than 30.0 percent",0,22,0,22,0,22,0,22,49,79.642953235047727,0,22,0,22,0,22,0,22,0,22,0,22,0,22,0,22,0,22,5,20.663978319771825,46,74.47818472546173,0,22,0,30,42,53.702886328390207]
[null,"Less Than 35% of HH Income",8,18.734993995195193,145,112.70758625753636,0,22,14,25.534290669607408,159,104.46530524533014,6,13.076696830622021,7,22.516660498395403,6,21.071307505705477,0,22,3,19.697715603592208,0,22,39,38.039453203220468,37,34.117444218463959,9,24.879710609249457,22,25.179356624028344,121,108.74741376235114,7,21.517434791350013,0,30,13,33.406586176980134]
[null,"35.0 percent or more",0,19.05255888325765,0,19.05255888325765,0,19.05255888325765,0,19.05255888325765,0,29.444863728670914,0,19.05255888325765,0,19.05255888325765,0,19.05255888325765,0,19.05255888325765,0,19.05255888325765,0,19.05255888325765,0,19.05255888325765,0,19.05255888325765,0,19.05255888325765,0,19.05255888325765,0,19.05255888325765,0,19.05255888325765,0,25.98076211353316,42,51.565492337414952]
[null,"50.0 percent or more",0,11,0,11,0,11,0,11,0,17,0,11,0,11,0,11,0,11,0,11,0,11,0,11,0,11,0,11,0,11,0,11,0,11,0,15,0,15]
[null,"Not Computed",0,11,0,11,0,11,0,11,27,44,3,5,0,11,0,11,0,11,0,11,0,11,0,11,31,40,6,10,0,11,0,11,0,11,0,15,0,15]
[null,"$75,000 to $99,999:",10,9,0,11,0,11,0,11,33,33,0,11,0,11,11,17,0,11,2,3,25,29,6,9,0,11,25,39,18,28,0,11,33,34,0,15,0,15]
[null,"Less than 30.0 percent",10,14.177446878757825,0,19.05255888325765,0,19.05255888325765,0,19.05255888325765,33,40.828911325187207,0,19.05255888325765,0,19.05255888325765,11,19.026297590440446,0,19.05255888325765,2,15.842979517754859,25,31.208973068654469,0,19.05255888325765,0,19.05255888325765,25,41.98809355043403,18,32.03123475609393,0,19.05255888325765,28,36.4828726939094,0,25.98076211353316,0,25.98076211353316]
[null,"More than 30.0 percent",0,22,0,22,0,22,0,22,0,34,0,22,0,22,0,22,0,22,0,22,0,22,0,22,0,22,0,22,0,22,0,22,0,22,0,30,0,30]
[null,"Less Than 35% of HH Income",10,17.944358444926362,0,22,0,22,0,22,33,44.226688774991963,0,22,0,22,11,21.977260975835911,0,22,2,19.28730152198591,25,33.090784215548595,0,22,0,22,25,43.405068828421413,18,33.867388443752198,0,22,28,38.105117766515299,0,30,0,30]
[null,"35.0 percent or more",0,19.05255888325765,0,19.05255888325765,0,19.05255888325765,0,19.05255888325765,0,29.444863728670914,0,19.05255888325765,0,19.05255888325765,0,19.05255888325765,0,19.05255888325765,0,19.05255888325765,0,19.05255888325765,0,19.05255888325765,0,19.05255888325765,0,19.05255888325765,0,19.05255888325765,0,19.05255888325765,0,19.05255888325765,0,25.98076211353316,0,25.98076211353316]
[null,"50.0 percent or more",0,11,0,11,0,11,0,11,0,17,0,11,0,11,0,11,0,11,0,11,0,11,0,11,0,11,0,11,0,11,0,11,0,11,0,15,0,15]
[null,"Not Computed",0,11,0,11,0,11,0,11,0,17,0,11,0,11,0,11,0,11,0,11,0,11,6,9,0,11,0,11,0,11,0,11,5,7,0,15,0,15]
[null,"$100,000 or more:",8,8,28,45,6,10,0,11,98,84,17,18,10,18,3,6,0,11,2,4,8,14,5,9,47,48,9,13,7,7,15,23,5,9,0,15,85,78]
[null,"Less than 30.0 percent",8,17.4928556845359,28,47.613023428469653,6,18.493242008906929,0,19.05255888325765,98,87.372764635211126,7,17.972200755611428,10,23.790754506740637,3,16.673332000533065,0,19.05255888325765,2,16.06237840420901,8,20.928449536456348,5,17.972200755611428,47,47.180504448341793,0,19.05255888325765,0,19.05255888325765,15,27.766886753829642,5,17.972200755611428,0,25.98076211353316,59,74.10128204019145]
[null,"More than 30.0 percent",0,22,0,22,0,22,0,22,0,34,0,22,0,22,0,22,0,22,0,22,0,22,0,22,0,22,0,22,0,22,0,22,0,22,0,30,0,30]
[null,"Less Than 35% of HH Income",8,20.663978319771825,28,48.867166891482462,6,21.517434791350013,0,22,98,89.011235245894667,7,21.071307505705477,10,26.210684844162312,3,19.974984355438178,0,22,2,19.467922333931785,8,23.643180835073778,5,21.071307505705477,47,48.445846055157297,0,22,0,22,15,29.866369046136157,5,21.071307505705477,0,30,59,75.604232685743199]
[null,"35.0 percent or more",0,19.05255888325765,0,19.05255888325765,0,19.05255888325765,0,19.05255888325765,0,29.444863728670914,0,19.05255888325765,0,19.05255888325765,0,19.05255888325765,0,19.05255888325765,0,19.05255888325765,0,19.05255888325765,0,19.05255888325765,0,19.05255888325765,0,19.05255888325765,0,19.05255888325765,0,19.05255888325765,0,19.05255888325765,0,25.98076211353316,0,25.98076211353316]
[null,"50.0 percent or more",0,11,0,11,0,11,0,11,0,17,0,11,0,11,0,11,0,11,0,11,0,11,0,11,0,11,0,11,0,11,0,11,0,11,0,15,0,15]
[null,"Not Computed",0,11,0,11,0,11,0,11,0,17,10,16,0,11,0,11,0,11,0,11,0,11,0,11,0,11,9,13,7,7,0,11,0,11,0,15,26,30]
[]
[]
[null,"Calculated GROSS RENT AS A PERCENTAGE OF HOUSEHOLD INCOME IN THE PAST 12 MONTHS"]
[null,"Universe:  RENTER-OCCUPIED HOUSING UNITS"]
[null,"Data Set: 2010-2014 American Community Survey 5-Year Estimates"]
[]
[null,null,"Albany",null,"Bartlett",null,"Brookfield",null,"Chatham",null,"Conway",null,"Eaton",null,"Effingham",null,"Freedom",null,"Hale's Location",null,"Hart's Location",null,"Jackson",null,"Madison",null,"Moultonborough",null,"Ossipee",null,"Sandwich",null,"Tamworth",null,"Tuftonboro",null,"Wakefield",null,"Wolfeboro"]
[null," ","Estimate","Margin of Error","Estimate","Margin of Error","Estimate","Margin of Error","Estimate","Margin of Error","Estimate","Margin of Error","Estimate","Margin of Error","Estimate","Margin of Error","Estimate","Margin of Error","Estimate","Margin of Error","Estimate","Margin of Error","Estimate","Margin of Error","Estimate","Margin of Error","Estimate","Margin of Error","Estimate","Margin of Error","Estimate","Margin of Error","Estimate","Margin of Error","Estimate","Margin of Error","Estimate","Margin of Error","Estimate","Margin of Error"]
[null,"Total:",45,20,412,210,9,11,27,14,1399,271,30,20,92,45,90,39,0,11,16,12,81,45,153,66,171,69,277,101,144,64,465,160,170,73,241,136,520,181]
[null,"Less than 30.0 percent",32,46.357307945997036,173,129.08911650483941,6,50.19960159204453,14,52.04805471869242,633,208.68157561222313,16,45.738386504117088,20,51.594573358057723,51,50.921508225896062,0,50.408332644514239,7,47.201694884823787,44,59.211485372349848,57,61.514225996918796,98,71.021123618258812,54,65.452272687814286,52,60.423505360083176,258,167.05986950791024,52,60.728905802755904,35,76.078906406440936,149,127.14951828457707]
[null,"More than 30.0 percent",9,54.415071441651165,222,147.09860638360922,0,58.20652884342099,12,56.311632901204348,622,236.76359517459605,0,58.20652884342099,59,64.257295305669373,27,57.428216061444921,0,58.20652884342099,7,58.20652884342099,13,58,56,73.607064878311789,42,65.406421703071331,171,113.23427043081966,55,58.932164392630277,191,125.54282137979854,92,77.756028705175012,206,159.86244086714052,345,193.18385025669201]
[null,"Less Than 35% of HH Income",34,53.768020235080257,276,160.31843312607569,6,58.025856305616031,14,59.632206063502295,803,239.46189676021527,16,54.212544673719201,44,63.348243858847418,56,58.034472514187634,0,58.20652884342099,7,55.452682532047085,44,65.977268812826736,86,75.729782780620724,106,77.06490770772389,65,72.794230540613583,64,65.36818798161687,321,185.6932955170972,76,71.042240955645539,119,132.65745361644781,149,133.19909909605244]
[null,"35.0 percent or more",7,47.106262853255508,119,112.24972160321825,0,50.408332644514239,12,48.207883172775801,452,205.57966825539921,0,50.408332644514239,35,52.706735812417755,22,50.229473419497438,0,50.408332644514239,7,50.408332644514239,13,50.169711978443729,27,58.881236400062114,34,58.163562476863468,160,108.66002024663901,43,53.394756296849977,128,95.854055730574075,68,68.461668107050969,122,117.2433366976563,345,189.0634814024115]
[null,"50.0 percent or more",7,22.912878474779198,112,104.53229166147655,0,29.103264421710495,9,27.110883423451916,181,122.50306118624138,0,29.103264421710495,24,35.298725189445584,8,28.740215726399828,0,29.103264421710495,0,29.103264421710495,8,29.916550603303182,8,29.49576240750525,13,29.13760456866693,105,86.429161745327605,28,32.449961479175904,128,86.567892431316594,68,54.708317466359723,94,93.786992701546836,209,155.37052487521564]
[null,"Not Computed",4,27.239676943752471,17,38.144462245521304,3,27.404379212089442,1,27.110883423451916,144,114.564392373896,4,25.179356624028344,13,28.583211855912904,12,24.859605789312106,0,29.103264421710495,2,27.110883423451916,24,28.548204847240395,40,44.519658579104131,31,48.228622207149975,43,46.37887450122092,30,38.587562763149478,16,35.425979167836701,26,34.496376621320678,0,39.686269665968858,0,39.686269665968858]
[]
[]
[]
[]
[]
[]
[]
[]
[]
[]
[]
[null,"B25074. HOUSEHOLD INCOME BY GROSS RENT AS A PERCENTAGE OF HOUSEHOLD INCOME IN THE PAST 12 MONTHS"]
[null,"Universe:  RENTER OCCUPIED HOUSING UNITS"]
[null,"Data Set: 2005-2009 American Community Survey 5-Year Estimates",null,null,null,null,null,"Income in 2009 Inflation Adjusted Dollars"]
[]
[null,null,"Albany",null,"Bartlett",null,"Brookfield",null,"Chatham",null,"Conway",null,"Eaton",null,"Effingham",null,"Freedom",null,"Hale's Location",null,"Hart's Location",null,"Jackson",null,"Madison",null,"Moultonborough",null,"Ossipee",null,"Sandwich",null,"Tamworth",null,"Tuftonboro",null,"Wakefield",null,"Wolfeboro"]
[null," ","Estimate","Margin of Error","Estimate","Margin of Error","Estimate","Margin of Error","Estimate","Margin of Error","Estimate","Margin of Error","Estimate","Margin of Error","Estimate","Margin of Error","Estimate","Margin of Error","Estimate","Margin of Error","Estimate","Margin of Error","Estimate","Margin of Error","Estimate","Margin of Error","Estimate","Margin of Error","Estimate","Margin of Error","Estimate","Margin of Error","Estimate","Margin of Error","Estimate","Margin of Error","Estimate","Margin of Error","Estimate","Margin of Error"]
[null,"Total:",37,23,301,108,18,18,15,16,1372,247,13,9,42,23,37,23,0,114,10,14,42,25,148,61,119,71,274,113,73,29,194,71,79,55,206,95,682,209]
[null,"Less than $10,000:",3,5,16,25,0,114,0,114,307,146,0,114,11,11,0,114,0,114,0,114,6,10,22,21,0,114,62,64,17,18,73,39,0,114,0,114,170,126]
[null,"Less than 20.0 percent",0,114,0,114,0,114,0,114,0,114,0,114,0,114,0,114,0,114,0,114,0,114,0,114,0,114,0,114,3,5,0,114,0,114,0,114,0,114]
[null,"20.0 to 24.9 percent",0,114,0,114,0,114,0,114,16,25,0,114,0,114,0,114,0,114,0,114,0,114,0,114,0,114,0,114,0,114,0,114,0,114,0,114,14,22]
[null,"25.0 to 29.9 percent",0,114,0,114,0,114,0,114,7,12,0,114,0,114,0,114,0,114,0,114,0,114,0,114,0,114,0,114,0,114,14,15,0,114,0,114,0,114]
[null,"30.0 to 34.9 percent",0,114,0,114,0,114,0,114,22,37,0,114,0,114,0,114,0,114,0,114,0,114,0,114,0,114,0,114,0,114,0,114,0,114,0,114,0,114]
[null,"35.0 percent or more",0,114,16,25,0,114,0,114,233,132,0,114,11,11,0,114,0,114,0,114,6,10,22,21,0,114,39,60,9,15,38,27,0,114,0,114,145,123]
[null,"Not computed",3,5,0,114,0,114,0,114,29,49,0,114,0,114,0,114,0,114,0,114,0,114,0,114,0,114,23,26,5,7,21,31,0,114,0,114,11,19]
[null,"$10,000 to $19,999:",14,15,75,46,0,114,4,6,187,107,4,6,19,19,11,14,0,114,0,114,0,114,13,15,0,114,57,29,0,114,7,10,0,114,68,59,225,150]
[null,"Less than 20.0 percent",3,5,0,114,0,114,0,114,0,114,0,114,0,114,0,114,0,114,0,114,0,114,0,114,0,114,0,114,0,114,0,114,0,114,0,114,39,64]
[null,"20.0 to 24.9 percent",0,114,0,114,0,114,0,114,21,22,4,6,0,114,0,114,0,114,0,114,0,114,0,114,0,114,0,114,0,114,0,114,0,114,25,28,23,36]
[null,"25.0 to 29.9 percent",0,114,0,114,0,114,0,114,31,26,0,114,0,114,0,114,0,114,0,114,0,114,0,114,0,114,0,114,0,114,0,114,0,114,0,114,0,114]
[null,"30.0 to 34.9 percent",0,114,0,114,0,114,0,114,0,114,0,114,0,114,0,114,0,114,0,114,0,114,0,114,0,114,0,114,0,114,0,114,0,114,0,114,0,114]
[null,"35.0 percent or more",11,14,63,42,0,114,0,114,118,104,0,114,19,19,3,4,0,114,0,114,0,114,13,15,0,114,32,20,0,114,0,114,0,114,43,52,137,129]
[null,"Not computed",0,114,12,19,0,114,4,6,17,27,0,114,0,114,8,14,0,114,0,114,0,114,0,114,0,114,25,27,0,114,7,10,0,114,0,114,26,30]
[null,"$20,000 to $34,999:",18,16,61,47,7,8,6,10,298,132,3,5,8,9,14,12,0,114,10,14,5,8,33,26,47,41,78,65,21,18,31,29,26,28,19,30,183,141]
[null,"Less than 20.0 percent",0,114,12,18,0,114,0,114,21,33,0,114,0,114,0,114,0,114,0,114,0,114,7,11,0,114,8,13,0,114,7,9,0,114,0,114,48,66]
[null,"20.0 to 24.9 percent",0,114,16,25,0,114,0,114,28,30,0,114,0,114,0,114,0,114,0,114,0,114,0,114,0,114,0,114,3,4,0,114,0,114,0,114,14,23]
[null,"25.0 to 29.9 percent",3,5,0,114,0,114,0,114,14,22,0,114,4,7,5,8,0,114,0,114,0,114,4,8,0,114,19,29,9,14,0,114,0,114,0,114,59,96]
[null,"30.0 to 34.9 percent",0,114,0,114,0,114,6,10,40,62,0,114,0,114,5,7,0,114,0,114,0,114,9,14,7,12,0,114,0,114,9,14,0,114,0,114,32,39]
[null,"35.0 percent or more",6,11,33,37,4,6,0,114,195,120,3,5,4,6,0,114,0,114,0,114,0,114,13,13,40,39,18,28,0,114,15,24,21,27,19,30,16,26]
[null,"Not computed",9,15,0,114,3,5,0,114,0,114,0,114,0,114,4,6,0,114,10,14,5,8,0,114,0,114,33,51,9,11,0,114,5,8,0,114,14,26]
[null,"$35,000 to $49,999:",0,114,112,78,8,14,5,11,142,107,2,5,0,114,6,9,0,114,0,114,13,13,0,114,0,114,25,41,13,9,34,41,38,45,43,38,42,48]
[null,"Less than 20.0 percent",0,114,20,30,0,114,0,114,0,114,0,114,0,114,0,114,0,114,0,114,6,10,0,114,0,114,25,41,3,5,12,19,0,114,0,114,0,114]
[null,"20.0 to 24.9 percent",0,114,42,49,0,114,0,114,87,84,0,114,0,114,6,9,0,114,0,114,0,114,0,114,0,114,0,114,0,114,0,114,0,114,0,114,0,114]
[null,"25.0 to 29.9 percent",0,114,18,29,0,114,0,114,0,114,0,114,0,114,0,114,0,114,0,114,4,7,0,114,0,114,0,114,0,114,0,114,0,114,29,30,24,39]
[null,"30.0 to 34.9 percent",0,114,11,19,0,114,0,114,33,55,0,114,0,114,0,114,0,114,0,114,0,114,0,114,0,114,0,114,5,7,22,36,13,22,0,114,0,114]
[null,"35.0 percent or more",0,114,21,32,0,114,5,11,22,35,2,5,0,114,0,114,0,114,0,114,0,114,0,114,0,114,0,114,5,6,0,114,0,114,0,114,18,29]
[null,"Not computed",0,114,0,114,8,14,0,114,0,114,0,114,0,114,0,114,0,114,0,114,3,6,0,114,0,114,0,114,0,114,0,114,25,39,14,22,0,114]
[null,"$50,000 to $74,999:",0,114,28,32,0,114,0,114,313,148,4,6,4,7,6,8,0,114,0,114,18,17,42,41,20,23,52,47,13,10,44,44,6,9,46,54,32,37]
[null,"Less than 20.0 percent",0,114,12,19,0,114,0,114,227,127,4,6,4,7,6,8,0,114,0,114,12,14,30,36,0,114,18,28,3,6,26,34,6,9,32,51,21,33]
[null,"20.0 to 24.9 percent",0,114,16,26,0,114,0,114,46,48,0,114,0,114,0,114,0,114,0,114,6,9,12,20,0,114,20,31,10,9,0,114,0,114,14,22,0,114]
[null,"25.0 to 29.9 percent",0,114,0,114,0,114,0,114,35,38,0,114,0,114,0,114,0,114,0,114,0,114,0,114,12,18,14,21,0,114,0,114,0,114,0,114,0,114]
[null,"30.0 to 34.9 percent",0,114,0,114,0,114,0,114,0,114,0,114,0,114,0,114,0,114,0,114,0,114,0,114,8,14,0,114,0,114,18,29,0,114,0,114,0,114]
[null,"35.0 percent or more",0,114,0,114,0,114,0,114,0,114,0,114,0,114,0,114,0,114,0,114,0,114,0,114,0,114,0,114,0,114,0,114,0,114,0,114,0,114]
[null,"Not computed",0,114,0,114,0,114,0,114,5,10,0,114,0,114,0,114,0,114,0,114,0,114,0,114,0,114,0,114,0,114,0,114,0,114,0,114,11,19]
[null,"$75,000 to $99,999:",2,4,0,114,0,114,0,114,103,78,0,114,0,114,0,114,0,114,0,114,0,114,33,31,52,55,0,114,5,6,0,114,9,13,13,22,30,45]
[null,"Less than 20.0 percent",2,4,0,114,0,114,0,114,82,71,0,114,0,114,0,114,0,114,0,114,0,114,11,18,29,38,0,114,0,114,0,114,9,13,0,114,30,45]
[null,"20.0 to 24.9 percent",0,114,0,114,0,114,0,114,0,114,0,114,0,114,0,114,0,114,0,114,0,114,11,17,0,114,0,114,3,5,0,114,0,114,13,22,0,114]
[null,"25.0 to 29.9 percent",0,114,0,114,0,114,0,114,0,114,0,114,0,114,0,114,0,114,0,114,0,114,0,114,0,114,0,114,2,3,0,114,0,114,0,114,0,114]
[null,"30.0 to 34.9 percent",0,114,0,114,0,114,0,114,0,114,0,114,0,114,0,114,0,114,0,114,0,114,0,114,0,114,0,114,0,114,0,114,0,114,0,114,0,114]
[null,"35.0 percent or more",0,114,0,114,0,114,0,114,0,114,0,114,0,114,0,114,0,114,0,114,0,114,0,114,0,114,0,114,0,114,0,114,0,114,0,114,0,114]
[null,"Not computed",0,114,0,114,0,114,0,114,21,33,0,114,0,114,0,114,0,114,0,114,0,114,11,18,23,38,0,114,0,114,0,114,0,114,0,114,0,114]
[null,"$100,000 or more:",0,114,9,14,3,5,0,114,22,36,0,114,0,114,0,114,0,114,0,114,0,114,5,10,0,114,0,114,4,6,5,8,0,114,17,27,0,114]
[null,"Less than 20.0 percent",0,114,9,14,0,114,0,114,22,36,0,114,0,114,0,114,0,114,0,114,0,114,5,10,0,114,0,114,0,114,5,8,0,114,17,27,0,114]
[null,"20.0 to 24.9 percent",0,114,0,114,0,114,0,114,0,114,0,114,0,114,0,114,0,114,0,114,0,114,0,114,0,114,0,114,0,114,0,114,0,114,0,114,0,114]
[null,"25.0 to 29.9 percent",0,114,0,114,0,114,0,114,0,114,0,114,0,114,0,114,0,114,0,114,0,114,0,114,0,114,0,114,0,114,0,114,0,114,0,114,0,114]
[null,"30.0 to 34.9 percent",0,114,0,114,0,114,0,114,0,114,0,114,0,114,0,114,0,114,0,114,0,114,0,114,0,114,0,114,0,114,0,114,0,114,0,114,0,114]
[null,"35.0 percent or more",0,114,0,114,0,114,0,114,0,114,0,114,0,114,0,114,0,114,0,114,0,114,0,114,0,114,0,114,0,114,0,114,0,114,0,114,0,114]
[null,"Not computed",0,114,0,114,3,5,0,114,0,114,0,114,0,114,0,114,0,114,0,114,0,114,0,114,0,114,0,114,4,6,0,114,0,114,0,114,0,114]
[]
[]
[]
[]
[]
[]
[]
[]
[]
[]
[]
[null,"Calculated B25074. HOUSEHOLD INCOME BY GROSS RENT AS A PERCENTAGE OF HOUSEHOLD INCOME IN THE PAST 12 MONTHS"]
[null,"Universe:  RENTER OCCUPIED HOUSING UNITS"]
[null,"Data Set: 2005-2009 American Community Survey 5-Year Estimates",null,null,null,null,null,"Income in 2009 Inflation Adjusted Dollars"]
[]
[null,null,"Albany",null,"Bartlett",null,"Brookfield",null,"Chatham",null,"Conway",null,"Eaton",null,"Effingham",null,"Freedom",null,"Hale's Location",null,"Hart's Location",null,"Jackson",null,"Madison",null,"Moultonborough",null,"Ossipee",null,"Sandwich",null,"Tamworth",null,"Tuftonboro",null,"Wakefield",null,"Wolfeboro"]
[null," ","Estimate","Margin of Error","Estimate","Margin of Error","Estimate","Margin of Error","Estimate","Margin of Error","Estimate","Margin of Error","Estimate","Margin of Error","Estimate","Margin of Error","Estimate","Margin of Error","Estimate","Margin of Error","Estimate","Margin of Error","Estimate","Margin of Error","Estimate","Margin of Error","Estimate","Margin of Error","Estimate","Margin of Error","Estimate","Margin of Error","Estimate","Margin of Error","Estimate","Margin of Error","Estimate","Margin of Error","Estimate","Margin of Error"]
[null,"Total:",37,23,301,108,18,18,15,16,1372,247,13,9,42,23,37,23,0,114,10,14,42,25,148,61,119,71,274,113,73,29,194,71,79,55,206,95,682,209]
[null,"Less than $10,000:",3,5,16,25,0,114,0,114,307,146,0,114,11,11,0,114,0,114,0,114,6,10,22,21,0,114,62,64,17,18,73,39,0,114,0,114,170,126]
[null,"Less than 30.0 percent",0,197.45379206285202,0,197.45379206285202,0,197.45379206285202,0,197.45379206285202,23,117.32433677630571,0,197.45379206285202,0,197.45379206285202,0,197.45379206285202,0,197.45379206285202,0,197.45379206285202,0,197.45379206285202,0,197.45379206285202,0,197.45379206285202,0,197.45379206285202,3,161.29786111415117,14,161.91664522216362,0,197.45379206285202,0,197.45379206285202,14,162.71447384913242]
[null,"More than 30.0 percent",0,161.22034611053283,16,116.70903992407786,0,161.22034611053283,0,161.22034611053283,255,137.0875632579411,0,161.22034611053283,11,114.52947218947619,0,161.22034611053283,0,161.22034611053283,0,161.22034611053283,6,114.43775600735974,22,115.91807451816995,0,161.22034611053283,39,128.82546332150332,9,114.9826073804208,38,117.15374513859982,0,161.22034611053283,0,161.22034611053283,145,167.70509831248424]
[null,"Less Than 35% of HH Income",0,228,0,228,0,228,0,228,45,123.02032352420473,0,228,0,228,0,228,0,228,0,228,0,228,0,228,0,228,0,228,3,197.51708786836647,14,198.022725968511,0,228,0,228,14,198.67561501100229]
[null,"35.0 percent or more",0,114,16,25,0,114,0,114,233,132,0,114,11,11,0,114,0,114,0,114,6,10,22,21,0,114,39,60,9,15,38,27,0,114,0,114,145,123]
[null,"Not Computed",3,5,0,114,0,114,0,114,29,49,0,114,0,114,0,114,0,114,0,114,0,114,0,114,0,114,23,26,5,7,21,31,0,114,0,114,11,19]
[null,"$10,000 to $19,999:",14,15,75,46,0,114,4,6,187,107,4,6,19,19,11,14,0,114,0,114,0,114,13,15,0,114,57,29,0,114,7,10,0,114,68,59,225,150]
[null,"Less than 30.0 percent",3,161.29786111415117,0,197.45379206285202,0,197.45379206285202,0,197.45379206285202,52,118.97898974188678,4,161.33195591698504,0,197.45379206285202,0,197.45379206285202,0,197.45379206285202,0,197.45379206285202,0,197.45379206285202,0,197.45379206285202,0,197.45379206285202,0,197.45379206285202,0,197.45379206285202,0,197.45379206285202,0,197.45379206285202,25,163.63373735266208,62,135.60235986147143]
[null,"More than 30.0 percent",11,114.85643212288984,63,121.49074038789952,0,161.22034611053283,0,161.22034611053283,118,154.31137352768266,0,161.22034611053283,19,115.57248807566617,3,114.0701538527936,0,161.22034611053283,0,161.22034611053283,0,161.22034611053283,13,114.9826073804208,0,161.22034611053283,32,115.7410903698423,0,161.22034611053283,0,161.22034611053283,0,161.22034611053283,43,125.29964086141668,137,172.15400082484288]
[null,"Less Than 35% of HH Income",3,197.51708786836647,0,228,0,228,0,228,52,164.77863939236784,4,197.54493159785193,0,228,0,228,0,228,0,228,0,228,0,228,0,228,0,228,0,228,0,228,0,228,25,199.42918542680758,62,177.15529910222838]
[null,"35.0 percent or more",11,14,63,42,0,114,0,114,118,104,0,114,19,19,3,4,0,114,0,114,0,114,13,15,0,114,32,20,0,114,0,114,0,114,43,52,137,129]
[null,"Not Computed",0,114,12,19,0,114,4,6,17,27,0,114,0,114,8,14,0,114,0,114,0,114,0,114,0,114,25,27,0,114,7,10,0,114,0,114,26,30]
[null,"$20,000 to $34,999:",18,16,61,47,7,8,6,10,298,132,3,5,8,9,14,12,0,114,10,14,5,8,33,26,47,41,78,65,21,18,31,29,26,28,19,30,183,141]
[null,"Less than 30.0 percent",3,161.29786111415117,28,118.0889495253472,0,197.45379206285202,0,197.45379206285202,63,49.729267036625423,0,197.45379206285202,4,161.37224048763778,5,161.41871019184859,0,197.45379206285202,0,197.45379206285202,0,197.45379206285202,11,114.80853626799707,0,197.45379206285202,27,118.34694757364889,12,114.92606318846913,7,161.47135968957468,0,197.45379206285202,0,197.45379206285202,121,118.7476315553283]
[null,"More than 30.0 percent",6,114.52947218947619,33,119.85407794480753,4,114.15778554264269,6,114.43775600735974,235,135.07035203922436,3,114.10959644131601,4,114.15778554264269,5,114.21471008587291,0,161.22034611053283,0,161.22034611053283,0,161.22034611053283,22,19.104973174542799,47,40.80441152620633,18,117.38824472663352,0,161.22034611053283,24,27.784887978899608,21,117.15374513859982,19,117.881296226331,48,46.872166581031863]
[null,"Less Than 35% of HH Income",3,197.51708786836647,28,164.13713778423212,0,228,6,197.70685370011836,103,79.479557120054466,0,228,4,197.57783276471073,10,161.57041808449961,0,228,0,228,0,228,20,115.65898149300814,7,197.81809826201444,27,164.3228529450484,12,161.87649613208214,16,162.07714212682799,0,228,0,228,153,124.9879994239447]
[null,"35.0 percent or more",6,11,33,37,4,6,0,114,195,120,3,5,4,6,0,114,0,114,0,114,0,114,13,13,40,39,18,28,0,114,15,24,21,27,19,30,16,26]
[null,"Not Computed",9,15,0,114,3,5,0,114,0,114,0,114,0,114,4,6,0,114,10,14,5,8,0,114,0,114,33,51,9,11,0,114,5,8,0,114,14,26]
[null,"$35,000 to $49,999:",0,114,112,78,8,14,5,11,142,107,2,5,0,114,6,9,0,114,0,114,13,13,0,114,0,114,25,41,13,9,34,41,38,45,43,38,42,48]
[null,"Less than 30.0 percent",0,197.45379206285202,80,60.514461081629072,0,197.45379206285202,0,197.45379206285202,87,151.91115824718077,0,197.45379206285202,0,197.45379206285202,6,161.47135968957468,0,197.45379206285202,0,197.45379206285202,10,161.5301829380503,0,197.45379206285202,0,197.45379206285202,25,166.35203635663737,3,114.3241006962224,12,121.0495766204905,0,162.71447384913242,29,197.45379206285202,24,197.45379206285202]
[null,"More than 30.0 percent",0,161.22034611053283,32,37.215588131856791,0,161.22034611053283,5,114.52947218947619,55,65.192024052026483,2,114.10959644131601,0,161.22034611053283,0,161.22034611053283,0,161.22034611053283,0,161.22034611053283,0,161.22034611053283,0,161.22034611053283,0,161.22034611053283,0,161.22034611053283,10,9.2195444572928871,22,119.54915307102765,13,116.10340218959993,0,161.22034611053283,18,117.63077828527702]
[null,"Less Than 35% of HH Income",0,228,91,67.104396279230471,0,228,0,228,120,189.92893407798613,0,228,0,228,6,197.6587969203496,0,228,0,228,10,161.68178623456632,0,228,0,228,25,201.66556473528146,8,161.44968256394932,34,166.27988453207442,13,198.67561501100229,29,199.71980372511885,24,201.2684774126341]
[null,"35.0 percent or more",0,114,21,32,0,114,5,11,22,35,2,5,0,114,0,114,0,114,0,114,0,114,0,114,0,114,0,114,5,6,0,114,0,114,0,114,18,29]
[null,"Not Computed",0,114,0,114,8,14,0,114,0,114,0,114,0,114,0,114,0,114,0,114,3,6,0,114,0,114,0,114,0,114,0,114,25,39,14,22,0,114]
[null,"$50,000 to $74,999:",0,114,28,32,0,114,0,114,313,148,4,6,4,7,6,8,0,114,0,114,18,17,42,41,20,23,52,47,13,10,44,44,6,9,46,54,32,37]
[null,"Less than 30.0 percent",0,197.45379206285202,28,118.46096403457132,0,197.45379206285202,0,197.45379206285202,308,140.98581488930012,4,161.33195591698504,4,161.37224048763778,6,161.41871019184859,0,197.45379206285202,0,197.45379206285202,18,115.20850663036997,42,121.21056059601408,12,162.22207001514928,52,46.75467891024384,13,114.51200810395389,26,164.76650144977893,6,161.47135968957468,46,126.81088281373961,21,164.56305782282973]
[null,"More than 30.0 percent",0,161.22034611053283,0,161.22034611053283,0,161.22034611053283,0,161.22034611053283,0,161.22034611053283,0,161.22034611053283,0,161.22034611053283,0,161.22034611053283,0,161.22034611053283,0,161.22034611053283,0,161.22034611053283,0,161.22034611053283,8,114.85643212288984,0,161.22034611053283,0,161.22034611053283,18,117.63077828527702,0,161.22034611053283,0,161.22034611053283,0,161.22034611053283]
[null,"Less Than 35% of HH Income",0,228,28,164.40498775888764,0,228,0,228,308,181.30912828647101,4,197.54493159785193,4,197.57783276471073,6,197.61578884289585,0,228,0,228,18,162.07714212682799,42,166.39711535961192,20,162.82505949638096,52,123.2152587953294,13,161.58279611394278,44,167.29913329123974,6,197.6587969203496,46,170.51979357247652,21,200.19240744843447]
[null,"35.0 percent or more",0,114,0,114,0,114,0,114,0,114,0,114,0,114,0,114,0,114,0,114,0,114,0,114,0,114,0,114,0,114,0,114,0,114,0,114,0,114]
[null,"Not Computed",0,114,0,114,0,114,0,114,5,10,0,114,0,114,0,114,0,114,0,114,0,114,0,114,0,114,0,114,0,114,0,114,0,114,0,114,11,19]
[null,"$75,000 to $99,999:",2,4,0,114,0,114,0,114,103,78,0,114,0,114,0,114,0,114,0,114,0,114,33,31,52,55,0,114,5,6,0,114,9,13,13,22,30,45]
[null,"Less than 30.0 percent",2,161.26996000495566,0,197.45379206285202,0,197.45379206285202,0,197.45379206285202,82,176.16185739256952,0,197.45379206285202,0,197.45379206285202,0,197.45379206285202,0,197.45379206285202,0,197.45379206285202,0,197.45379206285202,22,116.65761869676579,29,165.63815985454559,0,197.45379206285202,5,114.14902540100813,0,197.45379206285202,9,161.74362429474616,13,162.71447384913242,30,167.38279481475985]
[null,"More than 30.0 percent",0,161.22034611053283,0,161.22034611053283,0,161.22034611053283,0,161.22034611053283,0,161.22034611053283,0,161.22034611053283,0,161.22034611053283,0,161.22034611053283,0,161.22034611053283,0,161.22034611053283,0,161.22034611053283,0,161.22034611053283,0,161.22034611053283,0,161.22034611053283,0,161.22034611053283,0,161.22034611053283,0,161.22034611053283,0,161.22034611053283,0,161.22034611053283]
[null,"Less Than 35% of HH Income",2,197.49430371532239,0,228,0,228,0,228,82,209.83088428541686,0,228,0,228,0,228,0,228,0,228,0,228,22,163.11039206623224,29,201.0770996409089,0,228,5,161.32575739788115,0,228,9,197.88127753782064,13,198.67561501100229,30,202.51666598085205]
[null,"35.0 percent or more",0,114,0,114,0,114,0,114,0,114,0,114,0,114,0,114,0,114,0,114,0,114,0,114,0,114,0,114,0,114,0,114,0,114,0,114,0,114]
[null,"Not Computed",0,114,0,114,0,114,0,114,21,33,0,114,0,114,0,114,0,114,0,114,0,114,11,18,23,38,0,114,0,114,0,114,0,114,0,114,0,114]
[null,"$100,000 or more:",0,114,9,14,3,5,0,114,22,36,0,114,0,114,0,114,0,114,0,114,0,114,5,10,0,114,0,114,4,6,5,8,0,114,17,27,0,114]
[null,"Less than 30.0 percent",0,197.45379206285202,9,161.8270681931796,0,197.45379206285202,0,197.45379206285202,22,165.19079877523444,0,197.45379206285202,0,197.45379206285202,0,197.45379206285202,0,197.45379206285202,0,197.45379206285202,0,197.45379206285202,5,161.5301829380503,0,197.45379206285202,0,197.45379206285202,0,197.45379206285202,5,161.41871019184859,0,197.45379206285202,17,163.46559270990332,0,197.45379206285202]
[null,"More than 30.0 percent",0,161.22034611053283,0,161.22034611053283,0,161.22034611053283,0,161.22034611053283,0,161.22034611053283,0,161.22034611053283,0,161.22034611053283,0,161.22034611053283,0,161.22034611053283,0,161.22034611053283,0,161.22034611053283,0,161.22034611053283,0,161.22034611053283,0,161.22034611053283,0,161.22034611053283,0,161.22034611053283,0,161.22034611053283,0,161.22034611053283,0,161.22034611053283]
[null,"Less Than 35% of HH Income",0,228,9,197.94948850653796,0,228,0,228,22,200.70874420413278,0,228,0,228,0,228,0,228,0,228,0,228,5,197.70685370011836,0,228,0,228,0,228,5,197.61578884289585,0,228,17,199.29124416290847,0,228]
[null,"35.0 percent or more",0,114,0,114,0,114,0,114,0,114,0,114,0,114,0,114,0,114,0,114,0,114,0,114,0,114,0,114,0,114,0,114,0,114,0,114,0,114]
[null,"Not Computed",0,114,0,114,3,5,0,114,0,114,0,114,0,114,0,114,0,114,0,114,0,114,0,114,0,114,0,114,4,6,0,114,0,114,0,114,0,114]
[]
[]
[null,"Calculated GROSS RENT AS A PERCENTAGE OF HOUSEHOLD INCOME IN THE PAST 12 MONTHS"]
[null,"Universe:  RENTER OCCUPIED HOUSING UNITS"]
[null,"Data Set: 2005-2009 American Community Survey 5-Year Estimates"]
[]
[null,null,"Albany",null,"Bartlett",null,"Brookfield",null,"Chatham",null,"Conway",null,"Eaton",null,"Effingham",null,"Freedom",null,"Hale's Location",null,"Hart's Location",null,"Jackson",null,"Madison",null,"Moultonborough",null,"Ossipee",null,"Sandwich",null,"Tamworth",null,"Tuftonboro",null,"Wakefield",null,"Wolfeboro"]
[null," ","Estimate","Margin of Error","Estimate","Margin of Error","Estimate","Margin of Error","Estimate","Margin of Error","Estimate","Margin of Error","Estimate","Margin of Error","Estimate","Margin of Error","Estimate","Margin of Error","Estimate","Margin of Error","Estimate","Margin of Error","Estimate","Margin of Error","Estimate","Margin of Error","Estimate","Margin of Error","Estimate","Margin of Error","Estimate","Margin of Error","Estimate","Margin of Error","Estimate","Margin of Error","Estimate","Margin of Error","Estimate","Margin of Error"]
[null,"Total:",37,23,301,108,18,18,15,16,1372,247,13,9,42,23,37,23,0,114,10,14,42,25,148,61,119,71,274,113,73,29,194,71,79,55,206,95,682,209]
[null,"Less than 30.0 percent",8,483.72926312142829,145,418.0813318004046,0,522.4136292249658,0,522.4136292249658,637,362.86223281019477,8,496.98692135709166,8,497.0130782987506,17,483.87705049940115,0,522.4136292249658,0,522.4136292249658,28,484.05061718791353,80,429.57886353962994,41,498.69028464569067,104,447.0089484562921,36,395.49209853042578,64,445.11009873962644,15,484.41923991517928,130,461.53873076915227,272,438.22254620226926]
[null,"More than 30.0 percent",17,395.30874010069647,144,349.43812041619043,4,411.07663519105535,11,395.18729736670434,663,378.25256112814361,5,394.97088500293285,34,378.77961930389023,8,394.989873287911,0,426.54894209222931,0,426.54894209222931,6,411.15447218776546,57,361.92678817683554,55,380.54828865730036,89,384.36961378339987,19,378.50495373244456,102,347.27798663318697,34,396.44041166359415,62,399.4446144335908,348,389.57926022826217]
[null,"Less Than 35% of HH Income",8,570.05789179696478,156,503.59606829283325,0,603.23129892272664,6,592.44577810969338,732,449.29055187039046,8,581.35015266188759,8,581.37251397017383,22,558.71459619379914,0,603.23129892272664,0,603.23129892272664,28,558.86492106769413,89,512.55243634188298,56,560.36773640173112,104,539.24855122661199,41,497.37913104592559,113,513.94552240485564,28,570.64349641435501,130,540.27215364110702,304,509.96176327250259]
[null,"35.0 percent or more",17,255.53277676259069,133,209.21281031523858,4,279.30628349537716,5,279.45840477609545,568,287.84197053244338,5,255.0098037331114,34,229.13314906403221,3,279.27047821064082,0,301.61564946136332,0,301.61564946136332,6,279.42082957431791,48,229.82384558613583,40,281.95212359547855,89,238.2603617893669,14,255.42317827479948,53,257.45873455759858,21,280.54411417814492,62,261.8854711510358,316,268.84010117540129]
[null,"Not Computed",12,255.40164447395401,12,279.88747739046846,14,228.53883696212336,4,279.30628349537716,72,208.10333971371051,0,301.61564946136332,0,301.61564946136332,12,255.36640342848548,0,301.61564946136332,10,279.59256070217606,8,255.10782034269354,11,279.82137159266443,23,281.81554250963518,81,236.62206152427967,18,228.45130772223652,28,256.98443532634423,30,258.00193797721755,14,280.10712236571209,62,203.18956666128307]

{"sheet":"PlaceOfBirthAndPriorRes","index":60,"n_rows":57,"n_cols":16,"rows_kept":57,"cut":false,"hidden":true,"merged":[[1,3,1,5],[1,7,1,9],[53,2,54,14],[4,3,4,5],[4,7,4,9],[40,3,40,5],[40,7,40,9],[40,11,40,13],[40,14,40,15],[4,11,4,13],[4,14,4,15]]}
[]
[]
[null,null,"SOCIAL CHARACTERISTICS"]
[]
[null,null,"Place of Birth","2005-2009",null,null,null,"2009-2013",null,null,null,"2015-2019",null,null,"Statistically Significant Change "]
[null,null,"Universe: Total Population","Estimate","Margin of Error",null,null,"Estimate","Margin of Error",null,null,"Estimate","Margin of Error",null,"2009-2019","2014-2019"]
[null,null,"  Total:",{"$f":"#REF!","v":{"$error":"#REF!"}},{"$f":"#REF!","v":{"$error":"#REF!"}},null,null,{"$f":"CntyDataLinkPrior5YearEstimates!$B$136","v":800},{"$f":"CntyDataLinkPrior5YearEstimates!$C$136","v":176},null,null,{"$f":"CntyDataLink!$B$136","v":703},{"$f":"CntyDataLink!$C$136","v":142}]
[null,null,"   United States Native",{"$f":"#REF!","v":{"$error":"#REF!"}},{"$f":"#REF!","v":{"$error":"#REF!"}},{"$f":"D8/$D$7","v":{"$error":"#REF!"}},null,{"$f":"CntyDataLinkPrior5YearEstimates!$D$136","v":796},{"$f":"CntyDataLinkPrior5YearEstimates!$E$136","v":175},{"$f":"H8/$H$7","v":0.995},null,{"$f":"CntyDataLink!$D$136","v":694},{"$f":"CntyDataLink!$E$136","v":141},{"$f":"L8/$L$7","v":0.98719772403982931},{"$f":"StatisticallySignificantCalcs!A26","v":{"$error":"#REF!"}},{"$f":"StatisticallySignificantCalcs!J26","v":"N"}]
[null,null,"      New Hampshire Native",{"$f":"#REF!","v":{"$error":"#REF!"}},{"$f":"#REF!","v":{"$error":"#REF!"}},{"$f":"D9/$D$7","v":{"$error":"#REF!"}},null,{"$f":"CntyDataLinkPrior5YearEstimates!$F$136","v":456},{"$f":"CntyDataLinkPrior5YearEstimates!$G$136","v":133},{"$f":"H9/$H$7","v":0.56999999999999995},null,{"$f":"CntyDataLink!$F$136","v":272},{"$f":"CntyDataLink!$G$136","v":80},{"$f":"L9/$L$7","v":0.38691322901849218},{"$f":"StatisticallySignificantCalcs!A27","v":{"$error":"#REF!"}},{"$f":"StatisticallySignificantCalcs!J27","v":"Y"}]
[null,null,"      Born in Different State",{"$f":"#REF!","v":{"$error":"#REF!"}},{"$f":"#REF!","v":{"$error":"#REF!"}},{"$error":"#REF!"},null,{"$f":"CntyDataLinkPrior5YearEstimates!$H$136","v":334},{"$f":"CntyDataLinkPrior5YearEstimates!$I$136","v":74},{"$f":"H10/$H$7","v":0.41749999999999998},null,{"$f":"CntyDataLink!$H$136","v":420},{"$f":"CntyDataLink!$I$136","v":97},0.59743954480796591,{"$f":"StatisticallySignificantCalcs!A28","v":{"$error":"#REF!"}},{"$f":"StatisticallySignificantCalcs!J28","v":"N"}]
[null,null,"          Northeast",{"$f":"#REF!","v":{"$error":"#REF!"}},{"$f":"#REF!","v":{"$error":"#REF!"}},{"$error":"#REF!"},null,{"$f":"CntyDataLinkPrior5YearEstimates!$J$136","v":258},{"$f":"CntyDataLinkPrior5YearEstimates!$K$136","v":58},0.32250000000000001,null,{"$f":"CntyDataLink!$J$136","v":305},{"$f":"CntyDataLink!$K$136","v":72},0.43385490753911804,{"$f":"StatisticallySignificantCalcs!A29","v":{"$error":"#REF!"}},{"$f":"StatisticallySignificantCalcs!J29","v":"N"}]
[null,null,"          Midwest",{"$f":"#REF!","v":{"$error":"#REF!"}},{"$f":"#REF!","v":{"$error":"#REF!"}},{"$error":"#REF!"},null,{"$f":"CntyDataLinkPrior5YearEstimates!$L$136","v":25},{"$f":"CntyDataLinkPrior5YearEstimates!$M$136","v":14},3.125E-2,null,{"$f":"CntyDataLink!$L$136","v":40},{"$f":"CntyDataLink!$M$136","v":20},5.6899004267425321E-2,{"$f":"StatisticallySignificantCalcs!A30","v":{"$error":"#REF!"}},{"$f":"StatisticallySignificantCalcs!J30","v":"N"}]
[null,null,"          South",{"$f":"#REF!","v":{"$error":"#REF!"}},{"$f":"#REF!","v":{"$error":"#REF!"}},{"$error":"#REF!"},null,{"$f":"CntyDataLinkPrior5YearEstimates!$N$136","v":41},{"$f":"CntyDataLinkPrior5YearEstimates!$O$136","v":29},5.1249999999999997E-2,null,{"$f":"CntyDataLink!$N$136","v":65},{"$f":"CntyDataLink!$O$136","v":31},9.2460881934566141E-2,{"$f":"StatisticallySignificantCalcs!A31","v":{"$error":"#REF!"}},{"$f":"StatisticallySignificantCalcs!J31","v":"N"}]
[null,null,"          West",{"$f":"#REF!","v":{"$error":"#REF!"}},{"$f":"#REF!","v":{"$error":"#REF!"}},{"$error":"#REF!"},null,{"$f":"CntyDataLinkPrior5YearEstimates!$P$136","v":10},{"$f":"CntyDataLinkPrior5YearEstimates!$Q$136","v":14},1.2500000000000001E-2,null,{"$f":"CntyDataLink!$P$136","v":10},{"$f":"CntyDataLink!$Q$136","v":9},1.422475106685633E-2,{"$f":"StatisticallySignificantCalcs!A32","v":{"$error":"#REF!"}},{"$f":"StatisticallySignificantCalcs!J32","v":"N"}]
[null,null,"      Native Born Outside US",{"$f":"#REF!","v":{"$error":"#REF!"}},{"$f":"#REF!","v":{"$error":"#REF!"}},{"$error":"#REF!"},null,{"$f":"CntyDataLinkPrior5YearEstimates!$R136","v":6},{"$f":"CntyDataLinkPrior5YearEstimates!$S$136","v":10},7.4999999999999997E-3,null,{"$f":"CntyDataLink!$R136","v":2},{"$f":"CntyDataLink!$S$136","v":3},2.8449502133712661E-3,{"$f":"StatisticallySignificantCalcs!A33","v":{"$error":"#REF!"}},{"$f":"StatisticallySignificantCalcs!J33","v":"N"}]
[null,null,"   Foreign Born",{"$f":"#REF!","v":{"$error":"#REF!"}},{"$f":"#REF!","v":{"$error":"#REF!"}},{"$error":"#REF!"},null,{"$f":"CntyDataLinkPrior5YearEstimates!$Z136","v":4},{"$f":"CntyDataLinkPrior5YearEstimates!$AA$136","v":6},5.0000000000000001E-3,null,{"$f":"CntyDataLink!$Z136","v":9},{"$f":"CntyDataLink!$AA$136","v":9},1.2802275960170697E-2,{"$f":"StatisticallySignificantCalcs!A34","v":{"$error":"#REF!"}},{"$f":"StatisticallySignificantCalcs!J34","v":"N"}]
[null,null,"      Naturalized Citizen",{"$f":"#REF!","v":{"$error":"#REF!"}},{"$f":"#REF!","v":{"$error":"#REF!"}},{"$f":"D17/$L$7","v":{"$error":"#REF!"}},null,{"$f":"CntyDataLinkPrior5YearEstimates!$AB136","v":0},{"$f":"CntyDataLinkPrior5YearEstimates!$AC$136","v":11},0,null,{"$f":"CntyDataLink!$AB136","v":9},{"$f":"CntyDataLink!$AC$136","v":9},1.2802275960170697E-2,{"$f":"StatisticallySignificantCalcs!A35","v":{"$error":"#REF!"}},{"$f":"StatisticallySignificantCalcs!J35","v":"N"}]
[null,null,"      Not a Citizen",{"$f":"#REF!","v":{"$error":"#REF!"}},{"$f":"#REF!","v":{"$error":"#REF!"}},{"$f":"D18/$L$7","v":{"$error":"#REF!"}},null,{"$f":"CntyDataLinkPrior5YearEstimates!$AD$136","v":4},{"$f":"CntyDataLinkPrior5YearEstimates!$AE$136","v":6},5.0000000000000001E-3,null,{"$f":"CntyDataLink!$AD$136","v":0},{"$f":"CntyDataLink!$AE$136","v":11},0,{"$f":"StatisticallySignificantCalcs!A36","v":{"$error":"#REF!"}},{"$f":"StatisticallySignificantCalcs!J36","v":"N"}]
[null,null,null,{"$f":"\"Source: \"& D42&\", \"& H42&\" and \"&L42& \"  American Community Survey Table B05002\"","v":"Source: Estimate, Estimate and Estimate  American Community Survey Table B05002"}]
[]
[]
[]
[]
[]
[]
[]
[]
[]
[]
[]
[]
[]
[]
[]
[]
[]
[]
[]
[]
[null,null,"Place of Residence Prior year for Population"]
[null,null,"Universe: Population","2005-2009",null,null,null,"2010-2014",null,null,null,"2015-2019",null,null,"Statistically Significant Change "]
[null,null,null,"Estimate","Margin of Error",null,null,"Estimate","Margin of Error",null,null,"Estimate","Margin of Error",null,"2009-2019","2014-2019"]
[null,null,"  Total:",{"$f":"#REF!","v":{"$error":"#REF!"}},{"$f":"#REF!","v":{"$error":"#REF!"}},null,null,{"$f":"CntyDataLinkPrior5YearEstimates!$AF$136","v":788},{"$f":"CntyDataLinkPrior5YearEstimates!$AG$136","v":173},null,null,{"$f":"CntyDataLink!$AF$136","v":700},{"$f":"CntyDataLink!$AG$136","v":142},null,{"$f":"StatisticallySignificantCalcs!$A37","v":{"$error":"#REF!"}},{"$f":"StatisticallySignificantCalcs!$J37","v":"N"}]
["Same House",null,"    Same House ",{"$f":"#REF!","v":{"$error":"#REF!"}},{"$f":"#REF!","v":{"$error":"#REF!"}},{"$f":"IF($D$44=\"-\",\"-\",VALUE(D44/$D$43))","v":{"$error":"#REF!"}},null,{"$f":"CntyDataLinkPrior5YearEstimates!$AH$136","v":708},{"$f":"CntyDataLinkPrior5YearEstimates!$AI$136","v":161},{"$f":"IF($H$44=\"-\",\"-\",VALUE($H$44/$H$43))","v":0.89847715736040612},null,{"$f":"CntyDataLink!$AH$136","v":622},{"$f":"CntyDataLink!$AI$136","v":134},{"$f":"IF($L$44=\"-\",\"-\",VALUE($L$44/$L$43))","v":0.88857142857142857},{"$f":"StatisticallySignificantCalcs!$A38","v":{"$error":"#REF!"}},{"$f":"StatisticallySignificantCalcs!$J38","v":"N"}]
["Different House",null,"    Different House 1  ",{"$f":"#REF!","v":{"$error":"#REF!"}},{"$f":"#REF!","v":{"$error":"#REF!"}},{"$f":"IF($D$45=\"-\",\"-\",VALUE(D45/$D$43))","v":{"$error":"#REF!"}},null,{"$f":"CntyDataLinkPrior5YearEstimates!$AJ$136","v":80},{"$f":"CntyDataLinkPrior5YearEstimates!$AK$136","v":44.407206622349037},{"$f":"IF($H$45=\"-\",\"-\",VALUE($H$45/$H$43))","v":0.10152284263959391},null,{"$f":"CntyDataLink!$AJ$136","v":78},{"$f":"CntyDataLink!$AK$136","v":47.613023428469653},{"$f":"IF($L$45=\"-\",\"-\",VALUE($L$45/$L$43))","v":0.11142857142857143},{"$f":"StatisticallySignificantCalcs!$A39","v":{"$error":"#REF!"}},{"$f":"StatisticallySignificantCalcs!$J39","v":"Y"}]
[null,null,"      in New Hampshire",{"$f":"#REF!","v":{"$error":"#REF!"}},{"$f":"#REF!","v":{"$error":"#REF!"}},{"$f":"IF($D$46=\"-\",\"-\",VALUE(D46/$D$43))","v":{"$error":"#REF!"}},null,{"$f":"CntyDataLinkPrior5YearEstimates!$AL$136","v":58},{"$f":"CntyDataLinkPrior5YearEstimates!$AM$136","v":38.600518131237564},{"$f":"IF($H$46=\"-\",\"-\",VALUE($H$46/$H$43))","v":7.3604060913705582E-2},null,{"$f":"CntyDataLink!$AL$136","v":35},{"$f":"CntyDataLink!$AM$136","v":25},{"$f":"IF($L$46=\"-\",\"-\",VALUE($L$46/$L$43))","v":0.05},{"$f":"StatisticallySignificantCalcs!$A40","v":{"$error":"#REF!"}},{"$f":"StatisticallySignificantCalcs!$J40","v":"N"}]
[null,null,"          Same county",{"$f":"#REF!","v":{"$error":"#REF!"}},{"$f":"#REF!","v":{"$error":"#REF!"}},{"$f":"IF($D$47=\"-\",\"-\",VALUE(D47/$D$43))","v":{"$error":"#REF!"}},null,{"$f":"CntyDataLinkPrior5YearEstimates!$AN$136","v":19},{"$f":"CntyDataLinkPrior5YearEstimates!$AO$136","v":23},{"$f":"IF($H$47=\"-\",\"-\",VALUE($H$47/$H$43))","v":2.4111675126903553E-2},null,{"$f":"CntyDataLink!$AN$136","v":28},{"$f":"CntyDataLink!$AO$136","v":24},{"$f":"IF($L$47=\"-\",\"-\",VALUE($L$47/$L$43))","v":0.04},{"$f":"StatisticallySignificantCalcs!$A41","v":{"$error":"#REF!"}},{"$f":"StatisticallySignificantCalcs!$J41","v":"N"}]
[null,null,"          Different county",{"$f":"#REF!","v":{"$error":"#REF!"}},{"$f":"#REF!","v":{"$error":"#REF!"}},{"$f":"IF($D$48=\"-\",\"-\",VALUE(D48/$D$43))","v":{"$error":"#REF!"}},null,{"$f":"CntyDataLinkPrior5YearEstimates!$AP$136","v":39},{"$f":"CntyDataLinkPrior5YearEstimates!$AQ$136","v":31},{"$f":"IF($H$48=\"-\",\"-\",VALUE($H$48/$H$43))","v":4.9492385786802033E-2},null,{"$f":"CntyDataLink!$AP$136","v":7},{"$f":"CntyDataLink!$AQ$136","v":7},{"$f":"IF($L$48=\"-\",\"-\",VALUE($L$48/$L$43))","v":0.01},{"$f":"StatisticallySignificantCalcs!$A42","v":{"$error":"#REF!"}},{"$f":"StatisticallySignificantCalcs!$J42","v":"N"}]
["Different State",null,"      in Different state",{"$f":"#REF!","v":{"$error":"#REF!"}},{"$f":"#REF!","v":{"$error":"#REF!"}},{"$f":"IF($D$49=\"-\",\"-\",VALUE(D49/$D$43))","v":{"$error":"#REF!"}},null,{"$f":"CntyDataLinkPrior5YearEstimates!$AR$136","v":22},{"$f":"CntyDataLinkPrior5YearEstimates!$AS$136","v":19},{"$f":"IF($H$49=\"-\",\"-\",VALUE($H$49/$H$43))","v":2.7918781725888325E-2},null,{"$f":"CntyDataLink!$AR$136","v":43},{"$f":"CntyDataLink!$AS$136","v":39},{"$f":"IF($L$49=\"-\",\"-\",VALUE($L$49/$L$43))","v":6.142857142857143E-2},{"$f":"StatisticallySignificantCalcs!$A43","v":{"$error":"#REF!"}},{"$f":"StatisticallySignificantCalcs!$J43","v":"N"}]
["Eleswhere",null,"       Elsewhere",{"$f":"#REF!","v":{"$error":"#REF!"}},{"$f":"#REF!","v":{"$error":"#REF!"}},{"$f":"IF($D$50=\"-\",\"-\",VALUE(D50/$D$43))","v":{"$error":"#REF!"}},null,{"$f":"CntyDataLinkPrior5YearEstimates!$AT$136","v":0},{"$f":"CntyDataLinkPrior5YearEstimates!$AU$136","v":11},{"$f":"IF($H$50=\"-\",\"-\",VALUE($H$50/$H$43))","v":0},null,{"$f":"CntyDataLink!$AT$136","v":0},{"$f":"CntyDataLink!$AU$136","v":11},{"$f":"IF($L$50=\"-\",\"-\",VALUE($L$50/$L$43))","v":0},{"$f":"StatisticallySignificantCalcs!$A44","v":{"$error":"#REF!"}},{"$f":"StatisticallySignificantCalcs!$J44","v":"N"}]
[]
[null,null,"Data from the American Community Survey are estimates"]
[]
[null,null,"1   The number for Different House was calculated by adding In New Hampshire, In Different State, and Elsewhere totals. The number is not located in the source Table B07003."]
[]
[]
[null,null,{"$f":"\"Source: \"& D42&\", \"& H42&\" and \"&L42& \" American Community Survey Table B07003.\"","v":"Source: Estimate, Estimate and Estimate American Community Survey Table B07003."}]

{"sheet":"ACS_Table_B05002","index":61,"n_rows":84,"n_cols":40,"rows_kept":84,"cut":false,"hidden":true,"merged":[]}
[null,"B05002. PLACE OF BIRTH BY CITIZENSHIP STATUS"]
[null,"Universe: TOTAL POPULATION"]
[null,"Data Set: 2015-2019 American Community Survey 5-Year Estimates"]
[]
[null,null,"Albany",null,"Bartlett",null,"Brookfield",null,"Chatham",null,"Conway",null,"Eaton",null,"Effingham",null,"Freedom",null,"Hale's Location",null,"Hart's Location",null,"Jackson",null,"Madison",null,"Moultonborough",null,"Ossipee",null,"Sandwich",null,"Tamworth",null,"Tuftonboro",null,"Wakefield",null,"Wolfeboro"]
[null," ","Estimate","Margin of Error","Estimate","Margin of Error","Estimate","Margin of Error","Estimate","Margin of Error","Estimate","Margin of Error","Estimate","Margin of Error","Estimate","Margin of Error","Estimate","Margin of Error","Estimate","Margin of Error","Estimate","Margin of Error","Estimate","Margin of Error","Estimate","Margin of Error","Estimate","Margin of Error","Estimate","Margin of Error","Estimate","Margin of Error","Estimate","Margin of Error","Estimate","Margin of Error","Estimate","Margin of Error","Estimate","Margin of Error"]
[null,"Total:",703,142,2774,14,803,186,372,127,10127,31,265,72,1630,231,1349,178,183,43,42,30,891,228,2553,20,4099,28,4334,26,1440,180,2994,13,2213,215,5046,19,6320,18]
[null,"Native:",694,141,2770,16,796,183,364,126,10042,72,254,67,1592,227,1300,175,166,43,42,30,866,226,2443,59,3995,62,4200,112,1397,167,2925,53,2144,211,4921,158,5979,227]
[null,"Born in state of residence",272,80,811,240,290,99,159,80,4215,431,83,33,777,172,349,94,5,6,4,8,281,125,757,156,1466,233,1740,240,451,92,1542,272,803,144,2348,348,2404,407]
[null,"Born in other state in the United States:",420,97,1923,247,506,129,205,63,5725,443,168,53,812,133,946,144,161,44,38,26,585,134,1671,148,2510,240,2460,250,928,116,1365,274,1319,181,2525,341,3450,417]
[null,"Northeast",305,72,1502,280,370,104,157,58,4649,538,143,51,630,107,826,140,136,39,38,26,468,129,1420,168,2076,235,2025,245,687,100,990,220,1065,160,2236,341,3109,404]
[null,"Midwest",40,20,157,103,30,23,21,11,424,222,5,6,46,25,56,32,15,10,0,11,39,29,81,48,236,117,146,80,134,74,229,156,87,40,14,22,158,106]
[null,"South",65,31,236,206,65,43,13,13,438,174,14,9,103,43,52,29,0,11,0,11,58,48,120,57,120,49,180,111,67,29,105,73,113,58,206,130,141,81]
[null,"West",10,9,28,44,41,26,14,13,214,170,6,6,33,21,12,9,10,10,0,11,20,20,50,38,78,59,109,80,40,27,41,39,54,32,69,53,42,61]
[null,"Born outside the United States:",2,3,36,52,0,11,0,11,102,84,3,6,3,5,5,6,0,11,0,11,0,11,15,14,19,22,0,11,18,14,18,25,22,28,48,65,125,122]
[null,"Puerto Rico",0,11,2,4,0,11,0,11,68,75,0,11,0,11,0,11,0,11,0,11,0,11,0,11,1,2,0,11,0,11,0,11,0,11,0,16,1,2]
[null,"U.S. Island Areas",0,11,0,11,0,11,0,11,0,18,0,11,0,11,0,11,0,11,0,11,0,11,0,11,0,11,0,11,0,11,18,25,0,11,0,16,0,16]
[null,"Born abroad of American parent(s)",2,3,34,52,0,11,0,11,34,44,3,6,3,5,5,6,0,11,0,11,0,11,15,14,18,22,0,11,18,14,0,11,22,28,48,65,124,122]
[null,"Foreign born:",9,9,4,6,7,8,8,11,85,65,11,12,38,27,49,31,17,12,0,11,25,25,110,57,104,62,134,106,43,34,69,52,69,49,125,156,341,226]
[null,"Naturalized U.S. citizen",9,9,2,4,3,5,4,8,66,63,11,12,30,25,26,23,15,11,0,11,25,25,53,47,83,52,70,44,28,31,56,48,69,49,72,76,188,138]
[null,"Europe",3,4,2,4,0,11,1,4,44,53,5,5,4,5,16,13,6,6,0,11,25,25,20,20,39,40,0,11,8,9,33,34,32,35,43,71,141,130]
[null,"Asia",4,6,0,11,0,11,0,11,22,32,3,8,13,20,0,11,2,4,0,11,0,11,33,43,35,35,14,24,18,28,23,35,0,11,0,16,0,16]
[null,"Africa",0,11,0,11,0,11,0,11,0,18,0,11,0,11,0,11,0,11,0,11,0,11,0,11,0,11,0,11,0,11,0,11,0,11,0,16,0,16]
[null,"Oceania",0,11,0,11,0,11,0,11,0,18,0,11,0,11,0,11,0,11,0,11,0,11,0,11,0,11,0,11,0,11,0,11,5,9,0,16,0,16]
[null,"Latin America",0,11,0,11,3,5,0,11,0,18,3,4,9,13,0,11,0,11,0,11,0,11,0,11,0,11,13,20,2,4,0,11,17,30,0,16,33,34]
[null,"Northern America",2,3,0,11,0,11,3,6,0,18,0,11,4,5,10,15,7,9,0,11,0,11,0,11,9,14,43,33,0,11,0,11,15,13,29,29,14,24]
[null,"Not a U.S. citizen",0,11,2,4,4,7,4,7,19,22,0,11,8,11,23,22,2,4,0,11,0,11,57,36,21,34,64,94,15,16,13,19,0,11,53,85,153,127]
[null,"Europe",0,11,0,11,4,7,1,4,8,13,0,11,0,11,5,6,0,11,0,11,0,11,36,30,0,11,0,11,15,16,0,11,0,11,53,85,81,102]
[null,"Asia",0,11,0,11,0,11,3,5,11,18,0,11,0,11,5,10,2,4,0,11,0,11,7,13,0,11,0,11,0,11,13,19,0,11,0,16,72,74]
[null,"Africa",0,11,0,11,0,11,0,11,0,18,0,11,0,11,0,11,0,11,0,11,0,11,0,11,1,2,0,11,0,11,0,11,0,11,0,16,0,16]
[null,"Oceania",0,11,0,11,0,11,0,11,0,18,0,11,0,11,0,11,0,11,0,11,0,11,0,11,0,11,0,11,0,11,0,11,0,11,0,16,0,16]
[null,"Latin America",0,11,2,4,0,11,0,11,0,18,0,11,4,8,0,11,0,11,0,11,0,11,0,11,20,33,64,94,0,11,0,11,0,11,0,16,0,16]
[null,"Northern America",0,11,0,11,0,11,0,11,0,18,0,11,4,7,13,20,0,11,0,11,0,11,14,18,0,11,0,11,0,11,0,11,0,11,0,16,0,16]
[]
[]
[]
[]
[]
[]
[null,"B05002. PLACE OF BIRTH BY CITIZENSHIP STATUS"]
[null,"Universe: TOTAL POPULATION"]
[null,"Data Set: 2010-2014 American Community Survey 5-Year Estimates"]
[]
[null,null,"Albany",null,"Bartlett",null,"Brookfield",null,"Chatham",null,"Conway",null,"Eaton",null,"Effingham",null,"Freedom",null,"Hale's Location",null,"Hart's Location",null,"Jackson",null,"Madison",null,"Moultonborough",null,"Ossipee",null,"Sandwich",null,"Tamworth",null,"Tuftonboro",null,"Wakefield",null,"Wolfeboro"]
[null," ","Estimate","Margin of Error","Estimate","Margin of Error","Estimate","Margin of Error","Estimate","Margin of Error","Estimate","Margin of Error","Estimate","Margin of Error","Estimate","Margin of Error","Estimate","Margin of Error","Estimate","Margin of Error","Estimate","Margin of Error","Estimate","Margin of Error","Estimate","Margin of Error","Estimate","Margin of Error","Estimate","Margin of Error","Estimate","Margin of Error","Estimate","Margin of Error","Estimate","Margin of Error","Estimate","Margin of Error","Estimate","Margin of Error"]
[null,"Total:",800,176,2767,20,786,200,393,96,10054,22,348,65,1362,168,1195,152,137,41,41,24,1032,242,2507,18,4032,19,4301,16,1484,191,2851,19,2256,298,5046,37,6231,30]
[null,"Native:",796,175,2727,47,780,200,387,94,9476,185,336,60,1323,171,1170,150,134,41,41,24,972,236,2428,49,3983,34,4263,31,1469,190,2796,41,2199,297,4907,93,6055,118]
[null,"Born in state of residence",456,133,909,198,369,131,149,47,3950,424,101,38,573,104,424,99,12,10,10,10,255,130,1043,155,1081,198,1588,282,645,133,1018,206,833,210,1919,345,2313,393]
[null,"Born in other state in the United States:",334,74,1813,201,397,104,238,63,5482,442,234,44,747,125,738,116,122,38,31,19,717,158,1377,159,2894,206,2600,287,813,131,1728,210,1335,234,2956,318,3701,393]
[null,"Northeast",258,58,1693,214,306,78,200,55,4854,453,208,44,609,106,633,113,104,35,21,17,622,154,1171,176,2512,244,1941,314,689,121,1291,251,1096,216,2449,334,2918,406]
[null,"Midwest",25,14,26,31,21,17,20,16,179,75,12,10,36,19,55,26,11,9,10,12,19,19,67,53,116,57,241,177,23,16,172,85,106,56,119,109,312,137]
[null,"South",41,29,55,60,31,22,8,11,283,138,9,8,54,25,31,15,7,7,0,11,44,31,103,52,212,102,181,80,59,24,65,44,72,42,186,105,302,138]
[null,"West",10,14,39,44,39,33,10,12,166,100,5,7,48,58,19,14,0,11,0,11,32,24,36,28,54,37,237,132,42,22,200,160,61,45,202,140,169,134]
[null,"Born outside the United States:",6,10,5,15,14,19,0,11,44,32,1,3,3,5,8,8,0,11,0,11,0,11,8,9,8,12,75,82,11,11,50,48,31,34,32,36,41,51]
[null,"Puerto Rico",0,11,0,11,0,11,0,11,0,17,0,11,0,11,0,11,0,11,0,11,0,11,0,11,0,11,0,11,0,11,0,11,0,11,0,15,29,47]
[null,"U.S. Island Areas",0,11,0,11,10,18,0,11,0,17,0,11,0,11,0,11,0,11,0,11,0,11,0,11,0,11,0,11,0,11,0,11,0,11,19,29,0,15]
[null,"Born abroad of American parent(s)",6,10,5,15,4,6,0,11,44,32,1,3,3,5,8,8,0,11,0,11,0,11,8,9,8,12,75,82,11,11,50,48,31,34,13,22,12,16]
[null,"Foreign born:",4,6,40,48,6,10,6,7,578,183,12,12,39,39,25,19,3,4,0,11,60,53,79,48,49,29,38,25,15,12,55,40,57,54,139,88,176,111]
[null,"Naturalized U.S. citizen",0,11,2,5,0,11,6,7,224,109,9,11,28,36,22,19,3,4,0,11,55,53,45,32,49,29,31,26,10,12,55,40,57,54,48,48,125,82]
[null,"Not a U.S. citizen",4,6,38,48,6,10,0,11,354,149,3,4,11,14,3,4,0,11,0,11,5,7,34,32,0,11,7,11,5,5,0,11,0,11,91,78,51,47]
[]
[]
[]
[null,"B05002. PLACE OF BIRTH BY CITIZENSHIP STATUS"]
[null,"Universe: TOTAL POPULATION"]
[null,"Data Set: 2005-2009 American Community Survey 5-Year Estimates"]
[]
[null,null,"Albany",null,"Bartlett",null,"Brookfield",null,"Chatham",null,"Conway",null,"Eaton",null,"Effingham",null,"Freedom",null,"Hale's Location",null,"Hart's Location",null,"Jackson",null,"Madison",null,"Moultonborough",null,"Ossipee",null,"Sandwich",null,"Tamworth",null,"Tuftonboro",null,"Wakefield",null,"Wolfeboro"]
[null,null,"Estimate","Margin of Error","Estimate","Margin of Error","Estimate","Margin of Error","Estimate","Margin of Error","Estimate","Margin of Error","Estimate","Margin of Error","Estimate","Margin of Error","Estimate","Margin of Error","Estimate","Margin of Error","Estimate","Margin of Error","Estimate","Margin of Error","Estimate","Margin of Error","Estimate","Margin of Error","Estimate","Margin of Error","Estimate","Margin of Error","Estimate","Margin of Error","Estimate","Margin of Error","Estimate","Margin of Error","Estimate","Margin of Error"]
[null,"Total:",966,265,2936,21,717,220,390,128,9209,26,381,88,1023,179,1178,162,129,47,81,59,926,206,2326,323,4983,24,4690,28,1398,155,2526,334,2398,253,4746,17,6588,17]
[null,"Native:",954,265,2876,49,713,220,390,128,8885,188,365,81,985,177,1164,160,106,52,81,59,851,201,2297,325,4887,96,4651,46,1375,154,2504,336,2334,241,4682,64,6420,63]
[null,"Born in state of residence",359,121,1106,183,297,158,176,70,3635,367,138,48,417,115,349,76,1,3,7,10,275,131,950,223,1495,299,1698,307,498,113,1044,211,912,205,2178,321,2586,272]
[null,"Born in other state in the United States:",595,205,1758,182,416,105,208,82,5159,367,227,57,562,99,812,134,105,51,74,58,561,137,1343,207,3379,305,2915,324,869,91,1439,265,1414,192,2487,311,3834,283]
[null,"Northeast",550,205,1410,169,276,91,155,52,4424,395,221,54,485,93,739,125,84,54,42,37,434,126,1180,189,2731,307,2444,344,683,81,1231,257,1233,188,1957,318,3227,342]
[null,"Midwest",3,5,147,101,70,75,21,18,183,70,0,114,9,9,5,9,15,12,4,7,9,10,62,44,291,142,77,62,67,24,95,47,95,63,175,108,291,189]
[null,"South",16,17,132,64,52,30,27,35,398,173,6,8,59,29,55,42,6,9,28,44,89,60,69,42,198,88,281,162,79,27,92,55,60,31,281,144,207,113]
[null,"West",26,22,69,48,18,19,5,7,154,105,0,114,9,14,13,14,0,114,0,114,29,27,32,27,159,125,113,60,40,17,21,32,26,23,74,51,109,97]
[null,"Born outside the United States:",0,114,12,19,0,114,6,10,91,88,0,114,6,9,3,4,0,114,0,114,15,20,4,6,13,24,38,28,8,9,21,32,8,10,17,27,0,114]
[null,"Puerto Rico",0,114,0,114,0,114,0,114,0,114,0,114,0,114,0,114,0,114,0,114,0,114,0,114,0,114,0,114,0,114,0,114,0,114,0,114,0,114]
[null,"U.S. Island Areas",0,114,0,114,0,114,0,114,0,114,0,114,0,114,0,114,0,114,0,114,0,114,0,114,0,114,9,15,0,114,0,114,0,114,0,114,0,114]
[null,"Born abroad of American parent(s)",0,114,12,19,0,114,6,10,91,88,0,114,6,9,3,4,0,114,0,114,15,20,4,6,13,24,29,25,8,9,21,32,8,10,17,27,0,114]
[null,"Foreign born:",12,14,60,44,4,6,0,114,324,185,16,15,38,34,14,11,23,18,0,114,75,44,29,25,96,94,39,36,23,20,22,20,64,51,64,63,168,63]
[null,"Naturalized U.S. citizen",12,14,28,29,4,6,0,114,110,60,4,8,13,11,14,11,23,18,0,114,45,40,15,16,56,68,21,23,18,18,17,20,48,48,46,57,154,59]
[null,"Not a U.S. citizen",0,114,32,33,0,114,0,114,214,171,12,12,25,35,0,114,0,114,0,114,30,19,14,12,40,64,18,28,5,7,5,7,16,19,18,27,14,22]

{"sheet":"ACS_Table_B07003","index":62,"n_rows":89,"n_cols":40,"rows_kept":89,"cut":false,"hidden":true,"merged":[]}
[null,"B07003. GEOGRAPHICAL MOBILITY IN THE PAST YEAR BY SEX FOR CURRENT RESIDENCE IN THE UNITED STATES - Universe:  POPULATION 1 YEAR AND OVER IN THE UNITED STATES"]
[null,"Data Set: 2015-2019 American Community Survey 5-Year Estimates"]
[null,"Survey: American Community Survey"]
[]
[null,null,"Albany",null,"Bartlett",null,"Brookfield",null,"Chatham",null,"Conway",null,"Eaton",null,"Effingham",null,"Freedom",null,"Hale's Location",null,"Hart's Location",null,"Jackson",null,"Madison",null,"Moultonborough",null,"Ossipee",null,"Sandwich",null,"Tamworth",null,"Tuftonboro",null,"Wakefield",null,"Wolfeboro"]
[null," ","Estimate","Margin of Error","Estimate","Margin of Error","Estimate","Margin of Error","Estimate","Margin of Error","Estimate","Margin of Error","Estimate","Margin of Error","Estimate","Margin of Error","Estimate","Margin of Error","Estimate","Margin of Error","Estimate","Margin of Error","Estimate","Margin of Error","Estimate","Margin of Error","Estimate","Margin of Error","Estimate","Margin of Error","Estimate","Margin of Error","Estimate","Margin of Error","Estimate","Margin of Error","Estimate","Margin of Error","Estimate","Margin of Error"]
[null,"Total:",700,142,2774,14,803,186,371,126,10084,52,263,71,1615,229,1344,178,183,43,42,30,891,228,2543,26,4084,35,4288,43,1434,178,2984,19,2180,215,5026,33,6290,51]
[null,"Male",348,75,1397,161,421,108,192,61,5104,294,130,46,712,108,662,94,92,28,23,17,365,90,1242,97,1991,134,2029,167,692,95,1607,139,1059,125,2614,178,3086,249]
[null,"Female",352,91,1377,158,382,88,179,75,4980,288,133,36,903,144,682,104,91,20,19,14,526,152,1301,102,2093,129,2259,173,742,114,1377,136,1121,129,2412,169,3204,231]
[null,"Same house 1 year ago:",622,134,2614,126,746,178,344,119,8647,447,213,60,1280,183,1148,159,174,42,38,28,873,228,2136,163,3709,204,3741,245,1227,182,2674,301,1993,196,4187,302,5785,255]
[null,"Male",298,70,1273,148,387,102,174,57,4380,339,94,36,570,86,567,89,86,26,21,16,355,90,1022,125,1789,164,1797,190,591,91,1404,206,959,112,2180,225,2829,288]
[null,"Female",324,87,1341,165,359,87,170,72,4267,357,119,33,710,115,581,87,88,20,17,14,518,152,1114,125,1920,156,1944,187,636,114,1270,181,1034,122,2007,221,2956,226]
[null,"Moved within same county:",28,24,72,73,17,21,16,14,1046,391,27,22,187,129,115,78,2,3,0,11,18,21,309,150,308,204,227,138,85,53,249,302,29,24,327,189,149,121]
[null,"Male",18,15,71,73,9,10,14,13,525,209,18,16,74,61,51,34,2,3,0,11,10,15,174,93,161,130,57,49,51,34,190,236,13,14,182,113,45,50]
[null,"Female",10,11,1,4,8,12,2,5,521,277,9,9,113,76,64,46,0,11,0,11,8,13,135,70,147,90,170,124,34,26,59,68,16,14,145,102,104,96]
[null,"Moved from different county within same state:",7,7,0,11,4,9,1,3,92,92,6,7,113,92,30,26,0,11,2,4,0,11,21,31,22,34,100,75,35,42,45,50,97,75,322,283,204,173]
[null,"Male",2,3,0,11,1,4,0,11,14,21,6,7,56,45,18,19,0,11,2,4,0,11,14,20,22,34,54,62,15,17,13,19,59,50,158,136,87,76]
[null,"Female",5,4,0,11,3,5,1,3,78,89,0,11,57,56,12,11,0,11,0,11,0,11,7,11,0,11,46,55,20,25,32,35,38,28,164,162,117,104]
[null,"Moved from different state:",43,39,88,87,36,41,10,10,299,182,17,20,35,25,46,31,7,7,2,4,0,11,77,56,45,40,159,167,87,74,16,23,61,50,190,141,152,119]
[null,"Male",30,28,53,70,24,26,4,7,185,138,12,15,12,10,26,20,4,4,0,11,0,11,32,29,19,25,93,103,35,37,0,11,28,24,94,73,125,104]
[null,"Female",13,12,35,52,12,17,6,7,114,128,5,7,23,17,20,19,3,4,2,4,0,11,45,30,26,24,66,68,52,47,16,23,33,27,96,74,27,41]
[null,"Moved from abroad:",0,11,0,11,0,11,0,11,0,18,0,11,0,11,5,10,0,11,0,11,0,11,0,11,0,11,61,76,0,11,0,11,0,11,0,16,0,16]
[null,"Male",0,11,0,11,0,11,0,11,0,18,0,11,0,11,0,11,0,11,0,11,0,11,0,11,0,11,28,31,0,11,0,11,0,11,0,16,0,16]
[null,"Female",0,11,0,11,0,11,0,11,0,18,0,11,0,11,5,10,0,11,0,11,0,11,0,11,0,11,33,49,0,11,0,11,0,11,0,16,0,16]
[]
[null,"Calculated B07003. GEOGRAPHICAL MOBILITY IN THE PAST YEAR BY SEX FOR CURRENT RESIDENCE IN THE UNITED STATES "]
[null,null,{"$f":"C5","v":"Albany"},null,"Bartlett",null,"Brookfield",null,"Chatham",null,"Conway",null,"Eaton",null,"Effingham",null,"Freedom",null,"Hale's Location",null,"Hart's Location",null,"Jackson",null,{"$f":"Y5","v":"Madison"},null,{"$f":"AA5","v":"Moultonborough"},null,{"$f":"AC5","v":"Ossipee"},null,{"$f":"AE5","v":"Sandwich"},null,{"$f":"AG5","v":"Tamworth"},null,{"$f":"AI5","v":"Tuftonboro"},null,{"$f":"AK5","v":"Wakefield"},null,{"$f":"AM5","v":"Wolfeboro"}]
[null,null,"Estimate","Margin of Error","Estimate","Margin of Error","Estimate","Margin of Error","Estimate","Margin of Error","Estimate","Margin of Error","Estimate","Margin of Error","Estimate","Margin of Error","Estimate","Margin of Error","Estimate","Margin of Error","Estimate","Margin of Error","Estimate",{"$f":"X6","v":"Margin of Error"},{"$f":"Y6","v":"Estimate"},{"$f":"Z6","v":"Margin of Error"},"Estimate","Margin of Error","Estimate","Margin of Error","Estimate","Margin of Error","Estimate","Margin of Error","Estimate","Margin of Error","Estimate","Margin of Error","Estimate","Margin of Error"]
[]
[null,"  Total:",{"$f":"C7","v":700},{"$f":"D7","v":142},{"$f":"E7","v":2774},14,803,186,371,126,10084,52,263,71,1615,229,1344,178,183,43,42,30,891,228,{"$f":"Y7","v":2543},26,4084,35,4288,43,1434,178,2984,19,2180,215,5026,33,6290,51]
[null,"    Same house ",{"$f":"C10","v":622},{"$f":"D10","v":134},{"$f":"E10","v":2614},126,746,178,344,119,8647,447,213,60,1280,183,1148,159,174,42,38,28,873,228,{"$f":"Y10","v":2136},163,3709,204,3741,245,1227,182,2674,301,1993,196,4187,302,5785,255]
[null,"    Different house 2",{"$f":"C13+C16+C19+C22","v":78},{"$f":"SQRT((D13^2)+(D16^2)+(D19^2)+(D22^2))","v":47.613023428469653},{"$f":"E13+E16+E19+E22","v":160},{"$f":"SQRT((F13^2)+(F16^2)+(F19^2)+(F22^2))","v":114.62983904725679},{"$f":"G13+G16+G19+G22","v":57},{"$f":"SQRT((H13^2)+(H16^2)+(H19^2)+(H22^2))","v":48.207883172775801},{"$f":"I13+I16+I19+I22","v":27},{"$f":"SQRT((J13^2)+(J16^2)+(J19^2)+(J22^2))","v":20.639767440550294},{"$f":"K13+K16+K19+K22","v":1437},{"$f":"SQRT((L13^2)+(L16^2)+(L19^2)+(L22^2))","v":441.35359973608462},{"$f":"M13+M16+M19+M22","v":50},{"$f":"SQRT((N13^2)+(N16^2)+(N19^2)+(N22^2))","v":32.465366161495851},{"$f":"O13+O16+O19+O22","v":335},{"$f":"SQRT((P13^2)+(P16^2)+(P19^2)+(P22^2))","v":160.78246173012778},{"$f":"Q13+Q16+Q19+Q22","v":196},{"$f":"SQRT((R13^2)+(R16^2)+(R19^2)+(R22^2))","v":88.436417837902056},{"$f":"S13+S16+S19+S22","v":9},{"$f":"SQRT((T13^2)+(T16^2)+(T19^2)+(T22^2))","v":17.320508075688775},{"$f":"U13+U16+U19+U22","v":4},{"$f":"SQRT((V13^2)+(V16^2)+(V19^2)+(V22^2))","v":16.552945357246848},{"$f":"W13+W16+W19+W22","v":18},{"$f":"SQRT((X13^2)+(X16^2)+(X19^2)+(X22^2))","v":28.354893757515651},{"$f":"Y13+Y16+Y19+Y22","v":407},{"$f":"SQRT((Z13^2)+(Z16^2)+(Z19^2)+(Z22^2))","v":163.45641620933696},{"$f":"AA13+AA16+AA19+AA22","v":375},{"$f":"SQRT((AB13^2)+(AB16^2)+(AB19^2)+(AB22^2))","v":210.93363885355035},{"$f":"AC13+AC16+AC19+AC22","v":547},{"$f":"SQRT((AD13^2)+(AD16^2)+(AD19^2)+(AD22^2))","v":241.52432589699944},{"$f":"AE13+AE16+AE19+AE22","v":207},{"$f":"SQRT((AF13^2)+(AF16^2)+(AF19^2)+(AF22^2))","v":100.84641788382967},{"$f":"AG13+AG16+AG19+AG22","v":310},{"$f":"SQRT((AH13^2)+(AH16^2)+(AH19^2)+(AH22^2))","v":307.17096216927797},{"$f":"AI13+AI16+AI19+AI22","v":187},{"$f":"SQRT((AJ13^2)+(AJ16^2)+(AJ19^2)+(AJ22^2))","v":93.925502394184718},{"$f":"AK13+AK16+AK19+AK22","v":839},{"$f":"SQRT((AL13^2)+(AL16^2)+(AL19^2)+(AL22^2))","v":368.70991307530642},{"$f":"AM13+AM16+AM19+AM22","v":505},{"$f":"SQRT((AN13^2)+(AN16^2)+(AN19^2)+(AN22^2))","v":242.87239447907621}]
[null,"      in New Hampshire",{"$f":"C16+C13","v":35},{"$f":"SQRT((D16^2)+(D13^2))","v":25},{"$f":"E16+E13","v":72},{"$f":"SQRT((F16^2)+(F13^2))","v":73.824115301166998},{"$f":"G16+G13","v":21},{"$f":"SQRT((H16^2)+(H13^2))","v":22.847319317591726},{"$f":"I16+I13","v":17},{"$f":"SQRT((J16^2)+(J13^2))","v":14.317821063276353},{"$f":"K16+K13","v":1138},{"$f":"SQRT((L16^2)+(L13^2))","v":401.67773152117854},{"$f":"M16+M13","v":33},{"$f":"SQRT((N16^2)+(N13^2))","v":23.086792761230392},{"$f":"O16+O13","v":300},{"$f":"SQRT((P16^2)+(P13^2))","v":158.44557425185471},{"$f":"Q16+Q13","v":145},{"$f":"SQRT((R16^2)+(R13^2))","v":82.219219164377861},{"$f":"S16+S13","v":2},{"$f":"SQRT((T16^2)+(T13^2))","v":11.401754250991379},{"$f":"U16+U13","v":2},{"$f":"SQRT((V16^2)+(V13^2))","v":11.704699910719626},{"$f":"W16+W13","v":18},{"$f":"SQRT((X16^2)+(X13^2))","v":23.706539182259394},{"$f":"Y16+Y13","v":330},{"$f":"SQRT((Z16^2)+(Z13^2))","v":153.16984037335808},{"$f":"AA16+AA13","v":330},{"$f":"SQRT((AB16^2)+(AB13^2))","v":206.81392603013947},{"$f":"AC16+AC13","v":327},{"$f":"SQRT((AD16^2)+(AD13^2))","v":157.06368135250111},{"$f":"AE16+AE13","v":120},{"$f":"SQRT((AF16^2)+(AF13^2))","v":67.623960250786851},{"$f":"AG16+AG13","v":294},{"$f":"SQRT((AH16^2)+(AH13^2))","v":306.11109094575454},{"$f":"AI16+AI13","v":126},{"$f":"SQRT((AJ16^2)+(AJ13^2))","v":78.746428490440124},{"$f":"AK16+AK13","v":649},{"$f":"SQRT((AL16^2)+(AL13^2))","v":340.30868340375918},{"$f":"AM16+AM13","v":353},{"$f":"SQRT((AN16^2)+(AN13^2))","v":211.11608181282637}]
[null,"          Same county",{"$f":"C13","v":28},{"$f":"D13","v":24},{"$f":"E13","v":72},73,17,21,16,14,1046,391,27,22,187,129,115,78,2,3,0,11,18,21,{"$f":"Y13","v":309},150,308,204,227,138,85,53,249,302,29,24,327,189,149,121]
[null,"          Different county",{"$f":"C16","v":7},{"$f":"D16","v":7},{"$f":"E16","v":0},11,4,9,1,3,92,92,6,7,113,92,30,26,0,11,2,4,0,11,{"$f":"Y16","v":21},31,22,34,100,75,35,42,45,50,97,75,322,283,204,173]
[null,"      in Different state",{"$f":"C19","v":43},{"$f":"D19","v":39},{"$f":"E19","v":88},87,36,41,10,10,299,182,17,20,35,25,46,31,7,7,2,4,0,11,{"$f":"Y19","v":77},56,45,40,159,167,87,74,16,23,61,50,190,141,152,119]
[null,"       Elsewhere",{"$f":"C22","v":0},{"$f":"D22","v":11},{"$f":"E22","v":0},11,0,11,0,11,0,18,0,11,0,11,5,10,0,11,0,11,0,11,{"$f":"Y22","v":0},11,0,11,61,76,0,11,0,11,0,11,0,16,0,16]
[]
[]
[]
[]
[]
[]
[]
[]
[]
[]
[]
[]
[]
[]
[]
[]
[]
[]
[]
[]
[]
[]
[null,"Calculated GEOGRAPHICAL MOBILITY IN THE PAST YEAR BY SEX FOR CURRENT RESIDENCE IN THE UNITED STATES"]
[null,"Universe:  POPULATION 1 YEAR AND OVER IN THE UNITED STATES"]
[null,"Data Set: 2009-2013 American Community Survey 5-Year Estimates"]
[null,null,"Albany",null,"Bartlett",null,"Brookfield",null,"Chatham",null,"Conway",null,"Eaton",null,"Effingham",null,"Freedom",null,"Hale's Location",null,"Hart's Location",null,"Jackson",null,"Madison",null,"Moultonborough",null,"Ossipee",null,"Sandwich",null,"Tamworth",null,"Tuftonboro",null,"Wakefield",null,"Wolfeboro"]
[null,null,"Estimate","Margin of Error","Estimate","Margin of Error","Estimate","Margin of Error","Estimate","Margin of Error","Estimate","Margin of Error","Estimate","Margin of Error","Estimate","Margin of Error","Estimate","Margin of Error","Estimate","Margin of Error","Estimate","Margin of Error","Estimate","Margin of Error","Estimate","Margin of Error","Estimate","Margin of Error","Estimate","Margin of Error","Estimate","Margin of Error","Estimate","Margin of Error","Estimate","Margin of Error","Estimate","Margin of Error","Estimate","Margin of Error"]
[]
[null,"  Total:",788,173,2767,20,784,200,385,93,9886,141,348,65,1359,169,1174,149,137,41,41,24,1011,231,2493,24,4032,19,4301,16,1484,191,2851,19,2184,277,4954,118,6231,30]
[null,"    Same house ",708,161,2536,152,690,182,302,77,8459,493,324,63,1199,166,1082,142,136,40,41,24,965,230,2298,83,3758,160,3530,311,1360,175,2721,87,2029,295,4619,227,5332,359]
[null,"    Different house 2",80,44.407206622349037,231,155.8139916695545,94,76.498365995621114,83,49.467160824126545,1427,417.18820692823999,24,21.77154105707724,160,82.861329943466387,92,61.040969848127411,1,19.467922333931785,0,22,46,50.149775672479336,195,90.255193756370602,274,166.0301177497625,771,338.20851556399344,124,53.786615435440815,130,75.934182026278521,155,86.429161745327605,335,202.1459868510874,899,389.96922955535865]
[null,"      in New Hampshire",58,38.600518131237564,159,131.48764200486676,90,75.538069872085032,38,41.976183723630712,941,317.84430150625639,13,16.492422502470642,93,52.392747589718944,89,59.908263203000637,0,15.556349186104045,0,15.556349186104045,19,21.400934559032695,122,74.330343736592525,217,158.82694985423601,657,329.83025937594022,99,51.264022471905186,74,56.080299571239813,66,43.278170016764804,245,190.12890364171355,421,249.89997999199599]
[null,"          Same county",19,23,98,117,84,75,33,41,820,303,11,16,82,51,50,33,0,11,0,11,8,13,119,74,37,55,506,308,78,48,29,29,34,28,199,182,292,209]
[null,"          Different county",39,31,61,60,6,9,5,9,121,96,2,4,11,12,39,50,0,11,0,11,11,17,3,7,180,149,151,118,21,18,45,48,32,33,46,55,129,137]
[null,"      in Different state",22,19,70,83,4,5,43,26,480,270,11,9,63,64,3,4,0,11,0,11,27,44,73,50,43,42,114,74,23,16,56,50,89,74,90,67,478,299]
[null,"       Elsewhere",0,11,2,10,0,11,2,3,6,11,0,11,4,5,0,11,1,4,0,11,0,11,0,11,14,24,0,11,2,3,0,11,0,11,0,15,0,15]
[]
[]
[]
[null,"Calculated GEOGRAPHICAL MOBILITY IN THE PAST YEAR BY SEX FOR CURRENT RESIDENCE IN THE UNITED STATES"]
[null,"Universe:  POPULATION 1 YEAR AND OVER IN THE UNITED STATES"]
[null,"Data Set: 2005-2009 American Community Survey 5-Year Estimates"]
[null,null,"Albany",null,"Bartlett",null,"Brookfield",null,"Chatham",null,"Conway",null,"Eaton",null,"Effingham",null,"Freedom",null,"Hale's Location",null,"Hart's Location",null,"Jackson",null,"Madison",null,"Moultonborough",null,"Ossipee",null,"Sandwich",null,"Tamworth",null,"Tuftonboro",null,"Wakefield",null,"Wolfeboro"]
[null,null,"Estimate","Margin of Error","Estimate","Margin of Error","Estimate","Margin of Error","Estimate","Margin of Error","Estimate","Margin of Error","Estimate","Margin of Error","Estimate","Margin of Error","Estimate","Margin of Error","Estimate","Margin of Error","Estimate","Margin of Error","Estimate","Margin of Error","Estimate","Margin of Error","Estimate","Margin of Error","Estimate","Margin of Error","Estimate","Margin of Error","Estimate","Margin of Error","Estimate","Margin of Error","Estimate","Margin of Error","Estimate","Margin of Error"]
[null,"Total",962,264,2923,21,714,222,387,127,9127,71,377,88,1017,177,1178,162,129,47,81,59,926,206,2288,312,4974,29,4648,49,1391,156,2499,323,2391,251,4746,17,6538,50]
[null,"    Same house ",865,259,2623,163,654,214,362,125,7854,501,357,89,926,180,1121,160,126,46,81,59,821,199,1964,278,4493,215,4189,259,1258,151,2168,303,2168,276,4404,214,5758,356]
[null,"    Different house ",97,132.28000604777731,300,200.91789367798975,60,123.09346042743294,25,200.53179299053804,1273,473.42370029393334,20,162.5207679036744,91,129.34450123604017,57,118.1905241548577,3,197.51708786836647,0,228,105,60.390396587536998,324,155.51527256189343,481,260.32671779899965,459,270.95202527384805,133,50.34878350069642,331,162.45307014642722,223,156.31058825300352,342,230.94804610561226,780,336.81151999300732]
[null,"      in New Hampshire",94,66.91038783328041,184,133.29666162361306,53,45.343136195018538,25,119.25183436744275,750,324.82148943689054,9,114.85643212288984,64,47.853944456021594,17,15.620499351813308,0,161.22034611053283,0,161.22034611053283,80,54.74486277268398,215,123.69316876852982,234,177.10166571774531,316,218.28879952943075,89,41.048751503547585,231,131.40015220691336,152,148.27339613025663,283,184.23083346714796,483,264.23663636975095]
[null,"          Same county",85,66,143,118,25,34,25,35,621,310,9,14,51,43,9,10,0,114,0,114,75,54,184,120,77,78,265,205,30,23,209,129,146,148,113,71,267,155]
[null,"          Different county",9,11,41,62,28,30,0,114,129,97,0,114,13,21,8,12,0,114,0,114,5,9,31,30,157,159,51,75,59,34,22,25,6,9,170,170,216,214]
[null,"      in Different state",3,5,116,98,7,10,0,114,523,325,11,15,27,38,40,27,3,5,0,114,15,19,105,94,247,153,143,113,35,25,94,95,64,48,59,80,297,175]
[null,"       Elsewhere",0,114,0,114,0,114,0,114,0,114,0,114,0,114,0,114,0,114,0,114,10,17,4,7,0,114,0,114,9,15,6,10,7,12,0,114,0,114]

{"sheet":"ACS_Table_B14001","index":63,"n_rows":117,"n_cols":40,"rows_kept":117,"cut":false,"hidden":true,"merged":[]}
[null,"B14001. SCHOOL ENROLLMENT BY LEVEL OF SCHOOL FOR THE POPULATION 3 YEARS AND OVER"]
[null,"Universe: POPULATION 3 YEARS AND OVER"]
[null,"Data Set: 2015-2019 American Community Survey 5-Year Estimates"]
[]
[null,null,"Albany",null,"Bartlett",null,"Brookfield",null,"Chatham",null,"Conway",null,"Eaton",null,"Effingham",null,"Freedom",null,"Hale's Location",null,"Hart's Location",null,"Jackson",null,"Madison",null,"Moultonborough",null,"Ossipee",null,"Sandwich",null,"Tamworth",null,"Tuftonboro",null,"Wakefield",null,"Wolfeboro"]
[null," ","Estimate","Margin of Error","Estimate","Margin of Error","Estimate","Margin of Error","Estimate","Margin of Error","Estimate","Margin of Error","Estimate","Margin of Error","Estimate","Margin of Error","Estimate","Margin of Error","Estimate","Margin of Error","Estimate","Margin of Error","Estimate","Margin of Error","Estimate","Margin of Error","Estimate","Margin of Error","Estimate","Margin of Error","Estimate","Margin of Error","Estimate","Margin of Error","Estimate","Margin of Error","Estimate","Margin of Error","Estimate","Margin of Error"]
[null,"Total:",689,137,2767,16,800,185,364,123,9841,110,258,70,1552,207,1344,178,183,43,42,30,875,224,2491,45,4031,51,4214,60,1408,179,2896,95,2162,214,4918,75,6202,91]
[null,"Enrolled in school:",119,44,491,230,153,73,59,42,2126,329,34,20,331,90,191,64,11,12,0,11,133,115,530,134,767,193,501,164,153,58,531,263,357,102,619,124,878,232]
[null,"Enrolled in nursery school, preschool",14,17,26,37,2,4,1,3,165,89,2,4,27,26,6,9,0,11,0,11,45,47,34,23,6,10,26,27,1,2,38,54,36,28,130,82,25,41]
[null,"Enrolled in kindergarten",8,11,41,63,6,9,12,14,151,82,0,11,13,15,17,16,0,11,0,11,12,21,9,11,47,46,6,10,12,9,21,24,0,11,60,49,0,16]
[null,"Enrolled in grade 1 to grade 4",19,16,73,47,34,27,10,14,432,159,9,7,85,39,39,20,0,11,0,11,48,43,101,54,156,77,130,63,32,24,58,59,73,32,126,85,269,128]
[null,"Enrolled in grade 5 to grade 8",25,20,34,50,25,20,18,14,548,217,5,5,69,33,32,19,0,11,0,11,12,18,101,59,186,63,112,68,17,12,187,106,42,28,102,76,133,125]
[null,"Enrolled in grade 9 to grade 12",41,23,127,79,57,39,18,23,569,203,0,11,83,47,59,36,3,4,0,11,16,26,162,78,206,101,129,73,54,33,123,104,73,40,132,77,296,132]
[null,"Enrolled in college, undergraduate years",10,13,138,112,21,22,0,11,127,83,5,9,54,31,34,21,8,12,0,11,0,11,109,59,158,84,88,66,13,12,47,44,93,68,69,63,107,100]
[null,"Graduate or professional school",2,3,52,63,8,9,0,11,134,114,13,14,0,11,4,6,0,11,0,11,0,11,14,15,8,11,10,16,24,25,57,65,40,33,0,16,48,70]
[null,"Not enrolled in school",570,118,2276,231,647,151,305,95,7715,324,224,69,1221,154,1153,155,172,39,42,30,742,165,1961,127,3264,183,3713,143,1255,158,2365,251,1805,203,4299,134,5324,255]
[]
[]
[]
[null,"B14001. Calculated  SCHOOL ENROLLMENT BY LEVEL OF SCHOOL FOR THE POPULATION 3 YEARS AND OVER "]
[null,"Universe: POPULATION 3 YEARS AND OVER"]
[null,"Data Set: 2015-2019 American Community Survey 5-Year Estimates"]
[]
[null,null,"Albany",null,"Bartlett",null,"Brookfield",null,"Chatham",null,"Conway",null,"Eaton",null,"Effingham",null,"Freedom",null,"Hale's Location",null,"Hart's Location",null,"Jackson",null,"Madison",null,"Moultonborough",null,"Ossipee",null,"Sandwich",null,"Tamworth",null,"Tuftonboro",null,"Wakefield",null,"Wolfeboro"]
[null," ","Estimate","Margin of Error","Estimate","Margin of Error","Estimate","Margin of Error","Estimate","Margin of Error","Estimate","Margin of Error","Estimate","Margin of Error","Estimate","Margin of Error","Estimate","Margin of Error","Estimate","Margin of Error","Estimate","Margin of Error","Estimate","Margin of Error","Estimate","Margin of Error","Estimate","Margin of Error","Estimate","Margin of Error","Estimate","Margin of Error","Estimate","Margin of Error","Estimate","Margin of Error","Estimate","Margin of Error","Estimate","Margin of Error"]
[null,"Total:",{"$f":"C7","v":689},137,2767,16,800,185,364,123,9841,110,258,70,1552,207,1344,178,183,43,42,30,875,224,2491,45,4031,51,4214,60,1408,179,2896,95,2162,214,4918,75,6202,91]
[null,"Enrolled in school:",{"$f":"C8","v":119},44,491,230,153,73,59,42,2126,329,34,20,331,90,191,64,11,12,0,11,133,115,530,134,767,193,501,164,153,58,531,263,357,102,619,124,878,232]
[null,"Enrolled in nursery school, preschool, and Kindergarten",{"$f":"C9+C10","v":22},{"$f":"SQRT((D9^2)+(D10^2))","v":20.248456731316587},{"$f":"E9+E10","v":67},{"$f":"SQRT((F9^2)+(F10^2))","v":73.061617830431317},{"$f":"G9+G10","v":8},{"$f":"SQRT((H9^2)+(H10^2))","v":9.8488578017961039},{"$f":"I9+I10","v":13},{"$f":"SQRT((J9^2)+(J10^2))","v":14.317821063276353},{"$f":"K9+K10","v":316},{"$f":"SQRT((L9^2)+(L10^2))","v":121.01652779682617},{"$f":"M9+M10","v":2},{"$f":"SQRT((N9^2)+(N10^2))","v":11.704699910719626},{"$f":"O9+O10","v":40},{"$f":"SQRT((P9^2)+(P10^2))","v":30.016662039607269},{"$f":"Q9+Q10","v":23},{"$f":"SQRT((R9^2)+(R10^2))","v":18.357559750685819},{"$f":"S9+S10","v":0},{"$f":"SQRT((T9^2)+(T10^2))","v":15.556349186104045},{"$f":"U9+U10","v":0},{"$f":"SQRT((V9^2)+(V10^2))","v":15.556349186104045},{"$f":"W9+W10","v":57},{"$f":"SQRT((X9^2)+(X10^2))","v":51.478150704935004},{"$f":"Y9+Y10","v":43},{"$f":"SQRT((Z9^2)+(Z10^2))","v":25.495097567963924},{"$f":"AA9+AA10","v":53},{"$f":"SQRT((AB9^2)+(AB10^2))","v":47.074409183759279},{"$f":"AC9+AC10","v":32},{"$f":"SQRT((AD9^2)+(AD10^2))","v":28.792360097775937},{"$f":"AE9+AE10","v":13},{"$f":"SQRT((AF9^2)+(AF10^2))","v":9.2195444572928871},{"$f":"AG9+AG10","v":59},{"$f":"SQRT((AH9^2)+(AH10^2))","v":59.093146810776631},{"$f":"AI9+AI10","v":36},{"$f":"SQRT((AJ9^2)+(AJ10^2))","v":30.083217912982647},{"$f":"AK9+AK10","v":190},{"$f":"SQRT((AL9^2)+(AL10^2))","v":95.524865872714003},{"$f":"AM9+AM10","v":25},{"$f":"SQRT((AN9^2)+(AN10^2))","v":44.011362169330773}]
[null,{"$f":"B9","v":"Enrolled in nursery school, preschool"},14,17,26,37,2,4,1,3,165,89,2,4,27,26,6,9,0,11,0,11,45,47,34,23,6,10,26,27,1,2,38,54,36,28,130,82,25,41]
[null,{"$f":"B10","v":"Enrolled in kindergarten"},8,11,41,63,6,9,12,14,151,82,0,11,13,15,17,16,0,11,0,11,12,21,9,11,47,46,6,10,12,9,21,24,0,11,60,49,0,16]
[null,"Enrolled in grade Elementary School (grade 1 to grade 8)",{"$f":"C11+C12","v":44},{"$f":"SQRT((D11^2)+(D12^2))","v":25.612496949731394},{"$f":"E11+E12","v":107},{"$f":"SQRT((F11^2)+(F12^2))","v":68.622153857191051},{"$f":"G11+G12","v":59},{"$f":"SQRT((H11^2)+(H12^2))","v":33.600595232822883},{"$f":"I11+I12","v":28},{"$f":"SQRT((J11^2)+(J12^2))","v":19.798989873223331},{"$f":"K11+K12","v":980},{"$f":"SQRT((L11^2)+(L12^2))","v":269.01672810440618},{"$f":"M11+M12","v":14},{"$f":"SQRT((N11^2)+(N12^2))","v":8.6023252670426267},{"$f":"O11+O12","v":154},{"$f":"SQRT((P11^2)+(P12^2))","v":51.088159097779204},{"$f":"Q11+Q12","v":71},{"$f":"SQRT((R11^2)+(R12^2))","v":27.586228448267445},{"$f":"S11+S12","v":0},{"$f":"SQRT((T11^2)+(T12^2))","v":15.556349186104045},{"$f":"U11+U12","v":0},{"$f":"SQRT((V11^2)+(V12^2))","v":15.556349186104045},{"$f":"W11+W12","v":60},{"$f":"SQRT((X11^2)+(X12^2))","v":46.61544808322666},{"$f":"Y11+Y12","v":202},{"$f":"SQRT((Z11^2)+(Z12^2))","v":79.981247802219244},{"$f":"AA11+AA12","v":342},{"$f":"SQRT((AB11^2)+(AB12^2))","v":99.488692824863264},{"$f":"AC11+AC12","v":242},{"$f":"SQRT((AD11^2)+(AD12^2))","v":92.69843580125827},{"$f":"AE11+AE12","v":49},{"$f":"SQRT((AF11^2)+(AF12^2))","v":26.832815729997478},{"$f":"AG11+AG12","v":245},{"$f":"SQRT((AH11^2)+(AH12^2))","v":121.31364309095659},{"$f":"AI11+AI12","v":115},{"$f":"SQRT((AJ11^2)+(AJ12^2))","v":42.5205832509386},{"$f":"AK11+AK12","v":228},{"$f":"SQRT((AL11^2)+(AL12^2))","v":114.02192771568107},{"$f":"AM11+AM12","v":402},{"$f":"SQRT((AN11^2)+(AN12^2))","v":178.91059219621403}]
[null,"Enrolled in grade 9 to grade 12",{"$f":"C13","v":41},23,127,79,57,39,18,23,569,203,0,11,83,47,59,36,3,4,0,11,16,26,162,78,206,101,129,73,54,33,123,104,73,40,132,77,296,132]
[null,"Enrolled in Elementary and High School",{"$f":"C11+C12+C13","v":85},{"$f":"SQRT((D11^2)+(D12^2)+(D13^2))","v":34.423828956117013},{"$f":"E11+E12+E13","v":234},{"$f":"SQRT((F11^2)+(F12^2)+(F13^2))","v":104.64224768228175},{"$f":"G11+G12+G13","v":116},{"$f":"SQRT((H11^2)+(H12^2)+(H13^2))","v":51.478150704935004},{"$f":"I11+I12+I13","v":46},{"$f":"SQRT((J11^2)+(J12^2)+(J13^2))","v":30.347981810987037},{"$f":"K11+K12+K13","v":1549},{"$f":"SQRT((L11^2)+(L12^2)+(L13^2))","v":337.01483646866347},{"$f":"M11+M12+M13","v":14},{"$f":"SQRT((N11^2)+(N12^2)+(N13^2))","v":13.964240043768941},{"$f":"O11+O12+O13","v":237},{"$f":"SQRT((P11^2)+(P12^2)+(P13^2))","v":69.41901756723442},{"$f":"Q11+Q12+Q13","v":130},{"$f":"SQRT((R11^2)+(R12^2)+(R13^2))","v":45.354161881794269},{"$f":"S11+S12+S13","v":3},{"$f":"SQRT((T11^2)+(T12^2)+(T13^2))","v":16.06237840420901},{"$f":"U11+U12+U13","v":0},{"$f":"SQRT((V11^2)+(V12^2)+(V13^2))","v":19.05255888325765},{"$f":"W11+W12+W13","v":76},{"$f":"SQRT((X11^2)+(X12^2)+(X13^2))","v":53.376024580330075},{"$f":"Y11+Y12+Y13","v":364},{"$f":"SQRT((Z11^2)+(Z12^2)+(Z13^2))","v":111.71839597846005},{"$f":"AA11+AA12+AA13","v":548},{"$f":"SQRT((AB11^2)+(AB12^2)+(AB13^2))","v":141.7709420156331},{"$f":"AC11+AC12+AC13","v":371},{"$f":"SQRT((AD11^2)+(AD12^2)+(AD13^2))","v":117.99152511939153},{"$f":"AE11+AE12+AE13","v":103},{"$f":"SQRT((AF11^2)+(AF12^2)+(AF13^2))","v":42.532340636273474},{"$f":"AG11+AG12+AG13","v":368},{"$f":"SQRT((AH11^2)+(AH12^2)+(AH13^2))","v":159.7904878270293},{"$f":"AI11+AI12+AI13","v":188},{"$f":"SQRT((AJ11^2)+(AJ12^2)+(AJ13^2))","v":58.378078077305695},{"$f":"AK11+AK12+AK13","v":360},{"$f":"SQRT((AL11^2)+(AL12^2)+(AL13^2))","v":137.58633653092156},{"$f":"AM11+AM12+AM13","v":698},{"$f":"SQRT((AN11^2)+(AN12^2)+(AN13^2))","v":222.33533232484666}]
[null,"Enrolled in College or Graduate School",{"$f":"C14+C15","v":12},{"$f":"SQRT((D14^2)+(D15^2))","v":13.341664064126334},{"$f":"E14+E15","v":190},{"$f":"SQRT((F14^2)+(F15^2))","v":128.50291825480073},{"$f":"G14+G15","v":29},{"$f":"SQRT((H14^2)+(H15^2))","v":23.769728648009426},{"$f":"I14+I15","v":0},{"$f":"SQRT((J14^2)+(J15^2))","v":15.556349186104045},{"$f":"K14+K15","v":261},{"$f":"SQRT((L14^2)+(L15^2))","v":141.01418368376991},{"$f":"M14+M15","v":18},{"$f":"SQRT((N14^2)+(N15^2))","v":16.643316977093239},{"$f":"O14+O15","v":54},{"$f":"SQRT((P14^2)+(P15^2))","v":32.893768406797051},{"$f":"Q14+Q15","v":38},{"$f":"SQRT((R14^2)+(R15^2))","v":21.840329667841555},{"$f":"S14+S15","v":8},{"$f":"SQRT((T14^2)+(T15^2))","v":16.278820596099706},{"$f":"U14+U15","v":0},{"$f":"SQRT((V14^2)+(V15^2))","v":15.556349186104045},{"$f":"W14+W15","v":0},{"$f":"SQRT((X14^2)+(X15^2))","v":15.556349186104045},{"$f":"Y14+Y15","v":123},{"$f":"SQRT((Z14^2)+(Z15^2))","v":60.876925020897694},{"$f":"AA14+AA15","v":166},{"$f":"SQRT((AB14^2)+(AB15^2))","v":84.717176534631989},{"$f":"AC14+AC15","v":98},{"$f":"SQRT((AD14^2)+(AD15^2))","v":67.911707385398586},{"$f":"AE14+AE15","v":37},{"$f":"SQRT((AF14^2)+(AF15^2))","v":27.730849247724095},{"$f":"AG14+AG15","v":104},{"$f":"SQRT((AH14^2)+(AH15^2))","v":78.492037812761623},{"$f":"AI14+AI15","v":133},{"$f":"SQRT((AJ14^2)+(AJ15^2))","v":75.584389922787622},{"$f":"AK14+AK15","v":69},{"$f":"SQRT((AL14^2)+(AL15^2))","v":65},{"$f":"AM14+AM15","v":155},{"$f":"SQRT((AN14^2)+(AN15^2))","v":122.06555615733703}]
[null,"Not enrolled in school",{"$f":"C16","v":570},118,2276,231,647,151,305,95,7715,324,224,69,1221,154,1153,155,172,39,42,30,742,165,1961,127,3264,183,3713,143,1255,158,2365,251,1805,203,4299,134,5324,255]
[]
[]
[]
[]
[]
[]
[]
[]
[]
[]
[]
[]
[]
[]
[]
[]
[]
[]
[]
[]
[]
[]
[]
[]
[]
[]
[]
[]
[]
[]
[]
[]
[]
[]
[]
[]
[]
[]
[]
[]
[]
[]
[]
[]
[]
[]
[]
[null,"B14001. Calculated  SCHOOL ENROLLMENT BY LEVEL OF SCHOOL FOR THE POPULATION 3 YEARS AND OVER "]
[null,"Universe: POPULATION 3 YEARS AND OVER"]
[null,"Data Set: 2010-2014 American Community Survey 5-Year Estimates"]
[]
[null,null,"Albany",null,"Bartlett",null,"Brookfield",null,"Chatham",null,"Conway",null,"Eaton",null,"Effingham",null,"Freedom",null,"Hale's Location",null,"Hart's Location",null,"Jackson",null,"Madison",null,"Moultonborough",null,"Ossipee",null,"Sandwich",null,"Tamworth",null,"Tuftonboro",null,"Wakefield",null,"Wolfeboro"]
[null," ","Estimate","Margin of Error","Estimate","Margin of Error","Estimate","Margin of Error","Estimate","Margin of Error","Estimate","Margin of Error","Estimate","Margin of Error","Estimate","Margin of Error","Estimate","Margin of Error","Estimate","Margin of Error","Estimate","Margin of Error","Estimate","Margin of Error","Estimate","Margin of Error","Estimate","Margin of Error","Estimate","Margin of Error","Estimate","Margin of Error","Estimate","Margin of Error","Estimate","Margin of Error","Estimate","Margin of Error","Estimate","Margin of Error"]
[null,"Total:",778,168,2739,48,769,195,371,86,9770,151,347,64,1341,164,1154,147,137,41,41,24,1001,228,2459,46,3941,66,4189,82,1458,181,2841,24,2184,277,4896,128,6137,91]
[null,"Enrolled in school:",200,89,435,154,208,112,66,30,2126,293,42,23,224,61,192,58,3,6,3,5,205,103,434,95,664,112,1020,212,348,106,296,153,453,172,829,212,1208,245]
[null,"Enrolled in nursery school, preschool, and Kindergarten",42,34.655446902326915,77,67.896980787071826,23,25.495097567963924,5,5,369,137.88763541376724,1,11.704699910719626,27,19.697715603592208,16,20.248456731316587,0,15.556349186104045,0,15.556349186104045,22,25.495097567963924,78,42.941821107167776,95,58.523499553598128,72,69.871310278253688,35,27.313000567495326,19,30.083217912982647,32,29.068883707497267,116,80.156097709406993,94,67.623960250786851]
[null,"Enrolled in nursery school, preschool",27,25,38,49,0,11,2,3,211,98,1,4,8,8,16,17,0,11,0,11,22,23,56,38,13,20,72,69,28,25,19,28,11,13,48,52,50,53]
[null,"Enrolled in kindergarten",15,24,39,47,23,23,3,4,158,97,0,11,19,18,0,11,0,11,0,11,0,11,22,20,82,55,0,11,7,11,0,11,21,26,68,61,44,42]
[null,"Enrolled in grade Elementary School (grade 1 to grade 8)",102,46.690470119715009,147,95.425363504678359,98,51.623637996561229,32,18.601075237738275,727,200.83824337013107,16,10,110,38.013155617496423,91,38.626415831655933,3,12.529964086141668,0,15.556349186104045,71,37.20215047547655,192,75.166481891864535,227,93.23625904121208,441,178.84630272946657,191,63.63961030678928,112,89.202017914394744,225,93.380940239430018,301,121.65936051122412,622,196.79684956827941]
[null,"Enrolled in grade 9 to grade 12",38,30,76,50,44,32,20,16,689,149,16,12,52,23,50,25,0,11,3,5,53,39,128,63,171,66,367,129,62,29,70,55,129,59,230,160,252,123]
[null,"Enrolled in Elementary and High School",140,55.497747702046432,223,107.73114684249862,142,60.737138556240858,52,24.535688292770594,1416,250.0739890512406,32,15.620499351813308,162,44.429719783046124,141,46.010868281309364,3,16.673332000533065,3,16.340134638368191,124,53.898051912847464,320,98.076500753238534,398,114.23221962301179,808,220.51530559124461,253,69.935684739623454,182,104.7950380504726,354,110.4581368664165,531,201,874,232.07326429384321]
[null,"Enrolled in College or Graduate School",18,14.142135623730951,135,111.54371340420759,43,27.202941017470888,9,12.165525060596439,341,136.56500283747664,9,16.278820596099706,35,15.231546211727817,35,17.464249196572979,0,15.556349186104045,0,15.556349186104045,59,38.639358172723313,36,25.495097567963924,171,88.0056816347672,140,72.401657439591816,60,38.078865529319543,95,62.936475910238251,67,45.880278987817846,182,101.23734488813898,240,108.68762579061151]
[null,"Not enrolled in school",578,107,2304,167,561,134,305,70,7644,275,305,52,1117,139,962,112,134,39,38,23,796,166,2025,104,3277,122,3169,210,1110,154,2545,156,1731,219,4067,222,4929,241]
[]
[]
[]
[null,"B14001.Calculated  SCHOOL ENROLLMENT BY LEVEL OF SCHOOL FOR THE POPULATION 3 YEARS AND OVER "]
[null,"Universe: POPULATION 3 YEARS AND OVER"]
[null,"Data Set: 2005-2009 American Community Survey 5-Year Estimates"]
[]
[null,null,"Albany",null,"Bartlett",null,"Brookfield",null,"Chatham",null,"Conway",null,"Eaton",null,"Effingham",null,"Freedom",null,"Hale's Location",null,"Hart's Location",null,"Jackson",null,"Madison",null,"Moultonborough",null,"Ossipee",null,"Sandwich",null,"Tamworth",null,"Tuftonboro",null,"Wakefield",null,"Wolfeboro"]
[null," ","Estimate","Margin of Error","Estimate","Margin of Error","Estimate","Margin of Error","Estimate","Margin of Error","Estimate","Margin of Error","Estimate","Margin of Error","Estimate","Margin of Error","Estimate","Margin of Error","Estimate","Margin of Error","Estimate","Margin of Error","Estimate","Margin of Error","Estimate","Margin of Error","Estimate","Margin of Error","Estimate","Margin of Error","Estimate","Margin of Error","Estimate","Margin of Error","Estimate","Margin of Error","Estimate","Margin of Error","Estimate","Margin of Error"]
[null,"Total:",948,264,2857,51,680,198,366,116,9010,100,373,89,988,172,1162,161,129,47,81,59,916,209,2211,295,4896,65,4558,95,1380,155,2474,321,2387,250,4696,60,6376,121]
[null,"Enrolled in school:",274,95,544,153,154,83,91,52,1958,314,91,43,225,78,204,71,16,23,28,34,154,74,487,125,932,185,1031,185,300,81,561,161,493,130,1143,232,1202,204]
[null,"Enrolled in nursery school, preschool, and Kindergarten",34,24.083189157584592,65,119.54915307102765,23,16.278820596099706,13,115.11733144926528,191,100.4987562112089,4,114.15778554264269,5,114.35471131527551,37,25.612496949731394,14,116.10340218959993,0,161.22034611053283,21,115.26057435220423,33,25.495097567963924,64,55.172456896534889,45,125.7179382586272,7,114.35471131527551,157,74.632432628181164,60,50.328918128646478,123,85.445889310135925,86,63.245553203367585]
[null,"Enrolled in nursery school, preschool",13,16,65,36,11,11,13,16,120,86,4,6,5,9,26,20,14,22,0,114,21,17,12,19,34,40,0,114,0,114,107,61,43,47,52,49,75,60]
[null,"Enrolled in kindergarten",21,18,0,114,12,12,0,114,71,52,0,114,0,114,11,16,0,114,0,114,0,114,21,17,30,38,45,53,7,9,50,43,17,18,71,70,11,20]
[null,"Enrolled in grade Elementary School (grade 1 to grade 8)",72,45.967379738244816,295,147.12239802287073,55,39.962482405376171,38,21.2602916254693,795,214.97209121185941,19,15,135,59.076221950967721,93,39.395431207184416,0,161.22034611053283,4,114.28035701729323,106,51.86520991955976,169,65.192024052026483,398,147.05441169852742,577,135.20724832641184,122,42.544094772365298,204,77.006493232713822,218,75.432088662584434,469,159.3988707613702,593,167.02694393420481]
[null,"Enrolled in grade 9 to grade 12",134,66,115,85,40,35,16,15,548,190,42,27,54,28,40,30,0,114,15,22,15,16,150,67,198,100,286,157,97,35,163,82,114,53,395,155,286,98]
[null,"Enrolled in Elementary and High School",206,80.430093870391573,410,169.91174179555691,95,53.1224999411737,54,26.019223662515376,1343,286.90242243661868,61,30.886890422961002,189,65.375836514724611,133,49.51767361255979,0,197.45379206285202,19,116.37869220780924,121,54.277066980447643,319,93.482618705297298,596,177.83419243778741,863,207.19555979798409,219,55.090834083357279,367,112.48999955551605,332,92.190021151966334,864,222.33533232484666,879,193.6543312193146]
[null,"Enrolled in College or Graduate School",34,118.40608092492548,69,43.829214001622255,36,25.709920264364882,24,119.25183436744275,424,156.32018423735306,26,115.57248807566617,31,20.124611797498108,34,20.615528128088304,2,114.0701538527936,9,115.11733144926528,12,13.45362404707371,135,55.172456896534889,272,159.76545308670458,123,79.208585393251411,74,32.202484376209235,37,30.463092423455635,101,66.708320320631671,156,108.22661410207751,237,107.18675291284833]
[null,"Not enrolled in school",674,186,2313,170,526,165,275,83,7052,349,282,63,763,128,958,125,113,38,53,31,762,181,1724,251,3964,185,3527,187,1080,124,1913,235,1894,222,3553,214,5174,223]

{"sheet":"ACS_Table_B15002","index":64,"n_rows":141,"n_cols":40,"rows_kept":141,"cut":false,"hidden":true,"merged":[]}
[null,"B15002. SEX BY EDUCATIONAL ATTAINMENT FOR THE POPULATION 25 YEARS AND OVER"]
[null,"Universe: Population 25 years an over"]
[null,"Data Set: 2015-2019 American Community Survey 5-Year Estimates"]
[]
[null,null,"Albany",null,"Bartlett",null,"Brookfield",null,"Chatham",null,"Conway",null,"Eaton",null,"Effingham",null,"Freedom",null,"Hale's Location",null,"Hart's Location",null,"Jackson",null,"Madison",null,"Moultonborough",null,"Ossipee",null,"Sandwich",null,"Tamworth",null,"Tuftonboro",null,"Wakefield",null,"Wolfeboro"]
[null," ","Estimate","Margin of Error","Estimate","Margin of Error","Estimate","Margin of Error","Estimate","Margin of Error","Estimate","Margin of Error","Estimate","Margin of Error","Estimate","Margin of Error","Estimate","Margin of Error","Estimate","Margin of Error","Estimate","Margin of Error","Estimate","Margin of Error","Estimate","Margin of Error","Estimate","Margin of Error","Estimate","Margin of Error","Estimate","Margin of Error","Estimate","Margin of Error","Estimate","Margin of Error","Estimate","Margin of Error","Estimate","Margin of Error"]
[null,"Total:",527,107,2213,213,601,131,290,89,7502,314,226,62,1075,148,1127,144,173,38,42,30,725,159,1928,112,3215,172,3372,174,1240,162,2314,211,1782,180,3838,191,5198,253]
[null,"Male:",243,50,1134,168,288,69,148,41,3652,261,110,40,492,76,545,77,85,23,23,17,340,84,905,93,1567,129,1557,161,590,86,1151,171,852,95,1990,166,2513,189]
[null,"No schooling completed",0,11,0,11,0,11,0,11,19,24,0,11,0,11,3,6,0,11,0,11,0,11,0,11,0,11,10,17,2,5,0,11,0,11,14,23,0,16]
[null,"Nursery to 4th grade",0,11,0,11,0,11,0,11,0,18,0,11,0,11,0,11,0,11,0,11,0,11,0,11,0,11,0,11,0,11,0,11,0,11,0,16,0,16]
[null,"5th and 6th grade",0,11,0,11,0,11,0,11,0,18,0,11,0,11,0,11,0,11,0,11,0,11,24,30,0,11,0,11,0,11,40,62,0,11,0,16,0,16]
[null,"7th and 8th grade",2,4,0,11,0,11,11,12,26,28,3,4,4,6,11,9,0,11,0,11,0,11,0,11,5,8,21,23,6,7,0,11,0,11,18,28,0,16]
[null,"9th grade",0,11,25,38,8,11,0,11,28,38,0,11,8,12,0,11,0,11,0,11,0,11,0,11,8,12,0,11,0,11,12,18,0,11,0,16,0,16]
[null,"10th grade",2,3,12,18,1,3,0,11,0,18,3,6,7,7,15,12,0,11,0,11,0,11,8,13,13,19,56,52,4,6,49,77,20,29,44,50,156,161]
[null,"11th grade",0,11,70,53,4,7,0,11,78,65,0,11,13,12,0,11,0,11,0,11,8,12,0,11,33,38,32,31,7,7,0,11,15,13,19,31,0,16]
[null,"12th grade, no diploma",0,11,0,11,5,6,4,5,0,18,1,3,1,3,4,7,0,11,0,11,0,11,9,12,7,11,20,25,11,14,0,11,10,14,60,52,91,113]
[null,"High school graduate, GED, or alternative",69,27,315,117,79,34,53,31,914,210,12,9,230,60,133,46,17,12,8,11,70,51,350,82,387,104,705,176,193,60,459,180,213,64,826,205,721,252]
[null,"Some college, less than 1 year",21,15,50,64,19,15,5,6,153,73,3,5,29,17,17,12,6,6,0,11,11,13,87,54,56,39,85,52,27,16,71,69,68,46,95,67,81,83]
[null,"Some college, 1 or more years, no degree",58,24,106,75,53,30,16,13,759,230,18,10,62,39,80,29,20,11,8,9,56,34,119,57,199,82,186,92,39,23,181,114,143,54,275,149,222,126]
[null,"Associates degree",10,11,127,91,30,16,20,15,315,161,4,8,29,15,73,31,0,11,4,7,19,21,59,36,205,106,153,82,32,17,144,102,109,52,230,129,154,131]
[null,"Bachelors degree",42,22,235,139,54,24,15,10,995,274,50,26,49,24,132,45,22,12,3,6,82,42,166,69,395,90,191,92,153,48,138,94,126,40,298,117,558,201]
[null,"Masters degree",23,11,137,93,25,18,17,9,247,127,15,12,57,33,61,36,17,9,0,11,77,41,67,36,199,68,79,58,78,36,41,62,103,45,64,65,345,147]
[null,"Professional school degree",14,9,57,57,8,8,5,6,50,51,1,3,3,5,8,8,2,3,0,11,6,7,11,11,22,19,19,28,11,8,16,21,35,33,47,72,185,141]
[null,"Doctorate degree",2,3,0,11,2,3,2,3,68,84,0,11,0,11,8,7,1,3,0,11,11,14,5,8,38,30,0,11,27,21,0,11,10,11,0,16,0,16]
[null,"Female:",284,81,1079,196,313,67,142,57,3850,253,116,32,583,84,582,81,88,20,19,14,385,83,1023,74,1648,131,1815,190,650,102,1163,136,930,113,1848,162,2685,220]
[null,"No schooling completed",0,11,0,11,0,11,0,11,7,14,0,11,13,20,2,5,0,11,0,11,0,11,0,11,12,21,27,30,3,4,0,11,4,6,0,16,0,16]
[null,"Nursery to 4th grade",0,11,0,11,0,11,0,11,3,7,0,11,0,11,0,11,0,11,0,11,0,11,0,11,0,11,0,11,0,11,0,11,0,11,0,16,0,16]
[null,"5th and 6th grade",0,11,0,11,0,11,0,11,2,4,0,11,4,6,0,11,0,11,0,11,0,11,0,11,0,11,0,11,4,6,0,11,0,11,0,16,0,16]
[null,"7th and 8th grade",2,4,31,47,0,11,2,5,0,18,2,3,0,11,0,11,0,11,0,11,0,11,0,11,0,11,25,43,0,11,47,73,12,14,0,16,10,20]
[null,"9th grade",0,11,12,18,2,4,8,13,41,63,0,11,9,11,0,11,0,11,0,11,0,11,0,11,0,11,35,57,0,11,0,11,0,11,16,25,1,3]
[null,"10th grade",0,11,18,29,0,11,6,11,38,38,0,11,9,9,0,11,0,11,0,11,0,11,34,37,27,23,53,55,0,11,0,11,20,20,0,16,31,47]
[null,"11th grade",0,11,0,11,3,6,1,5,51,64,0,11,0,11,11,10,0,11,5,8,0,11,7,9,19,21,53,57,7,12,52,61,13,13,14,23,0,16]
[null,"12th grade, no diploma",0,11,12,17,2,3,2,3,0,18,0,11,3,4,0,11,0,11,0,11,0,11,8,11,0,11,74,66,6,6,46,67,0,11,16,26,0,16]
[null,"High school graduate, GED, or alternative",55,23,339,157,61,25,35,23,1006,214,22,15,208,60,185,47,17,11,4,6,50,37,300,91,343,100,723,163,96,39,323,151,220,72,471,165,822,245]
[null,"Some college, less than 1 year",19,14,73,63,13,10,7,10,327,108,3,4,52,32,10,9,5,5,0,11,14,18,104,45,51,35,138,74,25,20,69,64,65,32,228,103,88,80]
[null,"Some college, 1 or more years, no degree",20,12,178,105,39,25,22,15,602,175,12,12,58,27,54,22,19,12,3,4,58,36,142,70,207,76,194,96,69,32,90,67,101,60,241,119,356,154]
[null,"Associates degree",45,20,189,111,39,22,20,15,408,147,7,7,72,25,100,35,5,4,0,11,30,28,91,52,168,65,110,66,98,36,119,53,89,39,491,237,328,169]
[null,"Bachelors degree",91,47,81,77,110,38,31,18,937,233,52,19,82,37,113,34,31,13,7,8,147,58,177,60,633,123,290,81,173,45,301,121,275,76,281,106,503,180]
[null,"Masters degree",32,16,146,86,35,18,7,9,369,156,16,14,69,28,94,32,11,7,0,11,64,44,155,51,115,57,89,53,135,51,116,89,94,46,90,64,452,171]
[null,"Professional school degree",17,17,0,11,9,10,1,3,0,18,2,4,0,11,9,8,0,11,0,11,0,11,5,7,12,18,0,11,25,24,0,11,33,29,0,16,68,78]
[null,"Doctorate degree",3,5,0,11,0,11,0,11,59,58,0,11,4,6,4,8,0,11,0,11,22,24,0,11,61,46,4,10,9,8,0,11,4,7,0,16,26,43]
[]
[]
[]
[]
[]
[]
[]
[]
[null,"Calculated B15002. SEX BY EDUCATIONAL ATTAINMENT FOR THE POPULATION 25 YEARS AND OVER"]
[]
[null,null,"Albany",null,"Bartlett",null,"Brookfield",null,"Chatham",null,"Conway",null,"Eaton",null,"Effingham",null,"Freedom",null,"Hale's Location",null,"Hart's Location",null,"Jackson",null,"Madison",null,"Moultonborough",null,"Ossipee",null,"Sandwich",null,"Tamworth",null,"Tuftonboro",null,"Wakefield",null,"Wolfeboro"]
[null," ","Estimate","Margin of Error","Estimate","Margin of Error","Estimate","Margin of Error","Estimate","Margin of Error","Estimate","Margin of Error","Estimate","Margin of Error","Estimate","Margin of Error","Estimate","Margin of Error","Estimate","Margin of Error","Estimate","Margin of Error","Estimate","Margin of Error","Estimate","Margin of Error","Estimate","Margin of Error","Estimate","Margin of Error","Estimate","Margin of Error","Estimate","Margin of Error","Estimate","Margin of Error","Estimate","Margin of Error","Estimate","Margin of Error"]
[null,"Total:",{"$f":"C7","v":527},{"$f":"D7","v":107},{"$f":"E7","v":2213},{"$f":"F7","v":213},{"$f":"G7","v":601},131,290,89,7502,314,226,62,1075,148,1127,144,173,38,42,30,725,159,1928,112,3215,172,3372,174,1240,162,2314,211,1782,180,3838,191,5198,253]
[null,"Less than 9th grade",{"$f":"(C12+C11+C10)+(C27+C28+C29)","v":4},{"$f":"SQRT((D12^2)+(D11^2)+(D10^2)+(D27^2)+(D28^2)+(D29^2))","v":22.715633383201094},{"$f":"(E12+E11+E10)+(E27+E28+E29)","v":31},{"$f":"SQRT((F12^2)+(F11^2)+(F10^2)+(F27^2)+(F28^2)+(F29^2))","v":53.047148839499378},{"$f":"(G12+G11+G10)+(G27+G28+G29)","v":0},{"$f":"SQRT((H12^2)+(H11^2)+(H10^2)+(H27^2)+(H28^2)+(H29^2))","v":26.944387170614959},{"$f":"(I12+I11+I10)+(I27+I28+I29)","v":13},{"$f":"SQRT((J12^2)+(J11^2)+(J10^2)+(J27^2)+(J28^2)+(J29^2))","v":25.553864678361276},{"$f":"(K12+K11+K10)+(K27+K28+K29)","v":31},{"$f":"SQRT((L12^2)+(L11^2)+(L10^2)+(L27^2)+(L28^2)+(L29^2))","v":42.67317658670374},{"$f":"(M12+M11+M10)+(M27+M28+M29)","v":5},{"$f":"SQRT((N12^2)+(N11^2)+(N10^2)+(N27^2)+(N28^2)+(N29^2))","v":22.561028345356956},{"$f":"(O12+O11+O10)+(O27+O28+O29)","v":8},{"$f":"SQRT((P12^2)+(P11^2)+(P10^2)+(P27^2)+(P28^2)+(P29^2))","v":23.57965224510319},{"$f":"(Q12+Q11+Q10)+(Q27+Q28+Q29)","v":11},{"$f":"SQRT((R12^2)+(R11^2)+(R10^2)+(R27^2)+(R28^2)+(R29^2))","v":26.19160170741759},{"$f":"(S12+S11+S10)+(S27+S28+S29)","v":0},{"$f":"SQRT((T12^2)+(T11^2)+(T10^2)+(T27^2)+(T28^2)+(T29^2))","v":26.944387170614959},{"$f":"(U12+U11+U10)+(U27+U28+U29)","v":0},{"$f":"SQRT((V12^2)+(V11^2)+(V10^2)+(V27^2)+(V28^2)+(V29^2))","v":26.944387170614959},{"$f":"(W12+W11+W10)+(W27+W28+W29)","v":0},{"$f":"SQRT((X12^2)+(X11^2)+(X10^2)+(X27^2)+(X28^2)+(X29^2))","v":26.944387170614959},{"$f":"(Y12+Y11+Y10)+(Y27+Y28+Y29)","v":24},{"$f":"SQRT((Z12^2)+(Z11^2)+(Z10^2)+(Z27^2)+(Z28^2)+(Z29^2))","v":38.794329482541649},{"$f":"(AA12+AA11+AA10)+(AA27+AA28+AA29)","v":5},{"$f":"SQRT((AB12^2)+(AB11^2)+(AB10^2)+(AB27^2)+(AB28^2)+(AB29^2))","v":25.865034312755125},{"$f":"(AC12+AC11+AC10)+(AC27+AC28+AC29)","v":46},{"$f":"SQRT((AD12^2)+(AD11^2)+(AD10^2)+(AD27^2)+(AD28^2)+(AD29^2))","v":53.497663500381023},{"$f":"(AE12+AE11+AE10)+(AE27+AE28+AE29)","v":10},{"$f":"SQRT((AF12^2)+(AF11^2)+(AF10^2)+(AF27^2)+(AF28^2)+(AF29^2))","v":23.853720883753127},{"$f":"(AG12+AG11+AG10)+(AG27+AG28+AG29)","v":87},{"$f":"SQRT((AH12^2)+(AH11^2)+(AH10^2)+(AH27^2)+(AH28^2)+(AH29^2))","v":98.270036124955197},{"$f":"(AI12+AI11+AI10)+(AI27+AI28+AI29)","v":12},{"$f":"SQRT((AJ12^2)+(AJ11^2)+(AJ10^2)+(AJ27^2)+(AJ28^2)+(AJ29^2))","v":28.301943396169811},{"$f":"(AK12+AK11+AK10)+(AK27+AK28+AK29)","v":18},{"$f":"SQRT((AL12^2)+(AL11^2)+(AL10^2)+(AL27^2)+(AL28^2)+(AL29^2))","v":45.431266766402189},{"$f":"(AM12+AM11+AM10)+(AM27+AM28+AM29)","v":10},{"$f":"SQRT((AN12^2)+(AN11^2)+(AN10^2)+(AN27^2)+(AN28^2)+(AN29^2))","v":40.987803063838392}]
[null,"9th to 12th grade, no diploma",{"$f":"(C13+C14+C15+C16)+(C30+C31+C32+C33)","v":2},{"$f":"SQRT((D13^2)+(D14^2)+(D15^2)+(D16^2)+(D30^2)+(D31^2)+(D32^2)+(D33^2))","v":29.257477676655586},{"$f":"(E13+E14+E15+E16)+(E30+E31+E32+E33)","v":149},{"$f":"SQRT((F13^2)+(F14^2)+(F15^2)+(F16^2)+(F30^2)+(F31^2)+(F32^2)+(F33^2))","v":79.202272694664515},{"$f":"(G13+G14+G15+G16)+(G30+G31+G32+G33)","v":25},{"$f":"SQRT((H13^2)+(H14^2)+(H15^2)+(H16^2)+(H30^2)+(H31^2)+(H32^2)+(H33^2))","v":19.924858845171276},{"$f":"(I13+I14+I15+I16)+(I30+I31+I32+I33)","v":21},{"$f":"SQRT((J13^2)+(J14^2)+(J15^2)+(J16^2)+(J30^2)+(J31^2)+(J32^2)+(J33^2))","v":26.683328128252668},{"$f":"(K13+K14+K15+K16)+(K30+K31+K32+K33)","v":236},{"$f":"SQRT((L13^2)+(L14^2)+(L15^2)+(L16^2)+(L30^2)+(L31^2)+(L32^2)+(L33^2))","v":127.08265027138835},{"$f":"(M13+M14+M15+M16)+(M30+M31+M32+M33)","v":4},{"$f":"SQRT((N13^2)+(N14^2)+(N15^2)+(N16^2)+(N30^2)+(N31^2)+(N32^2)+(N33^2))","v":27.766886753829642},{"$f":"(O13+O14+O15+O16)+(O30+O31+O32+O33)","v":50},{"$f":"SQRT((P13^2)+(P14^2)+(P15^2)+(P16^2)+(P30^2)+(P31^2)+(P32^2)+(P33^2))","v":26.172504656604801},{"$f":"(Q13+Q14+Q15+Q16)+(Q30+Q31+Q32+Q33)","v":30},{"$f":"SQRT((R13^2)+(R14^2)+(R15^2)+(R16^2)+(R30^2)+(R31^2)+(R32^2)+(R33^2))","v":29.966648127543394},{"$f":"(S13+S14+S15+S16)+(S30+S31+S32+S33)","v":0},{"$f":"SQRT((T13^2)+(T14^2)+(T15^2)+(T16^2)+(T30^2)+(T31^2)+(T32^2)+(T33^2))","v":31.11269837220809},{"$f":"(U13+U14+U15+U16)+(U30+U31+U32+U33)","v":5},{"$f":"SQRT((V13^2)+(V14^2)+(V15^2)+(V16^2)+(V30^2)+(V31^2)+(V32^2)+(V33^2))","v":30.182776545573141},{"$f":"(W13+W14+W15+W16)+(W30+W31+W32+W33)","v":8},{"$f":"SQRT((X13^2)+(X14^2)+(X15^2)+(X16^2)+(X30^2)+(X31^2)+(X32^2)+(X33^2))","v":31.480152477394387},{"$f":"(Y13+Y14+Y15+Y16)+(Y30+Y31+Y32+Y33)","v":66},{"$f":"SQRT((Z13^2)+(Z14^2)+(Z15^2)+(Z16^2)+(Z30^2)+(Z31^2)+(Z32^2)+(Z33^2))","v":47.402531577965327},{"$f":"(AA13+AA14+AA15+AA16)+(AA30+AA31+AA32+AA33)","v":107},{"$f":"SQRT((AB13^2)+(AB14^2)+(AB15^2)+(AB16^2)+(AB30^2)+(AB31^2)+(AB32^2)+(AB33^2))","v":57.288742349610018},{"$f":"(AC13+AC14+AC15+AC16)+(AC30+AC31+AC32+AC33)","v":323},{"$f":"SQRT((AD13^2)+(AD14^2)+(AD15^2)+(AD16^2)+(AD30^2)+(AD31^2)+(AD32^2)+(AD33^2))","v":135.24052647043342},{"$f":"(AE13+AE14+AE15+AE16)+(AE30+AE31+AE32+AE33)","v":35},{"$f":"SQRT((AF13^2)+(AF14^2)+(AF15^2)+(AF16^2)+(AF30^2)+(AF31^2)+(AF32^2)+(AF33^2))","v":28.705400188814647},{"$f":"(AG13+AG14+AG15+AG16)+(AG30+AG31+AG32+AG33)","v":159},{"$f":"SQRT((AH13^2)+(AH14^2)+(AH15^2)+(AH16^2)+(AH30^2)+(AH31^2)+(AH32^2)+(AH33^2))","v":122.25792407856433},{"$f":"(AI13+AI14+AI15+AI16)+(AI30+AI31+AI32+AI33)","v":78},{"$f":"SQRT((AJ13^2)+(AJ14^2)+(AJ15^2)+(AJ16^2)+(AJ30^2)+(AJ31^2)+(AJ32^2)+(AJ33^2))","v":46.238512086787566},{"$f":"(AK13+AK14+AK15+AK16)+(AK30+AK31+AK32+AK33)","v":169},{"$f":"SQRT((AL13^2)+(AL14^2)+(AL15^2)+(AL16^2)+(AL30^2)+(AL31^2)+(AL32^2)+(AL33^2))","v":92.233399590386995},{"$f":"(AM13+AM14+AM15+AM16)+(AM30+AM31+AM32+AM33)","v":279},{"$f":"SQRT((AN13^2)+(AN14^2)+(AN15^2)+(AN16^2)+(AN30^2)+(AN31^2)+(AN32^2)+(AN33^2))","v":204.77304510115584}]
[null,"High school graduate (includes equivalency)",{"$f":"C17+C34","v":124},{"$f":"SQRT((D17^2)+(D34^2))","v":35.468295701936398},{"$f":"E17+E34","v":654},{"$f":"SQRT((F17^2)+(F34^2))","v":195.80091930325557},{"$f":"G17+G34","v":140},{"$f":"SQRT((H17^2)+(H34^2))","v":42.201895692018383},{"$f":"I17+I34","v":88},{"$f":"SQRT((J17^2)+(J34^2))","v":38.600518131237564},{"$f":"K17+K34","v":1920},{"$f":"SQRT((L17^2)+(L34^2))","v":299.82661656364002},{"$f":"M17+M34","v":34},{"$f":"SQRT((N17^2)+(N34^2))","v":17.4928556845359},{"$f":"O17+O34","v":438},{"$f":"SQRT((P17^2)+(P34^2))","v":84.852813742385706},{"$f":"Q17+Q34","v":318},{"$f":"SQRT((R17^2)+(R34^2))","v":65.76473218982953},{"$f":"S17+S34","v":34},{"$f":"SQRT((T17^2)+(T34^2))","v":16.278820596099706},{"$f":"U17+U34","v":12},{"$f":"SQRT((V17^2)+(V34^2))","v":12.529964086141668},{"$f":"W17+W34","v":120},{"$f":"SQRT((X17^2)+(X34^2))","v":63.007936008093459},{"$f":"Y17+Y34","v":650},{"$f":"SQRT((Z17^2)+(Z34^2))","v":122.494897852931},{"$f":"AA17+AA34","v":730},{"$f":"SQRT((AB17^2)+(AB34^2))","v":144.27751037497146},{"$f":"AC17+AC34","v":1428},{"$f":"SQRT((AD17^2)+(AD34^2))","v":239.88538930080756},{"$f":"AE17+AE34","v":289},{"$f":"SQRT((AF17^2)+(AF34^2))","v":71.56116265125938},{"$f":"AG17+AG34","v":782},{"$f":"SQRT((AH17^2)+(AH34^2))","v":234.94893062110327},{"$f":"AI17+AI34","v":433},{"$f":"SQRT((AJ17^2)+(AJ34^2))","v":96.332756630338366},{"$f":"AK17+AK34","v":1297},{"$f":"SQRT((AL17^2)+(AL34^2))","v":263.15394733881533},{"$f":"AM17+AM34","v":1543},{"$f":"SQRT((AN17^2)+(AN34^2))","v":351.46692589772937}]
[null,"Some college, no degree",{"$f":"(C18+C19)+(C35+C36)","v":118},{"$f":"SQRT((D18^2)+(D19^2)+(D35^2)+(D36^2))","v":33.77869150810907},{"$f":"(E18+E19)+(E35+E36)","v":407},{"$f":"SQRT((F18^2)+(F19^2)+(F35^2)+(F36^2))","v":157.21005056929408},{"$f":"(G18+G19)+(G35+G36)","v":124},{"$f":"SQRT((H18^2)+(H19^2)+(H35^2)+(H36^2))","v":43.011626335213137},{"$f":"(I18+I19)+(I35+I36)","v":50},{"$f":"SQRT((J18^2)+(J19^2)+(J35^2)+(J36^2))","v":23.021728866442675},{"$f":"(K18+K19)+(K35+K36)","v":1841},{"$f":"SQRT((L18^2)+(L19^2)+(L35^2)+(L36^2))","v":317.0457380252887},{"$f":"(M18+M19)+(M35+M36)","v":36},{"$f":"SQRT((N18^2)+(N19^2)+(N35^2)+(N36^2))","v":16.881943016134134},{"$f":"(O18+O19)+(O35+O36)","v":201},{"$f":"SQRT((P18^2)+(P19^2)+(P35^2)+(P36^2))","v":59.690870323693552},{"$f":"(Q18+Q19)+(Q35+Q36)","v":161},{"$f":"SQRT((R18^2)+(R19^2)+(R35^2)+(R36^2))","v":39.370039370059054},{"$f":"(S18+S19)+(S35+S36)","v":50},{"$f":"SQRT((T18^2)+(T19^2)+(T35^2)+(T36^2))","v":18.055470085267789},{"$f":"(U18+U19)+(U35+U36)","v":11},{"$f":"SQRT((V18^2)+(V19^2)+(V35^2)+(V36^2))","v":18.411952639521967},{"$f":"(W18+W19)+(W35+W36)","v":139},{"$f":"SQRT((X18^2)+(X19^2)+(X35^2)+(X36^2))","v":54.267854204860541},{"$f":"(Y18+Y19)+(Y35+Y36)","v":452},{"$f":"SQRT((Z18^2)+(Z19^2)+(Z35^2)+(Z36^2))","v":114.41153787970862},{"$f":"(AA18+AA19)+(AA35+AA36)","v":513},{"$f":"SQRT((AB18^2)+(AB19^2)+(AB35^2)+(AB36^2))","v":123.47469376354006},{"$f":"(AC18+AC19)+(AC35+AC36)","v":603},{"$f":"SQRT((AD18^2)+(AD19^2)+(AD35^2)+(AD36^2))","v":160.81044742180154},{"$f":"(AE18+AE19)+(AE35+AE36)","v":160},{"$f":"SQRT((AF18^2)+(AF19^2)+(AF35^2)+(AF36^2))","v":47},{"$f":"(AG18+AG19)+(AG35+AG36)","v":411},{"$f":"SQRT((AH18^2)+(AH19^2)+(AH35^2)+(AH36^2))","v":162.30218729271641},{"$f":"(AI18+AI19)+(AI35+AI36)","v":377},{"$f":"SQRT((AJ18^2)+(AJ19^2)+(AJ35^2)+(AJ36^2))","v":98.264947972305976},{"$f":"(AK18+AK19)+(AK35+AK36)","v":839},{"$f":"SQRT((AL18^2)+(AL19^2)+(AL35^2)+(AL36^2))","v":226.84796670898331},{"$f":"(AM18+AM19)+(AM35+AM36)","v":747},{"$f":"SQRT((AN18^2)+(AN19^2)+(AN35^2)+(AN36^2))","v":229.95869194270523}]
[null,"Associates degree",{"$f":"C20+C37","v":55},{"$f":"SQRT((D20^2)+(D37^2))","v":22.825424421026653},{"$f":"E20+E37","v":316},{"$f":"SQRT((F20^2)+(F37^2))","v":143.53396810511441},{"$f":"G20+G37","v":69},{"$f":"SQRT((H20^2)+(H37^2))","v":27.202941017470888},{"$f":"I20+I37","v":40},{"$f":"SQRT((J20^2)+(J37^2))","v":21.213203435596427},{"$f":"K20+K37","v":723},{"$f":"SQRT((L20^2)+(L37^2))","v":218.01376103356412},{"$f":"M20+M37","v":11},{"$f":"SQRT((N20^2)+(N37^2))","v":10.63014581273465},{"$f":"O20+O37","v":101},{"$f":"SQRT((P20^2)+(P37^2))","v":29.154759474226502},{"$f":"Q20+Q37","v":173},{"$f":"SQRT((R20^2)+(R37^2))","v":46.75467891024384},{"$f":"S20+S37","v":5},{"$f":"SQRT((T20^2)+(T37^2))","v":11.704699910719626},{"$f":"U20+U37","v":4},{"$f":"SQRT((V20^2)+(V37^2))","v":13.038404810405298},{"$f":"W20+W37","v":49},{"$f":"SQRT((X20^2)+(X37^2))","v":35},{"$f":"Y20+Y37","v":150},{"$f":"SQRT((Z20^2)+(Z37^2))","v":63.245553203367585},{"$f":"AA20+AA37","v":373},{"$f":"SQRT((AB20^2)+(AB37^2))","v":124.34226956268733},{"$f":"AC20+AC37","v":263},{"$f":"SQRT((AD20^2)+(AD37^2))","v":105.26157893552613},{"$f":"AE20+AE37","v":130},{"$f":"SQRT((AF20^2)+(AF37^2))","v":39.812058474788763},{"$f":"AG20+AG37","v":263},{"$f":"SQRT((AH20^2)+(AH37^2))","v":114.94781424629178},{"$f":"AI20+AI37","v":198},{"$f":"SQRT((AJ20^2)+(AJ37^2))","v":65},{"$f":"AK20+AK37","v":721},{"$f":"SQRT((AL20^2)+(AL37^2))","v":269.83328186122628},{"$f":"AM20+AM37","v":482},{"$f":"SQRT((AN20^2)+(AN37^2))","v":213.82703290276467}]
[null,"Bachelors degree",{"$f":"C21+C38","v":133},{"$f":"SQRT((D21^2)+(D38^2))","v":51.894122981316485},{"$f":"E21+E38","v":316},{"$f":"SQRT((F21^2)+(F38^2))","v":158.90248582070703},{"$f":"G21+G38","v":164},{"$f":"SQRT((H21^2)+(H38^2))","v":44.944410108488462},{"$f":"I21+I38","v":46},{"$f":"SQRT((J21^2)+(J38^2))","v":20.591260281974002},{"$f":"K21+K38","v":1932},{"$f":"SQRT((L21^2)+(L38^2))","v":359.67346301888887},{"$f":"M21+M38","v":102},{"$f":"SQRT((N21^2)+(N38^2))","v":32.202484376209235},{"$f":"O21+O38","v":131},{"$f":"SQRT((P21^2)+(P38^2))","v":44.10215414239989},{"$f":"Q21+Q38","v":245},{"$f":"SQRT((R21^2)+(R38^2))","v":56.400354608814297},{"$f":"S21+S38","v":53},{"$f":"SQRT((T21^2)+(T38^2))","v":17.691806012954132},{"$f":"U21+U38","v":10},{"$f":"SQRT((V21^2)+(V38^2))","v":10},{"$f":"W21+W38","v":229},{"$f":"SQRT((X21^2)+(X38^2))","v":71.61005515987263},{"$f":"Y21+Y38","v":343},{"$f":"SQRT((Z21^2)+(Z38^2))","v":91.438503924769023},{"$f":"AA21+AA38","v":1028},{"$f":"SQRT((AB21^2)+(AB38^2))","v":152.41062955056645},{"$f":"AC21+AC38","v":481},{"$f":"SQRT((AD21^2)+(AD38^2))","v":122.57650672131263},{"$f":"AE21+AE38","v":326},{"$f":"SQRT((AF21^2)+(AF38^2))","v":65.79513659838392},{"$f":"AG21+AG38","v":439},{"$f":"SQRT((AH21^2)+(AH38^2))","v":153.22206107476822},{"$f":"AI21+AI38","v":401},{"$f":"SQRT((AJ21^2)+(AJ38^2))","v":85.883642214335552},{"$f":"AK21+AK38","v":579},{"$f":"SQRT((AL21^2)+(AL38^2))","v":157.87653403846943},{"$f":"AM21+AM38","v":1061},{"$f":"SQRT((AN21^2)+(AN38^2))","v":269.81660438156877}]
[null,"Graduate or professional degree",{"$f":"(C22+C23+C24)+(C39+C40+C41)","v":91},{"$f":"SQRT((D22^2)+(D23^2)+(D24^2)+(D39^2)+(D41^2)+(D40^2))","v":27.946377224964241},{"$f":"(E22+E23+E24)+(E39+E40+E41)","v":340},{"$f":"SQRT((F22^2)+(F23^2)+(F24^2)+(F39^2)+(F41^2)+(F40^2))","v":140.20342363865441},{"$f":"(G22+G23+G24)+(G39+G40+G41)","v":79},{"$f":"SQRT((H22^2)+(H23^2)+(H24^2)+(H39^2)+(H41^2)+(H40^2))","v":30.692018506445613},{"$f":"(I22+I23+I24)+(I39+I40+I41)","v":32},{"$f":"SQRT((J22^2)+(J23^2)+(J24^2)+(J39^2)+(J41^2)+(J40^2))","v":18.357559750685819},{"$f":"(K22+K23+K24)+(K39+K40+K41)","v":793},{"$f":"SQRT((L22^2)+(L23^2)+(L24^2)+(L39^2)+(L41^2)+(L40^2))","v":231.96982562393757},{"$f":"(M22+M23+M24)+(M39+M40+M41)","v":34},{"$f":"SQRT((N22^2)+(N23^2)+(N24^2)+(N39^2)+(N41^2)+(N40^2))","v":24.637369989509839},{"$f":"(O22+O23+O24)+(O39+O40+O41)","v":133},{"$f":"SQRT((P22^2)+(P23^2)+(P24^2)+(P39^2)+(P41^2)+(P40^2))","v":46.647615158762406},{"$f":"(Q22+Q23+Q24)+(Q39+Q40+Q41)","v":184},{"$f":"SQRT((R22^2)+(R23^2)+(R24^2)+(R39^2)+(R41^2)+(R40^2))","v":50.606323715519977},{"$f":"(S22+S23+S24)+(S39+S40+S41)","v":31},{"$f":"SQRT((T22^2)+(T23^2)+(T24^2)+(T39^2)+(T41^2)+(T40^2))","v":19.748417658131498},{"$f":"(U22+U23+U24)+(U39+U40+U41)","v":0},{"$f":"SQRT((V22^2)+(V23^2)+(V24^2)+(V39^2)+(V41^2)+(V40^2))","v":26.944387170614959},{"$f":"(W22+W23+W24)+(W39+W40+W41)","v":180},{"$f":"SQRT((X22^2)+(X23^2)+(X24^2)+(X39^2)+(X41^2)+(X40^2))","v":67.520367297579185},{"$f":"(Y22+Y23+Y24)+(Y39+Y40+Y41)","v":243},{"$f":"SQRT((Z22^2)+(Z23^2)+(Z24^2)+(Z39^2)+(Z41^2)+(Z40^2))","v":65.207361547604421},{"$f":"(AA22+AA23+AA24)+(AA39+AA40+AA41)","v":447},{"$f":"SQRT((AB22^2)+(AB23^2)+(AB24^2)+(AB39^2)+(AB41^2)+(AB40^2))","v":107.58252646224665},{"$f":"(AC22+AC23+AC24)+(AC39+AC40+AC41)","v":191},{"$f":"SQRT((AD22^2)+(AD23^2)+(AD24^2)+(AD39^2)+(AD41^2)+(AD40^2))","v":85.434185195388849},{"$f":"(AE22+AE23+AE24)+(AE39+AE40+AE41)","v":285},{"$f":"SQRT((AF22^2)+(AF23^2)+(AF24^2)+(AF39^2)+(AF41^2)+(AF40^2))","v":71.007041904306931},{"$f":"(AG22+AG23+AG24)+(AG39+AG40+AG41)","v":173},{"$f":"SQRT((AH22^2)+(AH23^2)+(AH24^2)+(AH39^2)+(AH41^2)+(AH40^2))","v":112.11155159036913},{"$f":"(AI22+AI23+AI24)+(AI39+AI40+AI41)","v":279},{"$f":"SQRT((AJ22^2)+(AJ23^2)+(AJ24^2)+(AJ39^2)+(AJ41^2)+(AJ40^2))","v":79},{"$f":"(AK22+AK23+AK24)+(AK39+AK40+AK41)","v":201},{"$f":"SQRT((AL22^2)+(AL23^2)+(AL24^2)+(AL39^2)+(AL41^2)+(AL40^2))","v":119.46966142079754},{"$f":"(AM22+AM23+AM24)+(AM39+AM40+AM41)","v":1076},{"$f":"SQRT((AN22^2)+(AN23^2)+(AN24^2)+(AN39^2)+(AN41^2)+(AN40^2))","v":280.9270367906941}]
[]
[]
[]
[]
[]
[]
[]
[]
[]
[]
[]
[]
[]
[]
[]
[]
[]
[]
[]
[]
[]
[]
[]
[]
[]
[]
[]
[null,"Calculated B15002. SEX BY EDUCATIONAL ATTAINMENT FOR THE POPULATION 25 YEARS AND OVER"]
[null,"Universe:  POPULATION 25 YEARS AND OVER"]
[null,"Data Set: 2010-2014 American Community Survey 5-Year Estimates"]
[null,null,"Albany",null,"Bartlett",null,"Brookfield",null,"Chatham",null,"Conway",null,"Eaton",null,"Effingham",null,"Freedom",null,"Hale's Location",null,"Hart's Location",null,"Jackson",null,"Madison",null,"Moultonborough",null,"Ossipee",null,"Sandwich",null,"Tamworth",null,"Tuftonboro",null,"Wakefield",null,"Wolfeboro"]
[null," ","Estimate","Margin of Error","Estimate","Margin of Error","Estimate","Margin of Error","Estimate","Margin of Error","Estimate","Margin of Error","Estimate","Margin of Error","Estimate","Margin of Error","Estimate","Margin of Error","Estimate","Margin of Error","Estimate","Margin of Error","Estimate","Margin of Error","Estimate","Margin of Error","Estimate","Margin of Error","Estimate","Margin of Error","Estimate","Margin of Error","Estimate","Margin of Error","Estimate","Margin of Error","Estimate","Margin of Error","Estimate","Margin of Error"]
[null,"Total:",542,95,2125,198,566,129,275,67,7219,376,298,50,1040,120,915,107,134,39,38,23,794,167,1983,110,3272,116,3095,215,1116,152,2451,162,1645,204,3968,224,4821,283]
[null,"Less than 9th grade",2,24.919871588754223,49,56.621550667568265,24,31.968734726291562,1,24.779023386727733,114,89.358827208060418,0,26.944387170614959,20,25.45584412271571,20,28.354893757515651,0,26.944387170614959,0,26.944387170614959,0,26.944387170614959,10,23.853720883753127,8,27.367864366808018,100,73.013697345087238,0,26.944387170614959,24,37.269290307168447,17,30.331501776206203,136,112.98672488394378,100,94.339811320566042]
[null,"9th to 12th grade, no diploma",44,34.014702703389901,25,42.5205832509386,14,27.946377224964241,12,21.400934559032695,402,149.90330216509574,5,27.676705006196094,101,35.213633723318019,37,26.248809496813376,4,27.27636339397171,0,31.11269837220809,3,29.376861643136763,88,44.226688774991963,59,68.490875304671064,301,108.02777420645118,26,23.748684174075834,170,116.61903789690601,8,28.478061731796284,212,125.75372757894694,225,110.81967334368028]
[null,"High school graduate (includes equivalency)",218,52.630789467763066,480,153.6522046701576,143,43.600458713183279,115,41.109609582188931,2119,296.60242750186654,68,20.518284528683193,391,65.115282384398824,324,54.451813560247928,23,11.313708498984761,10,9.8994949366116654,98,45.486261662176638,841,118.34272263219231,827,147.82760229402356,1324,200.17242567346781,222,58.137767414994535,1038,207.7137453323684,390,92.956979296876895,1420,291.35888522576414,958,198.45654436173174]
[null,"Some college, no degree",127,44.721359549995796,265,121.19818480488888,103,39.711459303329562,33,18.138357147217054,1712,328.20572816451573,41,16.217274740226856,202,47.90615826801394,167,37.469987990390386,33,16.093476939431081,5,17.146428199482248,143,55.632724182804495,383,101.43963722332607,612,153.28405005087777,571,162.10798869889172,203,57.01754116059373,474,155.56991997169632,440,116.45600027478189,889,234.73602194805977,1033,279.47271780980697]
[null,"Associates degree",24,12.806248474865697,228,99.704563586628268,75,34.409301068170507,25,13.45362404707371,864,193.19679086361657,47,21.400934559032695,156,70.724818840347695,100,31.144823004794873,7,6.7082039324993694,1,11.401754250991379,66,38.483762809787713,115,55.443665102516448,288,85.562842402528915,294,113.46365056704283,77,30.413812651491099,171,75.006666370396701,142,62.936475910238251,394,170.65169205138284,563,163.67040050051813]
[null,"Bachelors degree",71,25.80697580112788,593,156.31058825300352,130,41.773197148410844,61,21.400934559032695,1398,262.45190035509364,91,27.018512172212592,141,43.863424398922618,185,47.381430961928537,36,15.620499351813308,22,15.264337522473747,323,82.807004534640669,305,83.600239234107462,923,160.86329600005092,322,110.13627921806692,316,83.868945385047027,330,130.11533345459327,402,94.641428560646744,502,166.23477373883,1210,262.9315500277591]
[null,"Graduate or professional degree",56,25.845695966640172,485,164.79077644091615,77,25.219040425836983,27,23.409399821439251,549,142.4956139675885,46,15.620499351813308,29,24.617067250182341,75,27.748873851023216,31,23.108440016582687,0,26.944387170614959,161,50.119856344566671,241,69.577295147195827,555,143.70455803487931,174,76.81145747868608,268,50.980388386123543,241,100.59324032955693,231,82.194890352138074,351,142.16891362038328,732,170.58135888777531]
[]
[]
[]
[]
[]
[]
[]
[]
[]
[]
[]
[]
[]
[]
[]
[]
[]
[]
[]
[]
[]
[]
[]
[]
[]
[]
[]
[null,"Calculated B15002. SEX BY EDUCATIONAL ATTAINMENT FOR THE POPULATION 25 YEARS AND OVER"]
[null,"Universe:  POPULATION 25 YEARS AND OVER"]
[null,"Data Set: 2005-2009 American Community Survey 5-Year Estimates"]
[null,null,"Albany",null,"Bartlett",null,"Brookfield",null,"Chatham",null,"Conway",null,"Eaton",null,"Effingham",null,"Freedom",null,"Hale's Location",null,"Hart's Location",null,"Jackson",null,"Madison",null,"Moultonborough",null,"Ossipee",null,"Sandwich",null,"Tamworth",null,"Tuftonboro",null,"Wakefield",null,"Wolfeboro"]
[null," ","Estimate","Margin of Error","Estimate","Margin of Error","Estimate","Margin of Error","Estimate","Margin of Error","Estimate","Margin of Error","Estimate","Margin of Error","Estimate","Margin of Error","Estimate","Margin of Error","Estimate","Margin of Error","Estimate","Margin of Error","Estimate","Margin of Error","Estimate","Margin of Error","Estimate","Margin of Error","Estimate","Margin of Error","Estimate","Margin of Error","Estimate","Margin of Error","Estimate","Margin of Error","Estimate","Margin of Error","Estimate","Margin of Error"]
[null,"Total:",572,163,2236,178,518,165,263,80,6480,370,273,60,691,105,972,124,114,38,57,38,749,177,1656,232,3821,207,3255,256,1084,122,1794,212,1918,221,3410,181,4955,305]
[null,"Less than 9th grade",8,228.17537115122659,90,175.41949720598336,52,239.15058017909971,2,254.94313091354314,219,242.32622639739182,2,254.96078129783021,6,255.10782034269354,52,230.93722090646193,0,279.24183067728228,0,279.24183067728228,0,279.24183067728228,28,199.37151250868314,41,257.58299633322071,69,204.18863827353371,8,255.07057846799972,18,256.33766793040775,17,228.79903845951802,126,216.00462958001617,57,264.61481440010118]
[null,"9th to 12th grade, no diploma",89,166.5232716469383,207,221.26680727122178,23,161.97839362087771,42,162.89567213403799,529,215.99768517278142,13,255.27827953039795,69,31.400636936215164,41,229.64537879086529,0,322.44069222106566,4,301.67532215943686,64,234.9787224409904,99,170.9005558797279,193,256.29475218973954,540,232.1271203457278,34,115.1911454930456,225,161.93825983997729,110,124.7517534946904,250,122.86171087853205,233,237.90544340136481]
[null,"High school graduate (includes equivalency)",221,81.688432473637292,524,140.73023839957068,185,81.706792863261981,94,33.61547262794322,2329,366.23080154459973,56,24.413111231467404,265,56.586217403180434,286,60.440052945046304,23,17.691806012954132,15,11.313708498984761,152,64.070273918565391,622,163.68567438844488,802,181.10770276274835,1235,255.266527378738,246,48.166378315169183,556,133.9589489358587,619,138.84163640637487,1465,243.97745797511703,1188,331.60217128360301]
[null,"Some college, no degree",91,47.148700936505136,486,132.83448347473634,84,33.25657829663178,38,27.367864366808018,1156,268.69685521047694,34,115.73245007343446,144,43.954521951671822,194,53.916602266834282,38,115.90081966923272,0,228,103,60.183054093324309,272,82.292162445763935,621,166.76330531624757,442,137.01824696003084,169,42.790185790669334,344,97.790592594584481,320,93.493315269060815,661,173.37819932159869,1149,324.19438613276446]
[null,"Associates degree",50,31.240998703626616,257,92.17917335276988,56,35.735136770411273,25,17.029386365926403,652,207.90863377935992,29,18.973665961010276,42,22.135943621178654,70,30,10,12.649110640673518,4,114.28035701729323,25,19.104973174542799,123,52.345009313209601,365,142.21462653327893,385,139.26952286842948,92,32.649655434629018,233,77.833154889160184,290,85.796270315206598,409,156.46085772486356,352,153.67498169838836]
[null,"Bachelors degree",88,33.105890714493697,404,124.45079348883236,71,30.016662039607269,48,29.732137494637012,1108,279.58898404622454,98,28.284271247461902,94,33.97057550292606,184,46.097722286464439,33,16.278820596099706,29,27.658633371878661,251,78.230428862431779,300,82.619610262939389,1258,211.6341182323871,338,137.43725841270262,249,53.740115370177612,215,63.063460101710248,358,108.81176406988355,366,149.58609561052123,1125,238.90793205751876]
[null,"Graduate or professional degree",13,161.57041808449961,121,206.66155907667007,22,114.8999564838908,3,161.32575739788115,200,91.329075326535531,29,115.00434774390054,36,116.42164747159353,85,118.82339836917643,10,161.4465855941215,5,197.57783276471073,60,24.839484696748443,50,29.563490998188964,294,166.10839834276894,158,181.22085972646747,150,42.579337712087536,74,118.75605247733692,96,125.17987058628876,22,200.53179299053804,504,179.76095237842949]

{"sheet":"ACS_TableB19101_ACS_Tbl_B19113","index":65,"n_rows":130,"n_cols":40,"rows_kept":130,"cut":false,"hidden":true,"merged":[]}
["B19101. FAMILY INCOME IN THE PAST 12 MONTHS (IN 2019 INFLATION-ADJUSTED DOLLARS)"]
["Universe:  FAMILIES"]
["Data Set: 2015-2019 American Community Survey 5-Year Estimates"]
[]
[null,null,"Albany",null,"Bartlett",null,"Brookfield",null,"Chatham",null,"Conway",null,"Eaton",null,"Effingham",null,"Freedom",null,"Hale's Location",null,"Hart's Location",null,"Jackson",null,"Madison",null,"Moultonborough",null,"Ossipee",null,"Sandwich",null,"Tamworth",null,"Tuftonboro",null,"Wakefield",null,"Wolfeboro"]
[null," ","Estimate","Margin of Error","Estimate","Margin of Error","Estimate","Margin of Error","Estimate","Margin of Error","Estimate","Margin of Error","Estimate","Margin of Error","Estimate","Margin of Error","Estimate","Margin of Error","Estimate","Margin of Error","Estimate","Margin of Error","Estimate","Margin of Error","Estimate","Margin of Error","Estimate","Margin of Error","Estimate","Margin of Error","Estimate","Margin of Error","Estimate","Margin of Error","Estimate","Margin of Error","Estimate","Margin of Error","Estimate","Margin of Error"]
[null,"Total:",212,50,618,123,258,61,90,34,2704,227,76,29,450,75,437,67,68,20,12,11,227,71,718,73,1275,107,1197,134,417,63,840,104,663,96,1415,159,2069,169]
[null,"Less than $10,000",0,11,0,11,3,5,0,11,127,106,0,11,8,8,19,24,2,4,0,11,3,4,0,11,27,27,22,20,4,6,13,20,11,12,0,16,29,32]
[null,"$10,000 to $14,999",6,8,0,11,8,10,0,11,74,87,0,11,16,17,5,6,0,11,0,11,0,11,19,19,8,13,11,18,7,11,0,11,0,11,0,16,36,60]
[null,"$15,000 to $19,999",10,11,24,38,2,3,6,11,46,60,1,3,12,12,5,6,2,3,4,7,11,18,15,21,13,19,25,36,0,11,0,11,12,13,0,16,25,39]
[null,"$20,000 to $24,999",3,4,10,15,0,11,0,11,138,91,4,6,17,14,8,7,0,11,0,11,3,4,20,25,65,62,88,73,12,14,0,11,10,10,47,73,22,38]
[null,"$25,000 to $29,999",8,7,16,25,6,11,1,3,87,58,0,11,4,7,8,9,3,3,1,3,0,11,32,26,18,20,31,32,4,6,116,93,56,31,11,17,49,54]
[null,"$30,000 to $34,999",11,8,34,44,11,10,4,5,98,64,2,4,32,24,19,15,0,11,0,11,0,11,4,8,0,11,86,74,6,6,72,55,0,11,38,45,232,143]
[null,"$35,000 to $39,999",4,4,30,46,3,5,0,11,99,72,5,6,13,10,26,19,3,5,0,11,11,18,0,11,18,27,11,18,9,9,0,11,17,15,51,51,42,66]
[null,"$40,000 to $44,999",30,23,11,15,0,11,2,3,40,49,1,3,15,17,4,6,1,3,4,6,21,34,34,17,39,31,63,59,10,9,14,21,23,19,0,16,82,89]
[null,"$45,000 to $49,999",3,5,54,59,0,11,1,3,121,112,1,3,18,14,9,8,0,11,0,11,3,5,15,25,63,39,88,82,27,22,0,11,22,20,130,94,166,167]
[null,"$50,000 to $59,999",8,7,47,56,16,15,8,8,242,116,8,9,29,15,57,26,7,6,0,11,23,25,56,41,149,51,131,82,64,27,34,36,78,56,139,78,60,69]
[null,"$60,000 to $74,999",20,15,25,38,28,15,18,14,373,160,16,14,43,30,45,26,13,10,0,11,39,35,124,57,201,66,177,81,32,16,221,102,108,37,281,123,120,89]
[null,"$75,000 to $99,999",27,14,170,94,60,25,17,12,555,158,15,9,112,40,85,38,9,6,3,5,16,22,159,60,186,73,230,94,91,35,103,82,129,48,278,127,311,159]
[null,"$100,000 to $124,999",23,17,73,67,42,20,4,5,422,184,10,8,47,21,76,26,5,5,0,11,39,32,74,38,159,66,101,73,21,13,76,66,61,45,210,102,253,157]
[null,"$125,000 to $149,999",39,22,100,88,33,17,6,10,142,102,4,5,18,12,35,22,2,3,0,11,21,21,83,44,85,42,64,47,32,21,26,26,38,27,49,48,171,138]
[null,"$150,000 to $199,999",16,11,0,11,26,16,3,4,69,64,2,3,43,38,5,6,3,4,0,11,21,21,20,16,45,30,69,47,41,19,113,95,63,38,75,58,303,155]
[null,"$200,000 or more",4,4,24,23,20,18,20,12,71,51,7,7,23,25,31,20,18,12,0,11,16,11,63,34,199,72,0,11,57,30,52,48,35,21,106,94,168,115]
[]
[]
[null,"B19113. MEDIAN FAMILY INCOME IN THE PAST 12 MONTHS (IN 2017 INFLATION-ADJUSTED DOLLARS)"]
[null,"Universe:  FAMILIES"]
[null,"Data Set: 2015-2019 American Community Survey 5-Year Estimates"]
[null,"Calculated B19001. HOUSEHOLD INCOME IN THE PAST 12 MONTHS (IN 2019 INFLATION-ADJUSTED DOLLARS)"]
[null,null,"Albany",null,"Bartlett",null,"Brookfield",null,"Chatham",null,"Conway",null,"Eaton",null,"Effingham",null,"Freedom",null,"Hale's Location",null,"Hart's Location",null,"Jackson",null,"Madison",null,"Moultonborough",null,"Ossipee",null,"Sandwich",null,"Tamworth",null,"Tuftonboro",null,"Wakefield",null,"Wolfeboro"]
[null," ","Estimate","Margin of Error","Estimate","Margin of Error","Estimate","Margin of Error","Estimate","Margin of Error","Estimate","Margin of Error","Estimate","Margin of Error","Estimate","Margin of Error","Estimate","Margin of Error","Estimate","Margin of Error","Estimate","Margin of Error","Estimate","Margin of Error","Estimate","Margin of Error","Estimate","Margin of Error","Estimate","Margin of Error","Estimate","Margin of Error","Estimate","Margin of Error","Estimate","Margin of Error","Estimate","Margin of Error","Estimate","Margin of Error"]
[null,"Median family income in the past 12 months",80833,18866,77339,31336,95714,11572,83750,18313,72603,8348,75000,6994,77935,7074,82708,16045,88750,31910,43125,41294,72422,49654,79500,13357,77028,10813,61362,5164,83698,4041,67079,14882,74375,16858,75656,10724,89222,20904]
[]
[]
[]
[]
[]
[]
[]
[]
[]
[]
[]
[]
[]
[]
[]
[]
[]
["B19101. FAMILY INCOME IN THE PAST 12 MONTHS (IN 2014 INFLATION-ADJUSTED DOLLARS)"]
["Universe:  FAMILIES"]
["Data Set: 2010-2014 American Community Survey 5-Year Estimates"]
[]
[null,null,"Albany",null,"Bartlett",null,"Brookfield",null,"Chatham",null,"Conway",null,"Eaton",null,"Effingham",null,"Freedom",null,"Hale's Location",null,"Hart's Location",null,"Jackson",null,"Madison",null,"Moultonborough",null,"Ossipee",null,"Sandwich",null,"Tamworth",null,"Tuftonboro",null,"Wakefield",null,"Wolfeboro"]
[null," ","Estimate","Margin of Error","Estimate","Margin of Error","Estimate","Margin of Error","Estimate","Margin of Error","Estimate","Margin of Error","Estimate","Margin of Error","Estimate","Margin of Error","Estimate","Margin of Error","Estimate","Margin of Error","Estimate","Margin of Error","Estimate","Margin of Error","Estimate","Margin of Error","Estimate","Margin of Error","Estimate","Margin of Error","Estimate","Margin of Error","Estimate","Margin of Error","Estimate","Margin of Error","Estimate","Margin of Error","Estimate","Margin of Error"]
[null,"Total:",227,56,707,121,244,59,99,29,2972,223,110,24,366,58,381,53,56,20,7,7,311,74,769,92,1351,90,1087,112,456,69,870,123,764,125,1592,172,1745,143]
[null,"Less than $10,000",1,4,43,66,0,11,8,11,68,62,0,11,12,8,25,14,0,11,0,11,26,34,15,13,0,11,20,24,11,13,0,11,25,27,15,25,31,38]
[null,"$10,000 to $14,999",3,6,0,11,5,6,0,11,82,93,0,11,23,26,0,11,0,11,0,11,5,9,10,12,0,11,119,97,3,5,15,21,7,10,31,36,40,46]
[null,"$15,000 to $19,999",18,20,0,11,9,12,1,3,90,72,1,2,22,16,14,16,0,11,0,11,9,14,23,19,0,11,99,73,3,4,0,11,27,25,0,15,10,16]
[null,"$20,000 to $24,999",34,31,0,11,8,12,2,4,124,80,1,3,13,10,10,10,4,4,0,11,0,11,6,8,20,34,21,20,39,31,98,81,17,15,18,29,0,15]
[null,"$25,000 to $29,999",4,5,0,11,21,23,2,3,302,127,6,7,31,18,22,14,0,11,0,11,16,26,13,17,23,24,16,25,31,21,16,23,55,47,191,130,86,82]
[null,"$30,000 to $34,999",3,5,52,40,7,9,0,11,225,129,0,11,29,15,24,21,6,6,0,11,4,6,5,8,16,14,68,69,20,15,29,25,19,23,99,94,142,95]
[null,"$35,000 to $39,999",11,8,90,71,3,4,6,6,183,102,2,3,21,14,30,22,9,7,0,11,0,11,85,40,73,58,23,21,9,8,22,23,14,16,86,105,41,37]
[null,"$40,000 to $44,999",5,6,50,41,6,6,9,8,188,95,8,5,20,15,17,13,2,3,0,11,10,18,42,29,23,24,54,34,9,9,17,25,75,50,99,68,106,77]
[null,"$45,000 to $49,999",3,4,5,15,11,14,8,6,141,84,10,9,19,14,25,15,1,3,0,11,19,17,101,74,42,37,59,49,29,24,114,126,25,25,137,113,203,124]
[null,"$50,000 to $59,999",2,5,108,73,25,13,8,8,333,137,10,8,25,16,41,17,6,6,0,11,32,33,96,52,94,74,76,52,42,27,165,96,81,55,224,113,109,83]
[null,"$60,000 to $74,999",35,21,52,64,45,29,7,7,339,141,21,11,41,23,43,17,7,6,7,7,40,26,113,58,204,86,185,104,48,16,185,93,92,49,198,89,162,75]
[null,"$75,000 to $99,999",51,30,182,85,30,15,25,17,432,148,20,11,53,22,58,22,8,7,0,11,40,29,71,34,208,76,163,68,68,20,35,32,172,72,140,75,217,99]
[null,"$100,000 to $124,999",32,22,37,32,21,10,8,8,146,70,10,7,46,26,39,21,8,7,0,11,34,20,86,45,183,74,84,59,68,30,74,43,61,37,119,85,309,132]
[null,"$125,000 to $149,999",10,8,37,44,19,15,6,5,114,55,4,5,3,5,14,9,0,11,0,11,10,13,47,32,140,68,14,17,31,20,71,54,34,27,72,61,106,67]
[null,"$150,000 to $199,999",7,7,23,35,19,23,5,6,178,92,5,6,6,7,12,15,0,11,0,11,45,30,11,11,79,46,72,55,24,16,12,17,40,48,61,51,95,71]
[null,"$200,000 or more",8,8,28,45,15,12,4,5,27,24,12,10,2,4,7,6,5,7,0,11,21,19,45,38,246,85,14,16,21,18,17,26,20,18,102,75,88,68]
[]
[]
[null,"B19113. MEDIAN FAMILY INCOME IN THE PAST 12 MONTHS (IN 2014 INFLATION-ADJUSTED DOLLARS)"]
[null,"Universe:  FAMILIES"]
[null,"Data Set: 2010-2014 American Community Survey 5-Year Estimates"]
[]
[null,null,"Albany",null,"Bartlett",null,"Brookfield",null,"Chatham",null,"Conway",null,"Eaton",null,"Effingham",null,"Freedom",null,"Hale's Location",null,"Hart's Location",null,"Jackson",null,"Madison",null,"Moultonborough",null,"Ossipee",null,"Sandwich",null,"Tamworth",null,"Tuftonboro",null,"Wakefield",null,"Wolfeboro"]
[null," ","Estimate","Margin of Error","Estimate","Margin of Error","Estimate","Margin of Error","Estimate","Margin of Error","Estimate","Margin of Error","Estimate","Margin of Error","Estimate","Margin of Error","Estimate","Margin of Error","Estimate","Margin of Error","Estimate","Margin of Error","Estimate","Margin of Error","Estimate","Margin of Error","Estimate","Margin of Error","Estimate","Margin of Error","Estimate","Margin of Error","Estimate","Margin of Error","Estimate","Margin of Error","Estimate","Margin of Error","Estimate","Margin of Error"]
[null,"Median family income in the past 12 months",72708,12168,64464,22594,71000,9800,70625,21620,51853,4810,70000,16250,46875,12837,55313,8990,63750,19199,63750,4466,71528,14017,58487,8259,95625,20010,57788,11365,65556,13119,56371,9376,64265,10783,56493,6995,70199,13115]
[]
[]
[]
[]
[]
[]
[]
[]
[]
[]
[]
[]
[]
[]
[]
[]
[]
["B19101. FAMILY INCOME IN THE PAST 12 MONTHS (IN 2009 INFLATION-ADJUSTED DOLLARS)"]
["Universe:  FAMILIES"]
["Data Set: 2005-2009 American Community Survey 5-Year Estimates"]
[]
[null,null,"Albany",null,"Bartlett",null,"Brookfield",null,"Chatham",null,"Conway",null,"Eaton",null,"Effingham",null,"Freedom",null,"Hale's Location",null,"Hart's Location",null,"Jackson",null,"Madison",null,"Moultonborough",null,"Ossipee",null,"Sandwich",null,"Tamworth",null,"Tuftonboro",null,"Wakefield",null,"Wolfeboro"]
[null," ","Estimate","Margin of Error","Estimate","Margin of Error","Estimate","Margin of Error","Estimate","Margin of Error","Estimate","Margin of Error","Estimate","Margin of Error","Estimate","Margin of Error","Estimate","Margin of Error","Estimate","Margin of Error","Estimate","Margin of Error","Estimate","Margin of Error","Estimate","Margin of Error","Estimate","Margin of Error","Estimate","Margin of Error","Estimate","Margin of Error","Estimate","Margin of Error","Estimate","Margin of Error","Estimate","Margin of Error","Estimate","Margin of Error"]
[null,"Total:",245,64,730,96,159,46,108,37,2113,190,117,29,251,52,380,62,49,20,19,20,306,77,659,87,1518,134,1110,139,360,47,624,107,693,97,1196,118,1570,178]
[null,"Less than $10,000",17,19,0,114,0,114,5,11,52,62,8,8,0,114,9,8,0,114,0,114,6,10,28,25,38,61,69,66,22,14,36,40,11,16,44,45,37,60]
[null,"$10,000 to $14,999",15,15,41,31,0,114,0,114,21,23,5,9,4,6,8,9,0,114,0,114,0,114,0,114,18,21,15,23,2,4,18,27,22,26,0,114,52,66]
[null,"$15,000 to $19,999",38,30,44,33,0,114,6,7,67,69,0,114,11,12,20,20,0,114,0,114,0,114,14,16,0,114,0,114,8,7,11,15,7,10,59,56,19,28]
[null,"$20,000 to $24,999",17,18,18,28,4,6,6,10,182,116,6,8,10,10,21,18,0,114,0,114,15,18,33,29,67,50,64,53,2,3,51,29,43,24,19,30,46,42]
[null,"$25,000 to $29,999",9,8,0,114,2,5,4,8,129,77,5,8,12,13,34,26,7,11,0,114,8,13,36,35,34,34,36,56,23,14,17,20,18,18,27,30,42,36]
[null,"$30,000 to $34,999",0,114,34,28,27,29,6,6,156,88,0,114,15,10,19,14,0,114,0,114,6,9,54,40,32,28,65,45,6,6,56,40,39,28,46,41,48,66]
[null,"$35,000 to $39,999",3,4,73,46,12,11,5,6,62,39,7,7,13,10,35,19,8,11,2,4,18,14,9,13,18,29,69,56,19,12,9,12,14,16,41,41,56,47]
[null,"$40,000 to $44,999",5,8,79,56,0,114,7,8,90,54,4,6,31,22,26,19,0,114,0,114,19,15,27,23,107,89,47,36,10,9,35,41,72,41,139,77,98,70]
[null,"$45,000 to $49,999",0,114,58,47,0,114,6,10,82,71,13,9,26,19,35,20,3,4,0,114,15,15,62,35,125,84,88,76,20,13,47,33,21,23,47,41,77,53]
[null,"$50,000 to $59,999",44,29,36,19,14,12,2,4,309,121,5,6,52,27,42,21,8,6,0,114,19,16,76,46,117,76,180,88,31,16,82,59,90,49,122,77,109,79]
[null,"$60,000 to $74,999",13,10,122,55,38,22,17,13,251,111,22,15,34,23,27,15,0,114,9,16,68,55,72,40,116,76,117,75,51,18,60,35,182,78,189,99,410,139]
[null,"$75,000 to $99,999",32,21,65,40,23,14,12,13,294,111,22,14,27,16,51,23,8,7,4,6,37,23,139,52,231,83,263,113,73,27,100,51,100,48,305,113,154,91]
[null,"$100,000 to $124,999",0,114,86,55,22,20,11,12,98,66,6,7,6,8,10,8,2,3,4,8,43,27,67,40,249,108,46,30,50,19,47,27,30,23,76,48,183,104]
[null,"$125,000 to $149,999",27,20,37,28,11,10,14,16,88,63,10,7,5,8,4,6,8,8,0,114,15,14,14,20,133,86,31,29,16,13,18,19,13,13,39,29,26,37]
[null,"$150,000 to $199,999",0,114,11,17,3,5,5,6,116,60,0,114,5,7,7,9,3,4,0,114,4,7,0,114,41,33,0,114,7,7,12,13,17,15,43,40,79,56]
[null,"$200,000 or more",25,23,26,25,3,6,2,4,116,77,4,6,0,114,32,27,2,4,0,114,33,20,28,29,192,98,20,33,20,11,25,20,14,15,0,114,134,64]
[]
[]
["B19113. MEDIAN FAMILY INCOME IN THE PAST 12 MONTHS (IN 2009 INFLATION-ADJUSTED DOLLARS)"]
["Universe:  FAMILIES"]
["Data Set: 2005-2009 American Community Survey 5-Year Estimates"]
[]
[null,null,"Albany",null,"Bartlett",null,"Brookfield",null,"Chatham",null,"Conway",null,"Eaton",null,"Effingham",null,"Freedom",null,"Hale's Location",null,"Hart's Location",null,"Jackson",null,"Madison",null,"Moultonborough",null,"Ossipee",null,"Sandwich",null,"Tamworth",null,"Tuftonboro",null,"Wakefield",null,"Wolfeboro"]
[null," ","Estimate","Margin of Error","Estimate","Margin of Error","Estimate","Margin of Error","Estimate","Margin of Error","Estimate","Margin of Error","Estimate","Margin of Error","Estimate","Margin of Error","Estimate","Margin of Error","Estimate","Margin of Error","Estimate","Margin of Error","Estimate","Margin of Error","Estimate","Margin of Error","Estimate","Margin of Error","Estimate","Margin of Error","Estimate","Margin of Error","Estimate","Margin of Error","Estimate","Margin of Error","Estimate","Margin of Error","Estimate","Margin of Error"]
[null,"Median family income in the past 12 months",52313,9868,53250,17663,69625,9500,65000,23086,58216,6619,61964,19669,50282,2607,46731,5240,59464,36084,64583,61136,73720,3535,55125,19277,80547,16910,55000,7675,72083,5486,54342,9096,60660,8052,62109,10206,65032,3799]

{"sheet":"PopComparison","index":66,"n_rows":53,"n_cols":14,"rows_kept":53,"cut":false,"hidden":true,"merged":[[50,1,50,2],[42,1,42,2],[43,1,43,2],[44,1,44,2],[45,1,45,2],[46,1,46,2],[47,1,47,2],[41,1,41,2],[30,1,30,2],[31,1,31,2],[32,1,32,2],[33,1,33,2],[34,1,34,2],[35,1,35,2],[36,1,36,2],[37,1,37,2],[38,1,38,2],[39,1,39,2],[40,1,40,2],[29,1,29,2],[26,13,26,14],[27,3,27,4],[27,5,27,6],[27,7,27,8],[27,9,27,10]]}
[]
[]
[]
[]
[]
[]
[]
[]
[]
[]
[]
[]
[]
[]
[]
[]
[]
[]
[]
[]
[]
[]
[]
[]
[]
[]
[]
[null,null,null,2000,null,2010,null,2020,null,2030,null,null,"2000-2010","2010-2030"]
[null,null,null,"#","%","#","%","#","%","#","%",null,"% Change","% Change"]
[null,"Albany",null,{"$f":"CntyQuery!G70","v":654},{"$f":"D30/$D$51","v":1.4977327898135849E-2},{"$f":"CntyQuery!H70","v":735},{"$f":"F30/$F$51","v":1.5370780877493832E-2},{"$f":"CntyQuery!I70","v":822},{"$f":"H30/$H$51","v":1.5825038985041295E-2},{"$f":"CntyQuery!J70","v":846},{"$f":"J30/J$51","v":1.5818110427612511E-2},null,{"$f":"(F30-D30)/D30","v":0.12385321100917432},{"$f":"(J30-F30)/F30","v":0.15102040816326531}]
[null,"Bartlett",null,{"$f":"CntyQuery!G71","v":2705},{"$f":"D31/$D$51","v":6.1947510649017545E-2},{"$f":"CntyQuery!H71","v":2788},{"$f":"F31/$F$51","v":5.8304404199255512E-2},{"$f":"CntyQuery!I71","v":2850},{"$f":"H31/$H$51","v":5.4867835897040987E-2},{"$f":"CntyQuery!J71","v":2935},{"$f":"J31/J$51","v":5.4877250715180521E-2},null,{"$f":"(F31-D31)/D31","v":3.0683918669131238E-2},{"$f":"(J31-F31)/F31","v":5.272596843615495E-2}]
[null,"Brookfield",null,{"$f":"CntyQuery!G72","v":604},1.3832272248431273E-2,{"$f":"CntyQuery!H72","v":712},1.4889790455477017E-2,{"$f":"CntyQuery!I72","v":831},1.5998305835242477E-2,{"$f":"CntyQuery!J72","v":856},1.6005085728175307E-2,null,0.17880794701986755,0.20224719101123595]
[null,"Chatham",null,{"$f":"CntyQuery!G73","v":260},5.9542893784637931E-3,{"$f":"CntyQuery!H73","v":337},7.0475553138985318E-3,{"$f":"CntyQuery!I73","v":424},8.1627938317001322E-3,{"$f":"CntyQuery!J73","v":437},8.1708206345941694E-3,null,0.29615384615384616,0.29673590504451036]
[null,"Conway",null,{"$f":"CntyQuery!G74","v":8604},0.19704117620116338,{"$f":"CntyQuery!H74","v":10115},0.21153122255217702,{"$f":"CntyQuery!I74","v":11782},0.22682555878559191,{"$f":"CntyQuery!J74","v":12131},0.2268197371127274,null,0.17561599256159927,0.19930795847750865]
[null,"Eaton",null,{"$f":"CntyQuery!G75","v":375},8.5879173727843178E-3,{"$f":"CntyQuery!H75","v":393},8.2186624283742526E-3,{"$f":"CntyQuery!I75","v":409},7.874015748031496E-3,{"$f":"CntyQuery!J75","v":421},7.8716601536936975E-3,null,4.8000000000000001E-2,7.124681933842239E-2]
[null,"Effingham",null,{"$f":"CntyQuery!G76","v":1273},2.9153116841478494E-2,{"$f":"CntyQuery!H76","v":1465},3.0636998619766615E-2,{"$f":"CntyQuery!I76","v":1675},3.2246886009664438E-2,{"$f":"CntyQuery!J76","v":1724},3.2234541817025973E-2,null,0.15082482325216026,0.17679180887372015]
[null,"Freedom",null,{"$f":"CntyQuery!G77","v":1303},2.9840150231301241E-2,{"$f":"CntyQuery!H77","v":1489},3.1138901668827639E-2,{"$f":"CntyQuery!I77","v":1691},3.2554915965577649E-2,{"$f":"CntyQuery!J77","v":1741},3.2552399827982727E-2,null,0.1427475057559478,0.16924110141034251]
[null,"Hale's Location",null,{"$f":"CntyQuery!G78","v":58},1.3282645536573077E-3,{"$f":"CntyQuery!H78","v":120},2.5095152453051151E-3,{"$f":"CntyQuery!I78","v":0},0,{"$f":"CntyQuery!J78","v":0},0,null,{"$f":"(F38-D38)/D38","v":1.0689655172413792},-1]
[null,"Hart's Location",null,{"$f":"CntyQuery!G79","v":37},8.47341180781386E-4,{"$f":"CntyQuery!H79","v":41},8.5741770881258108E-4,{"$f":"CntyQuery!I79","v":45},8.6633425100591036E-4,{"$f":"CntyQuery!J79","v":47},8.7878391264513953E-4,null,0.10810810810810811,0.14634146341463414]
[null,"Jackson",null,{"$f":"CntyQuery!G80","v":835},1.9122429350066413E-2,{"$f":"CntyQuery!H80","v":816},1.7064703668074784E-2,{"$f":"CntyQuery!I80","v":783},1.507421596750284E-2,{"$f":"CntyQuery!J80","v":806},1.507020922536133E-2,null,-2.2754491017964073E-2,-1.2254901960784314E-2]
[null,"Madison",null,{"$f":"CntyQuery!G81","v":1984},4.5435808180277565E-2,{"$f":"CntyQuery!H81","v":2502},5.2323392864611649E-2,{"$f":"CntyQuery!I81","v":3086},5.9411277746760874E-2,{"$f":"CntyQuery!J81","v":3178},5.9420750518856459E-2,null,0.26108870967741937,0.27018385291766589]
[null,"Moultonborough",null,{"$f":"CntyQuery!G82","v":4484},0.10268859066550634,{"$f":"CntyQuery!H82","v":4044},8.4570663766782378E-2,{"$f":"CntyQuery!I82","v":3467},6.674624107194424E-2,{"$f":"CntyQuery!J82","v":3570},6.6750182300918046E-2,null,{"$f":"(F42-D42)/D42","v":-9.8126672613737739E-2},{"$f":"(J42-F42)/F42","v":-0.1172106824925816}]
[null,"Ossipee",null,{"$f":"CntyQuery!G83","v":4211},9.6436586818119355E-2,{"$f":"CntyQuery!H83","v":4345},9.0865364507089375E-2,{"$f":"CntyQuery!I83","v":4448},8.5632327743873096E-2,{"$f":"CntyQuery!J83","v":4579},8.5615990127704128E-2,null,{"$f":"(F43-D43)/D43","v":3.1821420090239846E-2},{"$f":"(J43-F43)/F43","v":5.3855005753739929E-2}]
[null,"Sandwich",null,{"$f":"CntyQuery!G84","v":1286},2.9450831310401687E-2,{"$f":"CntyQuery!H84","v":1326},2.7730143460621522E-2,{"$f":"CntyQuery!I84","v":1356},2.6105538763644763E-2,{"$f":"CntyQuery!J84","v":1396},2.6101751958566274E-2,null,3.110419906687403E-2,5.2790346907993967E-2]
[null,"Tamworth",null,{"$f":"CntyQuery!G85","v":2510},5.7481793615169696E-2,{"$f":"CntyQuery!H85","v":2856},5.9726462838261746E-2,{"$f":"CntyQuery!I85","v":3231},6.220279922222436E-2,{"$f":"CntyQuery!J85","v":3326},6.2187984967185833E-2,null,0.13784860557768924,0.16456582633053221]
[null,"Tuftonboro",null,{"$f":"CntyQuery!G86","v":2148},4.9191590711308568E-2,{"$f":"CntyQuery!H86","v":2387},4.9918440754527581E-2,{"$f":"CntyQuery!I86","v":2640},5.082494272568007E-2,{"$f":"CntyQuery!J86","v":2719},5.083858422302414E-2,null,0.11126629422718808,0.13908671973188103]
[null,"Wakefield",null,{"$f":"CntyQuery!G87","v":4252},9.7375532450877114E-2,{"$f":"CntyQuery!H87","v":5078},0.10619432013049479,{"$f":"CntyQuery!I87","v":5995},0.11541497410623183,{"$f":"CntyQuery!J87","v":6173},0.11541985303741376,null,{"$f":"(F47-D47)/D47","v":0.19426152398871119},0.21563607719574635]
[null,"Wolfeboro",null,{"$f":"CntyQuery!G88","v":6083},0.13930747034305868,{"$f":"CntyQuery!H88","v":6269},0.13110125894014807,{"$f":"CntyQuery!I88","v":6408},0.12336599734324163,{"$f":"CntyQuery!J88","v":6598},0.12336630331133257,null,{"$f":"(F48-D48)/D48","v":3.057701791879007E-2},5.2480459403413622E-2]
[]
[]
[null,"Carroll County",null,{"$f":"SUM(D30:D50)","v":43666},null,{"$f":"SUM(F30:F50)","v":47818},null,{"$f":"SUM(H30:H50)","v":51943},null,{"$f":"SUM(J30:J50)","v":53483},null,null,9.5085421151467966E-2,0.11847003220544565]
[]
[null,"Source: US Census and NH Office of Strategic Initiatives"]

{"sheet":"HousingComparison","index":67,"n_rows":56,"n_cols":15,"rows_kept":56,"cut":false,"hidden":true,"merged":[[28,3,28,4],[28,5,28,8],[28,9,28,14],[29,5,29,6],[29,7,29,8],[29,9,29,10],[29,11,29,12],[29,13,29,14]]}
[]
[]
[]
[]
[]
[]
[]
[]
[]
[]
[]
[]
[]
[]
[]
[]
[]
[]
[]
[]
[]
[]
[]
[]
[]
[]
[]
[null,"Housing Units",null,"In 2019"]
[null,null,null,"Total Units",null,"Occupied Units",null,null,null,"Vacant Units"]
[null,null,null,null,null,"Owner",null,"Renter",null,"For Sale",null,"For Rent",null,"Seasonal"]
[null,null,null,"#","%","#","%","#","%","#","%","#","%","#","%"]
[]
[null,"Albany",null,{"$f":"ACS_Table_B25001!$C$7","v":542},{"$f":"D33/D$53","v":1.3165565487757481E-2},{"$f":"ACS_Table_B25003!$C$8","v":272},{"$f":"F33/$F$53","v":1.5976505139500736E-2},{"$f":"ACS_Table_B25003!$C$9","v":35},{"$f":"H33/$H$53","v":7.8988941548183249E-3},{"$f":"ACS_Table_B25004!$C$10","v":12},{"$f":"J33/$J$53","v":2.8503562945368172E-2},{"$f":"ACS_Table_B25004!$C$8","v":0},{"$f":"L33/$L$53","v":0},{"$f":"ACS_Table_B25004!$C$12","v":199},{"$f":"N33/$N$53","v":1.1109870477891916E-2}]
[null,"Bartlett",null,{"$f":"ACS_Table_B25001!$E$7","v":4491},{"$f":"D34/D$53","v":0.10908958414302371},{"$f":"ACS_Table_B25003!$E$8","v":1074},{"$f":"F34/$F$53","v":6.3083700440528634E-2},{"$f":"ACS_Table_B25003!$E$9","v":392},{"$f":"H34/$H$53","v":8.8467614533965247E-2},{"$f":"ACS_Table_B25004!$E$10","v":99},{"$f":"J34/$J$53","v":0.23515439429928742},{"$f":"ACS_Table_B25004!$E$8","v":47},{"$f":"L34/$L$53","v":0.28834355828220859},{"$f":"ACS_Table_B25004!$E$12","v":2843},{"$f":"N34/$N$53","v":0.15872041089772221}]
[null,"Brookfield",null,{"$f":"ACS_Table_B25001!$G$7","v":391},9.4976680917217265E-3,{"$f":"ACS_Table_B25003!$G$8","v":289},1.6975036710719531E-2,{"$f":"ACS_Table_B25003!$G$9","v":14},3.1595576619273301E-3,{"$f":"ACS_Table_B25004!$G$10","v":12},2.8503562945368172E-2,{"$f":"ACS_Table_B25004!$G$8","v":5},3.0674846625766871E-2,{"$f":"ACS_Table_B25004!$G$12","v":43},2.4006252791424743E-3]
[null,"Chatham",null,{"$f":"ACS_Table_B25001!$I$7","v":254},6.1698406529343179E-3,{"$f":"ACS_Table_B25003!$I$8","v":132},7.7533039647577091E-3,{"$f":"ACS_Table_B25003!$I$9","v":11},{"$f":"H36/$H$53","v":2.4825095915143309E-3},{"$f":"ACS_Table_B25004!$I$10","v":0},0,{"$f":"ACS_Table_B25004!$I$8","v":0},0,{"$f":"ACS_Table_B25004!$I$12","v":105},5.8619919606967396E-3]
[null,"Conway",null,{"$f":"ACS_Table_B25001!$K$7","v":7078},0.17192965410027206,{"$f":"ACS_Table_B25003!$K$8","v":3114},{"$f":"F37/$F$53","v":0.18290748898678413},{"$f":"ACS_Table_B25003!$K$9","v":1518},{"$f":"H37/$H$53","v":0.34258632362897767},{"$f":"ACS_Table_B25004!$K$10","v":10},2.3752969121140142E-2,{"$f":"ACS_Table_B25004!$K$8","v":0},0,{"$f":"ACS_Table_B25004!$K$12","v":2194},0.12248771773112997]
[null,"Eaton",null,{"$f":"ACS_Table_B25001!$M$7","v":248},6.024096385542169E-3,{"$f":"ACS_Table_B25003!$M$8","v":102},5.9911894273127755E-3,{"$f":"ACS_Table_B25003!$M$9","v":33},7.4475287745429924E-3,{"$f":"ACS_Table_B25004!$M$10","v":4},9.5011876484560574E-3,{"$f":"ACS_Table_B25004!$M$8","v":0},0,{"$f":"ACS_Table_B25004!$M$12","v":91},5.0803930326038414E-3]
[null,"Effingham",null,{"$f":"ACS_Table_B25001!$O$7","v":913},2.2177419354838711E-2,{"$f":"ACS_Table_B25003!$O$8","v":488},2.8663729809104258E-2,{"$f":"ACS_Table_B25003!$O$9","v":106},2.3922365154592642E-2,{"$f":"ACS_Table_B25004!$O$10","v":2},4.7505938242280287E-3,{"$f":"ACS_Table_B25004!$O$8","v":8},4.9079754601226995E-2,{"$f":"ACS_Table_B25004!$O$12","v":263},1.4682894149173738E-2]
[null,"Freedom",null,{"$f":"ACS_Table_B25001!$Q$7","v":1910},4.6395258453167512E-2,{"$f":"ACS_Table_B25003!$Q$8","v":577},3.3891336270190899E-2,{"$f":"ACS_Table_B25003!$Q$9","v":34},7.6732114646806586E-3,{"$f":"ACS_Table_B25004!$Q$10","v":22},5.2256532066508314E-2,{"$f":"ACS_Table_B25004!$Q$8","v":0},0,{"$f":"ACS_Table_B25004!$Q$12","v":1256},7.0120589548905765E-2]
[null,"Hale's Location",null,{"$f":"ACS_Table_B25001!$S$7","v":97},2.3561989895064129E-3,{"$f":"ACS_Table_B25003!$S$8","v":89},5.2276064610866377E-3,{"$f":"ACS_Table_B25003!$S$9","v":0},0,{"$f":"ACS_Table_B25004!$S$10","v":2},4.7505938242280287E-3,{"$f":"ACS_Table_B25004!$S$8","v":0},0,{"$f":"ACS_Table_B25004!$S$12","v":6},3.3497096918267083E-4]
[null,"Hart's Location",null,{"$f":"ACS_Table_B25001!$U$7","v":64},1.5546055188495919E-3,{"$f":"ACS_Table_B25003!$U$8","v":19},1.1160058737151248E-3,{"$f":"ACS_Table_B25003!$U$9","v":5},1.1284134506883321E-3,{"$f":"ACS_Table_B25004!$U$10","v":0},0,{"$f":"ACS_Table_B25004!$U$8","v":0},0,{"$f":"ACS_Table_B25004!$U$12","v":32},1.786511835640911E-3]
[null,"Jackson",null,{"$f":"ACS_Table_B25001!$W$7","v":1055},2.562670034978624E-2,{"$f":"ACS_Table_B25003!$W$8","v":318},1.8678414096916299E-2,{"$f":"ACS_Table_B25003!$W$9","v":98},2.2116903633491312E-2,{"$f":"ACS_Table_B25004!$W$10","v":16},3.800475059382423E-2,{"$f":"ACS_Table_B25004!$W$8","v":0},0,{"$f":"ACS_Table_B25004!$W$12","v":581},3.2436355515855289E-2]
[null,"Madison",null,{"$f":"ACS_Table_B25001!$Y$7","v":1973},4.7925573260785073E-2,{"$f":"ACS_Table_B25003!$Y$8","v":792},4.6519823788546258E-2,{"$f":"ACS_Table_B25003!$Y$9","v":185},4.1751297675468292E-2,{"$f":"ACS_Table_B25004!$Y$10","v":28},6.6508313539192399E-2,{"$f":"ACS_Table_B25004!$Y$8","v":11},6.7484662576687116E-2,{"$f":"ACS_Table_B25004!$Y$12","v":911},5.0859758820902191E-2]
[null,"Moultonborough",null,{"$f":"ACS_Table_B25001!$AA$7","v":4870},0.11829576369996113,{"$f":"ACS_Table_B25003!$AA$8","v":1531},8.9926578560939788E-2,{"$f":"ACS_Table_B25003!$AA$9","v":234},5.2809749492213946E-2,{"$f":"ACS_Table_B25004!$AA$10","v":27},6.413301662707839E-2,{"$f":"ACS_Table_B25004!$AA$8","v":34},0.20858895705521471,{"$f":"ACS_Table_B25004!$AA$12","v":2947},0.16452657436355517]
[null,"Ossipee",null,{"$f":"ACS_Table_B25001!$AC$7","v":3168},7.6952973183054801E-2,{"$f":"ACS_Table_B25003!$AC$8","v":1540},9.0455212922173275E-2,{"$f":"ACS_Table_B25003!$AC$9","v":471},0.10629654705484089,{"$f":"ACS_Table_B25004!$AC$10","v":66},0.15676959619952494,{"$f":"ACS_Table_B25004!$AC$8","v":0},0,{"$f":"ACS_Table_B25004!$AC$12","v":1002},5.594015185350603E-2]
[null,"Sandwich",null,{"$f":"ACS_Table_B25001!$AE$7","v":1049},2.5480956082394094E-2,{"$f":"ACS_Table_B25003!$AE$8","v":561},3.2951541850220263E-2,{"$f":"ACS_Table_B25003!$AE$9","v":82},1.8505980591288648E-2,{"$f":"ACS_Table_B25004!$AE$10","v":26},6.1757719714964368E-2,{"$f":"ACS_Table_B25004!$AE$8","v":0},0,{"$f":"ACS_Table_B25004!$AE$12","v":371},2.0712371594461813E-2]
[null,"Tamworth",null,{"$f":"ACS_Table_B25001!$AG$7","v":2003},4.8654294597745819E-2,{"$f":"ACS_Table_B25003!$AG$8","v":939},5.5154185022026431E-2,{"$f":"ACS_Table_B25003!$AG$9","v":361},8.1471451139697587E-2,{"$f":"ACS_Table_B25004!$AG$10","v":0},0,{"$f":"ACS_Table_B25004!$AG$8","v":0},0,{"$f":"ACS_Table_B25004!$AG$12","v":703},3.9247431889236267E-2]
[null,"Tuftonboro",null,{"$f":"ACS_Table_B25001!$AI$7","v":2445},5.9390788962300815E-2,{"$f":"ACS_Table_B25003!$AI$8","v":858},5.0396475770925112E-2,{"$f":"ACS_Table_B25003!$AI$9","v":65},1.4669374858948319E-2,{"$f":"ACS_Table_B25004!$AI$10","v":0},0,{"$f":"ACS_Table_B25004!$AI$8","v":18},0.11042944785276074,{"$f":"ACS_Table_B25004!$AI$12","v":1440},8.0393032603840994E-2]
[null,"Wakefield",null,{"$f":"ACS_Table_B25001!$AK$7","v":3771},9.1600272055965798E-2,{"$f":"ACS_Table_B25003!$AK$8","v":1901},0.11165932452276064,{"$f":"ACS_Table_B25003!$AK$9","v":216},4.8747461069735952E-2,{"$f":"ACS_Table_B25004!$AK$10","v":0},0,{"$f":"ACS_Table_B25004!$AK$8","v":0},0,{"$f":"ACS_Table_B25004!$AK$12","v":1480},8.2626172398392136E-2]
[null,"Wolfeboro",null,{"$f":"ACS_Table_B25001!$AM$7","v":4846},0.11771278663039254,{"$f":"ACS_Table_B25003!$AM$8","v":2429},0.14267254038179147,{"$f":"ACS_Table_B25003!$AM$9","v":571},0.12886481606860753,{"$f":"ACS_Table_B25004!$AM$10","v":95},0.22565320665083136,{"$f":"ACS_Table_B25004!$AM$8","v":40},0.24539877300613497,{"$f":"ACS_Table_B25004!$AM$12","v":1445},8.0672175078159894E-2]
[]
[null,"Carroll County",null,{"$f":"SUM(D33:D52)","v":41168},null,{"$f":"SUM(F33:F52)","v":17025},null,{"$f":"SUM(H33:H52)","v":4431},null,{"$f":"SUM(J33:J52)","v":421},null,{"$f":"SUM(L33:L52)","v":163},null,{"$f":"SUM(N33:N52)","v":17912}]
[]
[null,"Source: 2015-2019 American Community Survey Tables B25001; B25003; and B25004"]
[null,"Margin of error is not displayed.  The American Community Survey data are estimates only."]

{"sheet":"Housing_EmploymentComparison","index":68,"n_rows":59,"n_cols":11,"rows_kept":59,"cut":false,"hidden":true,"merged":[[56,2,56,13],[57,2,57,13],[58,2,58,13],[28,3,28,4],[28,5,28,10],[29,5,29,6],[29,7,29,8],[29,9,29,10]]}
[]
[]
[]
[]
[]
[]
[]
[]
[]
[]
[]
[]
[]
[]
[]
[]
[]
[]
[]
[]
[]
[]
[]
[]
[]
[]
[]
[null,null,null,"In 2019"]
[null,null,null,"Total Units",null,"Employment"]
[null,null,null,null,null,"Total Private",null,"Goods Producing",null,"Service Providing"]
[null,null,null,"#","%","#","%","#","%","#","%"]
[]
[null,"Albany",null,{"$f":"ACS_Table_B25001!$C$7","v":542},{"$f":"D33/D$53","v":1.3165565487757481E-2},{"$f":"CntyQuery!$ER$99","v":120},{"$f":"F33/$F$53","v":6.9492703266157054E-3},{"$f":"CntyQuery!$ET$99","v":27},{"$f":"CntyQuery!$EC$99","v":"n"},{"$f":"CntyQuery!$EU$99","v":94},{"$f":"J33","v":94}]
[null,"Bartlett",null,{"$f":"ACS_Table_B25001!$E$7","v":4491},{"$f":"D34/D$53","v":0.10908958414302371},{"$f":"CntyQuery!$ER$100","v":852},{"$f":"F34/$F$53","v":4.9339819318971509E-2},{"$f":"CntyQuery!$ET$100","v":40},{"$f":"H34/$H$53","v":1.8796992481203006E-2},{"$f":"CntyQuery!$EU$100","v":812},{"$f":"J34/$J$53","v":5.3632760898282693E-2}]
[null,"Brookfield",null,{"$f":"ACS_Table_B25001!$G$7","v":391},9.4976680917217265E-3,{"$f":"CntyQuery!$ER$101","v":14},8.1074820477183233E-4,{"$f":"CntyQuery!$ET$101","v":"n"},{"$f":"CntyQuery!$EC$101","v":"n"},{"$f":"CntyQuery!$EU$101","v":"n"},{"$f":"CntyQuery!EM101","v":849.09}]
[null,"Chatham",null,{"$f":"ACS_Table_B25001!$I$7","v":254},6.1698406529343179E-3,{"$f":"CntyQuery!$ER$102","v":"n"},{"$f":"CntyQuery!$EB$102","v":"n"},{"$f":"CntyQuery!$ET$102","v":0},{"$f":"H36","v":0},{"$f":"CntyQuery!$EU$102","v":"n"},{"$f":"CntyQuery!$ED$104","v":"n"}]
[null,"Conway",null,{"$f":"ACS_Table_B25001!$K$7","v":7078},0.17192965410027206,{"$f":"CntyQuery!$ER$103","v":8134},{"$f":"F37/$F$53","v":0.47104470697243456},{"$f":"CntyQuery!$ET$103","v":790},{"$f":"H37/$H$53","v":0.37124060150375937},{"$f":"CntyQuery!$EU$103","v":7344},0.48507265521796566]
[null,"Eaton",null,{"$f":"ACS_Table_B25001!$M$7","v":248},6.024096385542169E-3,{"$f":"CntyQuery!$ER$104","v":"n"},null,{"$f":"CntyQuery!$ET$104","v":"n"},{"$f":"H38","v":"n"},{"$f":"CntyQuery!$EU$104","v":"n"},{"$f":"CntyQuery!$ED$104","v":"n"}]
[null,"Effingham",null,{"$f":"ACS_Table_B25001!$O$7","v":913},2.2177419354838711E-2,{"$f":"CntyQuery!$ER$105","v":55},3.1850822330321982E-3,{"$f":"CntyQuery!$ET$105","v":"n"},{"$f":"H39","v":"n"},{"$f":"CntyQuery!$EU$105","v":0},{"$f":"CntyQuery!$ED$105","v":0}]
[null,"Freedom",null,{"$f":"ACS_Table_B25001!$Q$7","v":1910},4.6395258453167512E-2,{"$f":"CntyQuery!$ER$106","v":209},1.2103312485522353E-2,{"$f":"CntyQuery!$ET$106","v":28},1.3157894736842105E-2,{"$f":"CntyQuery!$EU$106","v":181},1.1955085865257595E-2]
[null,"Hale's Location",null,{"$f":"ACS_Table_B25001!$S$7","v":97},2.3561989895064129E-3,{"$f":"CntyQuery!$ER$107","v":"n"},{"$f":"F41","v":"n"},{"$f":"CntyQuery!$ET$107","v":0},{"$f":"H41","v":0},{"$f":"CntyQuery!$EU$107","v":"n"},{"$f":"CntyQuery!$ED$104","v":"n"}]
[null,"Hart's Location",null,{"$f":"ACS_Table_B25001!$U$7","v":64},1.5546055188495919E-3,{"$f":"CntyQuery!$ER$108","v":"n"},{"$f":"CntyQuery!$EB$108","v":"n"},{"$f":"CntyQuery!$ET$108","v":0},{"$f":"H42","v":0},{"$f":"CntyQuery!$EU$108","v":"n"},{"$f":"CntyQuery!$ED$108","v":"n"}]
[null,"Jackson",null,{"$f":"ACS_Table_B25001!$W$7","v":1055},2.562670034978624E-2,{"$f":"CntyQuery!$ER$109","v":468},2.7102154273801252E-2,{"$f":"CntyQuery!$ET$109","v":"n"},{"$f":"CntyQuery!$ED$108","v":"n"},{"$f":"CntyQuery!$EU$109","v":"n"},{"$f":"CntyQuery!$ED$108","v":"n"}]
[null,"Madison",null,{"$f":"ACS_Table_B25001!$Y$7","v":1973},4.7925573260785073E-2,{"$f":"CntyQuery!$ER$110","v":510},2.9534398888116747E-2,{"$f":"CntyQuery!$ET$110","v":162},7.6127819548872183E-2,{"$f":"CntyQuery!$EU$110","v":348},2.2985468956406869E-2]
[null,"Moultonborough",null,{"$f":"ACS_Table_B25001!$AA$7","v":4870},0.11829576369996113,{"$f":"CntyQuery!$ER$111","v":1362},7.8874218207088259E-2,{"$f":"CntyQuery!$ET$111","v":189},8.8815789473684209E-2,{"$f":"CntyQuery!$EU$111","v":1173},7.7476882430647293E-2]
[null,"Ossipee",null,{"$f":"ACS_Table_B25001!$AC$7","v":3168},7.6952973183054801E-2,{"$f":"CntyQuery!$ER$112","v":1215},7.0361362056984011E-2,{"$f":"CntyQuery!$ET$112","v":182},8.5526315789473686E-2,{"$f":"CntyQuery!$EU$112","v":1033},6.8229854689564065E-2]
[null,"Sandwich",null,{"$f":"ACS_Table_B25001!$AE$7","v":1049},2.5480956082394094E-2,{"$f":"CntyQuery!$ER$113","v":172},9.9606208014825105E-3,{"$f":"CntyQuery!$ET$113","v":55},2.5845864661654134E-2,{"$f":"CntyQuery!$EU$113","v":117},7.7278731836195507E-3]
[null,"Tamworth",null,{"$f":"ACS_Table_B25001!$AG$7","v":2003},4.8654294597745819E-2,{"$f":"CntyQuery!$ER$114","v":540},3.1271716469770672E-2,{"$f":"CntyQuery!$ET$114","v":164},7.7067669172932327E-2,{"$f":"CntyQuery!$EU$114","v":376},2.4834874504623513E-2]
[null,"Tuftonboro",null,{"$f":"ACS_Table_B25001!$AI$7","v":2445},5.9390788962300815E-2,{"$f":"CntyQuery!$ER$115","v":342},1.9805420430854759E-2,{"$f":"CntyQuery!$ET$115","v":47},2.2086466165413533E-2,{"$f":"CntyQuery!$EU$115","v":295},1.9484808454425365E-2]
[null,"Wakefield",null,{"$f":"ACS_Table_B25001!$AK$7","v":3771},9.1600272055965798E-2,{"$f":"CntyQuery!$ER$116","v":579},3.3530229325920778E-2,{"$f":"CntyQuery!$ET$116","v":"n"},{"$f":"H50","v":"n"},{"$f":"CntyQuery!$EU$116","v":"n"},{"$f":"J50","v":"n"}]
[null,"Wolfeboro",null,{"$f":"ACS_Table_B25001!$AM$7","v":4846},0.11771278663039254,{"$f":"CntyQuery!$ER$117","v":2653},0.15363678480426221,{"$f":"CntyQuery!$ET$117","v":312},{"$f":"H51/$H$53","v":0.14661654135338345},{"$f":"CntyQuery!$EU$117","v":2342},0.15468956406869219]
[]
[null,"Carroll County",null,{"$f":"SUM(D33:D52)","v":41168},null,{"$f":"CntyQuery!$ER$125","v":17268},null,{"$f":"CntyQuery!$ET$125","v":2128},null,{"$f":"CntyQuery!$EU$125","v":15140}]
[]
[]
[null,"Source: ","2015-2019 American Community Survey Table B25001"]
[null,null,"Employment data provided by NH Department of Employment Security 2019 Covered Private Employment."]
[null,null,"Margin of error is not displayed.  The American Community Survey data are estimates only. Total Employment "]
[null,null,"at the county lev$eu$ is the number provided by NH Department of Employment Security."]

{"sheet":"DropDownList","index":69,"n_rows":24,"n_cols":2,"rows_kept":24,"cut":false,"hidden":true,"merged":[]}
["List Range for Combo Box on Start Page"]
["Albany"]
["Bartlett"]
["Brookfield"]
["Chatham"]
["Conway"]
["Eaton"]
["Effingham"]
["Freedom"]
["Hale's Location"]
["Hart's Location"]
["Jackson"]
["Madison"]
["Moultonborough"]
["Ossipee"]
["Sandwich"]
["Tamworth"]
["Tuftonboro"]
["Wakefield"]
["Wolfeboro"]
[]
[]
[]
[{"$f":"B24","v":"Albany"},"Albany"]

{"sheet":"CntyQryCensus","index":70,"n_rows":308,"n_cols":216,"rows_kept":308,"cut":false,"hidden":true,"merged":[]}
[]
["Census 2000 SF1   -           Query Name:  TownAllQuery3"]
["NAME","COUNTY","LOGRECNO","COUSUB","TRACT","AREALAND","AREAWATR","POP100","HU100","P01TotalPopulation","P03PopOfOneRace","P03PopWhite","P03PopBlack","P03PopAmIndian","P03PopAsian","P03PopHawaiian","P03PopOtherRace","P03Pop2orMoreRaces","P04PopHispanicLatino","P04PopNotHispanicLatino","P12PopMale","P12PopMale<15","P12PopMale15to24","P12PopMale25to34","P12PopMale35to44","P12PopMale45to54","P12PopMale55to64","P12PopMale65to74","P12PopMale75to84","P12PopMale85andOver","P12PopFemale","P12PopFemale<15","P12PopFemale15to24","P12PopFemale25to34","P12PopFemale35t44","P12PopFemale45to54","P12PopFemale55to64","P12PopFemale65to74","P12PopFemale75to84","P12PopFemale85andOver","P15Households2000","P16PopInHH","P17AvgHHSize","P18HHs1Person","P18HHs2orMorePerson","P18HHsFamily","P18HHMarriedCoupleFam","P18HHSingleParentFam","P18HHsNonFamily","P31Families","P32PopInFam","P33AvgFamSize","H01TotHsUnits","H04OccHsUnits","H04OwnerOccHU","H04RenterOccHU","H05VctHsUnits","H05VctHUForRent","H05VctHUForSale","H05VctHUSeasonal","H10PopInOccHU","H11PopInOwnOccHU","H11PopInRntOccHU","H12AvgHHSize2","H12AvgHHSizOwnOcc","H12AvgHHSizRntOcc","H14OwnOccWhtHsHldr","H14OwnOccBlkHsHldr","H14OwnOccAmIHsHldr","H14OwnOccAsnHsHldr","H14OwnOccPIsHsHldr","H14OwnOccORHsHldr","H14OwnOcc2RcHsHldr","H14RntOccWhtHsHldr","H14RntOccBlkHsHldr","H14RntOccAmIHsHldr","H14RntOccAsnHsHldr","H14RntOccPIsHsHldr","H14RntOccORHsHldr","H14RntOcc2RcHsHldr","H16OwnOccHH15to24","H16OwnOccHH25to34","H16OwnOccHH35to44","H16OwnOccHH45to54","H16OwnOccHH55to64","H16OwnOccHH65to74","H16OwnOccHH75to84","H16OwnOccHH85Over","H16RntOccHH15to24","H16RntOccHH25to34","H16RntOccHH35to44","H16RntOccHH45to54","H16RntOccHH55to64","H16RntOccHH65to74","H16RntOccHH75to84","H16RntOccHH85Over","P27TotalPop","P27PopInHseHlds","P27PopInGrpQtrs","P13MedianPopTotal","P13MedianPopMale","P13MedianPopFemale"]
["Albany","003","0002057","00420","","     193586162","        853295","      654","      506",654,650,644,1,2,1,2,0,4,5,649,328,68,37,43,77,43,35,15,6,4,326,82,26,47,73,36,35,20,5,2,262,651,2.48,61,201,183,135,48,18,183,521,2.85,506,262,221,41,244,6,7,201,651,539,112,2.48,2.44,2.73,216,0,1,1,1,0,2,39,1,0,0,0,0,1,3,33,74,40,36,21,9,5,5,14,15,3,2,2,0,0,654,651,3,37.4,37.799999999999997,36.6]
["Bartlett","003","0002117","03700","","     194986736","         18607","     2705","     3589",2705,2695,2655,4,8,11,0,17,10,11,2694,1356,253,123,162,214,240,176,120,62,6,1349,247,112,170,252,228,172,114,41,13,1206,2689,2.23,350,856,745,582,163,111,745,2037,2.73,3589,1206,870,336,2383,37,33,2261,2689,1976,713,2.23,2.27,2.12,858,1,3,3,0,1,4,329,1,1,1,0,0,4,7,75,182,225,181,133,56,11,29,89,91,54,38,16,16,3,2705,2689,16,41.5,42.3,40.700000000000003]
["Brookfield","003","0002325","07940","","      59217407","       1016788","      604","      280",604,601,598,0,2,0,1,0,3,2,602,293,55,27,33,44,56,31,28,17,2,311,53,39,28,48,58,31,33,15,6,236,604,2.56,43,193,180,157,23,13,180,527,2.93,280,236,223,13,44,0,3,34,604,571,33,2.56,2.56,2.54,223,0,0,0,0,0,0,13,0,0,0,0,0,0,1,20,41,64,35,36,21,5,1,3,4,3,1,1,0,0,604,604,0,43,43.3,42.7]
["Chatham","003","0002362","11780","","     146866601","       1322089","      260","      253",260,258,255,0,0,0,0,3,2,0,260,134,30,11,9,27,27,13,13,3,1,126,27,7,23,19,29,10,8,3,0,107,260,2.4300000000000002,29,78,71,61,10,7,71,209,2.94,253,107,92,15,146,0,2,86,260,230,30,2.4300000000000002,2.5,2,89,0,0,0,0,1,2,15,0,0,0,0,0,0,1,8,23,28,12,14,5,1,1,6,4,1,1,2,0,0,260,260,0,40.799999999999997,43.4,37]
["Conway","003","0002429","14660","","     180414957","       5317307","     8604","     5927",8604,8519,8383,21,27,67,0,21,85,36,8568,4169,821,472,544,691,673,418,315,183,52,4435,758,495,553,710,723,417,355,278,146,3714,8444,2.27,1158,2556,2244,1726,518,312,2244,6393,2.85,5927,3714,2447,1267,2213,169,51,1797,8444,5927,2517,2.27,2.42,1.99,2426,1,5,4,0,2,9,1212,4,6,15,0,5,25,35,233,497,595,414,360,247,66,132,332,315,187,102,75,87,37,8604,8444,160,39.9,38.799999999999997,41.1]
["Eaton","003","0002804","23380","","      63176816","       3067657","      375","      239",375,372,370,1,0,1,0,0,3,0,375,184,36,17,8,25,46,30,12,9,1,191,33,17,13,35,54,16,14,7,2,157,373,2.38,37,120,112,96,16,8,112,319,2.85,239,157,123,34,82,7,3,72,373,306,67,2.38,2.4900000000000002,1.97,123,0,0,0,0,0,0,34,0,0,0,0,0,0,0,5,23,44,22,16,10,3,1,10,5,13,5,0,0,0,375,373,2,45.3,46.6,44.6]
["Effingham","003","0002871","23620","","      99832973","       2871343","     1273","      791",1273,1265,1252,5,4,3,0,1,8,5,1268,657,130,84,73,116,100,73,45,32,4,616,129,72,74,109,90,63,42,29,8,490,1193,2.4300000000000002,114,376,336,262,74,40,336,969,2.88,791,490,396,94,301,1,12,260,1193,998,195,2.4300000000000002,2.52,2.0699999999999998,388,1,1,2,0,0,4,91,0,1,1,0,0,1,5,44,95,85,76,49,31,11,17,26,18,14,6,6,6,1,1273,1193,80,38.5,38.799999999999997,38.299999999999997]
["Freedom","003","0002954","27700","","      89731743","       8594638","     1303","     1406",1303,1295,1292,2,0,1,0,0,8,0,1303,635,86,37,62,88,115,94,101,45,7,668,93,43,58,105,108,101,93,59,8,602,1297,2.15,169,433,402,356,46,31,402,1045,2.6,1406,602,536,66,804,4,17,771,1297,1171,126,2.15,2.1800000000000002,1.91,534,0,0,0,0,0,2,66,0,0,0,0,0,0,2,38,90,111,99,113,74,9,1,22,14,12,5,6,4,2,1303,1297,6,48.6,48.9,48.3]
["Hale's Location","003","0003060","32500","","       6291455","             0","       58","       65",58,58,58,0,0,0,0,0,0,0,58,28,0,0,0,3,1,8,15,1,0,30,2,0,1,0,1,16,7,3,0,29,58,2,2,27,27,26,1,0,27,56,2.0699999999999998,65,29,28,1,36,4,2,27,58,54,4,2,1.93,4,28,0,0,0,0,0,0,1,0,0,0,0,0,0,0,0,1,1,8,16,2,0,0,0,1,0,0,0,0,0,58,58,0,64.400000000000006,66.5,63]
["Hart's Location","003","0003078","34500","","      48165241","             0","       37","       50",37,36,36,0,0,0,0,0,1,0,37,18,3,2,2,5,1,0,4,0,1,19,5,1,2,4,1,1,4,1,0,15,37,2.4700000000000002,4,11,10,10,0,1,10,31,3.1,50,15,12,3,35,0,0,35,37,30,7,2.4700000000000002,2.5,2.33,12,0,0,0,0,0,0,3,0,0,0,0,0,0,0,2,3,1,0,5,1,0,0,2,1,0,0,0,0,0,37,37,0,39.299999999999997,40,36.799999999999997]
["Jackson","003","0003119","38260","","     173347171","         17696","      835","      910",835,833,829,0,2,1,1,0,2,1,834,416,63,18,44,74,63,59,65,24,6,419,66,21,48,74,59,64,50,32,5,377,822,2.1800000000000002,102,275,241,218,23,34,241,643,2.67,910,377,297,80,533,3,5,428,822,665,157,2.1800000000000002,2.2400000000000002,1.96,296,0,1,0,0,0,0,78,0,0,0,1,0,1,0,19,60,45,65,70,36,2,3,24,26,17,2,3,2,3,835,822,13,45.6,46.3,45.1]
["Madison","003","0003197","45060","","     100303571","       5746519","     1984","     1589",1984,1966,1940,1,13,4,0,8,18,15,1969,1013,214,120,110,184,174,100,62,39,10,971,182,84,121,202,160,94,64,47,17,777,1984,2.5499999999999998,167,610,560,466,94,50,560,1663,2.97,1589,777,633,144,812,4,11,765,1984,1649,335,2.5499999999999998,2.61,2.33,624,0,1,1,0,4,3,140,0,2,0,0,0,2,4,67,165,164,103,72,45,13,6,41,41,30,6,5,9,6,1984,1984,0,39.6,38.799999999999997,40.299999999999997]
["Moultonborough","003","0003349","49380","","     154973795","      38205710","     4484","     4523",4484,4458,4416,6,10,25,0,1,26,28,4456,2215,368,217,166,307,392,334,262,146,23,2269,372,174,183,344,420,316,268,157,35,1884,4453,2.36,447,1437,1377,1200,177,60,1377,3810,2.77,4523,1884,1636,248,2639,19,40,2519,4453,3851,602,2.36,2.35,2.4300000000000002,1621,2,1,8,0,0,4,244,0,1,1,0,0,2,6,101,259,390,362,300,176,42,10,61,80,49,21,14,12,1,4484,4453,31,46.6,46.3,46.9]
["Ossipee","003","0003633","58740","","     184272307","      11437718","     4211","     2742",4211,4159,4125,6,16,9,0,3,52,14,4197,2104,424,253,198,336,298,257,211,102,25,2107,397,195,195,361,320,229,208,127,75,1672,4064,2.4300000000000002,423,1249,1154,915,239,95,1154,3343,2.9,2742,1672,1323,349,1070,33,32,920,4064,3182,882,2.4300000000000002,2.41,2.5299999999999998,1304,0,2,3,0,1,13,339,0,2,0,0,1,7,21,105,281,283,248,240,116,29,26,75,104,54,29,36,20,5,4211,4064,147,41.5,41,42.2]
["Sandwich","003","0003872","67780","","     234650883","       7446288","     1286","      965",1286,1274,1258,8,4,4,0,0,12,6,1280,601,107,52,26,87,119,73,76,49,12,685,111,55,49,98,130,71,90,60,21,564,1286,2.2799999999999998,151,413,391,337,54,22,391,1063,2.72,965,564,451,113,401,2,18,360,1286,1040,246,2.2799999999999998,2.31,2.1800000000000002,449,0,0,0,0,0,2,109,1,0,0,0,0,3,1,14,66,126,77,93,59,15,6,17,29,21,6,8,16,10,1286,1286,0,47.2,47.6,46.8]
["Tamworth","003","0003992","76100","","     155221633","       2113258","     2510","     1662",2510,2485,2461,4,6,5,0,9,25,16,2494,1278,280,139,131,224,191,132,104,68,9,1232,218,115,136,221,188,141,103,76,34,1074,2504,2.33,308,766,676,544,132,90,676,1932,2.86,1662,1074,791,283,588,11,20,526,2504,1941,563,2.33,2.4500000000000002,1.99,780,0,2,0,0,2,7,272,0,1,1,0,3,6,12,66,193,174,134,101,87,24,29,66,64,42,32,23,20,7,2510,2504,6,40.6,39.6,41.4]
["Tuftonboro","003","0004134","77620","","     106529663","      23164940","     2148","     2019",2148,2123,2112,0,5,5,0,1,25,9,2139,1059,171,78,96,142,180,147,150,75,20,1089,170,88,101,144,193,163,121,92,17,926,2148,2.3199999999999998,212,714,666,582,84,48,666,1788,2.68,2019,926,808,118,1093,3,19,1043,2148,1893,255,2.3199999999999998,2.34,2.16,804,0,2,0,0,0,2,116,0,1,0,0,0,1,3,54,129,182,157,160,97,26,9,29,24,24,15,8,5,4,2148,2148,0,47.7,47.6,47.7]
["Wakefield","003","0004273","78180","","     101842488","      13788934","     4252","     3331",4252,4215,4176,4,19,8,0,8,37,24,4228,2103,473,202,207,371,310,237,198,95,10,2149,438,202,251,378,319,227,197,109,28,1685,4252,2.52,368,1317,1214,1012,202,103,1214,3550,2.92,3331,1685,1404,281,1646,7,20,1588,4252,3542,710,2.52,2.52,2.5299999999999998,1387,1,7,1,0,0,8,274,0,1,1,0,1,4,12,150,324,302,245,231,120,20,21,68,75,41,27,23,22,4,4252,4252,0,40.1,40,40.1]
["Wolfeboro","003","0004531","86420","","     125115350","      26367985","     6083","     3903",6083,6069,6030,10,4,22,0,3,14,37,6046,2864,533,279,220,458,421,340,330,215,68,3219,529,261,280,457,461,349,419,296,167,2574,5978,2.3199999999999998,736,1838,1723,1460,263,115,1723,4875,2.83,3903,2574,1987,587,1329,24,40,1194,5978,4784,1194,2.3199999999999998,2.41,2.0299999999999998,1980,1,0,4,0,0,2,581,2,1,0,0,1,2,4,126,364,386,345,388,287,87,34,121,139,101,52,57,47,36,6083,5978,105,45.3,44.1,46.7]
[]
[]
[]
["Census 2000 DemoProfile Sample Data Tables 2&3   -  DPTab23TownQry"]
[]
["TOWN_NAME","COUSUB","AREANAME","PopInSchool","Preschool","Kindergarten","Elementary","HighSchool","College","Pop25andOver","HighSchoolGrad","SomeCollege","AssocDegree","BachelDegree","GradDegree","HSGradorHigher","CollegeGradorHigher","Pop5to20yrs","Pop5to20wDis","Pop21to64","Pop21to64wDis","Pop65over","Pop65overwDis","Pop5yrsOver","SameHUin95","DiffHUinUSin95","HUinSameCountyin95","HUinSameStatein95","TotalPop","NativePop","NatPopBornUS","NatPopBornInStatRes","NatPopBornDiffState","NatPopBornOutUS","FornBornPop","FornPopEnt90to00","FornPopNatCit","FornPopNotCit","Households","HHIncLessThn10k","HHInc10to15K","HHInc15to25K","HHInc25to35K","HHInc35to50K","HHInc50to75K","HHInc75to100K","HHInc100to150K","HHInc150to200K","HHIncOver200K","MedianHHInc","HHwithPubAssistInc","MeanPubAssist","FamilyHH","FHHIncLessThn10k","FHHInc10to15K","FHHInc15to25K","FHHInc25to35K","FHHInc35to50K","FHHInc50to75K","FHHInc75to100K","FHHInc100to150K","FHHInc150to200K","FHHIncOver200K","MedianFHHInc","PerCapitaInc","PovStatFamilies","PovStatFHHwChilUnd18","PovStatFHHwChilUnd5","PovStFmalHH","DP3088","DP3089","PovStatIndiv","PovStatIndiv18yrOver","PovStatIndiv65yrOver","DP3093","DP3094","DP3095","CNTY_NAME"]
["Albany","00420","Albany town, Carroll County, New Hampshire",132,12,8,59,38,15,409,165,69,20,54,21,329,75,123,16,386,135,46,21,555,336,215,128,87,609,605,605,298,307,0,4,0,4,0,249,24,25,44,23,59,50,10,3,8,3,36635,11,5309,167,13,9,27,21,46,36,5,2,8,0,39250,20690,18,16,12,10,10,8,95,57,2,38,21,34]
["Bartlett","03700","Bartlett town, Carroll County, New Hampshire",625,50,29,311,144,91,2000,515,424,197,419,213,1768,632,546,43,1692,312,371,115,2610,1438,1142,629,513,2736,2667,2652,971,1681,15,69,13,35,34,1229,81,78,190,196,244,259,105,37,25,14,39107,38,1231,771,32,28,107,123,164,190,71,28,19,9,43203,21631,48,41,20,22,22,11,222,143,22,76,56,78]
["Brookfield","07940","Brookfield town, Carroll County, New Hampshire",126,0,0,68,38,20,446,136,103,20,100,52,411,152,123,9,355,51,105,45,583,363,218,62,156,605,587,587,186,401,0,18,0,11,7,239,2,9,24,22,48,84,18,16,4,12,52132,8,4875,189,0,4,15,17,36,73,12,16,4,12,54688,25745,2,0,0,0,0,0,9,7,2,0,0,5]
["Chatham","11780","Chatham town, Carroll County, New Hampshire",71,12,8,34,6,11,174,80,32,7,19,4,142,23,60,1,155,42,24,10,239,184,55,20,35,260,257,254,109,145,3,3,0,3,0,93,6,3,17,17,24,13,6,4,2,1,37188,0,0,75,5,3,9,12,22,11,6,4,2,1,40156,15317,10,8,3,2,2,0,40,23,0,17,12,5]
["Conway",14660,"Conway town, Carroll County, New Hampshire",1846,105,92,916,507,226,6094,2238,1153,587,881,493,5352,1374,1747,159,5062,1437,1230,521,8149,4943,3027,1747,1280,8604,8367,8305,3214,5091,62,237,116,77,160,3736,334,246,708,536,698,671,250,199,65,29,35873,110,3903,2264,116,99,291,357,470,468,202,178,59,24,41818,19673,182,125,58,70,66,36,875,617,169,250,188,327]
["Eaton","23380","Eaton town, Carroll County, New Hampshire",74,5,0,37,16,16,247,63,51,35,61,21,231,82,66,4,211,86,44,20,321,240,72,37,35,333,322,320,119,201,2,11,5,2,9,150,10,9,26,8,28,38,15,16,0,0,46429,2,3400,110,4,2,16,3,24,30,17,14,0,0,53750,21122,4,2,0,0,0,0,24,19,7,5,5,8]
["Effingham","23620","Effingham town, Carroll County, New Hampshire",341,10,11,182,89,49,856,316,167,79,94,52,708,146,324,72,736,149,158,79,1218,785,430,211,219,1273,1255,1252,475,777,3,18,2,14,4,492,48,31,74,83,117,77,31,22,5,4,36000,25,1136,346,19,20,58,52,90,53,28,20,4,2,38000,17089,28,22,13,12,12,10,191,135,10,38,24,108]
["Freedom","27700","Freedom town, Carroll County, New Hampshire",235,16,10,103,48,58,1053,336,213,92,203,126,970,329,182,15,759,158,310,97,1251,840,407,117,290,1303,1271,1268,385,883,3,32,10,28,4,609,50,21,99,98,119,125,40,41,6,10,40187,7,1843,416,17,8,44,54,90,119,36,32,6,10,49167,23036,19,8,4,3,3,2,88,76,25,10,6,43]
["Hale's Location","32500",""]
["Hart's Location","34500","Hart's Location town, Carroll County, New Hampshire",12,2,0,5,3,2,21,5,3,0,8,3,19,11,10,0,21,0,0,0,31,29,2,0,2,33,33,33,15,18,0,0,0,0,0,13,0,0,3,2,3,3,2,0,0,0,41250,0,0,8,0,0,0,0,3,3,2,0,0,0,70833,19610,0,0,0,0,0,0,0,0,0,0,0,0]
["Jackson","38260","Jackson town, Carroll County, New Hampshire",165,17,8,72,23,45,636,85,135,62,235,103,620,338,107,0,474,65,179,51,760,436,317,103,214,805,776,761,206,555,15,29,3,19,10,363,31,15,47,32,59,87,47,30,12,3,49583,2,350,229,12,6,14,18,40,65,34,25,12,3,59327,25718,14,4,2,4,4,2,65,58,26,7,5,33]
["Madison","45060","Madison town, Carroll County, New Hampshire",529,25,18,296,126,64,1412,526,244,149,288,85,1292,373,490,37,1217,287,237,88,1944,1195,749,362,387,2026,1996,1991,741,1250,5,30,2,20,10,780,27,50,110,109,151,218,56,35,12,12,43523,23,2213,561,7,20,53,72,119,194,45,28,11,12,51080,20608,11,9,0,2,2,0,90,61,9,26,26,41]
["Moultonborough","49380","Moultonborough town, Carroll County, New Hampshire",956,41,45,535,241,94,3368,982,803,316,672,344,3117,1016,865,43,2559,279,892,310,4319,2612,1656,495,1161,4484,4326,4294,1554,2740,32,158,28,119,39,1882,84,76,224,301,348,396,210,150,42,51,45050,46,3134,1377,22,39,143,200,252,327,188,116,42,48,51729,25733,44,16,0,0,0,0,180,149,23,31,31,62]
["Ossipee","58740","Ossipee town, Carroll County, New Hampshire",997,51,28,579,259,80,2933,1147,524,258,303,169,2401,472,922,77,2317,490,635,267,4022,2420,1602,745,857,4211,4165,4157,1776,2381,8,46,13,33,13,1672,140,124,284,293,391,261,81,68,6,24,34709,97,2703,1166,62,38,180,236,286,214,81,56,0,13,38790,18092,90,75,19,54,54,13,403,250,42,145,113,138]
["Sandwich","67780","Sandwich town, Carroll County, New Hampshire",277,16,19,132,90,20,967,265,220,46,225,159,915,384,245,8,683,88,303,106,1231,854,373,165,208,1286,1263,1259,561,698,4,23,2,18,5,573,36,28,93,56,89,156,70,24,10,11,47292,10,1470,398,10,10,48,30,67,137,64,20,8,4,55417,23714,14,14,5,9,9,5,78,52,16,22,17,40]
["Tamworth","76100","Tamworth town, Carroll County, New Hampshire",586,48,34,313,142,49,1778,544,285,166,251,146,1392,397,555,60,1461,368,404,177,2420,1484,929,507,422,2555,2516,2485,1138,1347,31,39,9,23,16,1090,106,100,155,180,211,200,71,50,12,5,35200,58,3682,694,34,41,79,111,160,155,56,43,10,5,41121,17961,49,26,16,19,19,9,241,182,41,48,26,119]
["Tuftonboro","77620","Tuftonboro town, Carroll County, New Hampshire",393,7,30,205,104,47,1655,472,373,166,289,196,1496,485,369,16,1205,191,478,135,2052,1285,757,322,435,2148,2096,2073,751,1322,23,52,11,38,14,927,63,36,89,133,200,195,108,55,23,25,45729,34,1623,658,20,18,59,81,136,172,82,52,16,22,51875,25070,29,11,7,5,5,3,137,106,29,29,21,56]
["Wakefield","78180","Wakefield town, Carroll County, New Hampshire",1043,52,71,557,218,145,2916,1072,694,229,363,147,2505,510,951,51,2407,485,633,210,3995,2105,1823,466,1357,4251,4156,4099,1779,2320,57,95,38,59,36,1682,113,119,210,215,339,402,114,104,20,46,42500,41,2912,1198,35,54,127,197,252,299,105,78,13,38,45774,21507,61,41,17,24,24,17,298,204,37,94,76,97]
["Wolfeboro","86420","Wolfeboro town, Carroll County, New Hampshire",1401,83,53,655,411,199,4508,1202,925,425,913,623,4088,1536,1219,119,3097,451,1403,522,5820,2896,2918,1240,1678,6083,5909,5847,2157,3690,62,174,20,135,39,2575,151,170,412,302,415,533,224,203,79,86,44012,72,1254,1734,33,64,188,187,311,406,214,190,64,77,53269,26361,61,53,22,27,27,8,375,250,40,119,94,156]
[]
[]
[]
[]
["Census 2000 DemoProfile Sample Data Table 4   -  DPTab4TownQry"]
[]
["TOWN_NAME","COUSUB","TotHousingUnits","1UnitDet","1UnitAtt","2Units","3to4Units","5to9Units","10to19Units","20orMoreUnits","MobileHomes","BoatRvVan","SingleFamilyUnits","MultiFamUnits","MobileHomeUnits","YearBuilt99to00","YearBuilt95to98","YearBUilt90to94","YearBuilt80to89","YearBuilt70to79","YearBuilt60to69","YearBuilt40to59","YearBuilt39orEarlier","Rooms1","Rooms2","Rooms3","Rooms4","Rooms5","Rooms6","Rooms7","Rooms8","Rooms9orMore","MedianRooms","OccHU1","YrHHMvdIn99to00","YrHHMvdIn95to98","YrHHMvdIn90to94","YrHHMvdIn80to89","YrHHMvdIn70to79","YrHHMvdIn69orBefore","HeatFuelNatGas","HeatFuelBotGas","HeatFuelElectric","HeatFuelOil","HeatFuelCoal","HeatFuelWood","HeatFuelSolar","HeatFuelOther","HeatFuelNone","LackCompPlumb","LackCompKit","NoTelephone","OccHU","OccPerRm1orLess","OccPerRm1to1_5","OccPerRm1_5orMore","SpecOwnOccUnits","Value<50K","Value50to100K","Value100to150K","Value150to200K","Value200to300K","Value300to500K","Value500Kto1mil","Value1MilorMore","MedianValue","WithMortg","MnthOwnCst<300","MnthOwnCst300to500","MnthOwnCst500to700","MnthOwnCst700to1000","MnthOwnCst1000to1500","MnthOwnCst1500to2000","MnthOwnCst2000orMore","MediMnthOwnCst","NotMrtg","NotMrtgMediMnthOwnCst","OwnCst%HHInc<15","OwnCst%HHInc15to20","OwnCst%HHInc20to25","OwnCst%HHInc25to30","OwnCst%HHInc30to35","OwnCst%HHInc35orMor","NotComputed","SpecRntOccUnits","Rnt<200","Rnt200to300","Rnt300to500","Rnt500to750","Rnt750to1000","Rnt1000to1500","Rnt1500orMore","NoRent","MedianRent","Rnt%HHInc<15","Rnt%HHInc15to20","Rnt%HHInc20to25","Rnt%HHInc25to30","Rnt%HHInc30to35","Rnt%HHInc35orMore","Rnt%NotCompute"]
["Albany","00420",491,393,0,14,0,0,0,0,84,0,393,14,84,7,26,35,64,103,64,110,82,16,35,45,125,105,83,46,17,19,4.7,237,40,78,38,51,12,18,0,55,2,160,0,20,0,0,0,0,0,6,237,236,1,0,122,6,68,28,16,2,2,0,0,85700,84,3,13,20,32,10,4,2,746,38,350,29,37,15,12,6,23,0,50,0,3,8,25,10,0,0,4,675,9,5,9,4,2,15,6]
["Bartlett","03700",3613,1792,637,149,291,491,126,65,62,0,1792,1759,62,36,141,250,1408,815,232,278,453,45,175,313,653,923,877,318,165,144,5.2,1220,189,396,208,233,117,77,38,304,84,615,2,177,0,0,0,7,5,21,1220,1201,19,0,676,17,263,217,75,72,25,7,0,113300,428,0,35,71,189,94,23,16,840,248,332,211,135,84,72,44,128,2,327,0,6,93,119,60,19,0,30,605,72,54,38,24,8,95,36]
["Brookfield","07940",281,275,4,0,0,0,0,0,0,2,275,4,2,12,6,20,37,41,25,25,115,2,2,4,18,35,53,73,41,53,6.9,237,43,53,36,60,17,28,0,24,0,203,0,8,0,2,0,2,2,2,237,237,0,0,151,4,41,71,25,10,0,0,0,120600,97,0,5,10,35,35,12,0,985,54,346,60,30,18,15,14,14,0,9,0,0,0,5,4,0,0,0,545,0,5,0,2,0,2,0]
["Chatham","11780",249,214,2,0,0,4,0,0,25,4,214,6,29,6,11,12,47,57,7,27,82,12,18,34,40,60,33,17,25,10,4.8,105,10,22,21,24,13,15,2,11,0,57,0,35,0,0,0,6,2,2,105,95,7,3,35,2,12,12,4,4,1,0,0,110900,25,2,5,15,0,0,2,1,569,10,325,19,2,4,0,4,6,0,13,2,0,0,11,0,0,0,0,592,5,0,0,5,0,3,0]
["Conway","14660",5931,3231,404,282,417,542,167,250,633,5,3231,2062,638,83,264,488,1883,1120,457,531,1105,26,167,554,1269,1325,1197,583,414,396,5.2,3716,722,1094,601,648,379,272,126,756,434,2098,13,267,0,6,16,13,29,27,3716,3655,61,0,1699,50,739,567,177,137,6,16,7,104400,1166,0,66,235,474,314,58,19,880,533,386,530,408,254,140,108,247,12,1258,98,83,358,428,171,59,18,43,525,285,156,167,143,154,310,43]
["Eaton","23380",213,194,4,4,11,0,0,0,0,0,194,19,0,8,9,16,50,15,17,16,82,2,0,6,21,38,56,29,10,51,6.2,144,18,24,39,36,16,11,0,25,3,86,0,30,0,0,0,0,0,3,144,144,0,0,58,3,20,22,9,2,2,0,0,107900,19,0,2,0,5,10,2,0,1156,39,388,29,10,7,0,6,4,2,22,0,0,2,11,5,0,0,4,636,5,2,0,4,0,7,4]
["Effingham","23620",791,614,4,9,12,2,20,0,130,0,614,47,130,17,44,95,217,90,67,84,177,10,14,101,159,191,130,99,53,34,5.0999999999999996,490,57,120,95,115,61,42,4,52,7,355,0,72,0,0,0,15,3,18,490,488,2,0,235,17,124,71,15,5,3,0,0,93800,156,0,11,19,88,28,10,0,859,79,342,67,35,32,33,28,36,4,86,2,0,21,43,6,2,0,12,544,12,11,14,12,4,21,12]
["Freedom","27700",1406,1204,85,10,4,4,0,0,97,2,1204,103,99,15,81,97,472,187,192,148,214,9,7,84,324,322,232,158,148,122,5.4,602,80,139,90,165,74,54,2,76,32,433,0,59,0,0,0,15,2,2,602,602,0,0,361,9,70,133,77,50,18,4,0,134300,176,0,14,18,65,63,14,2,936,185,346,132,56,48,35,29,57,4,66,0,2,13,28,4,0,0,19,563,5,14,4,4,5,15,19]
["Hale's Location","32500"]
["Hart's Location","34500",54,54,0,0,0,0,0,0,0,0,54,0,0,0,2,0,10,29,2,11,0,4,9,15,15,0,4,4,3,0,3.4,12,0,2,5,5,0,0,0,5,0,0,0,7,0,0,0,0,3,0,12,12,0,0,7,0,0,2,2,3,0,0,0,168800,2,0,0,0,2,0,0,0,950,5,308,7,0,0,0,0,0,0,3,0,0,0,0,0,0,0,3,0,0,0,0,0,0,0,3]
["Jackson","38260",886,706,66,16,77,16,0,2,3,0,706,177,3,5,58,58,160,158,134,107,206,8,29,86,112,134,189,118,105,105,5.9,364,43,118,64,67,33,39,3,79,24,208,0,47,0,3,0,0,0,0,364,364,0,0,211,0,31,47,29,56,35,13,0,195800,81,0,5,8,22,24,12,10,1098,130,406,103,22,10,14,13,47,2,76,0,0,29,25,4,10,0,8,536,20,8,11,4,5,20,8]
["Madison","45060",1615,1441,34,33,4,0,2,20,78,3,1441,93,81,51,133,89,469,316,204,133,220,9,32,80,214,418,368,230,139,125,5.6,790,113,230,87,194,116,50,2,135,28,526,3,96,0,0,0,4,0,4,790,777,13,0,474,13,182,200,38,30,5,6,0,108000,310,0,25,59,125,80,14,7,866,164,340,175,88,67,51,25,68,0,136,2,2,18,73,23,2,0,16,588,22,29,23,13,3,30,16]
["Moultonborough","49380",4523,4137,133,33,24,35,15,0,137,9,4137,240,146,113,444,494,1001,909,605,460,497,23,80,260,625,1101,995,639,419,381,5.7,1884,244,448,348,469,275,100,2,418,84,1214,0,157,4,0,5,19,10,7,1884,1877,7,0,1348,12,282,345,167,220,175,110,37,158000,826,0,23,115,256,241,109,82,1034,522,436,445,197,136,105,74,367,24,231,0,10,32,83,39,5,0,62,630,42,49,24,12,15,27,62]
["Ossipee","58740",2742,2031,70,52,39,20,11,13,506,0,2031,205,506,53,147,226,727,471,243,333,542,24,136,270,463,701,593,251,239,65,5.2,1672,289,486,227,381,166,123,7,365,65,1065,0,165,0,0,5,14,6,42,1672,1627,29,16,852,99,374,208,50,58,49,14,0,95700,513,0,24,112,160,114,75,28,887,339,322,239,123,115,116,81,172,6,329,7,19,142,81,50,8,0,22,484,63,57,44,23,27,93,22]
["Sandwich","67780",965,886,33,8,0,8,0,0,28,2,886,49,30,15,46,84,138,116,70,88,408,24,43,80,123,161,167,158,98,111,5.8,564,55,156,65,149,82,57,0,69,22,341,5,125,2,0,0,21,15,6,564,557,3,4,229,14,43,71,65,27,5,4,0,140900,109,0,8,18,22,43,16,2,1058,120,363,99,40,31,14,10,35,0,72,7,14,5,17,15,0,0,14,575,16,10,5,6,5,16,14]
["Tamworth","76100",1677,1331,44,28,42,19,17,0,184,12,1331,150,196,39,95,100,380,288,157,109,509,25,73,177,290,325,322,215,120,130,5.3,1099,183,264,186,255,108,103,2,181,57,678,2,179,0,0,0,9,8,13,1099,1081,13,5,532,30,247,167,48,33,4,0,3,98200,328,2,25,58,151,74,14,4,882,204,324,162,90,84,63,44,87,2,249,35,6,59,91,32,3,0,23,526,41,42,28,37,18,60,23]
["Tuftonboro","77620",2019,1732,43,19,47,22,2,0,152,2,1732,133,154,49,107,114,358,322,217,372,480,13,36,151,381,425,350,269,163,231,5.5,926,101,242,161,212,132,78,9,106,26,723,0,60,0,0,2,2,0,4,926,915,8,3,592,12,111,149,133,94,59,24,10,158000,332,0,12,43,110,87,34,46,1006,260,390,222,101,83,51,43,81,11,105,4,0,13,43,16,4,0,25,617,19,18,13,11,2,17,25]
["Wakefield","78180",3330,2918,39,58,86,4,0,27,185,13,2918,214,198,64,157,271,776,609,390,446,617,15,71,221,568,958,621,433,224,219,5.3,1684,236,580,250,407,125,86,0,362,110,1059,0,148,0,5,0,0,0,5,1684,1659,16,9,1083,17,471,320,124,130,17,4,0,106600,689,7,26,100,277,216,38,25,905,394,366,375,196,149,78,74,207,4,283,14,20,61,98,37,13,0,40,568,21,71,31,23,20,77,40]
["Wolfeboro","86420",3903,3092,157,151,217,76,0,87,107,16,3092,688,123,156,295,279,811,485,414,517,946,8,121,299,500,679,968,484,308,536,5.9,2574,395,941,326,472,267,173,0,247,316,1884,0,109,0,18,0,33,37,10,2574,2559,15,0,1552,0,351,427,284,305,97,75,13,149800,913,0,29,72,276,314,131,91,1098,639,441,517,182,253,167,119,299,15,579,61,18,136,192,99,26,9,38,606,67,90,116,52,34,164,56]
[]
[]
[]
[]
[]
[]
["Census 2000 SummaryFile3 Sample Data  -  SF3TownQry1SocialChar"]
[]
["TOWN_NAME","LOGRECNO","COUSUB","P01TotalPopulation","P02SampleCountOfPop","P03Pop100pctCount","P05UrbanPopulation","P05RuralPopulation","P06WhiteAlone","P06BlackOrAfAm","P06AmIndAlone","P06AsianAlone","P06HawaiianOrPI","P06OtherRace","P06TwoPlusRaces","P07NotHispanicOrLatino","P07HispanicOrLatino","P08MalePop","P08FemalePop","P09PopInHouseholds","P09PopInFamHH","P09PopInNonFamHH","P09PopInGroupQtr","P13TotalHH","P13FamilyHH","P13FamHHolder15to24yrs","P13FamHHolder25to34yrs","P13FamHHolder35to44yrs","P13FamHHolder45to54yrs","P13FamHHolder55to64yrs","P13FamHHolder65to74yrs","P13FamHHolder75to84yrs","P13FamHHolder85yrsOver","P13NonFamilyHH","P13NonFamHHolder15to24yrs","P13NonFamHHolder25to34yrs","P13NonFamHHolder35to44yrs","P13NonFamHHolder45to54yrs","P13NonFamHHolder55to64yrs","P13NonFamHHolder65to74yrs","P13NonFamHHolder75to84yrs","P13NonFamHHolder85yrsOver","P18Pop15yrsOver","P18MaritalStatNeverMarried","P18MaritalStatNowMarried","P18MaritalStatSeparated","P18MaritalStatWidowed","P18MaritalStatWidowFemale","P18MaritalStatDivorced","P18MaritalStatDivorcedFemale","P21NativeBornPop","P21NatPopBornInState","P21NatPopBornOtherState","P021005","P021006","P021007","P021008","P21NatPopBornOutUS","P21ForeignBornPop","P021014","P021015","P24Pop5YrsPlus","P24ResSameHouseIn95","P24ResDiffHouseIn95","P24ResDiffHouseInUSIn95","P24ResDiffHouseSameCountyIn95","P24ResDiffHouseDiffCountyIn95","P24ResDiffHouseDiffCntySamStIn95","P24ResDiffHouseDiffCntyDifStIn95","P24ResDiffHouseDiffCntyNEStIn95","P24ResDiffHouseDiffCntyMWStIn95","P24ResDiffHouseDiffCntySoStIn95","P24ResDiffHouseDiffCntyWstStIn95","P24ResDiffInPR","P24ResDiffElsewhereIn95","P26Workers16yrsOver","P26WorkedInState","P26WorkedInCnty","P26WorkedOutsideCnty","P26WorkedOutsideState","P30Workers16Over","P30TranspToWrkCar","P30TranspToWrkPublic","P30TranspToWrkOther","P30WrkdAtHome","P31WrkrsNotWrkAtHom","P31TravTim<5min","P31TravTim5to9Min","P31TravTim10to14Min","P31TravTim15to19Min","P31TravTim20to24Min","P31TravTim25to29Min","P31TravTim30to34Min","P31TravTim35to39Min","P31TravTim40to44Min","P31TravTim45to59Min","P31TravTim60to89Min","P31TravTim90MinMore","P31WorkAtHome","P36SchEnrlPop3yrOver","P36NurserSchEnrl","P36KinderSchEnrl","P36ElemSchEnrl","P36HighSchEnrl","P36CollGradSchEnrl","P37Pop25yrsOver","P37EduAtain<9grd","P37EduAtainHSnoDip","P37EduAtainHSgrad","P37EduAtainCollNoDeg","P37EduAtainAssocDeg","P37EduAtainBachDeg","P37EduAtainGradProfDeg","P42NIPop5to15","P42NIPop5to15wDisabl","P42NIPop16to20","P42NIPop16to20wDisab","P42NIPop16to20wDisEmp","P42NIPop16to21NoDis","P42NIPop16to21NoDisEmpl","P42NIPop21to64","P42NIPop21to64wDis","P42NIPop21to64wDisEmp","P42NIPop21to64NoDis","P42NIPop21to64NoDisEmp","P42NIPop65to74","P42NIPop65to74wDis","P42NIPop75Over","P42NIPop75OverwDis","P43Pop16YrsOver","P43Pop16OvrInLaborForce","P43Pop16OvrCivlLabFrc","P43Pop16OvrCivlLbrFrcEmp","P48Families","P48MarriedFam","P48MarrFamNoWorkers","P48MarrFam1Worker","P48MarrFam2Worker","P48MarrFamHusbWifeWorked","P48MarrFamOther","P48MarrFam3PlusWorker","P48MarrFam3WorkHsbWif","P48MarrFam3PlsWrkOther","P48OtherFam","P48MaleHHNoWif","P48MaleHHNoWifNoWorker","P48MaleHHNoWif1Worker","P48MaleHHNoWif2Worker","P48MaleHHNoWif3PlusWorker","P48FemaleHHNoHsb","P48FemaleHHNoHsbNoWorker","P48FemaleHHNoHsb1Worker","P48FemaleHHNoHsb2Worker","P48FemaleHHNoHsb3Worker","P49EmpCivPop16YrOver","P49IndustAgricult","P49IndustConst","P49IndustMnftg","P49IndustWhlslTrd","P49IndustRtlTrd","P49IndustTrspWrhsUtlt","P49IndustInfrm","P49IndustFinInsRE","P49IndustPrfsScntfMngmt","P49IndustEduHlthSocSrv","P49IndustArtsEntRec","P49IndustOthrSrvc","P49IndustPubAdm","P50OccupMngmtProfs","P50OccupService","P50OccupSalesOff","P50OccupFarmFishForest","P50OccupConstExtrctMaint","P50OccupPrdctTrnspMatMv"]
["Albany","0000308","00420",609,268,654,0,609,607,0,2,0,0,0,0,602,7,307,302,600,499,101,9,249,167,4,47,55,23,25,8,5,0,82,3,16,12,18,11,13,5,4,473,102,266,6,34,22,65,24,605,298,307,272,11,11,13,0,4,4,0,555,336,219,215,128,87,13,74,60,0,14,0,0,4,298,275,267,8,23,298,267,0,0,21,277,18,26,86,61,16,5,27,2,3,21,5,7,21,587,12,8,59,38,15,409,18,62,165,69,20,54,21,86,3,37,13,12,24,9,386,135,95,251,188,32,12,14,9,469,325,325,309,167,128,11,29,72,68,4,16,16,0,39,17,2,9,6,0,22,9,13,0,0,309,2,64,30,3,42,12,5,4,26,47,40,23,11,82,49,67,2,61,48]
["Bartlett","0000313","03700",2736,1149,2705,0,2736,2713,0,0,8,0,0,15,2727,9,1384,1352,2720,2131,589,16,1229,771,6,109,195,187,147,89,38,0,458,28,60,92,85,87,67,29,10,2233,506,1226,38,113,73,350,185,2667,971,1681,1436,112,98,35,15,69,35,34,2610,1438,1172,1142,629,513,108,405,296,24,60,25,0,30,1423,1371,1275,96,52,1423,1254,4,25,58,1365,182,249,336,201,148,46,81,9,10,42,24,37,58,2677,50,29,311,144,91,2000,33,199,515,424,197,419,213,419,26,127,17,17,110,65,1692,312,213,1380,1142,262,50,109,65,2191,1551,1550,1503,771,604,95,96,362,349,13,51,51,0,167,57,2,37,14,4,110,14,63,28,5,1503,13,136,56,27,230,49,25,80,112,238,480,35,22,454,341,431,7,159,111]
["Brookfield","0000320","07940",605,272,604,0,605,601,0,0,2,0,0,2,605,0,269,336,605,543,62,0,239,189,3,20,34,57,32,28,9,6,50,0,0,4,20,9,5,8,4,511,78,358,4,22,20,49,32,587,186,401,299,43,32,27,0,18,11,7,583,363,220,218,62,156,40,116,76,0,15,25,0,2,293,249,159,90,44,293,255,4,4,30,263,6,4,28,26,39,12,49,2,22,16,18,41,30,593,0,0,68,38,20,446,12,23,136,103,20,100,52,82,0,41,9,1,32,17,355,51,35,304,235,68,30,37,15,501,315,315,310,189,169,24,47,71,69,2,27,27,0,20,6,0,2,2,2,14,0,7,4,3,310,4,20,29,10,58,10,7,23,19,54,37,25,14,107,33,104,2,35,29]
["Chatham","0000325","11780",260,150,260,0,260,250,0,0,2,0,8,0,260,0,143,117,260,239,21,0,93,75,0,13,25,15,12,8,1,1,18,1,2,3,4,1,6,1,0,193,40,133,2,7,5,11,4,257,109,145,126,9,8,2,3,3,3,0,239,184,55,55,20,35,11,24,22,0,0,2,0,0,117,97,93,4,20,117,100,0,4,10,107,6,7,4,5,22,12,28,6,8,1,3,5,10,251,12,8,34,6,11,174,10,22,80,32,7,19,4,47,1,13,0,0,13,7,155,42,21,113,80,17,7,7,3,192,124,124,117,75,65,8,19,28,24,4,10,10,0,10,7,0,3,3,1,3,0,3,0,0,117,9,11,20,6,25,4,1,2,7,18,11,0,3,29,19,32,3,12,22]
["Conway","0000330","14660",8604,1422,8604,0,8604,8330,2,44,36,0,14,178,8558,46,4149,4455,8444,6637,1807,160,3736,2264,73,308,551,550,355,273,137,17,1472,104,196,254,282,196,161,207,72,7038,1743,3628,106,510,421,1051,598,8367,3214,5091,4288,254,402,147,62,237,77,160,8149,4943,3206,3027,1747,1280,235,1045,737,0,219,89,0,179,4593,4371,4215,156,222,4593,4146,17,35,185,4408,371,951,1142,886,385,81,211,27,51,71,100,132,185,8305,105,92,916,507,226,6094,179,563,2238,1153,587,881,493,1207,79,540,80,50,460,237,5062,1437,1138,3625,3036,655,190,575,331,6942,4855,4855,4665,2264,1720,230,317,939,913,26,234,222,12,544,151,16,89,36,10,393,56,192,115,30,4665,55,472,267,120,988,151,54,233,203,764,1007,214,137,1275,956,1449,26,539,420]
["Eaton","0000363","23380",333,138,375,0,333,330,0,0,0,0,3,0,330,3,181,152,331,286,45,2,150,110,2,9,28,32,25,6,8,0,40,0,3,7,14,2,8,4,2,277,41,202,7,8,4,19,7,322,119,201,176,12,11,2,2,11,2,9,321,240,81,72,37,35,8,27,15,3,9,0,0,9,171,153,147,6,18,171,149,0,3,10,161,13,8,10,29,38,2,18,13,6,4,4,16,10,321,5,0,37,16,16,247,8,8,63,51,35,61,21,48,0,18,4,0,14,10,211,86,78,125,87,22,5,22,15,273,182,182,180,110,103,18,15,57,57,0,13,13,0,7,5,0,2,3,0,2,0,0,0,2,180,3,24,9,13,32,4,8,5,8,35,26,7,6,50,21,57,3,30,19]
["Effingham","0000368","23620",1273,569,1273,0,1273,1252,3,5,0,0,0,13,1273,0,651,622,1193,1004,189,80,492,346,17,55,73,82,55,34,28,2,146,6,18,38,16,29,20,7,12,1017,246,568,14,74,54,115,52,1255,475,777,666,55,44,12,3,18,14,4,1218,785,433,430,211,219,67,152,127,0,14,11,0,3,616,567,516,51,49,616,553,0,10,43,573,25,50,67,67,79,59,66,21,25,41,27,46,43,1234,10,11,182,89,49,856,59,89,316,167,79,94,52,216,29,108,43,14,65,30,736,149,65,587,490,86,34,72,45,1002,704,704,636,346,262,34,54,140,130,10,34,34,0,84,27,4,16,4,3,57,7,41,5,4,636,17,63,67,12,108,18,11,19,46,151,65,36,23,175,125,125,14,101,96]
["Freedom","0000373","27700",1303,592,1303,0,1303,1294,0,1,4,0,0,4,1298,5,630,673,1297,1073,224,6,609,416,1,46,77,90,72,86,40,4,193,0,16,23,31,43,34,44,2,1126,173,746,3,88,70,116,64,1271,385,883,789,40,43,11,3,32,28,4,1251,840,411,407,117,290,77,213,172,22,4,15,0,4,611,536,480,56,75,611,550,5,11,34,577,12,53,64,75,63,48,99,28,13,39,35,48,34,1273,16,10,103,48,58,1053,33,50,336,213,92,203,126,136,8,46,7,2,39,22,759,158,104,601,453,193,36,117,61,1115,643,643,619,416,369,89,82,142,137,5,56,56,0,47,14,0,7,7,0,33,0,18,13,2,619,16,74,60,12,79,16,22,30,46,132,77,22,33,251,60,124,2,101,81]
["Hale's Location","0000378","32500",61,26,58,0,61,61,0,0,0,0,0,0,61,0,32,29,61,56,5,0,33,28,0,0,0,2,7,17,2,0,5,0,0,3,0,0,0,2,0,61,3,54,0,4,4,0,0,56,3,53,46,5,0,2,0,5,5,0,61,21,40,40,5,35,0,35,30,0,5,0,0,0,21,21,15,6,0,21,18,0,3,0,21,5,3,0,4,3,0,0,0,0,0,0,6,0,61,0,0,0,0,0,61,3,2,17,19,9,2,9,0,0,0,0,0,0,0,32,3,3,29,10,22,0,7,2,61,21,21,21,28,26,9,10,7,7,0,0,0,0,2,0,0,0,0,0,2,0,2,0,0,21,0,6,2,0,0,0,0,2,3,5,3,0,0,8,8,2,0,3,0]
["Hart's Location","0000383","34500",33,13,37,0,33,33,0,0,0,0,0,0,33,0,18,15,33,28,5,0,13,8,0,0,2,3,3,0,0,0,5,0,2,0,3,0,0,0,0,23,5,16,0,0,0,2,0,33,15,18,11,2,0,5,0,0,0,0,31,29,2,2,0,2,0,2,2,0,0,0,0,0,18,18,16,2,0,18,12,0,0,3,15,3,0,6,4,0,0,2,0,0,0,0,0,3,33,2,0,5,3,2,21,0,2,5,3,0,8,3,8,0,2,0,0,2,0,21,0,0,21,18,0,0,0,0,23,21,21,18,8,8,0,0,5,5,0,3,3,0,0,0,0,0,0,0,0,0,0,0,0,18,0,0,0,0,0,0,0,2,0,5,11,0,0,16,2,0,0,0,0]
["Jackson","0000388","38260",805,346,835,0,805,787,2,0,3,0,0,13,803,2,385,420,793,622,171,12,363,229,0,16,53,34,44,53,29,0,134,5,27,26,17,20,15,18,6,678,143,430,14,30,26,61,29,776,206,555,427,36,67,25,15,29,19,10,760,436,324,317,103,214,19,195,147,9,26,13,0,7,391,367,333,34,24,391,338,0,7,18,373,51,95,45,81,46,8,19,0,5,12,4,7,18,780,17,8,72,23,45,636,2,14,85,135,62,235,103,96,0,11,0,0,11,8,474,65,54,409,312,104,15,75,36,664,428,428,420,229,206,39,81,77,77,0,9,9,0,23,2,0,0,2,0,21,0,12,7,2,420,6,34,11,2,49,5,5,27,28,88,118,30,17,188,88,92,0,35,17]
["Madison","0000393","45060",2026,850,1984,0,2026,1977,3,16,5,0,5,20,2020,6,1032,994,2026,1736,290,0,780,561,7,73,167,136,85,53,32,8,219,9,31,33,68,31,21,17,9,1616,365,996,20,90,67,145,87,1996,741,1250,1089,61,74,26,5,30,20,10,1944,1195,749,749,362,387,63,324,263,2,44,15,0,0,1127,1060,1002,58,67,1127,1032,0,11,54,1073,63,81,129,225,191,75,157,15,16,42,41,38,54,1987,25,18,296,126,64,1412,29,91,526,244,149,288,85,365,22,125,15,15,110,70,1217,287,238,930,793,135,37,102,51,1579,1172,1172,1144,561,481,58,66,283,268,15,74,73,1,80,28,0,14,14,0,52,8,31,10,3,1144,24,143,88,28,212,27,30,37,76,230,167,46,36,329,211,311,19,161,113]
["Moultonborough","0000399","49380",4484,1037,4484,0,4484,4432,14,0,25,0,0,13,4461,23,2219,2265,4453,3882,571,31,1882,1377,8,137,245,324,309,244,105,5,505,13,43,94,91,81,69,100,14,3744,605,2524,44,199,147,372,193,4326,1554,2740,2268,174,205,93,32,158,119,39,4319,2612,1707,1656,495,1161,630,531,322,50,127,32,0,51,2060,1918,947,971,142,2060,1850,9,31,133,1927,87,191,238,293,232,132,228,67,57,129,139,134,133,4411,41,45,535,241,94,3368,69,182,982,803,316,672,344,633,24,232,19,0,213,126,2559,279,127,2280,1761,532,137,360,173,3686,2194,2191,2138,1377,1210,240,270,594,553,41,106,106,0,167,61,4,31,21,5,106,0,63,32,11,2138,24,255,225,61,269,68,30,238,171,366,250,104,77,659,334,664,19,306,156]
["Ossipee","0000407","58740",4211,710,4211,0,4211,4170,0,6,11,0,0,24,4211,0,2087,2124,4063,3458,605,148,1672,1166,41,137,276,228,214,212,58,0,506,5,59,88,113,59,86,90,6,3397,716,1935,56,298,229,392,172,4165,1776,2381,2101,104,128,48,8,46,33,13,4022,2420,1602,1602,745,857,271,586,509,15,51,11,0,0,1772,1636,1448,188,136,1772,1619,5,9,92,1680,102,245,255,312,141,87,191,26,34,110,113,64,92,4108,51,28,579,259,80,2933,90,442,1147,524,258,303,169,711,45,211,32,21,179,96,2317,490,222,1827,1393,412,129,223,138,3311,1956,1956,1834,1166,912,123,287,416,378,38,86,80,6,254,85,5,67,13,0,169,45,61,55,8,1834,20,228,146,47,340,67,43,77,105,377,190,105,89,451,338,523,4,305,213]
["Sandwich","0000414","67780",1286,616,1286,0,1286,1264,2,11,0,1,0,8,1282,4,607,679,1286,1083,203,0,573,398,3,24,84,95,71,63,45,13,175,6,5,14,53,25,34,22,16,1065,169,681,6,81,73,128,68,1263,561,698,529,73,59,37,4,23,18,5,1231,854,377,373,165,208,75,133,57,16,40,20,0,4,569,552,412,140,17,569,454,0,10,66,503,56,50,83,56,55,30,49,9,34,50,7,24,66,1253,16,19,132,90,20,967,18,34,265,220,46,225,159,184,8,61,0,0,61,11,683,88,50,595,495,164,31,139,75,1047,611,611,602,398,345,83,68,164,156,8,30,28,2,53,12,2,6,4,0,41,2,31,8,0,602,25,117,35,13,43,30,12,42,48,117,62,33,25,204,97,129,5,107,60]
["Tamworth","0000419","76100",2555,1161,2510,0,2555,2500,0,15,2,0,9,29,2544,11,1325,1230,2555,2052,503,0,1090,694,21,78,187,156,114,79,55,4,396,20,39,92,58,58,54,50,25,2044,475,1143,26,146,119,254,126,2516,1138,1347,1129,89,92,37,31,39,23,16,2420,1484,936,929,507,422,143,279,231,4,36,8,0,7,1205,1168,1032,136,37,1205,1085,0,0,78,1127,88,138,99,143,167,91,175,37,25,62,64,38,78,2477,48,34,313,142,49,1778,93,293,544,285,166,251,146,408,28,147,32,16,115,52,1461,368,229,1093,875,215,68,189,109,2012,1316,1316,1243,694,568,80,136,296,283,13,56,56,0,126,49,10,20,15,4,77,7,36,26,8,1243,41,151,118,32,203,65,20,61,94,209,164,41,44,313,239,329,25,168,169]
["Tuftonboro","0000425","77620",2148,998,2148,0,2148,2097,0,14,11,0,2,24,2135,13,1051,1097,2148,1823,325,0,927,658,3,53,122,157,135,113,63,12,269,3,29,27,60,38,53,37,22,1807,301,1216,11,111,80,168,94,2096,751,1322,1135,60,63,64,23,52,38,14,2052,1285,767,757,322,435,138,297,198,12,62,25,0,10,988,921,758,163,67,988,859,5,9,92,896,40,47,124,236,143,30,66,17,14,43,77,59,92,2075,7,30,205,104,47,1655,64,95,472,373,166,289,196,278,12,91,4,1,87,46,1205,191,108,1014,794,268,41,210,94,1774,1053,1053,1035,658,580,121,133,277,269,8,49,49,0,78,33,4,19,10,0,45,5,20,15,5,1035,27,122,66,41,173,24,38,71,119,200,73,39,42,301,185,299,24,143,83]
["Wakefield","0000432","78180",4251,1016,4252,0,4251,4147,0,35,28,0,14,27,4225,26,2129,2122,4251,3627,624,0,1682,1198,20,189,351,248,179,128,68,15,484,7,38,39,98,84,130,73,15,3323,575,2069,50,244,177,385,200,4156,1779,2320,1834,185,198,103,57,95,59,36,3995,2105,1890,1823,466,1357,729,628,471,50,51,56,0,67,1990,1771,811,960,219,1990,1837,8,14,90,1900,51,150,127,101,172,159,310,92,117,248,202,171,90,4140,52,71,557,218,145,2916,79,332,1072,694,229,363,147,762,45,189,6,4,183,78,2407,485,289,1922,1516,389,108,244,102,3233,2137,2133,2041,1198,987,166,215,504,500,4,102,90,12,211,69,3,43,19,4,142,28,80,34,0,2041,39,143,384,96,324,79,47,133,174,325,94,114,89,579,318,513,22,251,358]
["Wolfeboro","0000440","86420",6083,780,6083,0,6083,6066,8,0,0,0,0,9,6026,57,2840,3243,5977,5027,950,106,2575,1734,6,187,394,355,305,261,204,22,841,16,70,106,137,76,188,126,122,5023,832,3196,40,462,408,493,241,5909,2157,3690,3012,172,324,182,62,174,135,39,5820,2896,2924,2918,1240,1678,755,923,692,20,181,30,0,6,2522,2348,1890,458,174,2522,2220,6,26,168,2354,181,508,448,238,183,58,114,0,79,205,169,171,168,5938,83,53,655,411,199,4508,123,297,1202,925,425,913,623,886,61,333,58,42,275,83,3097,451,302,2646,1999,718,154,685,368,4934,2662,2662,2583,1734,1493,319,291,717,624,93,166,166,0,241,64,16,37,11,0,177,7,81,80,9,2583,26,298,210,132,254,104,8,136,244,699,270,104,98,950,423,593,8,347,262]
[]
[]
[]
[]
["Census 2000 SummaryFile3 Sample Data  -  SF3TownQry2aIncomeChar"]
[]
["TOWN_NAME","LOGRECNO","COUSUB","TotalPop","P52Households1","P52HHInc<10K","P52HHInc10to15K","P52HHInc15to20K","P52HHInc20to25K","P52HHInc25to30K","P52HHInc30to35K","P52HHInc35to40K","P52HHInc40to45K","P52HHInc45to50K","P52HHInc50to60K","P52HHInc60to75K","P52HHInc75to100K","P52HHInc100to125K","P52HHInc125to150K","P52HHInc150to200K","P52HHInc>200K","P53MedianHHInc","P54AggregHHInc","P55Households2","P55HHUnder25yrs","P55HH<25HHInc<10K","P55HH<25HHInc10to15K","P55HH<25HHInc15to20K","P55HH<25HHInc20to25K","P55HH<25HHInc25to30K","P55HH<25HHInc30to35K","P55HH<25HHInc35to40K","P55HH<25HHInc40to45K","P55HH<25HHInc45to50K","P55HH<25HHInc50to60K","P55HH<25HHInc60to75K","P55HH<25HHInc75to100K","P55HH<25HHInc100to125K","P55HH<25HHInc125to150K","P55HH<25HHInc150to200K","P55HH<25HHInc>200K","P55HH25to34yrs","P55HH25to34HHInc<10K","P55HH25to34HHInc10to15K","P55HH25to34HHInc15to20K","P55HH25to34HHInc20to25K","P55HH25to34HHInc25to30K","P55HH25to34HHInc30to35K","P55HH25to34HHInc35to40K","P55HH25to34HHInc40to45K","P55HH25to34HHInc45to50K","P55HH25to34HHInc50to60K","P55HH25to34HHInc60to75K","P55HH25to34HHInc75to100K","P55HH25to34HHInc100to125K","P55HH25to34HHInc125to150K","P55HH25to34HHInc150to200K","P55HH25to34HHInc>200K","P55HH35to44yrs","P55HH35to44HHInc<10K","P55HH35to44HHInc10to15K","P55HH35to44HHInc15to20K","P55HH35to44HHInc20to25K","P55HH35to44HHInc25to30K","P55HH35to44HHInc30to35K","P55HH35to44HHInc35to40K","P55HH35to44HHInc40to45K","P55HH35to44HHInc45to50K","P55HH35to44HHInc50to60K","P55HH35to44HHInc60to75K","P55HH35to44HHInc75to100K","P55HH35to44HHInc100to125K","P55HH35to44HHInc125to150K","P55HH35to44HHInc150to200K","P55HH35to44HHInc>200K","P55HH45to54yrs","P55HH45to55HHInc<10K","P55HH45to55HHInc10to15K","P55HH45to55HHInc15to20K","P55HH45to55HHInc20to25K","P55HH45to55HHInc25to30K","P55HH45to55HHInc30to35K","P55HH45to55HHInc35to40K","P55HH45to55HHInc40to45K","P55HH45to55HHInc45to50K","P55HH45to55HHInc50to60K","P55HH45to55HHInc60to75K","P55HH45to55HHInc75to100K","P55HH45to55HHInc100to125K","P55HH45to55HHInc125to150K","P55HH45to55HHInc150to200K","P55HH45to55HHInc>200K","P55HH55to64yrs","P55HH55to64HHInc<10K","P55HH55to64HHInc10to15K","P55HH55to64HHInc15to20K","P55HH55to64HHInc20to25K","P55HH55to64HHInc25to30K","P55HH55to64HHInc30to35K","P55HH55to64HHInc35to40K","P55HH55to64HHInc40to45K","P55HH55to64HHInc45to50K","P55HH55to64HHInc50to60K","P55HH55to64HHInc60to75K","P55HH55to64HHInc75to100K","P55HH55to64HHInc100to125K","P55HH55to64HHInc125to150K","P55HH55to64HHInc150to200K","P55HH55to64HHInc>200K","P55HH65to74yrs","P55HH65to74HHInc<10K","P55HH65to74HHInc10to15K","P55HH65to74HHInc15to20K","P55HH65to74HHInc20to25K","P55HH65to74HHInc25to30K","P55HH65to74HHInc30to35K","P55HH65to74HHInc35to40K","P55HH65to74HHInc40to45K","P55HH65to74HHInc45to50K","P55HH65to74HHInc50to60K","P55HH65to74HHInc60to75K","P55HH65to74HHInc75to100K","P55HH65to74HHInc100to125K","P55HH65to74HHInc125to150K","P55HH65to74HHInc150to200K","P55HH65to74HHInc>200K","P55HH>75yrs","P55HH>75HHInc<10K","P55HH>75HHInc10to15K","P55HH>75HHInc15to20K","P55HH>75HHInc20to25K","P55HH>75HHInc25to30K","P55HH>75HHInc30to35K","P55HH>75HHInc35to40K","P55HH>75HHInc40to45K","P55HH>75HHInc45to50K","P55HH>75HHInc50to60K","P55HH>75HHInc60to75K","P55HH>75HHInc75to100K","P55HH>75HHInc100to125K","P55HH>75HHInc125to150K","P55HH>75HHInc150to200K","P55HH>75HHInc>200K","P56MedHHInc","P56MedHHIncHH<25y","P56MedHHIncHH25to34y","P56MedHHIncHH35to44y","P56MedHHIncHH45to54y","P56MedHHIncHH55to64y","P56MedHHIncHH65to74y","P56MedHHIncHH>75y","P58Households3","P58HHwithEarnings","P58HHNoEarnings","P59HHwWageSalInc","P59HHNoWageSalInc","P60HHwSelfEmpInc","P60HHNoSelfEmpInc","P61HHwIndDivInc","P61HHNoIndDivInc","P62HHwSocSecInc","P62HHNoSocSecInc","P63HHwSSI","P63HHNoSSI","P64HHwPubAssInc","P64HHNoPubAssInc","P65HHwRetInc","P65HHNoRetInc","P66HHwOtherTypInc","P66HHNoOtherTypInc","P67AggregEarnings","P68AggregWageSalInc","P69AggregSelfEmpInc","P70AggregIntDivInc","P71AggregSocSecInc","P72AggregSSIInc","P73AggregPublicAssInc","P74AggregRetireInc","P76Families1","P76FamInc<10K","P76FamInc10to15K","P76FamInc15to20K","P76FamInc20to25K","P76FamInc25to30K","P76FamInc30to35K","P76FamInc35to40K","P76FamInc40to45K","P76FamInc45to50K","P76FamInc50to60K","P76FamInc60to75K","P76FamInc75to100K","P76FamInc100to125K","P76FamInc125to150K","P76FamInc150to200K","P76FamInc>200K","P77MedFamInc","P78AggregFamInc","P79NonFamHH","P79NonFamHHwInc<10K","P79NonFamHHwInc10to15K","P79NonFamHHwInc15to20K","P79NonFamHHwInc20to25K","P79NonFamHHwInc25to30K","P79NonFamHHwInc30to35K","P79NonFamHHwInc35to40K","P79NonFamHHwInc40to45K","P79NonFamHHwInc45to50K","P79NonFamHHwInc50to60K","P79NonFamHHwInc60to75K","P79NonFamHHwInc75to100K","P79NonFamHHwInc100to125K","P79NonFamHHwInc125to150K","P79NonFamHHwInc150to200K","P79NonFamHHwInc200KorMore","P80MedNonFamInc","P82PerCapitaInc"]
["Albany","0000308","00420",654,249,24,25,30,14,17,6,21,26,12,30,20,10,3,0,8,3,36635,12798700,249,7,0,0,3,1,0,1,0,1,0,1,0,0,0,0,0,0,63,6,0,12,0,0,3,12,10,0,11,7,2,0,0,0,0,67,2,5,2,5,7,0,7,8,4,13,4,3,1,0,3,3,41,5,4,2,6,2,2,2,2,0,0,4,5,2,0,5,0,36,3,6,7,0,6,0,0,3,6,3,2,0,0,0,0,0,21,8,5,4,0,0,0,0,2,2,0,0,0,0,0,0,0,14,0,5,0,2,2,0,0,0,0,2,3,0,0,0,0,0,36635,23750,39375,42292,31875,26667,12083,26250,249,202,47,182,67,34,215,41,208,64,185,9,240,11,238,30,219,30,219,8409800,7320400,1089400,3198100,610900,36400,58400,350900,167,13,9,19,8,15,6,15,25,6,22,14,5,2,0,8,0,39250,7285700,82,16,15,12,9,4,3,0,0,6,4,6,3,1,0,0,3,19583,20690]
["Bartlett","0000313","03700",2705,1229,81,78,109,81,99,97,77,88,79,129,130,105,22,15,25,14,39107,58037700,1229,34,7,3,8,0,4,0,5,0,1,3,2,1,0,0,0,0,169,17,8,3,3,15,25,11,25,9,28,19,6,0,0,0,0,287,16,16,16,13,32,25,17,20,18,35,33,30,2,7,7,0,272,9,0,15,24,22,9,19,23,8,45,40,42,8,4,2,2,234,11,20,26,16,12,19,6,17,32,11,20,15,7,2,16,4,156,8,12,30,17,7,13,15,0,11,7,12,11,5,0,0,8,77,13,19,11,8,7,6,4,3,0,0,4,0,0,2,0,0,39107,19167,40347,41635,52188,41944,32000,16806,1229,1022,207,943,286,255,974,432,797,339,890,18,1211,38,1191,167,1062,143,1086,45389000,38886700,6502300,4654300,3637800,112000,46800,3005600,771,32,28,60,47,59,64,56,51,57,87,103,71,17,11,19,9,43203,40066200,458,49,52,59,45,39,27,14,37,22,35,31,28,5,4,6,5,28026,21631]
["Brookfield","0000320","07940",604,239,2,9,11,13,9,13,26,16,6,40,44,18,12,4,4,12,52132,15421500,239,3,0,0,0,0,0,1,0,0,0,0,0,0,2,0,0,0,20,0,0,0,0,0,0,0,2,2,6,10,0,0,0,0,0,38,0,0,0,3,2,2,4,4,2,5,5,6,0,2,0,3,77,0,5,4,3,4,5,9,4,2,10,8,7,5,0,2,9,41,0,0,2,0,0,0,7,2,0,9,16,3,0,0,2,0,33,0,4,3,7,3,2,4,2,0,2,0,2,2,2,0,0,27,2,0,2,0,0,3,2,2,0,8,5,0,3,0,0,0,52132,100992,57500,51667,51250,60625,27083,51250,239,197,42,179,60,49,190,125,114,69,170,3,236,8,231,55,184,32,207,9682400,8579200,1103200,3219200,837500,27200,39000,1334300,189,0,4,5,10,4,13,16,14,6,35,38,12,12,4,4,12,54688,13392700,50,2,5,6,3,5,0,10,2,0,5,8,4,0,0,0,0,36111,25745]
["Chatham","0000325","11780",260,93,6,3,12,5,11,6,8,10,6,5,8,6,3,1,2,1,37188,4200900,93,1,0,0,0,0,1,0,0,0,0,0,0,0,0,0,0,0,15,5,0,2,1,0,4,0,3,0,0,0,0,0,0,0,0,28,0,0,9,0,4,0,5,3,0,0,4,3,0,0,0,0,19,0,0,0,0,2,2,1,2,0,4,2,1,1,1,2,1,13,0,2,1,1,1,0,2,0,2,0,2,0,2,0,0,0,14,0,1,0,2,2,0,0,2,4,1,0,2,0,0,0,0,3,1,0,0,1,1,0,0,0,0,0,0,0,0,0,0,0,37188,26250,21250,36250,55625,36875,45000,23750,93,80,13,65,28,31,62,34,59,33,60,3,90,0,93,19,74,7,86,2833700,2190600,643100,303200,482700,8700,0,486500,75,5,3,6,3,6,6,8,10,4,4,7,6,3,1,2,1,40156,3694500,18,1,0,6,2,5,0,0,0,2,1,1,0,0,0,0,0,23750,15317]
["Conway","0000330","14660",8604,3736,334,246,375,333,251,285,276,262,160,327,344,250,134,65,65,29,35873,167457700,3736,177,13,11,55,14,10,0,18,23,33,0,0,0,0,0,0,0,504,26,28,52,46,38,82,35,44,7,64,38,35,0,0,9,0,805,49,38,42,40,45,72,59,65,52,104,111,55,46,6,14,7,832,16,45,50,62,66,64,47,39,29,96,126,105,51,5,14,17,551,51,14,71,70,43,7,56,38,30,38,40,25,14,33,16,5,434,46,43,55,41,41,40,28,20,9,14,28,22,15,20,12,0,433,133,67,50,60,8,20,33,33,0,11,1,8,8,1,0,0,35873,21696,32183,44148,49783,37599,29167,16289,3736,3009,727,2839,897,602,3134,1059,2677,1113,2623,104,3632,110,3626,524,3212,449,3287,133738000,119981400,13756700,9297000,11438900,765500,429300,8451800,2264,116,99,128,163,180,177,173,178,119,204,264,202,108,70,59,24,41818,120081100,1472,245,172,247,179,97,107,78,68,41,91,87,40,14,0,6,0,21385,19673]
["Eaton","0000363","23380",375,150,10,9,13,13,3,5,5,13,10,29,9,15,11,5,0,0,46429,7388500,150,2,0,0,0,0,0,0,0,0,0,0,0,0,2,0,0,0,12,0,0,0,2,0,0,0,0,0,5,2,0,3,0,0,0,35,4,0,2,0,3,0,0,6,5,9,3,0,0,3,0,0,46,2,3,6,2,0,3,2,3,0,10,4,7,4,0,0,0,27,0,2,3,7,0,0,3,0,3,3,0,6,0,0,0,0,14,4,4,2,0,0,0,0,2,0,0,0,0,0,2,0,0,14,0,0,0,2,0,2,0,2,2,2,0,2,2,0,0,0,46429,102264,59167,47917,50625,38750,11875,46250,150,124,26,100,50,50,100,54,96,35,115,2,148,2,148,23,127,12,138,5588900,4443400,1145500,586400,417000,4100,6800,701200,110,4,2,7,9,0,3,3,11,10,21,9,17,9,5,0,0,53750,6325000,40,6,7,6,4,3,2,2,2,0,8,0,0,0,0,0,0,23125,21122]
["Effingham","0000368","23620",1273,492,48,31,41,33,45,38,50,37,30,32,45,31,20,2,5,4,36000,21428400,492,23,4,2,5,2,2,2,3,0,3,0,0,0,0,0,0,0,73,2,2,3,6,9,13,6,4,3,3,16,3,3,0,0,0,111,11,3,5,2,3,11,15,15,14,11,12,4,4,0,1,0,98,8,7,2,6,12,6,9,9,0,6,15,8,6,0,2,2,84,9,6,8,6,12,2,7,7,4,2,2,9,4,2,2,2,54,4,11,15,0,7,4,3,0,0,7,0,0,3,0,0,0,49,10,0,3,11,0,0,7,2,6,3,0,7,0,0,0,0,36000,23125,35625,42292,39167,31250,18750,35417,492,407,85,372,120,110,382,164,328,130,362,23,469,25,467,80,412,59,433,16342500,13511500,2831000,2106400,1344500,132400,28400,970100,346,19,20,35,23,26,26,40,26,24,24,29,28,18,2,4,2,38000,15980300,146,32,15,11,7,24,10,9,11,6,6,9,1,2,0,1,2,26176,17089]
["Freedom","0000373","27700",1303,609,50,21,44,55,58,40,35,40,44,65,60,40,18,23,6,10,40188,30492600,609,1,0,0,0,1,0,0,0,0,0,0,0,0,0,0,0,0,62,4,0,2,6,13,6,7,3,2,8,4,4,0,3,0,0,100,4,3,5,9,6,5,9,3,5,12,13,14,7,2,0,3,121,5,4,6,4,9,4,9,7,13,13,17,13,2,12,0,3,115,16,4,5,13,3,9,0,13,10,10,14,7,7,4,0,0,120,8,7,10,10,15,9,8,8,9,10,12,2,2,2,6,2,90,13,3,16,12,12,7,2,6,5,12,0,0,0,0,0,2,40188,23750,35000,50833,49750,42083,36250,25500,609,431,178,395,214,118,491,309,300,233,376,16,593,7,602,179,430,66,543,18625200,15952400,2672800,4969500,3092400,135900,12900,3057300,416,17,8,23,21,32,22,26,31,33,67,52,36,12,20,6,10,49167,24674200,193,33,16,23,34,24,18,12,9,8,2,4,4,6,0,0,0,23750,23036]
["Hale's Location","0000378","32500",58,33,0,3,5,0,5,4,0,3,0,6,2,0,5,0,0,0,32188,1557000,33,0,0,0,0,0,0,0,0,0,0,0,0,0,0,0,0,0,0,0,0,0,0,0,0,0,0,0,0,0,0,0,0,0,0,3,0,3,0,0,0,0,0,0,0,0,0,0,0,0,0,0,2,0,0,0,0,0,0,0,0,0,0,0,0,2,0,0,0,7,0,0,0,0,0,0,0,0,0,2,2,0,3,0,0,0,17,0,0,3,0,5,2,0,3,0,4,0,0,0,0,0,0,4,0,0,2,0,0,2,0,0,0,0,0,0,0,0,0,0,32188,0,0,11250,102264,64375,30625,23750,33,22,11,20,13,2,31,18,15,21,12,0,33,0,33,10,23,0,33,892400,866200,26100,111600,254800,0,0,298100,28,0,0,3,0,5,4,0,3,0,6,2,0,5,0,0,0,44167,1492200,5,0,3,2,0,0,0,0,0,0,0,0,0,0,0,0,0,12083,25103]
["Hart's Location","0000383","34500",37,13,0,0,3,0,2,0,0,3,0,0,3,2,0,0,0,0,41250,603200,13,0,0,0,0,0,0,0,0,0,0,0,0,0,0,0,0,0,2,0,0,0,0,2,0,0,0,0,0,0,0,0,0,0,0,2,0,0,0,0,0,0,0,0,0,0,0,2,0,0,0,0,6,0,0,3,0,0,0,0,0,0,0,3,0,0,0,0,0,3,0,0,0,0,0,0,0,3,0,0,0,0,0,0,0,0,0,0,0,0,0,0,0,0,0,0,0,0,0,0,0,0,0,0,0,0,0,0,0,0,0,0,0,0,0,0,0,0,0,0,41250,0,26250,80488,43750,41250,0,0,13,13,0,13,0,3,10,0,13,0,13,0,13,0,13,0,13,0,13,603200,533200,70000,0,0,0,0,0,8,0,0,0,0,0,0,0,3,0,0,3,2,0,0,0,0,70833,502200,5,0,0,3,0,2,0,0,0,0,0,0,0,0,0,0,0,17083,19609]
["Jackson","0000388","38260",835,363,31,15,25,22,22,10,19,15,25,40,47,47,15,15,12,3,49583,20483400,363,5,0,0,2,3,0,0,0,0,0,0,0,0,0,0,0,0,43,0,0,2,5,7,2,2,6,3,8,5,0,0,3,0,0,79,0,8,5,5,7,2,4,5,7,10,3,15,2,3,3,0,51,0,0,5,6,0,0,2,2,7,5,14,7,0,0,0,3,64,9,2,2,3,0,2,2,0,3,5,10,12,7,2,5,0,68,7,0,2,0,5,0,9,0,3,5,12,10,4,7,4,0,53,15,5,7,0,3,4,0,2,2,7,3,3,2,0,0,0,49583,20417,41458,48250,58750,65500,61500,19375,363,288,75,260,103,62,301,189,174,129,234,9,354,2,361,78,285,33,330,13242100,11741600,1500500,3765600,1624000,67200,700,1607000,229,12,6,7,7,12,6,11,15,14,28,37,34,13,12,12,3,59327,15438700,134,23,7,16,15,10,4,8,2,11,12,10,11,2,3,0,0,26500,25718]
["Madison","0000393","45060",1984,780,27,50,42,68,57,52,54,53,44,114,104,56,24,11,12,12,43523,41493600,780,16,0,0,3,0,5,0,4,0,0,0,0,4,0,0,0,0,104,2,0,4,11,16,12,3,7,17,13,5,7,4,3,0,0,200,2,12,0,8,15,19,10,14,16,43,32,10,9,6,2,2,204,5,11,8,16,4,14,18,22,9,25,40,15,9,2,6,0,116,3,14,14,8,5,3,12,2,2,22,18,0,2,0,1,10,74,6,5,5,15,7,0,5,6,0,8,6,8,0,0,3,0,66,9,8,8,10,5,4,2,2,0,3,3,12,0,0,0,0,43523,31250,43125,51667,46667,39643,27143,24167,780,653,127,598,182,184,596,257,523,190,590,1,779,23,757,130,650,88,692,34081500,28626700,5454800,2451200,2350700,6200,50900,1933700,561,7,20,22,31,33,39,41,43,35,105,89,45,17,11,11,12,51080,33986900,219,23,32,20,39,23,17,15,8,7,8,13,8,6,0,0,0,24338,20608]
["Moultonborough","0000399","49380",4484,1882,84,76,98,126,146,155,142,113,93,196,200,210,108,42,42,51,45050,115107500,1882,21,0,9,4,0,0,0,0,8,0,0,0,0,0,0,0,0,180,4,0,17,15,15,8,19,15,9,33,15,24,4,0,0,2,339,8,12,4,34,26,29,21,27,12,38,43,55,23,0,4,3,415,4,10,20,13,31,40,27,21,29,42,43,65,17,22,21,10,390,30,8,9,22,21,33,18,20,26,38,49,36,49,4,6,21,313,21,23,4,19,33,28,44,12,17,20,30,22,10,11,4,15,224,17,14,40,23,20,17,13,10,0,25,20,8,5,5,7,0,45050,18438,43125,46771,54750,51333,38708,27368,1882,1453,429,1283,599,436,1446,908,974,635,1247,24,1858,46,1836,420,1462,226,1656,73410900,61580600,11830300,23455600,8246600,165400,144200,8020200,1377,22,39,49,94,76,124,89,82,81,163,164,188,79,37,42,48,51729,95522900,505,62,48,55,36,75,36,43,18,10,33,30,24,27,5,0,3,28321,25733]
["Ossipee","0000407","58740",4211,1672,140,124,143,141,162,131,172,71,148,150,111,81,45,23,6,24,34709,73887200,1672,46,0,0,0,13,0,3,8,0,18,4,0,0,0,0,0,0,196,6,27,5,14,26,5,36,10,33,17,11,0,0,0,0,6,364,40,18,44,39,22,31,46,34,31,19,28,0,0,5,0,7,341,24,0,13,27,13,40,36,7,28,50,31,55,0,11,6,0,273,23,23,11,17,27,19,25,13,24,25,17,18,18,7,0,6,298,20,23,43,9,61,33,14,7,14,22,24,8,15,0,0,5,154,27,33,27,22,13,0,7,0,0,13,0,0,12,0,0,0,34709,39375,36875,32262,46875,38482,28833,16574,1672,1309,363,1239,433,267,1405,489,1183,554,1118,96,1576,97,1575,367,1305,229,1443,49752500,43663800,6088700,8554100,6419700,631600,262200,5832700,1166,62,38,74,106,137,99,82,71,133,110,104,81,33,23,0,13,38790,53832900,506,97,85,63,31,39,41,80,0,5,30,6,0,12,0,6,11,22700,18092]
["Sandwich","0000414","67780",1286,573,36,28,54,39,26,30,31,26,32,75,81,70,7,17,10,11,47292,30772600,573,9,0,0,3,0,0,3,0,0,0,0,3,0,0,0,0,0,29,4,0,0,3,0,0,2,0,8,6,3,1,0,2,0,0,98,2,2,10,6,2,11,9,8,5,17,14,9,0,2,1,0,148,5,7,18,12,6,7,2,5,11,20,20,24,2,2,0,7,96,5,11,5,5,5,0,5,4,4,14,11,13,3,5,2,4,97,4,5,10,7,4,3,4,5,2,11,18,13,0,6,5,0,96,16,3,8,6,9,6,9,4,2,7,12,10,2,0,2,0,47292,33750,48438,44583,50357,52500,53125,35000,573,416,157,363,210,196,377,321,252,226,347,11,562,10,563,147,426,65,508,19186100,13491100,5695000,5307300,2786300,88000,14700,2979300,398,10,10,25,23,17,13,29,19,19,68,69,64,7,13,8,4,55417,23496000,175,31,21,24,16,10,17,4,7,8,8,12,6,2,0,2,7,23393,23714]
["Tamworth","0000419","76100",2510,1090,106,100,86,69,98,82,95,59,57,111,89,71,31,19,12,5,35200,46291000,1090,41,10,2,2,5,4,3,4,3,2,2,0,4,0,0,0,0,117,9,5,16,9,17,12,16,9,3,8,4,6,0,3,0,0,279,12,7,20,19,21,21,34,17,12,52,25,19,14,3,3,0,214,21,9,11,9,13,12,8,6,24,25,35,23,6,6,4,2,172,16,20,5,16,20,8,15,12,7,18,8,9,10,2,3,3,133,11,29,11,7,9,16,12,6,8,0,13,6,0,3,2,0,134,27,28,21,4,14,10,6,6,1,6,4,4,1,2,0,0,35200,26875,30781,41146,48333,36250,29821,17308,1090,852,238,794,296,205,885,305,785,361,729,48,1042,58,1032,203,887,111,979,35239500,30569800,4669700,2757600,3632200,339000,213600,3217000,694,34,41,49,30,57,54,69,38,53,79,76,56,24,19,10,5,41121,34559700,396,76,62,39,44,42,26,27,19,1,27,18,11,4,0,0,0,21810,17961]
["Tuftonboro","0000425","77620",2148,927,63,36,35,54,64,69,69,63,68,83,112,108,35,20,23,25,45729,54422400,927,6,0,0,0,3,0,0,0,0,3,0,0,0,0,0,0,0,82,3,0,3,8,7,9,13,12,8,0,12,5,0,2,0,0,149,3,6,9,7,8,6,14,12,8,26,22,16,2,4,2,4,217,10,6,4,4,11,17,19,12,22,17,36,24,9,9,5,12,173,20,0,11,7,10,8,7,12,12,13,22,19,12,2,11,7,166,15,10,6,15,7,17,10,11,10,12,16,24,8,3,2,0,134,12,14,2,10,21,12,6,4,5,15,4,20,4,0,3,2,45729,33750,39167,50625,51094,47396,41875,33333,927,668,259,586,341,263,664,484,443,352,575,30,897,34,893,233,694,103,824,36693900,29235100,7458800,7095500,4238600,207400,55200,5339500,658,20,18,27,32,33,48,45,31,60,82,90,82,33,19,16,22,51875,42892100,269,43,18,16,22,30,23,24,27,10,8,20,17,2,3,3,3,30859,25070]
["Wakefield","0000432","78180",4252,1682,113,119,112,98,118,97,114,124,101,225,177,114,70,34,20,46,42500,90795200,1682,27,2,3,8,7,3,0,0,0,4,0,0,0,0,0,0,0,227,6,5,7,11,14,19,21,16,22,47,28,15,9,3,4,0,390,21,8,19,10,31,28,21,17,27,87,48,32,13,5,4,19,346,12,20,4,11,22,16,23,52,12,50,39,34,21,18,9,3,263,18,19,25,8,15,7,24,22,17,20,30,16,10,8,0,24,258,32,33,28,41,18,13,4,17,13,17,18,8,13,0,3,0,171,22,31,21,10,15,14,21,0,6,4,14,9,4,0,0,0,42500,20179,48828,50929,50227,43839,24479,25750,1682,1277,405,1194,488,293,1389,664,1018,564,1118,59,1623,41,1641,363,1319,310,1372,65110900,57025300,8085500,6921900,6129400,479700,119400,9027500,1198,35,54,65,62,109,88,91,82,79,166,133,105,47,31,13,38,45774,67054400,484,82,68,51,37,25,16,28,37,17,33,43,9,23,0,7,8,25500,21507]
["Wolfeboro","0000440","86420",6083,2575,151,170,184,228,187,115,124,168,123,255,278,224,139,64,79,86,44013,157196700,2575,22,0,0,0,8,0,8,0,0,0,6,0,0,0,0,0,0,257,17,15,8,41,20,25,8,24,11,27,45,7,9,0,0,0,500,32,27,8,6,60,14,43,24,29,73,64,50,28,17,11,14,492,17,0,0,44,30,8,26,59,37,17,88,36,62,17,17,34,381,7,17,18,33,27,8,0,0,20,64,9,101,0,11,28,38,449,24,26,80,34,28,37,16,36,26,37,28,24,28,9,16,0,474,54,85,70,62,22,15,31,25,0,31,44,6,12,10,7,0,44013,30938,38281,50625,61176,58750,34408,21750,2575,1820,755,1608,967,590,1985,1149,1426,951,1624,64,2511,72,2503,709,1866,332,2243,107224100,83810600,23413500,17876300,11917200,362300,90300,16185500,1734,33,64,49,139,122,65,85,113,113,187,219,214,126,64,64,77,53269,122919400,841,118,106,143,81,65,58,50,42,10,68,53,10,13,0,15,9,21651,26361]
[]
[]
[]
[]
["Census 2000 SummaryFile3 Sample Data  -  SF3TownQry2bPovertyChar"]
[]
["TOWN_NAME","LOGRECNO","COUSUB","TotalPop","P52Households1","P82PerCapitaInc","P87PopForPovStatus","P87PopWIncBelowPovStatus","P87PopUnder5yrBelowPoverty","P87Pop5yrBelowPoverty","P87Pop5to11yrBelowPoverty","P87Pop12to17yrBelowPoverty","P87Pop18to64yrBelowPoverty","P87Pop65to74yrBelowPoverty","P87PopOver75yrBelowPoverty","P87PopWIncAbovePovStatus","P87PopUnder5yrAbovePoverty","P87Pop5yrAbovePoverty","P87Pop5to11yrAbovePoverty","P87Pop12to17yrAbovePoverty","P87Pop18to64yrAbovePoverty","P87Pop65to74yrAbovePoverty","P87PopOver75yrAbovePoverty","P90Families","P90FamWIncBelowPov","P90MarCupFamWIncBelowPov","P90MCFamWRltdChld<18WIncBelowPov","P90MCFamWRltdChld<5WIncBelowPov","P90MaleHhlrWIncBelowPov","P90MaleHhlrWRltdChld<18yrWIncBelowPov","P90MaleHhlrWRltdChld<5yrWIncBelowPov","P90FemaleHhlrWIncBelowPov","P90FemaleHhlrWRltdChld<18yWIncBelowPov","P90FemaleHhlrWRltdChld<5yWIncBelowPov","P90FamWIncAbovePov","P90MarCupFamWIncAbovePov","P90MCFamWRltdChld<18WIncAbovePov","P90MCFamWRltdChld<5WIncAbovePov","P90MaleHhlrWIncAbovePov","P90MaleHhlrWRltdChld<18yrWIncAbovePov","P90MaleHhlrWRltdChld<5yrWIncAbovePov","P90FemaleHhlrWIncAbovePov","P90FemaleHhlrWRltdChld<18yWIncAbovePov","P90FemaleHhlrWRltdChld<5yWIncAbovePov","P92Households","P92HHwIncBelowPov","P92FamHHwIncBelowPov","P92MCFamHHwIncBelowPov","P92MaleFamHHwIncBelowPov","P92FemaleFamHHwIncBelowPov","P92NonFamHHwIncBelowPov","P92NonFamMaleHHwIncBelowPov","P92NonFamFemaleHHwIncBelowPov","P92HHwIncAbovePov","P92FamHHwIncAbovePov","P92MCFamHHwIncAbovePov","P92MaleFamHHwIncAbovePov","P92FemaleFamHHwIncAbovePov","P92NonFamHHwIncAbovePov","P92NonFamMaleHHwIncAbovePov","P92NonFamFemaleHHwIncAbovePov"]
["Albany","0000308","00420",654,249,20690,605,95,17,2,19,0,55,2,0,510,35,7,26,53,345,30,14,167,18,4,4,0,4,2,0,10,10,1,149,124,53,11,13,13,0,12,10,1,249,28,18,4,4,10,10,4,6,221,149,124,13,12,72,45,27]
["Bartlett","0000313","03700",2705,1229,21631,2726,222,20,0,31,28,121,12,10,2504,106,32,179,187,1651,250,99,771,48,21,14,3,5,5,0,22,22,4,723,583,202,30,52,36,5,88,64,13,1229,87,48,21,5,22,39,13,26,1142,723,583,52,88,419,226,193]
["Brookfield","0000320","07940",604,239,25745,605,9,0,0,0,2,5,2,0,596,22,0,51,53,367,66,37,189,2,2,0,0,0,0,0,0,0,0,187,167,56,11,6,4,0,14,11,3,239,5,2,2,0,0,3,0,3,234,187,167,6,14,47,16,31]
["Chatham","0000325","11780",260,93,15317,260,40,5,2,10,0,23,0,0,220,16,9,20,9,142,17,7,75,10,5,3,0,3,3,0,2,2,0,65,60,26,5,4,1,0,1,1,0,93,13,10,5,3,2,3,1,2,80,65,60,4,1,15,9,6]
["Conway","0000330","14660",8604,3736,19673,8466,875,62,9,109,78,448,34,135,7591,393,52,587,602,4896,621,440,2264,182,84,43,6,28,16,0,70,66,23,2082,1636,715,155,123,72,3,323,203,25,3736,400,182,84,28,70,218,68,150,3336,2082,1636,123,323,1254,582,672]
["Eaton","0000363","23380",375,150,21122,333,24,0,0,0,5,12,7,0,309,12,5,24,22,209,15,22,110,4,4,2,0,0,0,0,0,0,0,106,99,33,6,5,2,0,2,2,0,150,10,4,4,0,0,6,2,4,140,106,99,5,2,34,22,12]
["Effingham","0000368","23620",1273,492,17089,1248,191,14,3,15,24,125,2,8,1057,38,7,91,111,662,84,64,346,28,13,7,0,3,3,0,12,12,7,318,249,100,10,24,13,0,45,27,2,492,59,28,13,3,12,31,19,12,433,318,249,24,45,115,60,55]
["Freedom","0000373","27700",1303,609,23036,1297,88,4,2,3,3,51,13,12,1209,48,12,63,78,723,180,105,416,19,14,3,0,2,2,2,3,3,0,397,355,95,12,12,3,0,30,16,4,609,47,19,14,2,3,28,7,21,562,397,355,12,30,165,63,102]
["Hale's Location","0000378","32500",58,33,25103,61,0,0,0,0,0,0,0,0,61,0,0,0,0,32,22,7,28,0,0,0,0,0,0,0,0,0,0,28,26,0,0,0,0,0,2,0,0,33,0,0,0,0,0,0,0,0,33,28,26,0,2,5,3,2]
["Hart's Location","0000383","34500",37,13,19609,33,0,0,0,0,0,0,0,0,33,2,0,5,3,23,0,0,8,0,0,0,0,0,0,0,0,0,0,8,8,5,0,0,0,0,0,0,0,13,0,0,0,0,0,0,0,0,13,8,8,0,0,5,2,3]
["Jackson","0000388","38260",835,363,25718,805,65,2,0,3,2,32,7,19,740,43,7,47,46,444,97,56,229,14,10,0,0,0,0,0,4,4,2,215,196,62,13,2,0,0,17,8,2,363,41,14,10,0,4,27,7,20,322,215,196,2,17,107,63,44]
["Madison","0000393","45060",1984,780,20608,2019,90,0,2,12,15,52,6,3,1929,82,9,180,204,1226,129,99,561,11,8,6,0,1,1,0,2,2,0,550,473,222,30,27,16,0,50,29,5,780,30,11,8,1,2,19,11,8,750,550,473,27,50,200,105,95]
["Moultonborough","0000399","49380",4484,1882,25733,4477,180,0,4,27,0,126,8,15,4297,165,13,379,349,2522,524,345,1377,44,44,16,0,0,0,0,0,0,0,1333,1166,381,45,61,40,0,106,81,3,1882,87,44,44,0,0,43,11,32,1795,1333,1166,61,106,462,251,211]
["Ossipee","0000407","58740",4211,1672,18092,4034,403,32,2,37,82,208,22,20,3631,148,32,355,289,2214,390,203,1166,90,15,0,0,21,21,5,54,54,7,1076,897,345,34,64,39,17,115,67,14,1672,174,90,15,21,54,84,38,46,1498,1076,897,64,115,422,214,208]
["Sandwich","0000414","67780",1286,573,23714,1283,78,5,2,9,10,36,4,12,1205,50,9,85,107,667,160,127,398,14,2,2,0,3,3,0,9,9,3,384,343,112,17,9,5,2,32,22,0,573,41,14,2,3,9,27,3,24,532,384,343,9,32,148,68,80]
["Tamworth","0000419","76100",2510,1090,17961,2540,241,22,0,20,17,141,19,22,2299,110,41,202,186,1397,196,167,694,49,25,7,2,5,0,0,19,19,9,645,543,223,22,44,31,6,58,30,3,1090,117,49,25,5,19,68,29,39,973,645,543,44,58,328,160,168]
["Tuftonboro","0000425","77620",2148,927,25070,2136,137,8,2,4,17,77,17,12,1999,83,21,134,144,1168,251,198,658,29,20,2,0,4,4,0,5,5,0,629,560,178,23,29,15,6,40,17,2,927,64,29,20,4,5,35,14,21,863,629,560,29,40,234,125,109]
["Wakefield","0000432","78180",4252,1682,21507,4203,298,18,0,27,49,167,23,14,3905,223,59,346,341,2340,366,230,1198,61,30,13,0,7,4,0,24,24,13,1137,957,406,69,62,53,3,118,79,25,1682,117,61,30,7,24,56,27,29,1565,1137,957,62,118,428,228,200]
["Wolfeboro","0000440","86420",6083,2575,26361,5964,375,25,7,21,72,210,16,24,5589,238,71,428,464,3025,702,661,1734,61,28,20,0,6,6,0,27,27,0,1673,1465,473,57,58,29,15,150,111,0,2575,133,61,28,6,27,72,33,39,2442,1673,1465,58,150,769,273,496]
[]
[]
[]
[]
["Census 2000 SummaryFile3 Sample Data  -  SF3TownQry7HousingA"]
[]
["TOWN_NAME","LOGRECNO","COUSUB","TotalPop","H1HousingUnitsTotal","H2SampleHU","H2SampleOccHU","H2SampleVacHU","H3HU100pctCount","H5HUTotal","H5HUUrban","H5HUUrbanInUrbanAreas","H5HUUrbanInUrbanClusters","H5HURural","H5HURuralFarm","H5HURuralNonFarm","H7HUOcc","H7HUOwnrOcc","H7HURentrOcc","H8HUVacant","H8HUVacantForRent","H8HUVacantForSale","H8HUVacRentedorSold","H8HUVacSeasonal","H8HUVacForMigrantWrkrs","H8HUOtherVacant","H14OccHUa","H14OwnerOccHU","H14OwnOccHuHh15to24","H14OwnOccHuHh25to34","H14OwnOccHuHh35to44","H14OwnOccHuHh45to54","H14OwnOccHuHh55to59","H14OwnOccHuHh60to64","H14OwnOccHuHh65to74","H14OwnOccHuHh75to84","H14OwnOccHuHh85Over","H14RenterOccHU1","H14RntrOccHuHh15to24","H14RntrOccHuHh25to34","H14RntrOccHuHh35to44","H14RntrOccHuHh45to54","H14RntrOccHuHh55to59","H14RntrOccHuHh60to64","H14RntrOccHuHh65to74","H14RntrOccHuHh75to84","H14RntrOccHuHh85Over","H15PopInOccHU","H15PopInOwnOccHU1","H15PopInRentOccHU1","H17OccupHUb","H17OwnOccHU2","H17OwnOccHU1PersonHH","H17OwnOccHU2PersonHH","H17OwnOccHU3PersonHH","H17OwnOccHU4PersonHH","H17OwnOccHU5PersonHH","H17OwnOccHU6PersonHH","H17OwnOccHU7PlusPersonHH","H17RentOccHU2","H17RntOccHU1PersonHH","H17RntOccHU2PersonHH","H17RntOccHU3PersonHH","H17RntOccHU4PersonHH","H17RntOccHU5PersonHH","H17RntOccHU6PersonHH","H17RntOccHU7PlusPersonHH","H18AvgHHSize","H18AvgHHSizeOwnOcc","H18AvgHHSizeRentOcc","H23TotHU","H23HU1Room","H23HU2Room","H23HU3Room","H23HU4Room","H23HU5Room","H23HU6Room","H23HU7Room","H23HU8Room","H23HU9orMoreRoom","H24MedianNumRooms","H25AggregNumRooms","H30TotalHU","H30Det1HU","H30Att1HU","H30Units2","H30Units3or4","H30Units5to9","H30Units10to19","H30Units20to49","H30Units50orMore","H30UnitsMobileHome","H30UnitsBoatRv","H32OccHUcTotal","H32OwnerOccHU3","H32OwnOccHU1Det","H32OwnOccHU1Att","H32OwnOccHU2Unit","H32OwnOccHU3to4Unit","H32OwnOccHU5to9Unit","H32OwnOccHU10to19Unit","H32OwnOccHU20to49Unit","H32OwnOccHU50plusUnit","H32OwnOccHUMobHom","H32OwnOccHUBoatRVOth","H32RentrOccHU3","H32RntrOccHU1Det","H32RntrOccHU1Att","H32RntrOccHU2Unit","H32RntrOccHU3to4Unit","H32RntrOccHU5to9Unit","H32RntrOccHU10to19Unit","H32RntrOccHU20to49Unit","H32RntrOccHU50PlusUnit","H32RntrOccHUMobHom","H32RntrOccHUBoatRVOth","H33TotPopInOccHU","H33PopInOwnOccHU2","H33PopInOOHU1Det","H33PopInOOHU1Att","H33PopInOOHU2unit","H33PopInOOHU3to4Unit","H33PopInOOHU5to9Unit","H33PopInOOHU10to19Unit","H33PopInOOHU20to49Unit","H33PopInOOHU50PlusUnit","H33PopInOOHUMobilHome","H33PopInOOHUOtherUnit","H33PopInRentOccHU2","H33PopInROHU1Det","H33PopInROHU1Att","H33PopInROHU2Unit","H33PopInROHU3to4Unit","H33PopInROHU5to9Unit","H33PopInROHU10to19Unit","H33PopInROHU20to49Unit","H33PopInROHU50PlusUnit","H33PopInROHUMobilHome","H33PopInROHUOtherUnit","H36OccHousingUnitsdTotal","H36OwnerOccHU4","H36OOHUBuilt99to0300","H36OOHUBuilt95to98","H36OOHUBuilt90to94","H36OOHUBuilt80to89","H36OOHUBuilt70to79","H36OOHUBuilt60to69","H36OOHUBuilt50to59","H36OOHUBuilt40to49","H36OOHUBuilt39Earlier","H36RentOccHU4","H36ROHUBuilt99to0300","H36ROHUBuilt95to98","H36ROHUBuilt90to94","H36ROHUBuilt80to89","H36ROHUBuilt70to79","H36ROHUBuilt60to69","H36ROHUBuilt50to59","H36ROHUBuilt40to49","H36ROHUBuilt39Earlier","H40OccupHousUnitse","H40HeatFuelUtilGas","H40HeatFuelBotGas","H40HeatFuelElect","H40HeatFuelOilKero","H40HeatFuelCoal","H40HeatFuelWood","H40HeatFuelSolar","H40HeatFuelOther","H40HeatFuelNone","H41TotalHU","H41HUNoBdrm","H41HU1Bdrm","H41HU2Bdrm","H41HU3Bdrm","H41HU4Bdrm","H41HU5MoreBdrm","H42OccuHousUnitf","H42OwnerOccHU5","H42OOHUNoBdrm","H42OOHU1Bdrm","H42OOHU2Bdrm","H42OOHU3Bdrm","H42OOHU4Bdrm","H42OOHU5PlusBdrm","H42RentOccHU5","H42ROHUNoBdrm","H42ROHU1Bdrm","H42ROHU2Bdrm","H42ROHU3Bdrm","H42ROHU4Bdrm","H42ROHU5PlusBdrm","H48OccupHousUnitsg","H48OwnerOccHU6","H48OOHUwCompltPlumFacil","H48OOHULackCompltPlumFacil","H48RentOccHU6","H48ROHUwCompltPlumFacil","H48ROHULackCompltPlumFacil","H51OccupHousUnitf","H51OwnerOccHU7","H51OOHUwCompleteKitFacil","H51OOHULackCompleteKitFacil","H51RenterOccHU7","H51ROHUwCompleteKitFacil","H51ROHULackCompleteKitFacil"]
["Albany","0000308","00420",654,491,228,108,120,506,491,0,0,0,491,0,491,237,187,50,254,6,7,3,207,0,31,237,187,4,31,52,40,15,11,21,9,4,50,9,16,16,5,0,4,0,0,0,600,447,153,237,187,53,59,31,35,9,0,0,50,9,16,14,8,2,1,0,3,2,3,491,16,35,45,125,105,83,46,17,19,5,2392,491,393,0,14,0,0,0,0,0,84,0,237,187,137,0,0,0,0,0,0,0,50,0,50,35,0,6,0,0,0,0,0,9,0,600,447,330,0,0,0,0,0,0,0,117,0,153,104,0,13,0,0,0,0,0,36,0,237,187,5,15,21,42,49,13,13,8,21,50,0,3,4,1,17,2,6,6,11,237,0,55,2,160,0,20,0,0,0,491,16,100,184,140,49,2,237,187,0,7,75,86,17,2,50,0,9,15,16,10,0,237,187,187,0,50,50,0,237,187,187,0,50,50,0]
["Bartlett","0000313","03700",2705,3613,1632,506,1126,3589,3613,0,0,0,3613,8,3605,1220,891,329,2393,40,34,10,2277,0,32,1220,891,7,69,195,221,110,62,155,63,9,329,31,94,83,50,35,22,6,8,0,2720,2006,714,1220,891,228,399,104,129,24,3,4,329,115,108,61,29,8,6,2,2,2,2,3613,45,175,313,653,923,877,318,165,144,5,18809,3613,1792,637,149,291,491,126,65,0,62,0,1220,891,719,88,27,10,18,0,0,0,29,0,329,137,27,52,60,33,0,0,0,20,0,2720,2006,1672,179,37,19,35,0,0,0,64,0,714,340,55,116,106,65,0,0,0,32,0,1220,891,14,71,70,252,182,74,46,33,149,329,0,3,27,54,82,36,10,14,103,1220,38,304,84,615,2,177,0,0,0,3613,49,364,1477,1377,257,89,1220,891,0,31,258,443,109,50,329,7,87,112,103,20,0,1220,891,887,4,329,326,3,1220,891,889,2,329,326,3]
["Brookfield","0000320","07940",604,281,135,110,25,280,281,0,0,0,281,4,277,237,226,11,44,0,3,1,38,0,2,237,226,2,18,32,69,34,10,38,14,9,11,2,5,0,4,0,0,0,0,0,605,582,23,237,226,38,111,29,36,8,2,2,11,2,3,6,0,0,0,0,3,3,2,281,2,2,4,18,35,53,73,41,53,7,1952,281,275,4,0,0,0,0,0,0,0,2,237,226,221,3,0,0,0,0,0,0,0,2,11,11,0,0,0,0,0,0,0,0,0,605,582,574,5,0,0,0,0,0,0,0,3,23,23,0,0,0,0,0,0,0,0,0,237,226,12,4,16,34,39,22,8,2,89,11,0,0,4,0,2,0,0,0,5,237,0,24,0,203,0,8,0,2,0,281,2,12,66,133,43,25,237,226,2,7,48,112,36,21,11,0,0,3,6,2,0,237,226,224,2,11,11,0,237,226,224,2,11,11,0]
["Chatham","0000325","11780",260,249,112,54,58,253,249,0,0,0,249,0,249,105,86,19,144,0,2,0,108,0,34,105,86,0,8,23,25,4,6,14,4,2,19,2,9,0,3,5,0,0,0,0,260,230,30,105,86,13,27,23,11,5,4,3,19,3,7,6,3,0,0,0,2,3,2,249,12,18,34,40,60,33,17,25,10,5,1227,249,214,2,0,0,4,0,0,0,25,4,105,86,78,2,0,0,0,0,0,0,6,0,19,14,0,0,0,2,0,0,0,3,0,260,230,202,6,0,0,0,0,0,0,22,0,30,20,0,0,0,2,0,0,0,8,0,105,86,2,2,12,16,17,2,4,0,31,19,0,0,0,6,5,0,0,0,8,105,2,11,0,57,0,35,0,0,0,249,12,52,94,54,29,8,105,86,0,6,28,26,20,6,19,0,5,8,6,0,0,105,86,82,4,19,17,2,105,86,86,0,19,17,2]
["Conway","0000330","14660",8604,5931,956,606,350,5927,5931,0,0,0,5931,4,5927,3716,2456,1260,2215,159,61,24,1857,0,114,3716,2456,23,242,455,609,221,217,389,236,64,1260,132,262,342,205,60,65,61,114,19,8444,5812,2632,3716,2456,591,1054,360,301,116,17,17,1260,583,312,173,124,50,15,3,2,2,2,5931,26,167,554,1269,1325,1197,583,414,396,5,32258,5931,3231,404,282,417,542,167,250,0,633,5,3716,2456,1836,77,40,6,42,13,55,0,387,0,1260,320,27,149,197,200,109,159,0,99,0,8444,5812,4647,181,68,11,70,21,66,0,748,0,2632,904,39,342,376,367,142,279,0,183,0,3716,2456,57,110,165,665,539,176,125,92,527,1260,0,26,60,324,206,105,116,26,397,3716,126,756,434,2098,13,267,0,6,16,5931,26,649,2222,2239,622,173,3716,2456,7,89,760,1143,372,85,1260,14,427,534,245,26,14,3716,2456,2443,13,1260,1260,0,3716,2456,2443,13,1260,1244,16]
["Eaton","0000363","23380",375,213,93,60,33,239,213,0,0,0,213,2,211,144,120,24,69,7,3,0,59,0,0,144,120,0,6,30,31,13,7,16,14,3,24,1,6,4,8,0,5,0,0,0,331,270,61,144,120,29,55,13,16,7,0,0,24,10,9,2,0,2,1,0,2,2,3,213,2,0,6,21,38,56,29,10,51,6,1423,213,194,4,4,11,0,0,0,0,0,0,144,120,114,0,3,3,0,0,0,0,0,0,24,20,2,0,2,0,0,0,0,0,0,331,270,263,0,2,5,0,0,0,0,0,0,61,56,3,0,2,0,0,0,0,0,0,144,120,2,0,8,37,11,8,6,0,48,24,0,5,3,0,2,4,0,2,8,144,0,25,3,86,0,30,0,0,0,213,2,7,59,94,38,13,144,120,0,2,31,49,29,9,24,0,0,8,12,2,2,144,120,120,0,24,24,0,144,120,120,0,24,24,0]
["Effingham","0000368","23620",1273,791,369,236,133,791,791,0,0,0,791,0,791,490,392,98,301,0,13,2,276,0,10,490,392,4,34,87,94,47,37,48,29,12,98,17,26,30,12,0,6,0,5,2,1193,994,199,490,392,75,170,63,47,31,6,0,98,41,31,11,12,3,0,0,2,3,2,791,10,14,101,159,191,130,99,53,34,5,4169,791,614,4,9,12,2,20,0,0,130,0,490,392,325,0,2,2,0,0,0,0,63,0,98,41,4,7,10,2,20,0,0,14,0,1193,994,826,0,4,8,0,0,0,0,156,0,199,83,6,14,19,2,38,0,0,37,0,490,392,2,22,43,95,55,25,7,14,129,98,5,0,21,14,18,14,10,2,14,490,4,52,7,355,0,72,0,0,0,791,13,78,309,298,83,10,490,392,4,25,112,183,62,6,98,4,25,42,17,10,0,490,392,381,11,98,94,4,490,392,391,1,98,96,2]
["Freedom","0000373","27700",1303,1406,641,274,367,1406,1406,0,0,0,1406,4,1402,602,534,68,804,2,19,0,772,0,11,602,534,2,42,75,117,50,56,118,70,4,68,0,27,13,4,0,4,11,7,2,1297,1163,134,602,534,134,266,62,49,19,4,0,68,34,24,4,4,2,0,0,2,2,2,1406,9,7,84,324,322,232,158,148,122,5,8083,1406,1204,85,10,4,4,0,0,0,97,2,602,534,484,13,2,0,2,0,0,0,33,0,68,47,5,8,4,0,0,0,0,4,0,1297,1163,1064,31,2,0,4,0,0,0,62,0,134,90,11,13,6,0,0,0,0,14,0,602,534,9,43,35,154,99,55,30,5,104,68,0,4,0,21,10,0,2,4,27,602,2,76,32,433,0,59,0,0,0,1406,9,71,521,586,160,59,602,534,0,15,165,255,73,26,68,0,4,36,19,9,0,602,534,520,14,68,67,1,602,534,532,2,68,68,0]
["Hale's Location","0000378","32500",58,61,29,14,15,65,61,0,0,0,61,0,61,31,31,0,30,2,2,0,26,0,0,31,31,0,0,3,2,2,4,16,4,0,0,0,0,0,0,0,0,0,0,0,61,61,0,31,31,5,26,0,0,0,0,0,0,0,0,0,0,0,0,0,2,2,0,61,0,0,4,2,0,9,33,13,0,7,409,61,59,2,0,0,0,0,0,0,0,0,31,31,29,2,0,0,0,0,0,0,0,0,0,0,0,0,0,0,0,0,0,0,0,61,61,57,4,0,0,0,0,0,0,0,0,0,0,0,0,0,0,0,0,0,0,0,31,31,7,17,2,0,0,0,0,0,5,0,0,0,0,0,0,0,0,0,0,31,0,14,0,17,0,0,0,0,0,61,0,4,7,39,11,0,31,31,0,0,2,23,6,0,0,0,0,0,0,0,0,31,31,31,0,0,0,0,31,31,31,0,0,0,0]
["Hart's Location","0000383","34500",37,54,24,5,19,50,54,0,0,0,54,0,54,12,9,3,42,0,0,0,42,0,0,12,9,0,2,2,2,3,0,0,0,0,3,0,0,0,3,0,0,0,0,0,33,30,3,12,9,2,3,0,2,2,0,0,3,3,0,0,0,0,0,0,3,3,1,54,4,9,15,15,0,4,4,3,0,3,203,54,54,0,0,0,0,0,0,0,0,0,12,9,9,0,0,0,0,0,0,0,0,0,3,3,0,0,0,0,0,0,0,0,0,33,30,30,0,0,0,0,0,0,0,0,0,3,3,0,0,0,0,0,0,0,0,0,12,9,0,0,0,5,4,0,0,0,0,3,0,0,0,3,0,0,0,0,0,12,0,5,0,0,0,7,0,0,0,54,4,30,9,11,0,0,12,9,0,0,2,7,0,0,3,0,3,0,0,0,0,12,9,9,0,3,3,0,12,9,9,0,3,0,3]
["Jackson","0000388","38260",835,886,388,155,233,910,886,0,0,0,886,2,884,364,269,95,522,2,4,3,433,0,80,364,269,0,6,49,39,33,32,62,45,3,95,4,40,32,12,0,0,3,2,2,793,622,171,364,269,58,136,43,19,5,4,4,95,42,33,12,3,3,2,0,2,2,2,886,8,29,86,112,134,189,118,105,105,6,5292,886,706,66,16,77,16,0,2,0,3,0,364,269,246,21,0,2,0,0,0,0,0,0,95,70,4,11,5,0,0,2,0,3,0,793,622,569,48,0,5,0,0,0,0,0,0,171,139,4,15,7,0,0,4,0,2,0,364,269,5,33,18,61,34,45,19,7,47,95,0,2,9,8,29,14,13,4,16,364,3,79,24,208,0,47,0,3,0,886,12,94,228,371,117,64,364,269,0,5,58,138,53,15,95,2,30,28,26,7,2,364,269,269,0,95,95,0,364,269,269,0,95,95,0]
["Madison","0000393","45060",1984,1615,715,326,389,1589,1615,0,0,0,1615,0,1615,790,643,147,825,4,11,14,774,0,22,790,643,5,74,151,178,56,60,65,45,9,147,10,42,42,28,0,2,7,7,9,2026,1673,353,790,643,115,258,100,111,36,12,11,147,50,47,20,19,11,0,0,3,3,2,1615,9,32,80,214,418,368,230,139,125,6,9439,1615,1441,34,33,4,0,2,20,0,78,3,790,643,598,6,2,0,0,0,3,0,34,0,147,70,6,24,4,0,2,15,0,26,0,2026,1673,1563,7,4,0,0,0,4,0,95,0,353,170,12,49,15,0,4,23,0,80,0,790,643,17,28,31,222,152,40,32,11,110,147,2,4,2,44,25,38,2,0,30,790,2,135,28,526,3,96,0,0,0,1615,12,89,423,770,266,55,790,643,0,22,161,329,106,25,147,7,20,77,26,13,4,790,643,643,0,147,143,4,790,643,643,0,147,147,0]
["Moultonborough","0000399","49380",4484,4523,1126,453,673,4523,4523,0,0,0,4523,8,4515,1884,1631,253,2639,17,42,12,2536,4,28,1884,1631,5,106,235,384,214,154,338,184,11,253,15,71,67,36,13,4,27,16,4,4453,3889,564,1884,1631,350,794,194,192,77,24,0,253,95,49,56,30,23,0,0,2,2,2,4523,23,80,260,625,1101,995,639,419,381,6,26573,4523,4137,133,33,24,35,15,0,0,137,9,1884,1631,1554,31,0,0,0,0,0,0,46,0,253,153,19,22,3,12,7,0,0,32,5,4453,3889,3732,61,0,0,0,0,0,0,96,0,564,384,33,52,8,18,8,0,0,58,3,1884,1631,40,136,191,364,318,210,114,40,218,253,0,12,19,51,36,37,11,16,71,1884,2,418,84,1214,0,157,4,0,5,4523,23,316,1052,2247,684,201,1884,1631,0,50,326,937,265,53,253,8,44,57,95,34,15,1884,1631,1612,19,253,253,0,1884,1631,1626,5,253,248,5]
["Ossipee","0000407","58740",4211,2742,471,277,194,2742,2742,0,0,0,2742,20,2722,1672,1322,350,1070,33,32,0,947,0,58,1672,1322,31,97,248,296,168,109,232,141,0,350,15,114,116,37,7,6,42,7,6,4063,3229,834,1672,1322,304,552,192,179,67,21,7,350,118,112,35,41,28,0,16,2,2,2,2742,24,136,270,463,701,593,251,239,65,5,14340,2742,2031,70,52,39,20,11,13,0,506,0,1672,1322,1024,17,9,7,0,0,0,0,265,0,350,154,13,43,18,20,11,13,0,78,0,4063,3229,2533,50,8,14,0,0,0,0,624,0,834,358,12,80,43,27,42,12,0,260,0,1672,1322,40,112,99,378,222,76,50,73,272,350,7,0,15,80,75,32,5,10,126,1672,7,365,65,1065,0,165,0,0,5,2742,37,336,979,1155,214,21,1672,1322,6,105,482,584,131,14,350,7,89,124,128,0,2,1672,1322,1316,6,350,342,8,1672,1322,1322,0,350,344,6]
["Sandwich","0000414","67780",1286,965,467,268,199,965,965,0,0,0,965,15,950,564,452,112,401,1,19,9,367,0,5,564,452,0,15,70,118,36,45,85,62,21,112,6,17,29,27,2,0,11,12,8,1286,1035,251,564,452,104,218,50,62,10,6,2,112,46,28,23,10,2,2,1,2,2,2,965,24,43,80,123,161,167,158,98,111,6,5649,965,886,33,8,0,8,0,0,0,28,2,564,452,434,4,2,0,0,0,0,0,12,0,112,80,17,4,0,8,0,0,0,3,0,1286,1035,998,10,2,0,0,0,0,0,25,0,251,205,26,7,0,8,0,0,0,5,0,564,452,5,34,39,89,62,15,14,16,178,112,0,2,17,14,12,6,2,2,57,564,0,69,22,341,5,125,2,0,0,965,28,136,269,313,169,50,564,452,2,16,124,191,96,23,112,6,19,43,29,11,4,564,452,442,10,112,101,11,564,452,444,8,112,105,7]
["Tamworth","0000419","76100",2510,1677,779,500,279,1662,1677,0,0,0,1677,17,1660,1099,825,274,578,11,20,8,526,0,13,1099,825,8,52,194,182,73,75,115,100,26,274,33,58,59,48,13,15,24,16,8,2555,1936,619,1099,825,192,342,123,106,56,6,0,274,111,82,34,29,11,7,0,2,2,2,1677,25,73,177,290,325,322,215,120,130,5,9184,1677,1331,44,28,42,19,17,0,0,184,12,1099,825,711,12,2,2,0,0,0,0,98,0,274,129,24,22,37,19,17,0,0,26,0,2555,1936,1682,19,3,5,0,0,0,0,227,0,619,294,31,45,115,48,24,0,0,62,0,1099,825,14,64,67,190,161,65,20,22,222,274,4,23,12,49,52,10,9,7,108,1099,2,181,57,678,2,179,0,0,0,1677,29,196,570,590,195,97,1099,825,0,42,252,356,128,47,274,11,85,104,40,25,9,1099,825,821,4,274,269,5,1099,825,820,5,274,271,3]
["Tuftonboro","0000425","77620",2148,2019,919,430,489,2019,2019,0,0,0,2019,17,2002,926,806,120,1093,2,20,6,1054,0,11,926,806,0,46,111,212,82,73,158,95,29,120,5,26,24,30,8,8,13,4,2,2148,1916,232,926,806,172,385,103,105,22,9,10,120,42,45,19,14,0,0,0,2,2,2,2019,13,36,151,381,425,350,269,163,231,6,11784,2019,1732,43,19,47,22,2,0,0,152,2,926,806,743,9,7,0,2,0,0,0,45,0,120,73,6,12,18,3,2,0,0,6,0,2148,1916,1780,22,32,0,4,0,0,0,78,0,232,141,7,21,34,8,4,0,0,17,0,926,806,12,51,55,167,179,62,63,4,213,120,0,4,0,26,38,12,5,9,26,926,9,106,26,723,0,60,0,0,2,2019,13,160,682,796,280,88,926,806,0,31,195,395,151,34,120,0,22,49,37,10,2,926,806,804,2,120,120,0,926,806,806,0,120,120,0]
["Wakefield","0000432","78180",4252,3330,803,404,399,3331,3330,0,0,0,3330,6,3324,1684,1401,283,1646,16,11,3,1601,0,15,1684,1401,11,157,294,312,147,108,222,121,29,283,20,82,67,35,20,14,40,5,0,4251,3649,602,1684,1401,303,582,180,194,100,28,14,283,71,90,56,42,14,5,5,3,3,2,3330,15,71,221,568,958,621,433,224,219,5,18621,3330,2918,39,58,86,4,0,27,0,185,13,1684,1401,1251,26,14,7,4,0,0,0,99,0,283,107,0,32,54,0,0,24,0,66,0,4251,3649,3270,50,40,18,4,0,0,0,267,0,602,244,0,75,104,0,0,29,0,150,0,1684,1401,11,70,99,357,321,78,88,33,344,283,0,5,52,83,19,18,19,5,82,1684,0,362,110,1059,0,148,0,5,0,3330,19,269,1266,1323,315,138,1684,1401,0,48,434,639,194,86,283,0,72,103,75,23,10,1684,1401,1401,0,283,283,0,1684,1401,1401,0,283,283,0]
["Wolfeboro","0000440","86420",6083,3903,498,315,183,3903,3903,0,0,0,3903,20,3883,2574,1985,589,1329,9,55,0,1210,0,55,2574,1985,6,152,403,337,207,119,363,310,88,589,21,103,170,113,22,10,50,51,49,5977,5023,954,2574,1985,442,888,264,240,103,13,35,589,295,146,61,58,21,8,0,2,3,2,3903,8,121,299,500,679,968,484,308,536,6,23562,3903,3092,157,151,217,76,0,87,0,107,16,2574,1985,1772,52,47,8,0,0,16,0,82,8,589,173,16,66,182,71,0,71,0,10,0,5977,5023,4548,100,156,17,0,0,25,0,168,9,954,379,74,86,261,83,0,59,0,12,0,2574,1985,106,197,172,409,275,194,152,38,442,589,0,10,19,69,60,56,71,35,269,2574,0,247,316,1884,0,109,0,18,0,3903,16,489,1193,1410,611,184,2574,1985,0,65,576,906,325,113,589,8,250,159,136,36,0,2574,1985,1960,25,589,581,8,2574,1985,1959,26,589,578,11]
[]
[]
[]
[]
["Census 2000 SummaryFile3 Sample Data  -  SF3TownQry8HousingCostA"]
[]
["TOWN_NAME","LOGRECNO","COUSUB","TotalPop","H62RntrOccHU","H62RntrOccHUwRent","H62ROHUGRent<100","H62ROHUGRent100to149","H62ROHUGRent150to199","H62ROHUGRent200to249","H62ROHUGRent250to299","H62ROHUGRent300to349","H62ROHUGRent350to399","H62ROHUGRent400to449","H62ROHUGRent450to499","H62ROHUGRent500to549","H62ROHUGRent550to599","H62ROHUGRent600to649","H62ROHUGRent650to699","H62ROHUGRent700to749","H62ROHUGRent750to799","H62ROHUGRent800to899","H62ROHUGRent900to999","H62ROHUGRent1000to1249","H62ROHUGRent1250to1499","H62ROHUGRent1500to1999","H62ROHUGRent2000>","H62ROHUNoGRent","H63MedianGrossRnt","H69RenterOccHsU","H69GRnt<10PctHHInc","H69GRnt10to15PctHHInc","H69GRnt15to20PctHHInc","H69GRnt20to25PctHHInc","H69GRnt25to30PctHHInc","H69GRnt30to35PctHHInc","H69GRnt35to40PctHHInc","H69GRnt40to50PctHHInc","H69GRnt>50PctHHInc","H69GRntPctNotcomputed","H73RenterOccHU","H73ROHUHhInc<10k","H73ROHUHhInc<10kRnt<20pct","H73ROHUHhInc<10kRnt20to25pct","H73ROHUHhInc<10kRnt25to30pct","H73ROHUHhInc<10kRnt30to35pct","H73ROHUHhInc<10kRnt>35pct","H73ROHUHhInc<10kPctNotComput","H73ROHUHhInc10to20k","H73ROHUHhInc10to20kRnt<20pct","H73ROHUHhInc10to20kRnt20to25pct","H73ROHUHhInc10to20kRnt25to30pct","H73ROHUHhInc10to20kRnt30to35pct","H73ROHUHhInc10to20kRnt>35pct","H73ROHUHhInc10to20kRntPctNC","H73ROHUHhInc20to35k","H73ROHUHhInc20to35kRnt<20pct","H73ROHUHhInc20to35kRnt20to25pct","H73ROHUHhInc20to35kRnt25to30pct","H73ROHUHhInc20to35kRnt30to35pct","H73ROHUHhInc20to35kRnt>35pct","H73ROHUHhInc20to35kRntPctNC","H73ROHUHhInc35to40k","H73ROHUHhInc35to40kRnt<20pct","H73ROHUHhInc35to40kRnt20to25pct","H73ROHUHhInc35to40kRnt25to30pct","H73ROHUHhInc35to40kRnt30to35pct","H73ROHUHhInc35to40kRnt>35pct","H73ROHUHhInc35to40kRntPctNC","H73ROHUHhInc50to75k","H73ROHUHhInc50to75kRnt<20pct","H73ROHUHhInc50to75kRnt20to25pct","H73ROHUHhInc50to75kRnt25to30pct","H73ROHUHhInc50to75kRnt30to35pct","H73ROHUHhInc50to75kRnt>35pct","H73ROHUHhInc50to75kRntPctNC","H73ROHUHhInc75to100k","H73ROHUHhInc75to100kRnt<20pct","H73ROHUHhInc75to100kRnt20to25pct","H73ROHUHhInc75to100kRnt25to30pct","H73ROHUHhInc75to100kRnt30to35pct","H73ROHUHhInc75to100kRnt>35pct","H73ROHUHhInc75to100kRntPctNC","H73ROHUHhInc>100k","H73ROHUHhInc>100kRnt<20pct","H73ROHUHhInc>100kRnt20to25pct","H73ROHUHhInc>100kRnt25to30pct","H73ROHUHhInc>100kRnt30to35pct","H73ROHUHhInc>100kRnt>35pct","H73ROHUHhInc>100kRntPctNC"]
["Albany","0000308","00420",654,50,46,0,0,0,0,3,1,2,3,2,0,4,4,8,9,2,6,2,0,0,0,0,4,675,50,4,5,5,9,4,2,0,8,7,6,50,7,0,0,0,0,5,2,13,3,0,0,0,8,2,10,0,0,4,2,2,2,7,0,7,0,0,0,0,9,7,2,0,0,0,0,2,2,0,0,0,0,0,2,2,0,0,0,0,0]
["Bartlett","0000313","03700",2705,327,297,0,0,0,3,3,16,13,32,32,23,25,15,33,23,10,37,13,19,0,0,0,30,605,327,26,46,54,38,24,8,17,16,62,36,327,45,0,0,0,0,36,9,61,0,0,3,0,48,10,84,22,20,13,8,11,10,50,24,13,8,0,0,5,62,55,5,0,0,0,2,21,21,0,0,0,0,0,4,4,0,0,0,0,0]
["Brookfield","0000320","07940",604,9,9,0,0,0,0,0,0,0,0,0,5,0,0,0,0,0,2,2,0,0,0,0,0,545,9,0,0,5,0,2,0,0,0,2,0,9,0,0,0,0,0,0,0,2,0,0,0,0,2,0,2,0,0,2,0,0,0,3,3,0,0,0,0,0,2,2,0,0,0,0,0,0,0,0,0,0,0,0,0,0,0,0,0,0,0]
["Chatham","0000325","11780",260,13,13,0,2,0,0,0,0,0,0,0,2,3,3,3,0,0,0,0,0,0,0,0,0,592,13,2,3,0,0,5,0,3,0,0,0,13,0,0,0,0,0,0,0,2,2,0,0,0,0,0,8,0,0,5,0,3,0,0,0,0,0,0,0,0,3,3,0,0,0,0,0,0,0,0,0,0,0,0,0,0,0,0,0,0,0]
["Conway","0000330","14660",8604,1258,1215,22,30,46,54,29,67,74,111,106,139,80,88,53,68,62,73,36,38,21,18,0,43,525,1258,123,162,156,167,143,154,72,88,150,43,1258,190,11,29,0,13,131,6,296,32,27,27,55,137,18,345,70,53,95,86,33,8,184,127,32,9,0,9,7,175,141,18,12,0,0,4,49,41,8,0,0,0,0,19,19,0,0,0,0,0]
["Eaton","0000363","23380",375,22,18,0,0,0,0,0,2,0,0,0,0,2,7,0,2,0,1,4,0,0,0,0,4,636,22,0,5,2,0,4,0,0,0,7,4,22,4,0,0,0,0,4,0,3,0,0,0,0,3,0,8,0,0,4,0,0,4,2,2,0,0,0,0,0,4,4,0,0,0,0,0,0,0,0,0,0,0,0,1,1,0,0,0,0,0]
["Effingham","0000368","23620",1273,86,74,0,0,2,0,0,2,5,4,10,16,7,11,2,7,0,6,0,2,0,0,0,12,544,86,4,8,11,14,12,4,6,3,12,12,86,8,0,0,0,0,6,2,21,2,0,2,0,13,4,35,4,11,8,4,2,6,11,8,1,2,0,0,0,9,7,2,0,0,0,0,0,0,0,0,0,0,0,2,2,0,0,0,0,0]
["Freedom","0000373","27700",1303,66,47,0,0,0,0,2,6,0,2,5,6,10,6,3,3,2,2,0,0,0,0,0,19,563,66,3,2,14,4,4,5,5,4,6,19,66,17,0,0,0,0,6,11,8,0,2,2,0,4,0,28,8,2,2,5,5,6,6,4,0,0,0,0,2,3,3,0,0,0,0,0,2,2,0,0,0,0,0,2,2,0,0,0,0,0]
["Hale's Location","0000378","32500",58,0,0,0,0,0,0,0,0,0,0,0,0,0,0,0,0,0,0,0,0,0,0,0,0,0,0,0,0,0,0,0,0,0,0,0,0,0,0,0,0,0,0,0,0,0,0,0,0,0,0,0,0,0,0,0,0,0,0,0,0,0,0,0,0,0,0,0,0,0,0,0,0,0,0,0,0,0,0,0,0,0,0,0,0,0,0]
["Hart's Location","0000383","34500",37,3,0,0,0,0,0,0,0,0,0,0,0,0,0,0,0,0,0,0,0,0,0,0,3,0,3,0,0,0,0,0,0,0,0,0,3,3,0,0,0,0,0,0,0,3,0,0,0,0,0,3,0,0,0,0,0,0,0,0,0,0,0,0,0,0,0,0,0,0,0,0,0,0,0,0,0,0,0,0,0,0,0,0,0,0,0]
["Jackson","0000388","38260",835,76,68,0,0,0,0,0,2,0,8,19,7,5,6,2,5,4,0,0,8,2,0,0,8,536,76,5,15,8,11,4,5,7,6,7,8,76,0,0,0,0,0,0,0,18,0,0,2,0,16,0,17,2,9,2,0,4,0,21,8,0,0,5,0,8,18,18,0,0,0,0,0,2,0,2,0,0,0,0,0,0,0,0,0,0,0]
["Madison","0000393","45060",1984,136,120,2,0,0,2,0,0,5,5,8,26,16,18,7,6,14,9,0,0,2,0,0,16,588,136,18,4,29,23,13,3,8,7,15,16,136,9,0,0,0,0,7,2,24,0,0,0,0,19,5,47,9,16,13,3,4,2,27,18,7,0,0,0,2,12,10,0,0,0,0,2,10,7,0,0,0,0,3,7,7,0,0,0,0,0]
["Moultonborough","0000399","49380",4484,231,169,0,0,0,0,10,0,11,9,12,13,15,24,27,4,14,15,10,5,0,0,0,62,630,231,16,26,49,24,12,15,3,0,24,62,231,28,0,0,0,0,24,4,14,0,0,4,4,3,3,62,8,6,8,11,0,29,73,37,14,0,0,0,22,29,25,4,0,0,0,0,21,17,0,0,0,0,4,4,4,0,0,0,0,0]
["Ossipee","0000407","58740",4211,329,307,0,0,7,6,13,25,18,54,45,28,19,21,13,0,12,17,21,1,7,0,0,22,484,329,21,42,57,44,23,27,25,21,47,22,329,48,7,0,0,0,41,0,56,0,0,11,7,38,0,102,35,21,5,13,14,14,78,34,22,7,7,0,8,38,37,1,0,0,0,0,0,0,0,0,0,0,0,7,7,0,0,0,0,0]
["Sandwich","0000414","67780",1286,72,58,0,2,5,4,10,2,0,3,0,0,6,2,6,3,3,4,8,0,0,0,0,14,575,72,10,6,10,5,6,5,3,0,13,14,72,10,0,0,0,0,8,2,19,4,2,0,0,7,6,16,4,0,4,5,1,2,14,11,1,2,0,0,0,9,5,2,0,0,0,2,4,2,0,0,0,0,2,0,0,0,0,0,0,0]
["Tamworth","0000419","76100",2510,249,226,2,23,10,4,2,16,9,16,18,25,26,20,10,10,10,20,2,3,0,0,0,23,526,249,8,33,42,28,37,18,11,20,29,23,249,59,4,6,13,2,25,9,58,10,2,8,7,26,5,71,19,14,14,9,9,6,32,21,6,2,0,0,3,20,20,0,0,0,0,0,7,7,0,0,0,0,0,2,2,0,0,0,0,0]
["Tuftonboro","0000425","77620",2148,105,80,0,4,0,0,0,0,3,2,8,11,9,9,9,5,8,8,0,2,2,0,0,25,617,105,10,9,18,13,11,2,2,6,9,25,105,9,0,0,0,0,5,4,12,2,0,0,0,10,0,28,2,4,9,2,0,11,40,19,9,2,0,2,8,12,12,0,0,0,0,0,4,2,0,0,0,0,2,0,0,0,0,0,0,0]
["Wakefield","0000432","78180",4252,283,243,0,9,5,15,5,4,7,18,32,10,45,18,15,10,8,19,10,13,0,0,0,40,568,283,10,11,71,31,23,20,27,14,36,40,283,40,5,4,5,0,26,0,74,5,5,5,15,38,6,58,14,14,4,5,13,8,48,21,4,9,0,0,14,58,42,4,0,0,0,12,0,0,0,0,0,0,0,5,5,0,0,0,0,0]
["Wolfeboro","0000440","86420",6083,579,541,10,10,41,10,8,10,11,37,78,37,9,80,66,0,22,56,21,26,0,0,9,38,606,579,47,20,90,116,52,34,48,30,86,56,579,116,10,10,20,0,58,18,81,10,11,0,0,50,10,164,52,27,11,18,56,0,87,19,40,21,7,0,0,92,44,28,0,0,0,20,39,22,0,0,9,0,8,0,0,0,0,0,0,0]
[]
[]
[]
[]
["Census 2000 SummaryFile3 Sample Data  -  SF3TownQry8HousingCostB"]
[]
["TOWN_NAME","LOGRECNO","COUSUB","TotalPop","H74SpecOwnerOccHU","H74OOHU<10k","H74OOHU10to15k","H74OOHU15to20k","H74OOHU20to25k","H74OOHU25to30k","H74OOHU30to35k","H74OOHU35to40k","H74OOHU40to50k","H74OOHU50to60k","H74OOHU60to70k","H74OOHU70to80k","H74OOHU80to90k","H74OOHU90to100k","H74OOHU100to125k","H74OOHU125to150k","H74OOHU150to175k","H74OOHU175to200k","H74OOHU200to250k","H74OOHU250to300k","H74OOHU300to400k","H74OOHU400to500k","H74OOHU500to750k","H74OOHU750to1000k","H74OOHU1000kmore","H76OOHUMedianVal","H84OwnerOccHU","H84AllOOHU<10k","H84AllOOHU10to15k","H84AllOOHU15to20k","H84AllOOHU20to25k","H84AllOOHU25to30k","H84AllOOHU30to35k","H84AllOOHU35to40k","H84AllOOHU40to50k","H84AllOOHU50to60k","H84AllOOHU60to70k","H84AllOOHU70to80k","H84AllOOHU80to90k","H84AllOOHU90to100k","H84AllOOHU100to125k","H84AllOOHU125to150k","H84AllOOHU150to175k","H84AllOOHU175to200k","H84AllOOHU200to250k","H84AllOOHU250to300k","H84AllOOHU300to400k","H84AllOOHU400to500k","H84AllOOHU500to750k","H84AllOOHU750to1000k","H84AllOOHU1000kmore","H85OOHUMedVal","H90SOOHU","H90HUwMorgt","H90HUwMtgHC<200","H90HUwMtgHC200to300","H90HUwMtgHC300to400","H90HUwMtgHC400to500","H90HUwMtgHC500to600","H90HUwMtgHC600to700","H90HUwMtgHC700to800","H90HUwMtgHC800to900","H90HUwMtgHC900to1000","H90HUwMtgHC1000to1250","H90HUwMtgHC1250to1500","H90HUwMtgHC1500to2000","H90HUwMtgHC2000to2500","H90HUwMtgHC2500to3000","H90HUwMtgHC3000orMore","H90HUwOutMorgt","H90HUwOutMtgHC<100","H90HUwOutMtgHC100to150","H90HUwOutMtgHC150to200","H90HUwOutMtgHC200to250","H90HUwOutMtgHC250to300","H90HUwOutMtgHC300to350","H90HUwOutMtgHC350to400","H90HUwOutMtgHC400to500","H90HUwOutMtgHC500to600","H90HUwOutMtgHC600to700","H90HUwOutMtgHC700to800","H90HUwOutMtgHC800to900","H90HUwOutMtgHC900to1000","H90HUwOutMtgHC1000orMore","H91MedianOCHUwMtg","H91MedianOCHUwOutMtg","H94SpecOOHU","H94HUwMortg","H94HUwMtgHC<10pct","H94HUwMtgHC10to15pct","H94HUwMtgHC15to20pct","H94HUwMtgHC20to25pct","H94HUwMtgHC25to30pct","H94HUwMtgHC30to35pct","H94HUwMtgHC35to40pct","H94HUwMtgHC40to50pct","H94HUwMtgHC50pctOrMore","H94HUwMtgHCpctNotComp","H94HUWOutMortg","H94HUWOutMortgHC<10pct","H94HUWOutMortgHC10to15pct","H94HUWOutMortgHC15to20pct","H94HUWOutMortgHC20to25pct","H94HUWOutMortgHC25to30pct","H94HUWOutMortgHC30to35pct","H94HUWOutMortgHC35to40pct","H94HUWOutMortgHC40to50pct","H94HUWOutMortgHC50pctOrMore","H94HUWOutMortgHCpctNotComp","H97SpecifOwnOccHU","H97SOOHUInc<10k","H97SOOHUInc<10kHC<20pct","H97SOOHUInc<10kHC20to25pct","H97SOOHUInc<10kHC25to30pct","H97SOOHUInc<10kHC30to35pct","H97SOOHUInc<10kHC>35pct","H97SOOHUInc<10kHCpctNotComput","H97SOOHUInc10to20k","H97SOOHUInc10to20kHC<20pct","H97SOOHUInc10to20kHC20to25pct","H97SOOHUInc10to20kHC25to30pct","H97SOOHUInc10to20kHC30to35pct","H97SOOHUInc10to20kHC>35pct","H97SOOHUInc10to20kHCpctNotComput","H97SOOHUInc20to35k","H97SOOHUInc20to35kRC<20pct","H97SOOHUInc20to35kRC20to25pct","H97SOOHUInc20to35kRC25to30pct","H97SOOHUInc20to35kRC30to35pct","H97SOOHUInc20to35kRC>35pct","H97SOOHUInc20to35kRCpctNotComput","H97SOOHUInc35to50k","H97SOOHUInc35to50kRC<20pct","H97SOOHUInc35to50kRC20to25pct","H97SOOHUInc35to50kRC25to30pct","H97SOOHUInc35to50kRC30to35pct","H97SOOHUInc35to50kRC>35pct","H97SOOHUInc35to50kRCpctNotCompute","H97SOOHUInc50to75k","H97SOOHUInc50to75kRC<20pct","H97SOOHUInc50to75kRC20to25pct","H97SOOHUInc50to75kRC25to30pct","H97SOOHUInc50to75kRC30to35pct","H97SOOHUInc50to75kRC>35pct","H97SOOHUInc50to75kRCpctNotComput","H97SOOHUInc75to100k","H97SOOHUInc75to100kRC<20pct","H97SOOHUInc75to100kRC20to25pct","H97SOOHUInc75to100kRC25to30pct","H97SOOHUInc75to100kRC30to35pct","H97SOOHUInc75to100kRC>35pct","H97SOOHUInc75to100kRCpctNotCompute","H97SOOHUInc100to150k","H97SOOHUInc100to150kRC<20pct","H97SOOHUInc100to150kRC20to25pct","H97SOOHUInc100to150kRC25to30pct","H97SOOHUInc100to150kRC30to35pct","H97SOOHUInc100to150kRC>35pct","H97SOOHUInc100to150kRCpctNotCompute","H97SOOHUInc>150k","H97SOOHUInc>150kRC<20pct","H97SOOHUInc>150kRC20to25pct","H97SOOHUInc>150kRC25to30pct","H97SOOHUInc>150kRC30to35pct","H97SOOHUInc>150kRC>35pct","H97SOOHUInc>150kRCpctNotCompute"]
["Albany","0000308","00420",654,122,2,0,0,0,0,0,0,4,7,12,28,14,7,16,12,14,2,0,2,0,2,0,0,0,85700,187,4,12,8,14,3,3,0,12,7,12,30,14,7,20,14,16,4,0,2,0,2,3,0,0,76200,122,84,0,3,2,11,8,12,13,9,10,6,4,4,0,0,2,38,2,2,2,0,3,10,6,5,6,0,2,0,0,0,746,350,122,84,6,9,32,8,10,6,2,7,4,0,38,6,8,5,7,2,0,0,4,6,0,122,9,0,2,0,0,7,0,17,3,3,2,0,9,0,21,10,2,2,2,5,0,38,21,7,6,2,2,0,27,22,1,2,2,0,0,4,4,0,0,0,0,0,2,2,0,0,0,0,0,4,4,0,0,0,0,0]
["Bartlett","0000313","03700",2705,676,0,0,0,0,7,3,7,0,17,28,81,66,71,109,108,42,33,46,26,21,4,4,3,0,113300,891,3,0,0,2,9,6,13,6,22,34,91,83,94,145,133,51,43,68,32,34,9,7,6,0,114200,676,428,0,0,9,26,24,47,89,48,52,59,35,23,14,0,2,248,0,8,9,35,41,48,54,32,10,2,2,2,0,5,840,332,676,428,19,46,101,66,60,36,34,30,36,0,248,98,48,34,18,12,8,10,11,7,2,676,27,3,0,0,0,22,2,93,11,16,10,13,43,0,123,52,2,16,14,39,0,161,86,28,28,11,8,0,156,96,26,16,4,14,0,54,38,12,2,2,0,0,34,32,0,0,0,2,0,28,28,0,0,0,0,0]
["Brookfield","0000320","07940",604,151,0,0,0,0,0,0,0,4,0,4,13,6,18,37,34,18,7,8,2,0,0,0,0,0,120600,226,0,0,0,0,0,0,0,4,0,4,15,6,22,42,46,25,13,21,15,1,12,0,0,0,135900,151,97,0,0,0,5,5,5,11,14,10,20,15,12,0,0,0,54,0,0,0,0,4,25,5,15,5,0,0,0,0,0,985,346,151,97,9,20,23,14,11,8,7,3,2,0,54,17,14,7,4,4,6,0,0,2,0,151,2,0,0,0,0,2,0,11,0,2,4,3,2,0,15,6,2,0,5,2,0,32,17,4,4,2,5,0,62,40,8,7,4,3,0,16,14,2,0,0,0,0,6,6,0,0,0,0,0,7,7,0,0,0,0,0]
["Chatham","0000325","11780",260,35,0,0,0,0,2,0,0,0,1,2,0,3,6,8,4,4,0,4,0,1,0,0,0,0,110900,86,0,0,0,0,2,0,0,5,4,6,2,5,8,21,7,11,2,6,0,5,0,0,0,2,113100,35,25,0,2,0,5,8,7,0,0,0,0,0,2,0,1,0,10,0,0,0,4,0,2,0,4,0,0,0,0,0,0,569,325,35,25,3,6,2,4,0,4,0,4,2,0,10,6,4,0,0,0,0,0,0,0,0,35,0,0,0,0,0,0,0,6,0,0,0,0,6,0,5,2,1,0,2,0,0,10,8,2,0,0,0,0,6,4,0,0,2,0,0,6,6,0,0,0,0,0,2,1,1,0,0,0,0,0,0,0,0,0,0,0]
["Conway","0000330","14660",8604,1699,0,5,0,0,0,16,21,8,33,151,86,294,175,346,221,106,71,74,63,6,0,16,0,7,104400,2456,26,71,32,79,20,73,37,69,87,177,146,319,198,407,237,131,107,85,87,23,14,18,6,7,94600,1699,1166,0,0,14,52,89,146,159,153,162,202,112,58,12,7,0,533,0,0,44,42,57,67,79,124,58,22,21,0,7,12,880,386,1699,1166,81,178,327,197,118,72,54,47,86,6,533,144,127,81,57,22,36,6,18,36,6,1699,79,0,7,2,9,49,12,173,26,7,20,27,93,0,283,128,33,35,21,66,0,398,158,106,59,44,31,0,419,308,72,24,7,8,0,154,130,24,0,0,0,0,144,139,5,0,0,0,0,49,49,0,0,0,0,0]
["Eaton","0000363","23380",375,58,0,0,0,3,0,0,0,0,0,2,5,5,8,19,3,5,4,0,2,2,0,0,0,0,107900,120,0,0,0,3,0,0,0,0,0,2,5,5,13,32,6,13,8,10,5,8,2,8,0,0,125000,58,19,0,0,0,2,0,0,3,0,2,4,6,2,0,0,0,39,0,0,5,4,0,6,6,14,0,2,2,0,0,0,1156,388,58,19,2,3,5,3,0,2,2,0,2,0,39,12,12,5,4,0,4,0,0,0,2,58,4,0,0,0,2,0,2,11,5,2,0,2,2,0,2,0,2,0,0,0,0,13,11,0,0,2,0,0,18,16,0,0,0,2,0,7,4,3,0,0,0,0,3,3,0,0,0,0,0,0,0,0,0,0,0,0]
["Effingham","0000368","23620",1273,235,0,0,0,0,0,4,2,11,12,11,21,42,38,48,23,12,3,5,0,1,2,0,0,0,93800,392,4,2,2,2,2,10,8,31,17,19,35,59,48,64,40,15,7,14,4,5,2,2,0,0,91000,235,156,0,0,4,7,7,12,24,41,23,23,5,10,0,0,0,79,0,2,8,4,12,16,18,17,2,0,0,0,0,0,859,342,235,156,8,15,26,25,24,24,4,13,14,3,79,29,15,9,7,9,4,0,2,3,1,235,19,0,0,0,4,11,4,19,6,0,7,0,6,0,53,8,9,6,15,15,0,57,20,14,12,9,2,0,50,33,9,6,0,2,0,26,24,0,2,0,0,0,8,8,0,0,0,0,0,3,3,0,0,0,0,0]
["Freedom","0000373","27700",1303,361,2,0,0,0,0,0,0,7,3,15,15,14,23,83,50,52,25,31,19,9,9,2,2,0,134300,534,5,0,0,3,8,0,5,12,3,17,25,19,32,99,70,64,41,46,37,29,11,6,2,0,138900,361,176,0,0,7,7,7,11,25,26,14,39,24,14,0,0,2,185,0,0,8,12,35,41,26,39,7,12,0,3,0,2,936,346,361,176,13,15,31,34,21,20,8,18,16,0,185,49,55,25,14,14,9,0,6,9,4,361,18,0,0,0,2,12,4,43,11,9,11,3,9,0,101,46,5,9,14,27,0,79,43,10,13,6,7,0,72,50,14,2,4,2,0,22,14,8,0,0,0,0,19,19,0,0,0,0,0,7,5,2,0,0,0,0]
["Hale's Location","0000378","32500",58,31,0,0,2,0,0,0,0,0,0,0,0,0,0,0,0,0,0,3,0,20,6,0,0,0,352500,31,0,0,2,0,0,0,0,0,0,0,0,0,0,0,0,0,0,3,0,20,6,0,0,0,352500,31,11,0,0,0,0,0,0,0,3,0,2,0,2,4,0,0,20,0,0,0,0,0,8,6,6,0,0,0,0,0,0,1563,367,31,11,0,0,0,5,0,2,2,0,2,0,20,9,4,2,2,0,0,0,3,0,0,31,0,0,0,0,0,0,0,7,0,2,0,0,5,0,8,6,0,0,0,2,0,3,0,3,0,0,0,0,9,7,0,0,2,0,0,0,0,0,0,0,0,0,4,2,2,0,0,0,0,0,0,0,0,0,0,0]
["Hart's Location","0000383","34500",37,7,0,0,0,0,0,0,0,0,0,0,0,0,0,2,0,2,0,3,0,0,0,0,0,0,168800,9,0,0,0,0,0,0,0,2,0,0,0,0,0,2,0,2,0,3,0,0,0,0,0,0,156300,7,2,0,0,0,0,0,0,0,0,2,0,0,0,0,0,0,5,0,0,0,2,0,3,0,0,0,0,0,0,0,0,950,308,7,2,0,2,0,0,0,0,0,0,0,0,5,0,5,0,0,0,0,0,0,0,0,7,0,0,0,0,0,0,0,0,0,0,0,0,0,0,2,2,0,0,0,0,0,3,3,0,0,0,0,0,0,0,0,0,0,0,0,2,2,0,0,0,0,0,0,0,0,0,0,0,0,0,0,0,0,0,0,0]
["Jackson","0000388","38260",835,211,0,0,0,0,0,0,0,0,8,0,2,17,4,24,23,20,9,37,19,23,12,13,0,0,195800,269,0,0,0,0,0,0,0,0,10,0,2,17,4,26,27,26,14,41,33,31,21,17,0,0,210400,211,81,0,0,0,5,4,4,3,9,10,14,10,12,4,3,3,130,3,2,3,13,12,12,18,35,16,6,7,0,3,0,1098,406,211,81,4,20,13,6,11,5,5,7,10,0,130,59,20,9,4,3,8,5,2,18,2,211,30,3,0,0,0,25,2,24,7,2,3,5,7,0,22,6,2,3,6,5,0,21,13,0,6,0,2,0,44,34,3,0,2,5,0,36,28,3,2,0,3,0,27,27,0,0,0,0,0,7,7,0,0,0,0,0]
["Madison","0000393","45060",1984,474,0,0,0,0,0,0,3,10,13,23,38,72,36,132,68,33,5,25,5,5,0,6,0,0,108000,643,2,0,0,0,2,0,5,30,17,37,48,77,43,159,94,38,14,37,18,5,5,9,0,3,109500,474,310,0,0,9,16,36,23,33,58,34,54,26,14,7,0,0,164,0,2,6,23,26,31,36,19,10,7,2,0,2,0,866,340,474,310,18,53,63,51,43,22,22,21,17,0,164,67,37,25,16,8,3,4,0,4,0,474,6,0,0,0,0,6,0,48,11,9,7,3,18,0,95,35,10,13,11,26,0,105,54,19,16,3,13,0,156,99,29,15,8,5,0,33,33,0,0,0,0,0,15,15,0,0,0,0,0,16,16,0,0,0,0,0]
["Moultonborough","0000399","49380",4484,1348,0,0,0,0,0,0,0,12,9,26,57,68,122,167,178,110,57,113,107,108,67,78,32,37,158000,1631,0,0,4,4,5,0,0,17,10,31,66,76,143,206,203,144,85,137,124,126,87,82,37,44,158800,1348,826,0,0,0,23,48,67,102,63,91,138,103,109,50,0,32,522,0,0,8,21,63,58,77,94,58,30,29,32,8,44,1034,436,1348,826,40,85,133,106,92,64,61,102,135,8,522,196,124,64,30,13,10,16,17,36,16,1348,45,0,0,0,0,21,24,140,16,8,9,8,99,0,286,58,27,30,21,150,0,239,134,22,24,29,30,0,301,207,24,19,12,39,0,159,77,35,19,4,24,0,115,91,16,4,0,4,0,63,59,4,0,0,0,0]
["Ossipee","0000407","58740",4211,852,0,0,19,0,10,14,19,37,55,67,73,69,110,144,64,38,12,27,31,49,0,14,0,0,95700,1322,11,44,42,38,60,14,37,76,80,69,106,128,129,178,71,70,23,40,38,49,0,19,0,0,86600,852,513,0,0,6,18,47,65,78,49,33,78,36,75,21,0,7,339,0,12,26,59,50,52,33,47,33,27,0,0,0,0,887,322,852,513,19,69,90,49,95,47,12,77,55,0,339,75,76,33,66,21,34,5,7,16,6,852,48,0,0,6,7,29,6,143,13,40,6,27,57,0,203,93,30,29,14,37,0,208,73,24,54,26,31,0,146,86,21,14,7,18,0,33,33,0,0,0,0,0,45,45,0,0,0,0,0,26,19,0,7,0,0,0]
["Sandwich","0000414","67780",1286,229,0,0,0,4,4,2,4,0,2,2,13,8,18,34,37,45,20,17,10,3,2,4,0,0,140900,452,0,0,0,6,4,4,4,0,6,2,19,16,33,60,54,68,43,47,30,30,12,12,2,0,156600,229,109,0,0,4,4,7,11,6,8,8,28,15,16,0,2,0,120,2,6,6,8,15,17,24,26,10,0,4,2,0,0,1058,363,229,109,10,17,19,22,12,8,2,8,11,0,120,55,17,21,9,2,2,0,4,10,0,229,16,0,0,2,0,14,0,23,6,6,0,2,9,0,30,19,3,2,0,6,0,30,17,2,4,3,4,0,76,52,11,6,5,2,0,38,29,9,0,0,0,0,12,12,0,0,0,0,0,4,4,0,0,0,0,0]
["Tamworth","0000419","76100",2510,532,0,0,0,4,5,4,3,14,4,51,53,77,62,104,63,41,7,28,5,4,0,0,0,3,98200,825,6,3,13,8,24,12,12,26,21,56,73,90,76,136,85,55,19,49,22,20,7,6,0,6,99000,532,328,0,2,7,18,25,33,37,51,63,53,21,14,4,0,0,204,0,0,16,33,38,31,31,35,10,5,2,0,0,3,882,324,532,328,12,46,64,62,51,35,17,19,22,0,204,56,48,26,22,12,9,10,7,12,2,532,28,0,0,2,0,24,2,74,15,14,7,11,27,0,105,39,16,15,14,21,0,131,54,28,22,19,8,0,128,80,24,17,0,7,0,41,39,2,0,0,0,0,23,23,0,0,0,0,0,2,2,0,0,0,0,0]
["Tuftonboro","0000425","77620",2148,592,0,0,0,2,4,4,0,2,6,16,16,36,37,62,87,75,58,61,33,36,23,24,0,10,158000,806,0,0,10,6,13,4,6,8,12,22,22,45,48,80,111,86,77,74,57,54,27,28,2,14,154700,592,332,0,0,7,5,23,20,34,45,31,42,45,34,28,12,6,260,0,0,4,19,36,38,41,58,26,15,12,0,9,2,1006,390,592,332,22,43,73,60,41,38,16,10,29,0,260,96,61,28,23,10,5,6,6,14,11,592,38,0,0,0,3,24,11,37,0,11,6,2,18,0,114,52,14,12,12,24,0,104,50,21,12,13,8,0,139,96,20,12,7,4,0,91,68,11,7,2,3,0,34,24,4,2,4,0,0,35,33,2,0,0,0,0]
["Wakefield","0000432","78180",4252,1083,0,0,0,4,0,0,9,4,45,45,101,137,143,202,118,89,35,80,50,17,0,4,0,0,106600,1401,0,0,4,4,0,0,13,18,56,61,140,151,160,288,151,107,51,93,70,25,0,4,0,5,108100,1083,689,4,3,15,11,34,66,116,92,69,163,53,38,20,5,0,394,0,8,9,36,36,79,90,90,21,13,4,0,8,0,905,366,1083,689,39,81,157,128,66,66,43,29,80,0,394,152,103,39,21,12,8,5,22,28,4,1083,65,0,0,0,4,57,4,98,21,5,12,7,53,0,185,65,26,16,19,59,0,249,116,52,32,29,20,0,288,187,58,10,15,18,0,85,73,4,8,0,0,0,78,74,4,0,0,0,0,35,35,0,0,0,0,0]
["Wolfeboro","0000440","86420",6083,1552,0,0,0,0,0,0,0,0,15,9,92,86,149,204,223,183,101,189,116,53,44,61,14,13,149800,1985,0,7,0,8,0,0,8,0,31,34,114,99,157,240,324,190,116,243,188,60,53,61,31,21,147700,1552,913,0,0,0,29,37,35,98,76,102,203,111,131,51,27,13,639,0,0,8,74,48,65,62,152,107,31,30,15,6,41,1098,441,1552,913,61,113,102,184,127,82,29,35,165,15,639,211,132,80,69,40,37,24,8,38,0,1552,46,0,0,0,7,24,15,256,34,24,8,37,153,0,267,93,47,32,8,87,0,230,47,45,65,38,35,0,376,207,104,49,16,0,0,111,78,20,7,6,0,0,151,125,13,6,7,0,0,115,115,0,0,0,0,0]
[]
[]
[]
[]
["Census 2000 SummaryFile3 Sample Data  -  SF3TownQry9HHIncomeByTenure"]
[]
["TOWN_NAME","LOGRECNO","COUSUB","TotalPop","HCT11OccHU","HCT11OwnOccHU","HCT11OOHUInc<5K","HCT11OOHUInc5to10K","HCT11OOHUInc10to15K","HCT11OOHUInc15to20K","HCT11OOHUInc20to25K","HCT11OOHUInc25to35K","HCT11OOHUInc35to50K","HCT11OOHUInc50to75K","HCT11OOHUInc75to100K","HCT11OOHUInc100to150K","HCT11OOHUInc>150K","HCT11RentOccHU","HCT11ROHUInc<5K","HCT11ROHUInc5to10K","HCT11ROHUInc10to15K","HCT11ROHUInc15to20K","HCT11ROHUInc20to25K","HCT11ROHUInc25to35K","HCT11ROHUInc35to50K","HCT11ROHUInc50to75K","HCT11ROHUInc75to100K","HCT11ROHUInc100to150K","HCT11ROHUInc>150K","HCT12MedHHInc","HCT12MedOwnOccHHInc","HCT12MedRentOccHHInc","SummaryLevel"]
["Albany","0000308","00420",654,237,187,4,11,22,19,10,20,45,37,8,2,9,50,4,3,2,11,4,6,7,9,2,2,0,35481,36442,28750,"060"]
["Bartlett","0000313","03700",2705,1220,891,6,26,48,69,60,130,205,191,82,37,37,329,25,20,33,28,21,63,50,64,21,4,0,39900,42292,31012,"060"]
["Brookfield","0000320","07940",604,237,226,0,2,7,10,12,18,52,80,17,16,12,11,0,0,2,0,2,2,3,2,0,0,0,51417,52000,34375,"060"]
["Chatham","0000325","11780",260,105,86,3,2,3,8,5,14,22,16,6,3,4,19,0,3,0,2,3,8,0,3,0,0,0,35750,39375,26875,"060"]
["Conway","0000330","14660",8604,3716,2456,41,105,134,188,216,309,505,508,194,178,78,1260,37,153,118,178,114,231,184,175,51,10,9,35669,40203,26442,"060"]
["Eaton","0000363","23380",375,144,120,2,4,7,14,7,5,26,30,12,13,0,24,2,2,3,0,6,2,2,6,0,1,0,45313,46875,23750,"060"]
["Effingham","0000368","23620",1273,490,392,10,29,25,26,23,55,95,64,34,21,10,98,4,6,6,17,11,28,15,9,0,0,2,35595,38370,26250,"060"]
["Freedom","0000373","27700",1303,602,534,14,18,20,38,40,86,116,117,33,37,15,68,6,11,4,4,14,14,6,3,4,2,0,38864,42105,22917,"060"]
["Hale's Location","0000378","32500",58,31,31,0,0,3,4,0,8,3,9,0,4,0,0,0,0,0,0,0,0,0,0,0,0,0,42917,42917,0,"060"]
["Hart's Location","0000383","34500",37,12,9,0,0,0,0,0,2,3,2,2,0,0,3,0,0,0,3,0,0,0,0,0,0,0,40833,42083,16250,"060"]
["Jackson","0000388","38260",835,364,269,9,23,9,17,12,18,32,63,42,29,15,95,0,0,8,10,9,15,28,23,2,0,0,48750,57750,39583,"060"]
["Madison","0000393","45060",1984,790,643,5,10,37,31,61,70,122,201,53,28,25,147,5,7,14,10,9,40,31,14,10,7,0,43929,47440,31719,"060"]
["Moultonborough","0000399","49380",4484,1884,1631,36,21,62,97,91,250,295,360,184,147,88,253,4,28,10,9,30,45,73,29,21,4,0,44314,47534,35074,"060"]
["Ossipee","0000407","58740",4211,1672,1322,38,50,93,109,106,220,319,223,76,56,32,350,11,46,32,24,39,70,78,43,0,7,0,34891,36278,28158,"060"]
["Sandwich","0000414","67780",1286,564,452,8,15,16,35,27,36,69,142,65,22,17,112,2,10,10,19,12,19,16,15,4,2,3,47857,52273,26875,"060"]
["Tamworth","0000419","76100",2510,1099,825,16,33,71,51,43,129,188,169,65,44,16,274,0,59,23,38,27,55,36,25,7,4,0,35230,39315,23214,"060"]
["Tuftonboro","0000425","77620",2148,926,806,28,23,26,29,42,109,152,189,104,54,50,120,4,5,7,5,10,23,48,12,4,2,0,46389,49483,37143,"060"]
["Wakefield","0000432","78180",4252,1684,1401,24,56,73,89,79,179,280,348,111,103,59,283,3,37,48,26,22,36,48,58,0,0,5,42071,45256,26528,"060"]
["Wolfeboro","0000440","86420",6083,2574,1985,39,15,137,142,156,196,326,455,179,187,153,589,48,68,40,41,72,102,87,92,39,0,0,43360,49111,27781,"060"]
[]
[]
[]
[]
[]
["Census 2000 SummaryFile3 Sample Data - SF3TownQry10aDisabil"]
[]
["TOWN_NAME","LOGRECNO","COUSUB","TotalPop","PCT026001","PCT026002","PCT026003","PCT026004","PCT026005","PCT026006","PCT026007","PCT026008","PCT026009","PCT026010","PCT026011","PCT026012","PCT026013","PCT026014","PCT026015","PCT026016","PCT026017","PCT026018","PCT026019","PCT026020","PCT026021","PCT026022","PCT026023","PCT026024","PCT026025","PCT026026","PCT026027","PCT026028","PCT026029","PCT026030","PCT026031","PCT026032","PCT026033","PCT026034","PCT026035","PCT026036","PCT026037","PCT026038","PCT026039","PCT026040","PCT026041","PCT026042","PCT026043","PCT026044","PCT026045","PCT026046","PCT026047","PCT026048","PCT026049","PCT026050","PCT026051","PCT026052","PCT026053","PCT026054","PCT026055","PCT026056","PCT026057","PCT026058","PCT026059","PCT026060","PCT026061","PCT026062","PCT026063","PCT026064","PCT026065","PCT026066","PCT026067","PCT026068","PCT026069","PCT026070","PCT026071","PCT026072","PCT026073","PCT026074","PCT026075","PCT026076","PCT026077","PCT026078","PCT026079","PCT026080","PCT026081","PCT026082","PCT026083","PCT026084","PCT026085","PCT026086","PCT026087","PCT026088","PCT026089","PCT026090","PCT026091","PCT026092","PCT026093","PCT026094","PCT026095","PCT026096","PCT026097","PCT026098","PCT026099","PCT026100","PCT026101"]
["Albany","0000308","00420",654,555,280,30,0,0,0,0,0,0,0,0,30,24,5,0,0,1,0,0,4,4,0,4,0,4,15,204,60,3,2,14,0,0,41,17,2,15,0,15,127,22,4,0,2,2,0,0,7,4,3,11,275,56,3,0,3,0,0,0,0,0,53,13,4,0,0,0,0,0,4,0,0,0,0,0,9,182,34,2,4,0,0,0,28,24,7,17,0,17,124,24,2,0,2,0,0,0,8,6,2,14]
["Bartlett","0000313","03700",2705,2609,1324,224,16,7,3,6,0,0,0,0,208,74,7,6,0,0,0,0,1,0,0,0,0,0,67,833,127,10,29,11,0,0,77,42,8,34,0,34,664,193,36,8,23,5,0,0,37,13,24,120,1285,195,8,0,2,6,0,2,0,2,185,53,7,0,0,0,0,0,7,3,3,0,0,0,43,859,106,10,10,6,3,0,77,37,15,22,2,20,716,178,21,6,11,4,0,0,21,17,4,136]
["Brookfield","0000320","07940",604,583,263,36,0,0,0,0,0,0,0,0,36,13,0,0,0,0,0,0,0,3,0,3,0,3,10,171,17,2,9,0,0,2,4,10,0,10,3,7,144,43,0,0,0,0,0,0,15,3,12,28,320,46,0,0,0,0,0,0,0,0,46,28,6,0,0,1,0,3,2,0,0,0,0,0,22,184,10,1,2,2,0,3,2,14,0,14,4,10,160,62,26,10,10,6,0,0,4,0,4,32]
["Chatham","0000325","11780",260,239,134,24,1,0,0,1,0,0,0,0,23,4,0,0,0,0,0,0,0,0,0,0,0,0,4,92,18,0,6,5,0,0,7,12,1,11,0,11,62,14,2,0,2,0,0,0,6,1,5,6,105,23,0,0,0,0,0,0,0,0,23,9,0,0,0,0,0,0,0,0,0,0,0,0,9,63,8,0,1,3,0,0,4,4,2,2,0,2,51,10,2,0,2,0,0,0,0,0,0,8]
["Conway","0000330","14660",8604,8039,3862,615,32,13,0,11,8,9,9,0,574,285,18,0,0,0,0,0,18,23,0,23,21,2,244,2451,558,42,72,26,0,8,410,189,45,144,58,86,1704,511,144,87,44,0,6,7,79,23,56,288,4177,592,16,0,0,16,0,22,22,0,554,255,24,0,0,4,0,7,13,15,0,15,8,7,216,2611,457,14,59,5,4,24,351,233,65,168,41,127,1921,719,139,30,82,10,0,17,159,81,78,421]
["Eaton","0000363","23380",375,321,169,25,0,0,0,0,0,0,0,0,25,12,2,0,0,0,0,0,2,2,2,0,0,0,8,107,32,0,0,0,0,0,32,7,0,7,0,7,68,25,9,4,2,3,0,0,4,2,2,12,152,23,0,0,0,0,0,0,0,0,23,6,0,0,0,0,0,0,0,0,0,0,0,0,6,104,35,2,0,0,0,0,33,12,2,10,0,10,57,19,5,3,2,0,0,0,2,0,2,12]
["Effingham","0000368","23620",1273,1218,632,110,7,2,0,5,0,12,8,4,91,60,3,0,0,0,0,3,0,28,0,28,12,16,29,379,33,8,2,4,0,4,15,61,25,36,1,35,285,83,31,11,17,0,0,3,14,7,7,38,586,106,10,10,0,0,0,0,0,0,96,48,0,0,0,0,0,0,0,12,0,12,5,7,36,357,28,3,7,9,0,0,9,27,18,9,1,8,302,75,15,2,9,0,0,4,19,6,13,41]
["Freedom","0000373","27700",1303,1251,605,58,6,2,0,4,0,0,0,0,52,19,3,1,0,0,0,0,2,0,0,0,0,0,16,377,32,6,0,1,0,0,25,44,25,19,10,9,301,151,28,10,16,2,0,0,23,3,20,100,646,78,2,0,0,2,0,0,0,0,76,27,4,0,0,2,0,2,0,0,0,0,0,0,23,382,42,2,6,5,0,4,25,40,10,30,12,18,300,159,18,2,8,0,0,8,28,3,25,113]
["Hale's Location","0000378","32500",58,61,32,0,0,0,0,0,0,0,0,0,0,0,0,0,0,0,0,0,0,0,0,0,0,0,0,15,3,3,0,0,0,0,0,0,0,0,0,0,12,17,2,2,0,0,0,0,0,0,0,15,29,0,0,0,0,0,0,0,0,0,0,0,0,0,0,0,0,0,0,0,0,0,0,0,0,17,0,0,0,0,0,0,0,0,0,0,0,0,17,12,0,0,0,0,0,0,0,0,0,12]
["Hart's Location","0000383","34500",37,31,18,5,0,0,0,0,0,0,0,0,5,2,0,0,0,0,0,0,0,0,0,0,0,0,2,11,0,0,0,0,0,0,0,0,0,0,0,0,11,0,0,0,0,0,0,0,0,0,0,0,13,3,0,0,0,0,0,0,0,0,3,0,0,0,0,0,0,0,0,0,0,0,0,0,0,10,0,0,0,0,0,0,0,0,0,0,0,0,10,0,0,0,0,0,0,0,0,0,0,0]
["Jackson","0000388","38260",835,760,358,34,0,0,0,0,0,0,0,0,34,2,0,0,0,0,0,0,0,0,0,0,0,0,2,230,31,0,6,0,0,0,25,7,2,5,3,2,192,92,11,6,5,0,0,0,12,5,7,69,402,62,0,0,0,0,0,0,0,0,62,9,0,0,0,0,0,0,0,0,0,0,0,0,9,244,25,0,7,2,0,0,16,2,0,2,0,2,217,87,19,6,11,2,0,0,9,4,5,59]
["Madison","0000393","45060",1984,1944,979,191,17,1,0,16,0,3,3,0,171,78,8,0,0,1,0,0,7,0,0,0,0,0,70,604,116,18,17,10,0,0,71,32,6,26,4,22,456,106,25,16,6,3,0,0,22,2,20,59,965,174,2,0,0,2,0,0,0,0,172,47,7,0,0,3,0,0,4,0,0,0,0,0,40,613,106,0,14,2,0,0,90,33,7,26,2,24,474,131,24,9,12,0,0,3,17,6,11,90]
["Moultonborough","0000399","49380",4484,4316,2112,311,20,0,0,20,0,4,0,4,287,109,11,0,0,11,0,0,0,8,0,8,0,8,90,1266,73,23,17,2,0,8,23,85,36,49,0,49,1108,426,101,33,56,4,0,8,51,22,29,274,2204,322,0,0,0,0,0,0,0,0,322,123,0,0,0,0,0,0,0,0,0,0,0,0,123,1293,53,10,11,12,0,0,20,68,23,45,12,33,1172,466,86,19,50,5,0,12,72,55,17,308]
["Ossipee","0000407","58740",4211,3874,1930,363,23,0,0,23,0,0,0,0,340,96,5,0,0,5,0,0,0,0,0,0,0,0,91,1167,145,39,35,22,0,6,43,139,40,99,4,95,883,304,100,36,50,14,0,0,34,20,14,170,1944,348,13,6,0,7,0,9,9,0,326,115,11,5,0,0,0,6,0,16,8,8,8,0,88,1150,116,24,26,17,0,6,43,90,16,74,6,68,944,331,90,16,37,32,0,5,43,16,27,198]
["Sandwich","0000414","67780",1286,1231,578,87,3,0,0,3,0,1,1,0,83,30,0,0,0,0,0,0,0,0,0,0,0,0,30,327,30,6,16,0,0,0,8,25,6,19,0,19,272,134,32,15,17,0,0,0,15,6,9,87,653,97,4,2,0,2,0,0,0,0,93,31,0,0,0,0,0,0,0,0,0,0,0,0,31,356,26,5,10,0,0,0,11,7,5,2,0,2,323,169,23,4,17,2,0,0,36,12,24,110]
["Tamworth","0000419","76100",2510,2420,1249,227,7,0,0,7,0,2,2,0,218,94,16,0,5,0,2,0,9,0,0,0,0,0,78,736,114,24,24,5,0,0,61,80,10,70,3,67,542,192,49,25,22,0,0,2,45,8,37,98,1171,181,13,2,4,7,0,6,6,0,162,53,12,0,5,2,0,0,5,4,0,4,2,2,37,725,105,7,18,7,0,3,70,69,15,54,5,49,551,212,46,15,25,0,0,6,37,23,14,129]
["Tuftonboro","0000425","77620",2148,2052,1003,134,7,3,0,4,0,0,0,0,127,41,1,0,0,1,0,0,0,0,0,0,0,0,40,583,61,7,8,3,0,0,43,44,15,29,2,27,478,245,32,16,10,0,0,6,27,6,21,186,1049,144,5,2,0,3,0,0,0,0,139,50,3,0,0,3,0,0,0,0,0,0,0,0,47,622,54,6,13,5,0,0,30,32,11,21,3,18,536,233,38,12,18,0,3,5,38,14,24,157]
["Wakefield","0000432","78180",4252,3991,1990,397,41,3,0,34,4,0,0,0,356,87,0,0,0,0,0,0,0,0,0,0,0,0,87,1192,155,15,45,31,0,0,64,136,19,117,41,76,901,314,73,22,38,9,0,4,52,20,32,189,2001,365,0,0,0,0,0,4,0,4,361,102,4,0,0,4,0,0,0,2,0,2,0,2,96,1215,91,6,35,4,0,9,37,103,11,92,20,72,1021,319,43,8,31,4,0,0,42,8,34,234]
["Wolfeboro","0000440","86420",6083,5719,2700,424,29,0,9,20,0,7,7,0,388,165,11,6,0,0,0,0,5,10,6,4,4,0,144,1516,185,49,18,9,0,0,109,91,9,82,31,51,1240,595,101,23,53,0,0,25,92,41,51,402,3019,462,25,0,0,25,0,0,0,0,437,168,37,0,0,0,0,10,27,0,0,0,0,0,131,1581,85,6,24,0,0,0,55,90,6,84,27,57,1406,808,199,44,121,8,0,26,130,52,78,479]
[]
[]
[]
["2010 Census Demographic Profile Data -  QRY_CountyState"]
["TownName","LOGRECNO","COUNTY","TotalPop","TotalPop1Race","TotalPopWhite","TotalPopAfricanAmerican","TotalPopAmericanIndAlaska","TotalPopAsian","TotalPopNativeHawaiianPIsland","TotalPopSomeOtherRace","TotalPopTwoOrMoreRaces","TotalPopHispanicLatino","TotalNonHispanicLatino","TotPopUnder15yrs","TotPop15to24yrs","TotPop25to34yrs","TotPop35to44yrs","TotPop45to54yrs","TotPop55to64yrs","TotPop65to74yrs","TotPopOver74yrs","MedianAge","MedianAgeMale","MedianAgeFemale","TotalHH","TotalPopInHouseholds","TotalPopInFamilyHH","TotalPopInNonFamilyHH","AvgHHSize","TotalFamilyHH","TotalFamilyHHSpouse","TotalSingleParentHH","TotalNonFamilyHH","AvgFamilyHHSize","AvgNonFamilyHHSize","AverageHHSizeOwnerOccupied","AverageHHSizeRentalOccupied","TotalHousingUnits","TotalOccupiedHU","TotalOwnerOccupiedHUs","TotalRentalOccupiedHU","TotalVacantHU","VacantHUForRent","VacantHURentNotOccupied","VacantHUForSale","VacantHUsSoldNotOccupied","VacantHUSeasonalRecreational","VacantHUsAllOtherVacants","HomeOwnerVacancyRate","HomeRentalVacancyRate","TotalHousingUnits2010","SingFamHU2010","MultiFamHU2010","MobileHom2010"]
["Albany","0000022","003",735,724,713,3,4,3,0,1,11,10,725,112,84,59,103,146,102,83,46,45.6,46.7,44.9,318,735,347,388,2.31,205,161,44,113,2.69,3.4336283185840708,2.3199999999999998,2.29,560,318,253,65,242,8,0,1,0,223,10,0.4,11,560,452,18,90]
["Bartlett","0000023","003",2788,2752,2725,8,7,12,0,0,36,25,2763,385,244,248,329,484,527,359,212,49,49.8,48.4,1307,2788,1268,1520,2.13,762,607,155,545,2.66,2.7889908256880735,2.14,2.1,4115,1307,997,310,2808,42,5,26,4,2691,40,2.5,11.8,4115,1861,2192,62]
["Brookfield","0000024","003",712,702,696,0,5,0,0,1,10,5,707,108,70,31,107,132,131,83,50,48.2,47.8,48.6,292,712,382,330,2.44,212,182,30,80,2.8,4.125,2.4300000000000002,2.48,338,292,269,23,46,1,1,2,2,33,7,0.7,4,338,328,2,8]
["Chatham","0000025","003",337,330,329,0,0,1,0,0,7,1,336,50,37,37,44,57,56,31,25,45.1,45.9,43.8,139,337,176,161,2.42,95,78,17,44,2.85,3.6590909090909092,2.41,2.54,270,139,126,13,131,1,0,3,1,121,5,2.2999999999999998,7.1,270,233,12,25]
["Conway","0000026","003",10115,9998,9800,33,40,98,4,23,117,106,10009,1619,1063,1106,1346,1668,1574,909,830,44.5,43.3,45.7,4479,9953,4692,5261,2.2200000000000002,2638,1966,672,1841,2.78,2.8576860401955457,2.3199999999999998,2.02,6921,4479,3053,1426,2442,151,9,95,8,2081,98,3,9.5,6921,3995,2193,733]
["Eaton","0000027","003",393,387,383,2,0,2,0,0,6,5,388,31,38,28,39,57,115,58,27,55.2,55.4,55.1,196,393,175,218,2.0099999999999998,114,94,20,82,2.54,2.6585365853658538,2.02,1.94,291,196,160,36,95,3,0,2,1,86,3,1.2,7.7,291,266,25,0]
["Effingham","0000028","003",1465,1443,1429,3,4,4,0,3,22,19,1446,217,158,131,205,295,236,141,82,45.6,45.5,45.6,621,1465,750,715,2.36,416,328,88,205,2.8,3.4878048780487805,2.38,2.25,963,621,533,88,342,10,4,30,5,280,13,5.3,9.8000000000000007,963,816,48,99]
["Freedom","0000029","003",1489,1478,1471,2,0,4,0,1,11,8,1481,184,122,81,168,241,293,233,167,53.1,53,53.2,699,1479,719,760,2.12,457,398,59,242,2.57,3.1404958677685952,2.1,2.1800000000000002,1580,699,601,98,881,10,0,27,1,827,16,4.3,9.3000000000000007,1580,1338,96,146]
["Hale's Location"]
["Hart's Location","0000030","003",41,41,41,0,0,0,0,0,0,0,41,4,3,5,7,9,5,4,4,47.5,47.5,47,21,41,18,23,1.95,12,11,1,9,2.5,2.5555555555555554,2.14,1.57,54,21,14,7,33,0,0,2,0,30,1,12.5,0,62,61,1,0]
["Jackson","0000031","003",816,809,801,0,2,5,0,1,7,6,810,87,43,52,94,142,181,128,89,54.3,54.2,54.4,399,816,358,458,2.0499999999999998,241,215,26,158,2.4900000000000002,2.8987341772151898,2.15,1.68,1009,399,309,90,610,9,2,9,1,570,19,2.8,8.9,1009,799,203,7]
["Madison","0000032","003",2502,2482,2443,23,10,2,0,4,20,36,2466,412,230,191,327,499,421,241,181,47.4,46.3,48.4,1075,2498,1278,1220,2.3199999999999998,720,590,130,355,2.78,3.436619718309859,2.2999999999999998,2.4300000000000002,1877,1075,897,178,802,23,2,25,6,726,20,2.7,11.3,1877,1634,127,115]
["Moultonborough","0000033","003",4044,4022,3961,13,9,27,0,12,22,42,4002,571,375,243,424,698,828,545,360,50.5,50.4,50.5,1741,4044,2118,1926,2.3199999999999998,1242,1059,183,499,2.71,3.8597194388777556,2.33,2.31,4940,1741,1492,249,3199,60,12,56,11,2991,69,3.6,18.7,5226,4840,240,146]
["Ossipee","0000034","003",4345,4281,4218,17,15,25,0,6,64,45,4300,657,460,380,510,780,715,463,380,47.4,47,47.7,1826,4168,2048,2120,2.2799999999999998,1165,896,269,661,2.76,3.2072617246596065,2.27,2.3199999999999998,3057,1826,1455,371,1231,52,5,58,7,1045,64,3.8,12.1,3057,2174,341,541]
["Sandwich","0000035","003",1326,1312,1299,2,3,7,1,0,14,6,1320,168,98,80,131,243,299,169,138,53.2,53,53.3,617,1326,644,682,2.15,405,340,65,212,2.59,3.2169811320754715,2.16,2.08,1057,617,530,87,440,10,0,23,2,373,32,4.0999999999999996,10.3,1057,1024,14,19]
["Tamworth","0000036","003",2856,2815,2785,7,11,11,0,1,41,21,2835,417,298,252,345,544,479,286,235,47.6,47.2,48,1292,2856,1358,1498,2.21,770,619,151,522,2.76,2.8697318007662833,2.2599999999999998,2.06,1969,1292,982,310,677,48,6,28,8,493,94,2.8,13.2,1969,1556,226,187]
["Tuftonboro","0000037","003",2387,2357,2342,4,2,6,0,3,30,12,2375,372,184,169,262,383,452,315,250,50.8,51,50.4,1029,2387,1234,1153,2.3199999999999998,736,628,108,293,2.68,3.9351535836177476,2.2999999999999998,2.42,2435,1029,886,143,1406,20,0,46,3,1293,44,4.9000000000000004,12.3,2435,2121,134,179]
["Wakefield","0000038","003",5078,5027,4952,11,9,48,1,6,51,45,5033,835,485,469,674,919,815,535,346,45.9,45.7,46.2,2098,5078,2684,2394,2.42,1483,1230,253,615,2.81,3.8926829268292682,2.41,2.46,3832,2098,1806,292,1734,31,4,72,10,1573,44,3.8,9.5,3832,3395,289,148]
["Wolfeboro","0000039","003",6269,6205,6119,11,11,50,1,13,64,81,6188,876,546,364,626,1041,1060,861,895,52.1,50.7,53.2,2839,6185,3102,3083,2.1800000000000002,1848,1539,309,991,2.68,3.1109989909182643,2.25,1.93,4443,2839,2238,601,1604,100,8,93,14,1322,67,4,14.1,4443,3386,887,170]

{"sheet":"CntyDataLinkPrior5YearEstimates","index":71,"n_rows":160,"n_cols":183,"rows_kept":160,"cut":false,"hidden":true,"merged":[]}
[1,{"$f":"A1+1","v":2},3,4,5,6,7,8,9,10,11,12,13,14,15,16,17,18,19,20,21,22,23,24,25,26,27,28,29,30,31,32,33,34,35,36,37,38,39,40,41,42,43,44,45,46,47,48,49,50,51,52,53,54,55,56,57,58,59,60,61,62,63,64,65,{"$f":"BM1+1","v":66},67,68,69,70,71,72,73,74,75,76,77,78,79,80,81,82,83,84,85,86,87,88,89,90,91,92,93,94,95,96,97,98,99,100,101,102,103,104,105,106,107,108,109,110,111,112,113,114,115,116,117,118,119,120,121,122,123,124,125,126,127,128,129,{"$f":"DY1+1","v":130},131,132,133,134,135,136,137,138,139,140,141,142,143,144,145,146,147,148,149,150,151,152,153,154,155,156,157,158,159,160,161,162,163,164,165,166,167,168,169,170,171,172,173,174,175,176,177,178,179,180,181,182,183]
[]
["Census 1990 Data -           Query Name:  DPCnty90Census"]
["TownName"]
[{"$f":"VLOOKUP(DropDownList!$A$24,CntyQuery!$A$4:$FA$22,A1)","v":"Albany"}]
[]
[]
["Census 1990 Data -    Query Name:  TownSTF1Qry1"]
["NAME"]
[{"$f":"VLOOKUP(DropDownList!$B$24,CntyQuery!$A$37:$CE$45,A$1)","v":{"$error":"#N/A"}}]
[]
[]
["Census 1990 Data -          Query Name: TownSTF3Qry1"]
["NAME"]
[{"$f":"A20","v":"Albany"}]
[]
[]
[]
["TOWN_NAME"]
[{"$f":"VLOOKUP(DropDownList!$B$24,CntyQuery!$A$99:$DZ$117,A$1)","v":"Albany"}]
[]
[]
["NH Employment Data"]
["AreaName"]
[{"$f":"VLOOKUP(DropDownList!$B$24,CntyQuery!$A$99:$FX$117,A$1)","v":"Albany"}]
[]
[]
[]
[]
[]
[]
[]
["Census 2000   -           Query Name:  TownAllQuery3"]
["NAME"]
[{"$f":"VLOOKUP(DropDownList!$B$24,CntyQryCensus!$A$4:$CX$22,A$1)","v":"Albany"}]
[]
[]
["Census 2000 DemoProfile Sample Data Tables 2&3   -  DPTab23TownQry"]
["NAME"]
[{"$f":"VLOOKUP(DropDownList!$B$24,CntyQryCensus!$A$29:$BY$47,A$1)","v":"Albany"}]
[]
[]
["Census 2000 DemoProfile Sample Data Table 4   -  DPTab4TownQry"]
["NAME"]
[{"$f":"VLOOKUP(DropDownList!$B$24,CntyQryCensus!$A$55:$CW$73,A$1)","v":"Albany"}]
[]
[]
["Census 2000 SummaryFile3 Sample Data  -  SF3TownQry1SocialChar"]
["NAME"]
[{"$f":"VLOOKUP(DropDownList!$B$24,CntyQryCensus!$A$83:$FR$101,A$1)","v":"Albany"}]
[]
[]
["Census 2000 SummaryFile3 Sample Data  -  SF3TownQry2aIncomeChar"]
["NAME"]
[{"$f":"VLOOKUP(DropDownList!$B$24,CntyQryCensus!$A$109:$HH$127,A$1)","v":"Albany"}]
[]
[]
["Census 2000 SummaryFile3 Sample Data  -  SF3TownQry2bPovertyChar"]
["NAME"]
[{"$f":"VLOOKUP(DropDownList!$B$24,CntyQryCensus!$A$135:$FZ$153,A$1)","v":"Albany"}]
[]
[]
["Census 2000 SummaryFile3 Sample Data  -  SF3TownQry7HousingA"]
["NAME"]
[{"$f":"VLOOKUP(DropDownList!$B$24,CntyQryCensus!$A$161:$GX$179,A$1)","v":"Albany"}]
[]
[]
["Census 2000 SummaryFile3 Sample Data  -  SF3TownQry8HousingCostA"]
["NAME"]
[{"$f":"VLOOKUP(DropDownList!$B$24,CntyQryCensus!$A$187:$CL$205,A$1)","v":"Albany"}]
[]
[]
["Census 2000 SummaryFile3 Sample Data  -  SF3TownQry8HousingCostB"]
["NAME"]
[{"$f":"VLOOKUP(DropDownList!$B$24,CntyQryCensus!$A$213:$FN$231,A$1)","v":"Albany"}]
[]
[]
["Census 2000 SummaryFile3 Sample Data  -  SF3TownQry9HHIncomeByTenure"]
["NAME"]
[{"$f":"VLOOKUP(DropDownList!$B$24,CntyQryCensus!$A$239:$AX$257,A$1)","v":"Albany"}]
[]
[]
[]
[]
[]
[{"$f":"A96","v":"Albany"}]
[]
[]
[]
[]
[]
[]
[]
["Census 2000 SummaryFile3 Sample Data - SF3TownQry10Disabil"]
["NAME"]
[{"$f":"VLOOKUP(DropDownList!$B$24,CntyQuery!$A$70:$CF$88,A$1)","v":"Albany"}]
[]
[]
[]
[]
[]
[]
[]
[]
["ACS",2,{"$f":"B105+1","v":3},{"$f":"C105+1","v":4},5,6,7,8,9,10,11,{"$f":"K105+1","v":12},13,14,15,{"$f":"O105+1","v":16},17,18,19,20,21,22,23,24,25,26,27,28,29,30,31,32,33,34,35,36,37,38,39,40,41,42,43,44,45,46,47,48,49,50,51,52,53,54,55,56,57,58,59,60,61,62,63,64,65,66,67,{"$f":"BO105+1","v":68},69,70,71,72,73,74,75,76,77,78,79,80,81,82,83,84,85,86,87,88,89,90,91,92,93,94,95,96,97,98,99,100,101,102,103,104,105,106,107,108,109,110,111,112,113,114,115,116,117,118,119,120,121,122,123,124,125]
["Househould Data (Housing Unit Type)"]
["NAME","TotalHU",{"$f":"\"MOE \"&B107","v":"MOE TotalHU"},"TotalOccHU",{"$f":"\"MOE \"&D107","v":"MOE TotalOccHU"},"TotalOwnerOccUn",{"$f":"\"MOE \"&F107","v":"MOE TotalOwnerOccUn"},"TotalRenterOccn",{"$f":"\"MOE \"&H107","v":"MOE TotalRenterOccn"},"TotalVacantUntis",{"$f":"\"MOE \"&J107","v":"MOE TotalVacantUntis"},"VacantUnitsForRent",{"$f":"\"MOE \"&L107","v":"MOE VacantUnitsForRent"},"VacantUnitRentedNotOcc",{"$f":"\"MOE \"&N107","v":"MOE VacantUnitRentedNotOcc"},"VacantUnitForSale",{"$f":"\"MOE \"&P107","v":"MOE VacantUnitForSale"},"VacantUnitSoldNotOcc",{"$f":"\"MOE \"&R107","v":"MOE VacantUnitSoldNotOcc"},"VacantUnitSeasonalRec",{"$f":"\"MOE \"&T107","v":"MOE VacantUnitSeasonalRec"},"TotalPopInHousingUnits",{"$f":"\"MOE \"&V107","v":"MOE TotalPopInHousingUnits"},"OwnerOccPopHousingUnits",{"$f":"\"MOE \"&X107","v":"MOE OwnerOccPopHousingUnits"},"RenterOccPopHousingUnits",{"$f":"\"MOE \"&Z107","v":"MOE RenterOccPopHousingUnits"},"TotalUntis",{"$f":"\"MOE \"&AB107","v":"MOE TotalUntis"},"TotalOwnerOccUnits",{"$f":"\"MOE \"&AD107","v":"MOE TotalOwnerOccUnits"},"SigFamOwnerOcc",{"$f":"\"MOE \"&AF107","v":"MOE SigFamOwnerOcc"},"MultiFamOwnerOcc",{"$f":"\"MOE \"&AH107","v":"MOE MultiFamOwnerOcc"},"MobileOwnerOcc",{"$f":"\"MOE \"&AJ107","v":"MOE MobileOwnerOcc"},"TotalRenterOccUnits",{"$f":"\"MOE \"&AL107","v":"MOE TotalRenterOccUnits"},"SigFamRenterOcc",{"$f":"\"MOE \"&AN107","v":"MOE SigFamRenterOcc"},"MultiFamRenterOcc",{"$f":"\"MOE \"&AP107","v":"MOE MultiFamRenterOcc"},"MobileRenterOcc",{"$f":"\"MOE \"&AR107","v":"MOE MobileRenterOcc"},"TotalSigFamilyUnits",{"$f":"\"MOE \"&AT107","v":"MOE TotalSigFamilyUnits"},"TotalMultiFamilyUnits",{"$f":"\"MOE \"&AV107","v":"MOE TotalMultiFamilyUnits"},"TotalMobileUnits",{"$f":"\"MOE \"&AX107","v":"MOE TotalMobileUnits"},"YrHouseBuilt2005Later",{"$f":"\"MOE \"&AZ107","v":"MOE YrHouseBuilt2005Later"},"YrHouseBuilt2000-2004",{"$f":"\"MOE \"&BB107","v":"MOE YrHouseBuilt2000-2004"},"YrHouseBuilt1990-1999",{"$f":"\"MOE \"&BD107","v":"MOE YrHouseBuilt1990-1999"},"YrHouseBuilt1980-1989",{"$f":"\"MOE \"&BF107","v":"MOE YrHouseBuilt1980-1989"},"YrHouseBuilt1970-1979",{"$f":"\"MOE \"&BH107","v":"MOE YrHouseBuilt1970-1979"},"YrHouseBuilt1960-1969",{"$f":"\"MOE \"&BJ107","v":"MOE YrHouseBuilt1960-1969"},"YrHouseBuilt1950-1959",{"$f":"\"MOE \"&BL107","v":"MOE YrHouseBuilt1950-1959"},"YrHouseBuilt1940-1949",{"$f":"\"MOE \"&BN107","v":"MOE YrHouseBuilt1940-1949"},"YrHouseBuilt1939orEarlier",{"$f":"\"MOE \"&BP107","v":"MOE YrHouseBuilt1939orEarlier"},"NoBedrooms",{"$f":"\"MOE \"&BR107","v":"MOE NoBedrooms"},"1Bedroom",{"$f":"\"MOE \"&BT107","v":"MOE 1Bedroom"},"2Bedroom",{"$f":"\"MOE \"&BV107","v":"MOE 2Bedroom"},"3Bedroom",{"$f":"\"MOE \"&BX107","v":"MOE 3Bedroom"},"4+Bedroom",{"$f":"\"MOE \"&BZ107","v":"MOE 4+Bedroom"}]
[{"$f":"VLOOKUP(DropDownList!$B$24,CntyQuery!$A$70:$CF$88,A$1)","v":"Albany"},557,74,308,53,263,55,45,20,249,51,3,4,0,11,6,9,0,11,213,48,800,176,696,172,104,54,308,53,263,55,197,45,10,26.362852652928137,56,34.785054261852174,45,20,28,15,8,28.740215726399828,9,13.601470508735444,459,67,24,30.182776545573141,74,34.785054261852174,0,11,98,41,63,30,61,29,119,47,48,28,33,23,32,19,103,37,11,11,67,29,160,46,274,57,45,27.313000567495326]
[]
["Disability Data"]
["NAME","TotalPop",{"$f":"\"MOE \"&B111","v":"MOE TotalPop"},"PopUnder 5 years:",{"$f":"\"MOE \"&D111","v":"MOE PopUnder 5 years:"},{"$f":"D$111&\"-WithDisability\"","v":"PopUnder 5 years:-WithDisability"},{"$f":"\"MOE \"&F111","v":"MOE PopUnder 5 years:-WithDisability"},{"$f":"D111&\"-NoDisability\"","v":"PopUnder 5 years:-NoDisability"},{"$f":"\"MOE \"&H111","v":"MOE PopUnder 5 years:-NoDisability"},"PopUnder 5 to 17years:",{"$f":"\"MOE \"&J111","v":"MOE PopUnder 5 to 17years:"},{"$f":"J$111&\"-WithDisability\"","v":"PopUnder 5 to 17years:-WithDisability"},{"$f":"\"MOE \"&L111","v":"MOE PopUnder 5 to 17years:-WithDisability"},{"$f":"J111&\"-NoDisability\"","v":"PopUnder 5 to 17years:-NoDisability"},{"$f":"\"MOE \"&N111","v":"MOE PopUnder 5 to 17years:-NoDisability"},"PopUnder 18 to 34 years:",{"$f":"\"MOE \"&P111","v":"MOE PopUnder 18 to 34 years:"},{"$f":"P$111&\"-WithDisability\"","v":"PopUnder 18 to 34 years:-WithDisability"},{"$f":"\"MOE \"&R111","v":"MOE PopUnder 18 to 34 years:-WithDisability"},{"$f":"P111&\"-NoDisability\"","v":"PopUnder 18 to 34 years:-NoDisability"},{"$f":"\"MOE \"&T111","v":"MOE PopUnder 18 to 34 years:-NoDisability"},"Pop 35 years to 64:",{"$f":"\"MOE \"&V111","v":"MOE Pop 35 years to 64:"},{"$f":"$V$111&\"-WithDisability\"","v":"Pop 35 years to 64:-WithDisability"},{"$f":"\"MOE \"&X111","v":"MOE Pop 35 years to 64:-WithDisability"},{"$f":"$V$111&\"-NoDisability\"","v":"Pop 35 years to 64:-NoDisability"},{"$f":"\"MOE \"&Z111","v":"MOE Pop 35 years to 64:-NoDisability"},"Pop 65 years to 74:",{"$f":"\"MOE \"&AB111","v":"MOE Pop 65 years to 74:"},{"$f":"$AB$111&\"-WithDisability\"","v":"Pop 65 years to 74:-WithDisability"},{"$f":"\"MOE \"&AD111","v":"MOE Pop 65 years to 74:-WithDisability"},{"$f":"$AB$111&\"-NoDisability\"","v":"Pop 65 years to 74:-NoDisability"},{"$f":"\"MOE \"&AF111","v":"MOE Pop 65 years to 74:-NoDisability"},"Pop 75 and older:",{"$f":"\"MOE \"&AH111","v":"MOE Pop 75 and older:"},{"$f":"$AH$111&\"-WithDisability\"","v":"Pop 75 and older:-WithDisability"},{"$f":"\"MOE \"&AJ111","v":"MOE Pop 75 and older:-WithDisability"},{"$f":"$AH$111&\"-NoDisability\"","v":"Pop 75 and older:-NoDisability"},{"$f":"\"MOE \"&AL111","v":"MOE Pop 75 and older:-NoDisability"},"TotalPopUnder5_HearingDisability",{"$f":"\"MOE \"&AN111","v":"MOE TotalPopUnder5_HearingDisability"},"TotalUnder5_HearingDisability",{"$f":"\"MOE \"&AP111","v":"MOE TotalUnder5_HearingDisability"},"TotalPop18To34_HearingDisability",{"$f":"\"MOE \"&AR111","v":"MOE TotalPop18To34_HearingDisability"},"TotalPop35To64_HearingDisability",{"$f":"\"MOE \"&AT111","v":"MOE TotalPop35To64_HearingDisability"},"TotalPop65To74_HearingDisability",{"$f":"\"MOE \"&AV111","v":"MOE TotalPop65To74_HearingDisability"},"TotalPop75andOlder_HearingDisability",{"$f":"\"MOE \"&AX111","v":"MOE TotalPop75andOlder_HearingDisability"},"TotalUnder5_VisionDisability",{"$f":"\"MOE \"&AZ111","v":"MOE TotalUnder5_VisionDisability"},"Total5To17_VisionDisability",{"$f":"\"MOE \"&BB111","v":"MOE Total5To17_VisionDisability"},"Total18To34_VisionDisability",{"$f":"\"MOE \"&BD111","v":"MOE Total18To34_VisionDisability"},"Total35To64_VisionDisability",{"$f":"\"MOE \"&BF111","v":"MOE Total35To64_VisionDisability"},"Total65To74_VisionDisability",{"$f":"\"MOE \"&BH111","v":"MOE Total65To74_VisionDisability"},"Total75andOlder_VisionDisability",{"$f":"\"MOE \"&BJ111","v":"MOE Total75andOlder_VisionDisability"},"Total5To17_CongnitiveDisability",{"$f":"\"MOE \"&BL111","v":"MOE Total5To17_CongnitiveDisability"},"Total18To34_CongnitiveDisability",{"$f":"\"MOE \"&BN111","v":"MOE Total18To34_CongnitiveDisability"},"Total35To64_CongnitiveDisability",{"$f":"\"MOE \"&BP111","v":"MOE Total35To64_CongnitiveDisability"},"Total65To74_CongnitiveDisability",{"$f":"\"MOE \"&BR111","v":"MOE Total65To74_CongnitiveDisability"},"Total75andOlder_CongnitiveDisability",{"$f":"\"MOE \"&BT111","v":"MOE Total75andOlder_CongnitiveDisability"},"Total5To17_AmbulatoryDisability",{"$f":"\"MOE \"&BV111","v":"MOE Total5To17_AmbulatoryDisability"},"Total18To34_AmbulatoryDisability",{"$f":"\"MOE \"&BX111","v":"MOE Total18To34_AmbulatoryDisability"},"Total35To64_AmbulatoryDisability",{"$f":"\"MOE \"&BZ111","v":"MOE Total35To64_AmbulatoryDisability"},"Total65To74_AmbulatoryDisability",{"$f":"\"MOE \"&CB111","v":"MOE Total65To74_AmbulatoryDisability"},"Total75andOlder_AmbulatoryDisability",{"$f":"\"MOE \"&CD111","v":"MOE Total75andOlder_AmbulatoryDisability"},"Total5To17_SelfCareDisability",{"$f":"\"MOE \"&CF111","v":"MOE Total5To17_SelfCareDisability"},"Total18To34_SelfCareDisability",{"$f":"\"MOE \"&CH111","v":"MOE Total18To34_SelfCareDisability"},"Total35To64_SelfCareDisability",{"$f":"\"MOE \"&CJ111","v":"MOE Total35To64_SelfCareDisability"},"Total65To74_SelfCareDisability",{"$f":"\"MOE \"&CL111","v":"MOE Total65To74_SelfCareDisability"},"Total75andOlder_SelfCareDisability",{"$f":"\"MOE \"&CN111","v":"MOE Total75andOlder_SelfCareDisability"},"Total18To34_IndependantLivingDisability",{"$f":"\"MOE \"&CP111","v":"MOE Total18To34_IndependantLivingDisability"},"Total35To64_IndependantLivingDisability",{"$f":"\"MOE \"&CR111","v":"MOE Total35To64_IndependantLivingDisability"},"Total65To74_IndependantLivingDisability",{"$f":"\"MOE \"&CT111","v":"MOE Total65To74_IndependantLivingDisability"},"Total75andOlder_IndependantLivingDisability",{"$f":"\"MOE \"&CV111","v":"MOE Total75andOlder_IndependantLivingDisability"},"TotalUnder18_OneDisability",{"$f":"\"MOE \"&CX111","v":"MOE TotalUnder18_OneDisability"},"TotalUnder18_TwoDisability",{"$f":"\"MOE \"&CZ111","v":"MOE TotalUnder18_TwoDisability"},"18to6YearWIthOneDisability",{"$f":"\"MOE \"&DB111","v":"MOE 18to6YearWIthOneDisability"},"18to64YearWIthTwoOrMoreDisability",{"$f":"\"MOE \"&DD111","v":"MOE 18to64YearWIthTwoOrMoreDisability"},"Over64YearsWIthOneDisability",{"$f":"\"MOE \"&DF111","v":"MOE Over64YearsWIthOneDisability"},"Over64YearsWIthTwoOrMoreDisability",{"$f":"\"MOE \"&DH111","v":"MOE Over64YearsWIthTwoOrMoreDisability"}]
[{"$f":"VLOOKUP(DropDownList!$B$24,CntyQuery!$A$70:$CF$88,A$1)","v":"Albany"},800,176,60,36.221540552549669,0,15.556349186104045,60,36.221540552549669,155,72.862884927787476,0,15.556349186104045,155,72.862884927787476,65,38.209946349085598,0,15.556349186104045,65,38.209946349085598,386,65.76473218982953,30,13.45362404707371,356,65.79513659838392,76,25.45584412271571,27,15.652475842498529,49,20.248456731316587,58,24.041630560342615,35,22.803508501982758,23,12.727922061357855,0,15.556349186104045,0,15.556349186104045,0,15.556349186104045,9,7.810249675906654,18,17.804493814764857,11,8.0622577482985491,0,15.556349186104045,0,15.556349186104045,0,15.556349186104045,5,12.083045973594572,0,15.556349186104045,0,15.556349186104045,0,15.556349186104045,0,15.556349186104045,10,7.6157731058639087,3,12.083045973594572,2,11.401754250991379,0,15.556349186104045,0,15.556349186104045,28,12.806248474865697,12,8.6023252670426267,26,21.2602916254693,0,15.556349186104045,0,15.556349186104045,4,4.2426406871192848,5,12.083045973594572,0,15.556349186104045,0,15.556349186104045,10,8.6023252670426267,8,7.810249675906654,11,12.369316876852981]
[]
["Househould Income By Age"]
["NAME","TotalHouseholds",{"$f":"\"MOE \"&B115","v":"MOE TotalHouseholds"},"HHInc<10K",{"$f":"\"MOE \"&D115","v":"MOE HHInc<10K"},"HHInc10to15K",{"$f":"\"MOE \"&F115","v":"MOE HHInc10to15K"},"HHInc15to20K",{"$f":"\"MOE \"&H115","v":"MOE HHInc15to20K"},"HHInc20to25K",{"$f":"\"MOE \"&J115","v":"MOE HHInc20to25K"},"HHInc25to30K",{"$f":"\"MOE \"&L115","v":"MOE HHInc25to30K"},"HHInc30to35K",{"$f":"\"MOE \"&N115","v":"MOE HHInc30to35K"},"HHInc35to40K",{"$f":"\"MOE \"&P115","v":"MOE HHInc35to40K"},"HHInc40to45K",{"$f":"\"MOE \"&R115","v":"MOE HHInc40to45K"},"HHInc45to50K",{"$f":"\"MOE \"&T115","v":"MOE HHInc45to50K"},"HHInc50to60K",{"$f":"\"MOE \"&V115","v":"MOE HHInc50to60K"},"HHInc60to75K",{"$f":"\"MOE \"&X115","v":"MOE HHInc60to75K"},"HHInc75to100K",{"$f":"\"MOE \"&Z115","v":"MOE HHInc75to100K"},"HHInc100to125K",{"$f":"\"MOE \"&AB115","v":"MOE HHInc100to125K"},"HHInc125to150K",{"$f":"\"MOE \"&AD115","v":"MOE HHInc125to150K"},"HHInc150to200K",{"$f":"\"MOE \"&AF115","v":"MOE HHInc150to200K"},"HHInc>200K",{"$f":"\"MOE \"&AH115","v":"MOE HHInc>200K"},"TotalHH",{"$f":"\"MOE \"&AJ115","v":"MOE TotalHH"},"HHAgeHHUnder25yrs",{"$f":"\"MOE \"&AL115","v":"MOE HHAgeHHUnder25yrs"},"HHAgeHH<25HHInc<10K",{"$f":"\"MOE \"&AN115","v":"MOE HHAgeHH<25HHInc<10K"},"HHAgeHH<25HHInc10to15K",{"$f":"\"MOE \"&AP115","v":"MOE HHAgeHH<25HHInc10to15K"},"HHAgeHH<25HHInc15to20K",{"$f":"\"MOE \"&AR115","v":"MOE HHAgeHH<25HHInc15to20K"},"HHAgeHH<25HHInc20to25K",{"$f":"\"MOE \"&AT115","v":"MOE HHAgeHH<25HHInc20to25K"},"HHAgeHH<25HHInc25to30K",{"$f":"\"MOE \"&AV115","v":"MOE HHAgeHH<25HHInc25to30K"},"HHAgeHH<25HHInc30to35K",{"$f":"\"MOE \"&AX115","v":"MOE HHAgeHH<25HHInc30to35K"},"HHAgeHH<25HHInc35to40K",{"$f":"\"MOE \"&AZ115","v":"MOE HHAgeHH<25HHInc35to40K"},"HHAgeHH<25HHInc40to45K",{"$f":"\"MOE \"&BB115","v":"MOE HHAgeHH<25HHInc40to45K"},"HHAgeHH<25HHInc45to50K",{"$f":"\"MOE \"&BD115","v":"MOE HHAgeHH<25HHInc45to50K"},"HHAgeHH<25HHInc50to60K",{"$f":"\"MOE \"&BF115","v":"MOE HHAgeHH<25HHInc50to60K"},"HHAgeHH<25HHInc60to75K",{"$f":"\"MOE \"&BH115","v":"MOE HHAgeHH<25HHInc60to75K"},"HHAgeHH<25HHInc75to100K",{"$f":"\"MOE \"&BJ115","v":"MOE HHAgeHH<25HHInc75to100K"},"HHAgeHH<25HHInc100to125K",{"$f":"\"MOE \"&BL115","v":"MOE HHAgeHH<25HHInc100to125K"},"HHAgeHH<25HHInc125to150K",{"$f":"\"MOE \"&BN115","v":"MOE HHAgeHH<25HHInc125to150K"},"HHAgeHH<25HHInc150to200K",{"$f":"\"MOE \"&BP115","v":"MOE HHAgeHH<25HHInc150to200K"},"HHAge<25HHInc>200K",{"$f":"\"MOE \"&BR115","v":"MOE HHAge<25HHInc>200K"},"HHAgeHH25to44yrs",{"$f":"\"MOE \"&BT115","v":"MOE HHAgeHH25to44yrs"},"HHAgeHH25To44yrsHHInc<10K",{"$f":"\"MOE \"&BV115","v":"MOE HHAgeHH25To44yrsHHInc<10K"},"HHAgeHH25To44yrsHHInc10to15K",{"$f":"\"MOE \"&BX115","v":"MOE HHAgeHH25To44yrsHHInc10to15K"},"HHAgeHH25To44yrsHHInc15to20K",{"$f":"\"MOE \"&BZ115","v":"MOE HHAgeHH25To44yrsHHInc15to20K"},"HHAgeHH25To44yrsHHInc20to25K",{"$f":"\"MOE \"&CB115","v":"MOE HHAgeHH25To44yrsHHInc20to25K"},"HHAgeHH25To44yrsHHInc25to30K",{"$f":"\"MOE \"&CD115","v":"MOE HHAgeHH25To44yrsHHInc25to30K"},"HHAgeHH25To44yrsHHInc30to35K",{"$f":"\"MOE \"&CF115","v":"MOE HHAgeHH25To44yrsHHInc30to35K"},"HHAgeHH25To44yrsHHInc35to40K",{"$f":"\"MOE \"&CH115","v":"MOE HHAgeHH25To44yrsHHInc35to40K"},"HHAgeHH25To44yrsHHInc40to45K",{"$f":"\"MOE \"&CJ115","v":"MOE HHAgeHH25To44yrsHHInc40to45K"},"HHAgeHH25To44yrsHHInc45to50K",{"$f":"\"MOE \"&CL115","v":"MOE HHAgeHH25To44yrsHHInc45to50K"},"HHAgeHH25To44yrsHHInc50to60K",{"$f":"\"MOE \"&CN115","v":"MOE HHAgeHH25To44yrsHHInc50to60K"},"HHAgeHH25To44yrsHHInc60to75K",{"$f":"\"MOE \"&CP115","v":"MOE HHAgeHH25To44yrsHHInc60to75K"},"HHAgeHH25To44yrsHHInc75to100K",{"$f":"\"MOE \"&CR115","v":"MOE HHAgeHH25To44yrsHHInc75to100K"},"HHAgeHH25To44yrsHHInc100to125K",{"$f":"\"MOE \"&CT115","v":"MOE HHAgeHH25To44yrsHHInc100to125K"},"HHAgeHH25To44yrsHHInc125to150K",{"$f":"\"MOE \"&CV115","v":"MOE HHAgeHH25To44yrsHHInc125to150K"},"HHAgeHH25To44yrsHHInc150to200K",{"$f":"\"MOE \"&CX115","v":"MOE HHAgeHH25To44yrsHHInc150to200K"},"HHAge25To44yrsHHInc>200K",{"$f":"\"MOE \"&CZ115","v":"MOE HHAge25To44yrsHHInc>200K"},"HHAgeHH45To64yrs",{"$f":"\"MOE \"&DB115","v":"MOE HHAgeHH45To64yrs"},"HHAgeHH45To64yrsHHInc<10K",{"$f":"\"MOE \"&DD115","v":"MOE HHAgeHH45To64yrsHHInc<10K"},"HHAgeHH45To64yrsHHInc10to15K",{"$f":"\"MOE \"&DF115","v":"MOE HHAgeHH45To64yrsHHInc10to15K"},"HHAgeHH45To64yrsHHInc15to20K",{"$f":"\"MOE \"&DH115","v":"MOE HHAgeHH45To64yrsHHInc15to20K"},"HHAgeHH45To64yrsHHInc20to25K",{"$f":"\"MOE \"&DJ115","v":"MOE HHAgeHH45To64yrsHHInc20to25K"},"HHAgeHH45To64yrsHHInc25to30K",{"$f":"\"MOE \"&DL115","v":"MOE HHAgeHH45To64yrsHHInc25to30K"},"HHAgeHH45To64yrsHHInc30to35K",{"$f":"\"MOE \"&DN115","v":"MOE HHAgeHH45To64yrsHHInc30to35K"},"HHAgeHH45To64yrsHHInc35to40K",{"$f":"\"MOE \"&DP115","v":"MOE HHAgeHH45To64yrsHHInc35to40K"},"HHAgeHH45To64yrsHHInc40to45K",{"$f":"\"MOE \"&DR115","v":"MOE HHAgeHH45To64yrsHHInc40to45K"},"HHAgeHH45To64yrsHHInc45to50K",{"$f":"\"MOE \"&DT115","v":"MOE HHAgeHH45To64yrsHHInc45to50K"},"HHAgeHH45To64yrsHHInc50to60K",{"$f":"\"MOE \"&DV115","v":"MOE HHAgeHH45To64yrsHHInc50to60K"},"HHAgeHH45To64yrsHHInc60to75K",{"$f":"\"MOE \"&DX115","v":"MOE HHAgeHH45To64yrsHHInc60to75K"},"HHAgeHH45To64yrsHHInc75to100K",{"$f":"\"MOE \"&DZ115","v":"MOE HHAgeHH45To64yrsHHInc75to100K"},"HHAgeHH45To64yrsHHInc100to125K",{"$f":"\"MOE \"&EB115","v":"MOE HHAgeHH45To64yrsHHInc100to125K"},"HHAgeHH45To64yrsHHInc125to150K",{"$f":"\"MOE \"&ED115","v":"MOE HHAgeHH45To64yrsHHInc125to150K"},"HHAgeHH45To64yrsHHInc150to200K",{"$f":"\"MOE \"&EF115","v":"MOE HHAgeHH45To64yrsHHInc150to200K"},"HHAge45To64yrsHHInc>200K",{"$f":"\"MOE \"&EH115","v":"MOE HHAge45To64yrsHHInc>200K"},"HHAgeHH65yrsorOlder",{"$f":"\"MOE \"&EJ115","v":"MOE HHAgeHH65yrsorOlder"},"HHAgeHH65yrsorOlderHHInc<10K",{"$f":"\"MOE \"&EL115","v":"MOE HHAgeHH65yrsorOlderHHInc<10K"},"HHAgeHH65yrsorOlderHHInc10to15K",{"$f":"\"MOE \"&EN115","v":"MOE HHAgeHH65yrsorOlderHHInc10to15K"},"HHAgeHH65yrsorOlderHHInc15to20K",{"$f":"\"MOE \"&EP115","v":"MOE HHAgeHH65yrsorOlderHHInc15to20K"},"HHAgeHH65yrsorOlderHHInc20to25K",{"$f":"\"MOE \"&ER115","v":"MOE HHAgeHH65yrsorOlderHHInc20to25K"},"HHAgeHH65yrsorOlderHHInc25to30K",{"$f":"\"MOE \"&ET115","v":"MOE HHAgeHH65yrsorOlderHHInc25to30K"},"HHAgeHH65yrsorOlderHHInc30to35K",{"$f":"\"MOE \"&EV115","v":"MOE HHAgeHH65yrsorOlderHHInc30to35K"},"HHAgeHH65yrsorOlderHHInc35to40K",{"$f":"\"MOE \"&EX115","v":"MOE HHAgeHH65yrsorOlderHHInc35to40K"},"HHAgeHH65yrsorOlderHHInc40to45K",{"$f":"\"MOE \"&EZ115","v":"MOE HHAgeHH65yrsorOlderHHInc40to45K"},"HHAgeHH65yrsorOlderHHInc45to50K",{"$f":"\"MOE \"&FB115","v":"MOE HHAgeHH65yrsorOlderHHInc45to50K"},"HHAgeHH65yrsorOlderHHInc50to60K",{"$f":"\"MOE \"&FD115","v":"MOE HHAgeHH65yrsorOlderHHInc50to60K"},"HHAgeHH65yrsorOlderHHInc60to75K",{"$f":"\"MOE \"&FF115","v":"MOE HHAgeHH65yrsorOlderHHInc60to75K"},"HHAgeHH65yrsorOlderHHInc75to100K",{"$f":"\"MOE \"&FH115","v":"MOE HHAgeHH65yrsorOlderHHInc75to100K"},"HHAgeHH65yrsorOlderHHInc100to125K",{"$f":"\"MOE \"&FJ115","v":"MOE HHAgeHH65yrsorOlderHHInc100to125K"},"HHAgeHH65yrsorOlderHHInc125to150K",{"$f":"\"MOE \"&FL115","v":"MOE HHAgeHH65yrsorOlderHHInc125to150K"},"HHAgeHH65yrsorOlderHHInc150to200K",{"$f":"\"MOE \"&FN115","v":"MOE HHAgeHH65yrsorOlderHHInc150to200K"},"HHAge65yrsorOlderHHInc>200K",{"$f":"\"MOE \"&FP115","v":"MOE HHAge65yrsorOlderHHInc>200K"},"MedianHHInc",{"$f":"\"MOE \"&FR115","v":"MOE MedianHHInc"},"HH under 25 years",{"$f":"\"MOE \"&FT115","v":"MOE HH under 25 years"},"Householder 25 to 44 years",{"$f":"\"MOE \"&FV115","v":"MOE Householder 25 to 44 years"},"Householder 45 to 64 years",{"$f":"\"MOE \"&FX115","v":"MOE Householder 45 to 64 years"},"Householder 65 years and over",{"$f":"\"MOE \"&FZ115","v":"MOE Householder 65 years and over"}]
[{"$f":"VLOOKUP(DropDownList!$B$24,CntyQuery!$A$70:$CF$88,A$1)","v":"Albany"},308,53,9,9,12,14,32,23,33,24,6,6,3,5,18,12,11,11,18,16,7,9,41,22,60,29,32,22,10,8,7,7,9,9,308,53,0,11,0,11,0,11,0,11,0,11,0,11,0,11,0,11,0,11,0,11,0,11,0,11,0,11,0,11,0,11,0,11,0,11,78,35,0,11,0,11,0,11,6,11,0,11,0,11,0,11,2,3,9,15,0,11,8,10,26,24,15,17,3,4,5,6,4,7,138,42,6,6,3,6,16,19,19,24,2,4,0,11,7,6,9,11,6,7,5,9,16,13,26,18,17,14,3,5,0,11,3,5,92,26,3,5,9,12,16,15,8,10,4,5,3,5,11,9,0,11,3,4,2,3,17,13,8,7,0,11,4,7,2,3,2,3,62083,20850,"-","**",82273,12861,56250,30919,36250,19943]
[]
["Number of Households by Income"]
["NAME","HHIncLessThn10k",{"$f":"\"MOE \"&B119","v":"MOE HHIncLessThn10k"},"HHInc10to15K",{"$f":"\"MOE \"&D119","v":"MOE HHInc10to15K"},"HHInc15to25K",{"$f":"\"MOE \"&F119","v":"MOE HHInc15to25K"},"HHInc25to35K",{"$f":"\"MOE \"&H119","v":"MOE HHInc25to35K"},"HHInc35to50K",{"$f":"\"MOE \"&J119","v":"MOE HHInc35to50K"},"HHInc50to75K",{"$f":"\"MOE \"&L119","v":"MOE HHInc50to75K"},"HHInc75to100K",{"$f":"\"MOE \"&N119","v":"MOE HHInc75to100K"},"HHInc100to150K",{"$f":"\"MOE \"&P119","v":"MOE HHInc100to150K"},"HHInc150to200K",{"$f":"\"MOE \"&R119","v":"MOE HHInc150to200K"},"HHIncOver200K",{"$f":"\"MOE \"&T119","v":"MOE HHIncOver200K"}]
[{"$f":"VLOOKUP(DropDownList!$B$24,CntyQuery!$A$70:$CF$88,A$1)","v":"Albany"},9,9,12,14,65,33.241540277189323,9,7.810249675906654,47,22.825424421026653,48,23.769728648009426,60,29,42,23.409399821439251,7,7,9,9]
[]
[]
["NAME","TotalPop",{"$f":"\"MOE \"&B123","v":"MOE TotalPop"},"Total Individuals living in Poverty",{"$f":"\"MOE \"&D123","v":"MOE Total Individuals living in Poverty"},"Under 5 yrs.",{"$f":"\"MOE \"&F123","v":"MOE Under 5 yrs."},"5 to 17 yrs.",{"$f":"\"MOE \"&H123","v":"MOE 5 to 17 yrs."},"18 to 64 yrs.",{"$f":"\"MOE \"&J123","v":"MOE 18 to 64 yrs."},"65 to 74 yrs.",{"$f":"\"MOE \"&L123","v":"MOE 65 to 74 yrs."},"75 yrs. & Over",{"$f":"\"MOE \"&N123","v":"MOE 75 yrs. & Over"},"Total Individuals  Not living Poverty",{"$f":"\"MOE \"&P123","v":"MOE Total Individuals  Not living Poverty"},"Under 5 yrs.",{"$f":"\"MOE \"&R123","v":"MOE Under 5 yrs."},"5 to 17 yrs.",{"$f":"\"MOE \"&T123","v":"MOE 5 to 17 yrs."},"18 to 64 yrs.",{"$f":"\"MOE \"&V123","v":"MOE 18 to 64 yrs."},"65 to 74 yrs.",{"$f":"\"MOE \"&X123","v":"MOE 65 to 74 yrs."},"75 yrs. & Over",{"$f":"\"MOE \"&Z123","v":"MOE 75 yrs. & Over"},"Total HH",{"$f":"\"MOE \"&AB123","v":"MOE Total HH"},"Total Households Below Poverty",{"$f":"\"MOE \"&AD123","v":"MOE Total Households Below Poverty"},"Family Households in Poverty",{"$f":"\"MOE \"&AF123","v":"MOE Family Households in Poverty"},"Married Couple Fam HH",{"$f":"\"MOE \"&AH123","v":"MOE Married Couple Fam HH"},"Other Family",{"$f":"\"MOE \"&AJ123","v":"MOE Other Family"},"Male Head of Family HH no wife",{"$f":"\"MOE \"&AL123","v":"MOE Male Head of Family HH no wife"},"Female Head of Family HH no husband",{"$f":"\"MOE \"&AN123","v":"MOE Female Head of Family HH no husband"},"Non-Family HH",{"$f":"\"MOE \"&AP123","v":"MOE Non-Family HH"},"Non-Family Male HH",{"$f":"\"MOE \"&AR123","v":"MOE Non-Family Male HH"},"Non-Family Female HH",{"$f":"\"MOE \"&AT123","v":"MOE Non-Family Female HH"},"Total Households at or Above Poverty",{"$f":"\"MOE \"&AV123","v":"MOE Total Households at or Above Poverty"},"Family Households above Poverty",{"$f":"\"MOE \"&AX123","v":"MOE Family Households above Poverty"},"Married Couple Fam HH",{"$f":"\"MOE \"&AZ123","v":"MOE Married Couple Fam HH"},"Other Family",{"$f":"\"MOE \"&BB123","v":"MOE Other Family"},"Male Head of Family HH no wife",{"$f":"\"MOE \"&BD123","v":"MOE Male Head of Family HH no wife"},"Female Head of Family HH no husband",{"$f":"\"MOE \"&BF123","v":"MOE Female Head of Family HH no husband"},"Non-Family HH",{"$f":"\"MOE \"&BH123","v":"MOE Non-Family HH"},"Non-Family Male HH",{"$f":"\"MOE \"&BJ123","v":"MOE Non-Family Male HH"},"Non-Family Female HH",{"$f":"\"MOE \"&BL123","v":"MOE Non-Family Female HH"},"Married Couple with Children Below Poverty",{"$f":"\"MOE \"&BN123","v":"MOE Married Couple with Children Below Poverty"},"Male HH with children below poverty",{"$f":"\"MOE \"&BP123","v":"MOE Male HH with children below poverty"},"Female HH with children below poverty",{"$f":"\"MOE \"&BR123","v":"MOE Female HH with children below poverty"},"Married Couple with Children At or Above Poverty",{"$f":"\"MOE \"&BT123","v":"MOE Married Couple with Children At or Above Poverty"},"Male HH with children at or above poverty",{"$f":"\"MOE \"&BV123","v":"MOE Male HH with children at or above poverty"},"Female HH with children at or above poverty",{"$f":"\"MOE \"&BX123","v":"MOE Female HH with children at or above poverty"}]
[{"$f":"VLOOKUP(DropDownList!$B$24,CntyQuery!$A$70:$CF$88,A$1)","v":"Albany"},797,175,131,102,19,21.587033144922902,24,34.205262752974143,83,49.406477308142499,3,12.083045973594572,2,11.704699910719626,666,171,41,33.837848631377263,128,59.715994507334464,368,72.221880341071156,73,25.45584412271571,56,24.041630560342615,38,27,26,25,16,17,16,17,10,17,0,11,10,17,12,10,0,11,12,10,270,53,201,53,184,49,17,18,0,11,17,18,69,27,69,27,33,19,13,15,0,11,10,17,71,34,0,11,15,18]
[]
["Household Income By Tenure"]
["NAME","TotalOccHU",{"$f":"\"MOE \"&B127","v":"MOE TotalOccHU"},"OwnOccHU",{"$f":"\"MOE \"&D127","v":"MOE OwnOccHU"},"OOHUInc<5K",{"$f":"\"MOE \"&F127","v":"MOE OOHUInc<5K"},"OOHUInc5to10K",{"$f":"\"MOE \"&H127","v":"MOE OOHUInc5to10K"},"OOHUInc10to15K",{"$f":"\"MOE \"&J127","v":"MOE OOHUInc10to15K"},"OOHUInc15to20K",{"$f":"\"MOE \"&L127","v":"MOE OOHUInc15to20K"},"OOHUInc20to25K",{"$f":"\"MOE \"&N127","v":"MOE OOHUInc20to25K"},"OOHUInc25to35K",{"$f":"\"MOE \"&P127","v":"MOE OOHUInc25to35K"},"OOHUInc35to50K",{"$f":"\"MOE \"&R127","v":"MOE OOHUInc35to50K"},"OOHUInc50to75K",{"$f":"\"MOE \"&T127","v":"MOE OOHUInc50to75K"},"OOHUInc75to100K",{"$f":"\"MOE \"&V127","v":"MOE OOHUInc75to100K"},"OOHUInc100to150K",{"$f":"\"MOE \"&X127","v":"MOE OOHUInc100to150K"},"OOHUInc>150K",{"$f":"\"MOE \"&Z127","v":"MOE OOHUInc>150K"},"RentOccHU",{"$f":"\"MOE \"&AB127","v":"MOE RentOccHU"},"ROHUInc<5K",{"$f":"\"MOE \"&AD127","v":"MOE ROHUInc<5K"},"ROHUInc5to10K",{"$f":"\"MOE \"&AF127","v":"MOE ROHUInc5to10K"},"ROHUInc10to15K",{"$f":"\"MOE \"&AH127","v":"MOE ROHUInc10to15K"},"ROHUInc15to20K",{"$f":"\"MOE \"&AJ127","v":"MOE ROHUInc15to20K"},"ROHUInc20to25K",{"$f":"\"MOE \"&AL127","v":"MOE ROHUInc20to25K"},"ROHUInc25to35K",{"$f":"\"MOE \"&AN127","v":"MOE ROHUInc25to35K"},"ROHUInc35to50K",{"$f":"\"MOE \"&AP127","v":"MOE ROHUInc35to50K"},"ROHUInc50to75K",{"$f":"\"MOE \"&AR127","v":"MOE ROHUInc50to75K"},"ROHUInc75to100K",{"$f":"\"MOE \"&AT127","v":"MOE ROHUInc75to100K"},"ROHUInc100to150K",{"$f":"\"MOE \"&AV127","v":"MOE ROHUInc100to150K"},"ROHUInc>150K",{"$f":"\"MOE \"&AX127","v":"MOE ROHUInc>150K"},"Total OCC HUInc<5K",{"$f":"\"MOE \"&AZ127","v":"MOE Total OCC HUInc<5K"},"Total OCC HUInc5to10K",{"$f":"\"MOE \"&BB127","v":"MOE Total OCC HUInc5to10K"},"Total OCC HUInc10to15K",{"$f":"\"MOE \"&BD127","v":"MOE Total OCC HUInc10to15K"},"Total OCC HUInc15to20K",{"$f":"\"MOE \"&BF127","v":"MOE Total OCC HUInc15to20K"},"Total OCC HUInc20to25K",{"$f":"\"MOE \"&BH127","v":"MOE Total OCC HUInc20to25K"},"Total OCC HUInc25to35K",{"$f":"\"MOE \"&BJ127","v":"MOE Total OCC HUInc25to35K"},"Total OCC HUInc35to50K",{"$f":"\"MOE \"&BL127","v":"MOE Total OCC HUInc35to50K"},"Total OCC HUInc50to75K",{"$f":"\"MOE \"&BN127","v":"MOE Total OCC HUInc50to75K"},"Total OCC HUInc75to100K",{"$f":"\"MOE \"&BP127","v":"MOE Total OCC HUInc75to100K"},"Total OCC HUInc100to150K",{"$f":"\"MOE \"&BR127","v":"MOE Total OCC HUInc100to150K"},"Total OCC HUInc>150K",{"$f":"\"MOE \"&BT127","v":"MOE Total OCC HUInc>150K"},"MedHHInc",{"$f":"\"MOE \"&BV127","v":"MOE MedHHInc"},"MedOwnOccHHInc",{"$f":"\"MOE \"&BX127","v":"MOE MedOwnOccHHInc"},"MedRentOccHHInc",{"$f":"\"MOE \"&BZ127","v":"MOE MedRentOccHHInc"}]
[{"$f":"VLOOKUP(DropDownList!$B$24,CntyQuery!$A$70:$CF$88,A$1)","v":"Albany"},308,53,263,55,2,4,4,7,12,14,30,24,25,27,9,7,41,22,40,19,50,27,39,23,11,10,45,20,0,11,3,4,0,11,2,4,8,10,0,11,6,5,8,10,10,9,3,5,5,6,2,11.704699910719626,7,8.0622577482985491,12,17.804493814764857,32,24.331050121192877,33,28.792360097775937,9,13.038404810405298,47,22.561028345356956,48,21.470910553583888,60,28.460498941515414,42,23.53720459187964,16,11.661903789690601,62083,20850,60625,22131,73125,35052]
[]
["Population Data"]
["NAME","Total Population","MOE Total Population","Under 15 Years","MOE Under 15 yrs.","15 to 24 yrs.","MOE 15 to 24 yrs.","25 to 34 yrs.","MOE 25 to 34 yrs.","35 to 44 yrs.","MOE 35 to 44 yrs.","45 to 54 yrs.","MOE 45 to 54 yrs.","55 to 64 yrs.","MOE 55 to 64 yrs.","65 to 74 yrs.","MOE 65 to 74 yrs.","Over 74 yrs. ","MOE Over 74 yrs. ","TotalHH","MOE TotalHH","FamilyHH","MOE FamilyHH","MarriedFamilyHH","MOE MarriedFamilyHH","SingleFamilyHH","MOE SingleFamilyHH","Sfamily-MaleHH","MOE Sfamily-MaleHH","Sfamily-FemaleHH","MOE Sfamily-FemaleHH","NonFamilyHH","MOE NonFamilyHH","NonFamilyHH-LivingAlone","MOE NonFamilyHH-LivingAlone","NonFamilyHH-NotLivingAlone","MOE NonFamilyHH-NotLivingAlone","PopRaceWhite","MOE PopRaceWhite","PopRaceBlack","MOE PopRaceBlack","PopRaceAmerican Indian","MOE PopRaceAmerican Indian","PopRaceAsian &Pacific Is.","MOE PopRaceAsian &Pacific Is.","PopRaceOther*","MOE PopRaceOther*","PopRaceHispanic or Latino:","MOE PopRaceHispanic or Latino:","AvgAgeTotalPop","MOE AvgAgeTotalPop","AvgAgeMale","MOE AvgAgeMale","AvgAgeFemale","MOE AvgAgeFemale","AvgHHSizeTotal","MOE AvgHHSizeTotal","AvgHHSizeFamilyHH","MOE AvgHHSizeFamilyHH","AvgHHSizeNonFamilyHH","MOE AvgHHSizeNonFamilyHH"]
[{"$f":"VLOOKUP(DropDownList!$B$24,CntyQuery!$A$70:$CF$88,A$1)","v":"Albany"},800,176,177,66.858058601787121,81,46.292547996410825,22,26.038433132583073,138,45.989129150267672,160,46.583258795408462,88,32.12475680841802,76,27.129319932501073,58,24.392621835300936,308,53,227,56,200,49,27,25,0,11,27,25,81,28,66,26,15,12,767,169,13,16,0,11,0,15.556349186104045,20,23.706539182259394,0,11,43.8,5.2,41.5,7.3,45.5,4.9000000000000004,2.5974025974025974,0,3.1101321585903086,0.90594214933277883,1.1604938271604939,0.70297912176978417]
[]
["Nativity and Prior Place of Residence"]
["NAME","TotalPop",{"$f":"\"MOE \"&B135","v":"MOE TotalPop"},"Native:",{"$f":"\"MOE \"&D135","v":"MOE Native:"},"NatBornInStateOfResidence",{"$f":"\"MOE \"&F135","v":"MOE NatBornInStateOfResidence"},"Born in other state in the United States:",{"$f":"\"MOE \"&H135","v":"MOE Born in other state in the United States:"},"Northeast",{"$f":"\"MOE \"&J135","v":"MOE Northeast"},"Midwest",{"$f":"\"MOE \"&L135","v":"MOE Midwest"},"South",{"$f":"\"MOE \"&N135","v":"MOE South"},"West",{"$f":"\"MOE \"&P135","v":"MOE West"},"Born outside the United States:",{"$f":"\"MOE \"&R135","v":"MOE Born outside the United States:"},"Puerto Rico",{"$f":"\"MOE \"&T135","v":"MOE Puerto Rico"},"U.S. Island Areas",{"$f":"\"MOE \"&V135","v":"MOE U.S. Island Areas"},"Born abroad of American parent(s)",{"$f":"\"MOE \"&X135","v":"MOE Born abroad of American parent(s)"},"Foreign born:",{"$f":"\"MOE \"&Z135","v":"MOE Foreign born:"},"Naturalized U.S. citizen",{"$f":"\"MOE \"&AB135","v":"MOE Naturalized U.S. citizen"},"Not a U.S. citizen",{"$f":"\"MOE \"&AD135","v":"MOE Not a U.S. citizen"},"CurrentResideneTotal:",{"$f":"\"MOE \"&AF135","v":"MOE CurrentResideneTotal:"},"SameHouse:",{"$f":"\"MOE \"&AH135","v":"MOE SameHouse:"},"DifferentHouse:",{"$f":"\"MOE \"&AJ135","v":"MOE DifferentHouse:"},"DiffHouseInNH",{"$f":"\"MOE \"&AL135","v":"MOE DiffHouseInNH"},"DiffHouseInNHSameCnty",{"$f":"\"MOE \"&AN135","v":"MOE DiffHouseInNHSameCnty"},"DiffHouseInNHDiffCnty",{"$f":"\"MOE \"&AP135","v":"MOE DiffHouseInNHDiffCnty"},"DiffHouseInDiffState",{"$f":"\"MOE \"&AR135","v":"MOE DiffHouseInDiffState"},"DiffHouseInElsewhere",{"$f":"\"MOE \"&AT135","v":"MOE DiffHouseInElsewhere"}]
[{"$f":"VLOOKUP(DropDownList!$B$24,CntyQuery!$A$70:$CF$88,A$1)","v":"Albany"},800,176,796,175,456,133,334,74,258,58,25,14,41,29,10,14,6,10,0,11,0,11,6,10,4,6,0,11,4,6,788,173,708,161,80,44.407206622349037,58,38.600518131237564,19,23,39,31,22,19,0,11,35,43]
[]
["School Enrollment - Education"]
["NAME","Total Pop 3 Years and Older","MOE Total Pop 3 Years and Older","P36SchEnrlPop3yrOver",{"$f":"\"MOE \"&D139","v":"MOE P36SchEnrlPop3yrOver"},"TotalEnrollNursy&Kinder",{"$f":"\"MOE \"&F139","v":"MOE TotalEnrollNursy&Kinder"},"P36NurserSchEnrl",{"$f":"\"MOE \"&H139","v":"MOE P36NurserSchEnrl"},"P36KinderSchEnrl",{"$f":"\"MOE \"&J139","v":"MOE P36KinderSchEnrl"},"P36ElemSchEnrl",{"$f":"\"MOE \"&L139","v":"MOE P36ElemSchEnrl"},"P36HighSchEnrl",{"$f":"\"MOE \"&N139","v":"MOE P36HighSchEnrl"},"TotalElementry&HSEnroll",{"$f":"\"MOE \"&P139","v":"MOE TotalElementry&HSEnroll"},"P36CollGradSchEnrl",{"$f":"\"MOE \"&R139","v":"MOE P36CollGradSchEnrl"},"PopNotEnrolled","MOE PopNotEnrolled","P37Pop25yrsOver",{"$f":"\"MOE \"&V139","v":"MOE P37Pop25yrsOver"},"P37EduAtain<9grd",{"$f":"\"MOE \"&X139","v":"MOE P37EduAtain<9grd"},"P37EduAtainHSnoDip",{"$f":"\"MOE \"&Z139","v":"MOE P37EduAtainHSnoDip"},"P37EduAtainHSgrad",{"$f":"\"MOE \"&AB139","v":"MOE P37EduAtainHSgrad"},"P37EduAtainCollNoDeg",{"$f":"\"MOE \"&AD139","v":"MOE P37EduAtainCollNoDeg"},"P37EduAtainAssocDeg",{"$f":"\"MOE \"&AF139","v":"MOE P37EduAtainAssocDeg"},"P37EduAtainBachDeg",{"$f":"\"MOE \"&AH139","v":"MOE P37EduAtainBachDeg"},"P37EduAtainGradProfDeg",{"$f":"\"MOE \"&AJ139","v":"MOE P37EduAtainGradProfDeg"}]
[{"$f":"VLOOKUP(DropDownList!$B$24,CntyQuery!$A$70:$CF$88,A$1)","v":"Albany"},778,168,200,89,42,34.655446902326915,27,25,15,24,102,46.690470119715009,38,30,140,55.497747702046432,18,14.142135623730951,578,107,542,95,2,24.919871588754223,44,34.014702703389901,218,52.630789467763066,127,44.721359549995796,24,12.806248474865697,71,25.80697580112788,56,25.845695966640172]
[]
["Occupied Owner Housing Value"]
["NAME","Estimate; Total:","Margin of Error; Total:","Estimate; Total: - Less than $10,000","Margin of Error; Total: - Less than $10,000","Estimate; Total: - $10,000 to $14,999","Margin of Error; Total: - $10,000 to $14,999","Estimate; Total: - $15,000 to $19,999","Margin of Error; Total: - $15,000 to $19,999","Estimate; Total: - $20,000 to $24,999","Margin of Error; Total: - $20,000 to $24,999","Estimate; Total: - $25,000 to $29,999","Margin of Error; Total: - $25,000 to $29,999","Estimate; Total: - $30,000 to $34,999","Margin of Error; Total: - $30,000 to $34,999","Estimate; Total: - $35,000 to $39,999","Margin of Error; Total: - $35,000 to $39,999","Estimate; Total: - $40,000 to $49,999","Margin of Error; Total: - $40,000 to $49,999","Estimate; Total: - $50,000 to $59,999","Margin of Error; Total: - $50,000 to $59,999","Estimate; Total: - $60,000 to $69,999","Margin of Error; Total: - $60,000 to $69,999","Estimate; Total: - $70,000 to $79,999","Margin of Error; Total: - $70,000 to $79,999","Estimate; Total: - $80,000 to $89,999","Margin of Error; Total: - $80,000 to $89,999","Estimate; Total: - $90,000 to $99,999","Margin of Error; Total: - $90,000 to $99,999","Estimate; Total: - $100,000 to $124,999","Margin of Error; Total: - $100,000 to $124,999","Estimate; Total: - $125,000 to $149,999","Margin of Error; Total: - $125,000 to $149,999","Estimate; Total: - $150,000 to $174,999","Margin of Error; Total: - $150,000 to $174,999","Estimate; Total: - $175,000 to $199,999","Margin of Error; Total: - $175,000 to $199,999","Estimate; Total: - $200,000 to $249,999","Margin of Error; Total: - $200,000 to $249,999","Estimate; Total: - $250,000 to $299,999","Margin of Error; Total: - $250,000 to $299,999","Estimate; Total: - $300,000 to $399,999","Margin of Error; Total: - $300,000 to $399,999","Estimate; Total: - $400,000 to $499,999","Margin of Error; Total: - $400,000 to $499,999","Estimate; Total: - $500,000 to $749,999","Margin of Error; Total: - $500,000 to $749,999","Estimate; Total: - $750,000 to $999,999","Margin of Error; Total: - $750,000 to $999,999","Estimate; Total: - $1,000,000 to $1,499,999","Margin of Error; Total: - $1,000,000 to $1,499,999","Estimate; Total: - $1,500,000 to $1,999,999","Margin of Error; Total: - $1,500,000 to $1,999,999","Estimate; Total: - $2,000,000 or more","Margin of Error; Total: - $2,000,000 or more","MedianOwnOCCHomeValue","MOE MedianOwnOCCHomeValue","OnwerOccHsU","MOE OnwerOccHsU","OwnerCosts>20PctHHInc","MOE OwnerCosts>20PctHHInc","OwnerCosts20to29.9PctHHInc","MOE OwnerCosts20to29.9PctHHInc","OwnerCosts<30PctHHInc","MOE OwnerCosts<30PctHHInc","OwnerCosts>30PctHHInc","MOE OwnerCosts>30PctHHInc","OwnerCosts30to34.9PctHHInc","MOE OwnerCosts30to34.9PctHHInc","OwnerCosts<35PctHHInc","MOE OwnerCosts<35PctHHInc","OwnerCosts>35PctHHInc","MOE OwnerCosts>35PctHHInc","OwnerCosts>50PctHHInc","MOE OwnerCosts>50PctHHInc","OwnerCostsPctNotcomputed","MOE OwnerCostsPctNotcomputed","OwnerOHUHhInc<20k","MOE OwnerOHUHhInc<20k","OwnerOHUHhInc<20kHCosts<20pct","MOE OwnerOHUHhInc<20kHCosts<20pct","OwnerOHUHhInc<20kHCosts20to29pct","MOE OwnerOHUHhInc<20kHCosts20to29pct","OwnerOHUHhInc>20kHCosts30pct","MOE OwnerOHUHhInc>20kHCosts30pct","OwnerOHUHhInc20kTo34999","MOE OwnerOHUHhInc20kTo34999","OwnerOHUHhInc20kTo34999HCosts<20pct","MOE OwnerOHUHhInc20kTo34999HCosts<20pct","OwnerOHUHhInc20kTo34999HCosts20to29pct","MOE OwnerOHUHhInc20kTo34999HCosts20to29pct","OwnerOHUHhInc20kTo34999HCosts30pct","MOE OwnerOHUHhInc20kTo34999HCosts30pct","OwnerOHUHhInc35kTo49999","MOE OwnerOHUHhInc35kTo49999","OwnerOHUHhInc35kTo49999HCosts<20pct","MOE OwnerOHUHhInc35kTo49999HCosts<20pct","OwnerOHUHhInc35kTo49999HCosts20to29pct","MOE OwnerOHUHhInc35kTo49999HCosts20to29pct","OwnerOHUHhInc35kTo49999HCosts30pct","MOE OwnerOHUHhInc35kTo49999HCosts30pct","OwnerOHUHhInc50kTo74999","MOE OwnerOHUHhInc50kTo74999","OwnerOHUHhInc50kTo74999HCosts<20pct","MOE OwnerOHUHhInc50kTo74999HCosts<20pct","OwnerOHUHhInc50kTo74999HCosts20to29pct","MOE OwnerOHUHhInc50kTo74999HCosts20to29pct","OwnerOHUHhInc50kTo74999HCosts30pct","MOE OwnerOHUHhInc50kTo74999HCosts30pct","OwnerOHUHhInc>75000","MOE OwnerOHUHhInc>75000","OwnerOHUHhInc>75000HCosts<20pct","MOE OwnerOHUHhInc>75000HCosts<20pct","OwnerOHUHhInc>75000HCosts20to29pct","MOE OwnerOHUHhInc>75000HCosts20to29pct","OwnerOHUHhInc>75000HCosts30pct","MOE OwnerOHUHhInc>75000HCosts30pct","ZeroOrNegativeIncome","MOE ZeroOrNegativeIncome"]
[{"$f":"VLOOKUP(DropDownList!$B$24,CntyQuery!$A$70:$CF$88,A$1)","v":"Albany"},263,55,11,15,5,5,10,10,0,11,0,11,2,3,0,11,15,19,4,4,0,11,2,3,4,5,11,12,11,14,33,24,33,22,12,11,52,28,31,28,12,8,9,10,2,4,2,3,2,3,null,null,null,null,167800,31751,263,55,121,36.76955262170047,68,37.148351242013419,189,52.268537381487917,72,36.851051545376556,13,15.556349186104045,202,54.534392817743921,59,33.406586176980134,25,16.763054614240211,2,11.704699910719626,46,28,0,11,0,11,46,28,34,29,5,6,21,25,8,12,41,22,22,15,13,15,6,6,40,19,20,11,10,9,10,11,100,36,74,30,24,19,2,4,2,4]
[]
["Occupied Rental Housing Value"]
["NAME","RntrOccHU","MOE RntrOccHU","RntrOccHUwRent","MOE RntrOccHUwRent","ROHUGRent<100","MOE ROHUGRent<100","ROHUGRent100to149","MOE ROHUGRent100to149","ROHUGRent150to199","MOE ROHUGRent150to199","ROHUGRent200to249","MOE ROHUGRent200to249","ROHUGRent250to299","MOE ROHUGRent250to299","ROHUGRent300to349","MOE ROHUGRent300to349","ROHUGRent350to399","MOE ROHUGRent350to399","ROHUGRent400to449","MOE ROHUGRent400to449","ROHUGRent450to499","MOE ROHUGRent450to499","ROHUGRent500to549","MOE ROHUGRent500to549","ROHUGRent550to599","MOE ROHUGRent550to599","ROHUGRent600to649","MOE ROHUGRent600to649","ROHUGRent650to699","MOE ROHUGRent650to699","ROHUGRent700to749","MOE ROHUGRent700to749","ROHUGRent750to799","MOE ROHUGRent750to799","ROHUGRent800to899","MOE ROHUGRent800to899","ROHUGRent900to999","MOE ROHUGRent900to999","ROHUGRent1000to1249","MOE ROHUGRent1000to1249","ROHUGRent1250to1499","MOE ROHUGRent1250to1499","ROHUGRent1500to1999","MOE ROHUGRent1500to1999","ROHUGRent2000>","MOE ROHUGRent2000>","ROHUNoGRent","MOE ROHUNoGRent","MedianGrossRnt","MOE MedianGrossRnt","H73RenterOccHU","MOE H73RenterOccHU","H73ROHUHhInc<10k","MOE H73ROHUHhInc<10k","H73ROHUHhInc<10kRnt<20pct","MOE H73ROHUHhInc<10kRnt<20pct","H73ROHUHhInc<10kRnt20to25pct","MOE H73ROHUHhInc<10kRnt20to25pct","H73ROHUHhInc<10kRnt25to30pct","MOE H73ROHUHhInc<10kRnt25to30pct","H73ROHUHhInc<10kRnt30to35pct","MOE H73ROHUHhInc<10kRnt30to35pct","H73ROHUHhInc<10kRnt35to39.9","MOE H73ROHUHhInc<10kRnt35to39.9","H73ROHUHhInc<10kRnt40to49.9","MOE H73ROHUHhInc<10kRnt40to49.9","H73ROHUHhInc<10kRnt>50pct","MOE H73ROHUHhInc<10kRnt>50pct","H73ROHUHhInc<10kPctNotComput","MOE H73ROHUHhInc<10kPctNotComput","H73ROHUHhInc10to20k","MOE H73ROHUHhInc10to20k","H73ROHUHhInc10to20kRnt<20pct","MOE H73ROHUHhInc10to20kRnt<20pct","H73ROHUHhInc10to20kRnt20to25pct","MOE H73ROHUHhInc10to20kRnt20to25pct","H73ROHUHhInc10to20kRnt25to30pct","MOE H73ROHUHhInc10to20kRnt25to30pct","H73ROHUHhInc10to20kRnt30to35pct","MOE H73ROHUHhInc10to20kRnt30to35pct","H73ROHUHhInc10to20kRnt35to39.9","MOE H73ROHUHhInc10to20kRnt35to39.9","H73ROHUHhInc10to20kRnt40to49.9","MOE H73ROHUHhInc10to20kRnt40to49.9","H73ROHUHhInc10to20kRnt>50pct","MOE H73ROHUHhInc10to20kRnt>50pct","H73ROHUHhInc10to20kRntPctNC","MOE H73ROHUHhInc10to20kRntPctNC","H73ROHUHhInc20to34.9k","MOE H73ROHUHhInc20to34.9k","H73ROHUHhInc20to34.9kRnt<20pct","MOE H73ROHUHhInc20to34.9kRnt<20pct","H73ROHUHhInc20to34.9kRnt20to25pct","MOE H73ROHUHhInc20to34.9kRnt20to25pct","H73ROHUHhInc20to34.9kRnt25to30pct","MOE H73ROHUHhInc20to34.9kRnt25to30pct","H73ROHUHhInc20to34.9kRnt30to35pct","MOE H73ROHUHhInc20to34.9kRnt30to35pct","H73ROHUHhInc20to34.9kRnt35to39.9","MOE H73ROHUHhInc20to34.9kRnt35to39.9","H73ROHUHhInc20to34.9kRnt40to49.9","MOE H73ROHUHhInc20to34.9kRnt40to49.9","H73ROHUHhInc20to34.9kRnt>50pct","MOE H73ROHUHhInc20to34.9kRnt>50pct","H73ROHUHhInc20to34.9kRntPctNC","MOE H73ROHUHhInc20to34.9kRntPctNC","H73ROHUHhInc35to49.9k","MOE H73ROHUHhInc35to49.9k","H73ROHUHhInc35to49.9kRnt<20pct","MOE H73ROHUHhInc35to49.9kRnt<20pct","H73ROHUHhInc35to49.9kRnt20to25pct","MOE H73ROHUHhInc35to49.9kRnt20to25pct","H73ROHUHhInc35to49.9kRnt25to30pct","MOE H73ROHUHhInc35to49.9kRnt25to30pct","H73ROHUHhInc35to49.9kRnt30to35pct","MOE H73ROHUHhInc35to49.9kRnt30to35pct","H73ROHUHhInc35to49.9kRnt35to39.9","MOE H73ROHUHhInc35to49.9kRnt35to39.9","H73ROHUHhInc35to49.9kRnt40to49.9","MOE H73ROHUHhInc35to49.9kRnt40to49.9","H73ROHUHhInc35to49.9kRnt>50pct","MOE H73ROHUHhInc35to49.9kRnt>50pct","H73ROHUHhInc35to49.9kRntPctNC","MOE H73ROHUHhInc35to49.9kRntPctNC","H73ROHUHhInc50to74.9k","MOE H73ROHUHhInc50to74.9k","H73ROHUHhInc50to74.9kRnt<20pct","MOE H73ROHUHhInc50to74.9kRnt<20pct","H73ROHUHhInc50to74.9kRnt20to25pct","MOE H73ROHUHhInc50to74.9kRnt20to25pct","H73ROHUHhInc50to74.9kRnt25to30pct","MOE H73ROHUHhInc50to74.9kRnt25to30pct","H73ROHUHhInc50to74.9kRnt30to35pct","MOE H73ROHUHhInc50to74.9kRnt30to35pct","H73ROHUHhInc50to74.9kRnt35to39.9","MOE H73ROHUHhInc50to74.9kRnt35to39.9","H73ROHUHhInc50to74.9kRnt40to49.9","MOE H73ROHUHhInc50to74.9kRnt40to49.9","H73ROHUHhInc50to74.9kRnt>50pct","MOE H73ROHUHhInc50to74.9kRnt>50pct","H73ROHUHhInc50to74.9kRntPctNC","MOE H73ROHUHhInc50to74.9kRntPctNC","H73ROHUHhInc75to99.9k","MOE H73ROHUHhInc75to99.9k","H73ROHUHhInc75to99.9kRnt<20pct","MOE H73ROHUHhInc75to99.9kRnt<20pct","H73ROHUHhInc75to99.9kRnt20to25pct","MOE H73ROHUHhInc75to99.9kRnt20to25pct","H73ROHUHhInc75to99.9kRnt25to30pct","MOE H73ROHUHhInc75to99.9kRnt25to30pct","H73ROHUHhInc75to99.9kRnt30to35pct","MOE H73ROHUHhInc75to99.9kRnt30to35pct","H73ROHUHhInc75to99.9kRnt35to39.9","MOE H73ROHUHhInc75to99.9kRnt35to39.9","H73ROHUHhInc75to99.9kRnt40to49.9","MOE H73ROHUHhInc75to99.9kRnt40to49.9","H73ROHUHhInc75to99.9kRnt>50pct","MOE H73ROHUHhInc75to99.9kRnt>50pct","H73ROHUHhInc75to99.9kRntPctNC","MOE H73ROHUHhInc75to99.9kRntPctNC","H73ROHUHhInc>100k","MOE H73ROHUHhInc>100k","H73ROHUHhInc>100kRnt<20pct","MOE H73ROHUHhInc>100kRnt<20pct","H73ROHUHhInc>100kRnt20to25pct","MOE H73ROHUHhInc>100kRnt20to25pct","H73ROHUHhInc>100kRnt25to30pct","MOE H73ROHUHhInc>100kRnt25to30pct","H73ROHUHhInc>100kRnt30to35pct","MOE H73ROHUHhInc>100kRnt30to35pct","H73ROHUHhInc>100kRnt35to39.9","MOE H73ROHUHhInc>100kRnt35to39.9","H73ROHUHhInc>100kRnt40to49.9","MOE H73ROHUHhInc>100kRnt40to49.9","H73ROHUHhInc>100kRnt>50pct","MOE H73ROHUHhInc>100kRnt>50pct","H73ROHUHhInc>100kRntPctNC","MOE H73ROHUHhInc>100kRntPctNC"]
[{"$f":"VLOOKUP(DropDownList!$B$24,CntyQuery!$A$70:$CF$88,A$1)","v":"Albany"},3001,266,2901,278,13,22,28,45,28,25,95,66,66,61,12,18,89,59,31,33,74,72,43,30,0,17,95,62,151,75,140,94,202,104,529,147,301,146,579,193,291,113,103,54,31,30,100,67,45,20,45,20,3,4,0,11,0,11,0,11,0,11,0,11,0,11,3,4,0,11,2,4,0,11,0,11,0,11,0,11,0,11,0,11,2,4,0,11,8,10,0,11,0,11,6,9,0,11,0,11,0,11,2,3,0,11,6,5,0,11,0,11,0,11,2,4,0,11,0,11,0,11,4,4,8,10,6,10,2,3,0,11,0,11,0,11,0,11,0,11,0,11,10,9,7,8,0,11,3,4,0,11,0,11,0,11,0,11,0,11,8,8,8,8,0,11,0,11,0,11,0,11,0,11,0,11,0,11]
[]
[]
[]
[]
[]
["Occupied Rental Housing Cost Burdern All Incomes"]
["NAME","RntrOccHU","MOE RntrOccHU","RntrOccHUwRent","MOE RntrOccHUwRent","ROHUGRent<100","MOE ROHUGRent<100","ROHUGRent100to149","MOE ROHUGRent100to149","ROHUGRent150to199","MOE ROHUGRent150to199","ROHUGRent200to249","MOE ROHUGRent200to249","ROHUGRent250to299","MOE ROHUGRent250to299","ROHUGRent300to349","MOE ROHUGRent300to349","ROHUGRent350to399","MOE ROHUGRent350to399","ROHUGRent400to449","MOE ROHUGRent400to449","ROHUGRent450to499","MOE ROHUGRent450to499","ROHUGRent500to549","MOE ROHUGRent500to549","ROHUGRent550to599","MOE ROHUGRent550to599","ROHUGRent600to649","MOE ROHUGRent600to649","ROHUGRent650to699","MOE ROHUGRent650to699","ROHUGRent700to749","MOE ROHUGRent700to749","ROHUGRent750to799","MOE ROHUGRent750to799","ROHUGRent800to899","MOE ROHUGRent800to899","ROHUGRent900to999","MOE ROHUGRent900to999","ROHUGRent1000to1249","MOE ROHUGRent1000to1249","ROHUGRent1250to1499","MOE ROHUGRent1250to1499","ROHUGRent1500to1999","MOE ROHUGRent1500to1999","ROHUGRent2000>","MOE ROHUGRent2000>","ROHUNoGRent","MOE ROHUNoGRent","MedianGrossRnt","MOE MedianGrossRnt","H73RenterOccHU","MOE H73RenterOccHU","H73ROHUHhInc<10k","MOE H73ROHUHhInc<10k","H73ROHUHhInc<10kRnt<20pct","MOE H73ROHUHhInc<10kRnt<20pct","H73ROHUHhInc<10kRnt20to25pct","MOE H73ROHUHhInc<10kRnt20to25pct","H73ROHUHhInc<10kRnt25to30pct","MOE H73ROHUHhInc<10kRnt25to30pct","H73ROHUHhInc<10kRnt30to35pct","MOE H73ROHUHhInc<10kRnt30to35pct","H73ROHUHhInc<10kRnt35to39.9","MOE H73ROHUHhInc<10kRnt35to39.9","H73ROHUHhInc<10kRnt40to49.9","MOE H73ROHUHhInc<10kRnt40to49.9","H73ROHUHhInc<10kRnt>50pct","MOE H73ROHUHhInc<10kRnt>50pct","H73ROHUHhInc<10kPctNotComput","MOE H73ROHUHhInc<10kPctNotComput","H73ROHUHhInc10to20k","MOE H73ROHUHhInc10to20k","H73ROHUHhInc10to20kRnt<20pct","MOE H73ROHUHhInc10to20kRnt<20pct","H73ROHUHhInc10to20kRnt20to25pct","MOE H73ROHUHhInc10to20kRnt20to25pct","H73ROHUHhInc10to20kRnt25to30pct","MOE H73ROHUHhInc10to20kRnt25to30pct","H73ROHUHhInc10to20kRnt30to35pct","MOE H73ROHUHhInc10to20kRnt30to35pct","H73ROHUHhInc10to20kRnt35to39.9","MOE H73ROHUHhInc10to20kRnt35to39.9","H73ROHUHhInc10to20kRnt40to49.9","MOE H73ROHUHhInc10to20kRnt40to49.9","H73ROHUHhInc10to20kRnt>50pct","MOE H73ROHUHhInc10to20kRnt>50pct","H73ROHUHhInc10to20kRntPctNC","MOE H73ROHUHhInc10to20kRntPctNC","H73ROHUHhInc20to34.9k","MOE H73ROHUHhInc20to34.9k","H73ROHUHhInc20to34.9kRnt<20pct","MOE H73ROHUHhInc20to34.9kRnt<20pct","H73ROHUHhInc20to34.9kRnt20to25pct","MOE H73ROHUHhInc20to34.9kRnt20to25pct","H73ROHUHhInc20to34.9kRnt25to30pct","MOE H73ROHUHhInc20to34.9kRnt25to30pct","H73ROHUHhInc20to34.9kRnt30to35pct","MOE H73ROHUHhInc20to34.9kRnt30to35pct","H73ROHUHhInc20to34.9kRnt35to39.9","MOE H73ROHUHhInc20to34.9kRnt35to39.9","H73ROHUHhInc20to34.9kRnt40to49.9","MOE H73ROHUHhInc20to34.9kRnt40to49.9","H73ROHUHhInc20to34.9kRnt>50pct","MOE H73ROHUHhInc20to34.9kRnt>50pct","H73ROHUHhInc20to34.9kRntPctNC","MOE H73ROHUHhInc20to34.9kRntPctNC","H73ROHUHhInc35to49.9k","MOE H73ROHUHhInc35to49.9k","H73ROHUHhInc35to49.9kRnt<20pct","MOE H73ROHUHhInc35to49.9kRnt<20pct","H73ROHUHhInc35to49.9kRnt20to25pct","MOE H73ROHUHhInc35to49.9kRnt20to25pct","H73ROHUHhInc35to49.9kRnt25to30pct","MOE H73ROHUHhInc35to49.9kRnt25to30pct","H73ROHUHhInc35to49.9kRnt30to35pct","MOE H73ROHUHhInc35to49.9kRnt30to35pct","H73ROHUHhInc35to49.9kRnt35to39.9","MOE H73ROHUHhInc35to49.9kRnt35to39.9","H73ROHUHhInc35to49.9kRnt40to49.9","MOE H73ROHUHhInc35to49.9kRnt40to49.9","H73ROHUHhInc35to49.9kRnt>50pct","MOE H73ROHUHhInc35to49.9kRnt>50pct","H73ROHUHhInc35to49.9kRntPctNC","MOE H73ROHUHhInc35to49.9kRntPctNC","H73ROHUHhInc50to74.9k","MOE H73ROHUHhInc50to74.9k","H73ROHUHhInc50to74.9kRnt<20pct","MOE H73ROHUHhInc50to74.9kRnt<20pct","H73ROHUHhInc50to74.9kRnt20to25pct","MOE H73ROHUHhInc50to74.9kRnt20to25pct","H73ROHUHhInc50to74.9kRnt25to30pct","MOE H73ROHUHhInc50to74.9kRnt25to30pct","H73ROHUHhInc50to74.9kRnt30to35pct","MOE H73ROHUHhInc50to74.9kRnt30to35pct","H73ROHUHhInc50to74.9kRnt35to39.9","MOE H73ROHUHhInc50to74.9kRnt35to39.9","H73ROHUHhInc50to74.9kRnt40to49.9","MOE H73ROHUHhInc50to74.9kRnt40to49.9","H73ROHUHhInc50to74.9kRnt>50pct","MOE H73ROHUHhInc50to74.9kRnt>50pct","H73ROHUHhInc50to74.9kRntPctNC","MOE H73ROHUHhInc50to74.9kRntPctNC","H73ROHUHhInc75to99.9k","MOE H73ROHUHhInc75to99.9k","H73ROHUHhInc75to99.9kRnt<20pct","MOE H73ROHUHhInc75to99.9kRnt<20pct","H73ROHUHhInc75to99.9kRnt20to25pct","MOE H73ROHUHhInc75to99.9kRnt20to25pct","H73ROHUHhInc75to99.9kRnt25to30pct","MOE H73ROHUHhInc75to99.9kRnt25to30pct","H73ROHUHhInc75to99.9kRnt30to35pct","MOE H73ROHUHhInc75to99.9kRnt30to35pct","H73ROHUHhInc75to99.9kRnt35to39.9","MOE H73ROHUHhInc75to99.9kRnt35to39.9","H73ROHUHhInc75to99.9kRnt40to49.9","MOE H73ROHUHhInc75to99.9kRnt40to49.9","H73ROHUHhInc75to99.9kRnt>50pct","MOE H73ROHUHhInc75to99.9kRnt>50pct","H73ROHUHhInc75to99.9kRntPctNC","MOE H73ROHUHhInc75to99.9kRntPctNC","H73ROHUHhInc>100k","MOE H73ROHUHhInc>100k","H73ROHUHhInc>100kRnt<20pct","MOE H73ROHUHhInc>100kRnt<20pct","H73ROHUHhInc>100kRnt20to25pct","MOE H73ROHUHhInc>100kRnt20to25pct","H73ROHUHhInc>100kRnt25to30pct","MOE H73ROHUHhInc>100kRnt25to30pct","H73ROHUHhInc>100kRnt30to35pct","MOE H73ROHUHhInc>100kRnt30to35pct","H73ROHUHhInc>100kRnt35to39.9","MOE H73ROHUHhInc>100kRnt35to39.9","H73ROHUHhInc>100kRnt40to49.9","MOE H73ROHUHhInc>100kRnt40to49.9","H73ROHUHhInc>100kRnt>50pct","MOE H73ROHUHhInc>100kRnt>50pct","H73ROHUHhInc>100kRntPctNC","MOE H73ROHUHhInc>100kRntPctNC"]
[{"$f":"VLOOKUP(DropDownList!$B$24,CntyQuery!$A$70:$CF$88,A$1)","v":"Albany"},45,20,21,18.493242008906929,2,3,9,11,32,21.725560982400431,9,17.146428199482248,2,4,34,22.090722034374522,7,16.673332000533065,7,6,4,4]
[]
["Income By Household Type and Tenure"]
["NAME","TotalFamilyHouseholds",{"$f":"\"MOE \"&B159","v":"MOE TotalFamilyHouseholds"},"FamInc<10K",{"$f":"\"MOE \"&D159","v":"MOE FamInc<10K"},"FamInc10to15K",{"$f":"\"MOE \"&F159","v":"MOE FamInc10to15K"},"FamInc15to20K",{"$f":"\"MOE \"&H159","v":"MOE FamInc15to20K"},"FamInc20to25K",{"$f":"\"MOE \"&J159","v":"MOE FamInc20to25K"},"FamInc25to30K",{"$f":"\"MOE \"&L159","v":"MOE FamInc25to30K"},"FamInc30to35K",{"$f":"\"MOE \"&N159","v":"MOE FamInc30to35K"},"FamInc35to40K",{"$f":"\"MOE \"&P159","v":"MOE FamInc35to40K"},"FamInc40to45K",{"$f":"\"MOE \"&R159","v":"MOE FamInc40to45K"},"FamInc45to50K",{"$f":"\"MOE \"&T159","v":"MOE FamInc45to50K"},"FamInc50to60K",{"$f":"\"MOE \"&V159","v":"MOE FamInc50to60K"},"FamInc60to75K",{"$f":"\"MOE \"&X159","v":"MOE FamInc60to75K"},"FamInc75to100K",{"$f":"\"MOE \"&Z159","v":"MOE FamInc75to100K"},"FamInc100to125K",{"$f":"\"MOE \"&AB159","v":"MOE FamInc100to125K"},"FamInc125to150K",{"$f":"\"MOE \"&AD159","v":"MOE FamInc125to150K"},"FamInc150to200K",{"$f":"\"MOE \"&AF159","v":"MOE FamInc150to200K"},"FamInc>200K",{"$f":"\"MOE \"&AH159","v":"MOE FamInc>200K"},"MedFamInc",{"$f":"\"MOE \"&AJ159","v":"MOE MedFamInc"},"TotalNonNonFamilyHouseholds",{"$f":"\"MOE \"&AL159","v":"MOE TotalNonNonFamilyHouseholds"},"NonFamInc<10K",{"$f":"\"MOE \"&AN159","v":"MOE NonFamInc<10K"},"NonFamInc10to15K",{"$f":"\"MOE \"&AP159","v":"MOE NonFamInc10to15K"},"NonFamInc15to20K",{"$f":"\"MOE \"&AR159","v":"MOE NonFamInc15to20K"},"NonFamInc20to25K",{"$f":"\"MOE \"&AT159","v":"MOE NonFamInc20to25K"},"NonFamInc25to30K",{"$f":"\"MOE \"&AV159","v":"MOE NonFamInc25to30K"},"NonFamInc30to35K",{"$f":"\"MOE \"&AX159","v":"MOE NonFamInc30to35K"},"NonFamInc35to40K",{"$f":"\"MOE \"&AZ159","v":"MOE NonFamInc35to40K"},"NonFamInc40to45K",{"$f":"\"MOE \"&BB159","v":"MOE NonFamInc40to45K"},"NonFamInc45to50K",{"$f":"\"MOE \"&BD159","v":"MOE NonFamInc45to50K"},"NonFamInc50to60K",{"$f":"\"MOE \"&BF159","v":"MOE NonFamInc50to60K"},"NonFamInc60to75K",{"$f":"\"MOE \"&BH159","v":"MOE NonFamInc60to75K"},"NonFamInc75to100K",{"$f":"\"MOE \"&BJ159","v":"MOE NonFamInc75to100K"},"NonFamInc100to125K",{"$f":"\"MOE \"&BL159","v":"MOE NonFamInc100to125K"},"NonFamInc125to150K",{"$f":"\"MOE \"&BN159","v":"MOE NonFamInc125to150K"},"NonFamInc150to200K",{"$f":"\"MOE \"&BP159","v":"MOE NonFamInc150to200K"},"NonFamInc>200K",{"$f":"\"MOE \"&BR159","v":"MOE NonFamInc>200K"},"MedNonFamInc",{"$f":"\"MOE \"&BT159","v":"MOE MedNonFamInc"}]
[{"$f":"VLOOKUP(DropDownList!$B$24,CntyQuery!$A$70:$CF$88,A$1)","v":"Albany"},227,56,1,4,3,6,18,20,34,31,4,5,3,5,11,8,5,6,3,4,2,5,35,21,51,30,32,22,10,8,7,7,8,8,72708,12168,81,28,8,8,9,12,14,15,8,10,2,4,0,11,7,7,6,9,6,7,5,7,6,5,9,10,0,11,0,11,0,11,1,4,null,null,26875,23545]

{"sheet":"StatisticallySignificantCalcs","index":72,"n_rows":271,"n_cols":16,"rows_kept":271,"cut":false,"hidden":true,"merged":[]}
[]
["Statistically Significant Change  10 Year","Standard Error Estimate  1","Standard Error Estimate  2","Square Root of Sum of Squared SE","Difference between the estimates","Value","Test Statistic (90%) Confidence Interval",null,null,"Statistically Significant Change  5Year","Standard Error Estimate  1","Standard Error Estimate  2","Square Root of Sum of Squared SE","Difference between the estimates","Value","Test Statistic (90%) Confidence Interval"]
[{"$f":"IF(F3>G3,\"Y\",\"N\")","v":"Y"},{"$f":"PopulationCharacteristics!Q22/1.645","v":40.643196718411623},{"$f":"PopulationCharacteristics!T22/1.645","v":28.239683037901361},{"$f":"SQRT((B3^2)+(C3^2))","v":49.49089954297294},{"$f":"(PopulationCharacteristics!M22-PopulationCharacteristics!S22)","v":-91},{"$f":"ABS((E3/D3))","v":1.8387218830198209},1.645,"Population By Age Under 15 yrs.",null,{"$f":"IF(O3>P3,\"Y\",\"N\")","v":"N"},{"$f":"PopulationCharacteristics!P22/1.645","v":107.59878419452887},{"$f":"PopulationCharacteristics!T22/1.645","v":28.239683037901361},{"$f":"SQRT((K3^2)+(L3^2))","v":111.24287868543284},{"$f":"(PopulationCharacteristics!P22-PopulationCharacteristics!S22)","v":86},{"$f":"ABS((N3/M3))","v":0.77308319432461459},1.645]
["Y",{"$f":"PopulationCharacteristics!Q23/1.645","v":28.141366563167676},{"$f":"PopulationCharacteristics!T23/1.645","v":24.384402577667576},37.236213571096791,{"$f":"(PopulationCharacteristics!M23-PopulationCharacteristics!S23)","v":-85},2.2827240432947256,1.645,"Population By Age 15 to 24 yrs.",null,{"$f":"IF(O4>P4,\"Y\",\"N\")","v":"N"},{"$f":"PopulationCharacteristics!P23/1.645","v":49.240121580547111},{"$f":"PopulationCharacteristics!T23/1.645","v":24.384402577667576},54.947144260068903,{"$f":"(PopulationCharacteristics!P23-PopulationCharacteristics!S23)","v":-4},7.2797231846439617E-2,1.645]
["Y",{"$f":"PopulationCharacteristics!Q24/1.645","v":15.82883473105354},{"$f":"PopulationCharacteristics!T24/1.645","v":19.791879144194173},25.343056031216815,{"$f":"(PopulationCharacteristics!M24-PopulationCharacteristics!S24)","v":-50},1.9729270194727702,1.645,"Population By Age 25 to 34 yrs.",null,"N",{"$f":"PopulationCharacteristics!P24/1.645","v":13.373860182370821},{"$f":"PopulationCharacteristics!T24/1.645","v":19.791879144194173},23.886787482539212,{"$f":"(PopulationCharacteristics!P24-PopulationCharacteristics!S24)","v":-28},1.1721961364820392,1.645]
["Y",{"$f":"PopulationCharacteristics!Q25/1.645","v":27.956917416576093},{"$f":"PopulationCharacteristics!T25/1.645","v":22.002384280673382},35.576595473311933,{"$f":"(PopulationCharacteristics!M25-PopulationCharacteristics!S25)","v":-86},2.4173195567438035,1.645,"Population By Age 35 to 44 yrs.",null,"N",{"$f":"PopulationCharacteristics!P25/1.645","v":83.890577507598778},{"$f":"PopulationCharacteristics!T25/1.645","v":22.002384280673382},86.727930383428728,{"$f":"(PopulationCharacteristics!P25-PopulationCharacteristics!S25)","v":52},0.59957616617974474,1.645]
["Y",{"$f":"PopulationCharacteristics!Q26/1.645","v":28.318090453135841},{"$f":"PopulationCharacteristics!T26/1.645","v":18.458633982600578},33.802890636979555,{"$f":"(PopulationCharacteristics!M26-PopulationCharacteristics!S26)","v":-88},2.6033276545802297,1.645,"Population By Age 45 to 54 yrs.",null,"N",{"$f":"PopulationCharacteristics!P26/1.645","v":97.264437689969597},{"$f":"PopulationCharacteristics!T26/1.645","v":18.458633982600578},99.000464684008406,{"$f":"(PopulationCharacteristics!P26-PopulationCharacteristics!S26)","v":72},0.72726931363212277,1.645]
["Y",{"$f":"PopulationCharacteristics!Q27/1.645","v":19.528727543111259},{"$f":"PopulationCharacteristics!T27/1.645","v":21.968767172757023},29.393841711213575,{"$f":"(PopulationCharacteristics!M27-PopulationCharacteristics!S27)","v":-153},5.2051719371419019,1.645,"Population By Age 55 to 64 yrs.",null,"N",{"$f":"PopulationCharacteristics!P27/1.645","v":53.495440729483285},{"$f":"PopulationCharacteristics!T27/1.645","v":21.968767172757023},57.830691764256684,{"$f":"(PopulationCharacteristics!P27-PopulationCharacteristics!S27)","v":-65},1.123970646330301,1.645]
["Y",{"$f":"PopulationCharacteristics!Q28/1.645","v":16.491987800912504},{"$f":"PopulationCharacteristics!T28/1.645","v":17.858274555098337},24.308509450616661,{"$f":"(PopulationCharacteristics!M28-PopulationCharacteristics!S28)","v":-87},3.578993610313403,1.645,"Population By Age 65 to 74 yrs.",null,"N",{"$f":"PopulationCharacteristics!P28/1.645","v":46.200607902735563},{"$f":"PopulationCharacteristics!T28/1.645","v":17.858274555098337},49.531950705252711,{"$f":"(PopulationCharacteristics!P28-PopulationCharacteristics!S28)","v":-11},0.22207887723738454,1.645]
["Y",{"$f":"PopulationCharacteristics!Q29/1.645","v":14.828341541216375},{"$f":"PopulationCharacteristics!T29/1.645","v":15.209721584433805},21.241830042135135,{"$f":"(PopulationCharacteristics!M29-PopulationCharacteristics!S29)","v":-63},2.9658461570888042,1.645,"Population By Age Over 74 yrs. ",null,"N",{"$f":"PopulationCharacteristics!P29/1.645","v":35.258358662613979},{"$f":"PopulationCharacteristics!T29/1.645","v":15.209721584433805},38.399055799036489,{"$f":"(PopulationCharacteristics!P29-PopulationCharacteristics!S29)","v":-5},0.13021153504835553,1.645]
["N",{"$f":"PopulationCharacteristics!Q$30/1.645","v":3.1610942249240122},{"$f":"PopulationCharacteristics!T$30/1.645","v":4.4376899696048628},5.4484501434058794,{"$f":"(PopulationCharacteristics!P30-PopulationCharacteristics!S30)","v":-6.6000000000000014},1.2113536558626334,1.645,"Population By Age Median Age        ",null,"N",{"$f":"PopulationCharacteristics!P30/1.645","v":26.626139817629177},{"$f":"PopulationCharacteristics!T30/1.645","v":4.4376899696048628},{"$f":"SQRT((K11^2)+(L11^2))","v":26.993414268192705},{"$f":"(PopulationCharacteristics!P30-PopulationCharacteristics!S30)","v":-6.6000000000000014},0.2445040829005842,1.645]
[{"$error":"#REF!"},{"$f":"PopulationCharacteristics!E51/1.645","v":{"$error":"#REF!"}},{"$f":"PopulationCharacteristics!K51/1.645","v":35.258358662613979},{"$error":"#REF!"},{"$f":"PopulationCharacteristics!D51-PopulationCharacteristics!J51","v":{"$error":"#REF!"}},{"$error":"#REF!"},1.645,"Total Households",null,"N",{"$f":"PopulationCharacteristics!H51/1.645","v":32.218844984802431},{"$f":"PopulationCharacteristics!K51/1.645","v":35.258358662613979},47.761970517727335,{"$f":"PopulationCharacteristics!G51-PopulationCharacteristics!J51","v":1},2.0937159609627914E-2,1.645]
[{"$error":"#REF!"},{"$f":"PopulationCharacteristics!E52/1.645","v":{"$error":"#REF!"}},{"$f":"PopulationCharacteristics!K52/1.645","v":0.17629179331306991},{"$error":"#REF!"},{"$f":"PopulationCharacteristics!D52-PopulationCharacteristics!J52","v":{"$error":"#REF!"}},{"$error":"#REF!"},1.645,"Persons per Household",null,"Y",{"$f":"PopulationCharacteristics!H52/1.645","v":0},{"$f":"PopulationCharacteristics!K52/1.645","v":0.17629179331306991},0.17629179331306991,{"$f":"PopulationCharacteristics!G52-PopulationCharacteristics!J52","v":0.30750031727230409},1.7442690410791042,1.645]
[{"$error":"#REF!"},{"$f":"PopulationCharacteristics!E53/1.645","v":{"$error":"#REF!"}},{"$f":"PopulationCharacteristics!K53/1.645","v":35.258358662613979},{"$error":"#REF!"},{"$f":"PopulationCharacteristics!D53-PopulationCharacteristics!J53","v":{"$error":"#REF!"}},{"$error":"#REF!"},1.645,"Family Households",null,"N",{"$f":"PopulationCharacteristics!H53/1.645","v":32.218844984802431},{"$f":"PopulationCharacteristics!K53/1.645","v":35.258358662613979},47.761970517727335,{"$f":"PopulationCharacteristics!G53-PopulationCharacteristics!J53","v":15},0.31405739414441874,1.645]
[{"$error":"#REF!"},{"$f":"PopulationCharacteristics!E54/1.645","v":{"$error":"#REF!"}},{"$f":"PopulationCharacteristics!K54/1.645","v":0.55072471084059504},{"$error":"#REF!"},{"$f":"PopulationCharacteristics!D54-PopulationCharacteristics!J54","v":{"$error":"#REF!"}},{"$error":"#REF!"},1.645,"Persons per Family Household",null,"N",{"$f":"PopulationCharacteristics!H54/1.645","v":0.55072471084059504},{"$f":"PopulationCharacteristics!K54/1.645","v":0.55072471084059504},0.77884235520477052,{"$f":"PopulationCharacteristics!G54-PopulationCharacteristics!J54","v":0.39786800764691233},0.51084536554551696,1.645]
[{"$error":"#REF!"},{"$f":"PopulationCharacteristics!E55/1.645","v":{"$error":"#REF!"}},{"$f":"PopulationCharacteristics!K55/1.645","v":25.531914893617021},{"$error":"#REF!"},{"$f":"PopulationCharacteristics!D55-PopulationCharacteristics!J55","v":{"$error":"#REF!"}},{"$error":"#REF!"},1.645,"Married-Couple Family Hh",null,"N",{"$f":"PopulationCharacteristics!H55/1.645","v":29.787234042553191},{"$f":"PopulationCharacteristics!K55/1.645","v":25.531914893617021},39.232104073586754,{"$f":"PopulationCharacteristics!G55-PopulationCharacteristics!J55","v":38},0.96859449416029986,1.645]
[{"$error":"#REF!"},{"$f":"PopulationCharacteristics!E56/1.645","v":{"$error":"#REF!"}},{"$f":"PopulationCharacteristics!K56/1.645","v":15.805471124620061},{"$error":"#REF!"},{"$f":"PopulationCharacteristics!D56-PopulationCharacteristics!J56","v":{"$error":"#REF!"}},{"$error":"#REF!"},1.645,"Single-Parent Family Hh",null,"N",{"$f":"PopulationCharacteristics!H56/1.645","v":15.19756838905775},{"$f":"PopulationCharacteristics!K56/1.645","v":15.805471124620061},21.926673309266182,{"$f":"PopulationCharacteristics!G56-PopulationCharacteristics!J56","v":-23},1.0489507311754507,1.645]
[{"$error":"#REF!"},{"$f":"PopulationCharacteristics!E57/1.645","v":{"$error":"#REF!"}},{"$f":"PopulationCharacteristics!K57/1.645","v":19.45288753799392},{"$error":"#REF!"},{"$f":"PopulationCharacteristics!D57-PopulationCharacteristics!J57","v":{"$error":"#REF!"}},{"$error":"#REF!"},1.645,"Non-Family Households*",null,"N",{"$f":"PopulationCharacteristics!H57/1.645","v":17.021276595744681},{"$f":"PopulationCharacteristics!K57/1.645","v":19.45288753799392},25.848378875950512,{"$f":"PopulationCharacteristics!G57-PopulationCharacteristics!J57","v":-14},0.54162003997185615,1.645]
[{"$error":"#REF!"},{"$f":"PopulationCharacteristics!E58/1.645","v":{"$error":"#REF!"}},{"$f":"PopulationCharacteristics!K58/1.645","v":0.42734293116704203},{"$error":"#REF!"},{"$f":"PopulationCharacteristics!D58-PopulationCharacteristics!J58","v":{"$error":"#REF!"}},{"$error":"#REF!"},1.645,"Persons per Non-Family Hh",null,"N",{"$f":"PopulationCharacteristics!H58/1.645","v":0.42734293116704203},{"$f":"PopulationCharacteristics!K58/1.645","v":0.42734293116704203},0.60435416904070283,{"$f":"PopulationCharacteristics!G58-PopulationCharacteristics!J58","v":-0.18687459389213767},0.30921370855894897,1.645]
[{"$error":"#REF!"},{"$f":"PopulationCharacteristics!D36/1.645","v":{"$error":"#REF!"}},{"$f":"PopulationCharacteristics!J36/1.645","v":79.027355623100306},{"$error":"#REF!"},{"$f":"PopulationCharacteristics!C36-PopulationCharacteristics!I36","v":{"$error":"#REF!"}},{"$error":"#REF!"},1.645,"Ethnicity -White",null,"N",{"$f":"PopulationCharacteristics!G36/1.645","v":102.73556231003039},{"$f":"PopulationCharacteristics!J36/1.645","v":79.027355623100306},129.61450034598019,{"$f":"PopulationCharacteristics!F36-PopulationCharacteristics!I36","v":97},{"$f":"ABS((N20/M20))","v":0.7483730581152398},1.645]
[{"$error":"#REF!"},{"$f":"PopulationCharacteristics!D37/1.645","v":{"$error":"#REF!"}},{"$f":"PopulationCharacteristics!J37/1.645","v":6.6869300911854106},{"$error":"#REF!"},{"$f":"PopulationCharacteristics!C37-PopulationCharacteristics!I37","v":{"$error":"#REF!"}},{"$error":"#REF!"},1.645,"Ethnicity -Black",null,"N",{"$f":"PopulationCharacteristics!G37/1.645","v":9.7264437689969601},{"$f":"PopulationCharacteristics!J37/1.645","v":6.6869300911854106},11.803336072308571,{"$f":"PopulationCharacteristics!F37-PopulationCharacteristics!I37","v":13},{"$f":"ABS((N21/M21))","v":1.1013835343127172},1.645]
[{"$error":"#REF!"},{"$f":"PopulationCharacteristics!D38/1.645","v":{"$error":"#REF!"}},{"$f":"PopulationCharacteristics!J38/1.645","v":2.43161094224924},{"$error":"#REF!"},{"$f":"PopulationCharacteristics!C38-PopulationCharacteristics!I38","v":{"$error":"#REF!"}},{"$error":"#REF!"},1.645,"Ethnicity -American Indian",null,"N",{"$f":"PopulationCharacteristics!G38/1.645","v":6.6869300911854106},{"$f":"PopulationCharacteristics!J38/1.645","v":2.43161094224924},7.1153190946623859,{"$f":"PopulationCharacteristics!F38-PopulationCharacteristics!I38","v":-3},0.42162550408322153,1.645]
[{"$error":"#REF!"},{"$f":"PopulationCharacteristics!D39/1.645","v":{"$error":"#REF!"}},{"$f":"PopulationCharacteristics!J39/1.645","v":7.61699944446302},{"$error":"#REF!"},{"$f":"PopulationCharacteristics!C39-PopulationCharacteristics!I39","v":{"$error":"#REF!"}},{"$error":"#REF!"},1.645,"Ethnicity -Asian &Pacific Is",null,"N",{"$f":"PopulationCharacteristics!G39/1.645","v":9.4567472255951639},{"$f":"PopulationCharacteristics!J39/1.645","v":7.61699944446302},12.142847632485214,{"$f":"PopulationCharacteristics!F39-PopulationCharacteristics!I39","v":-4},0.32941202270371739,1.645]
[{"$error":"#REF!"},{"$f":"PopulationCharacteristics!D40/1.645","v":{"$error":"#REF!"}},{"$f":"PopulationCharacteristics!J40/1.645","v":21.415094168764178},{"$error":"#REF!"},{"$f":"PopulationCharacteristics!C40-PopulationCharacteristics!I40","v":{"$error":"#REF!"}},{"$error":"#REF!"},1.645,"Ethnicity -Other*",null,"N",{"$f":"PopulationCharacteristics!G40/1.645","v":14.411270019610575},{"$f":"PopulationCharacteristics!J40/1.645","v":21.415094168764178},25.812612456610513,{"$f":"PopulationCharacteristics!F40-PopulationCharacteristics!I40","v":-6},0.232444507896504,1.645]
[{"$error":"#REF!"},{"$f":"PopulationCharacteristics!D42/1.645","v":{"$error":"#REF!"}},{"$f":"PopulationCharacteristics!J42/1.645","v":6.6869300911854106},{"$error":"#REF!"},{"$f":"PopulationCharacteristics!C42-PopulationCharacteristics!I42","v":{"$error":"#REF!"}},{"$error":"#REF!"},1.645,"Ethnicity -Hispanic",null,"Y",{"$f":"PopulationCharacteristics!G42/1.645","v":6.6869300911854106},{"$f":"PopulationCharacteristics!J42/1.645","v":6.6869300911854106},9.4567472255951639,{"$f":"PopulationCharacteristics!F42-PopulationCharacteristics!I41","v":-703},74.338457318315008,1.645]
[{"$error":"#REF!"},{"$f":"PlaceOfBirthAndPriorRes!E8/1.645","v":{"$error":"#REF!"}},{"$f":"PlaceOfBirthAndPriorRes!M8/1.645","v":85.714285714285708},{"$error":"#REF!"},{"$f":"PlaceOfBirthAndPriorRes!D8-PlaceOfBirthAndPriorRes!L8","v":{"$error":"#REF!"}},{"$error":"#REF!"},1.645,"Place of Birth - United States Native",null,"N",{"$f":"PlaceOfBirthAndPriorRes!I8/1.645","v":106.38297872340425},{"$f":"PlaceOfBirthAndPriorRes!M8/1.645","v":85.714285714285708},136.61726441989126,{"$f":"PlaceOfBirthAndPriorRes!H8-PlaceOfBirthAndPriorRes!L8","v":102},0.74661134837617904,1.645]
[{"$error":"#REF!"},{"$f":"PlaceOfBirthAndPriorRes!E9/1.645","v":{"$error":"#REF!"}},{"$f":"PlaceOfBirthAndPriorRes!M9/1.645","v":48.632218844984799},{"$error":"#REF!"},{"$f":"PlaceOfBirthAndPriorRes!D9-PlaceOfBirthAndPriorRes!L9","v":{"$error":"#REF!"}},{"$error":"#REF!"},1.645,"Place of Birth - New Hampshire Native",null,"Y",{"$f":"PlaceOfBirthAndPriorRes!I9/1.645","v":80.851063829787236},{"$f":"PlaceOfBirthAndPriorRes!M9/1.645","v":48.632218844984799},94.350343042274218,{"$f":"PlaceOfBirthAndPriorRes!H9-PlaceOfBirthAndPriorRes!L9","v":184},1.9501783890447302,1.645]
[{"$error":"#REF!"},{"$f":"PlaceOfBirthAndPriorRes!E10/1.645","v":{"$error":"#REF!"}},{"$f":"PlaceOfBirthAndPriorRes!M10/1.645","v":58.966565349544069},{"$error":"#REF!"},{"$f":"PlaceOfBirthAndPriorRes!D10-PlaceOfBirthAndPriorRes!L10","v":{"$error":"#REF!"}},{"$error":"#REF!"},1.645,"Place of Birth - Born in Different State",null,"N",{"$f":"PlaceOfBirthAndPriorRes!I10/1.645","v":44.984802431610944},{"$f":"PlaceOfBirthAndPriorRes!M10/1.645","v":58.966565349544069},74.166625101410148,{"$f":"PlaceOfBirthAndPriorRes!H10-PlaceOfBirthAndPriorRes!L10","v":-86},1.1595512116455311,1.645]
[{"$error":"#REF!"},{"$f":"PlaceOfBirthAndPriorRes!E11/1.645","v":{"$error":"#REF!"}},{"$f":"PlaceOfBirthAndPriorRes!M11/1.645","v":43.768996960486319},{"$error":"#REF!"},{"$f":"PlaceOfBirthAndPriorRes!D11-PlaceOfBirthAndPriorRes!L11","v":{"$error":"#REF!"}},{"$error":"#REF!"},1.645,"Place of Birth - Northeast",null,"N",{"$f":"PlaceOfBirthAndPriorRes!I11/1.645","v":35.258358662613979},{"$f":"PlaceOfBirthAndPriorRes!M11/1.645","v":43.768996960486319},56.203887325598629,{"$f":"PlaceOfBirthAndPriorRes!H11-PlaceOfBirthAndPriorRes!L11","v":-47},0.83624109001075042,1.645]
[{"$error":"#REF!"},{"$f":"PlaceOfBirthAndPriorRes!E12/1.645","v":{"$error":"#REF!"}},{"$f":"PlaceOfBirthAndPriorRes!M12/1.645","v":12.1580547112462},{"$error":"#REF!"},{"$f":"PlaceOfBirthAndPriorRes!D12-PlaceOfBirthAndPriorRes!L12","v":{"$error":"#REF!"}},{"$error":"#REF!"},1.645,"Place of Birth - Midwest",null,"N",{"$f":"PlaceOfBirthAndPriorRes!I12/1.645","v":8.5106382978723403},{"$f":"PlaceOfBirthAndPriorRes!M12/1.645","v":12.1580547112462},14.84079710119599,{"$f":"PlaceOfBirthAndPriorRes!H12-PlaceOfBirthAndPriorRes!L12","v":-15},1.0107273819403662,1.645]
[{"$error":"#REF!"},{"$f":"PlaceOfBirthAndPriorRes!E13/1.645","v":{"$error":"#REF!"}},{"$f":"PlaceOfBirthAndPriorRes!M13/1.645","v":18.844984802431611},{"$error":"#REF!"},{"$f":"PlaceOfBirthAndPriorRes!D13-PlaceOfBirthAndPriorRes!L13","v":{"$error":"#REF!"}},{"$error":"#REF!"},1.645,"Place of Birth - South",null,"N",{"$f":"PlaceOfBirthAndPriorRes!I13/1.645","v":17.62917933130699},{"$f":"PlaceOfBirthAndPriorRes!M13/1.645","v":18.844984802431611},25.805453224062155,{"$f":"PlaceOfBirthAndPriorRes!H13-PlaceOfBirthAndPriorRes!L13","v":-24},0.93003598082987082,1.645]
[{"$error":"#REF!"},{"$f":"PlaceOfBirthAndPriorRes!E14/1.645","v":{"$error":"#REF!"}},{"$f":"PlaceOfBirthAndPriorRes!M14/1.645","v":5.4711246200607899},{"$error":"#REF!"},{"$f":"PlaceOfBirthAndPriorRes!D14-PlaceOfBirthAndPriorRes!L14","v":{"$error":"#REF!"}},{"$error":"#REF!"},1.645,"Place of Birth - West",null,"N",{"$f":"PlaceOfBirthAndPriorRes!I14/1.645","v":8.5106382978723403},{"$f":"PlaceOfBirthAndPriorRes!M14/1.645","v":5.4711246200607899},10.117517919205616,{"$f":"PlaceOfBirthAndPriorRes!H14-PlaceOfBirthAndPriorRes!L14","v":0},0,1.645]
[{"$error":"#REF!"},{"$f":"PlaceOfBirthAndPriorRes!E15/1.645","v":{"$error":"#REF!"}},{"$f":"PlaceOfBirthAndPriorRes!M15/1.645","v":1.8237082066869301},{"$error":"#REF!"},{"$f":"PlaceOfBirthAndPriorRes!D15-PlaceOfBirthAndPriorRes!L15","v":{"$error":"#REF!"}},{"$error":"#REF!"},1.645,"Place of Birth - Native Born Outside US",null,"N",{"$f":"PlaceOfBirthAndPriorRes!I15/1.645","v":6.0790273556230998},{"$f":"PlaceOfBirthAndPriorRes!M15/1.645","v":1.8237082066869301},6.3466908868757139,{"$f":"PlaceOfBirthAndPriorRes!H15-PlaceOfBirthAndPriorRes!L15","v":4},0.6302496956755177,1.645]
[{"$error":"#REF!"},{"$f":"PlaceOfBirthAndPriorRes!E16/1.645","v":{"$error":"#REF!"}},{"$f":"PlaceOfBirthAndPriorRes!M16/1.645","v":5.4711246200607899},{"$error":"#REF!"},{"$f":"PlaceOfBirthAndPriorRes!D16-PlaceOfBirthAndPriorRes!L16","v":{"$error":"#REF!"}},{"$error":"#REF!"},1.645,"Place of Birth - Foreign Born",null,"N",{"$f":"PlaceOfBirthAndPriorRes!I16/1.645","v":3.6474164133738602},{"$f":"PlaceOfBirthAndPriorRes!M16/1.645","v":5.4711246200607899},6.5754734506942052,{"$f":"PlaceOfBirthAndPriorRes!H16-PlaceOfBirthAndPriorRes!L16","v":-5},0.76040151899208497,1.645]
[{"$error":"#REF!"},{"$f":"PlaceOfBirthAndPriorRes!E17/1.645","v":{"$error":"#REF!"}},{"$f":"PlaceOfBirthAndPriorRes!M17/1.645","v":5.4711246200607899},{"$error":"#REF!"},{"$f":"PlaceOfBirthAndPriorRes!D17-PlaceOfBirthAndPriorRes!L17","v":{"$error":"#REF!"}},{"$error":"#REF!"},1.645,"Place of Birth - Naturalized Citizen",null,"N",{"$f":"PlaceOfBirthAndPriorRes!I17/1.645","v":6.6869300911854106},{"$f":"PlaceOfBirthAndPriorRes!M17/1.645","v":5.4711246200607899},8.6399212179646785,{"$f":"PlaceOfBirthAndPriorRes!H17-PlaceOfBirthAndPriorRes!L17","v":-9},1.0416761649731971,1.645]
[{"$error":"#REF!"},{"$f":"PlaceOfBirthAndPriorRes!E18/1.645","v":{"$error":"#REF!"}},{"$f":"PlaceOfBirthAndPriorRes!M18/1.645","v":6.6869300911854106},{"$error":"#REF!"},{"$f":"PlaceOfBirthAndPriorRes!D18-PlaceOfBirthAndPriorRes!L18","v":{"$error":"#REF!"}},{"$error":"#REF!"},1.645,"Place of Birth - Not a Citizen",null,"N",{"$f":"PlaceOfBirthAndPriorRes!I18/1.645","v":3.6474164133738602},{"$f":"PlaceOfBirthAndPriorRes!M18/1.645","v":6.6869300911854106},7.61699944446302,{"$f":"PlaceOfBirthAndPriorRes!H18-PlaceOfBirthAndPriorRes!L18","v":4},0.5251411699796954,1.645]
[{"$error":"#REF!"},{"$f":"PlaceOfBirthAndPriorRes!E43/1.645","v":{"$error":"#REF!"}},{"$f":"PlaceOfBirthAndPriorRes!I43/1.645","v":105.16717325227964},{"$error":"#REF!"},{"$f":"PlaceOfBirthAndPriorRes!D43-PlaceOfBirthAndPriorRes!H43","v":{"$error":"#REF!"}},{"$error":"#REF!"},1.645,"Place of Residence for Population Total:",null,"N",{"$f":"PlaceOfBirthAndPriorRes!I43/1.645","v":105.16717325227964},{"$f":"PlaceOfBirthAndPriorRes!M43/1.645","v":86.322188449848028},{"$f":"SQRT((K37^2)+(L37^2))","v":136.05754131486458},{"$f":"PlaceOfBirthAndPriorRes!H43-PlaceOfBirthAndPriorRes!L43","v":88},0.64678517007999037,1.645]
[{"$error":"#REF!"},{"$f":"PlaceOfBirthAndPriorRes!E44/1.645","v":{"$error":"#REF!"}},{"$f":"PlaceOfBirthAndPriorRes!I44/1.645","v":97.872340425531917},{"$error":"#REF!"},{"$f":"PlaceOfBirthAndPriorRes!D44-PlaceOfBirthAndPriorRes!H44","v":{"$error":"#REF!"}},{"$error":"#REF!"},1.645,"Place of Residence for Population  Same house ",null,"N",{"$f":"PlaceOfBirthAndPriorRes!I8/1.645","v":106.38297872340425},{"$f":"PlaceOfBirthAndPriorRes!M8/1.645","v":85.714285714285708},{"$f":"SQRT((K38^2)+(L38^2))","v":136.61726441989126},{"$f":"PlaceOfBirthAndPriorRes!H8-PlaceOfBirthAndPriorRes!L8","v":102},0.74661134837617904,1.645]
[{"$error":"#REF!"},{"$f":"PlaceOfBirthAndPriorRes!E45/1.645","v":{"$error":"#REF!"}},{"$f":"PlaceOfBirthAndPriorRes!I45/1.645","v":26.995262384406708},{"$error":"#REF!"},{"$f":"PlaceOfBirthAndPriorRes!D45-PlaceOfBirthAndPriorRes!H45","v":{"$error":"#REF!"}},{"$error":"#REF!"},1.645,"Place of Residence for Population  Different house",null,"Y",{"$f":"PlaceOfBirthAndPriorRes!I9/1.645","v":80.851063829787236},{"$f":"PlaceOfBirthAndPriorRes!M9/1.645","v":48.632218844984799},94.350343042274218,{"$f":"PlaceOfBirthAndPriorRes!H9-PlaceOfBirthAndPriorRes!L9","v":184},1.9501783890447302,1.645]
[{"$error":"#REF!"},{"$f":"PlaceOfBirthAndPriorRes!E46/1.645","v":{"$error":"#REF!"}},{"$f":"PlaceOfBirthAndPriorRes!I46/1.645","v":23.465360566101861},{"$error":"#REF!"},{"$f":"PlaceOfBirthAndPriorRes!D46-PlaceOfBirthAndPriorRes!H46","v":{"$error":"#REF!"}},{"$error":"#REF!"},1.645,"Place of Residence for Population in New Hampshire",null,"N",{"$f":"PlaceOfBirthAndPriorRes!I10/1.645","v":44.984802431610944},{"$f":"PlaceOfBirthAndPriorRes!M10/1.645","v":58.966565349544069},74.166625101410148,{"$f":"PlaceOfBirthAndPriorRes!H10-PlaceOfBirthAndPriorRes!L10","v":-86},1.1595512116455311,1.645]
[{"$error":"#REF!"},{"$f":"PlaceOfBirthAndPriorRes!E47/1.645","v":{"$error":"#REF!"}},{"$f":"PlaceOfBirthAndPriorRes!I47/1.645","v":13.98176291793313},{"$error":"#REF!"},{"$f":"PlaceOfBirthAndPriorRes!D47-PlaceOfBirthAndPriorRes!H47","v":{"$error":"#REF!"}},{"$error":"#REF!"},1.645,"Place of Residence for Population Same county",null,"N",{"$f":"PlaceOfBirthAndPriorRes!I11/1.645","v":35.258358662613979},{"$f":"PlaceOfBirthAndPriorRes!M11/1.645","v":43.768996960486319},56.203887325598629,{"$f":"PlaceOfBirthAndPriorRes!H11-PlaceOfBirthAndPriorRes!L11","v":-47},0.83624109001075042,1.645]
[{"$error":"#REF!"},{"$f":"PlaceOfBirthAndPriorRes!E48/1.645","v":{"$error":"#REF!"}},{"$f":"PlaceOfBirthAndPriorRes!I48/1.645","v":18.844984802431611},{"$error":"#REF!"},{"$f":"PlaceOfBirthAndPriorRes!D48-PlaceOfBirthAndPriorRes!H48","v":{"$error":"#REF!"}},{"$error":"#REF!"},1.645,"Place of Residence for Population Different county",null,"N",{"$f":"PlaceOfBirthAndPriorRes!I12/1.645","v":8.5106382978723403},{"$f":"PlaceOfBirthAndPriorRes!M12/1.645","v":12.1580547112462},14.84079710119599,{"$f":"PlaceOfBirthAndPriorRes!H12-PlaceOfBirthAndPriorRes!L12","v":-15},1.0107273819403662,1.645]
[{"$error":"#REF!"},{"$f":"PlaceOfBirthAndPriorRes!E49/1.645","v":{"$error":"#REF!"}},{"$f":"PlaceOfBirthAndPriorRes!I49/1.645","v":11.550151975683891},{"$error":"#REF!"},{"$f":"PlaceOfBirthAndPriorRes!D49-PlaceOfBirthAndPriorRes!H49","v":{"$error":"#REF!"}},{"$error":"#REF!"},1.645,"Place of Residence for Population in Different state",null,"N",{"$f":"PlaceOfBirthAndPriorRes!I13/1.645","v":17.62917933130699},{"$f":"PlaceOfBirthAndPriorRes!M13/1.645","v":18.844984802431611},25.805453224062155,{"$f":"PlaceOfBirthAndPriorRes!H13-PlaceOfBirthAndPriorRes!L13","v":-24},0.93003598082987082,1.645]
[{"$error":"#REF!"},{"$f":"PlaceOfBirthAndPriorRes!E50/1.645","v":{"$error":"#REF!"}},{"$f":"PlaceOfBirthAndPriorRes!I50/1.645","v":6.6869300911854106},{"$error":"#REF!"},{"$f":"PlaceOfBirthAndPriorRes!D50-PlaceOfBirthAndPriorRes!H50","v":{"$error":"#REF!"}},{"$error":"#REF!"},1.645,"Place of Residence for Population Elsewhere",null,"N",{"$f":"PlaceOfBirthAndPriorRes!I14/1.645","v":8.5106382978723403},{"$f":"PlaceOfBirthAndPriorRes!M14/1.645","v":5.4711246200607899},10.117517919205616,{"$f":"PlaceOfBirthAndPriorRes!H14-PlaceOfBirthAndPriorRes!L14","v":0},0,1.645]
[{"$error":"#REF!"},{"$f":"SchoolEnrolEduAttain!G23/1.645","v":{"$error":"#REF!"}},{"$f":"SchoolEnrolEduAttain!M23/1.645","v":83.282674772036472},{"$f":"SQRT((B45^2)+(C45^2))","v":{"$error":"#REF!"}},{"$f":"SchoolEnrolEduAttain!F23-SchoolEnrolEduAttain!L23","v":{"$error":"#REF!"}},{"$error":"#REF!"},1.645,"Total Population 3 years & over",null,"N",{"$f":"SchoolEnrolEduAttain!J23/1.645","v":102.12765957446808},{"$f":"SchoolEnrolEduAttain!M23/1.645","v":83.282674772036472},{"$f":"SQRT((K45^2)+(L45^2))","v":131.78035804831933},{"$f":"SchoolEnrolEduAttain!I23-SchoolEnrolEduAttain!L23","v":89},0.67536620265796177,1.645]
[{"$error":"#REF!"},{"$f":"SchoolEnrolEduAttain!G24/1.645","v":{"$error":"#REF!"}},{"$f":"SchoolEnrolEduAttain!M24/1.645","v":26.747720364741642},{"$f":"SQRT((B46^2)+(C46^2))","v":{"$error":"#REF!"}},{"$f":"SchoolEnrolEduAttain!F24-SchoolEnrolEduAttain!L24","v":{"$error":"#REF!"}},{"$error":"#REF!"},1.645,"Population 3 years & over enrolled in school",null,"N",{"$f":"SchoolEnrolEduAttain!J24/1.645","v":54.10334346504559},{"$f":"SchoolEnrolEduAttain!M24/1.645","v":26.747720364741642},{"$f":"SQRT((K46^2)+(L46^2))","v":60.3540580144128},{"$f":"SchoolEnrolEduAttain!I24-SchoolEnrolEduAttain!L24","v":81},1.342080427809127,1.645]
[{"$error":"#REF!"},{"$f":"SchoolEnrolEduAttain!G25/1.645","v":{"$error":"#REF!"}},{"$f":"SchoolEnrolEduAttain!M25/1.645","v":12.309092237882423},{"$error":"#REF!"},{"$f":"SchoolEnrolEduAttain!F25-SchoolEnrolEduAttain!L25","v":{"$error":"#REF!"}},{"$error":"#REF!"},1.645,"Preprimary (Nursery, Preschool, Kindergarten)",null,"N",{"$f":"SchoolEnrolEduAttain!J25/1.645","v":21.067140974058916},{"$f":"SchoolEnrolEduAttain!M25/1.645","v":12.309092237882423},24.39955287585347,{"$f":"SchoolEnrolEduAttain!I25-SchoolEnrolEduAttain!L25","v":20},0.81968715171795625,1.645]
[{"$error":"#REF!"},{"$f":"SchoolEnrolEduAttain!G26/1.645","v":{"$error":"#REF!"}},{"$f":"SchoolEnrolEduAttain!M26/1.645","v":10.334346504559271},{"$error":"#REF!"},{"$f":"SchoolEnrolEduAttain!F26-SchoolEnrolEduAttain!L26","v":{"$error":"#REF!"}},{"$error":"#REF!"},1.645,"Nursery school and Preschool",null,"N",{"$f":"SchoolEnrolEduAttain!J26/1.645","v":15.19756838905775},{"$f":"SchoolEnrolEduAttain!M26/1.645","v":10.334346504559271},18.378378672134922,{"$f":"SchoolEnrolEduAttain!I26-SchoolEnrolEduAttain!L26","v":13},0.70735292987027443,1.645]
[{"$error":"#REF!"},{"$f":"SchoolEnrolEduAttain!G27/1.645","v":{"$error":"#REF!"}},{"$f":"SchoolEnrolEduAttain!M27/1.645","v":6.6869300911854106},{"$error":"#REF!"},{"$f":"SchoolEnrolEduAttain!F27-SchoolEnrolEduAttain!L27","v":{"$error":"#REF!"}},{"$error":"#REF!"},1.645,"Kindergarten",null,"N",{"$f":"SchoolEnrolEduAttain!J27/1.645","v":14.589665653495441},{"$f":"SchoolEnrolEduAttain!M27/1.645","v":6.6869300911854106},16.049092744612871,{"$f":"SchoolEnrolEduAttain!I27-SchoolEnrolEduAttain!L27","v":7},0.43616172648448676,1.645]
[{"$error":"#REF!"},{"$f":"SchoolEnrolEduAttain!G28/1.645","v":{"$error":"#REF!"}},{"$f":"SchoolEnrolEduAttain!M28/1.645","v":20.926339790952593},{"$error":"#REF!"},{"$f":"SchoolEnrolEduAttain!F28-SchoolEnrolEduAttain!L28","v":{"$error":"#REF!"}},{"$error":"#REF!"},1.645,"Elementary through High school",null,"N",{"$f":"SchoolEnrolEduAttain!J28/1.645","v":33.737232645620928},{"$f":"SchoolEnrolEduAttain!M28/1.645","v":20.926339790952593},39.700284175697739,{"$f":"SchoolEnrolEduAttain!I28-SchoolEnrolEduAttain!L28","v":55},1.3853805115497857,1.645]
[{"$error":"#REF!"},{"$f":"SchoolEnrolEduAttain!G29/1.645","v":{"$error":"#REF!"}},{"$f":"SchoolEnrolEduAttain!M29/1.645","v":15.569906960323035},{"$error":"#REF!"},{"$f":"SchoolEnrolEduAttain!F29-SchoolEnrolEduAttain!L29","v":{"$error":"#REF!"}},{"$error":"#REF!"},1.645,"Elementary school (grades 1-8)",null,"Y",{"$f":"SchoolEnrolEduAttain!J29/1.645","v":28.38326451046505},{"$f":"SchoolEnrolEduAttain!M29/1.645","v":15.569906960323035},32.37331782539659,{"$f":"SchoolEnrolEduAttain!I29-SchoolEnrolEduAttain!L29","v":58},1.7915988813015482,1.645]
[{"$error":"#REF!"},{"$f":"SchoolEnrolEduAttain!G30/1.645","v":{"$error":"#REF!"}},{"$f":"SchoolEnrolEduAttain!M30/1.645","v":13.98176291793313},{"$error":"#REF!"},{"$f":"SchoolEnrolEduAttain!F30-SchoolEnrolEduAttain!L30","v":{"$error":"#REF!"}},{"$error":"#REF!"},1.645,"High school (grades 9-12)",null,"N",{"$f":"SchoolEnrolEduAttain!J30/1.645","v":18.237082066869302},{"$f":"SchoolEnrolEduAttain!M30/1.645","v":13.98176291793313},22.980009934876353,{"$f":"SchoolEnrolEduAttain!I30-SchoolEnrolEduAttain!L30","v":-3},0.13054824643252017,1.645]
[{"$error":"#REF!"},{"$f":"SchoolEnrolEduAttain!G31/1.645","v":{"$error":"#REF!"}},{"$f":"SchoolEnrolEduAttain!M31/1.645","v":8.1104340815357645},{"$error":"#REF!"},{"$f":"SchoolEnrolEduAttain!F31-SchoolEnrolEduAttain!L31","v":{"$error":"#REF!"}},{"$error":"#REF!"},1.645,"College or Graduate School",null,"N",{"$f":"SchoolEnrolEduAttain!J31/1.645","v":8.5970429323592406},{"$f":"SchoolEnrolEduAttain!M31/1.645","v":8.1104340815357645},11.818979997096401,{"$f":"SchoolEnrolEduAttain!I31-SchoolEnrolEduAttain!L31","v":6},0.50765802137528238,1.645]
[{"$error":"#REF!"},{"$f":"SchoolEnrolEduAttain!G52/1.645","v":{"$error":"#REF!"}},{"$f":"SchoolEnrolEduAttain!M52/1.645","v":65.045592705167167},{"$f":"SQRT((B54^2)+(C54^2))","v":{"$error":"#REF!"}},{"$f":"SchoolEnrolEduAttain!I52-SchoolEnrolEduAttain!L52","v":15},{"$error":"#REF!"},1.645,"Population 25 years and over",null,"N",{"$f":"SchoolEnrolEduAttain!J52/1.645","v":57.750759878419451},{"$f":"SchoolEnrolEduAttain!M52/1.645","v":65.045592705167167},{"$f":"SQRT((K54^2)+(L54^2))","v":86.983213305219749},{"$f":"SchoolEnrolEduAttain!I52-SchoolEnrolEduAttain!L52","v":15},0.17244706685375888,1.645]
[{"$error":"#REF!"},{"$f":"SchoolEnrolEduAttain!G53/1.645","v":{"$error":"#REF!"}},{"$f":"SchoolEnrolEduAttain!M53/1.645","v":13.808895673678476},{"$f":"SQRT((B55^2)+(C55^2))","v":{"$error":"#REF!"}},{"$f":"SchoolEnrolEduAttain!I53-SchoolEnrolEduAttain!L53","v":-2},{"$error":"#REF!"},1.645,"Less than 9th Grade",null,"N",{"$f":"SchoolEnrolEduAttain!J53/1.645","v":15.148858108665181},{"$f":"SchoolEnrolEduAttain!M53/1.645","v":13.808895673678476},{"$f":"SQRT((K55^2)+(L55^2))","v":20.498134103449683},{"$f":"SchoolEnrolEduAttain!I53-SchoolEnrolEduAttain!L53","v":-2},9.7569856354067605E-2,1.645]
[{"$error":"#REF!"},{"$f":"SchoolEnrolEduAttain!G54/1.645","v":{"$error":"#REF!"}},{"$f":"SchoolEnrolEduAttain!M54/1.645","v":17.785700715292151},{"$error":"#REF!"},{"$f":"SchoolEnrolEduAttain!I54-SchoolEnrolEduAttain!L54","v":42},{"$error":"#REF!"},1.645,"9th to 12th Grade, no Diploma",null,"N",{"$f":"SchoolEnrolEduAttain!J54/1.645","v":20.677630822729423},{"$f":"SchoolEnrolEduAttain!M54/1.645","v":17.785700715292151},27.274448965561771,{"$f":"SchoolEnrolEduAttain!I54-SchoolEnrolEduAttain!L54","v":42},1.5399027878814904,1.645]
[{"$error":"#REF!"},{"$f":"SchoolEnrolEduAttain!G55/1.645","v":{"$error":"#REF!"}},{"$f":"SchoolEnrolEduAttain!M55/1.645","v":21.561273982940058},{"$error":"#REF!"},{"$f":"SchoolEnrolEduAttain!I55-SchoolEnrolEduAttain!L55","v":94},{"$error":"#REF!"},1.645,"High School Graduate ",null,"Y",{"$f":"SchoolEnrolEduAttain!J55/1.645","v":31.994400892257183},{"$f":"SchoolEnrolEduAttain!M55/1.645","v":21.561273982940058},38.58147514315484,{"$f":"SchoolEnrolEduAttain!I55-SchoolEnrolEduAttain!L55","v":94},2.436402435397226,1.645]
[{"$error":"#REF!"},{"$f":"SchoolEnrolEduAttain!G56/1.645","v":{"$error":"#REF!"}},{"$f":"SchoolEnrolEduAttain!M56/1.645","v":20.534158971494875},{"$error":"#REF!"},{"$f":"SchoolEnrolEduAttain!I56-SchoolEnrolEduAttain!L56","v":9},{"$error":"#REF!"},1.645,"Some College, No Degree",null,"N",{"$f":"SchoolEnrolEduAttain!J56/1.645","v":27.186236808508081},{"$f":"SchoolEnrolEduAttain!M56/1.645","v":20.534158971494875},34.069680897755752,{"$f":"SchoolEnrolEduAttain!I56-SchoolEnrolEduAttain!L56","v":9},0.26416449355687538,1.645]
[{"$error":"#REF!"},{"$f":"SchoolEnrolEduAttain!G57/1.645","v":{"$error":"#REF!"}},{"$f":"SchoolEnrolEduAttain!M57/1.645","v":13.875637945912858},{"$error":"#REF!"},{"$f":"SchoolEnrolEduAttain!I57-SchoolEnrolEduAttain!L57","v":-31},{"$error":"#REF!"},1.645,"Associate Degree",null,"Y",{"$f":"SchoolEnrolEduAttain!J57/1.645","v":7.7849534801615174},{"$f":"SchoolEnrolEduAttain!M57/1.645","v":13.875637945912858},15.910337177267355,{"$f":"SchoolEnrolEduAttain!I57-SchoolEnrolEduAttain!L57","v":-31},1.9484187955672438,1.645]
[{"$error":"#REF!"},{"$f":"SchoolEnrolEduAttain!G58/1.645","v":{"$error":"#REF!"}},{"$f":"SchoolEnrolEduAttain!M58/1.645","v":31.546579319949231},{"$error":"#REF!"},{"$f":"SchoolEnrolEduAttain!I58-SchoolEnrolEduAttain!L58","v":-62},{"$error":"#REF!"},1.645,"Bachelor's Degree",null,"Y",{"$f":"SchoolEnrolEduAttain!J58/1.645","v":15.688131186095976},{"$f":"SchoolEnrolEduAttain!M58/1.645","v":31.546579319949231},35.232146214813618,{"$f":"SchoolEnrolEduAttain!I58-SchoolEnrolEduAttain!L58","v":-62},1.7597565479542554,1.645]
[{"$error":"#REF!"},{"$f":"SchoolEnrolEduAttain!G59/1.645","v":{"$error":"#REF!"}},{"$f":"SchoolEnrolEduAttain!M59/1.645","v":16.988679164112},{"$error":"#REF!"},{"$f":"SchoolEnrolEduAttain!I59-SchoolEnrolEduAttain!L59","v":-35},{"$error":"#REF!"},1.645,"Graduate or Professional Degree",null,"N",{"$f":"SchoolEnrolEduAttain!J59/1.645","v":15.711669280632323},{"$f":"SchoolEnrolEduAttain!M59/1.645","v":16.988679164112},23.140262991701253,{"$f":"SchoolEnrolEduAttain!I59-SchoolEnrolEduAttain!L59","v":-35},1.5125152213072073,1.645]
[{"$error":"#REF!"},{"$f":"HousingCharacteristics!D32/1.645","v":44.984802431610944},{"$f":"HousingCharacteristics!J32/1.645","v":44.984802431610944},63.618117699458381,{"$f":"HousingCharacteristics!C32-HousingCharacteristics!I32","v":{"$error":"#REF!"}},{"$error":"#REF!"},1.645,"Total Housing Units",null,"N",{"$f":"HousingCharacteristics!G32/1.645","v":44.984802431610944},{"$f":"HousingCharacteristics!J32/1.645","v":44.984802431610944},{"$f":"SQRT((K62^2)+(L62^2))","v":63.618117699458381},{"$f":"HousingCharacteristics!F32-HousingCharacteristics!I32","v":15},{"$f":"ABS((N62/M62))","v":0.23578188953754134},1.645]
[{"$error":"#REF!"},{"$f":"HousingCharacteristics!D33/1.645","v":32.218844984802431},{"$f":"HousingCharacteristics!J33/1.645","v":35.258358662613979},47.761970517727335,{"$f":"HousingCharacteristics!C33-HousingCharacteristics!I33","v":{"$error":"#REF!"}},{"$error":"#REF!"},1.645,"Occupied Units",null,"N",{"$f":"HousingCharacteristics!G33/1.645","v":32.218844984802431},{"$f":"HousingCharacteristics!J33/1.645","v":35.258358662613979},{"$f":"SQRT((K63^2)+(L63^2))","v":47.761970517727335},{"$f":"HousingCharacteristics!F33-HousingCharacteristics!I33","v":1},{"$f":"ABS((N63/M63))","v":2.0937159609627914E-2},1.645]
[{"$error":"#REF!"},{"$f":"HousingCharacteristics!D34/1.645","v":33.434650455927049},{"$f":"HousingCharacteristics!J34/1.645","v":34.042553191489361},47.715524506238062,{"$f":"HousingCharacteristics!C34-HousingCharacteristics!I34","v":{"$error":"#REF!"}},{"$error":"#REF!"},1.645,"Owner Occupied",null,"N",{"$f":"HousingCharacteristics!G34/1.645","v":33.434650455927049},{"$f":"HousingCharacteristics!J34/1.645","v":34.042553191489361},47.715524506238062,{"$f":"HousingCharacteristics!F34-HousingCharacteristics!I34","v":-9},0.18861785746111603,1.645]
[{"$error":"#REF!"},{"$f":"HousingCharacteristics!D35/1.645","v":12.1580547112462},{"$f":"HousingCharacteristics!J35/1.645","v":10.334346504559271},15.956723098366792,{"$f":"HousingCharacteristics!C35-HousingCharacteristics!I35","v":{"$error":"#REF!"}},{"$error":"#REF!"},1.645,"Renter Occupied",null,"N",{"$f":"HousingCharacteristics!G35/1.645","v":12.1580547112462},{"$f":"HousingCharacteristics!J35/1.645","v":10.334346504559271},15.956723098366792,{"$f":"HousingCharacteristics!F35-HousingCharacteristics!I35","v":10},0.6266950888571553,1.645]
[{"$error":"#REF!"},{"$f":"HousingCharacteristics!D36/1.645","v":31.003039513677813},{"$f":"HousingCharacteristics!J36/1.645","v":32.218844984802431},44.712888871570314,{"$f":"HousingCharacteristics!C36-HousingCharacteristics!I36","v":{"$error":"#REF!"}},{"$error":"#REF!"},1.645,"Vacant Units",null,"N",{"$f":"HousingCharacteristics!G36/1.645","v":31.003039513677813},{"$f":"HousingCharacteristics!J36/1.645","v":32.218844984802431},44.712888871570314,{"$f":"HousingCharacteristics!F36-HousingCharacteristics!I36","v":14},0.31310882283210256,1.645]
[{"$error":"#REF!"},{"$f":"HousingCharacteristics!D37/1.645","v":5.4711246200607899},{"$f":"HousingCharacteristics!J37/1.645","v":7.9027355623100304},9.6117862011196937,{"$f":"HousingCharacteristics!C37-HousingCharacteristics!I37","v":{"$error":"#REF!"}},{"$error":"#REF!"},1.645,"Vacant For Sale",null,"N",{"$f":"HousingCharacteristics!G37/1.645","v":5.4711246200607899},{"$f":"HousingCharacteristics!J37/1.645","v":7.9027355623100304},9.6117862011196937,{"$f":"HousingCharacteristics!F37-HousingCharacteristics!I37","v":-6},0.6242336101172381,1.645]
[{"$f":"IF(F68>G68,\"Y\",\"N\")","v":{"$error":"#REF!"}},{"$f":"HousingCharacteristics!D38/1.645","v":2.43161094224924},{"$f":"HousingCharacteristics!J38/1.645","v":6.6869300911854106},7.1153190946623859,{"$f":"HousingCharacteristics!C38-HousingCharacteristics!I38","v":{"$error":"#REF!"}},{"$f":"ABS((E68/D68))","v":{"$error":"#REF!"}},1.645,"Vacant For Rent",null,"N",{"$f":"HousingCharacteristics!G38/1.645","v":2.43161094224924},{"$f":"HousingCharacteristics!J38/1.645","v":6.6869300911854106},7.1153190946623859,{"$f":"HousingCharacteristics!F38-HousingCharacteristics!I38","v":3},0.42162550408322153,1.645]
[{"$error":"#REF!"},{"$f":"HousingCharacteristics!D39/1.645","v":29.179331306990882},{"$f":"HousingCharacteristics!J39/1.645","v":30.3951367781155},42.134281948117831,{"$f":"HousingCharacteristics!C39-HousingCharacteristics!I39","v":{"$error":"#REF!"}},{"$error":"#REF!"},1.645,"Vacant Seasonal",null,{"$f":"IF(O69>P69,\"Y\",\"N\")","v":"N"},{"$f":"HousingCharacteristics!G39/1.645","v":29.179331306990882},{"$f":"HousingCharacteristics!J39/1.645","v":30.3951367781155},42.134281948117831,{"$f":"HousingCharacteristics!F39-HousingCharacteristics!I39","v":14},0.33227100006685623,1.645]
[{"$error":"#REF!"},{"$f":"HousingCharacteristics!E71/1.645","v":{"$error":"#REF!"}},{"$f":"HousingCharacteristics!K71/1.645","v":44.984802431610944},{"$error":"#REF!"},{"$f":"HousingCharacteristics!D71-HousingCharacteristics!J71","v":{"$error":"#REF!"}},{"$error":"#REF!"},1.645,"Total Housing Units",null,"N",{"$f":"HousingCharacteristics!H71/1.645","v":44.984802431610944},{"$f":"HousingCharacteristics!K71/1.645","v":44.984802431610944},63.618117699458381,{"$f":"HousingCharacteristics!G71-HousingCharacteristics!J71","v":15},0.23578188953754134,1.645]
[{"$error":"#REF!"},{"$f":"HousingCharacteristics!E72/1.645","v":{"$error":"#REF!"}},{"$f":"HousingCharacteristics!K72/1.645","v":41.337386018237083},{"$error":"#REF!"},{"$f":"HousingCharacteristics!D72-HousingCharacteristics!J72","v":{"$error":"#REF!"}},{"$error":"#REF!"},1.645,"Single Family Units",null,"N",{"$f":"HousingCharacteristics!H72/1.645","v":40.729483282674771},{"$f":"HousingCharacteristics!K72/1.645","v":41.337386018237083},58.031631816574198,{"$f":"HousingCharacteristics!G72-HousingCharacteristics!J72","v":25},0.43079953496775258,1.645]
[{"$error":"#REF!"},{"$f":"HousingCharacteristics!E73/1.645","v":{"$error":"#REF!"}},{"$f":"HousingCharacteristics!K73/1.645","v":27.96352583586626},{"$error":"#REF!"},{"$f":"HousingCharacteristics!D73-HousingCharacteristics!J73","v":{"$error":"#REF!"}},{"$error":"#REF!"},1.645,"SF Owner Occ.",null,"N",{"$f":"HousingCharacteristics!H73/1.645","v":27.355623100303951},{"$f":"HousingCharacteristics!K73/1.645","v":27.96352583586626},39.118907095917734,{"$f":"HousingCharacteristics!G73-HousingCharacteristics!J73","v":-19},0.48569864064486484,1.645]
[{"$error":"#REF!"},{"$f":"HousingCharacteristics!E74/1.645","v":{"$error":"#REF!"}},{"$f":"HousingCharacteristics!K74/1.645","v":5.4711246200607899},{"$error":"#REF!"},{"$f":"HousingCharacteristics!D74-HousingCharacteristics!J74","v":{"$error":"#REF!"}},{"$error":"#REF!"},1.645,"SF Renter Occ.",null,"N",{"$f":"HousingCharacteristics!H74/1.645","v":9.1185410334346511},{"$f":"HousingCharacteristics!K74/1.645","v":5.4711246200607899},10.63395482342608,{"$f":"HousingCharacteristics!G74-HousingCharacteristics!J74","v":17},1.5986526445034197,1.645]
[{"$error":"#REF!"},{"$f":"HousingCharacteristics!E75/1.645","v":{"$error":"#REF!"}},{"$f":"HousingCharacteristics!K75/1.645","v":19.13687080692668},{"$error":"#REF!"},{"$f":"HousingCharacteristics!D75-HousingCharacteristics!J75","v":{"$error":"#REF!"}},{"$error":"#REF!"},1.645,"Multi-family Units",null,"N",{"$f":"HousingCharacteristics!H75/1.645","v":18.348192428919841},{"$f":"HousingCharacteristics!K75/1.645","v":19.13687080692668},26.511808495266294,{"$f":"HousingCharacteristics!G75-HousingCharacteristics!J75","v":-1},3.7719041316195037E-2,1.645]
[{"$error":"#REF!"},{"$f":"HousingCharacteristics!E76/1.645","v":{"$error":"#REF!"}},{"$f":"HousingCharacteristics!K76/1.645","v":18.186352950336282},{"$error":"#REF!"},{"$f":"HousingCharacteristics!D76-HousingCharacteristics!J76","v":{"$error":"#REF!"}},{"$error":"#REF!"},1.645,"MF Owner Occ.",null,"N",{"$f":"HousingCharacteristics!H76/1.645","v":16.026050244941118},{"$f":"HousingCharacteristics!K76/1.645","v":18.186352950336282},24.240002477053967,{"$f":"HousingCharacteristics!G76-HousingCharacteristics!J76","v":1},4.1254121196836448E-2,1.645]
[{"$error":"#REF!"},{"$f":"HousingCharacteristics!E77/1.645","v":{"$error":"#REF!"}},{"$f":"HousingCharacteristics!K77/1.645","v":17.775308835517865},{"$error":"#REF!"},{"$f":"HousingCharacteristics!D77-HousingCharacteristics!J77","v":{"$error":"#REF!"}},{"$error":"#REF!"},1.645,"MF Renter Occ.",null,"N",{"$f":"HousingCharacteristics!H77/1.645","v":17.471255760729377},{"$f":"HousingCharacteristics!K77/1.645","v":17.775308835517865},24.924012158054708,{"$f":"HousingCharacteristics!G77-HousingCharacteristics!J77","v":-8},0.32097560975609762,1.645]
[{"$error":"#REF!"},{"$f":"HousingCharacteristics!E78/1.645","v":{"$error":"#REF!"}},{"$f":"HousingCharacteristics!K78/1.645","v":17.723258039043465},{"$error":"#REF!"},{"$f":"HousingCharacteristics!D78-HousingCharacteristics!J78","v":{"$error":"#REF!"}},{"$error":"#REF!"},1.645,"Mobile Home & Other",null,"N",{"$f":"HousingCharacteristics!H78/1.645","v":21.145929642463326},{"$f":"HousingCharacteristics!K78/1.645","v":17.723258039043465},27.591016943246725,{"$f":"HousingCharacteristics!G78-HousingCharacteristics!J78","v":-9},0.32619312359934133,1.645]
[{"$error":"#REF!"},{"$f":"HousingCharacteristics!$D88/1.645","v":{"$error":"#REF!"}},{"$f":"HousingCharacteristics!L88/1.645","v":15.805471124620061},{"$error":"#REF!"},{"$f":"HousingCharacteristics!$D88-HousingCharacteristics!$K88","v":{"$error":"#REF!"}},{"$error":"#REF!"},1.645,"No Bedrooms",null,"Y",{"$f":"HousingCharacteristics!H88/1.645","v":6.6869300911854106},{"$f":"HousingCharacteristics!L88/1.645","v":15.805471124620061},17.161816672939946,{"$f":"HousingCharacteristics!G88-HousingCharacteristics!K88","v":-35},2.0394111338566256,1.645]
[{"$error":"#REF!"},{"$f":"HousingCharacteristics!$D89/1.645","v":{"$error":"#REF!"}},{"$f":"HousingCharacteristics!L89/1.645","v":13.373860182370821},{"$error":"#REF!"},{"$f":"HousingCharacteristics!$D89-HousingCharacteristics!$K89","v":{"$error":"#REF!"}},{"$error":"#REF!"},1.645,"1 Bedroom",null,"N",{"$f":"HousingCharacteristics!H89/1.645","v":17.62917933130699},{"$f":"HousingCharacteristics!L89/1.645","v":13.373860182370821},22.127993584439263,{"$f":"HousingCharacteristics!G89-HousingCharacteristics!K89","v":28},1.2653655150953234,1.645]
[{"$error":"#REF!"},{"$f":"HousingCharacteristics!$D90/1.645","v":{"$error":"#REF!"}},{"$f":"HousingCharacteristics!L90/1.645","v":27.355623100303951},{"$error":"#REF!"},{"$f":"HousingCharacteristics!$D90-HousingCharacteristics!$K90","v":{"$error":"#REF!"}},{"$error":"#REF!"},1.645,"2 Bedrooms",null,"N",{"$f":"HousingCharacteristics!H90/1.645","v":27.96352583586626},{"$f":"HousingCharacteristics!L90/1.645","v":27.355623100303951},39.118907095917734,{"$f":"HousingCharacteristics!G90-HousingCharacteristics!K90","v":-44},1.124775799388108,1.645]
[{"$error":"#REF!"},{"$f":"HousingCharacteristics!$D91/1.645","v":{"$error":"#REF!"}},{"$f":"HousingCharacteristics!L91/1.645","v":30.3951367781155},{"$error":"#REF!"},{"$f":"HousingCharacteristics!$D91-HousingCharacteristics!$K91","v":{"$error":"#REF!"}},{"$error":"#REF!"},1.645,"3 Bedrooms",null,"Y",{"$f":"HousingCharacteristics!H91/1.645","v":34.650455927051674},{"$f":"HousingCharacteristics!L91/1.645","v":30.3951367781155},46.092498692443442,{"$f":"HousingCharacteristics!G91-HousingCharacteristics!K91","v":80},1.7356403377870131,1.645]
[{"$error":"#REF!"},{"$f":"HousingCharacteristics!$D92/1.645","v":{"$error":"#REF!"}},{"$f":"HousingCharacteristics!L92/1.645","v":16.186658912698295},{"$error":"#REF!"},{"$f":"HousingCharacteristics!$D92-HousingCharacteristics!$K92","v":{"$error":"#REF!"}},{"$error":"#REF!"},1.645,"4+ Bedrooms",null,"N",{"$f":"HousingCharacteristics!H92/1.645","v":16.603647761395333},{"$f":"HousingCharacteristics!L92/1.645","v":16.186658912698295},23.188122945605652,{"$f":"HousingCharacteristics!G92-HousingCharacteristics!K92","v":-14},0.60375736461467744,1.645]
[{"$error":"#REF!"},{"$f":"'HHIncome-10YearComparison'!$F$30/1.645","v":{"$error":"#REF!"}},{"$f":"'HHIncome-10YearComparison'!$M$30/1.645","v":7.9027355623100304},{"$f":"SQRT((B83^2)+(C83^2))","v":{"$error":"#REF!"}},{"$f":"'HHIncome-10YearComparison'!$E$30-'HHIncome-10YearComparison'!$L$30","v":{"$error":"#REF!"}},{"$error":"#REF!"},1.645,"Household Income Less than $10,000",null,{"$error":"#REF!"},{"$f":"'HHIncome-10YearComparison'!$F$30/1.645","v":{"$error":"#REF!"}},{"$f":"'HHIncome-10YearComparison'!$J$30/1.645","v":5.4711246200607899},{"$f":"SQRT((K83^2)+(L83^2))","v":{"$error":"#REF!"}},{"$f":"'HHIncome-10YearComparison'!$E$30-'HHIncome-10YearComparison'!$I$30","v":{"$error":"#REF!"}},{"$error":"#REF!"},1.645]
[{"$error":"#REF!"},{"$f":"'HHIncome-10YearComparison'!$F$31/1.645","v":{"$error":"#REF!"}},{"$f":"'HHIncome-10YearComparison'!$M$31/1.645","v":9.7264437689969601},{"$f":"SQRT((B84^2)+(C84^2))","v":{"$error":"#REF!"}},{"$f":"'HHIncome-10YearComparison'!$E$31-'HHIncome-10YearComparison'!$L$31","v":{"$error":"#REF!"}},{"$error":"#REF!"},1.645,"Household Income $10,000 to $14,999",null,{"$error":"#REF!"},{"$f":"'HHIncome-10YearComparison'!$F$31/1.645","v":{"$error":"#REF!"}},{"$f":"'HHIncome-10YearComparison'!$J$31/1.645","v":8.5106382978723403},{"$f":"SQRT((K84^2)+(L84^2))","v":{"$error":"#REF!"}},{"$f":"'HHIncome-10YearComparison'!$E$31-'HHIncome-10YearComparison'!$I$31","v":{"$error":"#REF!"}},{"$error":"#REF!"},1.645]
[{"$error":"#REF!"},{"$f":"'HHIncome-10YearComparison'!$F$32/1.645","v":{"$error":"#REF!"}},{"$f":"'HHIncome-10YearComparison'!$M$32/1.645","v":10.025788755301303},{"$error":"#REF!"},{"$f":"'HHIncome-10YearComparison'!$E$32-'HHIncome-10YearComparison'!$L$32","v":{"$error":"#REF!"}},{"$error":"#REF!"},1.645,"Household Income $15,000 to $24,999",null,{"$error":"#REF!"},{"$f":"'HHIncome-10YearComparison'!$F$32/1.645","v":{"$error":"#REF!"}},{"$f":"'HHIncome-10YearComparison'!$J$32/1.645","v":20.207623268808099},{"$error":"#REF!"},{"$f":"'HHIncome-10YearComparison'!$E$32-'HHIncome-10YearComparison'!$I$32","v":{"$error":"#REF!"}},{"$error":"#REF!"},1.645]
[{"$error":"#REF!"},{"$f":"'HHIncome-10YearComparison'!$F$33/1.645","v":{"$error":"#REF!"}},{"$f":"'HHIncome-10YearComparison'!$M$33/1.645","v":13.332347841617818},{"$error":"#REF!"},{"$f":"'HHIncome-10YearComparison'!$E$33-'HHIncome-10YearComparison'!$L$33","v":{"$error":"#REF!"}},{"$error":"#REF!"},1.645,"Household Income $25,000 to $34,999",null,{"$error":"#REF!"},{"$f":"'HHIncome-10YearComparison'!$F$33/1.645","v":{"$error":"#REF!"}},{"$f":"'HHIncome-10YearComparison'!$J$33/1.645","v":4.7478721434083004},{"$error":"#REF!"},{"$f":"'HHIncome-10YearComparison'!$E$33-'HHIncome-10YearComparison'!$I$33","v":{"$error":"#REF!"}},{"$error":"#REF!"},1.645]
[{"$error":"#REF!"},{"$f":"'HHIncome-10YearComparison'!$F$34/1.645","v":{"$error":"#REF!"}},{"$f":"'HHIncome-10YearComparison'!$M$34/1.645","v":14.652852028199332},{"$error":"#REF!"},{"$f":"'HHIncome-10YearComparison'!$E$34-'HHIncome-10YearComparison'!$L$34","v":{"$error":"#REF!"}},{"$error":"#REF!"},1.645,"Household Income $35,000 to $49,999",null,{"$error":"#REF!"},{"$f":"'HHIncome-10YearComparison'!$F$34/1.645","v":{"$error":"#REF!"}},{"$f":"'HHIncome-10YearComparison'!$J$34/1.645","v":13.875637945912858},{"$error":"#REF!"},{"$f":"'HHIncome-10YearComparison'!$E$34-'HHIncome-10YearComparison'!$I$34","v":{"$error":"#REF!"}},{"$error":"#REF!"},1.645]
[{"$error":"#REF!"},{"$f":"'HHIncome-10YearComparison'!$F$35/1.645","v":{"$error":"#REF!"}},{"$f":"'HHIncome-10YearComparison'!$M$35/1.645","v":11.974295199752103},{"$error":"#REF!"},{"$f":"'HHIncome-10YearComparison'!$E$35-'HHIncome-10YearComparison'!$L$35","v":{"$error":"#REF!"}},{"$error":"#REF!"},1.645,"Household Income $50,000 to $74,999",null,{"$error":"#REF!"},{"$f":"'HHIncome-10YearComparison'!$F$35/1.645","v":{"$error":"#REF!"}},{"$f":"'HHIncome-10YearComparison'!$J$35/1.645","v":14.449683068698739},{"$error":"#REF!"},{"$f":"'HHIncome-10YearComparison'!$E$35-'HHIncome-10YearComparison'!$I$35","v":{"$error":"#REF!"}},{"$error":"#REF!"},1.645]
[{"$error":"#REF!"},{"$f":"'HHIncome-10YearComparison'!$F$36/1.645","v":{"$error":"#REF!"}},{"$f":"'HHIncome-10YearComparison'!$M$36/1.645","v":9.1185410334346511},{"$error":"#REF!"},{"$f":"'HHIncome-10YearComparison'!$E$36-'HHIncome-10YearComparison'!$L$36","v":{"$error":"#REF!"}},{"$error":"#REF!"},1.645,"Household Income $75,000 to $99,999",null,{"$error":"#REF!"},{"$f":"'HHIncome-10YearComparison'!$F$36/1.645","v":{"$error":"#REF!"}},{"$f":"'HHIncome-10YearComparison'!$J$36/1.645","v":17.62917933130699},{"$error":"#REF!"},{"$f":"'HHIncome-10YearComparison'!$E$36-'HHIncome-10YearComparison'!$I$36","v":{"$error":"#REF!"}},{"$error":"#REF!"},1.645]
[{"$error":"#REF!"},{"$f":"'HHIncome-10YearComparison'!$F$37/1.645","v":{"$error":"#REF!"}},{"$f":"'HHIncome-10YearComparison'!$M$37/1.645","v":17.754506828583871},{"$error":"#REF!"},{"$f":"'HHIncome-10YearComparison'!$E$37-'HHIncome-10YearComparison'!$L$37","v":{"$error":"#REF!"}},{"$error":"#REF!"},1.645,"Household Income $100,000 to $149,999",null,{"$error":"#REF!"},{"$f":"'HHIncome-10YearComparison'!$F$37/1.645","v":{"$error":"#REF!"}},{"$f":"'HHIncome-10YearComparison'!$J$37/1.645","v":14.230638189324774},{"$error":"#REF!"},{"$f":"'HHIncome-10YearComparison'!$E$37-'HHIncome-10YearComparison'!$I$37","v":{"$error":"#REF!"}},{"$error":"#REF!"},1.645]
[{"$error":"#REF!"},{"$f":"'HHIncome-10YearComparison'!$F$38/1.645","v":{"$error":"#REF!"}},{"$f":"'HHIncome-10YearComparison'!$M$38/1.645","v":6.6869300911854106},{"$error":"#REF!"},{"$f":"'HHIncome-10YearComparison'!$E$38-'HHIncome-10YearComparison'!$L$38","v":{"$error":"#REF!"}},{"$error":"#REF!"},1.645,"Household Income $150,000 to $199,999",null,{"$error":"#REF!"},{"$f":"'HHIncome-10YearComparison'!$F$38/1.645","v":{"$error":"#REF!"}},{"$f":"'HHIncome-10YearComparison'!$J$38/1.645","v":4.2553191489361701},{"$error":"#REF!"},{"$f":"'HHIncome-10YearComparison'!$E$38-'HHIncome-10YearComparison'!$I$38","v":{"$error":"#REF!"}},{"$error":"#REF!"},1.645]
[{"$error":"#REF!"},{"$f":"'HHIncome-10YearComparison'!$F$39/1.645","v":{"$error":"#REF!"}},{"$f":"'HHIncome-10YearComparison'!$M$39/1.645","v":3.0395136778115499},{"$error":"#REF!"},{"$f":"'HHIncome-10YearComparison'!$E$39-'HHIncome-10YearComparison'!$L$39","v":{"$error":"#REF!"}},{"$error":"#REF!"},1.645,"Household Income Greater than $200,000",null,{"$error":"#REF!"},{"$f":"'HHIncome-10YearComparison'!$F$39/1.645","v":{"$error":"#REF!"}},{"$f":"'HHIncome-10YearComparison'!$J$39/1.645","v":5.4711246200607899},{"$error":"#REF!"},{"$f":"'HHIncome-10YearComparison'!$E$39-'HHIncome-10YearComparison'!$I$39","v":{"$error":"#REF!"}},{"$error":"#REF!"},1.645]
[{"$error":"#REF!"},{"$f":"'HHIncome-10YearComparison'!$F$41/1.645","v":0},{"$f":"'HHIncome-10YearComparison'!$M$41/1.645","v":7873.5562310030391},7873.5562310030391,{"$f":"'HHIncome-10YearComparison'!$E$41-'HHIncome-10YearComparison'!$I$41","v":{"$error":"#REF!"}},{"$error":"#REF!"},1.645,"Median Household Income",null,{"$error":"#REF!"},{"$f":"'HHIncome-10YearComparison'!$F$41/1.645","v":0},{"$f":"'HHIncome-10YearComparison'!$J$41/1.645","v":12674.772036474164},12674.772036474164,{"$f":"'HHIncome-10YearComparison'!$E$41-'HHIncome-10YearComparison'!$I$41","v":{"$error":"#REF!"}},{"$error":"#REF!"},1.645]
[{"$error":"#REF!"},{"$f":"PovertyCharacteristics!$E$54/1.645","v":{"$error":"#REF!"}},{"$f":"PovertyCharacteristics!$M54/1.645","v":10.94224924012158},{"$error":"#REF!"},{"$f":"PovertyCharacteristics!$D54-PovertyCharacteristics!$L54","v":{"$error":"#REF!"}},{"$error":"#REF!"},1.645,"Total Households Below Poverty Level",null,"N",{"$f":"PovertyCharacteristics!$I$54/1.645","v":15.19756838905775},{"$f":"PovertyCharacteristics!$M54/1.645","v":10.94224924012158},18.726956596655761,{"$f":"PovertyCharacteristics!$H54-PovertyCharacteristics!$L54","v":-4},0.21359583867003332,1.645]
[{"$error":"#REF!"},{"$f":"PovertyCharacteristics!$E$55/1.645","v":{"$error":"#REF!"}},{"$f":"PovertyCharacteristics!$M55/1.645","v":7.9027355623100304},{"$error":"#REF!"},{"$f":"PovertyCharacteristics!$D55-PovertyCharacteristics!$L55","v":{"$error":"#REF!"}},{"$error":"#REF!"},1.645,"Family Households Below Poverty Level",null,"N",{"$f":"PovertyCharacteristics!$I$55/1.645","v":10.334346504559271},{"$f":"PovertyCharacteristics!$M55/1.645","v":7.9027355623100304},13.009686662025956,{"$f":"PovertyCharacteristics!$H55-PovertyCharacteristics!$L55","v":2},0.15373160414676323,1.645]
[{"$error":"#REF!"},{"$f":"PovertyCharacteristics!$E$56/1.645","v":{"$error":"#REF!"}},{"$f":"PovertyCharacteristics!$M56/1.645","v":6.6869300911854106},{"$error":"#REF!"},{"$f":"PovertyCharacteristics!$D56-PovertyCharacteristics!$L56","v":{"$error":"#REF!"}},{"$error":"#REF!"},1.645,"Married Couple Fam HH Below Poverty Level",null,"N",{"$f":"PovertyCharacteristics!$I$56/1.645","v":10.334346504559271},{"$f":"PovertyCharacteristics!$M56/1.645","v":6.6869300911854106},12.309092237882425,{"$f":"PovertyCharacteristics!$H56-PovertyCharacteristics!$L56","v":16},1.2998521491908599,1.645]
[{"$error":"#REF!"},{"$f":"PovertyCharacteristics!$E$57/1.645","v":{"$error":"#REF!"}},{"$f":"PovertyCharacteristics!$M57/1.645","v":6.6869300911854106},{"$error":"#REF!"},{"$f":"PovertyCharacteristics!$D57-PovertyCharacteristics!$L57","v":{"$error":"#REF!"}},{"$error":"#REF!"},1.645,"M C Fam HH w/Children Below Poverty Level",null,"N",{"$f":"PovertyCharacteristics!$I$57/1.645","v":9.1185410334346511},{"$f":"PovertyCharacteristics!$M57/1.645","v":6.6869300911854106},11.307644521421444,{"$f":"PovertyCharacteristics!$H57-PovertyCharacteristics!$L57","v":13},1.1496647224249508,1.645]
[{"$error":"#REF!"},{"$f":"PovertyCharacteristics!$E$58/1.645","v":{"$error":"#REF!"}},{"$f":"PovertyCharacteristics!$M58/1.645","v":6.6869300911854106},{"$error":"#REF!"},{"$f":"PovertyCharacteristics!$D58-PovertyCharacteristics!$L58","v":{"$error":"#REF!"}},{"$error":"#REF!"},1.645,"Male Head of Family HH  Below Poverty Level",null,"N",{"$f":"PovertyCharacteristics!$I$58/1.645","v":6.6869300911854106},{"$f":"PovertyCharacteristics!$M58/1.645","v":6.6869300911854106},9.4567472255951639,{"$f":"PovertyCharacteristics!$H58-PovertyCharacteristics!$L58","v":-8},0.8459568400377242,1.645]
[{"$error":"#REF!"},{"$f":"PovertyCharacteristics!$E$59/1.645","v":{"$error":"#REF!"}},{"$f":"PovertyCharacteristics!$M59/1.645","v":3.0395136778115499},{"$error":"#REF!"},{"$f":"PovertyCharacteristics!$D59-PovertyCharacteristics!$L59","v":{"$error":"#REF!"}},{"$error":"#REF!"},1.645,"Male Head of HH w/Children Below Poverty Level",null,"N",{"$f":"PovertyCharacteristics!$I$59/1.645","v":6.6869300911854106},{"$f":"PovertyCharacteristics!$M59/1.645","v":3.0395136778115499},7.3453167012732967,{"$f":"PovertyCharacteristics!$H59-PovertyCharacteristics!$L59","v":-2},0.27228233735017904,1.645]
[{"$error":"#REF!"},{"$f":"PovertyCharacteristics!$E$60/1.645","v":{"$error":"#REF!"}},{"$f":"PovertyCharacteristics!$M60/1.645","v":4.86322188449848},{"$error":"#REF!"},{"$f":"PovertyCharacteristics!$D60-PovertyCharacteristics!$L60","v":{"$error":"#REF!"}},{"$error":"#REF!"},1.645,"Female Head of Family HH  Below Poverty Level",null,"N",{"$f":"PovertyCharacteristics!$I$60/1.645","v":10.334346504559271},{"$f":"PovertyCharacteristics!$M60/1.645","v":4.86322188449848},11.421455457784763,{"$f":"PovertyCharacteristics!$H60-PovertyCharacteristics!$L60","v":4},0.35021806238132597,1.645]
[{"$error":"#REF!"},{"$f":"PovertyCharacteristics!$E$61/1.645","v":{"$error":"#REF!"}},{"$f":"PovertyCharacteristics!$M61/1.645","v":4.86322188449848},{"$error":"#REF!"},{"$f":"PovertyCharacteristics!$D61-PovertyCharacteristics!$L61","v":{"$error":"#REF!"}},{"$error":"#REF!"},1.645,"Female Head of HH w/Children Below Poverty Level",null,"N",{"$f":"PovertyCharacteristics!$I$61/1.645","v":10.334346504559271},{"$f":"PovertyCharacteristics!$M61/1.645","v":4.86322188449848},11.421455457784763,{"$f":"PovertyCharacteristics!$H61-PovertyCharacteristics!$L61","v":4},0.35021806238132597,1.645]
[{"$error":"#REF!"},{"$f":"PovertyCharacteristics!$E$62/1.645","v":{"$error":"#REF!"}},{"$f":"PovertyCharacteristics!$M62/1.645","v":8.5106382978723403},{"$error":"#REF!"},{"$f":"PovertyCharacteristics!$D62-PovertyCharacteristics!$L62","v":{"$error":"#REF!"}},{"$error":"#REF!"},1.645,"Non-Family HH  Below Poverty Level",null,"N",{"$f":"PovertyCharacteristics!$I$62/1.645","v":6.0790273556230998},{"$f":"PovertyCharacteristics!$M62/1.645","v":8.5106382978723403},10.458754124063983,{"$f":"PovertyCharacteristics!$H62-PovertyCharacteristics!$L62","v":-4},0.38245473146716547,1.645]
[{"$error":"#REF!"},{"$f":"PovertyCharacteristics!$E$68/1.645","v":{"$error":"#REF!"}},{"$f":"PovertyCharacteristics!$M68/1.645","v":33.434650455927049},{"$error":"#REF!"},{"$f":"PovertyCharacteristics!$D68-PovertyCharacteristics!$L68","v":{"$error":"#REF!"}},{"$error":"#REF!"},1.645,"Total Households At or Above Poverty Level",null,"N",{"$f":"PovertyCharacteristics!$I$68/1.645","v":32.218844984802431},{"$f":"PovertyCharacteristics!$M68/1.645","v":33.434650455927049},46.431991377333276,{"$f":"PovertyCharacteristics!$H68-PovertyCharacteristics!$L68","v":-7},0.15075812586011964,1.645]
[{"$error":"#REF!"},{"$f":"PovertyCharacteristics!$E$69/1.645","v":{"$error":"#REF!"}},{"$f":"PovertyCharacteristics!$M69/1.645","v":28.571428571428569},{"$error":"#REF!"},{"$f":"PovertyCharacteristics!$D69-PovertyCharacteristics!$L69","v":{"$error":"#REF!"}},{"$error":"#REF!"},1.645,"Family Households At or Above Poverty Level",null,"N",{"$f":"PovertyCharacteristics!$I$69/1.645","v":32.218844984802431},{"$f":"PovertyCharacteristics!$M69/1.645","v":28.571428571428569},43.062518537203246,{"$f":"PovertyCharacteristics!$H69-PovertyCharacteristics!$L69","v":3},6.9666152884397439E-2,1.645]
[{"$error":"#REF!"},{"$f":"PovertyCharacteristics!$E$70/1.645","v":{"$error":"#REF!"}},{"$f":"PovertyCharacteristics!$M70/1.645","v":25.531914893617021},{"$error":"#REF!"},{"$f":"PovertyCharacteristics!$D70-PovertyCharacteristics!$L70","v":{"$error":"#REF!"}},{"$error":"#REF!"},1.645,"Married Couple Fam HH At or Above Poverty Level",null,"N",{"$f":"PovertyCharacteristics!$I$70/1.645","v":29.787234042553191},{"$f":"PovertyCharacteristics!$M70/1.645","v":25.531914893617021},39.232104073586754,{"$f":"PovertyCharacteristics!$H70-PovertyCharacteristics!$L70","v":22},0.5607652334612262,1.645]
[{"$error":"#REF!"},{"$f":"PovertyCharacteristics!$E$71/1.645","v":{"$error":"#REF!"}},{"$f":"PovertyCharacteristics!$M71/1.645","v":14.589665653495441},{"$error":"#REF!"},{"$f":"PovertyCharacteristics!$D71-PovertyCharacteristics!$L71","v":{"$error":"#REF!"}},{"$error":"#REF!"},1.645,"M C Fam HH w/Children At or Above Poverty Level",null,"N",{"$f":"PovertyCharacteristics!$I$71/1.645","v":20.668693009118542},{"$f":"PovertyCharacteristics!$M71/1.645","v":14.589665653495441},25.299273005087915,{"$f":"PovertyCharacteristics!$H71-PovertyCharacteristics!$L71","v":26},1.0276975150539369,1.645]
[{"$error":"#REF!"},{"$f":"PovertyCharacteristics!$E$72/1.645","v":{"$error":"#REF!"}},{"$f":"PovertyCharacteristics!$M72/1.645","v":3.0395136778115499},{"$error":"#REF!"},{"$f":"PovertyCharacteristics!$D72-PovertyCharacteristics!$L72","v":{"$error":"#REF!"}},{"$error":"#REF!"},1.645,"Male Head of Family HH  At or Above Poverty Level",null,"N",{"$f":"PovertyCharacteristics!$I$72/1.645","v":6.6869300911854106},{"$f":"PovertyCharacteristics!$M72/1.645","v":3.0395136778115499},7.3453167012732967,{"$f":"PovertyCharacteristics!$H72-PovertyCharacteristics!$L72","v":-3},0.40842350602526856,1.645]
[{"$error":"#REF!"},{"$f":"PovertyCharacteristics!$E$73/1.645","v":{"$error":"#REF!"}},{"$f":"PovertyCharacteristics!$M73/1.645","v":3.0395136778115499},{"$error":"#REF!"},{"$f":"PovertyCharacteristics!$D73-PovertyCharacteristics!$L73","v":{"$error":"#REF!"}},{"$error":"#REF!"},1.645,"Male Head of HH w/Children At or Above Poverty Level",null,"N",{"$f":"PovertyCharacteristics!$I$73/1.645","v":6.6869300911854106},{"$f":"PovertyCharacteristics!$M73/1.645","v":3.0395136778115499},7.3453167012732967,{"$f":"PovertyCharacteristics!$H73-PovertyCharacteristics!$L73","v":-3},0.40842350602526856,1.645]
[{"$error":"#REF!"},{"$f":"PovertyCharacteristics!$E$74/1.645","v":{"$error":"#REF!"}},{"$f":"PovertyCharacteristics!$M74/1.645","v":12.76595744680851},{"$error":"#REF!"},{"$f":"PovertyCharacteristics!$D74-PovertyCharacteristics!$L74","v":{"$error":"#REF!"}},{"$error":"#REF!"},1.645,"Female Head of Family HH  At or Above Poverty Level",null,"N",{"$f":"PovertyCharacteristics!$I$74/1.645","v":10.94224924012158},{"$f":"PovertyCharacteristics!$M74/1.645","v":12.76595744680851},16.813758888680034,{"$f":"PovertyCharacteristics!$H74-PovertyCharacteristics!$L74","v":-16},0.95160160829783857,1.645]
[{"$error":"#REF!"},{"$f":"PovertyCharacteristics!$E$75/1.645","v":{"$error":"#REF!"}},{"$f":"PovertyCharacteristics!$M75/1.645","v":7.2948328267477205},{"$error":"#REF!"},{"$f":"PovertyCharacteristics!$D75-PovertyCharacteristics!$L75","v":{"$error":"#REF!"}},{"$error":"#REF!"},1.645,"Female Head of HH w/Children At or Above Poverty Level",null,"N",{"$f":"PovertyCharacteristics!$I$75/1.645","v":10.94224924012158},{"$f":"PovertyCharacteristics!$M75/1.645","v":7.2948328267477205},13.15094690138841,{"$f":"PovertyCharacteristics!$H75-PovertyCharacteristics!$L75","v":4},0.304160607596834,1.645]
[{"$error":"#REF!"},{"$f":"PovertyCharacteristics!$E$76/1.645","v":{"$error":"#REF!"}},{"$f":"PovertyCharacteristics!$M76/1.645","v":17.62917933130699},{"$error":"#REF!"},{"$f":"PovertyCharacteristics!$D76-PovertyCharacteristics!$L76","v":{"$error":"#REF!"}},{"$error":"#REF!"},1.645,"Non-Family HH  At or Above Poverty Level",null,"N",{"$f":"PovertyCharacteristics!$I$76/1.645","v":16.413373860182372},{"$f":"PovertyCharacteristics!$M76/1.645","v":17.62917933130699},24.087067180740362,{"$f":"PovertyCharacteristics!$H76-PovertyCharacteristics!$L76","v":-10},0.41516054756536908,1.645]
[{"$error":"#REF!"},{"$f":"PovertyCharacteristics!$E24/1.645","v":{"$error":"#REF!"}},{"$f":"PovertyCharacteristics!M24/1.645","v":27.355623100303951},{"$error":"#REF!"},{"$f":"PovertyCharacteristics!H24-PovertyCharacteristics!L24","v":50},{"$error":"#REF!"},1.645,"Total Individuals Living in Poverty",null,{"$f":"IF(O112>P112,\"Y\",\"N\")","v":"N"},{"$f":"PovertyCharacteristics!$I24/1.645","v":62.006079027355625},{"$f":"PovertyCharacteristics!$M24/1.645","v":27.355623100303951},67.77229486709561,{"$f":"PovertyCharacteristics!$H24-PovertyCharacteristics!$L24","v":50},0.73776459979778097,1.645]
[{"$error":"#REF!"},{"$f":"PovertyCharacteristics!$E25/1.645","v":{"$error":"#REF!"}},{"$f":"PovertyCharacteristics!M25/1.645","v":18.287670463819239},{"$error":"#REF!"},{"$f":"PovertyCharacteristics!H25-PovertyCharacteristics!L25","v":4},{"$error":"#REF!"},1.645,"Individuals Under 5 yrs. Living in Poverty",null,"N",{"$f":"PovertyCharacteristics!$I25/1.645","v":13.122816501472888},{"$f":"PovertyCharacteristics!$M25/1.645","v":18.287670463819239},22.508825023189811,{"$f":"PovertyCharacteristics!$H25-PovertyCharacteristics!$L25","v":4},0.17770807653793494,1.645]
[{"$error":"#REF!"},{"$f":"PovertyCharacteristics!$E26/1.645","v":{"$error":"#REF!"}},{"$f":"PovertyCharacteristics!M26/1.645","v":18.558465072916409},{"$error":"#REF!"},{"$f":"PovertyCharacteristics!H26-PovertyCharacteristics!L26","v":17},{"$error":"#REF!"},1.645,"Individuals 5 to 17 yrs. Living in Poverty",null,"N",{"$f":"PovertyCharacteristics!$I26/1.645","v":20.793472798160572},{"$f":"PovertyCharacteristics!$M26/1.645","v":18.558465072916409},27.870865377137143,{"$f":"PovertyCharacteristics!$H26-PovertyCharacteristics!$L26","v":17},0.60995594395663566,1.645]
[{"$error":"#REF!"},{"$f":"PovertyCharacteristics!$E27/1.645","v":{"$error":"#REF!"}},{"$f":"PovertyCharacteristics!M27/1.645","v":19.010937107734819},{"$error":"#REF!"},{"$f":"PovertyCharacteristics!H27-PovertyCharacteristics!L27","v":39},{"$error":"#REF!"},1.645,"Individuals 18 to 64 yrs. Living in Poverty",null,"N",{"$f":"PovertyCharacteristics!$I27/1.645","v":30.03433271011702},{"$f":"PovertyCharacteristics!$M27/1.645","v":19.010937107734819},35.545419832325145,{"$f":"PovertyCharacteristics!$H27-PovertyCharacteristics!$L27","v":39},1.0971877722635097,1.645]
[{"$error":"#REF!"},{"$f":"PovertyCharacteristics!$E28/1.645","v":{"$error":"#REF!"}},{"$f":"PovertyCharacteristics!M28/1.645","v":3.4388171729436965},{"$error":"#REF!"},{"$f":"PovertyCharacteristics!H28-PovertyCharacteristics!L28","v":-2},{"$error":"#REF!"},1.645,"Individuals 65 to 74 yrs. Living in Poverty",null,"N",{"$f":"PovertyCharacteristics!$I28/1.645","v":7.3453167012732958},{"$f":"PovertyCharacteristics!$M28/1.645","v":3.4388171729436965},8.1104340815357663,{"$f":"PovertyCharacteristics!$H28-PovertyCharacteristics!$L28","v":-2},0.24659592567963839,1.645]
[{"$error":"#REF!"},{"$f":"PovertyCharacteristics!$E29/1.645","v":{"$error":"#REF!"}},{"$f":"PovertyCharacteristics!M29/1.645","v":7.5193415664759762},{"$error":"#REF!"},{"$f":"PovertyCharacteristics!H29-PovertyCharacteristics!L29","v":-8},{"$error":"#REF!"},1.645,"Individuals 75 yrs. & Over Living in Poverty",null,"N",{"$f":"PovertyCharacteristics!$I29/1.645","v":7.1153190946623868},{"$f":"PovertyCharacteristics!$M29/1.645","v":7.5193415664759762},10.352210556794166,{"$f":"PovertyCharacteristics!$H29-PovertyCharacteristics!$L29","v":-8},0.77278180888134973,1.645]
[null,null,null,null,null,null,null,"Under 5",null,"N",{"$f":"DisabilityByAgePrior5YearEst!$E$31/1.645","v":22.019173588176091},{"$f":"DisabilityByAge!$E$31/1.645","v":17.878955829608199},{"$f":"SQRT((K118^2)+(L118^2))","v":28.363728017722082},{"$f":"DisabilityByAge!$D$31-DisabilityByAgePrior5YearEst!$D$31","v":-33},1.163457778870997,1.645]
[null,null,null,null,null,null,null,"5 to 17",null,"N",{"$f":"DisabilityByAgePrior5YearEst!$F$31/1.645","v":94.224924012158056},{"$f":"DisabilityByAge!$F$31/1.645","v":50.455927051671729},{"$f":"SQRT((K119^2)+(L119^2))","v":106.8837540496243},{"$f":"DisabilityByAge!$D$31-DisabilityByAgePrior5YearEst!$D$31","v":-33},0.30874664062303298,1.645]
[null,null,null,null,null,null,null,"18 to 34",null,"N",{"$f":"DisabilityByAgePrior5YearEst!$I$31/1.645","v":23.227930911298234},{"$f":"DisabilityByAge!$I$31/1.645","v":30.997079109986533},38.734425099268059,{"$f":"DisabilityByAge!$D$31-DisabilityByAgePrior5YearEst!$D$31","v":-33},0.8519553321219574,1.645]
[null,null,null,null,null,null,null,"35 to 64",null,"N",{"$f":"DisabilityByAgePrior5YearEst!$K$31/1.645","v":39.978560601720076},{"$f":"DisabilityByAge!$K$31/1.645","v":37.216359550185935},54.61998467552074,{"$f":"DisabilityByAge!$D$31-DisabilityByAgePrior5YearEst!$D$31","v":-33},0.60417446464040736,1.645]
[null,null,null,null,null,null,null,"65 to 74",null,"N",{"$f":"DisabilityByAgePrior5YearEst!$M$31/1.645","v":15.474677278246633},{"$f":"DisabilityByAge!$M$31/1.645","v":18.378378672134922},24.025620480692403,{"$f":"DisabilityByAge!$D$31-DisabilityByAgePrior5YearEst!$D$31","v":-33},1.3735337252380073,1.645]
[null,null,null,null,null,null,null,"75 and Over",null,"N",{"$f":"DisabilityByAgePrior5YearEst!$O$31/1.645","v":14.614972985010708},{"$f":"DisabilityByAge!$O$31/1.645","v":17.407685183314715},22.729384918954306,{"$f":"DisabilityByAge!$D$31-DisabilityByAgePrior5YearEst!$D$31","v":-33},1.4518650688378683,1.645]
[null,null,null,null,null,null,null,"With a Disability -Under 5",null,"Y",{"$f":"DisabilityByAgePrior5YearEst!$E$33/1.645","v":9.4567472255951639},{"$f":"DisabilityByAge!$E$33/1.645","v":9.4567472255951639},13.373860182370819,{"$f":"DisabilityByAge!$D$31-DisabilityByAgePrior5YearEst!$D$31","v":-33},2.4675000000000002,1.645]
[null,null,null,null,null,null,null,"With a Disability -5 to 17",null,"Y",{"$f":"DisabilityByAgePrior5YearEst!$F$33/1.645","v":0},{"$f":"DisabilityByAge!$F$33/1.645","v":3.6474164133738602},3.6474164133738602,{"$f":"DisabilityByAge!$D$31-DisabilityByAgePrior5YearEst!$D$31","v":-33},9.0474999999999994,1.645]
[null,null,null,null,null,null,null,"With a Disability -18 to 34",null,"Y",{"$f":"DisabilityByAgePrior5YearEst!$I$33/1.645","v":9.4567472255951639},{"$f":"DisabilityByAge!$I$33/1.645","v":9.1185410334346511},13.136889230987421,{"$f":"DisabilityByAge!$D$31-DisabilityByAgePrior5YearEst!$D$31","v":-33},2.512010219448245,1.645]
[null,null,null,null,null,null,null,"With a Disability -35 to 64",null,"Y",{"$f":"DisabilityByAgePrior5YearEst!$K$33/1.645","v":8.1784948614429851},{"$f":"DisabilityByAge!$K$33/1.645","v":12.780423125610115},15.173232795560713,{"$f":"DisabilityByAge!$D$31-DisabilityByAgePrior5YearEst!$D$31","v":-33},{"$f":"ABS((N127/M127))","v":2.1748826004735742},1.645]
[null,null,null,null,null,null,null,"With a Disability -65 to 74",null,"Y",{"$f":"DisabilityByAgePrior5YearEst!$M$33/1.645","v":9.5151828829778289},{"$f":"DisabilityByAge!$M$33/1.645","v":7.1153190946623868},11.881349717745936,{"$f":"DisabilityByAge!$D$31-DisabilityByAgePrior5YearEst!$D$31","v":-33},2.7774622230596693,1.645]
[null,null,null,null,null,null,null,"With a Disability -75 and Over",null,"N",{"$f":"DisabilityByAgePrior5YearEst!$O$33/1.645","v":13.862315198773713},{"$f":"DisabilityByAge!$O$33/1.645","v":15.956723098366794},21.137189848892049,{"$f":"DisabilityByAge!$D$31-DisabilityByAgePrior5YearEst!$D$31","v":-33},1.5612292947129756,1.645]
[null,null,null,null,null,null,null,"Hearing Disability - Under 5",null,"Y",{"$f":"DisabilityByAgePrior5YearEst!$E$38/1.645","v":9.4567472255951639},{"$f":"DisabilityByAge!$E$38/1.645","v":9.4567472255951639},13.373860182370819,{"$f":"DisabilityByAge!$D$31-DisabilityByAgePrior5YearEst!$D$31","v":-33},2.4675000000000002,1.645]
[null,null,null,null,null,null,null,"Hearing Disability - 5 to 17",null,{"$error":"#DIV/0!"},{"$f":"DisabilityByAgePrior5YearEst!$F$38/1.645","v":0},{"$f":"DisabilityByAge!$F$38/1.645","v":0},0,{"$f":"DisabilityByAge!$D$31-DisabilityByAgePrior5YearEst!$D$31","v":-33},{"$error":"#DIV/0!"},1.645]
[null,null,null,null,null,null,null,"Hearing Disability - 18 to 34",null,"Y",{"$f":"DisabilityByAgePrior5YearEst!$I$38/1.645","v":9.4567472255951639},{"$f":"DisabilityByAge!$I$38/1.645","v":9.4567472255951639},13.373860182370819,{"$f":"DisabilityByAge!$D$31-DisabilityByAgePrior5YearEst!$D$31","v":-33},2.4675000000000002,1.645]
[null,null,null,null,null,null,null,"Hearing Disability - 35 to 64",null,"Y",{"$f":"DisabilityByAgePrior5YearEst!$K$38/1.645","v":4.7478721434083004},{"$f":"DisabilityByAge!$K$38/1.645","v":5.2293770620319915},7.0631915128402731,{"$f":"DisabilityByAge!$D$31-DisabilityByAgePrior5YearEst!$D$31","v":-33},4.6721089099748809,1.645]
[null,null,null,null,null,null,null,"Hearing Disability - 65 to 74",null,"Y",{"$f":"DisabilityByAgePrior5YearEst!$M$38/1.645","v":10.823400495297786},{"$f":"DisabilityByAge!$M$38/1.645","v":7.1153190946623868},12.952751217424023,{"$f":"DisabilityByAge!$D$31-DisabilityByAgePrior5YearEst!$D$31","v":-33},2.5477212868574552,1.645]
[null,null,null,null,null,null,null,"Hearing Disability - 75 and Over",null,"Y",{"$f":"DisabilityByAgePrior5YearEst!$O$38/1.645","v":4.9010685399991178},{"$f":"DisabilityByAge!$O$38/1.645","v":8.1104340815357645},9.4762658164862579,{"$f":"DisabilityByAge!$D$31-DisabilityByAgePrior5YearEst!$D$31","v":-33},3.482384373662093,1.645]
[null,null,null,null,null,null,null,"Visual Disability - Under 5",null,"Y",{"$f":"DisabilityByAgePrior5YearEst!$E$39/1.645","v":9.4567472255951639},{"$f":"DisabilityByAge!$E$39/1.645","v":9.4567472255951639},13.373860182370819,{"$f":"DisabilityByAge!$D$31-DisabilityByAgePrior5YearEst!$D$31","v":-33},2.4675000000000002,1.645]
[null,null,null,null,null,null,null,"Visual Disability - 5 to 17",null,{"$error":"#DIV/0!"},{"$f":"DisabilityByAgePrior5YearEst!$F$39/1.645","v":0},{"$f":"DisabilityByAge!$F$39/1.645","v":0},0,{"$f":"DisabilityByAge!$D$31-DisabilityByAgePrior5YearEst!$D$31","v":-33},{"$error":"#DIV/0!"},1.645]
[null,null,null,null,null,null,null,"Visual Disability - 18 to 34",null,"Y",{"$f":"DisabilityByAgePrior5YearEst!$I$39/1.645","v":9.4567472255951639},{"$f":"DisabilityByAge!$I$39/1.645","v":9.4567472255951639},13.373860182370819,{"$f":"DisabilityByAge!$D$31-DisabilityByAgePrior5YearEst!$D$31","v":-33},2.4675000000000002,1.645]
[null,null,null,null,null,null,null,"Visual Disability - 35 to 64",null,"Y",{"$f":"DisabilityByAgePrior5YearEst!$K$39/1.645","v":7.3453167012732958},{"$f":"DisabilityByAge!$K$39/1.645","v":8.6399212179646785},{"$f":"SQRT((K140^2)+(L140^2))","v":13.373860182370819},{"$f":"DisabilityByAge!$D$31-DisabilityByAgePrior5YearEst!$D$31","v":-33},{"$f":"ABS((N140/M140))","v":2.4675000000000002},1.645]
[null,null,null,null,null,null,null,"Visual Disability - 65 to 74",null,"Y",{"$f":"DisabilityByAgePrior5YearEst!$M$39/1.645","v":9.4567472255951639},{"$f":"DisabilityByAge!$M$39/1.645","v":9.4567472255951639},13.373860182370819,{"$f":"DisabilityByAge!$D$31-DisabilityByAgePrior5YearEst!$D$31","v":-33},2.4675000000000002,1.645]
[null,null,null,null,null,null,null,"Visual Disability - 75 and Over",null,"Y",{"$f":"DisabilityByAgePrior5YearEst!$O$39/1.645","v":9.4567472255951639},{"$f":"DisabilityByAge!$O$39/1.645","v":9.4567472255951639},13.373860182370819,{"$f":"DisabilityByAge!$D$31-DisabilityByAgePrior5YearEst!$D$31","v":-33},2.4675000000000002,1.645]
[null,null,null,null,null,null,null,"Cognative Disability - 5 to 17",null,"Y",{"$f":"DisabilityByAgePrior5YearEst!$F$40/1.645","v":0},{"$f":"DisabilityByAge!$F$40/1.645","v":3.6474164133738602},3.6474164133738602,{"$f":"DisabilityByAge!$D$31-DisabilityByAgePrior5YearEst!$D$31","v":-33},9.0474999999999994,1.645]
[null,null,null,null,null,null,null,"Cognative Disability - 18 to 34",null,"Y",{"$f":"DisabilityByAgePrior5YearEst!$I$40/1.645","v":9.4567472255951639},{"$f":"DisabilityByAge!$I$40/1.645","v":9.1185410334346511},13.136889230987421,{"$f":"DisabilityByAge!$D$31-DisabilityByAgePrior5YearEst!$D$31","v":-33},2.512010219448245,1.645]
[null,null,null,null,null,null,null,"Cognative Disability - 35 to 64",null,{"$f":"IF(O144>P144,\"Y\",\"N\")","v":"Y"},{"$f":"DisabilityByAgePrior5YearEst!$K$40/1.645","v":4.6296493044765406},{"$f":"DisabilityByAge!$K$40/1.645","v":7.1153190946623868},{"$f":"SQRT((K145^2)+(L145^2))","v":11.974295199752103},{"$f":"DisabilityByAge!$D$31-DisabilityByAgePrior5YearEst!$D$31","v":-33},{"$f":"ABS((N145/M145))","v":2.7559033287139254},1.645]
[null,null,null,null,null,null,null,"Cognative Disability - 65 to 74",null,"Y",{"$f":"DisabilityByAgePrior5YearEst!$M$40/1.645","v":7.3453167012732958},{"$f":"DisabilityByAge!$M$40/1.645","v":9.4567472255951639},{"$f":"SQRT((K145^2)+(L145^2))","v":11.974295199752103},{"$f":"DisabilityByAge!$D$31-DisabilityByAgePrior5YearEst!$D$31","v":-33},{"$f":"ABS((N145/M145))","v":2.7559033287139254},1.645]
[null,null,null,null,null,null,null,"Cognative Disability - 75 and Over",null,"Y",{"$f":"DisabilityByAgePrior5YearEst!$O$40/1.645","v":6.9311575993868564},{"$f":"DisabilityByAge!$O$40/1.645","v":14.703205619997354},{"$f":"SQRT((K146^2)+(L146^2))","v":16.25500541899202},{"$f":"DisabilityByAge!$D$31-DisabilityByAgePrior5YearEst!$D$31","v":-33},{"$f":"ABS((N146/M146))","v":2.0301438941043641},1.645]
[null,null,null,null,null,null,null,"Amblatory Disability - 5 to 17",null,{"$error":"#DIV/0!"},{"$f":"DisabilityByAgePrior5YearEst!$F$41/1.645","v":0},{"$f":"DisabilityByAge!$F$41/1.645","v":0},{"$f":"SQRT((K147^2)+(L147^2))","v":0},{"$f":"DisabilityByAge!$D$31-DisabilityByAgePrior5YearEst!$D$31","v":-33},{"$f":"ABS((N147/M147))","v":{"$error":"#DIV/0!"}},1.645]
[null,null,null,null,null,null,null,"Amblatory Disability - 18 to 34",null,"Y",{"$f":"DisabilityByAgePrior5YearEst!$I$41/1.645","v":9.4567472255951639},{"$f":"DisabilityByAge!$I$41/1.645","v":9.4567472255951639},{"$f":"SQRT((K148^2)+(L148^2))","v":13.373860182370819},{"$f":"DisabilityByAge!$D$31-DisabilityByAgePrior5YearEst!$D$31","v":-33},{"$f":"ABS((N148/M148))","v":2.4675000000000002},1.645]
[null,null,null,null,null,null,null,"Amblatory Disability - 35 to 64",null,"Y",{"$f":"DisabilityByAgePrior5YearEst!$K$41/1.645","v":7.7849534801615174},{"$f":"DisabilityByAge!$K$41/1.645","v":13.332347841617818},{"$f":"SQRT((K150^2)+(L150^2))","v":8.0187878165792821},{"$f":"DisabilityByAge!$D$31-DisabilityByAgePrior5YearEst!$D$31","v":-33},{"$f":"ABS((N150/M150))","v":4.1153352295680774},1.645]
[null,null,null,null,null,null,null,"Amblatory Disability - 65 to 74",null,"Y",{"$f":"DisabilityByAgePrior5YearEst!$M$41/1.645","v":5.2293770620319915},{"$f":"DisabilityByAge!$M$41/1.645","v":6.0790273556230998},{"$f":"SQRT((K150^2)+(L150^2))","v":8.0187878165792821},{"$f":"DisabilityByAge!$D$31-DisabilityByAgePrior5YearEst!$D$31","v":-33},{"$f":"ABS((N150/M150))","v":4.1153352295680774},1.645]
[null,null,null,null,null,null,null,"Amblatory Disability - 75 and Over",null,"Y",{"$f":"DisabilityByAgePrior5YearEst!$O$41/1.645","v":12.924189437975258},{"$f":"DisabilityByAge!$O$41/1.645","v":11.989716062806092},{"$f":"SQRT((K151^2)+(L151^2))","v":17.62917933130699},{"$f":"DisabilityByAge!$D$31-DisabilityByAgePrior5YearEst!$D$31","v":-33},{"$f":"ABS((N151/M151))","v":1.8718965517241382},1.645]
[null,null,null,null,null,null,null,"Self Care Disability - 5 to 17",null,{"$error":"#DIV/0!"},{"$f":"DisabilityByAgePrior5YearEst!$F$42/1.645","v":0},{"$f":"DisabilityByAge!$F$42/1.645","v":0},{"$f":"SQRT((K152^2)+(L152^2))","v":0},{"$f":"DisabilityByAge!$D$31-DisabilityByAgePrior5YearEst!$D$31","v":-33},{"$f":"ABS((N152/M152))","v":{"$error":"#DIV/0!"}},1.645]
[null,null,null,null,null,null,null,"Self Care Disability - 18 to 34",null,"Y",{"$f":"DisabilityByAgePrior5YearEst!$I$42/1.645","v":9.4567472255951639},{"$f":"DisabilityByAge!$I$42/1.645","v":9.4567472255951639},{"$f":"SQRT((K153^2)+(L153^2))","v":13.373860182370819},{"$f":"DisabilityByAge!$D$31-DisabilityByAgePrior5YearEst!$D$31","v":-33},{"$f":"ABS((N153/M153))","v":2.4675000000000002},1.645]
[null,null,null,null,null,null,null,"Self Care Disability - 35 to 64",null,"Y",{"$f":"DisabilityByAgePrior5YearEst!$K$42/1.645","v":2.5791128797077718},{"$f":"DisabilityByAge!$K$42/1.645","v":5.604586296226679},{"$f":"SQRT((K155^2)+(L155^2))","v":11.974295199752103},{"$f":"DisabilityByAge!$D$31-DisabilityByAgePrior5YearEst!$D$31","v":-33},{"$f":"ABS((N155/M155))","v":2.7559033287139254},1.645]
[null,null,null,null,null,null,null,"Self Care Disability - 65 to 74",null,"Y",{"$f":"DisabilityByAgePrior5YearEst!$M$42/1.645","v":7.3453167012732958},{"$f":"DisabilityByAge!$M$42/1.645","v":9.4567472255951639},{"$f":"SQRT((K155^2)+(L155^2))","v":11.974295199752103},{"$f":"DisabilityByAge!$D$31-DisabilityByAgePrior5YearEst!$D$31","v":-33},{"$f":"ABS((N155/M155))","v":2.7559033287139254},1.645]
[null,null,null,null,null,null,null,"Self Care Disability - 75 and Over",null,"Y",{"$f":"DisabilityByAgePrior5YearEst!$O$42/1.645","v":9.4567472255951639},{"$f":"DisabilityByAge!$O$42/1.645","v":16.049092744612871},{"$f":"SQRT((K156^2)+(L156^2))","v":18.628028505829253},{"$f":"DisabilityByAge!$D$31-DisabilityByAgePrior5YearEst!$D$31","v":-33},{"$f":"ABS((N156/M156))","v":1.7715240230426605},1.645]
[null,null,null,null,null,null,null,"Independant Living Disability - 18 to 34",null,"Y",{"$f":"DisabilityByAgePrior5YearEst!$I$43/1.645","v":9.4567472255951639},{"$f":"DisabilityByAge!$I$43/1.645","v":7.9260819516141634},{"$f":"SQRT((K157^2)+(L157^2))","v":12.339077890689628},{"$f":"DisabilityByAge!$D$31-DisabilityByAgePrior5YearEst!$D$31","v":-33},{"$f":"ABS((N157/M157))","v":2.6744299932574327},1.645]
[null,null,null,null,null,null,null,"Independant Living Disability - 35 to 64",null,"Y",{"$f":"DisabilityByAgePrior5YearEst!$K$43/1.645","v":5.2293770620319915},{"$f":"DisabilityByAge!$K$43/1.645","v":5.1582257594155436},{"$f":"SQRT((K159^2)+(L159^2))","v":10.581699200929611},{"$f":"DisabilityByAge!$D$31-DisabilityByAgePrior5YearEst!$D$31","v":-33},{"$f":"ABS((N159/M159))","v":3.1185917661599114},1.645]
[null,null,null,null,null,null,null,"Independant Living Disability - 65 to 74",null,"Y",{"$f":"DisabilityByAgePrior5YearEst!$M$43/1.645","v":4.7478721434083004},{"$f":"DisabilityByAge!$M$43/1.645","v":9.4567472255951639},{"$f":"SQRT((K159^2)+(L159^2))","v":10.581699200929611},{"$f":"DisabilityByAge!$D$31-DisabilityByAgePrior5YearEst!$D$31","v":-33},{"$f":"ABS((N159/M159))","v":3.1185917661599114},1.645]
[null,null,null,null,null,null,null,"Independant Living Disability - 75 and Over",null,"Y",{"$f":"DisabilityByAgePrior5YearEst!$O$43/1.645","v":7.5193415664759762},{"$f":"DisabilityByAge!$O$43/1.645","v":15.306599771445802},{"$f":"SQRT((K160^2)+(L160^2))","v":17.053811719277249},{"$f":"DisabilityByAge!$D$31-DisabilityByAgePrior5YearEst!$D$31","v":-33},1.9350512684913446,1.645]
[null,null,null,null,null,null,null,"No Disability - Under 5",null,"N",{"$f":"DisabilityByAgePrior5YearEst!$E$47/1.645","v":22.019173588176091},{"$f":"DisabilityByAge!$E$47/1.645","v":17.878955829608199},{"$f":"SQRT((K161^2)+(L161^2))","v":28.363728017722082},{"$f":"DisabilityByAge!$D$47-DisabilityByAgePrior5YearEst!$D$47","v":-33},1.163457778870997,1.645]
[null,null,null,null,null,null,null,"No Disability - 5 to 17",null,"N",{"$f":"DisabilityByAgePrior5YearEst!$F$47/1.645","v":94.224924012158056},{"$f":"DisabilityByAge!$F$47/1.645","v":46.808510638297875},{"$f":"SQRT((K162^2)+(L162^2))","v":105.21108769170959},{"$f":"DisabilityByAge!$D$47-DisabilityByAgePrior5YearEst!$D$47","v":-33},0.31365515483213019,1.645]
[null,null,null,null,null,null,null,"No Disability - 18 to 34",null,"N",{"$f":"DisabilityByAgePrior5YearEst!$I$47/1.645","v":23.227930911298234},{"$f":"DisabilityByAge!$I$47/1.645","v":29.280473139920474},37.374896410794882,{"$f":"DisabilityByAge!$D$47-DisabilityByAgePrior5YearEst!$D$47","v":-33},0.88294559100018555,1.645]
[null,null,null,null,null,null,null,"No Disability - 35 to 64",null,"N",{"$f":"DisabilityByAgePrior5YearEst!$K$47/1.645","v":39.997043524853446},{"$f":"DisabilityByAge!$K$47/1.645","v":36.605639434223946},54.219335380631811,{"$f":"DisabilityByAge!$D$47-DisabilityByAgePrior5YearEst!$D$47","v":-33},0.60863896188200484,1.645]
[null,null,null,null,null,null,null,"No Disability - 65 to 74",null,{"$f":"IF(O165>P165,\"Y\",\"N\")","v":"N"},{"$f":"DisabilityByAgePrior5YearEst!$M$47/1.645","v":12.309092237882423},{"$f":"DisabilityByAge!$M$47/1.645","v":18.043552680432619},21.842242216682894,{"$f":"DisabilityByAge!$D$47-DisabilityByAgePrior5YearEst!$D$47","v":-33},1.5108339003215943,1.645]
[null,null,null,null,null,null,null,"No Disability - 75 and Over",null,"Y",{"$f":"DisabilityByAgePrior5YearEst!$O$47/1.645","v":7.7373386391233163},{"$f":"DisabilityByAge!$O$47/1.645","v":7.3201182849801185},10.651316393881599,{"$f":"DisabilityByAge!$D$47-DisabilityByAgePrior5YearEst!$D$47","v":-33},{"$f":"ABS((N166/M166))","v":3.0982085950386455},1.645]
[{"$f":"IF(F167>G167,\"Y\",\"N\")","v":"N"},null,null,null,null,null,null,"Renter Total:",null,"N",{"$f":"'RentalHousingCost-Prior5Yr'!$F$52/1.645","v":12.1580547112462},{"$f":"RentalHousingCost!$F$52/1.645","v":10.334346504559271},15.956723098366792,{"$f":"'RentalHousingCost-Prior5Yr'!$E$52-RentalHousingCost!$E$52","v":10},{"$f":"ABS((N167/M167))","v":0.6266950888571553},1.645]
["N",null,null,null,null,null,null,"Renter Less than 20.0 percent",null,"N",{"$f":"'RentalHousingCost-Prior5Yr'!$F$53/1.645","v":11.242092406630352},{"$f":"RentalHousingCost!$F$53/1.645","v":7.3453167012732958},13.42901035524287,{"$f":"'RentalHousingCost-Prior5Yr'!$E$53-RentalHousingCost!$E$53","v":16},1.191450417919544,1.645]
["N",null,null,null,null,null,null,"Renter 20.0 to 24.9 percent",null,"N",{"$f":"'RentalHousingCost-Prior5Yr'!$F$54/1.645","v":1.8237082066869301},{"$f":"RentalHousingCost!$F$54/1.645","v":7.9027355623100304},8.1104340815357663,{"$f":"'RentalHousingCost-Prior5Yr'!$E$54-RentalHousingCost!$E$54","v":-8},0.98638370271855358,1.645]
["N",null,null,null,null,null,null,"Renter 25.0 to 29.9 percent",null,"N",{"$f":"'RentalHousingCost-Prior5Yr'!$F$55/1.645","v":6.6869300911854106},{"$f":"RentalHousingCost!$F$55/1.645","v":6.6869300911854106},9.4567472255951639,{"$f":"'RentalHousingCost-Prior5Yr'!$E$55-RentalHousingCost!$E$55","v":9},0.9517014450424397,1.645]
["N",null,null,null,null,null,null,"Renter 30.0 to 34.9 percent",null,"N",{"$f":"'RentalHousingCost-Prior5Yr'!$F$56/1.645","v":13.20702795282701},{"$f":"RentalHousingCost!$F$56/1.645","v":12.69338177375143},18.31795644172567,{"$f":"'RentalHousingCost-Prior5Yr'!$E$56-RentalHousingCost!$E$56","v":17},0.92805112044466076,1.645]
["N",null,null,null,null,null,null,"Renter 35.0 to 39.9 percent",null,"N",{"$f":"'RentalHousingCost-Prior5Yr'!$F$57/1.645","v":10.423360607587993},{"$f":"RentalHousingCost!$F$57/1.645","v":10.20842287157852},14.589665653495441,{"$f":"'RentalHousingCost-Prior5Yr'!$E$57-RentalHousingCost!$E$57","v":-6},0.41125,1.645]
["N",null,null,null,null,null,null,"Renter 40.0 to 49.9 percent",null,"N",{"$f":"'RentalHousingCost-Prior5Yr'!$F$58/1.645","v":2.43161094224924},{"$f":"RentalHousingCost!$F$58/1.645","v":6.0790273556230998},6.5473128354218888,{"$f":"'RentalHousingCost-Prior5Yr'!$E$58-RentalHousingCost!$E$58","v":-7},1.0691409095543762,1.645]
["N",null,null,null,null,null,null,"Renter 50.0 percent or more",null,"N",{"$f":"'RentalHousingCost-Prior5Yr'!$F$59/1.645","v":13.42901035524287},{"$f":"RentalHousingCost!$F$59/1.645","v":14.073965839258634},19.45288753799392,{"$f":"'RentalHousingCost-Prior5Yr'!$E$59-RentalHousingCost!$E$59","v":10},0.51406249999999998,1.645]
["N",null,null,null,null,null,null,"Renter Not computed",null,"N",{"$f":"'RentalHousingCost-Prior5Yr'!$F$60/1.645","v":10.135764134062654},{"$f":"RentalHousingCost!$F$60/1.645","v":8.2010562694419704},{"$f":"SQRT((K175^2)+(L175^2))","v":13.038061148648765},{"$f":"'RentalHousingCost-Prior5Yr'!$E$60-RentalHousingCost!$E$60","v":1},7.6698520477765805E-2,1.645]
["N",null,null,null,null,null,null,"Renter Less than $10,000:",null,"N",{"$f":"'RentalHousingCost-Prior5Yr'!$I$52/1.645","v":2.43161094224924},{"$f":"RentalHousingCost!$I$52/1.645","v":6.6869300911854106},{"$f":"SQRT((K176^2)+(L176^2))","v":7.1153190946623859},{"$f":"'RentalHousingCost-Prior5Yr'!$H$52-RentalHousingCost!$H$52","v":3},0.42162550408322153,1.645]
["N",null,null,null,null,null,null,"Renter Less than 20.0 percent",null,"N",{"$f":"'RentalHousingCost-Prior5Yr'!$I$53/1.645","v":6.6869300911854106},{"$f":"RentalHousingCost!$I$53/1.645","v":6.6869300911854106},9.4567472255951639,{"$f":"'RentalHousingCost-Prior5Yr'!$H$53-RentalHousingCost!$H$53","v":0},0,1.645]
["N",null,null,null,null,null,null,"Renter 20.0 to 24.9 percent",null,"N",{"$f":"'RentalHousingCost-Prior5Yr'!$I$54/1.645","v":6.6869300911854106},{"$f":"RentalHousingCost!$I$54/1.645","v":6.6869300911854106},9.4567472255951639,{"$f":"'RentalHousingCost-Prior5Yr'!$H$54-RentalHousingCost!$H$54","v":0},0,1.645]
["N",null,null,null,null,null,null,"Renter 25.0 to 29.9 percent",null,"N",{"$f":"'RentalHousingCost-Prior5Yr'!$I$55/1.645","v":6.6869300911854106},{"$f":"RentalHousingCost!$I$55/1.645","v":6.6869300911854106},9.4567472255951639,{"$f":"'RentalHousingCost-Prior5Yr'!$H$55-RentalHousingCost!$H$55","v":0},0,1.645]
["N",null,null,null,null,null,null,"Renter 30.0 to 34.9 percent",null,"N",{"$f":"'RentalHousingCost-Prior5Yr'!$I$56/1.645","v":11.582102664594316},{"$f":"RentalHousingCost!$I$56/1.645","v":11.582102664594316},16.379566669066843,{"$f":"'RentalHousingCost-Prior5Yr'!$H$56-RentalHousingCost!$H$56","v":0},0,1.645]
["N",null,null,null,null,null,null,"Renter 35.0 to 39.9 percent",null,"N",{"$f":"'RentalHousingCost-Prior5Yr'!$I$57/1.645","v":11.834603242511724},{"$f":"RentalHousingCost!$I$57/1.645","v":13.373860182370821},17.858274555098337,{"$f":"'RentalHousingCost-Prior5Yr'!$H$57-RentalHousingCost!$H$57","v":3},0.16798935366034753,1.645]
["N",null,null,null,null,null,null,"Renter 40.0 to 49.9 percent",null,"N",{"$f":"'RentalHousingCost-Prior5Yr'!$I$58/1.645","v":6.6869300911854106},{"$f":"RentalHousingCost!$I$58/1.645","v":6.6869300911854106},9.4567472255951639,{"$f":"'RentalHousingCost-Prior5Yr'!$H$58-RentalHousingCost!$H$58","v":0},0,1.645]
["N",null,null,null,null,null,null,"Renter 50.0 percent or more",null,"N",{"$f":"'RentalHousingCost-Prior5Yr'!$I$59/1.645","v":13.373860182370821},{"$f":"RentalHousingCost!$I$59/1.645","v":13.373860182370821},18.913494451190328,{"$f":"'RentalHousingCost-Prior5Yr'!$H$59-RentalHousingCost!$H$59","v":0},0,1.645]
["N",null,null,null,null,null,null,"Renter Not computed",null,"N",{"$f":"'RentalHousingCost-Prior5Yr'!$I$60/1.645","v":9.7643637715556295},{"$f":"RentalHousingCost!$I$60/1.645","v":11.582102664594316},{"$f":"SQRT((K184^2)+(L184^2))","v":15.148858108665182},{"$f":"'RentalHousingCost-Prior5Yr'!$H$60-RentalHousingCost!$H$60","v":3},0.19803472832609034,1.645]
["N",null,null,null,null,null,null,"Renter $10,000 to $19,999:",null,"N",{"$f":"'RentalHousingCost-Prior5Yr'!$K$52/1.645","v":2.43161094224924},{"$f":"RentalHousingCost!$K$52/1.645","v":4.2553191489361701},{"$f":"SQRT((K185^2)+(L185^2))","v":4.9010685399991178},{"$f":"'RentalHousingCost-Prior5Yr'!$J$52-RentalHousingCost!$J$52","v":-2},0.40807427679849584,1.645]
["N",null,null,null,null,null,null,"Renter Less than 20.0 percent",null,"N",{"$f":"'RentalHousingCost-Prior5Yr'!$K$53/1.645","v":6.6869300911854106},{"$f":"RentalHousingCost!$K$53/1.645","v":6.6869300911854106},9.4567472255951639,{"$f":"'RentalHousingCost-Prior5Yr'!$J$53-RentalHousingCost!$J$53","v":0},0,1.645]
["N",null,null,null,null,null,null,"Renter 20.0 to 24.9 percent",null,"N",{"$f":"'RentalHousingCost-Prior5Yr'!$K$54/1.645","v":6.6869300911854106},{"$f":"RentalHousingCost!$K$54/1.645","v":6.6869300911854106},9.4567472255951639,{"$f":"'RentalHousingCost-Prior5Yr'!$J$54-RentalHousingCost!$J$54","v":0},0,1.645]
["N",null,null,null,null,null,null,"Renter 25.0 to 29.9 percent",null,"N",{"$f":"'RentalHousingCost-Prior5Yr'!$K$55/1.645","v":6.6869300911854106},{"$f":"RentalHousingCost!$K$55/1.645","v":6.6869300911854106},9.4567472255951639,{"$f":"'RentalHousingCost-Prior5Yr'!$J$55-RentalHousingCost!$J$55","v":0},0,1.645]
["N",null,null,null,null,null,null,"Renter 30.0 to 34.9 percent",null,"N",{"$f":"'RentalHousingCost-Prior5Yr'!$K$56/1.645","v":11.582102664594316},{"$f":"RentalHousingCost!$K$56/1.645","v":11.582102664594316},16.379566669066843,{"$f":"'RentalHousingCost-Prior5Yr'!$J$56-RentalHousingCost!$J$56","v":0},0,1.645]
["N",null,null,null,null,null,null,"Renter 35.0 to 39.9 percent",null,"N",{"$f":"'RentalHousingCost-Prior5Yr'!$K$57/1.645","v":11.834603242511724},{"$f":"RentalHousingCost!$K$57/1.645","v":11.974295199752103},16.835723312007573,{"$f":"'RentalHousingCost-Prior5Yr'!$J$57-RentalHousingCost!$J$57","v":0},0,1.645]
["N",null,null,null,null,null,null,"Renter 40.0 to 49.9 percent",null,"N",{"$f":"'RentalHousingCost-Prior5Yr'!$K$58/1.645","v":6.6869300911854106},{"$f":"RentalHousingCost!$K$58/1.645","v":6.6869300911854106},9.4567472255951639,{"$f":"'RentalHousingCost-Prior5Yr'!$J$58-RentalHousingCost!$J$58","v":0},0,1.645]
["N",null,null,null,null,null,null,"Renter 50.0 percent or more",null,"N",{"$f":"'RentalHousingCost-Prior5Yr'!$K$59/1.645","v":13.373860182370821},{"$f":"RentalHousingCost!$K$59/1.645","v":13.373860182370821},18.913494451190328,{"$f":"'RentalHousingCost-Prior5Yr'!$J$59-RentalHousingCost!$J$59","v":0},0,1.645]
["N",null,null,null,null,null,null,"Renter Not computed",null,"N",{"$f":"'RentalHousingCost-Prior5Yr'!$K$60/1.645","v":9.7643637715556295},{"$f":"RentalHousingCost!$K$60/1.645","v":9.9332125461204814},{"$f":"SQRT((K193^2)+(L193^2))","v":13.928801504425046},{"$f":"'RentalHousingCost-Prior5Yr'!$J$60-RentalHousingCost!$J$60","v":0},0,1.645]
["N",null,null,null,null,null,null,"Renter $20,000 to $34,999:",null,"N",{"$f":"'RentalHousingCost-Prior5Yr'!$M$52/1.645","v":6.0790273556230998},{"$f":"RentalHousingCost!$M$52/1.645","v":7.2948328267477205},{"$f":"SQRT((K194^2)+(L194^2))","v":9.4957442868166009},{"$f":"'RentalHousingCost-Prior5Yr'!$L$52-RentalHousingCost!$L$52","v":-6},0.63186200246884161,1.645]
["N",null,null,null,null,null,null,"Renter Less than 20.0 percent",null,"N",{"$f":"'RentalHousingCost-Prior5Yr'!$M$53/1.645","v":6.6869300911854106},{"$f":"RentalHousingCost!$M$53/1.645","v":6.6869300911854106},9.4567472255951639,{"$f":"'RentalHousingCost-Prior5Yr'!$L$53-RentalHousingCost!$L$53","v":0},0,1.645]
["N",null,null,null,null,null,null,"Renter 20.0 to 24.9 percent",null,"N",{"$f":"'RentalHousingCost-Prior5Yr'!$M$54/1.645","v":6.6869300911854106},{"$f":"RentalHousingCost!$M$54/1.645","v":2.43161094224924},7.1153190946623859,{"$f":"'RentalHousingCost-Prior5Yr'!$L$54-RentalHousingCost!$L$54","v":-2},0.28108366938881435,1.645]
["N",null,null,null,null,null,null,"Renter 25.0 to 29.9 percent",null,"N",{"$f":"'RentalHousingCost-Prior5Yr'!$M$55/1.645","v":5.4711246200607899},{"$f":"RentalHousingCost!$M$55/1.645","v":6.6869300911854106},8.6399212179646785,{"$f":"'RentalHousingCost-Prior5Yr'!$L$55-RentalHousingCost!$L$55","v":6},0.69445077664879806,1.645]
["N",null,null,null,null,null,null,"Renter 30.0 to 34.9 percent",null,"N",{"$f":"'RentalHousingCost-Prior5Yr'!$M$56/1.645","v":10.925350003411202},{"$f":"RentalHousingCost!$M$56/1.645","v":9.7643637715556295},14.65285202819933,{"$f":"'RentalHousingCost-Prior5Yr'!$L$56-RentalHousingCost!$L$56","v":4},0.27298439868921237,1.645]
["N",null,null,null,null,null,null,"Renter 35.0 to 39.9 percent",null,"N",{"$f":"'RentalHousingCost-Prior5Yr'!$M$57/1.645","v":11.724803356830341},{"$f":"RentalHousingCost!$M$57/1.645","v":13.080507471945296},17.566180275744546,{"$f":"'RentalHousingCost-Prior5Yr'!$L$57-RentalHousingCost!$L$57","v":-7},0.39849300702359458,1.645]
["N",null,null,null,null,null,null,"Renter 40.0 to 49.9 percent",null,"N",{"$f":"'RentalHousingCost-Prior5Yr'!$M$58/1.645","v":6.6869300911854106},{"$f":"RentalHousingCost!$M$58/1.645","v":6.0790273556230998},9.0371238585522828,{"$f":"'RentalHousingCost-Prior5Yr'!$L$58-RentalHousingCost!$L$58","v":-9},0.99589207151154058,1.645]
["N",null,null,null,null,null,null,"Renter 50.0 percent or more",null,"N",{"$f":"'RentalHousingCost-Prior5Yr'!$M$59/1.645","v":12.809305474592994},{"$f":"RentalHousingCost!$M$59/1.645","v":11.502059530957144},17.215565055934707,{"$f":"'RentalHousingCost-Prior5Yr'!$L$59-RentalHousingCost!$L$59","v":-5},0.29043484682347698,1.645]
["N",null,null,null,null,null,null,"Renter Not computed",null,"N",{"$f":"'RentalHousingCost-Prior5Yr'!$M$60/1.645","v":9.6309905883008256},{"$f":"RentalHousingCost!$M$60/1.645","v":11.582102664594316},15.063236101354246,{"$f":"'RentalHousingCost-Prior5Yr'!$L$60-RentalHousingCost!$L$60","v":2},0.13277359436862254,1.645]
["N",null,null,null,null,null,null,"Renter $35,000 to $49,999:",null,"N",{"$f":"'RentalHousingCost-Prior5Yr'!$O$52/1.645","v":3.0395136778115499},{"$f":"RentalHousingCost!$O$52/1.645","v":8.5106382978723403},9.0371238585522828,{"$f":"'RentalHousingCost-Prior5Yr'!$N$52-RentalHousingCost!$N$52","v":-6},0.66392804767436042,1.645]
["N",null,null,null,null,null,null,"Renter Less than 20.0 percent",null,"N",{"$f":"'RentalHousingCost-Prior5Yr'!$O$53/1.645","v":6.6869300911854106},{"$f":"RentalHousingCost!$O$53/1.645","v":6.6869300911854106},9.4567472255951639,{"$f":"'RentalHousingCost-Prior5Yr'!$N$53-RentalHousingCost!$N$53","v":0},0,1.645]
["N",null,null,null,null,null,null,"Renter 20.0 to 24.9 percent",null,"N",{"$f":"'RentalHousingCost-Prior5Yr'!$O$54/1.645","v":6.6869300911854106},{"$f":"RentalHousingCost!$O$54/1.645","v":7.2948328267477205},9.8959395720970864,{"$f":"'RentalHousingCost-Prior5Yr'!$N$54-RentalHousingCost!$N$54","v":-8},0.80841237375347974,1.645]
["N",null,null,null,null,null,null,"Renter 25.0 to 29.9 percent",null,"N",{"$f":"'RentalHousingCost-Prior5Yr'!$O$55/1.645","v":6.6869300911854106},{"$f":"RentalHousingCost!$O$55/1.645","v":6.6869300911854106},9.4567472255951639,{"$f":"'RentalHousingCost-Prior5Yr'!$N$55-RentalHousingCost!$N$55","v":0},0,1.645]
["N",null,null,null,null,null,null,"Renter 30.0 to 34.9 percent",null,"N",{"$f":"'RentalHousingCost-Prior5Yr'!$O$56/1.645","v":11.582102664594316},{"$f":"RentalHousingCost!$O$56/1.645","v":11.943393741269604},16.63699961508086,{"$f":"'RentalHousingCost-Prior5Yr'!$N$56-RentalHousingCost!$N$56","v":-8},0.48085593466915028,1.645]
["N",null,null,null,null,null,null,"Renter 35.0 to 39.9 percent",null,{"$f":"IF(O208>P208,\"Y\",\"N\")","v":"N"},{"$f":"'RentalHousingCost-Prior5Yr'!$O$57/1.645","v":11.834603242511724},{"$f":"RentalHousingCost!$O$57/1.645","v":12.142847632485214},16.956019065022922,{"$f":"'RentalHousingCost-Prior5Yr'!$N$57-RentalHousingCost!$N$57","v":-2},0.11795221462835129,1.645]
["N",null,null,null,null,null,null,"Renter 40.0 to 49.9 percent",null,"N",{"$f":"'RentalHousingCost-Prior5Yr'!$O$58/1.645","v":2.43161094224924},{"$f":"RentalHousingCost!$O$58/1.645","v":6.6869300911854106},7.1153190946623859,{"$f":"'RentalHousingCost-Prior5Yr'!$N$58-RentalHousingCost!$N$58","v":2},0.28108366938881435,1.645]
["N",null,null,null,null,null,null,"Renter 50.0 percent or more",null,"N",{"$f":"'RentalHousingCost-Prior5Yr'!$O$59/1.645","v":14.013713606843556},{"$f":"RentalHousingCost!$O$59/1.645","v":18.630323832455016},23.312510271456688,{"$f":"'RentalHousingCost-Prior5Yr'!$N$59-RentalHousingCost!$N$59","v":-6},0.25737254075749472,1.645]
["N",null,null,null,null,null,null,"Renter Not computed",null,"N",{"$f":"'RentalHousingCost-Prior5Yr'!$O$60/1.645","v":11.582102664594316},{"$f":"RentalHousingCost!$O$60/1.645","v":10.135764134062654},15.390867964950958,{"$f":"'RentalHousingCost-Prior5Yr'!$N$60-RentalHousingCost!$N$60","v":-4},0.25989437432047685,1.645]
["N",null,null,null,null,null,null,"Renter $50,000 to $74,999:",null,"N",{"$f":"'RentalHousingCost-Prior5Yr'!$Q$52/1.645","v":6.0790273556230998},{"$f":"RentalHousingCost!$Q$52/1.645","v":6.6869300911854106},9.0371238585522828,{"$f":"'RentalHousingCost-Prior5Yr'!$P$52-RentalHousingCost!$P$52","v":8},0.88523739689914727,1.645]
["N",null,null,null,null,null,null,"Renter Less than 20.0 percent",null,"N",{"$f":"'RentalHousingCost-Prior5Yr'!$Q$53/1.645","v":6.0790273556230998},{"$f":"RentalHousingCost!$Q$53/1.645","v":6.6869300911854106},9.0371238585522828,{"$f":"'RentalHousingCost-Prior5Yr'!$P$53-RentalHousingCost!$P$53","v":6},0.66392804767436042,1.645]
["N",null,null,null,null,null,null,"Renter 20.0 to 24.9 percent",null,"N",{"$f":"'RentalHousingCost-Prior5Yr'!$Q$54/1.645","v":1.8237082066869301},{"$f":"RentalHousingCost!$Q$54/1.645","v":6.6869300911854106},6.9311575993868573,{"$f":"'RentalHousingCost-Prior5Yr'!$P$54-RentalHousingCost!$P$54","v":2},0.28855208835201263,1.645]
["N",null,null,null,null,null,null,"Renter 25.0 to 29.9 percent",null,"N",{"$f":"'RentalHousingCost-Prior5Yr'!$Q$55/1.645","v":6.6869300911854106},{"$f":"RentalHousingCost!$Q$55/1.645","v":6.6869300911854106},9.4567472255951639,{"$f":"'RentalHousingCost-Prior5Yr'!$P$55-RentalHousingCost!$P$55","v":0},0,1.645]
["N",null,null,null,null,null,null,"Renter 30.0 to 34.9 percent",null,"N",{"$f":"'RentalHousingCost-Prior5Yr'!$Q$56/1.645","v":9.2193014517344078},{"$f":"RentalHousingCost!$Q$56/1.645","v":11.582102664594316},14.803398981016317,{"$f":"'RentalHousingCost-Prior5Yr'!$P$56-RentalHousingCost!$P$56","v":8},0.54041642802839363,1.645]
["N",null,null,null,null,null,null,"Renter 35.0 to 39.9 percent",null,"N",{"$f":"'RentalHousingCost-Prior5Yr'!$Q$57/1.645","v":13.373860182370821},{"$f":"RentalHousingCost!$Q$57/1.645","v":13.373860182370821},18.913494451190328,{"$f":"'RentalHousingCost-Prior5Yr'!$P$57-RentalHousingCost!$P$57","v":0},0,1.645]
["N",null,null,null,null,null,null,"Renter 40.0 to 49.9 percent",null,"N",{"$f":"'RentalHousingCost-Prior5Yr'!$Q$58/1.645","v":6.6869300911854106},{"$f":"RentalHousingCost!$Q$58/1.645","v":6.6869300911854106},9.4567472255951639,{"$f":"'RentalHousingCost-Prior5Yr'!$P$58-RentalHousingCost!$P$58","v":0},0,1.645]
["N",null,null,null,null,null,null,"Renter 50.0 percent or more",null,"N",{"$f":"'RentalHousingCost-Prior5Yr'!$Q$59/1.645","v":11.38905410042261},{"$f":"RentalHousingCost!$Q$59/1.645","v":13.373860182370821},17.566180275744546,{"$f":"'RentalHousingCost-Prior5Yr'!$P$59-RentalHousingCost!$P$59","v":8},0.45542057945553666,1.645]
["N",null,null,null,null,null,null,"Renter Not computed",null,"N",{"$f":"'RentalHousingCost-Prior5Yr'!$Q$60/1.645","v":11.582102664594316},{"$f":"RentalHousingCost!$Q$60/1.645","v":11.582102664594316},16.379566669066843,{"$f":"'RentalHousingCost-Prior5Yr'!$P$60-RentalHousingCost!$P$60","v":0},0,1.645]
["N",null,null,null,null,null,null,"Renter $75,000 to $99,999:",null,"N",{"$f":"'RentalHousingCost-Prior5Yr'!$S$52/1.645","v":5.4711246200607899},{"$f":"RentalHousingCost!$S$52/1.645","v":6.6869300911854106},8.6399212179646785,{"$f":"'RentalHousingCost-Prior5Yr'!$R$52-RentalHousingCost!$R$52","v":10},1.15741796108133,1.645]
["N",null,null,null,null,null,null,"Renter Less than 20.0 percent",null,"N",{"$f":"'RentalHousingCost-Prior5Yr'!$S$53/1.645","v":4.86322188449848},{"$f":"RentalHousingCost!$S$53/1.645","v":6.6869300911854106},8.2683711299303617,{"$f":"'RentalHousingCost-Prior5Yr'!$R$53-RentalHousingCost!$R$53","v":7},0.84659963734101951,1.645]
["N",null,null,null,null,null,null,"Renter 20.0 to 24.9 percent",null,"N",{"$f":"'RentalHousingCost-Prior5Yr'!$S$54/1.645","v":6.6869300911854106},{"$f":"RentalHousingCost!$S$54/1.645","v":6.6869300911854106},9.4567472255951639,{"$f":"'RentalHousingCost-Prior5Yr'!$R$54-RentalHousingCost!$R$54","v":0},0,1.645]
["N",null,null,null,null,null,null,"Renter 25.0 to 29.9 percent",null,"N",{"$f":"'RentalHousingCost-Prior5Yr'!$S$55/1.645","v":2.43161094224924},{"$f":"RentalHousingCost!$S$55/1.645","v":6.6869300911854106},7.1153190946623859,{"$f":"'RentalHousingCost-Prior5Yr'!$R$55-RentalHousingCost!$R$55","v":3},0.42162550408322153,1.645]
["N",null,null,null,null,null,null,"Renter 30.0 to 34.9 percent",null,"N",{"$f":"'RentalHousingCost-Prior5Yr'!$S$56/1.645","v":8.6185087408862167},{"$f":"RentalHousingCost!$S$56/1.645","v":11.582102664594316},14.436890075426041,{"$f":"'RentalHousingCost-Prior5Yr'!$R$56-RentalHousingCost!$R$56","v":10},0.69266995507721174,1.645]
["N",null,null,null,null,null,null,"Renter 35.0 to 39.9 percent",null,"N",{"$f":"'RentalHousingCost-Prior5Yr'!$S$57/1.645","v":13.373860182370821},{"$f":"RentalHousingCost!$S$57/1.645","v":13.373860182370821},18.913494451190328,{"$f":"'RentalHousingCost-Prior5Yr'!$R$57-RentalHousingCost!$R$57","v":0},0,1.645]
["N",null,null,null,null,null,null,"Renter 40.0 to 49.9 percent",null,"N",{"$f":"'RentalHousingCost-Prior5Yr'!$S$58/1.645","v":6.6869300911854106},{"$f":"RentalHousingCost!$S$58/1.645","v":6.6869300911854106},9.4567472255951639,{"$f":"'RentalHousingCost-Prior5Yr'!$R$58-RentalHousingCost!$R$58","v":0},0,1.645]
["N",null,null,null,null,null,null,"Renter 50.0 percent or more",null,"N",{"$f":"'RentalHousingCost-Prior5Yr'!$S$59/1.645","v":10.908424586581376},{"$f":"RentalHousingCost!$S$59/1.645","v":13.373860182370821},17.258443242040595,{"$f":"'RentalHousingCost-Prior5Yr'!$R$59-RentalHousingCost!$R$59","v":10},0.57942653689879531,1.645]
["N",null,null,null,null,null,null,"Renter Not computed",null,"N",{"$f":"'RentalHousingCost-Prior5Yr'!$S$60/1.645","v":11.582102664594316},{"$f":"RentalHousingCost!$S$60/1.645","v":11.582102664594316},16.379566669066843,{"$f":"'RentalHousingCost-Prior5Yr'!$R$60-RentalHousingCost!$R$60","v":0},0,1.645]
["N",null,null,null,null,null,null,"Renter $100,000 or more:",null,"N",{"$f":"'RentalHousingCost-Prior5Yr'!$U$52/1.645","v":4.86322188449848},{"$f":"RentalHousingCost!$U$52/1.645","v":3.0395136778115499},5.7349429374204277,{"$f":"'RentalHousingCost-Prior5Yr'!$T$52-RentalHousingCost!$T$52","v":3},0.52310895378313871,1.645]
[{"$f":"IF(F231>G231,\"Y\",\"N\")","v":"N"},null,null,null,null,null,null,"Renter Less than 20.0 percent",null,"N",{"$f":"'RentalHousingCost-Prior5Yr'!$U$53/1.645","v":4.86322188449848},{"$f":"RentalHousingCost!$U$53/1.645","v":3.0395136778115499},5.7349429374204277,{"$f":"'RentalHousingCost-Prior5Yr'!$T$53-RentalHousingCost!$T$53","v":3},{"$f":"ABS((N231/M231))","v":0.52310895378313871},1.645]
["N",null,null,null,null,null,null,"Renter 20.0 to 24.9 percent",null,"N",{"$f":"'RentalHousingCost-Prior5Yr'!$U$54/1.645","v":6.6869300911854106},{"$f":"RentalHousingCost!$U$54/1.645","v":6.6869300911854106},9.4567472255951639,{"$f":"'RentalHousingCost-Prior5Yr'!$T$54-RentalHousingCost!$T$54","v":0},0,1.645]
["N",null,null,null,null,null,null,"Renter 25.0 to 29.9 percent",null,"N",{"$f":"'RentalHousingCost-Prior5Yr'!$U$55/1.645","v":6.6869300911854106},{"$f":"RentalHousingCost!$U$55/1.645","v":6.6869300911854106},9.4567472255951639,{"$f":"'RentalHousingCost-Prior5Yr'!$T$55-RentalHousingCost!$T$55","v":0},0,1.645]
["N",null,null,null,null,null,null,"Renter 30.0 to 34.9 percent",null,"N",{"$f":"'RentalHousingCost-Prior5Yr'!$U$56/1.645","v":10.633954823426079},{"$f":"RentalHousingCost!$U$56/1.645","v":9.9332125461204814},14.551622132019238,{"$f":"'RentalHousingCost-Prior5Yr'!$T$56-RentalHousingCost!$T$56","v":3},0.20616258261674011,1.645]
["N",null,null,null,null,null,null,"Renter 35.0 to 39.9 percent",null,"N",{"$f":"'RentalHousingCost-Prior5Yr'!$U$57/1.645","v":13.373860182370821},{"$f":"RentalHousingCost!$U$57/1.645","v":13.373860182370821},18.913494451190328,{"$f":"'RentalHousingCost-Prior5Yr'!$T$57-RentalHousingCost!$T$57","v":0},0,1.645]
["N",null,null,null,null,null,null,"Renter 40.0 to 49.9 percent",null,"N",{"$f":"'RentalHousingCost-Prior5Yr'!$U$58/1.645","v":6.6869300911854106},{"$f":"RentalHousingCost!$U$58/1.645","v":6.6869300911854106},9.4567472255951639,{"$f":"'RentalHousingCost-Prior5Yr'!$T$58-RentalHousingCost!$T$58","v":0},0,1.645]
["N",null,null,null,null,null,null,"Renter 50.0 percent or more",null,"N",{"$f":"'RentalHousingCost-Prior5Yr'!$U$59/1.645","v":12.561688948189557},{"$f":"RentalHousingCost!$U$59/1.645","v":11.974295199752103},17.354531822030633,{"$f":"'RentalHousingCost-Prior5Yr'!$T$59-RentalHousingCost!$T$59","v":3},0.17286551033267653,1.645]
["N",null,null,null,null,null,null,"Renter Not computed",null,"N",{"$f":"'RentalHousingCost-Prior5Yr'!$U$60/1.645","v":11.582102664594316},{"$f":"RentalHousingCost!$U$60/1.645","v":11.582102664594316},16.379566669066843,{"$f":"'RentalHousingCost-Prior5Yr'!$T$60-RentalHousingCost!$T$60","v":0},0,1.645]
[null,null,null,null,null,null,null,"Total Owner Housing",null,"N",{"$f":"OwnerHousingCostPrior5Year!$F$50/1.645","v":33.434650455927049},{"$f":"OwnerHousingCost!$F$50/1.645","v":34.042553191489361},47.715524506238062,{"$f":"OwnerHousingCostPrior5Year!$E$50-OwnerHousingCost!$E$50","v":-9},0.18861785746111603,1.645]
[null,null,null,null,null,null,null,"Monthly Costs Less than 20% of HH Income",null,"N",{"$f":"OwnerHousingCostPrior5Year!$F$51/1.645","v":22.352311624134025},{"$f":"OwnerHousingCost!$F$51/1.645","v":25.983842277401227},34.275149809143947,{"$f":"OwnerHousingCostPrior5Year!$E$51-OwnerHousingCost!$E$51","v":-35},1.0211479802391024,1.645]
[null,null,null,null,null,null,null,"Monthly Costs 20% to 29.9% of HH Income",null,"N",{"$f":"OwnerHousingCostPrior5Year!$F$52/1.645","v":22.582584341649493},{"$f":"OwnerHousingCost!$F$52/1.645","v":11.192676376609098},25.204148865201066,{"$f":"OwnerHousingCostPrior5Year!$E$52-OwnerHousingCost!$E$52","v":35},1.388660263323706,1.645]
[null,null,null,null,null,null,null,"Monthly Costs Less Than 30% of HH Income",null,"N",{"$f":"OwnerHousingCostPrior5Year!$F$53/1.645","v":31.774186858047365},{"$f":"OwnerHousingCost!$F$53/1.645","v":28.291978792024548},42.544506278231466,{"$f":"OwnerHousingCostPrior5Year!$E$53-OwnerHousingCost!$E$53","v":0},0,1.645]
[null,null,null,null,null,null,null,"Monthly Costs 30% or More of HH Income",null,"N",{"$f":"OwnerHousingCostPrior5Year!$F$54/1.645","v":22.401855042782103},{"$f":"OwnerHousingCost!$F$54/1.645","v":20.40779371622434},30.303814177786062,{"$f":"OwnerHousingCostPrior5Year!$E$54-OwnerHousingCost!$E$54","v":-11},0.3629906102071947,1.645]
[null,null,null,null,null,null,null,"Monthly Costs 35% or More of HH Income",null,"N",{"$f":"OwnerHousingCostPrior5Year!$F$56/1.645","v":20.307955122784275},{"$f":"OwnerHousingCost!$F$56/1.645","v":18.805724374781786},27.677939058558568,{"$f":"OwnerHousingCostPrior5Year!$E$56-OwnerHousingCost!$E$56","v":-15},0.54194786570865372,1.645]
[null,null,null,null,null,null,null,"Monthly Costs 50% or More of HH Income",null,"N",{"$f":"OwnerHousingCostPrior5Year!$F$57/1.645","v":10.190306756377028},{"$f":"OwnerHousingCost!$F$57/1.645","v":10.117517919205616},14.359892779352847,{"$f":"OwnerHousingCostPrior5Year!$E$57-OwnerHousingCost!$E$57","v":-5},0.34819201485885559,1.645]
[null,null,null,null,null,null,null,"Percent not computed",null,"N",{"$f":"OwnerHousingCostPrior5Year!$F$58/1.645","v":7.1153190946623868},{"$f":"OwnerHousingCost!$F$58/1.645","v":9.4567472255951639},11.834603242511724,{"$f":"OwnerHousingCostPrior5Year!$E$58-OwnerHousingCost!$E$58","v":2},0.16899594849244215,1.645]
[null,null,null,null,null,null,null,"Owner Less than $20,000:",null,"N",{"$f":"OwnerHousingCostPrior5Year!$I$50/1.645","v":17.021276595744681},{"$f":"OwnerHousingCost!$I$50/1.645","v":15.19756838905775},22.818631463979887,{"$f":"OwnerHousingCostPrior5Year!$H$50-OwnerHousingCost!$H$50","v":-2},8.7647675241044984E-2,1.645]
[null,null,null,null,null,null,null,"Owner Less than 20.0 percent",null,"N",{"$f":"OwnerHousingCostPrior5Year!$I$51/1.645","v":6.6869300911854106},{"$f":"OwnerHousingCost!$I$51/1.645","v":7.2948328267477205},9.8959395720970864,{"$f":"OwnerHousingCostPrior5Year!$H$51-OwnerHousingCost!$H$51","v":-8},0.80841237375347974,1.645]
[null,null,null,null,null,null,null,"Owner 20.0 to 24.9 percent",null,"N",{"$f":"OwnerHousingCostPrior5Year!$I$52/1.645","v":6.6869300911854106},{"$f":"OwnerHousingCost!$I$52/1.645","v":2.43161094224924},7.1153190946623859,{"$f":"OwnerHousingCostPrior5Year!$H$52-OwnerHousingCost!$H$52","v":-3},0.42162550408322153,1.645]
[null,null,null,null,null,null,null,"Owner 25.0 to 29.9 percent",null,"N",{"$f":"OwnerHousingCostPrior5Year!$I$53/1.645","v":9.4567472255951639},{"$f":"OwnerHousingCost!$I$53/1.645","v":7.6894289608957553},12.188411948792353,{"$f":"OwnerHousingCostPrior5Year!$H$53-OwnerHousingCost!$H$53","v":-11},0.90249657184338083,1.645]
[null,null,null,null,null,null,null,"Owner 30.0 or more",null,"N",{"$f":"OwnerHousingCostPrior5Year!$I$54/1.645","v":17.021276595744681},{"$f":"OwnerHousingCost!$I$54/1.645","v":12.76595744680851},21.276595744680851,{"$f":"OwnerHousingCostPrior5Year!$H$54-OwnerHousingCost!$H$54","v":9},0.42299999999999999,1.645]
[null,null,null,null,null,null,null,"Owner $20,000 to $34,999:",null,"N",{"$f":"OwnerHousingCostPrior5Year!$J$50/1.645","v":20.668693009118542},{"$f":"OwnerHousingCost!$J$50/1.645","v":18.844984802431611},27.970132693805084,{"$f":"OwnerHousingCostPrior5Year!$K$50-OwnerHousingCost!$K$50","v":7},0.25026695713711727,1.645]
[null,null,null,null,null,null,null,"Owner Less than 20.0 percent",null,"N",{"$f":"OwnerHousingCostPrior5Year!$J$51/1.645","v":3.0395136778115499},{"$f":"OwnerHousingCost!$J$51/1.645","v":6.0790273556230998},6.7965592021270202,{"$f":"OwnerHousingCostPrior5Year!$K$51-OwnerHousingCost!$K$51","v":-7},1.0299329104364032,1.645]
[null,null,null,null,null,null,null,"Owner 20.0 to 24.9 percent",null,"N",{"$f":"OwnerHousingCostPrior5Year!$J$52/1.645","v":12.76595744680851},{"$f":"OwnerHousingCost!$J$52/1.645","v":4.86322188449848},13.660914926592238,{"$f":"OwnerHousingCostPrior5Year!$K$52-OwnerHousingCost!$K$52","v":17},1.2444261670137424,1.645]
[null,null,null,null,null,null,null,"Owner 25.0 to 29.9 percent",null,"N",{"$f":"OwnerHousingCostPrior5Year!$J$53/1.645","v":15.805471124620061},{"$f":"OwnerHousingCost!$J$53/1.645","v":10.94224924012158},19.223572402239387,{"$f":"OwnerHousingCostPrior5Year!$K$53-OwnerHousingCost!$K$53","v":10.445582741891135},0.5433736520624185,1.645]
[null,null,null,null,null,null,null,"Owner 30.0 or more",null,"N",{"$f":"OwnerHousingCostPrior5Year!$J$54/1.645","v":4.86322188449848},{"$f":"OwnerHousingCost!$J$54/1.645","v":7.9027355623100304},9.2792325364582045,{"$f":"OwnerHousingCostPrior5Year!$K$54-OwnerHousingCost!$K$54","v":-3},0.32330259945668649,1.645]
[null,null,null,null,null,null,null,"Owner $35,000 to $49,999:",null,"N",{"$f":"OwnerHousingCostPrior5Year!$M$50/1.645","v":13.373860182370821},{"$f":"OwnerHousingCost!$M$50/1.645","v":9.7264437689969601},16.536742259860723,{"$f":"OwnerHousingCostPrior5Year!$L$50-OwnerHousingCost!$L$50","v":10},0.60471402667215679,1.645]
[null,null,null,null,null,null,null,"Owner Less than 20.0 percent",null,"N",{"$f":"OwnerHousingCostPrior5Year!$M$51/1.645","v":9.1185410334346511},{"$f":"OwnerHousingCost!$M$51/1.645","v":3.6474164133738602},{"$f":"SQRT((K258^2)+(L258^2))","v":9.8209692531328336},{"$f":"OwnerHousingCostPrior5Year!$L$51-OwnerHousingCost!$L$51","v":15},1.5273441565062515,1.645]
[null,null,null,null,null,null,null,"Owner 20.0 to 24.9 percent",null,"N",{"$f":"OwnerHousingCostPrior5Year!$M$52/1.645","v":9.1185410334346511},{"$f":"OwnerHousingCost!$M$52/1.645","v":4.2553191489361701},10.062580764283799,{"$f":"OwnerHousingCostPrior5Year!$L$52-OwnerHousingCost!$L$52","v":7},0.69564659046969868,1.645]
[null,null,null,null,null,null,null,"Owner 25.0 to 29.9 percent",null,"N",{"$f":"OwnerHousingCostPrior5Year!$M$53/1.645","v":12.895564398538861},{"$f":"OwnerHousingCost!$M$53/1.645","v":5.604586296226679},14.060831010602282,{"$f":"OwnerHousingCostPrior5Year!$L$53-OwnerHousingCost!$L$53","v":22},1.5646301405237961,1.645]
[null,null,null,null,null,null,null,"Owner 30.0 or more",null,"N",{"$f":"OwnerHousingCostPrior5Year!$M$54/1.645","v":3.6474164133738602},{"$f":"OwnerHousingCost!$M$54/1.645","v":7.9027355623100304},8.7038425916573576,{"$f":"OwnerHousingCostPrior5Year!$L$54-OwnerHousingCost!$L$54","v":-12},1.3787014038491474,1.645]
[null,null,null,null,null,null,null,"Owner $50,000 to $74,999:",null,"N",{"$f":"OwnerHousingCostPrior5Year!$O$50/1.645","v":11.550151975683891},{"$f":"OwnerHousingCost!$O$50/1.645","v":12.1580547112462},16.769743737548598,{"$f":"OwnerHousingCostPrior5Year!$N$50-OwnerHousingCost!$N$50","v":1},5.9631203413140529E-2,1.645]
[null,null,null,null,null,null,null,"Owner Less than 20.0 percent",null,"N",{"$f":"OwnerHousingCostPrior5Year!$O$51/1.645","v":6.6869300911854106},{"$f":"OwnerHousingCost!$O$51/1.645","v":10.334346504559271},12.309092237882425,{"$f":"OwnerHousingCostPrior5Year!$N$51-OwnerHousingCost!$N$51","v":-2},0.16248151864885749,1.645]
[null,null,null,null,null,null,null,"Owner 20.0 to 24.9 percent",null,"N",{"$f":"OwnerHousingCostPrior5Year!$O$52/1.645","v":5.4711246200607899},{"$f":"OwnerHousingCost!$O$52/1.645","v":3.0395136778115499},6.2587417270437689,{"$f":"OwnerHousingCostPrior5Year!$N$52-OwnerHousingCost!$N$52","v":5},0.79888262178884983,1.645]
[null,null,null,null,null,null,null,"Owner 25.0 to 29.9 percent",null,"N",{"$f":"OwnerHousingCostPrior5Year!$O$53/1.645","v":8.6399212179646785},{"$f":"OwnerHousingCost!$O$53/1.645","v":10.772063918947932},13.808895673678476,{"$f":"OwnerHousingCostPrior5Year!$N$53-OwnerHousingCost!$N$53","v":3},0.2172512611358477,1.645]
[null,null,null,null,null,null,null,"Owner 30.0 or more",null,"N",{"$f":"OwnerHousingCostPrior5Year!$O$54/1.645","v":6.6869300911854106},{"$f":"OwnerHousingCost!$O$54/1.645","v":5.4711246200607899},8.6399212179646785,{"$f":"OwnerHousingCostPrior5Year!$N$54-OwnerHousingCost!$N$54","v":-2},0.23148359221626602,1.645]
[null,null,null,null,null,null,null,"Owner $75,000 or more",null,"N",{"$f":"OwnerHousingCostPrior5Year!$Q$50/1.645","v":21.88449848024316},{"$f":"OwnerHousingCost!$Q$50/1.645","v":19.45288753799392},29.280473139920474,{"$f":"OwnerHousingCostPrior5Year!$P$50-OwnerHousingCost!$P$50","v":-23},0.78550643256656294,1.645]
[null,null,null,null,null,null,null,"Owner Less than 20.0 percent",null,"N",{"$f":"OwnerHousingCostPrior5Year!$Q$51/1.645","v":18.237082066869302},{"$f":"OwnerHousingCost!$Q$51/1.645","v":19.45288753799392},26.664695683235635,{"$f":"OwnerHousingCostPrior5Year!$P$51-OwnerHousingCost!$P$51","v":-35},1.3125970165114187,1.645]
[null,null,null,null,null,null,null,"Owner 20.0 to 24.9 percent",null,"N",{"$f":"OwnerHousingCostPrior5Year!$Q$52/1.645","v":11.550151975683891},{"$f":"OwnerHousingCost!$Q$52/1.645","v":4.86322188449848},12.532235944126628,{"$f":"OwnerHousingCostPrior5Year!$P$52-OwnerHousingCost!$P$52","v":13},1.0373248682803962,1.645]
[null,null,null,null,null,null,null,"Owner 25.0 to 29.9 percent",null,"N",{"$f":"OwnerHousingCostPrior5Year!$Q$53/1.645","v":21.586967665124259},{"$f":"OwnerHousingCost!$Q$53/1.645","v":20.051577510602606},29.462907759398501,{"$f":"OwnerHousingCostPrior5Year!$P$53-OwnerHousingCost!$P$53","v":-22},0.74670158762527861,1.645]
[null,null,null,null,null,null,null,"Owner 30.0 or more",null,"N",{"$f":"OwnerHousingCostPrior5Year!$Q$54/1.645","v":2.43161094224924},{"$f":"OwnerHousingCost!$Q$54/1.645","v":2.43161094224924},3.438817172943696,{"$f":"OwnerHousingCostPrior5Year!$P$54-OwnerHousingCost!$P$54","v":-1},0.29079766376296767,1.645]

{"sheet":"SmallTownEmploymentandWages","index":73,"n_rows":77,"n_cols":14,"rows_kept":77,"cut":false,"hidden":true,"merged":[[66,1,67,3],[35,1,35,2],[73,1,73,2]]}
[]
[null,{"$f":"CntyDataLink!A35","v":"Albany"}]
[]
[null,"EMPLOYMENT CHARACTERISTICS"]
[]
[]
[]
[]
[]
[]
[]
[]
[]
[]
[]
[]
[]
[]
[]
[]
[]
[]
[]
[]
[]
[]
[]
[]
[null,"Annual Average Covered Private Employment "]
[null,null,null,"Source: NH Department of Employment Security, Covered Private Employment by location of employment"]
[null,null,2009,{"$f":"C31+1","v":2010},{"$f":"D31+1","v":2011},2012,2013,2014,2015,2016,2017,2018,2019,"Total Change  "]
[null,"Goods Producing",{"$f":"IF((CntyDataLink!$BQ$25)=\"n\",NA(),IF(VALUE(CntyDataLink!$BQ$25)=\"\",NA(),VALUE(CntyDataLink!$BQ$25)))","v":31},{"$f":"IF((CntyDataLink!$BY$25)=\"n\",NA(),IF(VALUE(CntyDataLink!$BY$25)=\"\",NA(),VALUE(CntyDataLink!$BY$25)))","v":32},{"$f":"IF((CntyDataLink!$CG$25)=\"n\",NA(),IF(VALUE(CntyDataLink!$CG$25)=\"\",NA(),VALUE(CntyDataLink!$CG$25)))","v":{"$error":"#N/A"}},{"$f":"IF((CntyDataLink!$CO$25)=\"n\",NA(),IF(VALUE(CntyDataLink!$CO$25)=\"\",NA(),VALUE(CntyDataLink!$CO$25)))","v":25},{"$f":"IF((CntyDataLink!$CW$25)=\"n\",NA(),IF(VALUE(CntyDataLink!$CW$25)=\"\",NA(),VALUE(CntyDataLink!$CW$25)))","v":16},{"$f":"IF((CntyDataLink!$DE$25)=\"n\",NA(),IF(VALUE(CntyDataLink!$DE$25)=\"\",NA(),VALUE(CntyDataLink!$DE$25)))","v":15},{"$f":"IF((CntyDataLink!$DM$25)=\"n\",NA(),IF(VALUE(CntyDataLink!$DM$25)=\"\",NA(),VALUE(CntyDataLink!$DM$25)))","v":13},{"$f":"IF((CntyDataLink!$DU$25)=\"n\",NA(),IF(VALUE(CntyDataLink!$DU$25)=\"\",NA(),VALUE(CntyDataLink!$DU$25)))","v":{"$error":"#N/A"}},{"$f":"IF((CntyDataLink!$EC$25)=\"n\",NA(),IF(VALUE(CntyDataLink!$EC$25)=\"\",NA(),VALUE(CntyDataLink!$EC$25)))","v":{"$error":"#N/A"}},{"$f":"IF((CntyDataLink!$EK$25)=\"n\",NA(),IF(VALUE(CntyDataLink!$EK$25)=\"\",NA(),VALUE(CntyDataLink!$EK$25)))","v":{"$error":"#N/A"}},{"$f":"IF((CntyDataLink!$ET$25)=\"n\",NA(),IF(VALUE(CntyDataLink!$ET$25)=\"\",NA(),VALUE(CntyDataLink!$ET$25)))","v":27},{"$f":"$M32-C32","v":-4}]
[null,"Service Providing",{"$f":"IF((CntyDataLink!$BR$25)=\"n\",NA(),IF(VALUE(CntyDataLink!$BR$25)=\"\",NA(),VALUE(CntyDataLink!$BR$25)))","v":58},{"$f":"IF((CntyDataLink!$BZ$25)=\"n\",NA(),IF(VALUE(CntyDataLink!$BZ$25)=\"\",NA(),VALUE(CntyDataLink!$BZ$25)))","v":70},{"$f":"IF((CntyDataLink!$CH$25)=\"n\",NA(),IF(VALUE(CntyDataLink!$CH$25)=\"\",NA(),VALUE(CntyDataLink!$CH$25)))","v":{"$error":"#N/A"}},{"$f":"IF((CntyDataLink!$CP$25)=\"n\",NA(),IF(VALUE(CntyDataLink!$CP$25)=\"\",NA(),VALUE(CntyDataLink!$CP$25)))","v":96},{"$f":"IF((CntyDataLink!$CX$25)=\"n\",NA(),IF(VALUE(CntyDataLink!$CX$25)=\"\",NA(),VALUE(CntyDataLink!$CX$25)))","v":84},{"$f":"IF((CntyDataLink!$DF$25)=\"n\",NA(),IF(VALUE(CntyDataLink!$DF$25)=\"\",NA(),VALUE(CntyDataLink!$DF$25)))","v":92},{"$f":"IF((CntyDataLink!$DN$25)=\"n\",NA(),IF(VALUE(CntyDataLink!$DN$25)=\"\",NA(),VALUE(CntyDataLink!$DN$25)))","v":86},{"$f":"IF((CntyDataLink!$DV$25)=\"n\",NA(),IF(VALUE(CntyDataLink!$DV$25)=\"\",NA(),VALUE(CntyDataLink!$DV$25)))","v":{"$error":"#N/A"}},{"$f":"IF((CntyDataLink!$ED$25)=\"n\",NA(),IF(VALUE(CntyDataLink!$ED$25)=\"\",NA(),VALUE(CntyDataLink!$ED$25)))","v":{"$error":"#N/A"}},{"$f":"IF((CntyDataLink!$EL$25)=\"n\",NA(),IF(VALUE(CntyDataLink!$EL$25)=\"\",NA(),VALUE(CntyDataLink!$EL$25)))","v":{"$error":"#N/A"}},{"$f":"IF((CntyDataLink!$EU$25)=\"n\",NA(),IF(VALUE(CntyDataLink!$EU$25)=\"\",NA(),VALUE(CntyDataLink!$EU$25)))","v":94},{"$f":"$M33-C33","v":36}]
[null,"Total Private Emp",{"$f":"IF((CntyDataLink!$BP$25)=\"n\",NA(),IF(VALUE(CntyDataLink!$BP$25)=\"\",NA(),VALUE(CntyDataLink!$BP$25)))","v":89},{"$f":"IF((CntyDataLink!$BX$25)=\"n\",NA(),IF(VALUE(CntyDataLink!$BX$25)=\"\",NA(),VALUE(CntyDataLink!$BX$25)))","v":101},{"$f":"IF((CntyDataLink!$CF$25)=\"n\",NA(),IF(VALUE(CntyDataLink!$CF$25)=\"\",NA(),VALUE(CntyDataLink!$CF$25)))","v":98},{"$f":"IF((CntyDataLink!$CN$25)=\"n\",NA(),IF(VALUE(CntyDataLink!$CN$25)=\"\",NA(),VALUE(CntyDataLink!$CN$25)))","v":121},{"$f":"IF((CntyDataLink!$CV$25)=\"n\",NA(),IF(VALUE(CntyDataLink!$CV$25)=\"\",NA(),VALUE(CntyDataLink!$CV$25)))","v":101},{"$f":"IF((CntyDataLink!$DD$25)=\"n\",NA(),IF(VALUE(CntyDataLink!$DD$25)=\"\",NA(),VALUE(CntyDataLink!$DD$25)))","v":107},{"$f":"IF((CntyDataLink!$DL$25)=\"n\",NA(),IF(VALUE(CntyDataLink!$DL$25)=\"\",NA(),VALUE(CntyDataLink!$DL$25)))","v":99},{"$f":"IF((CntyDataLink!$DT$25)=\"n\",NA(),IF(VALUE(CntyDataLink!$DT$25)=\"\",NA(),VALUE(CntyDataLink!$DT$25)))","v":114},{"$f":"IF((CntyDataLink!$EB$25)=\"n\",NA(),IF(VALUE(CntyDataLink!$EB$25)=\"\",NA(),VALUE(CntyDataLink!$EB$25)))","v":118},{"$f":"IF((CntyDataLink!$EJ$25)=\"n\",NA(),IF(VALUE(CntyDataLink!$EJ$25)=\"\",NA(),VALUE(CntyDataLink!$EJ$25)))","v":126},{"$f":"IF((CntyDataLink!$ER$25)=\"n\",NA(),IF(VALUE(CntyDataLink!$ER$25)=\"\",NA(),VALUE(CntyDataLink!$ER$25)))","v":120},{"$f":"$M34-C34","v":31}]
[]
[null,"% Change from prior Year",null,"09-10","10-11","11-12","12-13","13-14","14-15","15-16","16-17","17-18","18-19","Total % Change"]
[null,"Goods Producing",null,{"$f":"(D32-C32)/C32","v":3.2258064516129031E-2},{"$error":"#N/A"},{"$error":"#N/A"},-0.36,-6.25E-2,{"$f":"(I32-H32)/H32","v":-0.13333333333333333},{"$error":"#N/A"},{"$error":"#N/A"},{"$error":"#N/A"},{"$error":"#N/A"},{"$f":"N32/C32","v":-0.12903225806451613}]
[null,"Service Providing",null,0.20689655172413793,{"$error":"#N/A"},{"$error":"#N/A"},{"$f":"(G33-F33)/F33","v":-0.125},9.5238095238095233E-2,-6.5217391304347824E-2,{"$error":"#N/A"},{"$error":"#N/A"},{"$error":"#N/A"},{"$error":"#N/A"},{"$f":"N33/C33","v":0.62068965517241381}]
[null,"Total Private Emp",null,0.1348314606741573,-2.9702970297029702E-2,0.23469387755102042,-0.16528925619834711,5.9405940594059403E-2,-7.476635514018691E-2,0.15151515151515152,3.5087719298245612E-2,6.7796610169491525E-2,-4.7619047619047616E-2,{"$f":"N34/C34","v":0.34831460674157305}]
[]
[]
[null,"EMPLOYMENT CHARACTERISTICS"]
[]
[]
[]
[]
[]
[]
[]
[]
[]
[]
[]
[]
[]
[]
[]
[]
[]
[]
[]
[]
[]
[]
[]
[]
[null,"Covered Private Employment Average Wages",null,null,"Source: NH Department of Employment Security, Covered Private Employment"]
[]
[null,null,2009,{"$f":"C69+1","v":2010},{"$f":"D69+1","v":2011},{"$f":"E69+1","v":2012},2013,2014,2015,2016,2017,2018,2019,"Total $ Change"]
[null,"Goods Producing",{"$f":"IF((CntyDataLink!$BU$25)=\"n\",NA(),IF(VALUE(CntyDataLink!$BU$25)=\"\",NA(),VALUE(CntyDataLink!$BU$25)))","v":645.57000000000005},{"$f":"IF((CntyDataLink!$CC$25)=\"n\",NA(),IF(VALUE(CntyDataLink!$CC$25)=\"\",NA(),VALUE(CntyDataLink!$CC$25)))","v":669.95},{"$f":"IF((CntyDataLink!$CK$25)=\"n\",NA(),IF(VALUE(CntyDataLink!$CK$25)=\"\",NA(),VALUE(CntyDataLink!$CK$25)))","v":{"$error":"#N/A"}},{"$f":"IF((CntyDataLink!$CS$25)=\"n\",NA(),IF(VALUE(CntyDataLink!$CS$25)=\"\",NA(),VALUE(CntyDataLink!$CS$25)))","v":727.6},{"$f":"IF((CntyDataLink!$DA$25)=\"n\",NA(),IF(VALUE(CntyDataLink!$DA$25)=\"\",NA(),VALUE(CntyDataLink!$DA$25)))","v":751.25},{"$f":"IF((CntyDataLink!$DI$25)=\"n\",NA(),IF(VALUE(CntyDataLink!$DI$25)=\"\",NA(),VALUE(CntyDataLink!$DI$25)))","v":695.65},{"$f":"IF((CntyDataLink!$DQ$25)=\"n\",NA(),IF(VALUE(CntyDataLink!$DQ$25)=\"\",NA(),VALUE(CntyDataLink!$DQ$25)))","v":796.77},{"$f":"IF((CntyDataLink!$DY$25)=\"n\",NA(),IF(VALUE(CntyDataLink!$DY$25)=\"\",NA(),VALUE(CntyDataLink!$DY$25)))","v":{"$error":"#N/A"}},{"$f":"IF((CntyDataLink!$EG$25)=\"n\",NA(),IF(VALUE(CntyDataLink!$EG$25)=\"\",NA(),VALUE(CntyDataLink!$EG$25)))","v":{"$error":"#N/A"}},{"$f":"IF((CntyDataLink!$EO$25)=\"n\",NA(),IF(VALUE(CntyDataLink!$EO$25)=\"\",NA(),VALUE(CntyDataLink!$EO$25)))","v":{"$error":"#N/A"}},{"$f":"IF((CntyDataLink!$EY$25)=\"n\",NA(),IF(VALUE(CntyDataLink!$EY$25)=\"\",NA(),VALUE(CntyDataLink!$EY$25)))","v":803.32},{"$f":"M70-C70","v":157.75}]
[null,"Service Providing",{"$f":"IF((CntyDataLink!$BV$25)=\"n\",NA(),IF(VALUE(CntyDataLink!$BV$25)=\"\",NA(),VALUE(CntyDataLink!$BV$25)))","v":369.62},{"$f":"IF((CntyDataLink!$CD$25)=\"n\",NA(),IF(VALUE(CntyDataLink!$CD$25)=\"\",NA(),VALUE(CntyDataLink!$CD$25)))","v":380.83},{"$f":"IF((CntyDataLink!$CL$25)=\"n\",NA(),IF(VALUE(CntyDataLink!$CL$25)=\"\",NA(),VALUE(CntyDataLink!$CL$25)))","v":{"$error":"#N/A"}},{"$f":"IF((CntyDataLink!$CT$25)=\"n\",NA(),IF(VALUE(CntyDataLink!$CT$25)=\"\",NA(),VALUE(CntyDataLink!$CT$25)))","v":361.82},{"$f":"IF((CntyDataLink!$DB$25)=\"n\",NA(),IF(VALUE(CntyDataLink!$DB$25)=\"\",NA(),VALUE(CntyDataLink!$DB$25)))","v":399.38},{"$f":"IF((CntyDataLink!$DJ$25)=\"n\",NA(),IF(VALUE(CntyDataLink!$DJ$25)=\"\",NA(),VALUE(CntyDataLink!$DJ$25)))","v":411.53},{"$f":"IF((CntyDataLink!$DR$25)=\"n\",NA(),IF(VALUE(CntyDataLink!$DR$25)=\"\",NA(),VALUE(CntyDataLink!$DR$25)))","v":407.05},{"$f":"IF((CntyDataLink!$DZ$25)=\"n\",NA(),IF(VALUE(CntyDataLink!$DZ$25)=\"\",NA(),VALUE(CntyDataLink!$DZ$25)))","v":{"$error":"#N/A"}},{"$f":"IF((CntyDataLink!EG$25)=\"n\",NA(),IF(VALUE(CntyDataLink!$EH$25)=\"\",NA(),VALUE(CntyDataLink!$EH$25)))","v":{"$error":"#N/A"}},{"$f":"IF((CntyDataLink!EO$25)=\"n\",NA(),IF(VALUE(CntyDataLink!$EP$25)=\"\",NA(),VALUE(CntyDataLink!$EP$25)))","v":{"$error":"#N/A"}},{"$f":"IF((CntyDataLink!EZ$25)=\"n\",NA(),IF(VALUE(CntyDataLink!$EZ$25)=\"\",NA(),VALUE(CntyDataLink!$EZ$25)))","v":578.52},{"$f":"M71-C71","v":208.89999999999998}]
[null,"Total Private Emp",{"$f":"IF((CntyDataLink!$BT$25)=\"n\",NA(),IF(VALUE(CntyDataLink!$BT$25)=\"\",NA(),VALUE(CntyDataLink!$BT$25)))","v":465.23},{"$f":"IF((CntyDataLink!$CB$25)=\"n\",NA(),IF(VALUE(CntyDataLink!$CB$25)=\"\",NA(),VALUE(CntyDataLink!$CB$25)))","v":471.65},{"$f":"IF((CntyDataLink!$CJ$25)=\"n\",NA(),IF(VALUE(CntyDataLink!$CJ$25)=\"\",NA(),VALUE(CntyDataLink!$CJ$25)))","v":486.7},{"$f":"IF((CntyDataLink!$CR$25)=\"n\",NA(),IF(VALUE(CntyDataLink!$CR$25)=\"\",NA(),VALUE(CntyDataLink!$CR$25)))","v":438.06},{"$f":"IF((CntyDataLink!$CZ$25)=\"n\",NA(),IF(VALUE(CntyDataLink!$CZ$25)=\"\",NA(),VALUE(CntyDataLink!$CZ$25)))","v":456.81},{"$f":"IF((CntyDataLink!$DH$25)=\"n\",NA(),IF(VALUE(CntyDataLink!$DH$25)=\"\",NA(),VALUE(CntyDataLink!$DH$25)))","v":451.52},{"$f":"IF((CntyDataLink!$DP$25)=\"n\",NA(),IF(VALUE(CntyDataLink!$DP$25)=\"\",NA(),VALUE(CntyDataLink!$DP$25)))","v":458.44},{"$f":"IF((CntyDataLink!$DX$25)=\"n\",NA(),IF(VALUE(CntyDataLink!$DX$25)=\"\",NA(),VALUE(CntyDataLink!$DX$25)))","v":505.69},{"$f":"IF((CntyDataLink!$EF$25)=\"n\",NA(),IF(VALUE(CntyDataLink!$EF$25)=\"\",NA(),VALUE(CntyDataLink!$EF$25)))","v":552.39},{"$f":"IF((CntyDataLink!$EN$25)=\"n\",NA(),IF(VALUE(CntyDataLink!$EN$25)=\"\",NA(),VALUE(CntyDataLink!$EN$25)))","v":609.08000000000004},{"$f":"IF((CntyDataLink!$EW$25)=\"n\",NA(),IF(VALUE(CntyDataLink!$EW$25)=\"\",NA(),VALUE(CntyDataLink!$EW$25)))","v":628.27},{"$f":"M72-C72","v":163.03999999999996}]
[]
[null,"% Change from prior Year",null,{"$f":"D36","v":"09-10"},"10-11","11-12","12-13","13-14","14-15","15-16","16-17","17-18","18-19","Total % Change"]
[null,"Goods Producing",null,{"$f":"(D70-C70)/C70","v":3.7765075824465193E-2},{"$error":"#N/A"},{"$error":"#N/A"},3.2504123144584902E-2,-7.4009983361064915E-2,0.14536045425141955,{"$error":"#N/A"},{"$error":"#N/A"},{"$error":"#N/A"},{"$error":"#N/A"},{"$f":"N70/C70","v":0.24435769939743171}]
[null,"Service Providing",null,3.0328445430442021E-2,{"$error":"#N/A"},{"$error":"#N/A"},0.10380852357525842,3.0422154339225745E-2,-1.0886205136927956E-2,{"$error":"#N/A"},{"$error":"#N/A"},{"$error":"#N/A"},{"$error":"#N/A"},{"$f":"N71/C71","v":0.56517504464044144}]
[null,"Total Private Emp",null,1.3799625991445004E-2,3.1909254743983914E-2,-9.9938360386274891E-2,4.2802355841665522E-2,-1.1580306910969595E-2,1.5326009922041141E-2,0.10306692260710235,9.2349067610591445E-2,0.10262676732019055,3.1506534445392954E-2,{"$f":"N72/C72","v":0.35045031489800732}]